{"text_format":"1","workbook":"xlsx","n_sheets":19,"sheets":["RRQ Allocations","Selected Data ","Caveats","Instructions","Summary","Res Bill Impact","Incremental Rev Req","Authorized Rev Req","SAR and RAR","Res_RD","Instructions-Hypothetical","Hypothetical Summary","Instructions-Rate Trajectory","Rate Trajectory Dashboard","Rate Trajectory Report","Hypothetical SAR and RAR","Hypothetical Res_RD","Hypothetical Res Bill Impact","Rate Trajectory Calc"],"not_rendered":{"charts":0,"images":8,"macros":1,"external_links":1,"defined_names":823,"comments":1,"pivot_tables":0},"unopened":[],"bounds":{"document_bytes":16777216,"sheet_cells":100000,"rows_first":2000,"rows_last":500,"rows_between":2000,"halvings":0,"cell_chars":16384,"cell_head_chars":4096},"cells_cut":0,"cells_raw":0,"read":"whole","date_system":"1900"}

{"sheet":"RRQ Allocations","index":0,"n_rows":31,"n_cols":14,"rows_kept":31,"cut":false,"hidden":false,"merged":[[0,15,0,21]]}
[null,null,null,"RRQ Type 1/"]
[null,null,null,"T = Transportation"]
[null,null,null,"P = Procurement",null,null,null,"% Residential",null,"% Residential",null,"% Bundled"]
[null,"Allocation Methodology",null,"PPP = Public Purpose",null,"Description",null,"of Total Allocated",null,"that is Bundled 2/",null,"of Total Allocated",null,"Authorizing Decision"]
[null,"100% Residential",null,"T",null,"100% allocated to residential class",null,1,null,0.89758920993798852,null,0.89758920993798852,null,"D.18-03-017 (for GHG)"]
[null,"Core - Distribution",null,"T",null,null,null,0.80874369650738398,null,0.89758920993798852,null,0.81299229046398092]
[null,"Distribution",null,"T",null,"• Marginal Cost using Rental Method for Customer Function and Marginal Cost of $373.74 for Distribution Function applied to peak day in avg. temp winter\n• Allocation to Small Commercial is capped at 17.717% with overage re-allocated to Residential",null,0.78483921120959532,null,0.89758920993798852,null,0.82411822317989403,null,"D.19-10-036"]
[null,"ECPT - ALL",null,"T",null,null,null,0.27227602583496341,null,0.89758920993798852,null,0.33306032920299472]
[null,"ECPT - Core only",null,"T",null,"Core Brokerage Fee:\nThe Core Brokerage Fee is part of the distribution revenue requirement.  In transportation the RRQ is reduced and then it is recovered via the customers that pay PG&E procurement rates.\nPension Contribution - GT&S Core:\n",null,0.66456073316326192,null,0.89758920993798852,null,0.81292069650267784,null,"D.95-07-048 (for Core Brokerage Fee)\n"]
[null,"ECPT - Noncore only",null,"T",null,null,null,0,null,0,null,0]
[null,"ECPT - 50% Core / 50% Noncore",null,"T",null,null,null,0.33228036658163096,null,0.89758920993798852,null,0.40640697425223005]
[null,"ECPT (excludes Covered Entities 3 yr avg vol)",null,"T",null,null,null,0.35793843573234274,null,0.89758920993798852,null,0.43752325493175787]
[null,"EE",null,"PPP",null,null,null,0.33839999999999998,null,0.89758920993798852,null,0.52636006239220023,null,"D.19-10-036"]
[null,"ESA",null,"PPP",null,null,null,1,null,0.89758920993798841,null,0.89758920993798841,null,"D.19-10-036\nD.95-12-053"]
[null,"PPP ECPT",null,"PPP",null,null,null,0.3972263923754053,null,0.89758920993798841,null,0.48415022064285584]
[null,"SGIP allocation",null,"T",null,null,null,0.9155803564097198,null,0.89758920993798852,null,0.87599432226099605]
[null,"CPUC Fee Allocation",null,"T",null,null,null,0.36756898524886344,null,0.89758920993798852,null,0.44778461232099998]
[null,"CAC Allocation",null,"T",null,null,null,0,null,0,null,0]
[null,"Storage Allocation  (Procurement)",null,"P",null,null,null,0.79129057151110394,null,1,null,1]
[null,"Capacity Allocation (Procurement)",null,"P",null,null,null,0.79332886653955093,null,1,null,1]
[null,"ECPT - Core only  (Procurement)",null,"P",null,"The Core Brokerage Fee is part of the distribution revenue requirement.  In transportation the RRQ is reduced and then it is recovered via the customers that pay PG&E procurement rates.",null,0.73396510481118205,null,1,null,1,null,"D.95-07-048 (for Core Brokerage Fee)\n"]
[null,"2023 GTS - Inventory Management",null,"T",null,"Adopted in 2023 GTS CARD ",null,0.35919768458710166,null,0.89758920993798852,null,0.43037357942349036,null,"D.24-03-002\n"]
[null,"User Defined 1",null,"T",null,"Short Description of Allocation"]
[null,"User Defined 2",null,"T",null,"Short Description of Allocation"]
[null,"User Defined 3",null,"T",null,"Short Description of Allocation"]
[]
[]
[]
[null,"NOTES:"]
[null,"1/ For User Defined allocations, user must select the RRQ type."]
[null,{"$f":"CONCATENATE(\"2/ If the allocation applies to the entire system, then the Bundled Residential percentage will be \",TEXT(J5,\"0.00%\"),\". if the allocation applies only to Bundled, then the Bundled Residential percentage will be 100%.\")","v":"2/ If the allocation applies to the entire system, then the Bundled Residential percentage will be 89.76%. if the allocation applies only to Bundled, then the Bundled Residential percentage will be 100%."}]

{"sheet":"Selected Data ","index":1,"n_rows":50,"n_cols":23,"rows_kept":50,"cut":false,"hidden":false,"merged":[[30,1,30,15],[37,1,37,15]]}
["Summary of Selected Data "]
[null,null,null,null,null,null,null,null,null,null,null,null,null,null,null,null,"Revenue"]
[null,null,null,null,null,null,null,null,null,null,null,null,null,null,null,null," Requirement"]
[null,null,null,null,null,null,null,null,null,null,null,null,null,null,null,null,"$000"]
[1,"Current total system-level revenue requirement that is used for defining the reporting threshold:",null,null,null,null,null,null,null,null,null,null,null,null,null,null,{"$f":"'Incremental Rev Req'!D73","v":6935209.050720104}]
[null,"A","One-percent reporting threshold",null,null,null,null,null,null,null,null,null,null,null,null,null,{"$f":"Q5*0.01","v":69352.090507201036}]
[]
[2,"List of currently open proceedings that exceed the threshold for use of the affordability metrics (proceedings shaded gray filed prior to D.22-08-023):"]
[null,"A","A.24-09-015","TRRRMA ",null,null,null,null,null,null,null,null,null,null,null,null,{"$f":"'Incremental Rev Req'!$D$97+'Incremental Rev Req'!$D$98","v":151621.88307436384}]
[null,"B","A.24-11-009","2024 Wildfire Mitigation and Catastrophic Events ",null,null,null,null,null,null,null,null,null,null,null,null,{"$f":"'Incremental Rev Req'!D86+'Incremental Rev Req'!D87","v":72117.033168309601}]
[null,"C","A.25-03-010","2026 Cost of Capital",null,null,null,null,null,null,null,null,null,null,null,null,{"$f":"'Incremental Rev Req'!D88+'Incremental Rev Req'!D89","v":195856.54506003068}]
[null,"D","A.25-05-009","2027 GRC (incremental from 2026 authorized RRQs)",null,null,null,null,null,null,null,null,null,null,null,null,{"$f":"SUM('Incremental Rev Req'!O99:O106)","v":120656.63415750687}]
[]
[3,"List of currently open proceedings for which affordability metrics have been filed:"]
[null,"A","A.24-09-015","TRRRMA ",null,null,null,null,null,null,null,null,null,null,null,null,{"$f":"'Incremental Rev Req'!$D$97+'Incremental Rev Req'!$D$98","v":151621.88307436384}]
[null,"B","A.24-11-009","2024 Wildfire Mitigation and Catastrophic Events ",null,null,null,null,null,null,null,null,null,null,null,null,{"$f":"'Incremental Rev Req'!D86+'Incremental Rev Req'!D87","v":72117.033168309601}]
[null,"C","A.25-03-010","2026 Cost of Capital",null,null,null,null,null,null,null,null,null,null,null,null,{"$f":"'Incremental Rev Req'!D88+'Incremental Rev Req'!D89","v":195856.54506003068}]
[null,"D","A.25-05-009","2027 GRC (incremental from 2026 authorized RRQs)",null,null,null,null,null,null,null,null,null,null,null,null,{"$f":"SUM('Incremental Rev Req'!O99:O106)","v":120656.63415750687}]
[4,"List of currently open proceedings that do not exceed the threshold for use of the affordability metrics (proceedings shaded gray filed prior to D.22-08-023):"]
[null,"A","A.22-12-009","2022 Wildfire Mitigation and Catastrophic Events",null,null,null,null,null,null,null,null,null,null,null,null,{"$f":"'Incremental Rev Req'!D96","v":16214.970094191543}]
[null,"B","A. 24-10-004","Billing Modernization",null,null,null,null,null,null,null,null,null,null,null,null,{"$f":"'Incremental Rev Req'!$D$82+'Incremental Rev Req'!$D$83","v":27630.631056388702}]
[null,"C","A.22-09-006","Hydrogen Demonstration Project (2027)",null,null,null,null,null,null,null,null,null,null,null,null,{"$f":"'Incremental Rev Req'!$D$85","v":3022.0229370078714}]
[null,"D","A.24-03-011","Gas Advanced Metering Infrastructure (AMI) (distribution) (March 2025)",null,null,null,null,null,null,null,null,null,null,null,null,{"$f":"'Incremental Rev Req'!$D$90+'Incremental Rev Req'!$D$91","v":47547.017095950163}]
[null,"E","A.23-12-001","2023 Wildfire Mitigation and Catastrophic Events (distribution)",null,null,null,null,null,null,null,null,null,null,null,null,{"$f":"'Incremental Rev Req'!$D$92+'Incremental Rev Req'!$D$93","v":19557.802566769547}]
[null,"F","A.23-06-008","Wildfire Gas and Safety Costs",null,null,null,null,null,null,null,null,null,null,null,null,{"$f":"'Incremental Rev Req'!$D$94+'Incremental Rev Req'!$D$95","v":50806.559239058639}]
[null,"G","A.25-04-004","Hinkley Upgrade",null,null,null,null,null,null,null,null,null,null,null,null,{"$f":"'Incremental Rev Req'!D81","v":3170.0085966546521}]
[null,"H","A.25-06-024","2027 ESA/CARE Bridge Funding",null,null,null,null,null,null,null,null,null,null,null,null,{"$f":"'Incremental Rev Req'!D79+'Incremental Rev Req'!D80","v":57626.281049999991}]
[null,"I"]
[null,"J"]
[]
[5,"Total system-level revenue requirement if all pending revenue were granted in full:\nrequests were granted in full"]
[null,"A","YE 2025",null,null,null,null,null,null,null,null,null,null,null,null,null,{"$f":"'Incremental Rev Req'!G73+'Incremental Rev Req'!M114","v":6935209.0507201049}]
[null,"B","YE 2026",null,null,null,null,null,null,null,null,null,null,null,null,null,{"$f":"'Incremental Rev Req'!H73+'Incremental Rev Req'!N114","v":7054501.7490874268}]
[null,"C","YE 2027",null,null,null,null,null,null,null,null,null,null,null,null,null,{"$f":"'Incremental Rev Req'!I73+'Incremental Rev Req'!O114","v":6720227.8581981538}]
[null,"D","YE 2028",null,null,null,null,null,null,null,null,null,null,null,null,null,{"$f":"'Incremental Rev Req'!J73+'Incremental Rev Req'!P114","v":7028717.9915029258}]
[null,"E","YE 2029",null,null,null,null,null,null,null,null,null,null,null,null,null,{"$f":"'Incremental Rev Req'!K73+'Incremental Rev Req'!Q114","v":7287153.1996840276}]
[]
[6,"Illustrative bundled residential average rate (RAR) if all pending revenue were granted in full (from Cost and Rate Tracker (CRT) as submitted by utility):",null,null,null,null,null,null,null,null,null,null,null,null,null,null,null,"$/therm",null,"Live Link:"]
[null,"A",{"$f":"C32","v":"YE 2025"},null,null,null,null,null,null,null,null,null,null,null,null,null,null,2.7294848958364812,null,{"$f":"Summary!G45","v":2.9105486350119674}]
[null,"B",{"$f":"C33","v":"YE 2026"},null,null,null,null,null,null,null,null,null,null,null,null,null,null,2.8206130336191699]
[null,"C",{"$f":"C34","v":"YE 2027"},null,null,null,null,null,null,null,null,null,null,null,null,null,null,2.6847265540608669]
[null,"D",{"$f":"C35","v":"YE 2028"},null,null,null,null,null,null,null,null,null,null,null,null,null,null,2.810438989788171]
[null,"E",{"$f":"C36","v":"YE 2029"},null,null,null,null,null,null,null,null,null,null,null,null,null,null,2.9105486350119674]
[null,null,null,null,null,null,null,null,null,null,null,null,null,null,null,null,null,null,null,null,null,"Live Link:",{"$f":"Summary_Year","v":2029}]
[7,{"$f":"CONCATENATE(\"Illustrative bundled residential average monthly bill corresponding to RAR above for typical customer in climate zone X using \",Summary!L16,\" therms for Non-CARE and \",Summary!L17,\" therms for CARE (from CRT as submitted by utility):\")","v":"Illustrative bundled residential average monthly bill corresponding to RAR above for typical customer in climate zone X using 31 therms for Non-CARE and 26 therms for CARE (from CRT as submitted by utility):"},null,null,null,null,null,null,null,null,null,null,null,null,null,null,null,null,"Non-CARE","CARE",null,"Non-CARE","CARE"]
[null,"A",{"$f":"C32","v":"YE 2025"},null,null,null,null,null,null,null,null,null,null,null,null,null,null,null,83.44962879375727,52.709961229451785,null,{"$f":"Summary!G101","v":89.378050521973279},{"$f":"Summary!G102","v":56.528033788188552}]
[null,"B",{"$f":"C33","v":"YE 2026"},null,null,null,null,null,null,null,null,null,null,null,null,null,null,null,86.440464571747583,54.611761162268621]
[null,"C",{"$f":"C34","v":"YE 2027"},null,null,null,null,null,null,null,null,null,null,null,null,null,null,null,82.024806592654215,51.651635256970074]
[null,"D",{"$f":"C35","v":"YE 2028"},null,null,null,null,null,null,null,null,null,null,null,null,null,null,null,86.107044193777611,54.397927922703289]
[null,"E",{"$f":"C36","v":"YE 2029"},null,null,null,null,null,null,null,null,null,null,null,null,null,null,null,89.378050521973279,56.528033788188552]

{"sheet":"Caveats","index":2,"n_rows":5,"n_cols":1,"rows_kept":5,"cut":false,"hidden":false,"merged":[[4,0,4,15],[0,0,0,17]]}
["Cost and Rate Tracking Tool Caveats"]
["* The Quarterly Tracker performs high-level rate and bill calculation estimates, which will not produce rate or bill impacts that match PG&E’s filing-quality models."]
["* The forecast assumes perfect ratemaking, and does not include balancing account balances beyond the current year."]
["* Different rate components use simplified allocations that may not reflect actual revenue allocation and rate design."]
["* This model produces illustrative rates based on a single average throughput forecast. Actual ratemaking uses multiple throughput forecasts depending on revenue requirement type. Therefore, differences in illustrative v. actual rates will exist."]

{"sheet":"Instructions","index":3,"n_rows":121,"n_cols":12,"rows_kept":121,"cut":false,"hidden":false,"merged":[]}
["INSTRUCTIONS TO RUN \"BASIC\" MODEL"]
["CLICK HERE FOR INSTRUCTIONS ON VALIDATING AGAINST BILL INSERT"]
[]
[]
[null,"The \"non-hypothetical\" portion of this model produces illustrative rates and illustrative residential bill calculations based on selected user inputs."]
[null,"PLEASE DO NOT INSERT ROWS OR COLUMNS INTO THE SUMMARY"]
[null,"To run the \"non-hypothetical\" portion of the model:"]
[]
[null,"1.","User drop down selections are highlighted in green."]
[null,"2.","In cell D3 of the \"Summary\" tab, from the dropdown choices, select the year for which illustrative rate impacts are desired (ILLUSTRATION 1)."]
[null,"3.","In cell D4 of the \"Summary\" tab, select, from the dropdown choices, the baseline territory for which illustrative bill impacts are desired."]
[null,"4.","On the \"Summary\" tab, in the \"Pending Proceedings\" section beginning on line 7, indicate whether the RRQ associated with the proceeding should be included in the illustrative bill impact analysis"]
[null,null," by selecting from the dropdown choices in column D, a \"Y\" or \"N\" where \"Y\" means to include the RRQ in the analysis and \"N\" means to not include the RRQ in the analysis (ILLUSTRATION 1)."]
[null,"5.","Create illustrative tiered residential rates by executing the \"Run Residential Rate Tiering\" macro (ILLUSTRATION 1)."]
[null,null,"- note that, pursuant to D.19-10-036, Ordering Paragraph 4, the tier ratios change in January of each year based on the year selected in step 2. above as described in the table below. "]
[null,null,null,null,"For 2025 revenues",".","1.20 (Note that the initial tiering factor for 2025 has been set at 1.24 therefore the factor for 2025 will remain at the already established value)"]
[null,null,null,null,"For 2026 + revenues",".",1.2]
[]
[null,null,"ILLUSTRATION 1:",null,null,null,"2.","3.","4.",null,null,"5."]
[]
[]
[]
[]
[]
[]
[]
[]
[]
[]
[]
[]
[]
[]
[null,"5.","In cell D4 of the \"Summary\" tab, from the dropdown choices, select the baseline territory for which illustrative bill impacts are desired."]
[]
[null,"RRQ ALLOCATION OPTIONS:"]
[null,"1.","On the \"RRQ Allocations\" tab there are spaces for the user to enter their own allocation methodology (ILLUSTRATION 2)."]
[null,null,"NOTE that this tab has not been fully populated by PG&E."]
[]
[null,null,"ILLUSTRATION 2"]
[]
[]
[]
[]
[]
[]
[]
[]
[]
[]
[]
[]
[]
[]
[]
[]
[]
[]
[]
[]
[]
[]
[]
[]
[]
[]
[]
[]
[]
[]
[]
[]
[]
[]
[]
[]
[]
[]
[]
[null,"2.","Alternate allocation methodologies may be selected on the \"Incremental Rev Req\" tab (ILLUSTRATION 3)."]
[]
[null,null,"ILLUSTRATION 3"]
[]
[]
[]
[]
[]
[]
[]
[]
[]
[]
[]
[]
[]
[]
[]
[]
[]
[]
[]
[]
[]
[]
[]
[]
[]
[]
[]
[]
[]
[]
[]
[]
["VALIDATING THE RESULTS OF THE \"TYPICAL CUSTOMER\" BILL AGAINST A BILL INSERT"]
[]
[null,"1.","The model is set up to accept separate \"typical\" therms for Non-CARE and CARE customers. (See screenshot below, yellow highlights.)"]
[null,"2.","Ensure that the therms entered in the model match the therms used in the bill insert."]
[null,"3.","Ensure that only the revenue requirement being evaluated is included in the impact. (See step 4 above.)"]
[null,"4.","Run the model as described in the instructions above."]
[null,"5.","Note that, because this is a simplified model, the results will not exactly match the results in the bill insert."]

{"sheet":"Summary","index":4,"n_rows":121,"n_cols":20,"rows_kept":121,"cut":false,"hidden":false,"merged":[[0,1,0,17],[4,11,4,13],[62,1,62,2],[49,1,49,2],[50,1,50,2],[52,1,52,2],[51,1,51,2],[54,1,54,9],[55,1,55,2],[48,1,48,9],[42,1,42,9],[43,1,43,2],[44,1,44,2],[45,1,45,2],[70,1,70,2],[42,11,42,19],[43,11,43,12],[44,11,44,12],[45,11,45,12],[63,1,63,2],[64,1,64,2],[66,1,66,9],[67,1,67,2],[68,1,68,2],[69,1,69,2],[56,1,56,2],[57,1,57,2],[58,1,58,2],[60,1,60,9],[61,1,61,2],[73,1,73,9],[74,1,74,2],[75,1,75,2],[76,1,76,2],[77,1,77,2],[79,1,79,9],[80,1,80,2],[81,1,81,2],[82,1,82,2],[83,1,83,2],[85,1,85,9],[86,1,86,2],[87,1,87,2],[88,1,88,2],[89,1,89,2],[91,1,91,9],[92,1,92,2],[93,1,93,2],[94,1,94,2],[95,1,95,2],[98,1,98,9],[99,1,99,2],[100,1,100,2],[101,1,101,2],[102,1,102,2],[104,1,104,9],[105,1,105,2],[106,1,106,2],[107,1,107,2],[108,1,108,2],[110,1,110,9],[111,1,111,2],[112,1,112,2],[113,1,113,2],[114,1,114,2],[116,1,116,9],[117,1,117,2],[118,1,118,2],[119,1,119,2],[120,1,120,2]]}
[null,"PLEASE DO NOT INSERT ROWS OR COLUMNS"]
[null,"User Inputs (in green highlighted cells - select from drop down menu):",null,null,null,null,null,null,null,"Assumptions:"]
[null,null,"Illustrative Rate Impact for Year (2024-2027)",2029,null,null,null,null,null,"Current Effective Rates",null,"2025-09-01"]
[null,null,"Baseline Region - (Residential bill)","X",null,null,null,null,null,"Throughput Forecast",null,"2023 CARD"]
[null,null,null,null,null,null,null,null,null,"Illustrative Residential bill calculated using",null,"Schedule G-1, Basic, Single Family"]
[null,null,null,null,null,null,null,null,null,"Illustrative Non-CARE bill impact calculated with average summer usage of",null,null,null,{"$f":"IF($D$4=\"ALL CLIMATE ZONES\",SUMPRODUCT('Res Bill Impact'!$Q$22:$Q$30,'Res Bill Impact'!$W$22:$W$30),VLOOKUP(Summary!$D$4,'Res Bill Impact'!$P$22:$V$30,2,FALSE))","v":18},"therms per month"]
[null,"Pending Proceedings",null,"Include in Impact (Y/N)","Applicable Year(s)",null,null,null,null,"Illustrative Non-CARE bill impact calculated with average winter off-peak usage of",null,null,null,{"$f":"IF($D$4=\"ALL CLIMATE ZONES\",SUMPRODUCT('Res Bill Impact'!$R$22:$R$30,'Res Bill Impact'!$W$22:$W$30),VLOOKUP(Summary!$D$4,'Res Bill Impact'!$P$22:$V$30,3,FALSE))","v":45},"therms per month"]
[null,null,null,null,null,null,null,null,null,"Illustrative Non-CARE bill impact calculated with average winter on-peak usage of",null,null,null,{"$f":"IF($D$4=\"ALL CLIMATE ZONES\",SUMPRODUCT('Res Bill Impact'!$S$22:$S$30,'Res Bill Impact'!$W$22:$W$30),VLOOKUP(Summary!$D$4,'Res Bill Impact'!$P$22:$V$30,4,FALSE))","v":58},"therms per month"]
[null,{"$f":"'Incremental Rev Req'!A79","v":"2027 Energy Savings Assistance Bridge Funding"},null,"N",2027,null,null,null,null,"Illustrative CARE bill impact calculated with average summer usage of",null,null,null,{"$f":"IF($D$4=\"ALL CLIMATE ZONES\",SUMPRODUCT('Res Bill Impact'!$T$22:$T$30,'Res Bill Impact'!$X$22:$X$30),VLOOKUP(Summary!$D$4,'Res Bill Impact'!$P$22:$V$30,5,FALSE))","v":17},"therms per month"]
[null,{"$f":"'Incremental Rev Req'!A80","v":"2027 CARE Administrative Bridge Funding"},null,"N",2027,null,null,null,null,"Illustrative CARE bill impact calculated with average winter off-peak usage of",null,null,null,{"$f":"IF($D$4=\"ALL CLIMATE ZONES\",SUMPRODUCT('Res Bill Impact'!$U$22:$U$30,'Res Bill Impact'!$X$22:$X$30),VLOOKUP(Summary!$D$4,'Res Bill Impact'!$P$22:$V$30,6,FALSE))","v":34},"therms per month"]
[null,{"$f":"'Incremental Rev Req'!A81","v":"Hinkley Upgrade"},null,"Y","2028-2029",null,null,null,null,"Illustrative CARE bill impact calculated with average winter on-peak usage of",null,null,null,{"$f":"IF($D$4=\"ALL CLIMATE ZONES\",SUMPRODUCT('Res Bill Impact'!$V$22:$V$30,'Res Bill Impact'!$X$22:$X$30),VLOOKUP(Summary!$D$4,'Res Bill Impact'!$P$22:$V$30,7,FALSE))","v":43},"therms per month"]
[null,{"$f":"'Incremental Rev Req'!A82","v":"Billing Modernization (Distribution)"},null,"Y","2026-2029",null,null,null,null,"Average monthly usage is for all customers (Non-CARE and CARE) based on seasonal usage in",null,null,null,null,null,2024]
[null,{"$f":"'Incremental Rev Req'!A83","v":"Billing Modernization (Transmission)"},null,"Y","2026-2029",null,null,null,null,"Summer Season",null,7,"months"]
[null,{"$f":"'Incremental Rev Req'!A85","v":"Hydrogen Demonstration Project (2027)"},null,"Y","2027-2029",null,null,null,null,"Winter Season Off-peak",null,3,"months"]
[null,{"$f":"'Incremental Rev Req'!A86","v":"2024 Wildfire Mitigation and Catastrophic Events (distribution)"},null,"Y","2026-2029",null,null,null,null,"Winter Season On-peak",null,2,"months"]
[null,{"$f":"'Incremental Rev Req'!A87","v":"2024 Wildfire Mitigation and Catastrophic Events (transmission)"},null,"Y","2026-2029",null,null,null,null,"Typical Non-CARE Residential Customer usage",null,31,"therms per month"]
[null,{"$f":"'Incremental Rev Req'!A88","v":"2026 Cost of Capital (Distribution)"},null,"Y","2026-2029",null,null,null,null,"Typical CARE Residential Customer usage",null,26,"therms per month"]
[null,{"$f":"'Incremental Rev Req'!A89","v":"2026 Cost of Capital (Transmission)"},null,"Y","2026-2029",null,null,null,null,"Residential CARE Customers as Percent of Total Residential Customers",null,null,null,0.22721470327310189]
[null,{"$f":"'Incremental Rev Req'!A90","v":"Gas Advanced Metering Infrastructure (AMI) (distribution) "},null,"N",2026,null,null,null,null,"Historic California Climate Credit",null,67.031907553338471]
[null,{"$f":"'Incremental Rev Req'!A91","v":"Gas AMI (transmission)"},null,"N",2026,null,null,null,null,"Present California Climate Credit",null,67.031907553338471]
[null,{"$f":"'Incremental Rev Req'!A92","v":"2023 Wildfire Mitigation and Catastrophic Events (distribution)"},null,"N",2026]
[null,{"$f":"'Incremental Rev Req'!A93","v":"2023 Wildfire Mitigation and Catastrophic Events (transmission)"},null,"N",2026]
[null,{"$f":"'Incremental Rev Req'!A94","v":"Wildfire Gas and Safety Costs (Distribution) Non-IRR"},null,"N",2026]
[null,{"$f":"'Incremental Rev Req'!A95","v":"Wildfire Gas and Safety Costs (Transmission) - Non IRR"},null,"N","2026-2027"]
[null,{"$f":"'Incremental Rev Req'!A96","v":"2022 Wildfire Mitigation and Catastrophic Events "},null,"N",2026]
[null,{"$f":"'Incremental Rev Req'!A97","v":"TRRRMA (Distribution)"},null,"N",2026]
[null,{"$f":"'Incremental Rev Req'!A98","v":"TRRRMA (Transmission)"},null,"N",2026]
[null,{"$f":"'Incremental Rev Req'!A99","v":"2027 GRC - Gas Distribution"},null,"Y","2027-2029"]
[null,{"$f":"'Incremental Rev Req'!A100","v":"2027 GRC - Core Local Transmission"},null,"Y","2027-2029"]
[null,{"$f":"'Incremental Rev Req'!A101","v":"2027 GRC - Core Procurement (Intrastate Volumetric and Capacity)"},null,"Y","2027-2029"]
[null,{"$f":"'Incremental Rev Req'!A102","v":"2027 GRC - Core Procurement (Storage)"},null,"Y","2027-2029"]
[null,{"$f":"'Incremental Rev Req'!A103","v":"2027 GRC - Noncore Local Transmission"},null,"Y","2027-2029"]
[null,{"$f":"'Incremental Rev Req'!A104","v":"2027 GRC - Customer Access Charge"},null,"Y","2027-2029"]
[null,{"$f":"'Incremental Rev Req'!A105","v":"2027 GRC - Noncore Unbundled"},null,"Y","2027-2029"]
[null,{"$f":"'Incremental Rev Req'!A106","v":"2027 GRC - Inventory Management"},null,"Y","2027-2029"]
[null,"CFCA - NGSS Enduser Dist. Sub Acct Recovery",null,"Y","2027-2029"]
[null,"CFCA/NCA - NGSS Enduser Sub Acct Recovery",null,"Y","2027-2029"]
[null,"NCA - NGSS Enduser Sub Acct Recovery",null,"Y","2027-2029"]
[]
[]
[null,"Outputs:"]
[null,null,null,"(A)","(B)","(C)","(D)","(D)/(A)","(D)/(B)","(D)/(C)",null,null,null,"(A)","(B)","(C)","(D)","(D)/(A)","(D)/(B)","(D)/(C)"]
[null,"Illustrative Bundled Average Rates - $ / therm",null,null,null,null,null,null,null,null,null,"Total System (Bundled + Unbundled) Illustrative Average Rates - $ / therm"]
[null,"Customer Group",null,"2025-01-01",{"$f":"$L$3","v":"2025-09-01"},{"$f":"$D$3&\" Illustrative Authorized\"","v":"2029 Illustrative Authorized"},{"$f":"$D$3&\" Illustrative w/Pending\"","v":"2029 Illustrative w/Pending"},{"$f":"\"% Change over \"&TEXT($D$44,\"mm/d/yyyy\")","v":"% Change over 01/1/2025"},{"$f":"\"% Change over \"&TEXT($L$3,\"mm/d/yyyy\")","v":"% Change over 09/1/2025"},"% Change over Illustrative Authorized",null,"Customer Group",null,{"$f":"D44","v":"2025-01-01"},{"$f":"E44","v":"2025-09-01"},"2029 Illustrative Authorized","2029 Illustrative w/Pending","% Change over 01/1/2025","% Change over 09/1/2025","% Change over Illustrative Authorized"]
[null,"Residential",null,2.7406156363066483,{"$f":"'SAR and RAR'!H38","v":2.7301291016084663},{"$f":"'SAR and RAR'!I38","v":2.5904432755546329},{"$f":"'SAR and RAR'!J38","v":2.9105486350119674},{"$f":"$G45/D45-1","v":6.2005410920856763E-2},6.6084616034167043E-2,0.1235716537312701,null,"Residential (RAR)",null,2.4978842436552613,{"$f":"'SAR and RAR'!P38","v":2.4587344326295084},{"$f":"'SAR and RAR'!Q38","v":2.3181847082218408},{"$f":"'SAR and RAR'!R38","v":2.6393769707541992},{"$f":"$Q45/N45-1","v":5.6645029671945624E-2},7.3469723174414359E-2,0.13855335228172061]
[null,"System",null,2.5392318943305163,{"$f":"'SAR and RAR'!H39","v":2.3576386581695323},{"$f":"'SAR and RAR'!I39","v":2.2273895496492733},{"$f":"'SAR and RAR'!J39","v":2.5218676709556478},-6.838376366348653E-3,6.9658262608241595E-2,0.13220773229933824,null,"System (SAR)",null,1.1385607936573887,{"$f":"'SAR and RAR'!P39","v":1.0606675509824723},{"$f":"'SAR and RAR'!Q39","v":0.97576210775908934},{"$f":"'SAR and RAR'!R39","v":1.1182080868656301},-1.787581910877134E-2,5.4249360065610874E-2,0.14598433160484037]
[]
[null,null,null,null,null,null,null,null,null,null,null,"Illustrative system rate does not include illustrative procurement for transport only customers."]
[null,{"$f":"CONCATENATE(\"Illustrative Bundled Residential Monthly Average Bills - Baseline Territory \",$D$4,\" (Includes Climate Credit)\")","v":"Illustrative Bundled Residential Monthly Average Bills - Baseline Territory X (Includes Climate Credit)"}]
[null,null,null,{"$f":"$D$44","v":"2025-01-01"},{"$f":"$E$44","v":"2025-09-01"},{"$f":"$F$44","v":"2029 Illustrative Authorized"},{"$f":"$G$44","v":"2029 Illustrative w/Pending"},{"$f":"$H$44","v":"% Change over 01/1/2025"},{"$f":"$I$44","v":"% Change over 09/1/2025"},{"$f":"$J$44","v":"% Change over Illustrative Authorized"}]
[null,"Non-CARE",null,{"$f":"((D57*$L$13)+(D63*$L$14)+(D69*$L$15))/12-L19/12","v":81.12045907063137},{"$f":"((E57*$L$13)+(E63*$L$14)+(E69*$L$15))/12-L20/12","v":80.706049945838473},{"$f":"((F57*$L$13)+(F63*$L$14)+(F69*$L$15))/12-L20/12","v":76.281080222451806},{"$f":"((G57*$L$13)+(G63*$L$14)+(G69*$L$15))/12-L20/12","v":86.404234986850909},{"$f":"$G51/D51-1","v":6.5134936078443229E-2},{"$f":"$G51/E51-1","v":7.0604186982716532E-2},{"$f":"$G51/F51-1","v":0.13270859215519537}]
[null,"CARE",null,{"$f":"((D58*$L$13)+(D64*$L$14)+(D70*$L$15))/12-L19/12","v":49.923600536258213},{"$f":"((E58*$L$13)+(E64*$L$14)+(E70*$L$15))/12-L20/12","v":49.673724458746939},{"$f":"((F58*$L$13)+(F64*$L$14)+(F70*$L$15))/12-L20/12","v":46.814867802927019},{"$f":"((G58*$L$13)+(G64*$L$14)+(G70*$L$15))/12-L20/12","v":53.262930912524688},{"$f":"$G52/D52-1","v":6.6888812914068785E-2},7.2255633997376556E-2,0.13773536938610165]
[null,"Total",null,{"$f":"((D59*$L$13)+(D65*$L$14)+(D71*$L$15))/12-L19/12","v":74.032074115690833},{"$f":"((E59*$L$13)+(E65*$L$14)+(E71*$L$15))/12-L20/12","v":73.655049318414655},{"$f":"((F59*$L$13)+(F65*$L$14)+(F71*$L$15))/12-L20/12","v":69.585923510967291},{"$f":"((G59*$L$13)+(G65*$L$14)+(G71*$L$15))/12-L20/12","v":78.874043415519253},6.5403669391483232E-2,7.0857248014899898E-2,0.13347699413787439]
[]
[null,{"$f":"CONCATENATE(\"Illustrative Bundled Residential Monthly Average Bills - Summer - Baseline Territory \",$D$4)","v":"Illustrative Bundled Residential Monthly Average Bills - Summer - Baseline Territory X"}]
[null,null,null,{"$f":"$D$44","v":"2025-01-01"},{"$f":"$E$44","v":"2025-09-01"},{"$f":"$F$44","v":"2029 Illustrative Authorized"},{"$f":"$G$44","v":"2029 Illustrative w/Pending"},{"$f":"$H$44","v":"% Change over 01/1/2025"},{"$f":"$I$44","v":"% Change over 09/1/2025"},{"$f":"$J$44","v":"% Change over Illustrative Authorized"}]
[null,"Non-CARE",null,{"$f":"VLOOKUP($D$4,'Res Bill Impact'!$B$37:$N$46,2,FALSE)","v":50.743486975748723},{"$f":"VLOOKUP($D$4,'Res Bill Impact'!$B$37:$N$46,5,FALSE)","v":50.499620986200007},{"$f":"VLOOKUP($D$4,'Res Bill Impact'!$B$37:$N$46,8,FALSE)","v":47.914152180882155},{"$f":"VLOOKUP($D$4,'Res Bill Impact'!$B$37:$N$46,11,FALSE)","v":53.841515491579493},{"$f":"$G57/D57-1","v":6.1052732093704432E-2},{"$f":"$G57/E57-1","v":6.6176625489777985E-2},{"$f":"$G57/F57-1","v":0.12370798690793428}]
[null,"CARE",null,{"$f":"VLOOKUP($D$4,'Res Bill Impact'!$B$52:$N$616,2,FALSE)","v":37.416622889524653},{"$f":"VLOOKUP($D$4,'Res Bill Impact'!$B$52:$N$616,5,FALSE)","v":37.247378235555729},{"$f":"VLOOKUP($D$4,'Res Bill Impact'!$B$52:$N$616,8,FALSE)","v":35.32267187420635},{"$f":"VLOOKUP($D$4,'Res Bill Impact'!$B$52:$N$616,11,FALSE)","v":39.670820287123185},{"$f":"$G58/D58-1","v":6.0245880667911145E-2},6.5063426377056421E-2,0.12309794764115733]
[null,"Total",null,{"$f":"D57*(1-$N$18)+(Summary!D58*$N$18)","v":47.715427506836363},{"$f":"E57*(1-$N$18)+(Summary!E58*$N$18)","v":47.488516581909252},{"$f":"F57*(1-$N$18)+(Summary!F58*$N$18)","v":45.053182719231707},{"$f":"G57*(1-$N$18)+(Summary!G58*$N$18)","v":50.621725185525392},6.0908972853122467E-2,6.5978237037830123E-2,0.12359931374874122]
[]
[null,{"$f":"CONCATENATE(\"Illustrative Bundled Residential Monthly Average Bills - Winter Off-Peak - Baseline Territory \",$D$4)","v":"Illustrative Bundled Residential Monthly Average Bills - Winter Off-Peak - Baseline Territory X"}]
[null,null,null,{"$f":"$D$44","v":"2025-01-01"},{"$f":"$E$44","v":"2025-09-01"},{"$f":"$F$44","v":"2029 Illustrative Authorized"},{"$f":"$G$44","v":"2029 Illustrative w/Pending"},{"$f":"$H$44","v":"% Change over 01/1/2025"},{"$f":"$I$44","v":"% Change over 09/1/2025"},{"$f":"$J$44","v":"% Change over Illustrative Authorized"}]
[null,"Non-CARE",null,{"$f":"VLOOKUP($D$4,'Res Bill Impact'!$B$37:$N$46,3,FALSE)","v":122.85771052063875},{"$f":"VLOOKUP($D$4,'Res Bill Impact'!$B$37:$N$46,6,FALSE)","v":122.27220000000003},{"$f":"VLOOKUP($D$4,'Res Bill Impact'!$B$37:$N$46,9,FALSE)","v":115.99705666552322},{"$f":"VLOOKUP($D$4,'Res Bill Impact'!$B$37:$N$46,12,FALSE)","v":130.33723248188124},{"$f":"$G63/D63-1","v":6.0879548622111201E-2},{"$f":"$G63/E63-1","v":6.595965789346403E-2},{"$f":"$G63/F63-1","v":0.12362534213008392}]
[null,"CARE",null,{"$f":"VLOOKUP($D$4,'Res Bill Impact'!$B$52:$N$616,3,FALSE)","v":73.099774616489313},{"$f":"VLOOKUP($D$4,'Res Bill Impact'!$B$52:$N$616,6,FALSE)","v":72.771746893191462},{"$f":"VLOOKUP($D$4,'Res Bill Impact'!$B$52:$N$616,9,FALSE)","v":69.004016033758631},{"$f":"VLOOKUP($D$4,'Res Bill Impact'!$B$52:$N$616,12,FALSE)","v":77.493114046746086},{"$f":"$G64/D64-1","v":6.0100587906132263E-2},6.4879123493960744E-2,0.1230232456156517]
[null,"Total",null,{"$f":"D63*(1-$N$18)+(Summary!D64*$N$18)","v":111.5519758786954},{"$f":"E63*(1-$N$18)+(Summary!E64*$N$18)","v":111.02496923545243},{"$f":"F63*(1-$N$18)+(Summary!F64*$N$18)","v":105.319546882476},{"$f":"G63*(1-$N$18)+(Summary!G64*$N$18)","v":118.33027179191335},6.0763566578048378E-2,6.5798735246379136E-2,0.12353570913057332]
[]
[null,{"$f":"CONCATENATE(\"Illustrative Bundled Residential Monthly Average Bills - Winter On-Peak - Baseline Territory \",$D$4)","v":"Illustrative Bundled Residential Monthly Average Bills - Winter On-Peak - Baseline Territory X"}]
[null,null,null,{"$f":"$D$44","v":"2025-01-01"},{"$f":"$E$44","v":"2025-09-01"},{"$f":"$F$44","v":"2029 Illustrative Authorized"},{"$f":"$G$44","v":"2029 Illustrative w/Pending"},{"$f":"$H$44","v":"% Change over 01/1/2025"},{"$f":"$I$44","v":"% Change over 09/1/2025"},{"$f":"$J$44","v":"% Change over Illustrative Authorized"}]
[null,"Non-CARE",null,{"$f":"VLOOKUP($D$4,'Res Bill Impact'!$B$37:$N$46,4,FALSE)","v":158.34993800437883},{"$f":"VLOOKUP($D$4,'Res Bill Impact'!$B$37:$N$46,7,FALSE)","v":157.59528000000003},{"$f":"VLOOKUP($D$4,'Res Bill Impact'!$B$37:$N$46,10,FALSE)","v":149.50731748000771},{"$f":"VLOOKUP($D$4,'Res Bill Impact'!$B$37:$N$46,13,FALSE)","v":167.99021075442471},{"$f":"$G69/D69-1","v":6.0879548622111201E-2},{"$f":"$G69/E69-1","v":6.595965789346403E-2},{"$f":"$G69/F69-1","v":0.12362534213008369}]
[null,"CARE",null,{"$f":"VLOOKUP($D$4,'Res Bill Impact'!$B$52:$N$616,4,FALSE)","v":92.449714956148256},{"$f":"VLOOKUP($D$4,'Res Bill Impact'!$B$52:$N$616,7,FALSE)","v":92.03485636491861},{"$f":"VLOOKUP($D$4,'Res Bill Impact'!$B$52:$N$616,10,FALSE)","v":87.269784983871205},{"$f":"VLOOKUP($D$4,'Res Bill Impact'!$B$52:$N$616,13,FALSE)","v":98.00599717676711},{"$f":"$G70/D70-1","v":6.0100587906132263E-2},6.4879123493960744E-2,0.1230232456156517]
[null,"Total",null,{"$f":"D69*(1-$N$18)+(Summary!D70*$N$18)","v":143.37643837884389},{"$f":"E69*(1-$N$18)+(Summary!E70*$N$18)","v":142.69898779729616},{"$f":"F69*(1-$N$18)+(Summary!F70*$N$18)","v":135.36603500144801},{"$f":"G69*(1-$N$18)+(Summary!G70*$N$18)","v":152.08876843257585},6.076542388862638E-2,6.5801312120152389E-2,0.12353714453517783]
[]
[]
[null,{"$f":"CONCATENATE(\"Essential Use Illustrative Bundled Residential Monthly Average Bills - Baseline Territory \",$D$4,\" (Includes Climate Credit)\")","v":"Essential Use Illustrative Bundled Residential Monthly Average Bills - Baseline Territory X (Includes Climate Credit)"}]
[null,null,null,{"$f":"$D$44","v":"2025-01-01"},{"$f":"$E$44","v":"2025-09-01"},{"$f":"$F$44","v":"2029 Illustrative Authorized"},{"$f":"$G$44","v":"2029 Illustrative w/Pending"},{"$f":"$H$44","v":"% Change over 01/1/2025"},{"$f":"$I$44","v":"% Change over 09/1/2025"},{"$f":"$J$44","v":"% Change over Illustrative Authorized"}]
[null,"Essential Use Non-CARE",null,{"$f":"((D82*$L$13)+(D88*$L$14)+(D94*$L$15))/12-L19/12","v":76.557990265661445},{"$f":"((E82*$L$13)+(E88*$L$14)+(E94*$L$15))/12-L20/12","v":76.166511653588472},{"$f":"((F82*$L$13)+(F88*$L$14)+(F94*$L$15))/12-L20/12","v":71.97088353667597},{"$f":"((G82*$L$13)+(G88*$L$14)+(G94*$L$15))/12-L20/12","v":81.558878846044763},{"$f":"$G76/D76-1","v":6.5321576010941351E-2},{"$f":"$G76/E76-1","v":7.079708753081948E-2},{"$f":"$G76/F76-1","v":0.13322047525625846}]
[null,"Essential Use CARE",null,{"$f":"((D83*$L$13)+(D89*$L$14)+(D95*$L$15))/12-L19/12","v":59.10189563116981},{"$f":"((E83*$L$13)+(E89*$L$14)+(E95*$L$15))/12-L20/12","v":58.811615384574566},{"$f":"((F83*$L$13)+(F89*$L$14)+(F95*$L$15))/12-L20/12","v":55.477452552283516},{"$f":"((G83*$L$13)+(G89*$L$14)+(G95*$L$15))/12-L20/12","v":62.98967572600543},{"$f":"$G77/D77-1","v":6.578097120771953E-2},7.1041414423156812E-2,{"$f":"$G77/F77-1","v":0.13541038436547148}]
[null,"Total",null,{"$f":"((D84*$L$13)+(D90*$L$14)+(D96*$L$15))/12-L19/12","v":72.59170890297824},{"$f":"((E84*$L$13)+(E90*$L$14)+(E96*$L$15))/12-L20/12","v":72.223224047489026},{"$f":"((F84*$L$13)+(F90*$L$14)+(F96*$L$15))/12-L20/12","v":68.223333509601858},{"$f":"((G84*$L$13)+(G90*$L$14)+(G96*$L$15))/12-L20/12","v":77.339682869107065},6.5406560031183281E-2,7.0842293307950444E-2,0.13362509409221635]
[]
[null,{"$f":"CONCATENATE(\"Essential Use Illustrative Bundled Residential Monthly Average Bills - Summer - Baseline Territory \",$D$4)","v":"Essential Use Illustrative Bundled Residential Monthly Average Bills - Summer - Baseline Territory X"}]
[null,null,null,{"$f":"$D$44","v":"2025-01-01"},{"$f":"$E$44","v":"2025-09-01"},{"$f":"$F$44","v":"2029 Illustrative Authorized"},{"$f":"$G$44","v":"2029 Illustrative w/Pending"},{"$f":"$H$44","v":"% Change over 01/1/2025"},{"$f":"$I$44","v":"% Change over 09/1/2025"},{"$f":"$J$44","v":"% Change over Illustrative Authorized"}]
[null,"Essential Use Non-CARE",null,{"$f":"VLOOKUP($D$4,'Res Bill Impact'!$B$67:$N$76,2,FALSE)","v":40.691374680979372},{"$f":"VLOOKUP($D$4,'Res Bill Impact'!$B$67:$N$76,5,FALSE)","v":40.497449302800007},{"$f":"VLOOKUP($D$4,'Res Bill Impact'!$B$67:$N$76,8,FALSE)","v":38.419075812703504},{"$f":"VLOOKUP($D$4,'Res Bill Impact'!$B$67:$N$76,11,FALSE)","v":43.1686472043706},{"$f":"$G82/D82-1","v":6.0879548622111201E-2},{"$f":"$G82/E82-1","v":6.595965789346403E-2},{"$f":"$G82/F82-1","v":0.12362534213008369}]
[null,"Essential Use CARE",null,{"$f":"VLOOKUP($D$4,'Res Bill Impact'!$B$82:$N$91,2,FALSE)","v":32.04421070028765},{"$f":"VLOOKUP($D$4,'Res Bill Impact'!$B$82:$N$91,5,FALSE)","v":31.900415599194126},{"$f":"VLOOKUP($D$4,'Res Bill Impact'!$B$82:$N$91,8,FALSE)","v":30.248783126247933},{"$f":"VLOOKUP($D$4,'Res Bill Impact'!$B$82:$N$91,11,FALSE)","v":33.970086602362912},{"$f":"$G83/D83-1","v":6.0100587906132263E-2},6.4879123493960744E-2,0.1230232456156517]
[null,"Total",null,{"$f":"D82*(1-$N$18)+(Summary!D83*$N$18)","v":38.726611882952646},{"$f":"E82*(1-$N$18)+(Summary!E83*$N$18)","v":38.544076840806341},{"$f":"F82*(1-$N$18)+(Summary!F83*$N$18)","v":36.562665184296108},{"$f":"G82*(1-$N$18)+(Summary!G83*$N$18)","v":41.078598986645773},6.0733097715900852E-2,6.5756462563818729E-2,0.12351216136971566]
[]
[null,{"$f":"CONCATENATE(\"Essential Use Illustrative Bundled Residential Monthly Average Bills - Winter Off-Peak - Baseline Territory \",$D$4)","v":"Essential Use Illustrative Bundled Residential Monthly Average Bills - Winter Off-Peak - Baseline Territory X"}]
[null,null,null,{"$f":"$D$44","v":"2025-01-01"},{"$f":"$E$44","v":"2025-09-01"},{"$f":"$F$44","v":"2029 Illustrative Authorized"},{"$f":"$G$44","v":"2029 Illustrative w/Pending"},{"$f":"$H$44","v":"% Change over 01/1/2025"},{"$f":"$I$44","v":"% Change over 09/1/2025"},{"$f":"$J$44","v":"% Change over Illustrative Authorized"}]
[null,"Essential Use Non-CARE",null,{"$f":"VLOOKUP($D$4,'Res Bill Impact'!$B$67:$N$76,3,FALSE)","v":122.90456026091729},{"$f":"VLOOKUP($D$4,'Res Bill Impact'!$B$67:$N$76,6,FALSE)","v":122.31882646560004},{"$f":"VLOOKUP($D$4,'Res Bill Impact'!$B$67:$N$76,9,FALSE)","v":116.04129020979835},{"$f":"VLOOKUP($D$4,'Res Bill Impact'!$B$67:$N$76,12,FALSE)","v":130.386934413201},{"$f":"$G88/D88-1","v":6.0879548622111201E-2},{"$f":"$G88/E88-1","v":6.595965789346403E-2},{"$f":"$G88/F88-1","v":0.12362534213008369}]
[null,"Essential Use CARE",null,{"$f":"VLOOKUP($D$4,'Res Bill Impact'!$B$82:$N$91,3,FALSE)","v":96.786595584542297},{"$f":"VLOOKUP($D$4,'Res Bill Impact'!$B$82:$N$91,6,FALSE)","v":96.352275687361868},{"$f":"VLOOKUP($D$4,'Res Bill Impact'!$B$82:$N$91,9,FALSE)","v":91.363671483361117},{"$f":"VLOOKUP($D$4,'Res Bill Impact'!$B$82:$N$91,12,FALSE)","v":102.60352688060635},{"$f":"$G89/D89-1","v":6.0100587906132263E-2},6.4879123493960522E-2,0.12302324561565148]
[null,"Total",null,{"$f":"D88*(1-$N$18)+(Summary!D89*$N$18)","v":116.9701746668774},{"$f":"E88*(1-$N$18)+(Summary!E89*$N$18)","v":116.41884433549671},{"$f":"F88*(1-$N$18)+(Summary!F89*$N$18)","v":110.43417239338417},{"$f":"G88*(1-$N$18)+(Summary!G89*$N$18)","v":124.07413571476684},6.073309771590063E-2,6.5756462563818729E-2,0.12351216136971566]
[]
[null,{"$f":"CONCATENATE(\"Essential Use Illustrative Bundled Residential Monthly Average Bills - Winter On-Peak - Baseline Territory \",$D$4)","v":"Essential Use Illustrative Bundled Residential Monthly Average Bills - Winter On-Peak - Baseline Territory X"}]
[null,null,null,{"$f":"$D$44","v":"2025-01-01"},{"$f":"$E$44","v":"2025-09-01"},{"$f":"$F$44","v":"2029 Illustrative Authorized"},{"$f":"$G$44","v":"2029 Illustrative w/Pending"},{"$f":"$H$44","v":"% Change over 01/1/2025"},{"$f":"$I$44","v":"% Change over 09/1/2025"},{"$f":"$J$44","v":"% Change over Illustrative Authorized"}]
[null,"Essential Use Non-CARE",null,{"$f":"VLOOKUP($D$4,'Res Bill Impact'!$B$67:$N$76,4,FALSE)","v":166.08724359583417},{"$f":"VLOOKUP($D$4,'Res Bill Impact'!$B$67:$N$76,7,FALSE)","v":165.29571144000005},{"$f":"VLOOKUP($D$4,'Res Bill Impact'!$B$67:$N$76,10,FALSE)","v":156.81255433756533},{"$f":"VLOOKUP($D$4,'Res Bill Impact'!$B$67:$N$76,13,FALSE)","v":176.19856001783918},{"$f":"$G94/D94-1","v":6.0879548622111201E-2},{"$f":"$G94/E94-1","v":6.595965789346403E-2},{"$f":"$G94/F94-1","v":0.12362534213008369}]
[null,"Essential Use CARE",null,{"$f":"VLOOKUP($D$4,'Res Bill Impact'!$B$82:$N$91,4,FALSE)","v":130.79269673586796},{"$f":"VLOOKUP($D$4,'Res Bill Impact'!$B$82:$N$91,7,FALSE)","v":130.2057779558944},{"$f":"VLOOKUP($D$4,'Res Bill Impact'!$B$82:$N$91,10,FALSE)","v":123.46442092346095},{"$f":"VLOOKUP($D$4,'Res Bill Impact'!$B$82:$N$91,13,FALSE)","v":138.65341470352209},{"$f":"$G95/D95-1","v":6.0100587906132263E-2},6.4879123493960522E-2,0.1230232456156517]
[null,"Total",null,{"$f":"D94*(1-$N$18)+(Summary!D95*$N$18)","v":158.06780360388836},{"$f":"E94*(1-$N$18)+(Summary!E95*$N$18)","v":157.32276261553611},{"$f":"F94*(1-$N$18)+(Summary!F95*$N$18)","v":149.2353680991678},{"$f":"G94*(1-$N$18)+(Summary!G95*$N$18)","v":167.66775096590112},6.073309771590063E-2,6.5756462563818507E-2,0.12351216136971566]
[]
[]
[null,{"$f":"CONCATENATE(\"Typical Customer Illustrative Bundled Residential Monthly Average Bills - Baseline Territory \",$D$4,\" (Includes Climate Credit)\")","v":"Typical Customer Illustrative Bundled Residential Monthly Average Bills - Baseline Territory X (Includes Climate Credit)"}]
[null,null,null,{"$f":"$D$44","v":"2025-01-01"},{"$f":"$E$44","v":"2025-09-01"},{"$f":"$F$44","v":"2029 Illustrative Authorized"},{"$f":"$G$44","v":"2029 Illustrative w/Pending"},{"$f":"$H$44","v":"% Change over 01/1/2025"},{"$f":"$I$44","v":"% Change over 09/1/2025"},{"$f":"$J$44","v":"% Change over Illustrative Authorized"}]
[null,{"$f":"CONCATENATE($L$16,\" Therms Monthly Usage - Non-CARE\")","v":"31 Therms Monthly Usage - Non-CARE"},null,{"$f":"((D107*$L$13)+(D113*$L$14)+(D119*$L$15))/12-L19/12","v":83.903327405151913},{"$f":"((E107*$L$13)+(E113*$L$14)+(E119*$L$15))/12-L20/12","v":83.470671612505157},{"$f":"((F107*$L$13)+(F113*$L$14)+(F119*$L$15))/12-L20/12","v":78.919072740164751},{"$f":"((G107*$L$13)+(G113*$L$14)+(G119*$L$15))/12-L20/12","v":89.378050521973279},{"$f":"$G101/D101-1","v":6.5250369516158147E-2},{"$f":"$G101/E101-1","v":7.0771910604623844E-2},{"$f":"$G101/F101-1","v":0.13252788481491606}]
[null,{"$f":"CONCATENATE($L$17,\" Therms Monthly Usage - CARE\")","v":"26 Therms Monthly Usage - CARE"},null,{"$f":"((D108*$L$13)+(D114*$L$14)+(D120*$L$15))/12-L19/12","v":52.990747107538716},{"$f":"((E108*$L$13)+(E114*$L$14)+(E120*$L$15))/12-L20/12","v":52.723747082438003},{"$f":"((F108*$L$13)+(F114*$L$14)+(F120*$L$15))/12-L20/12","v":49.716403964980209},{"$f":"((G108*$L$13)+(G114*$L$14)+(G120*$L$15))/12-L20/12","v":56.528033788188552},{"$f":"$G102/D102-1","v":6.6752912040876078E-2},7.2155089808056072E-2,0.13700970464409279]
[null,"Total",null,{"$f":"((D109*$L$13)+(D115*$L$14)+(D121*$L$15))/12-L19/12","v":76.879534645423789},{"$f":"((E109*$L$13)+(E115*$L$14)+(E121*$L$15))/12-L20/12","v":76.484518278845485},{"$f":"((F109*$L$13)+(F115*$L$14)+(F121*$L$15))/12-L20/12","v":72.283797019628523},{"$f":"((G109*$L$13)+(G115*$L$14)+(G121*$L$15))/12-L20/12","v":81.914043717289957},6.5485686081293792E-2,7.0988555077899917E-2,0.13322829036009765]
[]
[null,{"$f":"CONCATENATE(\"Typical Customer Illustrative Bundled Residential Monthly Average Bills - Summer - Baseline Territory \",$D$4)","v":"Typical Customer Illustrative Bundled Residential Monthly Average Bills - Summer - Baseline Territory X"}]
[null,null,null,{"$f":"$D$44","v":"2025-01-01"},{"$f":"$E$44","v":"2025-09-01"},{"$f":"$F$44","v":"2029 Illustrative Authorized"},{"$f":"$G$44","v":"2029 Illustrative w/Pending"},{"$f":"$H$44","v":"% Change over 01/1/2025"},{"$f":"$I$44","v":"% Change over 09/1/2025"},{"$f":"$J$44","v":"% Change over Illustrative Authorized"}]
[null,{"$f":"CONCATENATE($L$16,\" Therms Monthly Usage - Non-CARE\")","v":"31 Therms Monthly Usage - Non-CARE"},null,{"$f":"VLOOKUP($D$4,'Res Bill Impact'!$B$97:$N$106,2,FALSE)","v":92.956468279311935},{"$f":"VLOOKUP($D$4,'Res Bill Impact'!$B$97:$N$106,5,FALSE)","v":92.502880986200012},{"$f":"VLOOKUP($D$4,'Res Bill Impact'!$B$97:$N$106,8,FALSE)","v":87.787909004549533},{"$f":"VLOOKUP($D$4,'Res Bill Impact'!$B$97:$N$106,11,FALSE)","v":98.661308212934017},{"$f":"$G107/D107-1","v":6.137109164346044E-2},{"$f":"$G107/E107-1","v":6.6575518092812036E-2},{"$f":"$G107/F107-1","v":0.12385987240931984}]
[null,{"$f":"CONCATENATE($L$17,\" Therms Monthly Usage - CARE\")","v":"26 Therms Monthly Usage - CARE"},null,{"$f":"VLOOKUP($D$4,'Res Bill Impact'!$B$112:$N$121,2,FALSE)","v":60.488819229183591},{"$f":"VLOOKUP($D$4,'Res Bill Impact'!$B$112:$N$121,5,FALSE)","v":60.210279707282879},{"$f":"VLOOKUP($D$4,'Res Bill Impact'!$B$112:$N$121,8,FALSE)","v":57.11283861402022},{"$f":"VLOOKUP($D$4,'Res Bill Impact'!$B$112:$N$121,11,FALSE)","v":64.153016034947257},{"$f":"$G108/D108-1","v":6.0576431354702809E-2},6.5482777140918547E-2,0.12326786046314275]
[null,"Total",null,{"$f":"D107*(1-$N$18)+(Summary!D108*$N$18)","v":85.579341034411812},{"$f":"E107*(1-$N$18)+(Summary!E108*$N$18)","v":85.165527168694268},{"$f":"F107*(1-$N$18)+(Summary!F108*$N$18)","v":80.8180819878839},{"$f":"G107*(1-$N$18)+(Summary!G108*$N$18)","v":90.820516845251248},6.1243470065187156E-2,6.6399984413361146E-2,0.12376481365725667]
[]
[null,{"$f":"CONCATENATE(\"Typical Customer Illustrative Bundled Residential Monthly Average Bills - Winter Off-Peak - Baseline Territory \",$D$4)","v":"Typical Customer Illustrative Bundled Residential Monthly Average Bills - Winter Off-Peak - Baseline Territory X"}]
[null,null,null,{"$f":"$D$44","v":"2025-01-01"},{"$f":"$E$44","v":"2025-09-01"},{"$f":"$F$44","v":"2029 Illustrative Authorized"},{"$f":"$G$44","v":"2029 Illustrative w/Pending"},{"$f":"$H$44","v":"% Change over 01/1/2025"},{"$f":"$I$44","v":"% Change over 09/1/2025"},{"$f":"$J$44","v":"% Change over Illustrative Authorized"}]
[null,{"$f":"CONCATENATE($L$16,\" Therms Monthly Usage - Non-CARE\")","v":"31 Therms Monthly Usage - Non-CARE"},null,{"$f":"VLOOKUP($D$4,'Res Bill Impact'!$B$97:$N$106,3,FALSE)","v":84.635311691995582},{"$f":"VLOOKUP($D$4,'Res Bill Impact'!$B$97:$N$106,6,FALSE)","v":84.231960000000015},{"$f":"VLOOKUP($D$4,'Res Bill Impact'!$B$97:$N$106,9,FALSE)","v":79.909083480693781},{"$f":"VLOOKUP($D$4,'Res Bill Impact'!$B$97:$N$106,12,FALSE)","v":89.787871265295962},{"$f":"$G113/D113-1","v":6.0879548622111201E-2},{"$f":"$G113/E113-1","v":6.595965789346403E-2},{"$f":"$G113/F113-1","v":0.12362534213008369}]
[null,{"$f":"CONCATENATE($L$17,\" Therms Monthly Usage - CARE\")","v":"26 Therms Monthly Usage - CARE"},null,{"$f":"VLOOKUP($D$4,'Res Bill Impact'!$B$112:$N$121,3,FALSE)","v":55.899827647903592},{"$f":"VLOOKUP($D$4,'Res Bill Impact'!$B$112:$N$121,6,FALSE)","v":55.648982918322886},{"$f":"VLOOKUP($D$4,'Res Bill Impact'!$B$112:$N$121,9,FALSE)","v":52.767776966991889},{"$f":"VLOOKUP($D$4,'Res Bill Impact'!$B$112:$N$121,12,FALSE)","v":59.259440153394067},{"$f":"$G114/D114-1","v":6.0100587906132263E-2},6.4879123493960744E-2,0.12302324561565192]
[null,"Total",null,{"$f":"D113*(1-$N$18)+(Summary!D114*$N$18)","v":78.106187211508256},{"$f":"E113*(1-$N$18)+(Summary!E114*$N$18)","v":77.737487343724879},{"$f":"F113*(1-$N$18)+(Summary!F114*$N$18)","v":73.742179574738699},{"$f":"G113*(1-$N$18)+(Summary!G114*$N$18)","v":82.851362848811846},6.0752877674771888E-2,6.5783905292377209E-2,0.12352744828813833]
[]
[null,{"$f":"CONCATENATE(\"Typical Customer Illustrative Bundled Residential Monthly Average Bills - Winter On-Peak - Baseline Territory \",$D$4)","v":"Typical Customer Illustrative Bundled Residential Monthly Average Bills - Winter On-Peak - Baseline Territory X"}]
[null,null,null,{"$f":"$D$44","v":"2025-01-01"},{"$f":"$E$44","v":"2025-09-01"},{"$f":"$F$44","v":"2029 Illustrative Authorized"},{"$f":"$G$44","v":"2029 Illustrative w/Pending"},{"$f":"$H$44","v":"% Change over 01/1/2025"},{"$f":"$I$44","v":"% Change over 09/1/2025"},{"$f":"$J$44","v":"% Change over Illustrative Authorized"}]
[null,{"$f":"CONCATENATE($L$16,\" Therms Monthly Usage - Non-CARE\")","v":"31 Therms Monthly Usage - Non-CARE"},null,{"$f":"VLOOKUP($D$4,'Res Bill Impact'!$B$97:$N$106,4,FALSE)","v":84.635311691995582},{"$f":"VLOOKUP($D$4,'Res Bill Impact'!$B$97:$N$106,7,FALSE)","v":84.231960000000015},{"$f":"VLOOKUP($D$4,'Res Bill Impact'!$B$97:$N$106,10,FALSE)","v":79.909083480693781},{"$f":"VLOOKUP($D$4,'Res Bill Impact'!$B$97:$N$106,13,FALSE)","v":89.787871265295962},{"$f":"$G119/D119-1","v":6.0879548622111201E-2},{"$f":"$G119/E119-1","v":6.595965789346403E-2},{"$f":"$G119/F119-1","v":0.12362534213008369}]
[null,{"$f":"CONCATENATE($L$17,\" Therms Monthly Usage - CARE\")","v":"26 Therms Monthly Usage - CARE"},null,{"$f":"VLOOKUP($D$4,'Res Bill Impact'!$B$112:$N$121,4,FALSE)","v":55.899827647903592},{"$f":"VLOOKUP($D$4,'Res Bill Impact'!$B$112:$N$121,7,FALSE)","v":55.648982918322886},{"$f":"VLOOKUP($D$4,'Res Bill Impact'!$B$112:$N$121,10,FALSE)","v":52.767776966991889},{"$f":"VLOOKUP($D$4,'Res Bill Impact'!$B$112:$N$121,13,FALSE)","v":59.259440153394067},{"$f":"$G120/D120-1","v":6.0100587906132263E-2},6.4879123493960744E-2,0.12302324561565192]
[null,"Total",null,{"$f":"D119*(1-$N$18)+(Summary!D120*$N$18)","v":78.106187211508256},{"$f":"E119*(1-$N$18)+(Summary!E120*$N$18)","v":77.737487343724879},{"$f":"F119*(1-$N$18)+(Summary!F120*$N$18)","v":73.742179574738699},{"$f":"G119*(1-$N$18)+(Summary!G120*$N$18)","v":82.851362848811846},6.0752877674771888E-2,6.5783905292377209E-2,0.12352744828813833]

{"sheet":"Res Bill Impact","index":5,"n_rows":121,"n_cols":24,"rows_kept":121,"cut":false,"hidden":false,"merged":[[63,2,63,13],[78,2,78,13],[93,2,93,13],[108,2,108,13],[22,16,22,21],[34,11,34,13],[49,2,49,4],[49,5,49,7],[49,8,49,10],[49,11,49,13],[34,2,34,4],[34,5,34,7],[34,8,34,10],[64,2,64,4],[64,5,64,7],[64,8,64,10],[1,1,1,3],[2,4,2,10],[2,15,2,21],[19,22,19,23],[20,16,20,18],[20,19,20,21],[64,11,64,13],[79,2,79,4],[79,5,79,7],[79,8,79,10],[79,11,79,13],[94,2,94,4],[94,5,94,7],[94,8,94,10],[94,11,94,13],[109,2,109,4],[109,5,109,7],[109,8,109,10],[109,11,109,13]]}
["*NOTE: This model produces illustrative rates based on a single average throughput forecast. Actual ratemaking uses multiple throughput forecasts depending on revenue requirement type. Therefore, differences in illustrative v. actual rates will exist."]
[]
[null,null,null,null,"Schedule G-1",null,null,null,null,null,null,null,null,null,null,"Schedule GL-1"]
[null,null,null,null,{"$f":"Summary!L4","v":"2023 CARD"},{"$f":"Summary!L3","v":"2025-09-01"},{"$f":"Summary!L3","v":"2025-09-01"},"Illustrative Proposed","Illustrative Proposed","Illustrative Proposed","Illustrative Proposed",null,null,null,null,{"$f":"E4","v":"2023 CARD"},{"$f":"Summary!L3","v":"2025-09-01"},{"$f":"Summary!L3","v":"2025-09-01"},"Illustrative Proposed","Illustrative Proposed","Illustrative Proposed","Illustrative Proposed"]
[null,null,null,null,"Throughput Forecast","Rates (w/illustrative procrement)","Revenue","Authorized Rates (w/illustrative procrement)","Authorized Revenue","w/Pending Rates (w/illustrative procrement)","w/Pending Revenue",null,null,null,null,"Throughput Forecast","Rates (w/illustrative procrement)","Revenue","Authorized Rates (w/illustrative procrement)","Authorized Revenue","w/Pending Rates (w/illustrative procrement)","w/Pending Revenue"]
[]
[null,null,null,"Baseline - Summer",246650.16940406387,2.7171600000000007,{"$f":"F7*E7","v":670187.97429794632},{"$f":"Res_RD!L49","v":2.5777123703449605},{"$f":"E7*H7","v":635793.19282053551},{"$f":"Res_RD!AC49","v":2.8963829440418052},{"$f":"E7*J7","v":714393.34380695247},null,null,null,"Baseline - Summer",72332.642272357014,2.1403454968585724,{"$f":"Q7*P7","v":154816.84516352136},{"$f":"Res_RD!H61","v":2.0295298833458419},{"$f":"P7*S7","v":146801.25903311325},{"$f":"Res_RD!Y61","v":2.2792092366690024},{"$f":"P7*U7","v":164861.22637983086}]
[null,null,null,"- Winter",569727.29293116578,{"$f":"F7","v":2.7171600000000007},{"$f":"F8*E8","v":1548040.2112608468},{"$f":"H7","v":2.5777123703449605},{"$f":"E8*H8","v":1468593.090711813},{"$f":"J7","v":2.8963829440418052},{"$f":"E8*J8","v":1650148.4140009379},null,null,null,"- Winter",175594.44374057907,{"$f":"Q7","v":2.1403454968585724},{"$f":"Q8*P8","v":375832.77693353436},{"$f":"S7","v":2.0295298833458419},{"$f":"P8*S8","v":356374.17092099541},{"$f":"U7","v":2.2792092366690024},{"$f":"P8*U8","v":400216.47808128333}]
[null,null,null,"Over Baseline - Summer",105730.38193137095,3.2310200000000004,{"$f":"F9*E9","v":341616.97862789821},{"$f":"Res_RD!L50","v":3.0672120633590296},{"$f":"E9*H9","v":324297.50292345858},{"$f":"Res_RD!AC50","v":3.4476763631811176},{"$f":"E9*J9","v":364524.13865489955},null,null,null,"Over Baseline - Summer",31575.994402509852,2.5514334968585723,{"$f":"Q9*P9","v":80564.049815182414},{"$f":"Res_RD!H62","v":2.421129637757097},{"$f":"P9*S9","v":76449.575889568805},{"$f":"Res_RD!Y62","v":2.7202439719804525},{"$f":"P9*U9","v":85894.408432715936}]
[null,null,null,"- Winter",232552.58299782226,{"$f":"F9","v":3.2310200000000004},{"$f":"F10*E10","v":751382.04671762383},{"$f":"H9","v":3.0672120633590296},{"$f":"E10*H10","v":713288.08793622244},{"$f":"J9","v":3.4476763631811176},{"$f":"E10*J10","v":801766.04359830683},null,null,null,"- Winter",61031.214979528522,{"$f":"Q9","v":2.5514334968585723},{"$f":"Q10*P10","v":155717.08625274574},{"$f":"S9","v":2.421129637757097},{"$f":"P10*S10","v":147764.48341526141},{"$f":"U9","v":2.7202439719804525},{"$f":"P10*U10","v":166019.79465070556}]
[]
[null,null,null,null,null,{"$f":"SUM(G7:G10)/SUM($E$7:$E$10)","v":2.8677064985669833},null,{"$f":"SUM(I7:I10)/SUM($E$7:$E$10)","v":2.7211219854792019},null,{"$f":"SUM(K7:K10)/SUM($E$7:$E$10)","v":3.057896379480336},null,null,null,null,null,null,{"$f":"SUM(R7:R10)/SUM($P$7:$P$10)","v":2.2521395599096596},null,{"$f":"SUM(T7:T10)/SUM($P$7:$P$10)","v":2.1360241805168663},null,{"$f":"SUM(V7:V10)/SUM($P$7:$P$10)","v":2.3991472183350395}]
[]
[]
[]
[]
[]
[]
[null,null,null,null,null,null,null,null,null,null,null,null,null,null,null,"2024 Recorded Data - Average Monthly Usage - Therms"]
[null,"SCHEDULE G-1 RATES ($/therm)",null,null,"Illustrative Proposed","Illustrative Proposed",null,"MONTHLY BASELINE QUANTITIES -BASIC (Therms)",null,null,null,null,null,null,null,"Climate Zone","Summer","Winter Off-Peak","Winter On-Peak","Summer","Winter Off-Peak","Winter On-Peak","Sample Population Weight"]
[null,"Rates","2025-01-01",{"$f":"Summary!L3","v":"2025-09-01"},"Authorized","w/Pending",null,"Climate Zone","Summer 2022","Winter 2022 Off-Peak","Winter 2022 On-Peak",null,null,null,null,null,"Non-CARE",null,null,"CARE",null,null,"Non-CARE","CARE"]
[null,"Tier 1",2.7301713449030833,{"$f":"F7","v":2.7171600000000007},{"$f":"H7","v":2.5777123703449605},{"$f":"J7","v":2.8963829440418052},null,"P",11.862630000000001,57.183959999999999,66.613230000000001,null,null,null,null,"P",17,57,68,14,46,53,3.3414015182542632E-3,4.5036851818074973E-3]
[null,"Tier 2",3.2471524079664018,{"$f":"F9","v":3.2310200000000004},{"$f":"H9","v":3.0672120633590296},{"$f":"J9","v":3.4476763631811176},null,"Q",17.033520000000003,45.017160000000004,60.834000000000003,null,null,null,null,"Q","INCLUDED WITH TERRITORY X"]
[null,null,null,null,null,null,null,"R",10.95012,37.717080000000003,55.054770000000005,null,null,null,null,"R",14,39,56,15,35,49,7.4357502162919059E-2,0.180932001160926]
[null,null,null,null,null,null,null,"S",11.862630000000001,41.975459999999998,59.008980000000001,null,null,null,null,"S",15,43,60,16,39,53,0.31894272299281023,0.34174434606715259]
[null,"SCHEDULE GL-1 RATES ($/therm)",null,null,"Illustrative Proposed","Illustrative Proposed",null,"T",17.033520000000003,39.846270000000004,51.100560000000002,null,null,null,null,"T",19,36,44,20,31,36,0.19620309094436963,0.14779059692068172]
[null,"Rates",{"$f":"C21","v":"2025-01-01"},{"$f":"D21","v":"2025-09-01"},"Authorized","w/Pending",null,"V",17.94603,45.929670000000002,52.013069999999999,null,null,null,null,"V",21,45,48,22,43,45,8.6207508380022248E-3,1.2702788202194892E-2]
[null,"Tier 1",2.1499933710732151,{"$f":"Q7","v":2.1403454968585724},{"$f":"S7","v":2.0295298833458419},{"$f":"U7","v":2.2792092366690024},null,"W",11.862630000000001,34.675379999999997,51.100560000000002,null,null,null,null,"W",14,33,51,17,34,49,1.7602101347570249E-2,6.9220591524650515E-2]
[null,"Tier 2",2.5635773710732148,{"$f":"Q9","v":2.5514334968585723},{"$f":"S9","v":2.421129637757097},{"$f":"U9","v":2.7202439719804525},null,"X",14.90433,45.017160000000004,60.834000000000003,null,null,null,null,"X",18,45,58,17,34,43,0.38030551867384382,0.24214725815481006]
[null,null,null,null,null,null,null,"Y",21.90024,67.525740000000013,78.475860000000011,null,null,null,null,"Y",23,69,79,21,60,68,6.2691152223049319E-4,9.5873278777674673E-4]
[]
[]
[null,null,null,null,null,null,null,null,null,null,null,null,null,"Daily to Monthly Conversion Factor",30.417000000000002]
[null,null,"NON-CARE"]
[null,null,{"$f":"C27","v":"2025-01-01"},null,null,{"$f":"D27","v":"2025-09-01"},null,null,{"$f":"CONCATENATE(E20,\" \",E21)","v":"Illustrative Proposed Authorized"},null,null,{"$f":"CONCATENATE(F20,\" \",F21)","v":"Illustrative Proposed w/Pending"}]
[null,null,"Summer","Winter Off-Peak","Winter On-Peak","Summer","Winter Off-Peak","Winter On-Peak","Summer","Winter Off-Peak","Winter On-Peak","Summer","Winter Off-Peak","Winter On-Peak"]
[null,"P",{"$f":"IF(Q22>I22,C$22*I22+C$23*(Q22-I22),Q22*C$22)","v":49.06883586730202},{"$f":"IF(R22>J22,C$22*J22+C$23*(R22-J22),R22*C$22)","v":155.61976665947574},{"$f":"IF(S22>K22,C$22*K22+C$23*(S22-K22),S22*C$22)","v":186.36858528223399},{"$f":"IF(Q22>I22,D$22*I22+D$23*(Q22-I22),Q22*D$22)","v":48.831608948200014},{"$f":"IF(R22>J22,D$22*J22+D$23*(R22-J22),R22*D$22)","v":154.87812000000005},{"$f":"IF(S22>K22,D$22*K22+D$23*(S22-K22),S22*D$22)","v":185.47948563220007},{"$f":"IF(Q22>I22,E$22*I22+E$23*(Q22-I22),Q22*E$22)","v":46.335851333764012},{"$f":"IF(R22>J22,E$22*J22+E$23*(R22-J22),R22*E$22)","v":146.92960510966276},{"$f":"IF(S22>K22,E$22*K22+E$23*(S22-K22),S22*E$22)","v":175.96326467273843},{"$f":"IF(Q22>I22,F$22*I22+F$23*(Q22-I22),Q22*F$22)","v":52.07070832139442},{"$f":"IF(R22>J22,F$22*J22+F$23*(R22-J22),R22*F$22)","v":165.09382781038289},{"$f":"IF(S22>K22,F$22*K22+F$23*(S22-K22),S22*F$22)","v":197.71855736970258}]
[null,"Q"]
[null,"R",{"$f":"IF(Q24>I24,C$22*I24+C$23*(Q24-I24),Q24*C$22)","v":39.799129033258723},{"$f":"IF(R24>J24,C$22*J24+C$23*(R24-J24),R24*C$22)","v":107.13992779664544},{"$f":"IF(S24>K24,C$22*K24+C$23*(S24-K24),S24*C$22)","v":153.378261324812},{"$f":"IF(Q24>I24,D$22*I24+D$23*(Q24-I24),Q24*D$22)","v":39.607451336800011},{"$f":"IF(R24>J24,D$22*J24+D$23*(R24-J24),R24*D$22)","v":106.62848127120003},{"$f":"IF(S24>K24,D$22*K24+D$23*(S24-K24),S24*D$22)","v":152.64667588780006},{"$f":"IF(Q24>I24,E$22*I24+E$23*(Q24-I24),Q24*E$22)","v":37.580888508559198},{"$f":"IF(R24>J24,E$22*J24+E$23*(R24-J24),R24*E$22)","v":101.15877138961507},{"$f":"IF(S24>K24,E$22*K24+E$23*(S24-K24),S24*E$22)","v":144.81458253414547},{"$f":"IF(Q24>I24,F$22*I24+F$23*(Q24-I24),Q24*F$22)","v":42.230739989749878},{"$f":"IF(R24>J24,F$22*J24+F$23*(R24-J24),R24*F$22)","v":113.6662001709126},{"$f":"IF(S24>K24,F$22*K24+F$23*(S24-K24),S24*F$22)","v":162.71854394491413}]
[null,"S",42.57453105136922,117.92703560918348,164.322619267302,42.369568948200012,117.36435012440002,163.53884553720005,40.201427207045953,111.34314394031394,155.14784620646842,{"$f":"IF(Q25>I25,F$22*I25+F$23*(Q25-I25),Q25*F$22)","v":45.17535559503218},125.10928875344263,174.32931944674374]
[null,"T",52.889888474051332,98.286168416511003,120.12753917573566,52.636535412800015,97.817760000000021,119.55504000000003,49.939126392872552,92.797645332418583,113.41934429517826,56.115383419663374,{"$f":"IF(R26>J26,F$22*J26+F$23*(R26-J26),R26*F$22)","v":104.26978598550498},127.44084953783943]
[null,"V",58.912442900128234,122.85771052063875,131.04822455534799,58.629673024200017,122.27220000000003,130.42368000000005,55.626877154718343,115.99705666552322,123.73019377655811,62.507675388126799,130.33723248188124,139.02638131400664]
[null,"W",39.327378643402817,90.095654381801751,139.23873859005724,39.138548948200011,89.666280000000029,138.57516000000004,37.13421514368693,85.06450822138369,131.46333088759297,41.727679231851063,95.58063715337957,147.71553014613207]
[null,"X",50.743486975748723,122.85771052063875,158.34993800437883,50.499620986200007,122.27220000000003,157.59528000000003,47.914152180882155,115.99705666552322,149.50731748000771,53.841515491579493,130.33723248188124,167.99021075442471]
[null,"Y",63.362496026685427,189.14398730034446,215.95450670173759,63.059802673600018,188.24160324360003,214.92497458040006,59.825716700323241,178.58380337122517,203.89584362634827,67.223098163594173,200.66317297498489,229.1032075120103]
[null,"ALL CLIMATE ZONES",{"$f":"SUMPRODUCT(C37:C45,$W$22:$W$30)","v":47.61718377639977},114.86970584748346,151.94382295734522,47.388363774600009,114.32198617333914,151.21943776725919,44.962118895873125,108.45570759156283,143.45947763182949,50.524250429917046,121.86412274608097,161.19520520396]
[]
[]
[null,null,"CARE"]
[null,null,{"$f":"C27","v":"2025-01-01"},null,null,{"$f":"D27","v":"2025-09-01"},null,null,{"$f":"I35","v":"Illustrative Proposed Authorized"},null,null,{"$f":"L35","v":"Illustrative Proposed w/Pending"}]
[null,null,"Summer","Winter Off-Peak","Winter On-Peak","Summer","Winter Off-Peak","Winter On-Peak","Summer","Winter Off-Peak","Winter On-Peak","Summer","Winter Off-Peak","Winter On-Peak"]
[null,"P",{"$f":"IF(T22>I22,C$28*I22+C$29*(T22-I22),T22*C$28)","v":30.98388922910501},{"$f":"IF(U22>J22,C$28*J22+C$29*(U22-J22),U22*C$28)","v":98.899695069367894},{"$f":"IF(V22>K22,C$28*K22+C$29*(V22-K22),V22*C$28)","v":113.94964866688039},{"$f":"IF(T22>I22,D$28*I22+D$29*(T22-I22),T22*D$28)","v":30.843484114580015},{"$f":"IF(U22>J22,D$28*J22+D$29*(U22-J22),U22*D$28)","v":98.455892855494326},{"$f":"IF(V22>K22,D$28*K22+D$29*(V22-K22),V22*D$28)","v":113.43831133350434},{"$f":"IF(T22>I22,E$28*I22+E$29*(T22-I22),T22*E$28)","v":29.250411933927772},{"$f":"IF(U22>J22,E$28*J22+E$29*(U22-J22),U22*E$28)","v":93.358374633908724},{"$f":"IF(V22>K22,E$28*K22+E$29*(V22-K22),V22*E$28)","v":107.56508381732962},{"$f":"IF(T22>I22,F$28*I22+F$29*(T22-I22),T22*F$28)","v":32.851583725578671},{"$f":"IF(U22>J22,F$28*J22+F$29*(U22-J22),U22*F$28)","v":104.84362488677411},{"$f":"IF(V22>K22,F$28*K22+F$29*(V22-K22),V22*F$28)","v":120.79808954345712}]
[null,"Q"]
[null,"R",{"$f":"IF(T24>I24,C$28*I24+C$29*(T24-I24),T24*C$28)","v":33.924866136018224},{"$f":"IF(U24>J24,C$28*J24+C$29*(U24-J24),U24*C$28)","v":75.249767987562535},{"$f":"IF(V24>K24,C$28*K24+C$29*(V24-K24),V24*C$28)","v":105.34967518258753},{"$f":"IF(T24>I24,D$28*I24+D$29*(T24-I24),T24*D$28)","v":33.770039522318584},{"$f":"IF(U24>J24,D$28*J24+D$29*(U24-J24),U24*D$28)","v":74.912092390050034},{"$f":"IF(V24>K24,D$28*K24+D$29*(V24-K24),V24*D$28)","v":104.87692934607006},{"$f":"IF(T24>I24,E$28*I24+E$29*(T24-I24),T24*E$28)","v":32.028880263582678},{"$f":"IF(U24>J24,E$28*J24+E$29*(U24-J24),U24*E$28)","v":71.033545917104462},{"$f":"IF(V24>K24,E$28*K24+E$29*(V24-K24),V24*E$28)","v":99.446964283946258},{"$f":"IF(T24>I24,F$28*I24+F$29*(T24-I24),T24*F$28)","v":35.97427630387817},{"$f":"IF(U24>J24,F$28*J24+F$29*(U24-J24),U24*F$28)","v":79.772323283415091},{"$f":"IF(V24>K24,F$28*K24+F$29*(V24-K24),V24*F$28)","v":111.68125259678112}]
[null,"S",36.111043971251441,83.849741471855396,113.94964866688039,35.946351108297158,83.473474377484322,113.43831133350434,34.092671209441967,79.15166545048784,107.56508381732962,38.292071669539574,88.889160230091093,120.79808954345712]
[null,"T",44.226756085784302,66.649794503269675,77.399761358635743,44.026394267411447,66.350710402615746,77.052437886908606,41.752270506382736,62.915426383721098,73.063075800450306,46.892505454986754,70.655486336739074,82.051532520084095]
[null,"V",48.976511292090734,92.449714956148256,96.749701698294672,48.754139350248593,92.03485636491861,96.315547358635754,46.237191089999122,87.269784983871205,91.328844750562894,51.930544792628616,98.00599717676711,102.5644156501051]
[null,"W",38.674621342324656,73.099774616489313,105.34967518258753,38.497784605155729,72.771746893191462,104.87692934607006,36.513800847199064,69.004016033758631,99.446964283946258,41.012315641520026,77.493114046746086,111.68125259678112]
[null,"X",37.416622889524653,73.099774616489313,92.449714956148256,37.247378235555729,72.771746893191462,92.03485636491861,35.32267187420635,69.004016033758631,87.269784983871205,39.670820287123185,77.493114046746086,98.00599717676711]
[null,"Y",45.149860792537517,128.99960226439291,146.19954923297863,44.947255434030019,128.42072981151435,145.54349378638292,42.62012755026268,121.77179300075052,138.00803206751726,47.863393970049053,136.75255420014014,154.98622809349217]
[null,"ALL CLIMATE ZONES",{"$f":"SUMPRODUCT(C52:C60,$X$22:$X$30)","v":37.55751710159285},{"$f":"SUMPRODUCT(D52:D60,$X$22:$X$30)","v":76.62485711266406},101.00289509516857,37.386735364074219,76.281010944073799,{"$f":"SUMPRODUCT(H52:H60,$X$22:$X$30)","v":100.54965498740653},35.457352254587391,72.331589208402775,{"$f":"SUMPRODUCT(K52:K60,$X$22:$X$30)","v":95.343732989169837},39.823849384002209,81.23005607335854,{"$f":"SUMPRODUCT(N52:N60,$X$22:$X$30)","v":107.07322847060961}]
[]
[]
[null,null,"ESSENTIAL USAGE NON-CARE"]
[null,null,{"$f":"C27","v":"2025-01-01"},null,null,{"$f":"D27","v":"2025-09-01"},null,null,{"$f":"I50","v":"Illustrative Proposed Authorized"},null,null,{"$f":"L50","v":"Illustrative Proposed w/Pending"}]
[null,null,"Summer","Winter Off-Peak","Winter On-Peak","Summer","Winter Off-Peak","Winter On-Peak","Summer","Winter Off-Peak","Winter On-Peak","Summer","Winter Off-Peak","Winter On-Peak"]
[null,"P",{"$f":"C$22*I22","v":32.387012501187669},{"$f":"C$22*J22","v":156.12200898008413},{"$f":"C$22*K22","v":181.86553173743843},{"$f":"D$22*I22","v":32.232663730800013},{"$f":"D$22*J22","v":155.37796875360004},{"$f":"D$22*K22","v":180.99880402680006},{"$f":"E$22*I22","v":30.578448095825241},{"$f":"E$22*J22","v":147.40380107731141},{"$f":"E$22*K22","v":171.70974699963404},{"$f":"F$22*I22","v":34.358719203478643},{"$f":"F$22*J22","v":165.62664641676884},{"$f":"F$22*K22","v":192.93742321953391}]
[null,"Q"]
[null,"R",{"$f":"C$22*I24","v":29.89570384725015},{"$f":"C$22*J24","v":102.9740910294172},{"$f":"C$22*K24","v":150.30895545422993},{"$f":"D$22*I24","v":29.753228059200008},{"$f":"D$22*J24","v":102.48334109280003},{"$f":"D$22*K24","v":149.59261885320007},{"$f":"E$22*I24","v":28.226259780761758},{"$f":"E$22*J24","v":97.223783689290514},{"$f":"E$22*K24","v":141.91536167549663},{"$f":"F$22*I24","v":31.715740803211052},{"$f":"F$22*J24","v":109.24310721106029},{"$f":"F$22*K24","v":159.45969681614446}]
[null,"S",32.387012501187669,114.60019808112557,161.10462628795915,32.232663730800013,114.05404089360002,160.33684009680005,30.578448095825241,108.20066249292007,152.10817770743836,34.358719203478643,121.57700641230903,170.912603217304]
[null,"T",46.504428206833573,108.7871445552714,139.51328462050071,46.282799203200021,108.26869099320004,138.84839760960003,43.907515214518298,102.7122230911053,131.72254564355487,49.335596804994978,115.41005681168467,148.00679041498492]
[null,"V",48.995736860771082,125.3958689148548,142.00459327443821,48.762234874800015,124.79826213720004,141.32783328120004,46.25970352958177,118.39347852486182,134.07473395861834,51.978575205262558,133.02991281346857,150.64976881525249]
[null,"W",32.387012501187669,94.669728849625471,139.51328462050071,32.232663730800013,94.21855552080001,138.84839760960003,30.578448095825241,89.383155972412226,131.72254564355487,34.358719203478643,100.43317921016832,148.00679041498492]
[null,"X",40.691374680979372,122.90456026091729,166.08724359583417,40.497449302800007,122.31882646560004,165.29571144000005,38.419075812703504,116.04129020979835,156.81255433756533,43.1686472043706,130.386934413201,176.19856001783918]
[null,"Y",59.7914076945003,184.35684039137595,214.25254423862611,59.506456118400017,183.47823969840007,213.23146775760009,56.452519561523516,174.06193531469754,202.28819509545929,63.431481606422103,195.58040161980153,227.29614242301258]
[null,"ALL CLIMATE ZONES",{"$f":"SUMPRODUCT(C67:C75,$W$22:$W$30)","v":38.290200181746933},{"$f":"SUMPRODUCT(D67:D75,$W$22:$W$30)","v":115.67808643118934},157.51849601069063,38.107718228039928,115.12679228509309,156.76780046037794,36.151988356239109,109.21835910708944,148.72230509741289,40.621290285461967,122.72051611858973,167.10815094745524]
[]
[]
[null,null,"ESSENTIAL USAGE CARE"]
[null,null,{"$f":"C27","v":"2025-01-01"},null,null,{"$f":"D27","v":"2025-09-01"},null,null,{"$f":"I65","v":"Illustrative Proposed Authorized"},null,null,{"$f":"L65","v":"Illustrative Proposed w/Pending"}]
[null,null,"Summer","Winter Off-Peak","Winter On-Peak","Summer","Winter Off-Peak","Winter On-Peak","Summer","Winter Off-Peak","Winter On-Peak","Summer","Winter Off-Peak","Winter On-Peak"]
[null,"P",{"$f":"C$28*I22","v":25.504575863494257},{"$f":"C$28*J22","v":122.94513493171588},{"$f":"C$28*K22","v":143.21800292577544},{"$f":"D$28*I22","v":25.39012670139941},{"$f":"D$28*J22","v":122.39343127854073},{"$f":"D$28*K22","v":142.57532686170435},{"$f":"E$28*I22","v":24.075562080074889},{"$f":"E$28*J22","v":116.05655566805329},{"$f":"E$28*K22","v":135.19354091118973},{"$f":"F$28*I22","v":27.037415867186812},{"$f":"F$28*J22","v":130.33420982131076},{"$f":"F$28*K22","v":151.82548910035669}]
[null,"Q"]
[null,"R",{"$f":"C$28*I24","v":23.542685412456233},{"$f":"C$28*J24","v":81.09147197623814},{"$f":"C$28*K24","v":118.36739054596052},{"$f":"D$28*I24","v":23.437040032060992},{"$f":"D$28*J24","v":80.727582332654535},{"$f":"D$28*K24","v":117.83622905008444},{"$f":"E$28*I24","v":22.223595766222971},{"$f":"E$28*J24","v":76.547940972545788},{"$f":"E$28*K24","v":111.73530093573217},{"$f":"F$28*I24","v":24.957614646633978},{"$f":"F$28*J24","v":85.965117116183706},{"$f":"F$28*K24","v":125.4813403066875}]
[null,"S",25.504575863494257,90.246960747748886,126.86891583379193,25.39012670139941,89.84198678956713,126.29960461721757,24.075562080074889,85.190450437188048,119.76048829575713,27.037415867186812,95.670856145430236,134.49381226241644]
[null,"T",36.621955086043037,85.66921636199352,109.86586525812909,36.457617827650438,85.28478456111084,109.3728534829513,34.570037858569073,80.869195704866925,103.7101135757072,38.822956116986191,90.817986630806985,116.46886835095856]
[null,"V",38.583845537081054,98.748486035580314,111.82775570916711,38.410704496988849,98.305362356700272,111.3259401522897,36.422004172420984,93.21563779721302,105.56207988955912,40.902757337539022,104.68332810115919,118.54866957151138]
[null,"W",25.504575863494257,74.551837139444729,109.86586525812909,25.39012670139941,74.217293434859798,109.3728534829513,24.075562080074889,70.374719926372734,103.7101135757072,27.037415867186812,79.032446381007588,116.46886835095856]
[null,"X",32.04421070028765,96.786595584542297,130.79269673586796,31.900415599194126,96.352275687361868,130.2057779558944,30.248783126247933,91.363671483361117,123.46442092346095,33.970086602362912,102.60352688060635,138.65341470352209]
[null,"Y",47.085370824912467,145.17989337681348,168.7225787892697,46.874080064121983,144.52841353104282,167.96545356310381,44.447191532445942,137.04550722504169,159.26910299126465,49.915229293267956,153.90529032090956,178.86290496754353]
[null,"ALL CLIMATE ZONES",{"$f":"SUMPRODUCT(C82:C90,$X$22:$X$30)","v":28.563039262905463},88.718942533547491,122.51369137381941,28.434865560742445,88.320825400008374,121.96392377925419,26.962660686860861,83.748046628068181,115.64928576410432,30.279694714992026,94.051003138224075,129.87683625193642]
[]
[]
[null,null,"TYPICAL NON-CARE"]
[null,null,{"$f":"C27","v":"2025-01-01"},null,null,{"$f":"D27","v":"2025-09-01"},null,null,{"$f":"I80","v":"Illustrative Proposed Authorized"},null,null,{"$f":"L80","v":"Illustrative Proposed w/Pending"}]
[null,null,"Summer","Winter Off-Peak","Winter On-Peak","Summer","Winter Off-Peak","Winter On-Peak","Summer","Winter Off-Peak","Winter On-Peak","Summer","Winter Off-Peak","Winter On-Peak"]
[null,"P",{"$f":"IF(Summary!$L$16>I22,C$22*I22+C$23*(Summary!$L$16-I22),Summary!$L$16*C$22)","v":94.528969578831635},{"$f":"IF(Summary!$L$16>J22,C$22*J22+C$23*(Summary!$L$16-J22),Summary!$L$16*C$22)","v":84.635311691995582},{"$f":"IF(Summary!$L$16>K22,C$22*K22+C$23*(Summary!$L$16-K22),Summary!$L$16*C$22)","v":84.635311691995582},{"$f":"IF(Summary!$L$16>I22,D$22*I22+D$23*(Summary!$L$16-I22),Summary!$L$16*D$22)","v":94.065888948200012},{"$f":"IF(Summary!$L$16>J22,D$22*J22+D$23*(Summary!$L$16-J22),Summary!$L$16*D$22)","v":84.231960000000015},{"$f":"IF(Summary!$L$16>K22,D$22*K22+D$23*(Summary!$L$16-K22),Summary!$L$16*D$22)","v":84.231960000000015},{"$f":"IF(Summary!$L$16>I22,E$22*I22+E$23*(Summary!$L$16-I22),Summary!$L$16*E$22)","v":89.276820220790427},{"$f":"IF(Summary!$L$16>J22,E$22*J22+E$23*(Summary!$L$16-J22),Summary!$L$16*E$22)","v":79.909083480693781},{"$f":"IF(Summary!$L$16>K22,E$22*K22+E$23*(Summary!$L$16-K22),Summary!$L$16*E$22)","v":79.909083480693781},{"$f":"IF(Summary!$L$16>I22,F$22*I22+F$23*(Summary!$L$16-I22),Summary!$L$16*F$22)","v":100.33817740593005},{"$f":"IF(Summary!$L$16>J22,F$22*J22+F$23*(Summary!$L$16-J22),Summary!$L$16*F$22)","v":89.787871265295962},{"$f":"IF(Summary!$L$16>K22,F$22*K22+F$23*(Summary!$L$16-K22),Summary!$L$16*F$22)","v":89.787871265295962}]
[null,"Q"]
[null,"R",{"$f":"IF(Summary!$L$16>I24,C$22*I24+C$23*(Summary!$L$16-I24),Summary!$L$16*C$22)","v":95.000719968687548},{"$f":"IF(Summary!$L$16>J24,C$22*J24+C$23*(Summary!$L$16-J24),Summary!$L$16*C$22)","v":84.635311691995582},{"$f":"IF(Summary!$L$16>K24,C$22*K24+C$23*(Summary!$L$16-K24),Summary!$L$16*C$22)","v":84.635311691995582},{"$f":"IF(Summary!$L$16>I24,D$22*I24+D$23*(Summary!$L$16-I24),Summary!$L$16*D$22)","v":94.534791336800026},{"$f":"IF(Summary!$L$16>J24,D$22*J24+D$23*(Summary!$L$16-J24),Summary!$L$16*D$22)","v":84.231960000000015},{"$f":"IF(Summary!$L$16>K24,D$22*K24+D$23*(Summary!$L$16-K24),Summary!$L$16*D$22)","v":84.231960000000015},{"$f":"IF(Summary!$L$16>I24,E$22*I24+E$23*(Summary!$L$16-I24),Summary!$L$16*E$22)","v":89.723493585662709},{"$f":"IF(Summary!$L$16>J24,E$22*J24+E$23*(Summary!$L$16-J24),Summary!$L$16*E$22)","v":79.909083480693781},{"$f":"IF(Summary!$L$16>K24,E$22*K24+E$23*(Summary!$L$16-K24),Summary!$L$16*E$22)","v":79.909083480693781},{"$f":"IF(Summary!$L$16>I24,F$22*I24+F$23*(Summary!$L$16-I24),Summary!$L$16*F$22)","v":100.84123816382888},{"$f":"IF(Summary!$L$16>J24,F$22*J24+F$23*(Summary!$L$16-J24),Summary!$L$16*F$22)","v":89.787871265295962},{"$f":"IF(Summary!$L$16>K24,F$22*K24+F$23*(Summary!$L$16-K24),Summary!$L$16*F$22)","v":89.787871265295962}]
[null,"S",{"$f":"IF(Summary!$L$16>I25,C$22*I25+C$23*(Summary!$L$16-I25),Summary!$L$16*C$22)","v":94.528969578831635},{"$f":"IF(Summary!$L$16>J25,C$22*J25+C$23*(Summary!$L$16-J25),Summary!$L$16*C$22)","v":84.635311691995582},{"$f":"IF(Summary!$L$16>K25,C$22*K25+C$23*(Summary!$L$16-K25),Summary!$L$16*C$22)","v":84.635311691995582},{"$f":"IF(Summary!$L$16>I25,D$22*I25+D$23*(Summary!$L$16-I25),Summary!$L$16*D$22)","v":94.065888948200012},{"$f":"IF(Summary!$L$16>J25,D$22*J25+D$23*(Summary!$L$16-J25),Summary!$L$16*D$22)","v":84.231960000000015},{"$f":"IF(Summary!$L$16>K25,D$22*K25+D$23*(Summary!$L$16-K25),Summary!$L$16*D$22)","v":84.231960000000015},{"$f":"IF(Summary!$L$16>I25,E$22*I25+E$23*(Summary!$L$16-I25),Summary!$L$16*E$22)","v":89.276820220790427},{"$f":"IF(Summary!$L$16>J25,E$22*J25+E$23*(Summary!$L$16-J25),Summary!$L$16*E$22)","v":79.909083480693781},{"$f":"IF(Summary!$L$16>K25,E$22*K25+E$23*(Summary!$L$16-K25),Summary!$L$16*E$22)","v":79.909083480693781},{"$f":"IF(Summary!$L$16>I25,F$22*I25+F$23*(Summary!$L$16-I25),Summary!$L$16*F$22)","v":100.33817740593005},{"$f":"IF(Summary!$L$16>J25,F$22*J25+F$23*(Summary!$L$16-J25),Summary!$L$16*F$22)","v":89.787871265295962},{"$f":"IF(Summary!$L$16>K25,F$22*K25+F$23*(Summary!$L$16-K25),Summary!$L$16*F$22)","v":89.787871265295962}]
[null,"T",{"$f":"IF(Summary!$L$16>I26,C$22*I26+C$23*(Summary!$L$16-I26),Summary!$L$16*C$22)","v":91.855717369648147},{"$f":"IF(Summary!$L$16>J26,C$22*J26+C$23*(Summary!$L$16-J26),Summary!$L$16*C$22)","v":84.635311691995582},{"$f":"IF(Summary!$L$16>K26,C$22*K26+C$23*(Summary!$L$16-K26),Summary!$L$16*C$22)","v":84.635311691995582},{"$f":"IF(Summary!$L$16>I26,D$22*I26+D$23*(Summary!$L$16-I26),Summary!$L$16*D$22)","v":91.408775412800026},{"$f":"IF(Summary!$L$16>J26,D$22*J26+D$23*(Summary!$L$16-J26),Summary!$L$16*D$22)","v":84.231960000000015},{"$f":"IF(Summary!$L$16>K26,D$22*K26+D$23*(Summary!$L$16-K26),Summary!$L$16*D$22)","v":84.231960000000015},{"$f":"IF(Summary!$L$16>I26,E$22*I26+E$23*(Summary!$L$16-I26),Summary!$L$16*E$22)","v":86.745671153180908},{"$f":"IF(Summary!$L$16>J26,E$22*J26+E$23*(Summary!$L$16-J26),Summary!$L$16*E$22)","v":79.909083480693781},{"$f":"IF(Summary!$L$16>K26,E$22*K26+E$23*(Summary!$L$16-K26),Summary!$L$16*E$22)","v":79.909083480693781},{"$f":"IF(Summary!$L$16>I26,F$22*I26+F$23*(Summary!$L$16-I26),Summary!$L$16*F$22)","v":97.487499777836774},{"$f":"IF(Summary!$L$16>J26,F$22*J26+F$23*(Summary!$L$16-J26),Summary!$L$16*F$22)","v":89.787871265295962},{"$f":"IF(Summary!$L$16>K26,F$22*K26+F$23*(Summary!$L$16-K26),Summary!$L$16*F$22)","v":89.787871265295962}]
[null,"V",{"$f":"IF(Summary!$L$16>I27,C$22*I27+C$23*(Summary!$L$16-I27),Summary!$L$16*C$22)","v":91.383966979792248},{"$f":"IF(Summary!$L$16>J27,C$22*J27+C$23*(Summary!$L$16-J27),Summary!$L$16*C$22)","v":84.635311691995582},{"$f":"IF(Summary!$L$16>K27,C$22*K27+C$23*(Summary!$L$16-K27),Summary!$L$16*C$22)","v":84.635311691995582},{"$f":"IF(Summary!$L$16>I27,D$22*I27+D$23*(Summary!$L$16-I27),Summary!$L$16*D$22)","v":90.939873024200011},{"$f":"IF(Summary!$L$16>J27,D$22*J27+D$23*(Summary!$L$16-J27),Summary!$L$16*D$22)","v":84.231960000000015},{"$f":"IF(Summary!$L$16>K27,D$22*K27+D$23*(Summary!$L$16-K27),Summary!$L$16*D$22)","v":84.231960000000015},{"$f":"IF(Summary!$L$16>I27,E$22*I27+E$23*(Summary!$L$16-I27),Summary!$L$16*E$22)","v":86.29899778830864},{"$f":"IF(Summary!$L$16>J27,E$22*J27+E$23*(Summary!$L$16-J27),Summary!$L$16*E$22)","v":79.909083480693781},{"$f":"IF(Summary!$L$16>K27,E$22*K27+E$23*(Summary!$L$16-K27),Summary!$L$16*E$22)","v":79.909083480693781},{"$f":"IF(Summary!$L$16>I27,F$22*I27+F$23*(Summary!$L$16-I27),Summary!$L$16*F$22)","v":96.98443901993798},{"$f":"IF(Summary!$L$16>J27,F$22*J27+F$23*(Summary!$L$16-J27),Summary!$L$16*F$22)","v":89.787871265295962},{"$f":"IF(Summary!$L$16>K27,F$22*K27+F$23*(Summary!$L$16-K27),Summary!$L$16*F$22)","v":89.787871265295962}]
[null,"W",{"$f":"IF(Summary!$L$16>I28,C$22*I28+C$23*(Summary!$L$16-I28),Summary!$L$16*C$22)","v":94.528969578831635},{"$f":"IF(Summary!$L$16>J28,C$22*J28+C$23*(Summary!$L$16-J28),Summary!$L$16*C$22)","v":84.635311691995582},{"$f":"IF(Summary!$L$16>K28,C$22*K28+C$23*(Summary!$L$16-K28),Summary!$L$16*C$22)","v":84.635311691995582},{"$f":"IF(Summary!$L$16>I28,D$22*I28+D$23*(Summary!$L$16-I28),Summary!$L$16*D$22)","v":94.065888948200012},{"$f":"IF(Summary!$L$16>J28,D$22*J28+D$23*(Summary!$L$16-J28),Summary!$L$16*D$22)","v":84.231960000000015},{"$f":"IF(Summary!$L$16>K28,D$22*K28+D$23*(Summary!$L$16-K28),Summary!$L$16*D$22)","v":84.231960000000015},{"$f":"IF(Summary!$L$16>I28,E$22*I28+E$23*(Summary!$L$16-I28),Summary!$L$16*E$22)","v":89.276820220790427},{"$f":"IF(Summary!$L$16>J28,E$22*J28+E$23*(Summary!$L$16-J28),Summary!$L$16*E$22)","v":79.909083480693781},{"$f":"IF(Summary!$L$16>K28,E$22*K28+E$23*(Summary!$L$16-K28),Summary!$L$16*E$22)","v":79.909083480693781},{"$f":"IF(Summary!$L$16>I28,F$22*I28+F$23*(Summary!$L$16-I28),Summary!$L$16*F$22)","v":100.33817740593005},{"$f":"IF(Summary!$L$16>J28,F$22*J28+F$23*(Summary!$L$16-J28),Summary!$L$16*F$22)","v":89.787871265295962},{"$f":"IF(Summary!$L$16>K28,F$22*K28+F$23*(Summary!$L$16-K28),Summary!$L$16*F$22)","v":89.787871265295962}]
[null,"X",{"$f":"IF(Summary!$L$16>I29,C$22*I29+C$23*(Summary!$L$16-I29),Summary!$L$16*C$22)","v":92.956468279311935},{"$f":"IF(Summary!$L$16>J29,C$22*J29+C$23*(Summary!$L$16-J29),Summary!$L$16*C$22)","v":84.635311691995582},{"$f":"IF(Summary!$L$16>K29,C$22*K29+C$23*(Summary!$L$16-K29),Summary!$L$16*C$22)","v":84.635311691995582},{"$f":"IF(Summary!$L$16>I29,D$22*I29+D$23*(Summary!$L$16-I29),Summary!$L$16*D$22)","v":92.502880986200012},{"$f":"IF(Summary!$L$16>J29,D$22*J29+D$23*(Summary!$L$16-J29),Summary!$L$16*D$22)","v":84.231960000000015},{"$f":"IF(Summary!$L$16>K29,D$22*K29+D$23*(Summary!$L$16-K29),Summary!$L$16*D$22)","v":84.231960000000015},{"$f":"IF(Summary!$L$16>I29,E$22*I29+E$23*(Summary!$L$16-I29),Summary!$L$16*E$22)","v":87.787909004549533},{"$f":"IF(Summary!$L$16>J29,E$22*J29+E$23*(Summary!$L$16-J29),Summary!$L$16*E$22)","v":79.909083480693781},{"$f":"IF(Summary!$L$16>K29,E$22*K29+E$23*(Summary!$L$16-K29),Summary!$L$16*E$22)","v":79.909083480693781},{"$f":"IF(Summary!$L$16>I29,F$22*I29+F$23*(Summary!$L$16-I29),Summary!$L$16*F$22)","v":98.661308212934017},{"$f":"IF(Summary!$L$16>J29,F$22*J29+F$23*(Summary!$L$16-J29),Summary!$L$16*F$22)","v":89.787871265295962},{"$f":"IF(Summary!$L$16>K29,F$22*K29+F$23*(Summary!$L$16-K29),Summary!$L$16*F$22)","v":89.787871265295962}]
[null,"Y",{"$f":"IF(Summary!$L$16>I30,C$22*I30+C$23*(Summary!$L$16-I30),Summary!$L$16*C$22)","v":89.339715290416649},{"$f":"IF(Summary!$L$16>J30,C$22*J30+C$23*(Summary!$L$16-J30),Summary!$L$16*C$22)","v":84.635311691995582},{"$f":"IF(Summary!$L$16>K30,C$22*K30+C$23*(Summary!$L$16-K30),Summary!$L$16*C$22)","v":84.635311691995582},{"$f":"IF(Summary!$L$16>I30,D$22*I30+D$23*(Summary!$L$16-I30),Summary!$L$16*D$22)","v":88.907962673600025},{"$f":"IF(Summary!$L$16>J30,D$22*J30+D$23*(Summary!$L$16-J30),Summary!$L$16*D$22)","v":84.231960000000015},{"$f":"IF(Summary!$L$16>K30,D$22*K30+D$23*(Summary!$L$16-K30),Summary!$L$16*D$22)","v":84.231960000000015},{"$f":"IF(Summary!$L$16>I30,E$22*I30+E$23*(Summary!$L$16-I30),Summary!$L$16*E$22)","v":84.363413207195478},{"$f":"IF(Summary!$L$16>J30,E$22*J30+E$23*(Summary!$L$16-J30),Summary!$L$16*E$22)","v":79.909083480693781},{"$f":"IF(Summary!$L$16>K30,E$22*K30+E$23*(Summary!$L$16-K30),Summary!$L$16*E$22)","v":79.909083480693781},{"$f":"IF(Summary!$L$16>I30,F$22*I30+F$23*(Summary!$L$16-I30),Summary!$L$16*F$22)","v":94.804509069043107},{"$f":"IF(Summary!$L$16>J30,F$22*J30+F$23*(Summary!$L$16-J30),Summary!$L$16*F$22)","v":89.787871265295962},{"$f":"IF(Summary!$L$16>K30,F$22*K30+F$23*(Summary!$L$16-K30),Summary!$L$16*F$22)","v":89.787871265295962}]
[null,"ALL CLIMATE ZONES",{"$f":"SUMPRODUCT(C97:C105,$W$22:$W$30)","v":93.411151003724527},84.635311691995568,84.635311691995568,92.954818748450393,84.231960000000001,84.231960000000001,88.218421976726816,79.909083480693781,79.909083480693781,99.146168513773105,89.787871265295948,89.787871265295948]
[]
[]
[null,null,"TYPICAL CARE"]
[null,null,{"$f":"C27","v":"2025-01-01"},null,null,{"$f":"D27","v":"2025-09-01"},null,null,{"$f":"I95","v":"Illustrative Proposed Authorized"},null,null,{"$f":"L95","v":"Illustrative Proposed w/Pending"}]
[null,null,"Summer","Winter Off-Peak","Winter On-Peak","Summer","Winter Off-Peak","Winter On-Peak","Summer","Winter Off-Peak","Winter On-Peak","Summer","Winter Off-Peak","Winter On-Peak"]
[null,"P",{"$f":"IF(Summary!$L$17>I22,C$28*I22+C$29*(Summary!$L$17-I22),Summary!$L$17*C$28)","v":61.746817681983586},{"$f":"IF(Summary!$L$17>J22,C$28*J22+C$29*(Summary!$L$17-J22),Summary!$L$17*C$28)","v":55.899827647903592},{"$f":"IF(Summary!$L$17>K22,C$28*K22+C$29*(Summary!$L$17-K22),Summary!$L$17*C$28)","v":55.899827647903592},{"$f":"IF(Summary!$L$17>I22,D$28*I22+D$29*(Summary!$L$17-I22),Summary!$L$17*D$28)","v":61.46068607688288},{"$f":"IF(Summary!$L$17>J22,D$28*J22+D$29*(Summary!$L$17-J22),Summary!$L$17*D$28)","v":55.648982918322886},{"$f":"IF(Summary!$L$17>K22,D$28*K22+D$29*(Summary!$L$17-K22),Summary!$L$17*D$28)","v":55.648982918322886},{"$f":"IF(Summary!$L$17>I22,E$28*I22+E$29*(Summary!$L$17-I22),Summary!$L$17*E$28)","v":58.303967587012934},{"$f":"IF(Summary!$L$17>J22,E$28*J22+E$29*(Summary!$L$17-J22),Summary!$L$17*E$28)","v":52.767776966991889},{"$f":"IF(Summary!$L$17>K22,E$28*K22+E$29*(Summary!$L$17-K22),Summary!$L$17*E$28)","v":52.767776966991889},{"$f":"IF(Summary!$L$17>I22,F$28*I22+F$29*(Summary!$L$17-I22),Summary!$L$17*F$28)","v":65.494511389344098},{"$f":"IF(Summary!$L$17>J22,F$28*J22+F$29*(Summary!$L$17-J22),Summary!$L$17*F$28)","v":59.259440153394067},{"$f":"IF(Summary!$L$17>K22,F$28*K22+F$29*(Summary!$L$17-K22),Summary!$L$17*F$28)","v":59.259440153394067}]
[null,"Q"]
[null,"R",{"$f":"IF(Summary!$L$17>I24,C$28*I24+C$29*(Summary!$L$17-I24),Summary!$L$17*C$28)","v":62.124217217823585},{"$f":"IF(Summary!$L$17>J24,C$28*J24+C$29*(Summary!$L$17-J24),Summary!$L$17*C$28)","v":55.899827647903592},{"$f":"IF(Summary!$L$17>K24,C$28*K24+C$29*(Summary!$L$17-K24),Summary!$L$17*C$28)","v":55.899827647903592},{"$f":"IF(Summary!$L$17>I24,D$28*I24+D$29*(Summary!$L$17-I24),Summary!$L$17*D$28)","v":61.835807987762884},{"$f":"IF(Summary!$L$17>J24,D$28*J24+D$29*(Summary!$L$17-J24),Summary!$L$17*D$28)","v":55.648982918322886},{"$f":"IF(Summary!$L$17>K24,D$28*K24+D$29*(Summary!$L$17-K24),Summary!$L$17*D$28)","v":55.648982918322886},{"$f":"IF(Summary!$L$17>I24,E$28*I24+E$29*(Summary!$L$17-I24),Summary!$L$17*E$28)","v":58.66130627891075},{"$f":"IF(Summary!$L$17>J24,E$28*J24+E$29*(Summary!$L$17-J24),Summary!$L$17*E$28)","v":52.767776966991889},{"$f":"IF(Summary!$L$17>K24,E$28*K24+E$29*(Summary!$L$17-K24),Summary!$L$17*E$28)","v":52.767776966991889},{"$f":"IF(Summary!$L$17>I24,F$28*I24+F$29*(Summary!$L$17-I24),Summary!$L$17*F$28)","v":65.896959995663153},{"$f":"IF(Summary!$L$17>J24,F$28*J24+F$29*(Summary!$L$17-J24),Summary!$L$17*F$28)","v":59.259440153394067},{"$f":"IF(Summary!$L$17>K24,F$28*K24+F$29*(Summary!$L$17-K24),Summary!$L$17*F$28)","v":59.259440153394067}]
[null,"S",{"$f":"IF(Summary!$L$17>I25,C$28*I25+C$29*(Summary!$L$17-I25),Summary!$L$17*C$28)","v":61.746817681983586},{"$f":"IF(Summary!$L$17>J25,C$28*J25+C$29*(Summary!$L$17-J25),Summary!$L$17*C$28)","v":55.899827647903592},{"$f":"IF(Summary!$L$17>K25,C$28*K25+C$29*(Summary!$L$17-K25),Summary!$L$17*C$28)","v":55.899827647903592},{"$f":"IF(Summary!$L$17>I25,D$28*I25+D$29*(Summary!$L$17-I25),Summary!$L$17*D$28)","v":61.46068607688288},{"$f":"IF(Summary!$L$17>J25,D$28*J25+D$29*(Summary!$L$17-J25),Summary!$L$17*D$28)","v":55.648982918322886},{"$f":"IF(Summary!$L$17>K25,D$28*K25+D$29*(Summary!$L$17-K25),Summary!$L$17*D$28)","v":55.648982918322886},{"$f":"IF(Summary!$L$17>I25,E$28*I25+E$29*(Summary!$L$17-I25),Summary!$L$17*E$28)","v":58.303967587012934},{"$f":"IF(Summary!$L$17>J25,E$28*J25+E$29*(Summary!$L$17-J25),Summary!$L$17*E$28)","v":52.767776966991889},{"$f":"IF(Summary!$L$17>K25,E$28*K25+E$29*(Summary!$L$17-K25),Summary!$L$17*E$28)","v":52.767776966991889},{"$f":"IF(Summary!$L$17>I25,F$28*I25+F$29*(Summary!$L$17-I25),Summary!$L$17*F$28)","v":65.494511389344098},{"$f":"IF(Summary!$L$17>J25,F$28*J25+F$29*(Summary!$L$17-J25),Summary!$L$17*F$28)","v":59.259440153394067},{"$f":"IF(Summary!$L$17>K25,F$28*K25+F$29*(Summary!$L$17-K25),Summary!$L$17*F$28)","v":59.259440153394067}]
[null,"T",{"$f":"IF(Summary!$L$17>I26,C$28*I26+C$29*(Summary!$L$17-I26),Summary!$L$17*C$28)","v":59.608220312223594},{"$f":"IF(Summary!$L$17>J26,C$28*J26+C$29*(Summary!$L$17-J26),Summary!$L$17*C$28)","v":55.899827647903592},{"$f":"IF(Summary!$L$17>K26,C$28*K26+C$29*(Summary!$L$17-K26),Summary!$L$17*C$28)","v":55.899827647903592},{"$f":"IF(Summary!$L$17>I26,D$28*I26+D$29*(Summary!$L$17-I26),Summary!$L$17*D$28)","v":59.334995248562883},{"$f":"IF(Summary!$L$17>J26,D$28*J26+D$29*(Summary!$L$17-J26),Summary!$L$17*D$28)","v":55.648982918322886},{"$f":"IF(Summary!$L$17>K26,D$28*K26+D$29*(Summary!$L$17-K26),Summary!$L$17*D$28)","v":55.648982918322886},{"$f":"IF(Summary!$L$17>I26,E$28*I26+E$29*(Summary!$L$17-I26),Summary!$L$17*E$28)","v":56.279048332925321},{"$f":"IF(Summary!$L$17>J26,E$28*J26+E$29*(Summary!$L$17-J26),Summary!$L$17*E$28)","v":52.767776966991889},{"$f":"IF(Summary!$L$17>K26,E$28*K26+E$29*(Summary!$L$17-K26),Summary!$L$17*E$28)","v":52.767776966991889},{"$f":"IF(Summary!$L$17>I26,F$28*I26+F$29*(Summary!$L$17-I26),Summary!$L$17*F$28)","v":63.213969286869471},{"$f":"IF(Summary!$L$17>J26,F$28*J26+F$29*(Summary!$L$17-J26),Summary!$L$17*F$28)","v":59.259440153394067},{"$f":"IF(Summary!$L$17>K26,F$28*K26+F$29*(Summary!$L$17-K26),Summary!$L$17*F$28)","v":59.259440153394067}]
[null,"V",{"$f":"IF(Summary!$L$17>I27,C$28*I27+C$29*(Summary!$L$17-I27),Summary!$L$17*C$28)","v":59.230820776383595},{"$f":"IF(Summary!$L$17>J27,C$28*J27+C$29*(Summary!$L$17-J27),Summary!$L$17*C$28)","v":55.899827647903592},{"$f":"IF(Summary!$L$17>K27,C$28*K27+C$29*(Summary!$L$17-K27),Summary!$L$17*C$28)","v":55.899827647903592},{"$f":"IF(Summary!$L$17>I27,D$28*I27+D$29*(Summary!$L$17-I27),Summary!$L$17*D$28)","v":58.959873337682879},{"$f":"IF(Summary!$L$17>J27,D$28*J27+D$29*(Summary!$L$17-J27),Summary!$L$17*D$28)","v":55.648982918322886},{"$f":"IF(Summary!$L$17>K27,D$28*K27+D$29*(Summary!$L$17-K27),Summary!$L$17*D$28)","v":55.648982918322886},{"$f":"IF(Summary!$L$17>I27,E$28*I27+E$29*(Summary!$L$17-I27),Summary!$L$17*E$28)","v":55.921709641027505},{"$f":"IF(Summary!$L$17>J27,E$28*J27+E$29*(Summary!$L$17-J27),Summary!$L$17*E$28)","v":52.767776966991889},{"$f":"IF(Summary!$L$17>K27,E$28*K27+E$29*(Summary!$L$17-K27),Summary!$L$17*E$28)","v":52.767776966991889},{"$f":"IF(Summary!$L$17>I27,F$28*I27+F$29*(Summary!$L$17-I27),Summary!$L$17*F$28)","v":62.81152068055043},{"$f":"IF(Summary!$L$17>J27,F$28*J27+F$29*(Summary!$L$17-J27),Summary!$L$17*F$28)","v":59.259440153394067},{"$f":"IF(Summary!$L$17>K27,F$28*K27+F$29*(Summary!$L$17-K27),Summary!$L$17*F$28)","v":59.259440153394067}]
[null,"W",{"$f":"IF(Summary!$L$17>I28,C$28*I28+C$29*(Summary!$L$17-I28),Summary!$L$17*C$28)","v":61.746817681983586},{"$f":"IF(Summary!$L$17>J28,C$28*J28+C$29*(Summary!$L$17-J28),Summary!$L$17*C$28)","v":55.899827647903592},{"$f":"IF(Summary!$L$17>K28,C$28*K28+C$29*(Summary!$L$17-K28),Summary!$L$17*C$28)","v":55.899827647903592},{"$f":"IF(Summary!$L$17>I28,D$28*I28+D$29*(Summary!$L$17-I28),Summary!$L$17*D$28)","v":61.46068607688288},{"$f":"IF(Summary!$L$17>J28,D$28*J28+D$29*(Summary!$L$17-J28),Summary!$L$17*D$28)","v":55.648982918322886},{"$f":"IF(Summary!$L$17>K28,D$28*K28+D$29*(Summary!$L$17-K28),Summary!$L$17*D$28)","v":55.648982918322886},{"$f":"IF(Summary!$L$17>I28,E$28*I28+E$29*(Summary!$L$17-I28),Summary!$L$17*E$28)","v":58.303967587012934},{"$f":"IF(Summary!$L$17>J28,E$28*J28+E$29*(Summary!$L$17-J28),Summary!$L$17*E$28)","v":52.767776966991889},{"$f":"IF(Summary!$L$17>K28,E$28*K28+E$29*(Summary!$L$17-K28),Summary!$L$17*E$28)","v":52.767776966991889},{"$f":"IF(Summary!$L$17>I28,F$28*I28+F$29*(Summary!$L$17-I28),Summary!$L$17*F$28)","v":65.494511389344098},{"$f":"IF(Summary!$L$17>J28,F$28*J28+F$29*(Summary!$L$17-J28),Summary!$L$17*F$28)","v":59.259440153394067},{"$f":"IF(Summary!$L$17>K28,F$28*K28+F$29*(Summary!$L$17-K28),Summary!$L$17*F$28)","v":59.259440153394067}]
[null,"X",{"$f":"IF(Summary!$L$17>I29,C$28*I29+C$29*(Summary!$L$17-I29),Summary!$L$17*C$28)","v":60.488819229183591},{"$f":"IF(Summary!$L$17>J29,C$28*J29+C$29*(Summary!$L$17-J29),Summary!$L$17*C$28)","v":55.899827647903592},{"$f":"IF(Summary!$L$17>K29,C$28*K29+C$29*(Summary!$L$17-K29),Summary!$L$17*C$28)","v":55.899827647903592},{"$f":"IF(Summary!$L$17>I29,D$28*I29+D$29*(Summary!$L$17-I29),Summary!$L$17*D$28)","v":60.210279707282879},{"$f":"IF(Summary!$L$17>J29,D$28*J29+D$29*(Summary!$L$17-J29),Summary!$L$17*D$28)","v":55.648982918322886},{"$f":"IF(Summary!$L$17>K29,D$28*K29+D$29*(Summary!$L$17-K29),Summary!$L$17*D$28)","v":55.648982918322886},{"$f":"IF(Summary!$L$17>I29,E$28*I29+E$29*(Summary!$L$17-I29),Summary!$L$17*E$28)","v":57.11283861402022},{"$f":"IF(Summary!$L$17>J29,E$28*J29+E$29*(Summary!$L$17-J29),Summary!$L$17*E$28)","v":52.767776966991889},{"$f":"IF(Summary!$L$17>K29,E$28*K29+E$29*(Summary!$L$17-K29),Summary!$L$17*E$28)","v":52.767776966991889},{"$f":"IF(Summary!$L$17>I29,F$28*I29+F$29*(Summary!$L$17-I29),Summary!$L$17*F$28)","v":64.153016034947257},{"$f":"IF(Summary!$L$17>J29,F$28*J29+F$29*(Summary!$L$17-J29),Summary!$L$17*F$28)","v":59.259440153394067},{"$f":"IF(Summary!$L$17>K29,F$28*K29+F$29*(Summary!$L$17-K29),Summary!$L$17*F$28)","v":59.259440153394067}]
[null,"Y",{"$f":"IF(Summary!$L$17>I30,C$28*I30+C$29*(Summary!$L$17-I30),Summary!$L$17*C$28)","v":57.595422787743587},{"$f":"IF(Summary!$L$17>J30,C$28*J30+C$29*(Summary!$L$17-J30),Summary!$L$17*C$28)","v":55.899827647903592},{"$f":"IF(Summary!$L$17>K30,C$28*K30+C$29*(Summary!$L$17-K30),Summary!$L$17*C$28)","v":55.899827647903592},{"$f":"IF(Summary!$L$17>I30,D$28*I30+D$29*(Summary!$L$17-I30),Summary!$L$17*D$28)","v":57.334345057202881},{"$f":"IF(Summary!$L$17>J30,D$28*J30+D$29*(Summary!$L$17-J30),Summary!$L$17*D$28)","v":55.648982918322886},{"$f":"IF(Summary!$L$17>K30,D$28*K30+D$29*(Summary!$L$17-K30),Summary!$L$17*D$28)","v":55.648982918322886},{"$f":"IF(Summary!$L$17>I30,E$28*I30+E$29*(Summary!$L$17-I30),Summary!$L$17*E$28)","v":54.373241976136981},{"$f":"IF(Summary!$L$17>J30,E$28*J30+E$29*(Summary!$L$17-J30),Summary!$L$17*E$28)","v":52.767776966991889},{"$f":"IF(Summary!$L$17>K30,E$28*K30+E$29*(Summary!$L$17-K30),Summary!$L$17*E$28)","v":52.767776966991889},{"$f":"IF(Summary!$L$17>I30,F$28*I30+F$29*(Summary!$L$17-I30),Summary!$L$17*F$28)","v":61.067576719834534},{"$f":"IF(Summary!$L$17>J30,F$28*J30+F$29*(Summary!$L$17-J30),Summary!$L$17*F$28)","v":59.259440153394067},{"$f":"IF(Summary!$L$17>K30,F$28*K30+F$29*(Summary!$L$17-K30),Summary!$L$17*F$28)","v":59.259440153394067}]
[null,"ALL CLIMATE ZONES",{"$f":"SUMPRODUCT(C112:C120,$X$22:$X$30)","v":61.158475623072654},55.899827647903599,55.899827647903599,60.875894691545007,55.648982918322879,55.648982918322879,57.746899117779748,52.767776966991882,52.767776966991882,64.867119410388483,59.259440153394067,59.259440153394067]

{"sheet":"Incremental Rev Req","index":6,"n_rows":121,"n_cols":25,"rows_kept":121,"cut":false,"hidden":false,"merged":[[6,0,6,11],[7,6,7,10],[75,0,75,16],[76,6,76,10],[76,12,76,16]]}
[]
[{"$f":"'Authorized Rev Req'!A2","v":"Annual Period 2025"}]
[{"$f":"'Authorized Rev Req'!A3","v":"Reporting Date: Q3 2025"}]
[]
["Current Revenue Requirement ($000):",{"$f":"'Authorized Rev Req'!K84","v":6935209.0507201031}]
["Current Revenue Requirement Effective:",{"$f":"'Authorized Rev Req'!K5","v":"September 1, 2025"}]
["Approved Application(s), Implemented Since Jan 1 or To Be Implemented"]
["Filing Description","Proceeding","Authority for Revenue Requirement","Authorized Revenue Requirement ($000)","Revenue Recovery Mechanism","Allocation Methodology (Select from Drop-down menu)","Authorized Revenue Requirement ($000) - Breakout by Year",null,null,null,null,"Existing or New Item (if existing, use delta from prior for illustrative rate impact)",null,null,null,null,null,null,null,"Summary Incremental Authorized"]
["Safety Affordability Reliability Proceedings",null,null,null,null,null,2025,2026,2027,2028,2029,null,null,null,null,null,null,null,null,null,2025,2026,2027,2028,2029]
[{"$f":"'Authorized Rev Req'!A9","v":"General Rate Case"},null,{"$f":"'Authorized Rev Req'!B9","v":"D. 23-11-069"},{"$f":"'Authorized Rev Req'!K9","v":2837661.4239763045},{"$f":"'Authorized Rev Req'!L9","v":"Distribution"},"Distribution",{"$f":"'Authorized Rev Req'!K9","v":2837661.4239763045},3004265.3700240348,{"$f":"H10","v":3004265.3700240348},{"$f":"I10","v":3004265.3700240348},{"$f":"J10","v":3004265.3700240348},"Existing",null,null,null,null,null,null,null,{"$f":"'RRQ Allocations'!B5","v":"100% Residential"},{"$f":"SUMIF($F$10:$F$72,$T10,G$10:G$72)-SUMIF($F$10:$F$72,$T10,$D$10:$D$72)","v":0},{"$f":"SUMIF($F$10:$F$72,$T10,H$10:H$72)-SUMIF($F$10:$F$72,$T10,$D$10:$D$72)","v":0},{"$f":"SUMIF($F$10:$F$72,$T10,I$10:I$72)-SUMIF($F$10:$F$72,$T10,$D$10:$D$72)","v":0},{"$f":"SUMIF($F$10:$F$72,$T10,J$10:J$72)-SUMIF($F$10:$F$72,$T10,$D$10:$D$72)","v":0},{"$f":"SUMIF($F$10:$F$72,$T10,K$10:K$72)-SUMIF($F$10:$F$72,$T10,$D$10:$D$72)","v":0}]
["General Rate Case - Undercollection",null,{"$f":"'Authorized Rev Req'!B9","v":"D. 23-11-069"},{"$f":"'Authorized Rev Req'!K10","v":200589.25777104055},"Distribution","Distribution",{"$f":"'Authorized Rev Req'!K10","v":200589.25777104055},null,null,null,null,"Existing",null,null,null,null,null,null,null,{"$f":"'RRQ Allocations'!B6","v":"Core - Distribution"},{"$f":"SUMIF($F$10:$F$72,$T11,G$10:G$72)-SUMIF($F$10:$F$72,$T11,$D$10:$D$72)","v":0},43656.711426587819,{"$f":"SUMIF($F$10:$F$72,$T11,I$10:I$72)-SUMIF($F$10:$F$72,$T11,$D$10:$D$72)","v":41605.250601505963},{"$f":"SUMIF($F$10:$F$72,$T11,J$10:J$72)-SUMIF($F$10:$F$72,$T11,$D$10:$D$72)","v":41605.250601505963},{"$f":"SUMIF($F$10:$F$72,$T11,K$10:K$72)-SUMIF($F$10:$F$72,$T11,$D$10:$D$72)","v":41605.250601505963}]
[{"$f":"'Authorized Rev Req'!A11","v":"Pension Contribution - Distribution"},null,{"$f":"'Authorized Rev Req'!B11","v":"D.09-09-020"},{"$f":"'Authorized Rev Req'!K11","v":42969.372571812135},{"$f":"'Authorized Rev Req'!L11","v":"Distribution"},"Distribution",{"$f":"'Authorized Rev Req'!K11","v":42969.372571812135},{"$f":"G12","v":42969.372571812135},{"$f":"H12","v":42969.372571812135},42969.372571812135,42969.372571812135,"Existing",null,null,null,null,null,null,null,{"$f":"'RRQ Allocations'!B7","v":"Distribution"},{"$f":"SUMIF($F$10:$F$72,$T12,G$10:G$72)-SUMIF($F$10:$F$72,$T12,$D$10:$D$72)","v":0},-222208.4794772095,{"$f":"SUMIF($F$10:$F$72,$T12,I$10:I$72)-SUMIF($F$10:$F$72,$T12,$D$10:$D$72)","v":-298321.19470899645},-266273.47525557177,-266273.47525557177]
[{"$f":"'Authorized Rev Req'!A12","v":"Pension Contribution - GT&S Core"},null,{"$f":"'Authorized Rev Req'!B12","v":"D.09-09-020"},{"$f":"'Authorized Rev Req'!K12","v":12330.780088505122},{"$f":"'Authorized Rev Req'!L12","v":"Core - ECPT"},"ECPT - Core only",{"$f":"'Authorized Rev Req'!K12","v":12330.780088505122},{"$f":"G13","v":12330.780088505122},12330.780088505122,12330.780088505122,12330.780088505122,"Existing",null,null,null,null,null,null,null,{"$f":"'RRQ Allocations'!B8","v":"ECPT - ALL"},4784.2035297583789,-343919.97303087509,-356583.33094579348,-356583.33094579348,-356583.33094579348]
[{"$f":"'Authorized Rev Req'!A13","v":"Pension Contribution - GT&S NonCore (LT)"},null,{"$f":"'Authorized Rev Req'!B13","v":"D.09-09-020"},{"$f":"'Authorized Rev Req'!K13","v":4921.7822413238828},{"$f":"'Authorized Rev Req'!L13","v":"Noncore (No-BB/EG-BB)-ECPT"},"ECPT - Noncore only",{"$f":"'Authorized Rev Req'!K13","v":4921.7822413238828},{"$f":"G14","v":4921.7822413238828},4921.7822413238828,4921.7822413238828,4921.7822413238828,"Existing",null,null,null,null,null,null,null,{"$f":"'RRQ Allocations'!B9","v":"ECPT - Core only"},0,{"$f":"SUMIF($F$10:$F$72,$T14,H$10:H$72)-SUMIF($F$10:$F$72,$T14,$D$10:$D$72)","v":46330.581377325812},46330.581377325812,46330.581377325812,46330.581377325812]
[{"$f":"'Authorized Rev Req'!A14","v":"Pension Contribution - GT&S Noncore (BB& Storage)"},null,{"$f":"'Authorized Rev Req'!B14","v":"D.09-09-020"},{"$f":"'Authorized Rev Req'!K14","v":3227.1807026951765},{"$f":"'Authorized Rev Req'!L14","v":"Noncore - ECPT"},"ECPT - Noncore only",{"$f":"'Authorized Rev Req'!K14","v":3227.1807026951765},{"$f":"G15","v":3227.1807026951765},3227.1807026951765,3227.1807026951765,3227.1807026951765,"Existing",null,null,null,null,null,null,null,{"$f":"'RRQ Allocations'!B10","v":"ECPT - Noncore only"},0,35061.748603264103,34560.732785433356,34560.732785433356,34560.732785433356]
[{"$f":"'Authorized Rev Req'!A15","v":"Cost of Capital"},null,{"$f":"'Authorized Rev Req'!B15","v":"D.22-12-031/D.23-01-002/ AL 4813-G/D.24-10-008/AL 4996-G"},{"$f":"'Authorized Rev Req'!K15","v":50569.411649032896},{"$f":"'Authorized Rev Req'!L15","v":"Distribution"},"Distribution",{"$f":"'Authorized Rev Req'!K15","v":50569.411649032896},{"$f":"'Authorized Rev Req'!K15","v":50569.411649032896},null,null,null,"Existing",null,null,null,null,null,null,null,{"$f":"'RRQ Allocations'!B11","v":"ECPT - 50% Core / 50% Noncore"},0,0,0,0,0]
[{"$f":"'Authorized Rev Req'!A16","v":"GT&S (excluding costs recovered through Core Procurement)"},null,null,null,null,null,null,null,null,null,null,null,null,null,null,null,null,null,null,{"$f":"'RRQ Allocations'!B12","v":"ECPT (excludes Covered Entities 3 yr avg vol)"},0,0,0,0,0]
[{"$f":"'Authorized Rev Req'!A17","v":"Late Implementation (Transmission Undercollection, Capital Audit, GRC Track II, WGSC)"},null,"D.22-07-007",{"$f":"'Authorized Rev Req'!K17","v":311890.69323057996},{"$f":"'Authorized Rev Req'!L17","v":"ECPT"},"ECPT - ALL",{"$f":"'Authorized Rev Req'!K17","v":311890.69323057996},0,0,0,0,"Existing",null,null,null,null,null,null,null,{"$f":"'RRQ Allocations'!B13","v":"EE"},0,5154.9543175079598,7175.130307349551,7175.130307349551,7175.130307349551]
[{"$f":"'Authorized Rev Req'!$A$18&\" Core\"","v":"Local Transmission Core"},null,{"$f":"'Authorized Rev Req'!B18","v":"D. 24-03-002"},{"$f":"'Authorized Rev Req'!K18-D20","v":937040.80356070562},{"$f":"'Authorized Rev Req'!L18","v":"ECPT (No BB)"},"ECPT - Core only",937040.80356070562,983371.38493803144,{"$f":"H19","v":983371.38493803144},983371.38493803144,983371.38493803144,"Existing",null,null,null,null,null,null,null,{"$f":"'RRQ Allocations'!B14","v":"ESA"},0,4903.3249999999971,4903.3249999999971,4903.3249999999971,4903.3249999999971]
[{"$f":"'Authorized Rev Req'!$A$18&\" Noncore\"","v":"Local Transmission Noncore"},null,{"$f":"'Authorized Rev Req'!B19","v":"D. 24-03-002"},491426.7693485716,{"$f":"'Authorized Rev Req'!L18","v":"ECPT (No BB)"},"ECPT - Noncore only",491426.7693485716,515826.50446770189,515826.50446770189,515826.50446770189,515826.50446770189,"Existing",null,null,null,null,null,null,null,{"$f":"'RRQ Allocations'!B15","v":"PPP ECPT"},0,-48520.000696423871,-48520.000696423871,-48520.000696423871,-48520.000696423871]
[{"$f":"'Authorized Rev Req'!A19","v":"Customer Access Charge"},null,{"$f":"'Authorized Rev Req'!B19","v":"D. 24-03-002"},{"$f":"'Authorized Rev Req'!K19","v":4616.1733053024955},{"$f":"'Authorized Rev Req'!L19","v":"CAC Allocation"},"CAC Allocation",4616.1733053024955,5465.2409449677816,5465.2409449677816,5465.2409449677816,5465.2409449677816,"Existing",null,null,null,null,null,null,null,{"$f":"'RRQ Allocations'!B16","v":"SGIP allocation"},0,0,0,0,0]
[{"$f":"'Authorized Rev Req'!A20","v":"Unbundled"},null,{"$f":"'Authorized Rev Req'!B20","v":"D. 24-03-002"},{"$f":"'Authorized Rev Req'!K20-D23","v":246260.44819406274},{"$f":"'Authorized Rev Req'!L20","v":"ECPT-All"},"ECPT - ALL",251044.65172382118,263208.00052214746,263208.00052214746,263208.00052214746,263208.00052214746,"Existing",null,null,null,null,null,null,null,{"$f":"'RRQ Allocations'!B17","v":"CPUC Fee Allocation"},0,0,0,0,0]
["Inventory management",null,{"$f":"C22","v":"D. 24-03-002"},{"$f":"I23","v":143704.0469798065},null,"2023 GTS - Inventory Management",138919.84345004807,143704.0469798065,{"$f":"H23","v":143704.0469798065},143704.0469798065,143704.0469798065,null,null,null,null,null,null,null,null,{"$f":"'RRQ Allocations'!B18","v":"CAC Allocation"},0,849.06763966528615,849.06763966528615,849.06763966528615,849.06763966528615]
["SF General Office Sale",null,{"$f":"'Authorized Rev Req'!B51","v":"D.21-08-027/AL 4538-G-A"},{"$f":"'Authorized Rev Req'!K51","v":-32047.719453424532},null,"Distribution",{"$f":"'Authorized Rev Req'!K51","v":-32047.719453424532},{"$f":"G24","v":-32047.719453424532},-32047.719453424532,0,0,"New",null,null,null,null,null,null,null,{"$f":"'RRQ Allocations'!B19","v":"Storage Allocation  (Procurement)"},0,-5766.1005816860707,-5766.1005816860707,-5766.1005816860707,-5766.1005816860707]
[null,null,null,null,null,null,null,null,null,null,null,null,null,null,null,null,null,null,null,{"$f":"'RRQ Allocations'!B20","v":"Capacity Allocation (Procurement)"},-10442.541649025836,11955.880785076384,11955.880785076384,11955.880785076384,11955.880785076384]
["Wildfire Gas & Safety Costs (Distribution)",null,"WGSC IRR D.24-03-006",{"$f":"'Authorized Rev Req'!K45","v":3401.9581090626016},"Distribution","Distribution",{"$f":"'Authorized Rev Req'!K45","v":3401.9581090626016},0,0,0,0,"Existing",null,null,null,null,null,null,null,{"$f":"'RRQ Allocations'!B21","v":"ECPT - Core only  (Procurement)"},10442.541649025865,10442.541649025865,10442.541649025865,10442.541649025865,10442.541649025865]
["2020 and 2021 Wildfire Mitigation and Catastrophic Event Memorandum Account (WMCE) (Transmission)",null,"D.23-02-017 / D.23-08-027",{"$f":"'Authorized Rev Req'!K47","v":0},"ECPT - ALL","ECPT - ALL",{"$f":"'Authorized Rev Req'!K47","v":0},0,0,0,0,"Existing",null,null,null,null,null,null,null,{"$f":"'RRQ Allocations'!B22","v":"2023 GTS - Inventory Management"},-4784.2035297584371,0,0,0,0]
["Oakland General Office Purchase (Distribution)",null,{"$f":"'Authorized Rev Req'!B46","v":"D.24-08-009/AL 4972-G"},{"$f":"'Authorized Rev Req'!K46","v":74682.819082060436},"Distribution","Distribution",{"$f":"'Authorized Rev Req'!K46","v":74682.819082060436},25543.303582753771,null,null,null,"New",null,null,null,null,null,null,null,{"$f":"'RRQ Allocations'!B23","v":"User Defined 1"},0,0,0,0,0]
["Oakland General Office Purchase (Transmission)",null,{"$f":"'Authorized Rev Req'!B49","v":"D.24-08-009/AL 4972-G"},{"$f":"'Authorized Rev Req'!K49","v":35685.0022939052},"ECPT - ALL","ECPT - ALL",{"$f":"'Authorized Rev Req'!K49","v":35685.0022939052},12175.537272729722,null,null,null,"New",null,null,null,null,null,null,null,{"$f":"'RRQ Allocations'!B24","v":"User Defined 2"},0,0,0,0,0]
[null,null,null,null,null,null,null,null,null,null,null,null,null,null,null,null,null,null,null,{"$f":"'RRQ Allocations'!B25","v":"User Defined 3"},0,0,0,0,0]
[null,null,null,null,null,null,null,null,null,null,null,null,null,null,null,null,null,null,null,"Total",{"$f":"SUM(U10:U30)","v":-2.9103830456733704E-11},{"$f":"SUM(V10:V30)","v":-462059.74298774125},{"$f":"SUM(W10:W30)","v":-551368.11678751744},{"$f":"SUM(X10:X30)","v":-519320.39733409276},{"$f":"SUM(Y10:Y30)","v":-519320.39733409276}]
[null,null,null,null,null,null,null,null,null,null,null,null,null,null,null,null,null,null,null,"check",{"$f":"ABS(U31-(G73-$D73))<0.5","v":true},{"$f":"ABS(V31-(H73-$D73))<0.5","v":true},{"$f":"ABS(W31-(I73-$D73))<0.5","v":true},{"$f":"ABS(X31-(J73-$D73))<0.5","v":true},{"$f":"ABS(Y31-(K73-$D73))<0.5","v":true}]
[]
[]
[]
[]
["Public Policy Proceedings"]
[{"$f":"'Authorized Rev Req'!A57","v":"AB 32: Cap & Trade/GHG"},null,{"$f":"'Authorized Rev Req'!B57","v":"D.15-10-032/D.18-03-017/SB 1477"},{"$f":"'Authorized Rev Req'!K57","v":-345869.74573152227},{"$f":"'Authorized Rev Req'!L57","v":"100% Residential"},"100% Residential",{"$f":"'Authorized Rev Req'!K57","v":-345869.74573152227},{"$f":"G38","v":-345869.74573152227},{"$f":"H38","v":-345869.74573152227},-345869.74573152227,-345869.74573152227,"Existing"]
[{"$f":"'Authorized Rev Req'!A58","v":"GHG Operational Costs"},null,{"$f":"'Authorized Rev Req'!B58","v":"D.15-10-032/D.18-03-017"},{"$f":"'Authorized Rev Req'!K58","v":-9916.6955811624011},{"$f":"'Authorized Rev Req'!L58","v":"ECPT "},"ECPT - ALL",{"$f":"'Authorized Rev Req'!K58","v":-9916.6955811624011},{"$f":"G39","v":-9916.6955811624011},-9916.6955811624011,-9916.6955811624011,-9916.6955811624011,"Existing"]
[{"$f":"'Authorized Rev Req'!A59","v":"GHG Compliance Costs"},null,{"$f":"'Authorized Rev Req'!B59","v":"D.15-10-032/D.18-03-017"},{"$f":"'Authorized Rev Req'!K59","v":437585.43788724864},{"$f":"'Authorized Rev Req'!L59","v":"ECPT (excludes Covered Entities 3 yr avg vol)"},"ECPT (excludes Covered Entities 3 yr avg vol)",{"$f":"'Authorized Rev Req'!K59","v":437585.43788724864},{"$f":"G40","v":437585.43788724864},437585.43788724864,437585.43788724864,437585.43788724864,"Existing"]
[{"$f":"'Authorized Rev Req'!A60","v":"CPUC Fee"},null,{"$f":"'Authorized Rev Req'!B60","v":"Preliminary Statement O"},{"$f":"'Authorized Rev Req'!K60","v":11329.340330408475},{"$f":"'Authorized Rev Req'!L60","v":"ECPT (reduced EG volumes; excludes WHSL)"},"CPUC Fee Allocation",{"$f":"'Authorized Rev Req'!K60","v":11329.340330408475},{"$f":"G41","v":11329.340330408475},11329.340330408475,11329.340330408475,11329.340330408475,"Existing"]
[{"$f":"'Authorized Rev Req'!A61","v":"SGIP"},null,{"$f":"'Authorized Rev Req'!B61","v":"SB 700/D.17-04-017"},{"$f":"'Authorized Rev Req'!K61","v":0},{"$f":"'Authorized Rev Req'!L61","v":"Direct Benefits - 3 year average"},"SGIP allocation",{"$f":"'Authorized Rev Req'!K61","v":0},{"$f":"G42","v":0},0,0,0,"Existing"]
[{"$f":"'Authorized Rev Req'!A64","v":"Energy Efficiency "},null,{"$f":"'Authorized Rev Req'!B64","v":"D.23-06-055"},{"$f":"'Authorized Rev Req'!K64","v":122474.85535598588},{"$f":"'Authorized Rev Req'!L64","v":"Direct Allocation Method"},"EE",{"$f":"'Authorized Rev Req'!K64","v":122474.85535598588},127629.80967349384,129649.98566333544,{"$f":"I43","v":129649.98566333544},129649.98566333544,"Existing"]
[{"$f":"'Authorized Rev Req'!A65","v":"Energy Savings Assistance Program (ESA)"},null,{"$f":"'Authorized Rev Req'!B65","v":"D.21-06-015/D.20-12-005"},{"$f":"'Authorized Rev Req'!K65","v":75426.796000000002},{"$f":"'Authorized Rev Req'!L65","v":"Direct Allocation Method 100% Residential"},"ESA",{"$f":"'Authorized Rev Req'!K65","v":75426.796000000002},80330.120999999999,{"$f":"H44","v":80330.120999999999},{"$f":"I44","v":80330.120999999999},80330.120999999999,"Existing"]
[{"$f":"'Authorized Rev Req'!A66","v":"Research Development and Demonstration"},null,{"$f":"'Authorized Rev Req'!B66","v":"AL 4822-G"},{"$f":"'Authorized Rev Req'!K66","v":10469.05738},{"$f":"'Authorized Rev Req'!L66","v":"ECPT "},"PPP ECPT",{"$f":"'Authorized Rev Req'!K66","v":10469.05738},{"$f":"G45","v":10469.05738},{"$f":"H45","v":10469.05738},{"$f":"I45","v":10469.05738},{"$f":"J45","v":10469.05738},"Existing"]
[{"$f":"'Authorized Rev Req'!A67","v":"CARE Administrative Expense  "},null,{"$f":"'Authorized Rev Req'!B67","v":"D.21-06-015/D.20-12-005"},{"$f":"'Authorized Rev Req'!K67","v":2888.84},{"$f":"'Authorized Rev Req'!L67","v":"ECPT (non-CARE)"},"PPP ECPT",{"$f":"'Authorized Rev Req'!K67","v":2888.84},3140,3140,3140,3140,"Existing"]
[{"$f":"'Authorized Rev Req'!A68","v":"CARE Shortfall in Rates"},null,{"$f":"'Authorized Rev Req'!B68","v":"AL 4822-G"},{"$f":"'Authorized Rev Req'!K68","v":0},{"$f":"'Authorized Rev Req'!L68","v":"ECPT (excludes CARE)"},"PPP ECPT",{"$f":"'Authorized Rev Req'!K68","v":0},{"$f":"G47","v":0},0,0,0,"Existing"]
[{"$f":"'Authorized Rev Req'!A69","v":"BOE/CPUC Gas Surcharge Administration Costs"},null,{"$f":"'Authorized Rev Req'!B69","v":"AL 4822-G"},{"$f":"'Authorized Rev Req'!K69","v":429.23135000000002},{"$f":"'Authorized Rev Req'!L69","v":"ECPT "},"PPP ECPT",{"$f":"'Authorized Rev Req'!K69","v":429.23135000000002},429.23135000000002,429.23135000000002,429.23135000000002,429.23135000000002,"Existing"]
[{"$f":"'Authorized Rev Req'!A70","v":"Marketing, Education & Outreach (ME&O)"},null,{"$f":"'Authorized Rev Req'!B70","v":"D.19-01-005"},{"$f":"'Authorized Rev Req'!K70","v":0},{"$f":"'Authorized Rev Req'!L70","v":"ECPT"},"PPP ECPT",{"$f":"'Authorized Rev Req'!K70","v":0},0,0,0,0,"Existing"]
[]
["Core Procurement (Intrastate Volumetric and Capacity)",null,{"$f":"'Authorized Rev Req'!B75","v":"D. 24-03-002/Other"},184256.03573980634,{"$f":"'Authorized Rev Req'!L75","v":"Unadjusted Average Year January"},"Capacity Allocation (Procurement)",173813.4940907805,196211.91652488272,{"$f":"H51","v":196211.91652488272},196211.91652488272,196211.91652488272,"Existing"]
["Core Procurement (Other)",null,{"$f":"'Authorized Rev Req'!B76","v":"D. 97-10-065"},{"$f":"'Authorized Rev Req'!K75+'Authorized Rev Req'!K76-D51","v":643725.7270516461},{"$f":"'Authorized Rev Req'!L76","v":"Core - ECPT"},"ECPT - Core only  (Procurement)",{"$f":"'Authorized Rev Req'!K75+'Authorized Rev Req'!K76+'Authorized Rev Req'!K77-'Incremental Rev Req'!G51-'Incremental Rev Req'!G53","v":654168.26870067196},{"$f":"G52","v":654168.26870067196},654168.26870067196,654168.26870067196,654168.26870067196,"Existing"]
[{"$f":"'Authorized Rev Req'!A77","v":"Core Storage"},null,{"$f":"'Authorized Rev Req'!B77","v":"D. 19-09-025"},{"$f":"'Authorized Rev Req'!K77","v":134502.89385966863},{"$f":"'Authorized Rev Req'!L77","v":"Unadjusted Cold Year Winter Season"},"Storage Allocation  (Procurement)",{"$f":"'Authorized Rev Req'!K77","v":134502.89385966863},128736.79327798256,128736.79327798256,128736.79327798256,128736.79327798256,"Existing"]
[{"$f":"'Authorized Rev Req'!A78","v":"Core Brokerage Fee"},null,{"$f":"'Authorized Rev Req'!B78","v":"GCAP D.19-10-036"},{"$f":"'Authorized Rev Req'!K78","v":5066.9420120817476},{"$f":"'Authorized Rev Req'!L78","v":"ECPT (Core only)"},"ECPT - Core only  (Procurement)",{"$f":"'Authorized Rev Req'!K78","v":5066.9420120817476},{"$f":"G54","v":5066.9420120817476},5066.9420120817476,5066.9420120817476,5066.9420120817476,"Existing"]
[{"$f":"'Authorized Rev Req'!A79","v":"Core Brokerage Fee Credit"},null,{"$f":"'Authorized Rev Req'!B79","v":"GCAP D.19-10-036"},{"$f":"'Authorized Rev Req'!K79","v":-5066.9420120817476},{"$f":"'Authorized Rev Req'!L79","v":"ECPT (Core only)"},"Core - Distribution",{"$f":"'Authorized Rev Req'!K79","v":-5066.9420120817476},{"$f":"G55","v":-5066.9420120817476},-5066.9420120817476,-5066.9420120817476,-5066.9420120817476,"Existing"]
[null,null,"The Core Brokerage Fee is part of the distribution revenue requirement.  In transportation the RRQ is reduced and then it is recovered via the customers that pay PG&E procurement rates."]
[]
[]
[]
["Balancing Account Balances frozen at current 2024 values "]
["Distribution",null,null,{"$f":"'Authorized Rev Req'!K23+'Authorized Rev Req'!K27+'Authorized Rev Req'!K41+'Authorized Rev Req'!K42+'Authorized Rev Req'!K43+'Authorized Rev Req'!K44+'Authorized Rev Req'!K62+'Authorized Rev Req'!K52","v":159345.97869928009},null,"Distribution",{"$f":"'Authorized Rev Req'!K23+'Authorized Rev Req'!K27+'Authorized Rev Req'!K41+'Authorized Rev Req'!K42+'Authorized Rev Req'!K43+'Authorized Rev Req'!K44+'Authorized Rev Req'!K62+'Authorized Rev Req'!K52","v":159345.97869928009},{"$f":"'Authorized Rev Req'!K62","v":23664.284553750003},{"$f":"H61","v":23664.284553750003},23664.284553750003,23664.284553750003,"Existing"]
["ECPT",null,null,{"$f":"'Authorized Rev Req'!K21+'Authorized Rev Req'!K22+'Authorized Rev Req'!K24+'Authorized Rev Req'!K25+'Authorized Rev Req'!K26+'Authorized Rev Req'!K28+'Authorized Rev Req'!K29+'Authorized Rev Req'!K30+'Authorized Rev Req'!K31+'Authorized Rev Req'!K32+'Authorized Rev Req'!K33+'Authorized Rev Req'!K37+'Authorized Rev Req'!K38+'Authorized Rev Req'!K39+'Authorized Rev Req'!K40+'Authorized Rev Req'!K50+'Authorized Rev Req'!K53","v":152519.57135047688},null,"ECPT - ALL",{"$f":"'Authorized Rev Req'!K21+'Authorized Rev Req'!K22+'Authorized Rev Req'!K24+'Authorized Rev Req'!K25+'Authorized Rev Req'!K26+'Authorized Rev Req'!K28+'Authorized Rev Req'!K29+'Authorized Rev Req'!K30+'Authorized Rev Req'!K31+'Authorized Rev Req'!K32+'Authorized Rev Req'!K33+'Authorized Rev Req'!K37+'Authorized Rev Req'!K38+'Authorized Rev Req'!K39+'Authorized Rev Req'!K40+'Authorized Rev Req'!K50+'Authorized Rev Req'!K53","v":152519.57135047688},{"$f":"'Authorized Rev Req'!K25+'Authorized Rev Req'!K28+'Authorized Rev Req'!K32+'Authorized Rev Req'!K37+'Authorized Rev Req'!K39+'Authorized Rev Req'!K50","v":116670.99454938859},116670.99454938859,116670.99454938859,116670.99454938859,"Existing"]
["Public Purpose Program",null,null,{"$f":"'Authorized Rev Req'!K71+'Authorized Rev Req'!K72+'Authorized Rev Req'!K73+'Authorized Rev Req'!K74+'Authorized Rev Req'!K63","v":48771.160696423867},null,"PPP ECPT",{"$f":"'Authorized Rev Req'!K71+'Authorized Rev Req'!K72+'Authorized Rev Req'!K73+'Authorized Rev Req'!K74+'Authorized Rev Req'!K63","v":48771.160696423867},0,0,0,0,"Existing"]
["CFCA - NGSS Enduser Dist. Sub Acct Recovery",null,null,{"$f":"'Authorized Rev Req'!K34","v":-41605.250601505963},null,"Core - Distribution",{"$f":"'Authorized Rev Req'!K34","v":-41605.250601505963},2051.4608250818628,0,{"$f":"I64","v":0},{"$f":"J64","v":0},"Existing"]
["CFCA/NCA - NGSS Enduser Sub Acct Recovery",null,null,{"$f":"'Authorized Rev Req'!K35","v":-9893.389051695307},null,"ECPT - ALL",{"$f":"'Authorized Rev Req'!K35","v":-9893.389051695307},487.82064218865884,0,{"$f":"I65","v":0},0,"Existing"]
["NCA - NGSS Enduser Sub Acct Recovery",null,null,{"$f":"'Authorized Rev Req'!K36","v":-10160.997666303094},null,"ECPT - Noncore only",{"$f":"'Authorized Rev Req'!K36","v":-10160.997666303094},501.0158178308032,0,0,0,"Existing"]
[]
[]
[]
[]
[]
[]
["Total Approved, Implemented Since Jan 1 or To Be Implemented",null,null,{"$f":"SUM(D10:D71)","v":6935209.050720104},null,null,{"$f":"SUM(G10:G71)","v":6935209.0507201049},{"$f":"SUM(H10:H71)","v":6473149.3077323642},{"$f":"SUM(I10:I71)","v":6383840.9339325875},{"$f":"SUM(J10:J71)","v":6415888.6533860117},{"$f":"SUM(K10:K71)","v":6415888.6533860117}]
[]
[]
["Pending Application(s), Not Yet Approved",null,null,null,null,null,null,null,null,null,null,null,null,null,null,null,null,null,null,"Summary Incremental Authorized + Pending"]
["Filing Description","Proceeding","Basis of Revenue Requirement Forecast: Application Amended Application, Ammended Testimony, Proposed Settlement Agreement, Proposed Decision","Proposed Revenue Requirement ($000)","Proposed Revenue Recovery Mechanism","Allocation Methodology","Projected Authorized Revenue Requirement ($000) - Breakout by Year",null,null,null,null,"Existing or New Item (if existing, use delta from prior for illustrative rate impact)","Change in Projected Authorized  Revenue Requirement ($000) for Illustrative Rate Impact - Breakout by Year (if cell is shaded grey, rate impact is not presently determinable)",null,null,null,null,"Include in Impact",null,null,{"$f":"U9","v":2025},{"$f":"V9","v":2026},{"$f":"W9","v":2027},{"$f":"X9","v":2028},{"$f":"Y9","v":2029}]
["Safety Affordability Reliability Proceedings",null,null,null,null,null,{"$f":"G$9","v":2025},{"$f":"H$9","v":2026},{"$f":"I$9","v":2027},{"$f":"J$9","v":2028},{"$f":"K$9","v":2029},null,{"$f":"G$9","v":2025},{"$f":"H$9","v":2026},{"$f":"I$9","v":2027},{"$f":"J$9","v":2028},{"$f":"K$9","v":2029},null,null,{"$f":"T10","v":"100% Residential"},{"$f":"SUMIFS(M$79:M$113,$F$79:$F$113,$T78,$R$79:$R$113,\"Y\")+U10","v":0},{"$f":"SUMIFS(N$79:N$113,$F$79:$F$113,$T78,$R$79:$R$113,\"Y\")+V10","v":0},{"$f":"SUMIFS(O$79:O$113,$F$79:$F$113,$T78,$R$79:$R$113,\"Y\")+W10","v":0},{"$f":"SUMIFS(P$79:P$113,$F$79:$F$113,$T78,$R$79:$R$113,\"Y\")+X10","v":0},{"$f":"SUMIFS(Q$79:Q$113,$F$79:$F$113,$T78,$R$79:$R$113,\"Y\")+Y10","v":0}]
["2027 Energy Savings Assistance Bridge Funding","A.25-06-024","Application",{"$f":"I79","v":55567.261049999994},"PPP","ESA",null,null,55567.261049999994,null,null,"Existing",null,null,{"$f":"I79-I44","v":-24762.859950000005},null,null,{"$f":"VLOOKUP(A79,Summary!$B$8:$E$39,3,FALSE)","v":"N"},null,"Core - Distribution",{"$f":"SUMIFS(M$79:M$113,$F$79:$F$113,$T79,$R$79:$R$113,\"Y\")+U11","v":0},{"$f":"SUMIFS(N$79:N$113,$F$79:$F$113,$T79,$R$79:$R$113,\"Y\")+V11","v":43656.711426587819},39553.789776424099,{"$f":"SUMIFS(P$79:P$113,$F$79:$F$113,$T79,$R$79:$R$113,\"Y\")+X11","v":39553.789776424099},{"$f":"SUMIFS(Q$79:Q$113,$F$79:$F$113,$T79,$R$79:$R$113,\"Y\")+Y11","v":39553.789776424099}]
["2027 CARE Administrative Bridge Funding","A.25-06-024","Application",{"$f":"I80","v":2059.02},"PPP","PPP ECPT",null,null,2059.02,null,null,"Existing",null,null,{"$f":"I80-I46","v":-1080.98},null,null,{"$f":"VLOOKUP(A80,Summary!$B$8:$E$39,3,FALSE)","v":"N"},null,"Distribution",0,{"$f":"SUMIFS(N$79:N$113,$F$79:$F$113,$T80,$R$79:$R$113,\"Y\")+V12","v":-26332.866462243343},-93145.761719432776,96638.470181251992,262429.22303978214]
["Hinkley Upgrade","A.25-04-004","Application",{"$f":"J81","v":3170.0085966546521},"ECPT","ECPT - ALL",{"$f":"M81","v":0},{"$f":"N81","v":0},{"$f":"O81","v":0},{"$f":"P81","v":3170.0085966546521},{"$f":"Q81","v":8890.2012417152218},"New",null,null,null,3170.0085966546521,8890.2012417152218,{"$f":"VLOOKUP(A81,Summary!$B$8:$E$39,3,FALSE)","v":"Y"},null,{"$f":"T13","v":"ECPT - ALL"},{"$f":"SUMIFS(M$79:M$113,$F$79:$F$113,$T81,$R$79:$R$113,\"Y\")+U13","v":4784.2035297583789},{"$f":"SUMIFS(N$79:N$113,$F$79:$F$113,$T81,$R$79:$R$113,\"Y\")+V13","v":-328422.137042241},{"$f":"SUMIFS(O$79:O$113,$F$79:$F$113,$T81,$R$79:$R$113,\"Y\")+W13","v":-410895.39464889624},-392034.91014449706,-379905.44147261232]
["Billing Modernization (Distribution)","A. 24-10-004","Application",{"$f":"H82","v":18712.173825194575},"Distribution","Distribution",null,18712.173825194575,17751.341834851162,16583.853363621634,14215.240804551897,"New",null,{"$f":"H82","v":18712.173825194575},{"$f":"I82","v":17751.341834851162},16583.853363621634,14215.240804551897,{"$f":"VLOOKUP(A82,Summary!$B$8:$E$39,3,FALSE)","v":"Y"},null,"ECPT - Core only",{"$f":"SUMIFS(M$79:M$113,$F$79:$F$113,$T82,$R$79:$R$113,\"Y\")+U14","v":0},46330.581377325812,165311.3794186404,198314.01265905635,236327.54166755592]
["Billing Modernization (Transmission)","A. 24-10-004","Application",{"$f":"H83","v":8918.4572311941265},"ECPT","ECPT - ALL",null,8918.4572311941265,8460.5126279812575,7904.0729488992292,6775.1624331059575,"New",null,8918.4572311941265,8460.5126279812575,7904.0729488992292,6775.1624331059575,{"$f":"VLOOKUP(A83,Summary!$B$8:$E$39,3,FALSE)","v":"Y"},null,"ECPT - Noncore only",0,35061.748603264103,96733.394523286435,114116.62662727112,134139.19907767215]
[null,null,null,null,null,null,null,null,null,null,null,null,null,null,null,null,null,null,null,"ECPT - 50% Core / 50% Noncore",0,84230.760281128707,84230.760281128707,84230.760281128707,84230.760281128707]
["Hydrogen Demonstration Project (2027)","A.22-09-006","Application",{"$f":"I85","v":3022.0229370078714},"ECPT","ECPT - ALL",null,null,3022.0229370078714,10324.828533347554,10534.092916690832,"New",{"$f":"G85","v":0},{"$f":"H85","v":0},{"$f":"I85","v":3022.0229370078714},10324.828533347554,10534.092916690832,{"$f":"VLOOKUP(A85,Summary!$B$8:$E$39,3,FALSE)","v":"Y"},null,"ECPT (excludes Covered Entities 3 yr avg vol)",0,0,0,0,0]
["2024 Wildfire Mitigation and Catastrophic Events (distribution)","A.24-11-009","Application",{"$f":"H86","v":65537.654410869611},"Distribution","Distribution",null,65537.654410869611,18819.46507803784,18178.262642646998,17712.275597103871,"New",0,{"$f":"H86","v":65537.654410869611},18819.46507803784,18178.262642646998,17712.275597103871,{"$f":"VLOOKUP(A86,Summary!$B$8:$E$39,3,FALSE)","v":"Y"},null,"EE",0,5154.9543175079598,7175.130307349551,7175.130307349551,7175.130307349551]
["2024 Wildfire Mitigation and Catastrophic Events (transmission)","A.24-11-009","Application",6579.3787574399903,"ECPT","ECPT - ALL",null,6579.3787574399903,291.83963923168324,239.41889659670605,225.03426463234715,"New",0,{"$f":"H87","v":6579.3787574399903},291.83963923168324,239.41889659670605,225.03426463234715,{"$f":"VLOOKUP(A87,Summary!$B$8:$E$39,3,FALSE)","v":"Y"},null,"ESA",0,4903.3249999999971,4903.3249999999971,4903.3249999999971,4903.3249999999971]
["2026 Cost of Capital (Distribution)","A.25-03-010","Application",111625.78477890197,"Distribution","Distribution",{"$f":"M88","v":0},{"$f":"N88","v":111625.78477890197},111625.78477890197,111625.78477890197,111625.78477890197,"New",null,111625.78477890197,{"$f":"N88","v":111625.78477890197},111625.78477890197,111625.78477890197,{"$f":"VLOOKUP(A88,Summary!$B$8:$E$39,3,FALSE)","v":"Y"},null,"PPP ECPT",0,-48520.000696423871,-48520.000696423871,-48520.000696423871,-48520.000696423871]
["2026 Cost of Capital (Transmission)","A.25-03-010","Application",84230.760281128707,"ECPT - 50% Core / 50% Noncore","ECPT - 50% Core / 50% Noncore",{"$f":"M89","v":0},84230.760281128707,84230.760281128707,84230.760281128707,84230.760281128707,"New",null,84230.760281128707,84230.760281128707,84230.760281128707,84230.760281128707,{"$f":"VLOOKUP(A89,Summary!$B$8:$E$39,3,FALSE)","v":"Y"},null,"SGIP allocation",0,0,0,0,0]
["Gas Advanced Metering Infrastructure (AMI) (distribution) ","A.24-03-011","Application",39604.605081723246,"Distribution","Distribution",null,39604.605081723246,null,null,null,"New",0,{"$f":"H90","v":39604.605081723246},0,0,0,{"$f":"VLOOKUP(A90,Summary!$B$8:$E$39,3,FALSE)","v":"N"},null,"CPUC Fee Allocation",0,0,0,0,0]
["Gas AMI (transmission)","A.24-03-011","Application",7942.4120142269176,"ECPT","ECPT - ALL",null,7942.4120142269176,null,null,null,"New",0,7942.4120142269176,0,0,0,{"$f":"VLOOKUP(A91,Summary!$B$8:$E$39,3,FALSE)","v":"N"},null,"CAC Allocation",0,849.06763966528615,-1507.3696770717852,-745.95433239186877,18.809476793810063]
["2023 Wildfire Mitigation and Catastrophic Events (distribution)","A.23-12-001","Application",13644.279615856252,"Distribution","Distribution",null,13644.279615856252,null,null,null,"New",0,13644.279615856252,0,0,0,{"$f":"VLOOKUP(A92,Summary!$B$8:$E$39,3,FALSE)","v":"N"},null,"Storage Allocation  (Procurement)",0,-5766.1005816860707,-27.308752644094056,2756.3019398794859,5264.9738056559872]
["2023 Wildfire Mitigation and Catastrophic Events (transmission)","A.23-12-001","Application",5913.5229509132932,"ECPT","ECPT - ALL",null,5913.5229509132932,null,null,null,"New",0,5913.5229509132932,0,0,0,{"$f":"VLOOKUP(A93,Summary!$B$8:$E$39,3,FALSE)","v":"N"},null,"Capacity Allocation (Procurement)",-10442.541649025836,11955.880785076384,11955.880785076384,11955.880785076384,11955.880785076384]
["Wildfire Gas and Safety Costs (Distribution) Non-IRR","A.23-06-008","Application",6776.7164408128538,"Distribution","Distribution",null,6776.7164408128538,null,null,null,"New",0,6776.7164408128538,0,0,0,{"$f":"VLOOKUP(A94,Summary!$B$8:$E$39,3,FALSE)","v":"N"},null,"ECPT - Core only  (Procurement)",10442.541649025865,10442.541649025865,-41276.453721242317,-32049.912773785822,-22989.463019150426]
["Wildfire Gas and Safety Costs (Transmission) - Non IRR","A.23-06-008","Application",44029.842798245787,"ECPT","ECPT - ALL",null,44029.842798245787,412.70016602004648,null,null,"New",0,44029.842798245787,{"$f":"I95","v":412.70016602004648},{"$f":"J95","v":0},{"$f":"K95","v":0},{"$f":"VLOOKUP(A95,Summary!$B$8:$E$39,3,FALSE)","v":"N"},null,"2023 GTS - Inventory Management",-4784.2035297584371,0,-4041.4236141660949,7215.4211724820198,17360.420934670372]
["2022 Wildfire Mitigation and Catastrophic Events ","A.22-12-009","Application",{"$f":"H96","v":16214.970094191543},"Distribution","Distribution",null,16214.970094191543,null,null,null,"New",0,16214.970094191543,0,0,0,{"$f":"VLOOKUP(A96,Summary!$B$8:$E$39,3,FALSE)","v":"N"},null,"User Defined 1",0,0,0,0,0]
["TRRRMA (Distribution)","A.24-09-015","Application",{"$f":"H97","v":104444.39544815596},"Distribution","Distribution",null,104444.39544815596,null,null,null,"New",null,104444.39544815596,null,0,0,{"$f":"VLOOKUP(A97,Summary!$B$8:$E$39,3,FALSE)","v":"N"},null,"User Defined 2",0,0,0,0,0]
["TRRRMA (Transmission)","A.24-09-015","Application",{"$f":"H98","v":47177.487626207876},"ECPT","ECPT - ALL",null,47177.487626207876,null,null,null,"New",null,47177.487626207876,null,0,0,{"$f":"VLOOKUP(A98,Summary!$B$8:$E$39,3,FALSE)","v":"N"},null,"User Defined 3",0,0,0,0,0]
["2027 GRC - Gas Distribution","A.25-05-009","Application",{"$f":"I99","v":3061244.2113218075},"Distribution","Distribution",null,null,3061244.2113218075,3220789.4146756879,3389414.7671388309,"Existing",null,null,{"$f":"I99-I10","v":56978.841297772713},{"$f":"J99-J10","v":216524.04465165315},385149.3971147961,{"$f":"VLOOKUP(A99,Summary!$B$8:$E$39,3,FALSE)","v":"Y"},null,"Total",{"$f":"SUM(U78:U98)","v":-2.9103830456733704E-11},{"$f":"SUM(V78:V98)","v":-166455.53370301233},{"$f":"SUM(W78:W98)","v":-189550.05273797156},{"$f":"SUM(X78:X98)","v":93508.940782821111},{"$f":"SUM(Y78:Y98)","v":351944.14896392252}]
["2027 GRC - Core Local Transmission","A.25-05-009","Application",{"$f":"I100","v":1102352.182979346},"ECPT","ECPT - Core only",null,null,1102352.182979346,1135354.816219762,1173368.3452282615,"Existing",null,null,{"$f":"I100-I19","v":118980.79804131459},{"$f":"J100-J19","v":151983.43128173053},189996.96029023011,{"$f":"VLOOKUP(A100,Summary!$B$8:$E$39,3,FALSE)","v":"Y"},null,"check",{"$f":"U31+SUMIF($R$79:$R$113,\"Y\",M79:M113)=U99","v":true},{"$f":"ABS(V31+SUMIF($R$79:$R$113,\"Y\",N79:N113)-V99)<0.0000005","v":true},{"$f":"ABS(W31+SUMIF($R$79:$R$113,\"Y\",O79:O113)-W99)<0.0000005","v":true},true,{"$f":"ABS(Y31+SUMIF($R$79:$R$113,\"Y\",Q79:Q113)-Y99)<0.0000005","v":true}]
["2027 GRC - Core Procurement (Intrastate Volumetric and Capacity)","A.25-05-009","Application",144492.92115461454,"ECPT (No BB)","ECPT - Core only  (Procurement)",null,null,144492.92115461454,153719.46210207103,162779.91185670643,"Existing",null,null,{"$f":"I101-I51","v":-51718.995370268181},{"$f":"J101-J51","v":-42492.454422811687},-33432.004668176291,{"$f":"VLOOKUP(A101,Summary!$B$8:$E$39,3,FALSE)","v":"Y"}]
["2027 GRC - Core Procurement (Storage)","A.25-05-009","Application",34475.585107024541,"Unadjusted Cold Year Winter Season","Storage Allocation  (Procurement)",null,null,34475.585107024541,37259.195799548128,39767.867665324615,"Existing",null,null,{"$f":"I102-I53+100000","v":5738.7918290419766},{"$f":"J102-J53+100000","v":8522.4025215655565},{"$f":"K102-K53+100000","v":11031.074387342058},{"$f":"VLOOKUP(A102,Summary!$B$8:$E$39,3,FALSE)","v":"Y"}]
["2027 GRC - Noncore Local Transmission","A.25-05-009","Application",578500.18202338577,"ECPT (No BB)","ECPT - Noncore only",null,null,578500.18202338577,595883.41412737046,615905.98657777149,"Existing",null,null,{"$f":"I103-I20","v":62673.677555683884},{"$f":"J103-J20","v":80056.90965966857},100079.4821100696,{"$f":"VLOOKUP(A103,Summary!$B$8:$E$39,3,FALSE)","v":"Y"}]
["2027 GRC - Customer Access Charge","A.25-05-009","Application",3108.8036282307103,"CAC Allocation","CAC Allocation",null,null,3108.8036282307103,3870.2189729106267,4634.9827820963055,"Existing",null,null,{"$f":"I104-I21","v":-2356.4373167370713},-1595.0219720571549,-830.25816287147609,{"$f":"VLOOKUP(A104,Summary!$B$8:$E$39,3,FALSE)","v":"Y"}]
["2027 GRC - Noncore Unbundled","A.25-05-009","Application",197609.38225701253,"ECPT-All","ECPT - ALL",null,null,197609.38225701253,206605.91299013438,213949.21978137293,"Existing",null,null,-65598.618265134923,-56602.087532013073,-49258.780740774528,{"$f":"VLOOKUP(A105,Summary!$B$8:$E$39,3,FALSE)","v":"Y"}]
["2027 GRC - Inventory Management","A.25-05-009","Application",{"$f":"I106","v":139662.62336564041},"2023 GTS - Inventory Management","2023 GTS - Inventory Management",null,null,139662.62336564041,150919.46815228852,161064.46791447687,"Existing",null,null,-4041.4236141660949,7215.4211724820198,17360.420934670372,{"$f":"VLOOKUP(A106,Summary!$B$8:$E$39,3,FALSE)","v":"Y"}]
["CFCA - NGSS Enduser Dist. Sub Acct Recovery","A.25-05-009","Application",0,"Core - Distribution","Core - Distribution",null,null,0,0,0,"Existing",null,null,{"$f":"-H64","v":-2051.4608250818628},{"$f":"O107","v":-2051.4608250818628},-2051.4608250818628,{"$f":"VLOOKUP(A107,Summary!$B$8:$E$39,3,FALSE)","v":"Y"}]
["CFCA/NCA - NGSS Enduser Sub Acct Recovery","A.25-05-009","Application",0,"ECPT - ALL","ECPT - ALL",null,null,0,0,0,"Existing",null,null,{"$f":"-H65","v":-487.82064218865884},-487.82064218865884,-487.82064218865884,{"$f":"VLOOKUP(A108,Summary!$B$8:$E$39,3,FALSE)","v":"Y"}]
["NCA - NGSS Enduser Sub Acct Recovery","A.25-05-009","Application",0,"ECPT - Noncore only","ECPT - Noncore only",null,null,0,0,0,"Existing",null,null,{"$f":"-H66","v":-501.0158178308032},-501.0158178308032,-501.0158178308032,{"$f":"VLOOKUP(A109,Summary!$B$8:$E$39,3,FALSE)","v":"Y"}]
[]
["Public Policy Proceedings"]
[]
[]
["Total Pending, Filed but not Approved",null,null,{"$f":"SUM(D79:D113)","v":5906616.6457757875},null,null,{"$f":"SUM(G79:G113)","v":0},{"$f":"SUM(H79:H113)","v":581352.44135506265},{"$f":"SUM(I79:I113)","v":5563686.6002302226},{"$f":"SUM(J79:J113)","v":5756658.89308157},{"$f":"SUM(K79:K113)","v":6015094.1012626719},null,{"$f":"SUM(M79:M113)","v":0},{"$f":"SUM(N79:N113)","v":581352.44135506265},{"$f":"SUM(O79:O113)","v":336386.92426556611},{"$f":"SUM(P79:P113)","v":612829.33811691403},{"$f":"SUM(Q79:Q113)","v":871264.5462980154}]
[]
[]
[]
[]
[]
[]
["** Recurring programs funding assumed to be flat at current levels"]

{"sheet":"Authorized Rev Req","index":7,"n_rows":87,"n_cols":13,"rows_kept":87,"cut":false,"hidden":false,"merged":[]}
[]
["Annual Period 2025"]
["Reporting Date: Q3 2025"]
[]
[null,null,"August 1, 2023","September 1, 2023","January 1, 2024","February 1, 2024","April 1, 2024","September 1, 2024","January 1, 2025","August 1, 2025","September 1, 2025"]
[null,null,"4781-G","4792-G","4845-G - AGT","4859-G - COC","AL 4884-G WGSC","AL 4966-G CARD","AL 5014-G  AGT","AL 5090-G 2020 WMCE","AL 5099-G  2021 WMCE"]
["Filing Description","Authority for Revenue Requirement","Authorized Revenue Requirement       ($000) ","Authorized Revenue Requirement       ($000) ","Authorized Revenue Requirement       ($000) ","Authorized Revenue Requirement       ($000) ","Authorized Revenue Requirement       ($000) ","Authorized Revenue Requirement       ($000) ","Authorized Revenue Requirement       ($000) ","Authorized Revenue Requirement       ($000) ","Authorized Revenue Requirement       ($000) ","Revenue Recovery Mechanism/Allocation","Balancing Account "]
["Safety Affordability Reliability Proceedings"]
["General Rate Case","D. 23-11-069",2221384.8366642795,2221384.8366642795,2695191.9553036438,2695191.9553036438,2695191.9553036438,2695191.9553036438,2837661.4239763045,2837661.4239763045,2837661.4239763045,"Distribution",{"$f":"IF(RIGHT(A9,1)=\"*\",\"Y\",\"N\")","v":"N"}]
["General Rate Case - Gas Distribution Late Implementation","D. 23-11-069",null,null,200589.25777104055,200589.25777104055,200589.25777104055,200589.25777104055,200589.25777104055,200589.25777104055,200589.25777104055,"Distribution","N"]
["Pension Contribution - Distribution","D.09-09-020",31709.741200000004,31709.741200000004,34877.614957896192,34877.614957896192,34877.614957896192,37805.843647244459,37805.843647244459,42969.372571812135,42969.372571812135,"Distribution","N"]
["Pension Contribution - GT&S Core","D.09-09-020",9019.5684282388793,9019.5684282388793,10150.456060400962,10150.456060400962,10150.456060400962,11024.333722858451,11024.333722858451,12330.780088505122,12330.780088505122,"Core - ECPT","N"]
["Pension Contribution - GT&S NonCore (LT)","D.09-09-020",2947.8208589564811,2947.8208589564811,4042.6449183910154,4042.6449183910154,4042.6449183910154,3986.0723644192326,3986.0723644192326,4921.7822413238828,4921.7822413238828,"Noncore (No-BB/EG-BB)-ECPT","N"]
["Pension Contribution - GT&S Noncore (BB& Storage)","D.09-09-020",3462.535612804641,3462.535612804641,2430.0086728859583,2430.0086728859583,2430.0086728859583,3008.3341614748151,3008.3341614748151,3227.1807026951765,3227.1807026951765,"Noncore - ECPT",{"$f":"IF(RIGHT(A26,1)=\"*\",\"Y\",\"N\")","v":"N"}]
["Cost of Capital","D.22-12-031/D.23-01-002/ AL 4813-G/D.24-10-008/AL 4996-G",-41770.071217086246,-41770.071217086246,0,71193.520690287638,71193.520690287638,71193.520690287638,50569.411649032896,50569.411649032896,50569.411649032896,"Distribution",{"$f":"IF(RIGHT(A15,1)=\"*\",\"Y\",\"N\")","v":"N"}]
["GT&S (excluding costs recovered through Core Procurement)"]
["Late Implementation (Transmission Undercollection, Capital Audit, GRC Track II, WGSC)","D.22-07-007/ D.23-11-069/ WGSC IRR D.24-03-006",61082.726490805842,61082.726490805842,289979.73296091304,289979.73296091304,377623.57403958077,377623.57403958077,311890.69323057996,311890.69323057996,311890.69323057996,"ECPT","N"]
["Local Transmission","D. 24-03-002",952787.6325297018,952787.6325297018,1360671.6081629959,1360671.6081629959,1360671.6081629959,1360671.6081629957,1428467.5729092772,1428467.5729092772,1428467.5729092772,"ECPT (No BB)","N"]
["Customer Access Charge","D. 24-03-002",2331.3449575275499,2331.3449575275499,3740.0393212059562,3740.0393212059562,3740.0393212059562,3740.0393212059562,4616.1733053024955,4616.1733053024955,4616.1733053024955,"CAC Allocation","N"]
["Unbundled","D. 24-03-002",342450.17657947849,342450.17657947849,319583.61216281512,319583.61216281512,319583.61216281512,375103.05676328926,389964.49517386925,389964.49517386925,389964.49517386925,"ECPT-All","N"]
["GT&S Balancing Accounts - LT (excludes BB)","D.23-11-069",39937.261033960378,39937.261033960378,32271.776470646564,32271.776470646564,32271.776470646564,32271.776470646564,4730.7449999999999,4730.7449999999999,4730.7449999999999,"ECPT (No BB)","Y"]
["GT&S Balancing Accounts - Non-LT (all customers pay)","D.23-11-069",-137094.58712158003,-137094.58712158003,-132483.27825359654,-132483.27825359654,-132483.27825359654,-132483.27825359654,187.97400000000002,187.97400000000002,187.97400000000002,"ECPT-All","Y"]
["CFCA - Distribution Cost Subaccount","Preliminary Statement  F",31181.113237660422,31181.113237660422,-105772.64054400187,-105772.64054400187,-105772.64054400187,-105772.64054400187,126074.23722277992,126074.23722277992,126074.23722277992,"Distribution","Y"]
["CFCA - Core Cost Subaccount","Preliminary Statement  F",32015.134478645185,32015.134478645185,-26622.23874516365,-26876.21341716365,-26876.21341716365,-26876.21341716365,52966.97097803044,52966.97097803044,52966.97097803044,"ECPT","Y"]
["CFCA - AB32 ARB COI","Preliminary Statement  F",12436.621431911886,12436.621431911886,13746.462878109111,13746.462878109111,13746.462878109111,13746.462878109111,14221.846966621684,14221.846966621684,14221.846966621684,"ECPT (Certain Covered Entities)","Y"]
["NCA - Noncore Subaccount","Preliminary Statement  J",-10301.493409999999,-10301.493409999999,4451.9852396088008,4082.9599116088007,4082.9599116088007,4082.9599116088007,-28484.121632382921,-28484.121632382921,-28484.121632382921,"ECPT","Y"]
["NCA - Distribution Sub","Preliminary Statement  J",3864.0022600000002,3864.0022600000002,-2320.0887953857359,-2320.0887953857359,-2320.0887953857359,-2320.0887953857359,8614.1916214003813,8614.1916214003813,8614.1916214003813,"Distribution","Y"]
["NCA - AB32 ARB COI","Preliminary Statement  J",-1573.2549060678502,-1573.2549060678502,-496.37798614326488,-496.37798614326488,-496.37798614326488,-496.37798614326488,-1803.8437859914718,-1803.8437859914718,-1803.8437859914718,"ECPT (Certain Covered Entities)","Y"]
["NCA - Local Transmission Subaccount","Preliminary Statement  J",285.79318640416665,285.79318640416665,2857.74703132475,2857.74703132475,2857.74703132475,2857.74703132475,-9843.6088604532997,-9843.6088604532997,-9843.6088604532997,"ECPT (Noncore)","Y"]
["GT&S Audit - Noncore Storage","Preliminary Statement  J",1558.5630590611343,1558.5630590611343,1557.8952554000009,1557.8952554000009,1557.8952554000009,1557.8952554000009,1555.9332021995274,1555.9332021995274,1555.9332021995274,"ECPT (Noncore)","Y"]
["Core Brokerage Fee Balancing Account","Preliminary Statement  U",-219.6859685321802,-219.6859685321802,-579.04877853218022,-579.04877853218022,-579.04877853218022,-579.04877853218022,-27.453843475247481,-27.453843475247481,-27.453843475247481,"Core - ECPT","Y"]
["Hazardous Substance Materials (HSM) *","Preliminary Statement  AN",77815.518370000005,77815.518370000005,106048.57661,106048.57661,106048.57661,106048.57661,95401.746169999999,95401.746169999999,95401.746169999999,"ECPT","Y"]
["Balancing Charge Account ","Preliminary Statement  L",-1660.9780700000001,-1660.9780700000001,-12535.131009999999,-12535.131009999999,-12535.131009999999,-12535.131009999999,-4337.3527199999999,-4337.3527199999999,-4337.3527199999999,"ECPT","Y"]
["CFCA - NGSS Enduser Dist. Sub Acct Recovery","Preliminary Statement  F",25177.24247323885,25177.24247323885,-38434.842969392324,-38434.842969392324,-38434.842969392324,-41605.250601505963,-41605.250601505963,-41605.250601505963,-41605.250601505963,"Core - Distribution","Y"]
["CFCA/NCA - NGSS Enduser Sub Acct Recovery","Preliminary Statement  J/F",5986.94278812019,5986.94278812019,-9139.4919905433908,-9139.4919905433908,-9139.4919905433908,-9893.389051695307,-9893.389051695307,-9893.389051695307,-9893.389051695307,"ECPT","Y"]
["NCA - NGSS Enduser Sub Acct Recovery","Preliminary Statement  J",6148.885016096192,6148.885016096192,-9386.7082656770544,-9386.7082656770544,-9386.7082656770544,-10160.997666303094,-10160.997666303094,-10160.997666303094,-10160.997666303094,"Noncore - ECPT","Y"]
["Adjust. Mechanism Costs Determined Other Proceedings","Preliminary Statement  CO",150922.32710297004,150922.32710297004,18794.285319772687,73091.276622861245,73091.276622861245,73091.276622861245,42660.830611386569,42660.830611386569,42660.830611386569,"50 Core/50 Noncore - ECPT","Y"]
["Percentage of Income Payment Plan Bal Acct","Preliminary Statement  FU",0,0,337.04339297250004,337.04339297250004,337.04339297250004,337.04339297250004,1500.8784729489585,1500.8784729489585,1500.8784729489585,"ECPT","Y"]
["GT&S Revenue Sharing Mechanism","Preliminary Statement  CP",-59150.367740951267,-59150.367740951267,-123356.71914347904,-123356.71914347904,-123356.71914347904,-123356.71914347904,-65585.167560082788,-65585.167560082788,-65585.167560082788,"50 Core/50 Noncore - ECPT","Y"]
["CA Solar Thermal Program Memo Account","Preliminary Statement  CA",5592.1086338270834,5592.1086338270834,5964.998709939,5964.998709939,5964.998709939,5964.998709939,5260.7034687854166,5260.7034687854166,5260.7034687854166,"ECPT (excludes CARE/FERA, EG, Whsl customers)","Y"]
["Non-Tariffed Products and Services","Preliminary Statement  BT",-340.16308250625002,-340.16308250625002,-393.62961145399998,-393.62961145399998,-393.62961145399998,-393.62961145399998,-178.60792788000001,-178.60792788000001,-178.60792788000001,"Core Distribution","Y"]
["Risk Transfer Balancing Account (RTBA)","Preliminary Statement  FK",202848.10117939781,202848.10117939781,25316.867898996879,25316.867898996879,25316.867898996879,25316.867898996879,0,0,0,"Distribution","Y"]
["Wildfire Mitigation Balancing Account (WMBA)","D.20-12-005/Preliminary Statement  FL",1835,1835,0,0,0,0,1965.5860470956247,1965.5860470956247,1965.5860470956247,"Distribution","Y"]
["New Environmental Regulations Balancing Account(Distribution)","Preliminary Statement  DZ",2860.7866518583328,2860.7866518583328,-1745.8905432020003,-1745.8905432020003,-1745.8905432020003,-1745.8905432020003,-839.77074704694451,-839.77074704694451,-839.77074704694451,"Distribution","Y"]
["2020 and 2021 Wildfire Mitigation and Catastrophic Events/WGSC (Distribution)","D.23-02-017 / D.23-08-027",8834.6082503058497,34151.605462674648,34151.605462674648,34151.605462674648,47759.437898925047,47759.437898925047,37553.56357173725,28718.9553214314,3401.9581090626016,"Distribution","N"]
["Oakland General Office Purchase (Distribution)","D.24-08-009/AL 4972-G",null,null,null,null,null,null,74682.819082060436,74682.819082060436,74682.819082060436,"Distribution","N"]
["2020 and 2021 Wildfire Mitigation and Catastrophic Events (Transmission) ","D.23-02-017 / D.23-08-027",256.30473954420449,3251.4046381148528,3251.4046381148528,3251.4046381148528,3251.4046381148528,3251.4046381148528,3251.404638114851,2995.0998985706483,0,"ECPT","N"]
["2022 WMCE","A.22-12-009",null,null,null,null,null,null,0,null,0,"Distribution","N"]
["Oakland General Office Purchase (Transmission)","D.24-08-009/AL 4972-G",null,null,null,null,null,null,35685.0022939052,35685.0022939052,35685.0022939052,"ECPT","N"]
["Residential Uncollectibles Balancing Account","D.20-12-005",2770.6526367170754,2770.6526367170754,124915.55518646562,124915.55518646562,124915.55518646562,124915.55518646562,31775.582147454592,31775.582147454592,31775.582147454592,"ECPT","Y"]
["Property Sales","D.21-08-027/AL 4538-G-A",-48263.404966896342,-48263.404966896342,-8084.9895432602334,-8084.9895432602334,-8084.9895432602334,-8084.9895432602334,-32047.719453424532,-32047.719453424532,-32047.719453424532,"ECPT","Y"]
["Santa Nella Balancing Account","Preliminary Statement FY",null,null,0,0,0,0,46.057929181076389,46.057929181076389,46.057929181076389,"Distribution","Y"]
["RF&U",null,10175.12666341496,10552.520071219906,8380.0430163000547,9117.9449099718386,9305.2651180610246,9297.9989730092839,12900.505483573874,12763.750703527539,12337.908735435396,"ECPT","Y"]
["   Subtotal Safety Affordability Reliability",null,{"$f":"SUM(C9:C53)","v":3949304.4700313071},3977993.9605500516,4831952.1012226837,4957557.5151097318,5058996.5088327387,5114133.9524806915,5625812.906968439,5624209.7709068814,5595471.8318278501]
[]
["Public Policy Proceedings"]
["AB 32: Cap & Trade/GHG","D.15-10-032/D.18-03-017/SB 1477",-270504.88757193903,-270504.88757193903,-440353.59633336781,-440353.59633336781,-440353.59633336781,-440353.59633336781,-345869.74573152227,-345869.74573152227,-345869.74573152227,"100% Residential",{"$f":"IF(RIGHT(A57,1)=\"*\",\"Y\",\"N\")","v":"N"}]
["GHG Operational Costs","D.15-10-032/D.18-03-017",11012.448807410014,11012.448807410014,34508.689991834486,34508.689991834486,34508.689991834486,34508.689991834486,-9916.6955811624011,-9916.6955811624011,-9916.6955811624011,"ECPT ","N"]
["GHG Compliance Costs","D.15-10-032/D.18-03-017",382062.7849567206,382062.7849567206,577963.29321330949,577963.29321330949,577963.29321330949,577963.29321330949,437585.43788724864,437585.43788724864,437585.43788724864,"ECPT (excludes Covered Entities 3 yr avg vol)","N"]
["CPUC Fee","Preliminary Statement O",15129.806556866419,15129.806556866419,5043.2504214359642,5043.2504214359642,5043.2504214359642,4531.708352106647,11329.340330408475,11329.340330408475,11329.340330408475,"ECPT (reduced EG volumes; excludes WHSL)","N"]
["SGIP","SB 700/D.17-04-017",12990.138000000001,12990.138000000001,12990.138000000001,12990.138000000001,12990.138000000001,12990.138000000001,0,0,0,"Direct Benefits - 3 year average","N"]
["Mobilehome Park Balancing Account","Preliminary Statement DB",25482.283643750001,25482.283643750001,19247.35697375,19247.35697375,19247.35697375,19247.35697375,23664.284553750003,23664.284553750003,23664.284553750003,"Distribtion","N"]
["CEE Incentive Recovery Account - Gas     ","Preliminary Statement Y",217.05793999999992,217.05793999999992,-175.84147000000002,-175.84147000000002,-175.84147000000002,-175.84147000000002,-17.909579999999998,-17.909579999999998,-17.909579999999998,"Direct Allocation Method","N"]
["Energy Efficiency ","D.23-06-055",83628.680440000011,83628.680440000011,102550.53890808875,102550.53890808875,102550.53890808875,102550.53890808875,122474.85535598588,122474.85535598588,122474.85535598588,"Direct Allocation Method","N"]
["Energy Savings Assistance Program (ESA)","D.21-06-015/D.20-12-005",80948.739669999995,80948.739669999995,80725.879000000001,80725.879000000001,80725.879000000001,80725.879000000001,75426.796000000002,75426.796000000002,75426.796000000002,"Direct Allocation Method 100% Residential","N"]
["Research Development and Demonstration","AL 4822-G",10386.02,10386.02,10494.406999999999,10494.406999999999,10494.406999999999,10494.406999999999,10469.05738,10469.05738,10469.05738,"ECPT ","N"]
["CARE Administrative Expense  ","D.21-06-015/D.20-12-005",2792.32,2792.32,2814.12,2814.12,2814.12,2814.12,2888.84,2888.84,2888.84,"ECPT (non-CARE)","N"]
["CARE Shortfall in Rates","AL 4822-G",null,null,null,null,null,null,null,null,null,"ECPT (excludes CARE)","N"]
["BOE/CPUC Gas Surcharge Administration Costs","AL 4822-G",449.62799999999999,449.62799999999999,417.15199999999999,417.15199999999999,417.15199999999999,417.15199999999999,429.23135000000002,429.23135000000002,429.23135000000002,"ECPT ","N"]
["Marketing, Education & Outreach (ME&O)","D.19-01-005",0,0,0,0,0,0,0,0,0,"ECPT","N"]
["PPP-Energy Efficiency BA","Preliminary Statement Y",976.02455970028814,976.02455970028814,2097.3290952967154,2097.3290952967154,2097.3290952967154,2097.3290952967154,25054.171213666457,25054.171213666457,25054.171213666457,"Direct Allocation Method","Y"]
["PPP-Energy Savings Assistance Program BA","Preliminary Statement Y/D.17-12-009",2982.7240323358783,2982.7240323358783,-10057.287528699271,-10057.287528699271,-10057.287528699271,-10057.287528699271,10204.45436338523,10204.45436338523,10204.45436338523,{"$f":"L65","v":"Direct Allocation Method 100% Residential"},"Y"]
["PPP-RD&D BA","Preliminary Statement BI",1011.9247304644641,1011.9247304644641,164.26248558167492,164.26248558167492,164.26248558167492,164.26248558167492,939.53389464158568,939.53389464158568,939.53389464158568,"ECPT","Y"]
["CARE BA","Preliminary Statement V",22718.751541747653,22718.751541747653,30973.075460031385,30973.075460031385,30973.075460031385,30973.075460031385,12590.910804730596,12590.910804730596,12590.910804730596,"ECPT (excludes CARE)","Y"]
["Core Capacity","D. 24-03-002/Other",271723.21125443745,271723.21125443745,273072.89975669771,273072.89975669771,273072.89975669771,220217.6892689587,244356.40939933539,244356.40939933539,244356.40939933539,"Unadjusted Average Year January",{"$f":"IF(RIGHT(A75,1)=\"*\",\"Y\",\"N\")","v":"N"}]
["Core Procurement","D. 97-10-065",1046694.0909605873,1046694.0909605873,643838.64818565303,643838.64818565291,643838.64818565291,611969.66954384779,583625.35339211707,583625.35339211707,583625.35339211707,"Core - ECPT",{"$f":"IF(RIGHT(A76,1)=\"*\",\"Y\",\"N\")","v":"N"}]
["Core Storage","D. 19-09-025",74376.870726632304,74376.870726632304,82215.4535207843,82215.4535207843,82215.4535207843,86889.984897765724,134502.89385966863,134502.89385966863,134502.89385966863,"Unadjusted Cold Year Winter Season",{"$f":"IF(RIGHT(A77,1)=\"*\",\"Y\",\"N\")","v":"N"}]
["Core Brokerage Fee","GCAP D.19-10-036",5332.41159785332,5332.41159785332,5332.41159785332,5332.41159785332,5332.41159785332,5066.8800049793153,5066.9420120817476,5066.9420120817476,5066.9420120817476,"ECPT (Core only)",{"$f":"IF(RIGHT(A78,1)=\"*\",\"Y\",\"N\")","v":"N"}]
["Core Brokerage Fee Credit",{"$f":"B78","v":"GCAP D.19-10-036"},-5332.41159785332,-5332.41159785332,{"$f":"-E78","v":-5332.41159785332},-5332.41159785332,-5332.41159785332,-5066.8800049793153,-5066.9420120817476,-5066.9420120817476,-5066.9420120817476,"ECPT (Core only)",{"$f":"IF(RIGHT(A79,1)=\"*\",\"Y\",\"N\")","v":"N"}]
[]
["   Subtotal Public Policy ",null,{"$f":"SUM(C57:C80)","v":1775078.6182487132},1775078.6182487132,1428529.7686803967,1428529.7686803965,1428529.7686803965,1347968.5688585043,1339737.2188922535,1339737.2188922535,1339737.2188922535]
[]
[]
["Total Authorized Revenue",null,{"$f":"C54+C81","v":5724383.0882800203},5753072.5787987653,6260481.8699030802,6386087.2837901283,6487526.2775131352,6462102.5213391958,6965550.1258606929,6963946.9897991344,6935209.0507201031]
[]
[]
["PPP as approved in AL 4822-G for 2024"]

{"sheet":"SAR and RAR","index":8,"n_rows":41,"n_cols":33,"rows_kept":41,"cut":false,"hidden":false,"merged":[[6,2,6,3],[25,29,25,30],[74,19,74,20],[10,6,10,27],[35,14,35,19],[6,6,6,26],[81,19,81,20],[26,29,26,30],[26,31,26,32],[26,6,26,23],[35,6,35,11],[61,5,61,21]]}
[]
[]
[null,null,null,null,null,"Public Purpose Program Switch",{"$f":"IF(VLOOKUP(G$8,'RRQ Allocations'!$B$5:$L$25,3,FALSE)=\"PPP\",1,0)","v":0},{"$f":"IF(VLOOKUP(H$8,'RRQ Allocations'!$B$5:$L$25,3,FALSE)=\"PPP\",1,0)","v":0},{"$f":"IF(VLOOKUP(I$8,'RRQ Allocations'!$B$5:$L$25,3,FALSE)=\"PPP\",1,0)","v":0},{"$f":"IF(VLOOKUP(J$8,'RRQ Allocations'!$B$5:$L$25,3,FALSE)=\"PPP\",1,0)","v":0},{"$f":"IF(VLOOKUP(K$8,'RRQ Allocations'!$B$5:$L$25,3,FALSE)=\"PPP\",1,0)","v":0},{"$f":"IF(VLOOKUP(L$8,'RRQ Allocations'!$B$5:$L$25,3,FALSE)=\"PPP\",1,0)","v":0},{"$f":"IF(VLOOKUP(M$8,'RRQ Allocations'!$B$5:$L$25,3,FALSE)=\"PPP\",1,0)","v":0},{"$f":"IF(VLOOKUP(N$8,'RRQ Allocations'!$B$5:$L$25,3,FALSE)=\"PPP\",1,0)","v":0},{"$f":"IF(VLOOKUP(O$8,'RRQ Allocations'!$B$5:$L$25,3,FALSE)=\"PPP\",1,0)","v":1},{"$f":"IF(VLOOKUP(P$8,'RRQ Allocations'!$B$5:$L$25,3,FALSE)=\"PPP\",1,0)","v":1},{"$f":"IF(VLOOKUP(Q$8,'RRQ Allocations'!$B$5:$L$25,3,FALSE)=\"PPP\",1,0)","v":1},{"$f":"IF(VLOOKUP(R$8,'RRQ Allocations'!$B$5:$L$25,3,FALSE)=\"PPP\",1,0)","v":0},{"$f":"IF(VLOOKUP(S$8,'RRQ Allocations'!$B$5:$L$25,3,FALSE)=\"PPP\",1,0)","v":0},{"$f":"IF(VLOOKUP(T$8,'RRQ Allocations'!$B$5:$L$25,3,FALSE)=\"PPP\",1,0)","v":0},{"$f":"IF(VLOOKUP(U$8,'RRQ Allocations'!$B$5:$L$25,3,FALSE)=\"PPP\",1,0)","v":0},{"$f":"IF(VLOOKUP(V$8,'RRQ Allocations'!$B$5:$L$25,3,FALSE)=\"PPP\",1,0)","v":0},{"$f":"IF(VLOOKUP(W$8,'RRQ Allocations'!$B$5:$L$25,3,FALSE)=\"PPP\",1,0)","v":0},{"$f":"IF(VLOOKUP(X$8,'RRQ Allocations'!$B$5:$L$25,3,FALSE)=\"PPP\",1,0)","v":0},{"$f":"IF(VLOOKUP(Y$8,'RRQ Allocations'!$B$5:$L$25,3,FALSE)=\"PPP\",1,0)","v":0},{"$f":"IF(VLOOKUP(Z$8,'RRQ Allocations'!$B$5:$L$25,3,FALSE)=\"PPP\",1,0)","v":0},{"$f":"IF(VLOOKUP(AA$8,'RRQ Allocations'!$B$5:$L$25,3,FALSE)=\"PPP\",1,0)","v":0}]
[null,null,null,null,null,"Transporation Switch",{"$f":"IF(VLOOKUP(G$8,'RRQ Allocations'!$B$5:$L$25,3,FALSE)=\"T\",1,0)","v":1},{"$f":"IF(VLOOKUP(H$8,'RRQ Allocations'!$B$5:$L$25,3,FALSE)=\"T\",1,0)","v":1},{"$f":"IF(VLOOKUP(I$8,'RRQ Allocations'!$B$5:$L$25,3,FALSE)=\"T\",1,0)","v":1},{"$f":"IF(VLOOKUP(J$8,'RRQ Allocations'!$B$5:$L$25,3,FALSE)=\"T\",1,0)","v":1},{"$f":"IF(VLOOKUP(K$8,'RRQ Allocations'!$B$5:$L$25,3,FALSE)=\"T\",1,0)","v":1},{"$f":"IF(VLOOKUP(L$8,'RRQ Allocations'!$B$5:$L$25,3,FALSE)=\"T\",1,0)","v":1},{"$f":"IF(VLOOKUP(M$8,'RRQ Allocations'!$B$5:$L$25,3,FALSE)=\"T\",1,0)","v":1},{"$f":"IF(VLOOKUP(N$8,'RRQ Allocations'!$B$5:$L$25,3,FALSE)=\"T\",1,0)","v":1},{"$f":"IF(VLOOKUP(O$8,'RRQ Allocations'!$B$5:$L$25,3,FALSE)=\"T\",1,0)","v":0},{"$f":"IF(VLOOKUP(P$8,'RRQ Allocations'!$B$5:$L$25,3,FALSE)=\"T\",1,0)","v":0},{"$f":"IF(VLOOKUP(Q$8,'RRQ Allocations'!$B$5:$L$25,3,FALSE)=\"T\",1,0)","v":0},{"$f":"IF(VLOOKUP(R$8,'RRQ Allocations'!$B$5:$L$25,3,FALSE)=\"T\",1,0)","v":1},{"$f":"IF(VLOOKUP(S$8,'RRQ Allocations'!$B$5:$L$25,3,FALSE)=\"T\",1,0)","v":1},{"$f":"IF(VLOOKUP(T$8,'RRQ Allocations'!$B$5:$L$25,3,FALSE)=\"T\",1,0)","v":1},{"$f":"IF(VLOOKUP(U$8,'RRQ Allocations'!$B$5:$L$25,3,FALSE)=\"T\",1,0)","v":0},{"$f":"IF(VLOOKUP(V$8,'RRQ Allocations'!$B$5:$L$25,3,FALSE)=\"T\",1,0)","v":0},{"$f":"IF(VLOOKUP(W$8,'RRQ Allocations'!$B$5:$L$25,3,FALSE)=\"T\",1,0)","v":0},{"$f":"IF(VLOOKUP(X$8,'RRQ Allocations'!$B$5:$L$25,3,FALSE)=\"T\",1,0)","v":1},{"$f":"IF(VLOOKUP(Y$8,'RRQ Allocations'!$B$5:$L$25,3,FALSE)=\"T\",1,0)","v":1},{"$f":"IF(VLOOKUP(Z$8,'RRQ Allocations'!$B$5:$L$25,3,FALSE)=\"T\",1,0)","v":1},{"$f":"IF(VLOOKUP(AA$8,'RRQ Allocations'!$B$5:$L$25,3,FALSE)=\"T\",1,0)","v":1}]
[null,null,null,null,null,"Procurement Switch",{"$f":"IF(VLOOKUP(G$8,'RRQ Allocations'!$B$5:$L$25,3,FALSE)=\"P\",1,0)","v":0},{"$f":"IF(VLOOKUP(H$8,'RRQ Allocations'!$B$5:$L$25,3,FALSE)=\"P\",1,0)","v":0},{"$f":"IF(VLOOKUP(I$8,'RRQ Allocations'!$B$5:$L$25,3,FALSE)=\"P\",1,0)","v":0},{"$f":"IF(VLOOKUP(J$8,'RRQ Allocations'!$B$5:$L$25,3,FALSE)=\"P\",1,0)","v":0},{"$f":"IF(VLOOKUP(K$8,'RRQ Allocations'!$B$5:$L$25,3,FALSE)=\"P\",1,0)","v":0},{"$f":"IF(VLOOKUP(L$8,'RRQ Allocations'!$B$5:$L$25,3,FALSE)=\"P\",1,0)","v":0},{"$f":"IF(VLOOKUP(M$8,'RRQ Allocations'!$B$5:$L$25,3,FALSE)=\"P\",1,0)","v":0},{"$f":"IF(VLOOKUP(N$8,'RRQ Allocations'!$B$5:$L$25,3,FALSE)=\"P\",1,0)","v":0},{"$f":"IF(VLOOKUP(O$8,'RRQ Allocations'!$B$5:$L$25,3,FALSE)=\"P\",1,0)","v":0},{"$f":"IF(VLOOKUP(P$8,'RRQ Allocations'!$B$5:$L$25,3,FALSE)=\"P\",1,0)","v":0},{"$f":"IF(VLOOKUP(Q$8,'RRQ Allocations'!$B$5:$L$25,3,FALSE)=\"P\",1,0)","v":0},{"$f":"IF(VLOOKUP(R$8,'RRQ Allocations'!$B$5:$L$25,3,FALSE)=\"P\",1,0)","v":0},{"$f":"IF(VLOOKUP(S$8,'RRQ Allocations'!$B$5:$L$25,3,FALSE)=\"P\",1,0)","v":0},{"$f":"IF(VLOOKUP(T$8,'RRQ Allocations'!$B$5:$L$25,3,FALSE)=\"P\",1,0)","v":0},{"$f":"IF(VLOOKUP(U$8,'RRQ Allocations'!$B$5:$L$25,3,FALSE)=\"P\",1,0)","v":1},{"$f":"IF(VLOOKUP(V$8,'RRQ Allocations'!$B$5:$L$25,3,FALSE)=\"P\",1,0)","v":1},{"$f":"IF(VLOOKUP(W$8,'RRQ Allocations'!$B$5:$L$25,3,FALSE)=\"P\",1,0)","v":1},{"$f":"IF(VLOOKUP(X$8,'RRQ Allocations'!$B$5:$L$25,3,FALSE)=\"P\",1,0)","v":0},{"$f":"IF(VLOOKUP(Y$8,'RRQ Allocations'!$B$5:$L$25,3,FALSE)=\"P\",1,0)","v":0},{"$f":"IF(VLOOKUP(Z$8,'RRQ Allocations'!$B$5:$L$25,3,FALSE)=\"P\",1,0)","v":0},{"$f":"IF(VLOOKUP(AA$8,'RRQ Allocations'!$B$5:$L$25,3,FALSE)=\"P\",1,0)","v":0}]
[]
[null,null,{"$f":"CONCATENATE(Summary!D3,\" Revenue Change ($000)\")","v":"2029 Revenue Change ($000)"},null,null,null,"Allocation"]
[null,null,"Authorized"," + Pending",null,null,{"$f":"TRANSPOSE('RRQ Allocations'!B5:B25)","v":"100% Residential"},"Core - Distribution","Distribution","ECPT - ALL","ECPT - Core only","ECPT - Noncore only","ECPT - 50% Core / 50% Noncore","ECPT (excludes Covered Entities 3 yr avg vol)","EE","ESA","PPP ECPT","SGIP allocation","CPUC Fee Allocation","CAC Allocation","Storage Allocation  (Procurement)","Capacity Allocation (Procurement)","ECPT - Core only  (Procurement)","2023 GTS - Inventory Management","User Defined 1","User Defined 2","User Defined 3",null,"CARE Allocation"]
[null,{"$f":"'Incremental Rev Req'!T10","v":"100% Residential"},{"$f":"INDEX('Incremental Rev Req'!$T$9:$Y$30,MATCH($B9,'Incremental Rev Req'!$T$9:$T$30,0),MATCH(Summary!$D$3,'Incremental Rev Req'!$T$9:$Y$9,0))","v":0},{"$f":"INDEX('Incremental Rev Req'!$T$77:$Y$98,MATCH($B9,'Incremental Rev Req'!$T$77:$T$98,0),MATCH(Summary!$D$3,'Incremental Rev Req'!$T$77:$Y$77,0))","v":0},null,"Residential",{"$f":"TRANSPOSE('RRQ Allocations'!$H$5:$H$25)","v":1},0.80874369650738398,0.78483921120959532,0.27227602583496341,0.66456073316326192,0,0.33228036658163096,0.35793843573234274,0.33839999999999998,1,0.3972263923754053,0.9155803564097198,0.36756898524886344,0,0.79129057151110394,0.79332886653955093,0.73396510481118205,0.35919768458710166,0,0,0,null,0.337225440909864]
[null,{"$f":"'Incremental Rev Req'!T11","v":"Core - Distribution"},{"$f":"INDEX('Incremental Rev Req'!$T$9:$Y$30,MATCH($B10,'Incremental Rev Req'!$T$9:$T$30,0),MATCH(Summary!$D$3,'Incremental Rev Req'!$T$9:$Y$9,0))","v":41605.250601505963},{"$f":"INDEX('Incremental Rev Req'!$T$77:$Y$98,MATCH($B10,'Incremental Rev Req'!$T$77:$T$98,0),MATCH(Summary!$D$3,'Incremental Rev Req'!$T$77:$Y$77,0))","v":39553.789776424099}]
[null,{"$f":"'Incremental Rev Req'!T12","v":"Distribution"},{"$f":"INDEX('Incremental Rev Req'!$T$9:$Y$30,MATCH($B11,'Incremental Rev Req'!$T$9:$T$30,0),MATCH(Summary!$D$3,'Incremental Rev Req'!$T$9:$Y$9,0))","v":-266273.47525557177},{"$f":"INDEX('Incremental Rev Req'!$T$77:$Y$98,MATCH($B11,'Incremental Rev Req'!$T$77:$T$98,0),MATCH(Summary!$D$3,'Incremental Rev Req'!$T$77:$Y$77,0))","v":262429.22303978214},null,null,"Revenue Change ($000) - System"]
[null,{"$f":"'Incremental Rev Req'!T13","v":"ECPT - ALL"},{"$f":"INDEX('Incremental Rev Req'!$T$9:$Y$30,MATCH($B12,'Incremental Rev Req'!$T$9:$T$30,0),MATCH(Summary!$D$3,'Incremental Rev Req'!$T$9:$Y$9,0))","v":-356583.33094579348},{"$f":"INDEX('Incremental Rev Req'!$T$77:$Y$98,MATCH($B12,'Incremental Rev Req'!$T$77:$T$98,0),MATCH(Summary!$D$3,'Incremental Rev Req'!$T$77:$Y$77,0))","v":-379905.44147261232},null,"Authorized",{"$f":"G$8","v":"100% Residential"},{"$f":"H$8","v":"Core - Distribution"},"Distribution","ECPT - ALL","ECPT - Core only","ECPT - Noncore only","ECPT - 50% Core / 50% Noncore","ECPT (excludes Covered Entities 3 yr avg vol)","EE","ESA","PPP ECPT","SGIP allocation","CPUC Fee Allocation","CAC Allocation","Storage Allocation  (Procurement)","Capacity Allocation (Procurement)","ECPT - Core only  (Procurement)","2023 GTS - Inventory Management","User Defined 1","User Defined 2","User Defined 3","Total","CARE Discount"]
[null,{"$f":"'Incremental Rev Req'!T14","v":"ECPT - Core only"},{"$f":"INDEX('Incremental Rev Req'!$T$9:$Y$30,MATCH($B13,'Incremental Rev Req'!$T$9:$T$30,0),MATCH(Summary!$D$3,'Incremental Rev Req'!$T$9:$Y$9,0))","v":46330.581377325812},{"$f":"INDEX('Incremental Rev Req'!$T$77:$Y$98,MATCH($B13,'Incremental Rev Req'!$T$77:$T$98,0),MATCH(Summary!$D$3,'Incremental Rev Req'!$T$77:$Y$77,0))","v":236327.54166755592},null,"Residential",{"$f":"G9*G14","v":0},33647.984165577996,-208981.86428562066,-97089.092228914174,30789.485127995809,0,0,0,2428.0640960070878,4903.3249999999971,-19273.424834692607,0,0,0,-4562.6610246728796,9484.9453517066449,7664.4611759224026,{"$f":"X9*X14","v":0},0,0,0,{"$f":"SUM(G13:AA13)","v":-240988.77745669044},{"$f":"AC9*AC14","v":-3496.2768306756461}]
[null,{"$f":"'Incremental Rev Req'!T15","v":"ECPT - Noncore only"},{"$f":"INDEX('Incremental Rev Req'!$T$9:$Y$30,MATCH($B14,'Incremental Rev Req'!$T$9:$T$30,0),MATCH(Summary!$D$3,'Incremental Rev Req'!$T$9:$Y$9,0))","v":34560.732785433356},{"$f":"INDEX('Incremental Rev Req'!$T$77:$Y$98,MATCH($B14,'Incremental Rev Req'!$T$77:$T$98,0),MATCH(Summary!$D$3,'Incremental Rev Req'!$T$77:$Y$77,0))","v":134139.19907767215},null,"Total System",{"$f":"VLOOKUP(G$12,$B$9:$D$29,2,FALSE)","v":0},{"$f":"VLOOKUP(H$12,$B$9:$D$29,2,FALSE)","v":41605.250601505963},-266273.47525557177,-356583.33094579348,46330.581377325812,34560.732785433356,0,0,7175.130307349551,4903.3249999999971,-48520.000696423871,0,0,849.06763966528615,-5766.1005816860707,11955.880785076384,10442.541649025865,{"$f":"VLOOKUP(X$12,$B$9:$D$29,2,FALSE)","v":0},0,0,0,{"$f":"SUM(G14:AA14)","v":-519320.39733409276},{"$f":"Res_RD!M33","v":-10367.773028162948}]
[null,{"$f":"'Incremental Rev Req'!T16","v":"ECPT - 50% Core / 50% Noncore"},{"$f":"INDEX('Incremental Rev Req'!$T$9:$Y$30,MATCH($B15,'Incremental Rev Req'!$T$9:$T$30,0),MATCH(Summary!$D$3,'Incremental Rev Req'!$T$9:$Y$9,0))","v":0},{"$f":"INDEX('Incremental Rev Req'!$T$77:$Y$98,MATCH($B15,'Incremental Rev Req'!$T$77:$T$98,0),MATCH(Summary!$D$3,'Incremental Rev Req'!$T$77:$Y$77,0))","v":84230.760281128707},null,"w/Pending"]
[null,{"$f":"'Incremental Rev Req'!T17","v":"ECPT (excludes Covered Entities 3 yr avg vol)"},{"$f":"INDEX('Incremental Rev Req'!$T$9:$Y$30,MATCH($B16,'Incremental Rev Req'!$T$9:$T$30,0),MATCH(Summary!$D$3,'Incremental Rev Req'!$T$9:$Y$9,0))","v":0},{"$f":"INDEX('Incremental Rev Req'!$T$77:$Y$98,MATCH($B16,'Incremental Rev Req'!$T$77:$T$98,0),MATCH(Summary!$D$3,'Incremental Rev Req'!$T$77:$Y$77,0))","v":0},null,"Residential",{"$f":"G9*G17","v":0},31988.878154661197,205964.74440888959,-103439.14379724018,{"$f":"K9*K17","v":157054.00435726228},0,27988.227903662926,0,2428.0640960070878,4903.3249999999971,-19273.424834692607,0,0,0,4166.1241316685182,9484.9453517066449,{"$f":"W9*W17","v":-16873.463634403535},6235.8230031910452,0,0,0,{"$f":"SUM(G16:AA16)","v":310628.104140713},{"$f":"AC9*AC17","v":4949.2809485317339}]
[null,{"$f":"'Incremental Rev Req'!T18","v":"EE"},{"$f":"INDEX('Incremental Rev Req'!$T$9:$Y$30,MATCH($B17,'Incremental Rev Req'!$T$9:$T$30,0),MATCH(Summary!$D$3,'Incremental Rev Req'!$T$9:$Y$9,0))","v":7175.130307349551},{"$f":"INDEX('Incremental Rev Req'!$T$77:$Y$98,MATCH($B17,'Incremental Rev Req'!$T$77:$T$98,0),MATCH(Summary!$D$3,'Incremental Rev Req'!$T$77:$Y$77,0))","v":7175.130307349551},null,"Total System",{"$f":"VLOOKUP(G$12,$B$9:$D$29,3,FALSE)","v":0},39553.789776424099,262429.22303978214,-379905.44147261232,236327.54166755592,134139.19907767215,84230.760281128707,0,7175.130307349551,4903.3249999999971,-48520.000696423871,0,0,18.809476793810063,5264.9738056559872,11955.880785076384,-22989.463019150426,17360.420934670372,0,0,0,{"$f":"SUM(G17:AA17)","v":351944.14896392252},{"$f":"(Res_RD!AD33)","v":14676.475580187951}]
[null,{"$f":"'Incremental Rev Req'!T19","v":"ESA"},{"$f":"INDEX('Incremental Rev Req'!$T$9:$Y$30,MATCH($B18,'Incremental Rev Req'!$T$9:$T$30,0),MATCH(Summary!$D$3,'Incremental Rev Req'!$T$9:$Y$9,0))","v":4903.3249999999971},{"$f":"INDEX('Incremental Rev Req'!$T$77:$Y$98,MATCH($B18,'Incremental Rev Req'!$T$77:$T$98,0),MATCH(Summary!$D$3,'Incremental Rev Req'!$T$77:$Y$77,0))","v":4903.3249999999971}]
[null,{"$f":"'Incremental Rev Req'!T20","v":"PPP ECPT"},{"$f":"INDEX('Incremental Rev Req'!$T$9:$Y$30,MATCH($B19,'Incremental Rev Req'!$T$9:$T$30,0),MATCH(Summary!$D$3,'Incremental Rev Req'!$T$9:$Y$9,0))","v":-48520.000696423871},{"$f":"INDEX('Incremental Rev Req'!$T$77:$Y$98,MATCH($B19,'Incremental Rev Req'!$T$77:$T$98,0),MATCH(Summary!$D$3,'Incremental Rev Req'!$T$77:$Y$77,0))","v":-48520.000696423871}]
[null,{"$f":"'Incremental Rev Req'!T21","v":"SGIP allocation"},{"$f":"INDEX('Incremental Rev Req'!$T$9:$Y$30,MATCH($B20,'Incremental Rev Req'!$T$9:$T$30,0),MATCH(Summary!$D$3,'Incremental Rev Req'!$T$9:$Y$9,0))","v":0},{"$f":"INDEX('Incremental Rev Req'!$T$77:$Y$98,MATCH($B20,'Incremental Rev Req'!$T$77:$T$98,0),MATCH(Summary!$D$3,'Incremental Rev Req'!$T$77:$Y$77,0))","v":0}]
[null,{"$f":"'Incremental Rev Req'!T22","v":"CPUC Fee Allocation"},{"$f":"INDEX('Incremental Rev Req'!$T$9:$Y$30,MATCH($B21,'Incremental Rev Req'!$T$9:$T$30,0),MATCH(Summary!$D$3,'Incremental Rev Req'!$T$9:$Y$9,0))","v":0},{"$f":"INDEX('Incremental Rev Req'!$T$77:$Y$98,MATCH($B21,'Incremental Rev Req'!$T$77:$T$98,0),MATCH(Summary!$D$3,'Incremental Rev Req'!$T$77:$Y$77,0))","v":0}]
[null,{"$f":"'Incremental Rev Req'!T23","v":"CAC Allocation"},{"$f":"INDEX('Incremental Rev Req'!$T$9:$Y$30,MATCH($B22,'Incremental Rev Req'!$T$9:$T$30,0),MATCH(Summary!$D$3,'Incremental Rev Req'!$T$9:$Y$9,0))","v":849.06763966528615},{"$f":"INDEX('Incremental Rev Req'!$T$77:$Y$98,MATCH($B22,'Incremental Rev Req'!$T$77:$T$98,0),MATCH(Summary!$D$3,'Incremental Rev Req'!$T$77:$Y$77,0))","v":18.809476793810063}]
[null,{"$f":"'Incremental Rev Req'!T24","v":"Storage Allocation  (Procurement)"},{"$f":"INDEX('Incremental Rev Req'!$T$9:$Y$30,MATCH($B23,'Incremental Rev Req'!$T$9:$T$30,0),MATCH(Summary!$D$3,'Incremental Rev Req'!$T$9:$Y$9,0))","v":-5766.1005816860707},{"$f":"INDEX('Incremental Rev Req'!$T$77:$Y$98,MATCH($B23,'Incremental Rev Req'!$T$77:$T$98,0),MATCH(Summary!$D$3,'Incremental Rev Req'!$T$77:$Y$77,0))","v":5264.9738056559872}]
[null,{"$f":"'Incremental Rev Req'!T25","v":"Capacity Allocation (Procurement)"},{"$f":"INDEX('Incremental Rev Req'!$T$9:$Y$30,MATCH($B24,'Incremental Rev Req'!$T$9:$T$30,0),MATCH(Summary!$D$3,'Incremental Rev Req'!$T$9:$Y$9,0))","v":11955.880785076384},{"$f":"INDEX('Incremental Rev Req'!$T$77:$Y$98,MATCH($B24,'Incremental Rev Req'!$T$77:$T$98,0),MATCH(Summary!$D$3,'Incremental Rev Req'!$T$77:$Y$77,0))","v":11955.880785076384}]
[null,{"$f":"'Incremental Rev Req'!T26","v":"ECPT - Core only  (Procurement)"},{"$f":"INDEX('Incremental Rev Req'!$T$9:$Y$30,MATCH($B25,'Incremental Rev Req'!$T$9:$T$30,0),MATCH(Summary!$D$3,'Incremental Rev Req'!$T$9:$Y$9,0))","v":10442.541649025865},{"$f":"INDEX('Incremental Rev Req'!$T$77:$Y$98,MATCH($B25,'Incremental Rev Req'!$T$77:$T$98,0),MATCH(Summary!$D$3,'Incremental Rev Req'!$T$77:$Y$77,0))","v":-22989.463019150426}]
[null,{"$f":"'Incremental Rev Req'!T27","v":"2023 GTS - Inventory Management"},{"$f":"INDEX('Incremental Rev Req'!$T$9:$Y$30,MATCH($B26,'Incremental Rev Req'!$T$9:$T$30,0),MATCH(Summary!$D$3,'Incremental Rev Req'!$T$9:$Y$9,0))","v":0},{"$f":"INDEX('Incremental Rev Req'!$T$77:$Y$98,MATCH($B26,'Incremental Rev Req'!$T$77:$T$98,0),MATCH(Summary!$D$3,'Incremental Rev Req'!$T$77:$Y$77,0))","v":17360.420934670372},null,null,null,null,null,null,null,null,null,null,null,null,null,null,null,null,null,null,null,null,null,null,null,null,null,"Authorized",null,"Authorized","w/Pending"]
[null,{"$f":"'Incremental Rev Req'!T28","v":"User Defined 1"},{"$f":"INDEX('Incremental Rev Req'!$T$9:$Y$30,MATCH($B27,'Incremental Rev Req'!$T$9:$T$30,0),MATCH(Summary!$D$3,'Incremental Rev Req'!$T$9:$Y$9,0))","v":0},{"$f":"INDEX('Incremental Rev Req'!$T$77:$Y$98,MATCH($B27,'Incremental Rev Req'!$T$77:$T$98,0),MATCH(Summary!$D$3,'Incremental Rev Req'!$T$77:$Y$77,0))","v":0},null,null,"Revenue Split - Bundled",null,null,null,null,null,null,null,null,null,null,null,null,null,null,null,null,null,null,null,null,null,null,"Bundled Revenue Change",null,"Bundled Revenue Change"]
[null,{"$f":"'Incremental Rev Req'!T29","v":"User Defined 2"},{"$f":"INDEX('Incremental Rev Req'!$T$9:$Y$30,MATCH($B28,'Incremental Rev Req'!$T$9:$T$30,0),MATCH(Summary!$D$3,'Incremental Rev Req'!$T$9:$Y$9,0))","v":0},{"$f":"INDEX('Incremental Rev Req'!$T$77:$Y$98,MATCH($B28,'Incremental Rev Req'!$T$77:$T$98,0),MATCH(Summary!$D$3,'Incremental Rev Req'!$T$77:$Y$77,0))","v":0},null,null,{"$f":"G$8","v":"100% Residential"},{"$f":"H$8","v":"Core - Distribution"},"Distribution","ECPT - ALL","ECPT - Core only","ECPT - Noncore only","ECPT - 50% Core / 50% Noncore","ECPT (excludes Covered Entities 3 yr avg vol)","EE","ESA","PPP ECPT","SGIP allocation","CPUC Fee Allocation","CAC Allocation","Storage Allocation  (Procurement)","Capacity Allocation (Procurement)","ECPT - Core only  (Procurement)","2023 GTS - Inventory Management","User Defined 1","User Defined 2","User Defined 3",null,null,"Total","CARE Adj","Total","CARE Adj"]
[null,{"$f":"'Incremental Rev Req'!T30","v":"User Defined 3"},{"$f":"INDEX('Incremental Rev Req'!$T$9:$Y$30,MATCH($B29,'Incremental Rev Req'!$T$9:$T$30,0),MATCH(Summary!$D$3,'Incremental Rev Req'!$T$9:$Y$9,0))","v":0},{"$f":"INDEX('Incremental Rev Req'!$T$77:$Y$98,MATCH($B29,'Incremental Rev Req'!$T$77:$T$98,0),MATCH(Summary!$D$3,'Incremental Rev Req'!$T$77:$Y$77,0))","v":0},null,"Residential",{"$f":"TRANSPOSE('RRQ Allocations'!$J$5:$J$25)","v":0.89758920993798852},0.89758920993798852,0.89758920993798852,0.89758920993798852,0.89758920993798852,0,0.89758920993798852,0.89758920993798852,0.89758920993798852,0.89758920993798841,0.89758920993798841,0.89758920993798852,0.89758920993798852,0,1,1,1,0.89758920993798852,0,0,0,null,0.89761292376848978,{"$f":"SUMPRODUCT(G13:AA13,G29:AA29)","v":-215019.90781000524},{"$f":"AD29-($AC$14*AC29)+($AC$13*$AC$29)","v":-208851.96401751461},{"$f":"SUMPRODUCT(G16:AA16,G29:AA29)","v":278486.42664929974},{"$f":"AF29-($AC$17*AC29)+($AC$16*$AC$29)","v":269755.17103591369}]
[null,"Total",{"$f":"SUM(C9:C26)","v":-519320.39733409276},{"$f":"SUM(D9:D26)","v":351944.14896392252},null,"Total System",{"$f":"TRANSPOSE('RRQ Allocations'!$L$5:$L$25)","v":0.89758920993798852},0.81299229046398092,0.82411822317989403,0.33306032920299472,0.81292069650267784,0,0.40640697425223005,0.43752325493175787,0.52636006239220023,0.89758920993798841,0.48415022064285584,0.87599432226099605,0.44778461232099998,0,1,1,1,0.43037357942349036,0,0,0,null,0.4430039061850134,{"$f":"SUMPRODUCT(G14:AA14,G30:AA30)","v":-265397.52197746886},{"$f":"AD30","v":-265397.52197746886},{"$f":"SUMPRODUCT(G17:X17,G30:X30)","v":334635.48062182474},{"$f":"AF30","v":334635.48062182474}]
[null,null,{"$f":"C30=HLOOKUP(Summary!$D$3,'Incremental Rev Req'!$U$9:$Y$31,23,FALSE)","v":true},{"$f":"D30=HLOOKUP(Summary!$D$3,'Incremental Rev Req'!U77:Y99,23,FALSE)","v":true}]
[null,null,null,null,null,{"$f":"\"Notes: Allocation and bundled/unbundled split based on \"&Summary!L4&\" throughput forecast\"","v":"Notes: Allocation and bundled/unbundled split based on 2023 CARD throughput forecast"}]
[]
[]
[]
[null,null,null,null,null,null,"Bundled",null,null,null,null,null,null,null,"System (Bundled and Transportation)"]
[null,null,null,null,null,null,{"$f":"Summary!$L$4&\" Throughput\"","v":"2023 CARD Throughput"},{"$f":"TEXT(Summary!L3,\"m/d/yyy\")&\" Avg Rates ($ / therm)\"","v":"9/1/2025 Avg Rates ($ / therm)"},"Illustrative Proposed Avg Rates (Authorized)","Illustrative Proposed Avg Rates (w/Pending)","% Change (Illustrative Authorized)","% Change (w/Illustrative Pending)",null,null,{"$f":"Summary!$L$4&\" Throughput\"","v":"2023 CARD Throughput"},{"$f":"H37","v":"9/1/2025 Avg Rates ($ / therm)"},"Illustrative Proposed Avg Rates (Authorized)","Illustrative Proposed Avg Rates (w/Pending)","% Change (Illustrative Authorized)","% Change (w/Illustrative Pending)"]
[null,null,null,null,null,"Residential",1495155.0197872266,2.7301291016084663,{"$f":"AE29/G38+H38","v":2.5904432755546329},{"$f":"AG29/G38+H38","v":2.9105486350119674},{"$f":"I38/H38-1","v":-5.116454968064954E-2},{"$f":"J38/H38-1","v":6.6084616034167043E-2},null,"Residential",1665725.6515149064,2.4587344326295084,{"$f":"((SUM(G13:AA13)-AC14+AC13)/O38)+P38","v":2.3181847082218408},{"$f":"((SUM(G16:AA16)-AC17+AC16)/O38)+P38","v":2.6393769707541992},{"$f":"Q38/P38-1","v":-5.7163442518416208E-2},{"$f":"R38/P38-1","v":7.3469723174414359E-2}]
[null,null,null,null,null,"Total System",2037614.8826860383,2.3576386581695323,{"$f":"AE30/G39+H39","v":2.2273895496492733},{"$f":"AG30/G39+H39","v":2.5218676709556478},{"$f":"I39/H39-1","v":-5.5245577208758667E-2},{"$f":"J39/H39-1","v":6.9658262608241595E-2},null,"Total System",6116455.878662345,{"$f":"'Authorized Rev Req'!G84/'SAR and RAR'!O39","v":1.0606675509824723},{"$f":"(SUM(G14:AA14)/O39)+P39","v":0.97576210775908934},{"$f":"(SUM(G17:AA17)/O39)+P39","v":1.1182080868656301},{"$f":"Q39/P39-1","v":-8.0049062634882207E-2},{"$f":"R39/P39-1","v":5.4249360065610874E-2}]
[]
[null,null,null,null,null,null,null,null,null,null,null,null,null,null,"Illustrative System Rate does not include illustrative procurement for transport only customers."]

{"sheet":"Res_RD","index":9,"n_rows":63,"n_cols":32,"rows_kept":63,"cut":false,"hidden":false,"merged":[[0,0,0,5],[21,5,21,6],[46,5,46,6],[21,22,21,23],[46,22,46,23]]}
[]
[]
[]
[]
[]
[]
[]
["CALCULATION OF ILLUSTRATIVE RESIDENTIAL RATES WITH AUTHORIZED INCREMENTAL RRQs",null,null,null,null,null,null,null,null,null,null,null,null,null,null,null,null,"CALCULATION OF ILLUSTRATIVE RESIDENTIAL RATES WITH AUTHORIZED AND PENDING INCREMENTAL RRQs"]
[]
[]
[]
[]
[null,"Authorized Pre-CARE costs allocated to residential class",3766427.1655128254,null,null,null,null,null,null,null,null,null,null,null,null,null,null,null,"Authorized Pre-CARE costs allocated to residential class",{"$f":"C13","v":3766427.1655128254}]
[null,"+ Authorized Incremental RRQ",{"$f":"SUMPRODUCT('SAR and RAR'!$G$4:$AA$4,'SAR and RAR'!$G$13:$AA$13)","v":-241633.48722096105},null,null,null,null,null,null,null,null,null,null,null,null,null,null,null,"+ Authorized + Pending Incremental RRQ",{"$f":"SUMPRODUCT('SAR and RAR'!$G$4:$AA$4,'SAR and RAR'!$G$16:$AA$16)","v":325792.53403042688}]
[null,"Total Pre-CARE costs allocated to residential class",{"$f":"SUM(C13:C14)","v":3524793.6782918642},null,null,null,null,null,null,null,null,null,null,null,null,null,null,null,"Total Pre-CARE costs allocated to residential class",{"$f":"SUM(T13:T14)","v":4092219.6995432521}]
[null,"   Residential Tier I volumes (includes CARE)",1212738.980373733,null,null,null,null,null,null,null,null,null,null,null,null,null,null,null,"   Residential Tier I volumes (includes CARE)",{"$f":"C16","v":1212738.980373733}]
[null,"+ Residential Tier II volumes (includes CARE)",453006.3329979839,null,null,null,null,null,null,null,null,null,null,null,null,null,null,null,"+ Residential Tier II volumes (includes CARE)",{"$f":"C17","v":453006.3329979839}]
[null,"= Total  Residential Volumes (includes CARE)",{"$f":"C16+C17","v":1665745.313371717},null,null,null,null,null,null,null,null,null,null,null,null,null,null,null,"= Total G-10 adjusted Residential Volumes (includes CARE)",{"$f":"T16+T17","v":1665745.313371717}]
[]
[null,"GCAP Decision Ratio of Tier II/Tier I Residential Rates",1.2444286991635662,null,null,null,null,null,null,null,null,null,null,null,null,null,null,null,"GCAP Decision Ratio of Tier II/Tier I Residential Rates",1.2369984671320393]
[]
[null,null,null,null,null,"ADD Illustrative Procurement Rate",null,null,"CARE Discount",null,null,null,null,null,null,null,null,null,null,null,null,null,"ADD Illustrative Procurement Rate",null,null,"CARE Discount"]
[null,null,"Pre-CARE Illustrative Res. Transportation Rates",null,null,"Current Rate","Illustrative Authorized Incremental","CSI - Thermal  Exemption",0.2,"Interim Illustrative CARE Transportation Rates","CARE Transportation Volumes (mth)","Illustrative CARE Transportation Discount",null,null,null,null,null,null,null,"Pre-CARE Illustrative Res. Transportation Rates",null,null,"Current Rate","Illustrative Authorized + Illustrative Pending Incremental","CSI - Thermal  Exemption",{"$f":"I23","v":0.2},"Interim Illustrative CARE Transportation Rates","CARE Transportation Volumes (mth)","Illustrative CARE Transportation Discount"]
[null,"Illustrative Residential Tier I rates",{"$f":"C15/(C16+C17*C20)","v":1.9841526187883511},null,null,0.46694000000000002,{"$f":"SUMPRODUCT('SAR and RAR'!$G$5:$AA$5,'SAR and RAR'!$G$13:$AA$13)/'SAR and RAR'!G38","v":8.4183548437321027E-3},-3.8006289267847279E-3,{"$f":"SUM(C24:H24)*I23","v":0.49114206894105972},{"$f":"ROUND(C24+H24-I24,7)","v":1.4892099000000001},28277.089302729,{"$f":"Res_RD!I24*Res_RD!K24","v":13888.068143773429},null,null,null,null,null,null,"Illustrative Residential Tier I rates",{"$f":"T15/(T16+T17*T20)","v":2.3079370973308171},null,null,{"$f":"F24","v":0.46694000000000002},{"$f":"SUMPRODUCT('SAR and RAR'!$G$5:$AA$5,'SAR and RAR'!$G$16:$AA$16)/'SAR and RAR'!G38","v":-2.155224112806007E-3},{"$f":"H24","v":-3.8006289267847279E-3},{"$f":"SUM(T24:Y24)*Z23","v":0.55378424885824529},{"$f":"ROUND(T24+Y24-Z24,7)","v":1.7503522},{"$f":"K24","v":28277.089302729},{"$f":"Res_RD!Z24*Res_RD!AB24","v":15659.406659409302}]
[null,"Illustrative Residential Tier II rates",{"$f":"C24*C20","v":2.4691364623407712},null,null,{"$f":"F24","v":0.46694000000000002},{"$f":"G24","v":8.4183548437321027E-3},{"$f":"H24","v":-3.8006289267847279E-3},{"$f":"SUM(C25:H25)*I23","v":0.58813883765154373},{"$f":"ROUND(C25+H25-I25,7)","v":1.877197},10566.055964740899,{"$f":"Res_RD!I25*Res_RD!K25","v":6214.3078736638727},null,null,null,null,null,null,"Illustrative Residential Tier II rates",{"$f":"T24*T20","v":2.8549146516353892},null,null,{"$f":"F25","v":0.46694000000000002},{"$f":"X24","v":-2.155224112806007E-3},{"$f":"H25","v":-3.8006289267847279E-3},{"$f":"SUM(T25:Y25)*Z23","v":0.66317975971915966},{"$f":"ROUND(T25+Y25-Z25,7)","v":2.1879343000000002},{"$f":"K25","v":10566.055964740899},{"$f":"Res_RD!Z25*Res_RD!AB25","v":7007.1944558760633}]
[null,"Average",{"$f":"SUMPRODUCT($C$16:$C$17,C$24:C$25)/$C$18","v":2.1160459825380848},null,null,{"$f":"SUMPRODUCT($C$16:$C$17,F$24:F$25)/$C$18","v":0.46694000000000002},{"$f":"SUMPRODUCT($C$16:$C$17,G$24:G$25)/$C$18","v":8.418354843732101E-3},{"$f":"H24","v":-3.8006289267847279E-3},{"$f":"SUMPRODUCT($C$16:$C$17,I$24:I$25)/$C$18","v":0.51752074169100637},{"$f":"SUMPRODUCT($C$16:$C$17,J$24:J$25)/$C$18","v":1.5947245978416265},{"$f":"Res_RD!K24+Res_RD!K25","v":38843.145267469896},{"$f":"Res_RD!L24+Res_RD!L25","v":20102.376017437302},null,null,null,null,null,null,"Average",{"$f":"SUMPRODUCT($T$16:$T$17,$T$24:$T$25)/$T$18","v":2.4566899073304245},null,null,{"$f":"SUMPRODUCT($T$16:$T$17,$W$24:$W$25)/$T$18","v":0.46694000000000002},{"$f":"SUMPRODUCT($T$16:$T$17,$X$24:$X$25)/$T$18","v":-2.155224112806007E-3},{"$f":"Y24","v":-3.8006289267847279E-3},{"$f":"SUMPRODUCT($T$16:$T$17,$Z$24:$Z$25)/$T$18","v":0.58353481085816672},{"$f":"SUMPRODUCT($T$16:$T$17,$AA$24:$AA$25)/$T$18","v":1.8693544633804173},{"$f":"Res_RD!AB24+Res_RD!AB25","v":38843.145267469896},{"$f":"Res_RD!AC24+Res_RD!AC25","v":22666.601115285364}]
[null,null,{"$f":"C26=C15/C18","v":true}]
[]
[null,"CALCULATION OF ILLUSTRATIVE CARE SUBSIDY","Pre-CARE Illustrative Residential Transportation",null,null,"Illustrative Interim Bundled CARE Rates ","CARE","CARE Bundled","Illustrative \nCARE Bundled","Illustrative \nCARE Transportation","Total Illustrative CARE ","Current CARE","Illustrative \nIncremental CARE","Total Throughput Eligible for Recovery of CARE Discount","Incremental Illustrative PPP Rates due to Change in CARE Discount",null,null,null,"CALCULATION OF ILLUSTRATIVE CARE SUBSIDY","Pre-CARE Illustrative Residential Transportation",null,null,"Illustrative Interim Bundled CARE Rates ","CARE","CARE Bundled","Illustrative CARE Bundled","Illustrative CARE Transportation","Total Illustrative CARE ","Current CARE","Illustrative Incremental CARE","Total Throughput Eligible for Recovery of CARE Discount","Illustrative Incremental PPP Rates due to Change in CARE Discount"]
[null,null,"Rates",null,null,{"$f":"\"(w/\"&I23*100&\"% discount)\"","v":"(w/20% discount)"},{"$f":"\"Discount (\"&I23*100&\"%)\"","v":"Discount (20%)"},"Volumes (mth)","Discount","Discount","Discount","Discount","Discount",null,null,null,null,null,null,"Rates",null,null,{"$f":"\"(w/\"&Z23*100&\"% discount)\"","v":"(w/20% discount)"},{"$f":"\"Discount (\"&Z23*100&\"%)\"","v":"Discount (20%)"},"Volumes (mth)","Discount","Discount","Discount","Discount","Discount"]
[null,null,{"$f":"Res_RD!C24","v":1.9841526187883511},null,null,{"$f":"ROUND((Res_RD!C24+H24+F24+G24)*(1-$I$23),20)","v":1.96456827576424},{"$f":"SUM(C24:H24)-F31","v":0.49114206894105839},247927.08601293608,{"$f":"Res_RD!H31*Res_RD!G31","v":121767.42197092116},{"$f":"Res_RD!L24","v":13888.068143773429},{"$f":"SUM(I31:J31)","v":135655.49011469458},null,null,null,{"$f":"O33","v":-2.7204089277148955E-3},null,null,null,null,{"$f":"Res_RD!T24","v":2.3079370973308171},null,null,{"$f":"ROUND((Res_RD!T24+Y24+W24+X24)*(1-$Z$23),20)","v":2.2151369954329798},{"$f":"SUM(T24:Y24)-W31","v":0.55378424885824629},{"$f":"H31","v":247927.08601293608},{"$f":"Res_RD!Y31*Res_RD!X31","v":137298.11509928762},{"$f":"Res_RD!AC24","v":15659.406659409302},{"$f":"SUM(Z31:AA31)","v":152957.52175869694},null,null,null,{"$f":"AF33","v":3.8509731151789486E-3}]
[null,null,{"$f":"Res_RD!C25","v":2.4691364623407712},null,null,{"$f":"ROUND((Res_RD!C25+H25+F25+G25)*(1-$I$23),20)","v":2.35255535060617},{"$f":"SUM(C25:H25)-F32","v":0.5881388376515484},92607.209382038374,{"$f":"Res_RD!H32*Res_RD!G32","v":54465.896484105615},{"$f":"Res_RD!L25","v":6214.3078736638727},{"$f":"SUM(I32:J32)","v":60680.204357769486},null,null,null,{"$f":"O33","v":-2.7204089277148955E-3},null,null,null,null,{"$f":"Res_RD!T25","v":2.8549146516353892},null,null,{"$f":"ROUND((Res_RD!T25+Y25+W25+X25)*(1-$Z$23),20)","v":2.65271903887664},{"$f":"SUM(T25:Y25)-W32","v":0.66317975971915821},{"$f":"H32","v":92607.209382038374},{"$f":"Res_RD!Y32*Res_RD!X32","v":61415.226866241981},{"$f":"Res_RD!AC25","v":7007.1944558760633},{"$f":"SUM(Z32:AA32)","v":68422.42132211804},null,null,null,{"$f":"AF33","v":3.8509731151789486E-3}]
[null,"Total ",null,null,null,null,null,{"$f":"Res_RD!H31+Res_RD!H32","v":340534.29539497447},{"$f":"Res_RD!I31+Res_RD!I32","v":176233.31845502678},{"$f":"Res_RD!J31+Res_RD!J32","v":20102.376017437302},{"$f":"Res_RD!K31+Res_RD!K32","v":196335.69447246406},206703.46750062701,{"$f":"K33-L33","v":-10367.773028162948},3811108.2942488831,{"$f":"M33/N33","v":-2.7204089277148955E-3},null,null,null,"Total ",null,null,null,null,null,{"$f":"Res_RD!Y31+Res_RD!Y32","v":340534.29539497447},{"$f":"Res_RD!Z31+Res_RD!Z32","v":198713.3419655296},{"$f":"Res_RD!AA31+Res_RD!AA32","v":22666.601115285364},{"$f":"Res_RD!AB31+Res_RD!AB32","v":221379.94308081496},{"$f":"L33","v":206703.46750062701},{"$f":"AB33-AC33","v":14676.475580187951},3811108.2942488831,{"$f":"AD33/AE33","v":3.8509731151789486E-3}]
[]
[null,"CALCULATION OF FINAL ILLUSTRATIVE RESIDENTIAL NON-CARE RATES",null,null,null,null,null,null,null,null,null,null,null,null,null,null,null,"CALCULATION OF FINAL ILLUSTRATIVE RESIDENTIAL NON-CARE RATES"]
[]
[null,"Post-CARE costs allocated to residential class",{"$f":"C13*C$42/C$18","v":2908614.4572774596},null,null,null,null,null,null,null,null,null,null,null,null,null,null,null,"Post-CARE costs allocated to residential class",{"$f":"T13*T$42/T$18","v":2908614.4572774596}]
[null,"+ Authorized Incremental RRQ",{"$f":"C14*C$42/C$18","v":-186600.88816494131},null,null,null,null,null,null,null,null,null,null,null,null,null,null,null,"+ Authorized Incremental RRQ",{"$f":"T14*T$42/T$18","v":251592.51272151852}]
[null,"= Total Post-CARE costs allocated to residential class",{"$f":"SUM(C37:C38)","v":2722013.5691125183},null,null,null,null,null,null,null,null,null,null,null,null,null,null,null,"= Total Post-CARE costs allocated to residential class",{"$f":"SUM(T37:T38)","v":3160206.9699989781}]
[null,"   Residential Tier I volumes (non-CARE)",912260.06558040006,null,null,null,null,null,null,null,null,null,null,null,null,null,null,null,"   Residential Tier I volumes (non-CARE)",{"$f":"C40","v":912260.06558040006}]
[null,"+ Residential Tier II volumes (non-CARE)",374107.80712887261,null,null,null,null,null,null,null,null,null,null,null,null,null,null,null,"+ Residential Tier II volumes (non-CARE)",{"$f":"C41","v":374107.80712887261}]
[null,"Total Residential Volumes (Non-CARE)",{"$f":"SUM(C40:C41)","v":1286367.8727092727},null,null,null,null,null,null,null,null,null,null,null,null,null,null,null,"Total Residential Volumes (Non-CARE)",{"$f":"SUM(T40:T41)","v":1286367.8727092727}]
[]
[null,"GCAP Decision Ratio of Tier II/Tier I Residential Transportation Rates",{"$f":"C20","v":1.2444286991635662},null,null,null,null,null,null,null,null,null,null,null,null,null,null,null,"GCAP Decision Ratio of Tier II/Tier I Residential Transportation Rates",{"$f":"T20","v":1.2369984671320393}]
[]
[null,null,null,"Current Minimum",null,null,null,null,null,null,null,null,null,null,null,null,null,null,null,null,"Current Minimum"]
[null,null,"Non-CARE","Monthly Transporation","Post-MMTC","Residential Procurement Rate",null,"Non-CARE",null,"Authorized","Recovery of",null,null,null,null,null,null,null,null,"Non-CARE","Monthly Transporation","Post-MMTC","Residential Procurement Rate",null,"Non-CARE",null,"Illustrative Authorized +","Recovery of"]
[null,null,"Illustrative \nResidential Transportation","Charge (MMTC) adjustment","Illustrative \nNon-CARE Res Transporation","Current Rate","Authorized Illustrative Incremental Rate","Illustrative Bundled \nRate","Current PPP Rate","Illustrative \nIncremental \nPPP Rate","Illustrative \nIncremental CARE Discount","Total Illustrative Non-CARE Bundled Rate",null,null,null,null,null,null,null,"Illustrative \nResidential Transportation","Charge (MMTC) adjustment","Illustrative \nNon-CARE Res Transporation","Current Rate","Illustrative Authorized + Illustrative Pending Incremental","Illustrative Bundled \nRate","Current PPP Rate","Pending Illustrative Incremental PPP Rate","Illustrative \nIncremental CARE Discount","Total Illustrative Non-CARE Bundled Rate"]
[null,"Illustrative Residential Tier I rates",{"$f":"C39/(C40+C41*C44)","v":1.9756080069109874},6.6043978276910664E-3,{"$f":"C49-D49","v":1.9690036090832963},{"$f":"F24","v":0.46694000000000002},{"$f":"G24","v":8.4183548437321027E-3},{"$f":"E49+SUM(F49:G49)","v":2.4443619639270286},0.14324000000000001,{"$f":"SUMPRODUCT('SAR and RAR'!$G$3:$AA$3,'SAR and RAR'!$G$13:$AA$13)/C18","v":-7.169184654353347E-3},{"$f":"O33","v":-2.7204089277148955E-3},{"$f":"SUM(H49:K49)","v":2.5777123703449605},null,null,null,null,null,null,"Illustrative Residential Tier I rates",{"$f":"T39/(T40+T41*T44)","v":2.2982807775214766},{"$f":"D49","v":6.6043978276910664E-3},{"$f":"T49-U49","v":2.2916763796937856},{"$f":"W24","v":0.46694000000000002},{"$f":"X24","v":-2.155224112806007E-3},{"$f":"V49+SUM(W49:X49)","v":2.7564611555809795},{"$f":"I49","v":0.14324000000000001},{"$f":"SUMPRODUCT('SAR and RAR'!$G$3:$AA$3,'SAR and RAR'!$G$16:$AA$16)/T18","v":-7.169184654353347E-3},{"$f":"AF31","v":3.8509731151789486E-3},{"$f":"SUM(Y49:AB49)","v":2.8963829440418052}]
[null,"Illustrative Residential Tier II rates",{"$f":"C49*C44","v":2.4585033020973657},0,{"$f":"C50-D50","v":2.4585033020973657},{"$f":"F25","v":0.46694000000000002},{"$f":"G25","v":8.4183548437321027E-3},{"$f":"E50+SUM(F50:G50)","v":2.9338616569410978},{"$f":"I49","v":0.14324000000000001},{"$f":"J49","v":-7.169184654353347E-3},{"$f":"O33","v":-2.7204089277148955E-3},{"$f":"SUM(H50:K50)","v":3.0672120633590296},null,null,null,null,null,null,"Illustrative Residential Tier II rates",{"$f":"T49*T44","v":2.842969798833098},{"$f":"D50","v":0},{"$f":"T50-U50","v":2.842969798833098},{"$f":"W25","v":0.46694000000000002},{"$f":"X25","v":-2.155224112806007E-3},{"$f":"V50+SUM(W50:X50)","v":3.3077545747202919},{"$f":"I50","v":0.14324000000000001},{"$f":"AA49","v":-7.169184654353347E-3},{"$f":"AF32","v":3.8509731151789486E-3},{"$f":"SUM(Y50:AB50)","v":3.4476763631811176}]
[null,"Avg. Illustrative Non-CARE Residential Rate (Bundled & Transportation-only)",{"$f":"(($C$40*C49)+($C$41*C50))/$C$42","v":2.1160459825380844},{"$f":"(($C$40*D49)+($C$41*D50))/$C$42","v":4.683674494076996E-3},{"$f":"(($C$40*E49)+($C$41*E50))/$C$42","v":2.1113623080440078},{"$f":"SUMPRODUCT($C$40:$C$41,F$49:F$50)/$C$42","v":0.46693999999999997},{"$f":"SUMPRODUCT($C$40:$C$41,$G$49:$G$50)/$C$42","v":8.4183548437321027E-3},{"$f":"SUMPRODUCT($C$40:$C$41,$H$49:$H$50)/$C$42","v":2.5867206628877399},{"$f":"SUMPRODUCT($C$40:$C$41,$I$49:$I$50)/$C$42","v":0.14324000000000001},{"$f":"J49","v":-7.169184654353347E-3},{"$f":"SUMPRODUCT($C$40:$C$41,$K$49:$K$50)/$C$42","v":-2.7204089277148955E-3},{"$f":"SUM(H51:K51)","v":2.7200710693056718},null,null,null,null,null,null,"Avg. Illustrative Non-CARE Residential Rate (Bundled & Transportation-only)",{"$f":"(($T$40*T49)+($T$41*T50))/$T$42","v":2.4566899073304236},{"$f":"(($T$40*U49)+($T$41*U50))/$T$42","v":4.683674494076996E-3},{"$f":"(($T$40*V49)+($T$41*V50))/$T$42","v":2.452006232836347},{"$f":"SUMPRODUCT($T$40:$T$41,$W$49:$W$50)/$T$42","v":0.46693999999999997},{"$f":"SUMPRODUCT($T$40:$T$41,$X$49:$X$50)/$T$42","v":-2.155224112806007E-3},{"$f":"(($T$40*Y49)+($T$41*Y50))/$T$42","v":2.9167910087235409},{"$f":"I51","v":0.14324000000000001},{"$f":"AA49","v":-7.169184654353347E-3},{"$f":"AF33","v":3.8509731151789486E-3},{"$f":"SUM(Y51:AB51)","v":3.0567127971843666}]
[null,null,null,null,null,null,null,{"$f":"H50/H49","v":1.200256631480084},"<=Macro sets this cell equal to ",1.2,null,null,null,null,null,null,null,null,null,null,null,null,null,null,{"$f":"Y50/Y49","v":1.2000004309957766},"<=Macro sets this cell equal to ",{"$f":"IF(Summary!$D$3=2024,1.249,1.2)","v":1.2}]
[null,null,null,null,null,null,null,null,"by changing the value in cell C20",null,null,null,null,null,null,null,null,null,null,null,null,null,null,null,null,"by changing the value in cell T20"]
[]
[]
[null,"CALCULATION OF FINAL ILLUSTRATIVE RESIDENTIAL CARE RATES",null,null,null,null,null,null,null,null,null,null,null,null,null,null,null,"CALCULATION OF FINAL ILLUSTRATIVE RESIDENTIAL CARE RATES"]
[]
[null,null,"Non-CARE","CSI - Thermal ","CARE",null,"Illustrative Authorized",null,null,null,null,null,null,null,null,null,null,null,null,"Non-CARE","CSI - Thermal ","CARE",null,"Illustrative Authorized+Illustrative Pending"]
[null,null,"Illustrative Bundled","Exemption","Illustrative Bundled ","Current CARE PPP","Incremental PPP","Total Illustrative CARE",null,null,null,null,null,null,null,null,null,null,null,"Illustrative Bundled","Exemption","Illustrative Bundled ","Current CARE PPP","Incremental PPP","Total Illustrative CARE"]
[null,null,"Rate",null,"Rate","Rate","Rate","Bundled Rate",null,null,null,null,null,null,null,null,null,null,null,"Rate",null,"Rate","Rate","Rate","Bundled Rate"]
[null,"Illustrative Residential Tier I rates",{"$f":"H49","v":2.4443619639270286},{"$f":"H24","v":-3.8006289267847279E-3},{"$f":"SUM(C61:D61)*(1-$I$23)","v":1.9524490680001951},8.4250000000000005E-2,{"$f":"J49","v":-7.169184654353347E-3},{"$f":"E61+F61+G61","v":2.0295298833458419},null,null,null,null,null,null,null,null,null,null,"Illustrative Residential Tier I rates",{"$f":"Y49","v":2.7564611555809795},{"$f":"Y24","v":-3.8006289267847279E-3},{"$f":"SUM(T61:U61)*(1-$Z$23)","v":2.2021284213233558},{"$f":"F61","v":8.4250000000000005E-2},{"$f":"AA49","v":-7.169184654353347E-3},{"$f":"V61+W61+X61","v":2.2792092366690024}]
[null,"Illustrative Residential Tier II rates",{"$f":"H50","v":2.9338616569410978},{"$f":"H25","v":-3.8006289267847279E-3},{"$f":"SUM(C62:D62)*(1-$I$23)","v":2.3440488224114504},{"$f":"F61","v":8.4250000000000005E-2},{"$f":"G61","v":-7.169184654353347E-3},{"$f":"E62+F62+G62","v":2.421129637757097},null,null,null,null,null,null,null,null,null,null,"Illustrative Residential Tier II rates",{"$f":"Y50","v":3.3077545747202919},{"$f":"Y25","v":-3.8006289267847279E-3},{"$f":"SUM(T62:U62)*(1-$Z$23)","v":2.6431631566348059},{"$f":"W61","v":8.4250000000000005E-2},{"$f":"X61","v":-7.169184654353347E-3},{"$f":"V62+W62+X62","v":2.7202439719804525}]
[null,"Avg. Illustrative CARE Residential Rate",{"$f":"H51","v":2.5867206628877399},{"$f":"H26","v":-3.8006289267847279E-3},{"$f":"SUMPRODUCT($H$31:$H$32,E$61:E$62)/$H$33","v":2.0589433651712197},{"$f":"F62","v":8.4250000000000005E-2},{"$f":"G61","v":-7.169184654353347E-3},{"$f":"SUMPRODUCT($H$31:$H$32,H$61:H$62)/$H$33","v":2.1360241805168667},null,null,null,null,null,null,null,null,null,null,"Avg. Illustrative CARE Residential Rate",{"$f":"Y51","v":2.9167910087235409},{"$f":"Y26","v":-3.8006289267847279E-3},{"$f":"SUMPRODUCT($Y$31:$Y$32,V$61:V$62)/$Y$33","v":2.3220664029893929},{"$f":"W62","v":8.4250000000000005E-2},{"$f":"X61","v":-7.169184654353347E-3},{"$f":"SUMPRODUCT($Y$31:$Y$32,Y$61:Y$62)/$Y$33","v":2.3991472183350395}]

{"sheet":"Instructions-Hypothetical","index":10,"n_rows":95,"n_cols":17,"rows_kept":95,"cut":false,"hidden":false,"merged":[]}
["INSTRUCTIONS TO RUN \"HYPOTHETICAL\" MODEL"]
["CLICK HERE FOR INSTRUCTIONS ON VALIDATING AGAINST BILL INSERT"]
[]
[]
[null,"The \"hypothetical\" portion of this model produces illustrative rates and illustrative residential bill calculations based on selected user inputs."]
[null,"PLEASE DO NOT INSERT ROWS OR COLUMNS INTO THE SUMMARY"]
[null,"To run the \"hypothetical\" portion of the model:"]
[]
[null,"1.","User drop down selections are highlighted in green."]
[null,"2.","User value input cells are highlighted in yellow."]
[null,"3.","In cell D4 of the \"Hypothetical Summary\" tab, select, from the dropdown choices, the baseline territory for which illustrative bill impacts are desired."]
[null,"4.","Select the \"Residential Tier Ratio\" in the green highlighted cells G7 of the \"Hypothetical Summary\" tab."]
[null,null,"Authorized tier ratios (D.19-10-036, Ordering Paragraph 4) are listed by year in the table below OR the user may enter their own desired tier ratio."]
[null,null,null,"For 2025 revenues",".",".",{"$f":"Instructions!G16","v":"1.20 (Note that the initial tiering factor for 2025 has been set at 1.24 therefore the factor for 2025 will remain at the already established value)"}]
[null,null,null,"For 2026 + revenues",".",".",1.2]
[null,"5.","Enter the \"hypothetical\" revenues, by program, in the yellow highlighted cells in column F of the \"Hypothetical Summary\" tab."]
[null,"6.","In column I of the \"Hypothetical Summary\" tab, select from the dropdown choices, the desired allocation methodology. "]
[null,null,"Note that PG&E's proposed allocation methdology is listed in column H of the \"Hypothetical Summary\" tab. "]
[null,null,"Also note that there are three opportunities for the user to enter their own Allocation Methodology on the \"RRQ Allocations\" tab (ILLUSTRATION 2)"]
[null,null,"and as described under the \"RRQ ALLOCATION OPTIONS\" section on the \"Instruction\" tab."]
[null,"7.","Create hypothetical illustrative tiered residential rates by executing the \"Run Hypothetical Residential Rate Tiering\" macro (ILLUSTRATION 1)."]
[]
[]
[null,null,"ILLUSTRATION 1:",null,null,null,null,null,null,null,null,null,null,null,null,"7."]
[null,null,null,null,null,null,null,"3.",null,null,"5.",null,"4.",null,null,null,"6."]
[]
[]
[]
[]
[]
[]
[]
[]
[]
[]
[]
[]
[]
[]
[]
[]
[]
[]
[null,"RRQ ALLOCATION OPTIONS:"]
[null,"1.","On the \"RRQ Allocations\" tab there are 4 spaces for the user to enter their own allocation methodology (ILLUSTRATION 2)."]
[null,null,"NOTE that this tab has not been fully populated by PG&E."]
[]
[null,null,"ILLUSTRATION 2"]
[]
[]
[]
[]
[]
[]
[]
[]
[]
[]
[]
[]
[]
[]
[]
[]
[]
[]
[]
[]
[]
[]
[]
[]
[]
[]
[]
[]
[]
[]
[]
[]
[]
[]
[]
[]
[]
[]
[]
[]
[]
["VALIDATING THE RESULTS OF THE ILLUSTRATIVE \"TYPICAL CUSTOMER\" BILL AGAINST A BILL INSERT"]
[]
[null,"1.","The model is set up to accept separate \"typical\" therms for Non-CARE and CARE customers. (See screenshot below, yellow highlights.)"]
[null,"2.","Ensure that the therms entered in the model match the therms used in the bill insert."]
[null,"3.","Ensure that only the revenue requirement being evaluated is included in the impact. (See step 5 above.)"]
[null,"4.","Run the model as described in the instructions above."]

{"sheet":"Hypothetical Summary","index":11,"n_rows":126,"n_cols":18,"rows_kept":126,"cut":false,"hidden":false,"merged":[[0,1,0,17],[8,12,8,14],[47,11,47,17],[48,1,48,2],[48,11,48,12],[49,1,49,2],[49,11,49,12],[62,1,62,2],[63,1,63,2],[50,1,50,2],[50,11,50,12],[54,1,54,2],[55,1,55,2],[56,1,56,2],[72,1,72,2],[73,1,73,2],[74,1,74,2],[75,1,75,2],[47,1,47,7],[53,1,53,7],[59,1,59,7],[65,1,65,7],[71,1,71,7],[66,1,66,2],[67,1,67,2],[68,1,68,2],[69,1,69,2],[57,1,57,2],[60,1,60,2],[61,1,61,2],[78,1,78,7],[79,1,79,2],[80,1,80,2],[81,1,81,2],[82,1,82,2],[84,1,84,7],[85,1,85,2],[86,1,86,2],[87,1,87,2],[88,1,88,2],[90,1,90,7],[91,1,91,2],[92,1,92,2],[93,1,93,2],[94,1,94,2],[96,1,96,7],[97,1,97,2],[98,1,98,2],[99,1,99,2],[100,1,100,2],[103,1,103,7],[104,1,104,2],[105,1,105,2],[106,1,106,2],[107,1,107,2],[109,1,109,7],[110,1,110,2],[111,1,111,2],[112,1,112,2],[113,1,113,2],[115,1,115,7],[116,1,116,2],[117,1,117,2],[118,1,118,2],[119,1,119,2],[121,1,121,7],[122,1,122,2],[123,1,123,2],[124,1,124,2],[125,1,125,2]]}
[null,"PLEASE DO NOT INSERT ROWS OR COLUMNS"]
[null,"User Inputs:","Yellow highlighted cells - enter value"]
[null,null,"Green highlighted cells - select from drop-down menu"]
[]
[]
[null,null,null,null,null,"Year (informational only)",{"$f":"IF(Hypothetical_Tier_Ratio=1.24,2025, \"2026 or later\")","v":"2026 or later"},null,null,null,"Assumptions:"]
[null,null,null,null,null,"Residential Tier Ratio",null,null,null,null,"Current Effective Rates",null,{"$f":"Summary!L3","v":"2025-09-01"}]
[null,null,"Baseline Region - (Residential bill)","ALL CLIMATE ZONES",null,"(See Instructions-Hypothetical)",1.2,null,null,null,"Throughput Forecast",null,{"$f":"Summary!L4","v":"2023 CARD"}]
[null,null,null,null,null,null,null,null,null,null,"Illustrative Residential bill calculated using",null,{"$f":"Summary!L5","v":"Schedule G-1, Basic, Single Family"},{"$f":"Summary!M5","v":0},{"$f":"Summary!N5","v":0}]
[null,null,null,"Current","PG&E Requested",null,"Incremental","Adopted or Proposed Allocation","Hypothetical Allocation",null,"Illustrative Non-CARE bill impact calculated with average summer usage of",null,null,null,{"$f":"VLOOKUP('Hypothetical Summary'!$D$8,'Hypothetical Res Bill Impact'!$P$22:$V$31,2,FALSE)","v":16.89719191653089},"therms per month"]
[null,null,null,"Authorized","Revenue *","Hypothetical","Hypothetical","Methodology","Methodology",null,"Illustrative Non-CARE bill impact calculated with average winter off-peak usage of",null,null,null,{"$f":"VLOOKUP('Hypothetical Summary'!$D$8,'Hypothetical Res Bill Impact'!$P$22:$V$31,3,FALSE)","v":41.994059201119285},"therms per month"]
[null,"Pending Proceedings",null,"Revenue","(Informational Only)","Revenue","Revenue","(Informational Only)","(Select from drop down menu)",null,"Illustrative Non-CARE bill impact calculated with average winter on-peak usage of",null,null,null,{"$f":"VLOOKUP('Hypothetical Summary'!$D$8,'Hypothetical Res Bill Impact'!$P$22:$V$31,4,FALSE)","v":55.579484107774974},"therms per month"]
[null,{"$f":"Summary!B9","v":"2027 Energy Savings Assistance Bridge Funding"},null,{"$f":"'Incremental Rev Req'!$D$44","v":75426.796000000002},{"$f":"MAX('Incremental Rev Req'!G79:K79)","v":55567.261049999994},55567.261049999994,{"$f":"IF(F13=0,0,F13-D13)","v":-19859.534950000008},{"$f":"IF('Incremental Rev Req'!E79=0,\" \",'Incremental Rev Req'!E79)","v":"PPP"},"ESA",null,"Illustrative CARE bill impact calculated with average summer usage of",null,null,null,{"$f":"VLOOKUP('Hypothetical Summary'!$D$8,'Hypothetical Res Bill Impact'!$P$22:$V$31,5,FALSE)","v":16.7936012589897},"therms per month"]
[null,{"$f":"Summary!B10","v":"2027 CARE Administrative Bridge Funding"},null,{"$f":"'Incremental Rev Req'!$D$46","v":2888.84},{"$f":"MAX('Incremental Rev Req'!G80:K80)","v":2059.02},2059.02,{"$f":"IF(F14=0,0,F14-D14)","v":-829.82000000000016},{"$f":"IF('Incremental Rev Req'!E80=0,\" \",'Incremental Rev Req'!E80)","v":"PPP"},"PPP ECPT",null,"Illustrative CARE bill impact calculated with average winter off-peak usage of",null,null,null,{"$f":"VLOOKUP('Hypothetical Summary'!$D$8,'Hypothetical Res Bill Impact'!$P$22:$V$31,6,FALSE)","v":35.63957830921828},"therms per month"]
[null,{"$f":"Summary!B11","v":"Hinkley Upgrade"},null,0,{"$f":"MAX('Incremental Rev Req'!G81:K81)","v":8890.2012417152218},8890.2012417152218,{"$f":"IF(F15=0,0,F15-D15)","v":8890.2012417152218},{"$f":"IF('Incremental Rev Req'!E81=0,\" \",'Incremental Rev Req'!E81)","v":"ECPT"},"ECPT - ALL",null,"Illustrative CARE bill impact calculated with average winter on-peak usage of",null,null,null,{"$f":"VLOOKUP('Hypothetical Summary'!$D$8,'Hypothetical Res Bill Impact'!$P$22:$V$31,7,FALSE)","v":46.978235586257092},"therms per month"]
[null,{"$f":"Summary!B12","v":"Billing Modernization (Distribution)"},null,0,{"$f":"MAX('Incremental Rev Req'!G82:K82)","v":18712.173825194575},18712.173825194575,18712.173825194575,{"$f":"IF('Incremental Rev Req'!E82=0,\" \",'Incremental Rev Req'!E82)","v":"Distribution"},"Distribution",null,"Average monthly usage is for all customers (Non-CARE and CARE) based on seasonal usage in",null,null,null,null,null,{"$f":"Summary!P12","v":2024}]
[null,{"$f":"Summary!B13","v":"Billing Modernization (Transmission)"},null,0,{"$f":"MAX('Incremental Rev Req'!G83:K83)","v":8918.4572311941265},8918.4572311941265,{"$f":"IF(F17=0,0,F17-D17)","v":8918.4572311941265},{"$f":"IF('Incremental Rev Req'!E83=0,\" \",'Incremental Rev Req'!E83)","v":"ECPT"},"ECPT - ALL",null,"Summer Season",null,{"$f":"Summary!L13","v":7},"months"]
[null,{"$f":"Summary!B14","v":"Hydrogen Demonstration Project (2027)"},null,0,{"$f":"MAX('Incremental Rev Req'!G85:K85)","v":10534.092916690832},10534.092916690832,{"$f":"IF(F18=0,0,F18-D18)","v":10534.092916690832},{"$f":"IF('Incremental Rev Req'!E85=0,\" \",'Incremental Rev Req'!E85)","v":"ECPT"},"ECPT - ALL",null,"Winter Season Off-peak",null,{"$f":"Summary!L14","v":3},"months"]
[null,{"$f":"Summary!B15","v":"2024 Wildfire Mitigation and Catastrophic Events (distribution)"},null,0,{"$f":"MAX('Incremental Rev Req'!G86:K86)","v":65537.654410869611},65537.654410869611,{"$f":"IF(F19=0,0,F19-D19)","v":65537.654410869611},{"$f":"IF('Incremental Rev Req'!E86=0,\" \",'Incremental Rev Req'!E86)","v":"Distribution"},"Distribution",null,"Winter Season On-peak",null,{"$f":"Summary!L15","v":2},"months"]
[null,{"$f":"Summary!B16","v":"2024 Wildfire Mitigation and Catastrophic Events (transmission)"},null,0,{"$f":"MAX('Incremental Rev Req'!G87:K87)","v":6579.3787574399903},6579.3787574399903,6579.3787574399903,{"$f":"IF('Incremental Rev Req'!E87=0,\" \",'Incremental Rev Req'!E87)","v":"ECPT"},"ECPT - ALL",null,"Typical Non-CARE Residential Customer usage",null,33,"therms per month"]
[null,{"$f":"Summary!B17","v":"2026 Cost of Capital (Distribution)"},null,0,{"$f":"MAX('Incremental Rev Req'!G88:K88)","v":111625.78477890197},111625.78477890197,111625.78477890197,{"$f":"IF('Incremental Rev Req'!E88=0,\" \",'Incremental Rev Req'!E88)","v":"Distribution"},"Distribution",null,"Typical CARE Residential Customer usage",null,29,"therms per month"]
[null,{"$f":"Summary!B18","v":"2026 Cost of Capital (Transmission)"},null,0,{"$f":"MAX('Incremental Rev Req'!G89:K89)","v":84230.760281128707},84230.760281128707,84230.760281128707,{"$f":"IF('Incremental Rev Req'!E89=0,\" \",'Incremental Rev Req'!E89)","v":"ECPT - 50% Core / 50% Noncore"},"ECPT - 50% Core / 50% Noncore",null,"Residential CARE Customers as Percent of Total Residential Customers",null,null,null,0.22721470327310189]
[null,{"$f":"Summary!B19","v":"Gas Advanced Metering Infrastructure (AMI) (distribution) "},null,0,{"$f":"MAX('Incremental Rev Req'!G90:K90)","v":39604.605081723246},39604.605081723246,39604.605081723246,{"$f":"IF('Incremental Rev Req'!E90=0,\" \",'Incremental Rev Req'!E90)","v":"Distribution"},"Distribution",null,"Historic California Climate Credit",null,67.031907553338471]
[null,{"$f":"Summary!B20","v":"Gas AMI (transmission)"},null,0,{"$f":"MAX('Incremental Rev Req'!G91:K91)","v":7942.4120142269176},7942.4120142269176,7942.4120142269176,{"$f":"IF('Incremental Rev Req'!E91=0,\" \",'Incremental Rev Req'!E91)","v":"ECPT"},"ECPT - ALL",null,"Present California Climate Credit",null,67.031907553338471]
[null,{"$f":"Summary!B21","v":"2023 Wildfire Mitigation and Catastrophic Events (distribution)"},null,0,{"$f":"MAX('Incremental Rev Req'!G92:K92)","v":13644.279615856252},13644.279615856252,{"$f":"IF(F25=0,0,F25-D25)","v":13644.279615856252},{"$f":"IF('Incremental Rev Req'!E92=0,\" \",'Incremental Rev Req'!E92)","v":"Distribution"},"Distribution"]
[null,{"$f":"Summary!B22","v":"2023 Wildfire Mitigation and Catastrophic Events (transmission)"},null,0,{"$f":"MAX('Incremental Rev Req'!G93:K93)","v":5913.5229509132932},5913.5229509132932,{"$f":"IF(F26=0,0,F26-D26)","v":5913.5229509132932},{"$f":"IF('Incremental Rev Req'!E93=0,\" \",'Incremental Rev Req'!E93)","v":"ECPT"},"ECPT - ALL"]
[null,{"$f":"Summary!B23","v":"Wildfire Gas and Safety Costs (Distribution) Non-IRR"},null,0,{"$f":"MAX('Incremental Rev Req'!G94:K94)","v":6776.7164408128538},6776.7164408128538,{"$f":"IF(F27=0,0,F27-D27)","v":6776.7164408128538},{"$f":"IF('Incremental Rev Req'!E94=0,\" \",'Incremental Rev Req'!E94)","v":"Distribution"},"Distribution"]
[null,{"$f":"Summary!B24","v":"Wildfire Gas and Safety Costs (Transmission) - Non IRR"},null,0,{"$f":"MAX('Incremental Rev Req'!G95:K95)","v":44029.842798245787},44029.842798245787,44029.842798245787,{"$f":"IF('Incremental Rev Req'!E95=0,\" \",'Incremental Rev Req'!E95)","v":"ECPT"},"ECPT - ALL"]
[null,{"$f":"Summary!B25","v":"2022 Wildfire Mitigation and Catastrophic Events "},null,0,{"$f":"MAX('Incremental Rev Req'!G96:K96)","v":16214.970094191543},16214.970094191543,16214.970094191543,{"$f":"IF('Incremental Rev Req'!E96=0,\" \",'Incremental Rev Req'!E96)","v":"Distribution"},"Distribution"]
[null,{"$f":"Summary!B26","v":"TRRRMA (Distribution)"},null,0,{"$f":"MAX('Incremental Rev Req'!G97:K97)","v":104444.39544815596},104444.39544815596,104444.39544815596,{"$f":"IF('Incremental Rev Req'!E97=0,\" \",'Incremental Rev Req'!E97)","v":"Distribution"},"Distribution"]
[null,{"$f":"Summary!B27","v":"TRRRMA (Transmission)"},null,0,{"$f":"MAX('Incremental Rev Req'!G98:K98)","v":47177.487626207876},47177.487626207876,47177.487626207876,{"$f":"IF('Incremental Rev Req'!E98=0,\" \",'Incremental Rev Req'!E98)","v":"ECPT"},"ECPT - ALL"]
[null,{"$f":"Summary!B28","v":"2027 GRC - Gas Distribution"},null,{"$f":"'Incremental Rev Req'!$D$10","v":2837661.4239763045},{"$f":"MAX('Incremental Rev Req'!G99:K99)","v":3389414.7671388309},3389414.7671388309,{"$f":"IF(F32=0,0,F32-D32)","v":551753.34316252638},{"$f":"IF('Incremental Rev Req'!E99=0,\" \",'Incremental Rev Req'!E99)","v":"Distribution"},"Distribution"]
[null,{"$f":"Summary!B29","v":"2027 GRC - Core Local Transmission"},null,{"$f":"'Incremental Rev Req'!$D$19","v":937040.80356070562},{"$f":"MAX('Incremental Rev Req'!G100:K100)","v":1173368.3452282615},1173368.3452282615,236327.54166755592,{"$f":"IF('Incremental Rev Req'!E100=0,\" \",'Incremental Rev Req'!E100)","v":"ECPT"},"ECPT - Core only"]
[null,{"$f":"Summary!B30","v":"2027 GRC - Core Procurement (Intrastate Volumetric and Capacity)"},null,{"$f":"'Incremental Rev Req'!$D$51","v":184256.03573980634},{"$f":"MAX('Incremental Rev Req'!G101:K101)","v":162779.91185670643},162779.91185670643,-21476.123883099906,{"$f":"IF('Incremental Rev Req'!E101=0,\" \",'Incremental Rev Req'!E101)","v":"ECPT (No BB)"},"ECPT - Core only  (Procurement)"]
[null,{"$f":"Summary!B31","v":"2027 GRC - Core Procurement (Storage)"},null,{"$f":"'Incremental Rev Req'!$D$53","v":134502.89385966863},{"$f":"MAX('Incremental Rev Req'!G102:K102)+100000","v":139767.86766532462},139767.86766532462,5264.9738056559872,{"$f":"IF('Incremental Rev Req'!E102=0,\" \",'Incremental Rev Req'!E102)","v":"Unadjusted Cold Year Winter Season"},"Storage Allocation  (Procurement)"]
[null,{"$f":"Summary!B32","v":"2027 GRC - Noncore Local Transmission"},null,{"$f":"'Incremental Rev Req'!$D$20","v":491426.7693485716},{"$f":"MAX('Incremental Rev Req'!G103:K103)","v":615905.98657777149},615905.98657777149,124479.21722919989,{"$f":"IF('Incremental Rev Req'!E103=0,\" \",'Incremental Rev Req'!E103)","v":"ECPT (No BB)"},"ECPT - Noncore only"]
[null,{"$f":"Summary!B33","v":"2027 GRC - Customer Access Charge"},null,{"$f":"'Incremental Rev Req'!$D$21","v":4616.1733053024955},{"$f":"MAX('Incremental Rev Req'!G104:K104)","v":4634.9827820963055},4634.9827820963055,18.809476793810063,{"$f":"IF('Incremental Rev Req'!E104=0,\" \",'Incremental Rev Req'!E104)","v":"CAC Allocation"},"CAC Allocation"]
[null,{"$f":"Summary!B34","v":"2027 GRC - Noncore Unbundled"},null,{"$f":"'Incremental Rev Req'!$D$22","v":246260.44819406274},{"$f":"MAX('Incremental Rev Req'!G105:K105)","v":213949.21978137293},213949.21978137293,-32311.228412689816,{"$f":"IF('Incremental Rev Req'!E105=0,\" \",'Incremental Rev Req'!E105)","v":"ECPT-All"},"ECPT - ALL"]
[null,{"$f":"Summary!B35","v":"2027 GRC - Inventory Management"},null,{"$f":"'Incremental Rev Req'!$D$23","v":143704.0469798065},{"$f":"MAX('Incremental Rev Req'!G106:K106)","v":161064.46791447687},161064.46791447687,17360.420934670372,{"$f":"IF('Incremental Rev Req'!E106=0,\" \",'Incremental Rev Req'!E106)","v":"2023 GTS - Inventory Management"},"2023 GTS - Inventory Management"]
[null,"CFCA - NGSS Enduser Dist. Sub Acct Recovery",null,{"$f":"'Incremental Rev Req'!$D$64","v":-41605.250601505963},{"$f":"MAX('Incremental Rev Req'!G107:K107)","v":0},0,{"$f":"IF(F40=0,0,F40-D40)","v":0},{"$f":"IF('Incremental Rev Req'!E107=0,\" \",'Incremental Rev Req'!E107)","v":"Core - Distribution"},"Core - Distribution"]
[null,"CFCA/NCA - NGSS Enduser Sub Acct Recovery",null,{"$f":"'Incremental Rev Req'!$D$65","v":-9893.389051695307},{"$f":"MAX('Incremental Rev Req'!G108:K108)","v":0},0,0,{"$f":"IF('Incremental Rev Req'!E108=0,\" \",'Incremental Rev Req'!E108)","v":"ECPT - ALL"},"ECPT - ALL"]
[null,"NCA - NGSS Enduser Sub Acct Recovery",null,{"$f":"'Incremental Rev Req'!$D$66","v":-10160.997666303094},{"$f":"MAX('Incremental Rev Req'!G109:K109)","v":0},0,0,{"$f":"IF('Incremental Rev Req'!E109=0,\" \",'Incremental Rev Req'!E109)","v":"ECPT - Noncore only"},"ECPT - Noncore only"]
[]
[null,"* For applications with revenues in multiple years, the highest year revenue is reflected here."]
[]
[null,"Outputs:"]
[null,null,null,"(A)","(B)","(C)","(C)/(A)","(C)/(B)",null,null,null,null,null,"(A)","(B)","(C)","(C)/(A)","(C)/(B)"]
[null,"Illustrative Bundled Average Rates - $ / therm",null,null,null,null,null,null,null,null,null,"Illustrative Total System (Bundled + Unbundled) Average Rates - $ / therm"]
[null,"Customer Group",null,{"$f":"Summary!D44","v":"2025-01-01"},{"$f":"$M$7","v":"2025-09-01"},"Illustrative Proposed",{"$f":"\"% Change over \"&TEXT($D$49,\"mm/d/yyyy\")","v":"% Change over 01/1/2025"},{"$f":"\"% Change over \"&TEXT($M$7,\"mm/d/yyyy\")","v":"% Change over 09/1/2025"},null,null,null,"Customer Group",null,{"$f":"D49","v":"2025-01-01"},{"$f":"E49","v":"2025-09-01"},{"$f":"F49","v":"Illustrative Proposed"},{"$f":"G49","v":"% Change over 01/1/2025"},{"$f":"H49","v":"% Change over 09/1/2025"}]
[null,"Residential",null,{"$f":"Summary!D45","v":2.7406156363066483},{"$f":"Summary!E45","v":2.7301291016084663},{"$f":"'Hypothetical SAR and RAR'!I38","v":3.2631022402511749},{"$f":"$F50/D50-1","v":0.19064570639633671},{"$f":"$F50/E50-1","v":0.19521902401197999},null,null,null,"Residential (RAR)",null,{"$f":"Summary!N45","v":2.4978842436552613},{"$f":"Summary!O45","v":2.4587344326295084},{"$f":"'Hypothetical SAR and RAR'!O38","v":2.9925086304006498},{"$f":"$P50/N50-1","v":0.198017337273237},{"$f":"$P50/O50-1","v":0.2170930665335391}]
[null,"System",null,{"$f":"Summary!D46","v":2.5392318943305163},{"$f":"Summary!E46","v":2.3576386581695323},{"$f":"'Hypothetical SAR and RAR'!I39","v":2.8485473158881711},{"$f":"$F51/D51-1","v":0.12181456221004483},{"$f":"$F51/E51-1","v":0.20822048197147369},null,null,null,"System (SAR)",null,{"$f":"Summary!N46","v":1.1385607936573887},{"$f":"Summary!O46","v":1.0606675509824723},{"$f":"'Hypothetical SAR and RAR'!O39","v":1.2996138237157777},{"$f":"$P51/N51-1","v":0.14145316697674071},{"$f":"$P51/O51-1","v":0.22527913907800312}]
[]
[null,null,null,null,null,null,null,null,null,null,null,"Illustrative System Rate does not include illustrative procurement for transport only customers."]
[null,{"$f":"CONCATENATE(\"Illustrative Bundled Residential Monthly Average Bills - Baseline Territory \",$D$8,\" (Includes Climate Credit)\")","v":"Illustrative Bundled Residential Monthly Average Bills - Baseline Territory ALL CLIMATE ZONES (Includes Climate Credit)"}]
[null,null,null,{"$f":"$D$49","v":"2025-01-01"},{"$f":"$E$49","v":"2025-09-01"},{"$f":"$F$49","v":"Illustrative Proposed"},{"$f":"$G$49","v":"% Change over 01/1/2025"},{"$f":"$H$49","v":"% Change over 09/1/2025"}]
[null,"Non-CARE",null,{"$f":"((D62*$M$17)+(D68*$M$18)+(D74*$M$19))/12-M23/12","v":76.232095194883385},{"$f":"((E62*$M$17)+(E68*$M$18)+(E74*$M$19))/12-M24/12","v":75.84095607694978},{"$f":"((F62*$M$17)+(F68*$M$18)+(F74*$M$19))/12-M24/12","v":91.595693474985765},{"$f":"$F56/D56-1","v":0.20153713787908023},0.20773389752696292]
[null,"CARE",null,{"$f":"((D63*$M$17)+(D69*$M$18)+(D75*$M$19))/12-M23/12","v":52.312589473845058},{"$f":"((E63*$M$17)+(E69*$M$18)+(E75*$M$19))/12-M24/12","v":52.051465233517959},{"$f":"((F63*$M$17)+(F69*$M$18)+(F75*$M$19))/12-M24/12","v":63.081784269568075},0.20586239190295363,0.21191178743124528]
[null,"Total",null,{"$f":"((D64*$M$17)+(D70*$M$18)+(D76*$M$19))/12-M23/12","v":70.797231800038404},{"$f":"((E64*$M$17)+(E70*$M$18)+(E76*$M$19))/12-M24/12","v":70.435633973941236},{"$f":"((F64*$M$17)+(F70*$M$18)+(F76*$M$19))/12-M24/12","v":85.116914055720613},0.20226330735821851,0.20843540766894986]
[]
[null,{"$f":"CONCATENATE(\"Illustrative Bundled Residential Monthly Average Bills - Summer - Baseline Territory \",$D$8)","v":"Illustrative Bundled Residential Monthly Average Bills - Summer - Baseline Territory ALL CLIMATE ZONES"}]
[null,null,null,{"$f":"$D$49","v":"2025-01-01"},{"$f":"$E$49","v":"2025-09-01"},{"$f":"$F$49","v":"Illustrative Proposed"},{"$f":"$G$49","v":"% Change over 01/1/2025"},{"$f":"$H$49","v":"% Change over 09/1/2025"}]
[null,"Non-CARE",null,{"$f":"VLOOKUP($D$8,'Hypothetical Res Bill Impact'!$B$37:$K$46,2,FALSE)","v":47.61718377639977},{"$f":"VLOOKUP($D$8,'Hypothetical Res Bill Impact'!$B$37:$K$46,5,FALSE)","v":47.388363774600009},{"$f":"VLOOKUP($D$8,'Hypothetical Res Bill Impact'!$B$37:$K$46,8,FALSE)","v":56.608894995734502},{"$f":"$F62/D62-1","v":0.18883332667378872},0.19457374103464331]
[null,"CARE",null,{"$f":"VLOOKUP($D$8,'Hypothetical Res Bill Impact'!$B$52:$K$61,2,FALSE)","v":37.55751710159285},{"$f":"VLOOKUP($D$8,'Hypothetical Res Bill Impact'!$B$52:$K$61,5,FALSE)","v":37.386735364074219},{"$f":"VLOOKUP($D$8,'Hypothetical Res Bill Impact'!$B$52:$K$61,8,FALSE)","v":44.593832008228674},0.18734771224632962,0.19277148897787755]
[null,"Total",null,{"$f":"D62*(1-$O$22)+('Hypothetical Summary'!D63*$O$22)","v":45.331479597857204},{"$f":"E62*(1-$O$22)+('Hypothetical Summary'!E63*$O$22)","v":45.115846743054568},{"$f":"F62*(1-$O$22)+('Hypothetical Summary'!F63*$O$22)","v":53.878896024220737},0.18855366077147773,0.19423439686444999]
[]
[null,{"$f":"CONCATENATE(\"Illustrative Bundled Residential Monthly Average Bills - Winter Off-Peak - Baseline Territory \",$D$8)","v":"Illustrative Bundled Residential Monthly Average Bills - Winter Off-Peak - Baseline Territory ALL CLIMATE ZONES"}]
[null,null,null,{"$f":"$D$49","v":"2025-01-01"},{"$f":"$E$49","v":"2025-09-01"},{"$f":"$F$49","v":"Illustrative Proposed"},{"$f":"$G$49","v":"% Change over 01/1/2025"},{"$f":"$H$49","v":"% Change over 09/1/2025"}]
[null,"Non-CARE",null,{"$f":"VLOOKUP($D$8,'Hypothetical Res Bill Impact'!$B$37:$K$46,3,FALSE)","v":114.86970584748346},{"$f":"VLOOKUP($D$8,'Hypothetical Res Bill Impact'!$B$37:$K$46,6,FALSE)","v":114.32198617333914},{"$f":"VLOOKUP($D$8,'Hypothetical Res Bill Impact'!$B$37:$K$46,9,FALSE)","v":136.37898670105676},{"$f":"$F68/D68-1","v":0.18724937697787736},0.19293752029704936]
[null,"CARE",null,{"$f":"VLOOKUP($D$8,'Hypothetical Res Bill Impact'!$B$52:$K$61,3,FALSE)","v":76.62485711266406},{"$f":"VLOOKUP($D$8,'Hypothetical Res Bill Impact'!$B$52:$K$61,6,FALSE)","v":76.281010944073799},{"$f":"VLOOKUP($D$8,'Hypothetical Res Bill Impact'!$B$52:$K$61,9,FALSE)","v":90.814341805502821},0.18518122222369038,0.19052357436746981]
[null,"Total",null,{"$f":"D68*(1-$O$22)+('Hypothetical Summary'!D69*$O$22)","v":106.1799138904768},{"$f":"E68*(1-$O$22)+('Hypothetical Summary'!E69*$O$22)","v":105.6785172744022},{"$f":"F68*(1-$O$22)+('Hypothetical Summary'!F69*$O$22)","v":126.02602943136921},0.1869102621552643,0.19254161282499038]
[]
[null,{"$f":"CONCATENATE(\"Illustrative Bundled Residential Monthly Average Bills - Winter On-Peak - Baseline Territory \",$D$8)","v":"Illustrative Bundled Residential Monthly Average Bills - Winter On-Peak - Baseline Territory ALL CLIMATE ZONES"}]
[null,null,null,{"$f":"$D$49","v":"2025-01-01"},{"$f":"$E$49","v":"2025-09-01"},{"$f":"$F$49","v":"Illustrative Proposed"},{"$f":"$G$49","v":"% Change over 01/1/2025"},{"$f":"$H$49","v":"% Change over 09/1/2025"}]
[null,"Non-CARE",null,{"$f":"VLOOKUP($D$8,'Hypothetical Res Bill Impact'!$B$37:$K$46,4,FALSE)","v":151.94382295734522},{"$f":"VLOOKUP($D$8,'Hypothetical Res Bill Impact'!$B$37:$K$46,7,FALSE)","v":151.21943776725919},{"$f":"VLOOKUP($D$8,'Hypothetical Res Bill Impact'!$B$37:$K$46,10,FALSE)","v":180.39050208992799},{"$f":"$F74/D74-1","v":0.18721839808235274},0.19290552030464347]
[null,"CARE",null,{"$f":"VLOOKUP($D$8,'Hypothetical Res Bill Impact'!$B$52:$K$61,4,FALSE)","v":101.00289509516857},{"$f":"VLOOKUP($D$8,'Hypothetical Res Bill Impact'!$B$52:$K$61,7,FALSE)","v":100.54965498740653},{"$f":"VLOOKUP($D$8,'Hypothetical Res Bill Impact'!$B$52:$K$61,10,FALSE)","v":119.70673465702308},0.18518122222369038,0.19052357436746958]
[null,"Total",null,{"$f":"D74*(1-$O$22)+('Hypothetical Summary'!D75*$O$22)","v":140.36929514868427},{"$f":"E74*(1-$O$22)+('Hypothetical Summary'!E75*$O$22)","v":139.70651810802244},{"$f":"F74*(1-$O$22)+('Hypothetical Summary'!F75*$O$22)","v":166.60225787916656},0.18688533487822512,0.19251599807496511]
[]
[]
[null,{"$f":"CONCATENATE(\"Illustrative Essential Use Bundled Residential Monthly Average Bills - Baseline Territory \",$D$8,\" (Includes Climate Credit)\")","v":"Illustrative Essential Use Bundled Residential Monthly Average Bills - Baseline Territory ALL CLIMATE ZONES (Includes Climate Credit)"}]
[null,null,null,{"$f":"$D$49","v":"2025-01-01"},{"$f":"$E$49","v":"2025-09-01"},{"$f":"$F$49","v":"Illustrative Proposed"},{"$f":"$G$49","v":"% Change over 01/1/2025"},{"$f":"$H$49","v":"% Change over 09/1/2025"}]
[null,"Essential Use Non-CARE",null,{"$f":"((D87*$M$17)+(D93*$M$18)+(D99*$M$19))/12-M23/12","v":71.922562086153278},{"$f":"((E87*$M$17)+(E93*$M$18)+(E99*$M$19))/12-M24/12","v":71.55317481824801},{"$f":"((F87*$M$17)+(F93*$M$18)+(F99*$M$19))/12-M24/12","v":86.42800691382655},{"$f":"$F81/D81-1","v":0.20168142522923138},0.20788500487032269]
[null,"Essential Use CARE",null,{"$f":"((D88*$M$17)+(D94*$M$18)+(D100*$M$19))/12-M23/12","v":53.674464802940086},{"$f":"((E88*$M$17)+(E94*$M$18)+(E100*$M$19))/12-M24/12","v":53.408539594199333},{"$f":"((F88*$M$17)+(F94*$M$18)+(F100*$M$19))/12-M24/12","v":64.648388678077055},0.20445334509485158,0.21045041053881341]
[null,"Total",null,{"$f":"((D89*$M$17)+(D95*$M$18)+(D101*$M$19))/12-M23/12","v":67.776326076649298},{"$f":"((E89*$M$17)+(E95*$M$18)+(E101*$M$19))/12-M24/12","v":67.430446909817121},{"$f":"((F89*$M$17)+(F95*$M$18)+(F101*$M$19))/12-M24/12","v":81.479357418989281},0.20218020266904135,0.20834669133902461]
[]
[null,{"$f":"CONCATENATE(\"Illustrative Essential Use Bundled Residential Monthly Average Bills - Summer - Baseline Territory \",$D$8)","v":"Illustrative Essential Use Bundled Residential Monthly Average Bills - Summer - Baseline Territory ALL CLIMATE ZONES"}]
[null,null,null,{"$f":"$D$49","v":"2025-01-01"},{"$f":"$E$49","v":"2025-09-01"},{"$f":"$F$49","v":"Illustrative Proposed"},{"$f":"$G$49","v":"% Change over 01/1/2025"},{"$f":"$H$49","v":"% Change over 09/1/2025"}]
[null,"Essential Use Non-CARE",null,{"$f":"VLOOKUP($D$8,'Hypothetical Res Bill Impact'!$B$69:$K$78,2,FALSE)","v":38.290200181746933},{"$f":"VLOOKUP($D$8,'Hypothetical Res Bill Impact'!$B$69:$K$78,5,FALSE)","v":38.107718228039928},{"$f":"VLOOKUP($D$8,'Hypothetical Res Bill Impact'!$B$69:$K$78,8,FALSE)","v":45.456072266493017},{"$f":"$F87/D87-1","v":0.18714637298141046},0.19283112136181679]
[null,"Essential Use CARE",null,{"$f":"VLOOKUP($D$8,'Hypothetical Res Bill Impact'!$B$84:$K$93,2,FALSE)","v":28.563039262905463},{"$f":"VLOOKUP($D$8,'Hypothetical Res Bill Impact'!$B$84:$K$93,5,FALSE)","v":28.434865560742445},{"$f":"VLOOKUP($D$8,'Hypothetical Res Bill Impact'!$B$84:$K$93,8,FALSE)","v":33.852377784033564},0.18518122222369082,0.19052357436746981]
[null,"Total",null,{"$f":"D87*(1-$O$22)+('Hypothetical Summary'!D88*$O$22)","v":36.080046199882652},{"$f":"E87*(1-$O$22)+('Hypothetical Summary'!E88*$O$22)","v":35.909903879435497},{"$f":"F87*(1-$O$22)+('Hypothetical Summary'!F88*$O$22)","v":42.819542267789267},0.18679288908251279,0.19241595331338956]
[]
[null,{"$f":"CONCATENATE(\"Illustrative Essential Use Bundled Residential Monthly Average Bills - Winter Off-Peak - Baseline Territory \",$D$8)","v":"Illustrative Essential Use Bundled Residential Monthly Average Bills - Winter Off-Peak - Baseline Territory ALL CLIMATE ZONES"}]
[null,null,null,{"$f":"$D$49","v":"2025-01-01"},{"$f":"$E$49","v":"2025-09-01"},{"$f":"$F$49","v":"Illustrative Proposed"},{"$f":"$G$49","v":"% Change over 01/1/2025"},{"$f":"$H$49","v":"% Change over 09/1/2025"}]
[null,"Essential Use Non-CARE",null,{"$f":"VLOOKUP($D$8,'Hypothetical Res Bill Impact'!$B$69:$K$78,3,FALSE)","v":115.67808643118934},{"$f":"VLOOKUP($D$8,'Hypothetical Res Bill Impact'!$B$69:$K$78,6,FALSE)","v":115.12679228509309},{"$f":"VLOOKUP($D$8,'Hypothetical Res Bill Impact'!$B$69:$K$78,9,FALSE)","v":137.32682074021656},{"$f":"$F93/D93-1","v":0.18714637298141068},0.19283112136181702]
[null,"Essential Use CARE",null,{"$f":"VLOOKUP($D$8,'Hypothetical Res Bill Impact'!$B$84:$K$93,3,FALSE)","v":88.718942533547491},{"$f":"VLOOKUP($D$8,'Hypothetical Res Bill Impact'!$B$84:$K$93,6,FALSE)","v":88.320825400008374},{"$f":"VLOOKUP($D$8,'Hypothetical Res Bill Impact'!$B$84:$K$93,9,FALSE)","v":105.14802474630318},0.1851812222236906,0.19052357436746981]
[null,"Total",null,{"$f":"D93*(1-$O$22)+('Hypothetical Summary'!D94*$O$22)","v":109.55257254998979},{"$f":"E93*(1-$O$22)+('Hypothetical Summary'!E94*$O$22)","v":109.03608247334996},{"$f":"F93*(1-$O$22)+('Hypothetical Summary'!F94*$O$22)","v":130.01532515677386},0.18678477493028955,0.1924064237042955]
[]
[null,{"$f":"CONCATENATE(\"Illustrative Essential Use Bundled Residential Monthly Average Bills - Winter On-Peak - Baseline Territory \",$D$4)","v":"Illustrative Essential Use Bundled Residential Monthly Average Bills - Winter On-Peak - Baseline Territory "}]
[null,null,null,{"$f":"$D$49","v":"2025-01-01"},{"$f":"$E$49","v":"2025-09-01"},{"$f":"$F$49","v":"Illustrative Proposed"},{"$f":"$G$49","v":"% Change over 01/1/2025"},{"$f":"$H$49","v":"% Change over 09/1/2025"}]
[null,"Essential Use Non-CARE",null,{"$f":"VLOOKUP($D$8,'Hypothetical Res Bill Impact'!$B$69:$K$78,4,FALSE)","v":157.51849601069063},{"$f":"VLOOKUP($D$8,'Hypothetical Res Bill Impact'!$B$69:$K$78,7,FALSE)","v":156.76780046037794},{"$f":"VLOOKUP($D$8,'Hypothetical Res Bill Impact'!$B$69:$K$78,10,FALSE)","v":186.99751121657809},{"$f":"$F99/D99-1","v":0.18714637298141001},0.19283112136181635]
[null,"Essential Use CARE",null,{"$f":"VLOOKUP($D$8,'Hypothetical Res Bill Impact'!$B$84:$K$93,4,FALSE)","v":122.51369137381941},{"$f":"VLOOKUP($D$8,'Hypothetical Res Bill Impact'!$B$84:$K$93,7,FALSE)","v":121.96392377925419},{"$f":"VLOOKUP($D$8,'Hypothetical Res Bill Impact'!$B$84:$K$93,10,FALSE)","v":145.20092648155929},0.18518122222369038,0.19052357436746936]
[null,"Total",null,{"$f":"D99*(1-$O$22)+('Hypothetical Summary'!D100*$O$22)","v":149.56488971199101},{"$f":"E99*(1-$O$22)+('Hypothetical Summary'!E100*$O$22)","v":148.85984794752278},{"$f":"F99*(1-$O$22)+('Hypothetical Summary'!F100*$O$22)","v":177.50071261818175},0.18678062050515498,0.19240154457739123]
[]
[]
[null,{"$f":"CONCATENATE(\"Illustrative Typical Customer Bundled Residential Monthly Average Bills - Baseline Territory \",$D$8,\" (Includes Climate Credit)\")","v":"Illustrative Typical Customer Bundled Residential Monthly Average Bills - Baseline Territory ALL CLIMATE ZONES (Includes Climate Credit)"}]
[null,null,null,{"$f":"$D$49","v":"2025-01-01"},{"$f":"$E$49","v":"2025-09-01"},{"$f":"$F$49","v":"Illustrative Proposed"},{"$f":"$G$49","v":"% Change over 01/1/2025"},{"$f":"$H$49","v":"% Change over 09/1/2025"}]
[null,{"$f":"CONCATENATE($M$20,\" Therms Monthly Usage - Non-CARE\")","v":"33 Therms Monthly Usage - Non-CARE"},null,{"$f":"((D112*$M$17)+(D118*$M$18)+(D124*$M$19))/12-M23/12","v":90.232046257772623},{"$f":"((E112*$M$17)+(E118*$M$18)+(E124*$M$19))/12-M24/12","v":89.768125307151209},{"$f":"((F112*$M$17)+(F118*$M$18)+(F124*$M$19))/12-M24/12","v":108.47359456444576},{"$f":"$F106/D106-1","v":0.20216263581744731},0.20837540266427301]
[null,{"$f":"CONCATENATE($M$21,\" Therms Monthly Usage - CARE\")","v":"29 Therms Monthly Usage - CARE"},null,{"$f":"((D113*$M$17)+(D119*$M$18)+(D125*$M$19))/12-M23/12","v":60.555132117193651},{"$f":"((E113*$M$17)+(E119*$M$18)+(E125*$M$19))/12-M24/12","v":60.252462980499956},{"$f":"((F113*$M$17)+(F119*$M$18)+(F125*$M$19))/12-M24/12","v":73.015776214166323},0.20577354323754626,0.21183056430070035]
[null,"Total",null,{"$f":"((D114*$M$17)+(D120*$M$18)+(D126*$M$19))/12-M23/12","v":83.489015017259661},{"$f":"((E114*$M$17)+(E120*$M$18)+(E126*$M$19))/12-M24/12","v":83.061732849692049},{"$f":"((F114*$M$17)+(F120*$M$18)+(F126*$M$19))/12-M24/12","v":100.41705688927546},0.2027577145150925,0.20894488284983748]
[]
[null,{"$f":"CONCATENATE(\"Illustrative Typical Customer Bundled Residential Monthly Average Bills - Summer - Baseline Territory \",$D$8)","v":"Illustrative Typical Customer Bundled Residential Monthly Average Bills - Summer - Baseline Territory ALL CLIMATE ZONES"}]
[null,null,null,{"$f":"$D$49","v":"2025-01-01"},{"$f":"$E$49","v":"2025-09-01"},{"$f":"$F$49","v":"Illustrative Proposed"},{"$f":"$G$49","v":"% Change over 01/1/2025"},{"$f":"$H$49","v":"% Change over 09/1/2025"}]
[null,{"$f":"CONCATENATE($M$20,\" Therms Monthly Usage - Non-CARE\")","v":"33 Therms Monthly Usage - Non-CARE"},null,{"$f":"VLOOKUP($D$8,'Hypothetical Res Bill Impact'!$B$99:$K$108,2,FALSE)","v":99.905455819657334},{"$f":"VLOOKUP($D$8,'Hypothetical Res Bill Impact'!$B$99:$K$108,5,FALSE)","v":99.416858748450395},{"$f":"VLOOKUP($D$8,'Hypothetical Res Bill Impact'!$B$99:$K$108,8,FALSE)","v":119.13305653185348},{"$f":"$F112/D112-1","v":0.1924579649274063},0.19831845455195896]
[null,{"$f":"CONCATENATE($M$21,\" Therms Monthly Usage - CARE\")","v":"29 Therms Monthly Usage - CARE"},null,{"$f":"VLOOKUP($D$8,'Hypothetical Res Bill Impact'!$B$114:$K$123,2,FALSE)","v":68.8492077362923},{"$f":"VLOOKUP($D$8,'Hypothetical Res Bill Impact'!$B$114:$K$123,5,FALSE)","v":68.530195182120721},{"$f":"VLOOKUP($D$8,'Hypothetical Res Bill Impact'!$B$114:$K$123,8,FALSE)","v":81.9631593263762},0.19047352934420436,0.19601526171867789]
[null,"Total",null,{"$f":"D112*(1-$O$22)+('Hypothetical Summary'!D113*$O$22)","v":92.849019626619707},{"$f":"E112*(1-$O$22)+('Hypothetical Summary'!E113*$O$22)","v":92.398954651130666},{"$f":"F112*(1-$O$22)+('Hypothetical Summary'!F113*$O$22)","v":110.68750936761926},0.19212361975101855,0.19793032059226645]
[]
[null,{"$f":"CONCATENATE(\"Illustrative Typical Customer Bundled Residential Monthly Average Bills - Winter Off-Peak - Baseline Territory \",$D$8)","v":"Illustrative Typical Customer Bundled Residential Monthly Average Bills - Winter Off-Peak - Baseline Territory ALL CLIMATE ZONES"}]
[null,null,null,{"$f":"$D$49","v":"2025-01-01"},{"$f":"$E$49","v":"2025-09-01"},{"$f":"$F$49","v":"Illustrative Proposed"},{"$f":"$G$49","v":"% Change over 01/1/2025"},{"$f":"$H$49","v":"% Change over 09/1/2025"}]
[null,{"$f":"CONCATENATE($M$20,\" Therms Monthly Usage - Non-CARE\")","v":"33 Therms Monthly Usage - Non-CARE"},null,{"$f":"VLOOKUP($D$8,'Hypothetical Res Bill Impact'!$B$99:$K$108,3,FALSE)","v":90.095654381801751},{"$f":"VLOOKUP($D$8,'Hypothetical Res Bill Impact'!$B$99:$K$108,6,FALSE)","v":89.666280000000043},{"$f":"VLOOKUP($D$8,'Hypothetical Res Bill Impact'!$B$99:$K$108,9,FALSE)","v":106.95672932074265},{"$f":"$F118/D118-1","v":0.18714637298141024},0.19283112136181635]
[null,{"$f":"CONCATENATE($M$21,\" Therms Monthly Usage - CARE\")","v":"29 Therms Monthly Usage - CARE"},null,{"$f":"VLOOKUP($D$8,'Hypothetical Res Bill Impact'!$B$114:$K$123,3,FALSE)","v":62.34980776112323},{"$f":"VLOOKUP($D$8,'Hypothetical Res Bill Impact'!$B$114:$K$123,6,FALSE)","v":62.070019408898602},{"$f":"VLOOKUP($D$8,'Hypothetical Res Bill Impact'!$B$114:$K$123,9,FALSE)","v":73.895821367740197},0.18518122222369082,0.19052357436747003]
[null,"Total",null,{"$f":"D118*(1-$O$22)+('Hypothetical Summary'!D119*$O$22)","v":83.791390074823283},{"$f":"E118*(1-$O$22)+('Hypothetical Summary'!E119*$O$22)","v":83.396003838345734},{"$f":"F118*(1-$O$22)+('Hypothetical Summary'!F119*$O$22)","v":99.444804930261853},0.18681412065679459,0.19244088869084197]
[]
[null,{"$f":"CONCATENATE(\"Illustrative Typical Customer Bundled Residential Monthly Average Bills - Winter On-Peak - Baseline Territory \",$D$8)","v":"Illustrative Typical Customer Bundled Residential Monthly Average Bills - Winter On-Peak - Baseline Territory ALL CLIMATE ZONES"}]
[null,null,null,{"$f":"$D$49","v":"2025-01-01"},{"$f":"$E$49","v":"2025-09-01"},{"$f":"$F$49","v":"Illustrative Proposed"},{"$f":"$G$49","v":"% Change over 01/1/2025"},{"$f":"$H$49","v":"% Change over 09/1/2025"}]
[null,{"$f":"CONCATENATE($M$20,\" Therms Monthly Usage - Non-CARE\")","v":"33 Therms Monthly Usage - Non-CARE"},null,{"$f":"VLOOKUP($D$8,'Hypothetical Res Bill Impact'!$B$99:$K$108,4,FALSE)","v":90.095654381801751},{"$f":"VLOOKUP($D$8,'Hypothetical Res Bill Impact'!$B$99:$K$108,7,FALSE)","v":89.666280000000043},{"$f":"VLOOKUP($D$8,'Hypothetical Res Bill Impact'!$B$99:$K$108,10,FALSE)","v":106.95672932074265},{"$f":"$F124/D124-1","v":0.18714637298141024},0.19283112136181635]
[null,{"$f":"CONCATENATE($M$21,\" Therms Monthly Usage - CARE\")","v":"29 Therms Monthly Usage - CARE"},null,{"$f":"VLOOKUP($D$8,'Hypothetical Res Bill Impact'!$B$114:$K$123,4,FALSE)","v":62.34980776112323},{"$f":"VLOOKUP($D$8,'Hypothetical Res Bill Impact'!$B$114:$K$123,7,FALSE)","v":62.070019408898602},{"$f":"VLOOKUP($D$8,'Hypothetical Res Bill Impact'!$B$114:$K$123,10,FALSE)","v":73.895821367740197},0.18518122222369082,0.19052357436747003]
[null,"Total",null,{"$f":"D124*(1-$O$22)+('Hypothetical Summary'!D125*$O$22)","v":83.791390074823283},{"$f":"E124*(1-$O$22)+('Hypothetical Summary'!E125*$O$22)","v":83.396003838345734},{"$f":"F124*(1-$O$22)+('Hypothetical Summary'!F125*$O$22)","v":99.444804930261853},0.18681412065679459,0.19244088869084197]

{"sheet":"Instructions-Rate Trajectory","index":12,"n_rows":69,"n_cols":16,"rows_kept":69,"cut":false,"hidden":false,"merged":[]}
["INSTRUCTIONS TO RUN \"ILLUSTRATIVE RATE TRAJECTORY\" MODEL"]
[]
[]
[]
[null,"The \"illustrative rate trajectory\" portion of this model produces illustrative rates and illustrative residential bill calculations based on selected user inputs for a range of periods."]
[null,"PLEASE DO NOT INSERT ROWS OR COLUMNS INTO THE DASHBOARD"]
[null,"To run the \"illustrative rate trajectory\" portion of the model:"]
[]
[null,"1.","User drop down selections are highlighted in green."]
[null,"2.","User value input cells are highlighted in yellow."]
[null,"3.","In cell D4 of the \"Rate Trajectory Dashboard\" tab, select, from the dropdown choices, the baseline territory for which bill impacts are desired (ILLUSTRATION 1)."]
[null,"4.","In cell D5 of the \"Rate Trajectory Dashboard\" tab, select, from the dropdown choices, the desired start date for the Rate Trajectory Report (ILLUSTRATION 1)."]
[null,null,"The Rate Trajectory Report will provide RRQ Information, Illustrative Average Bundled and Illustrative System Rates and Annual Average"]
[null,null,"Illustrative Bills (CARE and Non-CARE) by selected baseline territory for a 24 month period beginning with the selection in cell D5"]
[null,"5.","Enter the \"Hypothetical Annual RRQs\" revenues, for each year of the selected program, in the yellow highlighted cells in column G of the \"Rate Trajectory Dashboard\" tab (ILLUSTRATION 1)."]
[null,null,"Note that PG&E's proposed Annual RRQs are listed in column E of the \"Rate Trajectory Dashboard\" tab. "]
[null,"6.","In column I of the \"Rate Trajectory Dashboard\" tab, select from the dropdown choices, the desired allocation methodology (ILLUSTRATION 1). "]
[null,null,"Note that PG&E's proposed allocation methdology is listed in column F of the \"Rate Trajectory Dashboard\" tab. "]
[null,null,"Also note that there are opportunities for the user to enter their own Allocation Methodology on the \"RRQ Allocations\" tab (ILLUSTRATION 3)"]
[null,null,"and as described under the \"RRQ ALLOCATION OPTIONS\" section on the \"Instruction\" tab."]
[null,"7.","In column J of the \"Rate Trajectory Dashboard\" tab, select from the dropdown choices, the start date for each year of each program listed in column B (ILLUSTRATION 1). "]
[null,"8.","In column K of the \"Rate Trajectory Dashboard\" tab, enter the amortization period (in months) for each year of each program listed in column B (ILLUSTRATION 1). "]
[null,null,"Note that the maximum months per line is 12 and if no amortization period is specified (i.e. cell is left blank), the RRQ amount remains in rates."]
[null,"9.","Residential Tier Ratios can be changed in out years on the \"Hypothetical Res_RD\" tab in cell K59 (ILLUSTRATION 2)."]
[null,null,"Note that residential tier ratios are only changed in January of each year. Mid-year rate changes maintain the tier ratio set in January of each year."]
[null,null,"The tiering factor for 2025 has been established at 1.24."]
[null,"10.","Create the illustrative rate trajectory report by executing the \"Run Rate Trajectory\" macro (ILLUSTRATION 1)."]
[]
[]
[null,null,null,null,null,null,null,null,null,"10."]
[null,null,"ILLUSTRATION 1:",null,null,null,"3."]
[null,null,null,null,null,null,null,"4.",null,null,"5.",null,null,"6.","7.","8."]
[]
[]
[]
[]
[]
[]
[]
[]
[]
[]
[null,null,"ILLUSTRATION 2:"]
[null,null,null,null,null,null,null,null,null,null,null,null,null,null,"9."]
[]
[]
[]
[]
[]
[]
[]
[]
[]
[]
[]
[]
[]
[]
[]
[]
[]
[]
[]
[]
[null,"RRQ ALLOCATION OPTIONS:"]
[null,"1.","On the \"RRQ Allocations\" tab there are spaces for the user to enter their own allocation methodology (ILLUSTRATION 3)."]
[null,null,"NOTE that this tab has not been fully populated by PG&E."]
[]
[null,null,"ILLUSTRATION 3"]

{"sheet":"Rate Trajectory Dashboard","index":13,"n_rows":96,"n_cols":12,"rows_kept":96,"cut":false,"hidden":false,"merged":[[0,1,0,10]]}
[null,"PLEASE DO NOT ADD OR INSERT ROWS OR COLUMNS"]
[null,"User Inputs:","Yellow highlighted cells - enter number"]
[null,null,"Green highlighted cells - select from drop-down menu"]
[]
[null,null,"Baseline Region - (Residential bill)","ALL CLIMATE ZONES"]
[null,null,"Start Date for Report","2025-09-01",null,null,null,null,null,null,"Amortization"]
[null,null,null,null,null,null,null,null,null,null,"Period in Months"]
[null,null,null,"Current",null,null,null,"Hypothetical",null,"Yearly","(Maximum 12"]
[null,null,null,"Authorized","PG&E Requested","Adopted or PG&E Requested","Hypothetical","Incremental","Hypothetical","Start Date","Months per "]
[null,null,null,"Annual","Annual RRQ","Allocation Methodology","Annual","Annual","Allocation Methodology","(Select from","Line OR"]
[null,"Pending Proceedings",null,"Revenue","(Informational Only)","(Informational Only)","RRQ","RRQ","(Select from Drop-down)","Drop-down)","Leave Blank)","<<==If no amortization period is specified, RRQ amounts remain in rates."]
[null,{"$f":"'Incremental Rev Req'!A79","v":"2027 Energy Savings Assistance Bridge Funding"},null,{"$f":"'Incremental Rev Req'!$G$44","v":75426.796000000002},55567.261049999994,"Distribution",55567.261049999994,{"$f":"G12-D12","v":-19859.534950000008},"ESA","2027-01-01",12]
[null,{"$f":"'Incremental Rev Req'!A80","v":"2027 CARE Administrative Bridge Funding"},null,{"$f":"'Incremental Rev Req'!$G$46","v":2888.84},2059.02,"Distribution",2059.02,-829.82000000000016,"PPP ECPT","2027-01-01",12]
[null,"Hinkley Upgrade - Year 2028",null,0,3170.0085966546521,"ECPT",3170.0085966546521,{"$f":"G14-D14","v":3170.0085966546521},"ECPT - ALL","2028-01-01",12]
[null,"Hinkley Upgrade - Year 2029",null,0,8890.2012417152218,"ECPT",8890.2012417152218,8890.2012417152218,"ECPT - ALL","2029-01-01"]
[null,"Billing Modernization (Distribution) - Year 2026",null,0,18712.173825194575,"Distribution",18712.173825194575,18712.173825194575,"Distribution","2026-01-01",12]
[null,"Billing Modernization (Distribution) - Year 2027",null,0,17751.341834851162,"Distribution",17751.341834851162,17751.341834851162,"Distribution","2027-01-01",12]
[null,"Billing Modernization (Distribution) - Year 2028",null,0,16583.853363621634,"Distribution",16583.853363621634,16583.853363621634,"Distribution","2028-01-01",12]
[null,"Billing Modernization (Distribution) - Year 2029",null,0,14215.240804551897,"Distribution",14215.240804551897,14215.240804551897,"Distribution","2029-01-01"]
[null,"Billing Modernization (Transmission) - Year 2026",null,0,8918.4572311941265,"ECPT",8918.4572311941265,8918.4572311941265,"ECPT - ALL","2026-01-01",12]
[null,"Billing Modernization (Transmission) - Year 2027",null,0,8460.5126279812575,"ECPT",8460.5126279812575,8460.5126279812575,"ECPT - ALL","2027-01-01",12]
[null,"Billing Modernization (Transmission) - Year 2028",null,0,7904.0729488992292,"ECPT",7904.0729488992292,7904.0729488992292,"ECPT - ALL","2028-01-01",12]
[null,"Billing Modernization (Transmission) - Year 2029",null,0,6775.1624331059575,"ECPT",6775.1624331059575,6775.1624331059575,"ECPT - ALL","2029-01-01"]
[null,"Hydrogen Demonstration Project (2027) - Year 2027",null,0,3022.0229370078714,"ECPT",3022.0229370078714,3022.0229370078714,"ECPT - ALL","2027-01-01",12]
[null,"Hydrogen Demonstration Project (2027) - Year 2028",null,0,10324.828533347554,"ECPT",10324.828533347554,10324.828533347554,"ECPT - ALL","2028-01-01",12]
[null,"Hydrogen Demonstration Project (2027) - Year 2029",null,0,10534.092916690832,"ECPT",10534.092916690832,10534.092916690832,"ECPT - ALL","2029-01-01"]
[null,"2024 Wildfire Mitigation and Catastrophic Events (distribution) - Year 2026",null,0,65537.654410869611,"Distribution",65537.654410869611,65537.654410869611,"Distribution","2026-01-01",12]
[null,"2024 Wildfire Mitigation and Catastrophic Events (distribution) - Year 2027",null,0,18819.46507803784,"Distribution",18819.46507803784,18819.46507803784,"Distribution","2027-01-01",12]
[null,"2024 Wildfire Mitigation and Catastrophic Events (distribution) - Year 2028",null,0,18178.262642646998,"Distribution",18178.262642646998,18178.262642646998,"Distribution","2028-01-01",12]
[null,"2024 Wildfire Mitigation and Catastrophic Events (distribution) - Year 2029",null,0,17712.275597103871,"Distribution",17712.275597103871,17712.275597103871,"Distribution","2029-01-01"]
[null,"2024 Wildfire Mitigation and Catastrophic Events (transmission) - Year 2026",null,0,6579.3787574399903,"ECPT",6579.3787574399903,6579.3787574399903,"ECPT - ALL","2026-01-01",12]
[null,"2024 Wildfire Mitigation and Catastrophic Events (transmission) - Year 2027",null,0,291.83963923168324,"ECPT",291.83963923168324,291.83963923168324,"ECPT - ALL","2027-01-01",12]
[null,"2024 Wildfire Mitigation and Catastrophic Events (transmission) - Year 2028",null,0,239.41889659670605,"ECPT",239.41889659670605,239.41889659670605,"ECPT - ALL","2028-01-01",12]
[null,"2024 Wildfire Mitigation and Catastrophic Events (transmission) - Year 2029",null,0,225.03426463234715,"ECPT",225.03426463234715,225.03426463234715,"ECPT - ALL","2029-01-01"]
[null,"2026 Cost of Capital (Distribution) - Year 2026",null,0,111625.78477890197,"Distribution",111625.78477890197,111625.78477890197,"Distribution","2026-01-01",12]
[null,"2026 Cost of Capital (Distribution) - Year 2027",null,0,111625.78477890197,"Distribution",111625.78477890197,111625.78477890197,"Distribution","2027-01-01",12]
[null,"2026 Cost of Capital (Distribution) - Year 2028",null,0,111625.78477890197,"Distribution",111625.78477890197,111625.78477890197,"Distribution","2028-01-01",12]
[null,"2026 Cost of Capital (Distribution) - Year 2029",null,0,111625.78477890197,"Distribution",111625.78477890197,111625.78477890197,"Distribution","2029-01-01"]
[null,"2026 Cost of Capital (Transmission) - Year 2026",null,0,84230.760281128707,"ECPT - 50% Core / 50% Noncore",84230.760281128707,84230.760281128707,"ECPT - 50% Core / 50% Noncore","2026-01-01",12]
[null,"2026 Cost of Capital (Transmission) - Year 2027",null,0,84230.760281128707,"ECPT - 50% Core / 50% Noncore",84230.760281128707,84230.760281128707,"ECPT - 50% Core / 50% Noncore","2027-01-01",12]
[null,"2026 Cost of Capital (Transmission) - Year 2028",null,0,84230.760281128707,"ECPT - 50% Core / 50% Noncore",84230.760281128707,84230.760281128707,"ECPT - 50% Core / 50% Noncore","2028-01-01",12]
[null,"2026 Cost of Capital (Transmission) - Year 2029",null,0,84230.760281128707,"ECPT - 50% Core / 50% Noncore",84230.760281128707,84230.760281128707,"ECPT - 50% Core / 50% Noncore","2029-01-01"]
[null,"Gas Advanced Metering Infrastructure (AMI) (distribution)",null,0,39604.605081723246,"Distribution",19430.166034617308,19430.166034617308,"Distribution","2026-01-01",12]
[null,"Gas AMI (transmission)",null,0,7942.4120142269176,"ECPT",3740.8354786263694,3740.8354786263694,"ECPT - ALL","2026-01-01",12]
[null,"2023 Wildfire Mitigation and Catastrophic Events (distribution)",null,0,13644.279615856252,"Distribution",13644.279615856252,13644.279615856252,"Distribution","2026-01-01",12]
[null,"2023 Wildfire Mitigation and Catastrophic Events (transmission)",null,0,5913.5229509132932,"ECPT",5913.5229509132932,5913.5229509132932,"ECPT - ALL","2026-01-01",12]
[null,"Wildfire Gas and Safety Costs (Distribution) Non-IRR",null,0,6776.7164408128538,"Distribution",6776.7164408128538,6776.7164408128538,"Distribution","2026-01-01",12]
[null,"Wildfire Gas and Safety Costs (Transmission) - Non IRR - Year 2026",null,0,44029.842798245787,"ECPT",44029.842798245787,44029.842798245787,"ECPT - ALL","2026-01-01",12]
[null,"Wildfire Gas and Safety Costs (Transmission) - Non IRR - Year 2027",null,0,412.70016602004648,"ECPT",412.70016602004648,412.70016602004648,"ECPT - ALL","2027-01-01",12]
[null,"2022 Wildfire Mitigation and Catastrophic Events",null,0,16214.970094191543,"Distribution",16214.970094191543,16214.970094191543,"Distribution","2026-01-01",12]
[null,"TRRRMA (Distribution)",null,0,104444.39544815596,"Distribution",104444.39544815596,104444.39544815596,"Distribution","2026-01-01",12]
[null,"TRRRMA (Transmission)",null,0,47177.487626207876,"ECPT",47177.487626207876,47177.487626207876,"ECPT - ALL","2026-01-01",12]
[null,"2027 GRC - Gas Distribution - Year 2027",null,{"$f":"'Incremental Rev Req'!$G$10","v":2837661.4239763045},3061244.2113218075,"Distribution",3061244.2113218075,223582.78734550299,"Distribution","2027-01-01",12]
[null,"2027 GRC - Gas Distribution - Year 2028",null,{"$f":"'Incremental Rev Req'!$G$10","v":2837661.4239763045},3220789.4146756879,"Distribution",3220789.4146756879,383127.99069938343,"Distribution","2028-01-01",12]
[null,"2027 GRC - Gas Distribution - Year 2029",null,{"$f":"'Incremental Rev Req'!$G$10","v":2837661.4239763045},3389414.7671388309,"Distribution",3389414.7671388309,551753.34316252638,"Distribution","2029-01-01"]
[null,"2027 GRC - Core Local Transmission - Year 2027",null,{"$f":"'Incremental Rev Req'!$G$19","v":937040.80356070562},1102352.182979346,"ECPT",1102352.182979346,165311.3794186404,"ECPT - Core only","2027-01-01",12]
[null,"2027 GRC - Core Local Transmission - Year 2028",null,{"$f":"'Incremental Rev Req'!$G$19","v":937040.80356070562},1135354.816219762,"ECPT",1135354.816219762,198314.01265905635,"ECPT - Core only","2028-01-01",12]
[null,"2027 GRC - Core Local Transmission - Year 2029",null,{"$f":"'Incremental Rev Req'!$G$19","v":937040.80356070562},1173368.3452282615,"ECPT",1173368.3452282615,236327.54166755592,"ECPT - Core only","2029-01-01"]
[null,"2027 GRC - Core Procurement (Intrastate Volumetric and Capacity) - Year 2027",null,{"$f":"'Incremental Rev Req'!$G$51","v":173813.4940907805},144492.92115461454,"ECPT (No BB)",144492.92115461454,-29320.572936165961,"ECPT - Core only  (Procurement)","2027-01-01",12]
[null,"2027 GRC - Core Procurement (Intrastate Volumetric and Capacity) - Year 2028",null,{"$f":"'Incremental Rev Req'!$G$51","v":173813.4940907805},153719.46210207103,"ECPT (No BB)",153719.46210207103,-20094.031988709467,"ECPT - Core only  (Procurement)","2028-01-01",12]
[null,"2027 GRC - Core Procurement (Intrastate Volumetric and Capacity) - Year 2029",null,{"$f":"'Incremental Rev Req'!$G$51","v":173813.4940907805},162779.91185670643,"ECPT (No BB)",162779.91185670643,-11033.582234074071,"ECPT - Core only  (Procurement)","2029-01-01"]
[null,"2027 GRC - Core Procurement (Storage) - Year 2027",null,{"$f":"'Incremental Rev Req'!$G$53","v":134502.89385966863},{"$f":"34475.5851070245+100000","v":134475.5851070245},"Unadjusted Cold Year Winter Season",134475.5851070245,-27.308752644137712,"Storage Allocation  (Procurement)","2027-01-01",12]
[null,"2027 GRC - Core Procurement (Storage) - Year 2028",null,{"$f":"'Incremental Rev Req'!$G$53","v":134502.89385966863},{"$f":"37259.1957995481+100000","v":137259.19579954809},"Unadjusted Cold Year Winter Season",137259.19579954809,2756.3019398794568,"Storage Allocation  (Procurement)","2028-01-01",12]
[null,"2027 GRC - Core Procurement (Storage) - Year 2029",null,{"$f":"'Incremental Rev Req'!$G$53","v":134502.89385966863},{"$f":"39767.8676653246+100000","v":139767.86766532459},"Unadjusted Cold Year Winter Season",139767.86766532459,5264.9738056559581,"Storage Allocation  (Procurement)","2029-01-01"]
[null,"2027 GRC - Noncore Local Transmission - Year 2027",null,{"$f":"'Incremental Rev Req'!$G$20","v":491426.7693485716},578500.18202338577,"ECPT (No BB)",578500.18202338577,87073.412674814172,"ECPT - Noncore only","2027-01-01",12]
[null,"2027 GRC - Noncore Local Transmission - Year 2028",null,{"$f":"'Incremental Rev Req'!$G$20","v":491426.7693485716},595883.41412737046,"ECPT (No BB)",595883.41412737046,104456.64477879886,"ECPT - Noncore only","2028-01-01",12]
[null,"2027 GRC - Noncore Local Transmission - Year 2029",null,{"$f":"'Incremental Rev Req'!$G$20","v":491426.7693485716},615905.98657777149,"ECPT (No BB)",615905.98657777149,124479.21722919989,"ECPT - Noncore only","2029-01-01"]
[null,"2027 GRC - Customer Access Charge - Year 2027",null,{"$f":"'Incremental Rev Req'!$G$21","v":4616.1733053024955},3108.8036282307103,"CAC Allocation",3108.8036282307103,-1507.3696770717852,"CAC Allocation","2027-01-01",12]
[null,"2027 GRC - Customer Access Charge - Year 2028",null,{"$f":"'Incremental Rev Req'!$G$21","v":4616.1733053024955},3870.2189729106267,"CAC Allocation",3870.2189729106267,-745.95433239186877,"CAC Allocation","2028-01-01",12]
[null,"2027 GRC - Customer Access Charge - Year 2029",null,{"$f":"'Incremental Rev Req'!$G$21","v":4616.1733053024955},4634.9827820963055,"CAC Allocation",4634.9827820963055,18.809476793810063,"CAC Allocation","2029-01-01"]
[null,"2027 GRC - Noncore Unbundled - Year 2027",null,{"$f":"'Incremental Rev Req'!$G$22","v":251044.65172382118},197609.38225701253,"ECPT-All",197609.38225701253,-53435.269466808648,"ECPT - ALL","2027-01-01",12]
[null,"2027 GRC - Noncore Unbundled - Year 2028",null,{"$f":"'Incremental Rev Req'!$G$22","v":251044.65172382118},206605.91299013438,"ECPT-All",206605.91299013438,-44438.738733686798,"ECPT - ALL","2028-01-01",12]
[null,"2027 GRC - Noncore Unbundled - Year 2029",null,{"$f":"'Incremental Rev Req'!$G$22","v":251044.65172382118},213949.21978137293,"ECPT-All",213949.21978137293,-37095.431942448253,"ECPT - ALL","2029-01-01"]
[null,"2027 GRC - Inventory Management - Year 2027",null,{"$f":"'Incremental Rev Req'!$G$23","v":138919.84345004807},139662.62336564041,"2023 GTS - Inventory Management",139662.62336564041,742.77991559234215,"2023 GTS - Inventory Management","2027-01-01",12]
[null,"2027 GRC - Inventory Management - Year 2028",null,{"$f":"'Incremental Rev Req'!$G$23","v":138919.84345004807},150919.46815228852,"2023 GTS - Inventory Management",150919.46815228852,11999.624702240457,"2023 GTS - Inventory Management","2028-01-01",12]
[null,"2027 GRC - Inventory Management - Year 2029",null,{"$f":"'Incremental Rev Req'!$G$23","v":138919.84345004807},161064.46791447687,"2023 GTS - Inventory Management",161064.46791447687,22144.624464428809,"2023 GTS - Inventory Management","2029-01-01"]
[null,"CFCA - NGSS Enduser Dist. Sub Acct Recovery - Year 2027",null,{"$f":"'Incremental Rev Req'!$G$64","v":-41605.250601505963},0,"Core - Distribution",0,41605.250601505963,"Core - Distribution","2027-01-01",12]
[null,"CFCA - NGSS Enduser Dist. Sub Acct Recovery - Year 2028",null,{"$f":"'Incremental Rev Req'!$G$64","v":-41605.250601505963},0,"Core - Distribution",0,{"$f":"G78-D78","v":41605.250601505963},"Core - Distribution","2028-01-01",12]
[null,"CFCA - NGSS Enduser Dist. Sub Acct Recovery - Year 2029",null,{"$f":"'Incremental Rev Req'!$G$64","v":-41605.250601505963},0,"Core - Distribution",0,41605.250601505963,"Core - Distribution","2029-01-01"]
[null,"CFCA/NCA - NGSS Enduser Sub Acct Recovery - Year 2027",null,{"$f":"'Incremental Rev Req'!$G$65","v":-9893.389051695307},0,"ECPT - ALL",0,9893.389051695307,"ECPT - ALL","2027-01-01",12]
[null,"CFCA/NCA - NGSS Enduser Sub Acct Recovery - Year 2028",null,{"$f":"'Incremental Rev Req'!$G$65","v":-9893.389051695307},0,"ECPT - ALL",0,9893.389051695307,"ECPT - ALL","2028-01-01",12]
[null,"CFCA/NCA - NGSS Enduser Sub Acct Recovery - Year 2029",null,{"$f":"'Incremental Rev Req'!$G$65","v":-9893.389051695307},0,"ECPT - ALL",0,9893.389051695307,"ECPT - ALL","2029-01-01"]
[null,"NCA - NGSS Enduser Sub Acct Recovery - Year 2027",null,{"$f":"'Incremental Rev Req'!$G$66","v":-10160.997666303094},0,"ECPT - Noncore only",0,10160.997666303094,"ECPT - Noncore only","2027-01-01",12]
[null,"NCA - NGSS Enduser Sub Acct Recovery - Year 2028",null,{"$f":"'Incremental Rev Req'!$G$66","v":-10160.997666303094},0,"ECPT - Noncore only",0,10160.997666303094,"ECPT - Noncore only","2028-01-01",12]
[null,"NCA - NGSS Enduser Sub Acct Recovery - Year 2029",null,{"$f":"'Incremental Rev Req'!$G$66","v":-10160.997666303094},0,"ECPT - Noncore only",0,10160.997666303094,"ECPT - Noncore only","2029-01-01"]
[null,"Available"]
[null,"Available"]
[null,"Available"]
[null,"Available"]
[null,"Available"]
[null,"Available"]
[null,"Available"]
[null,"Available"]
[null,"Available"]
[null,"Available"]
[null,"Available"]

{"sheet":"Rate Trajectory Report","index":14,"n_rows":152,"n_cols":27,"rows_kept":152,"cut":false,"hidden":false,"merged":[]}
["Pacific Gas and Electric Company"]
["Illustrative Gas Rate Trajectory Report"]
[{"$f":"\"For the Period \"&TEXT(D5,\"mmmmmmmmmm YYYY\")&\" through \"&TEXT(AA5,\"mmmmmmmmmm YYYY\")","v":"For the Period September 2025 through August 2027"}]
[]
[null,null,{"$f":"\"Present \n( \"&TEXT(Summary!E44,\"mmm yy\")&\")\"","v":"Present \n( Sep 25)"},{"$f":"'Rate Trajectory Dashboard'!D6","v":"2025-09-01"},{"$f":"DATE(YEAR(D5),MONTH(D5)+1,DAY(D5))","v":"2025-10-01"},{"$f":"DATE(YEAR(E5),MONTH(E5)+1,DAY(E5))","v":"2025-11-01"},"2025-12-01","2026-01-01","2026-02-01","2026-03-01","2026-04-01","2026-05-01","2026-06-01","2026-07-01","2026-08-01","2026-09-01","2026-10-01","2026-11-01","2026-12-01","2027-01-01","2027-02-01","2027-03-01","2027-04-01","2027-05-01","2027-06-01","2027-07-01",{"$f":"DATE(YEAR(Z5),MONTH(Z5)+1,DAY(Z5))","v":"2027-08-01"}]
["#","RRQ in Current Gas Rates ($ millions)",{"$f":"'Authorized Rev Req'!I84/1000","v":6965.5501258606928}]
[]
[1,{"$f":"'Rate Trajectory Dashboard'!B12","v":"2027 Energy Savings Assistance Bridge Funding"},{"$f":"IFERROR(VLOOKUP(B8,'Rate Trajectory Dashboard'!$B$12:$D$96,3,FALSE)/1000,'Rate Trajectory Report'!C6)","v":75.426795999999996},{"$f":"IF(INDEX('Rate Trajectory Calc'!$A$6:$CQ$92,MATCH('Rate Trajectory Report'!$B8,'Rate Trajectory Calc'!$A$6:$A$92,0),MATCH('Rate Trajectory Report'!D$5,'Rate Trajectory Calc'!$A$6:$CQ$6,0))=0,\" \",INDEX('Rate Trajectory Calc'!$A$6:$CQ$92,MATCH('Rate Trajectory Report'!$B8,'Rate Trajectory Calc'!$A$6:$A$92,0),MATCH('Rate Trajectory Report'!D$5,'Rate Trajectory Calc'!$A$6:$CQ$6,0))/1000)","v":" "},{"$f":"IF(INDEX('Rate Trajectory Calc'!$A$6:$CQ$92,MATCH('Rate Trajectory Report'!$B8,'Rate Trajectory Calc'!$A$6:$A$92,0),MATCH('Rate Trajectory Report'!E$5,'Rate Trajectory Calc'!$A$6:$CQ$6,0))=0,\" \",INDEX('Rate Trajectory Calc'!$A$6:$CQ$92,MATCH('Rate Trajectory Report'!$B8,'Rate Trajectory Calc'!$A$6:$A$92,0),MATCH('Rate Trajectory Report'!E$5,'Rate Trajectory Calc'!$A$6:$CQ$6,0))/1000)","v":" "},{"$f":"IF(INDEX('Rate Trajectory Calc'!$A$6:$CQ$92,MATCH('Rate Trajectory Report'!$B8,'Rate Trajectory Calc'!$A$6:$A$92,0),MATCH('Rate Trajectory Report'!F$5,'Rate Trajectory Calc'!$A$6:$CQ$6,0))=0,\" \",INDEX('Rate Trajectory Calc'!$A$6:$CQ$92,MATCH('Rate Trajectory Report'!$B8,'Rate Trajectory Calc'!$A$6:$A$92,0),MATCH('Rate Trajectory Report'!F$5,'Rate Trajectory Calc'!$A$6:$CQ$6,0))/1000)","v":" "},{"$f":"IF(INDEX('Rate Trajectory Calc'!$A$6:$CQ$92,MATCH('Rate Trajectory Report'!$B8,'Rate Trajectory Calc'!$A$6:$A$92,0),MATCH('Rate Trajectory Report'!G$5,'Rate Trajectory Calc'!$A$6:$CQ$6,0))=0,\" \",INDEX('Rate Trajectory Calc'!$A$6:$CQ$92,MATCH('Rate Trajectory Report'!$B8,'Rate Trajectory Calc'!$A$6:$A$92,0),MATCH('Rate Trajectory Report'!G$5,'Rate Trajectory Calc'!$A$6:$CQ$6,0))/1000)","v":" "},{"$f":"IF(INDEX('Rate Trajectory Calc'!$A$6:$CQ$92,MATCH('Rate Trajectory Report'!$B8,'Rate Trajectory Calc'!$A$6:$A$92,0),MATCH('Rate Trajectory Report'!H$5,'Rate Trajectory Calc'!$A$6:$CQ$6,0))=0,\" \",INDEX('Rate Trajectory Calc'!$A$6:$CQ$92,MATCH('Rate Trajectory Report'!$B8,'Rate Trajectory Calc'!$A$6:$A$92,0),MATCH('Rate Trajectory Report'!H$5,'Rate Trajectory Calc'!$A$6:$CQ$6,0))/1000)","v":" "},{"$f":"IF(INDEX('Rate Trajectory Calc'!$A$6:$CQ$92,MATCH('Rate Trajectory Report'!$B8,'Rate Trajectory Calc'!$A$6:$A$92,0),MATCH('Rate Trajectory Report'!I$5,'Rate Trajectory Calc'!$A$6:$CQ$6,0))=0,\" \",INDEX('Rate Trajectory Calc'!$A$6:$CQ$92,MATCH('Rate Trajectory Report'!$B8,'Rate Trajectory Calc'!$A$6:$A$92,0),MATCH('Rate Trajectory Report'!I$5,'Rate Trajectory Calc'!$A$6:$CQ$6,0))/1000)","v":" "},{"$f":"IF(INDEX('Rate Trajectory Calc'!$A$6:$CQ$92,MATCH('Rate Trajectory Report'!$B8,'Rate Trajectory Calc'!$A$6:$A$92,0),MATCH('Rate Trajectory Report'!J$5,'Rate Trajectory Calc'!$A$6:$CQ$6,0))=0,\" \",INDEX('Rate Trajectory Calc'!$A$6:$CQ$92,MATCH('Rate Trajectory Report'!$B8,'Rate Trajectory Calc'!$A$6:$A$92,0),MATCH('Rate Trajectory Report'!J$5,'Rate Trajectory Calc'!$A$6:$CQ$6,0))/1000)","v":" "},{"$f":"IF(INDEX('Rate Trajectory Calc'!$A$6:$CQ$92,MATCH('Rate Trajectory Report'!$B8,'Rate Trajectory Calc'!$A$6:$A$92,0),MATCH('Rate Trajectory Report'!K$5,'Rate Trajectory Calc'!$A$6:$CQ$6,0))=0,\" \",INDEX('Rate Trajectory Calc'!$A$6:$CQ$92,MATCH('Rate Trajectory Report'!$B8,'Rate Trajectory Calc'!$A$6:$A$92,0),MATCH('Rate Trajectory Report'!K$5,'Rate Trajectory Calc'!$A$6:$CQ$6,0))/1000)","v":" "},{"$f":"IF(INDEX('Rate Trajectory Calc'!$A$6:$CQ$92,MATCH('Rate Trajectory Report'!$B8,'Rate Trajectory Calc'!$A$6:$A$92,0),MATCH('Rate Trajectory Report'!L$5,'Rate Trajectory Calc'!$A$6:$CQ$6,0))=0,\" \",INDEX('Rate Trajectory Calc'!$A$6:$CQ$92,MATCH('Rate Trajectory Report'!$B8,'Rate Trajectory Calc'!$A$6:$A$92,0),MATCH('Rate Trajectory Report'!L$5,'Rate Trajectory Calc'!$A$6:$CQ$6,0))/1000)","v":" "},{"$f":"IF(INDEX('Rate Trajectory Calc'!$A$6:$CQ$92,MATCH('Rate Trajectory Report'!$B8,'Rate Trajectory Calc'!$A$6:$A$92,0),MATCH('Rate Trajectory Report'!M$5,'Rate Trajectory Calc'!$A$6:$CQ$6,0))=0,\" \",INDEX('Rate Trajectory Calc'!$A$6:$CQ$92,MATCH('Rate Trajectory Report'!$B8,'Rate Trajectory Calc'!$A$6:$A$92,0),MATCH('Rate Trajectory Report'!M$5,'Rate Trajectory Calc'!$A$6:$CQ$6,0))/1000)","v":" "},{"$f":"IF(INDEX('Rate Trajectory Calc'!$A$6:$CQ$92,MATCH('Rate Trajectory Report'!$B8,'Rate Trajectory Calc'!$A$6:$A$92,0),MATCH('Rate Trajectory Report'!N$5,'Rate Trajectory Calc'!$A$6:$CQ$6,0))=0,\" \",INDEX('Rate Trajectory Calc'!$A$6:$CQ$92,MATCH('Rate Trajectory Report'!$B8,'Rate Trajectory Calc'!$A$6:$A$92,0),MATCH('Rate Trajectory Report'!N$5,'Rate Trajectory Calc'!$A$6:$CQ$6,0))/1000)","v":" "},{"$f":"IF(INDEX('Rate Trajectory Calc'!$A$6:$CQ$92,MATCH('Rate Trajectory Report'!$B8,'Rate Trajectory Calc'!$A$6:$A$92,0),MATCH('Rate Trajectory Report'!O$5,'Rate Trajectory Calc'!$A$6:$CQ$6,0))=0,\" \",INDEX('Rate Trajectory Calc'!$A$6:$CQ$92,MATCH('Rate Trajectory Report'!$B8,'Rate Trajectory Calc'!$A$6:$A$92,0),MATCH('Rate Trajectory Report'!O$5,'Rate Trajectory Calc'!$A$6:$CQ$6,0))/1000)","v":" "},{"$f":"IF(INDEX('Rate Trajectory Calc'!$A$6:$CQ$92,MATCH('Rate Trajectory Report'!$B8,'Rate Trajectory Calc'!$A$6:$A$92,0),MATCH('Rate Trajectory Report'!P$5,'Rate Trajectory Calc'!$A$6:$CQ$6,0))=0,\" \",INDEX('Rate Trajectory Calc'!$A$6:$CQ$92,MATCH('Rate Trajectory Report'!$B8,'Rate Trajectory Calc'!$A$6:$A$92,0),MATCH('Rate Trajectory Report'!P$5,'Rate Trajectory Calc'!$A$6:$CQ$6,0))/1000)","v":" "},{"$f":"IF(INDEX('Rate Trajectory Calc'!$A$6:$CQ$92,MATCH('Rate Trajectory Report'!$B8,'Rate Trajectory Calc'!$A$6:$A$92,0),MATCH('Rate Trajectory Report'!Q$5,'Rate Trajectory Calc'!$A$6:$CQ$6,0))=0,\" \",INDEX('Rate Trajectory Calc'!$A$6:$CQ$92,MATCH('Rate Trajectory Report'!$B8,'Rate Trajectory Calc'!$A$6:$A$92,0),MATCH('Rate Trajectory Report'!Q$5,'Rate Trajectory Calc'!$A$6:$CQ$6,0))/1000)","v":" "},{"$f":"IF(INDEX('Rate Trajectory Calc'!$A$6:$CQ$92,MATCH('Rate Trajectory Report'!$B8,'Rate Trajectory Calc'!$A$6:$A$92,0),MATCH('Rate Trajectory Report'!R$5,'Rate Trajectory Calc'!$A$6:$CQ$6,0))=0,\" \",INDEX('Rate Trajectory Calc'!$A$6:$CQ$92,MATCH('Rate Trajectory Report'!$B8,'Rate Trajectory Calc'!$A$6:$A$92,0),MATCH('Rate Trajectory Report'!R$5,'Rate Trajectory Calc'!$A$6:$CQ$6,0))/1000)","v":" "},{"$f":"IF(INDEX('Rate Trajectory Calc'!$A$6:$CQ$92,MATCH('Rate Trajectory Report'!$B8,'Rate Trajectory Calc'!$A$6:$A$92,0),MATCH('Rate Trajectory Report'!S$5,'Rate Trajectory Calc'!$A$6:$CQ$6,0))=0,\" \",INDEX('Rate Trajectory Calc'!$A$6:$CQ$92,MATCH('Rate Trajectory Report'!$B8,'Rate Trajectory Calc'!$A$6:$A$92,0),MATCH('Rate Trajectory Report'!S$5,'Rate Trajectory Calc'!$A$6:$CQ$6,0))/1000)","v":" "},{"$f":"IF(INDEX('Rate Trajectory Calc'!$A$6:$CQ$92,MATCH('Rate Trajectory Report'!$B8,'Rate Trajectory Calc'!$A$6:$A$92,0),MATCH('Rate Trajectory Report'!T$5,'Rate Trajectory Calc'!$A$6:$CQ$6,0))=0,\" \",INDEX('Rate Trajectory Calc'!$A$6:$CQ$92,MATCH('Rate Trajectory Report'!$B8,'Rate Trajectory Calc'!$A$6:$A$92,0),MATCH('Rate Trajectory Report'!T$5,'Rate Trajectory Calc'!$A$6:$CQ$6,0))/1000)","v":-19.859534950000008},{"$f":"IF(INDEX('Rate Trajectory Calc'!$A$6:$CQ$92,MATCH('Rate Trajectory Report'!$B8,'Rate Trajectory Calc'!$A$6:$A$92,0),MATCH('Rate Trajectory Report'!U$5,'Rate Trajectory Calc'!$A$6:$CQ$6,0))=0,\" \",INDEX('Rate Trajectory Calc'!$A$6:$CQ$92,MATCH('Rate Trajectory Report'!$B8,'Rate Trajectory Calc'!$A$6:$A$92,0),MATCH('Rate Trajectory Report'!U$5,'Rate Trajectory Calc'!$A$6:$CQ$6,0))/1000)","v":" "},{"$f":"IF(INDEX('Rate Trajectory Calc'!$A$6:$CQ$92,MATCH('Rate Trajectory Report'!$B8,'Rate Trajectory Calc'!$A$6:$A$92,0),MATCH('Rate Trajectory Report'!V$5,'Rate Trajectory Calc'!$A$6:$CQ$6,0))=0,\" \",INDEX('Rate Trajectory Calc'!$A$6:$CQ$92,MATCH('Rate Trajectory Report'!$B8,'Rate Trajectory Calc'!$A$6:$A$92,0),MATCH('Rate Trajectory Report'!V$5,'Rate Trajectory Calc'!$A$6:$CQ$6,0))/1000)","v":" "},{"$f":"IF(INDEX('Rate Trajectory Calc'!$A$6:$CQ$92,MATCH('Rate Trajectory Report'!$B8,'Rate Trajectory Calc'!$A$6:$A$92,0),MATCH('Rate Trajectory Report'!W$5,'Rate Trajectory Calc'!$A$6:$CQ$6,0))=0,\" \",INDEX('Rate Trajectory Calc'!$A$6:$CQ$92,MATCH('Rate Trajectory Report'!$B8,'Rate Trajectory Calc'!$A$6:$A$92,0),MATCH('Rate Trajectory Report'!W$5,'Rate Trajectory Calc'!$A$6:$CQ$6,0))/1000)","v":" "},{"$f":"IF(INDEX('Rate Trajectory Calc'!$A$6:$CQ$92,MATCH('Rate Trajectory Report'!$B8,'Rate Trajectory Calc'!$A$6:$A$92,0),MATCH('Rate Trajectory Report'!X$5,'Rate Trajectory Calc'!$A$6:$CQ$6,0))=0,\" \",INDEX('Rate Trajectory Calc'!$A$6:$CQ$92,MATCH('Rate Trajectory Report'!$B8,'Rate Trajectory Calc'!$A$6:$A$92,0),MATCH('Rate Trajectory Report'!X$5,'Rate Trajectory Calc'!$A$6:$CQ$6,0))/1000)","v":" "},{"$f":"IF(INDEX('Rate Trajectory Calc'!$A$6:$CQ$92,MATCH('Rate Trajectory Report'!$B8,'Rate Trajectory Calc'!$A$6:$A$92,0),MATCH('Rate Trajectory Report'!Y$5,'Rate Trajectory Calc'!$A$6:$CQ$6,0))=0,\" \",INDEX('Rate Trajectory Calc'!$A$6:$CQ$92,MATCH('Rate Trajectory Report'!$B8,'Rate Trajectory Calc'!$A$6:$A$92,0),MATCH('Rate Trajectory Report'!Y$5,'Rate Trajectory Calc'!$A$6:$CQ$6,0))/1000)","v":" "},{"$f":"IF(INDEX('Rate Trajectory Calc'!$A$6:$CQ$92,MATCH('Rate Trajectory Report'!$B8,'Rate Trajectory Calc'!$A$6:$A$92,0),MATCH('Rate Trajectory Report'!Z$5,'Rate Trajectory Calc'!$A$6:$CQ$6,0))=0,\" \",INDEX('Rate Trajectory Calc'!$A$6:$CQ$92,MATCH('Rate Trajectory Report'!$B8,'Rate Trajectory Calc'!$A$6:$A$92,0),MATCH('Rate Trajectory Report'!Z$5,'Rate Trajectory Calc'!$A$6:$CQ$6,0))/1000)","v":" "},{"$f":"IF(INDEX('Rate Trajectory Calc'!$A$6:$CQ$92,MATCH('Rate Trajectory Report'!$B8,'Rate Trajectory Calc'!$A$6:$A$92,0),MATCH('Rate Trajectory Report'!AA$5,'Rate Trajectory Calc'!$A$6:$CQ$6,0))=0,\" \",INDEX('Rate Trajectory Calc'!$A$6:$CQ$92,MATCH('Rate Trajectory Report'!$B8,'Rate Trajectory Calc'!$A$6:$A$92,0),MATCH('Rate Trajectory Report'!AA$5,'Rate Trajectory Calc'!$A$6:$CQ$6,0))/1000)","v":" "}]
[2,{"$f":"'Rate Trajectory Dashboard'!B13","v":"2027 CARE Administrative Bridge Funding"},{"$f":"IFERROR(VLOOKUP(B9,'Rate Trajectory Dashboard'!$B$12:$D$96,3,FALSE)/1000,'Rate Trajectory Report'!C7)","v":2.8888400000000001},{"$f":"IF(INDEX('Rate Trajectory Calc'!$A$6:$CQ$92,MATCH('Rate Trajectory Report'!$B9,'Rate Trajectory Calc'!$A$6:$A$92,0),MATCH('Rate Trajectory Report'!D$5,'Rate Trajectory Calc'!$A$6:$CQ$6,0))=0,\" \",INDEX('Rate Trajectory Calc'!$A$6:$CQ$92,MATCH('Rate Trajectory Report'!$B9,'Rate Trajectory Calc'!$A$6:$A$92,0),MATCH('Rate Trajectory Report'!D$5,'Rate Trajectory Calc'!$A$6:$CQ$6,0))/1000)","v":" "},{"$f":"IF(INDEX('Rate Trajectory Calc'!$A$6:$CQ$92,MATCH('Rate Trajectory Report'!$B9,'Rate Trajectory Calc'!$A$6:$A$92,0),MATCH('Rate Trajectory Report'!E$5,'Rate Trajectory Calc'!$A$6:$CQ$6,0))=0,\" \",INDEX('Rate Trajectory Calc'!$A$6:$CQ$92,MATCH('Rate Trajectory Report'!$B9,'Rate Trajectory Calc'!$A$6:$A$92,0),MATCH('Rate Trajectory Report'!E$5,'Rate Trajectory Calc'!$A$6:$CQ$6,0))/1000)","v":" "},{"$f":"IF(INDEX('Rate Trajectory Calc'!$A$6:$CQ$92,MATCH('Rate Trajectory Report'!$B9,'Rate Trajectory Calc'!$A$6:$A$92,0),MATCH('Rate Trajectory Report'!F$5,'Rate Trajectory Calc'!$A$6:$CQ$6,0))=0,\" \",INDEX('Rate Trajectory Calc'!$A$6:$CQ$92,MATCH('Rate Trajectory Report'!$B9,'Rate Trajectory Calc'!$A$6:$A$92,0),MATCH('Rate Trajectory Report'!F$5,'Rate Trajectory Calc'!$A$6:$CQ$6,0))/1000)","v":" "},{"$f":"IF(INDEX('Rate Trajectory Calc'!$A$6:$CQ$92,MATCH('Rate Trajectory Report'!$B9,'Rate Trajectory Calc'!$A$6:$A$92,0),MATCH('Rate Trajectory Report'!G$5,'Rate Trajectory Calc'!$A$6:$CQ$6,0))=0,\" \",INDEX('Rate Trajectory Calc'!$A$6:$CQ$92,MATCH('Rate Trajectory Report'!$B9,'Rate Trajectory Calc'!$A$6:$A$92,0),MATCH('Rate Trajectory Report'!G$5,'Rate Trajectory Calc'!$A$6:$CQ$6,0))/1000)","v":" "},{"$f":"IF(INDEX('Rate Trajectory Calc'!$A$6:$CQ$92,MATCH('Rate Trajectory Report'!$B9,'Rate Trajectory Calc'!$A$6:$A$92,0),MATCH('Rate Trajectory Report'!H$5,'Rate Trajectory Calc'!$A$6:$CQ$6,0))=0,\" \",INDEX('Rate Trajectory Calc'!$A$6:$CQ$92,MATCH('Rate Trajectory Report'!$B9,'Rate Trajectory Calc'!$A$6:$A$92,0),MATCH('Rate Trajectory Report'!H$5,'Rate Trajectory Calc'!$A$6:$CQ$6,0))/1000)","v":" "},{"$f":"IF(INDEX('Rate Trajectory Calc'!$A$6:$CQ$92,MATCH('Rate Trajectory Report'!$B9,'Rate Trajectory Calc'!$A$6:$A$92,0),MATCH('Rate Trajectory Report'!I$5,'Rate Trajectory Calc'!$A$6:$CQ$6,0))=0,\" \",INDEX('Rate Trajectory Calc'!$A$6:$CQ$92,MATCH('Rate Trajectory Report'!$B9,'Rate Trajectory Calc'!$A$6:$A$92,0),MATCH('Rate Trajectory Report'!I$5,'Rate Trajectory Calc'!$A$6:$CQ$6,0))/1000)","v":" "},{"$f":"IF(INDEX('Rate Trajectory Calc'!$A$6:$CQ$92,MATCH('Rate Trajectory Report'!$B9,'Rate Trajectory Calc'!$A$6:$A$92,0),MATCH('Rate Trajectory Report'!J$5,'Rate Trajectory Calc'!$A$6:$CQ$6,0))=0,\" \",INDEX('Rate Trajectory Calc'!$A$6:$CQ$92,MATCH('Rate Trajectory Report'!$B9,'Rate Trajectory Calc'!$A$6:$A$92,0),MATCH('Rate Trajectory Report'!J$5,'Rate Trajectory Calc'!$A$6:$CQ$6,0))/1000)","v":" "},{"$f":"IF(INDEX('Rate Trajectory Calc'!$A$6:$CQ$92,MATCH('Rate Trajectory Report'!$B9,'Rate Trajectory Calc'!$A$6:$A$92,0),MATCH('Rate Trajectory Report'!K$5,'Rate Trajectory Calc'!$A$6:$CQ$6,0))=0,\" \",INDEX('Rate Trajectory Calc'!$A$6:$CQ$92,MATCH('Rate Trajectory Report'!$B9,'Rate Trajectory Calc'!$A$6:$A$92,0),MATCH('Rate Trajectory Report'!K$5,'Rate Trajectory Calc'!$A$6:$CQ$6,0))/1000)","v":" "},{"$f":"IF(INDEX('Rate Trajectory Calc'!$A$6:$CQ$92,MATCH('Rate Trajectory Report'!$B9,'Rate Trajectory Calc'!$A$6:$A$92,0),MATCH('Rate Trajectory Report'!L$5,'Rate Trajectory Calc'!$A$6:$CQ$6,0))=0,\" \",INDEX('Rate Trajectory Calc'!$A$6:$CQ$92,MATCH('Rate Trajectory Report'!$B9,'Rate Trajectory Calc'!$A$6:$A$92,0),MATCH('Rate Trajectory Report'!L$5,'Rate Trajectory Calc'!$A$6:$CQ$6,0))/1000)","v":" "},{"$f":"IF(INDEX('Rate Trajectory Calc'!$A$6:$CQ$92,MATCH('Rate Trajectory Report'!$B9,'Rate Trajectory Calc'!$A$6:$A$92,0),MATCH('Rate Trajectory Report'!M$5,'Rate Trajectory Calc'!$A$6:$CQ$6,0))=0,\" \",INDEX('Rate Trajectory Calc'!$A$6:$CQ$92,MATCH('Rate Trajectory Report'!$B9,'Rate Trajectory Calc'!$A$6:$A$92,0),MATCH('Rate Trajectory Report'!M$5,'Rate Trajectory Calc'!$A$6:$CQ$6,0))/1000)","v":" "},{"$f":"IF(INDEX('Rate Trajectory Calc'!$A$6:$CQ$92,MATCH('Rate Trajectory Report'!$B9,'Rate Trajectory Calc'!$A$6:$A$92,0),MATCH('Rate Trajectory Report'!N$5,'Rate Trajectory Calc'!$A$6:$CQ$6,0))=0,\" \",INDEX('Rate Trajectory Calc'!$A$6:$CQ$92,MATCH('Rate Trajectory Report'!$B9,'Rate Trajectory Calc'!$A$6:$A$92,0),MATCH('Rate Trajectory Report'!N$5,'Rate Trajectory Calc'!$A$6:$CQ$6,0))/1000)","v":" "},{"$f":"IF(INDEX('Rate Trajectory Calc'!$A$6:$CQ$92,MATCH('Rate Trajectory Report'!$B9,'Rate Trajectory Calc'!$A$6:$A$92,0),MATCH('Rate Trajectory Report'!O$5,'Rate Trajectory Calc'!$A$6:$CQ$6,0))=0,\" \",INDEX('Rate Trajectory Calc'!$A$6:$CQ$92,MATCH('Rate Trajectory Report'!$B9,'Rate Trajectory Calc'!$A$6:$A$92,0),MATCH('Rate Trajectory Report'!O$5,'Rate Trajectory Calc'!$A$6:$CQ$6,0))/1000)","v":" "},{"$f":"IF(INDEX('Rate Trajectory Calc'!$A$6:$CQ$92,MATCH('Rate Trajectory Report'!$B9,'Rate Trajectory Calc'!$A$6:$A$92,0),MATCH('Rate Trajectory Report'!P$5,'Rate Trajectory Calc'!$A$6:$CQ$6,0))=0,\" \",INDEX('Rate Trajectory Calc'!$A$6:$CQ$92,MATCH('Rate Trajectory Report'!$B9,'Rate Trajectory Calc'!$A$6:$A$92,0),MATCH('Rate Trajectory Report'!P$5,'Rate Trajectory Calc'!$A$6:$CQ$6,0))/1000)","v":" "},{"$f":"IF(INDEX('Rate Trajectory Calc'!$A$6:$CQ$92,MATCH('Rate Trajectory Report'!$B9,'Rate Trajectory Calc'!$A$6:$A$92,0),MATCH('Rate Trajectory Report'!Q$5,'Rate Trajectory Calc'!$A$6:$CQ$6,0))=0,\" \",INDEX('Rate Trajectory Calc'!$A$6:$CQ$92,MATCH('Rate Trajectory Report'!$B9,'Rate Trajectory Calc'!$A$6:$A$92,0),MATCH('Rate Trajectory Report'!Q$5,'Rate Trajectory Calc'!$A$6:$CQ$6,0))/1000)","v":" "},{"$f":"IF(INDEX('Rate Trajectory Calc'!$A$6:$CQ$92,MATCH('Rate Trajectory Report'!$B9,'Rate Trajectory Calc'!$A$6:$A$92,0),MATCH('Rate Trajectory Report'!R$5,'Rate Trajectory Calc'!$A$6:$CQ$6,0))=0,\" \",INDEX('Rate Trajectory Calc'!$A$6:$CQ$92,MATCH('Rate Trajectory Report'!$B9,'Rate Trajectory Calc'!$A$6:$A$92,0),MATCH('Rate Trajectory Report'!R$5,'Rate Trajectory Calc'!$A$6:$CQ$6,0))/1000)","v":" "},{"$f":"IF(INDEX('Rate Trajectory Calc'!$A$6:$CQ$92,MATCH('Rate Trajectory Report'!$B9,'Rate Trajectory Calc'!$A$6:$A$92,0),MATCH('Rate Trajectory Report'!S$5,'Rate Trajectory Calc'!$A$6:$CQ$6,0))=0,\" \",INDEX('Rate Trajectory Calc'!$A$6:$CQ$92,MATCH('Rate Trajectory Report'!$B9,'Rate Trajectory Calc'!$A$6:$A$92,0),MATCH('Rate Trajectory Report'!S$5,'Rate Trajectory Calc'!$A$6:$CQ$6,0))/1000)","v":" "},{"$f":"IF(INDEX('Rate Trajectory Calc'!$A$6:$CQ$92,MATCH('Rate Trajectory Report'!$B9,'Rate Trajectory Calc'!$A$6:$A$92,0),MATCH('Rate Trajectory Report'!T$5,'Rate Trajectory Calc'!$A$6:$CQ$6,0))=0,\" \",INDEX('Rate Trajectory Calc'!$A$6:$CQ$92,MATCH('Rate Trajectory Report'!$B9,'Rate Trajectory Calc'!$A$6:$A$92,0),MATCH('Rate Trajectory Report'!T$5,'Rate Trajectory Calc'!$A$6:$CQ$6,0))/1000)","v":-0.82982000000000011},{"$f":"IF(INDEX('Rate Trajectory Calc'!$A$6:$CQ$92,MATCH('Rate Trajectory Report'!$B9,'Rate Trajectory Calc'!$A$6:$A$92,0),MATCH('Rate Trajectory Report'!U$5,'Rate Trajectory Calc'!$A$6:$CQ$6,0))=0,\" \",INDEX('Rate Trajectory Calc'!$A$6:$CQ$92,MATCH('Rate Trajectory Report'!$B9,'Rate Trajectory Calc'!$A$6:$A$92,0),MATCH('Rate Trajectory Report'!U$5,'Rate Trajectory Calc'!$A$6:$CQ$6,0))/1000)","v":" "},{"$f":"IF(INDEX('Rate Trajectory Calc'!$A$6:$CQ$92,MATCH('Rate Trajectory Report'!$B9,'Rate Trajectory Calc'!$A$6:$A$92,0),MATCH('Rate Trajectory Report'!V$5,'Rate Trajectory Calc'!$A$6:$CQ$6,0))=0,\" \",INDEX('Rate Trajectory Calc'!$A$6:$CQ$92,MATCH('Rate Trajectory Report'!$B9,'Rate Trajectory Calc'!$A$6:$A$92,0),MATCH('Rate Trajectory Report'!V$5,'Rate Trajectory Calc'!$A$6:$CQ$6,0))/1000)","v":" "},{"$f":"IF(INDEX('Rate Trajectory Calc'!$A$6:$CQ$92,MATCH('Rate Trajectory Report'!$B9,'Rate Trajectory Calc'!$A$6:$A$92,0),MATCH('Rate Trajectory Report'!W$5,'Rate Trajectory Calc'!$A$6:$CQ$6,0))=0,\" \",INDEX('Rate Trajectory Calc'!$A$6:$CQ$92,MATCH('Rate Trajectory Report'!$B9,'Rate Trajectory Calc'!$A$6:$A$92,0),MATCH('Rate Trajectory Report'!W$5,'Rate Trajectory Calc'!$A$6:$CQ$6,0))/1000)","v":" "},{"$f":"IF(INDEX('Rate Trajectory Calc'!$A$6:$CQ$92,MATCH('Rate Trajectory Report'!$B9,'Rate Trajectory Calc'!$A$6:$A$92,0),MATCH('Rate Trajectory Report'!X$5,'Rate Trajectory Calc'!$A$6:$CQ$6,0))=0,\" \",INDEX('Rate Trajectory Calc'!$A$6:$CQ$92,MATCH('Rate Trajectory Report'!$B9,'Rate Trajectory Calc'!$A$6:$A$92,0),MATCH('Rate Trajectory Report'!X$5,'Rate Trajectory Calc'!$A$6:$CQ$6,0))/1000)","v":" "},{"$f":"IF(INDEX('Rate Trajectory Calc'!$A$6:$CQ$92,MATCH('Rate Trajectory Report'!$B9,'Rate Trajectory Calc'!$A$6:$A$92,0),MATCH('Rate Trajectory Report'!Y$5,'Rate Trajectory Calc'!$A$6:$CQ$6,0))=0,\" \",INDEX('Rate Trajectory Calc'!$A$6:$CQ$92,MATCH('Rate Trajectory Report'!$B9,'Rate Trajectory Calc'!$A$6:$A$92,0),MATCH('Rate Trajectory Report'!Y$5,'Rate Trajectory Calc'!$A$6:$CQ$6,0))/1000)","v":" "},{"$f":"IF(INDEX('Rate Trajectory Calc'!$A$6:$CQ$92,MATCH('Rate Trajectory Report'!$B9,'Rate Trajectory Calc'!$A$6:$A$92,0),MATCH('Rate Trajectory Report'!Z$5,'Rate Trajectory Calc'!$A$6:$CQ$6,0))=0,\" \",INDEX('Rate Trajectory Calc'!$A$6:$CQ$92,MATCH('Rate Trajectory Report'!$B9,'Rate Trajectory Calc'!$A$6:$A$92,0),MATCH('Rate Trajectory Report'!Z$5,'Rate Trajectory Calc'!$A$6:$CQ$6,0))/1000)","v":" "},{"$f":"IF(INDEX('Rate Trajectory Calc'!$A$6:$CQ$92,MATCH('Rate Trajectory Report'!$B9,'Rate Trajectory Calc'!$A$6:$A$92,0),MATCH('Rate Trajectory Report'!AA$5,'Rate Trajectory Calc'!$A$6:$CQ$6,0))=0,\" \",INDEX('Rate Trajectory Calc'!$A$6:$CQ$92,MATCH('Rate Trajectory Report'!$B9,'Rate Trajectory Calc'!$A$6:$A$92,0),MATCH('Rate Trajectory Report'!AA$5,'Rate Trajectory Calc'!$A$6:$CQ$6,0))/1000)","v":" "}]
[null,{"$f":"'Rate Trajectory Dashboard'!B14","v":"Hinkley Upgrade - Year 2028"},{"$f":"IFERROR(VLOOKUP(B10,'Rate Trajectory Dashboard'!$B$12:$D$96,3,FALSE)/1000,'Rate Trajectory Report'!C8)","v":0},{"$f":"IF(INDEX('Rate Trajectory Calc'!$A$6:$CQ$92,MATCH('Rate Trajectory Report'!$B10,'Rate Trajectory Calc'!$A$6:$A$92,0),MATCH('Rate Trajectory Report'!D$5,'Rate Trajectory Calc'!$A$6:$CQ$6,0))=0,\" \",INDEX('Rate Trajectory Calc'!$A$6:$CQ$92,MATCH('Rate Trajectory Report'!$B10,'Rate Trajectory Calc'!$A$6:$A$92,0),MATCH('Rate Trajectory Report'!D$5,'Rate Trajectory Calc'!$A$6:$CQ$6,0))/1000)","v":" "},{"$f":"IF(INDEX('Rate Trajectory Calc'!$A$6:$CQ$92,MATCH('Rate Trajectory Report'!$B10,'Rate Trajectory Calc'!$A$6:$A$92,0),MATCH('Rate Trajectory Report'!E$5,'Rate Trajectory Calc'!$A$6:$CQ$6,0))=0,\" \",INDEX('Rate Trajectory Calc'!$A$6:$CQ$92,MATCH('Rate Trajectory Report'!$B10,'Rate Trajectory Calc'!$A$6:$A$92,0),MATCH('Rate Trajectory Report'!E$5,'Rate Trajectory Calc'!$A$6:$CQ$6,0))/1000)","v":" "},{"$f":"IF(INDEX('Rate Trajectory Calc'!$A$6:$CQ$92,MATCH('Rate Trajectory Report'!$B10,'Rate Trajectory Calc'!$A$6:$A$92,0),MATCH('Rate Trajectory Report'!F$5,'Rate Trajectory Calc'!$A$6:$CQ$6,0))=0,\" \",INDEX('Rate Trajectory Calc'!$A$6:$CQ$92,MATCH('Rate Trajectory Report'!$B10,'Rate Trajectory Calc'!$A$6:$A$92,0),MATCH('Rate Trajectory Report'!F$5,'Rate Trajectory Calc'!$A$6:$CQ$6,0))/1000)","v":" "},{"$f":"IF(INDEX('Rate Trajectory Calc'!$A$6:$CQ$92,MATCH('Rate Trajectory Report'!$B10,'Rate Trajectory Calc'!$A$6:$A$92,0),MATCH('Rate Trajectory Report'!G$5,'Rate Trajectory Calc'!$A$6:$CQ$6,0))=0,\" \",INDEX('Rate Trajectory Calc'!$A$6:$CQ$92,MATCH('Rate Trajectory Report'!$B10,'Rate Trajectory Calc'!$A$6:$A$92,0),MATCH('Rate Trajectory Report'!G$5,'Rate Trajectory Calc'!$A$6:$CQ$6,0))/1000)","v":" "},{"$f":"IF(INDEX('Rate Trajectory Calc'!$A$6:$CQ$92,MATCH('Rate Trajectory Report'!$B10,'Rate Trajectory Calc'!$A$6:$A$92,0),MATCH('Rate Trajectory Report'!H$5,'Rate Trajectory Calc'!$A$6:$CQ$6,0))=0,\" \",INDEX('Rate Trajectory Calc'!$A$6:$CQ$92,MATCH('Rate Trajectory Report'!$B10,'Rate Trajectory Calc'!$A$6:$A$92,0),MATCH('Rate Trajectory Report'!H$5,'Rate Trajectory Calc'!$A$6:$CQ$6,0))/1000)","v":" "},{"$f":"IF(INDEX('Rate Trajectory Calc'!$A$6:$CQ$92,MATCH('Rate Trajectory Report'!$B10,'Rate Trajectory Calc'!$A$6:$A$92,0),MATCH('Rate Trajectory Report'!I$5,'Rate Trajectory Calc'!$A$6:$CQ$6,0))=0,\" \",INDEX('Rate Trajectory Calc'!$A$6:$CQ$92,MATCH('Rate Trajectory Report'!$B10,'Rate Trajectory Calc'!$A$6:$A$92,0),MATCH('Rate Trajectory Report'!I$5,'Rate Trajectory Calc'!$A$6:$CQ$6,0))/1000)","v":" "},{"$f":"IF(INDEX('Rate Trajectory Calc'!$A$6:$CQ$92,MATCH('Rate Trajectory Report'!$B10,'Rate Trajectory Calc'!$A$6:$A$92,0),MATCH('Rate Trajectory Report'!J$5,'Rate Trajectory Calc'!$A$6:$CQ$6,0))=0,\" \",INDEX('Rate Trajectory Calc'!$A$6:$CQ$92,MATCH('Rate Trajectory Report'!$B10,'Rate Trajectory Calc'!$A$6:$A$92,0),MATCH('Rate Trajectory Report'!J$5,'Rate Trajectory Calc'!$A$6:$CQ$6,0))/1000)","v":" "},{"$f":"IF(INDEX('Rate Trajectory Calc'!$A$6:$CQ$92,MATCH('Rate Trajectory Report'!$B10,'Rate Trajectory Calc'!$A$6:$A$92,0),MATCH('Rate Trajectory Report'!K$5,'Rate Trajectory Calc'!$A$6:$CQ$6,0))=0,\" \",INDEX('Rate Trajectory Calc'!$A$6:$CQ$92,MATCH('Rate Trajectory Report'!$B10,'Rate Trajectory Calc'!$A$6:$A$92,0),MATCH('Rate Trajectory Report'!K$5,'Rate Trajectory Calc'!$A$6:$CQ$6,0))/1000)","v":" "},{"$f":"IF(INDEX('Rate Trajectory Calc'!$A$6:$CQ$92,MATCH('Rate Trajectory Report'!$B10,'Rate Trajectory Calc'!$A$6:$A$92,0),MATCH('Rate Trajectory Report'!L$5,'Rate Trajectory Calc'!$A$6:$CQ$6,0))=0,\" \",INDEX('Rate Trajectory Calc'!$A$6:$CQ$92,MATCH('Rate Trajectory Report'!$B10,'Rate Trajectory Calc'!$A$6:$A$92,0),MATCH('Rate Trajectory Report'!L$5,'Rate Trajectory Calc'!$A$6:$CQ$6,0))/1000)","v":" "},{"$f":"IF(INDEX('Rate Trajectory Calc'!$A$6:$CQ$92,MATCH('Rate Trajectory Report'!$B10,'Rate Trajectory Calc'!$A$6:$A$92,0),MATCH('Rate Trajectory Report'!M$5,'Rate Trajectory Calc'!$A$6:$CQ$6,0))=0,\" \",INDEX('Rate Trajectory Calc'!$A$6:$CQ$92,MATCH('Rate Trajectory Report'!$B10,'Rate Trajectory Calc'!$A$6:$A$92,0),MATCH('Rate Trajectory Report'!M$5,'Rate Trajectory Calc'!$A$6:$CQ$6,0))/1000)","v":" "},{"$f":"IF(INDEX('Rate Trajectory Calc'!$A$6:$CQ$92,MATCH('Rate Trajectory Report'!$B10,'Rate Trajectory Calc'!$A$6:$A$92,0),MATCH('Rate Trajectory Report'!N$5,'Rate Trajectory Calc'!$A$6:$CQ$6,0))=0,\" \",INDEX('Rate Trajectory Calc'!$A$6:$CQ$92,MATCH('Rate Trajectory Report'!$B10,'Rate Trajectory Calc'!$A$6:$A$92,0),MATCH('Rate Trajectory Report'!N$5,'Rate Trajectory Calc'!$A$6:$CQ$6,0))/1000)","v":" "},{"$f":"IF(INDEX('Rate Trajectory Calc'!$A$6:$CQ$92,MATCH('Rate Trajectory Report'!$B10,'Rate Trajectory Calc'!$A$6:$A$92,0),MATCH('Rate Trajectory Report'!O$5,'Rate Trajectory Calc'!$A$6:$CQ$6,0))=0,\" \",INDEX('Rate Trajectory Calc'!$A$6:$CQ$92,MATCH('Rate Trajectory Report'!$B10,'Rate Trajectory Calc'!$A$6:$A$92,0),MATCH('Rate Trajectory Report'!O$5,'Rate Trajectory Calc'!$A$6:$CQ$6,0))/1000)","v":" "},{"$f":"IF(INDEX('Rate Trajectory Calc'!$A$6:$CQ$92,MATCH('Rate Trajectory Report'!$B10,'Rate Trajectory Calc'!$A$6:$A$92,0),MATCH('Rate Trajectory Report'!P$5,'Rate Trajectory Calc'!$A$6:$CQ$6,0))=0,\" \",INDEX('Rate Trajectory Calc'!$A$6:$CQ$92,MATCH('Rate Trajectory Report'!$B10,'Rate Trajectory Calc'!$A$6:$A$92,0),MATCH('Rate Trajectory Report'!P$5,'Rate Trajectory Calc'!$A$6:$CQ$6,0))/1000)","v":" "},{"$f":"IF(INDEX('Rate Trajectory Calc'!$A$6:$CQ$92,MATCH('Rate Trajectory Report'!$B10,'Rate Trajectory Calc'!$A$6:$A$92,0),MATCH('Rate Trajectory Report'!Q$5,'Rate Trajectory Calc'!$A$6:$CQ$6,0))=0,\" \",INDEX('Rate Trajectory Calc'!$A$6:$CQ$92,MATCH('Rate Trajectory Report'!$B10,'Rate Trajectory Calc'!$A$6:$A$92,0),MATCH('Rate Trajectory Report'!Q$5,'Rate Trajectory Calc'!$A$6:$CQ$6,0))/1000)","v":" "},{"$f":"IF(INDEX('Rate Trajectory Calc'!$A$6:$CQ$92,MATCH('Rate Trajectory Report'!$B10,'Rate Trajectory Calc'!$A$6:$A$92,0),MATCH('Rate Trajectory Report'!R$5,'Rate Trajectory Calc'!$A$6:$CQ$6,0))=0,\" \",INDEX('Rate Trajectory Calc'!$A$6:$CQ$92,MATCH('Rate Trajectory Report'!$B10,'Rate Trajectory Calc'!$A$6:$A$92,0),MATCH('Rate Trajectory Report'!R$5,'Rate Trajectory Calc'!$A$6:$CQ$6,0))/1000)","v":" "},{"$f":"IF(INDEX('Rate Trajectory Calc'!$A$6:$CQ$92,MATCH('Rate Trajectory Report'!$B10,'Rate Trajectory Calc'!$A$6:$A$92,0),MATCH('Rate Trajectory Report'!S$5,'Rate Trajectory Calc'!$A$6:$CQ$6,0))=0,\" \",INDEX('Rate Trajectory Calc'!$A$6:$CQ$92,MATCH('Rate Trajectory Report'!$B10,'Rate Trajectory Calc'!$A$6:$A$92,0),MATCH('Rate Trajectory Report'!S$5,'Rate Trajectory Calc'!$A$6:$CQ$6,0))/1000)","v":" "},{"$f":"IF(INDEX('Rate Trajectory Calc'!$A$6:$CQ$92,MATCH('Rate Trajectory Report'!$B10,'Rate Trajectory Calc'!$A$6:$A$92,0),MATCH('Rate Trajectory Report'!T$5,'Rate Trajectory Calc'!$A$6:$CQ$6,0))=0,\" \",INDEX('Rate Trajectory Calc'!$A$6:$CQ$92,MATCH('Rate Trajectory Report'!$B10,'Rate Trajectory Calc'!$A$6:$A$92,0),MATCH('Rate Trajectory Report'!T$5,'Rate Trajectory Calc'!$A$6:$CQ$6,0))/1000)","v":" "},{"$f":"IF(INDEX('Rate Trajectory Calc'!$A$6:$CQ$92,MATCH('Rate Trajectory Report'!$B10,'Rate Trajectory Calc'!$A$6:$A$92,0),MATCH('Rate Trajectory Report'!U$5,'Rate Trajectory Calc'!$A$6:$CQ$6,0))=0,\" \",INDEX('Rate Trajectory Calc'!$A$6:$CQ$92,MATCH('Rate Trajectory Report'!$B10,'Rate Trajectory Calc'!$A$6:$A$92,0),MATCH('Rate Trajectory Report'!U$5,'Rate Trajectory Calc'!$A$6:$CQ$6,0))/1000)","v":" "},{"$f":"IF(INDEX('Rate Trajectory Calc'!$A$6:$CQ$92,MATCH('Rate Trajectory Report'!$B10,'Rate Trajectory Calc'!$A$6:$A$92,0),MATCH('Rate Trajectory Report'!V$5,'Rate Trajectory Calc'!$A$6:$CQ$6,0))=0,\" \",INDEX('Rate Trajectory Calc'!$A$6:$CQ$92,MATCH('Rate Trajectory Report'!$B10,'Rate Trajectory Calc'!$A$6:$A$92,0),MATCH('Rate Trajectory Report'!V$5,'Rate Trajectory Calc'!$A$6:$CQ$6,0))/1000)","v":" "},{"$f":"IF(INDEX('Rate Trajectory Calc'!$A$6:$CQ$92,MATCH('Rate Trajectory Report'!$B10,'Rate Trajectory Calc'!$A$6:$A$92,0),MATCH('Rate Trajectory Report'!W$5,'Rate Trajectory Calc'!$A$6:$CQ$6,0))=0,\" \",INDEX('Rate Trajectory Calc'!$A$6:$CQ$92,MATCH('Rate Trajectory Report'!$B10,'Rate Trajectory Calc'!$A$6:$A$92,0),MATCH('Rate Trajectory Report'!W$5,'Rate Trajectory Calc'!$A$6:$CQ$6,0))/1000)","v":" "},{"$f":"IF(INDEX('Rate Trajectory Calc'!$A$6:$CQ$92,MATCH('Rate Trajectory Report'!$B10,'Rate Trajectory Calc'!$A$6:$A$92,0),MATCH('Rate Trajectory Report'!X$5,'Rate Trajectory Calc'!$A$6:$CQ$6,0))=0,\" \",INDEX('Rate Trajectory Calc'!$A$6:$CQ$92,MATCH('Rate Trajectory Report'!$B10,'Rate Trajectory Calc'!$A$6:$A$92,0),MATCH('Rate Trajectory Report'!X$5,'Rate Trajectory Calc'!$A$6:$CQ$6,0))/1000)","v":" "},{"$f":"IF(INDEX('Rate Trajectory Calc'!$A$6:$CQ$92,MATCH('Rate Trajectory Report'!$B10,'Rate Trajectory Calc'!$A$6:$A$92,0),MATCH('Rate Trajectory Report'!Y$5,'Rate Trajectory Calc'!$A$6:$CQ$6,0))=0,\" \",INDEX('Rate Trajectory Calc'!$A$6:$CQ$92,MATCH('Rate Trajectory Report'!$B10,'Rate Trajectory Calc'!$A$6:$A$92,0),MATCH('Rate Trajectory Report'!Y$5,'Rate Trajectory Calc'!$A$6:$CQ$6,0))/1000)","v":" "},{"$f":"IF(INDEX('Rate Trajectory Calc'!$A$6:$CQ$92,MATCH('Rate Trajectory Report'!$B10,'Rate Trajectory Calc'!$A$6:$A$92,0),MATCH('Rate Trajectory Report'!Z$5,'Rate Trajectory Calc'!$A$6:$CQ$6,0))=0,\" \",INDEX('Rate Trajectory Calc'!$A$6:$CQ$92,MATCH('Rate Trajectory Report'!$B10,'Rate Trajectory Calc'!$A$6:$A$92,0),MATCH('Rate Trajectory Report'!Z$5,'Rate Trajectory Calc'!$A$6:$CQ$6,0))/1000)","v":" "},{"$f":"IF(INDEX('Rate Trajectory Calc'!$A$6:$CQ$92,MATCH('Rate Trajectory Report'!$B10,'Rate Trajectory Calc'!$A$6:$A$92,0),MATCH('Rate Trajectory Report'!AA$5,'Rate Trajectory Calc'!$A$6:$CQ$6,0))=0,\" \",INDEX('Rate Trajectory Calc'!$A$6:$CQ$92,MATCH('Rate Trajectory Report'!$B10,'Rate Trajectory Calc'!$A$6:$A$92,0),MATCH('Rate Trajectory Report'!AA$5,'Rate Trajectory Calc'!$A$6:$CQ$6,0))/1000)","v":" "}]
[null,{"$f":"'Rate Trajectory Dashboard'!B15","v":"Hinkley Upgrade - Year 2029"},{"$f":"IFERROR(VLOOKUP(B11,'Rate Trajectory Dashboard'!$B$12:$D$96,3,FALSE)/1000,'Rate Trajectory Report'!C9)","v":0},{"$f":"IF(INDEX('Rate Trajectory Calc'!$A$6:$CQ$92,MATCH('Rate Trajectory Report'!$B11,'Rate Trajectory Calc'!$A$6:$A$92,0),MATCH('Rate Trajectory Report'!D$5,'Rate Trajectory Calc'!$A$6:$CQ$6,0))=0,\" \",INDEX('Rate Trajectory Calc'!$A$6:$CQ$92,MATCH('Rate Trajectory Report'!$B11,'Rate Trajectory Calc'!$A$6:$A$92,0),MATCH('Rate Trajectory Report'!D$5,'Rate Trajectory Calc'!$A$6:$CQ$6,0))/1000)","v":" "},{"$f":"IF(INDEX('Rate Trajectory Calc'!$A$6:$CQ$92,MATCH('Rate Trajectory Report'!$B11,'Rate Trajectory Calc'!$A$6:$A$92,0),MATCH('Rate Trajectory Report'!E$5,'Rate Trajectory Calc'!$A$6:$CQ$6,0))=0,\" \",INDEX('Rate Trajectory Calc'!$A$6:$CQ$92,MATCH('Rate Trajectory Report'!$B11,'Rate Trajectory Calc'!$A$6:$A$92,0),MATCH('Rate Trajectory Report'!E$5,'Rate Trajectory Calc'!$A$6:$CQ$6,0))/1000)","v":" "},{"$f":"IF(INDEX('Rate Trajectory Calc'!$A$6:$CQ$92,MATCH('Rate Trajectory Report'!$B11,'Rate Trajectory Calc'!$A$6:$A$92,0),MATCH('Rate Trajectory Report'!F$5,'Rate Trajectory Calc'!$A$6:$CQ$6,0))=0,\" \",INDEX('Rate Trajectory Calc'!$A$6:$CQ$92,MATCH('Rate Trajectory Report'!$B11,'Rate Trajectory Calc'!$A$6:$A$92,0),MATCH('Rate Trajectory Report'!F$5,'Rate Trajectory Calc'!$A$6:$CQ$6,0))/1000)","v":" "},{"$f":"IF(INDEX('Rate Trajectory Calc'!$A$6:$CQ$92,MATCH('Rate Trajectory Report'!$B11,'Rate Trajectory Calc'!$A$6:$A$92,0),MATCH('Rate Trajectory Report'!G$5,'Rate Trajectory Calc'!$A$6:$CQ$6,0))=0,\" \",INDEX('Rate Trajectory Calc'!$A$6:$CQ$92,MATCH('Rate Trajectory Report'!$B11,'Rate Trajectory Calc'!$A$6:$A$92,0),MATCH('Rate Trajectory Report'!G$5,'Rate Trajectory Calc'!$A$6:$CQ$6,0))/1000)","v":" "},{"$f":"IF(INDEX('Rate Trajectory Calc'!$A$6:$CQ$92,MATCH('Rate Trajectory Report'!$B11,'Rate Trajectory Calc'!$A$6:$A$92,0),MATCH('Rate Trajectory Report'!H$5,'Rate Trajectory Calc'!$A$6:$CQ$6,0))=0,\" \",INDEX('Rate Trajectory Calc'!$A$6:$CQ$92,MATCH('Rate Trajectory Report'!$B11,'Rate Trajectory Calc'!$A$6:$A$92,0),MATCH('Rate Trajectory Report'!H$5,'Rate Trajectory Calc'!$A$6:$CQ$6,0))/1000)","v":" "},{"$f":"IF(INDEX('Rate Trajectory Calc'!$A$6:$CQ$92,MATCH('Rate Trajectory Report'!$B11,'Rate Trajectory Calc'!$A$6:$A$92,0),MATCH('Rate Trajectory Report'!I$5,'Rate Trajectory Calc'!$A$6:$CQ$6,0))=0,\" \",INDEX('Rate Trajectory Calc'!$A$6:$CQ$92,MATCH('Rate Trajectory Report'!$B11,'Rate Trajectory Calc'!$A$6:$A$92,0),MATCH('Rate Trajectory Report'!I$5,'Rate Trajectory Calc'!$A$6:$CQ$6,0))/1000)","v":" "},{"$f":"IF(INDEX('Rate Trajectory Calc'!$A$6:$CQ$92,MATCH('Rate Trajectory Report'!$B11,'Rate Trajectory Calc'!$A$6:$A$92,0),MATCH('Rate Trajectory Report'!J$5,'Rate Trajectory Calc'!$A$6:$CQ$6,0))=0,\" \",INDEX('Rate Trajectory Calc'!$A$6:$CQ$92,MATCH('Rate Trajectory Report'!$B11,'Rate Trajectory Calc'!$A$6:$A$92,0),MATCH('Rate Trajectory Report'!J$5,'Rate Trajectory Calc'!$A$6:$CQ$6,0))/1000)","v":" "},{"$f":"IF(INDEX('Rate Trajectory Calc'!$A$6:$CQ$92,MATCH('Rate Trajectory Report'!$B11,'Rate Trajectory Calc'!$A$6:$A$92,0),MATCH('Rate Trajectory Report'!K$5,'Rate Trajectory Calc'!$A$6:$CQ$6,0))=0,\" \",INDEX('Rate Trajectory Calc'!$A$6:$CQ$92,MATCH('Rate Trajectory Report'!$B11,'Rate Trajectory Calc'!$A$6:$A$92,0),MATCH('Rate Trajectory Report'!K$5,'Rate Trajectory Calc'!$A$6:$CQ$6,0))/1000)","v":" "},{"$f":"IF(INDEX('Rate Trajectory Calc'!$A$6:$CQ$92,MATCH('Rate Trajectory Report'!$B11,'Rate Trajectory Calc'!$A$6:$A$92,0),MATCH('Rate Trajectory Report'!L$5,'Rate Trajectory Calc'!$A$6:$CQ$6,0))=0,\" \",INDEX('Rate Trajectory Calc'!$A$6:$CQ$92,MATCH('Rate Trajectory Report'!$B11,'Rate Trajectory Calc'!$A$6:$A$92,0),MATCH('Rate Trajectory Report'!L$5,'Rate Trajectory Calc'!$A$6:$CQ$6,0))/1000)","v":" "},{"$f":"IF(INDEX('Rate Trajectory Calc'!$A$6:$CQ$92,MATCH('Rate Trajectory Report'!$B11,'Rate Trajectory Calc'!$A$6:$A$92,0),MATCH('Rate Trajectory Report'!M$5,'Rate Trajectory Calc'!$A$6:$CQ$6,0))=0,\" \",INDEX('Rate Trajectory Calc'!$A$6:$CQ$92,MATCH('Rate Trajectory Report'!$B11,'Rate Trajectory Calc'!$A$6:$A$92,0),MATCH('Rate Trajectory Report'!M$5,'Rate Trajectory Calc'!$A$6:$CQ$6,0))/1000)","v":" "},{"$f":"IF(INDEX('Rate Trajectory Calc'!$A$6:$CQ$92,MATCH('Rate Trajectory Report'!$B11,'Rate Trajectory Calc'!$A$6:$A$92,0),MATCH('Rate Trajectory Report'!N$5,'Rate Trajectory Calc'!$A$6:$CQ$6,0))=0,\" \",INDEX('Rate Trajectory Calc'!$A$6:$CQ$92,MATCH('Rate Trajectory Report'!$B11,'Rate Trajectory Calc'!$A$6:$A$92,0),MATCH('Rate Trajectory Report'!N$5,'Rate Trajectory Calc'!$A$6:$CQ$6,0))/1000)","v":" "},{"$f":"IF(INDEX('Rate Trajectory Calc'!$A$6:$CQ$92,MATCH('Rate Trajectory Report'!$B11,'Rate Trajectory Calc'!$A$6:$A$92,0),MATCH('Rate Trajectory Report'!O$5,'Rate Trajectory Calc'!$A$6:$CQ$6,0))=0,\" \",INDEX('Rate Trajectory Calc'!$A$6:$CQ$92,MATCH('Rate Trajectory Report'!$B11,'Rate Trajectory Calc'!$A$6:$A$92,0),MATCH('Rate Trajectory Report'!O$5,'Rate Trajectory Calc'!$A$6:$CQ$6,0))/1000)","v":" "},{"$f":"IF(INDEX('Rate Trajectory Calc'!$A$6:$CQ$92,MATCH('Rate Trajectory Report'!$B11,'Rate Trajectory Calc'!$A$6:$A$92,0),MATCH('Rate Trajectory Report'!P$5,'Rate Trajectory Calc'!$A$6:$CQ$6,0))=0,\" \",INDEX('Rate Trajectory Calc'!$A$6:$CQ$92,MATCH('Rate Trajectory Report'!$B11,'Rate Trajectory Calc'!$A$6:$A$92,0),MATCH('Rate Trajectory Report'!P$5,'Rate Trajectory Calc'!$A$6:$CQ$6,0))/1000)","v":" "},{"$f":"IF(INDEX('Rate Trajectory Calc'!$A$6:$CQ$92,MATCH('Rate Trajectory Report'!$B11,'Rate Trajectory Calc'!$A$6:$A$92,0),MATCH('Rate Trajectory Report'!Q$5,'Rate Trajectory Calc'!$A$6:$CQ$6,0))=0,\" \",INDEX('Rate Trajectory Calc'!$A$6:$CQ$92,MATCH('Rate Trajectory Report'!$B11,'Rate Trajectory Calc'!$A$6:$A$92,0),MATCH('Rate Trajectory Report'!Q$5,'Rate Trajectory Calc'!$A$6:$CQ$6,0))/1000)","v":" "},{"$f":"IF(INDEX('Rate Trajectory Calc'!$A$6:$CQ$92,MATCH('Rate Trajectory Report'!$B11,'Rate Trajectory Calc'!$A$6:$A$92,0),MATCH('Rate Trajectory Report'!R$5,'Rate Trajectory Calc'!$A$6:$CQ$6,0))=0,\" \",INDEX('Rate Trajectory Calc'!$A$6:$CQ$92,MATCH('Rate Trajectory Report'!$B11,'Rate Trajectory Calc'!$A$6:$A$92,0),MATCH('Rate Trajectory Report'!R$5,'Rate Trajectory Calc'!$A$6:$CQ$6,0))/1000)","v":" "},{"$f":"IF(INDEX('Rate Trajectory Calc'!$A$6:$CQ$92,MATCH('Rate Trajectory Report'!$B11,'Rate Trajectory Calc'!$A$6:$A$92,0),MATCH('Rate Trajectory Report'!S$5,'Rate Trajectory Calc'!$A$6:$CQ$6,0))=0,\" \",INDEX('Rate Trajectory Calc'!$A$6:$CQ$92,MATCH('Rate Trajectory Report'!$B11,'Rate Trajectory Calc'!$A$6:$A$92,0),MATCH('Rate Trajectory Report'!S$5,'Rate Trajectory Calc'!$A$6:$CQ$6,0))/1000)","v":" "},{"$f":"IF(INDEX('Rate Trajectory Calc'!$A$6:$CQ$92,MATCH('Rate Trajectory Report'!$B11,'Rate Trajectory Calc'!$A$6:$A$92,0),MATCH('Rate Trajectory Report'!T$5,'Rate Trajectory Calc'!$A$6:$CQ$6,0))=0,\" \",INDEX('Rate Trajectory Calc'!$A$6:$CQ$92,MATCH('Rate Trajectory Report'!$B11,'Rate Trajectory Calc'!$A$6:$A$92,0),MATCH('Rate Trajectory Report'!T$5,'Rate Trajectory Calc'!$A$6:$CQ$6,0))/1000)","v":" "},{"$f":"IF(INDEX('Rate Trajectory Calc'!$A$6:$CQ$92,MATCH('Rate Trajectory Report'!$B11,'Rate Trajectory Calc'!$A$6:$A$92,0),MATCH('Rate Trajectory Report'!U$5,'Rate Trajectory Calc'!$A$6:$CQ$6,0))=0,\" \",INDEX('Rate Trajectory Calc'!$A$6:$CQ$92,MATCH('Rate Trajectory Report'!$B11,'Rate Trajectory Calc'!$A$6:$A$92,0),MATCH('Rate Trajectory Report'!U$5,'Rate Trajectory Calc'!$A$6:$CQ$6,0))/1000)","v":" "},{"$f":"IF(INDEX('Rate Trajectory Calc'!$A$6:$CQ$92,MATCH('Rate Trajectory Report'!$B11,'Rate Trajectory Calc'!$A$6:$A$92,0),MATCH('Rate Trajectory Report'!V$5,'Rate Trajectory Calc'!$A$6:$CQ$6,0))=0,\" \",INDEX('Rate Trajectory Calc'!$A$6:$CQ$92,MATCH('Rate Trajectory Report'!$B11,'Rate Trajectory Calc'!$A$6:$A$92,0),MATCH('Rate Trajectory Report'!V$5,'Rate Trajectory Calc'!$A$6:$CQ$6,0))/1000)","v":" "},{"$f":"IF(INDEX('Rate Trajectory Calc'!$A$6:$CQ$92,MATCH('Rate Trajectory Report'!$B11,'Rate Trajectory Calc'!$A$6:$A$92,0),MATCH('Rate Trajectory Report'!W$5,'Rate Trajectory Calc'!$A$6:$CQ$6,0))=0,\" \",INDEX('Rate Trajectory Calc'!$A$6:$CQ$92,MATCH('Rate Trajectory Report'!$B11,'Rate Trajectory Calc'!$A$6:$A$92,0),MATCH('Rate Trajectory Report'!W$5,'Rate Trajectory Calc'!$A$6:$CQ$6,0))/1000)","v":" "},{"$f":"IF(INDEX('Rate Trajectory Calc'!$A$6:$CQ$92,MATCH('Rate Trajectory Report'!$B11,'Rate Trajectory Calc'!$A$6:$A$92,0),MATCH('Rate Trajectory Report'!X$5,'Rate Trajectory Calc'!$A$6:$CQ$6,0))=0,\" \",INDEX('Rate Trajectory Calc'!$A$6:$CQ$92,MATCH('Rate Trajectory Report'!$B11,'Rate Trajectory Calc'!$A$6:$A$92,0),MATCH('Rate Trajectory Report'!X$5,'Rate Trajectory Calc'!$A$6:$CQ$6,0))/1000)","v":" "},{"$f":"IF(INDEX('Rate Trajectory Calc'!$A$6:$CQ$92,MATCH('Rate Trajectory Report'!$B11,'Rate Trajectory Calc'!$A$6:$A$92,0),MATCH('Rate Trajectory Report'!Y$5,'Rate Trajectory Calc'!$A$6:$CQ$6,0))=0,\" \",INDEX('Rate Trajectory Calc'!$A$6:$CQ$92,MATCH('Rate Trajectory Report'!$B11,'Rate Trajectory Calc'!$A$6:$A$92,0),MATCH('Rate Trajectory Report'!Y$5,'Rate Trajectory Calc'!$A$6:$CQ$6,0))/1000)","v":" "},{"$f":"IF(INDEX('Rate Trajectory Calc'!$A$6:$CQ$92,MATCH('Rate Trajectory Report'!$B11,'Rate Trajectory Calc'!$A$6:$A$92,0),MATCH('Rate Trajectory Report'!Z$5,'Rate Trajectory Calc'!$A$6:$CQ$6,0))=0,\" \",INDEX('Rate Trajectory Calc'!$A$6:$CQ$92,MATCH('Rate Trajectory Report'!$B11,'Rate Trajectory Calc'!$A$6:$A$92,0),MATCH('Rate Trajectory Report'!Z$5,'Rate Trajectory Calc'!$A$6:$CQ$6,0))/1000)","v":" "},{"$f":"IF(INDEX('Rate Trajectory Calc'!$A$6:$CQ$92,MATCH('Rate Trajectory Report'!$B11,'Rate Trajectory Calc'!$A$6:$A$92,0),MATCH('Rate Trajectory Report'!AA$5,'Rate Trajectory Calc'!$A$6:$CQ$6,0))=0,\" \",INDEX('Rate Trajectory Calc'!$A$6:$CQ$92,MATCH('Rate Trajectory Report'!$B11,'Rate Trajectory Calc'!$A$6:$A$92,0),MATCH('Rate Trajectory Report'!AA$5,'Rate Trajectory Calc'!$A$6:$CQ$6,0))/1000)","v":" "}]
[3,"Hinkley Upgrade",{"$f":"IFERROR(VLOOKUP(B12,'Rate Trajectory Dashboard'!$B$12:$D$96,3,FALSE)/1000,'Rate Trajectory Report'!C10)","v":0},{"$f":"IF(SUM(D10:D11)=0,\" \",SUBTOTAL(9,D10:D11))","v":" "},{"$f":"IF(SUM(E10:E11)=0,\" \",SUBTOTAL(9,E10:E11))","v":" "}," "," "," "," "," "," "," "," "," "," "," "," "," "," "," "," "," "," "," "," "," "," "]
[null,{"$f":"'Rate Trajectory Dashboard'!B16","v":"Billing Modernization (Distribution) - Year 2026"},{"$f":"IFERROR(VLOOKUP(B13,'Rate Trajectory Dashboard'!$B$12:$D$96,3,FALSE)/1000,'Rate Trajectory Report'!C11)","v":0},{"$f":"IF(INDEX('Rate Trajectory Calc'!$A$6:$CQ$92,MATCH('Rate Trajectory Report'!$B13,'Rate Trajectory Calc'!$A$6:$A$92,0),MATCH('Rate Trajectory Report'!D$5,'Rate Trajectory Calc'!$A$6:$CQ$6,0))=0,\" \",INDEX('Rate Trajectory Calc'!$A$6:$CQ$92,MATCH('Rate Trajectory Report'!$B13,'Rate Trajectory Calc'!$A$6:$A$92,0),MATCH('Rate Trajectory Report'!D$5,'Rate Trajectory Calc'!$A$6:$CQ$6,0))/1000)","v":" "},{"$f":"IF(INDEX('Rate Trajectory Calc'!$A$6:$CQ$92,MATCH('Rate Trajectory Report'!$B13,'Rate Trajectory Calc'!$A$6:$A$92,0),MATCH('Rate Trajectory Report'!E$5,'Rate Trajectory Calc'!$A$6:$CQ$6,0))=0,\" \",INDEX('Rate Trajectory Calc'!$A$6:$CQ$92,MATCH('Rate Trajectory Report'!$B13,'Rate Trajectory Calc'!$A$6:$A$92,0),MATCH('Rate Trajectory Report'!E$5,'Rate Trajectory Calc'!$A$6:$CQ$6,0))/1000)","v":" "},{"$f":"IF(INDEX('Rate Trajectory Calc'!$A$6:$CQ$92,MATCH('Rate Trajectory Report'!$B13,'Rate Trajectory Calc'!$A$6:$A$92,0),MATCH('Rate Trajectory Report'!F$5,'Rate Trajectory Calc'!$A$6:$CQ$6,0))=0,\" \",INDEX('Rate Trajectory Calc'!$A$6:$CQ$92,MATCH('Rate Trajectory Report'!$B13,'Rate Trajectory Calc'!$A$6:$A$92,0),MATCH('Rate Trajectory Report'!F$5,'Rate Trajectory Calc'!$A$6:$CQ$6,0))/1000)","v":" "},{"$f":"IF(INDEX('Rate Trajectory Calc'!$A$6:$CQ$92,MATCH('Rate Trajectory Report'!$B13,'Rate Trajectory Calc'!$A$6:$A$92,0),MATCH('Rate Trajectory Report'!G$5,'Rate Trajectory Calc'!$A$6:$CQ$6,0))=0,\" \",INDEX('Rate Trajectory Calc'!$A$6:$CQ$92,MATCH('Rate Trajectory Report'!$B13,'Rate Trajectory Calc'!$A$6:$A$92,0),MATCH('Rate Trajectory Report'!G$5,'Rate Trajectory Calc'!$A$6:$CQ$6,0))/1000)","v":" "},{"$f":"IF(INDEX('Rate Trajectory Calc'!$A$6:$CQ$92,MATCH('Rate Trajectory Report'!$B13,'Rate Trajectory Calc'!$A$6:$A$92,0),MATCH('Rate Trajectory Report'!H$5,'Rate Trajectory Calc'!$A$6:$CQ$6,0))=0,\" \",INDEX('Rate Trajectory Calc'!$A$6:$CQ$92,MATCH('Rate Trajectory Report'!$B13,'Rate Trajectory Calc'!$A$6:$A$92,0),MATCH('Rate Trajectory Report'!H$5,'Rate Trajectory Calc'!$A$6:$CQ$6,0))/1000)","v":18.712173825194576},{"$f":"IF(INDEX('Rate Trajectory Calc'!$A$6:$CQ$92,MATCH('Rate Trajectory Report'!$B13,'Rate Trajectory Calc'!$A$6:$A$92,0),MATCH('Rate Trajectory Report'!I$5,'Rate Trajectory Calc'!$A$6:$CQ$6,0))=0,\" \",INDEX('Rate Trajectory Calc'!$A$6:$CQ$92,MATCH('Rate Trajectory Report'!$B13,'Rate Trajectory Calc'!$A$6:$A$92,0),MATCH('Rate Trajectory Report'!I$5,'Rate Trajectory Calc'!$A$6:$CQ$6,0))/1000)","v":" "},{"$f":"IF(INDEX('Rate Trajectory Calc'!$A$6:$CQ$92,MATCH('Rate Trajectory Report'!$B13,'Rate Trajectory Calc'!$A$6:$A$92,0),MATCH('Rate Trajectory Report'!J$5,'Rate Trajectory Calc'!$A$6:$CQ$6,0))=0,\" \",INDEX('Rate Trajectory Calc'!$A$6:$CQ$92,MATCH('Rate Trajectory Report'!$B13,'Rate Trajectory Calc'!$A$6:$A$92,0),MATCH('Rate Trajectory Report'!J$5,'Rate Trajectory Calc'!$A$6:$CQ$6,0))/1000)","v":" "},{"$f":"IF(INDEX('Rate Trajectory Calc'!$A$6:$CQ$92,MATCH('Rate Trajectory Report'!$B13,'Rate Trajectory Calc'!$A$6:$A$92,0),MATCH('Rate Trajectory Report'!K$5,'Rate Trajectory Calc'!$A$6:$CQ$6,0))=0,\" \",INDEX('Rate Trajectory Calc'!$A$6:$CQ$92,MATCH('Rate Trajectory Report'!$B13,'Rate Trajectory Calc'!$A$6:$A$92,0),MATCH('Rate Trajectory Report'!K$5,'Rate Trajectory Calc'!$A$6:$CQ$6,0))/1000)","v":" "},{"$f":"IF(INDEX('Rate Trajectory Calc'!$A$6:$CQ$92,MATCH('Rate Trajectory Report'!$B13,'Rate Trajectory Calc'!$A$6:$A$92,0),MATCH('Rate Trajectory Report'!L$5,'Rate Trajectory Calc'!$A$6:$CQ$6,0))=0,\" \",INDEX('Rate Trajectory Calc'!$A$6:$CQ$92,MATCH('Rate Trajectory Report'!$B13,'Rate Trajectory Calc'!$A$6:$A$92,0),MATCH('Rate Trajectory Report'!L$5,'Rate Trajectory Calc'!$A$6:$CQ$6,0))/1000)","v":" "},{"$f":"IF(INDEX('Rate Trajectory Calc'!$A$6:$CQ$92,MATCH('Rate Trajectory Report'!$B13,'Rate Trajectory Calc'!$A$6:$A$92,0),MATCH('Rate Trajectory Report'!M$5,'Rate Trajectory Calc'!$A$6:$CQ$6,0))=0,\" \",INDEX('Rate Trajectory Calc'!$A$6:$CQ$92,MATCH('Rate Trajectory Report'!$B13,'Rate Trajectory Calc'!$A$6:$A$92,0),MATCH('Rate Trajectory Report'!M$5,'Rate Trajectory Calc'!$A$6:$CQ$6,0))/1000)","v":" "},{"$f":"IF(INDEX('Rate Trajectory Calc'!$A$6:$CQ$92,MATCH('Rate Trajectory Report'!$B13,'Rate Trajectory Calc'!$A$6:$A$92,0),MATCH('Rate Trajectory Report'!N$5,'Rate Trajectory Calc'!$A$6:$CQ$6,0))=0,\" \",INDEX('Rate Trajectory Calc'!$A$6:$CQ$92,MATCH('Rate Trajectory Report'!$B13,'Rate Trajectory Calc'!$A$6:$A$92,0),MATCH('Rate Trajectory Report'!N$5,'Rate Trajectory Calc'!$A$6:$CQ$6,0))/1000)","v":" "},{"$f":"IF(INDEX('Rate Trajectory Calc'!$A$6:$CQ$92,MATCH('Rate Trajectory Report'!$B13,'Rate Trajectory Calc'!$A$6:$A$92,0),MATCH('Rate Trajectory Report'!O$5,'Rate Trajectory Calc'!$A$6:$CQ$6,0))=0,\" \",INDEX('Rate Trajectory Calc'!$A$6:$CQ$92,MATCH('Rate Trajectory Report'!$B13,'Rate Trajectory Calc'!$A$6:$A$92,0),MATCH('Rate Trajectory Report'!O$5,'Rate Trajectory Calc'!$A$6:$CQ$6,0))/1000)","v":" "},{"$f":"IF(INDEX('Rate Trajectory Calc'!$A$6:$CQ$92,MATCH('Rate Trajectory Report'!$B13,'Rate Trajectory Calc'!$A$6:$A$92,0),MATCH('Rate Trajectory Report'!P$5,'Rate Trajectory Calc'!$A$6:$CQ$6,0))=0,\" \",INDEX('Rate Trajectory Calc'!$A$6:$CQ$92,MATCH('Rate Trajectory Report'!$B13,'Rate Trajectory Calc'!$A$6:$A$92,0),MATCH('Rate Trajectory Report'!P$5,'Rate Trajectory Calc'!$A$6:$CQ$6,0))/1000)","v":" "},{"$f":"IF(INDEX('Rate Trajectory Calc'!$A$6:$CQ$92,MATCH('Rate Trajectory Report'!$B13,'Rate Trajectory Calc'!$A$6:$A$92,0),MATCH('Rate Trajectory Report'!Q$5,'Rate Trajectory Calc'!$A$6:$CQ$6,0))=0,\" \",INDEX('Rate Trajectory Calc'!$A$6:$CQ$92,MATCH('Rate Trajectory Report'!$B13,'Rate Trajectory Calc'!$A$6:$A$92,0),MATCH('Rate Trajectory Report'!Q$5,'Rate Trajectory Calc'!$A$6:$CQ$6,0))/1000)","v":" "},{"$f":"IF(INDEX('Rate Trajectory Calc'!$A$6:$CQ$92,MATCH('Rate Trajectory Report'!$B13,'Rate Trajectory Calc'!$A$6:$A$92,0),MATCH('Rate Trajectory Report'!R$5,'Rate Trajectory Calc'!$A$6:$CQ$6,0))=0,\" \",INDEX('Rate Trajectory Calc'!$A$6:$CQ$92,MATCH('Rate Trajectory Report'!$B13,'Rate Trajectory Calc'!$A$6:$A$92,0),MATCH('Rate Trajectory Report'!R$5,'Rate Trajectory Calc'!$A$6:$CQ$6,0))/1000)","v":" "},{"$f":"IF(INDEX('Rate Trajectory Calc'!$A$6:$CQ$92,MATCH('Rate Trajectory Report'!$B13,'Rate Trajectory Calc'!$A$6:$A$92,0),MATCH('Rate Trajectory Report'!S$5,'Rate Trajectory Calc'!$A$6:$CQ$6,0))=0,\" \",INDEX('Rate Trajectory Calc'!$A$6:$CQ$92,MATCH('Rate Trajectory Report'!$B13,'Rate Trajectory Calc'!$A$6:$A$92,0),MATCH('Rate Trajectory Report'!S$5,'Rate Trajectory Calc'!$A$6:$CQ$6,0))/1000)","v":" "},{"$f":"IF(INDEX('Rate Trajectory Calc'!$A$6:$CQ$92,MATCH('Rate Trajectory Report'!$B13,'Rate Trajectory Calc'!$A$6:$A$92,0),MATCH('Rate Trajectory Report'!T$5,'Rate Trajectory Calc'!$A$6:$CQ$6,0))=0,\" \",INDEX('Rate Trajectory Calc'!$A$6:$CQ$92,MATCH('Rate Trajectory Report'!$B13,'Rate Trajectory Calc'!$A$6:$A$92,0),MATCH('Rate Trajectory Report'!T$5,'Rate Trajectory Calc'!$A$6:$CQ$6,0))/1000)","v":-18.712173825194576},{"$f":"IF(INDEX('Rate Trajectory Calc'!$A$6:$CQ$92,MATCH('Rate Trajectory Report'!$B13,'Rate Trajectory Calc'!$A$6:$A$92,0),MATCH('Rate Trajectory Report'!U$5,'Rate Trajectory Calc'!$A$6:$CQ$6,0))=0,\" \",INDEX('Rate Trajectory Calc'!$A$6:$CQ$92,MATCH('Rate Trajectory Report'!$B13,'Rate Trajectory Calc'!$A$6:$A$92,0),MATCH('Rate Trajectory Report'!U$5,'Rate Trajectory Calc'!$A$6:$CQ$6,0))/1000)","v":" "},{"$f":"IF(INDEX('Rate Trajectory Calc'!$A$6:$CQ$92,MATCH('Rate Trajectory Report'!$B13,'Rate Trajectory Calc'!$A$6:$A$92,0),MATCH('Rate Trajectory Report'!V$5,'Rate Trajectory Calc'!$A$6:$CQ$6,0))=0,\" \",INDEX('Rate Trajectory Calc'!$A$6:$CQ$92,MATCH('Rate Trajectory Report'!$B13,'Rate Trajectory Calc'!$A$6:$A$92,0),MATCH('Rate Trajectory Report'!V$5,'Rate Trajectory Calc'!$A$6:$CQ$6,0))/1000)","v":" "},{"$f":"IF(INDEX('Rate Trajectory Calc'!$A$6:$CQ$92,MATCH('Rate Trajectory Report'!$B13,'Rate Trajectory Calc'!$A$6:$A$92,0),MATCH('Rate Trajectory Report'!W$5,'Rate Trajectory Calc'!$A$6:$CQ$6,0))=0,\" \",INDEX('Rate Trajectory Calc'!$A$6:$CQ$92,MATCH('Rate Trajectory Report'!$B13,'Rate Trajectory Calc'!$A$6:$A$92,0),MATCH('Rate Trajectory Report'!W$5,'Rate Trajectory Calc'!$A$6:$CQ$6,0))/1000)","v":" "},{"$f":"IF(INDEX('Rate Trajectory Calc'!$A$6:$CQ$92,MATCH('Rate Trajectory Report'!$B13,'Rate Trajectory Calc'!$A$6:$A$92,0),MATCH('Rate Trajectory Report'!X$5,'Rate Trajectory Calc'!$A$6:$CQ$6,0))=0,\" \",INDEX('Rate Trajectory Calc'!$A$6:$CQ$92,MATCH('Rate Trajectory Report'!$B13,'Rate Trajectory Calc'!$A$6:$A$92,0),MATCH('Rate Trajectory Report'!X$5,'Rate Trajectory Calc'!$A$6:$CQ$6,0))/1000)","v":" "},{"$f":"IF(INDEX('Rate Trajectory Calc'!$A$6:$CQ$92,MATCH('Rate Trajectory Report'!$B13,'Rate Trajectory Calc'!$A$6:$A$92,0),MATCH('Rate Trajectory Report'!Y$5,'Rate Trajectory Calc'!$A$6:$CQ$6,0))=0,\" \",INDEX('Rate Trajectory Calc'!$A$6:$CQ$92,MATCH('Rate Trajectory Report'!$B13,'Rate Trajectory Calc'!$A$6:$A$92,0),MATCH('Rate Trajectory Report'!Y$5,'Rate Trajectory Calc'!$A$6:$CQ$6,0))/1000)","v":" "},{"$f":"IF(INDEX('Rate Trajectory Calc'!$A$6:$CQ$92,MATCH('Rate Trajectory Report'!$B13,'Rate Trajectory Calc'!$A$6:$A$92,0),MATCH('Rate Trajectory Report'!Z$5,'Rate Trajectory Calc'!$A$6:$CQ$6,0))=0,\" \",INDEX('Rate Trajectory Calc'!$A$6:$CQ$92,MATCH('Rate Trajectory Report'!$B13,'Rate Trajectory Calc'!$A$6:$A$92,0),MATCH('Rate Trajectory Report'!Z$5,'Rate Trajectory Calc'!$A$6:$CQ$6,0))/1000)","v":" "},{"$f":"IF(INDEX('Rate Trajectory Calc'!$A$6:$CQ$92,MATCH('Rate Trajectory Report'!$B13,'Rate Trajectory Calc'!$A$6:$A$92,0),MATCH('Rate Trajectory Report'!AA$5,'Rate Trajectory Calc'!$A$6:$CQ$6,0))=0,\" \",INDEX('Rate Trajectory Calc'!$A$6:$CQ$92,MATCH('Rate Trajectory Report'!$B13,'Rate Trajectory Calc'!$A$6:$A$92,0),MATCH('Rate Trajectory Report'!AA$5,'Rate Trajectory Calc'!$A$6:$CQ$6,0))/1000)","v":" "}]
[null,{"$f":"'Rate Trajectory Dashboard'!B17","v":"Billing Modernization (Distribution) - Year 2027"},{"$f":"IFERROR(VLOOKUP(B14,'Rate Trajectory Dashboard'!$B$12:$D$96,3,FALSE)/1000,'Rate Trajectory Report'!C12)","v":0},{"$f":"IF(INDEX('Rate Trajectory Calc'!$A$6:$CQ$92,MATCH('Rate Trajectory Report'!$B14,'Rate Trajectory Calc'!$A$6:$A$92,0),MATCH('Rate Trajectory Report'!D$5,'Rate Trajectory Calc'!$A$6:$CQ$6,0))=0,\" \",INDEX('Rate Trajectory Calc'!$A$6:$CQ$92,MATCH('Rate Trajectory Report'!$B14,'Rate Trajectory Calc'!$A$6:$A$92,0),MATCH('Rate Trajectory Report'!D$5,'Rate Trajectory Calc'!$A$6:$CQ$6,0))/1000)","v":" "},{"$f":"IF(INDEX('Rate Trajectory Calc'!$A$6:$CQ$92,MATCH('Rate Trajectory Report'!$B14,'Rate Trajectory Calc'!$A$6:$A$92,0),MATCH('Rate Trajectory Report'!E$5,'Rate Trajectory Calc'!$A$6:$CQ$6,0))=0,\" \",INDEX('Rate Trajectory Calc'!$A$6:$CQ$92,MATCH('Rate Trajectory Report'!$B14,'Rate Trajectory Calc'!$A$6:$A$92,0),MATCH('Rate Trajectory Report'!E$5,'Rate Trajectory Calc'!$A$6:$CQ$6,0))/1000)","v":" "},{"$f":"IF(INDEX('Rate Trajectory Calc'!$A$6:$CQ$92,MATCH('Rate Trajectory Report'!$B14,'Rate Trajectory Calc'!$A$6:$A$92,0),MATCH('Rate Trajectory Report'!F$5,'Rate Trajectory Calc'!$A$6:$CQ$6,0))=0,\" \",INDEX('Rate Trajectory Calc'!$A$6:$CQ$92,MATCH('Rate Trajectory Report'!$B14,'Rate Trajectory Calc'!$A$6:$A$92,0),MATCH('Rate Trajectory Report'!F$5,'Rate Trajectory Calc'!$A$6:$CQ$6,0))/1000)","v":" "},{"$f":"IF(INDEX('Rate Trajectory Calc'!$A$6:$CQ$92,MATCH('Rate Trajectory Report'!$B14,'Rate Trajectory Calc'!$A$6:$A$92,0),MATCH('Rate Trajectory Report'!G$5,'Rate Trajectory Calc'!$A$6:$CQ$6,0))=0,\" \",INDEX('Rate Trajectory Calc'!$A$6:$CQ$92,MATCH('Rate Trajectory Report'!$B14,'Rate Trajectory Calc'!$A$6:$A$92,0),MATCH('Rate Trajectory Report'!G$5,'Rate Trajectory Calc'!$A$6:$CQ$6,0))/1000)","v":" "},{"$f":"IF(INDEX('Rate Trajectory Calc'!$A$6:$CQ$92,MATCH('Rate Trajectory Report'!$B14,'Rate Trajectory Calc'!$A$6:$A$92,0),MATCH('Rate Trajectory Report'!H$5,'Rate Trajectory Calc'!$A$6:$CQ$6,0))=0,\" \",INDEX('Rate Trajectory Calc'!$A$6:$CQ$92,MATCH('Rate Trajectory Report'!$B14,'Rate Trajectory Calc'!$A$6:$A$92,0),MATCH('Rate Trajectory Report'!H$5,'Rate Trajectory Calc'!$A$6:$CQ$6,0))/1000)","v":" "},{"$f":"IF(INDEX('Rate Trajectory Calc'!$A$6:$CQ$92,MATCH('Rate Trajectory Report'!$B14,'Rate Trajectory Calc'!$A$6:$A$92,0),MATCH('Rate Trajectory Report'!I$5,'Rate Trajectory Calc'!$A$6:$CQ$6,0))=0,\" \",INDEX('Rate Trajectory Calc'!$A$6:$CQ$92,MATCH('Rate Trajectory Report'!$B14,'Rate Trajectory Calc'!$A$6:$A$92,0),MATCH('Rate Trajectory Report'!I$5,'Rate Trajectory Calc'!$A$6:$CQ$6,0))/1000)","v":" "},{"$f":"IF(INDEX('Rate Trajectory Calc'!$A$6:$CQ$92,MATCH('Rate Trajectory Report'!$B14,'Rate Trajectory Calc'!$A$6:$A$92,0),MATCH('Rate Trajectory Report'!J$5,'Rate Trajectory Calc'!$A$6:$CQ$6,0))=0,\" \",INDEX('Rate Trajectory Calc'!$A$6:$CQ$92,MATCH('Rate Trajectory Report'!$B14,'Rate Trajectory Calc'!$A$6:$A$92,0),MATCH('Rate Trajectory Report'!J$5,'Rate Trajectory Calc'!$A$6:$CQ$6,0))/1000)","v":" "},{"$f":"IF(INDEX('Rate Trajectory Calc'!$A$6:$CQ$92,MATCH('Rate Trajectory Report'!$B14,'Rate Trajectory Calc'!$A$6:$A$92,0),MATCH('Rate Trajectory Report'!K$5,'Rate Trajectory Calc'!$A$6:$CQ$6,0))=0,\" \",INDEX('Rate Trajectory Calc'!$A$6:$CQ$92,MATCH('Rate Trajectory Report'!$B14,'Rate Trajectory Calc'!$A$6:$A$92,0),MATCH('Rate Trajectory Report'!K$5,'Rate Trajectory Calc'!$A$6:$CQ$6,0))/1000)","v":" "},{"$f":"IF(INDEX('Rate Trajectory Calc'!$A$6:$CQ$92,MATCH('Rate Trajectory Report'!$B14,'Rate Trajectory Calc'!$A$6:$A$92,0),MATCH('Rate Trajectory Report'!L$5,'Rate Trajectory Calc'!$A$6:$CQ$6,0))=0,\" \",INDEX('Rate Trajectory Calc'!$A$6:$CQ$92,MATCH('Rate Trajectory Report'!$B14,'Rate Trajectory Calc'!$A$6:$A$92,0),MATCH('Rate Trajectory Report'!L$5,'Rate Trajectory Calc'!$A$6:$CQ$6,0))/1000)","v":" "},{"$f":"IF(INDEX('Rate Trajectory Calc'!$A$6:$CQ$92,MATCH('Rate Trajectory Report'!$B14,'Rate Trajectory Calc'!$A$6:$A$92,0),MATCH('Rate Trajectory Report'!M$5,'Rate Trajectory Calc'!$A$6:$CQ$6,0))=0,\" \",INDEX('Rate Trajectory Calc'!$A$6:$CQ$92,MATCH('Rate Trajectory Report'!$B14,'Rate Trajectory Calc'!$A$6:$A$92,0),MATCH('Rate Trajectory Report'!M$5,'Rate Trajectory Calc'!$A$6:$CQ$6,0))/1000)","v":" "},{"$f":"IF(INDEX('Rate Trajectory Calc'!$A$6:$CQ$92,MATCH('Rate Trajectory Report'!$B14,'Rate Trajectory Calc'!$A$6:$A$92,0),MATCH('Rate Trajectory Report'!N$5,'Rate Trajectory Calc'!$A$6:$CQ$6,0))=0,\" \",INDEX('Rate Trajectory Calc'!$A$6:$CQ$92,MATCH('Rate Trajectory Report'!$B14,'Rate Trajectory Calc'!$A$6:$A$92,0),MATCH('Rate Trajectory Report'!N$5,'Rate Trajectory Calc'!$A$6:$CQ$6,0))/1000)","v":" "},{"$f":"IF(INDEX('Rate Trajectory Calc'!$A$6:$CQ$92,MATCH('Rate Trajectory Report'!$B14,'Rate Trajectory Calc'!$A$6:$A$92,0),MATCH('Rate Trajectory Report'!O$5,'Rate Trajectory Calc'!$A$6:$CQ$6,0))=0,\" \",INDEX('Rate Trajectory Calc'!$A$6:$CQ$92,MATCH('Rate Trajectory Report'!$B14,'Rate Trajectory Calc'!$A$6:$A$92,0),MATCH('Rate Trajectory Report'!O$5,'Rate Trajectory Calc'!$A$6:$CQ$6,0))/1000)","v":" "},{"$f":"IF(INDEX('Rate Trajectory Calc'!$A$6:$CQ$92,MATCH('Rate Trajectory Report'!$B14,'Rate Trajectory Calc'!$A$6:$A$92,0),MATCH('Rate Trajectory Report'!P$5,'Rate Trajectory Calc'!$A$6:$CQ$6,0))=0,\" \",INDEX('Rate Trajectory Calc'!$A$6:$CQ$92,MATCH('Rate Trajectory Report'!$B14,'Rate Trajectory Calc'!$A$6:$A$92,0),MATCH('Rate Trajectory Report'!P$5,'Rate Trajectory Calc'!$A$6:$CQ$6,0))/1000)","v":" "},{"$f":"IF(INDEX('Rate Trajectory Calc'!$A$6:$CQ$92,MATCH('Rate Trajectory Report'!$B14,'Rate Trajectory Calc'!$A$6:$A$92,0),MATCH('Rate Trajectory Report'!Q$5,'Rate Trajectory Calc'!$A$6:$CQ$6,0))=0,\" \",INDEX('Rate Trajectory Calc'!$A$6:$CQ$92,MATCH('Rate Trajectory Report'!$B14,'Rate Trajectory Calc'!$A$6:$A$92,0),MATCH('Rate Trajectory Report'!Q$5,'Rate Trajectory Calc'!$A$6:$CQ$6,0))/1000)","v":" "},{"$f":"IF(INDEX('Rate Trajectory Calc'!$A$6:$CQ$92,MATCH('Rate Trajectory Report'!$B14,'Rate Trajectory Calc'!$A$6:$A$92,0),MATCH('Rate Trajectory Report'!R$5,'Rate Trajectory Calc'!$A$6:$CQ$6,0))=0,\" \",INDEX('Rate Trajectory Calc'!$A$6:$CQ$92,MATCH('Rate Trajectory Report'!$B14,'Rate Trajectory Calc'!$A$6:$A$92,0),MATCH('Rate Trajectory Report'!R$5,'Rate Trajectory Calc'!$A$6:$CQ$6,0))/1000)","v":" "},{"$f":"IF(INDEX('Rate Trajectory Calc'!$A$6:$CQ$92,MATCH('Rate Trajectory Report'!$B14,'Rate Trajectory Calc'!$A$6:$A$92,0),MATCH('Rate Trajectory Report'!S$5,'Rate Trajectory Calc'!$A$6:$CQ$6,0))=0,\" \",INDEX('Rate Trajectory Calc'!$A$6:$CQ$92,MATCH('Rate Trajectory Report'!$B14,'Rate Trajectory Calc'!$A$6:$A$92,0),MATCH('Rate Trajectory Report'!S$5,'Rate Trajectory Calc'!$A$6:$CQ$6,0))/1000)","v":" "},{"$f":"IF(INDEX('Rate Trajectory Calc'!$A$6:$CQ$92,MATCH('Rate Trajectory Report'!$B14,'Rate Trajectory Calc'!$A$6:$A$92,0),MATCH('Rate Trajectory Report'!T$5,'Rate Trajectory Calc'!$A$6:$CQ$6,0))=0,\" \",INDEX('Rate Trajectory Calc'!$A$6:$CQ$92,MATCH('Rate Trajectory Report'!$B14,'Rate Trajectory Calc'!$A$6:$A$92,0),MATCH('Rate Trajectory Report'!T$5,'Rate Trajectory Calc'!$A$6:$CQ$6,0))/1000)","v":17.751341834851161},{"$f":"IF(INDEX('Rate Trajectory Calc'!$A$6:$CQ$92,MATCH('Rate Trajectory Report'!$B14,'Rate Trajectory Calc'!$A$6:$A$92,0),MATCH('Rate Trajectory Report'!U$5,'Rate Trajectory Calc'!$A$6:$CQ$6,0))=0,\" \",INDEX('Rate Trajectory Calc'!$A$6:$CQ$92,MATCH('Rate Trajectory Report'!$B14,'Rate Trajectory Calc'!$A$6:$A$92,0),MATCH('Rate Trajectory Report'!U$5,'Rate Trajectory Calc'!$A$6:$CQ$6,0))/1000)","v":" "},{"$f":"IF(INDEX('Rate Trajectory Calc'!$A$6:$CQ$92,MATCH('Rate Trajectory Report'!$B14,'Rate Trajectory Calc'!$A$6:$A$92,0),MATCH('Rate Trajectory Report'!V$5,'Rate Trajectory Calc'!$A$6:$CQ$6,0))=0,\" \",INDEX('Rate Trajectory Calc'!$A$6:$CQ$92,MATCH('Rate Trajectory Report'!$B14,'Rate Trajectory Calc'!$A$6:$A$92,0),MATCH('Rate Trajectory Report'!V$5,'Rate Trajectory Calc'!$A$6:$CQ$6,0))/1000)","v":" "},{"$f":"IF(INDEX('Rate Trajectory Calc'!$A$6:$CQ$92,MATCH('Rate Trajectory Report'!$B14,'Rate Trajectory Calc'!$A$6:$A$92,0),MATCH('Rate Trajectory Report'!W$5,'Rate Trajectory Calc'!$A$6:$CQ$6,0))=0,\" \",INDEX('Rate Trajectory Calc'!$A$6:$CQ$92,MATCH('Rate Trajectory Report'!$B14,'Rate Trajectory Calc'!$A$6:$A$92,0),MATCH('Rate Trajectory Report'!W$5,'Rate Trajectory Calc'!$A$6:$CQ$6,0))/1000)","v":" "},{"$f":"IF(INDEX('Rate Trajectory Calc'!$A$6:$CQ$92,MATCH('Rate Trajectory Report'!$B14,'Rate Trajectory Calc'!$A$6:$A$92,0),MATCH('Rate Trajectory Report'!X$5,'Rate Trajectory Calc'!$A$6:$CQ$6,0))=0,\" \",INDEX('Rate Trajectory Calc'!$A$6:$CQ$92,MATCH('Rate Trajectory Report'!$B14,'Rate Trajectory Calc'!$A$6:$A$92,0),MATCH('Rate Trajectory Report'!X$5,'Rate Trajectory Calc'!$A$6:$CQ$6,0))/1000)","v":" "},{"$f":"IF(INDEX('Rate Trajectory Calc'!$A$6:$CQ$92,MATCH('Rate Trajectory Report'!$B14,'Rate Trajectory Calc'!$A$6:$A$92,0),MATCH('Rate Trajectory Report'!Y$5,'Rate Trajectory Calc'!$A$6:$CQ$6,0))=0,\" \",INDEX('Rate Trajectory Calc'!$A$6:$CQ$92,MATCH('Rate Trajectory Report'!$B14,'Rate Trajectory Calc'!$A$6:$A$92,0),MATCH('Rate Trajectory Report'!Y$5,'Rate Trajectory Calc'!$A$6:$CQ$6,0))/1000)","v":" "},{"$f":"IF(INDEX('Rate Trajectory Calc'!$A$6:$CQ$92,MATCH('Rate Trajectory Report'!$B14,'Rate Trajectory Calc'!$A$6:$A$92,0),MATCH('Rate Trajectory Report'!Z$5,'Rate Trajectory Calc'!$A$6:$CQ$6,0))=0,\" \",INDEX('Rate Trajectory Calc'!$A$6:$CQ$92,MATCH('Rate Trajectory Report'!$B14,'Rate Trajectory Calc'!$A$6:$A$92,0),MATCH('Rate Trajectory Report'!Z$5,'Rate Trajectory Calc'!$A$6:$CQ$6,0))/1000)","v":" "},{"$f":"IF(INDEX('Rate Trajectory Calc'!$A$6:$CQ$92,MATCH('Rate Trajectory Report'!$B14,'Rate Trajectory Calc'!$A$6:$A$92,0),MATCH('Rate Trajectory Report'!AA$5,'Rate Trajectory Calc'!$A$6:$CQ$6,0))=0,\" \",INDEX('Rate Trajectory Calc'!$A$6:$CQ$92,MATCH('Rate Trajectory Report'!$B14,'Rate Trajectory Calc'!$A$6:$A$92,0),MATCH('Rate Trajectory Report'!AA$5,'Rate Trajectory Calc'!$A$6:$CQ$6,0))/1000)","v":" "}]
[null,{"$f":"'Rate Trajectory Dashboard'!B18","v":"Billing Modernization (Distribution) - Year 2028"},{"$f":"IFERROR(VLOOKUP(B15,'Rate Trajectory Dashboard'!$B$12:$D$96,3,FALSE)/1000,'Rate Trajectory Report'!C13)","v":0},{"$f":"IF(INDEX('Rate Trajectory Calc'!$A$6:$CQ$92,MATCH('Rate Trajectory Report'!$B15,'Rate Trajectory Calc'!$A$6:$A$92,0),MATCH('Rate Trajectory Report'!D$5,'Rate Trajectory Calc'!$A$6:$CQ$6,0))=0,\" \",INDEX('Rate Trajectory Calc'!$A$6:$CQ$92,MATCH('Rate Trajectory Report'!$B15,'Rate Trajectory Calc'!$A$6:$A$92,0),MATCH('Rate Trajectory Report'!D$5,'Rate Trajectory Calc'!$A$6:$CQ$6,0))/1000)","v":" "},{"$f":"IF(INDEX('Rate Trajectory Calc'!$A$6:$CQ$92,MATCH('Rate Trajectory Report'!$B15,'Rate Trajectory Calc'!$A$6:$A$92,0),MATCH('Rate Trajectory Report'!E$5,'Rate Trajectory Calc'!$A$6:$CQ$6,0))=0,\" \",INDEX('Rate Trajectory Calc'!$A$6:$CQ$92,MATCH('Rate Trajectory Report'!$B15,'Rate Trajectory Calc'!$A$6:$A$92,0),MATCH('Rate Trajectory Report'!E$5,'Rate Trajectory Calc'!$A$6:$CQ$6,0))/1000)","v":" "},{"$f":"IF(INDEX('Rate Trajectory Calc'!$A$6:$CQ$92,MATCH('Rate Trajectory Report'!$B15,'Rate Trajectory Calc'!$A$6:$A$92,0),MATCH('Rate Trajectory Report'!F$5,'Rate Trajectory Calc'!$A$6:$CQ$6,0))=0,\" \",INDEX('Rate Trajectory Calc'!$A$6:$CQ$92,MATCH('Rate Trajectory Report'!$B15,'Rate Trajectory Calc'!$A$6:$A$92,0),MATCH('Rate Trajectory Report'!F$5,'Rate Trajectory Calc'!$A$6:$CQ$6,0))/1000)","v":" "},{"$f":"IF(INDEX('Rate Trajectory Calc'!$A$6:$CQ$92,MATCH('Rate Trajectory Report'!$B15,'Rate Trajectory Calc'!$A$6:$A$92,0),MATCH('Rate Trajectory Report'!G$5,'Rate Trajectory Calc'!$A$6:$CQ$6,0))=0,\" \",INDEX('Rate Trajectory Calc'!$A$6:$CQ$92,MATCH('Rate Trajectory Report'!$B15,'Rate Trajectory Calc'!$A$6:$A$92,0),MATCH('Rate Trajectory Report'!G$5,'Rate Trajectory Calc'!$A$6:$CQ$6,0))/1000)","v":" "},{"$f":"IF(INDEX('Rate Trajectory Calc'!$A$6:$CQ$92,MATCH('Rate Trajectory Report'!$B15,'Rate Trajectory Calc'!$A$6:$A$92,0),MATCH('Rate Trajectory Report'!H$5,'Rate Trajectory Calc'!$A$6:$CQ$6,0))=0,\" \",INDEX('Rate Trajectory Calc'!$A$6:$CQ$92,MATCH('Rate Trajectory Report'!$B15,'Rate Trajectory Calc'!$A$6:$A$92,0),MATCH('Rate Trajectory Report'!H$5,'Rate Trajectory Calc'!$A$6:$CQ$6,0))/1000)","v":" "},{"$f":"IF(INDEX('Rate Trajectory Calc'!$A$6:$CQ$92,MATCH('Rate Trajectory Report'!$B15,'Rate Trajectory Calc'!$A$6:$A$92,0),MATCH('Rate Trajectory Report'!I$5,'Rate Trajectory Calc'!$A$6:$CQ$6,0))=0,\" \",INDEX('Rate Trajectory Calc'!$A$6:$CQ$92,MATCH('Rate Trajectory Report'!$B15,'Rate Trajectory Calc'!$A$6:$A$92,0),MATCH('Rate Trajectory Report'!I$5,'Rate Trajectory Calc'!$A$6:$CQ$6,0))/1000)","v":" "},{"$f":"IF(INDEX('Rate Trajectory Calc'!$A$6:$CQ$92,MATCH('Rate Trajectory Report'!$B15,'Rate Trajectory Calc'!$A$6:$A$92,0),MATCH('Rate Trajectory Report'!J$5,'Rate Trajectory Calc'!$A$6:$CQ$6,0))=0,\" \",INDEX('Rate Trajectory Calc'!$A$6:$CQ$92,MATCH('Rate Trajectory Report'!$B15,'Rate Trajectory Calc'!$A$6:$A$92,0),MATCH('Rate Trajectory Report'!J$5,'Rate Trajectory Calc'!$A$6:$CQ$6,0))/1000)","v":" "},{"$f":"IF(INDEX('Rate Trajectory Calc'!$A$6:$CQ$92,MATCH('Rate Trajectory Report'!$B15,'Rate Trajectory Calc'!$A$6:$A$92,0),MATCH('Rate Trajectory Report'!K$5,'Rate Trajectory Calc'!$A$6:$CQ$6,0))=0,\" \",INDEX('Rate Trajectory Calc'!$A$6:$CQ$92,MATCH('Rate Trajectory Report'!$B15,'Rate Trajectory Calc'!$A$6:$A$92,0),MATCH('Rate Trajectory Report'!K$5,'Rate Trajectory Calc'!$A$6:$CQ$6,0))/1000)","v":" "},{"$f":"IF(INDEX('Rate Trajectory Calc'!$A$6:$CQ$92,MATCH('Rate Trajectory Report'!$B15,'Rate Trajectory Calc'!$A$6:$A$92,0),MATCH('Rate Trajectory Report'!L$5,'Rate Trajectory Calc'!$A$6:$CQ$6,0))=0,\" \",INDEX('Rate Trajectory Calc'!$A$6:$CQ$92,MATCH('Rate Trajectory Report'!$B15,'Rate Trajectory Calc'!$A$6:$A$92,0),MATCH('Rate Trajectory Report'!L$5,'Rate Trajectory Calc'!$A$6:$CQ$6,0))/1000)","v":" "},{"$f":"IF(INDEX('Rate Trajectory Calc'!$A$6:$CQ$92,MATCH('Rate Trajectory Report'!$B15,'Rate Trajectory Calc'!$A$6:$A$92,0),MATCH('Rate Trajectory Report'!M$5,'Rate Trajectory Calc'!$A$6:$CQ$6,0))=0,\" \",INDEX('Rate Trajectory Calc'!$A$6:$CQ$92,MATCH('Rate Trajectory Report'!$B15,'Rate Trajectory Calc'!$A$6:$A$92,0),MATCH('Rate Trajectory Report'!M$5,'Rate Trajectory Calc'!$A$6:$CQ$6,0))/1000)","v":" "},{"$f":"IF(INDEX('Rate Trajectory Calc'!$A$6:$CQ$92,MATCH('Rate Trajectory Report'!$B15,'Rate Trajectory Calc'!$A$6:$A$92,0),MATCH('Rate Trajectory Report'!N$5,'Rate Trajectory Calc'!$A$6:$CQ$6,0))=0,\" \",INDEX('Rate Trajectory Calc'!$A$6:$CQ$92,MATCH('Rate Trajectory Report'!$B15,'Rate Trajectory Calc'!$A$6:$A$92,0),MATCH('Rate Trajectory Report'!N$5,'Rate Trajectory Calc'!$A$6:$CQ$6,0))/1000)","v":" "},{"$f":"IF(INDEX('Rate Trajectory Calc'!$A$6:$CQ$92,MATCH('Rate Trajectory Report'!$B15,'Rate Trajectory Calc'!$A$6:$A$92,0),MATCH('Rate Trajectory Report'!O$5,'Rate Trajectory Calc'!$A$6:$CQ$6,0))=0,\" \",INDEX('Rate Trajectory Calc'!$A$6:$CQ$92,MATCH('Rate Trajectory Report'!$B15,'Rate Trajectory Calc'!$A$6:$A$92,0),MATCH('Rate Trajectory Report'!O$5,'Rate Trajectory Calc'!$A$6:$CQ$6,0))/1000)","v":" "},{"$f":"IF(INDEX('Rate Trajectory Calc'!$A$6:$CQ$92,MATCH('Rate Trajectory Report'!$B15,'Rate Trajectory Calc'!$A$6:$A$92,0),MATCH('Rate Trajectory Report'!P$5,'Rate Trajectory Calc'!$A$6:$CQ$6,0))=0,\" \",INDEX('Rate Trajectory Calc'!$A$6:$CQ$92,MATCH('Rate Trajectory Report'!$B15,'Rate Trajectory Calc'!$A$6:$A$92,0),MATCH('Rate Trajectory Report'!P$5,'Rate Trajectory Calc'!$A$6:$CQ$6,0))/1000)","v":" "},{"$f":"IF(INDEX('Rate Trajectory Calc'!$A$6:$CQ$92,MATCH('Rate Trajectory Report'!$B15,'Rate Trajectory Calc'!$A$6:$A$92,0),MATCH('Rate Trajectory Report'!Q$5,'Rate Trajectory Calc'!$A$6:$CQ$6,0))=0,\" \",INDEX('Rate Trajectory Calc'!$A$6:$CQ$92,MATCH('Rate Trajectory Report'!$B15,'Rate Trajectory Calc'!$A$6:$A$92,0),MATCH('Rate Trajectory Report'!Q$5,'Rate Trajectory Calc'!$A$6:$CQ$6,0))/1000)","v":" "},{"$f":"IF(INDEX('Rate Trajectory Calc'!$A$6:$CQ$92,MATCH('Rate Trajectory Report'!$B15,'Rate Trajectory Calc'!$A$6:$A$92,0),MATCH('Rate Trajectory Report'!R$5,'Rate Trajectory Calc'!$A$6:$CQ$6,0))=0,\" \",INDEX('Rate Trajectory Calc'!$A$6:$CQ$92,MATCH('Rate Trajectory Report'!$B15,'Rate Trajectory Calc'!$A$6:$A$92,0),MATCH('Rate Trajectory Report'!R$5,'Rate Trajectory Calc'!$A$6:$CQ$6,0))/1000)","v":" "},{"$f":"IF(INDEX('Rate Trajectory Calc'!$A$6:$CQ$92,MATCH('Rate Trajectory Report'!$B15,'Rate Trajectory Calc'!$A$6:$A$92,0),MATCH('Rate Trajectory Report'!S$5,'Rate Trajectory Calc'!$A$6:$CQ$6,0))=0,\" \",INDEX('Rate Trajectory Calc'!$A$6:$CQ$92,MATCH('Rate Trajectory Report'!$B15,'Rate Trajectory Calc'!$A$6:$A$92,0),MATCH('Rate Trajectory Report'!S$5,'Rate Trajectory Calc'!$A$6:$CQ$6,0))/1000)","v":" "},{"$f":"IF(INDEX('Rate Trajectory Calc'!$A$6:$CQ$92,MATCH('Rate Trajectory Report'!$B15,'Rate Trajectory Calc'!$A$6:$A$92,0),MATCH('Rate Trajectory Report'!T$5,'Rate Trajectory Calc'!$A$6:$CQ$6,0))=0,\" \",INDEX('Rate Trajectory Calc'!$A$6:$CQ$92,MATCH('Rate Trajectory Report'!$B15,'Rate Trajectory Calc'!$A$6:$A$92,0),MATCH('Rate Trajectory Report'!T$5,'Rate Trajectory Calc'!$A$6:$CQ$6,0))/1000)","v":" "},{"$f":"IF(INDEX('Rate Trajectory Calc'!$A$6:$CQ$92,MATCH('Rate Trajectory Report'!$B15,'Rate Trajectory Calc'!$A$6:$A$92,0),MATCH('Rate Trajectory Report'!U$5,'Rate Trajectory Calc'!$A$6:$CQ$6,0))=0,\" \",INDEX('Rate Trajectory Calc'!$A$6:$CQ$92,MATCH('Rate Trajectory Report'!$B15,'Rate Trajectory Calc'!$A$6:$A$92,0),MATCH('Rate Trajectory Report'!U$5,'Rate Trajectory Calc'!$A$6:$CQ$6,0))/1000)","v":" "},{"$f":"IF(INDEX('Rate Trajectory Calc'!$A$6:$CQ$92,MATCH('Rate Trajectory Report'!$B15,'Rate Trajectory Calc'!$A$6:$A$92,0),MATCH('Rate Trajectory Report'!V$5,'Rate Trajectory Calc'!$A$6:$CQ$6,0))=0,\" \",INDEX('Rate Trajectory Calc'!$A$6:$CQ$92,MATCH('Rate Trajectory Report'!$B15,'Rate Trajectory Calc'!$A$6:$A$92,0),MATCH('Rate Trajectory Report'!V$5,'Rate Trajectory Calc'!$A$6:$CQ$6,0))/1000)","v":" "},{"$f":"IF(INDEX('Rate Trajectory Calc'!$A$6:$CQ$92,MATCH('Rate Trajectory Report'!$B15,'Rate Trajectory Calc'!$A$6:$A$92,0),MATCH('Rate Trajectory Report'!W$5,'Rate Trajectory Calc'!$A$6:$CQ$6,0))=0,\" \",INDEX('Rate Trajectory Calc'!$A$6:$CQ$92,MATCH('Rate Trajectory Report'!$B15,'Rate Trajectory Calc'!$A$6:$A$92,0),MATCH('Rate Trajectory Report'!W$5,'Rate Trajectory Calc'!$A$6:$CQ$6,0))/1000)","v":" "},{"$f":"IF(INDEX('Rate Trajectory Calc'!$A$6:$CQ$92,MATCH('Rate Trajectory Report'!$B15,'Rate Trajectory Calc'!$A$6:$A$92,0),MATCH('Rate Trajectory Report'!X$5,'Rate Trajectory Calc'!$A$6:$CQ$6,0))=0,\" \",INDEX('Rate Trajectory Calc'!$A$6:$CQ$92,MATCH('Rate Trajectory Report'!$B15,'Rate Trajectory Calc'!$A$6:$A$92,0),MATCH('Rate Trajectory Report'!X$5,'Rate Trajectory Calc'!$A$6:$CQ$6,0))/1000)","v":" "},{"$f":"IF(INDEX('Rate Trajectory Calc'!$A$6:$CQ$92,MATCH('Rate Trajectory Report'!$B15,'Rate Trajectory Calc'!$A$6:$A$92,0),MATCH('Rate Trajectory Report'!Y$5,'Rate Trajectory Calc'!$A$6:$CQ$6,0))=0,\" \",INDEX('Rate Trajectory Calc'!$A$6:$CQ$92,MATCH('Rate Trajectory Report'!$B15,'Rate Trajectory Calc'!$A$6:$A$92,0),MATCH('Rate Trajectory Report'!Y$5,'Rate Trajectory Calc'!$A$6:$CQ$6,0))/1000)","v":" "},{"$f":"IF(INDEX('Rate Trajectory Calc'!$A$6:$CQ$92,MATCH('Rate Trajectory Report'!$B15,'Rate Trajectory Calc'!$A$6:$A$92,0),MATCH('Rate Trajectory Report'!Z$5,'Rate Trajectory Calc'!$A$6:$CQ$6,0))=0,\" \",INDEX('Rate Trajectory Calc'!$A$6:$CQ$92,MATCH('Rate Trajectory Report'!$B15,'Rate Trajectory Calc'!$A$6:$A$92,0),MATCH('Rate Trajectory Report'!Z$5,'Rate Trajectory Calc'!$A$6:$CQ$6,0))/1000)","v":" "},{"$f":"IF(INDEX('Rate Trajectory Calc'!$A$6:$CQ$92,MATCH('Rate Trajectory Report'!$B15,'Rate Trajectory Calc'!$A$6:$A$92,0),MATCH('Rate Trajectory Report'!AA$5,'Rate Trajectory Calc'!$A$6:$CQ$6,0))=0,\" \",INDEX('Rate Trajectory Calc'!$A$6:$CQ$92,MATCH('Rate Trajectory Report'!$B15,'Rate Trajectory Calc'!$A$6:$A$92,0),MATCH('Rate Trajectory Report'!AA$5,'Rate Trajectory Calc'!$A$6:$CQ$6,0))/1000)","v":" "}]
[null,{"$f":"'Rate Trajectory Dashboard'!B19","v":"Billing Modernization (Distribution) - Year 2029"},{"$f":"IFERROR(VLOOKUP(B16,'Rate Trajectory Dashboard'!$B$12:$D$96,3,FALSE)/1000,'Rate Trajectory Report'!C14)","v":0},{"$f":"IF(INDEX('Rate Trajectory Calc'!$A$6:$CQ$92,MATCH('Rate Trajectory Report'!$B16,'Rate Trajectory Calc'!$A$6:$A$92,0),MATCH('Rate Trajectory Report'!D$5,'Rate Trajectory Calc'!$A$6:$CQ$6,0))=0,\" \",INDEX('Rate Trajectory Calc'!$A$6:$CQ$92,MATCH('Rate Trajectory Report'!$B16,'Rate Trajectory Calc'!$A$6:$A$92,0),MATCH('Rate Trajectory Report'!D$5,'Rate Trajectory Calc'!$A$6:$CQ$6,0))/1000)","v":" "},{"$f":"IF(INDEX('Rate Trajectory Calc'!$A$6:$CQ$92,MATCH('Rate Trajectory Report'!$B16,'Rate Trajectory Calc'!$A$6:$A$92,0),MATCH('Rate Trajectory Report'!E$5,'Rate Trajectory Calc'!$A$6:$CQ$6,0))=0,\" \",INDEX('Rate Trajectory Calc'!$A$6:$CQ$92,MATCH('Rate Trajectory Report'!$B16,'Rate Trajectory Calc'!$A$6:$A$92,0),MATCH('Rate Trajectory Report'!E$5,'Rate Trajectory Calc'!$A$6:$CQ$6,0))/1000)","v":" "},{"$f":"IF(INDEX('Rate Trajectory Calc'!$A$6:$CQ$92,MATCH('Rate Trajectory Report'!$B16,'Rate Trajectory Calc'!$A$6:$A$92,0),MATCH('Rate Trajectory Report'!F$5,'Rate Trajectory Calc'!$A$6:$CQ$6,0))=0,\" \",INDEX('Rate Trajectory Calc'!$A$6:$CQ$92,MATCH('Rate Trajectory Report'!$B16,'Rate Trajectory Calc'!$A$6:$A$92,0),MATCH('Rate Trajectory Report'!F$5,'Rate Trajectory Calc'!$A$6:$CQ$6,0))/1000)","v":" "},{"$f":"IF(INDEX('Rate Trajectory Calc'!$A$6:$CQ$92,MATCH('Rate Trajectory Report'!$B16,'Rate Trajectory Calc'!$A$6:$A$92,0),MATCH('Rate Trajectory Report'!G$5,'Rate Trajectory Calc'!$A$6:$CQ$6,0))=0,\" \",INDEX('Rate Trajectory Calc'!$A$6:$CQ$92,MATCH('Rate Trajectory Report'!$B16,'Rate Trajectory Calc'!$A$6:$A$92,0),MATCH('Rate Trajectory Report'!G$5,'Rate Trajectory Calc'!$A$6:$CQ$6,0))/1000)","v":" "},{"$f":"IF(INDEX('Rate Trajectory Calc'!$A$6:$CQ$92,MATCH('Rate Trajectory Report'!$B16,'Rate Trajectory Calc'!$A$6:$A$92,0),MATCH('Rate Trajectory Report'!H$5,'Rate Trajectory Calc'!$A$6:$CQ$6,0))=0,\" \",INDEX('Rate Trajectory Calc'!$A$6:$CQ$92,MATCH('Rate Trajectory Report'!$B16,'Rate Trajectory Calc'!$A$6:$A$92,0),MATCH('Rate Trajectory Report'!H$5,'Rate Trajectory Calc'!$A$6:$CQ$6,0))/1000)","v":" "},{"$f":"IF(INDEX('Rate Trajectory Calc'!$A$6:$CQ$92,MATCH('Rate Trajectory Report'!$B16,'Rate Trajectory Calc'!$A$6:$A$92,0),MATCH('Rate Trajectory Report'!I$5,'Rate Trajectory Calc'!$A$6:$CQ$6,0))=0,\" \",INDEX('Rate Trajectory Calc'!$A$6:$CQ$92,MATCH('Rate Trajectory Report'!$B16,'Rate Trajectory Calc'!$A$6:$A$92,0),MATCH('Rate Trajectory Report'!I$5,'Rate Trajectory Calc'!$A$6:$CQ$6,0))/1000)","v":" "},{"$f":"IF(INDEX('Rate Trajectory Calc'!$A$6:$CQ$92,MATCH('Rate Trajectory Report'!$B16,'Rate Trajectory Calc'!$A$6:$A$92,0),MATCH('Rate Trajectory Report'!J$5,'Rate Trajectory Calc'!$A$6:$CQ$6,0))=0,\" \",INDEX('Rate Trajectory Calc'!$A$6:$CQ$92,MATCH('Rate Trajectory Report'!$B16,'Rate Trajectory Calc'!$A$6:$A$92,0),MATCH('Rate Trajectory Report'!J$5,'Rate Trajectory Calc'!$A$6:$CQ$6,0))/1000)","v":" "},{"$f":"IF(INDEX('Rate Trajectory Calc'!$A$6:$CQ$92,MATCH('Rate Trajectory Report'!$B16,'Rate Trajectory Calc'!$A$6:$A$92,0),MATCH('Rate Trajectory Report'!K$5,'Rate Trajectory Calc'!$A$6:$CQ$6,0))=0,\" \",INDEX('Rate Trajectory Calc'!$A$6:$CQ$92,MATCH('Rate Trajectory Report'!$B16,'Rate Trajectory Calc'!$A$6:$A$92,0),MATCH('Rate Trajectory Report'!K$5,'Rate Trajectory Calc'!$A$6:$CQ$6,0))/1000)","v":" "},{"$f":"IF(INDEX('Rate Trajectory Calc'!$A$6:$CQ$92,MATCH('Rate Trajectory Report'!$B16,'Rate Trajectory Calc'!$A$6:$A$92,0),MATCH('Rate Trajectory Report'!L$5,'Rate Trajectory Calc'!$A$6:$CQ$6,0))=0,\" \",INDEX('Rate Trajectory Calc'!$A$6:$CQ$92,MATCH('Rate Trajectory Report'!$B16,'Rate Trajectory Calc'!$A$6:$A$92,0),MATCH('Rate Trajectory Report'!L$5,'Rate Trajectory Calc'!$A$6:$CQ$6,0))/1000)","v":" "},{"$f":"IF(INDEX('Rate Trajectory Calc'!$A$6:$CQ$92,MATCH('Rate Trajectory Report'!$B16,'Rate Trajectory Calc'!$A$6:$A$92,0),MATCH('Rate Trajectory Report'!M$5,'Rate Trajectory Calc'!$A$6:$CQ$6,0))=0,\" \",INDEX('Rate Trajectory Calc'!$A$6:$CQ$92,MATCH('Rate Trajectory Report'!$B16,'Rate Trajectory Calc'!$A$6:$A$92,0),MATCH('Rate Trajectory Report'!M$5,'Rate Trajectory Calc'!$A$6:$CQ$6,0))/1000)","v":" "},{"$f":"IF(INDEX('Rate Trajectory Calc'!$A$6:$CQ$92,MATCH('Rate Trajectory Report'!$B16,'Rate Trajectory Calc'!$A$6:$A$92,0),MATCH('Rate Trajectory Report'!N$5,'Rate Trajectory Calc'!$A$6:$CQ$6,0))=0,\" \",INDEX('Rate Trajectory Calc'!$A$6:$CQ$92,MATCH('Rate Trajectory Report'!$B16,'Rate Trajectory Calc'!$A$6:$A$92,0),MATCH('Rate Trajectory Report'!N$5,'Rate Trajectory Calc'!$A$6:$CQ$6,0))/1000)","v":" "},{"$f":"IF(INDEX('Rate Trajectory Calc'!$A$6:$CQ$92,MATCH('Rate Trajectory Report'!$B16,'Rate Trajectory Calc'!$A$6:$A$92,0),MATCH('Rate Trajectory Report'!O$5,'Rate Trajectory Calc'!$A$6:$CQ$6,0))=0,\" \",INDEX('Rate Trajectory Calc'!$A$6:$CQ$92,MATCH('Rate Trajectory Report'!$B16,'Rate Trajectory Calc'!$A$6:$A$92,0),MATCH('Rate Trajectory Report'!O$5,'Rate Trajectory Calc'!$A$6:$CQ$6,0))/1000)","v":" "},{"$f":"IF(INDEX('Rate Trajectory Calc'!$A$6:$CQ$92,MATCH('Rate Trajectory Report'!$B16,'Rate Trajectory Calc'!$A$6:$A$92,0),MATCH('Rate Trajectory Report'!P$5,'Rate Trajectory Calc'!$A$6:$CQ$6,0))=0,\" \",INDEX('Rate Trajectory Calc'!$A$6:$CQ$92,MATCH('Rate Trajectory Report'!$B16,'Rate Trajectory Calc'!$A$6:$A$92,0),MATCH('Rate Trajectory Report'!P$5,'Rate Trajectory Calc'!$A$6:$CQ$6,0))/1000)","v":" "},{"$f":"IF(INDEX('Rate Trajectory Calc'!$A$6:$CQ$92,MATCH('Rate Trajectory Report'!$B16,'Rate Trajectory Calc'!$A$6:$A$92,0),MATCH('Rate Trajectory Report'!Q$5,'Rate Trajectory Calc'!$A$6:$CQ$6,0))=0,\" \",INDEX('Rate Trajectory Calc'!$A$6:$CQ$92,MATCH('Rate Trajectory Report'!$B16,'Rate Trajectory Calc'!$A$6:$A$92,0),MATCH('Rate Trajectory Report'!Q$5,'Rate Trajectory Calc'!$A$6:$CQ$6,0))/1000)","v":" "},{"$f":"IF(INDEX('Rate Trajectory Calc'!$A$6:$CQ$92,MATCH('Rate Trajectory Report'!$B16,'Rate Trajectory Calc'!$A$6:$A$92,0),MATCH('Rate Trajectory Report'!R$5,'Rate Trajectory Calc'!$A$6:$CQ$6,0))=0,\" \",INDEX('Rate Trajectory Calc'!$A$6:$CQ$92,MATCH('Rate Trajectory Report'!$B16,'Rate Trajectory Calc'!$A$6:$A$92,0),MATCH('Rate Trajectory Report'!R$5,'Rate Trajectory Calc'!$A$6:$CQ$6,0))/1000)","v":" "},{"$f":"IF(INDEX('Rate Trajectory Calc'!$A$6:$CQ$92,MATCH('Rate Trajectory Report'!$B16,'Rate Trajectory Calc'!$A$6:$A$92,0),MATCH('Rate Trajectory Report'!S$5,'Rate Trajectory Calc'!$A$6:$CQ$6,0))=0,\" \",INDEX('Rate Trajectory Calc'!$A$6:$CQ$92,MATCH('Rate Trajectory Report'!$B16,'Rate Trajectory Calc'!$A$6:$A$92,0),MATCH('Rate Trajectory Report'!S$5,'Rate Trajectory Calc'!$A$6:$CQ$6,0))/1000)","v":" "},{"$f":"IF(INDEX('Rate Trajectory Calc'!$A$6:$CQ$92,MATCH('Rate Trajectory Report'!$B16,'Rate Trajectory Calc'!$A$6:$A$92,0),MATCH('Rate Trajectory Report'!T$5,'Rate Trajectory Calc'!$A$6:$CQ$6,0))=0,\" \",INDEX('Rate Trajectory Calc'!$A$6:$CQ$92,MATCH('Rate Trajectory Report'!$B16,'Rate Trajectory Calc'!$A$6:$A$92,0),MATCH('Rate Trajectory Report'!T$5,'Rate Trajectory Calc'!$A$6:$CQ$6,0))/1000)","v":" "},{"$f":"IF(INDEX('Rate Trajectory Calc'!$A$6:$CQ$92,MATCH('Rate Trajectory Report'!$B16,'Rate Trajectory Calc'!$A$6:$A$92,0),MATCH('Rate Trajectory Report'!U$5,'Rate Trajectory Calc'!$A$6:$CQ$6,0))=0,\" \",INDEX('Rate Trajectory Calc'!$A$6:$CQ$92,MATCH('Rate Trajectory Report'!$B16,'Rate Trajectory Calc'!$A$6:$A$92,0),MATCH('Rate Trajectory Report'!U$5,'Rate Trajectory Calc'!$A$6:$CQ$6,0))/1000)","v":" "},{"$f":"IF(INDEX('Rate Trajectory Calc'!$A$6:$CQ$92,MATCH('Rate Trajectory Report'!$B16,'Rate Trajectory Calc'!$A$6:$A$92,0),MATCH('Rate Trajectory Report'!V$5,'Rate Trajectory Calc'!$A$6:$CQ$6,0))=0,\" \",INDEX('Rate Trajectory Calc'!$A$6:$CQ$92,MATCH('Rate Trajectory Report'!$B16,'Rate Trajectory Calc'!$A$6:$A$92,0),MATCH('Rate Trajectory Report'!V$5,'Rate Trajectory Calc'!$A$6:$CQ$6,0))/1000)","v":" "},{"$f":"IF(INDEX('Rate Trajectory Calc'!$A$6:$CQ$92,MATCH('Rate Trajectory Report'!$B16,'Rate Trajectory Calc'!$A$6:$A$92,0),MATCH('Rate Trajectory Report'!W$5,'Rate Trajectory Calc'!$A$6:$CQ$6,0))=0,\" \",INDEX('Rate Trajectory Calc'!$A$6:$CQ$92,MATCH('Rate Trajectory Report'!$B16,'Rate Trajectory Calc'!$A$6:$A$92,0),MATCH('Rate Trajectory Report'!W$5,'Rate Trajectory Calc'!$A$6:$CQ$6,0))/1000)","v":" "},{"$f":"IF(INDEX('Rate Trajectory Calc'!$A$6:$CQ$92,MATCH('Rate Trajectory Report'!$B16,'Rate Trajectory Calc'!$A$6:$A$92,0),MATCH('Rate Trajectory Report'!X$5,'Rate Trajectory Calc'!$A$6:$CQ$6,0))=0,\" \",INDEX('Rate Trajectory Calc'!$A$6:$CQ$92,MATCH('Rate Trajectory Report'!$B16,'Rate Trajectory Calc'!$A$6:$A$92,0),MATCH('Rate Trajectory Report'!X$5,'Rate Trajectory Calc'!$A$6:$CQ$6,0))/1000)","v":" "},{"$f":"IF(INDEX('Rate Trajectory Calc'!$A$6:$CQ$92,MATCH('Rate Trajectory Report'!$B16,'Rate Trajectory Calc'!$A$6:$A$92,0),MATCH('Rate Trajectory Report'!Y$5,'Rate Trajectory Calc'!$A$6:$CQ$6,0))=0,\" \",INDEX('Rate Trajectory Calc'!$A$6:$CQ$92,MATCH('Rate Trajectory Report'!$B16,'Rate Trajectory Calc'!$A$6:$A$92,0),MATCH('Rate Trajectory Report'!Y$5,'Rate Trajectory Calc'!$A$6:$CQ$6,0))/1000)","v":" "},{"$f":"IF(INDEX('Rate Trajectory Calc'!$A$6:$CQ$92,MATCH('Rate Trajectory Report'!$B16,'Rate Trajectory Calc'!$A$6:$A$92,0),MATCH('Rate Trajectory Report'!Z$5,'Rate Trajectory Calc'!$A$6:$CQ$6,0))=0,\" \",INDEX('Rate Trajectory Calc'!$A$6:$CQ$92,MATCH('Rate Trajectory Report'!$B16,'Rate Trajectory Calc'!$A$6:$A$92,0),MATCH('Rate Trajectory Report'!Z$5,'Rate Trajectory Calc'!$A$6:$CQ$6,0))/1000)","v":" "},{"$f":"IF(INDEX('Rate Trajectory Calc'!$A$6:$CQ$92,MATCH('Rate Trajectory Report'!$B16,'Rate Trajectory Calc'!$A$6:$A$92,0),MATCH('Rate Trajectory Report'!AA$5,'Rate Trajectory Calc'!$A$6:$CQ$6,0))=0,\" \",INDEX('Rate Trajectory Calc'!$A$6:$CQ$92,MATCH('Rate Trajectory Report'!$B16,'Rate Trajectory Calc'!$A$6:$A$92,0),MATCH('Rate Trajectory Report'!AA$5,'Rate Trajectory Calc'!$A$6:$CQ$6,0))/1000)","v":" "}]
["4a","Billing Modernization (Distribution)",{"$f":"IFERROR(VLOOKUP(B17,'Rate Trajectory Dashboard'!$B$12:$D$96,3,FALSE)/1000,'Rate Trajectory Report'!C15)","v":0},{"$f":"IF(SUM(D13:D16)=0,\" \",SUBTOTAL(9,D13:D16))","v":" "},{"$f":"IF(SUM(E13:E16)=0,\" \",SUBTOTAL(9,E13:E16))","v":" "}," "," ",18.712173825194576," "," "," "," "," "," "," "," "," "," "," ",-0.96083199034341504," "," "," "," "," "," "," "]
[null,{"$f":"'Rate Trajectory Dashboard'!B20","v":"Billing Modernization (Transmission) - Year 2026"},{"$f":"IFERROR(VLOOKUP(B18,'Rate Trajectory Dashboard'!$B$12:$D$96,3,FALSE)/1000,'Rate Trajectory Report'!C16)","v":0},{"$f":"IF(INDEX('Rate Trajectory Calc'!$A$6:$CQ$92,MATCH('Rate Trajectory Report'!$B18,'Rate Trajectory Calc'!$A$6:$A$92,0),MATCH('Rate Trajectory Report'!D$5,'Rate Trajectory Calc'!$A$6:$CQ$6,0))=0,\" \",INDEX('Rate Trajectory Calc'!$A$6:$CQ$92,MATCH('Rate Trajectory Report'!$B18,'Rate Trajectory Calc'!$A$6:$A$92,0),MATCH('Rate Trajectory Report'!D$5,'Rate Trajectory Calc'!$A$6:$CQ$6,0))/1000)","v":" "},{"$f":"IF(INDEX('Rate Trajectory Calc'!$A$6:$CQ$92,MATCH('Rate Trajectory Report'!$B18,'Rate Trajectory Calc'!$A$6:$A$92,0),MATCH('Rate Trajectory Report'!E$5,'Rate Trajectory Calc'!$A$6:$CQ$6,0))=0,\" \",INDEX('Rate Trajectory Calc'!$A$6:$CQ$92,MATCH('Rate Trajectory Report'!$B18,'Rate Trajectory Calc'!$A$6:$A$92,0),MATCH('Rate Trajectory Report'!E$5,'Rate Trajectory Calc'!$A$6:$CQ$6,0))/1000)","v":" "},{"$f":"IF(INDEX('Rate Trajectory Calc'!$A$6:$CQ$92,MATCH('Rate Trajectory Report'!$B18,'Rate Trajectory Calc'!$A$6:$A$92,0),MATCH('Rate Trajectory Report'!F$5,'Rate Trajectory Calc'!$A$6:$CQ$6,0))=0,\" \",INDEX('Rate Trajectory Calc'!$A$6:$CQ$92,MATCH('Rate Trajectory Report'!$B18,'Rate Trajectory Calc'!$A$6:$A$92,0),MATCH('Rate Trajectory Report'!F$5,'Rate Trajectory Calc'!$A$6:$CQ$6,0))/1000)","v":" "},{"$f":"IF(INDEX('Rate Trajectory Calc'!$A$6:$CQ$92,MATCH('Rate Trajectory Report'!$B18,'Rate Trajectory Calc'!$A$6:$A$92,0),MATCH('Rate Trajectory Report'!G$5,'Rate Trajectory Calc'!$A$6:$CQ$6,0))=0,\" \",INDEX('Rate Trajectory Calc'!$A$6:$CQ$92,MATCH('Rate Trajectory Report'!$B18,'Rate Trajectory Calc'!$A$6:$A$92,0),MATCH('Rate Trajectory Report'!G$5,'Rate Trajectory Calc'!$A$6:$CQ$6,0))/1000)","v":" "},{"$f":"IF(INDEX('Rate Trajectory Calc'!$A$6:$CQ$92,MATCH('Rate Trajectory Report'!$B18,'Rate Trajectory Calc'!$A$6:$A$92,0),MATCH('Rate Trajectory Report'!H$5,'Rate Trajectory Calc'!$A$6:$CQ$6,0))=0,\" \",INDEX('Rate Trajectory Calc'!$A$6:$CQ$92,MATCH('Rate Trajectory Report'!$B18,'Rate Trajectory Calc'!$A$6:$A$92,0),MATCH('Rate Trajectory Report'!H$5,'Rate Trajectory Calc'!$A$6:$CQ$6,0))/1000)","v":8.918457231194127},{"$f":"IF(INDEX('Rate Trajectory Calc'!$A$6:$CQ$92,MATCH('Rate Trajectory Report'!$B18,'Rate Trajectory Calc'!$A$6:$A$92,0),MATCH('Rate Trajectory Report'!I$5,'Rate Trajectory Calc'!$A$6:$CQ$6,0))=0,\" \",INDEX('Rate Trajectory Calc'!$A$6:$CQ$92,MATCH('Rate Trajectory Report'!$B18,'Rate Trajectory Calc'!$A$6:$A$92,0),MATCH('Rate Trajectory Report'!I$5,'Rate Trajectory Calc'!$A$6:$CQ$6,0))/1000)","v":" "},{"$f":"IF(INDEX('Rate Trajectory Calc'!$A$6:$CQ$92,MATCH('Rate Trajectory Report'!$B18,'Rate Trajectory Calc'!$A$6:$A$92,0),MATCH('Rate Trajectory Report'!J$5,'Rate Trajectory Calc'!$A$6:$CQ$6,0))=0,\" \",INDEX('Rate Trajectory Calc'!$A$6:$CQ$92,MATCH('Rate Trajectory Report'!$B18,'Rate Trajectory Calc'!$A$6:$A$92,0),MATCH('Rate Trajectory Report'!J$5,'Rate Trajectory Calc'!$A$6:$CQ$6,0))/1000)","v":" "},{"$f":"IF(INDEX('Rate Trajectory Calc'!$A$6:$CQ$92,MATCH('Rate Trajectory Report'!$B18,'Rate Trajectory Calc'!$A$6:$A$92,0),MATCH('Rate Trajectory Report'!K$5,'Rate Trajectory Calc'!$A$6:$CQ$6,0))=0,\" \",INDEX('Rate Trajectory Calc'!$A$6:$CQ$92,MATCH('Rate Trajectory Report'!$B18,'Rate Trajectory Calc'!$A$6:$A$92,0),MATCH('Rate Trajectory Report'!K$5,'Rate Trajectory Calc'!$A$6:$CQ$6,0))/1000)","v":" "},{"$f":"IF(INDEX('Rate Trajectory Calc'!$A$6:$CQ$92,MATCH('Rate Trajectory Report'!$B18,'Rate Trajectory Calc'!$A$6:$A$92,0),MATCH('Rate Trajectory Report'!L$5,'Rate Trajectory Calc'!$A$6:$CQ$6,0))=0,\" \",INDEX('Rate Trajectory Calc'!$A$6:$CQ$92,MATCH('Rate Trajectory Report'!$B18,'Rate Trajectory Calc'!$A$6:$A$92,0),MATCH('Rate Trajectory Report'!L$5,'Rate Trajectory Calc'!$A$6:$CQ$6,0))/1000)","v":" "},{"$f":"IF(INDEX('Rate Trajectory Calc'!$A$6:$CQ$92,MATCH('Rate Trajectory Report'!$B18,'Rate Trajectory Calc'!$A$6:$A$92,0),MATCH('Rate Trajectory Report'!M$5,'Rate Trajectory Calc'!$A$6:$CQ$6,0))=0,\" \",INDEX('Rate Trajectory Calc'!$A$6:$CQ$92,MATCH('Rate Trajectory Report'!$B18,'Rate Trajectory Calc'!$A$6:$A$92,0),MATCH('Rate Trajectory Report'!M$5,'Rate Trajectory Calc'!$A$6:$CQ$6,0))/1000)","v":" "},{"$f":"IF(INDEX('Rate Trajectory Calc'!$A$6:$CQ$92,MATCH('Rate Trajectory Report'!$B18,'Rate Trajectory Calc'!$A$6:$A$92,0),MATCH('Rate Trajectory Report'!N$5,'Rate Trajectory Calc'!$A$6:$CQ$6,0))=0,\" \",INDEX('Rate Trajectory Calc'!$A$6:$CQ$92,MATCH('Rate Trajectory Report'!$B18,'Rate Trajectory Calc'!$A$6:$A$92,0),MATCH('Rate Trajectory Report'!N$5,'Rate Trajectory Calc'!$A$6:$CQ$6,0))/1000)","v":" "},{"$f":"IF(INDEX('Rate Trajectory Calc'!$A$6:$CQ$92,MATCH('Rate Trajectory Report'!$B18,'Rate Trajectory Calc'!$A$6:$A$92,0),MATCH('Rate Trajectory Report'!O$5,'Rate Trajectory Calc'!$A$6:$CQ$6,0))=0,\" \",INDEX('Rate Trajectory Calc'!$A$6:$CQ$92,MATCH('Rate Trajectory Report'!$B18,'Rate Trajectory Calc'!$A$6:$A$92,0),MATCH('Rate Trajectory Report'!O$5,'Rate Trajectory Calc'!$A$6:$CQ$6,0))/1000)","v":" "},{"$f":"IF(INDEX('Rate Trajectory Calc'!$A$6:$CQ$92,MATCH('Rate Trajectory Report'!$B18,'Rate Trajectory Calc'!$A$6:$A$92,0),MATCH('Rate Trajectory Report'!P$5,'Rate Trajectory Calc'!$A$6:$CQ$6,0))=0,\" \",INDEX('Rate Trajectory Calc'!$A$6:$CQ$92,MATCH('Rate Trajectory Report'!$B18,'Rate Trajectory Calc'!$A$6:$A$92,0),MATCH('Rate Trajectory Report'!P$5,'Rate Trajectory Calc'!$A$6:$CQ$6,0))/1000)","v":" "},{"$f":"IF(INDEX('Rate Trajectory Calc'!$A$6:$CQ$92,MATCH('Rate Trajectory Report'!$B18,'Rate Trajectory Calc'!$A$6:$A$92,0),MATCH('Rate Trajectory Report'!Q$5,'Rate Trajectory Calc'!$A$6:$CQ$6,0))=0,\" \",INDEX('Rate Trajectory Calc'!$A$6:$CQ$92,MATCH('Rate Trajectory Report'!$B18,'Rate Trajectory Calc'!$A$6:$A$92,0),MATCH('Rate Trajectory Report'!Q$5,'Rate Trajectory Calc'!$A$6:$CQ$6,0))/1000)","v":" "},{"$f":"IF(INDEX('Rate Trajectory Calc'!$A$6:$CQ$92,MATCH('Rate Trajectory Report'!$B18,'Rate Trajectory Calc'!$A$6:$A$92,0),MATCH('Rate Trajectory Report'!R$5,'Rate Trajectory Calc'!$A$6:$CQ$6,0))=0,\" \",INDEX('Rate Trajectory Calc'!$A$6:$CQ$92,MATCH('Rate Trajectory Report'!$B18,'Rate Trajectory Calc'!$A$6:$A$92,0),MATCH('Rate Trajectory Report'!R$5,'Rate Trajectory Calc'!$A$6:$CQ$6,0))/1000)","v":" "},{"$f":"IF(INDEX('Rate Trajectory Calc'!$A$6:$CQ$92,MATCH('Rate Trajectory Report'!$B18,'Rate Trajectory Calc'!$A$6:$A$92,0),MATCH('Rate Trajectory Report'!S$5,'Rate Trajectory Calc'!$A$6:$CQ$6,0))=0,\" \",INDEX('Rate Trajectory Calc'!$A$6:$CQ$92,MATCH('Rate Trajectory Report'!$B18,'Rate Trajectory Calc'!$A$6:$A$92,0),MATCH('Rate Trajectory Report'!S$5,'Rate Trajectory Calc'!$A$6:$CQ$6,0))/1000)","v":" "},{"$f":"IF(INDEX('Rate Trajectory Calc'!$A$6:$CQ$92,MATCH('Rate Trajectory Report'!$B18,'Rate Trajectory Calc'!$A$6:$A$92,0),MATCH('Rate Trajectory Report'!T$5,'Rate Trajectory Calc'!$A$6:$CQ$6,0))=0,\" \",INDEX('Rate Trajectory Calc'!$A$6:$CQ$92,MATCH('Rate Trajectory Report'!$B18,'Rate Trajectory Calc'!$A$6:$A$92,0),MATCH('Rate Trajectory Report'!T$5,'Rate Trajectory Calc'!$A$6:$CQ$6,0))/1000)","v":-8.918457231194127},{"$f":"IF(INDEX('Rate Trajectory Calc'!$A$6:$CQ$92,MATCH('Rate Trajectory Report'!$B18,'Rate Trajectory Calc'!$A$6:$A$92,0),MATCH('Rate Trajectory Report'!U$5,'Rate Trajectory Calc'!$A$6:$CQ$6,0))=0,\" \",INDEX('Rate Trajectory Calc'!$A$6:$CQ$92,MATCH('Rate Trajectory Report'!$B18,'Rate Trajectory Calc'!$A$6:$A$92,0),MATCH('Rate Trajectory Report'!U$5,'Rate Trajectory Calc'!$A$6:$CQ$6,0))/1000)","v":" "},{"$f":"IF(INDEX('Rate Trajectory Calc'!$A$6:$CQ$92,MATCH('Rate Trajectory Report'!$B18,'Rate Trajectory Calc'!$A$6:$A$92,0),MATCH('Rate Trajectory Report'!V$5,'Rate Trajectory Calc'!$A$6:$CQ$6,0))=0,\" \",INDEX('Rate Trajectory Calc'!$A$6:$CQ$92,MATCH('Rate Trajectory Report'!$B18,'Rate Trajectory Calc'!$A$6:$A$92,0),MATCH('Rate Trajectory Report'!V$5,'Rate Trajectory Calc'!$A$6:$CQ$6,0))/1000)","v":" "},{"$f":"IF(INDEX('Rate Trajectory Calc'!$A$6:$CQ$92,MATCH('Rate Trajectory Report'!$B18,'Rate Trajectory Calc'!$A$6:$A$92,0),MATCH('Rate Trajectory Report'!W$5,'Rate Trajectory Calc'!$A$6:$CQ$6,0))=0,\" \",INDEX('Rate Trajectory Calc'!$A$6:$CQ$92,MATCH('Rate Trajectory Report'!$B18,'Rate Trajectory Calc'!$A$6:$A$92,0),MATCH('Rate Trajectory Report'!W$5,'Rate Trajectory Calc'!$A$6:$CQ$6,0))/1000)","v":" "},{"$f":"IF(INDEX('Rate Trajectory Calc'!$A$6:$CQ$92,MATCH('Rate Trajectory Report'!$B18,'Rate Trajectory Calc'!$A$6:$A$92,0),MATCH('Rate Trajectory Report'!X$5,'Rate Trajectory Calc'!$A$6:$CQ$6,0))=0,\" \",INDEX('Rate Trajectory Calc'!$A$6:$CQ$92,MATCH('Rate Trajectory Report'!$B18,'Rate Trajectory Calc'!$A$6:$A$92,0),MATCH('Rate Trajectory Report'!X$5,'Rate Trajectory Calc'!$A$6:$CQ$6,0))/1000)","v":" "},{"$f":"IF(INDEX('Rate Trajectory Calc'!$A$6:$CQ$92,MATCH('Rate Trajectory Report'!$B18,'Rate Trajectory Calc'!$A$6:$A$92,0),MATCH('Rate Trajectory Report'!Y$5,'Rate Trajectory Calc'!$A$6:$CQ$6,0))=0,\" \",INDEX('Rate Trajectory Calc'!$A$6:$CQ$92,MATCH('Rate Trajectory Report'!$B18,'Rate Trajectory Calc'!$A$6:$A$92,0),MATCH('Rate Trajectory Report'!Y$5,'Rate Trajectory Calc'!$A$6:$CQ$6,0))/1000)","v":" "},{"$f":"IF(INDEX('Rate Trajectory Calc'!$A$6:$CQ$92,MATCH('Rate Trajectory Report'!$B18,'Rate Trajectory Calc'!$A$6:$A$92,0),MATCH('Rate Trajectory Report'!Z$5,'Rate Trajectory Calc'!$A$6:$CQ$6,0))=0,\" \",INDEX('Rate Trajectory Calc'!$A$6:$CQ$92,MATCH('Rate Trajectory Report'!$B18,'Rate Trajectory Calc'!$A$6:$A$92,0),MATCH('Rate Trajectory Report'!Z$5,'Rate Trajectory Calc'!$A$6:$CQ$6,0))/1000)","v":" "},{"$f":"IF(INDEX('Rate Trajectory Calc'!$A$6:$CQ$92,MATCH('Rate Trajectory Report'!$B18,'Rate Trajectory Calc'!$A$6:$A$92,0),MATCH('Rate Trajectory Report'!AA$5,'Rate Trajectory Calc'!$A$6:$CQ$6,0))=0,\" \",INDEX('Rate Trajectory Calc'!$A$6:$CQ$92,MATCH('Rate Trajectory Report'!$B18,'Rate Trajectory Calc'!$A$6:$A$92,0),MATCH('Rate Trajectory Report'!AA$5,'Rate Trajectory Calc'!$A$6:$CQ$6,0))/1000)","v":" "}]
[null,{"$f":"'Rate Trajectory Dashboard'!B21","v":"Billing Modernization (Transmission) - Year 2027"},{"$f":"IFERROR(VLOOKUP(B19,'Rate Trajectory Dashboard'!$B$12:$D$96,3,FALSE)/1000,'Rate Trajectory Report'!C17)","v":0},{"$f":"IF(INDEX('Rate Trajectory Calc'!$A$6:$CQ$92,MATCH('Rate Trajectory Report'!$B19,'Rate Trajectory Calc'!$A$6:$A$92,0),MATCH('Rate Trajectory Report'!D$5,'Rate Trajectory Calc'!$A$6:$CQ$6,0))=0,\" \",INDEX('Rate Trajectory Calc'!$A$6:$CQ$92,MATCH('Rate Trajectory Report'!$B19,'Rate Trajectory Calc'!$A$6:$A$92,0),MATCH('Rate Trajectory Report'!D$5,'Rate Trajectory Calc'!$A$6:$CQ$6,0))/1000)","v":" "},{"$f":"IF(INDEX('Rate Trajectory Calc'!$A$6:$CQ$92,MATCH('Rate Trajectory Report'!$B19,'Rate Trajectory Calc'!$A$6:$A$92,0),MATCH('Rate Trajectory Report'!E$5,'Rate Trajectory Calc'!$A$6:$CQ$6,0))=0,\" \",INDEX('Rate Trajectory Calc'!$A$6:$CQ$92,MATCH('Rate Trajectory Report'!$B19,'Rate Trajectory Calc'!$A$6:$A$92,0),MATCH('Rate Trajectory Report'!E$5,'Rate Trajectory Calc'!$A$6:$CQ$6,0))/1000)","v":" "},{"$f":"IF(INDEX('Rate Trajectory Calc'!$A$6:$CQ$92,MATCH('Rate Trajectory Report'!$B19,'Rate Trajectory Calc'!$A$6:$A$92,0),MATCH('Rate Trajectory Report'!F$5,'Rate Trajectory Calc'!$A$6:$CQ$6,0))=0,\" \",INDEX('Rate Trajectory Calc'!$A$6:$CQ$92,MATCH('Rate Trajectory Report'!$B19,'Rate Trajectory Calc'!$A$6:$A$92,0),MATCH('Rate Trajectory Report'!F$5,'Rate Trajectory Calc'!$A$6:$CQ$6,0))/1000)","v":" "},{"$f":"IF(INDEX('Rate Trajectory Calc'!$A$6:$CQ$92,MATCH('Rate Trajectory Report'!$B19,'Rate Trajectory Calc'!$A$6:$A$92,0),MATCH('Rate Trajectory Report'!G$5,'Rate Trajectory Calc'!$A$6:$CQ$6,0))=0,\" \",INDEX('Rate Trajectory Calc'!$A$6:$CQ$92,MATCH('Rate Trajectory Report'!$B19,'Rate Trajectory Calc'!$A$6:$A$92,0),MATCH('Rate Trajectory Report'!G$5,'Rate Trajectory Calc'!$A$6:$CQ$6,0))/1000)","v":" "},{"$f":"IF(INDEX('Rate Trajectory Calc'!$A$6:$CQ$92,MATCH('Rate Trajectory Report'!$B19,'Rate Trajectory Calc'!$A$6:$A$92,0),MATCH('Rate Trajectory Report'!H$5,'Rate Trajectory Calc'!$A$6:$CQ$6,0))=0,\" \",INDEX('Rate Trajectory Calc'!$A$6:$CQ$92,MATCH('Rate Trajectory Report'!$B19,'Rate Trajectory Calc'!$A$6:$A$92,0),MATCH('Rate Trajectory Report'!H$5,'Rate Trajectory Calc'!$A$6:$CQ$6,0))/1000)","v":" "},{"$f":"IF(INDEX('Rate Trajectory Calc'!$A$6:$CQ$92,MATCH('Rate Trajectory Report'!$B19,'Rate Trajectory Calc'!$A$6:$A$92,0),MATCH('Rate Trajectory Report'!I$5,'Rate Trajectory Calc'!$A$6:$CQ$6,0))=0,\" \",INDEX('Rate Trajectory Calc'!$A$6:$CQ$92,MATCH('Rate Trajectory Report'!$B19,'Rate Trajectory Calc'!$A$6:$A$92,0),MATCH('Rate Trajectory Report'!I$5,'Rate Trajectory Calc'!$A$6:$CQ$6,0))/1000)","v":" "},{"$f":"IF(INDEX('Rate Trajectory Calc'!$A$6:$CQ$92,MATCH('Rate Trajectory Report'!$B19,'Rate Trajectory Calc'!$A$6:$A$92,0),MATCH('Rate Trajectory Report'!J$5,'Rate Trajectory Calc'!$A$6:$CQ$6,0))=0,\" \",INDEX('Rate Trajectory Calc'!$A$6:$CQ$92,MATCH('Rate Trajectory Report'!$B19,'Rate Trajectory Calc'!$A$6:$A$92,0),MATCH('Rate Trajectory Report'!J$5,'Rate Trajectory Calc'!$A$6:$CQ$6,0))/1000)","v":" "},{"$f":"IF(INDEX('Rate Trajectory Calc'!$A$6:$CQ$92,MATCH('Rate Trajectory Report'!$B19,'Rate Trajectory Calc'!$A$6:$A$92,0),MATCH('Rate Trajectory Report'!K$5,'Rate Trajectory Calc'!$A$6:$CQ$6,0))=0,\" \",INDEX('Rate Trajectory Calc'!$A$6:$CQ$92,MATCH('Rate Trajectory Report'!$B19,'Rate Trajectory Calc'!$A$6:$A$92,0),MATCH('Rate Trajectory Report'!K$5,'Rate Trajectory Calc'!$A$6:$CQ$6,0))/1000)","v":" "},{"$f":"IF(INDEX('Rate Trajectory Calc'!$A$6:$CQ$92,MATCH('Rate Trajectory Report'!$B19,'Rate Trajectory Calc'!$A$6:$A$92,0),MATCH('Rate Trajectory Report'!L$5,'Rate Trajectory Calc'!$A$6:$CQ$6,0))=0,\" \",INDEX('Rate Trajectory Calc'!$A$6:$CQ$92,MATCH('Rate Trajectory Report'!$B19,'Rate Trajectory Calc'!$A$6:$A$92,0),MATCH('Rate Trajectory Report'!L$5,'Rate Trajectory Calc'!$A$6:$CQ$6,0))/1000)","v":" "},{"$f":"IF(INDEX('Rate Trajectory Calc'!$A$6:$CQ$92,MATCH('Rate Trajectory Report'!$B19,'Rate Trajectory Calc'!$A$6:$A$92,0),MATCH('Rate Trajectory Report'!M$5,'Rate Trajectory Calc'!$A$6:$CQ$6,0))=0,\" \",INDEX('Rate Trajectory Calc'!$A$6:$CQ$92,MATCH('Rate Trajectory Report'!$B19,'Rate Trajectory Calc'!$A$6:$A$92,0),MATCH('Rate Trajectory Report'!M$5,'Rate Trajectory Calc'!$A$6:$CQ$6,0))/1000)","v":" "},{"$f":"IF(INDEX('Rate Trajectory Calc'!$A$6:$CQ$92,MATCH('Rate Trajectory Report'!$B19,'Rate Trajectory Calc'!$A$6:$A$92,0),MATCH('Rate Trajectory Report'!N$5,'Rate Trajectory Calc'!$A$6:$CQ$6,0))=0,\" \",INDEX('Rate Trajectory Calc'!$A$6:$CQ$92,MATCH('Rate Trajectory Report'!$B19,'Rate Trajectory Calc'!$A$6:$A$92,0),MATCH('Rate Trajectory Report'!N$5,'Rate Trajectory Calc'!$A$6:$CQ$6,0))/1000)","v":" "},{"$f":"IF(INDEX('Rate Trajectory Calc'!$A$6:$CQ$92,MATCH('Rate Trajectory Report'!$B19,'Rate Trajectory Calc'!$A$6:$A$92,0),MATCH('Rate Trajectory Report'!O$5,'Rate Trajectory Calc'!$A$6:$CQ$6,0))=0,\" \",INDEX('Rate Trajectory Calc'!$A$6:$CQ$92,MATCH('Rate Trajectory Report'!$B19,'Rate Trajectory Calc'!$A$6:$A$92,0),MATCH('Rate Trajectory Report'!O$5,'Rate Trajectory Calc'!$A$6:$CQ$6,0))/1000)","v":" "},{"$f":"IF(INDEX('Rate Trajectory Calc'!$A$6:$CQ$92,MATCH('Rate Trajectory Report'!$B19,'Rate Trajectory Calc'!$A$6:$A$92,0),MATCH('Rate Trajectory Report'!P$5,'Rate Trajectory Calc'!$A$6:$CQ$6,0))=0,\" \",INDEX('Rate Trajectory Calc'!$A$6:$CQ$92,MATCH('Rate Trajectory Report'!$B19,'Rate Trajectory Calc'!$A$6:$A$92,0),MATCH('Rate Trajectory Report'!P$5,'Rate Trajectory Calc'!$A$6:$CQ$6,0))/1000)","v":" "},{"$f":"IF(INDEX('Rate Trajectory Calc'!$A$6:$CQ$92,MATCH('Rate Trajectory Report'!$B19,'Rate Trajectory Calc'!$A$6:$A$92,0),MATCH('Rate Trajectory Report'!Q$5,'Rate Trajectory Calc'!$A$6:$CQ$6,0))=0,\" \",INDEX('Rate Trajectory Calc'!$A$6:$CQ$92,MATCH('Rate Trajectory Report'!$B19,'Rate Trajectory Calc'!$A$6:$A$92,0),MATCH('Rate Trajectory Report'!Q$5,'Rate Trajectory Calc'!$A$6:$CQ$6,0))/1000)","v":" "},{"$f":"IF(INDEX('Rate Trajectory Calc'!$A$6:$CQ$92,MATCH('Rate Trajectory Report'!$B19,'Rate Trajectory Calc'!$A$6:$A$92,0),MATCH('Rate Trajectory Report'!R$5,'Rate Trajectory Calc'!$A$6:$CQ$6,0))=0,\" \",INDEX('Rate Trajectory Calc'!$A$6:$CQ$92,MATCH('Rate Trajectory Report'!$B19,'Rate Trajectory Calc'!$A$6:$A$92,0),MATCH('Rate Trajectory Report'!R$5,'Rate Trajectory Calc'!$A$6:$CQ$6,0))/1000)","v":" "},{"$f":"IF(INDEX('Rate Trajectory Calc'!$A$6:$CQ$92,MATCH('Rate Trajectory Report'!$B19,'Rate Trajectory Calc'!$A$6:$A$92,0),MATCH('Rate Trajectory Report'!S$5,'Rate Trajectory Calc'!$A$6:$CQ$6,0))=0,\" \",INDEX('Rate Trajectory Calc'!$A$6:$CQ$92,MATCH('Rate Trajectory Report'!$B19,'Rate Trajectory Calc'!$A$6:$A$92,0),MATCH('Rate Trajectory Report'!S$5,'Rate Trajectory Calc'!$A$6:$CQ$6,0))/1000)","v":" "},{"$f":"IF(INDEX('Rate Trajectory Calc'!$A$6:$CQ$92,MATCH('Rate Trajectory Report'!$B19,'Rate Trajectory Calc'!$A$6:$A$92,0),MATCH('Rate Trajectory Report'!T$5,'Rate Trajectory Calc'!$A$6:$CQ$6,0))=0,\" \",INDEX('Rate Trajectory Calc'!$A$6:$CQ$92,MATCH('Rate Trajectory Report'!$B19,'Rate Trajectory Calc'!$A$6:$A$92,0),MATCH('Rate Trajectory Report'!T$5,'Rate Trajectory Calc'!$A$6:$CQ$6,0))/1000)","v":8.4605126279812577},{"$f":"IF(INDEX('Rate Trajectory Calc'!$A$6:$CQ$92,MATCH('Rate Trajectory Report'!$B19,'Rate Trajectory Calc'!$A$6:$A$92,0),MATCH('Rate Trajectory Report'!U$5,'Rate Trajectory Calc'!$A$6:$CQ$6,0))=0,\" \",INDEX('Rate Trajectory Calc'!$A$6:$CQ$92,MATCH('Rate Trajectory Report'!$B19,'Rate Trajectory Calc'!$A$6:$A$92,0),MATCH('Rate Trajectory Report'!U$5,'Rate Trajectory Calc'!$A$6:$CQ$6,0))/1000)","v":" "},{"$f":"IF(INDEX('Rate Trajectory Calc'!$A$6:$CQ$92,MATCH('Rate Trajectory Report'!$B19,'Rate Trajectory Calc'!$A$6:$A$92,0),MATCH('Rate Trajectory Report'!V$5,'Rate Trajectory Calc'!$A$6:$CQ$6,0))=0,\" \",INDEX('Rate Trajectory Calc'!$A$6:$CQ$92,MATCH('Rate Trajectory Report'!$B19,'Rate Trajectory Calc'!$A$6:$A$92,0),MATCH('Rate Trajectory Report'!V$5,'Rate Trajectory Calc'!$A$6:$CQ$6,0))/1000)","v":" "},{"$f":"IF(INDEX('Rate Trajectory Calc'!$A$6:$CQ$92,MATCH('Rate Trajectory Report'!$B19,'Rate Trajectory Calc'!$A$6:$A$92,0),MATCH('Rate Trajectory Report'!W$5,'Rate Trajectory Calc'!$A$6:$CQ$6,0))=0,\" \",INDEX('Rate Trajectory Calc'!$A$6:$CQ$92,MATCH('Rate Trajectory Report'!$B19,'Rate Trajectory Calc'!$A$6:$A$92,0),MATCH('Rate Trajectory Report'!W$5,'Rate Trajectory Calc'!$A$6:$CQ$6,0))/1000)","v":" "},{"$f":"IF(INDEX('Rate Trajectory Calc'!$A$6:$CQ$92,MATCH('Rate Trajectory Report'!$B19,'Rate Trajectory Calc'!$A$6:$A$92,0),MATCH('Rate Trajectory Report'!X$5,'Rate Trajectory Calc'!$A$6:$CQ$6,0))=0,\" \",INDEX('Rate Trajectory Calc'!$A$6:$CQ$92,MATCH('Rate Trajectory Report'!$B19,'Rate Trajectory Calc'!$A$6:$A$92,0),MATCH('Rate Trajectory Report'!X$5,'Rate Trajectory Calc'!$A$6:$CQ$6,0))/1000)","v":" "},{"$f":"IF(INDEX('Rate Trajectory Calc'!$A$6:$CQ$92,MATCH('Rate Trajectory Report'!$B19,'Rate Trajectory Calc'!$A$6:$A$92,0),MATCH('Rate Trajectory Report'!Y$5,'Rate Trajectory Calc'!$A$6:$CQ$6,0))=0,\" \",INDEX('Rate Trajectory Calc'!$A$6:$CQ$92,MATCH('Rate Trajectory Report'!$B19,'Rate Trajectory Calc'!$A$6:$A$92,0),MATCH('Rate Trajectory Report'!Y$5,'Rate Trajectory Calc'!$A$6:$CQ$6,0))/1000)","v":" "},{"$f":"IF(INDEX('Rate Trajectory Calc'!$A$6:$CQ$92,MATCH('Rate Trajectory Report'!$B19,'Rate Trajectory Calc'!$A$6:$A$92,0),MATCH('Rate Trajectory Report'!Z$5,'Rate Trajectory Calc'!$A$6:$CQ$6,0))=0,\" \",INDEX('Rate Trajectory Calc'!$A$6:$CQ$92,MATCH('Rate Trajectory Report'!$B19,'Rate Trajectory Calc'!$A$6:$A$92,0),MATCH('Rate Trajectory Report'!Z$5,'Rate Trajectory Calc'!$A$6:$CQ$6,0))/1000)","v":" "},{"$f":"IF(INDEX('Rate Trajectory Calc'!$A$6:$CQ$92,MATCH('Rate Trajectory Report'!$B19,'Rate Trajectory Calc'!$A$6:$A$92,0),MATCH('Rate Trajectory Report'!AA$5,'Rate Trajectory Calc'!$A$6:$CQ$6,0))=0,\" \",INDEX('Rate Trajectory Calc'!$A$6:$CQ$92,MATCH('Rate Trajectory Report'!$B19,'Rate Trajectory Calc'!$A$6:$A$92,0),MATCH('Rate Trajectory Report'!AA$5,'Rate Trajectory Calc'!$A$6:$CQ$6,0))/1000)","v":" "}]
[null,{"$f":"'Rate Trajectory Dashboard'!B22","v":"Billing Modernization (Transmission) - Year 2028"},{"$f":"IFERROR(VLOOKUP(B20,'Rate Trajectory Dashboard'!$B$12:$D$96,3,FALSE)/1000,'Rate Trajectory Report'!C18)","v":0},{"$f":"IF(INDEX('Rate Trajectory Calc'!$A$6:$CQ$92,MATCH('Rate Trajectory Report'!$B20,'Rate Trajectory Calc'!$A$6:$A$92,0),MATCH('Rate Trajectory Report'!D$5,'Rate Trajectory Calc'!$A$6:$CQ$6,0))=0,\" \",INDEX('Rate Trajectory Calc'!$A$6:$CQ$92,MATCH('Rate Trajectory Report'!$B20,'Rate Trajectory Calc'!$A$6:$A$92,0),MATCH('Rate Trajectory Report'!D$5,'Rate Trajectory Calc'!$A$6:$CQ$6,0))/1000)","v":" "},{"$f":"IF(INDEX('Rate Trajectory Calc'!$A$6:$CQ$92,MATCH('Rate Trajectory Report'!$B20,'Rate Trajectory Calc'!$A$6:$A$92,0),MATCH('Rate Trajectory Report'!E$5,'Rate Trajectory Calc'!$A$6:$CQ$6,0))=0,\" \",INDEX('Rate Trajectory Calc'!$A$6:$CQ$92,MATCH('Rate Trajectory Report'!$B20,'Rate Trajectory Calc'!$A$6:$A$92,0),MATCH('Rate Trajectory Report'!E$5,'Rate Trajectory Calc'!$A$6:$CQ$6,0))/1000)","v":" "},{"$f":"IF(INDEX('Rate Trajectory Calc'!$A$6:$CQ$92,MATCH('Rate Trajectory Report'!$B20,'Rate Trajectory Calc'!$A$6:$A$92,0),MATCH('Rate Trajectory Report'!F$5,'Rate Trajectory Calc'!$A$6:$CQ$6,0))=0,\" \",INDEX('Rate Trajectory Calc'!$A$6:$CQ$92,MATCH('Rate Trajectory Report'!$B20,'Rate Trajectory Calc'!$A$6:$A$92,0),MATCH('Rate Trajectory Report'!F$5,'Rate Trajectory Calc'!$A$6:$CQ$6,0))/1000)","v":" "},{"$f":"IF(INDEX('Rate Trajectory Calc'!$A$6:$CQ$92,MATCH('Rate Trajectory Report'!$B20,'Rate Trajectory Calc'!$A$6:$A$92,0),MATCH('Rate Trajectory Report'!G$5,'Rate Trajectory Calc'!$A$6:$CQ$6,0))=0,\" \",INDEX('Rate Trajectory Calc'!$A$6:$CQ$92,MATCH('Rate Trajectory Report'!$B20,'Rate Trajectory Calc'!$A$6:$A$92,0),MATCH('Rate Trajectory Report'!G$5,'Rate Trajectory Calc'!$A$6:$CQ$6,0))/1000)","v":" "},{"$f":"IF(INDEX('Rate Trajectory Calc'!$A$6:$CQ$92,MATCH('Rate Trajectory Report'!$B20,'Rate Trajectory Calc'!$A$6:$A$92,0),MATCH('Rate Trajectory Report'!H$5,'Rate Trajectory Calc'!$A$6:$CQ$6,0))=0,\" \",INDEX('Rate Trajectory Calc'!$A$6:$CQ$92,MATCH('Rate Trajectory Report'!$B20,'Rate Trajectory Calc'!$A$6:$A$92,0),MATCH('Rate Trajectory Report'!H$5,'Rate Trajectory Calc'!$A$6:$CQ$6,0))/1000)","v":" "},{"$f":"IF(INDEX('Rate Trajectory Calc'!$A$6:$CQ$92,MATCH('Rate Trajectory Report'!$B20,'Rate Trajectory Calc'!$A$6:$A$92,0),MATCH('Rate Trajectory Report'!I$5,'Rate Trajectory Calc'!$A$6:$CQ$6,0))=0,\" \",INDEX('Rate Trajectory Calc'!$A$6:$CQ$92,MATCH('Rate Trajectory Report'!$B20,'Rate Trajectory Calc'!$A$6:$A$92,0),MATCH('Rate Trajectory Report'!I$5,'Rate Trajectory Calc'!$A$6:$CQ$6,0))/1000)","v":" "},{"$f":"IF(INDEX('Rate Trajectory Calc'!$A$6:$CQ$92,MATCH('Rate Trajectory Report'!$B20,'Rate Trajectory Calc'!$A$6:$A$92,0),MATCH('Rate Trajectory Report'!J$5,'Rate Trajectory Calc'!$A$6:$CQ$6,0))=0,\" \",INDEX('Rate Trajectory Calc'!$A$6:$CQ$92,MATCH('Rate Trajectory Report'!$B20,'Rate Trajectory Calc'!$A$6:$A$92,0),MATCH('Rate Trajectory Report'!J$5,'Rate Trajectory Calc'!$A$6:$CQ$6,0))/1000)","v":" "},{"$f":"IF(INDEX('Rate Trajectory Calc'!$A$6:$CQ$92,MATCH('Rate Trajectory Report'!$B20,'Rate Trajectory Calc'!$A$6:$A$92,0),MATCH('Rate Trajectory Report'!K$5,'Rate Trajectory Calc'!$A$6:$CQ$6,0))=0,\" \",INDEX('Rate Trajectory Calc'!$A$6:$CQ$92,MATCH('Rate Trajectory Report'!$B20,'Rate Trajectory Calc'!$A$6:$A$92,0),MATCH('Rate Trajectory Report'!K$5,'Rate Trajectory Calc'!$A$6:$CQ$6,0))/1000)","v":" "},{"$f":"IF(INDEX('Rate Trajectory Calc'!$A$6:$CQ$92,MATCH('Rate Trajectory Report'!$B20,'Rate Trajectory Calc'!$A$6:$A$92,0),MATCH('Rate Trajectory Report'!L$5,'Rate Trajectory Calc'!$A$6:$CQ$6,0))=0,\" \",INDEX('Rate Trajectory Calc'!$A$6:$CQ$92,MATCH('Rate Trajectory Report'!$B20,'Rate Trajectory Calc'!$A$6:$A$92,0),MATCH('Rate Trajectory Report'!L$5,'Rate Trajectory Calc'!$A$6:$CQ$6,0))/1000)","v":" "},{"$f":"IF(INDEX('Rate Trajectory Calc'!$A$6:$CQ$92,MATCH('Rate Trajectory Report'!$B20,'Rate Trajectory Calc'!$A$6:$A$92,0),MATCH('Rate Trajectory Report'!M$5,'Rate Trajectory Calc'!$A$6:$CQ$6,0))=0,\" \",INDEX('Rate Trajectory Calc'!$A$6:$CQ$92,MATCH('Rate Trajectory Report'!$B20,'Rate Trajectory Calc'!$A$6:$A$92,0),MATCH('Rate Trajectory Report'!M$5,'Rate Trajectory Calc'!$A$6:$CQ$6,0))/1000)","v":" "},{"$f":"IF(INDEX('Rate Trajectory Calc'!$A$6:$CQ$92,MATCH('Rate Trajectory Report'!$B20,'Rate Trajectory Calc'!$A$6:$A$92,0),MATCH('Rate Trajectory Report'!N$5,'Rate Trajectory Calc'!$A$6:$CQ$6,0))=0,\" \",INDEX('Rate Trajectory Calc'!$A$6:$CQ$92,MATCH('Rate Trajectory Report'!$B20,'Rate Trajectory Calc'!$A$6:$A$92,0),MATCH('Rate Trajectory Report'!N$5,'Rate Trajectory Calc'!$A$6:$CQ$6,0))/1000)","v":" "},{"$f":"IF(INDEX('Rate Trajectory Calc'!$A$6:$CQ$92,MATCH('Rate Trajectory Report'!$B20,'Rate Trajectory Calc'!$A$6:$A$92,0),MATCH('Rate Trajectory Report'!O$5,'Rate Trajectory Calc'!$A$6:$CQ$6,0))=0,\" \",INDEX('Rate Trajectory Calc'!$A$6:$CQ$92,MATCH('Rate Trajectory Report'!$B20,'Rate Trajectory Calc'!$A$6:$A$92,0),MATCH('Rate Trajectory Report'!O$5,'Rate Trajectory Calc'!$A$6:$CQ$6,0))/1000)","v":" "},{"$f":"IF(INDEX('Rate Trajectory Calc'!$A$6:$CQ$92,MATCH('Rate Trajectory Report'!$B20,'Rate Trajectory Calc'!$A$6:$A$92,0),MATCH('Rate Trajectory Report'!P$5,'Rate Trajectory Calc'!$A$6:$CQ$6,0))=0,\" \",INDEX('Rate Trajectory Calc'!$A$6:$CQ$92,MATCH('Rate Trajectory Report'!$B20,'Rate Trajectory Calc'!$A$6:$A$92,0),MATCH('Rate Trajectory Report'!P$5,'Rate Trajectory Calc'!$A$6:$CQ$6,0))/1000)","v":" "},{"$f":"IF(INDEX('Rate Trajectory Calc'!$A$6:$CQ$92,MATCH('Rate Trajectory Report'!$B20,'Rate Trajectory Calc'!$A$6:$A$92,0),MATCH('Rate Trajectory Report'!Q$5,'Rate Trajectory Calc'!$A$6:$CQ$6,0))=0,\" \",INDEX('Rate Trajectory Calc'!$A$6:$CQ$92,MATCH('Rate Trajectory Report'!$B20,'Rate Trajectory Calc'!$A$6:$A$92,0),MATCH('Rate Trajectory Report'!Q$5,'Rate Trajectory Calc'!$A$6:$CQ$6,0))/1000)","v":" "},{"$f":"IF(INDEX('Rate Trajectory Calc'!$A$6:$CQ$92,MATCH('Rate Trajectory Report'!$B20,'Rate Trajectory Calc'!$A$6:$A$92,0),MATCH('Rate Trajectory Report'!R$5,'Rate Trajectory Calc'!$A$6:$CQ$6,0))=0,\" \",INDEX('Rate Trajectory Calc'!$A$6:$CQ$92,MATCH('Rate Trajectory Report'!$B20,'Rate Trajectory Calc'!$A$6:$A$92,0),MATCH('Rate Trajectory Report'!R$5,'Rate Trajectory Calc'!$A$6:$CQ$6,0))/1000)","v":" "},{"$f":"IF(INDEX('Rate Trajectory Calc'!$A$6:$CQ$92,MATCH('Rate Trajectory Report'!$B20,'Rate Trajectory Calc'!$A$6:$A$92,0),MATCH('Rate Trajectory Report'!S$5,'Rate Trajectory Calc'!$A$6:$CQ$6,0))=0,\" \",INDEX('Rate Trajectory Calc'!$A$6:$CQ$92,MATCH('Rate Trajectory Report'!$B20,'Rate Trajectory Calc'!$A$6:$A$92,0),MATCH('Rate Trajectory Report'!S$5,'Rate Trajectory Calc'!$A$6:$CQ$6,0))/1000)","v":" "},{"$f":"IF(INDEX('Rate Trajectory Calc'!$A$6:$CQ$92,MATCH('Rate Trajectory Report'!$B20,'Rate Trajectory Calc'!$A$6:$A$92,0),MATCH('Rate Trajectory Report'!T$5,'Rate Trajectory Calc'!$A$6:$CQ$6,0))=0,\" \",INDEX('Rate Trajectory Calc'!$A$6:$CQ$92,MATCH('Rate Trajectory Report'!$B20,'Rate Trajectory Calc'!$A$6:$A$92,0),MATCH('Rate Trajectory Report'!T$5,'Rate Trajectory Calc'!$A$6:$CQ$6,0))/1000)","v":" "},{"$f":"IF(INDEX('Rate Trajectory Calc'!$A$6:$CQ$92,MATCH('Rate Trajectory Report'!$B20,'Rate Trajectory Calc'!$A$6:$A$92,0),MATCH('Rate Trajectory Report'!U$5,'Rate Trajectory Calc'!$A$6:$CQ$6,0))=0,\" \",INDEX('Rate Trajectory Calc'!$A$6:$CQ$92,MATCH('Rate Trajectory Report'!$B20,'Rate Trajectory Calc'!$A$6:$A$92,0),MATCH('Rate Trajectory Report'!U$5,'Rate Trajectory Calc'!$A$6:$CQ$6,0))/1000)","v":" "},{"$f":"IF(INDEX('Rate Trajectory Calc'!$A$6:$CQ$92,MATCH('Rate Trajectory Report'!$B20,'Rate Trajectory Calc'!$A$6:$A$92,0),MATCH('Rate Trajectory Report'!V$5,'Rate Trajectory Calc'!$A$6:$CQ$6,0))=0,\" \",INDEX('Rate Trajectory Calc'!$A$6:$CQ$92,MATCH('Rate Trajectory Report'!$B20,'Rate Trajectory Calc'!$A$6:$A$92,0),MATCH('Rate Trajectory Report'!V$5,'Rate Trajectory Calc'!$A$6:$CQ$6,0))/1000)","v":" "},{"$f":"IF(INDEX('Rate Trajectory Calc'!$A$6:$CQ$92,MATCH('Rate Trajectory Report'!$B20,'Rate Trajectory Calc'!$A$6:$A$92,0),MATCH('Rate Trajectory Report'!W$5,'Rate Trajectory Calc'!$A$6:$CQ$6,0))=0,\" \",INDEX('Rate Trajectory Calc'!$A$6:$CQ$92,MATCH('Rate Trajectory Report'!$B20,'Rate Trajectory Calc'!$A$6:$A$92,0),MATCH('Rate Trajectory Report'!W$5,'Rate Trajectory Calc'!$A$6:$CQ$6,0))/1000)","v":" "},{"$f":"IF(INDEX('Rate Trajectory Calc'!$A$6:$CQ$92,MATCH('Rate Trajectory Report'!$B20,'Rate Trajectory Calc'!$A$6:$A$92,0),MATCH('Rate Trajectory Report'!X$5,'Rate Trajectory Calc'!$A$6:$CQ$6,0))=0,\" \",INDEX('Rate Trajectory Calc'!$A$6:$CQ$92,MATCH('Rate Trajectory Report'!$B20,'Rate Trajectory Calc'!$A$6:$A$92,0),MATCH('Rate Trajectory Report'!X$5,'Rate Trajectory Calc'!$A$6:$CQ$6,0))/1000)","v":" "},{"$f":"IF(INDEX('Rate Trajectory Calc'!$A$6:$CQ$92,MATCH('Rate Trajectory Report'!$B20,'Rate Trajectory Calc'!$A$6:$A$92,0),MATCH('Rate Trajectory Report'!Y$5,'Rate Trajectory Calc'!$A$6:$CQ$6,0))=0,\" \",INDEX('Rate Trajectory Calc'!$A$6:$CQ$92,MATCH('Rate Trajectory Report'!$B20,'Rate Trajectory Calc'!$A$6:$A$92,0),MATCH('Rate Trajectory Report'!Y$5,'Rate Trajectory Calc'!$A$6:$CQ$6,0))/1000)","v":" "},{"$f":"IF(INDEX('Rate Trajectory Calc'!$A$6:$CQ$92,MATCH('Rate Trajectory Report'!$B20,'Rate Trajectory Calc'!$A$6:$A$92,0),MATCH('Rate Trajectory Report'!Z$5,'Rate Trajectory Calc'!$A$6:$CQ$6,0))=0,\" \",INDEX('Rate Trajectory Calc'!$A$6:$CQ$92,MATCH('Rate Trajectory Report'!$B20,'Rate Trajectory Calc'!$A$6:$A$92,0),MATCH('Rate Trajectory Report'!Z$5,'Rate Trajectory Calc'!$A$6:$CQ$6,0))/1000)","v":" "},{"$f":"IF(INDEX('Rate Trajectory Calc'!$A$6:$CQ$92,MATCH('Rate Trajectory Report'!$B20,'Rate Trajectory Calc'!$A$6:$A$92,0),MATCH('Rate Trajectory Report'!AA$5,'Rate Trajectory Calc'!$A$6:$CQ$6,0))=0,\" \",INDEX('Rate Trajectory Calc'!$A$6:$CQ$92,MATCH('Rate Trajectory Report'!$B20,'Rate Trajectory Calc'!$A$6:$A$92,0),MATCH('Rate Trajectory Report'!AA$5,'Rate Trajectory Calc'!$A$6:$CQ$6,0))/1000)","v":" "}]
[null,{"$f":"'Rate Trajectory Dashboard'!B23","v":"Billing Modernization (Transmission) - Year 2029"},{"$f":"IFERROR(VLOOKUP(B21,'Rate Trajectory Dashboard'!$B$12:$D$96,3,FALSE)/1000,'Rate Trajectory Report'!C19)","v":0},{"$f":"IF(INDEX('Rate Trajectory Calc'!$A$6:$CQ$92,MATCH('Rate Trajectory Report'!$B21,'Rate Trajectory Calc'!$A$6:$A$92,0),MATCH('Rate Trajectory Report'!D$5,'Rate Trajectory Calc'!$A$6:$CQ$6,0))=0,\" \",INDEX('Rate Trajectory Calc'!$A$6:$CQ$92,MATCH('Rate Trajectory Report'!$B21,'Rate Trajectory Calc'!$A$6:$A$92,0),MATCH('Rate Trajectory Report'!D$5,'Rate Trajectory Calc'!$A$6:$CQ$6,0))/1000)","v":" "},{"$f":"IF(INDEX('Rate Trajectory Calc'!$A$6:$CQ$92,MATCH('Rate Trajectory Report'!$B21,'Rate Trajectory Calc'!$A$6:$A$92,0),MATCH('Rate Trajectory Report'!E$5,'Rate Trajectory Calc'!$A$6:$CQ$6,0))=0,\" \",INDEX('Rate Trajectory Calc'!$A$6:$CQ$92,MATCH('Rate Trajectory Report'!$B21,'Rate Trajectory Calc'!$A$6:$A$92,0),MATCH('Rate Trajectory Report'!E$5,'Rate Trajectory Calc'!$A$6:$CQ$6,0))/1000)","v":" "},{"$f":"IF(INDEX('Rate Trajectory Calc'!$A$6:$CQ$92,MATCH('Rate Trajectory Report'!$B21,'Rate Trajectory Calc'!$A$6:$A$92,0),MATCH('Rate Trajectory Report'!F$5,'Rate Trajectory Calc'!$A$6:$CQ$6,0))=0,\" \",INDEX('Rate Trajectory Calc'!$A$6:$CQ$92,MATCH('Rate Trajectory Report'!$B21,'Rate Trajectory Calc'!$A$6:$A$92,0),MATCH('Rate Trajectory Report'!F$5,'Rate Trajectory Calc'!$A$6:$CQ$6,0))/1000)","v":" "},{"$f":"IF(INDEX('Rate Trajectory Calc'!$A$6:$CQ$92,MATCH('Rate Trajectory Report'!$B21,'Rate Trajectory Calc'!$A$6:$A$92,0),MATCH('Rate Trajectory Report'!G$5,'Rate Trajectory Calc'!$A$6:$CQ$6,0))=0,\" \",INDEX('Rate Trajectory Calc'!$A$6:$CQ$92,MATCH('Rate Trajectory Report'!$B21,'Rate Trajectory Calc'!$A$6:$A$92,0),MATCH('Rate Trajectory Report'!G$5,'Rate Trajectory Calc'!$A$6:$CQ$6,0))/1000)","v":" "},{"$f":"IF(INDEX('Rate Trajectory Calc'!$A$6:$CQ$92,MATCH('Rate Trajectory Report'!$B21,'Rate Trajectory Calc'!$A$6:$A$92,0),MATCH('Rate Trajectory Report'!H$5,'Rate Trajectory Calc'!$A$6:$CQ$6,0))=0,\" \",INDEX('Rate Trajectory Calc'!$A$6:$CQ$92,MATCH('Rate Trajectory Report'!$B21,'Rate Trajectory Calc'!$A$6:$A$92,0),MATCH('Rate Trajectory Report'!H$5,'Rate Trajectory Calc'!$A$6:$CQ$6,0))/1000)","v":" "},{"$f":"IF(INDEX('Rate Trajectory Calc'!$A$6:$CQ$92,MATCH('Rate Trajectory Report'!$B21,'Rate Trajectory Calc'!$A$6:$A$92,0),MATCH('Rate Trajectory Report'!I$5,'Rate Trajectory Calc'!$A$6:$CQ$6,0))=0,\" \",INDEX('Rate Trajectory Calc'!$A$6:$CQ$92,MATCH('Rate Trajectory Report'!$B21,'Rate Trajectory Calc'!$A$6:$A$92,0),MATCH('Rate Trajectory Report'!I$5,'Rate Trajectory Calc'!$A$6:$CQ$6,0))/1000)","v":" "},{"$f":"IF(INDEX('Rate Trajectory Calc'!$A$6:$CQ$92,MATCH('Rate Trajectory Report'!$B21,'Rate Trajectory Calc'!$A$6:$A$92,0),MATCH('Rate Trajectory Report'!J$5,'Rate Trajectory Calc'!$A$6:$CQ$6,0))=0,\" \",INDEX('Rate Trajectory Calc'!$A$6:$CQ$92,MATCH('Rate Trajectory Report'!$B21,'Rate Trajectory Calc'!$A$6:$A$92,0),MATCH('Rate Trajectory Report'!J$5,'Rate Trajectory Calc'!$A$6:$CQ$6,0))/1000)","v":" "},{"$f":"IF(INDEX('Rate Trajectory Calc'!$A$6:$CQ$92,MATCH('Rate Trajectory Report'!$B21,'Rate Trajectory Calc'!$A$6:$A$92,0),MATCH('Rate Trajectory Report'!K$5,'Rate Trajectory Calc'!$A$6:$CQ$6,0))=0,\" \",INDEX('Rate Trajectory Calc'!$A$6:$CQ$92,MATCH('Rate Trajectory Report'!$B21,'Rate Trajectory Calc'!$A$6:$A$92,0),MATCH('Rate Trajectory Report'!K$5,'Rate Trajectory Calc'!$A$6:$CQ$6,0))/1000)","v":" "},{"$f":"IF(INDEX('Rate Trajectory Calc'!$A$6:$CQ$92,MATCH('Rate Trajectory Report'!$B21,'Rate Trajectory Calc'!$A$6:$A$92,0),MATCH('Rate Trajectory Report'!L$5,'Rate Trajectory Calc'!$A$6:$CQ$6,0))=0,\" \",INDEX('Rate Trajectory Calc'!$A$6:$CQ$92,MATCH('Rate Trajectory Report'!$B21,'Rate Trajectory Calc'!$A$6:$A$92,0),MATCH('Rate Trajectory Report'!L$5,'Rate Trajectory Calc'!$A$6:$CQ$6,0))/1000)","v":" "},{"$f":"IF(INDEX('Rate Trajectory Calc'!$A$6:$CQ$92,MATCH('Rate Trajectory Report'!$B21,'Rate Trajectory Calc'!$A$6:$A$92,0),MATCH('Rate Trajectory Report'!M$5,'Rate Trajectory Calc'!$A$6:$CQ$6,0))=0,\" \",INDEX('Rate Trajectory Calc'!$A$6:$CQ$92,MATCH('Rate Trajectory Report'!$B21,'Rate Trajectory Calc'!$A$6:$A$92,0),MATCH('Rate Trajectory Report'!M$5,'Rate Trajectory Calc'!$A$6:$CQ$6,0))/1000)","v":" "},{"$f":"IF(INDEX('Rate Trajectory Calc'!$A$6:$CQ$92,MATCH('Rate Trajectory Report'!$B21,'Rate Trajectory Calc'!$A$6:$A$92,0),MATCH('Rate Trajectory Report'!N$5,'Rate Trajectory Calc'!$A$6:$CQ$6,0))=0,\" \",INDEX('Rate Trajectory Calc'!$A$6:$CQ$92,MATCH('Rate Trajectory Report'!$B21,'Rate Trajectory Calc'!$A$6:$A$92,0),MATCH('Rate Trajectory Report'!N$5,'Rate Trajectory Calc'!$A$6:$CQ$6,0))/1000)","v":" "},{"$f":"IF(INDEX('Rate Trajectory Calc'!$A$6:$CQ$92,MATCH('Rate Trajectory Report'!$B21,'Rate Trajectory Calc'!$A$6:$A$92,0),MATCH('Rate Trajectory Report'!O$5,'Rate Trajectory Calc'!$A$6:$CQ$6,0))=0,\" \",INDEX('Rate Trajectory Calc'!$A$6:$CQ$92,MATCH('Rate Trajectory Report'!$B21,'Rate Trajectory Calc'!$A$6:$A$92,0),MATCH('Rate Trajectory Report'!O$5,'Rate Trajectory Calc'!$A$6:$CQ$6,0))/1000)","v":" "},{"$f":"IF(INDEX('Rate Trajectory Calc'!$A$6:$CQ$92,MATCH('Rate Trajectory Report'!$B21,'Rate Trajectory Calc'!$A$6:$A$92,0),MATCH('Rate Trajectory Report'!P$5,'Rate Trajectory Calc'!$A$6:$CQ$6,0))=0,\" \",INDEX('Rate Trajectory Calc'!$A$6:$CQ$92,MATCH('Rate Trajectory Report'!$B21,'Rate Trajectory Calc'!$A$6:$A$92,0),MATCH('Rate Trajectory Report'!P$5,'Rate Trajectory Calc'!$A$6:$CQ$6,0))/1000)","v":" "},{"$f":"IF(INDEX('Rate Trajectory Calc'!$A$6:$CQ$92,MATCH('Rate Trajectory Report'!$B21,'Rate Trajectory Calc'!$A$6:$A$92,0),MATCH('Rate Trajectory Report'!Q$5,'Rate Trajectory Calc'!$A$6:$CQ$6,0))=0,\" \",INDEX('Rate Trajectory Calc'!$A$6:$CQ$92,MATCH('Rate Trajectory Report'!$B21,'Rate Trajectory Calc'!$A$6:$A$92,0),MATCH('Rate Trajectory Report'!Q$5,'Rate Trajectory Calc'!$A$6:$CQ$6,0))/1000)","v":" "},{"$f":"IF(INDEX('Rate Trajectory Calc'!$A$6:$CQ$92,MATCH('Rate Trajectory Report'!$B21,'Rate Trajectory Calc'!$A$6:$A$92,0),MATCH('Rate Trajectory Report'!R$5,'Rate Trajectory Calc'!$A$6:$CQ$6,0))=0,\" \",INDEX('Rate Trajectory Calc'!$A$6:$CQ$92,MATCH('Rate Trajectory Report'!$B21,'Rate Trajectory Calc'!$A$6:$A$92,0),MATCH('Rate Trajectory Report'!R$5,'Rate Trajectory Calc'!$A$6:$CQ$6,0))/1000)","v":" "},{"$f":"IF(INDEX('Rate Trajectory Calc'!$A$6:$CQ$92,MATCH('Rate Trajectory Report'!$B21,'Rate Trajectory Calc'!$A$6:$A$92,0),MATCH('Rate Trajectory Report'!S$5,'Rate Trajectory Calc'!$A$6:$CQ$6,0))=0,\" \",INDEX('Rate Trajectory Calc'!$A$6:$CQ$92,MATCH('Rate Trajectory Report'!$B21,'Rate Trajectory Calc'!$A$6:$A$92,0),MATCH('Rate Trajectory Report'!S$5,'Rate Trajectory Calc'!$A$6:$CQ$6,0))/1000)","v":" "},{"$f":"IF(INDEX('Rate Trajectory Calc'!$A$6:$CQ$92,MATCH('Rate Trajectory Report'!$B21,'Rate Trajectory Calc'!$A$6:$A$92,0),MATCH('Rate Trajectory Report'!T$5,'Rate Trajectory Calc'!$A$6:$CQ$6,0))=0,\" \",INDEX('Rate Trajectory Calc'!$A$6:$CQ$92,MATCH('Rate Trajectory Report'!$B21,'Rate Trajectory Calc'!$A$6:$A$92,0),MATCH('Rate Trajectory Report'!T$5,'Rate Trajectory Calc'!$A$6:$CQ$6,0))/1000)","v":" "},{"$f":"IF(INDEX('Rate Trajectory Calc'!$A$6:$CQ$92,MATCH('Rate Trajectory Report'!$B21,'Rate Trajectory Calc'!$A$6:$A$92,0),MATCH('Rate Trajectory Report'!U$5,'Rate Trajectory Calc'!$A$6:$CQ$6,0))=0,\" \",INDEX('Rate Trajectory Calc'!$A$6:$CQ$92,MATCH('Rate Trajectory Report'!$B21,'Rate Trajectory Calc'!$A$6:$A$92,0),MATCH('Rate Trajectory Report'!U$5,'Rate Trajectory Calc'!$A$6:$CQ$6,0))/1000)","v":" "},{"$f":"IF(INDEX('Rate Trajectory Calc'!$A$6:$CQ$92,MATCH('Rate Trajectory Report'!$B21,'Rate Trajectory Calc'!$A$6:$A$92,0),MATCH('Rate Trajectory Report'!V$5,'Rate Trajectory Calc'!$A$6:$CQ$6,0))=0,\" \",INDEX('Rate Trajectory Calc'!$A$6:$CQ$92,MATCH('Rate Trajectory Report'!$B21,'Rate Trajectory Calc'!$A$6:$A$92,0),MATCH('Rate Trajectory Report'!V$5,'Rate Trajectory Calc'!$A$6:$CQ$6,0))/1000)","v":" "},{"$f":"IF(INDEX('Rate Trajectory Calc'!$A$6:$CQ$92,MATCH('Rate Trajectory Report'!$B21,'Rate Trajectory Calc'!$A$6:$A$92,0),MATCH('Rate Trajectory Report'!W$5,'Rate Trajectory Calc'!$A$6:$CQ$6,0))=0,\" \",INDEX('Rate Trajectory Calc'!$A$6:$CQ$92,MATCH('Rate Trajectory Report'!$B21,'Rate Trajectory Calc'!$A$6:$A$92,0),MATCH('Rate Trajectory Report'!W$5,'Rate Trajectory Calc'!$A$6:$CQ$6,0))/1000)","v":" "},{"$f":"IF(INDEX('Rate Trajectory Calc'!$A$6:$CQ$92,MATCH('Rate Trajectory Report'!$B21,'Rate Trajectory Calc'!$A$6:$A$92,0),MATCH('Rate Trajectory Report'!X$5,'Rate Trajectory Calc'!$A$6:$CQ$6,0))=0,\" \",INDEX('Rate Trajectory Calc'!$A$6:$CQ$92,MATCH('Rate Trajectory Report'!$B21,'Rate Trajectory Calc'!$A$6:$A$92,0),MATCH('Rate Trajectory Report'!X$5,'Rate Trajectory Calc'!$A$6:$CQ$6,0))/1000)","v":" "},{"$f":"IF(INDEX('Rate Trajectory Calc'!$A$6:$CQ$92,MATCH('Rate Trajectory Report'!$B21,'Rate Trajectory Calc'!$A$6:$A$92,0),MATCH('Rate Trajectory Report'!Y$5,'Rate Trajectory Calc'!$A$6:$CQ$6,0))=0,\" \",INDEX('Rate Trajectory Calc'!$A$6:$CQ$92,MATCH('Rate Trajectory Report'!$B21,'Rate Trajectory Calc'!$A$6:$A$92,0),MATCH('Rate Trajectory Report'!Y$5,'Rate Trajectory Calc'!$A$6:$CQ$6,0))/1000)","v":" "},{"$f":"IF(INDEX('Rate Trajectory Calc'!$A$6:$CQ$92,MATCH('Rate Trajectory Report'!$B21,'Rate Trajectory Calc'!$A$6:$A$92,0),MATCH('Rate Trajectory Report'!Z$5,'Rate Trajectory Calc'!$A$6:$CQ$6,0))=0,\" \",INDEX('Rate Trajectory Calc'!$A$6:$CQ$92,MATCH('Rate Trajectory Report'!$B21,'Rate Trajectory Calc'!$A$6:$A$92,0),MATCH('Rate Trajectory Report'!Z$5,'Rate Trajectory Calc'!$A$6:$CQ$6,0))/1000)","v":" "},{"$f":"IF(INDEX('Rate Trajectory Calc'!$A$6:$CQ$92,MATCH('Rate Trajectory Report'!$B21,'Rate Trajectory Calc'!$A$6:$A$92,0),MATCH('Rate Trajectory Report'!AA$5,'Rate Trajectory Calc'!$A$6:$CQ$6,0))=0,\" \",INDEX('Rate Trajectory Calc'!$A$6:$CQ$92,MATCH('Rate Trajectory Report'!$B21,'Rate Trajectory Calc'!$A$6:$A$92,0),MATCH('Rate Trajectory Report'!AA$5,'Rate Trajectory Calc'!$A$6:$CQ$6,0))/1000)","v":" "}]
["4b","Billing Modernization (Transmission)",{"$f":"IFERROR(VLOOKUP(B22,'Rate Trajectory Dashboard'!$B$12:$D$96,3,FALSE)/1000,'Rate Trajectory Report'!C20)","v":0},{"$f":"IF(SUM(D18:D21)=0,\" \",SUBTOTAL(9,D18:D21))","v":" "},{"$f":"IF(SUM(E18:E21)=0,\" \",SUBTOTAL(9,E18:E21))","v":" "}," "," ",8.918457231194127," "," "," "," "," "," "," "," "," "," "," ",-0.45794460321286934," "," "," "," "," "," "," "]
[4,"Billing Modernization",{"$f":"C17+C22","v":0},{"$f":"IF(SUM(D13:D22)=0,\" \",SUBTOTAL(9,D13:D22))","v":" "},{"$f":"IF(SUM(E13:E22)=0,\" \",SUBTOTAL(9,E13:E22))","v":" "}," "," ",27.630631056388701," "," "," "," "," "," "," "," "," "," "," ",-1.4187765935562844," "," "," "," "," "," "," "]
[null,{"$f":"'Rate Trajectory Dashboard'!B24","v":"Hydrogen Demonstration Project (2027) - Year 2027"},{"$f":"IFERROR(VLOOKUP(B24,'Rate Trajectory Dashboard'!$B$12:$D$96,3,FALSE)/1000,'Rate Trajectory Report'!C23)","v":0},{"$f":"IF(INDEX('Rate Trajectory Calc'!$A$6:$CQ$92,MATCH('Rate Trajectory Report'!$B24,'Rate Trajectory Calc'!$A$6:$A$92,0),MATCH('Rate Trajectory Report'!D$5,'Rate Trajectory Calc'!$A$6:$CQ$6,0))=0,\" \",INDEX('Rate Trajectory Calc'!$A$6:$CQ$92,MATCH('Rate Trajectory Report'!$B24,'Rate Trajectory Calc'!$A$6:$A$92,0),MATCH('Rate Trajectory Report'!D$5,'Rate Trajectory Calc'!$A$6:$CQ$6,0))/1000)","v":" "},{"$f":"IF(INDEX('Rate Trajectory Calc'!$A$6:$CQ$92,MATCH('Rate Trajectory Report'!$B24,'Rate Trajectory Calc'!$A$6:$A$92,0),MATCH('Rate Trajectory Report'!E$5,'Rate Trajectory Calc'!$A$6:$CQ$6,0))=0,\" \",INDEX('Rate Trajectory Calc'!$A$6:$CQ$92,MATCH('Rate Trajectory Report'!$B24,'Rate Trajectory Calc'!$A$6:$A$92,0),MATCH('Rate Trajectory Report'!E$5,'Rate Trajectory Calc'!$A$6:$CQ$6,0))/1000)","v":" "},{"$f":"IF(INDEX('Rate Trajectory Calc'!$A$6:$CQ$92,MATCH('Rate Trajectory Report'!$B24,'Rate Trajectory Calc'!$A$6:$A$92,0),MATCH('Rate Trajectory Report'!F$5,'Rate Trajectory Calc'!$A$6:$CQ$6,0))=0,\" \",INDEX('Rate Trajectory Calc'!$A$6:$CQ$92,MATCH('Rate Trajectory Report'!$B24,'Rate Trajectory Calc'!$A$6:$A$92,0),MATCH('Rate Trajectory Report'!F$5,'Rate Trajectory Calc'!$A$6:$CQ$6,0))/1000)","v":" "},{"$f":"IF(INDEX('Rate Trajectory Calc'!$A$6:$CQ$92,MATCH('Rate Trajectory Report'!$B24,'Rate Trajectory Calc'!$A$6:$A$92,0),MATCH('Rate Trajectory Report'!G$5,'Rate Trajectory Calc'!$A$6:$CQ$6,0))=0,\" \",INDEX('Rate Trajectory Calc'!$A$6:$CQ$92,MATCH('Rate Trajectory Report'!$B24,'Rate Trajectory Calc'!$A$6:$A$92,0),MATCH('Rate Trajectory Report'!G$5,'Rate Trajectory Calc'!$A$6:$CQ$6,0))/1000)","v":" "},{"$f":"IF(INDEX('Rate Trajectory Calc'!$A$6:$CQ$92,MATCH('Rate Trajectory Report'!$B24,'Rate Trajectory Calc'!$A$6:$A$92,0),MATCH('Rate Trajectory Report'!H$5,'Rate Trajectory Calc'!$A$6:$CQ$6,0))=0,\" \",INDEX('Rate Trajectory Calc'!$A$6:$CQ$92,MATCH('Rate Trajectory Report'!$B24,'Rate Trajectory Calc'!$A$6:$A$92,0),MATCH('Rate Trajectory Report'!H$5,'Rate Trajectory Calc'!$A$6:$CQ$6,0))/1000)","v":" "},{"$f":"IF(INDEX('Rate Trajectory Calc'!$A$6:$CQ$92,MATCH('Rate Trajectory Report'!$B24,'Rate Trajectory Calc'!$A$6:$A$92,0),MATCH('Rate Trajectory Report'!I$5,'Rate Trajectory Calc'!$A$6:$CQ$6,0))=0,\" \",INDEX('Rate Trajectory Calc'!$A$6:$CQ$92,MATCH('Rate Trajectory Report'!$B24,'Rate Trajectory Calc'!$A$6:$A$92,0),MATCH('Rate Trajectory Report'!I$5,'Rate Trajectory Calc'!$A$6:$CQ$6,0))/1000)","v":" "},{"$f":"IF(INDEX('Rate Trajectory Calc'!$A$6:$CQ$92,MATCH('Rate Trajectory Report'!$B24,'Rate Trajectory Calc'!$A$6:$A$92,0),MATCH('Rate Trajectory Report'!J$5,'Rate Trajectory Calc'!$A$6:$CQ$6,0))=0,\" \",INDEX('Rate Trajectory Calc'!$A$6:$CQ$92,MATCH('Rate Trajectory Report'!$B24,'Rate Trajectory Calc'!$A$6:$A$92,0),MATCH('Rate Trajectory Report'!J$5,'Rate Trajectory Calc'!$A$6:$CQ$6,0))/1000)","v":" "},{"$f":"IF(INDEX('Rate Trajectory Calc'!$A$6:$CQ$92,MATCH('Rate Trajectory Report'!$B24,'Rate Trajectory Calc'!$A$6:$A$92,0),MATCH('Rate Trajectory Report'!K$5,'Rate Trajectory Calc'!$A$6:$CQ$6,0))=0,\" \",INDEX('Rate Trajectory Calc'!$A$6:$CQ$92,MATCH('Rate Trajectory Report'!$B24,'Rate Trajectory Calc'!$A$6:$A$92,0),MATCH('Rate Trajectory Report'!K$5,'Rate Trajectory Calc'!$A$6:$CQ$6,0))/1000)","v":" "},{"$f":"IF(INDEX('Rate Trajectory Calc'!$A$6:$CQ$92,MATCH('Rate Trajectory Report'!$B24,'Rate Trajectory Calc'!$A$6:$A$92,0),MATCH('Rate Trajectory Report'!L$5,'Rate Trajectory Calc'!$A$6:$CQ$6,0))=0,\" \",INDEX('Rate Trajectory Calc'!$A$6:$CQ$92,MATCH('Rate Trajectory Report'!$B24,'Rate Trajectory Calc'!$A$6:$A$92,0),MATCH('Rate Trajectory Report'!L$5,'Rate Trajectory Calc'!$A$6:$CQ$6,0))/1000)","v":" "},{"$f":"IF(INDEX('Rate Trajectory Calc'!$A$6:$CQ$92,MATCH('Rate Trajectory Report'!$B24,'Rate Trajectory Calc'!$A$6:$A$92,0),MATCH('Rate Trajectory Report'!M$5,'Rate Trajectory Calc'!$A$6:$CQ$6,0))=0,\" \",INDEX('Rate Trajectory Calc'!$A$6:$CQ$92,MATCH('Rate Trajectory Report'!$B24,'Rate Trajectory Calc'!$A$6:$A$92,0),MATCH('Rate Trajectory Report'!M$5,'Rate Trajectory Calc'!$A$6:$CQ$6,0))/1000)","v":" "},{"$f":"IF(INDEX('Rate Trajectory Calc'!$A$6:$CQ$92,MATCH('Rate Trajectory Report'!$B24,'Rate Trajectory Calc'!$A$6:$A$92,0),MATCH('Rate Trajectory Report'!N$5,'Rate Trajectory Calc'!$A$6:$CQ$6,0))=0,\" \",INDEX('Rate Trajectory Calc'!$A$6:$CQ$92,MATCH('Rate Trajectory Report'!$B24,'Rate Trajectory Calc'!$A$6:$A$92,0),MATCH('Rate Trajectory Report'!N$5,'Rate Trajectory Calc'!$A$6:$CQ$6,0))/1000)","v":" "},{"$f":"IF(INDEX('Rate Trajectory Calc'!$A$6:$CQ$92,MATCH('Rate Trajectory Report'!$B24,'Rate Trajectory Calc'!$A$6:$A$92,0),MATCH('Rate Trajectory Report'!O$5,'Rate Trajectory Calc'!$A$6:$CQ$6,0))=0,\" \",INDEX('Rate Trajectory Calc'!$A$6:$CQ$92,MATCH('Rate Trajectory Report'!$B24,'Rate Trajectory Calc'!$A$6:$A$92,0),MATCH('Rate Trajectory Report'!O$5,'Rate Trajectory Calc'!$A$6:$CQ$6,0))/1000)","v":" "},{"$f":"IF(INDEX('Rate Trajectory Calc'!$A$6:$CQ$92,MATCH('Rate Trajectory Report'!$B24,'Rate Trajectory Calc'!$A$6:$A$92,0),MATCH('Rate Trajectory Report'!P$5,'Rate Trajectory Calc'!$A$6:$CQ$6,0))=0,\" \",INDEX('Rate Trajectory Calc'!$A$6:$CQ$92,MATCH('Rate Trajectory Report'!$B24,'Rate Trajectory Calc'!$A$6:$A$92,0),MATCH('Rate Trajectory Report'!P$5,'Rate Trajectory Calc'!$A$6:$CQ$6,0))/1000)","v":" "},{"$f":"IF(INDEX('Rate Trajectory Calc'!$A$6:$CQ$92,MATCH('Rate Trajectory Report'!$B24,'Rate Trajectory Calc'!$A$6:$A$92,0),MATCH('Rate Trajectory Report'!Q$5,'Rate Trajectory Calc'!$A$6:$CQ$6,0))=0,\" \",INDEX('Rate Trajectory Calc'!$A$6:$CQ$92,MATCH('Rate Trajectory Report'!$B24,'Rate Trajectory Calc'!$A$6:$A$92,0),MATCH('Rate Trajectory Report'!Q$5,'Rate Trajectory Calc'!$A$6:$CQ$6,0))/1000)","v":" "},{"$f":"IF(INDEX('Rate Trajectory Calc'!$A$6:$CQ$92,MATCH('Rate Trajectory Report'!$B24,'Rate Trajectory Calc'!$A$6:$A$92,0),MATCH('Rate Trajectory Report'!R$5,'Rate Trajectory Calc'!$A$6:$CQ$6,0))=0,\" \",INDEX('Rate Trajectory Calc'!$A$6:$CQ$92,MATCH('Rate Trajectory Report'!$B24,'Rate Trajectory Calc'!$A$6:$A$92,0),MATCH('Rate Trajectory Report'!R$5,'Rate Trajectory Calc'!$A$6:$CQ$6,0))/1000)","v":" "},{"$f":"IF(INDEX('Rate Trajectory Calc'!$A$6:$CQ$92,MATCH('Rate Trajectory Report'!$B24,'Rate Trajectory Calc'!$A$6:$A$92,0),MATCH('Rate Trajectory Report'!S$5,'Rate Trajectory Calc'!$A$6:$CQ$6,0))=0,\" \",INDEX('Rate Trajectory Calc'!$A$6:$CQ$92,MATCH('Rate Trajectory Report'!$B24,'Rate Trajectory Calc'!$A$6:$A$92,0),MATCH('Rate Trajectory Report'!S$5,'Rate Trajectory Calc'!$A$6:$CQ$6,0))/1000)","v":" "},{"$f":"IF(INDEX('Rate Trajectory Calc'!$A$6:$CQ$92,MATCH('Rate Trajectory Report'!$B24,'Rate Trajectory Calc'!$A$6:$A$92,0),MATCH('Rate Trajectory Report'!T$5,'Rate Trajectory Calc'!$A$6:$CQ$6,0))=0,\" \",INDEX('Rate Trajectory Calc'!$A$6:$CQ$92,MATCH('Rate Trajectory Report'!$B24,'Rate Trajectory Calc'!$A$6:$A$92,0),MATCH('Rate Trajectory Report'!T$5,'Rate Trajectory Calc'!$A$6:$CQ$6,0))/1000)","v":3.0220229370078715},{"$f":"IF(INDEX('Rate Trajectory Calc'!$A$6:$CQ$92,MATCH('Rate Trajectory Report'!$B24,'Rate Trajectory Calc'!$A$6:$A$92,0),MATCH('Rate Trajectory Report'!U$5,'Rate Trajectory Calc'!$A$6:$CQ$6,0))=0,\" \",INDEX('Rate Trajectory Calc'!$A$6:$CQ$92,MATCH('Rate Trajectory Report'!$B24,'Rate Trajectory Calc'!$A$6:$A$92,0),MATCH('Rate Trajectory Report'!U$5,'Rate Trajectory Calc'!$A$6:$CQ$6,0))/1000)","v":" "},{"$f":"IF(INDEX('Rate Trajectory Calc'!$A$6:$CQ$92,MATCH('Rate Trajectory Report'!$B24,'Rate Trajectory Calc'!$A$6:$A$92,0),MATCH('Rate Trajectory Report'!V$5,'Rate Trajectory Calc'!$A$6:$CQ$6,0))=0,\" \",INDEX('Rate Trajectory Calc'!$A$6:$CQ$92,MATCH('Rate Trajectory Report'!$B24,'Rate Trajectory Calc'!$A$6:$A$92,0),MATCH('Rate Trajectory Report'!V$5,'Rate Trajectory Calc'!$A$6:$CQ$6,0))/1000)","v":" "},{"$f":"IF(INDEX('Rate Trajectory Calc'!$A$6:$CQ$92,MATCH('Rate Trajectory Report'!$B24,'Rate Trajectory Calc'!$A$6:$A$92,0),MATCH('Rate Trajectory Report'!W$5,'Rate Trajectory Calc'!$A$6:$CQ$6,0))=0,\" \",INDEX('Rate Trajectory Calc'!$A$6:$CQ$92,MATCH('Rate Trajectory Report'!$B24,'Rate Trajectory Calc'!$A$6:$A$92,0),MATCH('Rate Trajectory Report'!W$5,'Rate Trajectory Calc'!$A$6:$CQ$6,0))/1000)","v":" "},{"$f":"IF(INDEX('Rate Trajectory Calc'!$A$6:$CQ$92,MATCH('Rate Trajectory Report'!$B24,'Rate Trajectory Calc'!$A$6:$A$92,0),MATCH('Rate Trajectory Report'!X$5,'Rate Trajectory Calc'!$A$6:$CQ$6,0))=0,\" \",INDEX('Rate Trajectory Calc'!$A$6:$CQ$92,MATCH('Rate Trajectory Report'!$B24,'Rate Trajectory Calc'!$A$6:$A$92,0),MATCH('Rate Trajectory Report'!X$5,'Rate Trajectory Calc'!$A$6:$CQ$6,0))/1000)","v":" "},{"$f":"IF(INDEX('Rate Trajectory Calc'!$A$6:$CQ$92,MATCH('Rate Trajectory Report'!$B24,'Rate Trajectory Calc'!$A$6:$A$92,0),MATCH('Rate Trajectory Report'!Y$5,'Rate Trajectory Calc'!$A$6:$CQ$6,0))=0,\" \",INDEX('Rate Trajectory Calc'!$A$6:$CQ$92,MATCH('Rate Trajectory Report'!$B24,'Rate Trajectory Calc'!$A$6:$A$92,0),MATCH('Rate Trajectory Report'!Y$5,'Rate Trajectory Calc'!$A$6:$CQ$6,0))/1000)","v":" "},{"$f":"IF(INDEX('Rate Trajectory Calc'!$A$6:$CQ$92,MATCH('Rate Trajectory Report'!$B24,'Rate Trajectory Calc'!$A$6:$A$92,0),MATCH('Rate Trajectory Report'!Z$5,'Rate Trajectory Calc'!$A$6:$CQ$6,0))=0,\" \",INDEX('Rate Trajectory Calc'!$A$6:$CQ$92,MATCH('Rate Trajectory Report'!$B24,'Rate Trajectory Calc'!$A$6:$A$92,0),MATCH('Rate Trajectory Report'!Z$5,'Rate Trajectory Calc'!$A$6:$CQ$6,0))/1000)","v":" "},{"$f":"IF(INDEX('Rate Trajectory Calc'!$A$6:$CQ$92,MATCH('Rate Trajectory Report'!$B24,'Rate Trajectory Calc'!$A$6:$A$92,0),MATCH('Rate Trajectory Report'!AA$5,'Rate Trajectory Calc'!$A$6:$CQ$6,0))=0,\" \",INDEX('Rate Trajectory Calc'!$A$6:$CQ$92,MATCH('Rate Trajectory Report'!$B24,'Rate Trajectory Calc'!$A$6:$A$92,0),MATCH('Rate Trajectory Report'!AA$5,'Rate Trajectory Calc'!$A$6:$CQ$6,0))/1000)","v":" "}]
[null,{"$f":"'Rate Trajectory Dashboard'!B25","v":"Hydrogen Demonstration Project (2027) - Year 2028"},{"$f":"IFERROR(VLOOKUP(B25,'Rate Trajectory Dashboard'!$B$12:$D$96,3,FALSE)/1000,'Rate Trajectory Report'!C24)","v":0},{"$f":"IF(INDEX('Rate Trajectory Calc'!$A$6:$CQ$92,MATCH('Rate Trajectory Report'!$B25,'Rate Trajectory Calc'!$A$6:$A$92,0),MATCH('Rate Trajectory Report'!D$5,'Rate Trajectory Calc'!$A$6:$CQ$6,0))=0,\" \",INDEX('Rate Trajectory Calc'!$A$6:$CQ$92,MATCH('Rate Trajectory Report'!$B25,'Rate Trajectory Calc'!$A$6:$A$92,0),MATCH('Rate Trajectory Report'!D$5,'Rate Trajectory Calc'!$A$6:$CQ$6,0))/1000)","v":" "},{"$f":"IF(INDEX('Rate Trajectory Calc'!$A$6:$CQ$92,MATCH('Rate Trajectory Report'!$B25,'Rate Trajectory Calc'!$A$6:$A$92,0),MATCH('Rate Trajectory Report'!E$5,'Rate Trajectory Calc'!$A$6:$CQ$6,0))=0,\" \",INDEX('Rate Trajectory Calc'!$A$6:$CQ$92,MATCH('Rate Trajectory Report'!$B25,'Rate Trajectory Calc'!$A$6:$A$92,0),MATCH('Rate Trajectory Report'!E$5,'Rate Trajectory Calc'!$A$6:$CQ$6,0))/1000)","v":" "},{"$f":"IF(INDEX('Rate Trajectory Calc'!$A$6:$CQ$92,MATCH('Rate Trajectory Report'!$B25,'Rate Trajectory Calc'!$A$6:$A$92,0),MATCH('Rate Trajectory Report'!F$5,'Rate Trajectory Calc'!$A$6:$CQ$6,0))=0,\" \",INDEX('Rate Trajectory Calc'!$A$6:$CQ$92,MATCH('Rate Trajectory Report'!$B25,'Rate Trajectory Calc'!$A$6:$A$92,0),MATCH('Rate Trajectory Report'!F$5,'Rate Trajectory Calc'!$A$6:$CQ$6,0))/1000)","v":" "},{"$f":"IF(INDEX('Rate Trajectory Calc'!$A$6:$CQ$92,MATCH('Rate Trajectory Report'!$B25,'Rate Trajectory Calc'!$A$6:$A$92,0),MATCH('Rate Trajectory Report'!G$5,'Rate Trajectory Calc'!$A$6:$CQ$6,0))=0,\" \",INDEX('Rate Trajectory Calc'!$A$6:$CQ$92,MATCH('Rate Trajectory Report'!$B25,'Rate Trajectory Calc'!$A$6:$A$92,0),MATCH('Rate Trajectory Report'!G$5,'Rate Trajectory Calc'!$A$6:$CQ$6,0))/1000)","v":" "},{"$f":"IF(INDEX('Rate Trajectory Calc'!$A$6:$CQ$92,MATCH('Rate Trajectory Report'!$B25,'Rate Trajectory Calc'!$A$6:$A$92,0),MATCH('Rate Trajectory Report'!H$5,'Rate Trajectory Calc'!$A$6:$CQ$6,0))=0,\" \",INDEX('Rate Trajectory Calc'!$A$6:$CQ$92,MATCH('Rate Trajectory Report'!$B25,'Rate Trajectory Calc'!$A$6:$A$92,0),MATCH('Rate Trajectory Report'!H$5,'Rate Trajectory Calc'!$A$6:$CQ$6,0))/1000)","v":" "},{"$f":"IF(INDEX('Rate Trajectory Calc'!$A$6:$CQ$92,MATCH('Rate Trajectory Report'!$B25,'Rate Trajectory Calc'!$A$6:$A$92,0),MATCH('Rate Trajectory Report'!I$5,'Rate Trajectory Calc'!$A$6:$CQ$6,0))=0,\" \",INDEX('Rate Trajectory Calc'!$A$6:$CQ$92,MATCH('Rate Trajectory Report'!$B25,'Rate Trajectory Calc'!$A$6:$A$92,0),MATCH('Rate Trajectory Report'!I$5,'Rate Trajectory Calc'!$A$6:$CQ$6,0))/1000)","v":" "},{"$f":"IF(INDEX('Rate Trajectory Calc'!$A$6:$CQ$92,MATCH('Rate Trajectory Report'!$B25,'Rate Trajectory Calc'!$A$6:$A$92,0),MATCH('Rate Trajectory Report'!J$5,'Rate Trajectory Calc'!$A$6:$CQ$6,0))=0,\" \",INDEX('Rate Trajectory Calc'!$A$6:$CQ$92,MATCH('Rate Trajectory Report'!$B25,'Rate Trajectory Calc'!$A$6:$A$92,0),MATCH('Rate Trajectory Report'!J$5,'Rate Trajectory Calc'!$A$6:$CQ$6,0))/1000)","v":" "},{"$f":"IF(INDEX('Rate Trajectory Calc'!$A$6:$CQ$92,MATCH('Rate Trajectory Report'!$B25,'Rate Trajectory Calc'!$A$6:$A$92,0),MATCH('Rate Trajectory Report'!K$5,'Rate Trajectory Calc'!$A$6:$CQ$6,0))=0,\" \",INDEX('Rate Trajectory Calc'!$A$6:$CQ$92,MATCH('Rate Trajectory Report'!$B25,'Rate Trajectory Calc'!$A$6:$A$92,0),MATCH('Rate Trajectory Report'!K$5,'Rate Trajectory Calc'!$A$6:$CQ$6,0))/1000)","v":" "},{"$f":"IF(INDEX('Rate Trajectory Calc'!$A$6:$CQ$92,MATCH('Rate Trajectory Report'!$B25,'Rate Trajectory Calc'!$A$6:$A$92,0),MATCH('Rate Trajectory Report'!L$5,'Rate Trajectory Calc'!$A$6:$CQ$6,0))=0,\" \",INDEX('Rate Trajectory Calc'!$A$6:$CQ$92,MATCH('Rate Trajectory Report'!$B25,'Rate Trajectory Calc'!$A$6:$A$92,0),MATCH('Rate Trajectory Report'!L$5,'Rate Trajectory Calc'!$A$6:$CQ$6,0))/1000)","v":" "},{"$f":"IF(INDEX('Rate Trajectory Calc'!$A$6:$CQ$92,MATCH('Rate Trajectory Report'!$B25,'Rate Trajectory Calc'!$A$6:$A$92,0),MATCH('Rate Trajectory Report'!M$5,'Rate Trajectory Calc'!$A$6:$CQ$6,0))=0,\" \",INDEX('Rate Trajectory Calc'!$A$6:$CQ$92,MATCH('Rate Trajectory Report'!$B25,'Rate Trajectory Calc'!$A$6:$A$92,0),MATCH('Rate Trajectory Report'!M$5,'Rate Trajectory Calc'!$A$6:$CQ$6,0))/1000)","v":" "},{"$f":"IF(INDEX('Rate Trajectory Calc'!$A$6:$CQ$92,MATCH('Rate Trajectory Report'!$B25,'Rate Trajectory Calc'!$A$6:$A$92,0),MATCH('Rate Trajectory Report'!N$5,'Rate Trajectory Calc'!$A$6:$CQ$6,0))=0,\" \",INDEX('Rate Trajectory Calc'!$A$6:$CQ$92,MATCH('Rate Trajectory Report'!$B25,'Rate Trajectory Calc'!$A$6:$A$92,0),MATCH('Rate Trajectory Report'!N$5,'Rate Trajectory Calc'!$A$6:$CQ$6,0))/1000)","v":" "},{"$f":"IF(INDEX('Rate Trajectory Calc'!$A$6:$CQ$92,MATCH('Rate Trajectory Report'!$B25,'Rate Trajectory Calc'!$A$6:$A$92,0),MATCH('Rate Trajectory Report'!O$5,'Rate Trajectory Calc'!$A$6:$CQ$6,0))=0,\" \",INDEX('Rate Trajectory Calc'!$A$6:$CQ$92,MATCH('Rate Trajectory Report'!$B25,'Rate Trajectory Calc'!$A$6:$A$92,0),MATCH('Rate Trajectory Report'!O$5,'Rate Trajectory Calc'!$A$6:$CQ$6,0))/1000)","v":" "},{"$f":"IF(INDEX('Rate Trajectory Calc'!$A$6:$CQ$92,MATCH('Rate Trajectory Report'!$B25,'Rate Trajectory Calc'!$A$6:$A$92,0),MATCH('Rate Trajectory Report'!P$5,'Rate Trajectory Calc'!$A$6:$CQ$6,0))=0,\" \",INDEX('Rate Trajectory Calc'!$A$6:$CQ$92,MATCH('Rate Trajectory Report'!$B25,'Rate Trajectory Calc'!$A$6:$A$92,0),MATCH('Rate Trajectory Report'!P$5,'Rate Trajectory Calc'!$A$6:$CQ$6,0))/1000)","v":" "},{"$f":"IF(INDEX('Rate Trajectory Calc'!$A$6:$CQ$92,MATCH('Rate Trajectory Report'!$B25,'Rate Trajectory Calc'!$A$6:$A$92,0),MATCH('Rate Trajectory Report'!Q$5,'Rate Trajectory Calc'!$A$6:$CQ$6,0))=0,\" \",INDEX('Rate Trajectory Calc'!$A$6:$CQ$92,MATCH('Rate Trajectory Report'!$B25,'Rate Trajectory Calc'!$A$6:$A$92,0),MATCH('Rate Trajectory Report'!Q$5,'Rate Trajectory Calc'!$A$6:$CQ$6,0))/1000)","v":" "},{"$f":"IF(INDEX('Rate Trajectory Calc'!$A$6:$CQ$92,MATCH('Rate Trajectory Report'!$B25,'Rate Trajectory Calc'!$A$6:$A$92,0),MATCH('Rate Trajectory Report'!R$5,'Rate Trajectory Calc'!$A$6:$CQ$6,0))=0,\" \",INDEX('Rate Trajectory Calc'!$A$6:$CQ$92,MATCH('Rate Trajectory Report'!$B25,'Rate Trajectory Calc'!$A$6:$A$92,0),MATCH('Rate Trajectory Report'!R$5,'Rate Trajectory Calc'!$A$6:$CQ$6,0))/1000)","v":" "},{"$f":"IF(INDEX('Rate Trajectory Calc'!$A$6:$CQ$92,MATCH('Rate Trajectory Report'!$B25,'Rate Trajectory Calc'!$A$6:$A$92,0),MATCH('Rate Trajectory Report'!S$5,'Rate Trajectory Calc'!$A$6:$CQ$6,0))=0,\" \",INDEX('Rate Trajectory Calc'!$A$6:$CQ$92,MATCH('Rate Trajectory Report'!$B25,'Rate Trajectory Calc'!$A$6:$A$92,0),MATCH('Rate Trajectory Report'!S$5,'Rate Trajectory Calc'!$A$6:$CQ$6,0))/1000)","v":" "},{"$f":"IF(INDEX('Rate Trajectory Calc'!$A$6:$CQ$92,MATCH('Rate Trajectory Report'!$B25,'Rate Trajectory Calc'!$A$6:$A$92,0),MATCH('Rate Trajectory Report'!T$5,'Rate Trajectory Calc'!$A$6:$CQ$6,0))=0,\" \",INDEX('Rate Trajectory Calc'!$A$6:$CQ$92,MATCH('Rate Trajectory Report'!$B25,'Rate Trajectory Calc'!$A$6:$A$92,0),MATCH('Rate Trajectory Report'!T$5,'Rate Trajectory Calc'!$A$6:$CQ$6,0))/1000)","v":" "},{"$f":"IF(INDEX('Rate Trajectory Calc'!$A$6:$CQ$92,MATCH('Rate Trajectory Report'!$B25,'Rate Trajectory Calc'!$A$6:$A$92,0),MATCH('Rate Trajectory Report'!U$5,'Rate Trajectory Calc'!$A$6:$CQ$6,0))=0,\" \",INDEX('Rate Trajectory Calc'!$A$6:$CQ$92,MATCH('Rate Trajectory Report'!$B25,'Rate Trajectory Calc'!$A$6:$A$92,0),MATCH('Rate Trajectory Report'!U$5,'Rate Trajectory Calc'!$A$6:$CQ$6,0))/1000)","v":" "},{"$f":"IF(INDEX('Rate Trajectory Calc'!$A$6:$CQ$92,MATCH('Rate Trajectory Report'!$B25,'Rate Trajectory Calc'!$A$6:$A$92,0),MATCH('Rate Trajectory Report'!V$5,'Rate Trajectory Calc'!$A$6:$CQ$6,0))=0,\" \",INDEX('Rate Trajectory Calc'!$A$6:$CQ$92,MATCH('Rate Trajectory Report'!$B25,'Rate Trajectory Calc'!$A$6:$A$92,0),MATCH('Rate Trajectory Report'!V$5,'Rate Trajectory Calc'!$A$6:$CQ$6,0))/1000)","v":" "},{"$f":"IF(INDEX('Rate Trajectory Calc'!$A$6:$CQ$92,MATCH('Rate Trajectory Report'!$B25,'Rate Trajectory Calc'!$A$6:$A$92,0),MATCH('Rate Trajectory Report'!W$5,'Rate Trajectory Calc'!$A$6:$CQ$6,0))=0,\" \",INDEX('Rate Trajectory Calc'!$A$6:$CQ$92,MATCH('Rate Trajectory Report'!$B25,'Rate Trajectory Calc'!$A$6:$A$92,0),MATCH('Rate Trajectory Report'!W$5,'Rate Trajectory Calc'!$A$6:$CQ$6,0))/1000)","v":" "},{"$f":"IF(INDEX('Rate Trajectory Calc'!$A$6:$CQ$92,MATCH('Rate Trajectory Report'!$B25,'Rate Trajectory Calc'!$A$6:$A$92,0),MATCH('Rate Trajectory Report'!X$5,'Rate Trajectory Calc'!$A$6:$CQ$6,0))=0,\" \",INDEX('Rate Trajectory Calc'!$A$6:$CQ$92,MATCH('Rate Trajectory Report'!$B25,'Rate Trajectory Calc'!$A$6:$A$92,0),MATCH('Rate Trajectory Report'!X$5,'Rate Trajectory Calc'!$A$6:$CQ$6,0))/1000)","v":" "},{"$f":"IF(INDEX('Rate Trajectory Calc'!$A$6:$CQ$92,MATCH('Rate Trajectory Report'!$B25,'Rate Trajectory Calc'!$A$6:$A$92,0),MATCH('Rate Trajectory Report'!Y$5,'Rate Trajectory Calc'!$A$6:$CQ$6,0))=0,\" \",INDEX('Rate Trajectory Calc'!$A$6:$CQ$92,MATCH('Rate Trajectory Report'!$B25,'Rate Trajectory Calc'!$A$6:$A$92,0),MATCH('Rate Trajectory Report'!Y$5,'Rate Trajectory Calc'!$A$6:$CQ$6,0))/1000)","v":" "},{"$f":"IF(INDEX('Rate Trajectory Calc'!$A$6:$CQ$92,MATCH('Rate Trajectory Report'!$B25,'Rate Trajectory Calc'!$A$6:$A$92,0),MATCH('Rate Trajectory Report'!Z$5,'Rate Trajectory Calc'!$A$6:$CQ$6,0))=0,\" \",INDEX('Rate Trajectory Calc'!$A$6:$CQ$92,MATCH('Rate Trajectory Report'!$B25,'Rate Trajectory Calc'!$A$6:$A$92,0),MATCH('Rate Trajectory Report'!Z$5,'Rate Trajectory Calc'!$A$6:$CQ$6,0))/1000)","v":" "},{"$f":"IF(INDEX('Rate Trajectory Calc'!$A$6:$CQ$92,MATCH('Rate Trajectory Report'!$B25,'Rate Trajectory Calc'!$A$6:$A$92,0),MATCH('Rate Trajectory Report'!AA$5,'Rate Trajectory Calc'!$A$6:$CQ$6,0))=0,\" \",INDEX('Rate Trajectory Calc'!$A$6:$CQ$92,MATCH('Rate Trajectory Report'!$B25,'Rate Trajectory Calc'!$A$6:$A$92,0),MATCH('Rate Trajectory Report'!AA$5,'Rate Trajectory Calc'!$A$6:$CQ$6,0))/1000)","v":" "}]
[null,{"$f":"'Rate Trajectory Dashboard'!B26","v":"Hydrogen Demonstration Project (2027) - Year 2029"},{"$f":"IFERROR(VLOOKUP(B26,'Rate Trajectory Dashboard'!$B$12:$D$96,3,FALSE)/1000,'Rate Trajectory Report'!C25)","v":0},{"$f":"IF(INDEX('Rate Trajectory Calc'!$A$6:$CQ$92,MATCH('Rate Trajectory Report'!$B26,'Rate Trajectory Calc'!$A$6:$A$92,0),MATCH('Rate Trajectory Report'!D$5,'Rate Trajectory Calc'!$A$6:$CQ$6,0))=0,\" \",INDEX('Rate Trajectory Calc'!$A$6:$CQ$92,MATCH('Rate Trajectory Report'!$B26,'Rate Trajectory Calc'!$A$6:$A$92,0),MATCH('Rate Trajectory Report'!D$5,'Rate Trajectory Calc'!$A$6:$CQ$6,0))/1000)","v":" "},{"$f":"IF(INDEX('Rate Trajectory Calc'!$A$6:$CQ$92,MATCH('Rate Trajectory Report'!$B26,'Rate Trajectory Calc'!$A$6:$A$92,0),MATCH('Rate Trajectory Report'!E$5,'Rate Trajectory Calc'!$A$6:$CQ$6,0))=0,\" \",INDEX('Rate Trajectory Calc'!$A$6:$CQ$92,MATCH('Rate Trajectory Report'!$B26,'Rate Trajectory Calc'!$A$6:$A$92,0),MATCH('Rate Trajectory Report'!E$5,'Rate Trajectory Calc'!$A$6:$CQ$6,0))/1000)","v":" "},{"$f":"IF(INDEX('Rate Trajectory Calc'!$A$6:$CQ$92,MATCH('Rate Trajectory Report'!$B26,'Rate Trajectory Calc'!$A$6:$A$92,0),MATCH('Rate Trajectory Report'!F$5,'Rate Trajectory Calc'!$A$6:$CQ$6,0))=0,\" \",INDEX('Rate Trajectory Calc'!$A$6:$CQ$92,MATCH('Rate Trajectory Report'!$B26,'Rate Trajectory Calc'!$A$6:$A$92,0),MATCH('Rate Trajectory Report'!F$5,'Rate Trajectory Calc'!$A$6:$CQ$6,0))/1000)","v":" "},{"$f":"IF(INDEX('Rate Trajectory Calc'!$A$6:$CQ$92,MATCH('Rate Trajectory Report'!$B26,'Rate Trajectory Calc'!$A$6:$A$92,0),MATCH('Rate Trajectory Report'!G$5,'Rate Trajectory Calc'!$A$6:$CQ$6,0))=0,\" \",INDEX('Rate Trajectory Calc'!$A$6:$CQ$92,MATCH('Rate Trajectory Report'!$B26,'Rate Trajectory Calc'!$A$6:$A$92,0),MATCH('Rate Trajectory Report'!G$5,'Rate Trajectory Calc'!$A$6:$CQ$6,0))/1000)","v":" "},{"$f":"IF(INDEX('Rate Trajectory Calc'!$A$6:$CQ$92,MATCH('Rate Trajectory Report'!$B26,'Rate Trajectory Calc'!$A$6:$A$92,0),MATCH('Rate Trajectory Report'!H$5,'Rate Trajectory Calc'!$A$6:$CQ$6,0))=0,\" \",INDEX('Rate Trajectory Calc'!$A$6:$CQ$92,MATCH('Rate Trajectory Report'!$B26,'Rate Trajectory Calc'!$A$6:$A$92,0),MATCH('Rate Trajectory Report'!H$5,'Rate Trajectory Calc'!$A$6:$CQ$6,0))/1000)","v":" "},{"$f":"IF(INDEX('Rate Trajectory Calc'!$A$6:$CQ$92,MATCH('Rate Trajectory Report'!$B26,'Rate Trajectory Calc'!$A$6:$A$92,0),MATCH('Rate Trajectory Report'!I$5,'Rate Trajectory Calc'!$A$6:$CQ$6,0))=0,\" \",INDEX('Rate Trajectory Calc'!$A$6:$CQ$92,MATCH('Rate Trajectory Report'!$B26,'Rate Trajectory Calc'!$A$6:$A$92,0),MATCH('Rate Trajectory Report'!I$5,'Rate Trajectory Calc'!$A$6:$CQ$6,0))/1000)","v":" "},{"$f":"IF(INDEX('Rate Trajectory Calc'!$A$6:$CQ$92,MATCH('Rate Trajectory Report'!$B26,'Rate Trajectory Calc'!$A$6:$A$92,0),MATCH('Rate Trajectory Report'!J$5,'Rate Trajectory Calc'!$A$6:$CQ$6,0))=0,\" \",INDEX('Rate Trajectory Calc'!$A$6:$CQ$92,MATCH('Rate Trajectory Report'!$B26,'Rate Trajectory Calc'!$A$6:$A$92,0),MATCH('Rate Trajectory Report'!J$5,'Rate Trajectory Calc'!$A$6:$CQ$6,0))/1000)","v":" "},{"$f":"IF(INDEX('Rate Trajectory Calc'!$A$6:$CQ$92,MATCH('Rate Trajectory Report'!$B26,'Rate Trajectory Calc'!$A$6:$A$92,0),MATCH('Rate Trajectory Report'!K$5,'Rate Trajectory Calc'!$A$6:$CQ$6,0))=0,\" \",INDEX('Rate Trajectory Calc'!$A$6:$CQ$92,MATCH('Rate Trajectory Report'!$B26,'Rate Trajectory Calc'!$A$6:$A$92,0),MATCH('Rate Trajectory Report'!K$5,'Rate Trajectory Calc'!$A$6:$CQ$6,0))/1000)","v":" "},{"$f":"IF(INDEX('Rate Trajectory Calc'!$A$6:$CQ$92,MATCH('Rate Trajectory Report'!$B26,'Rate Trajectory Calc'!$A$6:$A$92,0),MATCH('Rate Trajectory Report'!L$5,'Rate Trajectory Calc'!$A$6:$CQ$6,0))=0,\" \",INDEX('Rate Trajectory Calc'!$A$6:$CQ$92,MATCH('Rate Trajectory Report'!$B26,'Rate Trajectory Calc'!$A$6:$A$92,0),MATCH('Rate Trajectory Report'!L$5,'Rate Trajectory Calc'!$A$6:$CQ$6,0))/1000)","v":" "},{"$f":"IF(INDEX('Rate Trajectory Calc'!$A$6:$CQ$92,MATCH('Rate Trajectory Report'!$B26,'Rate Trajectory Calc'!$A$6:$A$92,0),MATCH('Rate Trajectory Report'!M$5,'Rate Trajectory Calc'!$A$6:$CQ$6,0))=0,\" \",INDEX('Rate Trajectory Calc'!$A$6:$CQ$92,MATCH('Rate Trajectory Report'!$B26,'Rate Trajectory Calc'!$A$6:$A$92,0),MATCH('Rate Trajectory Report'!M$5,'Rate Trajectory Calc'!$A$6:$CQ$6,0))/1000)","v":" "},{"$f":"IF(INDEX('Rate Trajectory Calc'!$A$6:$CQ$92,MATCH('Rate Trajectory Report'!$B26,'Rate Trajectory Calc'!$A$6:$A$92,0),MATCH('Rate Trajectory Report'!N$5,'Rate Trajectory Calc'!$A$6:$CQ$6,0))=0,\" \",INDEX('Rate Trajectory Calc'!$A$6:$CQ$92,MATCH('Rate Trajectory Report'!$B26,'Rate Trajectory Calc'!$A$6:$A$92,0),MATCH('Rate Trajectory Report'!N$5,'Rate Trajectory Calc'!$A$6:$CQ$6,0))/1000)","v":" "},{"$f":"IF(INDEX('Rate Trajectory Calc'!$A$6:$CQ$92,MATCH('Rate Trajectory Report'!$B26,'Rate Trajectory Calc'!$A$6:$A$92,0),MATCH('Rate Trajectory Report'!O$5,'Rate Trajectory Calc'!$A$6:$CQ$6,0))=0,\" \",INDEX('Rate Trajectory Calc'!$A$6:$CQ$92,MATCH('Rate Trajectory Report'!$B26,'Rate Trajectory Calc'!$A$6:$A$92,0),MATCH('Rate Trajectory Report'!O$5,'Rate Trajectory Calc'!$A$6:$CQ$6,0))/1000)","v":" "},{"$f":"IF(INDEX('Rate Trajectory Calc'!$A$6:$CQ$92,MATCH('Rate Trajectory Report'!$B26,'Rate Trajectory Calc'!$A$6:$A$92,0),MATCH('Rate Trajectory Report'!P$5,'Rate Trajectory Calc'!$A$6:$CQ$6,0))=0,\" \",INDEX('Rate Trajectory Calc'!$A$6:$CQ$92,MATCH('Rate Trajectory Report'!$B26,'Rate Trajectory Calc'!$A$6:$A$92,0),MATCH('Rate Trajectory Report'!P$5,'Rate Trajectory Calc'!$A$6:$CQ$6,0))/1000)","v":" "},{"$f":"IF(INDEX('Rate Trajectory Calc'!$A$6:$CQ$92,MATCH('Rate Trajectory Report'!$B26,'Rate Trajectory Calc'!$A$6:$A$92,0),MATCH('Rate Trajectory Report'!Q$5,'Rate Trajectory Calc'!$A$6:$CQ$6,0))=0,\" \",INDEX('Rate Trajectory Calc'!$A$6:$CQ$92,MATCH('Rate Trajectory Report'!$B26,'Rate Trajectory Calc'!$A$6:$A$92,0),MATCH('Rate Trajectory Report'!Q$5,'Rate Trajectory Calc'!$A$6:$CQ$6,0))/1000)","v":" "},{"$f":"IF(INDEX('Rate Trajectory Calc'!$A$6:$CQ$92,MATCH('Rate Trajectory Report'!$B26,'Rate Trajectory Calc'!$A$6:$A$92,0),MATCH('Rate Trajectory Report'!R$5,'Rate Trajectory Calc'!$A$6:$CQ$6,0))=0,\" \",INDEX('Rate Trajectory Calc'!$A$6:$CQ$92,MATCH('Rate Trajectory Report'!$B26,'Rate Trajectory Calc'!$A$6:$A$92,0),MATCH('Rate Trajectory Report'!R$5,'Rate Trajectory Calc'!$A$6:$CQ$6,0))/1000)","v":" "},{"$f":"IF(INDEX('Rate Trajectory Calc'!$A$6:$CQ$92,MATCH('Rate Trajectory Report'!$B26,'Rate Trajectory Calc'!$A$6:$A$92,0),MATCH('Rate Trajectory Report'!S$5,'Rate Trajectory Calc'!$A$6:$CQ$6,0))=0,\" \",INDEX('Rate Trajectory Calc'!$A$6:$CQ$92,MATCH('Rate Trajectory Report'!$B26,'Rate Trajectory Calc'!$A$6:$A$92,0),MATCH('Rate Trajectory Report'!S$5,'Rate Trajectory Calc'!$A$6:$CQ$6,0))/1000)","v":" "},{"$f":"IF(INDEX('Rate Trajectory Calc'!$A$6:$CQ$92,MATCH('Rate Trajectory Report'!$B26,'Rate Trajectory Calc'!$A$6:$A$92,0),MATCH('Rate Trajectory Report'!T$5,'Rate Trajectory Calc'!$A$6:$CQ$6,0))=0,\" \",INDEX('Rate Trajectory Calc'!$A$6:$CQ$92,MATCH('Rate Trajectory Report'!$B26,'Rate Trajectory Calc'!$A$6:$A$92,0),MATCH('Rate Trajectory Report'!T$5,'Rate Trajectory Calc'!$A$6:$CQ$6,0))/1000)","v":" "},{"$f":"IF(INDEX('Rate Trajectory Calc'!$A$6:$CQ$92,MATCH('Rate Trajectory Report'!$B26,'Rate Trajectory Calc'!$A$6:$A$92,0),MATCH('Rate Trajectory Report'!U$5,'Rate Trajectory Calc'!$A$6:$CQ$6,0))=0,\" \",INDEX('Rate Trajectory Calc'!$A$6:$CQ$92,MATCH('Rate Trajectory Report'!$B26,'Rate Trajectory Calc'!$A$6:$A$92,0),MATCH('Rate Trajectory Report'!U$5,'Rate Trajectory Calc'!$A$6:$CQ$6,0))/1000)","v":" "},{"$f":"IF(INDEX('Rate Trajectory Calc'!$A$6:$CQ$92,MATCH('Rate Trajectory Report'!$B26,'Rate Trajectory Calc'!$A$6:$A$92,0),MATCH('Rate Trajectory Report'!V$5,'Rate Trajectory Calc'!$A$6:$CQ$6,0))=0,\" \",INDEX('Rate Trajectory Calc'!$A$6:$CQ$92,MATCH('Rate Trajectory Report'!$B26,'Rate Trajectory Calc'!$A$6:$A$92,0),MATCH('Rate Trajectory Report'!V$5,'Rate Trajectory Calc'!$A$6:$CQ$6,0))/1000)","v":" "},{"$f":"IF(INDEX('Rate Trajectory Calc'!$A$6:$CQ$92,MATCH('Rate Trajectory Report'!$B26,'Rate Trajectory Calc'!$A$6:$A$92,0),MATCH('Rate Trajectory Report'!W$5,'Rate Trajectory Calc'!$A$6:$CQ$6,0))=0,\" \",INDEX('Rate Trajectory Calc'!$A$6:$CQ$92,MATCH('Rate Trajectory Report'!$B26,'Rate Trajectory Calc'!$A$6:$A$92,0),MATCH('Rate Trajectory Report'!W$5,'Rate Trajectory Calc'!$A$6:$CQ$6,0))/1000)","v":" "},{"$f":"IF(INDEX('Rate Trajectory Calc'!$A$6:$CQ$92,MATCH('Rate Trajectory Report'!$B26,'Rate Trajectory Calc'!$A$6:$A$92,0),MATCH('Rate Trajectory Report'!X$5,'Rate Trajectory Calc'!$A$6:$CQ$6,0))=0,\" \",INDEX('Rate Trajectory Calc'!$A$6:$CQ$92,MATCH('Rate Trajectory Report'!$B26,'Rate Trajectory Calc'!$A$6:$A$92,0),MATCH('Rate Trajectory Report'!X$5,'Rate Trajectory Calc'!$A$6:$CQ$6,0))/1000)","v":" "},{"$f":"IF(INDEX('Rate Trajectory Calc'!$A$6:$CQ$92,MATCH('Rate Trajectory Report'!$B26,'Rate Trajectory Calc'!$A$6:$A$92,0),MATCH('Rate Trajectory Report'!Y$5,'Rate Trajectory Calc'!$A$6:$CQ$6,0))=0,\" \",INDEX('Rate Trajectory Calc'!$A$6:$CQ$92,MATCH('Rate Trajectory Report'!$B26,'Rate Trajectory Calc'!$A$6:$A$92,0),MATCH('Rate Trajectory Report'!Y$5,'Rate Trajectory Calc'!$A$6:$CQ$6,0))/1000)","v":" "},{"$f":"IF(INDEX('Rate Trajectory Calc'!$A$6:$CQ$92,MATCH('Rate Trajectory Report'!$B26,'Rate Trajectory Calc'!$A$6:$A$92,0),MATCH('Rate Trajectory Report'!Z$5,'Rate Trajectory Calc'!$A$6:$CQ$6,0))=0,\" \",INDEX('Rate Trajectory Calc'!$A$6:$CQ$92,MATCH('Rate Trajectory Report'!$B26,'Rate Trajectory Calc'!$A$6:$A$92,0),MATCH('Rate Trajectory Report'!Z$5,'Rate Trajectory Calc'!$A$6:$CQ$6,0))/1000)","v":" "},{"$f":"IF(INDEX('Rate Trajectory Calc'!$A$6:$CQ$92,MATCH('Rate Trajectory Report'!$B26,'Rate Trajectory Calc'!$A$6:$A$92,0),MATCH('Rate Trajectory Report'!AA$5,'Rate Trajectory Calc'!$A$6:$CQ$6,0))=0,\" \",INDEX('Rate Trajectory Calc'!$A$6:$CQ$92,MATCH('Rate Trajectory Report'!$B26,'Rate Trajectory Calc'!$A$6:$A$92,0),MATCH('Rate Trajectory Report'!AA$5,'Rate Trajectory Calc'!$A$6:$CQ$6,0))/1000)","v":" "}]
[5,"Hydrogen Demonstration Project (2027)",{"$f":"IFERROR(VLOOKUP(B27,'Rate Trajectory Dashboard'!$B$12:$D$96,3,FALSE)/1000,'Rate Trajectory Report'!C26)","v":0},{"$f":"IF(SUM(D24:D26)=0,\" \",SUBTOTAL(9,D24:D26))","v":" "},{"$f":"IF(SUM(E24:E26)=0,\" \",SUBTOTAL(9,E24:E26))","v":" "}," "," "," "," "," "," "," "," "," "," "," "," "," "," ",3.0220229370078715," "," "," "," "," "," "," "]
[null,{"$f":"'Rate Trajectory Dashboard'!B27","v":"2024 Wildfire Mitigation and Catastrophic Events (distribution) - Year 2026"},{"$f":"IFERROR(VLOOKUP(B28,'Rate Trajectory Dashboard'!$B$12:$D$96,3,FALSE)/1000,'Rate Trajectory Report'!C27)","v":0},{"$f":"IF(INDEX('Rate Trajectory Calc'!$A$6:$CQ$92,MATCH('Rate Trajectory Report'!$B28,'Rate Trajectory Calc'!$A$6:$A$92,0),MATCH('Rate Trajectory Report'!D$5,'Rate Trajectory Calc'!$A$6:$CQ$6,0))=0,\" \",INDEX('Rate Trajectory Calc'!$A$6:$CQ$92,MATCH('Rate Trajectory Report'!$B28,'Rate Trajectory Calc'!$A$6:$A$92,0),MATCH('Rate Trajectory Report'!D$5,'Rate Trajectory Calc'!$A$6:$CQ$6,0))/1000)","v":" "},{"$f":"IF(INDEX('Rate Trajectory Calc'!$A$6:$CQ$92,MATCH('Rate Trajectory Report'!$B28,'Rate Trajectory Calc'!$A$6:$A$92,0),MATCH('Rate Trajectory Report'!E$5,'Rate Trajectory Calc'!$A$6:$CQ$6,0))=0,\" \",INDEX('Rate Trajectory Calc'!$A$6:$CQ$92,MATCH('Rate Trajectory Report'!$B28,'Rate Trajectory Calc'!$A$6:$A$92,0),MATCH('Rate Trajectory Report'!E$5,'Rate Trajectory Calc'!$A$6:$CQ$6,0))/1000)","v":" "},{"$f":"IF(INDEX('Rate Trajectory Calc'!$A$6:$CQ$92,MATCH('Rate Trajectory Report'!$B28,'Rate Trajectory Calc'!$A$6:$A$92,0),MATCH('Rate Trajectory Report'!F$5,'Rate Trajectory Calc'!$A$6:$CQ$6,0))=0,\" \",INDEX('Rate Trajectory Calc'!$A$6:$CQ$92,MATCH('Rate Trajectory Report'!$B28,'Rate Trajectory Calc'!$A$6:$A$92,0),MATCH('Rate Trajectory Report'!F$5,'Rate Trajectory Calc'!$A$6:$CQ$6,0))/1000)","v":" "},{"$f":"IF(INDEX('Rate Trajectory Calc'!$A$6:$CQ$92,MATCH('Rate Trajectory Report'!$B28,'Rate Trajectory Calc'!$A$6:$A$92,0),MATCH('Rate Trajectory Report'!G$5,'Rate Trajectory Calc'!$A$6:$CQ$6,0))=0,\" \",INDEX('Rate Trajectory Calc'!$A$6:$CQ$92,MATCH('Rate Trajectory Report'!$B28,'Rate Trajectory Calc'!$A$6:$A$92,0),MATCH('Rate Trajectory Report'!G$5,'Rate Trajectory Calc'!$A$6:$CQ$6,0))/1000)","v":" "},{"$f":"IF(INDEX('Rate Trajectory Calc'!$A$6:$CQ$92,MATCH('Rate Trajectory Report'!$B28,'Rate Trajectory Calc'!$A$6:$A$92,0),MATCH('Rate Trajectory Report'!H$5,'Rate Trajectory Calc'!$A$6:$CQ$6,0))=0,\" \",INDEX('Rate Trajectory Calc'!$A$6:$CQ$92,MATCH('Rate Trajectory Report'!$B28,'Rate Trajectory Calc'!$A$6:$A$92,0),MATCH('Rate Trajectory Report'!H$5,'Rate Trajectory Calc'!$A$6:$CQ$6,0))/1000)","v":65.537654410869607},{"$f":"IF(INDEX('Rate Trajectory Calc'!$A$6:$CQ$92,MATCH('Rate Trajectory Report'!$B28,'Rate Trajectory Calc'!$A$6:$A$92,0),MATCH('Rate Trajectory Report'!I$5,'Rate Trajectory Calc'!$A$6:$CQ$6,0))=0,\" \",INDEX('Rate Trajectory Calc'!$A$6:$CQ$92,MATCH('Rate Trajectory Report'!$B28,'Rate Trajectory Calc'!$A$6:$A$92,0),MATCH('Rate Trajectory Report'!I$5,'Rate Trajectory Calc'!$A$6:$CQ$6,0))/1000)","v":" "},{"$f":"IF(INDEX('Rate Trajectory Calc'!$A$6:$CQ$92,MATCH('Rate Trajectory Report'!$B28,'Rate Trajectory Calc'!$A$6:$A$92,0),MATCH('Rate Trajectory Report'!J$5,'Rate Trajectory Calc'!$A$6:$CQ$6,0))=0,\" \",INDEX('Rate Trajectory Calc'!$A$6:$CQ$92,MATCH('Rate Trajectory Report'!$B28,'Rate Trajectory Calc'!$A$6:$A$92,0),MATCH('Rate Trajectory Report'!J$5,'Rate Trajectory Calc'!$A$6:$CQ$6,0))/1000)","v":" "},{"$f":"IF(INDEX('Rate Trajectory Calc'!$A$6:$CQ$92,MATCH('Rate Trajectory Report'!$B28,'Rate Trajectory Calc'!$A$6:$A$92,0),MATCH('Rate Trajectory Report'!K$5,'Rate Trajectory Calc'!$A$6:$CQ$6,0))=0,\" \",INDEX('Rate Trajectory Calc'!$A$6:$CQ$92,MATCH('Rate Trajectory Report'!$B28,'Rate Trajectory Calc'!$A$6:$A$92,0),MATCH('Rate Trajectory Report'!K$5,'Rate Trajectory Calc'!$A$6:$CQ$6,0))/1000)","v":" "},{"$f":"IF(INDEX('Rate Trajectory Calc'!$A$6:$CQ$92,MATCH('Rate Trajectory Report'!$B28,'Rate Trajectory Calc'!$A$6:$A$92,0),MATCH('Rate Trajectory Report'!L$5,'Rate Trajectory Calc'!$A$6:$CQ$6,0))=0,\" \",INDEX('Rate Trajectory Calc'!$A$6:$CQ$92,MATCH('Rate Trajectory Report'!$B28,'Rate Trajectory Calc'!$A$6:$A$92,0),MATCH('Rate Trajectory Report'!L$5,'Rate Trajectory Calc'!$A$6:$CQ$6,0))/1000)","v":" "},{"$f":"IF(INDEX('Rate Trajectory Calc'!$A$6:$CQ$92,MATCH('Rate Trajectory Report'!$B28,'Rate Trajectory Calc'!$A$6:$A$92,0),MATCH('Rate Trajectory Report'!M$5,'Rate Trajectory Calc'!$A$6:$CQ$6,0))=0,\" \",INDEX('Rate Trajectory Calc'!$A$6:$CQ$92,MATCH('Rate Trajectory Report'!$B28,'Rate Trajectory Calc'!$A$6:$A$92,0),MATCH('Rate Trajectory Report'!M$5,'Rate Trajectory Calc'!$A$6:$CQ$6,0))/1000)","v":" "},{"$f":"IF(INDEX('Rate Trajectory Calc'!$A$6:$CQ$92,MATCH('Rate Trajectory Report'!$B28,'Rate Trajectory Calc'!$A$6:$A$92,0),MATCH('Rate Trajectory Report'!N$5,'Rate Trajectory Calc'!$A$6:$CQ$6,0))=0,\" \",INDEX('Rate Trajectory Calc'!$A$6:$CQ$92,MATCH('Rate Trajectory Report'!$B28,'Rate Trajectory Calc'!$A$6:$A$92,0),MATCH('Rate Trajectory Report'!N$5,'Rate Trajectory Calc'!$A$6:$CQ$6,0))/1000)","v":" "},{"$f":"IF(INDEX('Rate Trajectory Calc'!$A$6:$CQ$92,MATCH('Rate Trajectory Report'!$B28,'Rate Trajectory Calc'!$A$6:$A$92,0),MATCH('Rate Trajectory Report'!O$5,'Rate Trajectory Calc'!$A$6:$CQ$6,0))=0,\" \",INDEX('Rate Trajectory Calc'!$A$6:$CQ$92,MATCH('Rate Trajectory Report'!$B28,'Rate Trajectory Calc'!$A$6:$A$92,0),MATCH('Rate Trajectory Report'!O$5,'Rate Trajectory Calc'!$A$6:$CQ$6,0))/1000)","v":" "},{"$f":"IF(INDEX('Rate Trajectory Calc'!$A$6:$CQ$92,MATCH('Rate Trajectory Report'!$B28,'Rate Trajectory Calc'!$A$6:$A$92,0),MATCH('Rate Trajectory Report'!P$5,'Rate Trajectory Calc'!$A$6:$CQ$6,0))=0,\" \",INDEX('Rate Trajectory Calc'!$A$6:$CQ$92,MATCH('Rate Trajectory Report'!$B28,'Rate Trajectory Calc'!$A$6:$A$92,0),MATCH('Rate Trajectory Report'!P$5,'Rate Trajectory Calc'!$A$6:$CQ$6,0))/1000)","v":" "},{"$f":"IF(INDEX('Rate Trajectory Calc'!$A$6:$CQ$92,MATCH('Rate Trajectory Report'!$B28,'Rate Trajectory Calc'!$A$6:$A$92,0),MATCH('Rate Trajectory Report'!Q$5,'Rate Trajectory Calc'!$A$6:$CQ$6,0))=0,\" \",INDEX('Rate Trajectory Calc'!$A$6:$CQ$92,MATCH('Rate Trajectory Report'!$B28,'Rate Trajectory Calc'!$A$6:$A$92,0),MATCH('Rate Trajectory Report'!Q$5,'Rate Trajectory Calc'!$A$6:$CQ$6,0))/1000)","v":" "},{"$f":"IF(INDEX('Rate Trajectory Calc'!$A$6:$CQ$92,MATCH('Rate Trajectory Report'!$B28,'Rate Trajectory Calc'!$A$6:$A$92,0),MATCH('Rate Trajectory Report'!R$5,'Rate Trajectory Calc'!$A$6:$CQ$6,0))=0,\" \",INDEX('Rate Trajectory Calc'!$A$6:$CQ$92,MATCH('Rate Trajectory Report'!$B28,'Rate Trajectory Calc'!$A$6:$A$92,0),MATCH('Rate Trajectory Report'!R$5,'Rate Trajectory Calc'!$A$6:$CQ$6,0))/1000)","v":" "},{"$f":"IF(INDEX('Rate Trajectory Calc'!$A$6:$CQ$92,MATCH('Rate Trajectory Report'!$B28,'Rate Trajectory Calc'!$A$6:$A$92,0),MATCH('Rate Trajectory Report'!S$5,'Rate Trajectory Calc'!$A$6:$CQ$6,0))=0,\" \",INDEX('Rate Trajectory Calc'!$A$6:$CQ$92,MATCH('Rate Trajectory Report'!$B28,'Rate Trajectory Calc'!$A$6:$A$92,0),MATCH('Rate Trajectory Report'!S$5,'Rate Trajectory Calc'!$A$6:$CQ$6,0))/1000)","v":" "},{"$f":"IF(INDEX('Rate Trajectory Calc'!$A$6:$CQ$92,MATCH('Rate Trajectory Report'!$B28,'Rate Trajectory Calc'!$A$6:$A$92,0),MATCH('Rate Trajectory Report'!T$5,'Rate Trajectory Calc'!$A$6:$CQ$6,0))=0,\" \",INDEX('Rate Trajectory Calc'!$A$6:$CQ$92,MATCH('Rate Trajectory Report'!$B28,'Rate Trajectory Calc'!$A$6:$A$92,0),MATCH('Rate Trajectory Report'!T$5,'Rate Trajectory Calc'!$A$6:$CQ$6,0))/1000)","v":-65.537654410869607},{"$f":"IF(INDEX('Rate Trajectory Calc'!$A$6:$CQ$92,MATCH('Rate Trajectory Report'!$B28,'Rate Trajectory Calc'!$A$6:$A$92,0),MATCH('Rate Trajectory Report'!U$5,'Rate Trajectory Calc'!$A$6:$CQ$6,0))=0,\" \",INDEX('Rate Trajectory Calc'!$A$6:$CQ$92,MATCH('Rate Trajectory Report'!$B28,'Rate Trajectory Calc'!$A$6:$A$92,0),MATCH('Rate Trajectory Report'!U$5,'Rate Trajectory Calc'!$A$6:$CQ$6,0))/1000)","v":" "},{"$f":"IF(INDEX('Rate Trajectory Calc'!$A$6:$CQ$92,MATCH('Rate Trajectory Report'!$B28,'Rate Trajectory Calc'!$A$6:$A$92,0),MATCH('Rate Trajectory Report'!V$5,'Rate Trajectory Calc'!$A$6:$CQ$6,0))=0,\" \",INDEX('Rate Trajectory Calc'!$A$6:$CQ$92,MATCH('Rate Trajectory Report'!$B28,'Rate Trajectory Calc'!$A$6:$A$92,0),MATCH('Rate Trajectory Report'!V$5,'Rate Trajectory Calc'!$A$6:$CQ$6,0))/1000)","v":" "},{"$f":"IF(INDEX('Rate Trajectory Calc'!$A$6:$CQ$92,MATCH('Rate Trajectory Report'!$B28,'Rate Trajectory Calc'!$A$6:$A$92,0),MATCH('Rate Trajectory Report'!W$5,'Rate Trajectory Calc'!$A$6:$CQ$6,0))=0,\" \",INDEX('Rate Trajectory Calc'!$A$6:$CQ$92,MATCH('Rate Trajectory Report'!$B28,'Rate Trajectory Calc'!$A$6:$A$92,0),MATCH('Rate Trajectory Report'!W$5,'Rate Trajectory Calc'!$A$6:$CQ$6,0))/1000)","v":" "},{"$f":"IF(INDEX('Rate Trajectory Calc'!$A$6:$CQ$92,MATCH('Rate Trajectory Report'!$B28,'Rate Trajectory Calc'!$A$6:$A$92,0),MATCH('Rate Trajectory Report'!X$5,'Rate Trajectory Calc'!$A$6:$CQ$6,0))=0,\" \",INDEX('Rate Trajectory Calc'!$A$6:$CQ$92,MATCH('Rate Trajectory Report'!$B28,'Rate Trajectory Calc'!$A$6:$A$92,0),MATCH('Rate Trajectory Report'!X$5,'Rate Trajectory Calc'!$A$6:$CQ$6,0))/1000)","v":" "},{"$f":"IF(INDEX('Rate Trajectory Calc'!$A$6:$CQ$92,MATCH('Rate Trajectory Report'!$B28,'Rate Trajectory Calc'!$A$6:$A$92,0),MATCH('Rate Trajectory Report'!Y$5,'Rate Trajectory Calc'!$A$6:$CQ$6,0))=0,\" \",INDEX('Rate Trajectory Calc'!$A$6:$CQ$92,MATCH('Rate Trajectory Report'!$B28,'Rate Trajectory Calc'!$A$6:$A$92,0),MATCH('Rate Trajectory Report'!Y$5,'Rate Trajectory Calc'!$A$6:$CQ$6,0))/1000)","v":" "},{"$f":"IF(INDEX('Rate Trajectory Calc'!$A$6:$CQ$92,MATCH('Rate Trajectory Report'!$B28,'Rate Trajectory Calc'!$A$6:$A$92,0),MATCH('Rate Trajectory Report'!Z$5,'Rate Trajectory Calc'!$A$6:$CQ$6,0))=0,\" \",INDEX('Rate Trajectory Calc'!$A$6:$CQ$92,MATCH('Rate Trajectory Report'!$B28,'Rate Trajectory Calc'!$A$6:$A$92,0),MATCH('Rate Trajectory Report'!Z$5,'Rate Trajectory Calc'!$A$6:$CQ$6,0))/1000)","v":" "},{"$f":"IF(INDEX('Rate Trajectory Calc'!$A$6:$CQ$92,MATCH('Rate Trajectory Report'!$B28,'Rate Trajectory Calc'!$A$6:$A$92,0),MATCH('Rate Trajectory Report'!AA$5,'Rate Trajectory Calc'!$A$6:$CQ$6,0))=0,\" \",INDEX('Rate Trajectory Calc'!$A$6:$CQ$92,MATCH('Rate Trajectory Report'!$B28,'Rate Trajectory Calc'!$A$6:$A$92,0),MATCH('Rate Trajectory Report'!AA$5,'Rate Trajectory Calc'!$A$6:$CQ$6,0))/1000)","v":" "}]
[null,{"$f":"'Rate Trajectory Dashboard'!B28","v":"2024 Wildfire Mitigation and Catastrophic Events (distribution) - Year 2027"},{"$f":"IFERROR(VLOOKUP(B29,'Rate Trajectory Dashboard'!$B$12:$D$96,3,FALSE)/1000,'Rate Trajectory Report'!C28)","v":0},{"$f":"IF(INDEX('Rate Trajectory Calc'!$A$6:$CQ$92,MATCH('Rate Trajectory Report'!$B29,'Rate Trajectory Calc'!$A$6:$A$92,0),MATCH('Rate Trajectory Report'!D$5,'Rate Trajectory Calc'!$A$6:$CQ$6,0))=0,\" \",INDEX('Rate Trajectory Calc'!$A$6:$CQ$92,MATCH('Rate Trajectory Report'!$B29,'Rate Trajectory Calc'!$A$6:$A$92,0),MATCH('Rate Trajectory Report'!D$5,'Rate Trajectory Calc'!$A$6:$CQ$6,0))/1000)","v":" "},{"$f":"IF(INDEX('Rate Trajectory Calc'!$A$6:$CQ$92,MATCH('Rate Trajectory Report'!$B29,'Rate Trajectory Calc'!$A$6:$A$92,0),MATCH('Rate Trajectory Report'!E$5,'Rate Trajectory Calc'!$A$6:$CQ$6,0))=0,\" \",INDEX('Rate Trajectory Calc'!$A$6:$CQ$92,MATCH('Rate Trajectory Report'!$B29,'Rate Trajectory Calc'!$A$6:$A$92,0),MATCH('Rate Trajectory Report'!E$5,'Rate Trajectory Calc'!$A$6:$CQ$6,0))/1000)","v":" "},{"$f":"IF(INDEX('Rate Trajectory Calc'!$A$6:$CQ$92,MATCH('Rate Trajectory Report'!$B29,'Rate Trajectory Calc'!$A$6:$A$92,0),MATCH('Rate Trajectory Report'!F$5,'Rate Trajectory Calc'!$A$6:$CQ$6,0))=0,\" \",INDEX('Rate Trajectory Calc'!$A$6:$CQ$92,MATCH('Rate Trajectory Report'!$B29,'Rate Trajectory Calc'!$A$6:$A$92,0),MATCH('Rate Trajectory Report'!F$5,'Rate Trajectory Calc'!$A$6:$CQ$6,0))/1000)","v":" "},{"$f":"IF(INDEX('Rate Trajectory Calc'!$A$6:$CQ$92,MATCH('Rate Trajectory Report'!$B29,'Rate Trajectory Calc'!$A$6:$A$92,0),MATCH('Rate Trajectory Report'!G$5,'Rate Trajectory Calc'!$A$6:$CQ$6,0))=0,\" \",INDEX('Rate Trajectory Calc'!$A$6:$CQ$92,MATCH('Rate Trajectory Report'!$B29,'Rate Trajectory Calc'!$A$6:$A$92,0),MATCH('Rate Trajectory Report'!G$5,'Rate Trajectory Calc'!$A$6:$CQ$6,0))/1000)","v":" "},{"$f":"IF(INDEX('Rate Trajectory Calc'!$A$6:$CQ$92,MATCH('Rate Trajectory Report'!$B29,'Rate Trajectory Calc'!$A$6:$A$92,0),MATCH('Rate Trajectory Report'!H$5,'Rate Trajectory Calc'!$A$6:$CQ$6,0))=0,\" \",INDEX('Rate Trajectory Calc'!$A$6:$CQ$92,MATCH('Rate Trajectory Report'!$B29,'Rate Trajectory Calc'!$A$6:$A$92,0),MATCH('Rate Trajectory Report'!H$5,'Rate Trajectory Calc'!$A$6:$CQ$6,0))/1000)","v":" "},{"$f":"IF(INDEX('Rate Trajectory Calc'!$A$6:$CQ$92,MATCH('Rate Trajectory Report'!$B29,'Rate Trajectory Calc'!$A$6:$A$92,0),MATCH('Rate Trajectory Report'!I$5,'Rate Trajectory Calc'!$A$6:$CQ$6,0))=0,\" \",INDEX('Rate Trajectory Calc'!$A$6:$CQ$92,MATCH('Rate Trajectory Report'!$B29,'Rate Trajectory Calc'!$A$6:$A$92,0),MATCH('Rate Trajectory Report'!I$5,'Rate Trajectory Calc'!$A$6:$CQ$6,0))/1000)","v":" "},{"$f":"IF(INDEX('Rate Trajectory Calc'!$A$6:$CQ$92,MATCH('Rate Trajectory Report'!$B29,'Rate Trajectory Calc'!$A$6:$A$92,0),MATCH('Rate Trajectory Report'!J$5,'Rate Trajectory Calc'!$A$6:$CQ$6,0))=0,\" \",INDEX('Rate Trajectory Calc'!$A$6:$CQ$92,MATCH('Rate Trajectory Report'!$B29,'Rate Trajectory Calc'!$A$6:$A$92,0),MATCH('Rate Trajectory Report'!J$5,'Rate Trajectory Calc'!$A$6:$CQ$6,0))/1000)","v":" "},{"$f":"IF(INDEX('Rate Trajectory Calc'!$A$6:$CQ$92,MATCH('Rate Trajectory Report'!$B29,'Rate Trajectory Calc'!$A$6:$A$92,0),MATCH('Rate Trajectory Report'!K$5,'Rate Trajectory Calc'!$A$6:$CQ$6,0))=0,\" \",INDEX('Rate Trajectory Calc'!$A$6:$CQ$92,MATCH('Rate Trajectory Report'!$B29,'Rate Trajectory Calc'!$A$6:$A$92,0),MATCH('Rate Trajectory Report'!K$5,'Rate Trajectory Calc'!$A$6:$CQ$6,0))/1000)","v":" "},{"$f":"IF(INDEX('Rate Trajectory Calc'!$A$6:$CQ$92,MATCH('Rate Trajectory Report'!$B29,'Rate Trajectory Calc'!$A$6:$A$92,0),MATCH('Rate Trajectory Report'!L$5,'Rate Trajectory Calc'!$A$6:$CQ$6,0))=0,\" \",INDEX('Rate Trajectory Calc'!$A$6:$CQ$92,MATCH('Rate Trajectory Report'!$B29,'Rate Trajectory Calc'!$A$6:$A$92,0),MATCH('Rate Trajectory Report'!L$5,'Rate Trajectory Calc'!$A$6:$CQ$6,0))/1000)","v":" "},{"$f":"IF(INDEX('Rate Trajectory Calc'!$A$6:$CQ$92,MATCH('Rate Trajectory Report'!$B29,'Rate Trajectory Calc'!$A$6:$A$92,0),MATCH('Rate Trajectory Report'!M$5,'Rate Trajectory Calc'!$A$6:$CQ$6,0))=0,\" \",INDEX('Rate Trajectory Calc'!$A$6:$CQ$92,MATCH('Rate Trajectory Report'!$B29,'Rate Trajectory Calc'!$A$6:$A$92,0),MATCH('Rate Trajectory Report'!M$5,'Rate Trajectory Calc'!$A$6:$CQ$6,0))/1000)","v":" "},{"$f":"IF(INDEX('Rate Trajectory Calc'!$A$6:$CQ$92,MATCH('Rate Trajectory Report'!$B29,'Rate Trajectory Calc'!$A$6:$A$92,0),MATCH('Rate Trajectory Report'!N$5,'Rate Trajectory Calc'!$A$6:$CQ$6,0))=0,\" \",INDEX('Rate Trajectory Calc'!$A$6:$CQ$92,MATCH('Rate Trajectory Report'!$B29,'Rate Trajectory Calc'!$A$6:$A$92,0),MATCH('Rate Trajectory Report'!N$5,'Rate Trajectory Calc'!$A$6:$CQ$6,0))/1000)","v":" "},{"$f":"IF(INDEX('Rate Trajectory Calc'!$A$6:$CQ$92,MATCH('Rate Trajectory Report'!$B29,'Rate Trajectory Calc'!$A$6:$A$92,0),MATCH('Rate Trajectory Report'!O$5,'Rate Trajectory Calc'!$A$6:$CQ$6,0))=0,\" \",INDEX('Rate Trajectory Calc'!$A$6:$CQ$92,MATCH('Rate Trajectory Report'!$B29,'Rate Trajectory Calc'!$A$6:$A$92,0),MATCH('Rate Trajectory Report'!O$5,'Rate Trajectory Calc'!$A$6:$CQ$6,0))/1000)","v":" "},{"$f":"IF(INDEX('Rate Trajectory Calc'!$A$6:$CQ$92,MATCH('Rate Trajectory Report'!$B29,'Rate Trajectory Calc'!$A$6:$A$92,0),MATCH('Rate Trajectory Report'!P$5,'Rate Trajectory Calc'!$A$6:$CQ$6,0))=0,\" \",INDEX('Rate Trajectory Calc'!$A$6:$CQ$92,MATCH('Rate Trajectory Report'!$B29,'Rate Trajectory Calc'!$A$6:$A$92,0),MATCH('Rate Trajectory Report'!P$5,'Rate Trajectory Calc'!$A$6:$CQ$6,0))/1000)","v":" "},{"$f":"IF(INDEX('Rate Trajectory Calc'!$A$6:$CQ$92,MATCH('Rate Trajectory Report'!$B29,'Rate Trajectory Calc'!$A$6:$A$92,0),MATCH('Rate Trajectory Report'!Q$5,'Rate Trajectory Calc'!$A$6:$CQ$6,0))=0,\" \",INDEX('Rate Trajectory Calc'!$A$6:$CQ$92,MATCH('Rate Trajectory Report'!$B29,'Rate Trajectory Calc'!$A$6:$A$92,0),MATCH('Rate Trajectory Report'!Q$5,'Rate Trajectory Calc'!$A$6:$CQ$6,0))/1000)","v":" "},{"$f":"IF(INDEX('Rate Trajectory Calc'!$A$6:$CQ$92,MATCH('Rate Trajectory Report'!$B29,'Rate Trajectory Calc'!$A$6:$A$92,0),MATCH('Rate Trajectory Report'!R$5,'Rate Trajectory Calc'!$A$6:$CQ$6,0))=0,\" \",INDEX('Rate Trajectory Calc'!$A$6:$CQ$92,MATCH('Rate Trajectory Report'!$B29,'Rate Trajectory Calc'!$A$6:$A$92,0),MATCH('Rate Trajectory Report'!R$5,'Rate Trajectory Calc'!$A$6:$CQ$6,0))/1000)","v":" "},{"$f":"IF(INDEX('Rate Trajectory Calc'!$A$6:$CQ$92,MATCH('Rate Trajectory Report'!$B29,'Rate Trajectory Calc'!$A$6:$A$92,0),MATCH('Rate Trajectory Report'!S$5,'Rate Trajectory Calc'!$A$6:$CQ$6,0))=0,\" \",INDEX('Rate Trajectory Calc'!$A$6:$CQ$92,MATCH('Rate Trajectory Report'!$B29,'Rate Trajectory Calc'!$A$6:$A$92,0),MATCH('Rate Trajectory Report'!S$5,'Rate Trajectory Calc'!$A$6:$CQ$6,0))/1000)","v":" "},{"$f":"IF(INDEX('Rate Trajectory Calc'!$A$6:$CQ$92,MATCH('Rate Trajectory Report'!$B29,'Rate Trajectory Calc'!$A$6:$A$92,0),MATCH('Rate Trajectory Report'!T$5,'Rate Trajectory Calc'!$A$6:$CQ$6,0))=0,\" \",INDEX('Rate Trajectory Calc'!$A$6:$CQ$92,MATCH('Rate Trajectory Report'!$B29,'Rate Trajectory Calc'!$A$6:$A$92,0),MATCH('Rate Trajectory Report'!T$5,'Rate Trajectory Calc'!$A$6:$CQ$6,0))/1000)","v":18.81946507803784},{"$f":"IF(INDEX('Rate Trajectory Calc'!$A$6:$CQ$92,MATCH('Rate Trajectory Report'!$B29,'Rate Trajectory Calc'!$A$6:$A$92,0),MATCH('Rate Trajectory Report'!U$5,'Rate Trajectory Calc'!$A$6:$CQ$6,0))=0,\" \",INDEX('Rate Trajectory Calc'!$A$6:$CQ$92,MATCH('Rate Trajectory Report'!$B29,'Rate Trajectory Calc'!$A$6:$A$92,0),MATCH('Rate Trajectory Report'!U$5,'Rate Trajectory Calc'!$A$6:$CQ$6,0))/1000)","v":" "},{"$f":"IF(INDEX('Rate Trajectory Calc'!$A$6:$CQ$92,MATCH('Rate Trajectory Report'!$B29,'Rate Trajectory Calc'!$A$6:$A$92,0),MATCH('Rate Trajectory Report'!V$5,'Rate Trajectory Calc'!$A$6:$CQ$6,0))=0,\" \",INDEX('Rate Trajectory Calc'!$A$6:$CQ$92,MATCH('Rate Trajectory Report'!$B29,'Rate Trajectory Calc'!$A$6:$A$92,0),MATCH('Rate Trajectory Report'!V$5,'Rate Trajectory Calc'!$A$6:$CQ$6,0))/1000)","v":" "},{"$f":"IF(INDEX('Rate Trajectory Calc'!$A$6:$CQ$92,MATCH('Rate Trajectory Report'!$B29,'Rate Trajectory Calc'!$A$6:$A$92,0),MATCH('Rate Trajectory Report'!W$5,'Rate Trajectory Calc'!$A$6:$CQ$6,0))=0,\" \",INDEX('Rate Trajectory Calc'!$A$6:$CQ$92,MATCH('Rate Trajectory Report'!$B29,'Rate Trajectory Calc'!$A$6:$A$92,0),MATCH('Rate Trajectory Report'!W$5,'Rate Trajectory Calc'!$A$6:$CQ$6,0))/1000)","v":" "},{"$f":"IF(INDEX('Rate Trajectory Calc'!$A$6:$CQ$92,MATCH('Rate Trajectory Report'!$B29,'Rate Trajectory Calc'!$A$6:$A$92,0),MATCH('Rate Trajectory Report'!X$5,'Rate Trajectory Calc'!$A$6:$CQ$6,0))=0,\" \",INDEX('Rate Trajectory Calc'!$A$6:$CQ$92,MATCH('Rate Trajectory Report'!$B29,'Rate Trajectory Calc'!$A$6:$A$92,0),MATCH('Rate Trajectory Report'!X$5,'Rate Trajectory Calc'!$A$6:$CQ$6,0))/1000)","v":" "},{"$f":"IF(INDEX('Rate Trajectory Calc'!$A$6:$CQ$92,MATCH('Rate Trajectory Report'!$B29,'Rate Trajectory Calc'!$A$6:$A$92,0),MATCH('Rate Trajectory Report'!Y$5,'Rate Trajectory Calc'!$A$6:$CQ$6,0))=0,\" \",INDEX('Rate Trajectory Calc'!$A$6:$CQ$92,MATCH('Rate Trajectory Report'!$B29,'Rate Trajectory Calc'!$A$6:$A$92,0),MATCH('Rate Trajectory Report'!Y$5,'Rate Trajectory Calc'!$A$6:$CQ$6,0))/1000)","v":" "},{"$f":"IF(INDEX('Rate Trajectory Calc'!$A$6:$CQ$92,MATCH('Rate Trajectory Report'!$B29,'Rate Trajectory Calc'!$A$6:$A$92,0),MATCH('Rate Trajectory Report'!Z$5,'Rate Trajectory Calc'!$A$6:$CQ$6,0))=0,\" \",INDEX('Rate Trajectory Calc'!$A$6:$CQ$92,MATCH('Rate Trajectory Report'!$B29,'Rate Trajectory Calc'!$A$6:$A$92,0),MATCH('Rate Trajectory Report'!Z$5,'Rate Trajectory Calc'!$A$6:$CQ$6,0))/1000)","v":" "},{"$f":"IF(INDEX('Rate Trajectory Calc'!$A$6:$CQ$92,MATCH('Rate Trajectory Report'!$B29,'Rate Trajectory Calc'!$A$6:$A$92,0),MATCH('Rate Trajectory Report'!AA$5,'Rate Trajectory Calc'!$A$6:$CQ$6,0))=0,\" \",INDEX('Rate Trajectory Calc'!$A$6:$CQ$92,MATCH('Rate Trajectory Report'!$B29,'Rate Trajectory Calc'!$A$6:$A$92,0),MATCH('Rate Trajectory Report'!AA$5,'Rate Trajectory Calc'!$A$6:$CQ$6,0))/1000)","v":" "}]
[null,{"$f":"'Rate Trajectory Dashboard'!B29","v":"2024 Wildfire Mitigation and Catastrophic Events (distribution) - Year 2028"},{"$f":"IFERROR(VLOOKUP(B30,'Rate Trajectory Dashboard'!$B$12:$D$96,3,FALSE)/1000,'Rate Trajectory Report'!C29)","v":0},{"$f":"IF(INDEX('Rate Trajectory Calc'!$A$6:$CQ$92,MATCH('Rate Trajectory Report'!$B30,'Rate Trajectory Calc'!$A$6:$A$92,0),MATCH('Rate Trajectory Report'!D$5,'Rate Trajectory Calc'!$A$6:$CQ$6,0))=0,\" \",INDEX('Rate Trajectory Calc'!$A$6:$CQ$92,MATCH('Rate Trajectory Report'!$B30,'Rate Trajectory Calc'!$A$6:$A$92,0),MATCH('Rate Trajectory Report'!D$5,'Rate Trajectory Calc'!$A$6:$CQ$6,0))/1000)","v":" "},{"$f":"IF(INDEX('Rate Trajectory Calc'!$A$6:$CQ$92,MATCH('Rate Trajectory Report'!$B30,'Rate Trajectory Calc'!$A$6:$A$92,0),MATCH('Rate Trajectory Report'!E$5,'Rate Trajectory Calc'!$A$6:$CQ$6,0))=0,\" \",INDEX('Rate Trajectory Calc'!$A$6:$CQ$92,MATCH('Rate Trajectory Report'!$B30,'Rate Trajectory Calc'!$A$6:$A$92,0),MATCH('Rate Trajectory Report'!E$5,'Rate Trajectory Calc'!$A$6:$CQ$6,0))/1000)","v":" "},{"$f":"IF(INDEX('Rate Trajectory Calc'!$A$6:$CQ$92,MATCH('Rate Trajectory Report'!$B30,'Rate Trajectory Calc'!$A$6:$A$92,0),MATCH('Rate Trajectory Report'!F$5,'Rate Trajectory Calc'!$A$6:$CQ$6,0))=0,\" \",INDEX('Rate Trajectory Calc'!$A$6:$CQ$92,MATCH('Rate Trajectory Report'!$B30,'Rate Trajectory Calc'!$A$6:$A$92,0),MATCH('Rate Trajectory Report'!F$5,'Rate Trajectory Calc'!$A$6:$CQ$6,0))/1000)","v":" "},{"$f":"IF(INDEX('Rate Trajectory Calc'!$A$6:$CQ$92,MATCH('Rate Trajectory Report'!$B30,'Rate Trajectory Calc'!$A$6:$A$92,0),MATCH('Rate Trajectory Report'!G$5,'Rate Trajectory Calc'!$A$6:$CQ$6,0))=0,\" \",INDEX('Rate Trajectory Calc'!$A$6:$CQ$92,MATCH('Rate Trajectory Report'!$B30,'Rate Trajectory Calc'!$A$6:$A$92,0),MATCH('Rate Trajectory Report'!G$5,'Rate Trajectory Calc'!$A$6:$CQ$6,0))/1000)","v":" "},{"$f":"IF(INDEX('Rate Trajectory Calc'!$A$6:$CQ$92,MATCH('Rate Trajectory Report'!$B30,'Rate Trajectory Calc'!$A$6:$A$92,0),MATCH('Rate Trajectory Report'!H$5,'Rate Trajectory Calc'!$A$6:$CQ$6,0))=0,\" \",INDEX('Rate Trajectory Calc'!$A$6:$CQ$92,MATCH('Rate Trajectory Report'!$B30,'Rate Trajectory Calc'!$A$6:$A$92,0),MATCH('Rate Trajectory Report'!H$5,'Rate Trajectory Calc'!$A$6:$CQ$6,0))/1000)","v":" "},{"$f":"IF(INDEX('Rate Trajectory Calc'!$A$6:$CQ$92,MATCH('Rate Trajectory Report'!$B30,'Rate Trajectory Calc'!$A$6:$A$92,0),MATCH('Rate Trajectory Report'!I$5,'Rate Trajectory Calc'!$A$6:$CQ$6,0))=0,\" \",INDEX('Rate Trajectory Calc'!$A$6:$CQ$92,MATCH('Rate Trajectory Report'!$B30,'Rate Trajectory Calc'!$A$6:$A$92,0),MATCH('Rate Trajectory Report'!I$5,'Rate Trajectory Calc'!$A$6:$CQ$6,0))/1000)","v":" "},{"$f":"IF(INDEX('Rate Trajectory Calc'!$A$6:$CQ$92,MATCH('Rate Trajectory Report'!$B30,'Rate Trajectory Calc'!$A$6:$A$92,0),MATCH('Rate Trajectory Report'!J$5,'Rate Trajectory Calc'!$A$6:$CQ$6,0))=0,\" \",INDEX('Rate Trajectory Calc'!$A$6:$CQ$92,MATCH('Rate Trajectory Report'!$B30,'Rate Trajectory Calc'!$A$6:$A$92,0),MATCH('Rate Trajectory Report'!J$5,'Rate Trajectory Calc'!$A$6:$CQ$6,0))/1000)","v":" "},{"$f":"IF(INDEX('Rate Trajectory Calc'!$A$6:$CQ$92,MATCH('Rate Trajectory Report'!$B30,'Rate Trajectory Calc'!$A$6:$A$92,0),MATCH('Rate Trajectory Report'!K$5,'Rate Trajectory Calc'!$A$6:$CQ$6,0))=0,\" \",INDEX('Rate Trajectory Calc'!$A$6:$CQ$92,MATCH('Rate Trajectory Report'!$B30,'Rate Trajectory Calc'!$A$6:$A$92,0),MATCH('Rate Trajectory Report'!K$5,'Rate Trajectory Calc'!$A$6:$CQ$6,0))/1000)","v":" "},{"$f":"IF(INDEX('Rate Trajectory Calc'!$A$6:$CQ$92,MATCH('Rate Trajectory Report'!$B30,'Rate Trajectory Calc'!$A$6:$A$92,0),MATCH('Rate Trajectory Report'!L$5,'Rate Trajectory Calc'!$A$6:$CQ$6,0))=0,\" \",INDEX('Rate Trajectory Calc'!$A$6:$CQ$92,MATCH('Rate Trajectory Report'!$B30,'Rate Trajectory Calc'!$A$6:$A$92,0),MATCH('Rate Trajectory Report'!L$5,'Rate Trajectory Calc'!$A$6:$CQ$6,0))/1000)","v":" "},{"$f":"IF(INDEX('Rate Trajectory Calc'!$A$6:$CQ$92,MATCH('Rate Trajectory Report'!$B30,'Rate Trajectory Calc'!$A$6:$A$92,0),MATCH('Rate Trajectory Report'!M$5,'Rate Trajectory Calc'!$A$6:$CQ$6,0))=0,\" \",INDEX('Rate Trajectory Calc'!$A$6:$CQ$92,MATCH('Rate Trajectory Report'!$B30,'Rate Trajectory Calc'!$A$6:$A$92,0),MATCH('Rate Trajectory Report'!M$5,'Rate Trajectory Calc'!$A$6:$CQ$6,0))/1000)","v":" "},{"$f":"IF(INDEX('Rate Trajectory Calc'!$A$6:$CQ$92,MATCH('Rate Trajectory Report'!$B30,'Rate Trajectory Calc'!$A$6:$A$92,0),MATCH('Rate Trajectory Report'!N$5,'Rate Trajectory Calc'!$A$6:$CQ$6,0))=0,\" \",INDEX('Rate Trajectory Calc'!$A$6:$CQ$92,MATCH('Rate Trajectory Report'!$B30,'Rate Trajectory Calc'!$A$6:$A$92,0),MATCH('Rate Trajectory Report'!N$5,'Rate Trajectory Calc'!$A$6:$CQ$6,0))/1000)","v":" "},{"$f":"IF(INDEX('Rate Trajectory Calc'!$A$6:$CQ$92,MATCH('Rate Trajectory Report'!$B30,'Rate Trajectory Calc'!$A$6:$A$92,0),MATCH('Rate Trajectory Report'!O$5,'Rate Trajectory Calc'!$A$6:$CQ$6,0))=0,\" \",INDEX('Rate Trajectory Calc'!$A$6:$CQ$92,MATCH('Rate Trajectory Report'!$B30,'Rate Trajectory Calc'!$A$6:$A$92,0),MATCH('Rate Trajectory Report'!O$5,'Rate Trajectory Calc'!$A$6:$CQ$6,0))/1000)","v":" "},{"$f":"IF(INDEX('Rate Trajectory Calc'!$A$6:$CQ$92,MATCH('Rate Trajectory Report'!$B30,'Rate Trajectory Calc'!$A$6:$A$92,0),MATCH('Rate Trajectory Report'!P$5,'Rate Trajectory Calc'!$A$6:$CQ$6,0))=0,\" \",INDEX('Rate Trajectory Calc'!$A$6:$CQ$92,MATCH('Rate Trajectory Report'!$B30,'Rate Trajectory Calc'!$A$6:$A$92,0),MATCH('Rate Trajectory Report'!P$5,'Rate Trajectory Calc'!$A$6:$CQ$6,0))/1000)","v":" "},{"$f":"IF(INDEX('Rate Trajectory Calc'!$A$6:$CQ$92,MATCH('Rate Trajectory Report'!$B30,'Rate Trajectory Calc'!$A$6:$A$92,0),MATCH('Rate Trajectory Report'!Q$5,'Rate Trajectory Calc'!$A$6:$CQ$6,0))=0,\" \",INDEX('Rate Trajectory Calc'!$A$6:$CQ$92,MATCH('Rate Trajectory Report'!$B30,'Rate Trajectory Calc'!$A$6:$A$92,0),MATCH('Rate Trajectory Report'!Q$5,'Rate Trajectory Calc'!$A$6:$CQ$6,0))/1000)","v":" "},{"$f":"IF(INDEX('Rate Trajectory Calc'!$A$6:$CQ$92,MATCH('Rate Trajectory Report'!$B30,'Rate Trajectory Calc'!$A$6:$A$92,0),MATCH('Rate Trajectory Report'!R$5,'Rate Trajectory Calc'!$A$6:$CQ$6,0))=0,\" \",INDEX('Rate Trajectory Calc'!$A$6:$CQ$92,MATCH('Rate Trajectory Report'!$B30,'Rate Trajectory Calc'!$A$6:$A$92,0),MATCH('Rate Trajectory Report'!R$5,'Rate Trajectory Calc'!$A$6:$CQ$6,0))/1000)","v":" "},{"$f":"IF(INDEX('Rate Trajectory Calc'!$A$6:$CQ$92,MATCH('Rate Trajectory Report'!$B30,'Rate Trajectory Calc'!$A$6:$A$92,0),MATCH('Rate Trajectory Report'!S$5,'Rate Trajectory Calc'!$A$6:$CQ$6,0))=0,\" \",INDEX('Rate Trajectory Calc'!$A$6:$CQ$92,MATCH('Rate Trajectory Report'!$B30,'Rate Trajectory Calc'!$A$6:$A$92,0),MATCH('Rate Trajectory Report'!S$5,'Rate Trajectory Calc'!$A$6:$CQ$6,0))/1000)","v":" "},{"$f":"IF(INDEX('Rate Trajectory Calc'!$A$6:$CQ$92,MATCH('Rate Trajectory Report'!$B30,'Rate Trajectory Calc'!$A$6:$A$92,0),MATCH('Rate Trajectory Report'!T$5,'Rate Trajectory Calc'!$A$6:$CQ$6,0))=0,\" \",INDEX('Rate Trajectory Calc'!$A$6:$CQ$92,MATCH('Rate Trajectory Report'!$B30,'Rate Trajectory Calc'!$A$6:$A$92,0),MATCH('Rate Trajectory Report'!T$5,'Rate Trajectory Calc'!$A$6:$CQ$6,0))/1000)","v":" "},{"$f":"IF(INDEX('Rate Trajectory Calc'!$A$6:$CQ$92,MATCH('Rate Trajectory Report'!$B30,'Rate Trajectory Calc'!$A$6:$A$92,0),MATCH('Rate Trajectory Report'!U$5,'Rate Trajectory Calc'!$A$6:$CQ$6,0))=0,\" \",INDEX('Rate Trajectory Calc'!$A$6:$CQ$92,MATCH('Rate Trajectory Report'!$B30,'Rate Trajectory Calc'!$A$6:$A$92,0),MATCH('Rate Trajectory Report'!U$5,'Rate Trajectory Calc'!$A$6:$CQ$6,0))/1000)","v":" "},{"$f":"IF(INDEX('Rate Trajectory Calc'!$A$6:$CQ$92,MATCH('Rate Trajectory Report'!$B30,'Rate Trajectory Calc'!$A$6:$A$92,0),MATCH('Rate Trajectory Report'!V$5,'Rate Trajectory Calc'!$A$6:$CQ$6,0))=0,\" \",INDEX('Rate Trajectory Calc'!$A$6:$CQ$92,MATCH('Rate Trajectory Report'!$B30,'Rate Trajectory Calc'!$A$6:$A$92,0),MATCH('Rate Trajectory Report'!V$5,'Rate Trajectory Calc'!$A$6:$CQ$6,0))/1000)","v":" "},{"$f":"IF(INDEX('Rate Trajectory Calc'!$A$6:$CQ$92,MATCH('Rate Trajectory Report'!$B30,'Rate Trajectory Calc'!$A$6:$A$92,0),MATCH('Rate Trajectory Report'!W$5,'Rate Trajectory Calc'!$A$6:$CQ$6,0))=0,\" \",INDEX('Rate Trajectory Calc'!$A$6:$CQ$92,MATCH('Rate Trajectory Report'!$B30,'Rate Trajectory Calc'!$A$6:$A$92,0),MATCH('Rate Trajectory Report'!W$5,'Rate Trajectory Calc'!$A$6:$CQ$6,0))/1000)","v":" "},{"$f":"IF(INDEX('Rate Trajectory Calc'!$A$6:$CQ$92,MATCH('Rate Trajectory Report'!$B30,'Rate Trajectory Calc'!$A$6:$A$92,0),MATCH('Rate Trajectory Report'!X$5,'Rate Trajectory Calc'!$A$6:$CQ$6,0))=0,\" \",INDEX('Rate Trajectory Calc'!$A$6:$CQ$92,MATCH('Rate Trajectory Report'!$B30,'Rate Trajectory Calc'!$A$6:$A$92,0),MATCH('Rate Trajectory Report'!X$5,'Rate Trajectory Calc'!$A$6:$CQ$6,0))/1000)","v":" "},{"$f":"IF(INDEX('Rate Trajectory Calc'!$A$6:$CQ$92,MATCH('Rate Trajectory Report'!$B30,'Rate Trajectory Calc'!$A$6:$A$92,0),MATCH('Rate Trajectory Report'!Y$5,'Rate Trajectory Calc'!$A$6:$CQ$6,0))=0,\" \",INDEX('Rate Trajectory Calc'!$A$6:$CQ$92,MATCH('Rate Trajectory Report'!$B30,'Rate Trajectory Calc'!$A$6:$A$92,0),MATCH('Rate Trajectory Report'!Y$5,'Rate Trajectory Calc'!$A$6:$CQ$6,0))/1000)","v":" "},{"$f":"IF(INDEX('Rate Trajectory Calc'!$A$6:$CQ$92,MATCH('Rate Trajectory Report'!$B30,'Rate Trajectory Calc'!$A$6:$A$92,0),MATCH('Rate Trajectory Report'!Z$5,'Rate Trajectory Calc'!$A$6:$CQ$6,0))=0,\" \",INDEX('Rate Trajectory Calc'!$A$6:$CQ$92,MATCH('Rate Trajectory Report'!$B30,'Rate Trajectory Calc'!$A$6:$A$92,0),MATCH('Rate Trajectory Report'!Z$5,'Rate Trajectory Calc'!$A$6:$CQ$6,0))/1000)","v":" "},{"$f":"IF(INDEX('Rate Trajectory Calc'!$A$6:$CQ$92,MATCH('Rate Trajectory Report'!$B30,'Rate Trajectory Calc'!$A$6:$A$92,0),MATCH('Rate Trajectory Report'!AA$5,'Rate Trajectory Calc'!$A$6:$CQ$6,0))=0,\" \",INDEX('Rate Trajectory Calc'!$A$6:$CQ$92,MATCH('Rate Trajectory Report'!$B30,'Rate Trajectory Calc'!$A$6:$A$92,0),MATCH('Rate Trajectory Report'!AA$5,'Rate Trajectory Calc'!$A$6:$CQ$6,0))/1000)","v":" "}]
[null,{"$f":"'Rate Trajectory Dashboard'!B30","v":"2024 Wildfire Mitigation and Catastrophic Events (distribution) - Year 2029"},{"$f":"IFERROR(VLOOKUP(B31,'Rate Trajectory Dashboard'!$B$12:$D$96,3,FALSE)/1000,'Rate Trajectory Report'!C30)","v":0},{"$f":"IF(INDEX('Rate Trajectory Calc'!$A$6:$CQ$92,MATCH('Rate Trajectory Report'!$B31,'Rate Trajectory Calc'!$A$6:$A$92,0),MATCH('Rate Trajectory Report'!D$5,'Rate Trajectory Calc'!$A$6:$CQ$6,0))=0,\" \",INDEX('Rate Trajectory Calc'!$A$6:$CQ$92,MATCH('Rate Trajectory Report'!$B31,'Rate Trajectory Calc'!$A$6:$A$92,0),MATCH('Rate Trajectory Report'!D$5,'Rate Trajectory Calc'!$A$6:$CQ$6,0))/1000)","v":" "},{"$f":"IF(INDEX('Rate Trajectory Calc'!$A$6:$CQ$92,MATCH('Rate Trajectory Report'!$B31,'Rate Trajectory Calc'!$A$6:$A$92,0),MATCH('Rate Trajectory Report'!E$5,'Rate Trajectory Calc'!$A$6:$CQ$6,0))=0,\" \",INDEX('Rate Trajectory Calc'!$A$6:$CQ$92,MATCH('Rate Trajectory Report'!$B31,'Rate Trajectory Calc'!$A$6:$A$92,0),MATCH('Rate Trajectory Report'!E$5,'Rate Trajectory Calc'!$A$6:$CQ$6,0))/1000)","v":" "},{"$f":"IF(INDEX('Rate Trajectory Calc'!$A$6:$CQ$92,MATCH('Rate Trajectory Report'!$B31,'Rate Trajectory Calc'!$A$6:$A$92,0),MATCH('Rate Trajectory Report'!F$5,'Rate Trajectory Calc'!$A$6:$CQ$6,0))=0,\" \",INDEX('Rate Trajectory Calc'!$A$6:$CQ$92,MATCH('Rate Trajectory Report'!$B31,'Rate Trajectory Calc'!$A$6:$A$92,0),MATCH('Rate Trajectory Report'!F$5,'Rate Trajectory Calc'!$A$6:$CQ$6,0))/1000)","v":" "},{"$f":"IF(INDEX('Rate Trajectory Calc'!$A$6:$CQ$92,MATCH('Rate Trajectory Report'!$B31,'Rate Trajectory Calc'!$A$6:$A$92,0),MATCH('Rate Trajectory Report'!G$5,'Rate Trajectory Calc'!$A$6:$CQ$6,0))=0,\" \",INDEX('Rate Trajectory Calc'!$A$6:$CQ$92,MATCH('Rate Trajectory Report'!$B31,'Rate Trajectory Calc'!$A$6:$A$92,0),MATCH('Rate Trajectory Report'!G$5,'Rate Trajectory Calc'!$A$6:$CQ$6,0))/1000)","v":" "},{"$f":"IF(INDEX('Rate Trajectory Calc'!$A$6:$CQ$92,MATCH('Rate Trajectory Report'!$B31,'Rate Trajectory Calc'!$A$6:$A$92,0),MATCH('Rate Trajectory Report'!H$5,'Rate Trajectory Calc'!$A$6:$CQ$6,0))=0,\" \",INDEX('Rate Trajectory Calc'!$A$6:$CQ$92,MATCH('Rate Trajectory Report'!$B31,'Rate Trajectory Calc'!$A$6:$A$92,0),MATCH('Rate Trajectory Report'!H$5,'Rate Trajectory Calc'!$A$6:$CQ$6,0))/1000)","v":" "},{"$f":"IF(INDEX('Rate Trajectory Calc'!$A$6:$CQ$92,MATCH('Rate Trajectory Report'!$B31,'Rate Trajectory Calc'!$A$6:$A$92,0),MATCH('Rate Trajectory Report'!I$5,'Rate Trajectory Calc'!$A$6:$CQ$6,0))=0,\" \",INDEX('Rate Trajectory Calc'!$A$6:$CQ$92,MATCH('Rate Trajectory Report'!$B31,'Rate Trajectory Calc'!$A$6:$A$92,0),MATCH('Rate Trajectory Report'!I$5,'Rate Trajectory Calc'!$A$6:$CQ$6,0))/1000)","v":" "},{"$f":"IF(INDEX('Rate Trajectory Calc'!$A$6:$CQ$92,MATCH('Rate Trajectory Report'!$B31,'Rate Trajectory Calc'!$A$6:$A$92,0),MATCH('Rate Trajectory Report'!J$5,'Rate Trajectory Calc'!$A$6:$CQ$6,0))=0,\" \",INDEX('Rate Trajectory Calc'!$A$6:$CQ$92,MATCH('Rate Trajectory Report'!$B31,'Rate Trajectory Calc'!$A$6:$A$92,0),MATCH('Rate Trajectory Report'!J$5,'Rate Trajectory Calc'!$A$6:$CQ$6,0))/1000)","v":" "},{"$f":"IF(INDEX('Rate Trajectory Calc'!$A$6:$CQ$92,MATCH('Rate Trajectory Report'!$B31,'Rate Trajectory Calc'!$A$6:$A$92,0),MATCH('Rate Trajectory Report'!K$5,'Rate Trajectory Calc'!$A$6:$CQ$6,0))=0,\" \",INDEX('Rate Trajectory Calc'!$A$6:$CQ$92,MATCH('Rate Trajectory Report'!$B31,'Rate Trajectory Calc'!$A$6:$A$92,0),MATCH('Rate Trajectory Report'!K$5,'Rate Trajectory Calc'!$A$6:$CQ$6,0))/1000)","v":" "},{"$f":"IF(INDEX('Rate Trajectory Calc'!$A$6:$CQ$92,MATCH('Rate Trajectory Report'!$B31,'Rate Trajectory Calc'!$A$6:$A$92,0),MATCH('Rate Trajectory Report'!L$5,'Rate Trajectory Calc'!$A$6:$CQ$6,0))=0,\" \",INDEX('Rate Trajectory Calc'!$A$6:$CQ$92,MATCH('Rate Trajectory Report'!$B31,'Rate Trajectory Calc'!$A$6:$A$92,0),MATCH('Rate Trajectory Report'!L$5,'Rate Trajectory Calc'!$A$6:$CQ$6,0))/1000)","v":" "},{"$f":"IF(INDEX('Rate Trajectory Calc'!$A$6:$CQ$92,MATCH('Rate Trajectory Report'!$B31,'Rate Trajectory Calc'!$A$6:$A$92,0),MATCH('Rate Trajectory Report'!M$5,'Rate Trajectory Calc'!$A$6:$CQ$6,0))=0,\" \",INDEX('Rate Trajectory Calc'!$A$6:$CQ$92,MATCH('Rate Trajectory Report'!$B31,'Rate Trajectory Calc'!$A$6:$A$92,0),MATCH('Rate Trajectory Report'!M$5,'Rate Trajectory Calc'!$A$6:$CQ$6,0))/1000)","v":" "},{"$f":"IF(INDEX('Rate Trajectory Calc'!$A$6:$CQ$92,MATCH('Rate Trajectory Report'!$B31,'Rate Trajectory Calc'!$A$6:$A$92,0),MATCH('Rate Trajectory Report'!N$5,'Rate Trajectory Calc'!$A$6:$CQ$6,0))=0,\" \",INDEX('Rate Trajectory Calc'!$A$6:$CQ$92,MATCH('Rate Trajectory Report'!$B31,'Rate Trajectory Calc'!$A$6:$A$92,0),MATCH('Rate Trajectory Report'!N$5,'Rate Trajectory Calc'!$A$6:$CQ$6,0))/1000)","v":" "},{"$f":"IF(INDEX('Rate Trajectory Calc'!$A$6:$CQ$92,MATCH('Rate Trajectory Report'!$B31,'Rate Trajectory Calc'!$A$6:$A$92,0),MATCH('Rate Trajectory Report'!O$5,'Rate Trajectory Calc'!$A$6:$CQ$6,0))=0,\" \",INDEX('Rate Trajectory Calc'!$A$6:$CQ$92,MATCH('Rate Trajectory Report'!$B31,'Rate Trajectory Calc'!$A$6:$A$92,0),MATCH('Rate Trajectory Report'!O$5,'Rate Trajectory Calc'!$A$6:$CQ$6,0))/1000)","v":" "},{"$f":"IF(INDEX('Rate Trajectory Calc'!$A$6:$CQ$92,MATCH('Rate Trajectory Report'!$B31,'Rate Trajectory Calc'!$A$6:$A$92,0),MATCH('Rate Trajectory Report'!P$5,'Rate Trajectory Calc'!$A$6:$CQ$6,0))=0,\" \",INDEX('Rate Trajectory Calc'!$A$6:$CQ$92,MATCH('Rate Trajectory Report'!$B31,'Rate Trajectory Calc'!$A$6:$A$92,0),MATCH('Rate Trajectory Report'!P$5,'Rate Trajectory Calc'!$A$6:$CQ$6,0))/1000)","v":" "},{"$f":"IF(INDEX('Rate Trajectory Calc'!$A$6:$CQ$92,MATCH('Rate Trajectory Report'!$B31,'Rate Trajectory Calc'!$A$6:$A$92,0),MATCH('Rate Trajectory Report'!Q$5,'Rate Trajectory Calc'!$A$6:$CQ$6,0))=0,\" \",INDEX('Rate Trajectory Calc'!$A$6:$CQ$92,MATCH('Rate Trajectory Report'!$B31,'Rate Trajectory Calc'!$A$6:$A$92,0),MATCH('Rate Trajectory Report'!Q$5,'Rate Trajectory Calc'!$A$6:$CQ$6,0))/1000)","v":" "},{"$f":"IF(INDEX('Rate Trajectory Calc'!$A$6:$CQ$92,MATCH('Rate Trajectory Report'!$B31,'Rate Trajectory Calc'!$A$6:$A$92,0),MATCH('Rate Trajectory Report'!R$5,'Rate Trajectory Calc'!$A$6:$CQ$6,0))=0,\" \",INDEX('Rate Trajectory Calc'!$A$6:$CQ$92,MATCH('Rate Trajectory Report'!$B31,'Rate Trajectory Calc'!$A$6:$A$92,0),MATCH('Rate Trajectory Report'!R$5,'Rate Trajectory Calc'!$A$6:$CQ$6,0))/1000)","v":" "},{"$f":"IF(INDEX('Rate Trajectory Calc'!$A$6:$CQ$92,MATCH('Rate Trajectory Report'!$B31,'Rate Trajectory Calc'!$A$6:$A$92,0),MATCH('Rate Trajectory Report'!S$5,'Rate Trajectory Calc'!$A$6:$CQ$6,0))=0,\" \",INDEX('Rate Trajectory Calc'!$A$6:$CQ$92,MATCH('Rate Trajectory Report'!$B31,'Rate Trajectory Calc'!$A$6:$A$92,0),MATCH('Rate Trajectory Report'!S$5,'Rate Trajectory Calc'!$A$6:$CQ$6,0))/1000)","v":" "},{"$f":"IF(INDEX('Rate Trajectory Calc'!$A$6:$CQ$92,MATCH('Rate Trajectory Report'!$B31,'Rate Trajectory Calc'!$A$6:$A$92,0),MATCH('Rate Trajectory Report'!T$5,'Rate Trajectory Calc'!$A$6:$CQ$6,0))=0,\" \",INDEX('Rate Trajectory Calc'!$A$6:$CQ$92,MATCH('Rate Trajectory Report'!$B31,'Rate Trajectory Calc'!$A$6:$A$92,0),MATCH('Rate Trajectory Report'!T$5,'Rate Trajectory Calc'!$A$6:$CQ$6,0))/1000)","v":" "},{"$f":"IF(INDEX('Rate Trajectory Calc'!$A$6:$CQ$92,MATCH('Rate Trajectory Report'!$B31,'Rate Trajectory Calc'!$A$6:$A$92,0),MATCH('Rate Trajectory Report'!U$5,'Rate Trajectory Calc'!$A$6:$CQ$6,0))=0,\" \",INDEX('Rate Trajectory Calc'!$A$6:$CQ$92,MATCH('Rate Trajectory Report'!$B31,'Rate Trajectory Calc'!$A$6:$A$92,0),MATCH('Rate Trajectory Report'!U$5,'Rate Trajectory Calc'!$A$6:$CQ$6,0))/1000)","v":" "},{"$f":"IF(INDEX('Rate Trajectory Calc'!$A$6:$CQ$92,MATCH('Rate Trajectory Report'!$B31,'Rate Trajectory Calc'!$A$6:$A$92,0),MATCH('Rate Trajectory Report'!V$5,'Rate Trajectory Calc'!$A$6:$CQ$6,0))=0,\" \",INDEX('Rate Trajectory Calc'!$A$6:$CQ$92,MATCH('Rate Trajectory Report'!$B31,'Rate Trajectory Calc'!$A$6:$A$92,0),MATCH('Rate Trajectory Report'!V$5,'Rate Trajectory Calc'!$A$6:$CQ$6,0))/1000)","v":" "},{"$f":"IF(INDEX('Rate Trajectory Calc'!$A$6:$CQ$92,MATCH('Rate Trajectory Report'!$B31,'Rate Trajectory Calc'!$A$6:$A$92,0),MATCH('Rate Trajectory Report'!W$5,'Rate Trajectory Calc'!$A$6:$CQ$6,0))=0,\" \",INDEX('Rate Trajectory Calc'!$A$6:$CQ$92,MATCH('Rate Trajectory Report'!$B31,'Rate Trajectory Calc'!$A$6:$A$92,0),MATCH('Rate Trajectory Report'!W$5,'Rate Trajectory Calc'!$A$6:$CQ$6,0))/1000)","v":" "},{"$f":"IF(INDEX('Rate Trajectory Calc'!$A$6:$CQ$92,MATCH('Rate Trajectory Report'!$B31,'Rate Trajectory Calc'!$A$6:$A$92,0),MATCH('Rate Trajectory Report'!X$5,'Rate Trajectory Calc'!$A$6:$CQ$6,0))=0,\" \",INDEX('Rate Trajectory Calc'!$A$6:$CQ$92,MATCH('Rate Trajectory Report'!$B31,'Rate Trajectory Calc'!$A$6:$A$92,0),MATCH('Rate Trajectory Report'!X$5,'Rate Trajectory Calc'!$A$6:$CQ$6,0))/1000)","v":" "},{"$f":"IF(INDEX('Rate Trajectory Calc'!$A$6:$CQ$92,MATCH('Rate Trajectory Report'!$B31,'Rate Trajectory Calc'!$A$6:$A$92,0),MATCH('Rate Trajectory Report'!Y$5,'Rate Trajectory Calc'!$A$6:$CQ$6,0))=0,\" \",INDEX('Rate Trajectory Calc'!$A$6:$CQ$92,MATCH('Rate Trajectory Report'!$B31,'Rate Trajectory Calc'!$A$6:$A$92,0),MATCH('Rate Trajectory Report'!Y$5,'Rate Trajectory Calc'!$A$6:$CQ$6,0))/1000)","v":" "},{"$f":"IF(INDEX('Rate Trajectory Calc'!$A$6:$CQ$92,MATCH('Rate Trajectory Report'!$B31,'Rate Trajectory Calc'!$A$6:$A$92,0),MATCH('Rate Trajectory Report'!Z$5,'Rate Trajectory Calc'!$A$6:$CQ$6,0))=0,\" \",INDEX('Rate Trajectory Calc'!$A$6:$CQ$92,MATCH('Rate Trajectory Report'!$B31,'Rate Trajectory Calc'!$A$6:$A$92,0),MATCH('Rate Trajectory Report'!Z$5,'Rate Trajectory Calc'!$A$6:$CQ$6,0))/1000)","v":" "},{"$f":"IF(INDEX('Rate Trajectory Calc'!$A$6:$CQ$92,MATCH('Rate Trajectory Report'!$B31,'Rate Trajectory Calc'!$A$6:$A$92,0),MATCH('Rate Trajectory Report'!AA$5,'Rate Trajectory Calc'!$A$6:$CQ$6,0))=0,\" \",INDEX('Rate Trajectory Calc'!$A$6:$CQ$92,MATCH('Rate Trajectory Report'!$B31,'Rate Trajectory Calc'!$A$6:$A$92,0),MATCH('Rate Trajectory Report'!AA$5,'Rate Trajectory Calc'!$A$6:$CQ$6,0))/1000)","v":" "}]
["6a","2024 Wildfire Mitigation and Catastrophic Events (distribution)",{"$f":"IFERROR(VLOOKUP(B32,'Rate Trajectory Dashboard'!$B$12:$D$96,3,FALSE)/1000,'Rate Trajectory Report'!C31)","v":0},{"$f":"IF(SUM(D28:D31)=0,\" \",SUBTOTAL(9,D28:D31))","v":" "},{"$f":"IF(SUM(E28:E31)=0,\" \",SUBTOTAL(9,E28:E31))","v":" "}," "," ",65.537654410869607," "," "," "," "," "," "," "," "," "," "," ",-46.71818933283177," "," "," "," "," "," "," "]
[null,{"$f":"'Rate Trajectory Dashboard'!B31","v":"2024 Wildfire Mitigation and Catastrophic Events (transmission) - Year 2026"},{"$f":"IFERROR(VLOOKUP(B33,'Rate Trajectory Dashboard'!$B$12:$D$96,3,FALSE)/1000,'Rate Trajectory Report'!C32)","v":0},{"$f":"IF(INDEX('Rate Trajectory Calc'!$A$6:$CQ$92,MATCH('Rate Trajectory Report'!$B33,'Rate Trajectory Calc'!$A$6:$A$92,0),MATCH('Rate Trajectory Report'!D$5,'Rate Trajectory Calc'!$A$6:$CQ$6,0))=0,\" \",INDEX('Rate Trajectory Calc'!$A$6:$CQ$92,MATCH('Rate Trajectory Report'!$B33,'Rate Trajectory Calc'!$A$6:$A$92,0),MATCH('Rate Trajectory Report'!D$5,'Rate Trajectory Calc'!$A$6:$CQ$6,0))/1000)","v":" "},{"$f":"IF(INDEX('Rate Trajectory Calc'!$A$6:$CQ$92,MATCH('Rate Trajectory Report'!$B33,'Rate Trajectory Calc'!$A$6:$A$92,0),MATCH('Rate Trajectory Report'!E$5,'Rate Trajectory Calc'!$A$6:$CQ$6,0))=0,\" \",INDEX('Rate Trajectory Calc'!$A$6:$CQ$92,MATCH('Rate Trajectory Report'!$B33,'Rate Trajectory Calc'!$A$6:$A$92,0),MATCH('Rate Trajectory Report'!E$5,'Rate Trajectory Calc'!$A$6:$CQ$6,0))/1000)","v":" "},{"$f":"IF(INDEX('Rate Trajectory Calc'!$A$6:$CQ$92,MATCH('Rate Trajectory Report'!$B33,'Rate Trajectory Calc'!$A$6:$A$92,0),MATCH('Rate Trajectory Report'!F$5,'Rate Trajectory Calc'!$A$6:$CQ$6,0))=0,\" \",INDEX('Rate Trajectory Calc'!$A$6:$CQ$92,MATCH('Rate Trajectory Report'!$B33,'Rate Trajectory Calc'!$A$6:$A$92,0),MATCH('Rate Trajectory Report'!F$5,'Rate Trajectory Calc'!$A$6:$CQ$6,0))/1000)","v":" "},{"$f":"IF(INDEX('Rate Trajectory Calc'!$A$6:$CQ$92,MATCH('Rate Trajectory Report'!$B33,'Rate Trajectory Calc'!$A$6:$A$92,0),MATCH('Rate Trajectory Report'!G$5,'Rate Trajectory Calc'!$A$6:$CQ$6,0))=0,\" \",INDEX('Rate Trajectory Calc'!$A$6:$CQ$92,MATCH('Rate Trajectory Report'!$B33,'Rate Trajectory Calc'!$A$6:$A$92,0),MATCH('Rate Trajectory Report'!G$5,'Rate Trajectory Calc'!$A$6:$CQ$6,0))/1000)","v":" "},{"$f":"IF(INDEX('Rate Trajectory Calc'!$A$6:$CQ$92,MATCH('Rate Trajectory Report'!$B33,'Rate Trajectory Calc'!$A$6:$A$92,0),MATCH('Rate Trajectory Report'!H$5,'Rate Trajectory Calc'!$A$6:$CQ$6,0))=0,\" \",INDEX('Rate Trajectory Calc'!$A$6:$CQ$92,MATCH('Rate Trajectory Report'!$B33,'Rate Trajectory Calc'!$A$6:$A$92,0),MATCH('Rate Trajectory Report'!H$5,'Rate Trajectory Calc'!$A$6:$CQ$6,0))/1000)","v":6.57937875743999},{"$f":"IF(INDEX('Rate Trajectory Calc'!$A$6:$CQ$92,MATCH('Rate Trajectory Report'!$B33,'Rate Trajectory Calc'!$A$6:$A$92,0),MATCH('Rate Trajectory Report'!I$5,'Rate Trajectory Calc'!$A$6:$CQ$6,0))=0,\" \",INDEX('Rate Trajectory Calc'!$A$6:$CQ$92,MATCH('Rate Trajectory Report'!$B33,'Rate Trajectory Calc'!$A$6:$A$92,0),MATCH('Rate Trajectory Report'!I$5,'Rate Trajectory Calc'!$A$6:$CQ$6,0))/1000)","v":" "},{"$f":"IF(INDEX('Rate Trajectory Calc'!$A$6:$CQ$92,MATCH('Rate Trajectory Report'!$B33,'Rate Trajectory Calc'!$A$6:$A$92,0),MATCH('Rate Trajectory Report'!J$5,'Rate Trajectory Calc'!$A$6:$CQ$6,0))=0,\" \",INDEX('Rate Trajectory Calc'!$A$6:$CQ$92,MATCH('Rate Trajectory Report'!$B33,'Rate Trajectory Calc'!$A$6:$A$92,0),MATCH('Rate Trajectory Report'!J$5,'Rate Trajectory Calc'!$A$6:$CQ$6,0))/1000)","v":" "},{"$f":"IF(INDEX('Rate Trajectory Calc'!$A$6:$CQ$92,MATCH('Rate Trajectory Report'!$B33,'Rate Trajectory Calc'!$A$6:$A$92,0),MATCH('Rate Trajectory Report'!K$5,'Rate Trajectory Calc'!$A$6:$CQ$6,0))=0,\" \",INDEX('Rate Trajectory Calc'!$A$6:$CQ$92,MATCH('Rate Trajectory Report'!$B33,'Rate Trajectory Calc'!$A$6:$A$92,0),MATCH('Rate Trajectory Report'!K$5,'Rate Trajectory Calc'!$A$6:$CQ$6,0))/1000)","v":" "},{"$f":"IF(INDEX('Rate Trajectory Calc'!$A$6:$CQ$92,MATCH('Rate Trajectory Report'!$B33,'Rate Trajectory Calc'!$A$6:$A$92,0),MATCH('Rate Trajectory Report'!L$5,'Rate Trajectory Calc'!$A$6:$CQ$6,0))=0,\" \",INDEX('Rate Trajectory Calc'!$A$6:$CQ$92,MATCH('Rate Trajectory Report'!$B33,'Rate Trajectory Calc'!$A$6:$A$92,0),MATCH('Rate Trajectory Report'!L$5,'Rate Trajectory Calc'!$A$6:$CQ$6,0))/1000)","v":" "},{"$f":"IF(INDEX('Rate Trajectory Calc'!$A$6:$CQ$92,MATCH('Rate Trajectory Report'!$B33,'Rate Trajectory Calc'!$A$6:$A$92,0),MATCH('Rate Trajectory Report'!M$5,'Rate Trajectory Calc'!$A$6:$CQ$6,0))=0,\" \",INDEX('Rate Trajectory Calc'!$A$6:$CQ$92,MATCH('Rate Trajectory Report'!$B33,'Rate Trajectory Calc'!$A$6:$A$92,0),MATCH('Rate Trajectory Report'!M$5,'Rate Trajectory Calc'!$A$6:$CQ$6,0))/1000)","v":" "},{"$f":"IF(INDEX('Rate Trajectory Calc'!$A$6:$CQ$92,MATCH('Rate Trajectory Report'!$B33,'Rate Trajectory Calc'!$A$6:$A$92,0),MATCH('Rate Trajectory Report'!N$5,'Rate Trajectory Calc'!$A$6:$CQ$6,0))=0,\" \",INDEX('Rate Trajectory Calc'!$A$6:$CQ$92,MATCH('Rate Trajectory Report'!$B33,'Rate Trajectory Calc'!$A$6:$A$92,0),MATCH('Rate Trajectory Report'!N$5,'Rate Trajectory Calc'!$A$6:$CQ$6,0))/1000)","v":" "},{"$f":"IF(INDEX('Rate Trajectory Calc'!$A$6:$CQ$92,MATCH('Rate Trajectory Report'!$B33,'Rate Trajectory Calc'!$A$6:$A$92,0),MATCH('Rate Trajectory Report'!O$5,'Rate Trajectory Calc'!$A$6:$CQ$6,0))=0,\" \",INDEX('Rate Trajectory Calc'!$A$6:$CQ$92,MATCH('Rate Trajectory Report'!$B33,'Rate Trajectory Calc'!$A$6:$A$92,0),MATCH('Rate Trajectory Report'!O$5,'Rate Trajectory Calc'!$A$6:$CQ$6,0))/1000)","v":" "},{"$f":"IF(INDEX('Rate Trajectory Calc'!$A$6:$CQ$92,MATCH('Rate Trajectory Report'!$B33,'Rate Trajectory Calc'!$A$6:$A$92,0),MATCH('Rate Trajectory Report'!P$5,'Rate Trajectory Calc'!$A$6:$CQ$6,0))=0,\" \",INDEX('Rate Trajectory Calc'!$A$6:$CQ$92,MATCH('Rate Trajectory Report'!$B33,'Rate Trajectory Calc'!$A$6:$A$92,0),MATCH('Rate Trajectory Report'!P$5,'Rate Trajectory Calc'!$A$6:$CQ$6,0))/1000)","v":" "},{"$f":"IF(INDEX('Rate Trajectory Calc'!$A$6:$CQ$92,MATCH('Rate Trajectory Report'!$B33,'Rate Trajectory Calc'!$A$6:$A$92,0),MATCH('Rate Trajectory Report'!Q$5,'Rate Trajectory Calc'!$A$6:$CQ$6,0))=0,\" \",INDEX('Rate Trajectory Calc'!$A$6:$CQ$92,MATCH('Rate Trajectory Report'!$B33,'Rate Trajectory Calc'!$A$6:$A$92,0),MATCH('Rate Trajectory Report'!Q$5,'Rate Trajectory Calc'!$A$6:$CQ$6,0))/1000)","v":" "},{"$f":"IF(INDEX('Rate Trajectory Calc'!$A$6:$CQ$92,MATCH('Rate Trajectory Report'!$B33,'Rate Trajectory Calc'!$A$6:$A$92,0),MATCH('Rate Trajectory Report'!R$5,'Rate Trajectory Calc'!$A$6:$CQ$6,0))=0,\" \",INDEX('Rate Trajectory Calc'!$A$6:$CQ$92,MATCH('Rate Trajectory Report'!$B33,'Rate Trajectory Calc'!$A$6:$A$92,0),MATCH('Rate Trajectory Report'!R$5,'Rate Trajectory Calc'!$A$6:$CQ$6,0))/1000)","v":" "},{"$f":"IF(INDEX('Rate Trajectory Calc'!$A$6:$CQ$92,MATCH('Rate Trajectory Report'!$B33,'Rate Trajectory Calc'!$A$6:$A$92,0),MATCH('Rate Trajectory Report'!S$5,'Rate Trajectory Calc'!$A$6:$CQ$6,0))=0,\" \",INDEX('Rate Trajectory Calc'!$A$6:$CQ$92,MATCH('Rate Trajectory Report'!$B33,'Rate Trajectory Calc'!$A$6:$A$92,0),MATCH('Rate Trajectory Report'!S$5,'Rate Trajectory Calc'!$A$6:$CQ$6,0))/1000)","v":" "},{"$f":"IF(INDEX('Rate Trajectory Calc'!$A$6:$CQ$92,MATCH('Rate Trajectory Report'!$B33,'Rate Trajectory Calc'!$A$6:$A$92,0),MATCH('Rate Trajectory Report'!T$5,'Rate Trajectory Calc'!$A$6:$CQ$6,0))=0,\" \",INDEX('Rate Trajectory Calc'!$A$6:$CQ$92,MATCH('Rate Trajectory Report'!$B33,'Rate Trajectory Calc'!$A$6:$A$92,0),MATCH('Rate Trajectory Report'!T$5,'Rate Trajectory Calc'!$A$6:$CQ$6,0))/1000)","v":-6.57937875743999},{"$f":"IF(INDEX('Rate Trajectory Calc'!$A$6:$CQ$92,MATCH('Rate Trajectory Report'!$B33,'Rate Trajectory Calc'!$A$6:$A$92,0),MATCH('Rate Trajectory Report'!U$5,'Rate Trajectory Calc'!$A$6:$CQ$6,0))=0,\" \",INDEX('Rate Trajectory Calc'!$A$6:$CQ$92,MATCH('Rate Trajectory Report'!$B33,'Rate Trajectory Calc'!$A$6:$A$92,0),MATCH('Rate Trajectory Report'!U$5,'Rate Trajectory Calc'!$A$6:$CQ$6,0))/1000)","v":" "},{"$f":"IF(INDEX('Rate Trajectory Calc'!$A$6:$CQ$92,MATCH('Rate Trajectory Report'!$B33,'Rate Trajectory Calc'!$A$6:$A$92,0),MATCH('Rate Trajectory Report'!V$5,'Rate Trajectory Calc'!$A$6:$CQ$6,0))=0,\" \",INDEX('Rate Trajectory Calc'!$A$6:$CQ$92,MATCH('Rate Trajectory Report'!$B33,'Rate Trajectory Calc'!$A$6:$A$92,0),MATCH('Rate Trajectory Report'!V$5,'Rate Trajectory Calc'!$A$6:$CQ$6,0))/1000)","v":" "},{"$f":"IF(INDEX('Rate Trajectory Calc'!$A$6:$CQ$92,MATCH('Rate Trajectory Report'!$B33,'Rate Trajectory Calc'!$A$6:$A$92,0),MATCH('Rate Trajectory Report'!W$5,'Rate Trajectory Calc'!$A$6:$CQ$6,0))=0,\" \",INDEX('Rate Trajectory Calc'!$A$6:$CQ$92,MATCH('Rate Trajectory Report'!$B33,'Rate Trajectory Calc'!$A$6:$A$92,0),MATCH('Rate Trajectory Report'!W$5,'Rate Trajectory Calc'!$A$6:$CQ$6,0))/1000)","v":" "},{"$f":"IF(INDEX('Rate Trajectory Calc'!$A$6:$CQ$92,MATCH('Rate Trajectory Report'!$B33,'Rate Trajectory Calc'!$A$6:$A$92,0),MATCH('Rate Trajectory Report'!X$5,'Rate Trajectory Calc'!$A$6:$CQ$6,0))=0,\" \",INDEX('Rate Trajectory Calc'!$A$6:$CQ$92,MATCH('Rate Trajectory Report'!$B33,'Rate Trajectory Calc'!$A$6:$A$92,0),MATCH('Rate Trajectory Report'!X$5,'Rate Trajectory Calc'!$A$6:$CQ$6,0))/1000)","v":" "},{"$f":"IF(INDEX('Rate Trajectory Calc'!$A$6:$CQ$92,MATCH('Rate Trajectory Report'!$B33,'Rate Trajectory Calc'!$A$6:$A$92,0),MATCH('Rate Trajectory Report'!Y$5,'Rate Trajectory Calc'!$A$6:$CQ$6,0))=0,\" \",INDEX('Rate Trajectory Calc'!$A$6:$CQ$92,MATCH('Rate Trajectory Report'!$B33,'Rate Trajectory Calc'!$A$6:$A$92,0),MATCH('Rate Trajectory Report'!Y$5,'Rate Trajectory Calc'!$A$6:$CQ$6,0))/1000)","v":" "},{"$f":"IF(INDEX('Rate Trajectory Calc'!$A$6:$CQ$92,MATCH('Rate Trajectory Report'!$B33,'Rate Trajectory Calc'!$A$6:$A$92,0),MATCH('Rate Trajectory Report'!Z$5,'Rate Trajectory Calc'!$A$6:$CQ$6,0))=0,\" \",INDEX('Rate Trajectory Calc'!$A$6:$CQ$92,MATCH('Rate Trajectory Report'!$B33,'Rate Trajectory Calc'!$A$6:$A$92,0),MATCH('Rate Trajectory Report'!Z$5,'Rate Trajectory Calc'!$A$6:$CQ$6,0))/1000)","v":" "},{"$f":"IF(INDEX('Rate Trajectory Calc'!$A$6:$CQ$92,MATCH('Rate Trajectory Report'!$B33,'Rate Trajectory Calc'!$A$6:$A$92,0),MATCH('Rate Trajectory Report'!AA$5,'Rate Trajectory Calc'!$A$6:$CQ$6,0))=0,\" \",INDEX('Rate Trajectory Calc'!$A$6:$CQ$92,MATCH('Rate Trajectory Report'!$B33,'Rate Trajectory Calc'!$A$6:$A$92,0),MATCH('Rate Trajectory Report'!AA$5,'Rate Trajectory Calc'!$A$6:$CQ$6,0))/1000)","v":" "}]
[null,{"$f":"'Rate Trajectory Dashboard'!B32","v":"2024 Wildfire Mitigation and Catastrophic Events (transmission) - Year 2027"},{"$f":"IFERROR(VLOOKUP(B34,'Rate Trajectory Dashboard'!$B$12:$D$96,3,FALSE)/1000,'Rate Trajectory Report'!C33)","v":0},{"$f":"IF(INDEX('Rate Trajectory Calc'!$A$6:$CQ$92,MATCH('Rate Trajectory Report'!$B34,'Rate Trajectory Calc'!$A$6:$A$92,0),MATCH('Rate Trajectory Report'!D$5,'Rate Trajectory Calc'!$A$6:$CQ$6,0))=0,\" \",INDEX('Rate Trajectory Calc'!$A$6:$CQ$92,MATCH('Rate Trajectory Report'!$B34,'Rate Trajectory Calc'!$A$6:$A$92,0),MATCH('Rate Trajectory Report'!D$5,'Rate Trajectory Calc'!$A$6:$CQ$6,0))/1000)","v":" "},{"$f":"IF(INDEX('Rate Trajectory Calc'!$A$6:$CQ$92,MATCH('Rate Trajectory Report'!$B34,'Rate Trajectory Calc'!$A$6:$A$92,0),MATCH('Rate Trajectory Report'!E$5,'Rate Trajectory Calc'!$A$6:$CQ$6,0))=0,\" \",INDEX('Rate Trajectory Calc'!$A$6:$CQ$92,MATCH('Rate Trajectory Report'!$B34,'Rate Trajectory Calc'!$A$6:$A$92,0),MATCH('Rate Trajectory Report'!E$5,'Rate Trajectory Calc'!$A$6:$CQ$6,0))/1000)","v":" "},{"$f":"IF(INDEX('Rate Trajectory Calc'!$A$6:$CQ$92,MATCH('Rate Trajectory Report'!$B34,'Rate Trajectory Calc'!$A$6:$A$92,0),MATCH('Rate Trajectory Report'!F$5,'Rate Trajectory Calc'!$A$6:$CQ$6,0))=0,\" \",INDEX('Rate Trajectory Calc'!$A$6:$CQ$92,MATCH('Rate Trajectory Report'!$B34,'Rate Trajectory Calc'!$A$6:$A$92,0),MATCH('Rate Trajectory Report'!F$5,'Rate Trajectory Calc'!$A$6:$CQ$6,0))/1000)","v":" "},{"$f":"IF(INDEX('Rate Trajectory Calc'!$A$6:$CQ$92,MATCH('Rate Trajectory Report'!$B34,'Rate Trajectory Calc'!$A$6:$A$92,0),MATCH('Rate Trajectory Report'!G$5,'Rate Trajectory Calc'!$A$6:$CQ$6,0))=0,\" \",INDEX('Rate Trajectory Calc'!$A$6:$CQ$92,MATCH('Rate Trajectory Report'!$B34,'Rate Trajectory Calc'!$A$6:$A$92,0),MATCH('Rate Trajectory Report'!G$5,'Rate Trajectory Calc'!$A$6:$CQ$6,0))/1000)","v":" "},{"$f":"IF(INDEX('Rate Trajectory Calc'!$A$6:$CQ$92,MATCH('Rate Trajectory Report'!$B34,'Rate Trajectory Calc'!$A$6:$A$92,0),MATCH('Rate Trajectory Report'!H$5,'Rate Trajectory Calc'!$A$6:$CQ$6,0))=0,\" \",INDEX('Rate Trajectory Calc'!$A$6:$CQ$92,MATCH('Rate Trajectory Report'!$B34,'Rate Trajectory Calc'!$A$6:$A$92,0),MATCH('Rate Trajectory Report'!H$5,'Rate Trajectory Calc'!$A$6:$CQ$6,0))/1000)","v":" "},{"$f":"IF(INDEX('Rate Trajectory Calc'!$A$6:$CQ$92,MATCH('Rate Trajectory Report'!$B34,'Rate Trajectory Calc'!$A$6:$A$92,0),MATCH('Rate Trajectory Report'!I$5,'Rate Trajectory Calc'!$A$6:$CQ$6,0))=0,\" \",INDEX('Rate Trajectory Calc'!$A$6:$CQ$92,MATCH('Rate Trajectory Report'!$B34,'Rate Trajectory Calc'!$A$6:$A$92,0),MATCH('Rate Trajectory Report'!I$5,'Rate Trajectory Calc'!$A$6:$CQ$6,0))/1000)","v":" "},{"$f":"IF(INDEX('Rate Trajectory Calc'!$A$6:$CQ$92,MATCH('Rate Trajectory Report'!$B34,'Rate Trajectory Calc'!$A$6:$A$92,0),MATCH('Rate Trajectory Report'!J$5,'Rate Trajectory Calc'!$A$6:$CQ$6,0))=0,\" \",INDEX('Rate Trajectory Calc'!$A$6:$CQ$92,MATCH('Rate Trajectory Report'!$B34,'Rate Trajectory Calc'!$A$6:$A$92,0),MATCH('Rate Trajectory Report'!J$5,'Rate Trajectory Calc'!$A$6:$CQ$6,0))/1000)","v":" "},{"$f":"IF(INDEX('Rate Trajectory Calc'!$A$6:$CQ$92,MATCH('Rate Trajectory Report'!$B34,'Rate Trajectory Calc'!$A$6:$A$92,0),MATCH('Rate Trajectory Report'!K$5,'Rate Trajectory Calc'!$A$6:$CQ$6,0))=0,\" \",INDEX('Rate Trajectory Calc'!$A$6:$CQ$92,MATCH('Rate Trajectory Report'!$B34,'Rate Trajectory Calc'!$A$6:$A$92,0),MATCH('Rate Trajectory Report'!K$5,'Rate Trajectory Calc'!$A$6:$CQ$6,0))/1000)","v":" "},{"$f":"IF(INDEX('Rate Trajectory Calc'!$A$6:$CQ$92,MATCH('Rate Trajectory Report'!$B34,'Rate Trajectory Calc'!$A$6:$A$92,0),MATCH('Rate Trajectory Report'!L$5,'Rate Trajectory Calc'!$A$6:$CQ$6,0))=0,\" \",INDEX('Rate Trajectory Calc'!$A$6:$CQ$92,MATCH('Rate Trajectory Report'!$B34,'Rate Trajectory Calc'!$A$6:$A$92,0),MATCH('Rate Trajectory Report'!L$5,'Rate Trajectory Calc'!$A$6:$CQ$6,0))/1000)","v":" "},{"$f":"IF(INDEX('Rate Trajectory Calc'!$A$6:$CQ$92,MATCH('Rate Trajectory Report'!$B34,'Rate Trajectory Calc'!$A$6:$A$92,0),MATCH('Rate Trajectory Report'!M$5,'Rate Trajectory Calc'!$A$6:$CQ$6,0))=0,\" \",INDEX('Rate Trajectory Calc'!$A$6:$CQ$92,MATCH('Rate Trajectory Report'!$B34,'Rate Trajectory Calc'!$A$6:$A$92,0),MATCH('Rate Trajectory Report'!M$5,'Rate Trajectory Calc'!$A$6:$CQ$6,0))/1000)","v":" "},{"$f":"IF(INDEX('Rate Trajectory Calc'!$A$6:$CQ$92,MATCH('Rate Trajectory Report'!$B34,'Rate Trajectory Calc'!$A$6:$A$92,0),MATCH('Rate Trajectory Report'!N$5,'Rate Trajectory Calc'!$A$6:$CQ$6,0))=0,\" \",INDEX('Rate Trajectory Calc'!$A$6:$CQ$92,MATCH('Rate Trajectory Report'!$B34,'Rate Trajectory Calc'!$A$6:$A$92,0),MATCH('Rate Trajectory Report'!N$5,'Rate Trajectory Calc'!$A$6:$CQ$6,0))/1000)","v":" "},{"$f":"IF(INDEX('Rate Trajectory Calc'!$A$6:$CQ$92,MATCH('Rate Trajectory Report'!$B34,'Rate Trajectory Calc'!$A$6:$A$92,0),MATCH('Rate Trajectory Report'!O$5,'Rate Trajectory Calc'!$A$6:$CQ$6,0))=0,\" \",INDEX('Rate Trajectory Calc'!$A$6:$CQ$92,MATCH('Rate Trajectory Report'!$B34,'Rate Trajectory Calc'!$A$6:$A$92,0),MATCH('Rate Trajectory Report'!O$5,'Rate Trajectory Calc'!$A$6:$CQ$6,0))/1000)","v":" "},{"$f":"IF(INDEX('Rate Trajectory Calc'!$A$6:$CQ$92,MATCH('Rate Trajectory Report'!$B34,'Rate Trajectory Calc'!$A$6:$A$92,0),MATCH('Rate Trajectory Report'!P$5,'Rate Trajectory Calc'!$A$6:$CQ$6,0))=0,\" \",INDEX('Rate Trajectory Calc'!$A$6:$CQ$92,MATCH('Rate Trajectory Report'!$B34,'Rate Trajectory Calc'!$A$6:$A$92,0),MATCH('Rate Trajectory Report'!P$5,'Rate Trajectory Calc'!$A$6:$CQ$6,0))/1000)","v":" "},{"$f":"IF(INDEX('Rate Trajectory Calc'!$A$6:$CQ$92,MATCH('Rate Trajectory Report'!$B34,'Rate Trajectory Calc'!$A$6:$A$92,0),MATCH('Rate Trajectory Report'!Q$5,'Rate Trajectory Calc'!$A$6:$CQ$6,0))=0,\" \",INDEX('Rate Trajectory Calc'!$A$6:$CQ$92,MATCH('Rate Trajectory Report'!$B34,'Rate Trajectory Calc'!$A$6:$A$92,0),MATCH('Rate Trajectory Report'!Q$5,'Rate Trajectory Calc'!$A$6:$CQ$6,0))/1000)","v":" "},{"$f":"IF(INDEX('Rate Trajectory Calc'!$A$6:$CQ$92,MATCH('Rate Trajectory Report'!$B34,'Rate Trajectory Calc'!$A$6:$A$92,0),MATCH('Rate Trajectory Report'!R$5,'Rate Trajectory Calc'!$A$6:$CQ$6,0))=0,\" \",INDEX('Rate Trajectory Calc'!$A$6:$CQ$92,MATCH('Rate Trajectory Report'!$B34,'Rate Trajectory Calc'!$A$6:$A$92,0),MATCH('Rate Trajectory Report'!R$5,'Rate Trajectory Calc'!$A$6:$CQ$6,0))/1000)","v":" "},{"$f":"IF(INDEX('Rate Trajectory Calc'!$A$6:$CQ$92,MATCH('Rate Trajectory Report'!$B34,'Rate Trajectory Calc'!$A$6:$A$92,0),MATCH('Rate Trajectory Report'!S$5,'Rate Trajectory Calc'!$A$6:$CQ$6,0))=0,\" \",INDEX('Rate Trajectory Calc'!$A$6:$CQ$92,MATCH('Rate Trajectory Report'!$B34,'Rate Trajectory Calc'!$A$6:$A$92,0),MATCH('Rate Trajectory Report'!S$5,'Rate Trajectory Calc'!$A$6:$CQ$6,0))/1000)","v":" "},{"$f":"IF(INDEX('Rate Trajectory Calc'!$A$6:$CQ$92,MATCH('Rate Trajectory Report'!$B34,'Rate Trajectory Calc'!$A$6:$A$92,0),MATCH('Rate Trajectory Report'!T$5,'Rate Trajectory Calc'!$A$6:$CQ$6,0))=0,\" \",INDEX('Rate Trajectory Calc'!$A$6:$CQ$92,MATCH('Rate Trajectory Report'!$B34,'Rate Trajectory Calc'!$A$6:$A$92,0),MATCH('Rate Trajectory Report'!T$5,'Rate Trajectory Calc'!$A$6:$CQ$6,0))/1000)","v":0.29183963923168321},{"$f":"IF(INDEX('Rate Trajectory Calc'!$A$6:$CQ$92,MATCH('Rate Trajectory Report'!$B34,'Rate Trajectory Calc'!$A$6:$A$92,0),MATCH('Rate Trajectory Report'!U$5,'Rate Trajectory Calc'!$A$6:$CQ$6,0))=0,\" \",INDEX('Rate Trajectory Calc'!$A$6:$CQ$92,MATCH('Rate Trajectory Report'!$B34,'Rate Trajectory Calc'!$A$6:$A$92,0),MATCH('Rate Trajectory Report'!U$5,'Rate Trajectory Calc'!$A$6:$CQ$6,0))/1000)","v":" "},{"$f":"IF(INDEX('Rate Trajectory Calc'!$A$6:$CQ$92,MATCH('Rate Trajectory Report'!$B34,'Rate Trajectory Calc'!$A$6:$A$92,0),MATCH('Rate Trajectory Report'!V$5,'Rate Trajectory Calc'!$A$6:$CQ$6,0))=0,\" \",INDEX('Rate Trajectory Calc'!$A$6:$CQ$92,MATCH('Rate Trajectory Report'!$B34,'Rate Trajectory Calc'!$A$6:$A$92,0),MATCH('Rate Trajectory Report'!V$5,'Rate Trajectory Calc'!$A$6:$CQ$6,0))/1000)","v":" "},{"$f":"IF(INDEX('Rate Trajectory Calc'!$A$6:$CQ$92,MATCH('Rate Trajectory Report'!$B34,'Rate Trajectory Calc'!$A$6:$A$92,0),MATCH('Rate Trajectory Report'!W$5,'Rate Trajectory Calc'!$A$6:$CQ$6,0))=0,\" \",INDEX('Rate Trajectory Calc'!$A$6:$CQ$92,MATCH('Rate Trajectory Report'!$B34,'Rate Trajectory Calc'!$A$6:$A$92,0),MATCH('Rate Trajectory Report'!W$5,'Rate Trajectory Calc'!$A$6:$CQ$6,0))/1000)","v":" "},{"$f":"IF(INDEX('Rate Trajectory Calc'!$A$6:$CQ$92,MATCH('Rate Trajectory Report'!$B34,'Rate Trajectory Calc'!$A$6:$A$92,0),MATCH('Rate Trajectory Report'!X$5,'Rate Trajectory Calc'!$A$6:$CQ$6,0))=0,\" \",INDEX('Rate Trajectory Calc'!$A$6:$CQ$92,MATCH('Rate Trajectory Report'!$B34,'Rate Trajectory Calc'!$A$6:$A$92,0),MATCH('Rate Trajectory Report'!X$5,'Rate Trajectory Calc'!$A$6:$CQ$6,0))/1000)","v":" "},{"$f":"IF(INDEX('Rate Trajectory Calc'!$A$6:$CQ$92,MATCH('Rate Trajectory Report'!$B34,'Rate Trajectory Calc'!$A$6:$A$92,0),MATCH('Rate Trajectory Report'!Y$5,'Rate Trajectory Calc'!$A$6:$CQ$6,0))=0,\" \",INDEX('Rate Trajectory Calc'!$A$6:$CQ$92,MATCH('Rate Trajectory Report'!$B34,'Rate Trajectory Calc'!$A$6:$A$92,0),MATCH('Rate Trajectory Report'!Y$5,'Rate Trajectory Calc'!$A$6:$CQ$6,0))/1000)","v":" "},{"$f":"IF(INDEX('Rate Trajectory Calc'!$A$6:$CQ$92,MATCH('Rate Trajectory Report'!$B34,'Rate Trajectory Calc'!$A$6:$A$92,0),MATCH('Rate Trajectory Report'!Z$5,'Rate Trajectory Calc'!$A$6:$CQ$6,0))=0,\" \",INDEX('Rate Trajectory Calc'!$A$6:$CQ$92,MATCH('Rate Trajectory Report'!$B34,'Rate Trajectory Calc'!$A$6:$A$92,0),MATCH('Rate Trajectory Report'!Z$5,'Rate Trajectory Calc'!$A$6:$CQ$6,0))/1000)","v":" "},{"$f":"IF(INDEX('Rate Trajectory Calc'!$A$6:$CQ$92,MATCH('Rate Trajectory Report'!$B34,'Rate Trajectory Calc'!$A$6:$A$92,0),MATCH('Rate Trajectory Report'!AA$5,'Rate Trajectory Calc'!$A$6:$CQ$6,0))=0,\" \",INDEX('Rate Trajectory Calc'!$A$6:$CQ$92,MATCH('Rate Trajectory Report'!$B34,'Rate Trajectory Calc'!$A$6:$A$92,0),MATCH('Rate Trajectory Report'!AA$5,'Rate Trajectory Calc'!$A$6:$CQ$6,0))/1000)","v":" "}]
[null,{"$f":"'Rate Trajectory Dashboard'!B33","v":"2024 Wildfire Mitigation and Catastrophic Events (transmission) - Year 2028"},{"$f":"IFERROR(VLOOKUP(B35,'Rate Trajectory Dashboard'!$B$12:$D$96,3,FALSE)/1000,'Rate Trajectory Report'!C34)","v":0},{"$f":"IF(INDEX('Rate Trajectory Calc'!$A$6:$CQ$92,MATCH('Rate Trajectory Report'!$B35,'Rate Trajectory Calc'!$A$6:$A$92,0),MATCH('Rate Trajectory Report'!D$5,'Rate Trajectory Calc'!$A$6:$CQ$6,0))=0,\" \",INDEX('Rate Trajectory Calc'!$A$6:$CQ$92,MATCH('Rate Trajectory Report'!$B35,'Rate Trajectory Calc'!$A$6:$A$92,0),MATCH('Rate Trajectory Report'!D$5,'Rate Trajectory Calc'!$A$6:$CQ$6,0))/1000)","v":" "},{"$f":"IF(INDEX('Rate Trajectory Calc'!$A$6:$CQ$92,MATCH('Rate Trajectory Report'!$B35,'Rate Trajectory Calc'!$A$6:$A$92,0),MATCH('Rate Trajectory Report'!E$5,'Rate Trajectory Calc'!$A$6:$CQ$6,0))=0,\" \",INDEX('Rate Trajectory Calc'!$A$6:$CQ$92,MATCH('Rate Trajectory Report'!$B35,'Rate Trajectory Calc'!$A$6:$A$92,0),MATCH('Rate Trajectory Report'!E$5,'Rate Trajectory Calc'!$A$6:$CQ$6,0))/1000)","v":" "},{"$f":"IF(INDEX('Rate Trajectory Calc'!$A$6:$CQ$92,MATCH('Rate Trajectory Report'!$B35,'Rate Trajectory Calc'!$A$6:$A$92,0),MATCH('Rate Trajectory Report'!F$5,'Rate Trajectory Calc'!$A$6:$CQ$6,0))=0,\" \",INDEX('Rate Trajectory Calc'!$A$6:$CQ$92,MATCH('Rate Trajectory Report'!$B35,'Rate Trajectory Calc'!$A$6:$A$92,0),MATCH('Rate Trajectory Report'!F$5,'Rate Trajectory Calc'!$A$6:$CQ$6,0))/1000)","v":" "},{"$f":"IF(INDEX('Rate Trajectory Calc'!$A$6:$CQ$92,MATCH('Rate Trajectory Report'!$B35,'Rate Trajectory Calc'!$A$6:$A$92,0),MATCH('Rate Trajectory Report'!G$5,'Rate Trajectory Calc'!$A$6:$CQ$6,0))=0,\" \",INDEX('Rate Trajectory Calc'!$A$6:$CQ$92,MATCH('Rate Trajectory Report'!$B35,'Rate Trajectory Calc'!$A$6:$A$92,0),MATCH('Rate Trajectory Report'!G$5,'Rate Trajectory Calc'!$A$6:$CQ$6,0))/1000)","v":" "},{"$f":"IF(INDEX('Rate Trajectory Calc'!$A$6:$CQ$92,MATCH('Rate Trajectory Report'!$B35,'Rate Trajectory Calc'!$A$6:$A$92,0),MATCH('Rate Trajectory Report'!H$5,'Rate Trajectory Calc'!$A$6:$CQ$6,0))=0,\" \",INDEX('Rate Trajectory Calc'!$A$6:$CQ$92,MATCH('Rate Trajectory Report'!$B35,'Rate Trajectory Calc'!$A$6:$A$92,0),MATCH('Rate Trajectory Report'!H$5,'Rate Trajectory Calc'!$A$6:$CQ$6,0))/1000)","v":" "},{"$f":"IF(INDEX('Rate Trajectory Calc'!$A$6:$CQ$92,MATCH('Rate Trajectory Report'!$B35,'Rate Trajectory Calc'!$A$6:$A$92,0),MATCH('Rate Trajectory Report'!I$5,'Rate Trajectory Calc'!$A$6:$CQ$6,0))=0,\" \",INDEX('Rate Trajectory Calc'!$A$6:$CQ$92,MATCH('Rate Trajectory Report'!$B35,'Rate Trajectory Calc'!$A$6:$A$92,0),MATCH('Rate Trajectory Report'!I$5,'Rate Trajectory Calc'!$A$6:$CQ$6,0))/1000)","v":" "},{"$f":"IF(INDEX('Rate Trajectory Calc'!$A$6:$CQ$92,MATCH('Rate Trajectory Report'!$B35,'Rate Trajectory Calc'!$A$6:$A$92,0),MATCH('Rate Trajectory Report'!J$5,'Rate Trajectory Calc'!$A$6:$CQ$6,0))=0,\" \",INDEX('Rate Trajectory Calc'!$A$6:$CQ$92,MATCH('Rate Trajectory Report'!$B35,'Rate Trajectory Calc'!$A$6:$A$92,0),MATCH('Rate Trajectory Report'!J$5,'Rate Trajectory Calc'!$A$6:$CQ$6,0))/1000)","v":" "},{"$f":"IF(INDEX('Rate Trajectory Calc'!$A$6:$CQ$92,MATCH('Rate Trajectory Report'!$B35,'Rate Trajectory Calc'!$A$6:$A$92,0),MATCH('Rate Trajectory Report'!K$5,'Rate Trajectory Calc'!$A$6:$CQ$6,0))=0,\" \",INDEX('Rate Trajectory Calc'!$A$6:$CQ$92,MATCH('Rate Trajectory Report'!$B35,'Rate Trajectory Calc'!$A$6:$A$92,0),MATCH('Rate Trajectory Report'!K$5,'Rate Trajectory Calc'!$A$6:$CQ$6,0))/1000)","v":" "},{"$f":"IF(INDEX('Rate Trajectory Calc'!$A$6:$CQ$92,MATCH('Rate Trajectory Report'!$B35,'Rate Trajectory Calc'!$A$6:$A$92,0),MATCH('Rate Trajectory Report'!L$5,'Rate Trajectory Calc'!$A$6:$CQ$6,0))=0,\" \",INDEX('Rate Trajectory Calc'!$A$6:$CQ$92,MATCH('Rate Trajectory Report'!$B35,'Rate Trajectory Calc'!$A$6:$A$92,0),MATCH('Rate Trajectory Report'!L$5,'Rate Trajectory Calc'!$A$6:$CQ$6,0))/1000)","v":" "},{"$f":"IF(INDEX('Rate Trajectory Calc'!$A$6:$CQ$92,MATCH('Rate Trajectory Report'!$B35,'Rate Trajectory Calc'!$A$6:$A$92,0),MATCH('Rate Trajectory Report'!M$5,'Rate Trajectory Calc'!$A$6:$CQ$6,0))=0,\" \",INDEX('Rate Trajectory Calc'!$A$6:$CQ$92,MATCH('Rate Trajectory Report'!$B35,'Rate Trajectory Calc'!$A$6:$A$92,0),MATCH('Rate Trajectory Report'!M$5,'Rate Trajectory Calc'!$A$6:$CQ$6,0))/1000)","v":" "},{"$f":"IF(INDEX('Rate Trajectory Calc'!$A$6:$CQ$92,MATCH('Rate Trajectory Report'!$B35,'Rate Trajectory Calc'!$A$6:$A$92,0),MATCH('Rate Trajectory Report'!N$5,'Rate Trajectory Calc'!$A$6:$CQ$6,0))=0,\" \",INDEX('Rate Trajectory Calc'!$A$6:$CQ$92,MATCH('Rate Trajectory Report'!$B35,'Rate Trajectory Calc'!$A$6:$A$92,0),MATCH('Rate Trajectory Report'!N$5,'Rate Trajectory Calc'!$A$6:$CQ$6,0))/1000)","v":" "},{"$f":"IF(INDEX('Rate Trajectory Calc'!$A$6:$CQ$92,MATCH('Rate Trajectory Report'!$B35,'Rate Trajectory Calc'!$A$6:$A$92,0),MATCH('Rate Trajectory Report'!O$5,'Rate Trajectory Calc'!$A$6:$CQ$6,0))=0,\" \",INDEX('Rate Trajectory Calc'!$A$6:$CQ$92,MATCH('Rate Trajectory Report'!$B35,'Rate Trajectory Calc'!$A$6:$A$92,0),MATCH('Rate Trajectory Report'!O$5,'Rate Trajectory Calc'!$A$6:$CQ$6,0))/1000)","v":" "},{"$f":"IF(INDEX('Rate Trajectory Calc'!$A$6:$CQ$92,MATCH('Rate Trajectory Report'!$B35,'Rate Trajectory Calc'!$A$6:$A$92,0),MATCH('Rate Trajectory Report'!P$5,'Rate Trajectory Calc'!$A$6:$CQ$6,0))=0,\" \",INDEX('Rate Trajectory Calc'!$A$6:$CQ$92,MATCH('Rate Trajectory Report'!$B35,'Rate Trajectory Calc'!$A$6:$A$92,0),MATCH('Rate Trajectory Report'!P$5,'Rate Trajectory Calc'!$A$6:$CQ$6,0))/1000)","v":" "},{"$f":"IF(INDEX('Rate Trajectory Calc'!$A$6:$CQ$92,MATCH('Rate Trajectory Report'!$B35,'Rate Trajectory Calc'!$A$6:$A$92,0),MATCH('Rate Trajectory Report'!Q$5,'Rate Trajectory Calc'!$A$6:$CQ$6,0))=0,\" \",INDEX('Rate Trajectory Calc'!$A$6:$CQ$92,MATCH('Rate Trajectory Report'!$B35,'Rate Trajectory Calc'!$A$6:$A$92,0),MATCH('Rate Trajectory Report'!Q$5,'Rate Trajectory Calc'!$A$6:$CQ$6,0))/1000)","v":" "},{"$f":"IF(INDEX('Rate Trajectory Calc'!$A$6:$CQ$92,MATCH('Rate Trajectory Report'!$B35,'Rate Trajectory Calc'!$A$6:$A$92,0),MATCH('Rate Trajectory Report'!R$5,'Rate Trajectory Calc'!$A$6:$CQ$6,0))=0,\" \",INDEX('Rate Trajectory Calc'!$A$6:$CQ$92,MATCH('Rate Trajectory Report'!$B35,'Rate Trajectory Calc'!$A$6:$A$92,0),MATCH('Rate Trajectory Report'!R$5,'Rate Trajectory Calc'!$A$6:$CQ$6,0))/1000)","v":" "},{"$f":"IF(INDEX('Rate Trajectory Calc'!$A$6:$CQ$92,MATCH('Rate Trajectory Report'!$B35,'Rate Trajectory Calc'!$A$6:$A$92,0),MATCH('Rate Trajectory Report'!S$5,'Rate Trajectory Calc'!$A$6:$CQ$6,0))=0,\" \",INDEX('Rate Trajectory Calc'!$A$6:$CQ$92,MATCH('Rate Trajectory Report'!$B35,'Rate Trajectory Calc'!$A$6:$A$92,0),MATCH('Rate Trajectory Report'!S$5,'Rate Trajectory Calc'!$A$6:$CQ$6,0))/1000)","v":" "},{"$f":"IF(INDEX('Rate Trajectory Calc'!$A$6:$CQ$92,MATCH('Rate Trajectory Report'!$B35,'Rate Trajectory Calc'!$A$6:$A$92,0),MATCH('Rate Trajectory Report'!T$5,'Rate Trajectory Calc'!$A$6:$CQ$6,0))=0,\" \",INDEX('Rate Trajectory Calc'!$A$6:$CQ$92,MATCH('Rate Trajectory Report'!$B35,'Rate Trajectory Calc'!$A$6:$A$92,0),MATCH('Rate Trajectory Report'!T$5,'Rate Trajectory Calc'!$A$6:$CQ$6,0))/1000)","v":" "},{"$f":"IF(INDEX('Rate Trajectory Calc'!$A$6:$CQ$92,MATCH('Rate Trajectory Report'!$B35,'Rate Trajectory Calc'!$A$6:$A$92,0),MATCH('Rate Trajectory Report'!U$5,'Rate Trajectory Calc'!$A$6:$CQ$6,0))=0,\" \",INDEX('Rate Trajectory Calc'!$A$6:$CQ$92,MATCH('Rate Trajectory Report'!$B35,'Rate Trajectory Calc'!$A$6:$A$92,0),MATCH('Rate Trajectory Report'!U$5,'Rate Trajectory Calc'!$A$6:$CQ$6,0))/1000)","v":" "},{"$f":"IF(INDEX('Rate Trajectory Calc'!$A$6:$CQ$92,MATCH('Rate Trajectory Report'!$B35,'Rate Trajectory Calc'!$A$6:$A$92,0),MATCH('Rate Trajectory Report'!V$5,'Rate Trajectory Calc'!$A$6:$CQ$6,0))=0,\" \",INDEX('Rate Trajectory Calc'!$A$6:$CQ$92,MATCH('Rate Trajectory Report'!$B35,'Rate Trajectory Calc'!$A$6:$A$92,0),MATCH('Rate Trajectory Report'!V$5,'Rate Trajectory Calc'!$A$6:$CQ$6,0))/1000)","v":" "},{"$f":"IF(INDEX('Rate Trajectory Calc'!$A$6:$CQ$92,MATCH('Rate Trajectory Report'!$B35,'Rate Trajectory Calc'!$A$6:$A$92,0),MATCH('Rate Trajectory Report'!W$5,'Rate Trajectory Calc'!$A$6:$CQ$6,0))=0,\" \",INDEX('Rate Trajectory Calc'!$A$6:$CQ$92,MATCH('Rate Trajectory Report'!$B35,'Rate Trajectory Calc'!$A$6:$A$92,0),MATCH('Rate Trajectory Report'!W$5,'Rate Trajectory Calc'!$A$6:$CQ$6,0))/1000)","v":" "},{"$f":"IF(INDEX('Rate Trajectory Calc'!$A$6:$CQ$92,MATCH('Rate Trajectory Report'!$B35,'Rate Trajectory Calc'!$A$6:$A$92,0),MATCH('Rate Trajectory Report'!X$5,'Rate Trajectory Calc'!$A$6:$CQ$6,0))=0,\" \",INDEX('Rate Trajectory Calc'!$A$6:$CQ$92,MATCH('Rate Trajectory Report'!$B35,'Rate Trajectory Calc'!$A$6:$A$92,0),MATCH('Rate Trajectory Report'!X$5,'Rate Trajectory Calc'!$A$6:$CQ$6,0))/1000)","v":" "},{"$f":"IF(INDEX('Rate Trajectory Calc'!$A$6:$CQ$92,MATCH('Rate Trajectory Report'!$B35,'Rate Trajectory Calc'!$A$6:$A$92,0),MATCH('Rate Trajectory Report'!Y$5,'Rate Trajectory Calc'!$A$6:$CQ$6,0))=0,\" \",INDEX('Rate Trajectory Calc'!$A$6:$CQ$92,MATCH('Rate Trajectory Report'!$B35,'Rate Trajectory Calc'!$A$6:$A$92,0),MATCH('Rate Trajectory Report'!Y$5,'Rate Trajectory Calc'!$A$6:$CQ$6,0))/1000)","v":" "},{"$f":"IF(INDEX('Rate Trajectory Calc'!$A$6:$CQ$92,MATCH('Rate Trajectory Report'!$B35,'Rate Trajectory Calc'!$A$6:$A$92,0),MATCH('Rate Trajectory Report'!Z$5,'Rate Trajectory Calc'!$A$6:$CQ$6,0))=0,\" \",INDEX('Rate Trajectory Calc'!$A$6:$CQ$92,MATCH('Rate Trajectory Report'!$B35,'Rate Trajectory Calc'!$A$6:$A$92,0),MATCH('Rate Trajectory Report'!Z$5,'Rate Trajectory Calc'!$A$6:$CQ$6,0))/1000)","v":" "},{"$f":"IF(INDEX('Rate Trajectory Calc'!$A$6:$CQ$92,MATCH('Rate Trajectory Report'!$B35,'Rate Trajectory Calc'!$A$6:$A$92,0),MATCH('Rate Trajectory Report'!AA$5,'Rate Trajectory Calc'!$A$6:$CQ$6,0))=0,\" \",INDEX('Rate Trajectory Calc'!$A$6:$CQ$92,MATCH('Rate Trajectory Report'!$B35,'Rate Trajectory Calc'!$A$6:$A$92,0),MATCH('Rate Trajectory Report'!AA$5,'Rate Trajectory Calc'!$A$6:$CQ$6,0))/1000)","v":" "}]
[null,{"$f":"'Rate Trajectory Dashboard'!B34","v":"2024 Wildfire Mitigation and Catastrophic Events (transmission) - Year 2029"},{"$f":"IFERROR(VLOOKUP(B36,'Rate Trajectory Dashboard'!$B$12:$D$96,3,FALSE)/1000,'Rate Trajectory Report'!C35)","v":0},{"$f":"IF(INDEX('Rate Trajectory Calc'!$A$6:$CQ$92,MATCH('Rate Trajectory Report'!$B36,'Rate Trajectory Calc'!$A$6:$A$92,0),MATCH('Rate Trajectory Report'!D$5,'Rate Trajectory Calc'!$A$6:$CQ$6,0))=0,\" \",INDEX('Rate Trajectory Calc'!$A$6:$CQ$92,MATCH('Rate Trajectory Report'!$B36,'Rate Trajectory Calc'!$A$6:$A$92,0),MATCH('Rate Trajectory Report'!D$5,'Rate Trajectory Calc'!$A$6:$CQ$6,0))/1000)","v":" "},{"$f":"IF(INDEX('Rate Trajectory Calc'!$A$6:$CQ$92,MATCH('Rate Trajectory Report'!$B36,'Rate Trajectory Calc'!$A$6:$A$92,0),MATCH('Rate Trajectory Report'!E$5,'Rate Trajectory Calc'!$A$6:$CQ$6,0))=0,\" \",INDEX('Rate Trajectory Calc'!$A$6:$CQ$92,MATCH('Rate Trajectory Report'!$B36,'Rate Trajectory Calc'!$A$6:$A$92,0),MATCH('Rate Trajectory Report'!E$5,'Rate Trajectory Calc'!$A$6:$CQ$6,0))/1000)","v":" "},{"$f":"IF(INDEX('Rate Trajectory Calc'!$A$6:$CQ$92,MATCH('Rate Trajectory Report'!$B36,'Rate Trajectory Calc'!$A$6:$A$92,0),MATCH('Rate Trajectory Report'!F$5,'Rate Trajectory Calc'!$A$6:$CQ$6,0))=0,\" \",INDEX('Rate Trajectory Calc'!$A$6:$CQ$92,MATCH('Rate Trajectory Report'!$B36,'Rate Trajectory Calc'!$A$6:$A$92,0),MATCH('Rate Trajectory Report'!F$5,'Rate Trajectory Calc'!$A$6:$CQ$6,0))/1000)","v":" "},{"$f":"IF(INDEX('Rate Trajectory Calc'!$A$6:$CQ$92,MATCH('Rate Trajectory Report'!$B36,'Rate Trajectory Calc'!$A$6:$A$92,0),MATCH('Rate Trajectory Report'!G$5,'Rate Trajectory Calc'!$A$6:$CQ$6,0))=0,\" \",INDEX('Rate Trajectory Calc'!$A$6:$CQ$92,MATCH('Rate Trajectory Report'!$B36,'Rate Trajectory Calc'!$A$6:$A$92,0),MATCH('Rate Trajectory Report'!G$5,'Rate Trajectory Calc'!$A$6:$CQ$6,0))/1000)","v":" "},{"$f":"IF(INDEX('Rate Trajectory Calc'!$A$6:$CQ$92,MATCH('Rate Trajectory Report'!$B36,'Rate Trajectory Calc'!$A$6:$A$92,0),MATCH('Rate Trajectory Report'!H$5,'Rate Trajectory Calc'!$A$6:$CQ$6,0))=0,\" \",INDEX('Rate Trajectory Calc'!$A$6:$CQ$92,MATCH('Rate Trajectory Report'!$B36,'Rate Trajectory Calc'!$A$6:$A$92,0),MATCH('Rate Trajectory Report'!H$5,'Rate Trajectory Calc'!$A$6:$CQ$6,0))/1000)","v":" "},{"$f":"IF(INDEX('Rate Trajectory Calc'!$A$6:$CQ$92,MATCH('Rate Trajectory Report'!$B36,'Rate Trajectory Calc'!$A$6:$A$92,0),MATCH('Rate Trajectory Report'!I$5,'Rate Trajectory Calc'!$A$6:$CQ$6,0))=0,\" \",INDEX('Rate Trajectory Calc'!$A$6:$CQ$92,MATCH('Rate Trajectory Report'!$B36,'Rate Trajectory Calc'!$A$6:$A$92,0),MATCH('Rate Trajectory Report'!I$5,'Rate Trajectory Calc'!$A$6:$CQ$6,0))/1000)","v":" "},{"$f":"IF(INDEX('Rate Trajectory Calc'!$A$6:$CQ$92,MATCH('Rate Trajectory Report'!$B36,'Rate Trajectory Calc'!$A$6:$A$92,0),MATCH('Rate Trajectory Report'!J$5,'Rate Trajectory Calc'!$A$6:$CQ$6,0))=0,\" \",INDEX('Rate Trajectory Calc'!$A$6:$CQ$92,MATCH('Rate Trajectory Report'!$B36,'Rate Trajectory Calc'!$A$6:$A$92,0),MATCH('Rate Trajectory Report'!J$5,'Rate Trajectory Calc'!$A$6:$CQ$6,0))/1000)","v":" "},{"$f":"IF(INDEX('Rate Trajectory Calc'!$A$6:$CQ$92,MATCH('Rate Trajectory Report'!$B36,'Rate Trajectory Calc'!$A$6:$A$92,0),MATCH('Rate Trajectory Report'!K$5,'Rate Trajectory Calc'!$A$6:$CQ$6,0))=0,\" \",INDEX('Rate Trajectory Calc'!$A$6:$CQ$92,MATCH('Rate Trajectory Report'!$B36,'Rate Trajectory Calc'!$A$6:$A$92,0),MATCH('Rate Trajectory Report'!K$5,'Rate Trajectory Calc'!$A$6:$CQ$6,0))/1000)","v":" "},{"$f":"IF(INDEX('Rate Trajectory Calc'!$A$6:$CQ$92,MATCH('Rate Trajectory Report'!$B36,'Rate Trajectory Calc'!$A$6:$A$92,0),MATCH('Rate Trajectory Report'!L$5,'Rate Trajectory Calc'!$A$6:$CQ$6,0))=0,\" \",INDEX('Rate Trajectory Calc'!$A$6:$CQ$92,MATCH('Rate Trajectory Report'!$B36,'Rate Trajectory Calc'!$A$6:$A$92,0),MATCH('Rate Trajectory Report'!L$5,'Rate Trajectory Calc'!$A$6:$CQ$6,0))/1000)","v":" "},{"$f":"IF(INDEX('Rate Trajectory Calc'!$A$6:$CQ$92,MATCH('Rate Trajectory Report'!$B36,'Rate Trajectory Calc'!$A$6:$A$92,0),MATCH('Rate Trajectory Report'!M$5,'Rate Trajectory Calc'!$A$6:$CQ$6,0))=0,\" \",INDEX('Rate Trajectory Calc'!$A$6:$CQ$92,MATCH('Rate Trajectory Report'!$B36,'Rate Trajectory Calc'!$A$6:$A$92,0),MATCH('Rate Trajectory Report'!M$5,'Rate Trajectory Calc'!$A$6:$CQ$6,0))/1000)","v":" "},{"$f":"IF(INDEX('Rate Trajectory Calc'!$A$6:$CQ$92,MATCH('Rate Trajectory Report'!$B36,'Rate Trajectory Calc'!$A$6:$A$92,0),MATCH('Rate Trajectory Report'!N$5,'Rate Trajectory Calc'!$A$6:$CQ$6,0))=0,\" \",INDEX('Rate Trajectory Calc'!$A$6:$CQ$92,MATCH('Rate Trajectory Report'!$B36,'Rate Trajectory Calc'!$A$6:$A$92,0),MATCH('Rate Trajectory Report'!N$5,'Rate Trajectory Calc'!$A$6:$CQ$6,0))/1000)","v":" "},{"$f":"IF(INDEX('Rate Trajectory Calc'!$A$6:$CQ$92,MATCH('Rate Trajectory Report'!$B36,'Rate Trajectory Calc'!$A$6:$A$92,0),MATCH('Rate Trajectory Report'!O$5,'Rate Trajectory Calc'!$A$6:$CQ$6,0))=0,\" \",INDEX('Rate Trajectory Calc'!$A$6:$CQ$92,MATCH('Rate Trajectory Report'!$B36,'Rate Trajectory Calc'!$A$6:$A$92,0),MATCH('Rate Trajectory Report'!O$5,'Rate Trajectory Calc'!$A$6:$CQ$6,0))/1000)","v":" "},{"$f":"IF(INDEX('Rate Trajectory Calc'!$A$6:$CQ$92,MATCH('Rate Trajectory Report'!$B36,'Rate Trajectory Calc'!$A$6:$A$92,0),MATCH('Rate Trajectory Report'!P$5,'Rate Trajectory Calc'!$A$6:$CQ$6,0))=0,\" \",INDEX('Rate Trajectory Calc'!$A$6:$CQ$92,MATCH('Rate Trajectory Report'!$B36,'Rate Trajectory Calc'!$A$6:$A$92,0),MATCH('Rate Trajectory Report'!P$5,'Rate Trajectory Calc'!$A$6:$CQ$6,0))/1000)","v":" "},{"$f":"IF(INDEX('Rate Trajectory Calc'!$A$6:$CQ$92,MATCH('Rate Trajectory Report'!$B36,'Rate Trajectory Calc'!$A$6:$A$92,0),MATCH('Rate Trajectory Report'!Q$5,'Rate Trajectory Calc'!$A$6:$CQ$6,0))=0,\" \",INDEX('Rate Trajectory Calc'!$A$6:$CQ$92,MATCH('Rate Trajectory Report'!$B36,'Rate Trajectory Calc'!$A$6:$A$92,0),MATCH('Rate Trajectory Report'!Q$5,'Rate Trajectory Calc'!$A$6:$CQ$6,0))/1000)","v":" "},{"$f":"IF(INDEX('Rate Trajectory Calc'!$A$6:$CQ$92,MATCH('Rate Trajectory Report'!$B36,'Rate Trajectory Calc'!$A$6:$A$92,0),MATCH('Rate Trajectory Report'!R$5,'Rate Trajectory Calc'!$A$6:$CQ$6,0))=0,\" \",INDEX('Rate Trajectory Calc'!$A$6:$CQ$92,MATCH('Rate Trajectory Report'!$B36,'Rate Trajectory Calc'!$A$6:$A$92,0),MATCH('Rate Trajectory Report'!R$5,'Rate Trajectory Calc'!$A$6:$CQ$6,0))/1000)","v":" "},{"$f":"IF(INDEX('Rate Trajectory Calc'!$A$6:$CQ$92,MATCH('Rate Trajectory Report'!$B36,'Rate Trajectory Calc'!$A$6:$A$92,0),MATCH('Rate Trajectory Report'!S$5,'Rate Trajectory Calc'!$A$6:$CQ$6,0))=0,\" \",INDEX('Rate Trajectory Calc'!$A$6:$CQ$92,MATCH('Rate Trajectory Report'!$B36,'Rate Trajectory Calc'!$A$6:$A$92,0),MATCH('Rate Trajectory Report'!S$5,'Rate Trajectory Calc'!$A$6:$CQ$6,0))/1000)","v":" "},{"$f":"IF(INDEX('Rate Trajectory Calc'!$A$6:$CQ$92,MATCH('Rate Trajectory Report'!$B36,'Rate Trajectory Calc'!$A$6:$A$92,0),MATCH('Rate Trajectory Report'!T$5,'Rate Trajectory Calc'!$A$6:$CQ$6,0))=0,\" \",INDEX('Rate Trajectory Calc'!$A$6:$CQ$92,MATCH('Rate Trajectory Report'!$B36,'Rate Trajectory Calc'!$A$6:$A$92,0),MATCH('Rate Trajectory Report'!T$5,'Rate Trajectory Calc'!$A$6:$CQ$6,0))/1000)","v":" "},{"$f":"IF(INDEX('Rate Trajectory Calc'!$A$6:$CQ$92,MATCH('Rate Trajectory Report'!$B36,'Rate Trajectory Calc'!$A$6:$A$92,0),MATCH('Rate Trajectory Report'!U$5,'Rate Trajectory Calc'!$A$6:$CQ$6,0))=0,\" \",INDEX('Rate Trajectory Calc'!$A$6:$CQ$92,MATCH('Rate Trajectory Report'!$B36,'Rate Trajectory Calc'!$A$6:$A$92,0),MATCH('Rate Trajectory Report'!U$5,'Rate Trajectory Calc'!$A$6:$CQ$6,0))/1000)","v":" "},{"$f":"IF(INDEX('Rate Trajectory Calc'!$A$6:$CQ$92,MATCH('Rate Trajectory Report'!$B36,'Rate Trajectory Calc'!$A$6:$A$92,0),MATCH('Rate Trajectory Report'!V$5,'Rate Trajectory Calc'!$A$6:$CQ$6,0))=0,\" \",INDEX('Rate Trajectory Calc'!$A$6:$CQ$92,MATCH('Rate Trajectory Report'!$B36,'Rate Trajectory Calc'!$A$6:$A$92,0),MATCH('Rate Trajectory Report'!V$5,'Rate Trajectory Calc'!$A$6:$CQ$6,0))/1000)","v":" "},{"$f":"IF(INDEX('Rate Trajectory Calc'!$A$6:$CQ$92,MATCH('Rate Trajectory Report'!$B36,'Rate Trajectory Calc'!$A$6:$A$92,0),MATCH('Rate Trajectory Report'!W$5,'Rate Trajectory Calc'!$A$6:$CQ$6,0))=0,\" \",INDEX('Rate Trajectory Calc'!$A$6:$CQ$92,MATCH('Rate Trajectory Report'!$B36,'Rate Trajectory Calc'!$A$6:$A$92,0),MATCH('Rate Trajectory Report'!W$5,'Rate Trajectory Calc'!$A$6:$CQ$6,0))/1000)","v":" "},{"$f":"IF(INDEX('Rate Trajectory Calc'!$A$6:$CQ$92,MATCH('Rate Trajectory Report'!$B36,'Rate Trajectory Calc'!$A$6:$A$92,0),MATCH('Rate Trajectory Report'!X$5,'Rate Trajectory Calc'!$A$6:$CQ$6,0))=0,\" \",INDEX('Rate Trajectory Calc'!$A$6:$CQ$92,MATCH('Rate Trajectory Report'!$B36,'Rate Trajectory Calc'!$A$6:$A$92,0),MATCH('Rate Trajectory Report'!X$5,'Rate Trajectory Calc'!$A$6:$CQ$6,0))/1000)","v":" "},{"$f":"IF(INDEX('Rate Trajectory Calc'!$A$6:$CQ$92,MATCH('Rate Trajectory Report'!$B36,'Rate Trajectory Calc'!$A$6:$A$92,0),MATCH('Rate Trajectory Report'!Y$5,'Rate Trajectory Calc'!$A$6:$CQ$6,0))=0,\" \",INDEX('Rate Trajectory Calc'!$A$6:$CQ$92,MATCH('Rate Trajectory Report'!$B36,'Rate Trajectory Calc'!$A$6:$A$92,0),MATCH('Rate Trajectory Report'!Y$5,'Rate Trajectory Calc'!$A$6:$CQ$6,0))/1000)","v":" "},{"$f":"IF(INDEX('Rate Trajectory Calc'!$A$6:$CQ$92,MATCH('Rate Trajectory Report'!$B36,'Rate Trajectory Calc'!$A$6:$A$92,0),MATCH('Rate Trajectory Report'!Z$5,'Rate Trajectory Calc'!$A$6:$CQ$6,0))=0,\" \",INDEX('Rate Trajectory Calc'!$A$6:$CQ$92,MATCH('Rate Trajectory Report'!$B36,'Rate Trajectory Calc'!$A$6:$A$92,0),MATCH('Rate Trajectory Report'!Z$5,'Rate Trajectory Calc'!$A$6:$CQ$6,0))/1000)","v":" "},{"$f":"IF(INDEX('Rate Trajectory Calc'!$A$6:$CQ$92,MATCH('Rate Trajectory Report'!$B36,'Rate Trajectory Calc'!$A$6:$A$92,0),MATCH('Rate Trajectory Report'!AA$5,'Rate Trajectory Calc'!$A$6:$CQ$6,0))=0,\" \",INDEX('Rate Trajectory Calc'!$A$6:$CQ$92,MATCH('Rate Trajectory Report'!$B36,'Rate Trajectory Calc'!$A$6:$A$92,0),MATCH('Rate Trajectory Report'!AA$5,'Rate Trajectory Calc'!$A$6:$CQ$6,0))/1000)","v":" "}]
["6b","2024 Wildfire Mitigation and Catastrophic Events (transmission)",{"$f":"IFERROR(VLOOKUP(B37,'Rate Trajectory Dashboard'!$B$12:$D$96,3,FALSE)/1000,'Rate Trajectory Report'!C36)","v":0},{"$f":"IF(SUM(D33:D36)=0,\" \",SUBTOTAL(9,D33:D36))","v":" "},{"$f":"IF(SUM(E33:E36)=0,\" \",SUBTOTAL(9,E33:E36))","v":" "}," "," ",6.57937875743999," "," "," "," "," "," "," "," "," "," "," ",-6.2875391182083069," "," "," "," "," "," "," "]
[6,"2024 Wildfire Mitigation and Catastrophic Events",{"$f":"C32+C37","v":0},{"$f":"IF(SUM(D28:D37)=0,\" \",SUBTOTAL(9,D28:D37))","v":" "},{"$f":"IF(SUM(E28:E37)=0,\" \",SUBTOTAL(9,E28:E37))","v":" "}," "," ",72.117033168309604," "," "," "," "," "," "," "," "," "," "," ",-53.005728451040078," "," "," "," "," "," "," "]
[null,{"$f":"'Rate Trajectory Dashboard'!B35","v":"2026 Cost of Capital (Distribution) - Year 2026"},{"$f":"IFERROR(VLOOKUP(B39,'Rate Trajectory Dashboard'!$B$12:$D$96,3,FALSE)/1000,'Rate Trajectory Report'!C38)","v":0},{"$f":"IF(INDEX('Rate Trajectory Calc'!$A$6:$CQ$92,MATCH('Rate Trajectory Report'!$B39,'Rate Trajectory Calc'!$A$6:$A$92,0),MATCH('Rate Trajectory Report'!D$5,'Rate Trajectory Calc'!$A$6:$CQ$6,0))=0,\" \",INDEX('Rate Trajectory Calc'!$A$6:$CQ$92,MATCH('Rate Trajectory Report'!$B39,'Rate Trajectory Calc'!$A$6:$A$92,0),MATCH('Rate Trajectory Report'!D$5,'Rate Trajectory Calc'!$A$6:$CQ$6,0))/1000)","v":" "},{"$f":"IF(INDEX('Rate Trajectory Calc'!$A$6:$CQ$92,MATCH('Rate Trajectory Report'!$B39,'Rate Trajectory Calc'!$A$6:$A$92,0),MATCH('Rate Trajectory Report'!E$5,'Rate Trajectory Calc'!$A$6:$CQ$6,0))=0,\" \",INDEX('Rate Trajectory Calc'!$A$6:$CQ$92,MATCH('Rate Trajectory Report'!$B39,'Rate Trajectory Calc'!$A$6:$A$92,0),MATCH('Rate Trajectory Report'!E$5,'Rate Trajectory Calc'!$A$6:$CQ$6,0))/1000)","v":" "},{"$f":"IF(INDEX('Rate Trajectory Calc'!$A$6:$CQ$92,MATCH('Rate Trajectory Report'!$B39,'Rate Trajectory Calc'!$A$6:$A$92,0),MATCH('Rate Trajectory Report'!F$5,'Rate Trajectory Calc'!$A$6:$CQ$6,0))=0,\" \",INDEX('Rate Trajectory Calc'!$A$6:$CQ$92,MATCH('Rate Trajectory Report'!$B39,'Rate Trajectory Calc'!$A$6:$A$92,0),MATCH('Rate Trajectory Report'!F$5,'Rate Trajectory Calc'!$A$6:$CQ$6,0))/1000)","v":" "},{"$f":"IF(INDEX('Rate Trajectory Calc'!$A$6:$CQ$92,MATCH('Rate Trajectory Report'!$B39,'Rate Trajectory Calc'!$A$6:$A$92,0),MATCH('Rate Trajectory Report'!G$5,'Rate Trajectory Calc'!$A$6:$CQ$6,0))=0,\" \",INDEX('Rate Trajectory Calc'!$A$6:$CQ$92,MATCH('Rate Trajectory Report'!$B39,'Rate Trajectory Calc'!$A$6:$A$92,0),MATCH('Rate Trajectory Report'!G$5,'Rate Trajectory Calc'!$A$6:$CQ$6,0))/1000)","v":" "},{"$f":"IF(INDEX('Rate Trajectory Calc'!$A$6:$CQ$92,MATCH('Rate Trajectory Report'!$B39,'Rate Trajectory Calc'!$A$6:$A$92,0),MATCH('Rate Trajectory Report'!H$5,'Rate Trajectory Calc'!$A$6:$CQ$6,0))=0,\" \",INDEX('Rate Trajectory Calc'!$A$6:$CQ$92,MATCH('Rate Trajectory Report'!$B39,'Rate Trajectory Calc'!$A$6:$A$92,0),MATCH('Rate Trajectory Report'!H$5,'Rate Trajectory Calc'!$A$6:$CQ$6,0))/1000)","v":111.62578477890197},{"$f":"IF(INDEX('Rate Trajectory Calc'!$A$6:$CQ$92,MATCH('Rate Trajectory Report'!$B39,'Rate Trajectory Calc'!$A$6:$A$92,0),MATCH('Rate Trajectory Report'!I$5,'Rate Trajectory Calc'!$A$6:$CQ$6,0))=0,\" \",INDEX('Rate Trajectory Calc'!$A$6:$CQ$92,MATCH('Rate Trajectory Report'!$B39,'Rate Trajectory Calc'!$A$6:$A$92,0),MATCH('Rate Trajectory Report'!I$5,'Rate Trajectory Calc'!$A$6:$CQ$6,0))/1000)","v":" "},{"$f":"IF(INDEX('Rate Trajectory Calc'!$A$6:$CQ$92,MATCH('Rate Trajectory Report'!$B39,'Rate Trajectory Calc'!$A$6:$A$92,0),MATCH('Rate Trajectory Report'!J$5,'Rate Trajectory Calc'!$A$6:$CQ$6,0))=0,\" \",INDEX('Rate Trajectory Calc'!$A$6:$CQ$92,MATCH('Rate Trajectory Report'!$B39,'Rate Trajectory Calc'!$A$6:$A$92,0),MATCH('Rate Trajectory Report'!J$5,'Rate Trajectory Calc'!$A$6:$CQ$6,0))/1000)","v":" "},{"$f":"IF(INDEX('Rate Trajectory Calc'!$A$6:$CQ$92,MATCH('Rate Trajectory Report'!$B39,'Rate Trajectory Calc'!$A$6:$A$92,0),MATCH('Rate Trajectory Report'!K$5,'Rate Trajectory Calc'!$A$6:$CQ$6,0))=0,\" \",INDEX('Rate Trajectory Calc'!$A$6:$CQ$92,MATCH('Rate Trajectory Report'!$B39,'Rate Trajectory Calc'!$A$6:$A$92,0),MATCH('Rate Trajectory Report'!K$5,'Rate Trajectory Calc'!$A$6:$CQ$6,0))/1000)","v":" "},{"$f":"IF(INDEX('Rate Trajectory Calc'!$A$6:$CQ$92,MATCH('Rate Trajectory Report'!$B39,'Rate Trajectory Calc'!$A$6:$A$92,0),MATCH('Rate Trajectory Report'!L$5,'Rate Trajectory Calc'!$A$6:$CQ$6,0))=0,\" \",INDEX('Rate Trajectory Calc'!$A$6:$CQ$92,MATCH('Rate Trajectory Report'!$B39,'Rate Trajectory Calc'!$A$6:$A$92,0),MATCH('Rate Trajectory Report'!L$5,'Rate Trajectory Calc'!$A$6:$CQ$6,0))/1000)","v":" "},{"$f":"IF(INDEX('Rate Trajectory Calc'!$A$6:$CQ$92,MATCH('Rate Trajectory Report'!$B39,'Rate Trajectory Calc'!$A$6:$A$92,0),MATCH('Rate Trajectory Report'!M$5,'Rate Trajectory Calc'!$A$6:$CQ$6,0))=0,\" \",INDEX('Rate Trajectory Calc'!$A$6:$CQ$92,MATCH('Rate Trajectory Report'!$B39,'Rate Trajectory Calc'!$A$6:$A$92,0),MATCH('Rate Trajectory Report'!M$5,'Rate Trajectory Calc'!$A$6:$CQ$6,0))/1000)","v":" "},{"$f":"IF(INDEX('Rate Trajectory Calc'!$A$6:$CQ$92,MATCH('Rate Trajectory Report'!$B39,'Rate Trajectory Calc'!$A$6:$A$92,0),MATCH('Rate Trajectory Report'!N$5,'Rate Trajectory Calc'!$A$6:$CQ$6,0))=0,\" \",INDEX('Rate Trajectory Calc'!$A$6:$CQ$92,MATCH('Rate Trajectory Report'!$B39,'Rate Trajectory Calc'!$A$6:$A$92,0),MATCH('Rate Trajectory Report'!N$5,'Rate Trajectory Calc'!$A$6:$CQ$6,0))/1000)","v":" "},{"$f":"IF(INDEX('Rate Trajectory Calc'!$A$6:$CQ$92,MATCH('Rate Trajectory Report'!$B39,'Rate Trajectory Calc'!$A$6:$A$92,0),MATCH('Rate Trajectory Report'!O$5,'Rate Trajectory Calc'!$A$6:$CQ$6,0))=0,\" \",INDEX('Rate Trajectory Calc'!$A$6:$CQ$92,MATCH('Rate Trajectory Report'!$B39,'Rate Trajectory Calc'!$A$6:$A$92,0),MATCH('Rate Trajectory Report'!O$5,'Rate Trajectory Calc'!$A$6:$CQ$6,0))/1000)","v":" "},{"$f":"IF(INDEX('Rate Trajectory Calc'!$A$6:$CQ$92,MATCH('Rate Trajectory Report'!$B39,'Rate Trajectory Calc'!$A$6:$A$92,0),MATCH('Rate Trajectory Report'!P$5,'Rate Trajectory Calc'!$A$6:$CQ$6,0))=0,\" \",INDEX('Rate Trajectory Calc'!$A$6:$CQ$92,MATCH('Rate Trajectory Report'!$B39,'Rate Trajectory Calc'!$A$6:$A$92,0),MATCH('Rate Trajectory Report'!P$5,'Rate Trajectory Calc'!$A$6:$CQ$6,0))/1000)","v":" "},{"$f":"IF(INDEX('Rate Trajectory Calc'!$A$6:$CQ$92,MATCH('Rate Trajectory Report'!$B39,'Rate Trajectory Calc'!$A$6:$A$92,0),MATCH('Rate Trajectory Report'!Q$5,'Rate Trajectory Calc'!$A$6:$CQ$6,0))=0,\" \",INDEX('Rate Trajectory Calc'!$A$6:$CQ$92,MATCH('Rate Trajectory Report'!$B39,'Rate Trajectory Calc'!$A$6:$A$92,0),MATCH('Rate Trajectory Report'!Q$5,'Rate Trajectory Calc'!$A$6:$CQ$6,0))/1000)","v":" "},{"$f":"IF(INDEX('Rate Trajectory Calc'!$A$6:$CQ$92,MATCH('Rate Trajectory Report'!$B39,'Rate Trajectory Calc'!$A$6:$A$92,0),MATCH('Rate Trajectory Report'!R$5,'Rate Trajectory Calc'!$A$6:$CQ$6,0))=0,\" \",INDEX('Rate Trajectory Calc'!$A$6:$CQ$92,MATCH('Rate Trajectory Report'!$B39,'Rate Trajectory Calc'!$A$6:$A$92,0),MATCH('Rate Trajectory Report'!R$5,'Rate Trajectory Calc'!$A$6:$CQ$6,0))/1000)","v":" "},{"$f":"IF(INDEX('Rate Trajectory Calc'!$A$6:$CQ$92,MATCH('Rate Trajectory Report'!$B39,'Rate Trajectory Calc'!$A$6:$A$92,0),MATCH('Rate Trajectory Report'!S$5,'Rate Trajectory Calc'!$A$6:$CQ$6,0))=0,\" \",INDEX('Rate Trajectory Calc'!$A$6:$CQ$92,MATCH('Rate Trajectory Report'!$B39,'Rate Trajectory Calc'!$A$6:$A$92,0),MATCH('Rate Trajectory Report'!S$5,'Rate Trajectory Calc'!$A$6:$CQ$6,0))/1000)","v":" "},{"$f":"IF(INDEX('Rate Trajectory Calc'!$A$6:$CQ$92,MATCH('Rate Trajectory Report'!$B39,'Rate Trajectory Calc'!$A$6:$A$92,0),MATCH('Rate Trajectory Report'!T$5,'Rate Trajectory Calc'!$A$6:$CQ$6,0))=0,\" \",INDEX('Rate Trajectory Calc'!$A$6:$CQ$92,MATCH('Rate Trajectory Report'!$B39,'Rate Trajectory Calc'!$A$6:$A$92,0),MATCH('Rate Trajectory Report'!T$5,'Rate Trajectory Calc'!$A$6:$CQ$6,0))/1000)","v":-111.62578477890197},{"$f":"IF(INDEX('Rate Trajectory Calc'!$A$6:$CQ$92,MATCH('Rate Trajectory Report'!$B39,'Rate Trajectory Calc'!$A$6:$A$92,0),MATCH('Rate Trajectory Report'!U$5,'Rate Trajectory Calc'!$A$6:$CQ$6,0))=0,\" \",INDEX('Rate Trajectory Calc'!$A$6:$CQ$92,MATCH('Rate Trajectory Report'!$B39,'Rate Trajectory Calc'!$A$6:$A$92,0),MATCH('Rate Trajectory Report'!U$5,'Rate Trajectory Calc'!$A$6:$CQ$6,0))/1000)","v":" "},{"$f":"IF(INDEX('Rate Trajectory Calc'!$A$6:$CQ$92,MATCH('Rate Trajectory Report'!$B39,'Rate Trajectory Calc'!$A$6:$A$92,0),MATCH('Rate Trajectory Report'!V$5,'Rate Trajectory Calc'!$A$6:$CQ$6,0))=0,\" \",INDEX('Rate Trajectory Calc'!$A$6:$CQ$92,MATCH('Rate Trajectory Report'!$B39,'Rate Trajectory Calc'!$A$6:$A$92,0),MATCH('Rate Trajectory Report'!V$5,'Rate Trajectory Calc'!$A$6:$CQ$6,0))/1000)","v":" "},{"$f":"IF(INDEX('Rate Trajectory Calc'!$A$6:$CQ$92,MATCH('Rate Trajectory Report'!$B39,'Rate Trajectory Calc'!$A$6:$A$92,0),MATCH('Rate Trajectory Report'!W$5,'Rate Trajectory Calc'!$A$6:$CQ$6,0))=0,\" \",INDEX('Rate Trajectory Calc'!$A$6:$CQ$92,MATCH('Rate Trajectory Report'!$B39,'Rate Trajectory Calc'!$A$6:$A$92,0),MATCH('Rate Trajectory Report'!W$5,'Rate Trajectory Calc'!$A$6:$CQ$6,0))/1000)","v":" "},{"$f":"IF(INDEX('Rate Trajectory Calc'!$A$6:$CQ$92,MATCH('Rate Trajectory Report'!$B39,'Rate Trajectory Calc'!$A$6:$A$92,0),MATCH('Rate Trajectory Report'!X$5,'Rate Trajectory Calc'!$A$6:$CQ$6,0))=0,\" \",INDEX('Rate Trajectory Calc'!$A$6:$CQ$92,MATCH('Rate Trajectory Report'!$B39,'Rate Trajectory Calc'!$A$6:$A$92,0),MATCH('Rate Trajectory Report'!X$5,'Rate Trajectory Calc'!$A$6:$CQ$6,0))/1000)","v":" "},{"$f":"IF(INDEX('Rate Trajectory Calc'!$A$6:$CQ$92,MATCH('Rate Trajectory Report'!$B39,'Rate Trajectory Calc'!$A$6:$A$92,0),MATCH('Rate Trajectory Report'!Y$5,'Rate Trajectory Calc'!$A$6:$CQ$6,0))=0,\" \",INDEX('Rate Trajectory Calc'!$A$6:$CQ$92,MATCH('Rate Trajectory Report'!$B39,'Rate Trajectory Calc'!$A$6:$A$92,0),MATCH('Rate Trajectory Report'!Y$5,'Rate Trajectory Calc'!$A$6:$CQ$6,0))/1000)","v":" "},{"$f":"IF(INDEX('Rate Trajectory Calc'!$A$6:$CQ$92,MATCH('Rate Trajectory Report'!$B39,'Rate Trajectory Calc'!$A$6:$A$92,0),MATCH('Rate Trajectory Report'!Z$5,'Rate Trajectory Calc'!$A$6:$CQ$6,0))=0,\" \",INDEX('Rate Trajectory Calc'!$A$6:$CQ$92,MATCH('Rate Trajectory Report'!$B39,'Rate Trajectory Calc'!$A$6:$A$92,0),MATCH('Rate Trajectory Report'!Z$5,'Rate Trajectory Calc'!$A$6:$CQ$6,0))/1000)","v":" "},{"$f":"IF(INDEX('Rate Trajectory Calc'!$A$6:$CQ$92,MATCH('Rate Trajectory Report'!$B39,'Rate Trajectory Calc'!$A$6:$A$92,0),MATCH('Rate Trajectory Report'!AA$5,'Rate Trajectory Calc'!$A$6:$CQ$6,0))=0,\" \",INDEX('Rate Trajectory Calc'!$A$6:$CQ$92,MATCH('Rate Trajectory Report'!$B39,'Rate Trajectory Calc'!$A$6:$A$92,0),MATCH('Rate Trajectory Report'!AA$5,'Rate Trajectory Calc'!$A$6:$CQ$6,0))/1000)","v":" "}]
[null,{"$f":"'Rate Trajectory Dashboard'!B36","v":"2026 Cost of Capital (Distribution) - Year 2027"},{"$f":"IFERROR(VLOOKUP(B40,'Rate Trajectory Dashboard'!$B$12:$D$96,3,FALSE)/1000,'Rate Trajectory Report'!C39)","v":0},{"$f":"IF(INDEX('Rate Trajectory Calc'!$A$6:$CQ$92,MATCH('Rate Trajectory Report'!$B40,'Rate Trajectory Calc'!$A$6:$A$92,0),MATCH('Rate Trajectory Report'!D$5,'Rate Trajectory Calc'!$A$6:$CQ$6,0))=0,\" \",INDEX('Rate Trajectory Calc'!$A$6:$CQ$92,MATCH('Rate Trajectory Report'!$B40,'Rate Trajectory Calc'!$A$6:$A$92,0),MATCH('Rate Trajectory Report'!D$5,'Rate Trajectory Calc'!$A$6:$CQ$6,0))/1000)","v":" "},{"$f":"IF(INDEX('Rate Trajectory Calc'!$A$6:$CQ$92,MATCH('Rate Trajectory Report'!$B40,'Rate Trajectory Calc'!$A$6:$A$92,0),MATCH('Rate Trajectory Report'!E$5,'Rate Trajectory Calc'!$A$6:$CQ$6,0))=0,\" \",INDEX('Rate Trajectory Calc'!$A$6:$CQ$92,MATCH('Rate Trajectory Report'!$B40,'Rate Trajectory Calc'!$A$6:$A$92,0),MATCH('Rate Trajectory Report'!E$5,'Rate Trajectory Calc'!$A$6:$CQ$6,0))/1000)","v":" "},{"$f":"IF(INDEX('Rate Trajectory Calc'!$A$6:$CQ$92,MATCH('Rate Trajectory Report'!$B40,'Rate Trajectory Calc'!$A$6:$A$92,0),MATCH('Rate Trajectory Report'!F$5,'Rate Trajectory Calc'!$A$6:$CQ$6,0))=0,\" \",INDEX('Rate Trajectory Calc'!$A$6:$CQ$92,MATCH('Rate Trajectory Report'!$B40,'Rate Trajectory Calc'!$A$6:$A$92,0),MATCH('Rate Trajectory Report'!F$5,'Rate Trajectory Calc'!$A$6:$CQ$6,0))/1000)","v":" "},{"$f":"IF(INDEX('Rate Trajectory Calc'!$A$6:$CQ$92,MATCH('Rate Trajectory Report'!$B40,'Rate Trajectory Calc'!$A$6:$A$92,0),MATCH('Rate Trajectory Report'!G$5,'Rate Trajectory Calc'!$A$6:$CQ$6,0))=0,\" \",INDEX('Rate Trajectory Calc'!$A$6:$CQ$92,MATCH('Rate Trajectory Report'!$B40,'Rate Trajectory Calc'!$A$6:$A$92,0),MATCH('Rate Trajectory Report'!G$5,'Rate Trajectory Calc'!$A$6:$CQ$6,0))/1000)","v":" "},{"$f":"IF(INDEX('Rate Trajectory Calc'!$A$6:$CQ$92,MATCH('Rate Trajectory Report'!$B40,'Rate Trajectory Calc'!$A$6:$A$92,0),MATCH('Rate Trajectory Report'!H$5,'Rate Trajectory Calc'!$A$6:$CQ$6,0))=0,\" \",INDEX('Rate Trajectory Calc'!$A$6:$CQ$92,MATCH('Rate Trajectory Report'!$B40,'Rate Trajectory Calc'!$A$6:$A$92,0),MATCH('Rate Trajectory Report'!H$5,'Rate Trajectory Calc'!$A$6:$CQ$6,0))/1000)","v":" "},{"$f":"IF(INDEX('Rate Trajectory Calc'!$A$6:$CQ$92,MATCH('Rate Trajectory Report'!$B40,'Rate Trajectory Calc'!$A$6:$A$92,0),MATCH('Rate Trajectory Report'!I$5,'Rate Trajectory Calc'!$A$6:$CQ$6,0))=0,\" \",INDEX('Rate Trajectory Calc'!$A$6:$CQ$92,MATCH('Rate Trajectory Report'!$B40,'Rate Trajectory Calc'!$A$6:$A$92,0),MATCH('Rate Trajectory Report'!I$5,'Rate Trajectory Calc'!$A$6:$CQ$6,0))/1000)","v":" "},{"$f":"IF(INDEX('Rate Trajectory Calc'!$A$6:$CQ$92,MATCH('Rate Trajectory Report'!$B40,'Rate Trajectory Calc'!$A$6:$A$92,0),MATCH('Rate Trajectory Report'!J$5,'Rate Trajectory Calc'!$A$6:$CQ$6,0))=0,\" \",INDEX('Rate Trajectory Calc'!$A$6:$CQ$92,MATCH('Rate Trajectory Report'!$B40,'Rate Trajectory Calc'!$A$6:$A$92,0),MATCH('Rate Trajectory Report'!J$5,'Rate Trajectory Calc'!$A$6:$CQ$6,0))/1000)","v":" "},{"$f":"IF(INDEX('Rate Trajectory Calc'!$A$6:$CQ$92,MATCH('Rate Trajectory Report'!$B40,'Rate Trajectory Calc'!$A$6:$A$92,0),MATCH('Rate Trajectory Report'!K$5,'Rate Trajectory Calc'!$A$6:$CQ$6,0))=0,\" \",INDEX('Rate Trajectory Calc'!$A$6:$CQ$92,MATCH('Rate Trajectory Report'!$B40,'Rate Trajectory Calc'!$A$6:$A$92,0),MATCH('Rate Trajectory Report'!K$5,'Rate Trajectory Calc'!$A$6:$CQ$6,0))/1000)","v":" "},{"$f":"IF(INDEX('Rate Trajectory Calc'!$A$6:$CQ$92,MATCH('Rate Trajectory Report'!$B40,'Rate Trajectory Calc'!$A$6:$A$92,0),MATCH('Rate Trajectory Report'!L$5,'Rate Trajectory Calc'!$A$6:$CQ$6,0))=0,\" \",INDEX('Rate Trajectory Calc'!$A$6:$CQ$92,MATCH('Rate Trajectory Report'!$B40,'Rate Trajectory Calc'!$A$6:$A$92,0),MATCH('Rate Trajectory Report'!L$5,'Rate Trajectory Calc'!$A$6:$CQ$6,0))/1000)","v":" "},{"$f":"IF(INDEX('Rate Trajectory Calc'!$A$6:$CQ$92,MATCH('Rate Trajectory Report'!$B40,'Rate Trajectory Calc'!$A$6:$A$92,0),MATCH('Rate Trajectory Report'!M$5,'Rate Trajectory Calc'!$A$6:$CQ$6,0))=0,\" \",INDEX('Rate Trajectory Calc'!$A$6:$CQ$92,MATCH('Rate Trajectory Report'!$B40,'Rate Trajectory Calc'!$A$6:$A$92,0),MATCH('Rate Trajectory Report'!M$5,'Rate Trajectory Calc'!$A$6:$CQ$6,0))/1000)","v":" "},{"$f":"IF(INDEX('Rate Trajectory Calc'!$A$6:$CQ$92,MATCH('Rate Trajectory Report'!$B40,'Rate Trajectory Calc'!$A$6:$A$92,0),MATCH('Rate Trajectory Report'!N$5,'Rate Trajectory Calc'!$A$6:$CQ$6,0))=0,\" \",INDEX('Rate Trajectory Calc'!$A$6:$CQ$92,MATCH('Rate Trajectory Report'!$B40,'Rate Trajectory Calc'!$A$6:$A$92,0),MATCH('Rate Trajectory Report'!N$5,'Rate Trajectory Calc'!$A$6:$CQ$6,0))/1000)","v":" "},{"$f":"IF(INDEX('Rate Trajectory Calc'!$A$6:$CQ$92,MATCH('Rate Trajectory Report'!$B40,'Rate Trajectory Calc'!$A$6:$A$92,0),MATCH('Rate Trajectory Report'!O$5,'Rate Trajectory Calc'!$A$6:$CQ$6,0))=0,\" \",INDEX('Rate Trajectory Calc'!$A$6:$CQ$92,MATCH('Rate Trajectory Report'!$B40,'Rate Trajectory Calc'!$A$6:$A$92,0),MATCH('Rate Trajectory Report'!O$5,'Rate Trajectory Calc'!$A$6:$CQ$6,0))/1000)","v":" "},{"$f":"IF(INDEX('Rate Trajectory Calc'!$A$6:$CQ$92,MATCH('Rate Trajectory Report'!$B40,'Rate Trajectory Calc'!$A$6:$A$92,0),MATCH('Rate Trajectory Report'!P$5,'Rate Trajectory Calc'!$A$6:$CQ$6,0))=0,\" \",INDEX('Rate Trajectory Calc'!$A$6:$CQ$92,MATCH('Rate Trajectory Report'!$B40,'Rate Trajectory Calc'!$A$6:$A$92,0),MATCH('Rate Trajectory Report'!P$5,'Rate Trajectory Calc'!$A$6:$CQ$6,0))/1000)","v":" "},{"$f":"IF(INDEX('Rate Trajectory Calc'!$A$6:$CQ$92,MATCH('Rate Trajectory Report'!$B40,'Rate Trajectory Calc'!$A$6:$A$92,0),MATCH('Rate Trajectory Report'!Q$5,'Rate Trajectory Calc'!$A$6:$CQ$6,0))=0,\" \",INDEX('Rate Trajectory Calc'!$A$6:$CQ$92,MATCH('Rate Trajectory Report'!$B40,'Rate Trajectory Calc'!$A$6:$A$92,0),MATCH('Rate Trajectory Report'!Q$5,'Rate Trajectory Calc'!$A$6:$CQ$6,0))/1000)","v":" "},{"$f":"IF(INDEX('Rate Trajectory Calc'!$A$6:$CQ$92,MATCH('Rate Trajectory Report'!$B40,'Rate Trajectory Calc'!$A$6:$A$92,0),MATCH('Rate Trajectory Report'!R$5,'Rate Trajectory Calc'!$A$6:$CQ$6,0))=0,\" \",INDEX('Rate Trajectory Calc'!$A$6:$CQ$92,MATCH('Rate Trajectory Report'!$B40,'Rate Trajectory Calc'!$A$6:$A$92,0),MATCH('Rate Trajectory Report'!R$5,'Rate Trajectory Calc'!$A$6:$CQ$6,0))/1000)","v":" "},{"$f":"IF(INDEX('Rate Trajectory Calc'!$A$6:$CQ$92,MATCH('Rate Trajectory Report'!$B40,'Rate Trajectory Calc'!$A$6:$A$92,0),MATCH('Rate Trajectory Report'!S$5,'Rate Trajectory Calc'!$A$6:$CQ$6,0))=0,\" \",INDEX('Rate Trajectory Calc'!$A$6:$CQ$92,MATCH('Rate Trajectory Report'!$B40,'Rate Trajectory Calc'!$A$6:$A$92,0),MATCH('Rate Trajectory Report'!S$5,'Rate Trajectory Calc'!$A$6:$CQ$6,0))/1000)","v":" "},{"$f":"IF(INDEX('Rate Trajectory Calc'!$A$6:$CQ$92,MATCH('Rate Trajectory Report'!$B40,'Rate Trajectory Calc'!$A$6:$A$92,0),MATCH('Rate Trajectory Report'!T$5,'Rate Trajectory Calc'!$A$6:$CQ$6,0))=0,\" \",INDEX('Rate Trajectory Calc'!$A$6:$CQ$92,MATCH('Rate Trajectory Report'!$B40,'Rate Trajectory Calc'!$A$6:$A$92,0),MATCH('Rate Trajectory Report'!T$5,'Rate Trajectory Calc'!$A$6:$CQ$6,0))/1000)","v":111.62578477890197},{"$f":"IF(INDEX('Rate Trajectory Calc'!$A$6:$CQ$92,MATCH('Rate Trajectory Report'!$B40,'Rate Trajectory Calc'!$A$6:$A$92,0),MATCH('Rate Trajectory Report'!U$5,'Rate Trajectory Calc'!$A$6:$CQ$6,0))=0,\" \",INDEX('Rate Trajectory Calc'!$A$6:$CQ$92,MATCH('Rate Trajectory Report'!$B40,'Rate Trajectory Calc'!$A$6:$A$92,0),MATCH('Rate Trajectory Report'!U$5,'Rate Trajectory Calc'!$A$6:$CQ$6,0))/1000)","v":" "},{"$f":"IF(INDEX('Rate Trajectory Calc'!$A$6:$CQ$92,MATCH('Rate Trajectory Report'!$B40,'Rate Trajectory Calc'!$A$6:$A$92,0),MATCH('Rate Trajectory Report'!V$5,'Rate Trajectory Calc'!$A$6:$CQ$6,0))=0,\" \",INDEX('Rate Trajectory Calc'!$A$6:$CQ$92,MATCH('Rate Trajectory Report'!$B40,'Rate Trajectory Calc'!$A$6:$A$92,0),MATCH('Rate Trajectory Report'!V$5,'Rate Trajectory Calc'!$A$6:$CQ$6,0))/1000)","v":" "},{"$f":"IF(INDEX('Rate Trajectory Calc'!$A$6:$CQ$92,MATCH('Rate Trajectory Report'!$B40,'Rate Trajectory Calc'!$A$6:$A$92,0),MATCH('Rate Trajectory Report'!W$5,'Rate Trajectory Calc'!$A$6:$CQ$6,0))=0,\" \",INDEX('Rate Trajectory Calc'!$A$6:$CQ$92,MATCH('Rate Trajectory Report'!$B40,'Rate Trajectory Calc'!$A$6:$A$92,0),MATCH('Rate Trajectory Report'!W$5,'Rate Trajectory Calc'!$A$6:$CQ$6,0))/1000)","v":" "},{"$f":"IF(INDEX('Rate Trajectory Calc'!$A$6:$CQ$92,MATCH('Rate Trajectory Report'!$B40,'Rate Trajectory Calc'!$A$6:$A$92,0),MATCH('Rate Trajectory Report'!X$5,'Rate Trajectory Calc'!$A$6:$CQ$6,0))=0,\" \",INDEX('Rate Trajectory Calc'!$A$6:$CQ$92,MATCH('Rate Trajectory Report'!$B40,'Rate Trajectory Calc'!$A$6:$A$92,0),MATCH('Rate Trajectory Report'!X$5,'Rate Trajectory Calc'!$A$6:$CQ$6,0))/1000)","v":" "},{"$f":"IF(INDEX('Rate Trajectory Calc'!$A$6:$CQ$92,MATCH('Rate Trajectory Report'!$B40,'Rate Trajectory Calc'!$A$6:$A$92,0),MATCH('Rate Trajectory Report'!Y$5,'Rate Trajectory Calc'!$A$6:$CQ$6,0))=0,\" \",INDEX('Rate Trajectory Calc'!$A$6:$CQ$92,MATCH('Rate Trajectory Report'!$B40,'Rate Trajectory Calc'!$A$6:$A$92,0),MATCH('Rate Trajectory Report'!Y$5,'Rate Trajectory Calc'!$A$6:$CQ$6,0))/1000)","v":" "},{"$f":"IF(INDEX('Rate Trajectory Calc'!$A$6:$CQ$92,MATCH('Rate Trajectory Report'!$B40,'Rate Trajectory Calc'!$A$6:$A$92,0),MATCH('Rate Trajectory Report'!Z$5,'Rate Trajectory Calc'!$A$6:$CQ$6,0))=0,\" \",INDEX('Rate Trajectory Calc'!$A$6:$CQ$92,MATCH('Rate Trajectory Report'!$B40,'Rate Trajectory Calc'!$A$6:$A$92,0),MATCH('Rate Trajectory Report'!Z$5,'Rate Trajectory Calc'!$A$6:$CQ$6,0))/1000)","v":" "},{"$f":"IF(INDEX('Rate Trajectory Calc'!$A$6:$CQ$92,MATCH('Rate Trajectory Report'!$B40,'Rate Trajectory Calc'!$A$6:$A$92,0),MATCH('Rate Trajectory Report'!AA$5,'Rate Trajectory Calc'!$A$6:$CQ$6,0))=0,\" \",INDEX('Rate Trajectory Calc'!$A$6:$CQ$92,MATCH('Rate Trajectory Report'!$B40,'Rate Trajectory Calc'!$A$6:$A$92,0),MATCH('Rate Trajectory Report'!AA$5,'Rate Trajectory Calc'!$A$6:$CQ$6,0))/1000)","v":" "}]
[null,{"$f":"'Rate Trajectory Dashboard'!B37","v":"2026 Cost of Capital (Distribution) - Year 2028"},{"$f":"IFERROR(VLOOKUP(B41,'Rate Trajectory Dashboard'!$B$12:$D$96,3,FALSE)/1000,'Rate Trajectory Report'!C40)","v":0},{"$f":"IF(INDEX('Rate Trajectory Calc'!$A$6:$CQ$92,MATCH('Rate Trajectory Report'!$B41,'Rate Trajectory Calc'!$A$6:$A$92,0),MATCH('Rate Trajectory Report'!D$5,'Rate Trajectory Calc'!$A$6:$CQ$6,0))=0,\" \",INDEX('Rate Trajectory Calc'!$A$6:$CQ$92,MATCH('Rate Trajectory Report'!$B41,'Rate Trajectory Calc'!$A$6:$A$92,0),MATCH('Rate Trajectory Report'!D$5,'Rate Trajectory Calc'!$A$6:$CQ$6,0))/1000)","v":" "},{"$f":"IF(INDEX('Rate Trajectory Calc'!$A$6:$CQ$92,MATCH('Rate Trajectory Report'!$B41,'Rate Trajectory Calc'!$A$6:$A$92,0),MATCH('Rate Trajectory Report'!E$5,'Rate Trajectory Calc'!$A$6:$CQ$6,0))=0,\" \",INDEX('Rate Trajectory Calc'!$A$6:$CQ$92,MATCH('Rate Trajectory Report'!$B41,'Rate Trajectory Calc'!$A$6:$A$92,0),MATCH('Rate Trajectory Report'!E$5,'Rate Trajectory Calc'!$A$6:$CQ$6,0))/1000)","v":" "},{"$f":"IF(INDEX('Rate Trajectory Calc'!$A$6:$CQ$92,MATCH('Rate Trajectory Report'!$B41,'Rate Trajectory Calc'!$A$6:$A$92,0),MATCH('Rate Trajectory Report'!F$5,'Rate Trajectory Calc'!$A$6:$CQ$6,0))=0,\" \",INDEX('Rate Trajectory Calc'!$A$6:$CQ$92,MATCH('Rate Trajectory Report'!$B41,'Rate Trajectory Calc'!$A$6:$A$92,0),MATCH('Rate Trajectory Report'!F$5,'Rate Trajectory Calc'!$A$6:$CQ$6,0))/1000)","v":" "},{"$f":"IF(INDEX('Rate Trajectory Calc'!$A$6:$CQ$92,MATCH('Rate Trajectory Report'!$B41,'Rate Trajectory Calc'!$A$6:$A$92,0),MATCH('Rate Trajectory Report'!G$5,'Rate Trajectory Calc'!$A$6:$CQ$6,0))=0,\" \",INDEX('Rate Trajectory Calc'!$A$6:$CQ$92,MATCH('Rate Trajectory Report'!$B41,'Rate Trajectory Calc'!$A$6:$A$92,0),MATCH('Rate Trajectory Report'!G$5,'Rate Trajectory Calc'!$A$6:$CQ$6,0))/1000)","v":" "},{"$f":"IF(INDEX('Rate Trajectory Calc'!$A$6:$CQ$92,MATCH('Rate Trajectory Report'!$B41,'Rate Trajectory Calc'!$A$6:$A$92,0),MATCH('Rate Trajectory Report'!H$5,'Rate Trajectory Calc'!$A$6:$CQ$6,0))=0,\" \",INDEX('Rate Trajectory Calc'!$A$6:$CQ$92,MATCH('Rate Trajectory Report'!$B41,'Rate Trajectory Calc'!$A$6:$A$92,0),MATCH('Rate Trajectory Report'!H$5,'Rate Trajectory Calc'!$A$6:$CQ$6,0))/1000)","v":" "},{"$f":"IF(INDEX('Rate Trajectory Calc'!$A$6:$CQ$92,MATCH('Rate Trajectory Report'!$B41,'Rate Trajectory Calc'!$A$6:$A$92,0),MATCH('Rate Trajectory Report'!I$5,'Rate Trajectory Calc'!$A$6:$CQ$6,0))=0,\" \",INDEX('Rate Trajectory Calc'!$A$6:$CQ$92,MATCH('Rate Trajectory Report'!$B41,'Rate Trajectory Calc'!$A$6:$A$92,0),MATCH('Rate Trajectory Report'!I$5,'Rate Trajectory Calc'!$A$6:$CQ$6,0))/1000)","v":" "},{"$f":"IF(INDEX('Rate Trajectory Calc'!$A$6:$CQ$92,MATCH('Rate Trajectory Report'!$B41,'Rate Trajectory Calc'!$A$6:$A$92,0),MATCH('Rate Trajectory Report'!J$5,'Rate Trajectory Calc'!$A$6:$CQ$6,0))=0,\" \",INDEX('Rate Trajectory Calc'!$A$6:$CQ$92,MATCH('Rate Trajectory Report'!$B41,'Rate Trajectory Calc'!$A$6:$A$92,0),MATCH('Rate Trajectory Report'!J$5,'Rate Trajectory Calc'!$A$6:$CQ$6,0))/1000)","v":" "},{"$f":"IF(INDEX('Rate Trajectory Calc'!$A$6:$CQ$92,MATCH('Rate Trajectory Report'!$B41,'Rate Trajectory Calc'!$A$6:$A$92,0),MATCH('Rate Trajectory Report'!K$5,'Rate Trajectory Calc'!$A$6:$CQ$6,0))=0,\" \",INDEX('Rate Trajectory Calc'!$A$6:$CQ$92,MATCH('Rate Trajectory Report'!$B41,'Rate Trajectory Calc'!$A$6:$A$92,0),MATCH('Rate Trajectory Report'!K$5,'Rate Trajectory Calc'!$A$6:$CQ$6,0))/1000)","v":" "},{"$f":"IF(INDEX('Rate Trajectory Calc'!$A$6:$CQ$92,MATCH('Rate Trajectory Report'!$B41,'Rate Trajectory Calc'!$A$6:$A$92,0),MATCH('Rate Trajectory Report'!L$5,'Rate Trajectory Calc'!$A$6:$CQ$6,0))=0,\" \",INDEX('Rate Trajectory Calc'!$A$6:$CQ$92,MATCH('Rate Trajectory Report'!$B41,'Rate Trajectory Calc'!$A$6:$A$92,0),MATCH('Rate Trajectory Report'!L$5,'Rate Trajectory Calc'!$A$6:$CQ$6,0))/1000)","v":" "},{"$f":"IF(INDEX('Rate Trajectory Calc'!$A$6:$CQ$92,MATCH('Rate Trajectory Report'!$B41,'Rate Trajectory Calc'!$A$6:$A$92,0),MATCH('Rate Trajectory Report'!M$5,'Rate Trajectory Calc'!$A$6:$CQ$6,0))=0,\" \",INDEX('Rate Trajectory Calc'!$A$6:$CQ$92,MATCH('Rate Trajectory Report'!$B41,'Rate Trajectory Calc'!$A$6:$A$92,0),MATCH('Rate Trajectory Report'!M$5,'Rate Trajectory Calc'!$A$6:$CQ$6,0))/1000)","v":" "},{"$f":"IF(INDEX('Rate Trajectory Calc'!$A$6:$CQ$92,MATCH('Rate Trajectory Report'!$B41,'Rate Trajectory Calc'!$A$6:$A$92,0),MATCH('Rate Trajectory Report'!N$5,'Rate Trajectory Calc'!$A$6:$CQ$6,0))=0,\" \",INDEX('Rate Trajectory Calc'!$A$6:$CQ$92,MATCH('Rate Trajectory Report'!$B41,'Rate Trajectory Calc'!$A$6:$A$92,0),MATCH('Rate Trajectory Report'!N$5,'Rate Trajectory Calc'!$A$6:$CQ$6,0))/1000)","v":" "},{"$f":"IF(INDEX('Rate Trajectory Calc'!$A$6:$CQ$92,MATCH('Rate Trajectory Report'!$B41,'Rate Trajectory Calc'!$A$6:$A$92,0),MATCH('Rate Trajectory Report'!O$5,'Rate Trajectory Calc'!$A$6:$CQ$6,0))=0,\" \",INDEX('Rate Trajectory Calc'!$A$6:$CQ$92,MATCH('Rate Trajectory Report'!$B41,'Rate Trajectory Calc'!$A$6:$A$92,0),MATCH('Rate Trajectory Report'!O$5,'Rate Trajectory Calc'!$A$6:$CQ$6,0))/1000)","v":" "},{"$f":"IF(INDEX('Rate Trajectory Calc'!$A$6:$CQ$92,MATCH('Rate Trajectory Report'!$B41,'Rate Trajectory Calc'!$A$6:$A$92,0),MATCH('Rate Trajectory Report'!P$5,'Rate Trajectory Calc'!$A$6:$CQ$6,0))=0,\" \",INDEX('Rate Trajectory Calc'!$A$6:$CQ$92,MATCH('Rate Trajectory Report'!$B41,'Rate Trajectory Calc'!$A$6:$A$92,0),MATCH('Rate Trajectory Report'!P$5,'Rate Trajectory Calc'!$A$6:$CQ$6,0))/1000)","v":" "},{"$f":"IF(INDEX('Rate Trajectory Calc'!$A$6:$CQ$92,MATCH('Rate Trajectory Report'!$B41,'Rate Trajectory Calc'!$A$6:$A$92,0),MATCH('Rate Trajectory Report'!Q$5,'Rate Trajectory Calc'!$A$6:$CQ$6,0))=0,\" \",INDEX('Rate Trajectory Calc'!$A$6:$CQ$92,MATCH('Rate Trajectory Report'!$B41,'Rate Trajectory Calc'!$A$6:$A$92,0),MATCH('Rate Trajectory Report'!Q$5,'Rate Trajectory Calc'!$A$6:$CQ$6,0))/1000)","v":" "},{"$f":"IF(INDEX('Rate Trajectory Calc'!$A$6:$CQ$92,MATCH('Rate Trajectory Report'!$B41,'Rate Trajectory Calc'!$A$6:$A$92,0),MATCH('Rate Trajectory Report'!R$5,'Rate Trajectory Calc'!$A$6:$CQ$6,0))=0,\" \",INDEX('Rate Trajectory Calc'!$A$6:$CQ$92,MATCH('Rate Trajectory Report'!$B41,'Rate Trajectory Calc'!$A$6:$A$92,0),MATCH('Rate Trajectory Report'!R$5,'Rate Trajectory Calc'!$A$6:$CQ$6,0))/1000)","v":" "},{"$f":"IF(INDEX('Rate Trajectory Calc'!$A$6:$CQ$92,MATCH('Rate Trajectory Report'!$B41,'Rate Trajectory Calc'!$A$6:$A$92,0),MATCH('Rate Trajectory Report'!S$5,'Rate Trajectory Calc'!$A$6:$CQ$6,0))=0,\" \",INDEX('Rate Trajectory Calc'!$A$6:$CQ$92,MATCH('Rate Trajectory Report'!$B41,'Rate Trajectory Calc'!$A$6:$A$92,0),MATCH('Rate Trajectory Report'!S$5,'Rate Trajectory Calc'!$A$6:$CQ$6,0))/1000)","v":" "},{"$f":"IF(INDEX('Rate Trajectory Calc'!$A$6:$CQ$92,MATCH('Rate Trajectory Report'!$B41,'Rate Trajectory Calc'!$A$6:$A$92,0),MATCH('Rate Trajectory Report'!T$5,'Rate Trajectory Calc'!$A$6:$CQ$6,0))=0,\" \",INDEX('Rate Trajectory Calc'!$A$6:$CQ$92,MATCH('Rate Trajectory Report'!$B41,'Rate Trajectory Calc'!$A$6:$A$92,0),MATCH('Rate Trajectory Report'!T$5,'Rate Trajectory Calc'!$A$6:$CQ$6,0))/1000)","v":" "},{"$f":"IF(INDEX('Rate Trajectory Calc'!$A$6:$CQ$92,MATCH('Rate Trajectory Report'!$B41,'Rate Trajectory Calc'!$A$6:$A$92,0),MATCH('Rate Trajectory Report'!U$5,'Rate Trajectory Calc'!$A$6:$CQ$6,0))=0,\" \",INDEX('Rate Trajectory Calc'!$A$6:$CQ$92,MATCH('Rate Trajectory Report'!$B41,'Rate Trajectory Calc'!$A$6:$A$92,0),MATCH('Rate Trajectory Report'!U$5,'Rate Trajectory Calc'!$A$6:$CQ$6,0))/1000)","v":" "},{"$f":"IF(INDEX('Rate Trajectory Calc'!$A$6:$CQ$92,MATCH('Rate Trajectory Report'!$B41,'Rate Trajectory Calc'!$A$6:$A$92,0),MATCH('Rate Trajectory Report'!V$5,'Rate Trajectory Calc'!$A$6:$CQ$6,0))=0,\" \",INDEX('Rate Trajectory Calc'!$A$6:$CQ$92,MATCH('Rate Trajectory Report'!$B41,'Rate Trajectory Calc'!$A$6:$A$92,0),MATCH('Rate Trajectory Report'!V$5,'Rate Trajectory Calc'!$A$6:$CQ$6,0))/1000)","v":" "},{"$f":"IF(INDEX('Rate Trajectory Calc'!$A$6:$CQ$92,MATCH('Rate Trajectory Report'!$B41,'Rate Trajectory Calc'!$A$6:$A$92,0),MATCH('Rate Trajectory Report'!W$5,'Rate Trajectory Calc'!$A$6:$CQ$6,0))=0,\" \",INDEX('Rate Trajectory Calc'!$A$6:$CQ$92,MATCH('Rate Trajectory Report'!$B41,'Rate Trajectory Calc'!$A$6:$A$92,0),MATCH('Rate Trajectory Report'!W$5,'Rate Trajectory Calc'!$A$6:$CQ$6,0))/1000)","v":" "},{"$f":"IF(INDEX('Rate Trajectory Calc'!$A$6:$CQ$92,MATCH('Rate Trajectory Report'!$B41,'Rate Trajectory Calc'!$A$6:$A$92,0),MATCH('Rate Trajectory Report'!X$5,'Rate Trajectory Calc'!$A$6:$CQ$6,0))=0,\" \",INDEX('Rate Trajectory Calc'!$A$6:$CQ$92,MATCH('Rate Trajectory Report'!$B41,'Rate Trajectory Calc'!$A$6:$A$92,0),MATCH('Rate Trajectory Report'!X$5,'Rate Trajectory Calc'!$A$6:$CQ$6,0))/1000)","v":" "},{"$f":"IF(INDEX('Rate Trajectory Calc'!$A$6:$CQ$92,MATCH('Rate Trajectory Report'!$B41,'Rate Trajectory Calc'!$A$6:$A$92,0),MATCH('Rate Trajectory Report'!Y$5,'Rate Trajectory Calc'!$A$6:$CQ$6,0))=0,\" \",INDEX('Rate Trajectory Calc'!$A$6:$CQ$92,MATCH('Rate Trajectory Report'!$B41,'Rate Trajectory Calc'!$A$6:$A$92,0),MATCH('Rate Trajectory Report'!Y$5,'Rate Trajectory Calc'!$A$6:$CQ$6,0))/1000)","v":" "},{"$f":"IF(INDEX('Rate Trajectory Calc'!$A$6:$CQ$92,MATCH('Rate Trajectory Report'!$B41,'Rate Trajectory Calc'!$A$6:$A$92,0),MATCH('Rate Trajectory Report'!Z$5,'Rate Trajectory Calc'!$A$6:$CQ$6,0))=0,\" \",INDEX('Rate Trajectory Calc'!$A$6:$CQ$92,MATCH('Rate Trajectory Report'!$B41,'Rate Trajectory Calc'!$A$6:$A$92,0),MATCH('Rate Trajectory Report'!Z$5,'Rate Trajectory Calc'!$A$6:$CQ$6,0))/1000)","v":" "},{"$f":"IF(INDEX('Rate Trajectory Calc'!$A$6:$CQ$92,MATCH('Rate Trajectory Report'!$B41,'Rate Trajectory Calc'!$A$6:$A$92,0),MATCH('Rate Trajectory Report'!AA$5,'Rate Trajectory Calc'!$A$6:$CQ$6,0))=0,\" \",INDEX('Rate Trajectory Calc'!$A$6:$CQ$92,MATCH('Rate Trajectory Report'!$B41,'Rate Trajectory Calc'!$A$6:$A$92,0),MATCH('Rate Trajectory Report'!AA$5,'Rate Trajectory Calc'!$A$6:$CQ$6,0))/1000)","v":" "}]
[null,{"$f":"'Rate Trajectory Dashboard'!B38","v":"2026 Cost of Capital (Distribution) - Year 2029"},{"$f":"IFERROR(VLOOKUP(B42,'Rate Trajectory Dashboard'!$B$12:$D$96,3,FALSE)/1000,'Rate Trajectory Report'!C41)","v":0},{"$f":"IF(INDEX('Rate Trajectory Calc'!$A$6:$CQ$92,MATCH('Rate Trajectory Report'!$B42,'Rate Trajectory Calc'!$A$6:$A$92,0),MATCH('Rate Trajectory Report'!D$5,'Rate Trajectory Calc'!$A$6:$CQ$6,0))=0,\" \",INDEX('Rate Trajectory Calc'!$A$6:$CQ$92,MATCH('Rate Trajectory Report'!$B42,'Rate Trajectory Calc'!$A$6:$A$92,0),MATCH('Rate Trajectory Report'!D$5,'Rate Trajectory Calc'!$A$6:$CQ$6,0))/1000)","v":" "},{"$f":"IF(INDEX('Rate Trajectory Calc'!$A$6:$CQ$92,MATCH('Rate Trajectory Report'!$B42,'Rate Trajectory Calc'!$A$6:$A$92,0),MATCH('Rate Trajectory Report'!E$5,'Rate Trajectory Calc'!$A$6:$CQ$6,0))=0,\" \",INDEX('Rate Trajectory Calc'!$A$6:$CQ$92,MATCH('Rate Trajectory Report'!$B42,'Rate Trajectory Calc'!$A$6:$A$92,0),MATCH('Rate Trajectory Report'!E$5,'Rate Trajectory Calc'!$A$6:$CQ$6,0))/1000)","v":" "},{"$f":"IF(INDEX('Rate Trajectory Calc'!$A$6:$CQ$92,MATCH('Rate Trajectory Report'!$B42,'Rate Trajectory Calc'!$A$6:$A$92,0),MATCH('Rate Trajectory Report'!F$5,'Rate Trajectory Calc'!$A$6:$CQ$6,0))=0,\" \",INDEX('Rate Trajectory Calc'!$A$6:$CQ$92,MATCH('Rate Trajectory Report'!$B42,'Rate Trajectory Calc'!$A$6:$A$92,0),MATCH('Rate Trajectory Report'!F$5,'Rate Trajectory Calc'!$A$6:$CQ$6,0))/1000)","v":" "},{"$f":"IF(INDEX('Rate Trajectory Calc'!$A$6:$CQ$92,MATCH('Rate Trajectory Report'!$B42,'Rate Trajectory Calc'!$A$6:$A$92,0),MATCH('Rate Trajectory Report'!G$5,'Rate Trajectory Calc'!$A$6:$CQ$6,0))=0,\" \",INDEX('Rate Trajectory Calc'!$A$6:$CQ$92,MATCH('Rate Trajectory Report'!$B42,'Rate Trajectory Calc'!$A$6:$A$92,0),MATCH('Rate Trajectory Report'!G$5,'Rate Trajectory Calc'!$A$6:$CQ$6,0))/1000)","v":" "},{"$f":"IF(INDEX('Rate Trajectory Calc'!$A$6:$CQ$92,MATCH('Rate Trajectory Report'!$B42,'Rate Trajectory Calc'!$A$6:$A$92,0),MATCH('Rate Trajectory Report'!H$5,'Rate Trajectory Calc'!$A$6:$CQ$6,0))=0,\" \",INDEX('Rate Trajectory Calc'!$A$6:$CQ$92,MATCH('Rate Trajectory Report'!$B42,'Rate Trajectory Calc'!$A$6:$A$92,0),MATCH('Rate Trajectory Report'!H$5,'Rate Trajectory Calc'!$A$6:$CQ$6,0))/1000)","v":" "},{"$f":"IF(INDEX('Rate Trajectory Calc'!$A$6:$CQ$92,MATCH('Rate Trajectory Report'!$B42,'Rate Trajectory Calc'!$A$6:$A$92,0),MATCH('Rate Trajectory Report'!I$5,'Rate Trajectory Calc'!$A$6:$CQ$6,0))=0,\" \",INDEX('Rate Trajectory Calc'!$A$6:$CQ$92,MATCH('Rate Trajectory Report'!$B42,'Rate Trajectory Calc'!$A$6:$A$92,0),MATCH('Rate Trajectory Report'!I$5,'Rate Trajectory Calc'!$A$6:$CQ$6,0))/1000)","v":" "},{"$f":"IF(INDEX('Rate Trajectory Calc'!$A$6:$CQ$92,MATCH('Rate Trajectory Report'!$B42,'Rate Trajectory Calc'!$A$6:$A$92,0),MATCH('Rate Trajectory Report'!J$5,'Rate Trajectory Calc'!$A$6:$CQ$6,0))=0,\" \",INDEX('Rate Trajectory Calc'!$A$6:$CQ$92,MATCH('Rate Trajectory Report'!$B42,'Rate Trajectory Calc'!$A$6:$A$92,0),MATCH('Rate Trajectory Report'!J$5,'Rate Trajectory Calc'!$A$6:$CQ$6,0))/1000)","v":" "},{"$f":"IF(INDEX('Rate Trajectory Calc'!$A$6:$CQ$92,MATCH('Rate Trajectory Report'!$B42,'Rate Trajectory Calc'!$A$6:$A$92,0),MATCH('Rate Trajectory Report'!K$5,'Rate Trajectory Calc'!$A$6:$CQ$6,0))=0,\" \",INDEX('Rate Trajectory Calc'!$A$6:$CQ$92,MATCH('Rate Trajectory Report'!$B42,'Rate Trajectory Calc'!$A$6:$A$92,0),MATCH('Rate Trajectory Report'!K$5,'Rate Trajectory Calc'!$A$6:$CQ$6,0))/1000)","v":" "},{"$f":"IF(INDEX('Rate Trajectory Calc'!$A$6:$CQ$92,MATCH('Rate Trajectory Report'!$B42,'Rate Trajectory Calc'!$A$6:$A$92,0),MATCH('Rate Trajectory Report'!L$5,'Rate Trajectory Calc'!$A$6:$CQ$6,0))=0,\" \",INDEX('Rate Trajectory Calc'!$A$6:$CQ$92,MATCH('Rate Trajectory Report'!$B42,'Rate Trajectory Calc'!$A$6:$A$92,0),MATCH('Rate Trajectory Report'!L$5,'Rate Trajectory Calc'!$A$6:$CQ$6,0))/1000)","v":" "},{"$f":"IF(INDEX('Rate Trajectory Calc'!$A$6:$CQ$92,MATCH('Rate Trajectory Report'!$B42,'Rate Trajectory Calc'!$A$6:$A$92,0),MATCH('Rate Trajectory Report'!M$5,'Rate Trajectory Calc'!$A$6:$CQ$6,0))=0,\" \",INDEX('Rate Trajectory Calc'!$A$6:$CQ$92,MATCH('Rate Trajectory Report'!$B42,'Rate Trajectory Calc'!$A$6:$A$92,0),MATCH('Rate Trajectory Report'!M$5,'Rate Trajectory Calc'!$A$6:$CQ$6,0))/1000)","v":" "},{"$f":"IF(INDEX('Rate Trajectory Calc'!$A$6:$CQ$92,MATCH('Rate Trajectory Report'!$B42,'Rate Trajectory Calc'!$A$6:$A$92,0),MATCH('Rate Trajectory Report'!N$5,'Rate Trajectory Calc'!$A$6:$CQ$6,0))=0,\" \",INDEX('Rate Trajectory Calc'!$A$6:$CQ$92,MATCH('Rate Trajectory Report'!$B42,'Rate Trajectory Calc'!$A$6:$A$92,0),MATCH('Rate Trajectory Report'!N$5,'Rate Trajectory Calc'!$A$6:$CQ$6,0))/1000)","v":" "},{"$f":"IF(INDEX('Rate Trajectory Calc'!$A$6:$CQ$92,MATCH('Rate Trajectory Report'!$B42,'Rate Trajectory Calc'!$A$6:$A$92,0),MATCH('Rate Trajectory Report'!O$5,'Rate Trajectory Calc'!$A$6:$CQ$6,0))=0,\" \",INDEX('Rate Trajectory Calc'!$A$6:$CQ$92,MATCH('Rate Trajectory Report'!$B42,'Rate Trajectory Calc'!$A$6:$A$92,0),MATCH('Rate Trajectory Report'!O$5,'Rate Trajectory Calc'!$A$6:$CQ$6,0))/1000)","v":" "},{"$f":"IF(INDEX('Rate Trajectory Calc'!$A$6:$CQ$92,MATCH('Rate Trajectory Report'!$B42,'Rate Trajectory Calc'!$A$6:$A$92,0),MATCH('Rate Trajectory Report'!P$5,'Rate Trajectory Calc'!$A$6:$CQ$6,0))=0,\" \",INDEX('Rate Trajectory Calc'!$A$6:$CQ$92,MATCH('Rate Trajectory Report'!$B42,'Rate Trajectory Calc'!$A$6:$A$92,0),MATCH('Rate Trajectory Report'!P$5,'Rate Trajectory Calc'!$A$6:$CQ$6,0))/1000)","v":" "},{"$f":"IF(INDEX('Rate Trajectory Calc'!$A$6:$CQ$92,MATCH('Rate Trajectory Report'!$B42,'Rate Trajectory Calc'!$A$6:$A$92,0),MATCH('Rate Trajectory Report'!Q$5,'Rate Trajectory Calc'!$A$6:$CQ$6,0))=0,\" \",INDEX('Rate Trajectory Calc'!$A$6:$CQ$92,MATCH('Rate Trajectory Report'!$B42,'Rate Trajectory Calc'!$A$6:$A$92,0),MATCH('Rate Trajectory Report'!Q$5,'Rate Trajectory Calc'!$A$6:$CQ$6,0))/1000)","v":" "},{"$f":"IF(INDEX('Rate Trajectory Calc'!$A$6:$CQ$92,MATCH('Rate Trajectory Report'!$B42,'Rate Trajectory Calc'!$A$6:$A$92,0),MATCH('Rate Trajectory Report'!R$5,'Rate Trajectory Calc'!$A$6:$CQ$6,0))=0,\" \",INDEX('Rate Trajectory Calc'!$A$6:$CQ$92,MATCH('Rate Trajectory Report'!$B42,'Rate Trajectory Calc'!$A$6:$A$92,0),MATCH('Rate Trajectory Report'!R$5,'Rate Trajectory Calc'!$A$6:$CQ$6,0))/1000)","v":" "},{"$f":"IF(INDEX('Rate Trajectory Calc'!$A$6:$CQ$92,MATCH('Rate Trajectory Report'!$B42,'Rate Trajectory Calc'!$A$6:$A$92,0),MATCH('Rate Trajectory Report'!S$5,'Rate Trajectory Calc'!$A$6:$CQ$6,0))=0,\" \",INDEX('Rate Trajectory Calc'!$A$6:$CQ$92,MATCH('Rate Trajectory Report'!$B42,'Rate Trajectory Calc'!$A$6:$A$92,0),MATCH('Rate Trajectory Report'!S$5,'Rate Trajectory Calc'!$A$6:$CQ$6,0))/1000)","v":" "},{"$f":"IF(INDEX('Rate Trajectory Calc'!$A$6:$CQ$92,MATCH('Rate Trajectory Report'!$B42,'Rate Trajectory Calc'!$A$6:$A$92,0),MATCH('Rate Trajectory Report'!T$5,'Rate Trajectory Calc'!$A$6:$CQ$6,0))=0,\" \",INDEX('Rate Trajectory Calc'!$A$6:$CQ$92,MATCH('Rate Trajectory Report'!$B42,'Rate Trajectory Calc'!$A$6:$A$92,0),MATCH('Rate Trajectory Report'!T$5,'Rate Trajectory Calc'!$A$6:$CQ$6,0))/1000)","v":" "},{"$f":"IF(INDEX('Rate Trajectory Calc'!$A$6:$CQ$92,MATCH('Rate Trajectory Report'!$B42,'Rate Trajectory Calc'!$A$6:$A$92,0),MATCH('Rate Trajectory Report'!U$5,'Rate Trajectory Calc'!$A$6:$CQ$6,0))=0,\" \",INDEX('Rate Trajectory Calc'!$A$6:$CQ$92,MATCH('Rate Trajectory Report'!$B42,'Rate Trajectory Calc'!$A$6:$A$92,0),MATCH('Rate Trajectory Report'!U$5,'Rate Trajectory Calc'!$A$6:$CQ$6,0))/1000)","v":" "},{"$f":"IF(INDEX('Rate Trajectory Calc'!$A$6:$CQ$92,MATCH('Rate Trajectory Report'!$B42,'Rate Trajectory Calc'!$A$6:$A$92,0),MATCH('Rate Trajectory Report'!V$5,'Rate Trajectory Calc'!$A$6:$CQ$6,0))=0,\" \",INDEX('Rate Trajectory Calc'!$A$6:$CQ$92,MATCH('Rate Trajectory Report'!$B42,'Rate Trajectory Calc'!$A$6:$A$92,0),MATCH('Rate Trajectory Report'!V$5,'Rate Trajectory Calc'!$A$6:$CQ$6,0))/1000)","v":" "},{"$f":"IF(INDEX('Rate Trajectory Calc'!$A$6:$CQ$92,MATCH('Rate Trajectory Report'!$B42,'Rate Trajectory Calc'!$A$6:$A$92,0),MATCH('Rate Trajectory Report'!W$5,'Rate Trajectory Calc'!$A$6:$CQ$6,0))=0,\" \",INDEX('Rate Trajectory Calc'!$A$6:$CQ$92,MATCH('Rate Trajectory Report'!$B42,'Rate Trajectory Calc'!$A$6:$A$92,0),MATCH('Rate Trajectory Report'!W$5,'Rate Trajectory Calc'!$A$6:$CQ$6,0))/1000)","v":" "},{"$f":"IF(INDEX('Rate Trajectory Calc'!$A$6:$CQ$92,MATCH('Rate Trajectory Report'!$B42,'Rate Trajectory Calc'!$A$6:$A$92,0),MATCH('Rate Trajectory Report'!X$5,'Rate Trajectory Calc'!$A$6:$CQ$6,0))=0,\" \",INDEX('Rate Trajectory Calc'!$A$6:$CQ$92,MATCH('Rate Trajectory Report'!$B42,'Rate Trajectory Calc'!$A$6:$A$92,0),MATCH('Rate Trajectory Report'!X$5,'Rate Trajectory Calc'!$A$6:$CQ$6,0))/1000)","v":" "},{"$f":"IF(INDEX('Rate Trajectory Calc'!$A$6:$CQ$92,MATCH('Rate Trajectory Report'!$B42,'Rate Trajectory Calc'!$A$6:$A$92,0),MATCH('Rate Trajectory Report'!Y$5,'Rate Trajectory Calc'!$A$6:$CQ$6,0))=0,\" \",INDEX('Rate Trajectory Calc'!$A$6:$CQ$92,MATCH('Rate Trajectory Report'!$B42,'Rate Trajectory Calc'!$A$6:$A$92,0),MATCH('Rate Trajectory Report'!Y$5,'Rate Trajectory Calc'!$A$6:$CQ$6,0))/1000)","v":" "},{"$f":"IF(INDEX('Rate Trajectory Calc'!$A$6:$CQ$92,MATCH('Rate Trajectory Report'!$B42,'Rate Trajectory Calc'!$A$6:$A$92,0),MATCH('Rate Trajectory Report'!Z$5,'Rate Trajectory Calc'!$A$6:$CQ$6,0))=0,\" \",INDEX('Rate Trajectory Calc'!$A$6:$CQ$92,MATCH('Rate Trajectory Report'!$B42,'Rate Trajectory Calc'!$A$6:$A$92,0),MATCH('Rate Trajectory Report'!Z$5,'Rate Trajectory Calc'!$A$6:$CQ$6,0))/1000)","v":" "},{"$f":"IF(INDEX('Rate Trajectory Calc'!$A$6:$CQ$92,MATCH('Rate Trajectory Report'!$B42,'Rate Trajectory Calc'!$A$6:$A$92,0),MATCH('Rate Trajectory Report'!AA$5,'Rate Trajectory Calc'!$A$6:$CQ$6,0))=0,\" \",INDEX('Rate Trajectory Calc'!$A$6:$CQ$92,MATCH('Rate Trajectory Report'!$B42,'Rate Trajectory Calc'!$A$6:$A$92,0),MATCH('Rate Trajectory Report'!AA$5,'Rate Trajectory Calc'!$A$6:$CQ$6,0))/1000)","v":" "}]
["7a","2026 Cost of Capital (Distribution)",{"$f":"IFERROR(VLOOKUP(B43,'Rate Trajectory Dashboard'!$B$12:$D$96,3,FALSE)/1000,'Rate Trajectory Report'!C42)","v":0},{"$f":"IF(SUM(D39:D42)=0,\" \",SUBTOTAL(9,D39:D42))","v":" "},{"$f":"IF(SUM(E39:E42)=0,\" \",SUBTOTAL(9,E39:E42))","v":" "}," "," ",111.62578477890197," "," "," "," "," "," "," "," "," "," "," "," "," "," "," "," "," "," "," "]
[null,{"$f":"'Rate Trajectory Dashboard'!B39","v":"2026 Cost of Capital (Transmission) - Year 2026"},{"$f":"IFERROR(VLOOKUP(B44,'Rate Trajectory Dashboard'!$B$12:$D$96,3,FALSE)/1000,'Rate Trajectory Report'!C43)","v":0},{"$f":"IF(INDEX('Rate Trajectory Calc'!$A$6:$CQ$92,MATCH('Rate Trajectory Report'!$B44,'Rate Trajectory Calc'!$A$6:$A$92,0),MATCH('Rate Trajectory Report'!D$5,'Rate Trajectory Calc'!$A$6:$CQ$6,0))=0,\" \",INDEX('Rate Trajectory Calc'!$A$6:$CQ$92,MATCH('Rate Trajectory Report'!$B44,'Rate Trajectory Calc'!$A$6:$A$92,0),MATCH('Rate Trajectory Report'!D$5,'Rate Trajectory Calc'!$A$6:$CQ$6,0))/1000)","v":" "},{"$f":"IF(INDEX('Rate Trajectory Calc'!$A$6:$CQ$92,MATCH('Rate Trajectory Report'!$B44,'Rate Trajectory Calc'!$A$6:$A$92,0),MATCH('Rate Trajectory Report'!E$5,'Rate Trajectory Calc'!$A$6:$CQ$6,0))=0,\" \",INDEX('Rate Trajectory Calc'!$A$6:$CQ$92,MATCH('Rate Trajectory Report'!$B44,'Rate Trajectory Calc'!$A$6:$A$92,0),MATCH('Rate Trajectory Report'!E$5,'Rate Trajectory Calc'!$A$6:$CQ$6,0))/1000)","v":" "},{"$f":"IF(INDEX('Rate Trajectory Calc'!$A$6:$CQ$92,MATCH('Rate Trajectory Report'!$B44,'Rate Trajectory Calc'!$A$6:$A$92,0),MATCH('Rate Trajectory Report'!F$5,'Rate Trajectory Calc'!$A$6:$CQ$6,0))=0,\" \",INDEX('Rate Trajectory Calc'!$A$6:$CQ$92,MATCH('Rate Trajectory Report'!$B44,'Rate Trajectory Calc'!$A$6:$A$92,0),MATCH('Rate Trajectory Report'!F$5,'Rate Trajectory Calc'!$A$6:$CQ$6,0))/1000)","v":" "},{"$f":"IF(INDEX('Rate Trajectory Calc'!$A$6:$CQ$92,MATCH('Rate Trajectory Report'!$B44,'Rate Trajectory Calc'!$A$6:$A$92,0),MATCH('Rate Trajectory Report'!G$5,'Rate Trajectory Calc'!$A$6:$CQ$6,0))=0,\" \",INDEX('Rate Trajectory Calc'!$A$6:$CQ$92,MATCH('Rate Trajectory Report'!$B44,'Rate Trajectory Calc'!$A$6:$A$92,0),MATCH('Rate Trajectory Report'!G$5,'Rate Trajectory Calc'!$A$6:$CQ$6,0))/1000)","v":" "},{"$f":"IF(INDEX('Rate Trajectory Calc'!$A$6:$CQ$92,MATCH('Rate Trajectory Report'!$B44,'Rate Trajectory Calc'!$A$6:$A$92,0),MATCH('Rate Trajectory Report'!H$5,'Rate Trajectory Calc'!$A$6:$CQ$6,0))=0,\" \",INDEX('Rate Trajectory Calc'!$A$6:$CQ$92,MATCH('Rate Trajectory Report'!$B44,'Rate Trajectory Calc'!$A$6:$A$92,0),MATCH('Rate Trajectory Report'!H$5,'Rate Trajectory Calc'!$A$6:$CQ$6,0))/1000)","v":84.23076028112871},{"$f":"IF(INDEX('Rate Trajectory Calc'!$A$6:$CQ$92,MATCH('Rate Trajectory Report'!$B44,'Rate Trajectory Calc'!$A$6:$A$92,0),MATCH('Rate Trajectory Report'!I$5,'Rate Trajectory Calc'!$A$6:$CQ$6,0))=0,\" \",INDEX('Rate Trajectory Calc'!$A$6:$CQ$92,MATCH('Rate Trajectory Report'!$B44,'Rate Trajectory Calc'!$A$6:$A$92,0),MATCH('Rate Trajectory Report'!I$5,'Rate Trajectory Calc'!$A$6:$CQ$6,0))/1000)","v":" "},{"$f":"IF(INDEX('Rate Trajectory Calc'!$A$6:$CQ$92,MATCH('Rate Trajectory Report'!$B44,'Rate Trajectory Calc'!$A$6:$A$92,0),MATCH('Rate Trajectory Report'!J$5,'Rate Trajectory Calc'!$A$6:$CQ$6,0))=0,\" \",INDEX('Rate Trajectory Calc'!$A$6:$CQ$92,MATCH('Rate Trajectory Report'!$B44,'Rate Trajectory Calc'!$A$6:$A$92,0),MATCH('Rate Trajectory Report'!J$5,'Rate Trajectory Calc'!$A$6:$CQ$6,0))/1000)","v":" "},{"$f":"IF(INDEX('Rate Trajectory Calc'!$A$6:$CQ$92,MATCH('Rate Trajectory Report'!$B44,'Rate Trajectory Calc'!$A$6:$A$92,0),MATCH('Rate Trajectory Report'!K$5,'Rate Trajectory Calc'!$A$6:$CQ$6,0))=0,\" \",INDEX('Rate Trajectory Calc'!$A$6:$CQ$92,MATCH('Rate Trajectory Report'!$B44,'Rate Trajectory Calc'!$A$6:$A$92,0),MATCH('Rate Trajectory Report'!K$5,'Rate Trajectory Calc'!$A$6:$CQ$6,0))/1000)","v":" "},{"$f":"IF(INDEX('Rate Trajectory Calc'!$A$6:$CQ$92,MATCH('Rate Trajectory Report'!$B44,'Rate Trajectory Calc'!$A$6:$A$92,0),MATCH('Rate Trajectory Report'!L$5,'Rate Trajectory Calc'!$A$6:$CQ$6,0))=0,\" \",INDEX('Rate Trajectory Calc'!$A$6:$CQ$92,MATCH('Rate Trajectory Report'!$B44,'Rate Trajectory Calc'!$A$6:$A$92,0),MATCH('Rate Trajectory Report'!L$5,'Rate Trajectory Calc'!$A$6:$CQ$6,0))/1000)","v":" "},{"$f":"IF(INDEX('Rate Trajectory Calc'!$A$6:$CQ$92,MATCH('Rate Trajectory Report'!$B44,'Rate Trajectory Calc'!$A$6:$A$92,0),MATCH('Rate Trajectory Report'!M$5,'Rate Trajectory Calc'!$A$6:$CQ$6,0))=0,\" \",INDEX('Rate Trajectory Calc'!$A$6:$CQ$92,MATCH('Rate Trajectory Report'!$B44,'Rate Trajectory Calc'!$A$6:$A$92,0),MATCH('Rate Trajectory Report'!M$5,'Rate Trajectory Calc'!$A$6:$CQ$6,0))/1000)","v":" "},{"$f":"IF(INDEX('Rate Trajectory Calc'!$A$6:$CQ$92,MATCH('Rate Trajectory Report'!$B44,'Rate Trajectory Calc'!$A$6:$A$92,0),MATCH('Rate Trajectory Report'!N$5,'Rate Trajectory Calc'!$A$6:$CQ$6,0))=0,\" \",INDEX('Rate Trajectory Calc'!$A$6:$CQ$92,MATCH('Rate Trajectory Report'!$B44,'Rate Trajectory Calc'!$A$6:$A$92,0),MATCH('Rate Trajectory Report'!N$5,'Rate Trajectory Calc'!$A$6:$CQ$6,0))/1000)","v":" "},{"$f":"IF(INDEX('Rate Trajectory Calc'!$A$6:$CQ$92,MATCH('Rate Trajectory Report'!$B44,'Rate Trajectory Calc'!$A$6:$A$92,0),MATCH('Rate Trajectory Report'!O$5,'Rate Trajectory Calc'!$A$6:$CQ$6,0))=0,\" \",INDEX('Rate Trajectory Calc'!$A$6:$CQ$92,MATCH('Rate Trajectory Report'!$B44,'Rate Trajectory Calc'!$A$6:$A$92,0),MATCH('Rate Trajectory Report'!O$5,'Rate Trajectory Calc'!$A$6:$CQ$6,0))/1000)","v":" "},{"$f":"IF(INDEX('Rate Trajectory Calc'!$A$6:$CQ$92,MATCH('Rate Trajectory Report'!$B44,'Rate Trajectory Calc'!$A$6:$A$92,0),MATCH('Rate Trajectory Report'!P$5,'Rate Trajectory Calc'!$A$6:$CQ$6,0))=0,\" \",INDEX('Rate Trajectory Calc'!$A$6:$CQ$92,MATCH('Rate Trajectory Report'!$B44,'Rate Trajectory Calc'!$A$6:$A$92,0),MATCH('Rate Trajectory Report'!P$5,'Rate Trajectory Calc'!$A$6:$CQ$6,0))/1000)","v":" "},{"$f":"IF(INDEX('Rate Trajectory Calc'!$A$6:$CQ$92,MATCH('Rate Trajectory Report'!$B44,'Rate Trajectory Calc'!$A$6:$A$92,0),MATCH('Rate Trajectory Report'!Q$5,'Rate Trajectory Calc'!$A$6:$CQ$6,0))=0,\" \",INDEX('Rate Trajectory Calc'!$A$6:$CQ$92,MATCH('Rate Trajectory Report'!$B44,'Rate Trajectory Calc'!$A$6:$A$92,0),MATCH('Rate Trajectory Report'!Q$5,'Rate Trajectory Calc'!$A$6:$CQ$6,0))/1000)","v":" "},{"$f":"IF(INDEX('Rate Trajectory Calc'!$A$6:$CQ$92,MATCH('Rate Trajectory Report'!$B44,'Rate Trajectory Calc'!$A$6:$A$92,0),MATCH('Rate Trajectory Report'!R$5,'Rate Trajectory Calc'!$A$6:$CQ$6,0))=0,\" \",INDEX('Rate Trajectory Calc'!$A$6:$CQ$92,MATCH('Rate Trajectory Report'!$B44,'Rate Trajectory Calc'!$A$6:$A$92,0),MATCH('Rate Trajectory Report'!R$5,'Rate Trajectory Calc'!$A$6:$CQ$6,0))/1000)","v":" "},{"$f":"IF(INDEX('Rate Trajectory Calc'!$A$6:$CQ$92,MATCH('Rate Trajectory Report'!$B44,'Rate Trajectory Calc'!$A$6:$A$92,0),MATCH('Rate Trajectory Report'!S$5,'Rate Trajectory Calc'!$A$6:$CQ$6,0))=0,\" \",INDEX('Rate Trajectory Calc'!$A$6:$CQ$92,MATCH('Rate Trajectory Report'!$B44,'Rate Trajectory Calc'!$A$6:$A$92,0),MATCH('Rate Trajectory Report'!S$5,'Rate Trajectory Calc'!$A$6:$CQ$6,0))/1000)","v":" "},{"$f":"IF(INDEX('Rate Trajectory Calc'!$A$6:$CQ$92,MATCH('Rate Trajectory Report'!$B44,'Rate Trajectory Calc'!$A$6:$A$92,0),MATCH('Rate Trajectory Report'!T$5,'Rate Trajectory Calc'!$A$6:$CQ$6,0))=0,\" \",INDEX('Rate Trajectory Calc'!$A$6:$CQ$92,MATCH('Rate Trajectory Report'!$B44,'Rate Trajectory Calc'!$A$6:$A$92,0),MATCH('Rate Trajectory Report'!T$5,'Rate Trajectory Calc'!$A$6:$CQ$6,0))/1000)","v":-84.23076028112871},{"$f":"IF(INDEX('Rate Trajectory Calc'!$A$6:$CQ$92,MATCH('Rate Trajectory Report'!$B44,'Rate Trajectory Calc'!$A$6:$A$92,0),MATCH('Rate Trajectory Report'!U$5,'Rate Trajectory Calc'!$A$6:$CQ$6,0))=0,\" \",INDEX('Rate Trajectory Calc'!$A$6:$CQ$92,MATCH('Rate Trajectory Report'!$B44,'Rate Trajectory Calc'!$A$6:$A$92,0),MATCH('Rate Trajectory Report'!U$5,'Rate Trajectory Calc'!$A$6:$CQ$6,0))/1000)","v":" "},{"$f":"IF(INDEX('Rate Trajectory Calc'!$A$6:$CQ$92,MATCH('Rate Trajectory Report'!$B44,'Rate Trajectory Calc'!$A$6:$A$92,0),MATCH('Rate Trajectory Report'!V$5,'Rate Trajectory Calc'!$A$6:$CQ$6,0))=0,\" \",INDEX('Rate Trajectory Calc'!$A$6:$CQ$92,MATCH('Rate Trajectory Report'!$B44,'Rate Trajectory Calc'!$A$6:$A$92,0),MATCH('Rate Trajectory Report'!V$5,'Rate Trajectory Calc'!$A$6:$CQ$6,0))/1000)","v":" "},{"$f":"IF(INDEX('Rate Trajectory Calc'!$A$6:$CQ$92,MATCH('Rate Trajectory Report'!$B44,'Rate Trajectory Calc'!$A$6:$A$92,0),MATCH('Rate Trajectory Report'!W$5,'Rate Trajectory Calc'!$A$6:$CQ$6,0))=0,\" \",INDEX('Rate Trajectory Calc'!$A$6:$CQ$92,MATCH('Rate Trajectory Report'!$B44,'Rate Trajectory Calc'!$A$6:$A$92,0),MATCH('Rate Trajectory Report'!W$5,'Rate Trajectory Calc'!$A$6:$CQ$6,0))/1000)","v":" "},{"$f":"IF(INDEX('Rate Trajectory Calc'!$A$6:$CQ$92,MATCH('Rate Trajectory Report'!$B44,'Rate Trajectory Calc'!$A$6:$A$92,0),MATCH('Rate Trajectory Report'!X$5,'Rate Trajectory Calc'!$A$6:$CQ$6,0))=0,\" \",INDEX('Rate Trajectory Calc'!$A$6:$CQ$92,MATCH('Rate Trajectory Report'!$B44,'Rate Trajectory Calc'!$A$6:$A$92,0),MATCH('Rate Trajectory Report'!X$5,'Rate Trajectory Calc'!$A$6:$CQ$6,0))/1000)","v":" "},{"$f":"IF(INDEX('Rate Trajectory Calc'!$A$6:$CQ$92,MATCH('Rate Trajectory Report'!$B44,'Rate Trajectory Calc'!$A$6:$A$92,0),MATCH('Rate Trajectory Report'!Y$5,'Rate Trajectory Calc'!$A$6:$CQ$6,0))=0,\" \",INDEX('Rate Trajectory Calc'!$A$6:$CQ$92,MATCH('Rate Trajectory Report'!$B44,'Rate Trajectory Calc'!$A$6:$A$92,0),MATCH('Rate Trajectory Report'!Y$5,'Rate Trajectory Calc'!$A$6:$CQ$6,0))/1000)","v":" "},{"$f":"IF(INDEX('Rate Trajectory Calc'!$A$6:$CQ$92,MATCH('Rate Trajectory Report'!$B44,'Rate Trajectory Calc'!$A$6:$A$92,0),MATCH('Rate Trajectory Report'!Z$5,'Rate Trajectory Calc'!$A$6:$CQ$6,0))=0,\" \",INDEX('Rate Trajectory Calc'!$A$6:$CQ$92,MATCH('Rate Trajectory Report'!$B44,'Rate Trajectory Calc'!$A$6:$A$92,0),MATCH('Rate Trajectory Report'!Z$5,'Rate Trajectory Calc'!$A$6:$CQ$6,0))/1000)","v":" "},{"$f":"IF(INDEX('Rate Trajectory Calc'!$A$6:$CQ$92,MATCH('Rate Trajectory Report'!$B44,'Rate Trajectory Calc'!$A$6:$A$92,0),MATCH('Rate Trajectory Report'!AA$5,'Rate Trajectory Calc'!$A$6:$CQ$6,0))=0,\" \",INDEX('Rate Trajectory Calc'!$A$6:$CQ$92,MATCH('Rate Trajectory Report'!$B44,'Rate Trajectory Calc'!$A$6:$A$92,0),MATCH('Rate Trajectory Report'!AA$5,'Rate Trajectory Calc'!$A$6:$CQ$6,0))/1000)","v":" "}]
[null,{"$f":"'Rate Trajectory Dashboard'!B40","v":"2026 Cost of Capital (Transmission) - Year 2027"},{"$f":"IFERROR(VLOOKUP(B45,'Rate Trajectory Dashboard'!$B$12:$D$96,3,FALSE)/1000,'Rate Trajectory Report'!C44)","v":0},{"$f":"IF(INDEX('Rate Trajectory Calc'!$A$6:$CQ$92,MATCH('Rate Trajectory Report'!$B45,'Rate Trajectory Calc'!$A$6:$A$92,0),MATCH('Rate Trajectory Report'!D$5,'Rate Trajectory Calc'!$A$6:$CQ$6,0))=0,\" \",INDEX('Rate Trajectory Calc'!$A$6:$CQ$92,MATCH('Rate Trajectory Report'!$B45,'Rate Trajectory Calc'!$A$6:$A$92,0),MATCH('Rate Trajectory Report'!D$5,'Rate Trajectory Calc'!$A$6:$CQ$6,0))/1000)","v":" "},{"$f":"IF(INDEX('Rate Trajectory Calc'!$A$6:$CQ$92,MATCH('Rate Trajectory Report'!$B45,'Rate Trajectory Calc'!$A$6:$A$92,0),MATCH('Rate Trajectory Report'!E$5,'Rate Trajectory Calc'!$A$6:$CQ$6,0))=0,\" \",INDEX('Rate Trajectory Calc'!$A$6:$CQ$92,MATCH('Rate Trajectory Report'!$B45,'Rate Trajectory Calc'!$A$6:$A$92,0),MATCH('Rate Trajectory Report'!E$5,'Rate Trajectory Calc'!$A$6:$CQ$6,0))/1000)","v":" "},{"$f":"IF(INDEX('Rate Trajectory Calc'!$A$6:$CQ$92,MATCH('Rate Trajectory Report'!$B45,'Rate Trajectory Calc'!$A$6:$A$92,0),MATCH('Rate Trajectory Report'!F$5,'Rate Trajectory Calc'!$A$6:$CQ$6,0))=0,\" \",INDEX('Rate Trajectory Calc'!$A$6:$CQ$92,MATCH('Rate Trajectory Report'!$B45,'Rate Trajectory Calc'!$A$6:$A$92,0),MATCH('Rate Trajectory Report'!F$5,'Rate Trajectory Calc'!$A$6:$CQ$6,0))/1000)","v":" "},{"$f":"IF(INDEX('Rate Trajectory Calc'!$A$6:$CQ$92,MATCH('Rate Trajectory Report'!$B45,'Rate Trajectory Calc'!$A$6:$A$92,0),MATCH('Rate Trajectory Report'!G$5,'Rate Trajectory Calc'!$A$6:$CQ$6,0))=0,\" \",INDEX('Rate Trajectory Calc'!$A$6:$CQ$92,MATCH('Rate Trajectory Report'!$B45,'Rate Trajectory Calc'!$A$6:$A$92,0),MATCH('Rate Trajectory Report'!G$5,'Rate Trajectory Calc'!$A$6:$CQ$6,0))/1000)","v":" "},{"$f":"IF(INDEX('Rate Trajectory Calc'!$A$6:$CQ$92,MATCH('Rate Trajectory Report'!$B45,'Rate Trajectory Calc'!$A$6:$A$92,0),MATCH('Rate Trajectory Report'!H$5,'Rate Trajectory Calc'!$A$6:$CQ$6,0))=0,\" \",INDEX('Rate Trajectory Calc'!$A$6:$CQ$92,MATCH('Rate Trajectory Report'!$B45,'Rate Trajectory Calc'!$A$6:$A$92,0),MATCH('Rate Trajectory Report'!H$5,'Rate Trajectory Calc'!$A$6:$CQ$6,0))/1000)","v":" "},{"$f":"IF(INDEX('Rate Trajectory Calc'!$A$6:$CQ$92,MATCH('Rate Trajectory Report'!$B45,'Rate Trajectory Calc'!$A$6:$A$92,0),MATCH('Rate Trajectory Report'!I$5,'Rate Trajectory Calc'!$A$6:$CQ$6,0))=0,\" \",INDEX('Rate Trajectory Calc'!$A$6:$CQ$92,MATCH('Rate Trajectory Report'!$B45,'Rate Trajectory Calc'!$A$6:$A$92,0),MATCH('Rate Trajectory Report'!I$5,'Rate Trajectory Calc'!$A$6:$CQ$6,0))/1000)","v":" "},{"$f":"IF(INDEX('Rate Trajectory Calc'!$A$6:$CQ$92,MATCH('Rate Trajectory Report'!$B45,'Rate Trajectory Calc'!$A$6:$A$92,0),MATCH('Rate Trajectory Report'!J$5,'Rate Trajectory Calc'!$A$6:$CQ$6,0))=0,\" \",INDEX('Rate Trajectory Calc'!$A$6:$CQ$92,MATCH('Rate Trajectory Report'!$B45,'Rate Trajectory Calc'!$A$6:$A$92,0),MATCH('Rate Trajectory Report'!J$5,'Rate Trajectory Calc'!$A$6:$CQ$6,0))/1000)","v":" "},{"$f":"IF(INDEX('Rate Trajectory Calc'!$A$6:$CQ$92,MATCH('Rate Trajectory Report'!$B45,'Rate Trajectory Calc'!$A$6:$A$92,0),MATCH('Rate Trajectory Report'!K$5,'Rate Trajectory Calc'!$A$6:$CQ$6,0))=0,\" \",INDEX('Rate Trajectory Calc'!$A$6:$CQ$92,MATCH('Rate Trajectory Report'!$B45,'Rate Trajectory Calc'!$A$6:$A$92,0),MATCH('Rate Trajectory Report'!K$5,'Rate Trajectory Calc'!$A$6:$CQ$6,0))/1000)","v":" "},{"$f":"IF(INDEX('Rate Trajectory Calc'!$A$6:$CQ$92,MATCH('Rate Trajectory Report'!$B45,'Rate Trajectory Calc'!$A$6:$A$92,0),MATCH('Rate Trajectory Report'!L$5,'Rate Trajectory Calc'!$A$6:$CQ$6,0))=0,\" \",INDEX('Rate Trajectory Calc'!$A$6:$CQ$92,MATCH('Rate Trajectory Report'!$B45,'Rate Trajectory Calc'!$A$6:$A$92,0),MATCH('Rate Trajectory Report'!L$5,'Rate Trajectory Calc'!$A$6:$CQ$6,0))/1000)","v":" "},{"$f":"IF(INDEX('Rate Trajectory Calc'!$A$6:$CQ$92,MATCH('Rate Trajectory Report'!$B45,'Rate Trajectory Calc'!$A$6:$A$92,0),MATCH('Rate Trajectory Report'!M$5,'Rate Trajectory Calc'!$A$6:$CQ$6,0))=0,\" \",INDEX('Rate Trajectory Calc'!$A$6:$CQ$92,MATCH('Rate Trajectory Report'!$B45,'Rate Trajectory Calc'!$A$6:$A$92,0),MATCH('Rate Trajectory Report'!M$5,'Rate Trajectory Calc'!$A$6:$CQ$6,0))/1000)","v":" "},{"$f":"IF(INDEX('Rate Trajectory Calc'!$A$6:$CQ$92,MATCH('Rate Trajectory Report'!$B45,'Rate Trajectory Calc'!$A$6:$A$92,0),MATCH('Rate Trajectory Report'!N$5,'Rate Trajectory Calc'!$A$6:$CQ$6,0))=0,\" \",INDEX('Rate Trajectory Calc'!$A$6:$CQ$92,MATCH('Rate Trajectory Report'!$B45,'Rate Trajectory Calc'!$A$6:$A$92,0),MATCH('Rate Trajectory Report'!N$5,'Rate Trajectory Calc'!$A$6:$CQ$6,0))/1000)","v":" "},{"$f":"IF(INDEX('Rate Trajectory Calc'!$A$6:$CQ$92,MATCH('Rate Trajectory Report'!$B45,'Rate Trajectory Calc'!$A$6:$A$92,0),MATCH('Rate Trajectory Report'!O$5,'Rate Trajectory Calc'!$A$6:$CQ$6,0))=0,\" \",INDEX('Rate Trajectory Calc'!$A$6:$CQ$92,MATCH('Rate Trajectory Report'!$B45,'Rate Trajectory Calc'!$A$6:$A$92,0),MATCH('Rate Trajectory Report'!O$5,'Rate Trajectory Calc'!$A$6:$CQ$6,0))/1000)","v":" "},{"$f":"IF(INDEX('Rate Trajectory Calc'!$A$6:$CQ$92,MATCH('Rate Trajectory Report'!$B45,'Rate Trajectory Calc'!$A$6:$A$92,0),MATCH('Rate Trajectory Report'!P$5,'Rate Trajectory Calc'!$A$6:$CQ$6,0))=0,\" \",INDEX('Rate Trajectory Calc'!$A$6:$CQ$92,MATCH('Rate Trajectory Report'!$B45,'Rate Trajectory Calc'!$A$6:$A$92,0),MATCH('Rate Trajectory Report'!P$5,'Rate Trajectory Calc'!$A$6:$CQ$6,0))/1000)","v":" "},{"$f":"IF(INDEX('Rate Trajectory Calc'!$A$6:$CQ$92,MATCH('Rate Trajectory Report'!$B45,'Rate Trajectory Calc'!$A$6:$A$92,0),MATCH('Rate Trajectory Report'!Q$5,'Rate Trajectory Calc'!$A$6:$CQ$6,0))=0,\" \",INDEX('Rate Trajectory Calc'!$A$6:$CQ$92,MATCH('Rate Trajectory Report'!$B45,'Rate Trajectory Calc'!$A$6:$A$92,0),MATCH('Rate Trajectory Report'!Q$5,'Rate Trajectory Calc'!$A$6:$CQ$6,0))/1000)","v":" "},{"$f":"IF(INDEX('Rate Trajectory Calc'!$A$6:$CQ$92,MATCH('Rate Trajectory Report'!$B45,'Rate Trajectory Calc'!$A$6:$A$92,0),MATCH('Rate Trajectory Report'!R$5,'Rate Trajectory Calc'!$A$6:$CQ$6,0))=0,\" \",INDEX('Rate Trajectory Calc'!$A$6:$CQ$92,MATCH('Rate Trajectory Report'!$B45,'Rate Trajectory Calc'!$A$6:$A$92,0),MATCH('Rate Trajectory Report'!R$5,'Rate Trajectory Calc'!$A$6:$CQ$6,0))/1000)","v":" "},{"$f":"IF(INDEX('Rate Trajectory Calc'!$A$6:$CQ$92,MATCH('Rate Trajectory Report'!$B45,'Rate Trajectory Calc'!$A$6:$A$92,0),MATCH('Rate Trajectory Report'!S$5,'Rate Trajectory Calc'!$A$6:$CQ$6,0))=0,\" \",INDEX('Rate Trajectory Calc'!$A$6:$CQ$92,MATCH('Rate Trajectory Report'!$B45,'Rate Trajectory Calc'!$A$6:$A$92,0),MATCH('Rate Trajectory Report'!S$5,'Rate Trajectory Calc'!$A$6:$CQ$6,0))/1000)","v":" "},{"$f":"IF(INDEX('Rate Trajectory Calc'!$A$6:$CQ$92,MATCH('Rate Trajectory Report'!$B45,'Rate Trajectory Calc'!$A$6:$A$92,0),MATCH('Rate Trajectory Report'!T$5,'Rate Trajectory Calc'!$A$6:$CQ$6,0))=0,\" \",INDEX('Rate Trajectory Calc'!$A$6:$CQ$92,MATCH('Rate Trajectory Report'!$B45,'Rate Trajectory Calc'!$A$6:$A$92,0),MATCH('Rate Trajectory Report'!T$5,'Rate Trajectory Calc'!$A$6:$CQ$6,0))/1000)","v":84.23076028112871},{"$f":"IF(INDEX('Rate Trajectory Calc'!$A$6:$CQ$92,MATCH('Rate Trajectory Report'!$B45,'Rate Trajectory Calc'!$A$6:$A$92,0),MATCH('Rate Trajectory Report'!U$5,'Rate Trajectory Calc'!$A$6:$CQ$6,0))=0,\" \",INDEX('Rate Trajectory Calc'!$A$6:$CQ$92,MATCH('Rate Trajectory Report'!$B45,'Rate Trajectory Calc'!$A$6:$A$92,0),MATCH('Rate Trajectory Report'!U$5,'Rate Trajectory Calc'!$A$6:$CQ$6,0))/1000)","v":" "},{"$f":"IF(INDEX('Rate Trajectory Calc'!$A$6:$CQ$92,MATCH('Rate Trajectory Report'!$B45,'Rate Trajectory Calc'!$A$6:$A$92,0),MATCH('Rate Trajectory Report'!V$5,'Rate Trajectory Calc'!$A$6:$CQ$6,0))=0,\" \",INDEX('Rate Trajectory Calc'!$A$6:$CQ$92,MATCH('Rate Trajectory Report'!$B45,'Rate Trajectory Calc'!$A$6:$A$92,0),MATCH('Rate Trajectory Report'!V$5,'Rate Trajectory Calc'!$A$6:$CQ$6,0))/1000)","v":" "},{"$f":"IF(INDEX('Rate Trajectory Calc'!$A$6:$CQ$92,MATCH('Rate Trajectory Report'!$B45,'Rate Trajectory Calc'!$A$6:$A$92,0),MATCH('Rate Trajectory Report'!W$5,'Rate Trajectory Calc'!$A$6:$CQ$6,0))=0,\" \",INDEX('Rate Trajectory Calc'!$A$6:$CQ$92,MATCH('Rate Trajectory Report'!$B45,'Rate Trajectory Calc'!$A$6:$A$92,0),MATCH('Rate Trajectory Report'!W$5,'Rate Trajectory Calc'!$A$6:$CQ$6,0))/1000)","v":" "},{"$f":"IF(INDEX('Rate Trajectory Calc'!$A$6:$CQ$92,MATCH('Rate Trajectory Report'!$B45,'Rate Trajectory Calc'!$A$6:$A$92,0),MATCH('Rate Trajectory Report'!X$5,'Rate Trajectory Calc'!$A$6:$CQ$6,0))=0,\" \",INDEX('Rate Trajectory Calc'!$A$6:$CQ$92,MATCH('Rate Trajectory Report'!$B45,'Rate Trajectory Calc'!$A$6:$A$92,0),MATCH('Rate Trajectory Report'!X$5,'Rate Trajectory Calc'!$A$6:$CQ$6,0))/1000)","v":" "},{"$f":"IF(INDEX('Rate Trajectory Calc'!$A$6:$CQ$92,MATCH('Rate Trajectory Report'!$B45,'Rate Trajectory Calc'!$A$6:$A$92,0),MATCH('Rate Trajectory Report'!Y$5,'Rate Trajectory Calc'!$A$6:$CQ$6,0))=0,\" \",INDEX('Rate Trajectory Calc'!$A$6:$CQ$92,MATCH('Rate Trajectory Report'!$B45,'Rate Trajectory Calc'!$A$6:$A$92,0),MATCH('Rate Trajectory Report'!Y$5,'Rate Trajectory Calc'!$A$6:$CQ$6,0))/1000)","v":" "},{"$f":"IF(INDEX('Rate Trajectory Calc'!$A$6:$CQ$92,MATCH('Rate Trajectory Report'!$B45,'Rate Trajectory Calc'!$A$6:$A$92,0),MATCH('Rate Trajectory Report'!Z$5,'Rate Trajectory Calc'!$A$6:$CQ$6,0))=0,\" \",INDEX('Rate Trajectory Calc'!$A$6:$CQ$92,MATCH('Rate Trajectory Report'!$B45,'Rate Trajectory Calc'!$A$6:$A$92,0),MATCH('Rate Trajectory Report'!Z$5,'Rate Trajectory Calc'!$A$6:$CQ$6,0))/1000)","v":" "},{"$f":"IF(INDEX('Rate Trajectory Calc'!$A$6:$CQ$92,MATCH('Rate Trajectory Report'!$B45,'Rate Trajectory Calc'!$A$6:$A$92,0),MATCH('Rate Trajectory Report'!AA$5,'Rate Trajectory Calc'!$A$6:$CQ$6,0))=0,\" \",INDEX('Rate Trajectory Calc'!$A$6:$CQ$92,MATCH('Rate Trajectory Report'!$B45,'Rate Trajectory Calc'!$A$6:$A$92,0),MATCH('Rate Trajectory Report'!AA$5,'Rate Trajectory Calc'!$A$6:$CQ$6,0))/1000)","v":" "}]
[null,{"$f":"'Rate Trajectory Dashboard'!B41","v":"2026 Cost of Capital (Transmission) - Year 2028"},{"$f":"IFERROR(VLOOKUP(B46,'Rate Trajectory Dashboard'!$B$12:$D$96,3,FALSE)/1000,'Rate Trajectory Report'!C45)","v":0},{"$f":"IF(INDEX('Rate Trajectory Calc'!$A$6:$CQ$92,MATCH('Rate Trajectory Report'!$B46,'Rate Trajectory Calc'!$A$6:$A$92,0),MATCH('Rate Trajectory Report'!D$5,'Rate Trajectory Calc'!$A$6:$CQ$6,0))=0,\" \",INDEX('Rate Trajectory Calc'!$A$6:$CQ$92,MATCH('Rate Trajectory Report'!$B46,'Rate Trajectory Calc'!$A$6:$A$92,0),MATCH('Rate Trajectory Report'!D$5,'Rate Trajectory Calc'!$A$6:$CQ$6,0))/1000)","v":" "},{"$f":"IF(INDEX('Rate Trajectory Calc'!$A$6:$CQ$92,MATCH('Rate Trajectory Report'!$B46,'Rate Trajectory Calc'!$A$6:$A$92,0),MATCH('Rate Trajectory Report'!E$5,'Rate Trajectory Calc'!$A$6:$CQ$6,0))=0,\" \",INDEX('Rate Trajectory Calc'!$A$6:$CQ$92,MATCH('Rate Trajectory Report'!$B46,'Rate Trajectory Calc'!$A$6:$A$92,0),MATCH('Rate Trajectory Report'!E$5,'Rate Trajectory Calc'!$A$6:$CQ$6,0))/1000)","v":" "},{"$f":"IF(INDEX('Rate Trajectory Calc'!$A$6:$CQ$92,MATCH('Rate Trajectory Report'!$B46,'Rate Trajectory Calc'!$A$6:$A$92,0),MATCH('Rate Trajectory Report'!F$5,'Rate Trajectory Calc'!$A$6:$CQ$6,0))=0,\" \",INDEX('Rate Trajectory Calc'!$A$6:$CQ$92,MATCH('Rate Trajectory Report'!$B46,'Rate Trajectory Calc'!$A$6:$A$92,0),MATCH('Rate Trajectory Report'!F$5,'Rate Trajectory Calc'!$A$6:$CQ$6,0))/1000)","v":" "},{"$f":"IF(INDEX('Rate Trajectory Calc'!$A$6:$CQ$92,MATCH('Rate Trajectory Report'!$B46,'Rate Trajectory Calc'!$A$6:$A$92,0),MATCH('Rate Trajectory Report'!G$5,'Rate Trajectory Calc'!$A$6:$CQ$6,0))=0,\" \",INDEX('Rate Trajectory Calc'!$A$6:$CQ$92,MATCH('Rate Trajectory Report'!$B46,'Rate Trajectory Calc'!$A$6:$A$92,0),MATCH('Rate Trajectory Report'!G$5,'Rate Trajectory Calc'!$A$6:$CQ$6,0))/1000)","v":" "},{"$f":"IF(INDEX('Rate Trajectory Calc'!$A$6:$CQ$92,MATCH('Rate Trajectory Report'!$B46,'Rate Trajectory Calc'!$A$6:$A$92,0),MATCH('Rate Trajectory Report'!H$5,'Rate Trajectory Calc'!$A$6:$CQ$6,0))=0,\" \",INDEX('Rate Trajectory Calc'!$A$6:$CQ$92,MATCH('Rate Trajectory Report'!$B46,'Rate Trajectory Calc'!$A$6:$A$92,0),MATCH('Rate Trajectory Report'!H$5,'Rate Trajectory Calc'!$A$6:$CQ$6,0))/1000)","v":" "},{"$f":"IF(INDEX('Rate Trajectory Calc'!$A$6:$CQ$92,MATCH('Rate Trajectory Report'!$B46,'Rate Trajectory Calc'!$A$6:$A$92,0),MATCH('Rate Trajectory Report'!I$5,'Rate Trajectory Calc'!$A$6:$CQ$6,0))=0,\" \",INDEX('Rate Trajectory Calc'!$A$6:$CQ$92,MATCH('Rate Trajectory Report'!$B46,'Rate Trajectory Calc'!$A$6:$A$92,0),MATCH('Rate Trajectory Report'!I$5,'Rate Trajectory Calc'!$A$6:$CQ$6,0))/1000)","v":" "},{"$f":"IF(INDEX('Rate Trajectory Calc'!$A$6:$CQ$92,MATCH('Rate Trajectory Report'!$B46,'Rate Trajectory Calc'!$A$6:$A$92,0),MATCH('Rate Trajectory Report'!J$5,'Rate Trajectory Calc'!$A$6:$CQ$6,0))=0,\" \",INDEX('Rate Trajectory Calc'!$A$6:$CQ$92,MATCH('Rate Trajectory Report'!$B46,'Rate Trajectory Calc'!$A$6:$A$92,0),MATCH('Rate Trajectory Report'!J$5,'Rate Trajectory Calc'!$A$6:$CQ$6,0))/1000)","v":" "},{"$f":"IF(INDEX('Rate Trajectory Calc'!$A$6:$CQ$92,MATCH('Rate Trajectory Report'!$B46,'Rate Trajectory Calc'!$A$6:$A$92,0),MATCH('Rate Trajectory Report'!K$5,'Rate Trajectory Calc'!$A$6:$CQ$6,0))=0,\" \",INDEX('Rate Trajectory Calc'!$A$6:$CQ$92,MATCH('Rate Trajectory Report'!$B46,'Rate Trajectory Calc'!$A$6:$A$92,0),MATCH('Rate Trajectory Report'!K$5,'Rate Trajectory Calc'!$A$6:$CQ$6,0))/1000)","v":" "},{"$f":"IF(INDEX('Rate Trajectory Calc'!$A$6:$CQ$92,MATCH('Rate Trajectory Report'!$B46,'Rate Trajectory Calc'!$A$6:$A$92,0),MATCH('Rate Trajectory Report'!L$5,'Rate Trajectory Calc'!$A$6:$CQ$6,0))=0,\" \",INDEX('Rate Trajectory Calc'!$A$6:$CQ$92,MATCH('Rate Trajectory Report'!$B46,'Rate Trajectory Calc'!$A$6:$A$92,0),MATCH('Rate Trajectory Report'!L$5,'Rate Trajectory Calc'!$A$6:$CQ$6,0))/1000)","v":" "},{"$f":"IF(INDEX('Rate Trajectory Calc'!$A$6:$CQ$92,MATCH('Rate Trajectory Report'!$B46,'Rate Trajectory Calc'!$A$6:$A$92,0),MATCH('Rate Trajectory Report'!M$5,'Rate Trajectory Calc'!$A$6:$CQ$6,0))=0,\" \",INDEX('Rate Trajectory Calc'!$A$6:$CQ$92,MATCH('Rate Trajectory Report'!$B46,'Rate Trajectory Calc'!$A$6:$A$92,0),MATCH('Rate Trajectory Report'!M$5,'Rate Trajectory Calc'!$A$6:$CQ$6,0))/1000)","v":" "},{"$f":"IF(INDEX('Rate Trajectory Calc'!$A$6:$CQ$92,MATCH('Rate Trajectory Report'!$B46,'Rate Trajectory Calc'!$A$6:$A$92,0),MATCH('Rate Trajectory Report'!N$5,'Rate Trajectory Calc'!$A$6:$CQ$6,0))=0,\" \",INDEX('Rate Trajectory Calc'!$A$6:$CQ$92,MATCH('Rate Trajectory Report'!$B46,'Rate Trajectory Calc'!$A$6:$A$92,0),MATCH('Rate Trajectory Report'!N$5,'Rate Trajectory Calc'!$A$6:$CQ$6,0))/1000)","v":" "},{"$f":"IF(INDEX('Rate Trajectory Calc'!$A$6:$CQ$92,MATCH('Rate Trajectory Report'!$B46,'Rate Trajectory Calc'!$A$6:$A$92,0),MATCH('Rate Trajectory Report'!O$5,'Rate Trajectory Calc'!$A$6:$CQ$6,0))=0,\" \",INDEX('Rate Trajectory Calc'!$A$6:$CQ$92,MATCH('Rate Trajectory Report'!$B46,'Rate Trajectory Calc'!$A$6:$A$92,0),MATCH('Rate Trajectory Report'!O$5,'Rate Trajectory Calc'!$A$6:$CQ$6,0))/1000)","v":" "},{"$f":"IF(INDEX('Rate Trajectory Calc'!$A$6:$CQ$92,MATCH('Rate Trajectory Report'!$B46,'Rate Trajectory Calc'!$A$6:$A$92,0),MATCH('Rate Trajectory Report'!P$5,'Rate Trajectory Calc'!$A$6:$CQ$6,0))=0,\" \",INDEX('Rate Trajectory Calc'!$A$6:$CQ$92,MATCH('Rate Trajectory Report'!$B46,'Rate Trajectory Calc'!$A$6:$A$92,0),MATCH('Rate Trajectory Report'!P$5,'Rate Trajectory Calc'!$A$6:$CQ$6,0))/1000)","v":" "},{"$f":"IF(INDEX('Rate Trajectory Calc'!$A$6:$CQ$92,MATCH('Rate Trajectory Report'!$B46,'Rate Trajectory Calc'!$A$6:$A$92,0),MATCH('Rate Trajectory Report'!Q$5,'Rate Trajectory Calc'!$A$6:$CQ$6,0))=0,\" \",INDEX('Rate Trajectory Calc'!$A$6:$CQ$92,MATCH('Rate Trajectory Report'!$B46,'Rate Trajectory Calc'!$A$6:$A$92,0),MATCH('Rate Trajectory Report'!Q$5,'Rate Trajectory Calc'!$A$6:$CQ$6,0))/1000)","v":" "},{"$f":"IF(INDEX('Rate Trajectory Calc'!$A$6:$CQ$92,MATCH('Rate Trajectory Report'!$B46,'Rate Trajectory Calc'!$A$6:$A$92,0),MATCH('Rate Trajectory Report'!R$5,'Rate Trajectory Calc'!$A$6:$CQ$6,0))=0,\" \",INDEX('Rate Trajectory Calc'!$A$6:$CQ$92,MATCH('Rate Trajectory Report'!$B46,'Rate Trajectory Calc'!$A$6:$A$92,0),MATCH('Rate Trajectory Report'!R$5,'Rate Trajectory Calc'!$A$6:$CQ$6,0))/1000)","v":" "},{"$f":"IF(INDEX('Rate Trajectory Calc'!$A$6:$CQ$92,MATCH('Rate Trajectory Report'!$B46,'Rate Trajectory Calc'!$A$6:$A$92,0),MATCH('Rate Trajectory Report'!S$5,'Rate Trajectory Calc'!$A$6:$CQ$6,0))=0,\" \",INDEX('Rate Trajectory Calc'!$A$6:$CQ$92,MATCH('Rate Trajectory Report'!$B46,'Rate Trajectory Calc'!$A$6:$A$92,0),MATCH('Rate Trajectory Report'!S$5,'Rate Trajectory Calc'!$A$6:$CQ$6,0))/1000)","v":" "},{"$f":"IF(INDEX('Rate Trajectory Calc'!$A$6:$CQ$92,MATCH('Rate Trajectory Report'!$B46,'Rate Trajectory Calc'!$A$6:$A$92,0),MATCH('Rate Trajectory Report'!T$5,'Rate Trajectory Calc'!$A$6:$CQ$6,0))=0,\" \",INDEX('Rate Trajectory Calc'!$A$6:$CQ$92,MATCH('Rate Trajectory Report'!$B46,'Rate Trajectory Calc'!$A$6:$A$92,0),MATCH('Rate Trajectory Report'!T$5,'Rate Trajectory Calc'!$A$6:$CQ$6,0))/1000)","v":" "},{"$f":"IF(INDEX('Rate Trajectory Calc'!$A$6:$CQ$92,MATCH('Rate Trajectory Report'!$B46,'Rate Trajectory Calc'!$A$6:$A$92,0),MATCH('Rate Trajectory Report'!U$5,'Rate Trajectory Calc'!$A$6:$CQ$6,0))=0,\" \",INDEX('Rate Trajectory Calc'!$A$6:$CQ$92,MATCH('Rate Trajectory Report'!$B46,'Rate Trajectory Calc'!$A$6:$A$92,0),MATCH('Rate Trajectory Report'!U$5,'Rate Trajectory Calc'!$A$6:$CQ$6,0))/1000)","v":" "},{"$f":"IF(INDEX('Rate Trajectory Calc'!$A$6:$CQ$92,MATCH('Rate Trajectory Report'!$B46,'Rate Trajectory Calc'!$A$6:$A$92,0),MATCH('Rate Trajectory Report'!V$5,'Rate Trajectory Calc'!$A$6:$CQ$6,0))=0,\" \",INDEX('Rate Trajectory Calc'!$A$6:$CQ$92,MATCH('Rate Trajectory Report'!$B46,'Rate Trajectory Calc'!$A$6:$A$92,0),MATCH('Rate Trajectory Report'!V$5,'Rate Trajectory Calc'!$A$6:$CQ$6,0))/1000)","v":" "},{"$f":"IF(INDEX('Rate Trajectory Calc'!$A$6:$CQ$92,MATCH('Rate Trajectory Report'!$B46,'Rate Trajectory Calc'!$A$6:$A$92,0),MATCH('Rate Trajectory Report'!W$5,'Rate Trajectory Calc'!$A$6:$CQ$6,0))=0,\" \",INDEX('Rate Trajectory Calc'!$A$6:$CQ$92,MATCH('Rate Trajectory Report'!$B46,'Rate Trajectory Calc'!$A$6:$A$92,0),MATCH('Rate Trajectory Report'!W$5,'Rate Trajectory Calc'!$A$6:$CQ$6,0))/1000)","v":" "},{"$f":"IF(INDEX('Rate Trajectory Calc'!$A$6:$CQ$92,MATCH('Rate Trajectory Report'!$B46,'Rate Trajectory Calc'!$A$6:$A$92,0),MATCH('Rate Trajectory Report'!X$5,'Rate Trajectory Calc'!$A$6:$CQ$6,0))=0,\" \",INDEX('Rate Trajectory Calc'!$A$6:$CQ$92,MATCH('Rate Trajectory Report'!$B46,'Rate Trajectory Calc'!$A$6:$A$92,0),MATCH('Rate Trajectory Report'!X$5,'Rate Trajectory Calc'!$A$6:$CQ$6,0))/1000)","v":" "},{"$f":"IF(INDEX('Rate Trajectory Calc'!$A$6:$CQ$92,MATCH('Rate Trajectory Report'!$B46,'Rate Trajectory Calc'!$A$6:$A$92,0),MATCH('Rate Trajectory Report'!Y$5,'Rate Trajectory Calc'!$A$6:$CQ$6,0))=0,\" \",INDEX('Rate Trajectory Calc'!$A$6:$CQ$92,MATCH('Rate Trajectory Report'!$B46,'Rate Trajectory Calc'!$A$6:$A$92,0),MATCH('Rate Trajectory Report'!Y$5,'Rate Trajectory Calc'!$A$6:$CQ$6,0))/1000)","v":" "},{"$f":"IF(INDEX('Rate Trajectory Calc'!$A$6:$CQ$92,MATCH('Rate Trajectory Report'!$B46,'Rate Trajectory Calc'!$A$6:$A$92,0),MATCH('Rate Trajectory Report'!Z$5,'Rate Trajectory Calc'!$A$6:$CQ$6,0))=0,\" \",INDEX('Rate Trajectory Calc'!$A$6:$CQ$92,MATCH('Rate Trajectory Report'!$B46,'Rate Trajectory Calc'!$A$6:$A$92,0),MATCH('Rate Trajectory Report'!Z$5,'Rate Trajectory Calc'!$A$6:$CQ$6,0))/1000)","v":" "},{"$f":"IF(INDEX('Rate Trajectory Calc'!$A$6:$CQ$92,MATCH('Rate Trajectory Report'!$B46,'Rate Trajectory Calc'!$A$6:$A$92,0),MATCH('Rate Trajectory Report'!AA$5,'Rate Trajectory Calc'!$A$6:$CQ$6,0))=0,\" \",INDEX('Rate Trajectory Calc'!$A$6:$CQ$92,MATCH('Rate Trajectory Report'!$B46,'Rate Trajectory Calc'!$A$6:$A$92,0),MATCH('Rate Trajectory Report'!AA$5,'Rate Trajectory Calc'!$A$6:$CQ$6,0))/1000)","v":" "}]
[null,{"$f":"'Rate Trajectory Dashboard'!B42","v":"2026 Cost of Capital (Transmission) - Year 2029"},{"$f":"IFERROR(VLOOKUP(B47,'Rate Trajectory Dashboard'!$B$12:$D$96,3,FALSE)/1000,'Rate Trajectory Report'!C46)","v":0},{"$f":"IF(INDEX('Rate Trajectory Calc'!$A$6:$CQ$92,MATCH('Rate Trajectory Report'!$B47,'Rate Trajectory Calc'!$A$6:$A$92,0),MATCH('Rate Trajectory Report'!D$5,'Rate Trajectory Calc'!$A$6:$CQ$6,0))=0,\" \",INDEX('Rate Trajectory Calc'!$A$6:$CQ$92,MATCH('Rate Trajectory Report'!$B47,'Rate Trajectory Calc'!$A$6:$A$92,0),MATCH('Rate Trajectory Report'!D$5,'Rate Trajectory Calc'!$A$6:$CQ$6,0))/1000)","v":" "},{"$f":"IF(INDEX('Rate Trajectory Calc'!$A$6:$CQ$92,MATCH('Rate Trajectory Report'!$B47,'Rate Trajectory Calc'!$A$6:$A$92,0),MATCH('Rate Trajectory Report'!E$5,'Rate Trajectory Calc'!$A$6:$CQ$6,0))=0,\" \",INDEX('Rate Trajectory Calc'!$A$6:$CQ$92,MATCH('Rate Trajectory Report'!$B47,'Rate Trajectory Calc'!$A$6:$A$92,0),MATCH('Rate Trajectory Report'!E$5,'Rate Trajectory Calc'!$A$6:$CQ$6,0))/1000)","v":" "},{"$f":"IF(INDEX('Rate Trajectory Calc'!$A$6:$CQ$92,MATCH('Rate Trajectory Report'!$B47,'Rate Trajectory Calc'!$A$6:$A$92,0),MATCH('Rate Trajectory Report'!F$5,'Rate Trajectory Calc'!$A$6:$CQ$6,0))=0,\" \",INDEX('Rate Trajectory Calc'!$A$6:$CQ$92,MATCH('Rate Trajectory Report'!$B47,'Rate Trajectory Calc'!$A$6:$A$92,0),MATCH('Rate Trajectory Report'!F$5,'Rate Trajectory Calc'!$A$6:$CQ$6,0))/1000)","v":" "},{"$f":"IF(INDEX('Rate Trajectory Calc'!$A$6:$CQ$92,MATCH('Rate Trajectory Report'!$B47,'Rate Trajectory Calc'!$A$6:$A$92,0),MATCH('Rate Trajectory Report'!G$5,'Rate Trajectory Calc'!$A$6:$CQ$6,0))=0,\" \",INDEX('Rate Trajectory Calc'!$A$6:$CQ$92,MATCH('Rate Trajectory Report'!$B47,'Rate Trajectory Calc'!$A$6:$A$92,0),MATCH('Rate Trajectory Report'!G$5,'Rate Trajectory Calc'!$A$6:$CQ$6,0))/1000)","v":" "},{"$f":"IF(INDEX('Rate Trajectory Calc'!$A$6:$CQ$92,MATCH('Rate Trajectory Report'!$B47,'Rate Trajectory Calc'!$A$6:$A$92,0),MATCH('Rate Trajectory Report'!H$5,'Rate Trajectory Calc'!$A$6:$CQ$6,0))=0,\" \",INDEX('Rate Trajectory Calc'!$A$6:$CQ$92,MATCH('Rate Trajectory Report'!$B47,'Rate Trajectory Calc'!$A$6:$A$92,0),MATCH('Rate Trajectory Report'!H$5,'Rate Trajectory Calc'!$A$6:$CQ$6,0))/1000)","v":" "},{"$f":"IF(INDEX('Rate Trajectory Calc'!$A$6:$CQ$92,MATCH('Rate Trajectory Report'!$B47,'Rate Trajectory Calc'!$A$6:$A$92,0),MATCH('Rate Trajectory Report'!I$5,'Rate Trajectory Calc'!$A$6:$CQ$6,0))=0,\" \",INDEX('Rate Trajectory Calc'!$A$6:$CQ$92,MATCH('Rate Trajectory Report'!$B47,'Rate Trajectory Calc'!$A$6:$A$92,0),MATCH('Rate Trajectory Report'!I$5,'Rate Trajectory Calc'!$A$6:$CQ$6,0))/1000)","v":" "},{"$f":"IF(INDEX('Rate Trajectory Calc'!$A$6:$CQ$92,MATCH('Rate Trajectory Report'!$B47,'Rate Trajectory Calc'!$A$6:$A$92,0),MATCH('Rate Trajectory Report'!J$5,'Rate Trajectory Calc'!$A$6:$CQ$6,0))=0,\" \",INDEX('Rate Trajectory Calc'!$A$6:$CQ$92,MATCH('Rate Trajectory Report'!$B47,'Rate Trajectory Calc'!$A$6:$A$92,0),MATCH('Rate Trajectory Report'!J$5,'Rate Trajectory Calc'!$A$6:$CQ$6,0))/1000)","v":" "},{"$f":"IF(INDEX('Rate Trajectory Calc'!$A$6:$CQ$92,MATCH('Rate Trajectory Report'!$B47,'Rate Trajectory Calc'!$A$6:$A$92,0),MATCH('Rate Trajectory Report'!K$5,'Rate Trajectory Calc'!$A$6:$CQ$6,0))=0,\" \",INDEX('Rate Trajectory Calc'!$A$6:$CQ$92,MATCH('Rate Trajectory Report'!$B47,'Rate Trajectory Calc'!$A$6:$A$92,0),MATCH('Rate Trajectory Report'!K$5,'Rate Trajectory Calc'!$A$6:$CQ$6,0))/1000)","v":" "},{"$f":"IF(INDEX('Rate Trajectory Calc'!$A$6:$CQ$92,MATCH('Rate Trajectory Report'!$B47,'Rate Trajectory Calc'!$A$6:$A$92,0),MATCH('Rate Trajectory Report'!L$5,'Rate Trajectory Calc'!$A$6:$CQ$6,0))=0,\" \",INDEX('Rate Trajectory Calc'!$A$6:$CQ$92,MATCH('Rate Trajectory Report'!$B47,'Rate Trajectory Calc'!$A$6:$A$92,0),MATCH('Rate Trajectory Report'!L$5,'Rate Trajectory Calc'!$A$6:$CQ$6,0))/1000)","v":" "},{"$f":"IF(INDEX('Rate Trajectory Calc'!$A$6:$CQ$92,MATCH('Rate Trajectory Report'!$B47,'Rate Trajectory Calc'!$A$6:$A$92,0),MATCH('Rate Trajectory Report'!M$5,'Rate Trajectory Calc'!$A$6:$CQ$6,0))=0,\" \",INDEX('Rate Trajectory Calc'!$A$6:$CQ$92,MATCH('Rate Trajectory Report'!$B47,'Rate Trajectory Calc'!$A$6:$A$92,0),MATCH('Rate Trajectory Report'!M$5,'Rate Trajectory Calc'!$A$6:$CQ$6,0))/1000)","v":" "},{"$f":"IF(INDEX('Rate Trajectory Calc'!$A$6:$CQ$92,MATCH('Rate Trajectory Report'!$B47,'Rate Trajectory Calc'!$A$6:$A$92,0),MATCH('Rate Trajectory Report'!N$5,'Rate Trajectory Calc'!$A$6:$CQ$6,0))=0,\" \",INDEX('Rate Trajectory Calc'!$A$6:$CQ$92,MATCH('Rate Trajectory Report'!$B47,'Rate Trajectory Calc'!$A$6:$A$92,0),MATCH('Rate Trajectory Report'!N$5,'Rate Trajectory Calc'!$A$6:$CQ$6,0))/1000)","v":" "},{"$f":"IF(INDEX('Rate Trajectory Calc'!$A$6:$CQ$92,MATCH('Rate Trajectory Report'!$B47,'Rate Trajectory Calc'!$A$6:$A$92,0),MATCH('Rate Trajectory Report'!O$5,'Rate Trajectory Calc'!$A$6:$CQ$6,0))=0,\" \",INDEX('Rate Trajectory Calc'!$A$6:$CQ$92,MATCH('Rate Trajectory Report'!$B47,'Rate Trajectory Calc'!$A$6:$A$92,0),MATCH('Rate Trajectory Report'!O$5,'Rate Trajectory Calc'!$A$6:$CQ$6,0))/1000)","v":" "},{"$f":"IF(INDEX('Rate Trajectory Calc'!$A$6:$CQ$92,MATCH('Rate Trajectory Report'!$B47,'Rate Trajectory Calc'!$A$6:$A$92,0),MATCH('Rate Trajectory Report'!P$5,'Rate Trajectory Calc'!$A$6:$CQ$6,0))=0,\" \",INDEX('Rate Trajectory Calc'!$A$6:$CQ$92,MATCH('Rate Trajectory Report'!$B47,'Rate Trajectory Calc'!$A$6:$A$92,0),MATCH('Rate Trajectory Report'!P$5,'Rate Trajectory Calc'!$A$6:$CQ$6,0))/1000)","v":" "},{"$f":"IF(INDEX('Rate Trajectory Calc'!$A$6:$CQ$92,MATCH('Rate Trajectory Report'!$B47,'Rate Trajectory Calc'!$A$6:$A$92,0),MATCH('Rate Trajectory Report'!Q$5,'Rate Trajectory Calc'!$A$6:$CQ$6,0))=0,\" \",INDEX('Rate Trajectory Calc'!$A$6:$CQ$92,MATCH('Rate Trajectory Report'!$B47,'Rate Trajectory Calc'!$A$6:$A$92,0),MATCH('Rate Trajectory Report'!Q$5,'Rate Trajectory Calc'!$A$6:$CQ$6,0))/1000)","v":" "},{"$f":"IF(INDEX('Rate Trajectory Calc'!$A$6:$CQ$92,MATCH('Rate Trajectory Report'!$B47,'Rate Trajectory Calc'!$A$6:$A$92,0),MATCH('Rate Trajectory Report'!R$5,'Rate Trajectory Calc'!$A$6:$CQ$6,0))=0,\" \",INDEX('Rate Trajectory Calc'!$A$6:$CQ$92,MATCH('Rate Trajectory Report'!$B47,'Rate Trajectory Calc'!$A$6:$A$92,0),MATCH('Rate Trajectory Report'!R$5,'Rate Trajectory Calc'!$A$6:$CQ$6,0))/1000)","v":" "},{"$f":"IF(INDEX('Rate Trajectory Calc'!$A$6:$CQ$92,MATCH('Rate Trajectory Report'!$B47,'Rate Trajectory Calc'!$A$6:$A$92,0),MATCH('Rate Trajectory Report'!S$5,'Rate Trajectory Calc'!$A$6:$CQ$6,0))=0,\" \",INDEX('Rate Trajectory Calc'!$A$6:$CQ$92,MATCH('Rate Trajectory Report'!$B47,'Rate Trajectory Calc'!$A$6:$A$92,0),MATCH('Rate Trajectory Report'!S$5,'Rate Trajectory Calc'!$A$6:$CQ$6,0))/1000)","v":" "},{"$f":"IF(INDEX('Rate Trajectory Calc'!$A$6:$CQ$92,MATCH('Rate Trajectory Report'!$B47,'Rate Trajectory Calc'!$A$6:$A$92,0),MATCH('Rate Trajectory Report'!T$5,'Rate Trajectory Calc'!$A$6:$CQ$6,0))=0,\" \",INDEX('Rate Trajectory Calc'!$A$6:$CQ$92,MATCH('Rate Trajectory Report'!$B47,'Rate Trajectory Calc'!$A$6:$A$92,0),MATCH('Rate Trajectory Report'!T$5,'Rate Trajectory Calc'!$A$6:$CQ$6,0))/1000)","v":" "},{"$f":"IF(INDEX('Rate Trajectory Calc'!$A$6:$CQ$92,MATCH('Rate Trajectory Report'!$B47,'Rate Trajectory Calc'!$A$6:$A$92,0),MATCH('Rate Trajectory Report'!U$5,'Rate Trajectory Calc'!$A$6:$CQ$6,0))=0,\" \",INDEX('Rate Trajectory Calc'!$A$6:$CQ$92,MATCH('Rate Trajectory Report'!$B47,'Rate Trajectory Calc'!$A$6:$A$92,0),MATCH('Rate Trajectory Report'!U$5,'Rate Trajectory Calc'!$A$6:$CQ$6,0))/1000)","v":" "},{"$f":"IF(INDEX('Rate Trajectory Calc'!$A$6:$CQ$92,MATCH('Rate Trajectory Report'!$B47,'Rate Trajectory Calc'!$A$6:$A$92,0),MATCH('Rate Trajectory Report'!V$5,'Rate Trajectory Calc'!$A$6:$CQ$6,0))=0,\" \",INDEX('Rate Trajectory Calc'!$A$6:$CQ$92,MATCH('Rate Trajectory Report'!$B47,'Rate Trajectory Calc'!$A$6:$A$92,0),MATCH('Rate Trajectory Report'!V$5,'Rate Trajectory Calc'!$A$6:$CQ$6,0))/1000)","v":" "},{"$f":"IF(INDEX('Rate Trajectory Calc'!$A$6:$CQ$92,MATCH('Rate Trajectory Report'!$B47,'Rate Trajectory Calc'!$A$6:$A$92,0),MATCH('Rate Trajectory Report'!W$5,'Rate Trajectory Calc'!$A$6:$CQ$6,0))=0,\" \",INDEX('Rate Trajectory Calc'!$A$6:$CQ$92,MATCH('Rate Trajectory Report'!$B47,'Rate Trajectory Calc'!$A$6:$A$92,0),MATCH('Rate Trajectory Report'!W$5,'Rate Trajectory Calc'!$A$6:$CQ$6,0))/1000)","v":" "},{"$f":"IF(INDEX('Rate Trajectory Calc'!$A$6:$CQ$92,MATCH('Rate Trajectory Report'!$B47,'Rate Trajectory Calc'!$A$6:$A$92,0),MATCH('Rate Trajectory Report'!X$5,'Rate Trajectory Calc'!$A$6:$CQ$6,0))=0,\" \",INDEX('Rate Trajectory Calc'!$A$6:$CQ$92,MATCH('Rate Trajectory Report'!$B47,'Rate Trajectory Calc'!$A$6:$A$92,0),MATCH('Rate Trajectory Report'!X$5,'Rate Trajectory Calc'!$A$6:$CQ$6,0))/1000)","v":" "},{"$f":"IF(INDEX('Rate Trajectory Calc'!$A$6:$CQ$92,MATCH('Rate Trajectory Report'!$B47,'Rate Trajectory Calc'!$A$6:$A$92,0),MATCH('Rate Trajectory Report'!Y$5,'Rate Trajectory Calc'!$A$6:$CQ$6,0))=0,\" \",INDEX('Rate Trajectory Calc'!$A$6:$CQ$92,MATCH('Rate Trajectory Report'!$B47,'Rate Trajectory Calc'!$A$6:$A$92,0),MATCH('Rate Trajectory Report'!Y$5,'Rate Trajectory Calc'!$A$6:$CQ$6,0))/1000)","v":" "},{"$f":"IF(INDEX('Rate Trajectory Calc'!$A$6:$CQ$92,MATCH('Rate Trajectory Report'!$B47,'Rate Trajectory Calc'!$A$6:$A$92,0),MATCH('Rate Trajectory Report'!Z$5,'Rate Trajectory Calc'!$A$6:$CQ$6,0))=0,\" \",INDEX('Rate Trajectory Calc'!$A$6:$CQ$92,MATCH('Rate Trajectory Report'!$B47,'Rate Trajectory Calc'!$A$6:$A$92,0),MATCH('Rate Trajectory Report'!Z$5,'Rate Trajectory Calc'!$A$6:$CQ$6,0))/1000)","v":" "},{"$f":"IF(INDEX('Rate Trajectory Calc'!$A$6:$CQ$92,MATCH('Rate Trajectory Report'!$B47,'Rate Trajectory Calc'!$A$6:$A$92,0),MATCH('Rate Trajectory Report'!AA$5,'Rate Trajectory Calc'!$A$6:$CQ$6,0))=0,\" \",INDEX('Rate Trajectory Calc'!$A$6:$CQ$92,MATCH('Rate Trajectory Report'!$B47,'Rate Trajectory Calc'!$A$6:$A$92,0),MATCH('Rate Trajectory Report'!AA$5,'Rate Trajectory Calc'!$A$6:$CQ$6,0))/1000)","v":" "}]
["7b","2026 Cost of Capital (Transmission)",{"$f":"IFERROR(VLOOKUP(B48,'Rate Trajectory Dashboard'!$B$12:$D$96,3,FALSE)/1000,'Rate Trajectory Report'!C47)","v":0},{"$f":"IF(SUM(D44:D47)=0,\" \",SUBTOTAL(9,D44:D47))","v":" "},{"$f":"IF(SUM(E44:E47)=0,\" \",SUBTOTAL(9,E44:E47))","v":" "}," "," ",84.23076028112871," "," "," "," "," "," "," "," "," "," "," "," "," "," "," "," "," "," "," "]
[7,"2026 Cost of Capital",{"$f":"C43+C48","v":0},{"$f":"IF(SUM(D39:D48)=0,\" \",SUBTOTAL(9,D39:D48))","v":" "},{"$f":"IF(SUM(E39:E48)=0,\" \",SUBTOTAL(9,E39:E48))","v":" "}," "," ",195.85654506003067," "," "," "," "," "," "," "," "," "," "," "," "," "," "," "," "," "," "," "]
["8a","Gas Advanced Metering Infrastructure (AMI) (distribution)",{"$f":"IFERROR(VLOOKUP(B50,'Rate Trajectory Dashboard'!$B$12:$D$96,3,FALSE)/1000,'Rate Trajectory Report'!C49)","v":0},{"$f":"IF(INDEX('Rate Trajectory Calc'!$A$6:$CQ$92,MATCH('Rate Trajectory Report'!$B50,'Rate Trajectory Calc'!$A$6:$A$92,0),MATCH('Rate Trajectory Report'!D$5,'Rate Trajectory Calc'!$A$6:$CQ$6,0))=0,\" \",INDEX('Rate Trajectory Calc'!$A$6:$CQ$92,MATCH('Rate Trajectory Report'!$B50,'Rate Trajectory Calc'!$A$6:$A$92,0),MATCH('Rate Trajectory Report'!D$5,'Rate Trajectory Calc'!$A$6:$CQ$6,0))/1000)","v":" "},{"$f":"IF(INDEX('Rate Trajectory Calc'!$A$6:$CQ$92,MATCH('Rate Trajectory Report'!$B50,'Rate Trajectory Calc'!$A$6:$A$92,0),MATCH('Rate Trajectory Report'!E$5,'Rate Trajectory Calc'!$A$6:$CQ$6,0))=0,\" \",INDEX('Rate Trajectory Calc'!$A$6:$CQ$92,MATCH('Rate Trajectory Report'!$B50,'Rate Trajectory Calc'!$A$6:$A$92,0),MATCH('Rate Trajectory Report'!E$5,'Rate Trajectory Calc'!$A$6:$CQ$6,0))/1000)","v":" "},{"$f":"IF(INDEX('Rate Trajectory Calc'!$A$6:$CQ$92,MATCH('Rate Trajectory Report'!$B50,'Rate Trajectory Calc'!$A$6:$A$92,0),MATCH('Rate Trajectory Report'!F$5,'Rate Trajectory Calc'!$A$6:$CQ$6,0))=0,\" \",INDEX('Rate Trajectory Calc'!$A$6:$CQ$92,MATCH('Rate Trajectory Report'!$B50,'Rate Trajectory Calc'!$A$6:$A$92,0),MATCH('Rate Trajectory Report'!F$5,'Rate Trajectory Calc'!$A$6:$CQ$6,0))/1000)","v":" "},{"$f":"IF(INDEX('Rate Trajectory Calc'!$A$6:$CQ$92,MATCH('Rate Trajectory Report'!$B50,'Rate Trajectory Calc'!$A$6:$A$92,0),MATCH('Rate Trajectory Report'!G$5,'Rate Trajectory Calc'!$A$6:$CQ$6,0))=0,\" \",INDEX('Rate Trajectory Calc'!$A$6:$CQ$92,MATCH('Rate Trajectory Report'!$B50,'Rate Trajectory Calc'!$A$6:$A$92,0),MATCH('Rate Trajectory Report'!G$5,'Rate Trajectory Calc'!$A$6:$CQ$6,0))/1000)","v":" "},{"$f":"IF(INDEX('Rate Trajectory Calc'!$A$6:$CQ$92,MATCH('Rate Trajectory Report'!$B50,'Rate Trajectory Calc'!$A$6:$A$92,0),MATCH('Rate Trajectory Report'!H$5,'Rate Trajectory Calc'!$A$6:$CQ$6,0))=0,\" \",INDEX('Rate Trajectory Calc'!$A$6:$CQ$92,MATCH('Rate Trajectory Report'!$B50,'Rate Trajectory Calc'!$A$6:$A$92,0),MATCH('Rate Trajectory Report'!H$5,'Rate Trajectory Calc'!$A$6:$CQ$6,0))/1000)","v":19.430166034617308},{"$f":"IF(INDEX('Rate Trajectory Calc'!$A$6:$CQ$92,MATCH('Rate Trajectory Report'!$B50,'Rate Trajectory Calc'!$A$6:$A$92,0),MATCH('Rate Trajectory Report'!I$5,'Rate Trajectory Calc'!$A$6:$CQ$6,0))=0,\" \",INDEX('Rate Trajectory Calc'!$A$6:$CQ$92,MATCH('Rate Trajectory Report'!$B50,'Rate Trajectory Calc'!$A$6:$A$92,0),MATCH('Rate Trajectory Report'!I$5,'Rate Trajectory Calc'!$A$6:$CQ$6,0))/1000)","v":" "},{"$f":"IF(INDEX('Rate Trajectory Calc'!$A$6:$CQ$92,MATCH('Rate Trajectory Report'!$B50,'Rate Trajectory Calc'!$A$6:$A$92,0),MATCH('Rate Trajectory Report'!J$5,'Rate Trajectory Calc'!$A$6:$CQ$6,0))=0,\" \",INDEX('Rate Trajectory Calc'!$A$6:$CQ$92,MATCH('Rate Trajectory Report'!$B50,'Rate Trajectory Calc'!$A$6:$A$92,0),MATCH('Rate Trajectory Report'!J$5,'Rate Trajectory Calc'!$A$6:$CQ$6,0))/1000)","v":" "},{"$f":"IF(INDEX('Rate Trajectory Calc'!$A$6:$CQ$92,MATCH('Rate Trajectory Report'!$B50,'Rate Trajectory Calc'!$A$6:$A$92,0),MATCH('Rate Trajectory Report'!K$5,'Rate Trajectory Calc'!$A$6:$CQ$6,0))=0,\" \",INDEX('Rate Trajectory Calc'!$A$6:$CQ$92,MATCH('Rate Trajectory Report'!$B50,'Rate Trajectory Calc'!$A$6:$A$92,0),MATCH('Rate Trajectory Report'!K$5,'Rate Trajectory Calc'!$A$6:$CQ$6,0))/1000)","v":" "},{"$f":"IF(INDEX('Rate Trajectory Calc'!$A$6:$CQ$92,MATCH('Rate Trajectory Report'!$B50,'Rate Trajectory Calc'!$A$6:$A$92,0),MATCH('Rate Trajectory Report'!L$5,'Rate Trajectory Calc'!$A$6:$CQ$6,0))=0,\" \",INDEX('Rate Trajectory Calc'!$A$6:$CQ$92,MATCH('Rate Trajectory Report'!$B50,'Rate Trajectory Calc'!$A$6:$A$92,0),MATCH('Rate Trajectory Report'!L$5,'Rate Trajectory Calc'!$A$6:$CQ$6,0))/1000)","v":" "},{"$f":"IF(INDEX('Rate Trajectory Calc'!$A$6:$CQ$92,MATCH('Rate Trajectory Report'!$B50,'Rate Trajectory Calc'!$A$6:$A$92,0),MATCH('Rate Trajectory Report'!M$5,'Rate Trajectory Calc'!$A$6:$CQ$6,0))=0,\" \",INDEX('Rate Trajectory Calc'!$A$6:$CQ$92,MATCH('Rate Trajectory Report'!$B50,'Rate Trajectory Calc'!$A$6:$A$92,0),MATCH('Rate Trajectory Report'!M$5,'Rate Trajectory Calc'!$A$6:$CQ$6,0))/1000)","v":" "},{"$f":"IF(INDEX('Rate Trajectory Calc'!$A$6:$CQ$92,MATCH('Rate Trajectory Report'!$B50,'Rate Trajectory Calc'!$A$6:$A$92,0),MATCH('Rate Trajectory Report'!N$5,'Rate Trajectory Calc'!$A$6:$CQ$6,0))=0,\" \",INDEX('Rate Trajectory Calc'!$A$6:$CQ$92,MATCH('Rate Trajectory Report'!$B50,'Rate Trajectory Calc'!$A$6:$A$92,0),MATCH('Rate Trajectory Report'!N$5,'Rate Trajectory Calc'!$A$6:$CQ$6,0))/1000)","v":" "},{"$f":"IF(INDEX('Rate Trajectory Calc'!$A$6:$CQ$92,MATCH('Rate Trajectory Report'!$B50,'Rate Trajectory Calc'!$A$6:$A$92,0),MATCH('Rate Trajectory Report'!O$5,'Rate Trajectory Calc'!$A$6:$CQ$6,0))=0,\" \",INDEX('Rate Trajectory Calc'!$A$6:$CQ$92,MATCH('Rate Trajectory Report'!$B50,'Rate Trajectory Calc'!$A$6:$A$92,0),MATCH('Rate Trajectory Report'!O$5,'Rate Trajectory Calc'!$A$6:$CQ$6,0))/1000)","v":" "},{"$f":"IF(INDEX('Rate Trajectory Calc'!$A$6:$CQ$92,MATCH('Rate Trajectory Report'!$B50,'Rate Trajectory Calc'!$A$6:$A$92,0),MATCH('Rate Trajectory Report'!P$5,'Rate Trajectory Calc'!$A$6:$CQ$6,0))=0,\" \",INDEX('Rate Trajectory Calc'!$A$6:$CQ$92,MATCH('Rate Trajectory Report'!$B50,'Rate Trajectory Calc'!$A$6:$A$92,0),MATCH('Rate Trajectory Report'!P$5,'Rate Trajectory Calc'!$A$6:$CQ$6,0))/1000)","v":" "},{"$f":"IF(INDEX('Rate Trajectory Calc'!$A$6:$CQ$92,MATCH('Rate Trajectory Report'!$B50,'Rate Trajectory Calc'!$A$6:$A$92,0),MATCH('Rate Trajectory Report'!Q$5,'Rate Trajectory Calc'!$A$6:$CQ$6,0))=0,\" \",INDEX('Rate Trajectory Calc'!$A$6:$CQ$92,MATCH('Rate Trajectory Report'!$B50,'Rate Trajectory Calc'!$A$6:$A$92,0),MATCH('Rate Trajectory Report'!Q$5,'Rate Trajectory Calc'!$A$6:$CQ$6,0))/1000)","v":" "},{"$f":"IF(INDEX('Rate Trajectory Calc'!$A$6:$CQ$92,MATCH('Rate Trajectory Report'!$B50,'Rate Trajectory Calc'!$A$6:$A$92,0),MATCH('Rate Trajectory Report'!R$5,'Rate Trajectory Calc'!$A$6:$CQ$6,0))=0,\" \",INDEX('Rate Trajectory Calc'!$A$6:$CQ$92,MATCH('Rate Trajectory Report'!$B50,'Rate Trajectory Calc'!$A$6:$A$92,0),MATCH('Rate Trajectory Report'!R$5,'Rate Trajectory Calc'!$A$6:$CQ$6,0))/1000)","v":" "},{"$f":"IF(INDEX('Rate Trajectory Calc'!$A$6:$CQ$92,MATCH('Rate Trajectory Report'!$B50,'Rate Trajectory Calc'!$A$6:$A$92,0),MATCH('Rate Trajectory Report'!S$5,'Rate Trajectory Calc'!$A$6:$CQ$6,0))=0,\" \",INDEX('Rate Trajectory Calc'!$A$6:$CQ$92,MATCH('Rate Trajectory Report'!$B50,'Rate Trajectory Calc'!$A$6:$A$92,0),MATCH('Rate Trajectory Report'!S$5,'Rate Trajectory Calc'!$A$6:$CQ$6,0))/1000)","v":" "},{"$f":"IF(INDEX('Rate Trajectory Calc'!$A$6:$CQ$92,MATCH('Rate Trajectory Report'!$B50,'Rate Trajectory Calc'!$A$6:$A$92,0),MATCH('Rate Trajectory Report'!T$5,'Rate Trajectory Calc'!$A$6:$CQ$6,0))=0,\" \",INDEX('Rate Trajectory Calc'!$A$6:$CQ$92,MATCH('Rate Trajectory Report'!$B50,'Rate Trajectory Calc'!$A$6:$A$92,0),MATCH('Rate Trajectory Report'!T$5,'Rate Trajectory Calc'!$A$6:$CQ$6,0))/1000)","v":-19.430166034617308},{"$f":"IF(INDEX('Rate Trajectory Calc'!$A$6:$CQ$92,MATCH('Rate Trajectory Report'!$B50,'Rate Trajectory Calc'!$A$6:$A$92,0),MATCH('Rate Trajectory Report'!U$5,'Rate Trajectory Calc'!$A$6:$CQ$6,0))=0,\" \",INDEX('Rate Trajectory Calc'!$A$6:$CQ$92,MATCH('Rate Trajectory Report'!$B50,'Rate Trajectory Calc'!$A$6:$A$92,0),MATCH('Rate Trajectory Report'!U$5,'Rate Trajectory Calc'!$A$6:$CQ$6,0))/1000)","v":" "},{"$f":"IF(INDEX('Rate Trajectory Calc'!$A$6:$CQ$92,MATCH('Rate Trajectory Report'!$B50,'Rate Trajectory Calc'!$A$6:$A$92,0),MATCH('Rate Trajectory Report'!V$5,'Rate Trajectory Calc'!$A$6:$CQ$6,0))=0,\" \",INDEX('Rate Trajectory Calc'!$A$6:$CQ$92,MATCH('Rate Trajectory Report'!$B50,'Rate Trajectory Calc'!$A$6:$A$92,0),MATCH('Rate Trajectory Report'!V$5,'Rate Trajectory Calc'!$A$6:$CQ$6,0))/1000)","v":" "},{"$f":"IF(INDEX('Rate Trajectory Calc'!$A$6:$CQ$92,MATCH('Rate Trajectory Report'!$B50,'Rate Trajectory Calc'!$A$6:$A$92,0),MATCH('Rate Trajectory Report'!W$5,'Rate Trajectory Calc'!$A$6:$CQ$6,0))=0,\" \",INDEX('Rate Trajectory Calc'!$A$6:$CQ$92,MATCH('Rate Trajectory Report'!$B50,'Rate Trajectory Calc'!$A$6:$A$92,0),MATCH('Rate Trajectory Report'!W$5,'Rate Trajectory Calc'!$A$6:$CQ$6,0))/1000)","v":" "},{"$f":"IF(INDEX('Rate Trajectory Calc'!$A$6:$CQ$92,MATCH('Rate Trajectory Report'!$B50,'Rate Trajectory Calc'!$A$6:$A$92,0),MATCH('Rate Trajectory Report'!X$5,'Rate Trajectory Calc'!$A$6:$CQ$6,0))=0,\" \",INDEX('Rate Trajectory Calc'!$A$6:$CQ$92,MATCH('Rate Trajectory Report'!$B50,'Rate Trajectory Calc'!$A$6:$A$92,0),MATCH('Rate Trajectory Report'!X$5,'Rate Trajectory Calc'!$A$6:$CQ$6,0))/1000)","v":" "},{"$f":"IF(INDEX('Rate Trajectory Calc'!$A$6:$CQ$92,MATCH('Rate Trajectory Report'!$B50,'Rate Trajectory Calc'!$A$6:$A$92,0),MATCH('Rate Trajectory Report'!Y$5,'Rate Trajectory Calc'!$A$6:$CQ$6,0))=0,\" \",INDEX('Rate Trajectory Calc'!$A$6:$CQ$92,MATCH('Rate Trajectory Report'!$B50,'Rate Trajectory Calc'!$A$6:$A$92,0),MATCH('Rate Trajectory Report'!Y$5,'Rate Trajectory Calc'!$A$6:$CQ$6,0))/1000)","v":" "},{"$f":"IF(INDEX('Rate Trajectory Calc'!$A$6:$CQ$92,MATCH('Rate Trajectory Report'!$B50,'Rate Trajectory Calc'!$A$6:$A$92,0),MATCH('Rate Trajectory Report'!Z$5,'Rate Trajectory Calc'!$A$6:$CQ$6,0))=0,\" \",INDEX('Rate Trajectory Calc'!$A$6:$CQ$92,MATCH('Rate Trajectory Report'!$B50,'Rate Trajectory Calc'!$A$6:$A$92,0),MATCH('Rate Trajectory Report'!Z$5,'Rate Trajectory Calc'!$A$6:$CQ$6,0))/1000)","v":" "},{"$f":"IF(INDEX('Rate Trajectory Calc'!$A$6:$CQ$92,MATCH('Rate Trajectory Report'!$B50,'Rate Trajectory Calc'!$A$6:$A$92,0),MATCH('Rate Trajectory Report'!AA$5,'Rate Trajectory Calc'!$A$6:$CQ$6,0))=0,\" \",INDEX('Rate Trajectory Calc'!$A$6:$CQ$92,MATCH('Rate Trajectory Report'!$B50,'Rate Trajectory Calc'!$A$6:$A$92,0),MATCH('Rate Trajectory Report'!AA$5,'Rate Trajectory Calc'!$A$6:$CQ$6,0))/1000)","v":" "}]
["8b","Gas AMI (transmission)",{"$f":"IFERROR(VLOOKUP(B51,'Rate Trajectory Dashboard'!$B$12:$D$96,3,FALSE)/1000,'Rate Trajectory Report'!C50)","v":0},{"$f":"IF(INDEX('Rate Trajectory Calc'!$A$6:$CQ$92,MATCH('Rate Trajectory Report'!$B51,'Rate Trajectory Calc'!$A$6:$A$92,0),MATCH('Rate Trajectory Report'!D$5,'Rate Trajectory Calc'!$A$6:$CQ$6,0))=0,\" \",INDEX('Rate Trajectory Calc'!$A$6:$CQ$92,MATCH('Rate Trajectory Report'!$B51,'Rate Trajectory Calc'!$A$6:$A$92,0),MATCH('Rate Trajectory Report'!D$5,'Rate Trajectory Calc'!$A$6:$CQ$6,0))/1000)","v":" "},{"$f":"IF(INDEX('Rate Trajectory Calc'!$A$6:$CQ$92,MATCH('Rate Trajectory Report'!$B51,'Rate Trajectory Calc'!$A$6:$A$92,0),MATCH('Rate Trajectory Report'!E$5,'Rate Trajectory Calc'!$A$6:$CQ$6,0))=0,\" \",INDEX('Rate Trajectory Calc'!$A$6:$CQ$92,MATCH('Rate Trajectory Report'!$B51,'Rate Trajectory Calc'!$A$6:$A$92,0),MATCH('Rate Trajectory Report'!E$5,'Rate Trajectory Calc'!$A$6:$CQ$6,0))/1000)","v":" "},{"$f":"IF(INDEX('Rate Trajectory Calc'!$A$6:$CQ$92,MATCH('Rate Trajectory Report'!$B51,'Rate Trajectory Calc'!$A$6:$A$92,0),MATCH('Rate Trajectory Report'!F$5,'Rate Trajectory Calc'!$A$6:$CQ$6,0))=0,\" \",INDEX('Rate Trajectory Calc'!$A$6:$CQ$92,MATCH('Rate Trajectory Report'!$B51,'Rate Trajectory Calc'!$A$6:$A$92,0),MATCH('Rate Trajectory Report'!F$5,'Rate Trajectory Calc'!$A$6:$CQ$6,0))/1000)","v":" "},{"$f":"IF(INDEX('Rate Trajectory Calc'!$A$6:$CQ$92,MATCH('Rate Trajectory Report'!$B51,'Rate Trajectory Calc'!$A$6:$A$92,0),MATCH('Rate Trajectory Report'!G$5,'Rate Trajectory Calc'!$A$6:$CQ$6,0))=0,\" \",INDEX('Rate Trajectory Calc'!$A$6:$CQ$92,MATCH('Rate Trajectory Report'!$B51,'Rate Trajectory Calc'!$A$6:$A$92,0),MATCH('Rate Trajectory Report'!G$5,'Rate Trajectory Calc'!$A$6:$CQ$6,0))/1000)","v":" "},{"$f":"IF(INDEX('Rate Trajectory Calc'!$A$6:$CQ$92,MATCH('Rate Trajectory Report'!$B51,'Rate Trajectory Calc'!$A$6:$A$92,0),MATCH('Rate Trajectory Report'!H$5,'Rate Trajectory Calc'!$A$6:$CQ$6,0))=0,\" \",INDEX('Rate Trajectory Calc'!$A$6:$CQ$92,MATCH('Rate Trajectory Report'!$B51,'Rate Trajectory Calc'!$A$6:$A$92,0),MATCH('Rate Trajectory Report'!H$5,'Rate Trajectory Calc'!$A$6:$CQ$6,0))/1000)","v":3.7408354786263693},{"$f":"IF(INDEX('Rate Trajectory Calc'!$A$6:$CQ$92,MATCH('Rate Trajectory Report'!$B51,'Rate Trajectory Calc'!$A$6:$A$92,0),MATCH('Rate Trajectory Report'!I$5,'Rate Trajectory Calc'!$A$6:$CQ$6,0))=0,\" \",INDEX('Rate Trajectory Calc'!$A$6:$CQ$92,MATCH('Rate Trajectory Report'!$B51,'Rate Trajectory Calc'!$A$6:$A$92,0),MATCH('Rate Trajectory Report'!I$5,'Rate Trajectory Calc'!$A$6:$CQ$6,0))/1000)","v":" "},{"$f":"IF(INDEX('Rate Trajectory Calc'!$A$6:$CQ$92,MATCH('Rate Trajectory Report'!$B51,'Rate Trajectory Calc'!$A$6:$A$92,0),MATCH('Rate Trajectory Report'!J$5,'Rate Trajectory Calc'!$A$6:$CQ$6,0))=0,\" \",INDEX('Rate Trajectory Calc'!$A$6:$CQ$92,MATCH('Rate Trajectory Report'!$B51,'Rate Trajectory Calc'!$A$6:$A$92,0),MATCH('Rate Trajectory Report'!J$5,'Rate Trajectory Calc'!$A$6:$CQ$6,0))/1000)","v":" "},{"$f":"IF(INDEX('Rate Trajectory Calc'!$A$6:$CQ$92,MATCH('Rate Trajectory Report'!$B51,'Rate Trajectory Calc'!$A$6:$A$92,0),MATCH('Rate Trajectory Report'!K$5,'Rate Trajectory Calc'!$A$6:$CQ$6,0))=0,\" \",INDEX('Rate Trajectory Calc'!$A$6:$CQ$92,MATCH('Rate Trajectory Report'!$B51,'Rate Trajectory Calc'!$A$6:$A$92,0),MATCH('Rate Trajectory Report'!K$5,'Rate Trajectory Calc'!$A$6:$CQ$6,0))/1000)","v":" "},{"$f":"IF(INDEX('Rate Trajectory Calc'!$A$6:$CQ$92,MATCH('Rate Trajectory Report'!$B51,'Rate Trajectory Calc'!$A$6:$A$92,0),MATCH('Rate Trajectory Report'!L$5,'Rate Trajectory Calc'!$A$6:$CQ$6,0))=0,\" \",INDEX('Rate Trajectory Calc'!$A$6:$CQ$92,MATCH('Rate Trajectory Report'!$B51,'Rate Trajectory Calc'!$A$6:$A$92,0),MATCH('Rate Trajectory Report'!L$5,'Rate Trajectory Calc'!$A$6:$CQ$6,0))/1000)","v":" "},{"$f":"IF(INDEX('Rate Trajectory Calc'!$A$6:$CQ$92,MATCH('Rate Trajectory Report'!$B51,'Rate Trajectory Calc'!$A$6:$A$92,0),MATCH('Rate Trajectory Report'!M$5,'Rate Trajectory Calc'!$A$6:$CQ$6,0))=0,\" \",INDEX('Rate Trajectory Calc'!$A$6:$CQ$92,MATCH('Rate Trajectory Report'!$B51,'Rate Trajectory Calc'!$A$6:$A$92,0),MATCH('Rate Trajectory Report'!M$5,'Rate Trajectory Calc'!$A$6:$CQ$6,0))/1000)","v":" "},{"$f":"IF(INDEX('Rate Trajectory Calc'!$A$6:$CQ$92,MATCH('Rate Trajectory Report'!$B51,'Rate Trajectory Calc'!$A$6:$A$92,0),MATCH('Rate Trajectory Report'!N$5,'Rate Trajectory Calc'!$A$6:$CQ$6,0))=0,\" \",INDEX('Rate Trajectory Calc'!$A$6:$CQ$92,MATCH('Rate Trajectory Report'!$B51,'Rate Trajectory Calc'!$A$6:$A$92,0),MATCH('Rate Trajectory Report'!N$5,'Rate Trajectory Calc'!$A$6:$CQ$6,0))/1000)","v":" "},{"$f":"IF(INDEX('Rate Trajectory Calc'!$A$6:$CQ$92,MATCH('Rate Trajectory Report'!$B51,'Rate Trajectory Calc'!$A$6:$A$92,0),MATCH('Rate Trajectory Report'!O$5,'Rate Trajectory Calc'!$A$6:$CQ$6,0))=0,\" \",INDEX('Rate Trajectory Calc'!$A$6:$CQ$92,MATCH('Rate Trajectory Report'!$B51,'Rate Trajectory Calc'!$A$6:$A$92,0),MATCH('Rate Trajectory Report'!O$5,'Rate Trajectory Calc'!$A$6:$CQ$6,0))/1000)","v":" "},{"$f":"IF(INDEX('Rate Trajectory Calc'!$A$6:$CQ$92,MATCH('Rate Trajectory Report'!$B51,'Rate Trajectory Calc'!$A$6:$A$92,0),MATCH('Rate Trajectory Report'!P$5,'Rate Trajectory Calc'!$A$6:$CQ$6,0))=0,\" \",INDEX('Rate Trajectory Calc'!$A$6:$CQ$92,MATCH('Rate Trajectory Report'!$B51,'Rate Trajectory Calc'!$A$6:$A$92,0),MATCH('Rate Trajectory Report'!P$5,'Rate Trajectory Calc'!$A$6:$CQ$6,0))/1000)","v":" "},{"$f":"IF(INDEX('Rate Trajectory Calc'!$A$6:$CQ$92,MATCH('Rate Trajectory Report'!$B51,'Rate Trajectory Calc'!$A$6:$A$92,0),MATCH('Rate Trajectory Report'!Q$5,'Rate Trajectory Calc'!$A$6:$CQ$6,0))=0,\" \",INDEX('Rate Trajectory Calc'!$A$6:$CQ$92,MATCH('Rate Trajectory Report'!$B51,'Rate Trajectory Calc'!$A$6:$A$92,0),MATCH('Rate Trajectory Report'!Q$5,'Rate Trajectory Calc'!$A$6:$CQ$6,0))/1000)","v":" "},{"$f":"IF(INDEX('Rate Trajectory Calc'!$A$6:$CQ$92,MATCH('Rate Trajectory Report'!$B51,'Rate Trajectory Calc'!$A$6:$A$92,0),MATCH('Rate Trajectory Report'!R$5,'Rate Trajectory Calc'!$A$6:$CQ$6,0))=0,\" \",INDEX('Rate Trajectory Calc'!$A$6:$CQ$92,MATCH('Rate Trajectory Report'!$B51,'Rate Trajectory Calc'!$A$6:$A$92,0),MATCH('Rate Trajectory Report'!R$5,'Rate Trajectory Calc'!$A$6:$CQ$6,0))/1000)","v":" "},{"$f":"IF(INDEX('Rate Trajectory Calc'!$A$6:$CQ$92,MATCH('Rate Trajectory Report'!$B51,'Rate Trajectory Calc'!$A$6:$A$92,0),MATCH('Rate Trajectory Report'!S$5,'Rate Trajectory Calc'!$A$6:$CQ$6,0))=0,\" \",INDEX('Rate Trajectory Calc'!$A$6:$CQ$92,MATCH('Rate Trajectory Report'!$B51,'Rate Trajectory Calc'!$A$6:$A$92,0),MATCH('Rate Trajectory Report'!S$5,'Rate Trajectory Calc'!$A$6:$CQ$6,0))/1000)","v":" "},{"$f":"IF(INDEX('Rate Trajectory Calc'!$A$6:$CQ$92,MATCH('Rate Trajectory Report'!$B51,'Rate Trajectory Calc'!$A$6:$A$92,0),MATCH('Rate Trajectory Report'!T$5,'Rate Trajectory Calc'!$A$6:$CQ$6,0))=0,\" \",INDEX('Rate Trajectory Calc'!$A$6:$CQ$92,MATCH('Rate Trajectory Report'!$B51,'Rate Trajectory Calc'!$A$6:$A$92,0),MATCH('Rate Trajectory Report'!T$5,'Rate Trajectory Calc'!$A$6:$CQ$6,0))/1000)","v":-3.7408354786263693},{"$f":"IF(INDEX('Rate Trajectory Calc'!$A$6:$CQ$92,MATCH('Rate Trajectory Report'!$B51,'Rate Trajectory Calc'!$A$6:$A$92,0),MATCH('Rate Trajectory Report'!U$5,'Rate Trajectory Calc'!$A$6:$CQ$6,0))=0,\" \",INDEX('Rate Trajectory Calc'!$A$6:$CQ$92,MATCH('Rate Trajectory Report'!$B51,'Rate Trajectory Calc'!$A$6:$A$92,0),MATCH('Rate Trajectory Report'!U$5,'Rate Trajectory Calc'!$A$6:$CQ$6,0))/1000)","v":" "},{"$f":"IF(INDEX('Rate Trajectory Calc'!$A$6:$CQ$92,MATCH('Rate Trajectory Report'!$B51,'Rate Trajectory Calc'!$A$6:$A$92,0),MATCH('Rate Trajectory Report'!V$5,'Rate Trajectory Calc'!$A$6:$CQ$6,0))=0,\" \",INDEX('Rate Trajectory Calc'!$A$6:$CQ$92,MATCH('Rate Trajectory Report'!$B51,'Rate Trajectory Calc'!$A$6:$A$92,0),MATCH('Rate Trajectory Report'!V$5,'Rate Trajectory Calc'!$A$6:$CQ$6,0))/1000)","v":" "},{"$f":"IF(INDEX('Rate Trajectory Calc'!$A$6:$CQ$92,MATCH('Rate Trajectory Report'!$B51,'Rate Trajectory Calc'!$A$6:$A$92,0),MATCH('Rate Trajectory Report'!W$5,'Rate Trajectory Calc'!$A$6:$CQ$6,0))=0,\" \",INDEX('Rate Trajectory Calc'!$A$6:$CQ$92,MATCH('Rate Trajectory Report'!$B51,'Rate Trajectory Calc'!$A$6:$A$92,0),MATCH('Rate Trajectory Report'!W$5,'Rate Trajectory Calc'!$A$6:$CQ$6,0))/1000)","v":" "},{"$f":"IF(INDEX('Rate Trajectory Calc'!$A$6:$CQ$92,MATCH('Rate Trajectory Report'!$B51,'Rate Trajectory Calc'!$A$6:$A$92,0),MATCH('Rate Trajectory Report'!X$5,'Rate Trajectory Calc'!$A$6:$CQ$6,0))=0,\" \",INDEX('Rate Trajectory Calc'!$A$6:$CQ$92,MATCH('Rate Trajectory Report'!$B51,'Rate Trajectory Calc'!$A$6:$A$92,0),MATCH('Rate Trajectory Report'!X$5,'Rate Trajectory Calc'!$A$6:$CQ$6,0))/1000)","v":" "},{"$f":"IF(INDEX('Rate Trajectory Calc'!$A$6:$CQ$92,MATCH('Rate Trajectory Report'!$B51,'Rate Trajectory Calc'!$A$6:$A$92,0),MATCH('Rate Trajectory Report'!Y$5,'Rate Trajectory Calc'!$A$6:$CQ$6,0))=0,\" \",INDEX('Rate Trajectory Calc'!$A$6:$CQ$92,MATCH('Rate Trajectory Report'!$B51,'Rate Trajectory Calc'!$A$6:$A$92,0),MATCH('Rate Trajectory Report'!Y$5,'Rate Trajectory Calc'!$A$6:$CQ$6,0))/1000)","v":" "},{"$f":"IF(INDEX('Rate Trajectory Calc'!$A$6:$CQ$92,MATCH('Rate Trajectory Report'!$B51,'Rate Trajectory Calc'!$A$6:$A$92,0),MATCH('Rate Trajectory Report'!Z$5,'Rate Trajectory Calc'!$A$6:$CQ$6,0))=0,\" \",INDEX('Rate Trajectory Calc'!$A$6:$CQ$92,MATCH('Rate Trajectory Report'!$B51,'Rate Trajectory Calc'!$A$6:$A$92,0),MATCH('Rate Trajectory Report'!Z$5,'Rate Trajectory Calc'!$A$6:$CQ$6,0))/1000)","v":" "},{"$f":"IF(INDEX('Rate Trajectory Calc'!$A$6:$CQ$92,MATCH('Rate Trajectory Report'!$B51,'Rate Trajectory Calc'!$A$6:$A$92,0),MATCH('Rate Trajectory Report'!AA$5,'Rate Trajectory Calc'!$A$6:$CQ$6,0))=0,\" \",INDEX('Rate Trajectory Calc'!$A$6:$CQ$92,MATCH('Rate Trajectory Report'!$B51,'Rate Trajectory Calc'!$A$6:$A$92,0),MATCH('Rate Trajectory Report'!AA$5,'Rate Trajectory Calc'!$A$6:$CQ$6,0))/1000)","v":" "}]
[8,"Gas AMI",{"$f":"IFERROR(VLOOKUP(B52,'Rate Trajectory Dashboard'!$B$12:$D$96,3,FALSE)/1000,'Rate Trajectory Report'!C51)","v":0},{"$f":"IF(SUM(D50:D51)=0,\" \",SUBTOTAL(9,D50:D51))","v":" "},{"$f":"IF(SUM(E50:E51)=0,\" \",SUBTOTAL(9,E50:E51))","v":" "}," "," ",23.171001513243677," "," "," "," "," "," "," "," "," "," "," ",-23.171001513243677," "," "," "," "," "," "," "]
["9a","2023 Wildfire Mitigation and Catastrophic Events (distribution)",{"$f":"IFERROR(VLOOKUP(B53,'Rate Trajectory Dashboard'!$B$12:$D$96,3,FALSE)/1000,'Rate Trajectory Report'!C52)","v":0},{"$f":"IF(INDEX('Rate Trajectory Calc'!$A$6:$CQ$92,MATCH('Rate Trajectory Report'!$B53,'Rate Trajectory Calc'!$A$6:$A$92,0),MATCH('Rate Trajectory Report'!D$5,'Rate Trajectory Calc'!$A$6:$CQ$6,0))=0,\" \",INDEX('Rate Trajectory Calc'!$A$6:$CQ$92,MATCH('Rate Trajectory Report'!$B53,'Rate Trajectory Calc'!$A$6:$A$92,0),MATCH('Rate Trajectory Report'!D$5,'Rate Trajectory Calc'!$A$6:$CQ$6,0))/1000)","v":" "},{"$f":"IF(INDEX('Rate Trajectory Calc'!$A$6:$CQ$92,MATCH('Rate Trajectory Report'!$B53,'Rate Trajectory Calc'!$A$6:$A$92,0),MATCH('Rate Trajectory Report'!E$5,'Rate Trajectory Calc'!$A$6:$CQ$6,0))=0,\" \",INDEX('Rate Trajectory Calc'!$A$6:$CQ$92,MATCH('Rate Trajectory Report'!$B53,'Rate Trajectory Calc'!$A$6:$A$92,0),MATCH('Rate Trajectory Report'!E$5,'Rate Trajectory Calc'!$A$6:$CQ$6,0))/1000)","v":" "},{"$f":"IF(INDEX('Rate Trajectory Calc'!$A$6:$CQ$92,MATCH('Rate Trajectory Report'!$B53,'Rate Trajectory Calc'!$A$6:$A$92,0),MATCH('Rate Trajectory Report'!F$5,'Rate Trajectory Calc'!$A$6:$CQ$6,0))=0,\" \",INDEX('Rate Trajectory Calc'!$A$6:$CQ$92,MATCH('Rate Trajectory Report'!$B53,'Rate Trajectory Calc'!$A$6:$A$92,0),MATCH('Rate Trajectory Report'!F$5,'Rate Trajectory Calc'!$A$6:$CQ$6,0))/1000)","v":" "},{"$f":"IF(INDEX('Rate Trajectory Calc'!$A$6:$CQ$92,MATCH('Rate Trajectory Report'!$B53,'Rate Trajectory Calc'!$A$6:$A$92,0),MATCH('Rate Trajectory Report'!G$5,'Rate Trajectory Calc'!$A$6:$CQ$6,0))=0,\" \",INDEX('Rate Trajectory Calc'!$A$6:$CQ$92,MATCH('Rate Trajectory Report'!$B53,'Rate Trajectory Calc'!$A$6:$A$92,0),MATCH('Rate Trajectory Report'!G$5,'Rate Trajectory Calc'!$A$6:$CQ$6,0))/1000)","v":" "},{"$f":"IF(INDEX('Rate Trajectory Calc'!$A$6:$CQ$92,MATCH('Rate Trajectory Report'!$B53,'Rate Trajectory Calc'!$A$6:$A$92,0),MATCH('Rate Trajectory Report'!H$5,'Rate Trajectory Calc'!$A$6:$CQ$6,0))=0,\" \",INDEX('Rate Trajectory Calc'!$A$6:$CQ$92,MATCH('Rate Trajectory Report'!$B53,'Rate Trajectory Calc'!$A$6:$A$92,0),MATCH('Rate Trajectory Report'!H$5,'Rate Trajectory Calc'!$A$6:$CQ$6,0))/1000)","v":13.644279615856252},{"$f":"IF(INDEX('Rate Trajectory Calc'!$A$6:$CQ$92,MATCH('Rate Trajectory Report'!$B53,'Rate Trajectory Calc'!$A$6:$A$92,0),MATCH('Rate Trajectory Report'!I$5,'Rate Trajectory Calc'!$A$6:$CQ$6,0))=0,\" \",INDEX('Rate Trajectory Calc'!$A$6:$CQ$92,MATCH('Rate Trajectory Report'!$B53,'Rate Trajectory Calc'!$A$6:$A$92,0),MATCH('Rate Trajectory Report'!I$5,'Rate Trajectory Calc'!$A$6:$CQ$6,0))/1000)","v":" "},{"$f":"IF(INDEX('Rate Trajectory Calc'!$A$6:$CQ$92,MATCH('Rate Trajectory Report'!$B53,'Rate Trajectory Calc'!$A$6:$A$92,0),MATCH('Rate Trajectory Report'!J$5,'Rate Trajectory Calc'!$A$6:$CQ$6,0))=0,\" \",INDEX('Rate Trajectory Calc'!$A$6:$CQ$92,MATCH('Rate Trajectory Report'!$B53,'Rate Trajectory Calc'!$A$6:$A$92,0),MATCH('Rate Trajectory Report'!J$5,'Rate Trajectory Calc'!$A$6:$CQ$6,0))/1000)","v":" "},{"$f":"IF(INDEX('Rate Trajectory Calc'!$A$6:$CQ$92,MATCH('Rate Trajectory Report'!$B53,'Rate Trajectory Calc'!$A$6:$A$92,0),MATCH('Rate Trajectory Report'!K$5,'Rate Trajectory Calc'!$A$6:$CQ$6,0))=0,\" \",INDEX('Rate Trajectory Calc'!$A$6:$CQ$92,MATCH('Rate Trajectory Report'!$B53,'Rate Trajectory Calc'!$A$6:$A$92,0),MATCH('Rate Trajectory Report'!K$5,'Rate Trajectory Calc'!$A$6:$CQ$6,0))/1000)","v":" "},{"$f":"IF(INDEX('Rate Trajectory Calc'!$A$6:$CQ$92,MATCH('Rate Trajectory Report'!$B53,'Rate Trajectory Calc'!$A$6:$A$92,0),MATCH('Rate Trajectory Report'!L$5,'Rate Trajectory Calc'!$A$6:$CQ$6,0))=0,\" \",INDEX('Rate Trajectory Calc'!$A$6:$CQ$92,MATCH('Rate Trajectory Report'!$B53,'Rate Trajectory Calc'!$A$6:$A$92,0),MATCH('Rate Trajectory Report'!L$5,'Rate Trajectory Calc'!$A$6:$CQ$6,0))/1000)","v":" "},{"$f":"IF(INDEX('Rate Trajectory Calc'!$A$6:$CQ$92,MATCH('Rate Trajectory Report'!$B53,'Rate Trajectory Calc'!$A$6:$A$92,0),MATCH('Rate Trajectory Report'!M$5,'Rate Trajectory Calc'!$A$6:$CQ$6,0))=0,\" \",INDEX('Rate Trajectory Calc'!$A$6:$CQ$92,MATCH('Rate Trajectory Report'!$B53,'Rate Trajectory Calc'!$A$6:$A$92,0),MATCH('Rate Trajectory Report'!M$5,'Rate Trajectory Calc'!$A$6:$CQ$6,0))/1000)","v":" "},{"$f":"IF(INDEX('Rate Trajectory Calc'!$A$6:$CQ$92,MATCH('Rate Trajectory Report'!$B53,'Rate Trajectory Calc'!$A$6:$A$92,0),MATCH('Rate Trajectory Report'!N$5,'Rate Trajectory Calc'!$A$6:$CQ$6,0))=0,\" \",INDEX('Rate Trajectory Calc'!$A$6:$CQ$92,MATCH('Rate Trajectory Report'!$B53,'Rate Trajectory Calc'!$A$6:$A$92,0),MATCH('Rate Trajectory Report'!N$5,'Rate Trajectory Calc'!$A$6:$CQ$6,0))/1000)","v":" "},{"$f":"IF(INDEX('Rate Trajectory Calc'!$A$6:$CQ$92,MATCH('Rate Trajectory Report'!$B53,'Rate Trajectory Calc'!$A$6:$A$92,0),MATCH('Rate Trajectory Report'!O$5,'Rate Trajectory Calc'!$A$6:$CQ$6,0))=0,\" \",INDEX('Rate Trajectory Calc'!$A$6:$CQ$92,MATCH('Rate Trajectory Report'!$B53,'Rate Trajectory Calc'!$A$6:$A$92,0),MATCH('Rate Trajectory Report'!O$5,'Rate Trajectory Calc'!$A$6:$CQ$6,0))/1000)","v":" "},{"$f":"IF(INDEX('Rate Trajectory Calc'!$A$6:$CQ$92,MATCH('Rate Trajectory Report'!$B53,'Rate Trajectory Calc'!$A$6:$A$92,0),MATCH('Rate Trajectory Report'!P$5,'Rate Trajectory Calc'!$A$6:$CQ$6,0))=0,\" \",INDEX('Rate Trajectory Calc'!$A$6:$CQ$92,MATCH('Rate Trajectory Report'!$B53,'Rate Trajectory Calc'!$A$6:$A$92,0),MATCH('Rate Trajectory Report'!P$5,'Rate Trajectory Calc'!$A$6:$CQ$6,0))/1000)","v":" "},{"$f":"IF(INDEX('Rate Trajectory Calc'!$A$6:$CQ$92,MATCH('Rate Trajectory Report'!$B53,'Rate Trajectory Calc'!$A$6:$A$92,0),MATCH('Rate Trajectory Report'!Q$5,'Rate Trajectory Calc'!$A$6:$CQ$6,0))=0,\" \",INDEX('Rate Trajectory Calc'!$A$6:$CQ$92,MATCH('Rate Trajectory Report'!$B53,'Rate Trajectory Calc'!$A$6:$A$92,0),MATCH('Rate Trajectory Report'!Q$5,'Rate Trajectory Calc'!$A$6:$CQ$6,0))/1000)","v":" "},{"$f":"IF(INDEX('Rate Trajectory Calc'!$A$6:$CQ$92,MATCH('Rate Trajectory Report'!$B53,'Rate Trajectory Calc'!$A$6:$A$92,0),MATCH('Rate Trajectory Report'!R$5,'Rate Trajectory Calc'!$A$6:$CQ$6,0))=0,\" \",INDEX('Rate Trajectory Calc'!$A$6:$CQ$92,MATCH('Rate Trajectory Report'!$B53,'Rate Trajectory Calc'!$A$6:$A$92,0),MATCH('Rate Trajectory Report'!R$5,'Rate Trajectory Calc'!$A$6:$CQ$6,0))/1000)","v":" "},{"$f":"IF(INDEX('Rate Trajectory Calc'!$A$6:$CQ$92,MATCH('Rate Trajectory Report'!$B53,'Rate Trajectory Calc'!$A$6:$A$92,0),MATCH('Rate Trajectory Report'!S$5,'Rate Trajectory Calc'!$A$6:$CQ$6,0))=0,\" \",INDEX('Rate Trajectory Calc'!$A$6:$CQ$92,MATCH('Rate Trajectory Report'!$B53,'Rate Trajectory Calc'!$A$6:$A$92,0),MATCH('Rate Trajectory Report'!S$5,'Rate Trajectory Calc'!$A$6:$CQ$6,0))/1000)","v":" "},{"$f":"IF(INDEX('Rate Trajectory Calc'!$A$6:$CQ$92,MATCH('Rate Trajectory Report'!$B53,'Rate Trajectory Calc'!$A$6:$A$92,0),MATCH('Rate Trajectory Report'!T$5,'Rate Trajectory Calc'!$A$6:$CQ$6,0))=0,\" \",INDEX('Rate Trajectory Calc'!$A$6:$CQ$92,MATCH('Rate Trajectory Report'!$B53,'Rate Trajectory Calc'!$A$6:$A$92,0),MATCH('Rate Trajectory Report'!T$5,'Rate Trajectory Calc'!$A$6:$CQ$6,0))/1000)","v":-13.644279615856252},{"$f":"IF(INDEX('Rate Trajectory Calc'!$A$6:$CQ$92,MATCH('Rate Trajectory Report'!$B53,'Rate Trajectory Calc'!$A$6:$A$92,0),MATCH('Rate Trajectory Report'!U$5,'Rate Trajectory Calc'!$A$6:$CQ$6,0))=0,\" \",INDEX('Rate Trajectory Calc'!$A$6:$CQ$92,MATCH('Rate Trajectory Report'!$B53,'Rate Trajectory Calc'!$A$6:$A$92,0),MATCH('Rate Trajectory Report'!U$5,'Rate Trajectory Calc'!$A$6:$CQ$6,0))/1000)","v":" "},{"$f":"IF(INDEX('Rate Trajectory Calc'!$A$6:$CQ$92,MATCH('Rate Trajectory Report'!$B53,'Rate Trajectory Calc'!$A$6:$A$92,0),MATCH('Rate Trajectory Report'!V$5,'Rate Trajectory Calc'!$A$6:$CQ$6,0))=0,\" \",INDEX('Rate Trajectory Calc'!$A$6:$CQ$92,MATCH('Rate Trajectory Report'!$B53,'Rate Trajectory Calc'!$A$6:$A$92,0),MATCH('Rate Trajectory Report'!V$5,'Rate Trajectory Calc'!$A$6:$CQ$6,0))/1000)","v":" "},{"$f":"IF(INDEX('Rate Trajectory Calc'!$A$6:$CQ$92,MATCH('Rate Trajectory Report'!$B53,'Rate Trajectory Calc'!$A$6:$A$92,0),MATCH('Rate Trajectory Report'!W$5,'Rate Trajectory Calc'!$A$6:$CQ$6,0))=0,\" \",INDEX('Rate Trajectory Calc'!$A$6:$CQ$92,MATCH('Rate Trajectory Report'!$B53,'Rate Trajectory Calc'!$A$6:$A$92,0),MATCH('Rate Trajectory Report'!W$5,'Rate Trajectory Calc'!$A$6:$CQ$6,0))/1000)","v":" "},{"$f":"IF(INDEX('Rate Trajectory Calc'!$A$6:$CQ$92,MATCH('Rate Trajectory Report'!$B53,'Rate Trajectory Calc'!$A$6:$A$92,0),MATCH('Rate Trajectory Report'!X$5,'Rate Trajectory Calc'!$A$6:$CQ$6,0))=0,\" \",INDEX('Rate Trajectory Calc'!$A$6:$CQ$92,MATCH('Rate Trajectory Report'!$B53,'Rate Trajectory Calc'!$A$6:$A$92,0),MATCH('Rate Trajectory Report'!X$5,'Rate Trajectory Calc'!$A$6:$CQ$6,0))/1000)","v":" "},{"$f":"IF(INDEX('Rate Trajectory Calc'!$A$6:$CQ$92,MATCH('Rate Trajectory Report'!$B53,'Rate Trajectory Calc'!$A$6:$A$92,0),MATCH('Rate Trajectory Report'!Y$5,'Rate Trajectory Calc'!$A$6:$CQ$6,0))=0,\" \",INDEX('Rate Trajectory Calc'!$A$6:$CQ$92,MATCH('Rate Trajectory Report'!$B53,'Rate Trajectory Calc'!$A$6:$A$92,0),MATCH('Rate Trajectory Report'!Y$5,'Rate Trajectory Calc'!$A$6:$CQ$6,0))/1000)","v":" "},{"$f":"IF(INDEX('Rate Trajectory Calc'!$A$6:$CQ$92,MATCH('Rate Trajectory Report'!$B53,'Rate Trajectory Calc'!$A$6:$A$92,0),MATCH('Rate Trajectory Report'!Z$5,'Rate Trajectory Calc'!$A$6:$CQ$6,0))=0,\" \",INDEX('Rate Trajectory Calc'!$A$6:$CQ$92,MATCH('Rate Trajectory Report'!$B53,'Rate Trajectory Calc'!$A$6:$A$92,0),MATCH('Rate Trajectory Report'!Z$5,'Rate Trajectory Calc'!$A$6:$CQ$6,0))/1000)","v":" "},{"$f":"IF(INDEX('Rate Trajectory Calc'!$A$6:$CQ$92,MATCH('Rate Trajectory Report'!$B53,'Rate Trajectory Calc'!$A$6:$A$92,0),MATCH('Rate Trajectory Report'!AA$5,'Rate Trajectory Calc'!$A$6:$CQ$6,0))=0,\" \",INDEX('Rate Trajectory Calc'!$A$6:$CQ$92,MATCH('Rate Trajectory Report'!$B53,'Rate Trajectory Calc'!$A$6:$A$92,0),MATCH('Rate Trajectory Report'!AA$5,'Rate Trajectory Calc'!$A$6:$CQ$6,0))/1000)","v":" "}]
["9b","2023 Wildfire Mitigation and Catastrophic Events (transmission)",{"$f":"IFERROR(VLOOKUP(B54,'Rate Trajectory Dashboard'!$B$12:$D$96,3,FALSE)/1000,'Rate Trajectory Report'!C53)","v":0},{"$f":"IF(INDEX('Rate Trajectory Calc'!$A$6:$CQ$92,MATCH('Rate Trajectory Report'!$B54,'Rate Trajectory Calc'!$A$6:$A$92,0),MATCH('Rate Trajectory Report'!D$5,'Rate Trajectory Calc'!$A$6:$CQ$6,0))=0,\" \",INDEX('Rate Trajectory Calc'!$A$6:$CQ$92,MATCH('Rate Trajectory Report'!$B54,'Rate Trajectory Calc'!$A$6:$A$92,0),MATCH('Rate Trajectory Report'!D$5,'Rate Trajectory Calc'!$A$6:$CQ$6,0))/1000)","v":" "},{"$f":"IF(INDEX('Rate Trajectory Calc'!$A$6:$CQ$92,MATCH('Rate Trajectory Report'!$B54,'Rate Trajectory Calc'!$A$6:$A$92,0),MATCH('Rate Trajectory Report'!E$5,'Rate Trajectory Calc'!$A$6:$CQ$6,0))=0,\" \",INDEX('Rate Trajectory Calc'!$A$6:$CQ$92,MATCH('Rate Trajectory Report'!$B54,'Rate Trajectory Calc'!$A$6:$A$92,0),MATCH('Rate Trajectory Report'!E$5,'Rate Trajectory Calc'!$A$6:$CQ$6,0))/1000)","v":" "},{"$f":"IF(INDEX('Rate Trajectory Calc'!$A$6:$CQ$92,MATCH('Rate Trajectory Report'!$B54,'Rate Trajectory Calc'!$A$6:$A$92,0),MATCH('Rate Trajectory Report'!F$5,'Rate Trajectory Calc'!$A$6:$CQ$6,0))=0,\" \",INDEX('Rate Trajectory Calc'!$A$6:$CQ$92,MATCH('Rate Trajectory Report'!$B54,'Rate Trajectory Calc'!$A$6:$A$92,0),MATCH('Rate Trajectory Report'!F$5,'Rate Trajectory Calc'!$A$6:$CQ$6,0))/1000)","v":" "},{"$f":"IF(INDEX('Rate Trajectory Calc'!$A$6:$CQ$92,MATCH('Rate Trajectory Report'!$B54,'Rate Trajectory Calc'!$A$6:$A$92,0),MATCH('Rate Trajectory Report'!G$5,'Rate Trajectory Calc'!$A$6:$CQ$6,0))=0,\" \",INDEX('Rate Trajectory Calc'!$A$6:$CQ$92,MATCH('Rate Trajectory Report'!$B54,'Rate Trajectory Calc'!$A$6:$A$92,0),MATCH('Rate Trajectory Report'!G$5,'Rate Trajectory Calc'!$A$6:$CQ$6,0))/1000)","v":" "},{"$f":"IF(INDEX('Rate Trajectory Calc'!$A$6:$CQ$92,MATCH('Rate Trajectory Report'!$B54,'Rate Trajectory Calc'!$A$6:$A$92,0),MATCH('Rate Trajectory Report'!H$5,'Rate Trajectory Calc'!$A$6:$CQ$6,0))=0,\" \",INDEX('Rate Trajectory Calc'!$A$6:$CQ$92,MATCH('Rate Trajectory Report'!$B54,'Rate Trajectory Calc'!$A$6:$A$92,0),MATCH('Rate Trajectory Report'!H$5,'Rate Trajectory Calc'!$A$6:$CQ$6,0))/1000)","v":5.9135229509132934},{"$f":"IF(INDEX('Rate Trajectory Calc'!$A$6:$CQ$92,MATCH('Rate Trajectory Report'!$B54,'Rate Trajectory Calc'!$A$6:$A$92,0),MATCH('Rate Trajectory Report'!I$5,'Rate Trajectory Calc'!$A$6:$CQ$6,0))=0,\" \",INDEX('Rate Trajectory Calc'!$A$6:$CQ$92,MATCH('Rate Trajectory Report'!$B54,'Rate Trajectory Calc'!$A$6:$A$92,0),MATCH('Rate Trajectory Report'!I$5,'Rate Trajectory Calc'!$A$6:$CQ$6,0))/1000)","v":" "},{"$f":"IF(INDEX('Rate Trajectory Calc'!$A$6:$CQ$92,MATCH('Rate Trajectory Report'!$B54,'Rate Trajectory Calc'!$A$6:$A$92,0),MATCH('Rate Trajectory Report'!J$5,'Rate Trajectory Calc'!$A$6:$CQ$6,0))=0,\" \",INDEX('Rate Trajectory Calc'!$A$6:$CQ$92,MATCH('Rate Trajectory Report'!$B54,'Rate Trajectory Calc'!$A$6:$A$92,0),MATCH('Rate Trajectory Report'!J$5,'Rate Trajectory Calc'!$A$6:$CQ$6,0))/1000)","v":" "},{"$f":"IF(INDEX('Rate Trajectory Calc'!$A$6:$CQ$92,MATCH('Rate Trajectory Report'!$B54,'Rate Trajectory Calc'!$A$6:$A$92,0),MATCH('Rate Trajectory Report'!K$5,'Rate Trajectory Calc'!$A$6:$CQ$6,0))=0,\" \",INDEX('Rate Trajectory Calc'!$A$6:$CQ$92,MATCH('Rate Trajectory Report'!$B54,'Rate Trajectory Calc'!$A$6:$A$92,0),MATCH('Rate Trajectory Report'!K$5,'Rate Trajectory Calc'!$A$6:$CQ$6,0))/1000)","v":" "},{"$f":"IF(INDEX('Rate Trajectory Calc'!$A$6:$CQ$92,MATCH('Rate Trajectory Report'!$B54,'Rate Trajectory Calc'!$A$6:$A$92,0),MATCH('Rate Trajectory Report'!L$5,'Rate Trajectory Calc'!$A$6:$CQ$6,0))=0,\" \",INDEX('Rate Trajectory Calc'!$A$6:$CQ$92,MATCH('Rate Trajectory Report'!$B54,'Rate Trajectory Calc'!$A$6:$A$92,0),MATCH('Rate Trajectory Report'!L$5,'Rate Trajectory Calc'!$A$6:$CQ$6,0))/1000)","v":" "},{"$f":"IF(INDEX('Rate Trajectory Calc'!$A$6:$CQ$92,MATCH('Rate Trajectory Report'!$B54,'Rate Trajectory Calc'!$A$6:$A$92,0),MATCH('Rate Trajectory Report'!M$5,'Rate Trajectory Calc'!$A$6:$CQ$6,0))=0,\" \",INDEX('Rate Trajectory Calc'!$A$6:$CQ$92,MATCH('Rate Trajectory Report'!$B54,'Rate Trajectory Calc'!$A$6:$A$92,0),MATCH('Rate Trajectory Report'!M$5,'Rate Trajectory Calc'!$A$6:$CQ$6,0))/1000)","v":" "},{"$f":"IF(INDEX('Rate Trajectory Calc'!$A$6:$CQ$92,MATCH('Rate Trajectory Report'!$B54,'Rate Trajectory Calc'!$A$6:$A$92,0),MATCH('Rate Trajectory Report'!N$5,'Rate Trajectory Calc'!$A$6:$CQ$6,0))=0,\" \",INDEX('Rate Trajectory Calc'!$A$6:$CQ$92,MATCH('Rate Trajectory Report'!$B54,'Rate Trajectory Calc'!$A$6:$A$92,0),MATCH('Rate Trajectory Report'!N$5,'Rate Trajectory Calc'!$A$6:$CQ$6,0))/1000)","v":" "},{"$f":"IF(INDEX('Rate Trajectory Calc'!$A$6:$CQ$92,MATCH('Rate Trajectory Report'!$B54,'Rate Trajectory Calc'!$A$6:$A$92,0),MATCH('Rate Trajectory Report'!O$5,'Rate Trajectory Calc'!$A$6:$CQ$6,0))=0,\" \",INDEX('Rate Trajectory Calc'!$A$6:$CQ$92,MATCH('Rate Trajectory Report'!$B54,'Rate Trajectory Calc'!$A$6:$A$92,0),MATCH('Rate Trajectory Report'!O$5,'Rate Trajectory Calc'!$A$6:$CQ$6,0))/1000)","v":" "},{"$f":"IF(INDEX('Rate Trajectory Calc'!$A$6:$CQ$92,MATCH('Rate Trajectory Report'!$B54,'Rate Trajectory Calc'!$A$6:$A$92,0),MATCH('Rate Trajectory Report'!P$5,'Rate Trajectory Calc'!$A$6:$CQ$6,0))=0,\" \",INDEX('Rate Trajectory Calc'!$A$6:$CQ$92,MATCH('Rate Trajectory Report'!$B54,'Rate Trajectory Calc'!$A$6:$A$92,0),MATCH('Rate Trajectory Report'!P$5,'Rate Trajectory Calc'!$A$6:$CQ$6,0))/1000)","v":" "},{"$f":"IF(INDEX('Rate Trajectory Calc'!$A$6:$CQ$92,MATCH('Rate Trajectory Report'!$B54,'Rate Trajectory Calc'!$A$6:$A$92,0),MATCH('Rate Trajectory Report'!Q$5,'Rate Trajectory Calc'!$A$6:$CQ$6,0))=0,\" \",INDEX('Rate Trajectory Calc'!$A$6:$CQ$92,MATCH('Rate Trajectory Report'!$B54,'Rate Trajectory Calc'!$A$6:$A$92,0),MATCH('Rate Trajectory Report'!Q$5,'Rate Trajectory Calc'!$A$6:$CQ$6,0))/1000)","v":" "},{"$f":"IF(INDEX('Rate Trajectory Calc'!$A$6:$CQ$92,MATCH('Rate Trajectory Report'!$B54,'Rate Trajectory Calc'!$A$6:$A$92,0),MATCH('Rate Trajectory Report'!R$5,'Rate Trajectory Calc'!$A$6:$CQ$6,0))=0,\" \",INDEX('Rate Trajectory Calc'!$A$6:$CQ$92,MATCH('Rate Trajectory Report'!$B54,'Rate Trajectory Calc'!$A$6:$A$92,0),MATCH('Rate Trajectory Report'!R$5,'Rate Trajectory Calc'!$A$6:$CQ$6,0))/1000)","v":" "},{"$f":"IF(INDEX('Rate Trajectory Calc'!$A$6:$CQ$92,MATCH('Rate Trajectory Report'!$B54,'Rate Trajectory Calc'!$A$6:$A$92,0),MATCH('Rate Trajectory Report'!S$5,'Rate Trajectory Calc'!$A$6:$CQ$6,0))=0,\" \",INDEX('Rate Trajectory Calc'!$A$6:$CQ$92,MATCH('Rate Trajectory Report'!$B54,'Rate Trajectory Calc'!$A$6:$A$92,0),MATCH('Rate Trajectory Report'!S$5,'Rate Trajectory Calc'!$A$6:$CQ$6,0))/1000)","v":" "},{"$f":"IF(INDEX('Rate Trajectory Calc'!$A$6:$CQ$92,MATCH('Rate Trajectory Report'!$B54,'Rate Trajectory Calc'!$A$6:$A$92,0),MATCH('Rate Trajectory Report'!T$5,'Rate Trajectory Calc'!$A$6:$CQ$6,0))=0,\" \",INDEX('Rate Trajectory Calc'!$A$6:$CQ$92,MATCH('Rate Trajectory Report'!$B54,'Rate Trajectory Calc'!$A$6:$A$92,0),MATCH('Rate Trajectory Report'!T$5,'Rate Trajectory Calc'!$A$6:$CQ$6,0))/1000)","v":-5.9135229509132934},{"$f":"IF(INDEX('Rate Trajectory Calc'!$A$6:$CQ$92,MATCH('Rate Trajectory Report'!$B54,'Rate Trajectory Calc'!$A$6:$A$92,0),MATCH('Rate Trajectory Report'!U$5,'Rate Trajectory Calc'!$A$6:$CQ$6,0))=0,\" \",INDEX('Rate Trajectory Calc'!$A$6:$CQ$92,MATCH('Rate Trajectory Report'!$B54,'Rate Trajectory Calc'!$A$6:$A$92,0),MATCH('Rate Trajectory Report'!U$5,'Rate Trajectory Calc'!$A$6:$CQ$6,0))/1000)","v":" "},{"$f":"IF(INDEX('Rate Trajectory Calc'!$A$6:$CQ$92,MATCH('Rate Trajectory Report'!$B54,'Rate Trajectory Calc'!$A$6:$A$92,0),MATCH('Rate Trajectory Report'!V$5,'Rate Trajectory Calc'!$A$6:$CQ$6,0))=0,\" \",INDEX('Rate Trajectory Calc'!$A$6:$CQ$92,MATCH('Rate Trajectory Report'!$B54,'Rate Trajectory Calc'!$A$6:$A$92,0),MATCH('Rate Trajectory Report'!V$5,'Rate Trajectory Calc'!$A$6:$CQ$6,0))/1000)","v":" "},{"$f":"IF(INDEX('Rate Trajectory Calc'!$A$6:$CQ$92,MATCH('Rate Trajectory Report'!$B54,'Rate Trajectory Calc'!$A$6:$A$92,0),MATCH('Rate Trajectory Report'!W$5,'Rate Trajectory Calc'!$A$6:$CQ$6,0))=0,\" \",INDEX('Rate Trajectory Calc'!$A$6:$CQ$92,MATCH('Rate Trajectory Report'!$B54,'Rate Trajectory Calc'!$A$6:$A$92,0),MATCH('Rate Trajectory Report'!W$5,'Rate Trajectory Calc'!$A$6:$CQ$6,0))/1000)","v":" "},{"$f":"IF(INDEX('Rate Trajectory Calc'!$A$6:$CQ$92,MATCH('Rate Trajectory Report'!$B54,'Rate Trajectory Calc'!$A$6:$A$92,0),MATCH('Rate Trajectory Report'!X$5,'Rate Trajectory Calc'!$A$6:$CQ$6,0))=0,\" \",INDEX('Rate Trajectory Calc'!$A$6:$CQ$92,MATCH('Rate Trajectory Report'!$B54,'Rate Trajectory Calc'!$A$6:$A$92,0),MATCH('Rate Trajectory Report'!X$5,'Rate Trajectory Calc'!$A$6:$CQ$6,0))/1000)","v":" "},{"$f":"IF(INDEX('Rate Trajectory Calc'!$A$6:$CQ$92,MATCH('Rate Trajectory Report'!$B54,'Rate Trajectory Calc'!$A$6:$A$92,0),MATCH('Rate Trajectory Report'!Y$5,'Rate Trajectory Calc'!$A$6:$CQ$6,0))=0,\" \",INDEX('Rate Trajectory Calc'!$A$6:$CQ$92,MATCH('Rate Trajectory Report'!$B54,'Rate Trajectory Calc'!$A$6:$A$92,0),MATCH('Rate Trajectory Report'!Y$5,'Rate Trajectory Calc'!$A$6:$CQ$6,0))/1000)","v":" "},{"$f":"IF(INDEX('Rate Trajectory Calc'!$A$6:$CQ$92,MATCH('Rate Trajectory Report'!$B54,'Rate Trajectory Calc'!$A$6:$A$92,0),MATCH('Rate Trajectory Report'!Z$5,'Rate Trajectory Calc'!$A$6:$CQ$6,0))=0,\" \",INDEX('Rate Trajectory Calc'!$A$6:$CQ$92,MATCH('Rate Trajectory Report'!$B54,'Rate Trajectory Calc'!$A$6:$A$92,0),MATCH('Rate Trajectory Report'!Z$5,'Rate Trajectory Calc'!$A$6:$CQ$6,0))/1000)","v":" "},{"$f":"IF(INDEX('Rate Trajectory Calc'!$A$6:$CQ$92,MATCH('Rate Trajectory Report'!$B54,'Rate Trajectory Calc'!$A$6:$A$92,0),MATCH('Rate Trajectory Report'!AA$5,'Rate Trajectory Calc'!$A$6:$CQ$6,0))=0,\" \",INDEX('Rate Trajectory Calc'!$A$6:$CQ$92,MATCH('Rate Trajectory Report'!$B54,'Rate Trajectory Calc'!$A$6:$A$92,0),MATCH('Rate Trajectory Report'!AA$5,'Rate Trajectory Calc'!$A$6:$CQ$6,0))/1000)","v":" "}]
[9,"2023 Wildfire Mitigation and Catastrophic Events",{"$f":"IFERROR(VLOOKUP(B55,'Rate Trajectory Dashboard'!$B$12:$D$96,3,FALSE)/1000,'Rate Trajectory Report'!C54)","v":0},{"$f":"IF(SUM(D53:D54)=0,\" \",SUBTOTAL(9,D53:D54))","v":" "},{"$f":"IF(SUM(E53:E54)=0,\" \",SUBTOTAL(9,E53:E54))","v":" "}," "," ",19.557802566769546," "," "," "," "," "," "," "," "," "," "," ",-19.557802566769546," "," "," "," "," "," "," "]
["10a","Wildfire Gas and Safety Costs (Distribution) Non-IRR",{"$f":"IFERROR(VLOOKUP(B56,'Rate Trajectory Dashboard'!$B$12:$D$96,3,FALSE)/1000,'Rate Trajectory Report'!C55)","v":0},{"$f":"IF(INDEX('Rate Trajectory Calc'!$A$6:$CQ$92,MATCH('Rate Trajectory Report'!$B56,'Rate Trajectory Calc'!$A$6:$A$92,0),MATCH('Rate Trajectory Report'!D$5,'Rate Trajectory Calc'!$A$6:$CQ$6,0))=0,\" \",INDEX('Rate Trajectory Calc'!$A$6:$CQ$92,MATCH('Rate Trajectory Report'!$B56,'Rate Trajectory Calc'!$A$6:$A$92,0),MATCH('Rate Trajectory Report'!D$5,'Rate Trajectory Calc'!$A$6:$CQ$6,0))/1000)","v":" "},{"$f":"IF(INDEX('Rate Trajectory Calc'!$A$6:$CQ$92,MATCH('Rate Trajectory Report'!$B56,'Rate Trajectory Calc'!$A$6:$A$92,0),MATCH('Rate Trajectory Report'!E$5,'Rate Trajectory Calc'!$A$6:$CQ$6,0))=0,\" \",INDEX('Rate Trajectory Calc'!$A$6:$CQ$92,MATCH('Rate Trajectory Report'!$B56,'Rate Trajectory Calc'!$A$6:$A$92,0),MATCH('Rate Trajectory Report'!E$5,'Rate Trajectory Calc'!$A$6:$CQ$6,0))/1000)","v":" "},{"$f":"IF(INDEX('Rate Trajectory Calc'!$A$6:$CQ$92,MATCH('Rate Trajectory Report'!$B56,'Rate Trajectory Calc'!$A$6:$A$92,0),MATCH('Rate Trajectory Report'!F$5,'Rate Trajectory Calc'!$A$6:$CQ$6,0))=0,\" \",INDEX('Rate Trajectory Calc'!$A$6:$CQ$92,MATCH('Rate Trajectory Report'!$B56,'Rate Trajectory Calc'!$A$6:$A$92,0),MATCH('Rate Trajectory Report'!F$5,'Rate Trajectory Calc'!$A$6:$CQ$6,0))/1000)","v":" "},{"$f":"IF(INDEX('Rate Trajectory Calc'!$A$6:$CQ$92,MATCH('Rate Trajectory Report'!$B56,'Rate Trajectory Calc'!$A$6:$A$92,0),MATCH('Rate Trajectory Report'!G$5,'Rate Trajectory Calc'!$A$6:$CQ$6,0))=0,\" \",INDEX('Rate Trajectory Calc'!$A$6:$CQ$92,MATCH('Rate Trajectory Report'!$B56,'Rate Trajectory Calc'!$A$6:$A$92,0),MATCH('Rate Trajectory Report'!G$5,'Rate Trajectory Calc'!$A$6:$CQ$6,0))/1000)","v":" "},{"$f":"IF(INDEX('Rate Trajectory Calc'!$A$6:$CQ$92,MATCH('Rate Trajectory Report'!$B56,'Rate Trajectory Calc'!$A$6:$A$92,0),MATCH('Rate Trajectory Report'!H$5,'Rate Trajectory Calc'!$A$6:$CQ$6,0))=0,\" \",INDEX('Rate Trajectory Calc'!$A$6:$CQ$92,MATCH('Rate Trajectory Report'!$B56,'Rate Trajectory Calc'!$A$6:$A$92,0),MATCH('Rate Trajectory Report'!H$5,'Rate Trajectory Calc'!$A$6:$CQ$6,0))/1000)","v":6.7767164408128542},{"$f":"IF(INDEX('Rate Trajectory Calc'!$A$6:$CQ$92,MATCH('Rate Trajectory Report'!$B56,'Rate Trajectory Calc'!$A$6:$A$92,0),MATCH('Rate Trajectory Report'!I$5,'Rate Trajectory Calc'!$A$6:$CQ$6,0))=0,\" \",INDEX('Rate Trajectory Calc'!$A$6:$CQ$92,MATCH('Rate Trajectory Report'!$B56,'Rate Trajectory Calc'!$A$6:$A$92,0),MATCH('Rate Trajectory Report'!I$5,'Rate Trajectory Calc'!$A$6:$CQ$6,0))/1000)","v":" "},{"$f":"IF(INDEX('Rate Trajectory Calc'!$A$6:$CQ$92,MATCH('Rate Trajectory Report'!$B56,'Rate Trajectory Calc'!$A$6:$A$92,0),MATCH('Rate Trajectory Report'!J$5,'Rate Trajectory Calc'!$A$6:$CQ$6,0))=0,\" \",INDEX('Rate Trajectory Calc'!$A$6:$CQ$92,MATCH('Rate Trajectory Report'!$B56,'Rate Trajectory Calc'!$A$6:$A$92,0),MATCH('Rate Trajectory Report'!J$5,'Rate Trajectory Calc'!$A$6:$CQ$6,0))/1000)","v":" "},{"$f":"IF(INDEX('Rate Trajectory Calc'!$A$6:$CQ$92,MATCH('Rate Trajectory Report'!$B56,'Rate Trajectory Calc'!$A$6:$A$92,0),MATCH('Rate Trajectory Report'!K$5,'Rate Trajectory Calc'!$A$6:$CQ$6,0))=0,\" \",INDEX('Rate Trajectory Calc'!$A$6:$CQ$92,MATCH('Rate Trajectory Report'!$B56,'Rate Trajectory Calc'!$A$6:$A$92,0),MATCH('Rate Trajectory Report'!K$5,'Rate Trajectory Calc'!$A$6:$CQ$6,0))/1000)","v":" "},{"$f":"IF(INDEX('Rate Trajectory Calc'!$A$6:$CQ$92,MATCH('Rate Trajectory Report'!$B56,'Rate Trajectory Calc'!$A$6:$A$92,0),MATCH('Rate Trajectory Report'!L$5,'Rate Trajectory Calc'!$A$6:$CQ$6,0))=0,\" \",INDEX('Rate Trajectory Calc'!$A$6:$CQ$92,MATCH('Rate Trajectory Report'!$B56,'Rate Trajectory Calc'!$A$6:$A$92,0),MATCH('Rate Trajectory Report'!L$5,'Rate Trajectory Calc'!$A$6:$CQ$6,0))/1000)","v":" "},{"$f":"IF(INDEX('Rate Trajectory Calc'!$A$6:$CQ$92,MATCH('Rate Trajectory Report'!$B56,'Rate Trajectory Calc'!$A$6:$A$92,0),MATCH('Rate Trajectory Report'!M$5,'Rate Trajectory Calc'!$A$6:$CQ$6,0))=0,\" \",INDEX('Rate Trajectory Calc'!$A$6:$CQ$92,MATCH('Rate Trajectory Report'!$B56,'Rate Trajectory Calc'!$A$6:$A$92,0),MATCH('Rate Trajectory Report'!M$5,'Rate Trajectory Calc'!$A$6:$CQ$6,0))/1000)","v":" "},{"$f":"IF(INDEX('Rate Trajectory Calc'!$A$6:$CQ$92,MATCH('Rate Trajectory Report'!$B56,'Rate Trajectory Calc'!$A$6:$A$92,0),MATCH('Rate Trajectory Report'!N$5,'Rate Trajectory Calc'!$A$6:$CQ$6,0))=0,\" \",INDEX('Rate Trajectory Calc'!$A$6:$CQ$92,MATCH('Rate Trajectory Report'!$B56,'Rate Trajectory Calc'!$A$6:$A$92,0),MATCH('Rate Trajectory Report'!N$5,'Rate Trajectory Calc'!$A$6:$CQ$6,0))/1000)","v":" "},{"$f":"IF(INDEX('Rate Trajectory Calc'!$A$6:$CQ$92,MATCH('Rate Trajectory Report'!$B56,'Rate Trajectory Calc'!$A$6:$A$92,0),MATCH('Rate Trajectory Report'!O$5,'Rate Trajectory Calc'!$A$6:$CQ$6,0))=0,\" \",INDEX('Rate Trajectory Calc'!$A$6:$CQ$92,MATCH('Rate Trajectory Report'!$B56,'Rate Trajectory Calc'!$A$6:$A$92,0),MATCH('Rate Trajectory Report'!O$5,'Rate Trajectory Calc'!$A$6:$CQ$6,0))/1000)","v":" "},{"$f":"IF(INDEX('Rate Trajectory Calc'!$A$6:$CQ$92,MATCH('Rate Trajectory Report'!$B56,'Rate Trajectory Calc'!$A$6:$A$92,0),MATCH('Rate Trajectory Report'!P$5,'Rate Trajectory Calc'!$A$6:$CQ$6,0))=0,\" \",INDEX('Rate Trajectory Calc'!$A$6:$CQ$92,MATCH('Rate Trajectory Report'!$B56,'Rate Trajectory Calc'!$A$6:$A$92,0),MATCH('Rate Trajectory Report'!P$5,'Rate Trajectory Calc'!$A$6:$CQ$6,0))/1000)","v":" "},{"$f":"IF(INDEX('Rate Trajectory Calc'!$A$6:$CQ$92,MATCH('Rate Trajectory Report'!$B56,'Rate Trajectory Calc'!$A$6:$A$92,0),MATCH('Rate Trajectory Report'!Q$5,'Rate Trajectory Calc'!$A$6:$CQ$6,0))=0,\" \",INDEX('Rate Trajectory Calc'!$A$6:$CQ$92,MATCH('Rate Trajectory Report'!$B56,'Rate Trajectory Calc'!$A$6:$A$92,0),MATCH('Rate Trajectory Report'!Q$5,'Rate Trajectory Calc'!$A$6:$CQ$6,0))/1000)","v":" "},{"$f":"IF(INDEX('Rate Trajectory Calc'!$A$6:$CQ$92,MATCH('Rate Trajectory Report'!$B56,'Rate Trajectory Calc'!$A$6:$A$92,0),MATCH('Rate Trajectory Report'!R$5,'Rate Trajectory Calc'!$A$6:$CQ$6,0))=0,\" \",INDEX('Rate Trajectory Calc'!$A$6:$CQ$92,MATCH('Rate Trajectory Report'!$B56,'Rate Trajectory Calc'!$A$6:$A$92,0),MATCH('Rate Trajectory Report'!R$5,'Rate Trajectory Calc'!$A$6:$CQ$6,0))/1000)","v":" "},{"$f":"IF(INDEX('Rate Trajectory Calc'!$A$6:$CQ$92,MATCH('Rate Trajectory Report'!$B56,'Rate Trajectory Calc'!$A$6:$A$92,0),MATCH('Rate Trajectory Report'!S$5,'Rate Trajectory Calc'!$A$6:$CQ$6,0))=0,\" \",INDEX('Rate Trajectory Calc'!$A$6:$CQ$92,MATCH('Rate Trajectory Report'!$B56,'Rate Trajectory Calc'!$A$6:$A$92,0),MATCH('Rate Trajectory Report'!S$5,'Rate Trajectory Calc'!$A$6:$CQ$6,0))/1000)","v":" "},{"$f":"IF(INDEX('Rate Trajectory Calc'!$A$6:$CQ$92,MATCH('Rate Trajectory Report'!$B56,'Rate Trajectory Calc'!$A$6:$A$92,0),MATCH('Rate Trajectory Report'!T$5,'Rate Trajectory Calc'!$A$6:$CQ$6,0))=0,\" \",INDEX('Rate Trajectory Calc'!$A$6:$CQ$92,MATCH('Rate Trajectory Report'!$B56,'Rate Trajectory Calc'!$A$6:$A$92,0),MATCH('Rate Trajectory Report'!T$5,'Rate Trajectory Calc'!$A$6:$CQ$6,0))/1000)","v":-6.7767164408128542},{"$f":"IF(INDEX('Rate Trajectory Calc'!$A$6:$CQ$92,MATCH('Rate Trajectory Report'!$B56,'Rate Trajectory Calc'!$A$6:$A$92,0),MATCH('Rate Trajectory Report'!U$5,'Rate Trajectory Calc'!$A$6:$CQ$6,0))=0,\" \",INDEX('Rate Trajectory Calc'!$A$6:$CQ$92,MATCH('Rate Trajectory Report'!$B56,'Rate Trajectory Calc'!$A$6:$A$92,0),MATCH('Rate Trajectory Report'!U$5,'Rate Trajectory Calc'!$A$6:$CQ$6,0))/1000)","v":" "},{"$f":"IF(INDEX('Rate Trajectory Calc'!$A$6:$CQ$92,MATCH('Rate Trajectory Report'!$B56,'Rate Trajectory Calc'!$A$6:$A$92,0),MATCH('Rate Trajectory Report'!V$5,'Rate Trajectory Calc'!$A$6:$CQ$6,0))=0,\" \",INDEX('Rate Trajectory Calc'!$A$6:$CQ$92,MATCH('Rate Trajectory Report'!$B56,'Rate Trajectory Calc'!$A$6:$A$92,0),MATCH('Rate Trajectory Report'!V$5,'Rate Trajectory Calc'!$A$6:$CQ$6,0))/1000)","v":" "},{"$f":"IF(INDEX('Rate Trajectory Calc'!$A$6:$CQ$92,MATCH('Rate Trajectory Report'!$B56,'Rate Trajectory Calc'!$A$6:$A$92,0),MATCH('Rate Trajectory Report'!W$5,'Rate Trajectory Calc'!$A$6:$CQ$6,0))=0,\" \",INDEX('Rate Trajectory Calc'!$A$6:$CQ$92,MATCH('Rate Trajectory Report'!$B56,'Rate Trajectory Calc'!$A$6:$A$92,0),MATCH('Rate Trajectory Report'!W$5,'Rate Trajectory Calc'!$A$6:$CQ$6,0))/1000)","v":" "},{"$f":"IF(INDEX('Rate Trajectory Calc'!$A$6:$CQ$92,MATCH('Rate Trajectory Report'!$B56,'Rate Trajectory Calc'!$A$6:$A$92,0),MATCH('Rate Trajectory Report'!X$5,'Rate Trajectory Calc'!$A$6:$CQ$6,0))=0,\" \",INDEX('Rate Trajectory Calc'!$A$6:$CQ$92,MATCH('Rate Trajectory Report'!$B56,'Rate Trajectory Calc'!$A$6:$A$92,0),MATCH('Rate Trajectory Report'!X$5,'Rate Trajectory Calc'!$A$6:$CQ$6,0))/1000)","v":" "},{"$f":"IF(INDEX('Rate Trajectory Calc'!$A$6:$CQ$92,MATCH('Rate Trajectory Report'!$B56,'Rate Trajectory Calc'!$A$6:$A$92,0),MATCH('Rate Trajectory Report'!Y$5,'Rate Trajectory Calc'!$A$6:$CQ$6,0))=0,\" \",INDEX('Rate Trajectory Calc'!$A$6:$CQ$92,MATCH('Rate Trajectory Report'!$B56,'Rate Trajectory Calc'!$A$6:$A$92,0),MATCH('Rate Trajectory Report'!Y$5,'Rate Trajectory Calc'!$A$6:$CQ$6,0))/1000)","v":" "},{"$f":"IF(INDEX('Rate Trajectory Calc'!$A$6:$CQ$92,MATCH('Rate Trajectory Report'!$B56,'Rate Trajectory Calc'!$A$6:$A$92,0),MATCH('Rate Trajectory Report'!Z$5,'Rate Trajectory Calc'!$A$6:$CQ$6,0))=0,\" \",INDEX('Rate Trajectory Calc'!$A$6:$CQ$92,MATCH('Rate Trajectory Report'!$B56,'Rate Trajectory Calc'!$A$6:$A$92,0),MATCH('Rate Trajectory Report'!Z$5,'Rate Trajectory Calc'!$A$6:$CQ$6,0))/1000)","v":" "},{"$f":"IF(INDEX('Rate Trajectory Calc'!$A$6:$CQ$92,MATCH('Rate Trajectory Report'!$B56,'Rate Trajectory Calc'!$A$6:$A$92,0),MATCH('Rate Trajectory Report'!AA$5,'Rate Trajectory Calc'!$A$6:$CQ$6,0))=0,\" \",INDEX('Rate Trajectory Calc'!$A$6:$CQ$92,MATCH('Rate Trajectory Report'!$B56,'Rate Trajectory Calc'!$A$6:$A$92,0),MATCH('Rate Trajectory Report'!AA$5,'Rate Trajectory Calc'!$A$6:$CQ$6,0))/1000)","v":" "}]
[null,{"$f":"'Rate Trajectory Dashboard'!B48","v":"Wildfire Gas and Safety Costs (Transmission) - Non IRR - Year 2026"},{"$f":"IFERROR(VLOOKUP(B57,'Rate Trajectory Dashboard'!$B$12:$D$96,3,FALSE)/1000,'Rate Trajectory Report'!C56)","v":0},{"$f":"IF(INDEX('Rate Trajectory Calc'!$A$6:$CQ$92,MATCH('Rate Trajectory Report'!$B57,'Rate Trajectory Calc'!$A$6:$A$92,0),MATCH('Rate Trajectory Report'!D$5,'Rate Trajectory Calc'!$A$6:$CQ$6,0))=0,\" \",INDEX('Rate Trajectory Calc'!$A$6:$CQ$92,MATCH('Rate Trajectory Report'!$B57,'Rate Trajectory Calc'!$A$6:$A$92,0),MATCH('Rate Trajectory Report'!D$5,'Rate Trajectory Calc'!$A$6:$CQ$6,0))/1000)","v":" "},{"$f":"IF(INDEX('Rate Trajectory Calc'!$A$6:$CQ$92,MATCH('Rate Trajectory Report'!$B57,'Rate Trajectory Calc'!$A$6:$A$92,0),MATCH('Rate Trajectory Report'!E$5,'Rate Trajectory Calc'!$A$6:$CQ$6,0))=0,\" \",INDEX('Rate Trajectory Calc'!$A$6:$CQ$92,MATCH('Rate Trajectory Report'!$B57,'Rate Trajectory Calc'!$A$6:$A$92,0),MATCH('Rate Trajectory Report'!E$5,'Rate Trajectory Calc'!$A$6:$CQ$6,0))/1000)","v":" "},{"$f":"IF(INDEX('Rate Trajectory Calc'!$A$6:$CQ$92,MATCH('Rate Trajectory Report'!$B57,'Rate Trajectory Calc'!$A$6:$A$92,0),MATCH('Rate Trajectory Report'!F$5,'Rate Trajectory Calc'!$A$6:$CQ$6,0))=0,\" \",INDEX('Rate Trajectory Calc'!$A$6:$CQ$92,MATCH('Rate Trajectory Report'!$B57,'Rate Trajectory Calc'!$A$6:$A$92,0),MATCH('Rate Trajectory Report'!F$5,'Rate Trajectory Calc'!$A$6:$CQ$6,0))/1000)","v":" "},{"$f":"IF(INDEX('Rate Trajectory Calc'!$A$6:$CQ$92,MATCH('Rate Trajectory Report'!$B57,'Rate Trajectory Calc'!$A$6:$A$92,0),MATCH('Rate Trajectory Report'!G$5,'Rate Trajectory Calc'!$A$6:$CQ$6,0))=0,\" \",INDEX('Rate Trajectory Calc'!$A$6:$CQ$92,MATCH('Rate Trajectory Report'!$B57,'Rate Trajectory Calc'!$A$6:$A$92,0),MATCH('Rate Trajectory Report'!G$5,'Rate Trajectory Calc'!$A$6:$CQ$6,0))/1000)","v":" "},{"$f":"IF(INDEX('Rate Trajectory Calc'!$A$6:$CQ$92,MATCH('Rate Trajectory Report'!$B57,'Rate Trajectory Calc'!$A$6:$A$92,0),MATCH('Rate Trajectory Report'!H$5,'Rate Trajectory Calc'!$A$6:$CQ$6,0))=0,\" \",INDEX('Rate Trajectory Calc'!$A$6:$CQ$92,MATCH('Rate Trajectory Report'!$B57,'Rate Trajectory Calc'!$A$6:$A$92,0),MATCH('Rate Trajectory Report'!H$5,'Rate Trajectory Calc'!$A$6:$CQ$6,0))/1000)","v":44.029842798245788},{"$f":"IF(INDEX('Rate Trajectory Calc'!$A$6:$CQ$92,MATCH('Rate Trajectory Report'!$B57,'Rate Trajectory Calc'!$A$6:$A$92,0),MATCH('Rate Trajectory Report'!I$5,'Rate Trajectory Calc'!$A$6:$CQ$6,0))=0,\" \",INDEX('Rate Trajectory Calc'!$A$6:$CQ$92,MATCH('Rate Trajectory Report'!$B57,'Rate Trajectory Calc'!$A$6:$A$92,0),MATCH('Rate Trajectory Report'!I$5,'Rate Trajectory Calc'!$A$6:$CQ$6,0))/1000)","v":" "},{"$f":"IF(INDEX('Rate Trajectory Calc'!$A$6:$CQ$92,MATCH('Rate Trajectory Report'!$B57,'Rate Trajectory Calc'!$A$6:$A$92,0),MATCH('Rate Trajectory Report'!J$5,'Rate Trajectory Calc'!$A$6:$CQ$6,0))=0,\" \",INDEX('Rate Trajectory Calc'!$A$6:$CQ$92,MATCH('Rate Trajectory Report'!$B57,'Rate Trajectory Calc'!$A$6:$A$92,0),MATCH('Rate Trajectory Report'!J$5,'Rate Trajectory Calc'!$A$6:$CQ$6,0))/1000)","v":" "},{"$f":"IF(INDEX('Rate Trajectory Calc'!$A$6:$CQ$92,MATCH('Rate Trajectory Report'!$B57,'Rate Trajectory Calc'!$A$6:$A$92,0),MATCH('Rate Trajectory Report'!K$5,'Rate Trajectory Calc'!$A$6:$CQ$6,0))=0,\" \",INDEX('Rate Trajectory Calc'!$A$6:$CQ$92,MATCH('Rate Trajectory Report'!$B57,'Rate Trajectory Calc'!$A$6:$A$92,0),MATCH('Rate Trajectory Report'!K$5,'Rate Trajectory Calc'!$A$6:$CQ$6,0))/1000)","v":" "},{"$f":"IF(INDEX('Rate Trajectory Calc'!$A$6:$CQ$92,MATCH('Rate Trajectory Report'!$B57,'Rate Trajectory Calc'!$A$6:$A$92,0),MATCH('Rate Trajectory Report'!L$5,'Rate Trajectory Calc'!$A$6:$CQ$6,0))=0,\" \",INDEX('Rate Trajectory Calc'!$A$6:$CQ$92,MATCH('Rate Trajectory Report'!$B57,'Rate Trajectory Calc'!$A$6:$A$92,0),MATCH('Rate Trajectory Report'!L$5,'Rate Trajectory Calc'!$A$6:$CQ$6,0))/1000)","v":" "},{"$f":"IF(INDEX('Rate Trajectory Calc'!$A$6:$CQ$92,MATCH('Rate Trajectory Report'!$B57,'Rate Trajectory Calc'!$A$6:$A$92,0),MATCH('Rate Trajectory Report'!M$5,'Rate Trajectory Calc'!$A$6:$CQ$6,0))=0,\" \",INDEX('Rate Trajectory Calc'!$A$6:$CQ$92,MATCH('Rate Trajectory Report'!$B57,'Rate Trajectory Calc'!$A$6:$A$92,0),MATCH('Rate Trajectory Report'!M$5,'Rate Trajectory Calc'!$A$6:$CQ$6,0))/1000)","v":" "},{"$f":"IF(INDEX('Rate Trajectory Calc'!$A$6:$CQ$92,MATCH('Rate Trajectory Report'!$B57,'Rate Trajectory Calc'!$A$6:$A$92,0),MATCH('Rate Trajectory Report'!N$5,'Rate Trajectory Calc'!$A$6:$CQ$6,0))=0,\" \",INDEX('Rate Trajectory Calc'!$A$6:$CQ$92,MATCH('Rate Trajectory Report'!$B57,'Rate Trajectory Calc'!$A$6:$A$92,0),MATCH('Rate Trajectory Report'!N$5,'Rate Trajectory Calc'!$A$6:$CQ$6,0))/1000)","v":" "},{"$f":"IF(INDEX('Rate Trajectory Calc'!$A$6:$CQ$92,MATCH('Rate Trajectory Report'!$B57,'Rate Trajectory Calc'!$A$6:$A$92,0),MATCH('Rate Trajectory Report'!O$5,'Rate Trajectory Calc'!$A$6:$CQ$6,0))=0,\" \",INDEX('Rate Trajectory Calc'!$A$6:$CQ$92,MATCH('Rate Trajectory Report'!$B57,'Rate Trajectory Calc'!$A$6:$A$92,0),MATCH('Rate Trajectory Report'!O$5,'Rate Trajectory Calc'!$A$6:$CQ$6,0))/1000)","v":" "},{"$f":"IF(INDEX('Rate Trajectory Calc'!$A$6:$CQ$92,MATCH('Rate Trajectory Report'!$B57,'Rate Trajectory Calc'!$A$6:$A$92,0),MATCH('Rate Trajectory Report'!P$5,'Rate Trajectory Calc'!$A$6:$CQ$6,0))=0,\" \",INDEX('Rate Trajectory Calc'!$A$6:$CQ$92,MATCH('Rate Trajectory Report'!$B57,'Rate Trajectory Calc'!$A$6:$A$92,0),MATCH('Rate Trajectory Report'!P$5,'Rate Trajectory Calc'!$A$6:$CQ$6,0))/1000)","v":" "},{"$f":"IF(INDEX('Rate Trajectory Calc'!$A$6:$CQ$92,MATCH('Rate Trajectory Report'!$B57,'Rate Trajectory Calc'!$A$6:$A$92,0),MATCH('Rate Trajectory Report'!Q$5,'Rate Trajectory Calc'!$A$6:$CQ$6,0))=0,\" \",INDEX('Rate Trajectory Calc'!$A$6:$CQ$92,MATCH('Rate Trajectory Report'!$B57,'Rate Trajectory Calc'!$A$6:$A$92,0),MATCH('Rate Trajectory Report'!Q$5,'Rate Trajectory Calc'!$A$6:$CQ$6,0))/1000)","v":" "},{"$f":"IF(INDEX('Rate Trajectory Calc'!$A$6:$CQ$92,MATCH('Rate Trajectory Report'!$B57,'Rate Trajectory Calc'!$A$6:$A$92,0),MATCH('Rate Trajectory Report'!R$5,'Rate Trajectory Calc'!$A$6:$CQ$6,0))=0,\" \",INDEX('Rate Trajectory Calc'!$A$6:$CQ$92,MATCH('Rate Trajectory Report'!$B57,'Rate Trajectory Calc'!$A$6:$A$92,0),MATCH('Rate Trajectory Report'!R$5,'Rate Trajectory Calc'!$A$6:$CQ$6,0))/1000)","v":" "},{"$f":"IF(INDEX('Rate Trajectory Calc'!$A$6:$CQ$92,MATCH('Rate Trajectory Report'!$B57,'Rate Trajectory Calc'!$A$6:$A$92,0),MATCH('Rate Trajectory Report'!S$5,'Rate Trajectory Calc'!$A$6:$CQ$6,0))=0,\" \",INDEX('Rate Trajectory Calc'!$A$6:$CQ$92,MATCH('Rate Trajectory Report'!$B57,'Rate Trajectory Calc'!$A$6:$A$92,0),MATCH('Rate Trajectory Report'!S$5,'Rate Trajectory Calc'!$A$6:$CQ$6,0))/1000)","v":" "},{"$f":"IF(INDEX('Rate Trajectory Calc'!$A$6:$CQ$92,MATCH('Rate Trajectory Report'!$B57,'Rate Trajectory Calc'!$A$6:$A$92,0),MATCH('Rate Trajectory Report'!T$5,'Rate Trajectory Calc'!$A$6:$CQ$6,0))=0,\" \",INDEX('Rate Trajectory Calc'!$A$6:$CQ$92,MATCH('Rate Trajectory Report'!$B57,'Rate Trajectory Calc'!$A$6:$A$92,0),MATCH('Rate Trajectory Report'!T$5,'Rate Trajectory Calc'!$A$6:$CQ$6,0))/1000)","v":-44.029842798245788},{"$f":"IF(INDEX('Rate Trajectory Calc'!$A$6:$CQ$92,MATCH('Rate Trajectory Report'!$B57,'Rate Trajectory Calc'!$A$6:$A$92,0),MATCH('Rate Trajectory Report'!U$5,'Rate Trajectory Calc'!$A$6:$CQ$6,0))=0,\" \",INDEX('Rate Trajectory Calc'!$A$6:$CQ$92,MATCH('Rate Trajectory Report'!$B57,'Rate Trajectory Calc'!$A$6:$A$92,0),MATCH('Rate Trajectory Report'!U$5,'Rate Trajectory Calc'!$A$6:$CQ$6,0))/1000)","v":" "},{"$f":"IF(INDEX('Rate Trajectory Calc'!$A$6:$CQ$92,MATCH('Rate Trajectory Report'!$B57,'Rate Trajectory Calc'!$A$6:$A$92,0),MATCH('Rate Trajectory Report'!V$5,'Rate Trajectory Calc'!$A$6:$CQ$6,0))=0,\" \",INDEX('Rate Trajectory Calc'!$A$6:$CQ$92,MATCH('Rate Trajectory Report'!$B57,'Rate Trajectory Calc'!$A$6:$A$92,0),MATCH('Rate Trajectory Report'!V$5,'Rate Trajectory Calc'!$A$6:$CQ$6,0))/1000)","v":" "},{"$f":"IF(INDEX('Rate Trajectory Calc'!$A$6:$CQ$92,MATCH('Rate Trajectory Report'!$B57,'Rate Trajectory Calc'!$A$6:$A$92,0),MATCH('Rate Trajectory Report'!W$5,'Rate Trajectory Calc'!$A$6:$CQ$6,0))=0,\" \",INDEX('Rate Trajectory Calc'!$A$6:$CQ$92,MATCH('Rate Trajectory Report'!$B57,'Rate Trajectory Calc'!$A$6:$A$92,0),MATCH('Rate Trajectory Report'!W$5,'Rate Trajectory Calc'!$A$6:$CQ$6,0))/1000)","v":" "},{"$f":"IF(INDEX('Rate Trajectory Calc'!$A$6:$CQ$92,MATCH('Rate Trajectory Report'!$B57,'Rate Trajectory Calc'!$A$6:$A$92,0),MATCH('Rate Trajectory Report'!X$5,'Rate Trajectory Calc'!$A$6:$CQ$6,0))=0,\" \",INDEX('Rate Trajectory Calc'!$A$6:$CQ$92,MATCH('Rate Trajectory Report'!$B57,'Rate Trajectory Calc'!$A$6:$A$92,0),MATCH('Rate Trajectory Report'!X$5,'Rate Trajectory Calc'!$A$6:$CQ$6,0))/1000)","v":" "},{"$f":"IF(INDEX('Rate Trajectory Calc'!$A$6:$CQ$92,MATCH('Rate Trajectory Report'!$B57,'Rate Trajectory Calc'!$A$6:$A$92,0),MATCH('Rate Trajectory Report'!Y$5,'Rate Trajectory Calc'!$A$6:$CQ$6,0))=0,\" \",INDEX('Rate Trajectory Calc'!$A$6:$CQ$92,MATCH('Rate Trajectory Report'!$B57,'Rate Trajectory Calc'!$A$6:$A$92,0),MATCH('Rate Trajectory Report'!Y$5,'Rate Trajectory Calc'!$A$6:$CQ$6,0))/1000)","v":" "},{"$f":"IF(INDEX('Rate Trajectory Calc'!$A$6:$CQ$92,MATCH('Rate Trajectory Report'!$B57,'Rate Trajectory Calc'!$A$6:$A$92,0),MATCH('Rate Trajectory Report'!Z$5,'Rate Trajectory Calc'!$A$6:$CQ$6,0))=0,\" \",INDEX('Rate Trajectory Calc'!$A$6:$CQ$92,MATCH('Rate Trajectory Report'!$B57,'Rate Trajectory Calc'!$A$6:$A$92,0),MATCH('Rate Trajectory Report'!Z$5,'Rate Trajectory Calc'!$A$6:$CQ$6,0))/1000)","v":" "},{"$f":"IF(INDEX('Rate Trajectory Calc'!$A$6:$CQ$92,MATCH('Rate Trajectory Report'!$B57,'Rate Trajectory Calc'!$A$6:$A$92,0),MATCH('Rate Trajectory Report'!AA$5,'Rate Trajectory Calc'!$A$6:$CQ$6,0))=0,\" \",INDEX('Rate Trajectory Calc'!$A$6:$CQ$92,MATCH('Rate Trajectory Report'!$B57,'Rate Trajectory Calc'!$A$6:$A$92,0),MATCH('Rate Trajectory Report'!AA$5,'Rate Trajectory Calc'!$A$6:$CQ$6,0))/1000)","v":" "}]
[null,{"$f":"'Rate Trajectory Dashboard'!B49","v":"Wildfire Gas and Safety Costs (Transmission) - Non IRR - Year 2027"},{"$f":"IFERROR(VLOOKUP(B58,'Rate Trajectory Dashboard'!$B$12:$D$96,3,FALSE)/1000,'Rate Trajectory Report'!C57)","v":0},{"$f":"IF(INDEX('Rate Trajectory Calc'!$A$6:$CQ$92,MATCH('Rate Trajectory Report'!$B58,'Rate Trajectory Calc'!$A$6:$A$92,0),MATCH('Rate Trajectory Report'!D$5,'Rate Trajectory Calc'!$A$6:$CQ$6,0))=0,\" \",INDEX('Rate Trajectory Calc'!$A$6:$CQ$92,MATCH('Rate Trajectory Report'!$B58,'Rate Trajectory Calc'!$A$6:$A$92,0),MATCH('Rate Trajectory Report'!D$5,'Rate Trajectory Calc'!$A$6:$CQ$6,0))/1000)","v":" "},{"$f":"IF(INDEX('Rate Trajectory Calc'!$A$6:$CQ$92,MATCH('Rate Trajectory Report'!$B58,'Rate Trajectory Calc'!$A$6:$A$92,0),MATCH('Rate Trajectory Report'!E$5,'Rate Trajectory Calc'!$A$6:$CQ$6,0))=0,\" \",INDEX('Rate Trajectory Calc'!$A$6:$CQ$92,MATCH('Rate Trajectory Report'!$B58,'Rate Trajectory Calc'!$A$6:$A$92,0),MATCH('Rate Trajectory Report'!E$5,'Rate Trajectory Calc'!$A$6:$CQ$6,0))/1000)","v":" "},{"$f":"IF(INDEX('Rate Trajectory Calc'!$A$6:$CQ$92,MATCH('Rate Trajectory Report'!$B58,'Rate Trajectory Calc'!$A$6:$A$92,0),MATCH('Rate Trajectory Report'!F$5,'Rate Trajectory Calc'!$A$6:$CQ$6,0))=0,\" \",INDEX('Rate Trajectory Calc'!$A$6:$CQ$92,MATCH('Rate Trajectory Report'!$B58,'Rate Trajectory Calc'!$A$6:$A$92,0),MATCH('Rate Trajectory Report'!F$5,'Rate Trajectory Calc'!$A$6:$CQ$6,0))/1000)","v":" "},{"$f":"IF(INDEX('Rate Trajectory Calc'!$A$6:$CQ$92,MATCH('Rate Trajectory Report'!$B58,'Rate Trajectory Calc'!$A$6:$A$92,0),MATCH('Rate Trajectory Report'!G$5,'Rate Trajectory Calc'!$A$6:$CQ$6,0))=0,\" \",INDEX('Rate Trajectory Calc'!$A$6:$CQ$92,MATCH('Rate Trajectory Report'!$B58,'Rate Trajectory Calc'!$A$6:$A$92,0),MATCH('Rate Trajectory Report'!G$5,'Rate Trajectory Calc'!$A$6:$CQ$6,0))/1000)","v":" "},{"$f":"IF(INDEX('Rate Trajectory Calc'!$A$6:$CQ$92,MATCH('Rate Trajectory Report'!$B58,'Rate Trajectory Calc'!$A$6:$A$92,0),MATCH('Rate Trajectory Report'!H$5,'Rate Trajectory Calc'!$A$6:$CQ$6,0))=0,\" \",INDEX('Rate Trajectory Calc'!$A$6:$CQ$92,MATCH('Rate Trajectory Report'!$B58,'Rate Trajectory Calc'!$A$6:$A$92,0),MATCH('Rate Trajectory Report'!H$5,'Rate Trajectory Calc'!$A$6:$CQ$6,0))/1000)","v":" "},{"$f":"IF(INDEX('Rate Trajectory Calc'!$A$6:$CQ$92,MATCH('Rate Trajectory Report'!$B58,'Rate Trajectory Calc'!$A$6:$A$92,0),MATCH('Rate Trajectory Report'!I$5,'Rate Trajectory Calc'!$A$6:$CQ$6,0))=0,\" \",INDEX('Rate Trajectory Calc'!$A$6:$CQ$92,MATCH('Rate Trajectory Report'!$B58,'Rate Trajectory Calc'!$A$6:$A$92,0),MATCH('Rate Trajectory Report'!I$5,'Rate Trajectory Calc'!$A$6:$CQ$6,0))/1000)","v":" "},{"$f":"IF(INDEX('Rate Trajectory Calc'!$A$6:$CQ$92,MATCH('Rate Trajectory Report'!$B58,'Rate Trajectory Calc'!$A$6:$A$92,0),MATCH('Rate Trajectory Report'!J$5,'Rate Trajectory Calc'!$A$6:$CQ$6,0))=0,\" \",INDEX('Rate Trajectory Calc'!$A$6:$CQ$92,MATCH('Rate Trajectory Report'!$B58,'Rate Trajectory Calc'!$A$6:$A$92,0),MATCH('Rate Trajectory Report'!J$5,'Rate Trajectory Calc'!$A$6:$CQ$6,0))/1000)","v":" "},{"$f":"IF(INDEX('Rate Trajectory Calc'!$A$6:$CQ$92,MATCH('Rate Trajectory Report'!$B58,'Rate Trajectory Calc'!$A$6:$A$92,0),MATCH('Rate Trajectory Report'!K$5,'Rate Trajectory Calc'!$A$6:$CQ$6,0))=0,\" \",INDEX('Rate Trajectory Calc'!$A$6:$CQ$92,MATCH('Rate Trajectory Report'!$B58,'Rate Trajectory Calc'!$A$6:$A$92,0),MATCH('Rate Trajectory Report'!K$5,'Rate Trajectory Calc'!$A$6:$CQ$6,0))/1000)","v":" "},{"$f":"IF(INDEX('Rate Trajectory Calc'!$A$6:$CQ$92,MATCH('Rate Trajectory Report'!$B58,'Rate Trajectory Calc'!$A$6:$A$92,0),MATCH('Rate Trajectory Report'!L$5,'Rate Trajectory Calc'!$A$6:$CQ$6,0))=0,\" \",INDEX('Rate Trajectory Calc'!$A$6:$CQ$92,MATCH('Rate Trajectory Report'!$B58,'Rate Trajectory Calc'!$A$6:$A$92,0),MATCH('Rate Trajectory Report'!L$5,'Rate Trajectory Calc'!$A$6:$CQ$6,0))/1000)","v":" "},{"$f":"IF(INDEX('Rate Trajectory Calc'!$A$6:$CQ$92,MATCH('Rate Trajectory Report'!$B58,'Rate Trajectory Calc'!$A$6:$A$92,0),MATCH('Rate Trajectory Report'!M$5,'Rate Trajectory Calc'!$A$6:$CQ$6,0))=0,\" \",INDEX('Rate Trajectory Calc'!$A$6:$CQ$92,MATCH('Rate Trajectory Report'!$B58,'Rate Trajectory Calc'!$A$6:$A$92,0),MATCH('Rate Trajectory Report'!M$5,'Rate Trajectory Calc'!$A$6:$CQ$6,0))/1000)","v":" "},{"$f":"IF(INDEX('Rate Trajectory Calc'!$A$6:$CQ$92,MATCH('Rate Trajectory Report'!$B58,'Rate Trajectory Calc'!$A$6:$A$92,0),MATCH('Rate Trajectory Report'!N$5,'Rate Trajectory Calc'!$A$6:$CQ$6,0))=0,\" \",INDEX('Rate Trajectory Calc'!$A$6:$CQ$92,MATCH('Rate Trajectory Report'!$B58,'Rate Trajectory Calc'!$A$6:$A$92,0),MATCH('Rate Trajectory Report'!N$5,'Rate Trajectory Calc'!$A$6:$CQ$6,0))/1000)","v":" "},{"$f":"IF(INDEX('Rate Trajectory Calc'!$A$6:$CQ$92,MATCH('Rate Trajectory Report'!$B58,'Rate Trajectory Calc'!$A$6:$A$92,0),MATCH('Rate Trajectory Report'!O$5,'Rate Trajectory Calc'!$A$6:$CQ$6,0))=0,\" \",INDEX('Rate Trajectory Calc'!$A$6:$CQ$92,MATCH('Rate Trajectory Report'!$B58,'Rate Trajectory Calc'!$A$6:$A$92,0),MATCH('Rate Trajectory Report'!O$5,'Rate Trajectory Calc'!$A$6:$CQ$6,0))/1000)","v":" "},{"$f":"IF(INDEX('Rate Trajectory Calc'!$A$6:$CQ$92,MATCH('Rate Trajectory Report'!$B58,'Rate Trajectory Calc'!$A$6:$A$92,0),MATCH('Rate Trajectory Report'!P$5,'Rate Trajectory Calc'!$A$6:$CQ$6,0))=0,\" \",INDEX('Rate Trajectory Calc'!$A$6:$CQ$92,MATCH('Rate Trajectory Report'!$B58,'Rate Trajectory Calc'!$A$6:$A$92,0),MATCH('Rate Trajectory Report'!P$5,'Rate Trajectory Calc'!$A$6:$CQ$6,0))/1000)","v":" "},{"$f":"IF(INDEX('Rate Trajectory Calc'!$A$6:$CQ$92,MATCH('Rate Trajectory Report'!$B58,'Rate Trajectory Calc'!$A$6:$A$92,0),MATCH('Rate Trajectory Report'!Q$5,'Rate Trajectory Calc'!$A$6:$CQ$6,0))=0,\" \",INDEX('Rate Trajectory Calc'!$A$6:$CQ$92,MATCH('Rate Trajectory Report'!$B58,'Rate Trajectory Calc'!$A$6:$A$92,0),MATCH('Rate Trajectory Report'!Q$5,'Rate Trajectory Calc'!$A$6:$CQ$6,0))/1000)","v":" "},{"$f":"IF(INDEX('Rate Trajectory Calc'!$A$6:$CQ$92,MATCH('Rate Trajectory Report'!$B58,'Rate Trajectory Calc'!$A$6:$A$92,0),MATCH('Rate Trajectory Report'!R$5,'Rate Trajectory Calc'!$A$6:$CQ$6,0))=0,\" \",INDEX('Rate Trajectory Calc'!$A$6:$CQ$92,MATCH('Rate Trajectory Report'!$B58,'Rate Trajectory Calc'!$A$6:$A$92,0),MATCH('Rate Trajectory Report'!R$5,'Rate Trajectory Calc'!$A$6:$CQ$6,0))/1000)","v":" "},{"$f":"IF(INDEX('Rate Trajectory Calc'!$A$6:$CQ$92,MATCH('Rate Trajectory Report'!$B58,'Rate Trajectory Calc'!$A$6:$A$92,0),MATCH('Rate Trajectory Report'!S$5,'Rate Trajectory Calc'!$A$6:$CQ$6,0))=0,\" \",INDEX('Rate Trajectory Calc'!$A$6:$CQ$92,MATCH('Rate Trajectory Report'!$B58,'Rate Trajectory Calc'!$A$6:$A$92,0),MATCH('Rate Trajectory Report'!S$5,'Rate Trajectory Calc'!$A$6:$CQ$6,0))/1000)","v":" "},{"$f":"IF(INDEX('Rate Trajectory Calc'!$A$6:$CQ$92,MATCH('Rate Trajectory Report'!$B58,'Rate Trajectory Calc'!$A$6:$A$92,0),MATCH('Rate Trajectory Report'!T$5,'Rate Trajectory Calc'!$A$6:$CQ$6,0))=0,\" \",INDEX('Rate Trajectory Calc'!$A$6:$CQ$92,MATCH('Rate Trajectory Report'!$B58,'Rate Trajectory Calc'!$A$6:$A$92,0),MATCH('Rate Trajectory Report'!T$5,'Rate Trajectory Calc'!$A$6:$CQ$6,0))/1000)","v":0.4127001660200465},{"$f":"IF(INDEX('Rate Trajectory Calc'!$A$6:$CQ$92,MATCH('Rate Trajectory Report'!$B58,'Rate Trajectory Calc'!$A$6:$A$92,0),MATCH('Rate Trajectory Report'!U$5,'Rate Trajectory Calc'!$A$6:$CQ$6,0))=0,\" \",INDEX('Rate Trajectory Calc'!$A$6:$CQ$92,MATCH('Rate Trajectory Report'!$B58,'Rate Trajectory Calc'!$A$6:$A$92,0),MATCH('Rate Trajectory Report'!U$5,'Rate Trajectory Calc'!$A$6:$CQ$6,0))/1000)","v":" "},{"$f":"IF(INDEX('Rate Trajectory Calc'!$A$6:$CQ$92,MATCH('Rate Trajectory Report'!$B58,'Rate Trajectory Calc'!$A$6:$A$92,0),MATCH('Rate Trajectory Report'!V$5,'Rate Trajectory Calc'!$A$6:$CQ$6,0))=0,\" \",INDEX('Rate Trajectory Calc'!$A$6:$CQ$92,MATCH('Rate Trajectory Report'!$B58,'Rate Trajectory Calc'!$A$6:$A$92,0),MATCH('Rate Trajectory Report'!V$5,'Rate Trajectory Calc'!$A$6:$CQ$6,0))/1000)","v":" "},{"$f":"IF(INDEX('Rate Trajectory Calc'!$A$6:$CQ$92,MATCH('Rate Trajectory Report'!$B58,'Rate Trajectory Calc'!$A$6:$A$92,0),MATCH('Rate Trajectory Report'!W$5,'Rate Trajectory Calc'!$A$6:$CQ$6,0))=0,\" \",INDEX('Rate Trajectory Calc'!$A$6:$CQ$92,MATCH('Rate Trajectory Report'!$B58,'Rate Trajectory Calc'!$A$6:$A$92,0),MATCH('Rate Trajectory Report'!W$5,'Rate Trajectory Calc'!$A$6:$CQ$6,0))/1000)","v":" "},{"$f":"IF(INDEX('Rate Trajectory Calc'!$A$6:$CQ$92,MATCH('Rate Trajectory Report'!$B58,'Rate Trajectory Calc'!$A$6:$A$92,0),MATCH('Rate Trajectory Report'!X$5,'Rate Trajectory Calc'!$A$6:$CQ$6,0))=0,\" \",INDEX('Rate Trajectory Calc'!$A$6:$CQ$92,MATCH('Rate Trajectory Report'!$B58,'Rate Trajectory Calc'!$A$6:$A$92,0),MATCH('Rate Trajectory Report'!X$5,'Rate Trajectory Calc'!$A$6:$CQ$6,0))/1000)","v":" "},{"$f":"IF(INDEX('Rate Trajectory Calc'!$A$6:$CQ$92,MATCH('Rate Trajectory Report'!$B58,'Rate Trajectory Calc'!$A$6:$A$92,0),MATCH('Rate Trajectory Report'!Y$5,'Rate Trajectory Calc'!$A$6:$CQ$6,0))=0,\" \",INDEX('Rate Trajectory Calc'!$A$6:$CQ$92,MATCH('Rate Trajectory Report'!$B58,'Rate Trajectory Calc'!$A$6:$A$92,0),MATCH('Rate Trajectory Report'!Y$5,'Rate Trajectory Calc'!$A$6:$CQ$6,0))/1000)","v":" "},{"$f":"IF(INDEX('Rate Trajectory Calc'!$A$6:$CQ$92,MATCH('Rate Trajectory Report'!$B58,'Rate Trajectory Calc'!$A$6:$A$92,0),MATCH('Rate Trajectory Report'!Z$5,'Rate Trajectory Calc'!$A$6:$CQ$6,0))=0,\" \",INDEX('Rate Trajectory Calc'!$A$6:$CQ$92,MATCH('Rate Trajectory Report'!$B58,'Rate Trajectory Calc'!$A$6:$A$92,0),MATCH('Rate Trajectory Report'!Z$5,'Rate Trajectory Calc'!$A$6:$CQ$6,0))/1000)","v":" "},{"$f":"IF(INDEX('Rate Trajectory Calc'!$A$6:$CQ$92,MATCH('Rate Trajectory Report'!$B58,'Rate Trajectory Calc'!$A$6:$A$92,0),MATCH('Rate Trajectory Report'!AA$5,'Rate Trajectory Calc'!$A$6:$CQ$6,0))=0,\" \",INDEX('Rate Trajectory Calc'!$A$6:$CQ$92,MATCH('Rate Trajectory Report'!$B58,'Rate Trajectory Calc'!$A$6:$A$92,0),MATCH('Rate Trajectory Report'!AA$5,'Rate Trajectory Calc'!$A$6:$CQ$6,0))/1000)","v":" "}]
["10b","Wildfire Gas and Safety Costs (Transmission) - Non IRR",{"$f":"IFERROR(VLOOKUP(B59,'Rate Trajectory Dashboard'!$B$12:$D$96,3,FALSE)/1000,'Rate Trajectory Report'!C58)","v":0},{"$f":"IF(SUM(D57:D58)=0,\" \",SUBTOTAL(9,D57:D58))","v":" "},{"$f":"IF(SUM(E57:E58)=0,\" \",SUBTOTAL(9,E57:E58))","v":" "}," "," ",44.029842798245788," "," "," "," "," "," "," "," "," "," "," ",-43.617142632225743," "," "," "," "," "," "," "]
[10,"Wildfire Gas and Safety Costs - Non IRR",{"$f":"C56+C59","v":0},{"$f":"IF(SUM(D56:D59)=0,\" \",SUBTOTAL(9,D56:D59))","v":" "},{"$f":"IF(SUM(E56:E59)=0,\" \",SUBTOTAL(9,E56:E59))","v":" "}," "," ",50.806559239058643," "," "," "," "," "," "," "," "," "," "," ",-50.393859073038598," "," "," "," "," "," "," "]
[11,"2022 Wildfire Mitigation and Catastrophic Events",{"$f":"IFERROR(VLOOKUP(B61,'Rate Trajectory Dashboard'!$B$12:$D$96,3,FALSE)/1000,'Rate Trajectory Report'!C60)","v":0},{"$f":"IF(INDEX('Rate Trajectory Calc'!$A$6:$CQ$92,MATCH('Rate Trajectory Report'!$B61,'Rate Trajectory Calc'!$A$6:$A$92,0),MATCH('Rate Trajectory Report'!D$5,'Rate Trajectory Calc'!$A$6:$CQ$6,0))=0,\" \",INDEX('Rate Trajectory Calc'!$A$6:$CQ$92,MATCH('Rate Trajectory Report'!$B61,'Rate Trajectory Calc'!$A$6:$A$92,0),MATCH('Rate Trajectory Report'!D$5,'Rate Trajectory Calc'!$A$6:$CQ$6,0))/1000)","v":" "},{"$f":"IF(INDEX('Rate Trajectory Calc'!$A$6:$CQ$92,MATCH('Rate Trajectory Report'!$B61,'Rate Trajectory Calc'!$A$6:$A$92,0),MATCH('Rate Trajectory Report'!E$5,'Rate Trajectory Calc'!$A$6:$CQ$6,0))=0,\" \",INDEX('Rate Trajectory Calc'!$A$6:$CQ$92,MATCH('Rate Trajectory Report'!$B61,'Rate Trajectory Calc'!$A$6:$A$92,0),MATCH('Rate Trajectory Report'!E$5,'Rate Trajectory Calc'!$A$6:$CQ$6,0))/1000)","v":" "},{"$f":"IF(INDEX('Rate Trajectory Calc'!$A$6:$CQ$92,MATCH('Rate Trajectory Report'!$B61,'Rate Trajectory Calc'!$A$6:$A$92,0),MATCH('Rate Trajectory Report'!F$5,'Rate Trajectory Calc'!$A$6:$CQ$6,0))=0,\" \",INDEX('Rate Trajectory Calc'!$A$6:$CQ$92,MATCH('Rate Trajectory Report'!$B61,'Rate Trajectory Calc'!$A$6:$A$92,0),MATCH('Rate Trajectory Report'!F$5,'Rate Trajectory Calc'!$A$6:$CQ$6,0))/1000)","v":" "},{"$f":"IF(INDEX('Rate Trajectory Calc'!$A$6:$CQ$92,MATCH('Rate Trajectory Report'!$B61,'Rate Trajectory Calc'!$A$6:$A$92,0),MATCH('Rate Trajectory Report'!G$5,'Rate Trajectory Calc'!$A$6:$CQ$6,0))=0,\" \",INDEX('Rate Trajectory Calc'!$A$6:$CQ$92,MATCH('Rate Trajectory Report'!$B61,'Rate Trajectory Calc'!$A$6:$A$92,0),MATCH('Rate Trajectory Report'!G$5,'Rate Trajectory Calc'!$A$6:$CQ$6,0))/1000)","v":" "},{"$f":"IF(INDEX('Rate Trajectory Calc'!$A$6:$CQ$92,MATCH('Rate Trajectory Report'!$B61,'Rate Trajectory Calc'!$A$6:$A$92,0),MATCH('Rate Trajectory Report'!H$5,'Rate Trajectory Calc'!$A$6:$CQ$6,0))=0,\" \",INDEX('Rate Trajectory Calc'!$A$6:$CQ$92,MATCH('Rate Trajectory Report'!$B61,'Rate Trajectory Calc'!$A$6:$A$92,0),MATCH('Rate Trajectory Report'!H$5,'Rate Trajectory Calc'!$A$6:$CQ$6,0))/1000)","v":16.214970094191543},{"$f":"IF(INDEX('Rate Trajectory Calc'!$A$6:$CQ$92,MATCH('Rate Trajectory Report'!$B61,'Rate Trajectory Calc'!$A$6:$A$92,0),MATCH('Rate Trajectory Report'!I$5,'Rate Trajectory Calc'!$A$6:$CQ$6,0))=0,\" \",INDEX('Rate Trajectory Calc'!$A$6:$CQ$92,MATCH('Rate Trajectory Report'!$B61,'Rate Trajectory Calc'!$A$6:$A$92,0),MATCH('Rate Trajectory Report'!I$5,'Rate Trajectory Calc'!$A$6:$CQ$6,0))/1000)","v":" "},{"$f":"IF(INDEX('Rate Trajectory Calc'!$A$6:$CQ$92,MATCH('Rate Trajectory Report'!$B61,'Rate Trajectory Calc'!$A$6:$A$92,0),MATCH('Rate Trajectory Report'!J$5,'Rate Trajectory Calc'!$A$6:$CQ$6,0))=0,\" \",INDEX('Rate Trajectory Calc'!$A$6:$CQ$92,MATCH('Rate Trajectory Report'!$B61,'Rate Trajectory Calc'!$A$6:$A$92,0),MATCH('Rate Trajectory Report'!J$5,'Rate Trajectory Calc'!$A$6:$CQ$6,0))/1000)","v":" "},{"$f":"IF(INDEX('Rate Trajectory Calc'!$A$6:$CQ$92,MATCH('Rate Trajectory Report'!$B61,'Rate Trajectory Calc'!$A$6:$A$92,0),MATCH('Rate Trajectory Report'!K$5,'Rate Trajectory Calc'!$A$6:$CQ$6,0))=0,\" \",INDEX('Rate Trajectory Calc'!$A$6:$CQ$92,MATCH('Rate Trajectory Report'!$B61,'Rate Trajectory Calc'!$A$6:$A$92,0),MATCH('Rate Trajectory Report'!K$5,'Rate Trajectory Calc'!$A$6:$CQ$6,0))/1000)","v":" "},{"$f":"IF(INDEX('Rate Trajectory Calc'!$A$6:$CQ$92,MATCH('Rate Trajectory Report'!$B61,'Rate Trajectory Calc'!$A$6:$A$92,0),MATCH('Rate Trajectory Report'!L$5,'Rate Trajectory Calc'!$A$6:$CQ$6,0))=0,\" \",INDEX('Rate Trajectory Calc'!$A$6:$CQ$92,MATCH('Rate Trajectory Report'!$B61,'Rate Trajectory Calc'!$A$6:$A$92,0),MATCH('Rate Trajectory Report'!L$5,'Rate Trajectory Calc'!$A$6:$CQ$6,0))/1000)","v":" "},{"$f":"IF(INDEX('Rate Trajectory Calc'!$A$6:$CQ$92,MATCH('Rate Trajectory Report'!$B61,'Rate Trajectory Calc'!$A$6:$A$92,0),MATCH('Rate Trajectory Report'!M$5,'Rate Trajectory Calc'!$A$6:$CQ$6,0))=0,\" \",INDEX('Rate Trajectory Calc'!$A$6:$CQ$92,MATCH('Rate Trajectory Report'!$B61,'Rate Trajectory Calc'!$A$6:$A$92,0),MATCH('Rate Trajectory Report'!M$5,'Rate Trajectory Calc'!$A$6:$CQ$6,0))/1000)","v":" "},{"$f":"IF(INDEX('Rate Trajectory Calc'!$A$6:$CQ$92,MATCH('Rate Trajectory Report'!$B61,'Rate Trajectory Calc'!$A$6:$A$92,0),MATCH('Rate Trajectory Report'!N$5,'Rate Trajectory Calc'!$A$6:$CQ$6,0))=0,\" \",INDEX('Rate Trajectory Calc'!$A$6:$CQ$92,MATCH('Rate Trajectory Report'!$B61,'Rate Trajectory Calc'!$A$6:$A$92,0),MATCH('Rate Trajectory Report'!N$5,'Rate Trajectory Calc'!$A$6:$CQ$6,0))/1000)","v":" "},{"$f":"IF(INDEX('Rate Trajectory Calc'!$A$6:$CQ$92,MATCH('Rate Trajectory Report'!$B61,'Rate Trajectory Calc'!$A$6:$A$92,0),MATCH('Rate Trajectory Report'!O$5,'Rate Trajectory Calc'!$A$6:$CQ$6,0))=0,\" \",INDEX('Rate Trajectory Calc'!$A$6:$CQ$92,MATCH('Rate Trajectory Report'!$B61,'Rate Trajectory Calc'!$A$6:$A$92,0),MATCH('Rate Trajectory Report'!O$5,'Rate Trajectory Calc'!$A$6:$CQ$6,0))/1000)","v":" "},{"$f":"IF(INDEX('Rate Trajectory Calc'!$A$6:$CQ$92,MATCH('Rate Trajectory Report'!$B61,'Rate Trajectory Calc'!$A$6:$A$92,0),MATCH('Rate Trajectory Report'!P$5,'Rate Trajectory Calc'!$A$6:$CQ$6,0))=0,\" \",INDEX('Rate Trajectory Calc'!$A$6:$CQ$92,MATCH('Rate Trajectory Report'!$B61,'Rate Trajectory Calc'!$A$6:$A$92,0),MATCH('Rate Trajectory Report'!P$5,'Rate Trajectory Calc'!$A$6:$CQ$6,0))/1000)","v":" "},{"$f":"IF(INDEX('Rate Trajectory Calc'!$A$6:$CQ$92,MATCH('Rate Trajectory Report'!$B61,'Rate Trajectory Calc'!$A$6:$A$92,0),MATCH('Rate Trajectory Report'!Q$5,'Rate Trajectory Calc'!$A$6:$CQ$6,0))=0,\" \",INDEX('Rate Trajectory Calc'!$A$6:$CQ$92,MATCH('Rate Trajectory Report'!$B61,'Rate Trajectory Calc'!$A$6:$A$92,0),MATCH('Rate Trajectory Report'!Q$5,'Rate Trajectory Calc'!$A$6:$CQ$6,0))/1000)","v":" "},{"$f":"IF(INDEX('Rate Trajectory Calc'!$A$6:$CQ$92,MATCH('Rate Trajectory Report'!$B61,'Rate Trajectory Calc'!$A$6:$A$92,0),MATCH('Rate Trajectory Report'!R$5,'Rate Trajectory Calc'!$A$6:$CQ$6,0))=0,\" \",INDEX('Rate Trajectory Calc'!$A$6:$CQ$92,MATCH('Rate Trajectory Report'!$B61,'Rate Trajectory Calc'!$A$6:$A$92,0),MATCH('Rate Trajectory Report'!R$5,'Rate Trajectory Calc'!$A$6:$CQ$6,0))/1000)","v":" "},{"$f":"IF(INDEX('Rate Trajectory Calc'!$A$6:$CQ$92,MATCH('Rate Trajectory Report'!$B61,'Rate Trajectory Calc'!$A$6:$A$92,0),MATCH('Rate Trajectory Report'!S$5,'Rate Trajectory Calc'!$A$6:$CQ$6,0))=0,\" \",INDEX('Rate Trajectory Calc'!$A$6:$CQ$92,MATCH('Rate Trajectory Report'!$B61,'Rate Trajectory Calc'!$A$6:$A$92,0),MATCH('Rate Trajectory Report'!S$5,'Rate Trajectory Calc'!$A$6:$CQ$6,0))/1000)","v":" "},{"$f":"IF(INDEX('Rate Trajectory Calc'!$A$6:$CQ$92,MATCH('Rate Trajectory Report'!$B61,'Rate Trajectory Calc'!$A$6:$A$92,0),MATCH('Rate Trajectory Report'!T$5,'Rate Trajectory Calc'!$A$6:$CQ$6,0))=0,\" \",INDEX('Rate Trajectory Calc'!$A$6:$CQ$92,MATCH('Rate Trajectory Report'!$B61,'Rate Trajectory Calc'!$A$6:$A$92,0),MATCH('Rate Trajectory Report'!T$5,'Rate Trajectory Calc'!$A$6:$CQ$6,0))/1000)","v":-16.214970094191543},{"$f":"IF(INDEX('Rate Trajectory Calc'!$A$6:$CQ$92,MATCH('Rate Trajectory Report'!$B61,'Rate Trajectory Calc'!$A$6:$A$92,0),MATCH('Rate Trajectory Report'!U$5,'Rate Trajectory Calc'!$A$6:$CQ$6,0))=0,\" \",INDEX('Rate Trajectory Calc'!$A$6:$CQ$92,MATCH('Rate Trajectory Report'!$B61,'Rate Trajectory Calc'!$A$6:$A$92,0),MATCH('Rate Trajectory Report'!U$5,'Rate Trajectory Calc'!$A$6:$CQ$6,0))/1000)","v":" "},{"$f":"IF(INDEX('Rate Trajectory Calc'!$A$6:$CQ$92,MATCH('Rate Trajectory Report'!$B61,'Rate Trajectory Calc'!$A$6:$A$92,0),MATCH('Rate Trajectory Report'!V$5,'Rate Trajectory Calc'!$A$6:$CQ$6,0))=0,\" \",INDEX('Rate Trajectory Calc'!$A$6:$CQ$92,MATCH('Rate Trajectory Report'!$B61,'Rate Trajectory Calc'!$A$6:$A$92,0),MATCH('Rate Trajectory Report'!V$5,'Rate Trajectory Calc'!$A$6:$CQ$6,0))/1000)","v":" "},{"$f":"IF(INDEX('Rate Trajectory Calc'!$A$6:$CQ$92,MATCH('Rate Trajectory Report'!$B61,'Rate Trajectory Calc'!$A$6:$A$92,0),MATCH('Rate Trajectory Report'!W$5,'Rate Trajectory Calc'!$A$6:$CQ$6,0))=0,\" \",INDEX('Rate Trajectory Calc'!$A$6:$CQ$92,MATCH('Rate Trajectory Report'!$B61,'Rate Trajectory Calc'!$A$6:$A$92,0),MATCH('Rate Trajectory Report'!W$5,'Rate Trajectory Calc'!$A$6:$CQ$6,0))/1000)","v":" "},{"$f":"IF(INDEX('Rate Trajectory Calc'!$A$6:$CQ$92,MATCH('Rate Trajectory Report'!$B61,'Rate Trajectory Calc'!$A$6:$A$92,0),MATCH('Rate Trajectory Report'!X$5,'Rate Trajectory Calc'!$A$6:$CQ$6,0))=0,\" \",INDEX('Rate Trajectory Calc'!$A$6:$CQ$92,MATCH('Rate Trajectory Report'!$B61,'Rate Trajectory Calc'!$A$6:$A$92,0),MATCH('Rate Trajectory Report'!X$5,'Rate Trajectory Calc'!$A$6:$CQ$6,0))/1000)","v":" "},{"$f":"IF(INDEX('Rate Trajectory Calc'!$A$6:$CQ$92,MATCH('Rate Trajectory Report'!$B61,'Rate Trajectory Calc'!$A$6:$A$92,0),MATCH('Rate Trajectory Report'!Y$5,'Rate Trajectory Calc'!$A$6:$CQ$6,0))=0,\" \",INDEX('Rate Trajectory Calc'!$A$6:$CQ$92,MATCH('Rate Trajectory Report'!$B61,'Rate Trajectory Calc'!$A$6:$A$92,0),MATCH('Rate Trajectory Report'!Y$5,'Rate Trajectory Calc'!$A$6:$CQ$6,0))/1000)","v":" "},{"$f":"IF(INDEX('Rate Trajectory Calc'!$A$6:$CQ$92,MATCH('Rate Trajectory Report'!$B61,'Rate Trajectory Calc'!$A$6:$A$92,0),MATCH('Rate Trajectory Report'!Z$5,'Rate Trajectory Calc'!$A$6:$CQ$6,0))=0,\" \",INDEX('Rate Trajectory Calc'!$A$6:$CQ$92,MATCH('Rate Trajectory Report'!$B61,'Rate Trajectory Calc'!$A$6:$A$92,0),MATCH('Rate Trajectory Report'!Z$5,'Rate Trajectory Calc'!$A$6:$CQ$6,0))/1000)","v":" "},{"$f":"IF(INDEX('Rate Trajectory Calc'!$A$6:$CQ$92,MATCH('Rate Trajectory Report'!$B61,'Rate Trajectory Calc'!$A$6:$A$92,0),MATCH('Rate Trajectory Report'!AA$5,'Rate Trajectory Calc'!$A$6:$CQ$6,0))=0,\" \",INDEX('Rate Trajectory Calc'!$A$6:$CQ$92,MATCH('Rate Trajectory Report'!$B61,'Rate Trajectory Calc'!$A$6:$A$92,0),MATCH('Rate Trajectory Report'!AA$5,'Rate Trajectory Calc'!$A$6:$CQ$6,0))/1000)","v":" "}]
["12a","TRRRMA (Distribution)",{"$f":"IFERROR(VLOOKUP(B62,'Rate Trajectory Dashboard'!$B$12:$D$96,3,FALSE)/1000,'Rate Trajectory Report'!C61)","v":0},{"$f":"IF(INDEX('Rate Trajectory Calc'!$A$6:$CQ$92,MATCH('Rate Trajectory Report'!$B62,'Rate Trajectory Calc'!$A$6:$A$92,0),MATCH('Rate Trajectory Report'!D$5,'Rate Trajectory Calc'!$A$6:$CQ$6,0))=0,\" \",INDEX('Rate Trajectory Calc'!$A$6:$CQ$92,MATCH('Rate Trajectory Report'!$B62,'Rate Trajectory Calc'!$A$6:$A$92,0),MATCH('Rate Trajectory Report'!D$5,'Rate Trajectory Calc'!$A$6:$CQ$6,0))/1000)","v":" "},{"$f":"IF(INDEX('Rate Trajectory Calc'!$A$6:$CQ$92,MATCH('Rate Trajectory Report'!$B62,'Rate Trajectory Calc'!$A$6:$A$92,0),MATCH('Rate Trajectory Report'!E$5,'Rate Trajectory Calc'!$A$6:$CQ$6,0))=0,\" \",INDEX('Rate Trajectory Calc'!$A$6:$CQ$92,MATCH('Rate Trajectory Report'!$B62,'Rate Trajectory Calc'!$A$6:$A$92,0),MATCH('Rate Trajectory Report'!E$5,'Rate Trajectory Calc'!$A$6:$CQ$6,0))/1000)","v":" "},{"$f":"IF(INDEX('Rate Trajectory Calc'!$A$6:$CQ$92,MATCH('Rate Trajectory Report'!$B62,'Rate Trajectory Calc'!$A$6:$A$92,0),MATCH('Rate Trajectory Report'!F$5,'Rate Trajectory Calc'!$A$6:$CQ$6,0))=0,\" \",INDEX('Rate Trajectory Calc'!$A$6:$CQ$92,MATCH('Rate Trajectory Report'!$B62,'Rate Trajectory Calc'!$A$6:$A$92,0),MATCH('Rate Trajectory Report'!F$5,'Rate Trajectory Calc'!$A$6:$CQ$6,0))/1000)","v":" "},{"$f":"IF(INDEX('Rate Trajectory Calc'!$A$6:$CQ$92,MATCH('Rate Trajectory Report'!$B62,'Rate Trajectory Calc'!$A$6:$A$92,0),MATCH('Rate Trajectory Report'!G$5,'Rate Trajectory Calc'!$A$6:$CQ$6,0))=0,\" \",INDEX('Rate Trajectory Calc'!$A$6:$CQ$92,MATCH('Rate Trajectory Report'!$B62,'Rate Trajectory Calc'!$A$6:$A$92,0),MATCH('Rate Trajectory Report'!G$5,'Rate Trajectory Calc'!$A$6:$CQ$6,0))/1000)","v":" "},{"$f":"IF(INDEX('Rate Trajectory Calc'!$A$6:$CQ$92,MATCH('Rate Trajectory Report'!$B62,'Rate Trajectory Calc'!$A$6:$A$92,0),MATCH('Rate Trajectory Report'!H$5,'Rate Trajectory Calc'!$A$6:$CQ$6,0))=0,\" \",INDEX('Rate Trajectory Calc'!$A$6:$CQ$92,MATCH('Rate Trajectory Report'!$B62,'Rate Trajectory Calc'!$A$6:$A$92,0),MATCH('Rate Trajectory Report'!H$5,'Rate Trajectory Calc'!$A$6:$CQ$6,0))/1000)","v":104.44439544815596},{"$f":"IF(INDEX('Rate Trajectory Calc'!$A$6:$CQ$92,MATCH('Rate Trajectory Report'!$B62,'Rate Trajectory Calc'!$A$6:$A$92,0),MATCH('Rate Trajectory Report'!I$5,'Rate Trajectory Calc'!$A$6:$CQ$6,0))=0,\" \",INDEX('Rate Trajectory Calc'!$A$6:$CQ$92,MATCH('Rate Trajectory Report'!$B62,'Rate Trajectory Calc'!$A$6:$A$92,0),MATCH('Rate Trajectory Report'!I$5,'Rate Trajectory Calc'!$A$6:$CQ$6,0))/1000)","v":" "},{"$f":"IF(INDEX('Rate Trajectory Calc'!$A$6:$CQ$92,MATCH('Rate Trajectory Report'!$B62,'Rate Trajectory Calc'!$A$6:$A$92,0),MATCH('Rate Trajectory Report'!J$5,'Rate Trajectory Calc'!$A$6:$CQ$6,0))=0,\" \",INDEX('Rate Trajectory Calc'!$A$6:$CQ$92,MATCH('Rate Trajectory Report'!$B62,'Rate Trajectory Calc'!$A$6:$A$92,0),MATCH('Rate Trajectory Report'!J$5,'Rate Trajectory Calc'!$A$6:$CQ$6,0))/1000)","v":" "},{"$f":"IF(INDEX('Rate Trajectory Calc'!$A$6:$CQ$92,MATCH('Rate Trajectory Report'!$B62,'Rate Trajectory Calc'!$A$6:$A$92,0),MATCH('Rate Trajectory Report'!K$5,'Rate Trajectory Calc'!$A$6:$CQ$6,0))=0,\" \",INDEX('Rate Trajectory Calc'!$A$6:$CQ$92,MATCH('Rate Trajectory Report'!$B62,'Rate Trajectory Calc'!$A$6:$A$92,0),MATCH('Rate Trajectory Report'!K$5,'Rate Trajectory Calc'!$A$6:$CQ$6,0))/1000)","v":" "},{"$f":"IF(INDEX('Rate Trajectory Calc'!$A$6:$CQ$92,MATCH('Rate Trajectory Report'!$B62,'Rate Trajectory Calc'!$A$6:$A$92,0),MATCH('Rate Trajectory Report'!L$5,'Rate Trajectory Calc'!$A$6:$CQ$6,0))=0,\" \",INDEX('Rate Trajectory Calc'!$A$6:$CQ$92,MATCH('Rate Trajectory Report'!$B62,'Rate Trajectory Calc'!$A$6:$A$92,0),MATCH('Rate Trajectory Report'!L$5,'Rate Trajectory Calc'!$A$6:$CQ$6,0))/1000)","v":" "},{"$f":"IF(INDEX('Rate Trajectory Calc'!$A$6:$CQ$92,MATCH('Rate Trajectory Report'!$B62,'Rate Trajectory Calc'!$A$6:$A$92,0),MATCH('Rate Trajectory Report'!M$5,'Rate Trajectory Calc'!$A$6:$CQ$6,0))=0,\" \",INDEX('Rate Trajectory Calc'!$A$6:$CQ$92,MATCH('Rate Trajectory Report'!$B62,'Rate Trajectory Calc'!$A$6:$A$92,0),MATCH('Rate Trajectory Report'!M$5,'Rate Trajectory Calc'!$A$6:$CQ$6,0))/1000)","v":" "},{"$f":"IF(INDEX('Rate Trajectory Calc'!$A$6:$CQ$92,MATCH('Rate Trajectory Report'!$B62,'Rate Trajectory Calc'!$A$6:$A$92,0),MATCH('Rate Trajectory Report'!N$5,'Rate Trajectory Calc'!$A$6:$CQ$6,0))=0,\" \",INDEX('Rate Trajectory Calc'!$A$6:$CQ$92,MATCH('Rate Trajectory Report'!$B62,'Rate Trajectory Calc'!$A$6:$A$92,0),MATCH('Rate Trajectory Report'!N$5,'Rate Trajectory Calc'!$A$6:$CQ$6,0))/1000)","v":" "},{"$f":"IF(INDEX('Rate Trajectory Calc'!$A$6:$CQ$92,MATCH('Rate Trajectory Report'!$B62,'Rate Trajectory Calc'!$A$6:$A$92,0),MATCH('Rate Trajectory Report'!O$5,'Rate Trajectory Calc'!$A$6:$CQ$6,0))=0,\" \",INDEX('Rate Trajectory Calc'!$A$6:$CQ$92,MATCH('Rate Trajectory Report'!$B62,'Rate Trajectory Calc'!$A$6:$A$92,0),MATCH('Rate Trajectory Report'!O$5,'Rate Trajectory Calc'!$A$6:$CQ$6,0))/1000)","v":" "},{"$f":"IF(INDEX('Rate Trajectory Calc'!$A$6:$CQ$92,MATCH('Rate Trajectory Report'!$B62,'Rate Trajectory Calc'!$A$6:$A$92,0),MATCH('Rate Trajectory Report'!P$5,'Rate Trajectory Calc'!$A$6:$CQ$6,0))=0,\" \",INDEX('Rate Trajectory Calc'!$A$6:$CQ$92,MATCH('Rate Trajectory Report'!$B62,'Rate Trajectory Calc'!$A$6:$A$92,0),MATCH('Rate Trajectory Report'!P$5,'Rate Trajectory Calc'!$A$6:$CQ$6,0))/1000)","v":" "},{"$f":"IF(INDEX('Rate Trajectory Calc'!$A$6:$CQ$92,MATCH('Rate Trajectory Report'!$B62,'Rate Trajectory Calc'!$A$6:$A$92,0),MATCH('Rate Trajectory Report'!Q$5,'Rate Trajectory Calc'!$A$6:$CQ$6,0))=0,\" \",INDEX('Rate Trajectory Calc'!$A$6:$CQ$92,MATCH('Rate Trajectory Report'!$B62,'Rate Trajectory Calc'!$A$6:$A$92,0),MATCH('Rate Trajectory Report'!Q$5,'Rate Trajectory Calc'!$A$6:$CQ$6,0))/1000)","v":" "},{"$f":"IF(INDEX('Rate Trajectory Calc'!$A$6:$CQ$92,MATCH('Rate Trajectory Report'!$B62,'Rate Trajectory Calc'!$A$6:$A$92,0),MATCH('Rate Trajectory Report'!R$5,'Rate Trajectory Calc'!$A$6:$CQ$6,0))=0,\" \",INDEX('Rate Trajectory Calc'!$A$6:$CQ$92,MATCH('Rate Trajectory Report'!$B62,'Rate Trajectory Calc'!$A$6:$A$92,0),MATCH('Rate Trajectory Report'!R$5,'Rate Trajectory Calc'!$A$6:$CQ$6,0))/1000)","v":" "},{"$f":"IF(INDEX('Rate Trajectory Calc'!$A$6:$CQ$92,MATCH('Rate Trajectory Report'!$B62,'Rate Trajectory Calc'!$A$6:$A$92,0),MATCH('Rate Trajectory Report'!S$5,'Rate Trajectory Calc'!$A$6:$CQ$6,0))=0,\" \",INDEX('Rate Trajectory Calc'!$A$6:$CQ$92,MATCH('Rate Trajectory Report'!$B62,'Rate Trajectory Calc'!$A$6:$A$92,0),MATCH('Rate Trajectory Report'!S$5,'Rate Trajectory Calc'!$A$6:$CQ$6,0))/1000)","v":" "},{"$f":"IF(INDEX('Rate Trajectory Calc'!$A$6:$CQ$92,MATCH('Rate Trajectory Report'!$B62,'Rate Trajectory Calc'!$A$6:$A$92,0),MATCH('Rate Trajectory Report'!T$5,'Rate Trajectory Calc'!$A$6:$CQ$6,0))=0,\" \",INDEX('Rate Trajectory Calc'!$A$6:$CQ$92,MATCH('Rate Trajectory Report'!$B62,'Rate Trajectory Calc'!$A$6:$A$92,0),MATCH('Rate Trajectory Report'!T$5,'Rate Trajectory Calc'!$A$6:$CQ$6,0))/1000)","v":-104.44439544815596},{"$f":"IF(INDEX('Rate Trajectory Calc'!$A$6:$CQ$92,MATCH('Rate Trajectory Report'!$B62,'Rate Trajectory Calc'!$A$6:$A$92,0),MATCH('Rate Trajectory Report'!U$5,'Rate Trajectory Calc'!$A$6:$CQ$6,0))=0,\" \",INDEX('Rate Trajectory Calc'!$A$6:$CQ$92,MATCH('Rate Trajectory Report'!$B62,'Rate Trajectory Calc'!$A$6:$A$92,0),MATCH('Rate Trajectory Report'!U$5,'Rate Trajectory Calc'!$A$6:$CQ$6,0))/1000)","v":" "},{"$f":"IF(INDEX('Rate Trajectory Calc'!$A$6:$CQ$92,MATCH('Rate Trajectory Report'!$B62,'Rate Trajectory Calc'!$A$6:$A$92,0),MATCH('Rate Trajectory Report'!V$5,'Rate Trajectory Calc'!$A$6:$CQ$6,0))=0,\" \",INDEX('Rate Trajectory Calc'!$A$6:$CQ$92,MATCH('Rate Trajectory Report'!$B62,'Rate Trajectory Calc'!$A$6:$A$92,0),MATCH('Rate Trajectory Report'!V$5,'Rate Trajectory Calc'!$A$6:$CQ$6,0))/1000)","v":" "},{"$f":"IF(INDEX('Rate Trajectory Calc'!$A$6:$CQ$92,MATCH('Rate Trajectory Report'!$B62,'Rate Trajectory Calc'!$A$6:$A$92,0),MATCH('Rate Trajectory Report'!W$5,'Rate Trajectory Calc'!$A$6:$CQ$6,0))=0,\" \",INDEX('Rate Trajectory Calc'!$A$6:$CQ$92,MATCH('Rate Trajectory Report'!$B62,'Rate Trajectory Calc'!$A$6:$A$92,0),MATCH('Rate Trajectory Report'!W$5,'Rate Trajectory Calc'!$A$6:$CQ$6,0))/1000)","v":" "},{"$f":"IF(INDEX('Rate Trajectory Calc'!$A$6:$CQ$92,MATCH('Rate Trajectory Report'!$B62,'Rate Trajectory Calc'!$A$6:$A$92,0),MATCH('Rate Trajectory Report'!X$5,'Rate Trajectory Calc'!$A$6:$CQ$6,0))=0,\" \",INDEX('Rate Trajectory Calc'!$A$6:$CQ$92,MATCH('Rate Trajectory Report'!$B62,'Rate Trajectory Calc'!$A$6:$A$92,0),MATCH('Rate Trajectory Report'!X$5,'Rate Trajectory Calc'!$A$6:$CQ$6,0))/1000)","v":" "},{"$f":"IF(INDEX('Rate Trajectory Calc'!$A$6:$CQ$92,MATCH('Rate Trajectory Report'!$B62,'Rate Trajectory Calc'!$A$6:$A$92,0),MATCH('Rate Trajectory Report'!Y$5,'Rate Trajectory Calc'!$A$6:$CQ$6,0))=0,\" \",INDEX('Rate Trajectory Calc'!$A$6:$CQ$92,MATCH('Rate Trajectory Report'!$B62,'Rate Trajectory Calc'!$A$6:$A$92,0),MATCH('Rate Trajectory Report'!Y$5,'Rate Trajectory Calc'!$A$6:$CQ$6,0))/1000)","v":" "},{"$f":"IF(INDEX('Rate Trajectory Calc'!$A$6:$CQ$92,MATCH('Rate Trajectory Report'!$B62,'Rate Trajectory Calc'!$A$6:$A$92,0),MATCH('Rate Trajectory Report'!Z$5,'Rate Trajectory Calc'!$A$6:$CQ$6,0))=0,\" \",INDEX('Rate Trajectory Calc'!$A$6:$CQ$92,MATCH('Rate Trajectory Report'!$B62,'Rate Trajectory Calc'!$A$6:$A$92,0),MATCH('Rate Trajectory Report'!Z$5,'Rate Trajectory Calc'!$A$6:$CQ$6,0))/1000)","v":" "},{"$f":"IF(INDEX('Rate Trajectory Calc'!$A$6:$CQ$92,MATCH('Rate Trajectory Report'!$B62,'Rate Trajectory Calc'!$A$6:$A$92,0),MATCH('Rate Trajectory Report'!AA$5,'Rate Trajectory Calc'!$A$6:$CQ$6,0))=0,\" \",INDEX('Rate Trajectory Calc'!$A$6:$CQ$92,MATCH('Rate Trajectory Report'!$B62,'Rate Trajectory Calc'!$A$6:$A$92,0),MATCH('Rate Trajectory Report'!AA$5,'Rate Trajectory Calc'!$A$6:$CQ$6,0))/1000)","v":" "}]
["12b","TRRRMA (Transmission)",{"$f":"IFERROR(VLOOKUP(B63,'Rate Trajectory Dashboard'!$B$12:$D$96,3,FALSE)/1000,'Rate Trajectory Report'!C62)","v":0},{"$f":"IF(INDEX('Rate Trajectory Calc'!$A$6:$CQ$92,MATCH('Rate Trajectory Report'!$B63,'Rate Trajectory Calc'!$A$6:$A$92,0),MATCH('Rate Trajectory Report'!D$5,'Rate Trajectory Calc'!$A$6:$CQ$6,0))=0,\" \",INDEX('Rate Trajectory Calc'!$A$6:$CQ$92,MATCH('Rate Trajectory Report'!$B63,'Rate Trajectory Calc'!$A$6:$A$92,0),MATCH('Rate Trajectory Report'!D$5,'Rate Trajectory Calc'!$A$6:$CQ$6,0))/1000)","v":" "},{"$f":"IF(INDEX('Rate Trajectory Calc'!$A$6:$CQ$92,MATCH('Rate Trajectory Report'!$B63,'Rate Trajectory Calc'!$A$6:$A$92,0),MATCH('Rate Trajectory Report'!E$5,'Rate Trajectory Calc'!$A$6:$CQ$6,0))=0,\" \",INDEX('Rate Trajectory Calc'!$A$6:$CQ$92,MATCH('Rate Trajectory Report'!$B63,'Rate Trajectory Calc'!$A$6:$A$92,0),MATCH('Rate Trajectory Report'!E$5,'Rate Trajectory Calc'!$A$6:$CQ$6,0))/1000)","v":" "},{"$f":"IF(INDEX('Rate Trajectory Calc'!$A$6:$CQ$92,MATCH('Rate Trajectory Report'!$B63,'Rate Trajectory Calc'!$A$6:$A$92,0),MATCH('Rate Trajectory Report'!F$5,'Rate Trajectory Calc'!$A$6:$CQ$6,0))=0,\" \",INDEX('Rate Trajectory Calc'!$A$6:$CQ$92,MATCH('Rate Trajectory Report'!$B63,'Rate Trajectory Calc'!$A$6:$A$92,0),MATCH('Rate Trajectory Report'!F$5,'Rate Trajectory Calc'!$A$6:$CQ$6,0))/1000)","v":" "},{"$f":"IF(INDEX('Rate Trajectory Calc'!$A$6:$CQ$92,MATCH('Rate Trajectory Report'!$B63,'Rate Trajectory Calc'!$A$6:$A$92,0),MATCH('Rate Trajectory Report'!G$5,'Rate Trajectory Calc'!$A$6:$CQ$6,0))=0,\" \",INDEX('Rate Trajectory Calc'!$A$6:$CQ$92,MATCH('Rate Trajectory Report'!$B63,'Rate Trajectory Calc'!$A$6:$A$92,0),MATCH('Rate Trajectory Report'!G$5,'Rate Trajectory Calc'!$A$6:$CQ$6,0))/1000)","v":" "},{"$f":"IF(INDEX('Rate Trajectory Calc'!$A$6:$CQ$92,MATCH('Rate Trajectory Report'!$B63,'Rate Trajectory Calc'!$A$6:$A$92,0),MATCH('Rate Trajectory Report'!H$5,'Rate Trajectory Calc'!$A$6:$CQ$6,0))=0,\" \",INDEX('Rate Trajectory Calc'!$A$6:$CQ$92,MATCH('Rate Trajectory Report'!$B63,'Rate Trajectory Calc'!$A$6:$A$92,0),MATCH('Rate Trajectory Report'!H$5,'Rate Trajectory Calc'!$A$6:$CQ$6,0))/1000)","v":47.177487626207878},{"$f":"IF(INDEX('Rate Trajectory Calc'!$A$6:$CQ$92,MATCH('Rate Trajectory Report'!$B63,'Rate Trajectory Calc'!$A$6:$A$92,0),MATCH('Rate Trajectory Report'!I$5,'Rate Trajectory Calc'!$A$6:$CQ$6,0))=0,\" \",INDEX('Rate Trajectory Calc'!$A$6:$CQ$92,MATCH('Rate Trajectory Report'!$B63,'Rate Trajectory Calc'!$A$6:$A$92,0),MATCH('Rate Trajectory Report'!I$5,'Rate Trajectory Calc'!$A$6:$CQ$6,0))/1000)","v":" "},{"$f":"IF(INDEX('Rate Trajectory Calc'!$A$6:$CQ$92,MATCH('Rate Trajectory Report'!$B63,'Rate Trajectory Calc'!$A$6:$A$92,0),MATCH('Rate Trajectory Report'!J$5,'Rate Trajectory Calc'!$A$6:$CQ$6,0))=0,\" \",INDEX('Rate Trajectory Calc'!$A$6:$CQ$92,MATCH('Rate Trajectory Report'!$B63,'Rate Trajectory Calc'!$A$6:$A$92,0),MATCH('Rate Trajectory Report'!J$5,'Rate Trajectory Calc'!$A$6:$CQ$6,0))/1000)","v":" "},{"$f":"IF(INDEX('Rate Trajectory Calc'!$A$6:$CQ$92,MATCH('Rate Trajectory Report'!$B63,'Rate Trajectory Calc'!$A$6:$A$92,0),MATCH('Rate Trajectory Report'!K$5,'Rate Trajectory Calc'!$A$6:$CQ$6,0))=0,\" \",INDEX('Rate Trajectory Calc'!$A$6:$CQ$92,MATCH('Rate Trajectory Report'!$B63,'Rate Trajectory Calc'!$A$6:$A$92,0),MATCH('Rate Trajectory Report'!K$5,'Rate Trajectory Calc'!$A$6:$CQ$6,0))/1000)","v":" "},{"$f":"IF(INDEX('Rate Trajectory Calc'!$A$6:$CQ$92,MATCH('Rate Trajectory Report'!$B63,'Rate Trajectory Calc'!$A$6:$A$92,0),MATCH('Rate Trajectory Report'!L$5,'Rate Trajectory Calc'!$A$6:$CQ$6,0))=0,\" \",INDEX('Rate Trajectory Calc'!$A$6:$CQ$92,MATCH('Rate Trajectory Report'!$B63,'Rate Trajectory Calc'!$A$6:$A$92,0),MATCH('Rate Trajectory Report'!L$5,'Rate Trajectory Calc'!$A$6:$CQ$6,0))/1000)","v":" "},{"$f":"IF(INDEX('Rate Trajectory Calc'!$A$6:$CQ$92,MATCH('Rate Trajectory Report'!$B63,'Rate Trajectory Calc'!$A$6:$A$92,0),MATCH('Rate Trajectory Report'!M$5,'Rate Trajectory Calc'!$A$6:$CQ$6,0))=0,\" \",INDEX('Rate Trajectory Calc'!$A$6:$CQ$92,MATCH('Rate Trajectory Report'!$B63,'Rate Trajectory Calc'!$A$6:$A$92,0),MATCH('Rate Trajectory Report'!M$5,'Rate Trajectory Calc'!$A$6:$CQ$6,0))/1000)","v":" "},{"$f":"IF(INDEX('Rate Trajectory Calc'!$A$6:$CQ$92,MATCH('Rate Trajectory Report'!$B63,'Rate Trajectory Calc'!$A$6:$A$92,0),MATCH('Rate Trajectory Report'!N$5,'Rate Trajectory Calc'!$A$6:$CQ$6,0))=0,\" \",INDEX('Rate Trajectory Calc'!$A$6:$CQ$92,MATCH('Rate Trajectory Report'!$B63,'Rate Trajectory Calc'!$A$6:$A$92,0),MATCH('Rate Trajectory Report'!N$5,'Rate Trajectory Calc'!$A$6:$CQ$6,0))/1000)","v":" "},{"$f":"IF(INDEX('Rate Trajectory Calc'!$A$6:$CQ$92,MATCH('Rate Trajectory Report'!$B63,'Rate Trajectory Calc'!$A$6:$A$92,0),MATCH('Rate Trajectory Report'!O$5,'Rate Trajectory Calc'!$A$6:$CQ$6,0))=0,\" \",INDEX('Rate Trajectory Calc'!$A$6:$CQ$92,MATCH('Rate Trajectory Report'!$B63,'Rate Trajectory Calc'!$A$6:$A$92,0),MATCH('Rate Trajectory Report'!O$5,'Rate Trajectory Calc'!$A$6:$CQ$6,0))/1000)","v":" "},{"$f":"IF(INDEX('Rate Trajectory Calc'!$A$6:$CQ$92,MATCH('Rate Trajectory Report'!$B63,'Rate Trajectory Calc'!$A$6:$A$92,0),MATCH('Rate Trajectory Report'!P$5,'Rate Trajectory Calc'!$A$6:$CQ$6,0))=0,\" \",INDEX('Rate Trajectory Calc'!$A$6:$CQ$92,MATCH('Rate Trajectory Report'!$B63,'Rate Trajectory Calc'!$A$6:$A$92,0),MATCH('Rate Trajectory Report'!P$5,'Rate Trajectory Calc'!$A$6:$CQ$6,0))/1000)","v":" "},{"$f":"IF(INDEX('Rate Trajectory Calc'!$A$6:$CQ$92,MATCH('Rate Trajectory Report'!$B63,'Rate Trajectory Calc'!$A$6:$A$92,0),MATCH('Rate Trajectory Report'!Q$5,'Rate Trajectory Calc'!$A$6:$CQ$6,0))=0,\" \",INDEX('Rate Trajectory Calc'!$A$6:$CQ$92,MATCH('Rate Trajectory Report'!$B63,'Rate Trajectory Calc'!$A$6:$A$92,0),MATCH('Rate Trajectory Report'!Q$5,'Rate Trajectory Calc'!$A$6:$CQ$6,0))/1000)","v":" "},{"$f":"IF(INDEX('Rate Trajectory Calc'!$A$6:$CQ$92,MATCH('Rate Trajectory Report'!$B63,'Rate Trajectory Calc'!$A$6:$A$92,0),MATCH('Rate Trajectory Report'!R$5,'Rate Trajectory Calc'!$A$6:$CQ$6,0))=0,\" \",INDEX('Rate Trajectory Calc'!$A$6:$CQ$92,MATCH('Rate Trajectory Report'!$B63,'Rate Trajectory Calc'!$A$6:$A$92,0),MATCH('Rate Trajectory Report'!R$5,'Rate Trajectory Calc'!$A$6:$CQ$6,0))/1000)","v":" "},{"$f":"IF(INDEX('Rate Trajectory Calc'!$A$6:$CQ$92,MATCH('Rate Trajectory Report'!$B63,'Rate Trajectory Calc'!$A$6:$A$92,0),MATCH('Rate Trajectory Report'!S$5,'Rate Trajectory Calc'!$A$6:$CQ$6,0))=0,\" \",INDEX('Rate Trajectory Calc'!$A$6:$CQ$92,MATCH('Rate Trajectory Report'!$B63,'Rate Trajectory Calc'!$A$6:$A$92,0),MATCH('Rate Trajectory Report'!S$5,'Rate Trajectory Calc'!$A$6:$CQ$6,0))/1000)","v":" "},{"$f":"IF(INDEX('Rate Trajectory Calc'!$A$6:$CQ$92,MATCH('Rate Trajectory Report'!$B63,'Rate Trajectory Calc'!$A$6:$A$92,0),MATCH('Rate Trajectory Report'!T$5,'Rate Trajectory Calc'!$A$6:$CQ$6,0))=0,\" \",INDEX('Rate Trajectory Calc'!$A$6:$CQ$92,MATCH('Rate Trajectory Report'!$B63,'Rate Trajectory Calc'!$A$6:$A$92,0),MATCH('Rate Trajectory Report'!T$5,'Rate Trajectory Calc'!$A$6:$CQ$6,0))/1000)","v":-47.177487626207878},{"$f":"IF(INDEX('Rate Trajectory Calc'!$A$6:$CQ$92,MATCH('Rate Trajectory Report'!$B63,'Rate Trajectory Calc'!$A$6:$A$92,0),MATCH('Rate Trajectory Report'!U$5,'Rate Trajectory Calc'!$A$6:$CQ$6,0))=0,\" \",INDEX('Rate Trajectory Calc'!$A$6:$CQ$92,MATCH('Rate Trajectory Report'!$B63,'Rate Trajectory Calc'!$A$6:$A$92,0),MATCH('Rate Trajectory Report'!U$5,'Rate Trajectory Calc'!$A$6:$CQ$6,0))/1000)","v":" "},{"$f":"IF(INDEX('Rate Trajectory Calc'!$A$6:$CQ$92,MATCH('Rate Trajectory Report'!$B63,'Rate Trajectory Calc'!$A$6:$A$92,0),MATCH('Rate Trajectory Report'!V$5,'Rate Trajectory Calc'!$A$6:$CQ$6,0))=0,\" \",INDEX('Rate Trajectory Calc'!$A$6:$CQ$92,MATCH('Rate Trajectory Report'!$B63,'Rate Trajectory Calc'!$A$6:$A$92,0),MATCH('Rate Trajectory Report'!V$5,'Rate Trajectory Calc'!$A$6:$CQ$6,0))/1000)","v":" "},{"$f":"IF(INDEX('Rate Trajectory Calc'!$A$6:$CQ$92,MATCH('Rate Trajectory Report'!$B63,'Rate Trajectory Calc'!$A$6:$A$92,0),MATCH('Rate Trajectory Report'!W$5,'Rate Trajectory Calc'!$A$6:$CQ$6,0))=0,\" \",INDEX('Rate Trajectory Calc'!$A$6:$CQ$92,MATCH('Rate Trajectory Report'!$B63,'Rate Trajectory Calc'!$A$6:$A$92,0),MATCH('Rate Trajectory Report'!W$5,'Rate Trajectory Calc'!$A$6:$CQ$6,0))/1000)","v":" "},{"$f":"IF(INDEX('Rate Trajectory Calc'!$A$6:$CQ$92,MATCH('Rate Trajectory Report'!$B63,'Rate Trajectory Calc'!$A$6:$A$92,0),MATCH('Rate Trajectory Report'!X$5,'Rate Trajectory Calc'!$A$6:$CQ$6,0))=0,\" \",INDEX('Rate Trajectory Calc'!$A$6:$CQ$92,MATCH('Rate Trajectory Report'!$B63,'Rate Trajectory Calc'!$A$6:$A$92,0),MATCH('Rate Trajectory Report'!X$5,'Rate Trajectory Calc'!$A$6:$CQ$6,0))/1000)","v":" "},{"$f":"IF(INDEX('Rate Trajectory Calc'!$A$6:$CQ$92,MATCH('Rate Trajectory Report'!$B63,'Rate Trajectory Calc'!$A$6:$A$92,0),MATCH('Rate Trajectory Report'!Y$5,'Rate Trajectory Calc'!$A$6:$CQ$6,0))=0,\" \",INDEX('Rate Trajectory Calc'!$A$6:$CQ$92,MATCH('Rate Trajectory Report'!$B63,'Rate Trajectory Calc'!$A$6:$A$92,0),MATCH('Rate Trajectory Report'!Y$5,'Rate Trajectory Calc'!$A$6:$CQ$6,0))/1000)","v":" "},{"$f":"IF(INDEX('Rate Trajectory Calc'!$A$6:$CQ$92,MATCH('Rate Trajectory Report'!$B63,'Rate Trajectory Calc'!$A$6:$A$92,0),MATCH('Rate Trajectory Report'!Z$5,'Rate Trajectory Calc'!$A$6:$CQ$6,0))=0,\" \",INDEX('Rate Trajectory Calc'!$A$6:$CQ$92,MATCH('Rate Trajectory Report'!$B63,'Rate Trajectory Calc'!$A$6:$A$92,0),MATCH('Rate Trajectory Report'!Z$5,'Rate Trajectory Calc'!$A$6:$CQ$6,0))/1000)","v":" "},{"$f":"IF(INDEX('Rate Trajectory Calc'!$A$6:$CQ$92,MATCH('Rate Trajectory Report'!$B63,'Rate Trajectory Calc'!$A$6:$A$92,0),MATCH('Rate Trajectory Report'!AA$5,'Rate Trajectory Calc'!$A$6:$CQ$6,0))=0,\" \",INDEX('Rate Trajectory Calc'!$A$6:$CQ$92,MATCH('Rate Trajectory Report'!$B63,'Rate Trajectory Calc'!$A$6:$A$92,0),MATCH('Rate Trajectory Report'!AA$5,'Rate Trajectory Calc'!$A$6:$CQ$6,0))/1000)","v":" "}]
[12,"TRRRMA",{"$f":"IFERROR(VLOOKUP(B64,'Rate Trajectory Dashboard'!$B$12:$D$96,3,FALSE)/1000,'Rate Trajectory Report'!C63)","v":0},{"$f":"IF(SUM(D62:D63)=0,\" \",SUBTOTAL(9,D62:D63))","v":" "},{"$f":"IF(SUM(E62:E63)=0,\" \",SUBTOTAL(9,E62:E63))","v":" "}," "," ",{"$f":"IF(SUM(H62:H63)=0,\" \",SUBTOTAL(9,H62:H63))","v":151.62188307436384}," "," "," "," "," "," "," "," "," "," "," ",-151.62188307436384," "," "," "," "," "," "," "]
[null,{"$f":"'Rate Trajectory Dashboard'!B53","v":"2027 GRC - Gas Distribution - Year 2027"},{"$f":"IFERROR(VLOOKUP(B65,'Rate Trajectory Dashboard'!$B$12:$D$96,3,FALSE)/1000,'Rate Trajectory Report'!C64)","v":2837.6614239763044},{"$f":"IF(INDEX('Rate Trajectory Calc'!$A$6:$CQ$92,MATCH('Rate Trajectory Report'!$B65,'Rate Trajectory Calc'!$A$6:$A$92,0),MATCH('Rate Trajectory Report'!D$5,'Rate Trajectory Calc'!$A$6:$CQ$6,0))=0,\" \",INDEX('Rate Trajectory Calc'!$A$6:$CQ$92,MATCH('Rate Trajectory Report'!$B65,'Rate Trajectory Calc'!$A$6:$A$92,0),MATCH('Rate Trajectory Report'!D$5,'Rate Trajectory Calc'!$A$6:$CQ$6,0))/1000)","v":" "},{"$f":"IF(INDEX('Rate Trajectory Calc'!$A$6:$CQ$92,MATCH('Rate Trajectory Report'!$B65,'Rate Trajectory Calc'!$A$6:$A$92,0),MATCH('Rate Trajectory Report'!E$5,'Rate Trajectory Calc'!$A$6:$CQ$6,0))=0,\" \",INDEX('Rate Trajectory Calc'!$A$6:$CQ$92,MATCH('Rate Trajectory Report'!$B65,'Rate Trajectory Calc'!$A$6:$A$92,0),MATCH('Rate Trajectory Report'!E$5,'Rate Trajectory Calc'!$A$6:$CQ$6,0))/1000)","v":" "},{"$f":"IF(INDEX('Rate Trajectory Calc'!$A$6:$CQ$92,MATCH('Rate Trajectory Report'!$B65,'Rate Trajectory Calc'!$A$6:$A$92,0),MATCH('Rate Trajectory Report'!F$5,'Rate Trajectory Calc'!$A$6:$CQ$6,0))=0,\" \",INDEX('Rate Trajectory Calc'!$A$6:$CQ$92,MATCH('Rate Trajectory Report'!$B65,'Rate Trajectory Calc'!$A$6:$A$92,0),MATCH('Rate Trajectory Report'!F$5,'Rate Trajectory Calc'!$A$6:$CQ$6,0))/1000)","v":" "},{"$f":"IF(INDEX('Rate Trajectory Calc'!$A$6:$CQ$92,MATCH('Rate Trajectory Report'!$B65,'Rate Trajectory Calc'!$A$6:$A$92,0),MATCH('Rate Trajectory Report'!G$5,'Rate Trajectory Calc'!$A$6:$CQ$6,0))=0,\" \",INDEX('Rate Trajectory Calc'!$A$6:$CQ$92,MATCH('Rate Trajectory Report'!$B65,'Rate Trajectory Calc'!$A$6:$A$92,0),MATCH('Rate Trajectory Report'!G$5,'Rate Trajectory Calc'!$A$6:$CQ$6,0))/1000)","v":" "},{"$f":"IF(INDEX('Rate Trajectory Calc'!$A$6:$CQ$92,MATCH('Rate Trajectory Report'!$B65,'Rate Trajectory Calc'!$A$6:$A$92,0),MATCH('Rate Trajectory Report'!H$5,'Rate Trajectory Calc'!$A$6:$CQ$6,0))=0,\" \",INDEX('Rate Trajectory Calc'!$A$6:$CQ$92,MATCH('Rate Trajectory Report'!$B65,'Rate Trajectory Calc'!$A$6:$A$92,0),MATCH('Rate Trajectory Report'!H$5,'Rate Trajectory Calc'!$A$6:$CQ$6,0))/1000)","v":" "},{"$f":"IF(INDEX('Rate Trajectory Calc'!$A$6:$CQ$92,MATCH('Rate Trajectory Report'!$B65,'Rate Trajectory Calc'!$A$6:$A$92,0),MATCH('Rate Trajectory Report'!I$5,'Rate Trajectory Calc'!$A$6:$CQ$6,0))=0,\" \",INDEX('Rate Trajectory Calc'!$A$6:$CQ$92,MATCH('Rate Trajectory Report'!$B65,'Rate Trajectory Calc'!$A$6:$A$92,0),MATCH('Rate Trajectory Report'!I$5,'Rate Trajectory Calc'!$A$6:$CQ$6,0))/1000)","v":" "},{"$f":"IF(INDEX('Rate Trajectory Calc'!$A$6:$CQ$92,MATCH('Rate Trajectory Report'!$B65,'Rate Trajectory Calc'!$A$6:$A$92,0),MATCH('Rate Trajectory Report'!J$5,'Rate Trajectory Calc'!$A$6:$CQ$6,0))=0,\" \",INDEX('Rate Trajectory Calc'!$A$6:$CQ$92,MATCH('Rate Trajectory Report'!$B65,'Rate Trajectory Calc'!$A$6:$A$92,0),MATCH('Rate Trajectory Report'!J$5,'Rate Trajectory Calc'!$A$6:$CQ$6,0))/1000)","v":" "},{"$f":"IF(INDEX('Rate Trajectory Calc'!$A$6:$CQ$92,MATCH('Rate Trajectory Report'!$B65,'Rate Trajectory Calc'!$A$6:$A$92,0),MATCH('Rate Trajectory Report'!K$5,'Rate Trajectory Calc'!$A$6:$CQ$6,0))=0,\" \",INDEX('Rate Trajectory Calc'!$A$6:$CQ$92,MATCH('Rate Trajectory Report'!$B65,'Rate Trajectory Calc'!$A$6:$A$92,0),MATCH('Rate Trajectory Report'!K$5,'Rate Trajectory Calc'!$A$6:$CQ$6,0))/1000)","v":" "},{"$f":"IF(INDEX('Rate Trajectory Calc'!$A$6:$CQ$92,MATCH('Rate Trajectory Report'!$B65,'Rate Trajectory Calc'!$A$6:$A$92,0),MATCH('Rate Trajectory Report'!L$5,'Rate Trajectory Calc'!$A$6:$CQ$6,0))=0,\" \",INDEX('Rate Trajectory Calc'!$A$6:$CQ$92,MATCH('Rate Trajectory Report'!$B65,'Rate Trajectory Calc'!$A$6:$A$92,0),MATCH('Rate Trajectory Report'!L$5,'Rate Trajectory Calc'!$A$6:$CQ$6,0))/1000)","v":" "},{"$f":"IF(INDEX('Rate Trajectory Calc'!$A$6:$CQ$92,MATCH('Rate Trajectory Report'!$B65,'Rate Trajectory Calc'!$A$6:$A$92,0),MATCH('Rate Trajectory Report'!M$5,'Rate Trajectory Calc'!$A$6:$CQ$6,0))=0,\" \",INDEX('Rate Trajectory Calc'!$A$6:$CQ$92,MATCH('Rate Trajectory Report'!$B65,'Rate Trajectory Calc'!$A$6:$A$92,0),MATCH('Rate Trajectory Report'!M$5,'Rate Trajectory Calc'!$A$6:$CQ$6,0))/1000)","v":" "},{"$f":"IF(INDEX('Rate Trajectory Calc'!$A$6:$CQ$92,MATCH('Rate Trajectory Report'!$B65,'Rate Trajectory Calc'!$A$6:$A$92,0),MATCH('Rate Trajectory Report'!N$5,'Rate Trajectory Calc'!$A$6:$CQ$6,0))=0,\" \",INDEX('Rate Trajectory Calc'!$A$6:$CQ$92,MATCH('Rate Trajectory Report'!$B65,'Rate Trajectory Calc'!$A$6:$A$92,0),MATCH('Rate Trajectory Report'!N$5,'Rate Trajectory Calc'!$A$6:$CQ$6,0))/1000)","v":" "},{"$f":"IF(INDEX('Rate Trajectory Calc'!$A$6:$CQ$92,MATCH('Rate Trajectory Report'!$B65,'Rate Trajectory Calc'!$A$6:$A$92,0),MATCH('Rate Trajectory Report'!O$5,'Rate Trajectory Calc'!$A$6:$CQ$6,0))=0,\" \",INDEX('Rate Trajectory Calc'!$A$6:$CQ$92,MATCH('Rate Trajectory Report'!$B65,'Rate Trajectory Calc'!$A$6:$A$92,0),MATCH('Rate Trajectory Report'!O$5,'Rate Trajectory Calc'!$A$6:$CQ$6,0))/1000)","v":" "},{"$f":"IF(INDEX('Rate Trajectory Calc'!$A$6:$CQ$92,MATCH('Rate Trajectory Report'!$B65,'Rate Trajectory Calc'!$A$6:$A$92,0),MATCH('Rate Trajectory Report'!P$5,'Rate Trajectory Calc'!$A$6:$CQ$6,0))=0,\" \",INDEX('Rate Trajectory Calc'!$A$6:$CQ$92,MATCH('Rate Trajectory Report'!$B65,'Rate Trajectory Calc'!$A$6:$A$92,0),MATCH('Rate Trajectory Report'!P$5,'Rate Trajectory Calc'!$A$6:$CQ$6,0))/1000)","v":" "},{"$f":"IF(INDEX('Rate Trajectory Calc'!$A$6:$CQ$92,MATCH('Rate Trajectory Report'!$B65,'Rate Trajectory Calc'!$A$6:$A$92,0),MATCH('Rate Trajectory Report'!Q$5,'Rate Trajectory Calc'!$A$6:$CQ$6,0))=0,\" \",INDEX('Rate Trajectory Calc'!$A$6:$CQ$92,MATCH('Rate Trajectory Report'!$B65,'Rate Trajectory Calc'!$A$6:$A$92,0),MATCH('Rate Trajectory Report'!Q$5,'Rate Trajectory Calc'!$A$6:$CQ$6,0))/1000)","v":" "},{"$f":"IF(INDEX('Rate Trajectory Calc'!$A$6:$CQ$92,MATCH('Rate Trajectory Report'!$B65,'Rate Trajectory Calc'!$A$6:$A$92,0),MATCH('Rate Trajectory Report'!R$5,'Rate Trajectory Calc'!$A$6:$CQ$6,0))=0,\" \",INDEX('Rate Trajectory Calc'!$A$6:$CQ$92,MATCH('Rate Trajectory Report'!$B65,'Rate Trajectory Calc'!$A$6:$A$92,0),MATCH('Rate Trajectory Report'!R$5,'Rate Trajectory Calc'!$A$6:$CQ$6,0))/1000)","v":" "},{"$f":"IF(INDEX('Rate Trajectory Calc'!$A$6:$CQ$92,MATCH('Rate Trajectory Report'!$B65,'Rate Trajectory Calc'!$A$6:$A$92,0),MATCH('Rate Trajectory Report'!S$5,'Rate Trajectory Calc'!$A$6:$CQ$6,0))=0,\" \",INDEX('Rate Trajectory Calc'!$A$6:$CQ$92,MATCH('Rate Trajectory Report'!$B65,'Rate Trajectory Calc'!$A$6:$A$92,0),MATCH('Rate Trajectory Report'!S$5,'Rate Trajectory Calc'!$A$6:$CQ$6,0))/1000)","v":" "},{"$f":"IF(INDEX('Rate Trajectory Calc'!$A$6:$CQ$92,MATCH('Rate Trajectory Report'!$B65,'Rate Trajectory Calc'!$A$6:$A$92,0),MATCH('Rate Trajectory Report'!T$5,'Rate Trajectory Calc'!$A$6:$CQ$6,0))=0,\" \",INDEX('Rate Trajectory Calc'!$A$6:$CQ$92,MATCH('Rate Trajectory Report'!$B65,'Rate Trajectory Calc'!$A$6:$A$92,0),MATCH('Rate Trajectory Report'!T$5,'Rate Trajectory Calc'!$A$6:$CQ$6,0))/1000)","v":223.58278734550299},{"$f":"IF(INDEX('Rate Trajectory Calc'!$A$6:$CQ$92,MATCH('Rate Trajectory Report'!$B65,'Rate Trajectory Calc'!$A$6:$A$92,0),MATCH('Rate Trajectory Report'!U$5,'Rate Trajectory Calc'!$A$6:$CQ$6,0))=0,\" \",INDEX('Rate Trajectory Calc'!$A$6:$CQ$92,MATCH('Rate Trajectory Report'!$B65,'Rate Trajectory Calc'!$A$6:$A$92,0),MATCH('Rate Trajectory Report'!U$5,'Rate Trajectory Calc'!$A$6:$CQ$6,0))/1000)","v":" "},{"$f":"IF(INDEX('Rate Trajectory Calc'!$A$6:$CQ$92,MATCH('Rate Trajectory Report'!$B65,'Rate Trajectory Calc'!$A$6:$A$92,0),MATCH('Rate Trajectory Report'!V$5,'Rate Trajectory Calc'!$A$6:$CQ$6,0))=0,\" \",INDEX('Rate Trajectory Calc'!$A$6:$CQ$92,MATCH('Rate Trajectory Report'!$B65,'Rate Trajectory Calc'!$A$6:$A$92,0),MATCH('Rate Trajectory Report'!V$5,'Rate Trajectory Calc'!$A$6:$CQ$6,0))/1000)","v":" "},{"$f":"IF(INDEX('Rate Trajectory Calc'!$A$6:$CQ$92,MATCH('Rate Trajectory Report'!$B65,'Rate Trajectory Calc'!$A$6:$A$92,0),MATCH('Rate Trajectory Report'!W$5,'Rate Trajectory Calc'!$A$6:$CQ$6,0))=0,\" \",INDEX('Rate Trajectory Calc'!$A$6:$CQ$92,MATCH('Rate Trajectory Report'!$B65,'Rate Trajectory Calc'!$A$6:$A$92,0),MATCH('Rate Trajectory Report'!W$5,'Rate Trajectory Calc'!$A$6:$CQ$6,0))/1000)","v":" "},{"$f":"IF(INDEX('Rate Trajectory Calc'!$A$6:$CQ$92,MATCH('Rate Trajectory Report'!$B65,'Rate Trajectory Calc'!$A$6:$A$92,0),MATCH('Rate Trajectory Report'!X$5,'Rate Trajectory Calc'!$A$6:$CQ$6,0))=0,\" \",INDEX('Rate Trajectory Calc'!$A$6:$CQ$92,MATCH('Rate Trajectory Report'!$B65,'Rate Trajectory Calc'!$A$6:$A$92,0),MATCH('Rate Trajectory Report'!X$5,'Rate Trajectory Calc'!$A$6:$CQ$6,0))/1000)","v":" "},{"$f":"IF(INDEX('Rate Trajectory Calc'!$A$6:$CQ$92,MATCH('Rate Trajectory Report'!$B65,'Rate Trajectory Calc'!$A$6:$A$92,0),MATCH('Rate Trajectory Report'!Y$5,'Rate Trajectory Calc'!$A$6:$CQ$6,0))=0,\" \",INDEX('Rate Trajectory Calc'!$A$6:$CQ$92,MATCH('Rate Trajectory Report'!$B65,'Rate Trajectory Calc'!$A$6:$A$92,0),MATCH('Rate Trajectory Report'!Y$5,'Rate Trajectory Calc'!$A$6:$CQ$6,0))/1000)","v":" "},{"$f":"IF(INDEX('Rate Trajectory Calc'!$A$6:$CQ$92,MATCH('Rate Trajectory Report'!$B65,'Rate Trajectory Calc'!$A$6:$A$92,0),MATCH('Rate Trajectory Report'!Z$5,'Rate Trajectory Calc'!$A$6:$CQ$6,0))=0,\" \",INDEX('Rate Trajectory Calc'!$A$6:$CQ$92,MATCH('Rate Trajectory Report'!$B65,'Rate Trajectory Calc'!$A$6:$A$92,0),MATCH('Rate Trajectory Report'!Z$5,'Rate Trajectory Calc'!$A$6:$CQ$6,0))/1000)","v":" "},{"$f":"IF(INDEX('Rate Trajectory Calc'!$A$6:$CQ$92,MATCH('Rate Trajectory Report'!$B65,'Rate Trajectory Calc'!$A$6:$A$92,0),MATCH('Rate Trajectory Report'!AA$5,'Rate Trajectory Calc'!$A$6:$CQ$6,0))=0,\" \",INDEX('Rate Trajectory Calc'!$A$6:$CQ$92,MATCH('Rate Trajectory Report'!$B65,'Rate Trajectory Calc'!$A$6:$A$92,0),MATCH('Rate Trajectory Report'!AA$5,'Rate Trajectory Calc'!$A$6:$CQ$6,0))/1000)","v":" "}]
[null,{"$f":"'Rate Trajectory Dashboard'!B54","v":"2027 GRC - Gas Distribution - Year 2028"},{"$f":"IFERROR(VLOOKUP(B66,'Rate Trajectory Dashboard'!$B$12:$D$96,3,FALSE)/1000,'Rate Trajectory Report'!C65)","v":2837.6614239763044},{"$f":"IF(INDEX('Rate Trajectory Calc'!$A$6:$CQ$92,MATCH('Rate Trajectory Report'!$B66,'Rate Trajectory Calc'!$A$6:$A$92,0),MATCH('Rate Trajectory Report'!D$5,'Rate Trajectory Calc'!$A$6:$CQ$6,0))=0,\" \",INDEX('Rate Trajectory Calc'!$A$6:$CQ$92,MATCH('Rate Trajectory Report'!$B66,'Rate Trajectory Calc'!$A$6:$A$92,0),MATCH('Rate Trajectory Report'!D$5,'Rate Trajectory Calc'!$A$6:$CQ$6,0))/1000)","v":" "},{"$f":"IF(INDEX('Rate Trajectory Calc'!$A$6:$CQ$92,MATCH('Rate Trajectory Report'!$B66,'Rate Trajectory Calc'!$A$6:$A$92,0),MATCH('Rate Trajectory Report'!E$5,'Rate Trajectory Calc'!$A$6:$CQ$6,0))=0,\" \",INDEX('Rate Trajectory Calc'!$A$6:$CQ$92,MATCH('Rate Trajectory Report'!$B66,'Rate Trajectory Calc'!$A$6:$A$92,0),MATCH('Rate Trajectory Report'!E$5,'Rate Trajectory Calc'!$A$6:$CQ$6,0))/1000)","v":" "},{"$f":"IF(INDEX('Rate Trajectory Calc'!$A$6:$CQ$92,MATCH('Rate Trajectory Report'!$B66,'Rate Trajectory Calc'!$A$6:$A$92,0),MATCH('Rate Trajectory Report'!F$5,'Rate Trajectory Calc'!$A$6:$CQ$6,0))=0,\" \",INDEX('Rate Trajectory Calc'!$A$6:$CQ$92,MATCH('Rate Trajectory Report'!$B66,'Rate Trajectory Calc'!$A$6:$A$92,0),MATCH('Rate Trajectory Report'!F$5,'Rate Trajectory Calc'!$A$6:$CQ$6,0))/1000)","v":" "},{"$f":"IF(INDEX('Rate Trajectory Calc'!$A$6:$CQ$92,MATCH('Rate Trajectory Report'!$B66,'Rate Trajectory Calc'!$A$6:$A$92,0),MATCH('Rate Trajectory Report'!G$5,'Rate Trajectory Calc'!$A$6:$CQ$6,0))=0,\" \",INDEX('Rate Trajectory Calc'!$A$6:$CQ$92,MATCH('Rate Trajectory Report'!$B66,'Rate Trajectory Calc'!$A$6:$A$92,0),MATCH('Rate Trajectory Report'!G$5,'Rate Trajectory Calc'!$A$6:$CQ$6,0))/1000)","v":" "},{"$f":"IF(INDEX('Rate Trajectory Calc'!$A$6:$CQ$92,MATCH('Rate Trajectory Report'!$B66,'Rate Trajectory Calc'!$A$6:$A$92,0),MATCH('Rate Trajectory Report'!H$5,'Rate Trajectory Calc'!$A$6:$CQ$6,0))=0,\" \",INDEX('Rate Trajectory Calc'!$A$6:$CQ$92,MATCH('Rate Trajectory Report'!$B66,'Rate Trajectory Calc'!$A$6:$A$92,0),MATCH('Rate Trajectory Report'!H$5,'Rate Trajectory Calc'!$A$6:$CQ$6,0))/1000)","v":" "},{"$f":"IF(INDEX('Rate Trajectory Calc'!$A$6:$CQ$92,MATCH('Rate Trajectory Report'!$B66,'Rate Trajectory Calc'!$A$6:$A$92,0),MATCH('Rate Trajectory Report'!I$5,'Rate Trajectory Calc'!$A$6:$CQ$6,0))=0,\" \",INDEX('Rate Trajectory Calc'!$A$6:$CQ$92,MATCH('Rate Trajectory Report'!$B66,'Rate Trajectory Calc'!$A$6:$A$92,0),MATCH('Rate Trajectory Report'!I$5,'Rate Trajectory Calc'!$A$6:$CQ$6,0))/1000)","v":" "},{"$f":"IF(INDEX('Rate Trajectory Calc'!$A$6:$CQ$92,MATCH('Rate Trajectory Report'!$B66,'Rate Trajectory Calc'!$A$6:$A$92,0),MATCH('Rate Trajectory Report'!J$5,'Rate Trajectory Calc'!$A$6:$CQ$6,0))=0,\" \",INDEX('Rate Trajectory Calc'!$A$6:$CQ$92,MATCH('Rate Trajectory Report'!$B66,'Rate Trajectory Calc'!$A$6:$A$92,0),MATCH('Rate Trajectory Report'!J$5,'Rate Trajectory Calc'!$A$6:$CQ$6,0))/1000)","v":" "},{"$f":"IF(INDEX('Rate Trajectory Calc'!$A$6:$CQ$92,MATCH('Rate Trajectory Report'!$B66,'Rate Trajectory Calc'!$A$6:$A$92,0),MATCH('Rate Trajectory Report'!K$5,'Rate Trajectory Calc'!$A$6:$CQ$6,0))=0,\" \",INDEX('Rate Trajectory Calc'!$A$6:$CQ$92,MATCH('Rate Trajectory Report'!$B66,'Rate Trajectory Calc'!$A$6:$A$92,0),MATCH('Rate Trajectory Report'!K$5,'Rate Trajectory Calc'!$A$6:$CQ$6,0))/1000)","v":" "},{"$f":"IF(INDEX('Rate Trajectory Calc'!$A$6:$CQ$92,MATCH('Rate Trajectory Report'!$B66,'Rate Trajectory Calc'!$A$6:$A$92,0),MATCH('Rate Trajectory Report'!L$5,'Rate Trajectory Calc'!$A$6:$CQ$6,0))=0,\" \",INDEX('Rate Trajectory Calc'!$A$6:$CQ$92,MATCH('Rate Trajectory Report'!$B66,'Rate Trajectory Calc'!$A$6:$A$92,0),MATCH('Rate Trajectory Report'!L$5,'Rate Trajectory Calc'!$A$6:$CQ$6,0))/1000)","v":" "},{"$f":"IF(INDEX('Rate Trajectory Calc'!$A$6:$CQ$92,MATCH('Rate Trajectory Report'!$B66,'Rate Trajectory Calc'!$A$6:$A$92,0),MATCH('Rate Trajectory Report'!M$5,'Rate Trajectory Calc'!$A$6:$CQ$6,0))=0,\" \",INDEX('Rate Trajectory Calc'!$A$6:$CQ$92,MATCH('Rate Trajectory Report'!$B66,'Rate Trajectory Calc'!$A$6:$A$92,0),MATCH('Rate Trajectory Report'!M$5,'Rate Trajectory Calc'!$A$6:$CQ$6,0))/1000)","v":" "},{"$f":"IF(INDEX('Rate Trajectory Calc'!$A$6:$CQ$92,MATCH('Rate Trajectory Report'!$B66,'Rate Trajectory Calc'!$A$6:$A$92,0),MATCH('Rate Trajectory Report'!N$5,'Rate Trajectory Calc'!$A$6:$CQ$6,0))=0,\" \",INDEX('Rate Trajectory Calc'!$A$6:$CQ$92,MATCH('Rate Trajectory Report'!$B66,'Rate Trajectory Calc'!$A$6:$A$92,0),MATCH('Rate Trajectory Report'!N$5,'Rate Trajectory Calc'!$A$6:$CQ$6,0))/1000)","v":" "},{"$f":"IF(INDEX('Rate Trajectory Calc'!$A$6:$CQ$92,MATCH('Rate Trajectory Report'!$B66,'Rate Trajectory Calc'!$A$6:$A$92,0),MATCH('Rate Trajectory Report'!O$5,'Rate Trajectory Calc'!$A$6:$CQ$6,0))=0,\" \",INDEX('Rate Trajectory Calc'!$A$6:$CQ$92,MATCH('Rate Trajectory Report'!$B66,'Rate Trajectory Calc'!$A$6:$A$92,0),MATCH('Rate Trajectory Report'!O$5,'Rate Trajectory Calc'!$A$6:$CQ$6,0))/1000)","v":" "},{"$f":"IF(INDEX('Rate Trajectory Calc'!$A$6:$CQ$92,MATCH('Rate Trajectory Report'!$B66,'Rate Trajectory Calc'!$A$6:$A$92,0),MATCH('Rate Trajectory Report'!P$5,'Rate Trajectory Calc'!$A$6:$CQ$6,0))=0,\" \",INDEX('Rate Trajectory Calc'!$A$6:$CQ$92,MATCH('Rate Trajectory Report'!$B66,'Rate Trajectory Calc'!$A$6:$A$92,0),MATCH('Rate Trajectory Report'!P$5,'Rate Trajectory Calc'!$A$6:$CQ$6,0))/1000)","v":" "},{"$f":"IF(INDEX('Rate Trajectory Calc'!$A$6:$CQ$92,MATCH('Rate Trajectory Report'!$B66,'Rate Trajectory Calc'!$A$6:$A$92,0),MATCH('Rate Trajectory Report'!Q$5,'Rate Trajectory Calc'!$A$6:$CQ$6,0))=0,\" \",INDEX('Rate Trajectory Calc'!$A$6:$CQ$92,MATCH('Rate Trajectory Report'!$B66,'Rate Trajectory Calc'!$A$6:$A$92,0),MATCH('Rate Trajectory Report'!Q$5,'Rate Trajectory Calc'!$A$6:$CQ$6,0))/1000)","v":" "},{"$f":"IF(INDEX('Rate Trajectory Calc'!$A$6:$CQ$92,MATCH('Rate Trajectory Report'!$B66,'Rate Trajectory Calc'!$A$6:$A$92,0),MATCH('Rate Trajectory Report'!R$5,'Rate Trajectory Calc'!$A$6:$CQ$6,0))=0,\" \",INDEX('Rate Trajectory Calc'!$A$6:$CQ$92,MATCH('Rate Trajectory Report'!$B66,'Rate Trajectory Calc'!$A$6:$A$92,0),MATCH('Rate Trajectory Report'!R$5,'Rate Trajectory Calc'!$A$6:$CQ$6,0))/1000)","v":" "},{"$f":"IF(INDEX('Rate Trajectory Calc'!$A$6:$CQ$92,MATCH('Rate Trajectory Report'!$B66,'Rate Trajectory Calc'!$A$6:$A$92,0),MATCH('Rate Trajectory Report'!S$5,'Rate Trajectory Calc'!$A$6:$CQ$6,0))=0,\" \",INDEX('Rate Trajectory Calc'!$A$6:$CQ$92,MATCH('Rate Trajectory Report'!$B66,'Rate Trajectory Calc'!$A$6:$A$92,0),MATCH('Rate Trajectory Report'!S$5,'Rate Trajectory Calc'!$A$6:$CQ$6,0))/1000)","v":" "},{"$f":"IF(INDEX('Rate Trajectory Calc'!$A$6:$CQ$92,MATCH('Rate Trajectory Report'!$B66,'Rate Trajectory Calc'!$A$6:$A$92,0),MATCH('Rate Trajectory Report'!T$5,'Rate Trajectory Calc'!$A$6:$CQ$6,0))=0,\" \",INDEX('Rate Trajectory Calc'!$A$6:$CQ$92,MATCH('Rate Trajectory Report'!$B66,'Rate Trajectory Calc'!$A$6:$A$92,0),MATCH('Rate Trajectory Report'!T$5,'Rate Trajectory Calc'!$A$6:$CQ$6,0))/1000)","v":" "},{"$f":"IF(INDEX('Rate Trajectory Calc'!$A$6:$CQ$92,MATCH('Rate Trajectory Report'!$B66,'Rate Trajectory Calc'!$A$6:$A$92,0),MATCH('Rate Trajectory Report'!U$5,'Rate Trajectory Calc'!$A$6:$CQ$6,0))=0,\" \",INDEX('Rate Trajectory Calc'!$A$6:$CQ$92,MATCH('Rate Trajectory Report'!$B66,'Rate Trajectory Calc'!$A$6:$A$92,0),MATCH('Rate Trajectory Report'!U$5,'Rate Trajectory Calc'!$A$6:$CQ$6,0))/1000)","v":" "},{"$f":"IF(INDEX('Rate Trajectory Calc'!$A$6:$CQ$92,MATCH('Rate Trajectory Report'!$B66,'Rate Trajectory Calc'!$A$6:$A$92,0),MATCH('Rate Trajectory Report'!V$5,'Rate Trajectory Calc'!$A$6:$CQ$6,0))=0,\" \",INDEX('Rate Trajectory Calc'!$A$6:$CQ$92,MATCH('Rate Trajectory Report'!$B66,'Rate Trajectory Calc'!$A$6:$A$92,0),MATCH('Rate Trajectory Report'!V$5,'Rate Trajectory Calc'!$A$6:$CQ$6,0))/1000)","v":" "},{"$f":"IF(INDEX('Rate Trajectory Calc'!$A$6:$CQ$92,MATCH('Rate Trajectory Report'!$B66,'Rate Trajectory Calc'!$A$6:$A$92,0),MATCH('Rate Trajectory Report'!W$5,'Rate Trajectory Calc'!$A$6:$CQ$6,0))=0,\" \",INDEX('Rate Trajectory Calc'!$A$6:$CQ$92,MATCH('Rate Trajectory Report'!$B66,'Rate Trajectory Calc'!$A$6:$A$92,0),MATCH('Rate Trajectory Report'!W$5,'Rate Trajectory Calc'!$A$6:$CQ$6,0))/1000)","v":" "},{"$f":"IF(INDEX('Rate Trajectory Calc'!$A$6:$CQ$92,MATCH('Rate Trajectory Report'!$B66,'Rate Trajectory Calc'!$A$6:$A$92,0),MATCH('Rate Trajectory Report'!X$5,'Rate Trajectory Calc'!$A$6:$CQ$6,0))=0,\" \",INDEX('Rate Trajectory Calc'!$A$6:$CQ$92,MATCH('Rate Trajectory Report'!$B66,'Rate Trajectory Calc'!$A$6:$A$92,0),MATCH('Rate Trajectory Report'!X$5,'Rate Trajectory Calc'!$A$6:$CQ$6,0))/1000)","v":" "},{"$f":"IF(INDEX('Rate Trajectory Calc'!$A$6:$CQ$92,MATCH('Rate Trajectory Report'!$B66,'Rate Trajectory Calc'!$A$6:$A$92,0),MATCH('Rate Trajectory Report'!Y$5,'Rate Trajectory Calc'!$A$6:$CQ$6,0))=0,\" \",INDEX('Rate Trajectory Calc'!$A$6:$CQ$92,MATCH('Rate Trajectory Report'!$B66,'Rate Trajectory Calc'!$A$6:$A$92,0),MATCH('Rate Trajectory Report'!Y$5,'Rate Trajectory Calc'!$A$6:$CQ$6,0))/1000)","v":" "},{"$f":"IF(INDEX('Rate Trajectory Calc'!$A$6:$CQ$92,MATCH('Rate Trajectory Report'!$B66,'Rate Trajectory Calc'!$A$6:$A$92,0),MATCH('Rate Trajectory Report'!Z$5,'Rate Trajectory Calc'!$A$6:$CQ$6,0))=0,\" \",INDEX('Rate Trajectory Calc'!$A$6:$CQ$92,MATCH('Rate Trajectory Report'!$B66,'Rate Trajectory Calc'!$A$6:$A$92,0),MATCH('Rate Trajectory Report'!Z$5,'Rate Trajectory Calc'!$A$6:$CQ$6,0))/1000)","v":" "},{"$f":"IF(INDEX('Rate Trajectory Calc'!$A$6:$CQ$92,MATCH('Rate Trajectory Report'!$B66,'Rate Trajectory Calc'!$A$6:$A$92,0),MATCH('Rate Trajectory Report'!AA$5,'Rate Trajectory Calc'!$A$6:$CQ$6,0))=0,\" \",INDEX('Rate Trajectory Calc'!$A$6:$CQ$92,MATCH('Rate Trajectory Report'!$B66,'Rate Trajectory Calc'!$A$6:$A$92,0),MATCH('Rate Trajectory Report'!AA$5,'Rate Trajectory Calc'!$A$6:$CQ$6,0))/1000)","v":" "}]
[null,{"$f":"'Rate Trajectory Dashboard'!B55","v":"2027 GRC - Gas Distribution - Year 2029"},{"$f":"IFERROR(VLOOKUP(B67,'Rate Trajectory Dashboard'!$B$12:$D$96,3,FALSE)/1000,'Rate Trajectory Report'!C66)","v":2837.6614239763044},{"$f":"IF(INDEX('Rate Trajectory Calc'!$A$6:$CQ$92,MATCH('Rate Trajectory Report'!$B67,'Rate Trajectory Calc'!$A$6:$A$92,0),MATCH('Rate Trajectory Report'!D$5,'Rate Trajectory Calc'!$A$6:$CQ$6,0))=0,\" \",INDEX('Rate Trajectory Calc'!$A$6:$CQ$92,MATCH('Rate Trajectory Report'!$B67,'Rate Trajectory Calc'!$A$6:$A$92,0),MATCH('Rate Trajectory Report'!D$5,'Rate Trajectory Calc'!$A$6:$CQ$6,0))/1000)","v":" "},{"$f":"IF(INDEX('Rate Trajectory Calc'!$A$6:$CQ$92,MATCH('Rate Trajectory Report'!$B67,'Rate Trajectory Calc'!$A$6:$A$92,0),MATCH('Rate Trajectory Report'!E$5,'Rate Trajectory Calc'!$A$6:$CQ$6,0))=0,\" \",INDEX('Rate Trajectory Calc'!$A$6:$CQ$92,MATCH('Rate Trajectory Report'!$B67,'Rate Trajectory Calc'!$A$6:$A$92,0),MATCH('Rate Trajectory Report'!E$5,'Rate Trajectory Calc'!$A$6:$CQ$6,0))/1000)","v":" "},{"$f":"IF(INDEX('Rate Trajectory Calc'!$A$6:$CQ$92,MATCH('Rate Trajectory Report'!$B67,'Rate Trajectory Calc'!$A$6:$A$92,0),MATCH('Rate Trajectory Report'!F$5,'Rate Trajectory Calc'!$A$6:$CQ$6,0))=0,\" \",INDEX('Rate Trajectory Calc'!$A$6:$CQ$92,MATCH('Rate Trajectory Report'!$B67,'Rate Trajectory Calc'!$A$6:$A$92,0),MATCH('Rate Trajectory Report'!F$5,'Rate Trajectory Calc'!$A$6:$CQ$6,0))/1000)","v":" "},{"$f":"IF(INDEX('Rate Trajectory Calc'!$A$6:$CQ$92,MATCH('Rate Trajectory Report'!$B67,'Rate Trajectory Calc'!$A$6:$A$92,0),MATCH('Rate Trajectory Report'!G$5,'Rate Trajectory Calc'!$A$6:$CQ$6,0))=0,\" \",INDEX('Rate Trajectory Calc'!$A$6:$CQ$92,MATCH('Rate Trajectory Report'!$B67,'Rate Trajectory Calc'!$A$6:$A$92,0),MATCH('Rate Trajectory Report'!G$5,'Rate Trajectory Calc'!$A$6:$CQ$6,0))/1000)","v":" "},{"$f":"IF(INDEX('Rate Trajectory Calc'!$A$6:$CQ$92,MATCH('Rate Trajectory Report'!$B67,'Rate Trajectory Calc'!$A$6:$A$92,0),MATCH('Rate Trajectory Report'!H$5,'Rate Trajectory Calc'!$A$6:$CQ$6,0))=0,\" \",INDEX('Rate Trajectory Calc'!$A$6:$CQ$92,MATCH('Rate Trajectory Report'!$B67,'Rate Trajectory Calc'!$A$6:$A$92,0),MATCH('Rate Trajectory Report'!H$5,'Rate Trajectory Calc'!$A$6:$CQ$6,0))/1000)","v":" "},{"$f":"IF(INDEX('Rate Trajectory Calc'!$A$6:$CQ$92,MATCH('Rate Trajectory Report'!$B67,'Rate Trajectory Calc'!$A$6:$A$92,0),MATCH('Rate Trajectory Report'!I$5,'Rate Trajectory Calc'!$A$6:$CQ$6,0))=0,\" \",INDEX('Rate Trajectory Calc'!$A$6:$CQ$92,MATCH('Rate Trajectory Report'!$B67,'Rate Trajectory Calc'!$A$6:$A$92,0),MATCH('Rate Trajectory Report'!I$5,'Rate Trajectory Calc'!$A$6:$CQ$6,0))/1000)","v":" "},{"$f":"IF(INDEX('Rate Trajectory Calc'!$A$6:$CQ$92,MATCH('Rate Trajectory Report'!$B67,'Rate Trajectory Calc'!$A$6:$A$92,0),MATCH('Rate Trajectory Report'!J$5,'Rate Trajectory Calc'!$A$6:$CQ$6,0))=0,\" \",INDEX('Rate Trajectory Calc'!$A$6:$CQ$92,MATCH('Rate Trajectory Report'!$B67,'Rate Trajectory Calc'!$A$6:$A$92,0),MATCH('Rate Trajectory Report'!J$5,'Rate Trajectory Calc'!$A$6:$CQ$6,0))/1000)","v":" "},{"$f":"IF(INDEX('Rate Trajectory Calc'!$A$6:$CQ$92,MATCH('Rate Trajectory Report'!$B67,'Rate Trajectory Calc'!$A$6:$A$92,0),MATCH('Rate Trajectory Report'!K$5,'Rate Trajectory Calc'!$A$6:$CQ$6,0))=0,\" \",INDEX('Rate Trajectory Calc'!$A$6:$CQ$92,MATCH('Rate Trajectory Report'!$B67,'Rate Trajectory Calc'!$A$6:$A$92,0),MATCH('Rate Trajectory Report'!K$5,'Rate Trajectory Calc'!$A$6:$CQ$6,0))/1000)","v":" "},{"$f":"IF(INDEX('Rate Trajectory Calc'!$A$6:$CQ$92,MATCH('Rate Trajectory Report'!$B67,'Rate Trajectory Calc'!$A$6:$A$92,0),MATCH('Rate Trajectory Report'!L$5,'Rate Trajectory Calc'!$A$6:$CQ$6,0))=0,\" \",INDEX('Rate Trajectory Calc'!$A$6:$CQ$92,MATCH('Rate Trajectory Report'!$B67,'Rate Trajectory Calc'!$A$6:$A$92,0),MATCH('Rate Trajectory Report'!L$5,'Rate Trajectory Calc'!$A$6:$CQ$6,0))/1000)","v":" "},{"$f":"IF(INDEX('Rate Trajectory Calc'!$A$6:$CQ$92,MATCH('Rate Trajectory Report'!$B67,'Rate Trajectory Calc'!$A$6:$A$92,0),MATCH('Rate Trajectory Report'!M$5,'Rate Trajectory Calc'!$A$6:$CQ$6,0))=0,\" \",INDEX('Rate Trajectory Calc'!$A$6:$CQ$92,MATCH('Rate Trajectory Report'!$B67,'Rate Trajectory Calc'!$A$6:$A$92,0),MATCH('Rate Trajectory Report'!M$5,'Rate Trajectory Calc'!$A$6:$CQ$6,0))/1000)","v":" "},{"$f":"IF(INDEX('Rate Trajectory Calc'!$A$6:$CQ$92,MATCH('Rate Trajectory Report'!$B67,'Rate Trajectory Calc'!$A$6:$A$92,0),MATCH('Rate Trajectory Report'!N$5,'Rate Trajectory Calc'!$A$6:$CQ$6,0))=0,\" \",INDEX('Rate Trajectory Calc'!$A$6:$CQ$92,MATCH('Rate Trajectory Report'!$B67,'Rate Trajectory Calc'!$A$6:$A$92,0),MATCH('Rate Trajectory Report'!N$5,'Rate Trajectory Calc'!$A$6:$CQ$6,0))/1000)","v":" "},{"$f":"IF(INDEX('Rate Trajectory Calc'!$A$6:$CQ$92,MATCH('Rate Trajectory Report'!$B67,'Rate Trajectory Calc'!$A$6:$A$92,0),MATCH('Rate Trajectory Report'!O$5,'Rate Trajectory Calc'!$A$6:$CQ$6,0))=0,\" \",INDEX('Rate Trajectory Calc'!$A$6:$CQ$92,MATCH('Rate Trajectory Report'!$B67,'Rate Trajectory Calc'!$A$6:$A$92,0),MATCH('Rate Trajectory Report'!O$5,'Rate Trajectory Calc'!$A$6:$CQ$6,0))/1000)","v":" "},{"$f":"IF(INDEX('Rate Trajectory Calc'!$A$6:$CQ$92,MATCH('Rate Trajectory Report'!$B67,'Rate Trajectory Calc'!$A$6:$A$92,0),MATCH('Rate Trajectory Report'!P$5,'Rate Trajectory Calc'!$A$6:$CQ$6,0))=0,\" \",INDEX('Rate Trajectory Calc'!$A$6:$CQ$92,MATCH('Rate Trajectory Report'!$B67,'Rate Trajectory Calc'!$A$6:$A$92,0),MATCH('Rate Trajectory Report'!P$5,'Rate Trajectory Calc'!$A$6:$CQ$6,0))/1000)","v":" "},{"$f":"IF(INDEX('Rate Trajectory Calc'!$A$6:$CQ$92,MATCH('Rate Trajectory Report'!$B67,'Rate Trajectory Calc'!$A$6:$A$92,0),MATCH('Rate Trajectory Report'!Q$5,'Rate Trajectory Calc'!$A$6:$CQ$6,0))=0,\" \",INDEX('Rate Trajectory Calc'!$A$6:$CQ$92,MATCH('Rate Trajectory Report'!$B67,'Rate Trajectory Calc'!$A$6:$A$92,0),MATCH('Rate Trajectory Report'!Q$5,'Rate Trajectory Calc'!$A$6:$CQ$6,0))/1000)","v":" "},{"$f":"IF(INDEX('Rate Trajectory Calc'!$A$6:$CQ$92,MATCH('Rate Trajectory Report'!$B67,'Rate Trajectory Calc'!$A$6:$A$92,0),MATCH('Rate Trajectory Report'!R$5,'Rate Trajectory Calc'!$A$6:$CQ$6,0))=0,\" \",INDEX('Rate Trajectory Calc'!$A$6:$CQ$92,MATCH('Rate Trajectory Report'!$B67,'Rate Trajectory Calc'!$A$6:$A$92,0),MATCH('Rate Trajectory Report'!R$5,'Rate Trajectory Calc'!$A$6:$CQ$6,0))/1000)","v":" "},{"$f":"IF(INDEX('Rate Trajectory Calc'!$A$6:$CQ$92,MATCH('Rate Trajectory Report'!$B67,'Rate Trajectory Calc'!$A$6:$A$92,0),MATCH('Rate Trajectory Report'!S$5,'Rate Trajectory Calc'!$A$6:$CQ$6,0))=0,\" \",INDEX('Rate Trajectory Calc'!$A$6:$CQ$92,MATCH('Rate Trajectory Report'!$B67,'Rate Trajectory Calc'!$A$6:$A$92,0),MATCH('Rate Trajectory Report'!S$5,'Rate Trajectory Calc'!$A$6:$CQ$6,0))/1000)","v":" "},{"$f":"IF(INDEX('Rate Trajectory Calc'!$A$6:$CQ$92,MATCH('Rate Trajectory Report'!$B67,'Rate Trajectory Calc'!$A$6:$A$92,0),MATCH('Rate Trajectory Report'!T$5,'Rate Trajectory Calc'!$A$6:$CQ$6,0))=0,\" \",INDEX('Rate Trajectory Calc'!$A$6:$CQ$92,MATCH('Rate Trajectory Report'!$B67,'Rate Trajectory Calc'!$A$6:$A$92,0),MATCH('Rate Trajectory Report'!T$5,'Rate Trajectory Calc'!$A$6:$CQ$6,0))/1000)","v":" "},{"$f":"IF(INDEX('Rate Trajectory Calc'!$A$6:$CQ$92,MATCH('Rate Trajectory Report'!$B67,'Rate Trajectory Calc'!$A$6:$A$92,0),MATCH('Rate Trajectory Report'!U$5,'Rate Trajectory Calc'!$A$6:$CQ$6,0))=0,\" \",INDEX('Rate Trajectory Calc'!$A$6:$CQ$92,MATCH('Rate Trajectory Report'!$B67,'Rate Trajectory Calc'!$A$6:$A$92,0),MATCH('Rate Trajectory Report'!U$5,'Rate Trajectory Calc'!$A$6:$CQ$6,0))/1000)","v":" "},{"$f":"IF(INDEX('Rate Trajectory Calc'!$A$6:$CQ$92,MATCH('Rate Trajectory Report'!$B67,'Rate Trajectory Calc'!$A$6:$A$92,0),MATCH('Rate Trajectory Report'!V$5,'Rate Trajectory Calc'!$A$6:$CQ$6,0))=0,\" \",INDEX('Rate Trajectory Calc'!$A$6:$CQ$92,MATCH('Rate Trajectory Report'!$B67,'Rate Trajectory Calc'!$A$6:$A$92,0),MATCH('Rate Trajectory Report'!V$5,'Rate Trajectory Calc'!$A$6:$CQ$6,0))/1000)","v":" "},{"$f":"IF(INDEX('Rate Trajectory Calc'!$A$6:$CQ$92,MATCH('Rate Trajectory Report'!$B67,'Rate Trajectory Calc'!$A$6:$A$92,0),MATCH('Rate Trajectory Report'!W$5,'Rate Trajectory Calc'!$A$6:$CQ$6,0))=0,\" \",INDEX('Rate Trajectory Calc'!$A$6:$CQ$92,MATCH('Rate Trajectory Report'!$B67,'Rate Trajectory Calc'!$A$6:$A$92,0),MATCH('Rate Trajectory Report'!W$5,'Rate Trajectory Calc'!$A$6:$CQ$6,0))/1000)","v":" "},{"$f":"IF(INDEX('Rate Trajectory Calc'!$A$6:$CQ$92,MATCH('Rate Trajectory Report'!$B67,'Rate Trajectory Calc'!$A$6:$A$92,0),MATCH('Rate Trajectory Report'!X$5,'Rate Trajectory Calc'!$A$6:$CQ$6,0))=0,\" \",INDEX('Rate Trajectory Calc'!$A$6:$CQ$92,MATCH('Rate Trajectory Report'!$B67,'Rate Trajectory Calc'!$A$6:$A$92,0),MATCH('Rate Trajectory Report'!X$5,'Rate Trajectory Calc'!$A$6:$CQ$6,0))/1000)","v":" "},{"$f":"IF(INDEX('Rate Trajectory Calc'!$A$6:$CQ$92,MATCH('Rate Trajectory Report'!$B67,'Rate Trajectory Calc'!$A$6:$A$92,0),MATCH('Rate Trajectory Report'!Y$5,'Rate Trajectory Calc'!$A$6:$CQ$6,0))=0,\" \",INDEX('Rate Trajectory Calc'!$A$6:$CQ$92,MATCH('Rate Trajectory Report'!$B67,'Rate Trajectory Calc'!$A$6:$A$92,0),MATCH('Rate Trajectory Report'!Y$5,'Rate Trajectory Calc'!$A$6:$CQ$6,0))/1000)","v":" "},{"$f":"IF(INDEX('Rate Trajectory Calc'!$A$6:$CQ$92,MATCH('Rate Trajectory Report'!$B67,'Rate Trajectory Calc'!$A$6:$A$92,0),MATCH('Rate Trajectory Report'!Z$5,'Rate Trajectory Calc'!$A$6:$CQ$6,0))=0,\" \",INDEX('Rate Trajectory Calc'!$A$6:$CQ$92,MATCH('Rate Trajectory Report'!$B67,'Rate Trajectory Calc'!$A$6:$A$92,0),MATCH('Rate Trajectory Report'!Z$5,'Rate Trajectory Calc'!$A$6:$CQ$6,0))/1000)","v":" "},{"$f":"IF(INDEX('Rate Trajectory Calc'!$A$6:$CQ$92,MATCH('Rate Trajectory Report'!$B67,'Rate Trajectory Calc'!$A$6:$A$92,0),MATCH('Rate Trajectory Report'!AA$5,'Rate Trajectory Calc'!$A$6:$CQ$6,0))=0,\" \",INDEX('Rate Trajectory Calc'!$A$6:$CQ$92,MATCH('Rate Trajectory Report'!$B67,'Rate Trajectory Calc'!$A$6:$A$92,0),MATCH('Rate Trajectory Report'!AA$5,'Rate Trajectory Calc'!$A$6:$CQ$6,0))/1000)","v":" "}]
["13a","2027 GRC - Gas Distribution",{"$f":"IFERROR(VLOOKUP(B68,'Rate Trajectory Dashboard'!$B$12:$D$96,3,FALSE)/1000,'Rate Trajectory Report'!C67)","v":2837.6614239763044},{"$f":"IF(SUM(D65:D67)=0,\" \",SUBTOTAL(9,D65:D67))","v":" "},{"$f":"IF(SUM(E65:E67)=0,\" \",SUBTOTAL(9,E65:E67))","v":" "}," "," "," "," "," "," "," "," "," "," "," "," "," "," ",223.58278734550299," "," "," "," "," "," "," "]
[null,{"$f":"'Rate Trajectory Dashboard'!B56","v":"2027 GRC - Core Local Transmission - Year 2027"},{"$f":"IFERROR(VLOOKUP(B69,'Rate Trajectory Dashboard'!$B$12:$D$96,3,FALSE)/1000,'Rate Trajectory Report'!C68)","v":937.04080356070563},{"$f":"IF(INDEX('Rate Trajectory Calc'!$A$6:$CQ$92,MATCH('Rate Trajectory Report'!$B69,'Rate Trajectory Calc'!$A$6:$A$92,0),MATCH('Rate Trajectory Report'!D$5,'Rate Trajectory Calc'!$A$6:$CQ$6,0))=0,\" \",INDEX('Rate Trajectory Calc'!$A$6:$CQ$92,MATCH('Rate Trajectory Report'!$B69,'Rate Trajectory Calc'!$A$6:$A$92,0),MATCH('Rate Trajectory Report'!D$5,'Rate Trajectory Calc'!$A$6:$CQ$6,0))/1000)","v":" "},{"$f":"IF(INDEX('Rate Trajectory Calc'!$A$6:$CQ$92,MATCH('Rate Trajectory Report'!$B69,'Rate Trajectory Calc'!$A$6:$A$92,0),MATCH('Rate Trajectory Report'!E$5,'Rate Trajectory Calc'!$A$6:$CQ$6,0))=0,\" \",INDEX('Rate Trajectory Calc'!$A$6:$CQ$92,MATCH('Rate Trajectory Report'!$B69,'Rate Trajectory Calc'!$A$6:$A$92,0),MATCH('Rate Trajectory Report'!E$5,'Rate Trajectory Calc'!$A$6:$CQ$6,0))/1000)","v":" "},{"$f":"IF(INDEX('Rate Trajectory Calc'!$A$6:$CQ$92,MATCH('Rate Trajectory Report'!$B69,'Rate Trajectory Calc'!$A$6:$A$92,0),MATCH('Rate Trajectory Report'!F$5,'Rate Trajectory Calc'!$A$6:$CQ$6,0))=0,\" \",INDEX('Rate Trajectory Calc'!$A$6:$CQ$92,MATCH('Rate Trajectory Report'!$B69,'Rate Trajectory Calc'!$A$6:$A$92,0),MATCH('Rate Trajectory Report'!F$5,'Rate Trajectory Calc'!$A$6:$CQ$6,0))/1000)","v":" "},{"$f":"IF(INDEX('Rate Trajectory Calc'!$A$6:$CQ$92,MATCH('Rate Trajectory Report'!$B69,'Rate Trajectory Calc'!$A$6:$A$92,0),MATCH('Rate Trajectory Report'!G$5,'Rate Trajectory Calc'!$A$6:$CQ$6,0))=0,\" \",INDEX('Rate Trajectory Calc'!$A$6:$CQ$92,MATCH('Rate Trajectory Report'!$B69,'Rate Trajectory Calc'!$A$6:$A$92,0),MATCH('Rate Trajectory Report'!G$5,'Rate Trajectory Calc'!$A$6:$CQ$6,0))/1000)","v":" "},{"$f":"IF(INDEX('Rate Trajectory Calc'!$A$6:$CQ$92,MATCH('Rate Trajectory Report'!$B69,'Rate Trajectory Calc'!$A$6:$A$92,0),MATCH('Rate Trajectory Report'!H$5,'Rate Trajectory Calc'!$A$6:$CQ$6,0))=0,\" \",INDEX('Rate Trajectory Calc'!$A$6:$CQ$92,MATCH('Rate Trajectory Report'!$B69,'Rate Trajectory Calc'!$A$6:$A$92,0),MATCH('Rate Trajectory Report'!H$5,'Rate Trajectory Calc'!$A$6:$CQ$6,0))/1000)","v":" "},{"$f":"IF(INDEX('Rate Trajectory Calc'!$A$6:$CQ$92,MATCH('Rate Trajectory Report'!$B69,'Rate Trajectory Calc'!$A$6:$A$92,0),MATCH('Rate Trajectory Report'!I$5,'Rate Trajectory Calc'!$A$6:$CQ$6,0))=0,\" \",INDEX('Rate Trajectory Calc'!$A$6:$CQ$92,MATCH('Rate Trajectory Report'!$B69,'Rate Trajectory Calc'!$A$6:$A$92,0),MATCH('Rate Trajectory Report'!I$5,'Rate Trajectory Calc'!$A$6:$CQ$6,0))/1000)","v":" "},{"$f":"IF(INDEX('Rate Trajectory Calc'!$A$6:$CQ$92,MATCH('Rate Trajectory Report'!$B69,'Rate Trajectory Calc'!$A$6:$A$92,0),MATCH('Rate Trajectory Report'!J$5,'Rate Trajectory Calc'!$A$6:$CQ$6,0))=0,\" \",INDEX('Rate Trajectory Calc'!$A$6:$CQ$92,MATCH('Rate Trajectory Report'!$B69,'Rate Trajectory Calc'!$A$6:$A$92,0),MATCH('Rate Trajectory Report'!J$5,'Rate Trajectory Calc'!$A$6:$CQ$6,0))/1000)","v":" "},{"$f":"IF(INDEX('Rate Trajectory Calc'!$A$6:$CQ$92,MATCH('Rate Trajectory Report'!$B69,'Rate Trajectory Calc'!$A$6:$A$92,0),MATCH('Rate Trajectory Report'!K$5,'Rate Trajectory Calc'!$A$6:$CQ$6,0))=0,\" \",INDEX('Rate Trajectory Calc'!$A$6:$CQ$92,MATCH('Rate Trajectory Report'!$B69,'Rate Trajectory Calc'!$A$6:$A$92,0),MATCH('Rate Trajectory Report'!K$5,'Rate Trajectory Calc'!$A$6:$CQ$6,0))/1000)","v":" "},{"$f":"IF(INDEX('Rate Trajectory Calc'!$A$6:$CQ$92,MATCH('Rate Trajectory Report'!$B69,'Rate Trajectory Calc'!$A$6:$A$92,0),MATCH('Rate Trajectory Report'!L$5,'Rate Trajectory Calc'!$A$6:$CQ$6,0))=0,\" \",INDEX('Rate Trajectory Calc'!$A$6:$CQ$92,MATCH('Rate Trajectory Report'!$B69,'Rate Trajectory Calc'!$A$6:$A$92,0),MATCH('Rate Trajectory Report'!L$5,'Rate Trajectory Calc'!$A$6:$CQ$6,0))/1000)","v":" "},{"$f":"IF(INDEX('Rate Trajectory Calc'!$A$6:$CQ$92,MATCH('Rate Trajectory Report'!$B69,'Rate Trajectory Calc'!$A$6:$A$92,0),MATCH('Rate Trajectory Report'!M$5,'Rate Trajectory Calc'!$A$6:$CQ$6,0))=0,\" \",INDEX('Rate Trajectory Calc'!$A$6:$CQ$92,MATCH('Rate Trajectory Report'!$B69,'Rate Trajectory Calc'!$A$6:$A$92,0),MATCH('Rate Trajectory Report'!M$5,'Rate Trajectory Calc'!$A$6:$CQ$6,0))/1000)","v":" "},{"$f":"IF(INDEX('Rate Trajectory Calc'!$A$6:$CQ$92,MATCH('Rate Trajectory Report'!$B69,'Rate Trajectory Calc'!$A$6:$A$92,0),MATCH('Rate Trajectory Report'!N$5,'Rate Trajectory Calc'!$A$6:$CQ$6,0))=0,\" \",INDEX('Rate Trajectory Calc'!$A$6:$CQ$92,MATCH('Rate Trajectory Report'!$B69,'Rate Trajectory Calc'!$A$6:$A$92,0),MATCH('Rate Trajectory Report'!N$5,'Rate Trajectory Calc'!$A$6:$CQ$6,0))/1000)","v":" "},{"$f":"IF(INDEX('Rate Trajectory Calc'!$A$6:$CQ$92,MATCH('Rate Trajectory Report'!$B69,'Rate Trajectory Calc'!$A$6:$A$92,0),MATCH('Rate Trajectory Report'!O$5,'Rate Trajectory Calc'!$A$6:$CQ$6,0))=0,\" \",INDEX('Rate Trajectory Calc'!$A$6:$CQ$92,MATCH('Rate Trajectory Report'!$B69,'Rate Trajectory Calc'!$A$6:$A$92,0),MATCH('Rate Trajectory Report'!O$5,'Rate Trajectory Calc'!$A$6:$CQ$6,0))/1000)","v":" "},{"$f":"IF(INDEX('Rate Trajectory Calc'!$A$6:$CQ$92,MATCH('Rate Trajectory Report'!$B69,'Rate Trajectory Calc'!$A$6:$A$92,0),MATCH('Rate Trajectory Report'!P$5,'Rate Trajectory Calc'!$A$6:$CQ$6,0))=0,\" \",INDEX('Rate Trajectory Calc'!$A$6:$CQ$92,MATCH('Rate Trajectory Report'!$B69,'Rate Trajectory Calc'!$A$6:$A$92,0),MATCH('Rate Trajectory Report'!P$5,'Rate Trajectory Calc'!$A$6:$CQ$6,0))/1000)","v":" "},{"$f":"IF(INDEX('Rate Trajectory Calc'!$A$6:$CQ$92,MATCH('Rate Trajectory Report'!$B69,'Rate Trajectory Calc'!$A$6:$A$92,0),MATCH('Rate Trajectory Report'!Q$5,'Rate Trajectory Calc'!$A$6:$CQ$6,0))=0,\" \",INDEX('Rate Trajectory Calc'!$A$6:$CQ$92,MATCH('Rate Trajectory Report'!$B69,'Rate Trajectory Calc'!$A$6:$A$92,0),MATCH('Rate Trajectory Report'!Q$5,'Rate Trajectory Calc'!$A$6:$CQ$6,0))/1000)","v":" "},{"$f":"IF(INDEX('Rate Trajectory Calc'!$A$6:$CQ$92,MATCH('Rate Trajectory Report'!$B69,'Rate Trajectory Calc'!$A$6:$A$92,0),MATCH('Rate Trajectory Report'!R$5,'Rate Trajectory Calc'!$A$6:$CQ$6,0))=0,\" \",INDEX('Rate Trajectory Calc'!$A$6:$CQ$92,MATCH('Rate Trajectory Report'!$B69,'Rate Trajectory Calc'!$A$6:$A$92,0),MATCH('Rate Trajectory Report'!R$5,'Rate Trajectory Calc'!$A$6:$CQ$6,0))/1000)","v":" "},{"$f":"IF(INDEX('Rate Trajectory Calc'!$A$6:$CQ$92,MATCH('Rate Trajectory Report'!$B69,'Rate Trajectory Calc'!$A$6:$A$92,0),MATCH('Rate Trajectory Report'!S$5,'Rate Trajectory Calc'!$A$6:$CQ$6,0))=0,\" \",INDEX('Rate Trajectory Calc'!$A$6:$CQ$92,MATCH('Rate Trajectory Report'!$B69,'Rate Trajectory Calc'!$A$6:$A$92,0),MATCH('Rate Trajectory Report'!S$5,'Rate Trajectory Calc'!$A$6:$CQ$6,0))/1000)","v":" "},{"$f":"IF(INDEX('Rate Trajectory Calc'!$A$6:$CQ$92,MATCH('Rate Trajectory Report'!$B69,'Rate Trajectory Calc'!$A$6:$A$92,0),MATCH('Rate Trajectory Report'!T$5,'Rate Trajectory Calc'!$A$6:$CQ$6,0))=0,\" \",INDEX('Rate Trajectory Calc'!$A$6:$CQ$92,MATCH('Rate Trajectory Report'!$B69,'Rate Trajectory Calc'!$A$6:$A$92,0),MATCH('Rate Trajectory Report'!T$5,'Rate Trajectory Calc'!$A$6:$CQ$6,0))/1000)","v":165.3113794186404},{"$f":"IF(INDEX('Rate Trajectory Calc'!$A$6:$CQ$92,MATCH('Rate Trajectory Report'!$B69,'Rate Trajectory Calc'!$A$6:$A$92,0),MATCH('Rate Trajectory Report'!U$5,'Rate Trajectory Calc'!$A$6:$CQ$6,0))=0,\" \",INDEX('Rate Trajectory Calc'!$A$6:$CQ$92,MATCH('Rate Trajectory Report'!$B69,'Rate Trajectory Calc'!$A$6:$A$92,0),MATCH('Rate Trajectory Report'!U$5,'Rate Trajectory Calc'!$A$6:$CQ$6,0))/1000)","v":" "},{"$f":"IF(INDEX('Rate Trajectory Calc'!$A$6:$CQ$92,MATCH('Rate Trajectory Report'!$B69,'Rate Trajectory Calc'!$A$6:$A$92,0),MATCH('Rate Trajectory Report'!V$5,'Rate Trajectory Calc'!$A$6:$CQ$6,0))=0,\" \",INDEX('Rate Trajectory Calc'!$A$6:$CQ$92,MATCH('Rate Trajectory Report'!$B69,'Rate Trajectory Calc'!$A$6:$A$92,0),MATCH('Rate Trajectory Report'!V$5,'Rate Trajectory Calc'!$A$6:$CQ$6,0))/1000)","v":" "},{"$f":"IF(INDEX('Rate Trajectory Calc'!$A$6:$CQ$92,MATCH('Rate Trajectory Report'!$B69,'Rate Trajectory Calc'!$A$6:$A$92,0),MATCH('Rate Trajectory Report'!W$5,'Rate Trajectory Calc'!$A$6:$CQ$6,0))=0,\" \",INDEX('Rate Trajectory Calc'!$A$6:$CQ$92,MATCH('Rate Trajectory Report'!$B69,'Rate Trajectory Calc'!$A$6:$A$92,0),MATCH('Rate Trajectory Report'!W$5,'Rate Trajectory Calc'!$A$6:$CQ$6,0))/1000)","v":" "},{"$f":"IF(INDEX('Rate Trajectory Calc'!$A$6:$CQ$92,MATCH('Rate Trajectory Report'!$B69,'Rate Trajectory Calc'!$A$6:$A$92,0),MATCH('Rate Trajectory Report'!X$5,'Rate Trajectory Calc'!$A$6:$CQ$6,0))=0,\" \",INDEX('Rate Trajectory Calc'!$A$6:$CQ$92,MATCH('Rate Trajectory Report'!$B69,'Rate Trajectory Calc'!$A$6:$A$92,0),MATCH('Rate Trajectory Report'!X$5,'Rate Trajectory Calc'!$A$6:$CQ$6,0))/1000)","v":" "},{"$f":"IF(INDEX('Rate Trajectory Calc'!$A$6:$CQ$92,MATCH('Rate Trajectory Report'!$B69,'Rate Trajectory Calc'!$A$6:$A$92,0),MATCH('Rate Trajectory Report'!Y$5,'Rate Trajectory Calc'!$A$6:$CQ$6,0))=0,\" \",INDEX('Rate Trajectory Calc'!$A$6:$CQ$92,MATCH('Rate Trajectory Report'!$B69,'Rate Trajectory Calc'!$A$6:$A$92,0),MATCH('Rate Trajectory Report'!Y$5,'Rate Trajectory Calc'!$A$6:$CQ$6,0))/1000)","v":" "},{"$f":"IF(INDEX('Rate Trajectory Calc'!$A$6:$CQ$92,MATCH('Rate Trajectory Report'!$B69,'Rate Trajectory Calc'!$A$6:$A$92,0),MATCH('Rate Trajectory Report'!Z$5,'Rate Trajectory Calc'!$A$6:$CQ$6,0))=0,\" \",INDEX('Rate Trajectory Calc'!$A$6:$CQ$92,MATCH('Rate Trajectory Report'!$B69,'Rate Trajectory Calc'!$A$6:$A$92,0),MATCH('Rate Trajectory Report'!Z$5,'Rate Trajectory Calc'!$A$6:$CQ$6,0))/1000)","v":" "},{"$f":"IF(INDEX('Rate Trajectory Calc'!$A$6:$CQ$92,MATCH('Rate Trajectory Report'!$B69,'Rate Trajectory Calc'!$A$6:$A$92,0),MATCH('Rate Trajectory Report'!AA$5,'Rate Trajectory Calc'!$A$6:$CQ$6,0))=0,\" \",INDEX('Rate Trajectory Calc'!$A$6:$CQ$92,MATCH('Rate Trajectory Report'!$B69,'Rate Trajectory Calc'!$A$6:$A$92,0),MATCH('Rate Trajectory Report'!AA$5,'Rate Trajectory Calc'!$A$6:$CQ$6,0))/1000)","v":" "}]
[null,{"$f":"'Rate Trajectory Dashboard'!B57","v":"2027 GRC - Core Local Transmission - Year 2028"},{"$f":"IFERROR(VLOOKUP(B70,'Rate Trajectory Dashboard'!$B$12:$D$96,3,FALSE)/1000,'Rate Trajectory Report'!C69)","v":937.04080356070563},{"$f":"IF(INDEX('Rate Trajectory Calc'!$A$6:$CQ$92,MATCH('Rate Trajectory Report'!$B70,'Rate Trajectory Calc'!$A$6:$A$92,0),MATCH('Rate Trajectory Report'!D$5,'Rate Trajectory Calc'!$A$6:$CQ$6,0))=0,\" \",INDEX('Rate Trajectory Calc'!$A$6:$CQ$92,MATCH('Rate Trajectory Report'!$B70,'Rate Trajectory Calc'!$A$6:$A$92,0),MATCH('Rate Trajectory Report'!D$5,'Rate Trajectory Calc'!$A$6:$CQ$6,0))/1000)","v":" "},{"$f":"IF(INDEX('Rate Trajectory Calc'!$A$6:$CQ$92,MATCH('Rate Trajectory Report'!$B70,'Rate Trajectory Calc'!$A$6:$A$92,0),MATCH('Rate Trajectory Report'!E$5,'Rate Trajectory Calc'!$A$6:$CQ$6,0))=0,\" \",INDEX('Rate Trajectory Calc'!$A$6:$CQ$92,MATCH('Rate Trajectory Report'!$B70,'Rate Trajectory Calc'!$A$6:$A$92,0),MATCH('Rate Trajectory Report'!E$5,'Rate Trajectory Calc'!$A$6:$CQ$6,0))/1000)","v":" "},{"$f":"IF(INDEX('Rate Trajectory Calc'!$A$6:$CQ$92,MATCH('Rate Trajectory Report'!$B70,'Rate Trajectory Calc'!$A$6:$A$92,0),MATCH('Rate Trajectory Report'!F$5,'Rate Trajectory Calc'!$A$6:$CQ$6,0))=0,\" \",INDEX('Rate Trajectory Calc'!$A$6:$CQ$92,MATCH('Rate Trajectory Report'!$B70,'Rate Trajectory Calc'!$A$6:$A$92,0),MATCH('Rate Trajectory Report'!F$5,'Rate Trajectory Calc'!$A$6:$CQ$6,0))/1000)","v":" "},{"$f":"IF(INDEX('Rate Trajectory Calc'!$A$6:$CQ$92,MATCH('Rate Trajectory Report'!$B70,'Rate Trajectory Calc'!$A$6:$A$92,0),MATCH('Rate Trajectory Report'!G$5,'Rate Trajectory Calc'!$A$6:$CQ$6,0))=0,\" \",INDEX('Rate Trajectory Calc'!$A$6:$CQ$92,MATCH('Rate Trajectory Report'!$B70,'Rate Trajectory Calc'!$A$6:$A$92,0),MATCH('Rate Trajectory Report'!G$5,'Rate Trajectory Calc'!$A$6:$CQ$6,0))/1000)","v":" "},{"$f":"IF(INDEX('Rate Trajectory Calc'!$A$6:$CQ$92,MATCH('Rate Trajectory Report'!$B70,'Rate Trajectory Calc'!$A$6:$A$92,0),MATCH('Rate Trajectory Report'!H$5,'Rate Trajectory Calc'!$A$6:$CQ$6,0))=0,\" \",INDEX('Rate Trajectory Calc'!$A$6:$CQ$92,MATCH('Rate Trajectory Report'!$B70,'Rate Trajectory Calc'!$A$6:$A$92,0),MATCH('Rate Trajectory Report'!H$5,'Rate Trajectory Calc'!$A$6:$CQ$6,0))/1000)","v":" "},{"$f":"IF(INDEX('Rate Trajectory Calc'!$A$6:$CQ$92,MATCH('Rate Trajectory Report'!$B70,'Rate Trajectory Calc'!$A$6:$A$92,0),MATCH('Rate Trajectory Report'!I$5,'Rate Trajectory Calc'!$A$6:$CQ$6,0))=0,\" \",INDEX('Rate Trajectory Calc'!$A$6:$CQ$92,MATCH('Rate Trajectory Report'!$B70,'Rate Trajectory Calc'!$A$6:$A$92,0),MATCH('Rate Trajectory Report'!I$5,'Rate Trajectory Calc'!$A$6:$CQ$6,0))/1000)","v":" "},{"$f":"IF(INDEX('Rate Trajectory Calc'!$A$6:$CQ$92,MATCH('Rate Trajectory Report'!$B70,'Rate Trajectory Calc'!$A$6:$A$92,0),MATCH('Rate Trajectory Report'!J$5,'Rate Trajectory Calc'!$A$6:$CQ$6,0))=0,\" \",INDEX('Rate Trajectory Calc'!$A$6:$CQ$92,MATCH('Rate Trajectory Report'!$B70,'Rate Trajectory Calc'!$A$6:$A$92,0),MATCH('Rate Trajectory Report'!J$5,'Rate Trajectory Calc'!$A$6:$CQ$6,0))/1000)","v":" "},{"$f":"IF(INDEX('Rate Trajectory Calc'!$A$6:$CQ$92,MATCH('Rate Trajectory Report'!$B70,'Rate Trajectory Calc'!$A$6:$A$92,0),MATCH('Rate Trajectory Report'!K$5,'Rate Trajectory Calc'!$A$6:$CQ$6,0))=0,\" \",INDEX('Rate Trajectory Calc'!$A$6:$CQ$92,MATCH('Rate Trajectory Report'!$B70,'Rate Trajectory Calc'!$A$6:$A$92,0),MATCH('Rate Trajectory Report'!K$5,'Rate Trajectory Calc'!$A$6:$CQ$6,0))/1000)","v":" "},{"$f":"IF(INDEX('Rate Trajectory Calc'!$A$6:$CQ$92,MATCH('Rate Trajectory Report'!$B70,'Rate Trajectory Calc'!$A$6:$A$92,0),MATCH('Rate Trajectory Report'!L$5,'Rate Trajectory Calc'!$A$6:$CQ$6,0))=0,\" \",INDEX('Rate Trajectory Calc'!$A$6:$CQ$92,MATCH('Rate Trajectory Report'!$B70,'Rate Trajectory Calc'!$A$6:$A$92,0),MATCH('Rate Trajectory Report'!L$5,'Rate Trajectory Calc'!$A$6:$CQ$6,0))/1000)","v":" "},{"$f":"IF(INDEX('Rate Trajectory Calc'!$A$6:$CQ$92,MATCH('Rate Trajectory Report'!$B70,'Rate Trajectory Calc'!$A$6:$A$92,0),MATCH('Rate Trajectory Report'!M$5,'Rate Trajectory Calc'!$A$6:$CQ$6,0))=0,\" \",INDEX('Rate Trajectory Calc'!$A$6:$CQ$92,MATCH('Rate Trajectory Report'!$B70,'Rate Trajectory Calc'!$A$6:$A$92,0),MATCH('Rate Trajectory Report'!M$5,'Rate Trajectory Calc'!$A$6:$CQ$6,0))/1000)","v":" "},{"$f":"IF(INDEX('Rate Trajectory Calc'!$A$6:$CQ$92,MATCH('Rate Trajectory Report'!$B70,'Rate Trajectory Calc'!$A$6:$A$92,0),MATCH('Rate Trajectory Report'!N$5,'Rate Trajectory Calc'!$A$6:$CQ$6,0))=0,\" \",INDEX('Rate Trajectory Calc'!$A$6:$CQ$92,MATCH('Rate Trajectory Report'!$B70,'Rate Trajectory Calc'!$A$6:$A$92,0),MATCH('Rate Trajectory Report'!N$5,'Rate Trajectory Calc'!$A$6:$CQ$6,0))/1000)","v":" "},{"$f":"IF(INDEX('Rate Trajectory Calc'!$A$6:$CQ$92,MATCH('Rate Trajectory Report'!$B70,'Rate Trajectory Calc'!$A$6:$A$92,0),MATCH('Rate Trajectory Report'!O$5,'Rate Trajectory Calc'!$A$6:$CQ$6,0))=0,\" \",INDEX('Rate Trajectory Calc'!$A$6:$CQ$92,MATCH('Rate Trajectory Report'!$B70,'Rate Trajectory Calc'!$A$6:$A$92,0),MATCH('Rate Trajectory Report'!O$5,'Rate Trajectory Calc'!$A$6:$CQ$6,0))/1000)","v":" "},{"$f":"IF(INDEX('Rate Trajectory Calc'!$A$6:$CQ$92,MATCH('Rate Trajectory Report'!$B70,'Rate Trajectory Calc'!$A$6:$A$92,0),MATCH('Rate Trajectory Report'!P$5,'Rate Trajectory Calc'!$A$6:$CQ$6,0))=0,\" \",INDEX('Rate Trajectory Calc'!$A$6:$CQ$92,MATCH('Rate Trajectory Report'!$B70,'Rate Trajectory Calc'!$A$6:$A$92,0),MATCH('Rate Trajectory Report'!P$5,'Rate Trajectory Calc'!$A$6:$CQ$6,0))/1000)","v":" "},{"$f":"IF(INDEX('Rate Trajectory Calc'!$A$6:$CQ$92,MATCH('Rate Trajectory Report'!$B70,'Rate Trajectory Calc'!$A$6:$A$92,0),MATCH('Rate Trajectory Report'!Q$5,'Rate Trajectory Calc'!$A$6:$CQ$6,0))=0,\" \",INDEX('Rate Trajectory Calc'!$A$6:$CQ$92,MATCH('Rate Trajectory Report'!$B70,'Rate Trajectory Calc'!$A$6:$A$92,0),MATCH('Rate Trajectory Report'!Q$5,'Rate Trajectory Calc'!$A$6:$CQ$6,0))/1000)","v":" "},{"$f":"IF(INDEX('Rate Trajectory Calc'!$A$6:$CQ$92,MATCH('Rate Trajectory Report'!$B70,'Rate Trajectory Calc'!$A$6:$A$92,0),MATCH('Rate Trajectory Report'!R$5,'Rate Trajectory Calc'!$A$6:$CQ$6,0))=0,\" \",INDEX('Rate Trajectory Calc'!$A$6:$CQ$92,MATCH('Rate Trajectory Report'!$B70,'Rate Trajectory Calc'!$A$6:$A$92,0),MATCH('Rate Trajectory Report'!R$5,'Rate Trajectory Calc'!$A$6:$CQ$6,0))/1000)","v":" "},{"$f":"IF(INDEX('Rate Trajectory Calc'!$A$6:$CQ$92,MATCH('Rate Trajectory Report'!$B70,'Rate Trajectory Calc'!$A$6:$A$92,0),MATCH('Rate Trajectory Report'!S$5,'Rate Trajectory Calc'!$A$6:$CQ$6,0))=0,\" \",INDEX('Rate Trajectory Calc'!$A$6:$CQ$92,MATCH('Rate Trajectory Report'!$B70,'Rate Trajectory Calc'!$A$6:$A$92,0),MATCH('Rate Trajectory Report'!S$5,'Rate Trajectory Calc'!$A$6:$CQ$6,0))/1000)","v":" "},{"$f":"IF(INDEX('Rate Trajectory Calc'!$A$6:$CQ$92,MATCH('Rate Trajectory Report'!$B70,'Rate Trajectory Calc'!$A$6:$A$92,0),MATCH('Rate Trajectory Report'!T$5,'Rate Trajectory Calc'!$A$6:$CQ$6,0))=0,\" \",INDEX('Rate Trajectory Calc'!$A$6:$CQ$92,MATCH('Rate Trajectory Report'!$B70,'Rate Trajectory Calc'!$A$6:$A$92,0),MATCH('Rate Trajectory Report'!T$5,'Rate Trajectory Calc'!$A$6:$CQ$6,0))/1000)","v":" "},{"$f":"IF(INDEX('Rate Trajectory Calc'!$A$6:$CQ$92,MATCH('Rate Trajectory Report'!$B70,'Rate Trajectory Calc'!$A$6:$A$92,0),MATCH('Rate Trajectory Report'!U$5,'Rate Trajectory Calc'!$A$6:$CQ$6,0))=0,\" \",INDEX('Rate Trajectory Calc'!$A$6:$CQ$92,MATCH('Rate Trajectory Report'!$B70,'Rate Trajectory Calc'!$A$6:$A$92,0),MATCH('Rate Trajectory Report'!U$5,'Rate Trajectory Calc'!$A$6:$CQ$6,0))/1000)","v":" "},{"$f":"IF(INDEX('Rate Trajectory Calc'!$A$6:$CQ$92,MATCH('Rate Trajectory Report'!$B70,'Rate Trajectory Calc'!$A$6:$A$92,0),MATCH('Rate Trajectory Report'!V$5,'Rate Trajectory Calc'!$A$6:$CQ$6,0))=0,\" \",INDEX('Rate Trajectory Calc'!$A$6:$CQ$92,MATCH('Rate Trajectory Report'!$B70,'Rate Trajectory Calc'!$A$6:$A$92,0),MATCH('Rate Trajectory Report'!V$5,'Rate Trajectory Calc'!$A$6:$CQ$6,0))/1000)","v":" "},{"$f":"IF(INDEX('Rate Trajectory Calc'!$A$6:$CQ$92,MATCH('Rate Trajectory Report'!$B70,'Rate Trajectory Calc'!$A$6:$A$92,0),MATCH('Rate Trajectory Report'!W$5,'Rate Trajectory Calc'!$A$6:$CQ$6,0))=0,\" \",INDEX('Rate Trajectory Calc'!$A$6:$CQ$92,MATCH('Rate Trajectory Report'!$B70,'Rate Trajectory Calc'!$A$6:$A$92,0),MATCH('Rate Trajectory Report'!W$5,'Rate Trajectory Calc'!$A$6:$CQ$6,0))/1000)","v":" "},{"$f":"IF(INDEX('Rate Trajectory Calc'!$A$6:$CQ$92,MATCH('Rate Trajectory Report'!$B70,'Rate Trajectory Calc'!$A$6:$A$92,0),MATCH('Rate Trajectory Report'!X$5,'Rate Trajectory Calc'!$A$6:$CQ$6,0))=0,\" \",INDEX('Rate Trajectory Calc'!$A$6:$CQ$92,MATCH('Rate Trajectory Report'!$B70,'Rate Trajectory Calc'!$A$6:$A$92,0),MATCH('Rate Trajectory Report'!X$5,'Rate Trajectory Calc'!$A$6:$CQ$6,0))/1000)","v":" "},{"$f":"IF(INDEX('Rate Trajectory Calc'!$A$6:$CQ$92,MATCH('Rate Trajectory Report'!$B70,'Rate Trajectory Calc'!$A$6:$A$92,0),MATCH('Rate Trajectory Report'!Y$5,'Rate Trajectory Calc'!$A$6:$CQ$6,0))=0,\" \",INDEX('Rate Trajectory Calc'!$A$6:$CQ$92,MATCH('Rate Trajectory Report'!$B70,'Rate Trajectory Calc'!$A$6:$A$92,0),MATCH('Rate Trajectory Report'!Y$5,'Rate Trajectory Calc'!$A$6:$CQ$6,0))/1000)","v":" "},{"$f":"IF(INDEX('Rate Trajectory Calc'!$A$6:$CQ$92,MATCH('Rate Trajectory Report'!$B70,'Rate Trajectory Calc'!$A$6:$A$92,0),MATCH('Rate Trajectory Report'!Z$5,'Rate Trajectory Calc'!$A$6:$CQ$6,0))=0,\" \",INDEX('Rate Trajectory Calc'!$A$6:$CQ$92,MATCH('Rate Trajectory Report'!$B70,'Rate Trajectory Calc'!$A$6:$A$92,0),MATCH('Rate Trajectory Report'!Z$5,'Rate Trajectory Calc'!$A$6:$CQ$6,0))/1000)","v":" "},{"$f":"IF(INDEX('Rate Trajectory Calc'!$A$6:$CQ$92,MATCH('Rate Trajectory Report'!$B70,'Rate Trajectory Calc'!$A$6:$A$92,0),MATCH('Rate Trajectory Report'!AA$5,'Rate Trajectory Calc'!$A$6:$CQ$6,0))=0,\" \",INDEX('Rate Trajectory Calc'!$A$6:$CQ$92,MATCH('Rate Trajectory Report'!$B70,'Rate Trajectory Calc'!$A$6:$A$92,0),MATCH('Rate Trajectory Report'!AA$5,'Rate Trajectory Calc'!$A$6:$CQ$6,0))/1000)","v":" "}]
[null,{"$f":"'Rate Trajectory Dashboard'!B58","v":"2027 GRC - Core Local Transmission - Year 2029"},{"$f":"IFERROR(VLOOKUP(B71,'Rate Trajectory Dashboard'!$B$12:$D$96,3,FALSE)/1000,'Rate Trajectory Report'!C70)","v":937.04080356070563},{"$f":"IF(INDEX('Rate Trajectory Calc'!$A$6:$CQ$92,MATCH('Rate Trajectory Report'!$B71,'Rate Trajectory Calc'!$A$6:$A$92,0),MATCH('Rate Trajectory Report'!D$5,'Rate Trajectory Calc'!$A$6:$CQ$6,0))=0,\" \",INDEX('Rate Trajectory Calc'!$A$6:$CQ$92,MATCH('Rate Trajectory Report'!$B71,'Rate Trajectory Calc'!$A$6:$A$92,0),MATCH('Rate Trajectory Report'!D$5,'Rate Trajectory Calc'!$A$6:$CQ$6,0))/1000)","v":" "},{"$f":"IF(INDEX('Rate Trajectory Calc'!$A$6:$CQ$92,MATCH('Rate Trajectory Report'!$B71,'Rate Trajectory Calc'!$A$6:$A$92,0),MATCH('Rate Trajectory Report'!E$5,'Rate Trajectory Calc'!$A$6:$CQ$6,0))=0,\" \",INDEX('Rate Trajectory Calc'!$A$6:$CQ$92,MATCH('Rate Trajectory Report'!$B71,'Rate Trajectory Calc'!$A$6:$A$92,0),MATCH('Rate Trajectory Report'!E$5,'Rate Trajectory Calc'!$A$6:$CQ$6,0))/1000)","v":" "},{"$f":"IF(INDEX('Rate Trajectory Calc'!$A$6:$CQ$92,MATCH('Rate Trajectory Report'!$B71,'Rate Trajectory Calc'!$A$6:$A$92,0),MATCH('Rate Trajectory Report'!F$5,'Rate Trajectory Calc'!$A$6:$CQ$6,0))=0,\" \",INDEX('Rate Trajectory Calc'!$A$6:$CQ$92,MATCH('Rate Trajectory Report'!$B71,'Rate Trajectory Calc'!$A$6:$A$92,0),MATCH('Rate Trajectory Report'!F$5,'Rate Trajectory Calc'!$A$6:$CQ$6,0))/1000)","v":" "},{"$f":"IF(INDEX('Rate Trajectory Calc'!$A$6:$CQ$92,MATCH('Rate Trajectory Report'!$B71,'Rate Trajectory Calc'!$A$6:$A$92,0),MATCH('Rate Trajectory Report'!G$5,'Rate Trajectory Calc'!$A$6:$CQ$6,0))=0,\" \",INDEX('Rate Trajectory Calc'!$A$6:$CQ$92,MATCH('Rate Trajectory Report'!$B71,'Rate Trajectory Calc'!$A$6:$A$92,0),MATCH('Rate Trajectory Report'!G$5,'Rate Trajectory Calc'!$A$6:$CQ$6,0))/1000)","v":" "},{"$f":"IF(INDEX('Rate Trajectory Calc'!$A$6:$CQ$92,MATCH('Rate Trajectory Report'!$B71,'Rate Trajectory Calc'!$A$6:$A$92,0),MATCH('Rate Trajectory Report'!H$5,'Rate Trajectory Calc'!$A$6:$CQ$6,0))=0,\" \",INDEX('Rate Trajectory Calc'!$A$6:$CQ$92,MATCH('Rate Trajectory Report'!$B71,'Rate Trajectory Calc'!$A$6:$A$92,0),MATCH('Rate Trajectory Report'!H$5,'Rate Trajectory Calc'!$A$6:$CQ$6,0))/1000)","v":" "},{"$f":"IF(INDEX('Rate Trajectory Calc'!$A$6:$CQ$92,MATCH('Rate Trajectory Report'!$B71,'Rate Trajectory Calc'!$A$6:$A$92,0),MATCH('Rate Trajectory Report'!I$5,'Rate Trajectory Calc'!$A$6:$CQ$6,0))=0,\" \",INDEX('Rate Trajectory Calc'!$A$6:$CQ$92,MATCH('Rate Trajectory Report'!$B71,'Rate Trajectory Calc'!$A$6:$A$92,0),MATCH('Rate Trajectory Report'!I$5,'Rate Trajectory Calc'!$A$6:$CQ$6,0))/1000)","v":" "},{"$f":"IF(INDEX('Rate Trajectory Calc'!$A$6:$CQ$92,MATCH('Rate Trajectory Report'!$B71,'Rate Trajectory Calc'!$A$6:$A$92,0),MATCH('Rate Trajectory Report'!J$5,'Rate Trajectory Calc'!$A$6:$CQ$6,0))=0,\" \",INDEX('Rate Trajectory Calc'!$A$6:$CQ$92,MATCH('Rate Trajectory Report'!$B71,'Rate Trajectory Calc'!$A$6:$A$92,0),MATCH('Rate Trajectory Report'!J$5,'Rate Trajectory Calc'!$A$6:$CQ$6,0))/1000)","v":" "},{"$f":"IF(INDEX('Rate Trajectory Calc'!$A$6:$CQ$92,MATCH('Rate Trajectory Report'!$B71,'Rate Trajectory Calc'!$A$6:$A$92,0),MATCH('Rate Trajectory Report'!K$5,'Rate Trajectory Calc'!$A$6:$CQ$6,0))=0,\" \",INDEX('Rate Trajectory Calc'!$A$6:$CQ$92,MATCH('Rate Trajectory Report'!$B71,'Rate Trajectory Calc'!$A$6:$A$92,0),MATCH('Rate Trajectory Report'!K$5,'Rate Trajectory Calc'!$A$6:$CQ$6,0))/1000)","v":" "},{"$f":"IF(INDEX('Rate Trajectory Calc'!$A$6:$CQ$92,MATCH('Rate Trajectory Report'!$B71,'Rate Trajectory Calc'!$A$6:$A$92,0),MATCH('Rate Trajectory Report'!L$5,'Rate Trajectory Calc'!$A$6:$CQ$6,0))=0,\" \",INDEX('Rate Trajectory Calc'!$A$6:$CQ$92,MATCH('Rate Trajectory Report'!$B71,'Rate Trajectory Calc'!$A$6:$A$92,0),MATCH('Rate Trajectory Report'!L$5,'Rate Trajectory Calc'!$A$6:$CQ$6,0))/1000)","v":" "},{"$f":"IF(INDEX('Rate Trajectory Calc'!$A$6:$CQ$92,MATCH('Rate Trajectory Report'!$B71,'Rate Trajectory Calc'!$A$6:$A$92,0),MATCH('Rate Trajectory Report'!M$5,'Rate Trajectory Calc'!$A$6:$CQ$6,0))=0,\" \",INDEX('Rate Trajectory Calc'!$A$6:$CQ$92,MATCH('Rate Trajectory Report'!$B71,'Rate Trajectory Calc'!$A$6:$A$92,0),MATCH('Rate Trajectory Report'!M$5,'Rate Trajectory Calc'!$A$6:$CQ$6,0))/1000)","v":" "},{"$f":"IF(INDEX('Rate Trajectory Calc'!$A$6:$CQ$92,MATCH('Rate Trajectory Report'!$B71,'Rate Trajectory Calc'!$A$6:$A$92,0),MATCH('Rate Trajectory Report'!N$5,'Rate Trajectory Calc'!$A$6:$CQ$6,0))=0,\" \",INDEX('Rate Trajectory Calc'!$A$6:$CQ$92,MATCH('Rate Trajectory Report'!$B71,'Rate Trajectory Calc'!$A$6:$A$92,0),MATCH('Rate Trajectory Report'!N$5,'Rate Trajectory Calc'!$A$6:$CQ$6,0))/1000)","v":" "},{"$f":"IF(INDEX('Rate Trajectory Calc'!$A$6:$CQ$92,MATCH('Rate Trajectory Report'!$B71,'Rate Trajectory Calc'!$A$6:$A$92,0),MATCH('Rate Trajectory Report'!O$5,'Rate Trajectory Calc'!$A$6:$CQ$6,0))=0,\" \",INDEX('Rate Trajectory Calc'!$A$6:$CQ$92,MATCH('Rate Trajectory Report'!$B71,'Rate Trajectory Calc'!$A$6:$A$92,0),MATCH('Rate Trajectory Report'!O$5,'Rate Trajectory Calc'!$A$6:$CQ$6,0))/1000)","v":" "},{"$f":"IF(INDEX('Rate Trajectory Calc'!$A$6:$CQ$92,MATCH('Rate Trajectory Report'!$B71,'Rate Trajectory Calc'!$A$6:$A$92,0),MATCH('Rate Trajectory Report'!P$5,'Rate Trajectory Calc'!$A$6:$CQ$6,0))=0,\" \",INDEX('Rate Trajectory Calc'!$A$6:$CQ$92,MATCH('Rate Trajectory Report'!$B71,'Rate Trajectory Calc'!$A$6:$A$92,0),MATCH('Rate Trajectory Report'!P$5,'Rate Trajectory Calc'!$A$6:$CQ$6,0))/1000)","v":" "},{"$f":"IF(INDEX('Rate Trajectory Calc'!$A$6:$CQ$92,MATCH('Rate Trajectory Report'!$B71,'Rate Trajectory Calc'!$A$6:$A$92,0),MATCH('Rate Trajectory Report'!Q$5,'Rate Trajectory Calc'!$A$6:$CQ$6,0))=0,\" \",INDEX('Rate Trajectory Calc'!$A$6:$CQ$92,MATCH('Rate Trajectory Report'!$B71,'Rate Trajectory Calc'!$A$6:$A$92,0),MATCH('Rate Trajectory Report'!Q$5,'Rate Trajectory Calc'!$A$6:$CQ$6,0))/1000)","v":" "},{"$f":"IF(INDEX('Rate Trajectory Calc'!$A$6:$CQ$92,MATCH('Rate Trajectory Report'!$B71,'Rate Trajectory Calc'!$A$6:$A$92,0),MATCH('Rate Trajectory Report'!R$5,'Rate Trajectory Calc'!$A$6:$CQ$6,0))=0,\" \",INDEX('Rate Trajectory Calc'!$A$6:$CQ$92,MATCH('Rate Trajectory Report'!$B71,'Rate Trajectory Calc'!$A$6:$A$92,0),MATCH('Rate Trajectory Report'!R$5,'Rate Trajectory Calc'!$A$6:$CQ$6,0))/1000)","v":" "},{"$f":"IF(INDEX('Rate Trajectory Calc'!$A$6:$CQ$92,MATCH('Rate Trajectory Report'!$B71,'Rate Trajectory Calc'!$A$6:$A$92,0),MATCH('Rate Trajectory Report'!S$5,'Rate Trajectory Calc'!$A$6:$CQ$6,0))=0,\" \",INDEX('Rate Trajectory Calc'!$A$6:$CQ$92,MATCH('Rate Trajectory Report'!$B71,'Rate Trajectory Calc'!$A$6:$A$92,0),MATCH('Rate Trajectory Report'!S$5,'Rate Trajectory Calc'!$A$6:$CQ$6,0))/1000)","v":" "},{"$f":"IF(INDEX('Rate Trajectory Calc'!$A$6:$CQ$92,MATCH('Rate Trajectory Report'!$B71,'Rate Trajectory Calc'!$A$6:$A$92,0),MATCH('Rate Trajectory Report'!T$5,'Rate Trajectory Calc'!$A$6:$CQ$6,0))=0,\" \",INDEX('Rate Trajectory Calc'!$A$6:$CQ$92,MATCH('Rate Trajectory Report'!$B71,'Rate Trajectory Calc'!$A$6:$A$92,0),MATCH('Rate Trajectory Report'!T$5,'Rate Trajectory Calc'!$A$6:$CQ$6,0))/1000)","v":" "},{"$f":"IF(INDEX('Rate Trajectory Calc'!$A$6:$CQ$92,MATCH('Rate Trajectory Report'!$B71,'Rate Trajectory Calc'!$A$6:$A$92,0),MATCH('Rate Trajectory Report'!U$5,'Rate Trajectory Calc'!$A$6:$CQ$6,0))=0,\" \",INDEX('Rate Trajectory Calc'!$A$6:$CQ$92,MATCH('Rate Trajectory Report'!$B71,'Rate Trajectory Calc'!$A$6:$A$92,0),MATCH('Rate Trajectory Report'!U$5,'Rate Trajectory Calc'!$A$6:$CQ$6,0))/1000)","v":" "},{"$f":"IF(INDEX('Rate Trajectory Calc'!$A$6:$CQ$92,MATCH('Rate Trajectory Report'!$B71,'Rate Trajectory Calc'!$A$6:$A$92,0),MATCH('Rate Trajectory Report'!V$5,'Rate Trajectory Calc'!$A$6:$CQ$6,0))=0,\" \",INDEX('Rate Trajectory Calc'!$A$6:$CQ$92,MATCH('Rate Trajectory Report'!$B71,'Rate Trajectory Calc'!$A$6:$A$92,0),MATCH('Rate Trajectory Report'!V$5,'Rate Trajectory Calc'!$A$6:$CQ$6,0))/1000)","v":" "},{"$f":"IF(INDEX('Rate Trajectory Calc'!$A$6:$CQ$92,MATCH('Rate Trajectory Report'!$B71,'Rate Trajectory Calc'!$A$6:$A$92,0),MATCH('Rate Trajectory Report'!W$5,'Rate Trajectory Calc'!$A$6:$CQ$6,0))=0,\" \",INDEX('Rate Trajectory Calc'!$A$6:$CQ$92,MATCH('Rate Trajectory Report'!$B71,'Rate Trajectory Calc'!$A$6:$A$92,0),MATCH('Rate Trajectory Report'!W$5,'Rate Trajectory Calc'!$A$6:$CQ$6,0))/1000)","v":" "},{"$f":"IF(INDEX('Rate Trajectory Calc'!$A$6:$CQ$92,MATCH('Rate Trajectory Report'!$B71,'Rate Trajectory Calc'!$A$6:$A$92,0),MATCH('Rate Trajectory Report'!X$5,'Rate Trajectory Calc'!$A$6:$CQ$6,0))=0,\" \",INDEX('Rate Trajectory Calc'!$A$6:$CQ$92,MATCH('Rate Trajectory Report'!$B71,'Rate Trajectory Calc'!$A$6:$A$92,0),MATCH('Rate Trajectory Report'!X$5,'Rate Trajectory Calc'!$A$6:$CQ$6,0))/1000)","v":" "},{"$f":"IF(INDEX('Rate Trajectory Calc'!$A$6:$CQ$92,MATCH('Rate Trajectory Report'!$B71,'Rate Trajectory Calc'!$A$6:$A$92,0),MATCH('Rate Trajectory Report'!Y$5,'Rate Trajectory Calc'!$A$6:$CQ$6,0))=0,\" \",INDEX('Rate Trajectory Calc'!$A$6:$CQ$92,MATCH('Rate Trajectory Report'!$B71,'Rate Trajectory Calc'!$A$6:$A$92,0),MATCH('Rate Trajectory Report'!Y$5,'Rate Trajectory Calc'!$A$6:$CQ$6,0))/1000)","v":" "},{"$f":"IF(INDEX('Rate Trajectory Calc'!$A$6:$CQ$92,MATCH('Rate Trajectory Report'!$B71,'Rate Trajectory Calc'!$A$6:$A$92,0),MATCH('Rate Trajectory Report'!Z$5,'Rate Trajectory Calc'!$A$6:$CQ$6,0))=0,\" \",INDEX('Rate Trajectory Calc'!$A$6:$CQ$92,MATCH('Rate Trajectory Report'!$B71,'Rate Trajectory Calc'!$A$6:$A$92,0),MATCH('Rate Trajectory Report'!Z$5,'Rate Trajectory Calc'!$A$6:$CQ$6,0))/1000)","v":" "},{"$f":"IF(INDEX('Rate Trajectory Calc'!$A$6:$CQ$92,MATCH('Rate Trajectory Report'!$B71,'Rate Trajectory Calc'!$A$6:$A$92,0),MATCH('Rate Trajectory Report'!AA$5,'Rate Trajectory Calc'!$A$6:$CQ$6,0))=0,\" \",INDEX('Rate Trajectory Calc'!$A$6:$CQ$92,MATCH('Rate Trajectory Report'!$B71,'Rate Trajectory Calc'!$A$6:$A$92,0),MATCH('Rate Trajectory Report'!AA$5,'Rate Trajectory Calc'!$A$6:$CQ$6,0))/1000)","v":" "}]
["13b","2027 GRC - Core Local Transmission",{"$f":"IFERROR(VLOOKUP(B72,'Rate Trajectory Dashboard'!$B$12:$D$96,3,FALSE)/1000,'Rate Trajectory Report'!C71)","v":937.04080356070563},{"$f":"IF(SUM(D69:D71)=0,\" \",SUBTOTAL(9,D69:D71))","v":" "},{"$f":"IF(SUM(E69:E71)=0,\" \",SUBTOTAL(9,E69:E71))","v":" "}," "," "," "," "," "," "," "," "," "," "," "," "," "," ",165.3113794186404," "," "," "," "," "," "," "]
[null,{"$f":"'Rate Trajectory Dashboard'!B59","v":"2027 GRC - Core Procurement (Intrastate Volumetric and Capacity) - Year 2027"},{"$f":"IFERROR(VLOOKUP(B73,'Rate Trajectory Dashboard'!$B$12:$D$96,3,FALSE)/1000,'Rate Trajectory Report'!C72)","v":173.81349409078049},{"$f":"IF(INDEX('Rate Trajectory Calc'!$A$6:$CQ$92,MATCH('Rate Trajectory Report'!$B73,'Rate Trajectory Calc'!$A$6:$A$92,0),MATCH('Rate Trajectory Report'!D$5,'Rate Trajectory Calc'!$A$6:$CQ$6,0))=0,\" \",INDEX('Rate Trajectory Calc'!$A$6:$CQ$92,MATCH('Rate Trajectory Report'!$B73,'Rate Trajectory Calc'!$A$6:$A$92,0),MATCH('Rate Trajectory Report'!D$5,'Rate Trajectory Calc'!$A$6:$CQ$6,0))/1000)","v":" "},{"$f":"IF(INDEX('Rate Trajectory Calc'!$A$6:$CQ$92,MATCH('Rate Trajectory Report'!$B73,'Rate Trajectory Calc'!$A$6:$A$92,0),MATCH('Rate Trajectory Report'!E$5,'Rate Trajectory Calc'!$A$6:$CQ$6,0))=0,\" \",INDEX('Rate Trajectory Calc'!$A$6:$CQ$92,MATCH('Rate Trajectory Report'!$B73,'Rate Trajectory Calc'!$A$6:$A$92,0),MATCH('Rate Trajectory Report'!E$5,'Rate Trajectory Calc'!$A$6:$CQ$6,0))/1000)","v":" "},{"$f":"IF(INDEX('Rate Trajectory Calc'!$A$6:$CQ$92,MATCH('Rate Trajectory Report'!$B73,'Rate Trajectory Calc'!$A$6:$A$92,0),MATCH('Rate Trajectory Report'!F$5,'Rate Trajectory Calc'!$A$6:$CQ$6,0))=0,\" \",INDEX('Rate Trajectory Calc'!$A$6:$CQ$92,MATCH('Rate Trajectory Report'!$B73,'Rate Trajectory Calc'!$A$6:$A$92,0),MATCH('Rate Trajectory Report'!F$5,'Rate Trajectory Calc'!$A$6:$CQ$6,0))/1000)","v":" "},{"$f":"IF(INDEX('Rate Trajectory Calc'!$A$6:$CQ$92,MATCH('Rate Trajectory Report'!$B73,'Rate Trajectory Calc'!$A$6:$A$92,0),MATCH('Rate Trajectory Report'!G$5,'Rate Trajectory Calc'!$A$6:$CQ$6,0))=0,\" \",INDEX('Rate Trajectory Calc'!$A$6:$CQ$92,MATCH('Rate Trajectory Report'!$B73,'Rate Trajectory Calc'!$A$6:$A$92,0),MATCH('Rate Trajectory Report'!G$5,'Rate Trajectory Calc'!$A$6:$CQ$6,0))/1000)","v":" "},{"$f":"IF(INDEX('Rate Trajectory Calc'!$A$6:$CQ$92,MATCH('Rate Trajectory Report'!$B73,'Rate Trajectory Calc'!$A$6:$A$92,0),MATCH('Rate Trajectory Report'!H$5,'Rate Trajectory Calc'!$A$6:$CQ$6,0))=0,\" \",INDEX('Rate Trajectory Calc'!$A$6:$CQ$92,MATCH('Rate Trajectory Report'!$B73,'Rate Trajectory Calc'!$A$6:$A$92,0),MATCH('Rate Trajectory Report'!H$5,'Rate Trajectory Calc'!$A$6:$CQ$6,0))/1000)","v":" "},{"$f":"IF(INDEX('Rate Trajectory Calc'!$A$6:$CQ$92,MATCH('Rate Trajectory Report'!$B73,'Rate Trajectory Calc'!$A$6:$A$92,0),MATCH('Rate Trajectory Report'!I$5,'Rate Trajectory Calc'!$A$6:$CQ$6,0))=0,\" \",INDEX('Rate Trajectory Calc'!$A$6:$CQ$92,MATCH('Rate Trajectory Report'!$B73,'Rate Trajectory Calc'!$A$6:$A$92,0),MATCH('Rate Trajectory Report'!I$5,'Rate Trajectory Calc'!$A$6:$CQ$6,0))/1000)","v":" "},{"$f":"IF(INDEX('Rate Trajectory Calc'!$A$6:$CQ$92,MATCH('Rate Trajectory Report'!$B73,'Rate Trajectory Calc'!$A$6:$A$92,0),MATCH('Rate Trajectory Report'!J$5,'Rate Trajectory Calc'!$A$6:$CQ$6,0))=0,\" \",INDEX('Rate Trajectory Calc'!$A$6:$CQ$92,MATCH('Rate Trajectory Report'!$B73,'Rate Trajectory Calc'!$A$6:$A$92,0),MATCH('Rate Trajectory Report'!J$5,'Rate Trajectory Calc'!$A$6:$CQ$6,0))/1000)","v":" "},{"$f":"IF(INDEX('Rate Trajectory Calc'!$A$6:$CQ$92,MATCH('Rate Trajectory Report'!$B73,'Rate Trajectory Calc'!$A$6:$A$92,0),MATCH('Rate Trajectory Report'!K$5,'Rate Trajectory Calc'!$A$6:$CQ$6,0))=0,\" \",INDEX('Rate Trajectory Calc'!$A$6:$CQ$92,MATCH('Rate Trajectory Report'!$B73,'Rate Trajectory Calc'!$A$6:$A$92,0),MATCH('Rate Trajectory Report'!K$5,'Rate Trajectory Calc'!$A$6:$CQ$6,0))/1000)","v":" "},{"$f":"IF(INDEX('Rate Trajectory Calc'!$A$6:$CQ$92,MATCH('Rate Trajectory Report'!$B73,'Rate Trajectory Calc'!$A$6:$A$92,0),MATCH('Rate Trajectory Report'!L$5,'Rate Trajectory Calc'!$A$6:$CQ$6,0))=0,\" \",INDEX('Rate Trajectory Calc'!$A$6:$CQ$92,MATCH('Rate Trajectory Report'!$B73,'Rate Trajectory Calc'!$A$6:$A$92,0),MATCH('Rate Trajectory Report'!L$5,'Rate Trajectory Calc'!$A$6:$CQ$6,0))/1000)","v":" "},{"$f":"IF(INDEX('Rate Trajectory Calc'!$A$6:$CQ$92,MATCH('Rate Trajectory Report'!$B73,'Rate Trajectory Calc'!$A$6:$A$92,0),MATCH('Rate Trajectory Report'!M$5,'Rate Trajectory Calc'!$A$6:$CQ$6,0))=0,\" \",INDEX('Rate Trajectory Calc'!$A$6:$CQ$92,MATCH('Rate Trajectory Report'!$B73,'Rate Trajectory Calc'!$A$6:$A$92,0),MATCH('Rate Trajectory Report'!M$5,'Rate Trajectory Calc'!$A$6:$CQ$6,0))/1000)","v":" "},{"$f":"IF(INDEX('Rate Trajectory Calc'!$A$6:$CQ$92,MATCH('Rate Trajectory Report'!$B73,'Rate Trajectory Calc'!$A$6:$A$92,0),MATCH('Rate Trajectory Report'!N$5,'Rate Trajectory Calc'!$A$6:$CQ$6,0))=0,\" \",INDEX('Rate Trajectory Calc'!$A$6:$CQ$92,MATCH('Rate Trajectory Report'!$B73,'Rate Trajectory Calc'!$A$6:$A$92,0),MATCH('Rate Trajectory Report'!N$5,'Rate Trajectory Calc'!$A$6:$CQ$6,0))/1000)","v":" "},{"$f":"IF(INDEX('Rate Trajectory Calc'!$A$6:$CQ$92,MATCH('Rate Trajectory Report'!$B73,'Rate Trajectory Calc'!$A$6:$A$92,0),MATCH('Rate Trajectory Report'!O$5,'Rate Trajectory Calc'!$A$6:$CQ$6,0))=0,\" \",INDEX('Rate Trajectory Calc'!$A$6:$CQ$92,MATCH('Rate Trajectory Report'!$B73,'Rate Trajectory Calc'!$A$6:$A$92,0),MATCH('Rate Trajectory Report'!O$5,'Rate Trajectory Calc'!$A$6:$CQ$6,0))/1000)","v":" "},{"$f":"IF(INDEX('Rate Trajectory Calc'!$A$6:$CQ$92,MATCH('Rate Trajectory Report'!$B73,'Rate Trajectory Calc'!$A$6:$A$92,0),MATCH('Rate Trajectory Report'!P$5,'Rate Trajectory Calc'!$A$6:$CQ$6,0))=0,\" \",INDEX('Rate Trajectory Calc'!$A$6:$CQ$92,MATCH('Rate Trajectory Report'!$B73,'Rate Trajectory Calc'!$A$6:$A$92,0),MATCH('Rate Trajectory Report'!P$5,'Rate Trajectory Calc'!$A$6:$CQ$6,0))/1000)","v":" "},{"$f":"IF(INDEX('Rate Trajectory Calc'!$A$6:$CQ$92,MATCH('Rate Trajectory Report'!$B73,'Rate Trajectory Calc'!$A$6:$A$92,0),MATCH('Rate Trajectory Report'!Q$5,'Rate Trajectory Calc'!$A$6:$CQ$6,0))=0,\" \",INDEX('Rate Trajectory Calc'!$A$6:$CQ$92,MATCH('Rate Trajectory Report'!$B73,'Rate Trajectory Calc'!$A$6:$A$92,0),MATCH('Rate Trajectory Report'!Q$5,'Rate Trajectory Calc'!$A$6:$CQ$6,0))/1000)","v":" "},{"$f":"IF(INDEX('Rate Trajectory Calc'!$A$6:$CQ$92,MATCH('Rate Trajectory Report'!$B73,'Rate Trajectory Calc'!$A$6:$A$92,0),MATCH('Rate Trajectory Report'!R$5,'Rate Trajectory Calc'!$A$6:$CQ$6,0))=0,\" \",INDEX('Rate Trajectory Calc'!$A$6:$CQ$92,MATCH('Rate Trajectory Report'!$B73,'Rate Trajectory Calc'!$A$6:$A$92,0),MATCH('Rate Trajectory Report'!R$5,'Rate Trajectory Calc'!$A$6:$CQ$6,0))/1000)","v":" "},{"$f":"IF(INDEX('Rate Trajectory Calc'!$A$6:$CQ$92,MATCH('Rate Trajectory Report'!$B73,'Rate Trajectory Calc'!$A$6:$A$92,0),MATCH('Rate Trajectory Report'!S$5,'Rate Trajectory Calc'!$A$6:$CQ$6,0))=0,\" \",INDEX('Rate Trajectory Calc'!$A$6:$CQ$92,MATCH('Rate Trajectory Report'!$B73,'Rate Trajectory Calc'!$A$6:$A$92,0),MATCH('Rate Trajectory Report'!S$5,'Rate Trajectory Calc'!$A$6:$CQ$6,0))/1000)","v":" "},{"$f":"IF(INDEX('Rate Trajectory Calc'!$A$6:$CQ$92,MATCH('Rate Trajectory Report'!$B73,'Rate Trajectory Calc'!$A$6:$A$92,0),MATCH('Rate Trajectory Report'!T$5,'Rate Trajectory Calc'!$A$6:$CQ$6,0))=0,\" \",INDEX('Rate Trajectory Calc'!$A$6:$CQ$92,MATCH('Rate Trajectory Report'!$B73,'Rate Trajectory Calc'!$A$6:$A$92,0),MATCH('Rate Trajectory Report'!T$5,'Rate Trajectory Calc'!$A$6:$CQ$6,0))/1000)","v":-29.320572936165963},{"$f":"IF(INDEX('Rate Trajectory Calc'!$A$6:$CQ$92,MATCH('Rate Trajectory Report'!$B73,'Rate Trajectory Calc'!$A$6:$A$92,0),MATCH('Rate Trajectory Report'!U$5,'Rate Trajectory Calc'!$A$6:$CQ$6,0))=0,\" \",INDEX('Rate Trajectory Calc'!$A$6:$CQ$92,MATCH('Rate Trajectory Report'!$B73,'Rate Trajectory Calc'!$A$6:$A$92,0),MATCH('Rate Trajectory Report'!U$5,'Rate Trajectory Calc'!$A$6:$CQ$6,0))/1000)","v":" "},{"$f":"IF(INDEX('Rate Trajectory Calc'!$A$6:$CQ$92,MATCH('Rate Trajectory Report'!$B73,'Rate Trajectory Calc'!$A$6:$A$92,0),MATCH('Rate Trajectory Report'!V$5,'Rate Trajectory Calc'!$A$6:$CQ$6,0))=0,\" \",INDEX('Rate Trajectory Calc'!$A$6:$CQ$92,MATCH('Rate Trajectory Report'!$B73,'Rate Trajectory Calc'!$A$6:$A$92,0),MATCH('Rate Trajectory Report'!V$5,'Rate Trajectory Calc'!$A$6:$CQ$6,0))/1000)","v":" "},{"$f":"IF(INDEX('Rate Trajectory Calc'!$A$6:$CQ$92,MATCH('Rate Trajectory Report'!$B73,'Rate Trajectory Calc'!$A$6:$A$92,0),MATCH('Rate Trajectory Report'!W$5,'Rate Trajectory Calc'!$A$6:$CQ$6,0))=0,\" \",INDEX('Rate Trajectory Calc'!$A$6:$CQ$92,MATCH('Rate Trajectory Report'!$B73,'Rate Trajectory Calc'!$A$6:$A$92,0),MATCH('Rate Trajectory Report'!W$5,'Rate Trajectory Calc'!$A$6:$CQ$6,0))/1000)","v":" "},{"$f":"IF(INDEX('Rate Trajectory Calc'!$A$6:$CQ$92,MATCH('Rate Trajectory Report'!$B73,'Rate Trajectory Calc'!$A$6:$A$92,0),MATCH('Rate Trajectory Report'!X$5,'Rate Trajectory Calc'!$A$6:$CQ$6,0))=0,\" \",INDEX('Rate Trajectory Calc'!$A$6:$CQ$92,MATCH('Rate Trajectory Report'!$B73,'Rate Trajectory Calc'!$A$6:$A$92,0),MATCH('Rate Trajectory Report'!X$5,'Rate Trajectory Calc'!$A$6:$CQ$6,0))/1000)","v":" "},{"$f":"IF(INDEX('Rate Trajectory Calc'!$A$6:$CQ$92,MATCH('Rate Trajectory Report'!$B73,'Rate Trajectory Calc'!$A$6:$A$92,0),MATCH('Rate Trajectory Report'!Y$5,'Rate Trajectory Calc'!$A$6:$CQ$6,0))=0,\" \",INDEX('Rate Trajectory Calc'!$A$6:$CQ$92,MATCH('Rate Trajectory Report'!$B73,'Rate Trajectory Calc'!$A$6:$A$92,0),MATCH('Rate Trajectory Report'!Y$5,'Rate Trajectory Calc'!$A$6:$CQ$6,0))/1000)","v":" "},{"$f":"IF(INDEX('Rate Trajectory Calc'!$A$6:$CQ$92,MATCH('Rate Trajectory Report'!$B73,'Rate Trajectory Calc'!$A$6:$A$92,0),MATCH('Rate Trajectory Report'!Z$5,'Rate Trajectory Calc'!$A$6:$CQ$6,0))=0,\" \",INDEX('Rate Trajectory Calc'!$A$6:$CQ$92,MATCH('Rate Trajectory Report'!$B73,'Rate Trajectory Calc'!$A$6:$A$92,0),MATCH('Rate Trajectory Report'!Z$5,'Rate Trajectory Calc'!$A$6:$CQ$6,0))/1000)","v":" "},{"$f":"IF(INDEX('Rate Trajectory Calc'!$A$6:$CQ$92,MATCH('Rate Trajectory Report'!$B73,'Rate Trajectory Calc'!$A$6:$A$92,0),MATCH('Rate Trajectory Report'!AA$5,'Rate Trajectory Calc'!$A$6:$CQ$6,0))=0,\" \",INDEX('Rate Trajectory Calc'!$A$6:$CQ$92,MATCH('Rate Trajectory Report'!$B73,'Rate Trajectory Calc'!$A$6:$A$92,0),MATCH('Rate Trajectory Report'!AA$5,'Rate Trajectory Calc'!$A$6:$CQ$6,0))/1000)","v":" "}]
[null,{"$f":"'Rate Trajectory Dashboard'!B60","v":"2027 GRC - Core Procurement (Intrastate Volumetric and Capacity) - Year 2028"},{"$f":"IFERROR(VLOOKUP(B74,'Rate Trajectory Dashboard'!$B$12:$D$96,3,FALSE)/1000,'Rate Trajectory Report'!C73)","v":173.81349409078049},{"$f":"IF(INDEX('Rate Trajectory Calc'!$A$6:$CQ$92,MATCH('Rate Trajectory Report'!$B74,'Rate Trajectory Calc'!$A$6:$A$92,0),MATCH('Rate Trajectory Report'!D$5,'Rate Trajectory Calc'!$A$6:$CQ$6,0))=0,\" \",INDEX('Rate Trajectory Calc'!$A$6:$CQ$92,MATCH('Rate Trajectory Report'!$B74,'Rate Trajectory Calc'!$A$6:$A$92,0),MATCH('Rate Trajectory Report'!D$5,'Rate Trajectory Calc'!$A$6:$CQ$6,0))/1000)","v":" "},{"$f":"IF(INDEX('Rate Trajectory Calc'!$A$6:$CQ$92,MATCH('Rate Trajectory Report'!$B74,'Rate Trajectory Calc'!$A$6:$A$92,0),MATCH('Rate Trajectory Report'!E$5,'Rate Trajectory Calc'!$A$6:$CQ$6,0))=0,\" \",INDEX('Rate Trajectory Calc'!$A$6:$CQ$92,MATCH('Rate Trajectory Report'!$B74,'Rate Trajectory Calc'!$A$6:$A$92,0),MATCH('Rate Trajectory Report'!E$5,'Rate Trajectory Calc'!$A$6:$CQ$6,0))/1000)","v":" "},{"$f":"IF(INDEX('Rate Trajectory Calc'!$A$6:$CQ$92,MATCH('Rate Trajectory Report'!$B74,'Rate Trajectory Calc'!$A$6:$A$92,0),MATCH('Rate Trajectory Report'!F$5,'Rate Trajectory Calc'!$A$6:$CQ$6,0))=0,\" \",INDEX('Rate Trajectory Calc'!$A$6:$CQ$92,MATCH('Rate Trajectory Report'!$B74,'Rate Trajectory Calc'!$A$6:$A$92,0),MATCH('Rate Trajectory Report'!F$5,'Rate Trajectory Calc'!$A$6:$CQ$6,0))/1000)","v":" "},{"$f":"IF(INDEX('Rate Trajectory Calc'!$A$6:$CQ$92,MATCH('Rate Trajectory Report'!$B74,'Rate Trajectory Calc'!$A$6:$A$92,0),MATCH('Rate Trajectory Report'!G$5,'Rate Trajectory Calc'!$A$6:$CQ$6,0))=0,\" \",INDEX('Rate Trajectory Calc'!$A$6:$CQ$92,MATCH('Rate Trajectory Report'!$B74,'Rate Trajectory Calc'!$A$6:$A$92,0),MATCH('Rate Trajectory Report'!G$5,'Rate Trajectory Calc'!$A$6:$CQ$6,0))/1000)","v":" "},{"$f":"IF(INDEX('Rate Trajectory Calc'!$A$6:$CQ$92,MATCH('Rate Trajectory Report'!$B74,'Rate Trajectory Calc'!$A$6:$A$92,0),MATCH('Rate Trajectory Report'!H$5,'Rate Trajectory Calc'!$A$6:$CQ$6,0))=0,\" \",INDEX('Rate Trajectory Calc'!$A$6:$CQ$92,MATCH('Rate Trajectory Report'!$B74,'Rate Trajectory Calc'!$A$6:$A$92,0),MATCH('Rate Trajectory Report'!H$5,'Rate Trajectory Calc'!$A$6:$CQ$6,0))/1000)","v":" "},{"$f":"IF(INDEX('Rate Trajectory Calc'!$A$6:$CQ$92,MATCH('Rate Trajectory Report'!$B74,'Rate Trajectory Calc'!$A$6:$A$92,0),MATCH('Rate Trajectory Report'!I$5,'Rate Trajectory Calc'!$A$6:$CQ$6,0))=0,\" \",INDEX('Rate Trajectory Calc'!$A$6:$CQ$92,MATCH('Rate Trajectory Report'!$B74,'Rate Trajectory Calc'!$A$6:$A$92,0),MATCH('Rate Trajectory Report'!I$5,'Rate Trajectory Calc'!$A$6:$CQ$6,0))/1000)","v":" "},{"$f":"IF(INDEX('Rate Trajectory Calc'!$A$6:$CQ$92,MATCH('Rate Trajectory Report'!$B74,'Rate Trajectory Calc'!$A$6:$A$92,0),MATCH('Rate Trajectory Report'!J$5,'Rate Trajectory Calc'!$A$6:$CQ$6,0))=0,\" \",INDEX('Rate Trajectory Calc'!$A$6:$CQ$92,MATCH('Rate Trajectory Report'!$B74,'Rate Trajectory Calc'!$A$6:$A$92,0),MATCH('Rate Trajectory Report'!J$5,'Rate Trajectory Calc'!$A$6:$CQ$6,0))/1000)","v":" "},{"$f":"IF(INDEX('Rate Trajectory Calc'!$A$6:$CQ$92,MATCH('Rate Trajectory Report'!$B74,'Rate Trajectory Calc'!$A$6:$A$92,0),MATCH('Rate Trajectory Report'!K$5,'Rate Trajectory Calc'!$A$6:$CQ$6,0))=0,\" \",INDEX('Rate Trajectory Calc'!$A$6:$CQ$92,MATCH('Rate Trajectory Report'!$B74,'Rate Trajectory Calc'!$A$6:$A$92,0),MATCH('Rate Trajectory Report'!K$5,'Rate Trajectory Calc'!$A$6:$CQ$6,0))/1000)","v":" "},{"$f":"IF(INDEX('Rate Trajectory Calc'!$A$6:$CQ$92,MATCH('Rate Trajectory Report'!$B74,'Rate Trajectory Calc'!$A$6:$A$92,0),MATCH('Rate Trajectory Report'!L$5,'Rate Trajectory Calc'!$A$6:$CQ$6,0))=0,\" \",INDEX('Rate Trajectory Calc'!$A$6:$CQ$92,MATCH('Rate Trajectory Report'!$B74,'Rate Trajectory Calc'!$A$6:$A$92,0),MATCH('Rate Trajectory Report'!L$5,'Rate Trajectory Calc'!$A$6:$CQ$6,0))/1000)","v":" "},{"$f":"IF(INDEX('Rate Trajectory Calc'!$A$6:$CQ$92,MATCH('Rate Trajectory Report'!$B74,'Rate Trajectory Calc'!$A$6:$A$92,0),MATCH('Rate Trajectory Report'!M$5,'Rate Trajectory Calc'!$A$6:$CQ$6,0))=0,\" \",INDEX('Rate Trajectory Calc'!$A$6:$CQ$92,MATCH('Rate Trajectory Report'!$B74,'Rate Trajectory Calc'!$A$6:$A$92,0),MATCH('Rate Trajectory Report'!M$5,'Rate Trajectory Calc'!$A$6:$CQ$6,0))/1000)","v":" "},{"$f":"IF(INDEX('Rate Trajectory Calc'!$A$6:$CQ$92,MATCH('Rate Trajectory Report'!$B74,'Rate Trajectory Calc'!$A$6:$A$92,0),MATCH('Rate Trajectory Report'!N$5,'Rate Trajectory Calc'!$A$6:$CQ$6,0))=0,\" \",INDEX('Rate Trajectory Calc'!$A$6:$CQ$92,MATCH('Rate Trajectory Report'!$B74,'Rate Trajectory Calc'!$A$6:$A$92,0),MATCH('Rate Trajectory Report'!N$5,'Rate Trajectory Calc'!$A$6:$CQ$6,0))/1000)","v":" "},{"$f":"IF(INDEX('Rate Trajectory Calc'!$A$6:$CQ$92,MATCH('Rate Trajectory Report'!$B74,'Rate Trajectory Calc'!$A$6:$A$92,0),MATCH('Rate Trajectory Report'!O$5,'Rate Trajectory Calc'!$A$6:$CQ$6,0))=0,\" \",INDEX('Rate Trajectory Calc'!$A$6:$CQ$92,MATCH('Rate Trajectory Report'!$B74,'Rate Trajectory Calc'!$A$6:$A$92,0),MATCH('Rate Trajectory Report'!O$5,'Rate Trajectory Calc'!$A$6:$CQ$6,0))/1000)","v":" "},{"$f":"IF(INDEX('Rate Trajectory Calc'!$A$6:$CQ$92,MATCH('Rate Trajectory Report'!$B74,'Rate Trajectory Calc'!$A$6:$A$92,0),MATCH('Rate Trajectory Report'!P$5,'Rate Trajectory Calc'!$A$6:$CQ$6,0))=0,\" \",INDEX('Rate Trajectory Calc'!$A$6:$CQ$92,MATCH('Rate Trajectory Report'!$B74,'Rate Trajectory Calc'!$A$6:$A$92,0),MATCH('Rate Trajectory Report'!P$5,'Rate Trajectory Calc'!$A$6:$CQ$6,0))/1000)","v":" "},{"$f":"IF(INDEX('Rate Trajectory Calc'!$A$6:$CQ$92,MATCH('Rate Trajectory Report'!$B74,'Rate Trajectory Calc'!$A$6:$A$92,0),MATCH('Rate Trajectory Report'!Q$5,'Rate Trajectory Calc'!$A$6:$CQ$6,0))=0,\" \",INDEX('Rate Trajectory Calc'!$A$6:$CQ$92,MATCH('Rate Trajectory Report'!$B74,'Rate Trajectory Calc'!$A$6:$A$92,0),MATCH('Rate Trajectory Report'!Q$5,'Rate Trajectory Calc'!$A$6:$CQ$6,0))/1000)","v":" "},{"$f":"IF(INDEX('Rate Trajectory Calc'!$A$6:$CQ$92,MATCH('Rate Trajectory Report'!$B74,'Rate Trajectory Calc'!$A$6:$A$92,0),MATCH('Rate Trajectory Report'!R$5,'Rate Trajectory Calc'!$A$6:$CQ$6,0))=0,\" \",INDEX('Rate Trajectory Calc'!$A$6:$CQ$92,MATCH('Rate Trajectory Report'!$B74,'Rate Trajectory Calc'!$A$6:$A$92,0),MATCH('Rate Trajectory Report'!R$5,'Rate Trajectory Calc'!$A$6:$CQ$6,0))/1000)","v":" "},{"$f":"IF(INDEX('Rate Trajectory Calc'!$A$6:$CQ$92,MATCH('Rate Trajectory Report'!$B74,'Rate Trajectory Calc'!$A$6:$A$92,0),MATCH('Rate Trajectory Report'!S$5,'Rate Trajectory Calc'!$A$6:$CQ$6,0))=0,\" \",INDEX('Rate Trajectory Calc'!$A$6:$CQ$92,MATCH('Rate Trajectory Report'!$B74,'Rate Trajectory Calc'!$A$6:$A$92,0),MATCH('Rate Trajectory Report'!S$5,'Rate Trajectory Calc'!$A$6:$CQ$6,0))/1000)","v":" "},{"$f":"IF(INDEX('Rate Trajectory Calc'!$A$6:$CQ$92,MATCH('Rate Trajectory Report'!$B74,'Rate Trajectory Calc'!$A$6:$A$92,0),MATCH('Rate Trajectory Report'!T$5,'Rate Trajectory Calc'!$A$6:$CQ$6,0))=0,\" \",INDEX('Rate Trajectory Calc'!$A$6:$CQ$92,MATCH('Rate Trajectory Report'!$B74,'Rate Trajectory Calc'!$A$6:$A$92,0),MATCH('Rate Trajectory Report'!T$5,'Rate Trajectory Calc'!$A$6:$CQ$6,0))/1000)","v":" "},{"$f":"IF(INDEX('Rate Trajectory Calc'!$A$6:$CQ$92,MATCH('Rate Trajectory Report'!$B74,'Rate Trajectory Calc'!$A$6:$A$92,0),MATCH('Rate Trajectory Report'!U$5,'Rate Trajectory Calc'!$A$6:$CQ$6,0))=0,\" \",INDEX('Rate Trajectory Calc'!$A$6:$CQ$92,MATCH('Rate Trajectory Report'!$B74,'Rate Trajectory Calc'!$A$6:$A$92,0),MATCH('Rate Trajectory Report'!U$5,'Rate Trajectory Calc'!$A$6:$CQ$6,0))/1000)","v":" "},{"$f":"IF(INDEX('Rate Trajectory Calc'!$A$6:$CQ$92,MATCH('Rate Trajectory Report'!$B74,'Rate Trajectory Calc'!$A$6:$A$92,0),MATCH('Rate Trajectory Report'!V$5,'Rate Trajectory Calc'!$A$6:$CQ$6,0))=0,\" \",INDEX('Rate Trajectory Calc'!$A$6:$CQ$92,MATCH('Rate Trajectory Report'!$B74,'Rate Trajectory Calc'!$A$6:$A$92,0),MATCH('Rate Trajectory Report'!V$5,'Rate Trajectory Calc'!$A$6:$CQ$6,0))/1000)","v":" "},{"$f":"IF(INDEX('Rate Trajectory Calc'!$A$6:$CQ$92,MATCH('Rate Trajectory Report'!$B74,'Rate Trajectory Calc'!$A$6:$A$92,0),MATCH('Rate Trajectory Report'!W$5,'Rate Trajectory Calc'!$A$6:$CQ$6,0))=0,\" \",INDEX('Rate Trajectory Calc'!$A$6:$CQ$92,MATCH('Rate Trajectory Report'!$B74,'Rate Trajectory Calc'!$A$6:$A$92,0),MATCH('Rate Trajectory Report'!W$5,'Rate Trajectory Calc'!$A$6:$CQ$6,0))/1000)","v":" "},{"$f":"IF(INDEX('Rate Trajectory Calc'!$A$6:$CQ$92,MATCH('Rate Trajectory Report'!$B74,'Rate Trajectory Calc'!$A$6:$A$92,0),MATCH('Rate Trajectory Report'!X$5,'Rate Trajectory Calc'!$A$6:$CQ$6,0))=0,\" \",INDEX('Rate Trajectory Calc'!$A$6:$CQ$92,MATCH('Rate Trajectory Report'!$B74,'Rate Trajectory Calc'!$A$6:$A$92,0),MATCH('Rate Trajectory Report'!X$5,'Rate Trajectory Calc'!$A$6:$CQ$6,0))/1000)","v":" "},{"$f":"IF(INDEX('Rate Trajectory Calc'!$A$6:$CQ$92,MATCH('Rate Trajectory Report'!$B74,'Rate Trajectory Calc'!$A$6:$A$92,0),MATCH('Rate Trajectory Report'!Y$5,'Rate Trajectory Calc'!$A$6:$CQ$6,0))=0,\" \",INDEX('Rate Trajectory Calc'!$A$6:$CQ$92,MATCH('Rate Trajectory Report'!$B74,'Rate Trajectory Calc'!$A$6:$A$92,0),MATCH('Rate Trajectory Report'!Y$5,'Rate Trajectory Calc'!$A$6:$CQ$6,0))/1000)","v":" "},{"$f":"IF(INDEX('Rate Trajectory Calc'!$A$6:$CQ$92,MATCH('Rate Trajectory Report'!$B74,'Rate Trajectory Calc'!$A$6:$A$92,0),MATCH('Rate Trajectory Report'!Z$5,'Rate Trajectory Calc'!$A$6:$CQ$6,0))=0,\" \",INDEX('Rate Trajectory Calc'!$A$6:$CQ$92,MATCH('Rate Trajectory Report'!$B74,'Rate Trajectory Calc'!$A$6:$A$92,0),MATCH('Rate Trajectory Report'!Z$5,'Rate Trajectory Calc'!$A$6:$CQ$6,0))/1000)","v":" "},{"$f":"IF(INDEX('Rate Trajectory Calc'!$A$6:$CQ$92,MATCH('Rate Trajectory Report'!$B74,'Rate Trajectory Calc'!$A$6:$A$92,0),MATCH('Rate Trajectory Report'!AA$5,'Rate Trajectory Calc'!$A$6:$CQ$6,0))=0,\" \",INDEX('Rate Trajectory Calc'!$A$6:$CQ$92,MATCH('Rate Trajectory Report'!$B74,'Rate Trajectory Calc'!$A$6:$A$92,0),MATCH('Rate Trajectory Report'!AA$5,'Rate Trajectory Calc'!$A$6:$CQ$6,0))/1000)","v":" "}]
[null,{"$f":"'Rate Trajectory Dashboard'!B61","v":"2027 GRC - Core Procurement (Intrastate Volumetric and Capacity) - Year 2029"},{"$f":"IFERROR(VLOOKUP(B75,'Rate Trajectory Dashboard'!$B$12:$D$96,3,FALSE)/1000,'Rate Trajectory Report'!C74)","v":173.81349409078049},{"$f":"IF(INDEX('Rate Trajectory Calc'!$A$6:$CQ$92,MATCH('Rate Trajectory Report'!$B75,'Rate Trajectory Calc'!$A$6:$A$92,0),MATCH('Rate Trajectory Report'!D$5,'Rate Trajectory Calc'!$A$6:$CQ$6,0))=0,\" \",INDEX('Rate Trajectory Calc'!$A$6:$CQ$92,MATCH('Rate Trajectory Report'!$B75,'Rate Trajectory Calc'!$A$6:$A$92,0),MATCH('Rate Trajectory Report'!D$5,'Rate Trajectory Calc'!$A$6:$CQ$6,0))/1000)","v":" "},{"$f":"IF(INDEX('Rate Trajectory Calc'!$A$6:$CQ$92,MATCH('Rate Trajectory Report'!$B75,'Rate Trajectory Calc'!$A$6:$A$92,0),MATCH('Rate Trajectory Report'!E$5,'Rate Trajectory Calc'!$A$6:$CQ$6,0))=0,\" \",INDEX('Rate Trajectory Calc'!$A$6:$CQ$92,MATCH('Rate Trajectory Report'!$B75,'Rate Trajectory Calc'!$A$6:$A$92,0),MATCH('Rate Trajectory Report'!E$5,'Rate Trajectory Calc'!$A$6:$CQ$6,0))/1000)","v":" "},{"$f":"IF(INDEX('Rate Trajectory Calc'!$A$6:$CQ$92,MATCH('Rate Trajectory Report'!$B75,'Rate Trajectory Calc'!$A$6:$A$92,0),MATCH('Rate Trajectory Report'!F$5,'Rate Trajectory Calc'!$A$6:$CQ$6,0))=0,\" \",INDEX('Rate Trajectory Calc'!$A$6:$CQ$92,MATCH('Rate Trajectory Report'!$B75,'Rate Trajectory Calc'!$A$6:$A$92,0),MATCH('Rate Trajectory Report'!F$5,'Rate Trajectory Calc'!$A$6:$CQ$6,0))/1000)","v":" "},{"$f":"IF(INDEX('Rate Trajectory Calc'!$A$6:$CQ$92,MATCH('Rate Trajectory Report'!$B75,'Rate Trajectory Calc'!$A$6:$A$92,0),MATCH('Rate Trajectory Report'!G$5,'Rate Trajectory Calc'!$A$6:$CQ$6,0))=0,\" \",INDEX('Rate Trajectory Calc'!$A$6:$CQ$92,MATCH('Rate Trajectory Report'!$B75,'Rate Trajectory Calc'!$A$6:$A$92,0),MATCH('Rate Trajectory Report'!G$5,'Rate Trajectory Calc'!$A$6:$CQ$6,0))/1000)","v":" "},{"$f":"IF(INDEX('Rate Trajectory Calc'!$A$6:$CQ$92,MATCH('Rate Trajectory Report'!$B75,'Rate Trajectory Calc'!$A$6:$A$92,0),MATCH('Rate Trajectory Report'!H$5,'Rate Trajectory Calc'!$A$6:$CQ$6,0))=0,\" \",INDEX('Rate Trajectory Calc'!$A$6:$CQ$92,MATCH('Rate Trajectory Report'!$B75,'Rate Trajectory Calc'!$A$6:$A$92,0),MATCH('Rate Trajectory Report'!H$5,'Rate Trajectory Calc'!$A$6:$CQ$6,0))/1000)","v":" "},{"$f":"IF(INDEX('Rate Trajectory Calc'!$A$6:$CQ$92,MATCH('Rate Trajectory Report'!$B75,'Rate Trajectory Calc'!$A$6:$A$92,0),MATCH('Rate Trajectory Report'!I$5,'Rate Trajectory Calc'!$A$6:$CQ$6,0))=0,\" \",INDEX('Rate Trajectory Calc'!$A$6:$CQ$92,MATCH('Rate Trajectory Report'!$B75,'Rate Trajectory Calc'!$A$6:$A$92,0),MATCH('Rate Trajectory Report'!I$5,'Rate Trajectory Calc'!$A$6:$CQ$6,0))/1000)","v":" "},{"$f":"IF(INDEX('Rate Trajectory Calc'!$A$6:$CQ$92,MATCH('Rate Trajectory Report'!$B75,'Rate Trajectory Calc'!$A$6:$A$92,0),MATCH('Rate Trajectory Report'!J$5,'Rate Trajectory Calc'!$A$6:$CQ$6,0))=0,\" \",INDEX('Rate Trajectory Calc'!$A$6:$CQ$92,MATCH('Rate Trajectory Report'!$B75,'Rate Trajectory Calc'!$A$6:$A$92,0),MATCH('Rate Trajectory Report'!J$5,'Rate Trajectory Calc'!$A$6:$CQ$6,0))/1000)","v":" "},{"$f":"IF(INDEX('Rate Trajectory Calc'!$A$6:$CQ$92,MATCH('Rate Trajectory Report'!$B75,'Rate Trajectory Calc'!$A$6:$A$92,0),MATCH('Rate Trajectory Report'!K$5,'Rate Trajectory Calc'!$A$6:$CQ$6,0))=0,\" \",INDEX('Rate Trajectory Calc'!$A$6:$CQ$92,MATCH('Rate Trajectory Report'!$B75,'Rate Trajectory Calc'!$A$6:$A$92,0),MATCH('Rate Trajectory Report'!K$5,'Rate Trajectory Calc'!$A$6:$CQ$6,0))/1000)","v":" "},{"$f":"IF(INDEX('Rate Trajectory Calc'!$A$6:$CQ$92,MATCH('Rate Trajectory Report'!$B75,'Rate Trajectory Calc'!$A$6:$A$92,0),MATCH('Rate Trajectory Report'!L$5,'Rate Trajectory Calc'!$A$6:$CQ$6,0))=0,\" \",INDEX('Rate Trajectory Calc'!$A$6:$CQ$92,MATCH('Rate Trajectory Report'!$B75,'Rate Trajectory Calc'!$A$6:$A$92,0),MATCH('Rate Trajectory Report'!L$5,'Rate Trajectory Calc'!$A$6:$CQ$6,0))/1000)","v":" "},{"$f":"IF(INDEX('Rate Trajectory Calc'!$A$6:$CQ$92,MATCH('Rate Trajectory Report'!$B75,'Rate Trajectory Calc'!$A$6:$A$92,0),MATCH('Rate Trajectory Report'!M$5,'Rate Trajectory Calc'!$A$6:$CQ$6,0))=0,\" \",INDEX('Rate Trajectory Calc'!$A$6:$CQ$92,MATCH('Rate Trajectory Report'!$B75,'Rate Trajectory Calc'!$A$6:$A$92,0),MATCH('Rate Trajectory Report'!M$5,'Rate Trajectory Calc'!$A$6:$CQ$6,0))/1000)","v":" "},{"$f":"IF(INDEX('Rate Trajectory Calc'!$A$6:$CQ$92,MATCH('Rate Trajectory Report'!$B75,'Rate Trajectory Calc'!$A$6:$A$92,0),MATCH('Rate Trajectory Report'!N$5,'Rate Trajectory Calc'!$A$6:$CQ$6,0))=0,\" \",INDEX('Rate Trajectory Calc'!$A$6:$CQ$92,MATCH('Rate Trajectory Report'!$B75,'Rate Trajectory Calc'!$A$6:$A$92,0),MATCH('Rate Trajectory Report'!N$5,'Rate Trajectory Calc'!$A$6:$CQ$6,0))/1000)","v":" "},{"$f":"IF(INDEX('Rate Trajectory Calc'!$A$6:$CQ$92,MATCH('Rate Trajectory Report'!$B75,'Rate Trajectory Calc'!$A$6:$A$92,0),MATCH('Rate Trajectory Report'!O$5,'Rate Trajectory Calc'!$A$6:$CQ$6,0))=0,\" \",INDEX('Rate Trajectory Calc'!$A$6:$CQ$92,MATCH('Rate Trajectory Report'!$B75,'Rate Trajectory Calc'!$A$6:$A$92,0),MATCH('Rate Trajectory Report'!O$5,'Rate Trajectory Calc'!$A$6:$CQ$6,0))/1000)","v":" "},{"$f":"IF(INDEX('Rate Trajectory Calc'!$A$6:$CQ$92,MATCH('Rate Trajectory Report'!$B75,'Rate Trajectory Calc'!$A$6:$A$92,0),MATCH('Rate Trajectory Report'!P$5,'Rate Trajectory Calc'!$A$6:$CQ$6,0))=0,\" \",INDEX('Rate Trajectory Calc'!$A$6:$CQ$92,MATCH('Rate Trajectory Report'!$B75,'Rate Trajectory Calc'!$A$6:$A$92,0),MATCH('Rate Trajectory Report'!P$5,'Rate Trajectory Calc'!$A$6:$CQ$6,0))/1000)","v":" "},{"$f":"IF(INDEX('Rate Trajectory Calc'!$A$6:$CQ$92,MATCH('Rate Trajectory Report'!$B75,'Rate Trajectory Calc'!$A$6:$A$92,0),MATCH('Rate Trajectory Report'!Q$5,'Rate Trajectory Calc'!$A$6:$CQ$6,0))=0,\" \",INDEX('Rate Trajectory Calc'!$A$6:$CQ$92,MATCH('Rate Trajectory Report'!$B75,'Rate Trajectory Calc'!$A$6:$A$92,0),MATCH('Rate Trajectory Report'!Q$5,'Rate Trajectory Calc'!$A$6:$CQ$6,0))/1000)","v":" "},{"$f":"IF(INDEX('Rate Trajectory Calc'!$A$6:$CQ$92,MATCH('Rate Trajectory Report'!$B75,'Rate Trajectory Calc'!$A$6:$A$92,0),MATCH('Rate Trajectory Report'!R$5,'Rate Trajectory Calc'!$A$6:$CQ$6,0))=0,\" \",INDEX('Rate Trajectory Calc'!$A$6:$CQ$92,MATCH('Rate Trajectory Report'!$B75,'Rate Trajectory Calc'!$A$6:$A$92,0),MATCH('Rate Trajectory Report'!R$5,'Rate Trajectory Calc'!$A$6:$CQ$6,0))/1000)","v":" "},{"$f":"IF(INDEX('Rate Trajectory Calc'!$A$6:$CQ$92,MATCH('Rate Trajectory Report'!$B75,'Rate Trajectory Calc'!$A$6:$A$92,0),MATCH('Rate Trajectory Report'!S$5,'Rate Trajectory Calc'!$A$6:$CQ$6,0))=0,\" \",INDEX('Rate Trajectory Calc'!$A$6:$CQ$92,MATCH('Rate Trajectory Report'!$B75,'Rate Trajectory Calc'!$A$6:$A$92,0),MATCH('Rate Trajectory Report'!S$5,'Rate Trajectory Calc'!$A$6:$CQ$6,0))/1000)","v":" "},{"$f":"IF(INDEX('Rate Trajectory Calc'!$A$6:$CQ$92,MATCH('Rate Trajectory Report'!$B75,'Rate Trajectory Calc'!$A$6:$A$92,0),MATCH('Rate Trajectory Report'!T$5,'Rate Trajectory Calc'!$A$6:$CQ$6,0))=0,\" \",INDEX('Rate Trajectory Calc'!$A$6:$CQ$92,MATCH('Rate Trajectory Report'!$B75,'Rate Trajectory Calc'!$A$6:$A$92,0),MATCH('Rate Trajectory Report'!T$5,'Rate Trajectory Calc'!$A$6:$CQ$6,0))/1000)","v":" "},{"$f":"IF(INDEX('Rate Trajectory Calc'!$A$6:$CQ$92,MATCH('Rate Trajectory Report'!$B75,'Rate Trajectory Calc'!$A$6:$A$92,0),MATCH('Rate Trajectory Report'!U$5,'Rate Trajectory Calc'!$A$6:$CQ$6,0))=0,\" \",INDEX('Rate Trajectory Calc'!$A$6:$CQ$92,MATCH('Rate Trajectory Report'!$B75,'Rate Trajectory Calc'!$A$6:$A$92,0),MATCH('Rate Trajectory Report'!U$5,'Rate Trajectory Calc'!$A$6:$CQ$6,0))/1000)","v":" "},{"$f":"IF(INDEX('Rate Trajectory Calc'!$A$6:$CQ$92,MATCH('Rate Trajectory Report'!$B75,'Rate Trajectory Calc'!$A$6:$A$92,0),MATCH('Rate Trajectory Report'!V$5,'Rate Trajectory Calc'!$A$6:$CQ$6,0))=0,\" \",INDEX('Rate Trajectory Calc'!$A$6:$CQ$92,MATCH('Rate Trajectory Report'!$B75,'Rate Trajectory Calc'!$A$6:$A$92,0),MATCH('Rate Trajectory Report'!V$5,'Rate Trajectory Calc'!$A$6:$CQ$6,0))/1000)","v":" "},{"$f":"IF(INDEX('Rate Trajectory Calc'!$A$6:$CQ$92,MATCH('Rate Trajectory Report'!$B75,'Rate Trajectory Calc'!$A$6:$A$92,0),MATCH('Rate Trajectory Report'!W$5,'Rate Trajectory Calc'!$A$6:$CQ$6,0))=0,\" \",INDEX('Rate Trajectory Calc'!$A$6:$CQ$92,MATCH('Rate Trajectory Report'!$B75,'Rate Trajectory Calc'!$A$6:$A$92,0),MATCH('Rate Trajectory Report'!W$5,'Rate Trajectory Calc'!$A$6:$CQ$6,0))/1000)","v":" "},{"$f":"IF(INDEX('Rate Trajectory Calc'!$A$6:$CQ$92,MATCH('Rate Trajectory Report'!$B75,'Rate Trajectory Calc'!$A$6:$A$92,0),MATCH('Rate Trajectory Report'!X$5,'Rate Trajectory Calc'!$A$6:$CQ$6,0))=0,\" \",INDEX('Rate Trajectory Calc'!$A$6:$CQ$92,MATCH('Rate Trajectory Report'!$B75,'Rate Trajectory Calc'!$A$6:$A$92,0),MATCH('Rate Trajectory Report'!X$5,'Rate Trajectory Calc'!$A$6:$CQ$6,0))/1000)","v":" "},{"$f":"IF(INDEX('Rate Trajectory Calc'!$A$6:$CQ$92,MATCH('Rate Trajectory Report'!$B75,'Rate Trajectory Calc'!$A$6:$A$92,0),MATCH('Rate Trajectory Report'!Y$5,'Rate Trajectory Calc'!$A$6:$CQ$6,0))=0,\" \",INDEX('Rate Trajectory Calc'!$A$6:$CQ$92,MATCH('Rate Trajectory Report'!$B75,'Rate Trajectory Calc'!$A$6:$A$92,0),MATCH('Rate Trajectory Report'!Y$5,'Rate Trajectory Calc'!$A$6:$CQ$6,0))/1000)","v":" "},{"$f":"IF(INDEX('Rate Trajectory Calc'!$A$6:$CQ$92,MATCH('Rate Trajectory Report'!$B75,'Rate Trajectory Calc'!$A$6:$A$92,0),MATCH('Rate Trajectory Report'!Z$5,'Rate Trajectory Calc'!$A$6:$CQ$6,0))=0,\" \",INDEX('Rate Trajectory Calc'!$A$6:$CQ$92,MATCH('Rate Trajectory Report'!$B75,'Rate Trajectory Calc'!$A$6:$A$92,0),MATCH('Rate Trajectory Report'!Z$5,'Rate Trajectory Calc'!$A$6:$CQ$6,0))/1000)","v":" "},{"$f":"IF(INDEX('Rate Trajectory Calc'!$A$6:$CQ$92,MATCH('Rate Trajectory Report'!$B75,'Rate Trajectory Calc'!$A$6:$A$92,0),MATCH('Rate Trajectory Report'!AA$5,'Rate Trajectory Calc'!$A$6:$CQ$6,0))=0,\" \",INDEX('Rate Trajectory Calc'!$A$6:$CQ$92,MATCH('Rate Trajectory Report'!$B75,'Rate Trajectory Calc'!$A$6:$A$92,0),MATCH('Rate Trajectory Report'!AA$5,'Rate Trajectory Calc'!$A$6:$CQ$6,0))/1000)","v":" "}]
["13c","2027 GRC - Core Procurement (Intrastate Volumetric and Capacity)",{"$f":"IFERROR(VLOOKUP(B76,'Rate Trajectory Dashboard'!$B$12:$D$96,3,FALSE)/1000,'Rate Trajectory Report'!C75)","v":173.81349409078049},{"$f":"IF(SUM(D73:D75)=0,\" \",SUBTOTAL(9,D73:D75))","v":" "},{"$f":"IF(SUM(E73:E75)=0,\" \",SUBTOTAL(9,E73:E75))","v":" "}," "," "," "," "," "," "," "," "," "," "," "," "," "," ",-29.320572936165963," "," "," "," "," "," "," "]
[null,{"$f":"'Rate Trajectory Dashboard'!B62","v":"2027 GRC - Core Procurement (Storage) - Year 2027"},{"$f":"IFERROR(VLOOKUP(B77,'Rate Trajectory Dashboard'!$B$12:$D$96,3,FALSE)/1000,'Rate Trajectory Report'!C76)","v":134.50289385966863},{"$f":"IF(INDEX('Rate Trajectory Calc'!$A$6:$CQ$92,MATCH('Rate Trajectory Report'!$B77,'Rate Trajectory Calc'!$A$6:$A$92,0),MATCH('Rate Trajectory Report'!D$5,'Rate Trajectory Calc'!$A$6:$CQ$6,0))=0,\" \",INDEX('Rate Trajectory Calc'!$A$6:$CQ$92,MATCH('Rate Trajectory Report'!$B77,'Rate Trajectory Calc'!$A$6:$A$92,0),MATCH('Rate Trajectory Report'!D$5,'Rate Trajectory Calc'!$A$6:$CQ$6,0))/1000)","v":" "},{"$f":"IF(INDEX('Rate Trajectory Calc'!$A$6:$CQ$92,MATCH('Rate Trajectory Report'!$B77,'Rate Trajectory Calc'!$A$6:$A$92,0),MATCH('Rate Trajectory Report'!E$5,'Rate Trajectory Calc'!$A$6:$CQ$6,0))=0,\" \",INDEX('Rate Trajectory Calc'!$A$6:$CQ$92,MATCH('Rate Trajectory Report'!$B77,'Rate Trajectory Calc'!$A$6:$A$92,0),MATCH('Rate Trajectory Report'!E$5,'Rate Trajectory Calc'!$A$6:$CQ$6,0))/1000)","v":" "},{"$f":"IF(INDEX('Rate Trajectory Calc'!$A$6:$CQ$92,MATCH('Rate Trajectory Report'!$B77,'Rate Trajectory Calc'!$A$6:$A$92,0),MATCH('Rate Trajectory Report'!F$5,'Rate Trajectory Calc'!$A$6:$CQ$6,0))=0,\" \",INDEX('Rate Trajectory Calc'!$A$6:$CQ$92,MATCH('Rate Trajectory Report'!$B77,'Rate Trajectory Calc'!$A$6:$A$92,0),MATCH('Rate Trajectory Report'!F$5,'Rate Trajectory Calc'!$A$6:$CQ$6,0))/1000)","v":" "},{"$f":"IF(INDEX('Rate Trajectory Calc'!$A$6:$CQ$92,MATCH('Rate Trajectory Report'!$B77,'Rate Trajectory Calc'!$A$6:$A$92,0),MATCH('Rate Trajectory Report'!G$5,'Rate Trajectory Calc'!$A$6:$CQ$6,0))=0,\" \",INDEX('Rate Trajectory Calc'!$A$6:$CQ$92,MATCH('Rate Trajectory Report'!$B77,'Rate Trajectory Calc'!$A$6:$A$92,0),MATCH('Rate Trajectory Report'!G$5,'Rate Trajectory Calc'!$A$6:$CQ$6,0))/1000)","v":" "},{"$f":"IF(INDEX('Rate Trajectory Calc'!$A$6:$CQ$92,MATCH('Rate Trajectory Report'!$B77,'Rate Trajectory Calc'!$A$6:$A$92,0),MATCH('Rate Trajectory Report'!H$5,'Rate Trajectory Calc'!$A$6:$CQ$6,0))=0,\" \",INDEX('Rate Trajectory Calc'!$A$6:$CQ$92,MATCH('Rate Trajectory Report'!$B77,'Rate Trajectory Calc'!$A$6:$A$92,0),MATCH('Rate Trajectory Report'!H$5,'Rate Trajectory Calc'!$A$6:$CQ$6,0))/1000)","v":" "},{"$f":"IF(INDEX('Rate Trajectory Calc'!$A$6:$CQ$92,MATCH('Rate Trajectory Report'!$B77,'Rate Trajectory Calc'!$A$6:$A$92,0),MATCH('Rate Trajectory Report'!I$5,'Rate Trajectory Calc'!$A$6:$CQ$6,0))=0,\" \",INDEX('Rate Trajectory Calc'!$A$6:$CQ$92,MATCH('Rate Trajectory Report'!$B77,'Rate Trajectory Calc'!$A$6:$A$92,0),MATCH('Rate Trajectory Report'!I$5,'Rate Trajectory Calc'!$A$6:$CQ$6,0))/1000)","v":" "},{"$f":"IF(INDEX('Rate Trajectory Calc'!$A$6:$CQ$92,MATCH('Rate Trajectory Report'!$B77,'Rate Trajectory Calc'!$A$6:$A$92,0),MATCH('Rate Trajectory Report'!J$5,'Rate Trajectory Calc'!$A$6:$CQ$6,0))=0,\" \",INDEX('Rate Trajectory Calc'!$A$6:$CQ$92,MATCH('Rate Trajectory Report'!$B77,'Rate Trajectory Calc'!$A$6:$A$92,0),MATCH('Rate Trajectory Report'!J$5,'Rate Trajectory Calc'!$A$6:$CQ$6,0))/1000)","v":" "},{"$f":"IF(INDEX('Rate Trajectory Calc'!$A$6:$CQ$92,MATCH('Rate Trajectory Report'!$B77,'Rate Trajectory Calc'!$A$6:$A$92,0),MATCH('Rate Trajectory Report'!K$5,'Rate Trajectory Calc'!$A$6:$CQ$6,0))=0,\" \",INDEX('Rate Trajectory Calc'!$A$6:$CQ$92,MATCH('Rate Trajectory Report'!$B77,'Rate Trajectory Calc'!$A$6:$A$92,0),MATCH('Rate Trajectory Report'!K$5,'Rate Trajectory Calc'!$A$6:$CQ$6,0))/1000)","v":" "},{"$f":"IF(INDEX('Rate Trajectory Calc'!$A$6:$CQ$92,MATCH('Rate Trajectory Report'!$B77,'Rate Trajectory Calc'!$A$6:$A$92,0),MATCH('Rate Trajectory Report'!L$5,'Rate Trajectory Calc'!$A$6:$CQ$6,0))=0,\" \",INDEX('Rate Trajectory Calc'!$A$6:$CQ$92,MATCH('Rate Trajectory Report'!$B77,'Rate Trajectory Calc'!$A$6:$A$92,0),MATCH('Rate Trajectory Report'!L$5,'Rate Trajectory Calc'!$A$6:$CQ$6,0))/1000)","v":" "},{"$f":"IF(INDEX('Rate Trajectory Calc'!$A$6:$CQ$92,MATCH('Rate Trajectory Report'!$B77,'Rate Trajectory Calc'!$A$6:$A$92,0),MATCH('Rate Trajectory Report'!M$5,'Rate Trajectory Calc'!$A$6:$CQ$6,0))=0,\" \",INDEX('Rate Trajectory Calc'!$A$6:$CQ$92,MATCH('Rate Trajectory Report'!$B77,'Rate Trajectory Calc'!$A$6:$A$92,0),MATCH('Rate Trajectory Report'!M$5,'Rate Trajectory Calc'!$A$6:$CQ$6,0))/1000)","v":" "},{"$f":"IF(INDEX('Rate Trajectory Calc'!$A$6:$CQ$92,MATCH('Rate Trajectory Report'!$B77,'Rate Trajectory Calc'!$A$6:$A$92,0),MATCH('Rate Trajectory Report'!N$5,'Rate Trajectory Calc'!$A$6:$CQ$6,0))=0,\" \",INDEX('Rate Trajectory Calc'!$A$6:$CQ$92,MATCH('Rate Trajectory Report'!$B77,'Rate Trajectory Calc'!$A$6:$A$92,0),MATCH('Rate Trajectory Report'!N$5,'Rate Trajectory Calc'!$A$6:$CQ$6,0))/1000)","v":" "},{"$f":"IF(INDEX('Rate Trajectory Calc'!$A$6:$CQ$92,MATCH('Rate Trajectory Report'!$B77,'Rate Trajectory Calc'!$A$6:$A$92,0),MATCH('Rate Trajectory Report'!O$5,'Rate Trajectory Calc'!$A$6:$CQ$6,0))=0,\" \",INDEX('Rate Trajectory Calc'!$A$6:$CQ$92,MATCH('Rate Trajectory Report'!$B77,'Rate Trajectory Calc'!$A$6:$A$92,0),MATCH('Rate Trajectory Report'!O$5,'Rate Trajectory Calc'!$A$6:$CQ$6,0))/1000)","v":" "},{"$f":"IF(INDEX('Rate Trajectory Calc'!$A$6:$CQ$92,MATCH('Rate Trajectory Report'!$B77,'Rate Trajectory Calc'!$A$6:$A$92,0),MATCH('Rate Trajectory Report'!P$5,'Rate Trajectory Calc'!$A$6:$CQ$6,0))=0,\" \",INDEX('Rate Trajectory Calc'!$A$6:$CQ$92,MATCH('Rate Trajectory Report'!$B77,'Rate Trajectory Calc'!$A$6:$A$92,0),MATCH('Rate Trajectory Report'!P$5,'Rate Trajectory Calc'!$A$6:$CQ$6,0))/1000)","v":" "},{"$f":"IF(INDEX('Rate Trajectory Calc'!$A$6:$CQ$92,MATCH('Rate Trajectory Report'!$B77,'Rate Trajectory Calc'!$A$6:$A$92,0),MATCH('Rate Trajectory Report'!Q$5,'Rate Trajectory Calc'!$A$6:$CQ$6,0))=0,\" \",INDEX('Rate Trajectory Calc'!$A$6:$CQ$92,MATCH('Rate Trajectory Report'!$B77,'Rate Trajectory Calc'!$A$6:$A$92,0),MATCH('Rate Trajectory Report'!Q$5,'Rate Trajectory Calc'!$A$6:$CQ$6,0))/1000)","v":" "},{"$f":"IF(INDEX('Rate Trajectory Calc'!$A$6:$CQ$92,MATCH('Rate Trajectory Report'!$B77,'Rate Trajectory Calc'!$A$6:$A$92,0),MATCH('Rate Trajectory Report'!R$5,'Rate Trajectory Calc'!$A$6:$CQ$6,0))=0,\" \",INDEX('Rate Trajectory Calc'!$A$6:$CQ$92,MATCH('Rate Trajectory Report'!$B77,'Rate Trajectory Calc'!$A$6:$A$92,0),MATCH('Rate Trajectory Report'!R$5,'Rate Trajectory Calc'!$A$6:$CQ$6,0))/1000)","v":" "},{"$f":"IF(INDEX('Rate Trajectory Calc'!$A$6:$CQ$92,MATCH('Rate Trajectory Report'!$B77,'Rate Trajectory Calc'!$A$6:$A$92,0),MATCH('Rate Trajectory Report'!S$5,'Rate Trajectory Calc'!$A$6:$CQ$6,0))=0,\" \",INDEX('Rate Trajectory Calc'!$A$6:$CQ$92,MATCH('Rate Trajectory Report'!$B77,'Rate Trajectory Calc'!$A$6:$A$92,0),MATCH('Rate Trajectory Report'!S$5,'Rate Trajectory Calc'!$A$6:$CQ$6,0))/1000)","v":" "},{"$f":"IF(INDEX('Rate Trajectory Calc'!$A$6:$CQ$92,MATCH('Rate Trajectory Report'!$B77,'Rate Trajectory Calc'!$A$6:$A$92,0),MATCH('Rate Trajectory Report'!T$5,'Rate Trajectory Calc'!$A$6:$CQ$6,0))=0,\" \",INDEX('Rate Trajectory Calc'!$A$6:$CQ$92,MATCH('Rate Trajectory Report'!$B77,'Rate Trajectory Calc'!$A$6:$A$92,0),MATCH('Rate Trajectory Report'!T$5,'Rate Trajectory Calc'!$A$6:$CQ$6,0))/1000)","v":-2.7308752644137711E-2},{"$f":"IF(INDEX('Rate Trajectory Calc'!$A$6:$CQ$92,MATCH('Rate Trajectory Report'!$B77,'Rate Trajectory Calc'!$A$6:$A$92,0),MATCH('Rate Trajectory Report'!U$5,'Rate Trajectory Calc'!$A$6:$CQ$6,0))=0,\" \",INDEX('Rate Trajectory Calc'!$A$6:$CQ$92,MATCH('Rate Trajectory Report'!$B77,'Rate Trajectory Calc'!$A$6:$A$92,0),MATCH('Rate Trajectory Report'!U$5,'Rate Trajectory Calc'!$A$6:$CQ$6,0))/1000)","v":" "},{"$f":"IF(INDEX('Rate Trajectory Calc'!$A$6:$CQ$92,MATCH('Rate Trajectory Report'!$B77,'Rate Trajectory Calc'!$A$6:$A$92,0),MATCH('Rate Trajectory Report'!V$5,'Rate Trajectory Calc'!$A$6:$CQ$6,0))=0,\" \",INDEX('Rate Trajectory Calc'!$A$6:$CQ$92,MATCH('Rate Trajectory Report'!$B77,'Rate Trajectory Calc'!$A$6:$A$92,0),MATCH('Rate Trajectory Report'!V$5,'Rate Trajectory Calc'!$A$6:$CQ$6,0))/1000)","v":" "},{"$f":"IF(INDEX('Rate Trajectory Calc'!$A$6:$CQ$92,MATCH('Rate Trajectory Report'!$B77,'Rate Trajectory Calc'!$A$6:$A$92,0),MATCH('Rate Trajectory Report'!W$5,'Rate Trajectory Calc'!$A$6:$CQ$6,0))=0,\" \",INDEX('Rate Trajectory Calc'!$A$6:$CQ$92,MATCH('Rate Trajectory Report'!$B77,'Rate Trajectory Calc'!$A$6:$A$92,0),MATCH('Rate Trajectory Report'!W$5,'Rate Trajectory Calc'!$A$6:$CQ$6,0))/1000)","v":" "},{"$f":"IF(INDEX('Rate Trajectory Calc'!$A$6:$CQ$92,MATCH('Rate Trajectory Report'!$B77,'Rate Trajectory Calc'!$A$6:$A$92,0),MATCH('Rate Trajectory Report'!X$5,'Rate Trajectory Calc'!$A$6:$CQ$6,0))=0,\" \",INDEX('Rate Trajectory Calc'!$A$6:$CQ$92,MATCH('Rate Trajectory Report'!$B77,'Rate Trajectory Calc'!$A$6:$A$92,0),MATCH('Rate Trajectory Report'!X$5,'Rate Trajectory Calc'!$A$6:$CQ$6,0))/1000)","v":" "},{"$f":"IF(INDEX('Rate Trajectory Calc'!$A$6:$CQ$92,MATCH('Rate Trajectory Report'!$B77,'Rate Trajectory Calc'!$A$6:$A$92,0),MATCH('Rate Trajectory Report'!Y$5,'Rate Trajectory Calc'!$A$6:$CQ$6,0))=0,\" \",INDEX('Rate Trajectory Calc'!$A$6:$CQ$92,MATCH('Rate Trajectory Report'!$B77,'Rate Trajectory Calc'!$A$6:$A$92,0),MATCH('Rate Trajectory Report'!Y$5,'Rate Trajectory Calc'!$A$6:$CQ$6,0))/1000)","v":" "},{"$f":"IF(INDEX('Rate Trajectory Calc'!$A$6:$CQ$92,MATCH('Rate Trajectory Report'!$B77,'Rate Trajectory Calc'!$A$6:$A$92,0),MATCH('Rate Trajectory Report'!Z$5,'Rate Trajectory Calc'!$A$6:$CQ$6,0))=0,\" \",INDEX('Rate Trajectory Calc'!$A$6:$CQ$92,MATCH('Rate Trajectory Report'!$B77,'Rate Trajectory Calc'!$A$6:$A$92,0),MATCH('Rate Trajectory Report'!Z$5,'Rate Trajectory Calc'!$A$6:$CQ$6,0))/1000)","v":" "},{"$f":"IF(INDEX('Rate Trajectory Calc'!$A$6:$CQ$92,MATCH('Rate Trajectory Report'!$B77,'Rate Trajectory Calc'!$A$6:$A$92,0),MATCH('Rate Trajectory Report'!AA$5,'Rate Trajectory Calc'!$A$6:$CQ$6,0))=0,\" \",INDEX('Rate Trajectory Calc'!$A$6:$CQ$92,MATCH('Rate Trajectory Report'!$B77,'Rate Trajectory Calc'!$A$6:$A$92,0),MATCH('Rate Trajectory Report'!AA$5,'Rate Trajectory Calc'!$A$6:$CQ$6,0))/1000)","v":" "}]
[null,{"$f":"'Rate Trajectory Dashboard'!B63","v":"2027 GRC - Core Procurement (Storage) - Year 2028"},{"$f":"IFERROR(VLOOKUP(B78,'Rate Trajectory Dashboard'!$B$12:$D$96,3,FALSE)/1000,'Rate Trajectory Report'!C77)","v":134.50289385966863},{"$f":"IF(INDEX('Rate Trajectory Calc'!$A$6:$CQ$92,MATCH('Rate Trajectory Report'!$B78,'Rate Trajectory Calc'!$A$6:$A$92,0),MATCH('Rate Trajectory Report'!D$5,'Rate Trajectory Calc'!$A$6:$CQ$6,0))=0,\" \",INDEX('Rate Trajectory Calc'!$A$6:$CQ$92,MATCH('Rate Trajectory Report'!$B78,'Rate Trajectory Calc'!$A$6:$A$92,0),MATCH('Rate Trajectory Report'!D$5,'Rate Trajectory Calc'!$A$6:$CQ$6,0))/1000)","v":" "},{"$f":"IF(INDEX('Rate Trajectory Calc'!$A$6:$CQ$92,MATCH('Rate Trajectory Report'!$B78,'Rate Trajectory Calc'!$A$6:$A$92,0),MATCH('Rate Trajectory Report'!E$5,'Rate Trajectory Calc'!$A$6:$CQ$6,0))=0,\" \",INDEX('Rate Trajectory Calc'!$A$6:$CQ$92,MATCH('Rate Trajectory Report'!$B78,'Rate Trajectory Calc'!$A$6:$A$92,0),MATCH('Rate Trajectory Report'!E$5,'Rate Trajectory Calc'!$A$6:$CQ$6,0))/1000)","v":" "},{"$f":"IF(INDEX('Rate Trajectory Calc'!$A$6:$CQ$92,MATCH('Rate Trajectory Report'!$B78,'Rate Trajectory Calc'!$A$6:$A$92,0),MATCH('Rate Trajectory Report'!F$5,'Rate Trajectory Calc'!$A$6:$CQ$6,0))=0,\" \",INDEX('Rate Trajectory Calc'!$A$6:$CQ$92,MATCH('Rate Trajectory Report'!$B78,'Rate Trajectory Calc'!$A$6:$A$92,0),MATCH('Rate Trajectory Report'!F$5,'Rate Trajectory Calc'!$A$6:$CQ$6,0))/1000)","v":" "},{"$f":"IF(INDEX('Rate Trajectory Calc'!$A$6:$CQ$92,MATCH('Rate Trajectory Report'!$B78,'Rate Trajectory Calc'!$A$6:$A$92,0),MATCH('Rate Trajectory Report'!G$5,'Rate Trajectory Calc'!$A$6:$CQ$6,0))=0,\" \",INDEX('Rate Trajectory Calc'!$A$6:$CQ$92,MATCH('Rate Trajectory Report'!$B78,'Rate Trajectory Calc'!$A$6:$A$92,0),MATCH('Rate Trajectory Report'!G$5,'Rate Trajectory Calc'!$A$6:$CQ$6,0))/1000)","v":" "},{"$f":"IF(INDEX('Rate Trajectory Calc'!$A$6:$CQ$92,MATCH('Rate Trajectory Report'!$B78,'Rate Trajectory Calc'!$A$6:$A$92,0),MATCH('Rate Trajectory Report'!H$5,'Rate Trajectory Calc'!$A$6:$CQ$6,0))=0,\" \",INDEX('Rate Trajectory Calc'!$A$6:$CQ$92,MATCH('Rate Trajectory Report'!$B78,'Rate Trajectory Calc'!$A$6:$A$92,0),MATCH('Rate Trajectory Report'!H$5,'Rate Trajectory Calc'!$A$6:$CQ$6,0))/1000)","v":" "},{"$f":"IF(INDEX('Rate Trajectory Calc'!$A$6:$CQ$92,MATCH('Rate Trajectory Report'!$B78,'Rate Trajectory Calc'!$A$6:$A$92,0),MATCH('Rate Trajectory Report'!I$5,'Rate Trajectory Calc'!$A$6:$CQ$6,0))=0,\" \",INDEX('Rate Trajectory Calc'!$A$6:$CQ$92,MATCH('Rate Trajectory Report'!$B78,'Rate Trajectory Calc'!$A$6:$A$92,0),MATCH('Rate Trajectory Report'!I$5,'Rate Trajectory Calc'!$A$6:$CQ$6,0))/1000)","v":" "},{"$f":"IF(INDEX('Rate Trajectory Calc'!$A$6:$CQ$92,MATCH('Rate Trajectory Report'!$B78,'Rate Trajectory Calc'!$A$6:$A$92,0),MATCH('Rate Trajectory Report'!J$5,'Rate Trajectory Calc'!$A$6:$CQ$6,0))=0,\" \",INDEX('Rate Trajectory Calc'!$A$6:$CQ$92,MATCH('Rate Trajectory Report'!$B78,'Rate Trajectory Calc'!$A$6:$A$92,0),MATCH('Rate Trajectory Report'!J$5,'Rate Trajectory Calc'!$A$6:$CQ$6,0))/1000)","v":" "},{"$f":"IF(INDEX('Rate Trajectory Calc'!$A$6:$CQ$92,MATCH('Rate Trajectory Report'!$B78,'Rate Trajectory Calc'!$A$6:$A$92,0),MATCH('Rate Trajectory Report'!K$5,'Rate Trajectory Calc'!$A$6:$CQ$6,0))=0,\" \",INDEX('Rate Trajectory Calc'!$A$6:$CQ$92,MATCH('Rate Trajectory Report'!$B78,'Rate Trajectory Calc'!$A$6:$A$92,0),MATCH('Rate Trajectory Report'!K$5,'Rate Trajectory Calc'!$A$6:$CQ$6,0))/1000)","v":" "},{"$f":"IF(INDEX('Rate Trajectory Calc'!$A$6:$CQ$92,MATCH('Rate Trajectory Report'!$B78,'Rate Trajectory Calc'!$A$6:$A$92,0),MATCH('Rate Trajectory Report'!L$5,'Rate Trajectory Calc'!$A$6:$CQ$6,0))=0,\" \",INDEX('Rate Trajectory Calc'!$A$6:$CQ$92,MATCH('Rate Trajectory Report'!$B78,'Rate Trajectory Calc'!$A$6:$A$92,0),MATCH('Rate Trajectory Report'!L$5,'Rate Trajectory Calc'!$A$6:$CQ$6,0))/1000)","v":" "},{"$f":"IF(INDEX('Rate Trajectory Calc'!$A$6:$CQ$92,MATCH('Rate Trajectory Report'!$B78,'Rate Trajectory Calc'!$A$6:$A$92,0),MATCH('Rate Trajectory Report'!M$5,'Rate Trajectory Calc'!$A$6:$CQ$6,0))=0,\" \",INDEX('Rate Trajectory Calc'!$A$6:$CQ$92,MATCH('Rate Trajectory Report'!$B78,'Rate Trajectory Calc'!$A$6:$A$92,0),MATCH('Rate Trajectory Report'!M$5,'Rate Trajectory Calc'!$A$6:$CQ$6,0))/1000)","v":" "},{"$f":"IF(INDEX('Rate Trajectory Calc'!$A$6:$CQ$92,MATCH('Rate Trajectory Report'!$B78,'Rate Trajectory Calc'!$A$6:$A$92,0),MATCH('Rate Trajectory Report'!N$5,'Rate Trajectory Calc'!$A$6:$CQ$6,0))=0,\" \",INDEX('Rate Trajectory Calc'!$A$6:$CQ$92,MATCH('Rate Trajectory Report'!$B78,'Rate Trajectory Calc'!$A$6:$A$92,0),MATCH('Rate Trajectory Report'!N$5,'Rate Trajectory Calc'!$A$6:$CQ$6,0))/1000)","v":" "},{"$f":"IF(INDEX('Rate Trajectory Calc'!$A$6:$CQ$92,MATCH('Rate Trajectory Report'!$B78,'Rate Trajectory Calc'!$A$6:$A$92,0),MATCH('Rate Trajectory Report'!O$5,'Rate Trajectory Calc'!$A$6:$CQ$6,0))=0,\" \",INDEX('Rate Trajectory Calc'!$A$6:$CQ$92,MATCH('Rate Trajectory Report'!$B78,'Rate Trajectory Calc'!$A$6:$A$92,0),MATCH('Rate Trajectory Report'!O$5,'Rate Trajectory Calc'!$A$6:$CQ$6,0))/1000)","v":" "},{"$f":"IF(INDEX('Rate Trajectory Calc'!$A$6:$CQ$92,MATCH('Rate Trajectory Report'!$B78,'Rate Trajectory Calc'!$A$6:$A$92,0),MATCH('Rate Trajectory Report'!P$5,'Rate Trajectory Calc'!$A$6:$CQ$6,0))=0,\" \",INDEX('Rate Trajectory Calc'!$A$6:$CQ$92,MATCH('Rate Trajectory Report'!$B78,'Rate Trajectory Calc'!$A$6:$A$92,0),MATCH('Rate Trajectory Report'!P$5,'Rate Trajectory Calc'!$A$6:$CQ$6,0))/1000)","v":" "},{"$f":"IF(INDEX('Rate Trajectory Calc'!$A$6:$CQ$92,MATCH('Rate Trajectory Report'!$B78,'Rate Trajectory Calc'!$A$6:$A$92,0),MATCH('Rate Trajectory Report'!Q$5,'Rate Trajectory Calc'!$A$6:$CQ$6,0))=0,\" \",INDEX('Rate Trajectory Calc'!$A$6:$CQ$92,MATCH('Rate Trajectory Report'!$B78,'Rate Trajectory Calc'!$A$6:$A$92,0),MATCH('Rate Trajectory Report'!Q$5,'Rate Trajectory Calc'!$A$6:$CQ$6,0))/1000)","v":" "},{"$f":"IF(INDEX('Rate Trajectory Calc'!$A$6:$CQ$92,MATCH('Rate Trajectory Report'!$B78,'Rate Trajectory Calc'!$A$6:$A$92,0),MATCH('Rate Trajectory Report'!R$5,'Rate Trajectory Calc'!$A$6:$CQ$6,0))=0,\" \",INDEX('Rate Trajectory Calc'!$A$6:$CQ$92,MATCH('Rate Trajectory Report'!$B78,'Rate Trajectory Calc'!$A$6:$A$92,0),MATCH('Rate Trajectory Report'!R$5,'Rate Trajectory Calc'!$A$6:$CQ$6,0))/1000)","v":" "},{"$f":"IF(INDEX('Rate Trajectory Calc'!$A$6:$CQ$92,MATCH('Rate Trajectory Report'!$B78,'Rate Trajectory Calc'!$A$6:$A$92,0),MATCH('Rate Trajectory Report'!S$5,'Rate Trajectory Calc'!$A$6:$CQ$6,0))=0,\" \",INDEX('Rate Trajectory Calc'!$A$6:$CQ$92,MATCH('Rate Trajectory Report'!$B78,'Rate Trajectory Calc'!$A$6:$A$92,0),MATCH('Rate Trajectory Report'!S$5,'Rate Trajectory Calc'!$A$6:$CQ$6,0))/1000)","v":" "},{"$f":"IF(INDEX('Rate Trajectory Calc'!$A$6:$CQ$92,MATCH('Rate Trajectory Report'!$B78,'Rate Trajectory Calc'!$A$6:$A$92,0),MATCH('Rate Trajectory Report'!T$5,'Rate Trajectory Calc'!$A$6:$CQ$6,0))=0,\" \",INDEX('Rate Trajectory Calc'!$A$6:$CQ$92,MATCH('Rate Trajectory Report'!$B78,'Rate Trajectory Calc'!$A$6:$A$92,0),MATCH('Rate Trajectory Report'!T$5,'Rate Trajectory Calc'!$A$6:$CQ$6,0))/1000)","v":" "},{"$f":"IF(INDEX('Rate Trajectory Calc'!$A$6:$CQ$92,MATCH('Rate Trajectory Report'!$B78,'Rate Trajectory Calc'!$A$6:$A$92,0),MATCH('Rate Trajectory Report'!U$5,'Rate Trajectory Calc'!$A$6:$CQ$6,0))=0,\" \",INDEX('Rate Trajectory Calc'!$A$6:$CQ$92,MATCH('Rate Trajectory Report'!$B78,'Rate Trajectory Calc'!$A$6:$A$92,0),MATCH('Rate Trajectory Report'!U$5,'Rate Trajectory Calc'!$A$6:$CQ$6,0))/1000)","v":" "},{"$f":"IF(INDEX('Rate Trajectory Calc'!$A$6:$CQ$92,MATCH('Rate Trajectory Report'!$B78,'Rate Trajectory Calc'!$A$6:$A$92,0),MATCH('Rate Trajectory Report'!V$5,'Rate Trajectory Calc'!$A$6:$CQ$6,0))=0,\" \",INDEX('Rate Trajectory Calc'!$A$6:$CQ$92,MATCH('Rate Trajectory Report'!$B78,'Rate Trajectory Calc'!$A$6:$A$92,0),MATCH('Rate Trajectory Report'!V$5,'Rate Trajectory Calc'!$A$6:$CQ$6,0))/1000)","v":" "},{"$f":"IF(INDEX('Rate Trajectory Calc'!$A$6:$CQ$92,MATCH('Rate Trajectory Report'!$B78,'Rate Trajectory Calc'!$A$6:$A$92,0),MATCH('Rate Trajectory Report'!W$5,'Rate Trajectory Calc'!$A$6:$CQ$6,0))=0,\" \",INDEX('Rate Trajectory Calc'!$A$6:$CQ$92,MATCH('Rate Trajectory Report'!$B78,'Rate Trajectory Calc'!$A$6:$A$92,0),MATCH('Rate Trajectory Report'!W$5,'Rate Trajectory Calc'!$A$6:$CQ$6,0))/1000)","v":" "},{"$f":"IF(INDEX('Rate Trajectory Calc'!$A$6:$CQ$92,MATCH('Rate Trajectory Report'!$B78,'Rate Trajectory Calc'!$A$6:$A$92,0),MATCH('Rate Trajectory Report'!X$5,'Rate Trajectory Calc'!$A$6:$CQ$6,0))=0,\" \",INDEX('Rate Trajectory Calc'!$A$6:$CQ$92,MATCH('Rate Trajectory Report'!$B78,'Rate Trajectory Calc'!$A$6:$A$92,0),MATCH('Rate Trajectory Report'!X$5,'Rate Trajectory Calc'!$A$6:$CQ$6,0))/1000)","v":" "},{"$f":"IF(INDEX('Rate Trajectory Calc'!$A$6:$CQ$92,MATCH('Rate Trajectory Report'!$B78,'Rate Trajectory Calc'!$A$6:$A$92,0),MATCH('Rate Trajectory Report'!Y$5,'Rate Trajectory Calc'!$A$6:$CQ$6,0))=0,\" \",INDEX('Rate Trajectory Calc'!$A$6:$CQ$92,MATCH('Rate Trajectory Report'!$B78,'Rate Trajectory Calc'!$A$6:$A$92,0),MATCH('Rate Trajectory Report'!Y$5,'Rate Trajectory Calc'!$A$6:$CQ$6,0))/1000)","v":" "},{"$f":"IF(INDEX('Rate Trajectory Calc'!$A$6:$CQ$92,MATCH('Rate Trajectory Report'!$B78,'Rate Trajectory Calc'!$A$6:$A$92,0),MATCH('Rate Trajectory Report'!Z$5,'Rate Trajectory Calc'!$A$6:$CQ$6,0))=0,\" \",INDEX('Rate Trajectory Calc'!$A$6:$CQ$92,MATCH('Rate Trajectory Report'!$B78,'Rate Trajectory Calc'!$A$6:$A$92,0),MATCH('Rate Trajectory Report'!Z$5,'Rate Trajectory Calc'!$A$6:$CQ$6,0))/1000)","v":" "},{"$f":"IF(INDEX('Rate Trajectory Calc'!$A$6:$CQ$92,MATCH('Rate Trajectory Report'!$B78,'Rate Trajectory Calc'!$A$6:$A$92,0),MATCH('Rate Trajectory Report'!AA$5,'Rate Trajectory Calc'!$A$6:$CQ$6,0))=0,\" \",INDEX('Rate Trajectory Calc'!$A$6:$CQ$92,MATCH('Rate Trajectory Report'!$B78,'Rate Trajectory Calc'!$A$6:$A$92,0),MATCH('Rate Trajectory Report'!AA$5,'Rate Trajectory Calc'!$A$6:$CQ$6,0))/1000)","v":" "}]
[null,{"$f":"'Rate Trajectory Dashboard'!B64","v":"2027 GRC - Core Procurement (Storage) - Year 2029"},{"$f":"IFERROR(VLOOKUP(B79,'Rate Trajectory Dashboard'!$B$12:$D$96,3,FALSE)/1000,'Rate Trajectory Report'!C78)","v":134.50289385966863},{"$f":"IF(INDEX('Rate Trajectory Calc'!$A$6:$CQ$92,MATCH('Rate Trajectory Report'!$B79,'Rate Trajectory Calc'!$A$6:$A$92,0),MATCH('Rate Trajectory Report'!D$5,'Rate Trajectory Calc'!$A$6:$CQ$6,0))=0,\" \",INDEX('Rate Trajectory Calc'!$A$6:$CQ$92,MATCH('Rate Trajectory Report'!$B79,'Rate Trajectory Calc'!$A$6:$A$92,0),MATCH('Rate Trajectory Report'!D$5,'Rate Trajectory Calc'!$A$6:$CQ$6,0))/1000)","v":" "},{"$f":"IF(INDEX('Rate Trajectory Calc'!$A$6:$CQ$92,MATCH('Rate Trajectory Report'!$B79,'Rate Trajectory Calc'!$A$6:$A$92,0),MATCH('Rate Trajectory Report'!E$5,'Rate Trajectory Calc'!$A$6:$CQ$6,0))=0,\" \",INDEX('Rate Trajectory Calc'!$A$6:$CQ$92,MATCH('Rate Trajectory Report'!$B79,'Rate Trajectory Calc'!$A$6:$A$92,0),MATCH('Rate Trajectory Report'!E$5,'Rate Trajectory Calc'!$A$6:$CQ$6,0))/1000)","v":" "},{"$f":"IF(INDEX('Rate Trajectory Calc'!$A$6:$CQ$92,MATCH('Rate Trajectory Report'!$B79,'Rate Trajectory Calc'!$A$6:$A$92,0),MATCH('Rate Trajectory Report'!F$5,'Rate Trajectory Calc'!$A$6:$CQ$6,0))=0,\" \",INDEX('Rate Trajectory Calc'!$A$6:$CQ$92,MATCH('Rate Trajectory Report'!$B79,'Rate Trajectory Calc'!$A$6:$A$92,0),MATCH('Rate Trajectory Report'!F$5,'Rate Trajectory Calc'!$A$6:$CQ$6,0))/1000)","v":" "},{"$f":"IF(INDEX('Rate Trajectory Calc'!$A$6:$CQ$92,MATCH('Rate Trajectory Report'!$B79,'Rate Trajectory Calc'!$A$6:$A$92,0),MATCH('Rate Trajectory Report'!G$5,'Rate Trajectory Calc'!$A$6:$CQ$6,0))=0,\" \",INDEX('Rate Trajectory Calc'!$A$6:$CQ$92,MATCH('Rate Trajectory Report'!$B79,'Rate Trajectory Calc'!$A$6:$A$92,0),MATCH('Rate Trajectory Report'!G$5,'Rate Trajectory Calc'!$A$6:$CQ$6,0))/1000)","v":" "},{"$f":"IF(INDEX('Rate Trajectory Calc'!$A$6:$CQ$92,MATCH('Rate Trajectory Report'!$B79,'Rate Trajectory Calc'!$A$6:$A$92,0),MATCH('Rate Trajectory Report'!H$5,'Rate Trajectory Calc'!$A$6:$CQ$6,0))=0,\" \",INDEX('Rate Trajectory Calc'!$A$6:$CQ$92,MATCH('Rate Trajectory Report'!$B79,'Rate Trajectory Calc'!$A$6:$A$92,0),MATCH('Rate Trajectory Report'!H$5,'Rate Trajectory Calc'!$A$6:$CQ$6,0))/1000)","v":" "},{"$f":"IF(INDEX('Rate Trajectory Calc'!$A$6:$CQ$92,MATCH('Rate Trajectory Report'!$B79,'Rate Trajectory Calc'!$A$6:$A$92,0),MATCH('Rate Trajectory Report'!I$5,'Rate Trajectory Calc'!$A$6:$CQ$6,0))=0,\" \",INDEX('Rate Trajectory Calc'!$A$6:$CQ$92,MATCH('Rate Trajectory Report'!$B79,'Rate Trajectory Calc'!$A$6:$A$92,0),MATCH('Rate Trajectory Report'!I$5,'Rate Trajectory Calc'!$A$6:$CQ$6,0))/1000)","v":" "},{"$f":"IF(INDEX('Rate Trajectory Calc'!$A$6:$CQ$92,MATCH('Rate Trajectory Report'!$B79,'Rate Trajectory Calc'!$A$6:$A$92,0),MATCH('Rate Trajectory Report'!J$5,'Rate Trajectory Calc'!$A$6:$CQ$6,0))=0,\" \",INDEX('Rate Trajectory Calc'!$A$6:$CQ$92,MATCH('Rate Trajectory Report'!$B79,'Rate Trajectory Calc'!$A$6:$A$92,0),MATCH('Rate Trajectory Report'!J$5,'Rate Trajectory Calc'!$A$6:$CQ$6,0))/1000)","v":" "},{"$f":"IF(INDEX('Rate Trajectory Calc'!$A$6:$CQ$92,MATCH('Rate Trajectory Report'!$B79,'Rate Trajectory Calc'!$A$6:$A$92,0),MATCH('Rate Trajectory Report'!K$5,'Rate Trajectory Calc'!$A$6:$CQ$6,0))=0,\" \",INDEX('Rate Trajectory Calc'!$A$6:$CQ$92,MATCH('Rate Trajectory Report'!$B79,'Rate Trajectory Calc'!$A$6:$A$92,0),MATCH('Rate Trajectory Report'!K$5,'Rate Trajectory Calc'!$A$6:$CQ$6,0))/1000)","v":" "},{"$f":"IF(INDEX('Rate Trajectory Calc'!$A$6:$CQ$92,MATCH('Rate Trajectory Report'!$B79,'Rate Trajectory Calc'!$A$6:$A$92,0),MATCH('Rate Trajectory Report'!L$5,'Rate Trajectory Calc'!$A$6:$CQ$6,0))=0,\" \",INDEX('Rate Trajectory Calc'!$A$6:$CQ$92,MATCH('Rate Trajectory Report'!$B79,'Rate Trajectory Calc'!$A$6:$A$92,0),MATCH('Rate Trajectory Report'!L$5,'Rate Trajectory Calc'!$A$6:$CQ$6,0))/1000)","v":" "},{"$f":"IF(INDEX('Rate Trajectory Calc'!$A$6:$CQ$92,MATCH('Rate Trajectory Report'!$B79,'Rate Trajectory Calc'!$A$6:$A$92,0),MATCH('Rate Trajectory Report'!M$5,'Rate Trajectory Calc'!$A$6:$CQ$6,0))=0,\" \",INDEX('Rate Trajectory Calc'!$A$6:$CQ$92,MATCH('Rate Trajectory Report'!$B79,'Rate Trajectory Calc'!$A$6:$A$92,0),MATCH('Rate Trajectory Report'!M$5,'Rate Trajectory Calc'!$A$6:$CQ$6,0))/1000)","v":" "},{"$f":"IF(INDEX('Rate Trajectory Calc'!$A$6:$CQ$92,MATCH('Rate Trajectory Report'!$B79,'Rate Trajectory Calc'!$A$6:$A$92,0),MATCH('Rate Trajectory Report'!N$5,'Rate Trajectory Calc'!$A$6:$CQ$6,0))=0,\" \",INDEX('Rate Trajectory Calc'!$A$6:$CQ$92,MATCH('Rate Trajectory Report'!$B79,'Rate Trajectory Calc'!$A$6:$A$92,0),MATCH('Rate Trajectory Report'!N$5,'Rate Trajectory Calc'!$A$6:$CQ$6,0))/1000)","v":" "},{"$f":"IF(INDEX('Rate Trajectory Calc'!$A$6:$CQ$92,MATCH('Rate Trajectory Report'!$B79,'Rate Trajectory Calc'!$A$6:$A$92,0),MATCH('Rate Trajectory Report'!O$5,'Rate Trajectory Calc'!$A$6:$CQ$6,0))=0,\" \",INDEX('Rate Trajectory Calc'!$A$6:$CQ$92,MATCH('Rate Trajectory Report'!$B79,'Rate Trajectory Calc'!$A$6:$A$92,0),MATCH('Rate Trajectory Report'!O$5,'Rate Trajectory Calc'!$A$6:$CQ$6,0))/1000)","v":" "},{"$f":"IF(INDEX('Rate Trajectory Calc'!$A$6:$CQ$92,MATCH('Rate Trajectory Report'!$B79,'Rate Trajectory Calc'!$A$6:$A$92,0),MATCH('Rate Trajectory Report'!P$5,'Rate Trajectory Calc'!$A$6:$CQ$6,0))=0,\" \",INDEX('Rate Trajectory Calc'!$A$6:$CQ$92,MATCH('Rate Trajectory Report'!$B79,'Rate Trajectory Calc'!$A$6:$A$92,0),MATCH('Rate Trajectory Report'!P$5,'Rate Trajectory Calc'!$A$6:$CQ$6,0))/1000)","v":" "},{"$f":"IF(INDEX('Rate Trajectory Calc'!$A$6:$CQ$92,MATCH('Rate Trajectory Report'!$B79,'Rate Trajectory Calc'!$A$6:$A$92,0),MATCH('Rate Trajectory Report'!Q$5,'Rate Trajectory Calc'!$A$6:$CQ$6,0))=0,\" \",INDEX('Rate Trajectory Calc'!$A$6:$CQ$92,MATCH('Rate Trajectory Report'!$B79,'Rate Trajectory Calc'!$A$6:$A$92,0),MATCH('Rate Trajectory Report'!Q$5,'Rate Trajectory Calc'!$A$6:$CQ$6,0))/1000)","v":" "},{"$f":"IF(INDEX('Rate Trajectory Calc'!$A$6:$CQ$92,MATCH('Rate Trajectory Report'!$B79,'Rate Trajectory Calc'!$A$6:$A$92,0),MATCH('Rate Trajectory Report'!R$5,'Rate Trajectory Calc'!$A$6:$CQ$6,0))=0,\" \",INDEX('Rate Trajectory Calc'!$A$6:$CQ$92,MATCH('Rate Trajectory Report'!$B79,'Rate Trajectory Calc'!$A$6:$A$92,0),MATCH('Rate Trajectory Report'!R$5,'Rate Trajectory Calc'!$A$6:$CQ$6,0))/1000)","v":" "},{"$f":"IF(INDEX('Rate Trajectory Calc'!$A$6:$CQ$92,MATCH('Rate Trajectory Report'!$B79,'Rate Trajectory Calc'!$A$6:$A$92,0),MATCH('Rate Trajectory Report'!S$5,'Rate Trajectory Calc'!$A$6:$CQ$6,0))=0,\" \",INDEX('Rate Trajectory Calc'!$A$6:$CQ$92,MATCH('Rate Trajectory Report'!$B79,'Rate Trajectory Calc'!$A$6:$A$92,0),MATCH('Rate Trajectory Report'!S$5,'Rate Trajectory Calc'!$A$6:$CQ$6,0))/1000)","v":" "},{"$f":"IF(INDEX('Rate Trajectory Calc'!$A$6:$CQ$92,MATCH('Rate Trajectory Report'!$B79,'Rate Trajectory Calc'!$A$6:$A$92,0),MATCH('Rate Trajectory Report'!T$5,'Rate Trajectory Calc'!$A$6:$CQ$6,0))=0,\" \",INDEX('Rate Trajectory Calc'!$A$6:$CQ$92,MATCH('Rate Trajectory Report'!$B79,'Rate Trajectory Calc'!$A$6:$A$92,0),MATCH('Rate Trajectory Report'!T$5,'Rate Trajectory Calc'!$A$6:$CQ$6,0))/1000)","v":" "},{"$f":"IF(INDEX('Rate Trajectory Calc'!$A$6:$CQ$92,MATCH('Rate Trajectory Report'!$B79,'Rate Trajectory Calc'!$A$6:$A$92,0),MATCH('Rate Trajectory Report'!U$5,'Rate Trajectory Calc'!$A$6:$CQ$6,0))=0,\" \",INDEX('Rate Trajectory Calc'!$A$6:$CQ$92,MATCH('Rate Trajectory Report'!$B79,'Rate Trajectory Calc'!$A$6:$A$92,0),MATCH('Rate Trajectory Report'!U$5,'Rate Trajectory Calc'!$A$6:$CQ$6,0))/1000)","v":" "},{"$f":"IF(INDEX('Rate Trajectory Calc'!$A$6:$CQ$92,MATCH('Rate Trajectory Report'!$B79,'Rate Trajectory Calc'!$A$6:$A$92,0),MATCH('Rate Trajectory Report'!V$5,'Rate Trajectory Calc'!$A$6:$CQ$6,0))=0,\" \",INDEX('Rate Trajectory Calc'!$A$6:$CQ$92,MATCH('Rate Trajectory Report'!$B79,'Rate Trajectory Calc'!$A$6:$A$92,0),MATCH('Rate Trajectory Report'!V$5,'Rate Trajectory Calc'!$A$6:$CQ$6,0))/1000)","v":" "},{"$f":"IF(INDEX('Rate Trajectory Calc'!$A$6:$CQ$92,MATCH('Rate Trajectory Report'!$B79,'Rate Trajectory Calc'!$A$6:$A$92,0),MATCH('Rate Trajectory Report'!W$5,'Rate Trajectory Calc'!$A$6:$CQ$6,0))=0,\" \",INDEX('Rate Trajectory Calc'!$A$6:$CQ$92,MATCH('Rate Trajectory Report'!$B79,'Rate Trajectory Calc'!$A$6:$A$92,0),MATCH('Rate Trajectory Report'!W$5,'Rate Trajectory Calc'!$A$6:$CQ$6,0))/1000)","v":" "},{"$f":"IF(INDEX('Rate Trajectory Calc'!$A$6:$CQ$92,MATCH('Rate Trajectory Report'!$B79,'Rate Trajectory Calc'!$A$6:$A$92,0),MATCH('Rate Trajectory Report'!X$5,'Rate Trajectory Calc'!$A$6:$CQ$6,0))=0,\" \",INDEX('Rate Trajectory Calc'!$A$6:$CQ$92,MATCH('Rate Trajectory Report'!$B79,'Rate Trajectory Calc'!$A$6:$A$92,0),MATCH('Rate Trajectory Report'!X$5,'Rate Trajectory Calc'!$A$6:$CQ$6,0))/1000)","v":" "},{"$f":"IF(INDEX('Rate Trajectory Calc'!$A$6:$CQ$92,MATCH('Rate Trajectory Report'!$B79,'Rate Trajectory Calc'!$A$6:$A$92,0),MATCH('Rate Trajectory Report'!Y$5,'Rate Trajectory Calc'!$A$6:$CQ$6,0))=0,\" \",INDEX('Rate Trajectory Calc'!$A$6:$CQ$92,MATCH('Rate Trajectory Report'!$B79,'Rate Trajectory Calc'!$A$6:$A$92,0),MATCH('Rate Trajectory Report'!Y$5,'Rate Trajectory Calc'!$A$6:$CQ$6,0))/1000)","v":" "},{"$f":"IF(INDEX('Rate Trajectory Calc'!$A$6:$CQ$92,MATCH('Rate Trajectory Report'!$B79,'Rate Trajectory Calc'!$A$6:$A$92,0),MATCH('Rate Trajectory Report'!Z$5,'Rate Trajectory Calc'!$A$6:$CQ$6,0))=0,\" \",INDEX('Rate Trajectory Calc'!$A$6:$CQ$92,MATCH('Rate Trajectory Report'!$B79,'Rate Trajectory Calc'!$A$6:$A$92,0),MATCH('Rate Trajectory Report'!Z$5,'Rate Trajectory Calc'!$A$6:$CQ$6,0))/1000)","v":" "},{"$f":"IF(INDEX('Rate Trajectory Calc'!$A$6:$CQ$92,MATCH('Rate Trajectory Report'!$B79,'Rate Trajectory Calc'!$A$6:$A$92,0),MATCH('Rate Trajectory Report'!AA$5,'Rate Trajectory Calc'!$A$6:$CQ$6,0))=0,\" \",INDEX('Rate Trajectory Calc'!$A$6:$CQ$92,MATCH('Rate Trajectory Report'!$B79,'Rate Trajectory Calc'!$A$6:$A$92,0),MATCH('Rate Trajectory Report'!AA$5,'Rate Trajectory Calc'!$A$6:$CQ$6,0))/1000)","v":" "}]
["13d","2027 GRC - Core Procurement (Storage)",{"$f":"IFERROR(VLOOKUP(B80,'Rate Trajectory Dashboard'!$B$12:$D$96,3,FALSE)/1000,'Rate Trajectory Report'!C79)","v":134.50289385966863},{"$f":"IF(SUM(D77:D79)=0,\" \",SUBTOTAL(9,D77:D79))","v":" "},{"$f":"IF(SUM(E77:E79)=0,\" \",SUBTOTAL(9,E77:E79))","v":" "}," "," "," "," "," "," "," "," "," "," "," "," "," "," ",-2.7308752644137711E-2," "," "," "," "," "," "," "]
[null,{"$f":"'Rate Trajectory Dashboard'!B65","v":"2027 GRC - Noncore Local Transmission - Year 2027"},{"$f":"IFERROR(VLOOKUP(B81,'Rate Trajectory Dashboard'!$B$12:$D$96,3,FALSE)/1000,'Rate Trajectory Report'!C80)","v":491.42676934857161},{"$f":"IF(INDEX('Rate Trajectory Calc'!$A$6:$CQ$92,MATCH('Rate Trajectory Report'!$B81,'Rate Trajectory Calc'!$A$6:$A$92,0),MATCH('Rate Trajectory Report'!D$5,'Rate Trajectory Calc'!$A$6:$CQ$6,0))=0,\" \",INDEX('Rate Trajectory Calc'!$A$6:$CQ$92,MATCH('Rate Trajectory Report'!$B81,'Rate Trajectory Calc'!$A$6:$A$92,0),MATCH('Rate Trajectory Report'!D$5,'Rate Trajectory Calc'!$A$6:$CQ$6,0))/1000)","v":" "},{"$f":"IF(INDEX('Rate Trajectory Calc'!$A$6:$CQ$92,MATCH('Rate Trajectory Report'!$B81,'Rate Trajectory Calc'!$A$6:$A$92,0),MATCH('Rate Trajectory Report'!E$5,'Rate Trajectory Calc'!$A$6:$CQ$6,0))=0,\" \",INDEX('Rate Trajectory Calc'!$A$6:$CQ$92,MATCH('Rate Trajectory Report'!$B81,'Rate Trajectory Calc'!$A$6:$A$92,0),MATCH('Rate Trajectory Report'!E$5,'Rate Trajectory Calc'!$A$6:$CQ$6,0))/1000)","v":" "},{"$f":"IF(INDEX('Rate Trajectory Calc'!$A$6:$CQ$92,MATCH('Rate Trajectory Report'!$B81,'Rate Trajectory Calc'!$A$6:$A$92,0),MATCH('Rate Trajectory Report'!F$5,'Rate Trajectory Calc'!$A$6:$CQ$6,0))=0,\" \",INDEX('Rate Trajectory Calc'!$A$6:$CQ$92,MATCH('Rate Trajectory Report'!$B81,'Rate Trajectory Calc'!$A$6:$A$92,0),MATCH('Rate Trajectory Report'!F$5,'Rate Trajectory Calc'!$A$6:$CQ$6,0))/1000)","v":" "},{"$f":"IF(INDEX('Rate Trajectory Calc'!$A$6:$CQ$92,MATCH('Rate Trajectory Report'!$B81,'Rate Trajectory Calc'!$A$6:$A$92,0),MATCH('Rate Trajectory Report'!G$5,'Rate Trajectory Calc'!$A$6:$CQ$6,0))=0,\" \",INDEX('Rate Trajectory Calc'!$A$6:$CQ$92,MATCH('Rate Trajectory Report'!$B81,'Rate Trajectory Calc'!$A$6:$A$92,0),MATCH('Rate Trajectory Report'!G$5,'Rate Trajectory Calc'!$A$6:$CQ$6,0))/1000)","v":" "},{"$f":"IF(INDEX('Rate Trajectory Calc'!$A$6:$CQ$92,MATCH('Rate Trajectory Report'!$B81,'Rate Trajectory Calc'!$A$6:$A$92,0),MATCH('Rate Trajectory Report'!H$5,'Rate Trajectory Calc'!$A$6:$CQ$6,0))=0,\" \",INDEX('Rate Trajectory Calc'!$A$6:$CQ$92,MATCH('Rate Trajectory Report'!$B81,'Rate Trajectory Calc'!$A$6:$A$92,0),MATCH('Rate Trajectory Report'!H$5,'Rate Trajectory Calc'!$A$6:$CQ$6,0))/1000)","v":" "},{"$f":"IF(INDEX('Rate Trajectory Calc'!$A$6:$CQ$92,MATCH('Rate Trajectory Report'!$B81,'Rate Trajectory Calc'!$A$6:$A$92,0),MATCH('Rate Trajectory Report'!I$5,'Rate Trajectory Calc'!$A$6:$CQ$6,0))=0,\" \",INDEX('Rate Trajectory Calc'!$A$6:$CQ$92,MATCH('Rate Trajectory Report'!$B81,'Rate Trajectory Calc'!$A$6:$A$92,0),MATCH('Rate Trajectory Report'!I$5,'Rate Trajectory Calc'!$A$6:$CQ$6,0))/1000)","v":" "},{"$f":"IF(INDEX('Rate Trajectory Calc'!$A$6:$CQ$92,MATCH('Rate Trajectory Report'!$B81,'Rate Trajectory Calc'!$A$6:$A$92,0),MATCH('Rate Trajectory Report'!J$5,'Rate Trajectory Calc'!$A$6:$CQ$6,0))=0,\" \",INDEX('Rate Trajectory Calc'!$A$6:$CQ$92,MATCH('Rate Trajectory Report'!$B81,'Rate Trajectory Calc'!$A$6:$A$92,0),MATCH('Rate Trajectory Report'!J$5,'Rate Trajectory Calc'!$A$6:$CQ$6,0))/1000)","v":" "},{"$f":"IF(INDEX('Rate Trajectory Calc'!$A$6:$CQ$92,MATCH('Rate Trajectory Report'!$B81,'Rate Trajectory Calc'!$A$6:$A$92,0),MATCH('Rate Trajectory Report'!K$5,'Rate Trajectory Calc'!$A$6:$CQ$6,0))=0,\" \",INDEX('Rate Trajectory Calc'!$A$6:$CQ$92,MATCH('Rate Trajectory Report'!$B81,'Rate Trajectory Calc'!$A$6:$A$92,0),MATCH('Rate Trajectory Report'!K$5,'Rate Trajectory Calc'!$A$6:$CQ$6,0))/1000)","v":" "},{"$f":"IF(INDEX('Rate Trajectory Calc'!$A$6:$CQ$92,MATCH('Rate Trajectory Report'!$B81,'Rate Trajectory Calc'!$A$6:$A$92,0),MATCH('Rate Trajectory Report'!L$5,'Rate Trajectory Calc'!$A$6:$CQ$6,0))=0,\" \",INDEX('Rate Trajectory Calc'!$A$6:$CQ$92,MATCH('Rate Trajectory Report'!$B81,'Rate Trajectory Calc'!$A$6:$A$92,0),MATCH('Rate Trajectory Report'!L$5,'Rate Trajectory Calc'!$A$6:$CQ$6,0))/1000)","v":" "},{"$f":"IF(INDEX('Rate Trajectory Calc'!$A$6:$CQ$92,MATCH('Rate Trajectory Report'!$B81,'Rate Trajectory Calc'!$A$6:$A$92,0),MATCH('Rate Trajectory Report'!M$5,'Rate Trajectory Calc'!$A$6:$CQ$6,0))=0,\" \",INDEX('Rate Trajectory Calc'!$A$6:$CQ$92,MATCH('Rate Trajectory Report'!$B81,'Rate Trajectory Calc'!$A$6:$A$92,0),MATCH('Rate Trajectory Report'!M$5,'Rate Trajectory Calc'!$A$6:$CQ$6,0))/1000)","v":" "},{"$f":"IF(INDEX('Rate Trajectory Calc'!$A$6:$CQ$92,MATCH('Rate Trajectory Report'!$B81,'Rate Trajectory Calc'!$A$6:$A$92,0),MATCH('Rate Trajectory Report'!N$5,'Rate Trajectory Calc'!$A$6:$CQ$6,0))=0,\" \",INDEX('Rate Trajectory Calc'!$A$6:$CQ$92,MATCH('Rate Trajectory Report'!$B81,'Rate Trajectory Calc'!$A$6:$A$92,0),MATCH('Rate Trajectory Report'!N$5,'Rate Trajectory Calc'!$A$6:$CQ$6,0))/1000)","v":" "},{"$f":"IF(INDEX('Rate Trajectory Calc'!$A$6:$CQ$92,MATCH('Rate Trajectory Report'!$B81,'Rate Trajectory Calc'!$A$6:$A$92,0),MATCH('Rate Trajectory Report'!O$5,'Rate Trajectory Calc'!$A$6:$CQ$6,0))=0,\" \",INDEX('Rate Trajectory Calc'!$A$6:$CQ$92,MATCH('Rate Trajectory Report'!$B81,'Rate Trajectory Calc'!$A$6:$A$92,0),MATCH('Rate Trajectory Report'!O$5,'Rate Trajectory Calc'!$A$6:$CQ$6,0))/1000)","v":" "},{"$f":"IF(INDEX('Rate Trajectory Calc'!$A$6:$CQ$92,MATCH('Rate Trajectory Report'!$B81,'Rate Trajectory Calc'!$A$6:$A$92,0),MATCH('Rate Trajectory Report'!P$5,'Rate Trajectory Calc'!$A$6:$CQ$6,0))=0,\" \",INDEX('Rate Trajectory Calc'!$A$6:$CQ$92,MATCH('Rate Trajectory Report'!$B81,'Rate Trajectory Calc'!$A$6:$A$92,0),MATCH('Rate Trajectory Report'!P$5,'Rate Trajectory Calc'!$A$6:$CQ$6,0))/1000)","v":" "},{"$f":"IF(INDEX('Rate Trajectory Calc'!$A$6:$CQ$92,MATCH('Rate Trajectory Report'!$B81,'Rate Trajectory Calc'!$A$6:$A$92,0),MATCH('Rate Trajectory Report'!Q$5,'Rate Trajectory Calc'!$A$6:$CQ$6,0))=0,\" \",INDEX('Rate Trajectory Calc'!$A$6:$CQ$92,MATCH('Rate Trajectory Report'!$B81,'Rate Trajectory Calc'!$A$6:$A$92,0),MATCH('Rate Trajectory Report'!Q$5,'Rate Trajectory Calc'!$A$6:$CQ$6,0))/1000)","v":" "},{"$f":"IF(INDEX('Rate Trajectory Calc'!$A$6:$CQ$92,MATCH('Rate Trajectory Report'!$B81,'Rate Trajectory Calc'!$A$6:$A$92,0),MATCH('Rate Trajectory Report'!R$5,'Rate Trajectory Calc'!$A$6:$CQ$6,0))=0,\" \",INDEX('Rate Trajectory Calc'!$A$6:$CQ$92,MATCH('Rate Trajectory Report'!$B81,'Rate Trajectory Calc'!$A$6:$A$92,0),MATCH('Rate Trajectory Report'!R$5,'Rate Trajectory Calc'!$A$6:$CQ$6,0))/1000)","v":" "},{"$f":"IF(INDEX('Rate Trajectory Calc'!$A$6:$CQ$92,MATCH('Rate Trajectory Report'!$B81,'Rate Trajectory Calc'!$A$6:$A$92,0),MATCH('Rate Trajectory Report'!S$5,'Rate Trajectory Calc'!$A$6:$CQ$6,0))=0,\" \",INDEX('Rate Trajectory Calc'!$A$6:$CQ$92,MATCH('Rate Trajectory Report'!$B81,'Rate Trajectory Calc'!$A$6:$A$92,0),MATCH('Rate Trajectory Report'!S$5,'Rate Trajectory Calc'!$A$6:$CQ$6,0))/1000)","v":" "},{"$f":"IF(INDEX('Rate Trajectory Calc'!$A$6:$CQ$92,MATCH('Rate Trajectory Report'!$B81,'Rate Trajectory Calc'!$A$6:$A$92,0),MATCH('Rate Trajectory Report'!T$5,'Rate Trajectory Calc'!$A$6:$CQ$6,0))=0,\" \",INDEX('Rate Trajectory Calc'!$A$6:$CQ$92,MATCH('Rate Trajectory Report'!$B81,'Rate Trajectory Calc'!$A$6:$A$92,0),MATCH('Rate Trajectory Report'!T$5,'Rate Trajectory Calc'!$A$6:$CQ$6,0))/1000)","v":87.073412674814165},{"$f":"IF(INDEX('Rate Trajectory Calc'!$A$6:$CQ$92,MATCH('Rate Trajectory Report'!$B81,'Rate Trajectory Calc'!$A$6:$A$92,0),MATCH('Rate Trajectory Report'!U$5,'Rate Trajectory Calc'!$A$6:$CQ$6,0))=0,\" \",INDEX('Rate Trajectory Calc'!$A$6:$CQ$92,MATCH('Rate Trajectory Report'!$B81,'Rate Trajectory Calc'!$A$6:$A$92,0),MATCH('Rate Trajectory Report'!U$5,'Rate Trajectory Calc'!$A$6:$CQ$6,0))/1000)","v":" "},{"$f":"IF(INDEX('Rate Trajectory Calc'!$A$6:$CQ$92,MATCH('Rate Trajectory Report'!$B81,'Rate Trajectory Calc'!$A$6:$A$92,0),MATCH('Rate Trajectory Report'!V$5,'Rate Trajectory Calc'!$A$6:$CQ$6,0))=0,\" \",INDEX('Rate Trajectory Calc'!$A$6:$CQ$92,MATCH('Rate Trajectory Report'!$B81,'Rate Trajectory Calc'!$A$6:$A$92,0),MATCH('Rate Trajectory Report'!V$5,'Rate Trajectory Calc'!$A$6:$CQ$6,0))/1000)","v":" "},{"$f":"IF(INDEX('Rate Trajectory Calc'!$A$6:$CQ$92,MATCH('Rate Trajectory Report'!$B81,'Rate Trajectory Calc'!$A$6:$A$92,0),MATCH('Rate Trajectory Report'!W$5,'Rate Trajectory Calc'!$A$6:$CQ$6,0))=0,\" \",INDEX('Rate Trajectory Calc'!$A$6:$CQ$92,MATCH('Rate Trajectory Report'!$B81,'Rate Trajectory Calc'!$A$6:$A$92,0),MATCH('Rate Trajectory Report'!W$5,'Rate Trajectory Calc'!$A$6:$CQ$6,0))/1000)","v":" "},{"$f":"IF(INDEX('Rate Trajectory Calc'!$A$6:$CQ$92,MATCH('Rate Trajectory Report'!$B81,'Rate Trajectory Calc'!$A$6:$A$92,0),MATCH('Rate Trajectory Report'!X$5,'Rate Trajectory Calc'!$A$6:$CQ$6,0))=0,\" \",INDEX('Rate Trajectory Calc'!$A$6:$CQ$92,MATCH('Rate Trajectory Report'!$B81,'Rate Trajectory Calc'!$A$6:$A$92,0),MATCH('Rate Trajectory Report'!X$5,'Rate Trajectory Calc'!$A$6:$CQ$6,0))/1000)","v":" "},{"$f":"IF(INDEX('Rate Trajectory Calc'!$A$6:$CQ$92,MATCH('Rate Trajectory Report'!$B81,'Rate Trajectory Calc'!$A$6:$A$92,0),MATCH('Rate Trajectory Report'!Y$5,'Rate Trajectory Calc'!$A$6:$CQ$6,0))=0,\" \",INDEX('Rate Trajectory Calc'!$A$6:$CQ$92,MATCH('Rate Trajectory Report'!$B81,'Rate Trajectory Calc'!$A$6:$A$92,0),MATCH('Rate Trajectory Report'!Y$5,'Rate Trajectory Calc'!$A$6:$CQ$6,0))/1000)","v":" "},{"$f":"IF(INDEX('Rate Trajectory Calc'!$A$6:$CQ$92,MATCH('Rate Trajectory Report'!$B81,'Rate Trajectory Calc'!$A$6:$A$92,0),MATCH('Rate Trajectory Report'!Z$5,'Rate Trajectory Calc'!$A$6:$CQ$6,0))=0,\" \",INDEX('Rate Trajectory Calc'!$A$6:$CQ$92,MATCH('Rate Trajectory Report'!$B81,'Rate Trajectory Calc'!$A$6:$A$92,0),MATCH('Rate Trajectory Report'!Z$5,'Rate Trajectory Calc'!$A$6:$CQ$6,0))/1000)","v":" "},{"$f":"IF(INDEX('Rate Trajectory Calc'!$A$6:$CQ$92,MATCH('Rate Trajectory Report'!$B81,'Rate Trajectory Calc'!$A$6:$A$92,0),MATCH('Rate Trajectory Report'!AA$5,'Rate Trajectory Calc'!$A$6:$CQ$6,0))=0,\" \",INDEX('Rate Trajectory Calc'!$A$6:$CQ$92,MATCH('Rate Trajectory Report'!$B81,'Rate Trajectory Calc'!$A$6:$A$92,0),MATCH('Rate Trajectory Report'!AA$5,'Rate Trajectory Calc'!$A$6:$CQ$6,0))/1000)","v":" "}]
[null,{"$f":"'Rate Trajectory Dashboard'!B66","v":"2027 GRC - Noncore Local Transmission - Year 2028"},{"$f":"IFERROR(VLOOKUP(B82,'Rate Trajectory Dashboard'!$B$12:$D$96,3,FALSE)/1000,'Rate Trajectory Report'!C81)","v":491.42676934857161},{"$f":"IF(INDEX('Rate Trajectory Calc'!$A$6:$CQ$92,MATCH('Rate Trajectory Report'!$B82,'Rate Trajectory Calc'!$A$6:$A$92,0),MATCH('Rate Trajectory Report'!D$5,'Rate Trajectory Calc'!$A$6:$CQ$6,0))=0,\" \",INDEX('Rate Trajectory Calc'!$A$6:$CQ$92,MATCH('Rate Trajectory Report'!$B82,'Rate Trajectory Calc'!$A$6:$A$92,0),MATCH('Rate Trajectory Report'!D$5,'Rate Trajectory Calc'!$A$6:$CQ$6,0))/1000)","v":" "},{"$f":"IF(INDEX('Rate Trajectory Calc'!$A$6:$CQ$92,MATCH('Rate Trajectory Report'!$B82,'Rate Trajectory Calc'!$A$6:$A$92,0),MATCH('Rate Trajectory Report'!E$5,'Rate Trajectory Calc'!$A$6:$CQ$6,0))=0,\" \",INDEX('Rate Trajectory Calc'!$A$6:$CQ$92,MATCH('Rate Trajectory Report'!$B82,'Rate Trajectory Calc'!$A$6:$A$92,0),MATCH('Rate Trajectory Report'!E$5,'Rate Trajectory Calc'!$A$6:$CQ$6,0))/1000)","v":" "},{"$f":"IF(INDEX('Rate Trajectory Calc'!$A$6:$CQ$92,MATCH('Rate Trajectory Report'!$B82,'Rate Trajectory Calc'!$A$6:$A$92,0),MATCH('Rate Trajectory Report'!F$5,'Rate Trajectory Calc'!$A$6:$CQ$6,0))=0,\" \",INDEX('Rate Trajectory Calc'!$A$6:$CQ$92,MATCH('Rate Trajectory Report'!$B82,'Rate Trajectory Calc'!$A$6:$A$92,0),MATCH('Rate Trajectory Report'!F$5,'Rate Trajectory Calc'!$A$6:$CQ$6,0))/1000)","v":" "},{"$f":"IF(INDEX('Rate Trajectory Calc'!$A$6:$CQ$92,MATCH('Rate Trajectory Report'!$B82,'Rate Trajectory Calc'!$A$6:$A$92,0),MATCH('Rate Trajectory Report'!G$5,'Rate Trajectory Calc'!$A$6:$CQ$6,0))=0,\" \",INDEX('Rate Trajectory Calc'!$A$6:$CQ$92,MATCH('Rate Trajectory Report'!$B82,'Rate Trajectory Calc'!$A$6:$A$92,0),MATCH('Rate Trajectory Report'!G$5,'Rate Trajectory Calc'!$A$6:$CQ$6,0))/1000)","v":" "},{"$f":"IF(INDEX('Rate Trajectory Calc'!$A$6:$CQ$92,MATCH('Rate Trajectory Report'!$B82,'Rate Trajectory Calc'!$A$6:$A$92,0),MATCH('Rate Trajectory Report'!H$5,'Rate Trajectory Calc'!$A$6:$CQ$6,0))=0,\" \",INDEX('Rate Trajectory Calc'!$A$6:$CQ$92,MATCH('Rate Trajectory Report'!$B82,'Rate Trajectory Calc'!$A$6:$A$92,0),MATCH('Rate Trajectory Report'!H$5,'Rate Trajectory Calc'!$A$6:$CQ$6,0))/1000)","v":" "},{"$f":"IF(INDEX('Rate Trajectory Calc'!$A$6:$CQ$92,MATCH('Rate Trajectory Report'!$B82,'Rate Trajectory Calc'!$A$6:$A$92,0),MATCH('Rate Trajectory Report'!I$5,'Rate Trajectory Calc'!$A$6:$CQ$6,0))=0,\" \",INDEX('Rate Trajectory Calc'!$A$6:$CQ$92,MATCH('Rate Trajectory Report'!$B82,'Rate Trajectory Calc'!$A$6:$A$92,0),MATCH('Rate Trajectory Report'!I$5,'Rate Trajectory Calc'!$A$6:$CQ$6,0))/1000)","v":" "},{"$f":"IF(INDEX('Rate Trajectory Calc'!$A$6:$CQ$92,MATCH('Rate Trajectory Report'!$B82,'Rate Trajectory Calc'!$A$6:$A$92,0),MATCH('Rate Trajectory Report'!J$5,'Rate Trajectory Calc'!$A$6:$CQ$6,0))=0,\" \",INDEX('Rate Trajectory Calc'!$A$6:$CQ$92,MATCH('Rate Trajectory Report'!$B82,'Rate Trajectory Calc'!$A$6:$A$92,0),MATCH('Rate Trajectory Report'!J$5,'Rate Trajectory Calc'!$A$6:$CQ$6,0))/1000)","v":" "},{"$f":"IF(INDEX('Rate Trajectory Calc'!$A$6:$CQ$92,MATCH('Rate Trajectory Report'!$B82,'Rate Trajectory Calc'!$A$6:$A$92,0),MATCH('Rate Trajectory Report'!K$5,'Rate Trajectory Calc'!$A$6:$CQ$6,0))=0,\" \",INDEX('Rate Trajectory Calc'!$A$6:$CQ$92,MATCH('Rate Trajectory Report'!$B82,'Rate Trajectory Calc'!$A$6:$A$92,0),MATCH('Rate Trajectory Report'!K$5,'Rate Trajectory Calc'!$A$6:$CQ$6,0))/1000)","v":" "},{"$f":"IF(INDEX('Rate Trajectory Calc'!$A$6:$CQ$92,MATCH('Rate Trajectory Report'!$B82,'Rate Trajectory Calc'!$A$6:$A$92,0),MATCH('Rate Trajectory Report'!L$5,'Rate Trajectory Calc'!$A$6:$CQ$6,0))=0,\" \",INDEX('Rate Trajectory Calc'!$A$6:$CQ$92,MATCH('Rate Trajectory Report'!$B82,'Rate Trajectory Calc'!$A$6:$A$92,0),MATCH('Rate Trajectory Report'!L$5,'Rate Trajectory Calc'!$A$6:$CQ$6,0))/1000)","v":" "},{"$f":"IF(INDEX('Rate Trajectory Calc'!$A$6:$CQ$92,MATCH('Rate Trajectory Report'!$B82,'Rate Trajectory Calc'!$A$6:$A$92,0),MATCH('Rate Trajectory Report'!M$5,'Rate Trajectory Calc'!$A$6:$CQ$6,0))=0,\" \",INDEX('Rate Trajectory Calc'!$A$6:$CQ$92,MATCH('Rate Trajectory Report'!$B82,'Rate Trajectory Calc'!$A$6:$A$92,0),MATCH('Rate Trajectory Report'!M$5,'Rate Trajectory Calc'!$A$6:$CQ$6,0))/1000)","v":" "},{"$f":"IF(INDEX('Rate Trajectory Calc'!$A$6:$CQ$92,MATCH('Rate Trajectory Report'!$B82,'Rate Trajectory Calc'!$A$6:$A$92,0),MATCH('Rate Trajectory Report'!N$5,'Rate Trajectory Calc'!$A$6:$CQ$6,0))=0,\" \",INDEX('Rate Trajectory Calc'!$A$6:$CQ$92,MATCH('Rate Trajectory Report'!$B82,'Rate Trajectory Calc'!$A$6:$A$92,0),MATCH('Rate Trajectory Report'!N$5,'Rate Trajectory Calc'!$A$6:$CQ$6,0))/1000)","v":" "},{"$f":"IF(INDEX('Rate Trajectory Calc'!$A$6:$CQ$92,MATCH('Rate Trajectory Report'!$B82,'Rate Trajectory Calc'!$A$6:$A$92,0),MATCH('Rate Trajectory Report'!O$5,'Rate Trajectory Calc'!$A$6:$CQ$6,0))=0,\" \",INDEX('Rate Trajectory Calc'!$A$6:$CQ$92,MATCH('Rate Trajectory Report'!$B82,'Rate Trajectory Calc'!$A$6:$A$92,0),MATCH('Rate Trajectory Report'!O$5,'Rate Trajectory Calc'!$A$6:$CQ$6,0))/1000)","v":" "},{"$f":"IF(INDEX('Rate Trajectory Calc'!$A$6:$CQ$92,MATCH('Rate Trajectory Report'!$B82,'Rate Trajectory Calc'!$A$6:$A$92,0),MATCH('Rate Trajectory Report'!P$5,'Rate Trajectory Calc'!$A$6:$CQ$6,0))=0,\" \",INDEX('Rate Trajectory Calc'!$A$6:$CQ$92,MATCH('Rate Trajectory Report'!$B82,'Rate Trajectory Calc'!$A$6:$A$92,0),MATCH('Rate Trajectory Report'!P$5,'Rate Trajectory Calc'!$A$6:$CQ$6,0))/1000)","v":" "},{"$f":"IF(INDEX('Rate Trajectory Calc'!$A$6:$CQ$92,MATCH('Rate Trajectory Report'!$B82,'Rate Trajectory Calc'!$A$6:$A$92,0),MATCH('Rate Trajectory Report'!Q$5,'Rate Trajectory Calc'!$A$6:$CQ$6,0))=0,\" \",INDEX('Rate Trajectory Calc'!$A$6:$CQ$92,MATCH('Rate Trajectory Report'!$B82,'Rate Trajectory Calc'!$A$6:$A$92,0),MATCH('Rate Trajectory Report'!Q$5,'Rate Trajectory Calc'!$A$6:$CQ$6,0))/1000)","v":" "},{"$f":"IF(INDEX('Rate Trajectory Calc'!$A$6:$CQ$92,MATCH('Rate Trajectory Report'!$B82,'Rate Trajectory Calc'!$A$6:$A$92,0),MATCH('Rate Trajectory Report'!R$5,'Rate Trajectory Calc'!$A$6:$CQ$6,0))=0,\" \",INDEX('Rate Trajectory Calc'!$A$6:$CQ$92,MATCH('Rate Trajectory Report'!$B82,'Rate Trajectory Calc'!$A$6:$A$92,0),MATCH('Rate Trajectory Report'!R$5,'Rate Trajectory Calc'!$A$6:$CQ$6,0))/1000)","v":" "},{"$f":"IF(INDEX('Rate Trajectory Calc'!$A$6:$CQ$92,MATCH('Rate Trajectory Report'!$B82,'Rate Trajectory Calc'!$A$6:$A$92,0),MATCH('Rate Trajectory Report'!S$5,'Rate Trajectory Calc'!$A$6:$CQ$6,0))=0,\" \",INDEX('Rate Trajectory Calc'!$A$6:$CQ$92,MATCH('Rate Trajectory Report'!$B82,'Rate Trajectory Calc'!$A$6:$A$92,0),MATCH('Rate Trajectory Report'!S$5,'Rate Trajectory Calc'!$A$6:$CQ$6,0))/1000)","v":" "},{"$f":"IF(INDEX('Rate Trajectory Calc'!$A$6:$CQ$92,MATCH('Rate Trajectory Report'!$B82,'Rate Trajectory Calc'!$A$6:$A$92,0),MATCH('Rate Trajectory Report'!T$5,'Rate Trajectory Calc'!$A$6:$CQ$6,0))=0,\" \",INDEX('Rate Trajectory Calc'!$A$6:$CQ$92,MATCH('Rate Trajectory Report'!$B82,'Rate Trajectory Calc'!$A$6:$A$92,0),MATCH('Rate Trajectory Report'!T$5,'Rate Trajectory Calc'!$A$6:$CQ$6,0))/1000)","v":" "},{"$f":"IF(INDEX('Rate Trajectory Calc'!$A$6:$CQ$92,MATCH('Rate Trajectory Report'!$B82,'Rate Trajectory Calc'!$A$6:$A$92,0),MATCH('Rate Trajectory Report'!U$5,'Rate Trajectory Calc'!$A$6:$CQ$6,0))=0,\" \",INDEX('Rate Trajectory Calc'!$A$6:$CQ$92,MATCH('Rate Trajectory Report'!$B82,'Rate Trajectory Calc'!$A$6:$A$92,0),MATCH('Rate Trajectory Report'!U$5,'Rate Trajectory Calc'!$A$6:$CQ$6,0))/1000)","v":" "},{"$f":"IF(INDEX('Rate Trajectory Calc'!$A$6:$CQ$92,MATCH('Rate Trajectory Report'!$B82,'Rate Trajectory Calc'!$A$6:$A$92,0),MATCH('Rate Trajectory Report'!V$5,'Rate Trajectory Calc'!$A$6:$CQ$6,0))=0,\" \",INDEX('Rate Trajectory Calc'!$A$6:$CQ$92,MATCH('Rate Trajectory Report'!$B82,'Rate Trajectory Calc'!$A$6:$A$92,0),MATCH('Rate Trajectory Report'!V$5,'Rate Trajectory Calc'!$A$6:$CQ$6,0))/1000)","v":" "},{"$f":"IF(INDEX('Rate Trajectory Calc'!$A$6:$CQ$92,MATCH('Rate Trajectory Report'!$B82,'Rate Trajectory Calc'!$A$6:$A$92,0),MATCH('Rate Trajectory Report'!W$5,'Rate Trajectory Calc'!$A$6:$CQ$6,0))=0,\" \",INDEX('Rate Trajectory Calc'!$A$6:$CQ$92,MATCH('Rate Trajectory Report'!$B82,'Rate Trajectory Calc'!$A$6:$A$92,0),MATCH('Rate Trajectory Report'!W$5,'Rate Trajectory Calc'!$A$6:$CQ$6,0))/1000)","v":" "},{"$f":"IF(INDEX('Rate Trajectory Calc'!$A$6:$CQ$92,MATCH('Rate Trajectory Report'!$B82,'Rate Trajectory Calc'!$A$6:$A$92,0),MATCH('Rate Trajectory Report'!X$5,'Rate Trajectory Calc'!$A$6:$CQ$6,0))=0,\" \",INDEX('Rate Trajectory Calc'!$A$6:$CQ$92,MATCH('Rate Trajectory Report'!$B82,'Rate Trajectory Calc'!$A$6:$A$92,0),MATCH('Rate Trajectory Report'!X$5,'Rate Trajectory Calc'!$A$6:$CQ$6,0))/1000)","v":" "},{"$f":"IF(INDEX('Rate Trajectory Calc'!$A$6:$CQ$92,MATCH('Rate Trajectory Report'!$B82,'Rate Trajectory Calc'!$A$6:$A$92,0),MATCH('Rate Trajectory Report'!Y$5,'Rate Trajectory Calc'!$A$6:$CQ$6,0))=0,\" \",INDEX('Rate Trajectory Calc'!$A$6:$CQ$92,MATCH('Rate Trajectory Report'!$B82,'Rate Trajectory Calc'!$A$6:$A$92,0),MATCH('Rate Trajectory Report'!Y$5,'Rate Trajectory Calc'!$A$6:$CQ$6,0))/1000)","v":" "},{"$f":"IF(INDEX('Rate Trajectory Calc'!$A$6:$CQ$92,MATCH('Rate Trajectory Report'!$B82,'Rate Trajectory Calc'!$A$6:$A$92,0),MATCH('Rate Trajectory Report'!Z$5,'Rate Trajectory Calc'!$A$6:$CQ$6,0))=0,\" \",INDEX('Rate Trajectory Calc'!$A$6:$CQ$92,MATCH('Rate Trajectory Report'!$B82,'Rate Trajectory Calc'!$A$6:$A$92,0),MATCH('Rate Trajectory Report'!Z$5,'Rate Trajectory Calc'!$A$6:$CQ$6,0))/1000)","v":" "},{"$f":"IF(INDEX('Rate Trajectory Calc'!$A$6:$CQ$92,MATCH('Rate Trajectory Report'!$B82,'Rate Trajectory Calc'!$A$6:$A$92,0),MATCH('Rate Trajectory Report'!AA$5,'Rate Trajectory Calc'!$A$6:$CQ$6,0))=0,\" \",INDEX('Rate Trajectory Calc'!$A$6:$CQ$92,MATCH('Rate Trajectory Report'!$B82,'Rate Trajectory Calc'!$A$6:$A$92,0),MATCH('Rate Trajectory Report'!AA$5,'Rate Trajectory Calc'!$A$6:$CQ$6,0))/1000)","v":" "}]
[null,{"$f":"'Rate Trajectory Dashboard'!B67","v":"2027 GRC - Noncore Local Transmission - Year 2029"},{"$f":"IFERROR(VLOOKUP(B83,'Rate Trajectory Dashboard'!$B$12:$D$96,3,FALSE)/1000,'Rate Trajectory Report'!C82)","v":491.42676934857161},{"$f":"IF(INDEX('Rate Trajectory Calc'!$A$6:$CQ$92,MATCH('Rate Trajectory Report'!$B83,'Rate Trajectory Calc'!$A$6:$A$92,0),MATCH('Rate Trajectory Report'!D$5,'Rate Trajectory Calc'!$A$6:$CQ$6,0))=0,\" \",INDEX('Rate Trajectory Calc'!$A$6:$CQ$92,MATCH('Rate Trajectory Report'!$B83,'Rate Trajectory Calc'!$A$6:$A$92,0),MATCH('Rate Trajectory Report'!D$5,'Rate Trajectory Calc'!$A$6:$CQ$6,0))/1000)","v":" "},{"$f":"IF(INDEX('Rate Trajectory Calc'!$A$6:$CQ$92,MATCH('Rate Trajectory Report'!$B83,'Rate Trajectory Calc'!$A$6:$A$92,0),MATCH('Rate Trajectory Report'!E$5,'Rate Trajectory Calc'!$A$6:$CQ$6,0))=0,\" \",INDEX('Rate Trajectory Calc'!$A$6:$CQ$92,MATCH('Rate Trajectory Report'!$B83,'Rate Trajectory Calc'!$A$6:$A$92,0),MATCH('Rate Trajectory Report'!E$5,'Rate Trajectory Calc'!$A$6:$CQ$6,0))/1000)","v":" "},{"$f":"IF(INDEX('Rate Trajectory Calc'!$A$6:$CQ$92,MATCH('Rate Trajectory Report'!$B83,'Rate Trajectory Calc'!$A$6:$A$92,0),MATCH('Rate Trajectory Report'!F$5,'Rate Trajectory Calc'!$A$6:$CQ$6,0))=0,\" \",INDEX('Rate Trajectory Calc'!$A$6:$CQ$92,MATCH('Rate Trajectory Report'!$B83,'Rate Trajectory Calc'!$A$6:$A$92,0),MATCH('Rate Trajectory Report'!F$5,'Rate Trajectory Calc'!$A$6:$CQ$6,0))/1000)","v":" "},{"$f":"IF(INDEX('Rate Trajectory Calc'!$A$6:$CQ$92,MATCH('Rate Trajectory Report'!$B83,'Rate Trajectory Calc'!$A$6:$A$92,0),MATCH('Rate Trajectory Report'!G$5,'Rate Trajectory Calc'!$A$6:$CQ$6,0))=0,\" \",INDEX('Rate Trajectory Calc'!$A$6:$CQ$92,MATCH('Rate Trajectory Report'!$B83,'Rate Trajectory Calc'!$A$6:$A$92,0),MATCH('Rate Trajectory Report'!G$5,'Rate Trajectory Calc'!$A$6:$CQ$6,0))/1000)","v":" "},{"$f":"IF(INDEX('Rate Trajectory Calc'!$A$6:$CQ$92,MATCH('Rate Trajectory Report'!$B83,'Rate Trajectory Calc'!$A$6:$A$92,0),MATCH('Rate Trajectory Report'!H$5,'Rate Trajectory Calc'!$A$6:$CQ$6,0))=0,\" \",INDEX('Rate Trajectory Calc'!$A$6:$CQ$92,MATCH('Rate Trajectory Report'!$B83,'Rate Trajectory Calc'!$A$6:$A$92,0),MATCH('Rate Trajectory Report'!H$5,'Rate Trajectory Calc'!$A$6:$CQ$6,0))/1000)","v":" "},{"$f":"IF(INDEX('Rate Trajectory Calc'!$A$6:$CQ$92,MATCH('Rate Trajectory Report'!$B83,'Rate Trajectory Calc'!$A$6:$A$92,0),MATCH('Rate Trajectory Report'!I$5,'Rate Trajectory Calc'!$A$6:$CQ$6,0))=0,\" \",INDEX('Rate Trajectory Calc'!$A$6:$CQ$92,MATCH('Rate Trajectory Report'!$B83,'Rate Trajectory Calc'!$A$6:$A$92,0),MATCH('Rate Trajectory Report'!I$5,'Rate Trajectory Calc'!$A$6:$CQ$6,0))/1000)","v":" "},{"$f":"IF(INDEX('Rate Trajectory Calc'!$A$6:$CQ$92,MATCH('Rate Trajectory Report'!$B83,'Rate Trajectory Calc'!$A$6:$A$92,0),MATCH('Rate Trajectory Report'!J$5,'Rate Trajectory Calc'!$A$6:$CQ$6,0))=0,\" \",INDEX('Rate Trajectory Calc'!$A$6:$CQ$92,MATCH('Rate Trajectory Report'!$B83,'Rate Trajectory Calc'!$A$6:$A$92,0),MATCH('Rate Trajectory Report'!J$5,'Rate Trajectory Calc'!$A$6:$CQ$6,0))/1000)","v":" "},{"$f":"IF(INDEX('Rate Trajectory Calc'!$A$6:$CQ$92,MATCH('Rate Trajectory Report'!$B83,'Rate Trajectory Calc'!$A$6:$A$92,0),MATCH('Rate Trajectory Report'!K$5,'Rate Trajectory Calc'!$A$6:$CQ$6,0))=0,\" \",INDEX('Rate Trajectory Calc'!$A$6:$CQ$92,MATCH('Rate Trajectory Report'!$B83,'Rate Trajectory Calc'!$A$6:$A$92,0),MATCH('Rate Trajectory Report'!K$5,'Rate Trajectory Calc'!$A$6:$CQ$6,0))/1000)","v":" "},{"$f":"IF(INDEX('Rate Trajectory Calc'!$A$6:$CQ$92,MATCH('Rate Trajectory Report'!$B83,'Rate Trajectory Calc'!$A$6:$A$92,0),MATCH('Rate Trajectory Report'!L$5,'Rate Trajectory Calc'!$A$6:$CQ$6,0))=0,\" \",INDEX('Rate Trajectory Calc'!$A$6:$CQ$92,MATCH('Rate Trajectory Report'!$B83,'Rate Trajectory Calc'!$A$6:$A$92,0),MATCH('Rate Trajectory Report'!L$5,'Rate Trajectory Calc'!$A$6:$CQ$6,0))/1000)","v":" "},{"$f":"IF(INDEX('Rate Trajectory Calc'!$A$6:$CQ$92,MATCH('Rate Trajectory Report'!$B83,'Rate Trajectory Calc'!$A$6:$A$92,0),MATCH('Rate Trajectory Report'!M$5,'Rate Trajectory Calc'!$A$6:$CQ$6,0))=0,\" \",INDEX('Rate Trajectory Calc'!$A$6:$CQ$92,MATCH('Rate Trajectory Report'!$B83,'Rate Trajectory Calc'!$A$6:$A$92,0),MATCH('Rate Trajectory Report'!M$5,'Rate Trajectory Calc'!$A$6:$CQ$6,0))/1000)","v":" "},{"$f":"IF(INDEX('Rate Trajectory Calc'!$A$6:$CQ$92,MATCH('Rate Trajectory Report'!$B83,'Rate Trajectory Calc'!$A$6:$A$92,0),MATCH('Rate Trajectory Report'!N$5,'Rate Trajectory Calc'!$A$6:$CQ$6,0))=0,\" \",INDEX('Rate Trajectory Calc'!$A$6:$CQ$92,MATCH('Rate Trajectory Report'!$B83,'Rate Trajectory Calc'!$A$6:$A$92,0),MATCH('Rate Trajectory Report'!N$5,'Rate Trajectory Calc'!$A$6:$CQ$6,0))/1000)","v":" "},{"$f":"IF(INDEX('Rate Trajectory Calc'!$A$6:$CQ$92,MATCH('Rate Trajectory Report'!$B83,'Rate Trajectory Calc'!$A$6:$A$92,0),MATCH('Rate Trajectory Report'!O$5,'Rate Trajectory Calc'!$A$6:$CQ$6,0))=0,\" \",INDEX('Rate Trajectory Calc'!$A$6:$CQ$92,MATCH('Rate Trajectory Report'!$B83,'Rate Trajectory Calc'!$A$6:$A$92,0),MATCH('Rate Trajectory Report'!O$5,'Rate Trajectory Calc'!$A$6:$CQ$6,0))/1000)","v":" "},{"$f":"IF(INDEX('Rate Trajectory Calc'!$A$6:$CQ$92,MATCH('Rate Trajectory Report'!$B83,'Rate Trajectory Calc'!$A$6:$A$92,0),MATCH('Rate Trajectory Report'!P$5,'Rate Trajectory Calc'!$A$6:$CQ$6,0))=0,\" \",INDEX('Rate Trajectory Calc'!$A$6:$CQ$92,MATCH('Rate Trajectory Report'!$B83,'Rate Trajectory Calc'!$A$6:$A$92,0),MATCH('Rate Trajectory Report'!P$5,'Rate Trajectory Calc'!$A$6:$CQ$6,0))/1000)","v":" "},{"$f":"IF(INDEX('Rate Trajectory Calc'!$A$6:$CQ$92,MATCH('Rate Trajectory Report'!$B83,'Rate Trajectory Calc'!$A$6:$A$92,0),MATCH('Rate Trajectory Report'!Q$5,'Rate Trajectory Calc'!$A$6:$CQ$6,0))=0,\" \",INDEX('Rate Trajectory Calc'!$A$6:$CQ$92,MATCH('Rate Trajectory Report'!$B83,'Rate Trajectory Calc'!$A$6:$A$92,0),MATCH('Rate Trajectory Report'!Q$5,'Rate Trajectory Calc'!$A$6:$CQ$6,0))/1000)","v":" "},{"$f":"IF(INDEX('Rate Trajectory Calc'!$A$6:$CQ$92,MATCH('Rate Trajectory Report'!$B83,'Rate Trajectory Calc'!$A$6:$A$92,0),MATCH('Rate Trajectory Report'!R$5,'Rate Trajectory Calc'!$A$6:$CQ$6,0))=0,\" \",INDEX('Rate Trajectory Calc'!$A$6:$CQ$92,MATCH('Rate Trajectory Report'!$B83,'Rate Trajectory Calc'!$A$6:$A$92,0),MATCH('Rate Trajectory Report'!R$5,'Rate Trajectory Calc'!$A$6:$CQ$6,0))/1000)","v":" "},{"$f":"IF(INDEX('Rate Trajectory Calc'!$A$6:$CQ$92,MATCH('Rate Trajectory Report'!$B83,'Rate Trajectory Calc'!$A$6:$A$92,0),MATCH('Rate Trajectory Report'!S$5,'Rate Trajectory Calc'!$A$6:$CQ$6,0))=0,\" \",INDEX('Rate Trajectory Calc'!$A$6:$CQ$92,MATCH('Rate Trajectory Report'!$B83,'Rate Trajectory Calc'!$A$6:$A$92,0),MATCH('Rate Trajectory Report'!S$5,'Rate Trajectory Calc'!$A$6:$CQ$6,0))/1000)","v":" "},{"$f":"IF(INDEX('Rate Trajectory Calc'!$A$6:$CQ$92,MATCH('Rate Trajectory Report'!$B83,'Rate Trajectory Calc'!$A$6:$A$92,0),MATCH('Rate Trajectory Report'!T$5,'Rate Trajectory Calc'!$A$6:$CQ$6,0))=0,\" \",INDEX('Rate Trajectory Calc'!$A$6:$CQ$92,MATCH('Rate Trajectory Report'!$B83,'Rate Trajectory Calc'!$A$6:$A$92,0),MATCH('Rate Trajectory Report'!T$5,'Rate Trajectory Calc'!$A$6:$CQ$6,0))/1000)","v":" "},{"$f":"IF(INDEX('Rate Trajectory Calc'!$A$6:$CQ$92,MATCH('Rate Trajectory Report'!$B83,'Rate Trajectory Calc'!$A$6:$A$92,0),MATCH('Rate Trajectory Report'!U$5,'Rate Trajectory Calc'!$A$6:$CQ$6,0))=0,\" \",INDEX('Rate Trajectory Calc'!$A$6:$CQ$92,MATCH('Rate Trajectory Report'!$B83,'Rate Trajectory Calc'!$A$6:$A$92,0),MATCH('Rate Trajectory Report'!U$5,'Rate Trajectory Calc'!$A$6:$CQ$6,0))/1000)","v":" "},{"$f":"IF(INDEX('Rate Trajectory Calc'!$A$6:$CQ$92,MATCH('Rate Trajectory Report'!$B83,'Rate Trajectory Calc'!$A$6:$A$92,0),MATCH('Rate Trajectory Report'!V$5,'Rate Trajectory Calc'!$A$6:$CQ$6,0))=0,\" \",INDEX('Rate Trajectory Calc'!$A$6:$CQ$92,MATCH('Rate Trajectory Report'!$B83,'Rate Trajectory Calc'!$A$6:$A$92,0),MATCH('Rate Trajectory Report'!V$5,'Rate Trajectory Calc'!$A$6:$CQ$6,0))/1000)","v":" "},{"$f":"IF(INDEX('Rate Trajectory Calc'!$A$6:$CQ$92,MATCH('Rate Trajectory Report'!$B83,'Rate Trajectory Calc'!$A$6:$A$92,0),MATCH('Rate Trajectory Report'!W$5,'Rate Trajectory Calc'!$A$6:$CQ$6,0))=0,\" \",INDEX('Rate Trajectory Calc'!$A$6:$CQ$92,MATCH('Rate Trajectory Report'!$B83,'Rate Trajectory Calc'!$A$6:$A$92,0),MATCH('Rate Trajectory Report'!W$5,'Rate Trajectory Calc'!$A$6:$CQ$6,0))/1000)","v":" "},{"$f":"IF(INDEX('Rate Trajectory Calc'!$A$6:$CQ$92,MATCH('Rate Trajectory Report'!$B83,'Rate Trajectory Calc'!$A$6:$A$92,0),MATCH('Rate Trajectory Report'!X$5,'Rate Trajectory Calc'!$A$6:$CQ$6,0))=0,\" \",INDEX('Rate Trajectory Calc'!$A$6:$CQ$92,MATCH('Rate Trajectory Report'!$B83,'Rate Trajectory Calc'!$A$6:$A$92,0),MATCH('Rate Trajectory Report'!X$5,'Rate Trajectory Calc'!$A$6:$CQ$6,0))/1000)","v":" "},{"$f":"IF(INDEX('Rate Trajectory Calc'!$A$6:$CQ$92,MATCH('Rate Trajectory Report'!$B83,'Rate Trajectory Calc'!$A$6:$A$92,0),MATCH('Rate Trajectory Report'!Y$5,'Rate Trajectory Calc'!$A$6:$CQ$6,0))=0,\" \",INDEX('Rate Trajectory Calc'!$A$6:$CQ$92,MATCH('Rate Trajectory Report'!$B83,'Rate Trajectory Calc'!$A$6:$A$92,0),MATCH('Rate Trajectory Report'!Y$5,'Rate Trajectory Calc'!$A$6:$CQ$6,0))/1000)","v":" "},{"$f":"IF(INDEX('Rate Trajectory Calc'!$A$6:$CQ$92,MATCH('Rate Trajectory Report'!$B83,'Rate Trajectory Calc'!$A$6:$A$92,0),MATCH('Rate Trajectory Report'!Z$5,'Rate Trajectory Calc'!$A$6:$CQ$6,0))=0,\" \",INDEX('Rate Trajectory Calc'!$A$6:$CQ$92,MATCH('Rate Trajectory Report'!$B83,'Rate Trajectory Calc'!$A$6:$A$92,0),MATCH('Rate Trajectory Report'!Z$5,'Rate Trajectory Calc'!$A$6:$CQ$6,0))/1000)","v":" "},{"$f":"IF(INDEX('Rate Trajectory Calc'!$A$6:$CQ$92,MATCH('Rate Trajectory Report'!$B83,'Rate Trajectory Calc'!$A$6:$A$92,0),MATCH('Rate Trajectory Report'!AA$5,'Rate Trajectory Calc'!$A$6:$CQ$6,0))=0,\" \",INDEX('Rate Trajectory Calc'!$A$6:$CQ$92,MATCH('Rate Trajectory Report'!$B83,'Rate Trajectory Calc'!$A$6:$A$92,0),MATCH('Rate Trajectory Report'!AA$5,'Rate Trajectory Calc'!$A$6:$CQ$6,0))/1000)","v":" "}]
["13e","2027 GRC - Noncore Local Transmission",{"$f":"IFERROR(VLOOKUP(B84,'Rate Trajectory Dashboard'!$B$12:$D$96,3,FALSE)/1000,'Rate Trajectory Report'!C83)","v":491.42676934857161},{"$f":"IF(SUM(D81:D83)=0,\" \",SUBTOTAL(9,D81:D83))","v":" "},{"$f":"IF(SUM(E81:E83)=0,\" \",SUBTOTAL(9,E81:E83))","v":" "}," "," "," "," "," "," "," "," "," "," "," "," "," "," ",87.073412674814165," "," "," "," "," "," "," "]
[null,{"$f":"'Rate Trajectory Dashboard'!B68","v":"2027 GRC - Customer Access Charge - Year 2027"},{"$f":"IFERROR(VLOOKUP(B85,'Rate Trajectory Dashboard'!$B$12:$D$96,3,FALSE)/1000,'Rate Trajectory Report'!C84)","v":4.6161733053024951},{"$f":"IF(INDEX('Rate Trajectory Calc'!$A$6:$CQ$92,MATCH('Rate Trajectory Report'!$B85,'Rate Trajectory Calc'!$A$6:$A$92,0),MATCH('Rate Trajectory Report'!D$5,'Rate Trajectory Calc'!$A$6:$CQ$6,0))=0,\" \",INDEX('Rate Trajectory Calc'!$A$6:$CQ$92,MATCH('Rate Trajectory Report'!$B85,'Rate Trajectory Calc'!$A$6:$A$92,0),MATCH('Rate Trajectory Report'!D$5,'Rate Trajectory Calc'!$A$6:$CQ$6,0))/1000)","v":" "},{"$f":"IF(INDEX('Rate Trajectory Calc'!$A$6:$CQ$92,MATCH('Rate Trajectory Report'!$B85,'Rate Trajectory Calc'!$A$6:$A$92,0),MATCH('Rate Trajectory Report'!E$5,'Rate Trajectory Calc'!$A$6:$CQ$6,0))=0,\" \",INDEX('Rate Trajectory Calc'!$A$6:$CQ$92,MATCH('Rate Trajectory Report'!$B85,'Rate Trajectory Calc'!$A$6:$A$92,0),MATCH('Rate Trajectory Report'!E$5,'Rate Trajectory Calc'!$A$6:$CQ$6,0))/1000)","v":" "},{"$f":"IF(INDEX('Rate Trajectory Calc'!$A$6:$CQ$92,MATCH('Rate Trajectory Report'!$B85,'Rate Trajectory Calc'!$A$6:$A$92,0),MATCH('Rate Trajectory Report'!F$5,'Rate Trajectory Calc'!$A$6:$CQ$6,0))=0,\" \",INDEX('Rate Trajectory Calc'!$A$6:$CQ$92,MATCH('Rate Trajectory Report'!$B85,'Rate Trajectory Calc'!$A$6:$A$92,0),MATCH('Rate Trajectory Report'!F$5,'Rate Trajectory Calc'!$A$6:$CQ$6,0))/1000)","v":" "},{"$f":"IF(INDEX('Rate Trajectory Calc'!$A$6:$CQ$92,MATCH('Rate Trajectory Report'!$B85,'Rate Trajectory Calc'!$A$6:$A$92,0),MATCH('Rate Trajectory Report'!G$5,'Rate Trajectory Calc'!$A$6:$CQ$6,0))=0,\" \",INDEX('Rate Trajectory Calc'!$A$6:$CQ$92,MATCH('Rate Trajectory Report'!$B85,'Rate Trajectory Calc'!$A$6:$A$92,0),MATCH('Rate Trajectory Report'!G$5,'Rate Trajectory Calc'!$A$6:$CQ$6,0))/1000)","v":" "},{"$f":"IF(INDEX('Rate Trajectory Calc'!$A$6:$CQ$92,MATCH('Rate Trajectory Report'!$B85,'Rate Trajectory Calc'!$A$6:$A$92,0),MATCH('Rate Trajectory Report'!H$5,'Rate Trajectory Calc'!$A$6:$CQ$6,0))=0,\" \",INDEX('Rate Trajectory Calc'!$A$6:$CQ$92,MATCH('Rate Trajectory Report'!$B85,'Rate Trajectory Calc'!$A$6:$A$92,0),MATCH('Rate Trajectory Report'!H$5,'Rate Trajectory Calc'!$A$6:$CQ$6,0))/1000)","v":" "},{"$f":"IF(INDEX('Rate Trajectory Calc'!$A$6:$CQ$92,MATCH('Rate Trajectory Report'!$B85,'Rate Trajectory Calc'!$A$6:$A$92,0),MATCH('Rate Trajectory Report'!I$5,'Rate Trajectory Calc'!$A$6:$CQ$6,0))=0,\" \",INDEX('Rate Trajectory Calc'!$A$6:$CQ$92,MATCH('Rate Trajectory Report'!$B85,'Rate Trajectory Calc'!$A$6:$A$92,0),MATCH('Rate Trajectory Report'!I$5,'Rate Trajectory Calc'!$A$6:$CQ$6,0))/1000)","v":" "},{"$f":"IF(INDEX('Rate Trajectory Calc'!$A$6:$CQ$92,MATCH('Rate Trajectory Report'!$B85,'Rate Trajectory Calc'!$A$6:$A$92,0),MATCH('Rate Trajectory Report'!J$5,'Rate Trajectory Calc'!$A$6:$CQ$6,0))=0,\" \",INDEX('Rate Trajectory Calc'!$A$6:$CQ$92,MATCH('Rate Trajectory Report'!$B85,'Rate Trajectory Calc'!$A$6:$A$92,0),MATCH('Rate Trajectory Report'!J$5,'Rate Trajectory Calc'!$A$6:$CQ$6,0))/1000)","v":" "},{"$f":"IF(INDEX('Rate Trajectory Calc'!$A$6:$CQ$92,MATCH('Rate Trajectory Report'!$B85,'Rate Trajectory Calc'!$A$6:$A$92,0),MATCH('Rate Trajectory Report'!K$5,'Rate Trajectory Calc'!$A$6:$CQ$6,0))=0,\" \",INDEX('Rate Trajectory Calc'!$A$6:$CQ$92,MATCH('Rate Trajectory Report'!$B85,'Rate Trajectory Calc'!$A$6:$A$92,0),MATCH('Rate Trajectory Report'!K$5,'Rate Trajectory Calc'!$A$6:$CQ$6,0))/1000)","v":" "},{"$f":"IF(INDEX('Rate Trajectory Calc'!$A$6:$CQ$92,MATCH('Rate Trajectory Report'!$B85,'Rate Trajectory Calc'!$A$6:$A$92,0),MATCH('Rate Trajectory Report'!L$5,'Rate Trajectory Calc'!$A$6:$CQ$6,0))=0,\" \",INDEX('Rate Trajectory Calc'!$A$6:$CQ$92,MATCH('Rate Trajectory Report'!$B85,'Rate Trajectory Calc'!$A$6:$A$92,0),MATCH('Rate Trajectory Report'!L$5,'Rate Trajectory Calc'!$A$6:$CQ$6,0))/1000)","v":" "},{"$f":"IF(INDEX('Rate Trajectory Calc'!$A$6:$CQ$92,MATCH('Rate Trajectory Report'!$B85,'Rate Trajectory Calc'!$A$6:$A$92,0),MATCH('Rate Trajectory Report'!M$5,'Rate Trajectory Calc'!$A$6:$CQ$6,0))=0,\" \",INDEX('Rate Trajectory Calc'!$A$6:$CQ$92,MATCH('Rate Trajectory Report'!$B85,'Rate Trajectory Calc'!$A$6:$A$92,0),MATCH('Rate Trajectory Report'!M$5,'Rate Trajectory Calc'!$A$6:$CQ$6,0))/1000)","v":" "},{"$f":"IF(INDEX('Rate Trajectory Calc'!$A$6:$CQ$92,MATCH('Rate Trajectory Report'!$B85,'Rate Trajectory Calc'!$A$6:$A$92,0),MATCH('Rate Trajectory Report'!N$5,'Rate Trajectory Calc'!$A$6:$CQ$6,0))=0,\" \",INDEX('Rate Trajectory Calc'!$A$6:$CQ$92,MATCH('Rate Trajectory Report'!$B85,'Rate Trajectory Calc'!$A$6:$A$92,0),MATCH('Rate Trajectory Report'!N$5,'Rate Trajectory Calc'!$A$6:$CQ$6,0))/1000)","v":" "},{"$f":"IF(INDEX('Rate Trajectory Calc'!$A$6:$CQ$92,MATCH('Rate Trajectory Report'!$B85,'Rate Trajectory Calc'!$A$6:$A$92,0),MATCH('Rate Trajectory Report'!O$5,'Rate Trajectory Calc'!$A$6:$CQ$6,0))=0,\" \",INDEX('Rate Trajectory Calc'!$A$6:$CQ$92,MATCH('Rate Trajectory Report'!$B85,'Rate Trajectory Calc'!$A$6:$A$92,0),MATCH('Rate Trajectory Report'!O$5,'Rate Trajectory Calc'!$A$6:$CQ$6,0))/1000)","v":" "},{"$f":"IF(INDEX('Rate Trajectory Calc'!$A$6:$CQ$92,MATCH('Rate Trajectory Report'!$B85,'Rate Trajectory Calc'!$A$6:$A$92,0),MATCH('Rate Trajectory Report'!P$5,'Rate Trajectory Calc'!$A$6:$CQ$6,0))=0,\" \",INDEX('Rate Trajectory Calc'!$A$6:$CQ$92,MATCH('Rate Trajectory Report'!$B85,'Rate Trajectory Calc'!$A$6:$A$92,0),MATCH('Rate Trajectory Report'!P$5,'Rate Trajectory Calc'!$A$6:$CQ$6,0))/1000)","v":" "},{"$f":"IF(INDEX('Rate Trajectory Calc'!$A$6:$CQ$92,MATCH('Rate Trajectory Report'!$B85,'Rate Trajectory Calc'!$A$6:$A$92,0),MATCH('Rate Trajectory Report'!Q$5,'Rate Trajectory Calc'!$A$6:$CQ$6,0))=0,\" \",INDEX('Rate Trajectory Calc'!$A$6:$CQ$92,MATCH('Rate Trajectory Report'!$B85,'Rate Trajectory Calc'!$A$6:$A$92,0),MATCH('Rate Trajectory Report'!Q$5,'Rate Trajectory Calc'!$A$6:$CQ$6,0))/1000)","v":" "},{"$f":"IF(INDEX('Rate Trajectory Calc'!$A$6:$CQ$92,MATCH('Rate Trajectory Report'!$B85,'Rate Trajectory Calc'!$A$6:$A$92,0),MATCH('Rate Trajectory Report'!R$5,'Rate Trajectory Calc'!$A$6:$CQ$6,0))=0,\" \",INDEX('Rate Trajectory Calc'!$A$6:$CQ$92,MATCH('Rate Trajectory Report'!$B85,'Rate Trajectory Calc'!$A$6:$A$92,0),MATCH('Rate Trajectory Report'!R$5,'Rate Trajectory Calc'!$A$6:$CQ$6,0))/1000)","v":" "},{"$f":"IF(INDEX('Rate Trajectory Calc'!$A$6:$CQ$92,MATCH('Rate Trajectory Report'!$B85,'Rate Trajectory Calc'!$A$6:$A$92,0),MATCH('Rate Trajectory Report'!S$5,'Rate Trajectory Calc'!$A$6:$CQ$6,0))=0,\" \",INDEX('Rate Trajectory Calc'!$A$6:$CQ$92,MATCH('Rate Trajectory Report'!$B85,'Rate Trajectory Calc'!$A$6:$A$92,0),MATCH('Rate Trajectory Report'!S$5,'Rate Trajectory Calc'!$A$6:$CQ$6,0))/1000)","v":" "},{"$f":"IF(INDEX('Rate Trajectory Calc'!$A$6:$CQ$92,MATCH('Rate Trajectory Report'!$B85,'Rate Trajectory Calc'!$A$6:$A$92,0),MATCH('Rate Trajectory Report'!T$5,'Rate Trajectory Calc'!$A$6:$CQ$6,0))=0,\" \",INDEX('Rate Trajectory Calc'!$A$6:$CQ$92,MATCH('Rate Trajectory Report'!$B85,'Rate Trajectory Calc'!$A$6:$A$92,0),MATCH('Rate Trajectory Report'!T$5,'Rate Trajectory Calc'!$A$6:$CQ$6,0))/1000)","v":-1.5073696770717853},{"$f":"IF(INDEX('Rate Trajectory Calc'!$A$6:$CQ$92,MATCH('Rate Trajectory Report'!$B85,'Rate Trajectory Calc'!$A$6:$A$92,0),MATCH('Rate Trajectory Report'!U$5,'Rate Trajectory Calc'!$A$6:$CQ$6,0))=0,\" \",INDEX('Rate Trajectory Calc'!$A$6:$CQ$92,MATCH('Rate Trajectory Report'!$B85,'Rate Trajectory Calc'!$A$6:$A$92,0),MATCH('Rate Trajectory Report'!U$5,'Rate Trajectory Calc'!$A$6:$CQ$6,0))/1000)","v":" "},{"$f":"IF(INDEX('Rate Trajectory Calc'!$A$6:$CQ$92,MATCH('Rate Trajectory Report'!$B85,'Rate Trajectory Calc'!$A$6:$A$92,0),MATCH('Rate Trajectory Report'!V$5,'Rate Trajectory Calc'!$A$6:$CQ$6,0))=0,\" \",INDEX('Rate Trajectory Calc'!$A$6:$CQ$92,MATCH('Rate Trajectory Report'!$B85,'Rate Trajectory Calc'!$A$6:$A$92,0),MATCH('Rate Trajectory Report'!V$5,'Rate Trajectory Calc'!$A$6:$CQ$6,0))/1000)","v":" "},{"$f":"IF(INDEX('Rate Trajectory Calc'!$A$6:$CQ$92,MATCH('Rate Trajectory Report'!$B85,'Rate Trajectory Calc'!$A$6:$A$92,0),MATCH('Rate Trajectory Report'!W$5,'Rate Trajectory Calc'!$A$6:$CQ$6,0))=0,\" \",INDEX('Rate Trajectory Calc'!$A$6:$CQ$92,MATCH('Rate Trajectory Report'!$B85,'Rate Trajectory Calc'!$A$6:$A$92,0),MATCH('Rate Trajectory Report'!W$5,'Rate Trajectory Calc'!$A$6:$CQ$6,0))/1000)","v":" "},{"$f":"IF(INDEX('Rate Trajectory Calc'!$A$6:$CQ$92,MATCH('Rate Trajectory Report'!$B85,'Rate Trajectory Calc'!$A$6:$A$92,0),MATCH('Rate Trajectory Report'!X$5,'Rate Trajectory Calc'!$A$6:$CQ$6,0))=0,\" \",INDEX('Rate Trajectory Calc'!$A$6:$CQ$92,MATCH('Rate Trajectory Report'!$B85,'Rate Trajectory Calc'!$A$6:$A$92,0),MATCH('Rate Trajectory Report'!X$5,'Rate Trajectory Calc'!$A$6:$CQ$6,0))/1000)","v":" "},{"$f":"IF(INDEX('Rate Trajectory Calc'!$A$6:$CQ$92,MATCH('Rate Trajectory Report'!$B85,'Rate Trajectory Calc'!$A$6:$A$92,0),MATCH('Rate Trajectory Report'!Y$5,'Rate Trajectory Calc'!$A$6:$CQ$6,0))=0,\" \",INDEX('Rate Trajectory Calc'!$A$6:$CQ$92,MATCH('Rate Trajectory Report'!$B85,'Rate Trajectory Calc'!$A$6:$A$92,0),MATCH('Rate Trajectory Report'!Y$5,'Rate Trajectory Calc'!$A$6:$CQ$6,0))/1000)","v":" "},{"$f":"IF(INDEX('Rate Trajectory Calc'!$A$6:$CQ$92,MATCH('Rate Trajectory Report'!$B85,'Rate Trajectory Calc'!$A$6:$A$92,0),MATCH('Rate Trajectory Report'!Z$5,'Rate Trajectory Calc'!$A$6:$CQ$6,0))=0,\" \",INDEX('Rate Trajectory Calc'!$A$6:$CQ$92,MATCH('Rate Trajectory Report'!$B85,'Rate Trajectory Calc'!$A$6:$A$92,0),MATCH('Rate Trajectory Report'!Z$5,'Rate Trajectory Calc'!$A$6:$CQ$6,0))/1000)","v":" "},{"$f":"IF(INDEX('Rate Trajectory Calc'!$A$6:$CQ$92,MATCH('Rate Trajectory Report'!$B85,'Rate Trajectory Calc'!$A$6:$A$92,0),MATCH('Rate Trajectory Report'!AA$5,'Rate Trajectory Calc'!$A$6:$CQ$6,0))=0,\" \",INDEX('Rate Trajectory Calc'!$A$6:$CQ$92,MATCH('Rate Trajectory Report'!$B85,'Rate Trajectory Calc'!$A$6:$A$92,0),MATCH('Rate Trajectory Report'!AA$5,'Rate Trajectory Calc'!$A$6:$CQ$6,0))/1000)","v":" "}]
[null,{"$f":"'Rate Trajectory Dashboard'!B69","v":"2027 GRC - Customer Access Charge - Year 2028"},{"$f":"IFERROR(VLOOKUP(B86,'Rate Trajectory Dashboard'!$B$12:$D$96,3,FALSE)/1000,'Rate Trajectory Report'!C85)","v":4.6161733053024951},{"$f":"IF(INDEX('Rate Trajectory Calc'!$A$6:$CQ$92,MATCH('Rate Trajectory Report'!$B86,'Rate Trajectory Calc'!$A$6:$A$92,0),MATCH('Rate Trajectory Report'!D$5,'Rate Trajectory Calc'!$A$6:$CQ$6,0))=0,\" \",INDEX('Rate Trajectory Calc'!$A$6:$CQ$92,MATCH('Rate Trajectory Report'!$B86,'Rate Trajectory Calc'!$A$6:$A$92,0),MATCH('Rate Trajectory Report'!D$5,'Rate Trajectory Calc'!$A$6:$CQ$6,0))/1000)","v":" "},{"$f":"IF(INDEX('Rate Trajectory Calc'!$A$6:$CQ$92,MATCH('Rate Trajectory Report'!$B86,'Rate Trajectory Calc'!$A$6:$A$92,0),MATCH('Rate Trajectory Report'!E$5,'Rate Trajectory Calc'!$A$6:$CQ$6,0))=0,\" \",INDEX('Rate Trajectory Calc'!$A$6:$CQ$92,MATCH('Rate Trajectory Report'!$B86,'Rate Trajectory Calc'!$A$6:$A$92,0),MATCH('Rate Trajectory Report'!E$5,'Rate Trajectory Calc'!$A$6:$CQ$6,0))/1000)","v":" "},{"$f":"IF(INDEX('Rate Trajectory Calc'!$A$6:$CQ$92,MATCH('Rate Trajectory Report'!$B86,'Rate Trajectory Calc'!$A$6:$A$92,0),MATCH('Rate Trajectory Report'!F$5,'Rate Trajectory Calc'!$A$6:$CQ$6,0))=0,\" \",INDEX('Rate Trajectory Calc'!$A$6:$CQ$92,MATCH('Rate Trajectory Report'!$B86,'Rate Trajectory Calc'!$A$6:$A$92,0),MATCH('Rate Trajectory Report'!F$5,'Rate Trajectory Calc'!$A$6:$CQ$6,0))/1000)","v":" "},{"$f":"IF(INDEX('Rate Trajectory Calc'!$A$6:$CQ$92,MATCH('Rate Trajectory Report'!$B86,'Rate Trajectory Calc'!$A$6:$A$92,0),MATCH('Rate Trajectory Report'!G$5,'Rate Trajectory Calc'!$A$6:$CQ$6,0))=0,\" \",INDEX('Rate Trajectory Calc'!$A$6:$CQ$92,MATCH('Rate Trajectory Report'!$B86,'Rate Trajectory Calc'!$A$6:$A$92,0),MATCH('Rate Trajectory Report'!G$5,'Rate Trajectory Calc'!$A$6:$CQ$6,0))/1000)","v":" "},{"$f":"IF(INDEX('Rate Trajectory Calc'!$A$6:$CQ$92,MATCH('Rate Trajectory Report'!$B86,'Rate Trajectory Calc'!$A$6:$A$92,0),MATCH('Rate Trajectory Report'!H$5,'Rate Trajectory Calc'!$A$6:$CQ$6,0))=0,\" \",INDEX('Rate Trajectory Calc'!$A$6:$CQ$92,MATCH('Rate Trajectory Report'!$B86,'Rate Trajectory Calc'!$A$6:$A$92,0),MATCH('Rate Trajectory Report'!H$5,'Rate Trajectory Calc'!$A$6:$CQ$6,0))/1000)","v":" "},{"$f":"IF(INDEX('Rate Trajectory Calc'!$A$6:$CQ$92,MATCH('Rate Trajectory Report'!$B86,'Rate Trajectory Calc'!$A$6:$A$92,0),MATCH('Rate Trajectory Report'!I$5,'Rate Trajectory Calc'!$A$6:$CQ$6,0))=0,\" \",INDEX('Rate Trajectory Calc'!$A$6:$CQ$92,MATCH('Rate Trajectory Report'!$B86,'Rate Trajectory Calc'!$A$6:$A$92,0),MATCH('Rate Trajectory Report'!I$5,'Rate Trajectory Calc'!$A$6:$CQ$6,0))/1000)","v":" "},{"$f":"IF(INDEX('Rate Trajectory Calc'!$A$6:$CQ$92,MATCH('Rate Trajectory Report'!$B86,'Rate Trajectory Calc'!$A$6:$A$92,0),MATCH('Rate Trajectory Report'!J$5,'Rate Trajectory Calc'!$A$6:$CQ$6,0))=0,\" \",INDEX('Rate Trajectory Calc'!$A$6:$CQ$92,MATCH('Rate Trajectory Report'!$B86,'Rate Trajectory Calc'!$A$6:$A$92,0),MATCH('Rate Trajectory Report'!J$5,'Rate Trajectory Calc'!$A$6:$CQ$6,0))/1000)","v":" "},{"$f":"IF(INDEX('Rate Trajectory Calc'!$A$6:$CQ$92,MATCH('Rate Trajectory Report'!$B86,'Rate Trajectory Calc'!$A$6:$A$92,0),MATCH('Rate Trajectory Report'!K$5,'Rate Trajectory Calc'!$A$6:$CQ$6,0))=0,\" \",INDEX('Rate Trajectory Calc'!$A$6:$CQ$92,MATCH('Rate Trajectory Report'!$B86,'Rate Trajectory Calc'!$A$6:$A$92,0),MATCH('Rate Trajectory Report'!K$5,'Rate Trajectory Calc'!$A$6:$CQ$6,0))/1000)","v":" "},{"$f":"IF(INDEX('Rate Trajectory Calc'!$A$6:$CQ$92,MATCH('Rate Trajectory Report'!$B86,'Rate Trajectory Calc'!$A$6:$A$92,0),MATCH('Rate Trajectory Report'!L$5,'Rate Trajectory Calc'!$A$6:$CQ$6,0))=0,\" \",INDEX('Rate Trajectory Calc'!$A$6:$CQ$92,MATCH('Rate Trajectory Report'!$B86,'Rate Trajectory Calc'!$A$6:$A$92,0),MATCH('Rate Trajectory Report'!L$5,'Rate Trajectory Calc'!$A$6:$CQ$6,0))/1000)","v":" "},{"$f":"IF(INDEX('Rate Trajectory Calc'!$A$6:$CQ$92,MATCH('Rate Trajectory Report'!$B86,'Rate Trajectory Calc'!$A$6:$A$92,0),MATCH('Rate Trajectory Report'!M$5,'Rate Trajectory Calc'!$A$6:$CQ$6,0))=0,\" \",INDEX('Rate Trajectory Calc'!$A$6:$CQ$92,MATCH('Rate Trajectory Report'!$B86,'Rate Trajectory Calc'!$A$6:$A$92,0),MATCH('Rate Trajectory Report'!M$5,'Rate Trajectory Calc'!$A$6:$CQ$6,0))/1000)","v":" "},{"$f":"IF(INDEX('Rate Trajectory Calc'!$A$6:$CQ$92,MATCH('Rate Trajectory Report'!$B86,'Rate Trajectory Calc'!$A$6:$A$92,0),MATCH('Rate Trajectory Report'!N$5,'Rate Trajectory Calc'!$A$6:$CQ$6,0))=0,\" \",INDEX('Rate Trajectory Calc'!$A$6:$CQ$92,MATCH('Rate Trajectory Report'!$B86,'Rate Trajectory Calc'!$A$6:$A$92,0),MATCH('Rate Trajectory Report'!N$5,'Rate Trajectory Calc'!$A$6:$CQ$6,0))/1000)","v":" "},{"$f":"IF(INDEX('Rate Trajectory Calc'!$A$6:$CQ$92,MATCH('Rate Trajectory Report'!$B86,'Rate Trajectory Calc'!$A$6:$A$92,0),MATCH('Rate Trajectory Report'!O$5,'Rate Trajectory Calc'!$A$6:$CQ$6,0))=0,\" \",INDEX('Rate Trajectory Calc'!$A$6:$CQ$92,MATCH('Rate Trajectory Report'!$B86,'Rate Trajectory Calc'!$A$6:$A$92,0),MATCH('Rate Trajectory Report'!O$5,'Rate Trajectory Calc'!$A$6:$CQ$6,0))/1000)","v":" "},{"$f":"IF(INDEX('Rate Trajectory Calc'!$A$6:$CQ$92,MATCH('Rate Trajectory Report'!$B86,'Rate Trajectory Calc'!$A$6:$A$92,0),MATCH('Rate Trajectory Report'!P$5,'Rate Trajectory Calc'!$A$6:$CQ$6,0))=0,\" \",INDEX('Rate Trajectory Calc'!$A$6:$CQ$92,MATCH('Rate Trajectory Report'!$B86,'Rate Trajectory Calc'!$A$6:$A$92,0),MATCH('Rate Trajectory Report'!P$5,'Rate Trajectory Calc'!$A$6:$CQ$6,0))/1000)","v":" "},{"$f":"IF(INDEX('Rate Trajectory Calc'!$A$6:$CQ$92,MATCH('Rate Trajectory Report'!$B86,'Rate Trajectory Calc'!$A$6:$A$92,0),MATCH('Rate Trajectory Report'!Q$5,'Rate Trajectory Calc'!$A$6:$CQ$6,0))=0,\" \",INDEX('Rate Trajectory Calc'!$A$6:$CQ$92,MATCH('Rate Trajectory Report'!$B86,'Rate Trajectory Calc'!$A$6:$A$92,0),MATCH('Rate Trajectory Report'!Q$5,'Rate Trajectory Calc'!$A$6:$CQ$6,0))/1000)","v":" "},{"$f":"IF(INDEX('Rate Trajectory Calc'!$A$6:$CQ$92,MATCH('Rate Trajectory Report'!$B86,'Rate Trajectory Calc'!$A$6:$A$92,0),MATCH('Rate Trajectory Report'!R$5,'Rate Trajectory Calc'!$A$6:$CQ$6,0))=0,\" \",INDEX('Rate Trajectory Calc'!$A$6:$CQ$92,MATCH('Rate Trajectory Report'!$B86,'Rate Trajectory Calc'!$A$6:$A$92,0),MATCH('Rate Trajectory Report'!R$5,'Rate Trajectory Calc'!$A$6:$CQ$6,0))/1000)","v":" "},{"$f":"IF(INDEX('Rate Trajectory Calc'!$A$6:$CQ$92,MATCH('Rate Trajectory Report'!$B86,'Rate Trajectory Calc'!$A$6:$A$92,0),MATCH('Rate Trajectory Report'!S$5,'Rate Trajectory Calc'!$A$6:$CQ$6,0))=0,\" \",INDEX('Rate Trajectory Calc'!$A$6:$CQ$92,MATCH('Rate Trajectory Report'!$B86,'Rate Trajectory Calc'!$A$6:$A$92,0),MATCH('Rate Trajectory Report'!S$5,'Rate Trajectory Calc'!$A$6:$CQ$6,0))/1000)","v":" "},{"$f":"IF(INDEX('Rate Trajectory Calc'!$A$6:$CQ$92,MATCH('Rate Trajectory Report'!$B86,'Rate Trajectory Calc'!$A$6:$A$92,0),MATCH('Rate Trajectory Report'!T$5,'Rate Trajectory Calc'!$A$6:$CQ$6,0))=0,\" \",INDEX('Rate Trajectory Calc'!$A$6:$CQ$92,MATCH('Rate Trajectory Report'!$B86,'Rate Trajectory Calc'!$A$6:$A$92,0),MATCH('Rate Trajectory Report'!T$5,'Rate Trajectory Calc'!$A$6:$CQ$6,0))/1000)","v":" "},{"$f":"IF(INDEX('Rate Trajectory Calc'!$A$6:$CQ$92,MATCH('Rate Trajectory Report'!$B86,'Rate Trajectory Calc'!$A$6:$A$92,0),MATCH('Rate Trajectory Report'!U$5,'Rate Trajectory Calc'!$A$6:$CQ$6,0))=0,\" \",INDEX('Rate Trajectory Calc'!$A$6:$CQ$92,MATCH('Rate Trajectory Report'!$B86,'Rate Trajectory Calc'!$A$6:$A$92,0),MATCH('Rate Trajectory Report'!U$5,'Rate Trajectory Calc'!$A$6:$CQ$6,0))/1000)","v":" "},{"$f":"IF(INDEX('Rate Trajectory Calc'!$A$6:$CQ$92,MATCH('Rate Trajectory Report'!$B86,'Rate Trajectory Calc'!$A$6:$A$92,0),MATCH('Rate Trajectory Report'!V$5,'Rate Trajectory Calc'!$A$6:$CQ$6,0))=0,\" \",INDEX('Rate Trajectory Calc'!$A$6:$CQ$92,MATCH('Rate Trajectory Report'!$B86,'Rate Trajectory Calc'!$A$6:$A$92,0),MATCH('Rate Trajectory Report'!V$5,'Rate Trajectory Calc'!$A$6:$CQ$6,0))/1000)","v":" "},{"$f":"IF(INDEX('Rate Trajectory Calc'!$A$6:$CQ$92,MATCH('Rate Trajectory Report'!$B86,'Rate Trajectory Calc'!$A$6:$A$92,0),MATCH('Rate Trajectory Report'!W$5,'Rate Trajectory Calc'!$A$6:$CQ$6,0))=0,\" \",INDEX('Rate Trajectory Calc'!$A$6:$CQ$92,MATCH('Rate Trajectory Report'!$B86,'Rate Trajectory Calc'!$A$6:$A$92,0),MATCH('Rate Trajectory Report'!W$5,'Rate Trajectory Calc'!$A$6:$CQ$6,0))/1000)","v":" "},{"$f":"IF(INDEX('Rate Trajectory Calc'!$A$6:$CQ$92,MATCH('Rate Trajectory Report'!$B86,'Rate Trajectory Calc'!$A$6:$A$92,0),MATCH('Rate Trajectory Report'!X$5,'Rate Trajectory Calc'!$A$6:$CQ$6,0))=0,\" \",INDEX('Rate Trajectory Calc'!$A$6:$CQ$92,MATCH('Rate Trajectory Report'!$B86,'Rate Trajectory Calc'!$A$6:$A$92,0),MATCH('Rate Trajectory Report'!X$5,'Rate Trajectory Calc'!$A$6:$CQ$6,0))/1000)","v":" "},{"$f":"IF(INDEX('Rate Trajectory Calc'!$A$6:$CQ$92,MATCH('Rate Trajectory Report'!$B86,'Rate Trajectory Calc'!$A$6:$A$92,0),MATCH('Rate Trajectory Report'!Y$5,'Rate Trajectory Calc'!$A$6:$CQ$6,0))=0,\" \",INDEX('Rate Trajectory Calc'!$A$6:$CQ$92,MATCH('Rate Trajectory Report'!$B86,'Rate Trajectory Calc'!$A$6:$A$92,0),MATCH('Rate Trajectory Report'!Y$5,'Rate Trajectory Calc'!$A$6:$CQ$6,0))/1000)","v":" "},{"$f":"IF(INDEX('Rate Trajectory Calc'!$A$6:$CQ$92,MATCH('Rate Trajectory Report'!$B86,'Rate Trajectory Calc'!$A$6:$A$92,0),MATCH('Rate Trajectory Report'!Z$5,'Rate Trajectory Calc'!$A$6:$CQ$6,0))=0,\" \",INDEX('Rate Trajectory Calc'!$A$6:$CQ$92,MATCH('Rate Trajectory Report'!$B86,'Rate Trajectory Calc'!$A$6:$A$92,0),MATCH('Rate Trajectory Report'!Z$5,'Rate Trajectory Calc'!$A$6:$CQ$6,0))/1000)","v":" "},{"$f":"IF(INDEX('Rate Trajectory Calc'!$A$6:$CQ$92,MATCH('Rate Trajectory Report'!$B86,'Rate Trajectory Calc'!$A$6:$A$92,0),MATCH('Rate Trajectory Report'!AA$5,'Rate Trajectory Calc'!$A$6:$CQ$6,0))=0,\" \",INDEX('Rate Trajectory Calc'!$A$6:$CQ$92,MATCH('Rate Trajectory Report'!$B86,'Rate Trajectory Calc'!$A$6:$A$92,0),MATCH('Rate Trajectory Report'!AA$5,'Rate Trajectory Calc'!$A$6:$CQ$6,0))/1000)","v":" "}]
[null,{"$f":"'Rate Trajectory Dashboard'!B70","v":"2027 GRC - Customer Access Charge - Year 2029"},{"$f":"IFERROR(VLOOKUP(B87,'Rate Trajectory Dashboard'!$B$12:$D$96,3,FALSE)/1000,'Rate Trajectory Report'!C86)","v":4.6161733053024951},{"$f":"IF(INDEX('Rate Trajectory Calc'!$A$6:$CQ$92,MATCH('Rate Trajectory Report'!$B87,'Rate Trajectory Calc'!$A$6:$A$92,0),MATCH('Rate Trajectory Report'!D$5,'Rate Trajectory Calc'!$A$6:$CQ$6,0))=0,\" \",INDEX('Rate Trajectory Calc'!$A$6:$CQ$92,MATCH('Rate Trajectory Report'!$B87,'Rate Trajectory Calc'!$A$6:$A$92,0),MATCH('Rate Trajectory Report'!D$5,'Rate Trajectory Calc'!$A$6:$CQ$6,0))/1000)","v":" "},{"$f":"IF(INDEX('Rate Trajectory Calc'!$A$6:$CQ$92,MATCH('Rate Trajectory Report'!$B87,'Rate Trajectory Calc'!$A$6:$A$92,0),MATCH('Rate Trajectory Report'!E$5,'Rate Trajectory Calc'!$A$6:$CQ$6,0))=0,\" \",INDEX('Rate Trajectory Calc'!$A$6:$CQ$92,MATCH('Rate Trajectory Report'!$B87,'Rate Trajectory Calc'!$A$6:$A$92,0),MATCH('Rate Trajectory Report'!E$5,'Rate Trajectory Calc'!$A$6:$CQ$6,0))/1000)","v":" "},{"$f":"IF(INDEX('Rate Trajectory Calc'!$A$6:$CQ$92,MATCH('Rate Trajectory Report'!$B87,'Rate Trajectory Calc'!$A$6:$A$92,0),MATCH('Rate Trajectory Report'!F$5,'Rate Trajectory Calc'!$A$6:$CQ$6,0))=0,\" \",INDEX('Rate Trajectory Calc'!$A$6:$CQ$92,MATCH('Rate Trajectory Report'!$B87,'Rate Trajectory Calc'!$A$6:$A$92,0),MATCH('Rate Trajectory Report'!F$5,'Rate Trajectory Calc'!$A$6:$CQ$6,0))/1000)","v":" "},{"$f":"IF(INDEX('Rate Trajectory Calc'!$A$6:$CQ$92,MATCH('Rate Trajectory Report'!$B87,'Rate Trajectory Calc'!$A$6:$A$92,0),MATCH('Rate Trajectory Report'!G$5,'Rate Trajectory Calc'!$A$6:$CQ$6,0))=0,\" \",INDEX('Rate Trajectory Calc'!$A$6:$CQ$92,MATCH('Rate Trajectory Report'!$B87,'Rate Trajectory Calc'!$A$6:$A$92,0),MATCH('Rate Trajectory Report'!G$5,'Rate Trajectory Calc'!$A$6:$CQ$6,0))/1000)","v":" "},{"$f":"IF(INDEX('Rate Trajectory Calc'!$A$6:$CQ$92,MATCH('Rate Trajectory Report'!$B87,'Rate Trajectory Calc'!$A$6:$A$92,0),MATCH('Rate Trajectory Report'!H$5,'Rate Trajectory Calc'!$A$6:$CQ$6,0))=0,\" \",INDEX('Rate Trajectory Calc'!$A$6:$CQ$92,MATCH('Rate Trajectory Report'!$B87,'Rate Trajectory Calc'!$A$6:$A$92,0),MATCH('Rate Trajectory Report'!H$5,'Rate Trajectory Calc'!$A$6:$CQ$6,0))/1000)","v":" "},{"$f":"IF(INDEX('Rate Trajectory Calc'!$A$6:$CQ$92,MATCH('Rate Trajectory Report'!$B87,'Rate Trajectory Calc'!$A$6:$A$92,0),MATCH('Rate Trajectory Report'!I$5,'Rate Trajectory Calc'!$A$6:$CQ$6,0))=0,\" \",INDEX('Rate Trajectory Calc'!$A$6:$CQ$92,MATCH('Rate Trajectory Report'!$B87,'Rate Trajectory Calc'!$A$6:$A$92,0),MATCH('Rate Trajectory Report'!I$5,'Rate Trajectory Calc'!$A$6:$CQ$6,0))/1000)","v":" "},{"$f":"IF(INDEX('Rate Trajectory Calc'!$A$6:$CQ$92,MATCH('Rate Trajectory Report'!$B87,'Rate Trajectory Calc'!$A$6:$A$92,0),MATCH('Rate Trajectory Report'!J$5,'Rate Trajectory Calc'!$A$6:$CQ$6,0))=0,\" \",INDEX('Rate Trajectory Calc'!$A$6:$CQ$92,MATCH('Rate Trajectory Report'!$B87,'Rate Trajectory Calc'!$A$6:$A$92,0),MATCH('Rate Trajectory Report'!J$5,'Rate Trajectory Calc'!$A$6:$CQ$6,0))/1000)","v":" "},{"$f":"IF(INDEX('Rate Trajectory Calc'!$A$6:$CQ$92,MATCH('Rate Trajectory Report'!$B87,'Rate Trajectory Calc'!$A$6:$A$92,0),MATCH('Rate Trajectory Report'!K$5,'Rate Trajectory Calc'!$A$6:$CQ$6,0))=0,\" \",INDEX('Rate Trajectory Calc'!$A$6:$CQ$92,MATCH('Rate Trajectory Report'!$B87,'Rate Trajectory Calc'!$A$6:$A$92,0),MATCH('Rate Trajectory Report'!K$5,'Rate Trajectory Calc'!$A$6:$CQ$6,0))/1000)","v":" "},{"$f":"IF(INDEX('Rate Trajectory Calc'!$A$6:$CQ$92,MATCH('Rate Trajectory Report'!$B87,'Rate Trajectory Calc'!$A$6:$A$92,0),MATCH('Rate Trajectory Report'!L$5,'Rate Trajectory Calc'!$A$6:$CQ$6,0))=0,\" \",INDEX('Rate Trajectory Calc'!$A$6:$CQ$92,MATCH('Rate Trajectory Report'!$B87,'Rate Trajectory Calc'!$A$6:$A$92,0),MATCH('Rate Trajectory Report'!L$5,'Rate Trajectory Calc'!$A$6:$CQ$6,0))/1000)","v":" "},{"$f":"IF(INDEX('Rate Trajectory Calc'!$A$6:$CQ$92,MATCH('Rate Trajectory Report'!$B87,'Rate Trajectory Calc'!$A$6:$A$92,0),MATCH('Rate Trajectory Report'!M$5,'Rate Trajectory Calc'!$A$6:$CQ$6,0))=0,\" \",INDEX('Rate Trajectory Calc'!$A$6:$CQ$92,MATCH('Rate Trajectory Report'!$B87,'Rate Trajectory Calc'!$A$6:$A$92,0),MATCH('Rate Trajectory Report'!M$5,'Rate Trajectory Calc'!$A$6:$CQ$6,0))/1000)","v":" "},{"$f":"IF(INDEX('Rate Trajectory Calc'!$A$6:$CQ$92,MATCH('Rate Trajectory Report'!$B87,'Rate Trajectory Calc'!$A$6:$A$92,0),MATCH('Rate Trajectory Report'!N$5,'Rate Trajectory Calc'!$A$6:$CQ$6,0))=0,\" \",INDEX('Rate Trajectory Calc'!$A$6:$CQ$92,MATCH('Rate Trajectory Report'!$B87,'Rate Trajectory Calc'!$A$6:$A$92,0),MATCH('Rate Trajectory Report'!N$5,'Rate Trajectory Calc'!$A$6:$CQ$6,0))/1000)","v":" "},{"$f":"IF(INDEX('Rate Trajectory Calc'!$A$6:$CQ$92,MATCH('Rate Trajectory Report'!$B87,'Rate Trajectory Calc'!$A$6:$A$92,0),MATCH('Rate Trajectory Report'!O$5,'Rate Trajectory Calc'!$A$6:$CQ$6,0))=0,\" \",INDEX('Rate Trajectory Calc'!$A$6:$CQ$92,MATCH('Rate Trajectory Report'!$B87,'Rate Trajectory Calc'!$A$6:$A$92,0),MATCH('Rate Trajectory Report'!O$5,'Rate Trajectory Calc'!$A$6:$CQ$6,0))/1000)","v":" "},{"$f":"IF(INDEX('Rate Trajectory Calc'!$A$6:$CQ$92,MATCH('Rate Trajectory Report'!$B87,'Rate Trajectory Calc'!$A$6:$A$92,0),MATCH('Rate Trajectory Report'!P$5,'Rate Trajectory Calc'!$A$6:$CQ$6,0))=0,\" \",INDEX('Rate Trajectory Calc'!$A$6:$CQ$92,MATCH('Rate Trajectory Report'!$B87,'Rate Trajectory Calc'!$A$6:$A$92,0),MATCH('Rate Trajectory Report'!P$5,'Rate Trajectory Calc'!$A$6:$CQ$6,0))/1000)","v":" "},{"$f":"IF(INDEX('Rate Trajectory Calc'!$A$6:$CQ$92,MATCH('Rate Trajectory Report'!$B87,'Rate Trajectory Calc'!$A$6:$A$92,0),MATCH('Rate Trajectory Report'!Q$5,'Rate Trajectory Calc'!$A$6:$CQ$6,0))=0,\" \",INDEX('Rate Trajectory Calc'!$A$6:$CQ$92,MATCH('Rate Trajectory Report'!$B87,'Rate Trajectory Calc'!$A$6:$A$92,0),MATCH('Rate Trajectory Report'!Q$5,'Rate Trajectory Calc'!$A$6:$CQ$6,0))/1000)","v":" "},{"$f":"IF(INDEX('Rate Trajectory Calc'!$A$6:$CQ$92,MATCH('Rate Trajectory Report'!$B87,'Rate Trajectory Calc'!$A$6:$A$92,0),MATCH('Rate Trajectory Report'!R$5,'Rate Trajectory Calc'!$A$6:$CQ$6,0))=0,\" \",INDEX('Rate Trajectory Calc'!$A$6:$CQ$92,MATCH('Rate Trajectory Report'!$B87,'Rate Trajectory Calc'!$A$6:$A$92,0),MATCH('Rate Trajectory Report'!R$5,'Rate Trajectory Calc'!$A$6:$CQ$6,0))/1000)","v":" "},{"$f":"IF(INDEX('Rate Trajectory Calc'!$A$6:$CQ$92,MATCH('Rate Trajectory Report'!$B87,'Rate Trajectory Calc'!$A$6:$A$92,0),MATCH('Rate Trajectory Report'!S$5,'Rate Trajectory Calc'!$A$6:$CQ$6,0))=0,\" \",INDEX('Rate Trajectory Calc'!$A$6:$CQ$92,MATCH('Rate Trajectory Report'!$B87,'Rate Trajectory Calc'!$A$6:$A$92,0),MATCH('Rate Trajectory Report'!S$5,'Rate Trajectory Calc'!$A$6:$CQ$6,0))/1000)","v":" "},{"$f":"IF(INDEX('Rate Trajectory Calc'!$A$6:$CQ$92,MATCH('Rate Trajectory Report'!$B87,'Rate Trajectory Calc'!$A$6:$A$92,0),MATCH('Rate Trajectory Report'!T$5,'Rate Trajectory Calc'!$A$6:$CQ$6,0))=0,\" \",INDEX('Rate Trajectory Calc'!$A$6:$CQ$92,MATCH('Rate Trajectory Report'!$B87,'Rate Trajectory Calc'!$A$6:$A$92,0),MATCH('Rate Trajectory Report'!T$5,'Rate Trajectory Calc'!$A$6:$CQ$6,0))/1000)","v":" "},{"$f":"IF(INDEX('Rate Trajectory Calc'!$A$6:$CQ$92,MATCH('Rate Trajectory Report'!$B87,'Rate Trajectory Calc'!$A$6:$A$92,0),MATCH('Rate Trajectory Report'!U$5,'Rate Trajectory Calc'!$A$6:$CQ$6,0))=0,\" \",INDEX('Rate Trajectory Calc'!$A$6:$CQ$92,MATCH('Rate Trajectory Report'!$B87,'Rate Trajectory Calc'!$A$6:$A$92,0),MATCH('Rate Trajectory Report'!U$5,'Rate Trajectory Calc'!$A$6:$CQ$6,0))/1000)","v":" "},{"$f":"IF(INDEX('Rate Trajectory Calc'!$A$6:$CQ$92,MATCH('Rate Trajectory Report'!$B87,'Rate Trajectory Calc'!$A$6:$A$92,0),MATCH('Rate Trajectory Report'!V$5,'Rate Trajectory Calc'!$A$6:$CQ$6,0))=0,\" \",INDEX('Rate Trajectory Calc'!$A$6:$CQ$92,MATCH('Rate Trajectory Report'!$B87,'Rate Trajectory Calc'!$A$6:$A$92,0),MATCH('Rate Trajectory Report'!V$5,'Rate Trajectory Calc'!$A$6:$CQ$6,0))/1000)","v":" "},{"$f":"IF(INDEX('Rate Trajectory Calc'!$A$6:$CQ$92,MATCH('Rate Trajectory Report'!$B87,'Rate Trajectory Calc'!$A$6:$A$92,0),MATCH('Rate Trajectory Report'!W$5,'Rate Trajectory Calc'!$A$6:$CQ$6,0))=0,\" \",INDEX('Rate Trajectory Calc'!$A$6:$CQ$92,MATCH('Rate Trajectory Report'!$B87,'Rate Trajectory Calc'!$A$6:$A$92,0),MATCH('Rate Trajectory Report'!W$5,'Rate Trajectory Calc'!$A$6:$CQ$6,0))/1000)","v":" "},{"$f":"IF(INDEX('Rate Trajectory Calc'!$A$6:$CQ$92,MATCH('Rate Trajectory Report'!$B87,'Rate Trajectory Calc'!$A$6:$A$92,0),MATCH('Rate Trajectory Report'!X$5,'Rate Trajectory Calc'!$A$6:$CQ$6,0))=0,\" \",INDEX('Rate Trajectory Calc'!$A$6:$CQ$92,MATCH('Rate Trajectory Report'!$B87,'Rate Trajectory Calc'!$A$6:$A$92,0),MATCH('Rate Trajectory Report'!X$5,'Rate Trajectory Calc'!$A$6:$CQ$6,0))/1000)","v":" "},{"$f":"IF(INDEX('Rate Trajectory Calc'!$A$6:$CQ$92,MATCH('Rate Trajectory Report'!$B87,'Rate Trajectory Calc'!$A$6:$A$92,0),MATCH('Rate Trajectory Report'!Y$5,'Rate Trajectory Calc'!$A$6:$CQ$6,0))=0,\" \",INDEX('Rate Trajectory Calc'!$A$6:$CQ$92,MATCH('Rate Trajectory Report'!$B87,'Rate Trajectory Calc'!$A$6:$A$92,0),MATCH('Rate Trajectory Report'!Y$5,'Rate Trajectory Calc'!$A$6:$CQ$6,0))/1000)","v":" "},{"$f":"IF(INDEX('Rate Trajectory Calc'!$A$6:$CQ$92,MATCH('Rate Trajectory Report'!$B87,'Rate Trajectory Calc'!$A$6:$A$92,0),MATCH('Rate Trajectory Report'!Z$5,'Rate Trajectory Calc'!$A$6:$CQ$6,0))=0,\" \",INDEX('Rate Trajectory Calc'!$A$6:$CQ$92,MATCH('Rate Trajectory Report'!$B87,'Rate Trajectory Calc'!$A$6:$A$92,0),MATCH('Rate Trajectory Report'!Z$5,'Rate Trajectory Calc'!$A$6:$CQ$6,0))/1000)","v":" "},{"$f":"IF(INDEX('Rate Trajectory Calc'!$A$6:$CQ$92,MATCH('Rate Trajectory Report'!$B87,'Rate Trajectory Calc'!$A$6:$A$92,0),MATCH('Rate Trajectory Report'!AA$5,'Rate Trajectory Calc'!$A$6:$CQ$6,0))=0,\" \",INDEX('Rate Trajectory Calc'!$A$6:$CQ$92,MATCH('Rate Trajectory Report'!$B87,'Rate Trajectory Calc'!$A$6:$A$92,0),MATCH('Rate Trajectory Report'!AA$5,'Rate Trajectory Calc'!$A$6:$CQ$6,0))/1000)","v":" "}]
["13f","2027 GRC - Customer Access Charge",{"$f":"IFERROR(VLOOKUP(B88,'Rate Trajectory Dashboard'!$B$12:$D$96,3,FALSE)/1000,'Rate Trajectory Report'!C87)","v":4.6161733053024951},{"$f":"IF(SUM(D85:D87)=0,\" \",SUBTOTAL(9,D85:D87))","v":" "},{"$f":"IF(SUM(E85:E87)=0,\" \",SUBTOTAL(9,E85:E87))","v":" "}," "," "," "," "," "," "," "," "," "," "," "," "," "," ",-1.5073696770717853," "," "," "," "," "," "," "]
[null,{"$f":"'Rate Trajectory Dashboard'!B71","v":"2027 GRC - Noncore Unbundled - Year 2027"},{"$f":"IFERROR(VLOOKUP(B89,'Rate Trajectory Dashboard'!$B$12:$D$96,3,FALSE)/1000,'Rate Trajectory Report'!C88)","v":251.04465172382118},{"$f":"IF(INDEX('Rate Trajectory Calc'!$A$6:$CQ$92,MATCH('Rate Trajectory Report'!$B89,'Rate Trajectory Calc'!$A$6:$A$92,0),MATCH('Rate Trajectory Report'!D$5,'Rate Trajectory Calc'!$A$6:$CQ$6,0))=0,\" \",INDEX('Rate Trajectory Calc'!$A$6:$CQ$92,MATCH('Rate Trajectory Report'!$B89,'Rate Trajectory Calc'!$A$6:$A$92,0),MATCH('Rate Trajectory Report'!D$5,'Rate Trajectory Calc'!$A$6:$CQ$6,0))/1000)","v":" "},{"$f":"IF(INDEX('Rate Trajectory Calc'!$A$6:$CQ$92,MATCH('Rate Trajectory Report'!$B89,'Rate Trajectory Calc'!$A$6:$A$92,0),MATCH('Rate Trajectory Report'!E$5,'Rate Trajectory Calc'!$A$6:$CQ$6,0))=0,\" \",INDEX('Rate Trajectory Calc'!$A$6:$CQ$92,MATCH('Rate Trajectory Report'!$B89,'Rate Trajectory Calc'!$A$6:$A$92,0),MATCH('Rate Trajectory Report'!E$5,'Rate Trajectory Calc'!$A$6:$CQ$6,0))/1000)","v":" "},{"$f":"IF(INDEX('Rate Trajectory Calc'!$A$6:$CQ$92,MATCH('Rate Trajectory Report'!$B89,'Rate Trajectory Calc'!$A$6:$A$92,0),MATCH('Rate Trajectory Report'!F$5,'Rate Trajectory Calc'!$A$6:$CQ$6,0))=0,\" \",INDEX('Rate Trajectory Calc'!$A$6:$CQ$92,MATCH('Rate Trajectory Report'!$B89,'Rate Trajectory Calc'!$A$6:$A$92,0),MATCH('Rate Trajectory Report'!F$5,'Rate Trajectory Calc'!$A$6:$CQ$6,0))/1000)","v":" "},{"$f":"IF(INDEX('Rate Trajectory Calc'!$A$6:$CQ$92,MATCH('Rate Trajectory Report'!$B89,'Rate Trajectory Calc'!$A$6:$A$92,0),MATCH('Rate Trajectory Report'!G$5,'Rate Trajectory Calc'!$A$6:$CQ$6,0))=0,\" \",INDEX('Rate Trajectory Calc'!$A$6:$CQ$92,MATCH('Rate Trajectory Report'!$B89,'Rate Trajectory Calc'!$A$6:$A$92,0),MATCH('Rate Trajectory Report'!G$5,'Rate Trajectory Calc'!$A$6:$CQ$6,0))/1000)","v":" "},{"$f":"IF(INDEX('Rate Trajectory Calc'!$A$6:$CQ$92,MATCH('Rate Trajectory Report'!$B89,'Rate Trajectory Calc'!$A$6:$A$92,0),MATCH('Rate Trajectory Report'!H$5,'Rate Trajectory Calc'!$A$6:$CQ$6,0))=0,\" \",INDEX('Rate Trajectory Calc'!$A$6:$CQ$92,MATCH('Rate Trajectory Report'!$B89,'Rate Trajectory Calc'!$A$6:$A$92,0),MATCH('Rate Trajectory Report'!H$5,'Rate Trajectory Calc'!$A$6:$CQ$6,0))/1000)","v":" "},{"$f":"IF(INDEX('Rate Trajectory Calc'!$A$6:$CQ$92,MATCH('Rate Trajectory Report'!$B89,'Rate Trajectory Calc'!$A$6:$A$92,0),MATCH('Rate Trajectory Report'!I$5,'Rate Trajectory Calc'!$A$6:$CQ$6,0))=0,\" \",INDEX('Rate Trajectory Calc'!$A$6:$CQ$92,MATCH('Rate Trajectory Report'!$B89,'Rate Trajectory Calc'!$A$6:$A$92,0),MATCH('Rate Trajectory Report'!I$5,'Rate Trajectory Calc'!$A$6:$CQ$6,0))/1000)","v":" "},{"$f":"IF(INDEX('Rate Trajectory Calc'!$A$6:$CQ$92,MATCH('Rate Trajectory Report'!$B89,'Rate Trajectory Calc'!$A$6:$A$92,0),MATCH('Rate Trajectory Report'!J$5,'Rate Trajectory Calc'!$A$6:$CQ$6,0))=0,\" \",INDEX('Rate Trajectory Calc'!$A$6:$CQ$92,MATCH('Rate Trajectory Report'!$B89,'Rate Trajectory Calc'!$A$6:$A$92,0),MATCH('Rate Trajectory Report'!J$5,'Rate Trajectory Calc'!$A$6:$CQ$6,0))/1000)","v":" "},{"$f":"IF(INDEX('Rate Trajectory Calc'!$A$6:$CQ$92,MATCH('Rate Trajectory Report'!$B89,'Rate Trajectory Calc'!$A$6:$A$92,0),MATCH('Rate Trajectory Report'!K$5,'Rate Trajectory Calc'!$A$6:$CQ$6,0))=0,\" \",INDEX('Rate Trajectory Calc'!$A$6:$CQ$92,MATCH('Rate Trajectory Report'!$B89,'Rate Trajectory Calc'!$A$6:$A$92,0),MATCH('Rate Trajectory Report'!K$5,'Rate Trajectory Calc'!$A$6:$CQ$6,0))/1000)","v":" "},{"$f":"IF(INDEX('Rate Trajectory Calc'!$A$6:$CQ$92,MATCH('Rate Trajectory Report'!$B89,'Rate Trajectory Calc'!$A$6:$A$92,0),MATCH('Rate Trajectory Report'!L$5,'Rate Trajectory Calc'!$A$6:$CQ$6,0))=0,\" \",INDEX('Rate Trajectory Calc'!$A$6:$CQ$92,MATCH('Rate Trajectory Report'!$B89,'Rate Trajectory Calc'!$A$6:$A$92,0),MATCH('Rate Trajectory Report'!L$5,'Rate Trajectory Calc'!$A$6:$CQ$6,0))/1000)","v":" "},{"$f":"IF(INDEX('Rate Trajectory Calc'!$A$6:$CQ$92,MATCH('Rate Trajectory Report'!$B89,'Rate Trajectory Calc'!$A$6:$A$92,0),MATCH('Rate Trajectory Report'!M$5,'Rate Trajectory Calc'!$A$6:$CQ$6,0))=0,\" \",INDEX('Rate Trajectory Calc'!$A$6:$CQ$92,MATCH('Rate Trajectory Report'!$B89,'Rate Trajectory Calc'!$A$6:$A$92,0),MATCH('Rate Trajectory Report'!M$5,'Rate Trajectory Calc'!$A$6:$CQ$6,0))/1000)","v":" "},{"$f":"IF(INDEX('Rate Trajectory Calc'!$A$6:$CQ$92,MATCH('Rate Trajectory Report'!$B89,'Rate Trajectory Calc'!$A$6:$A$92,0),MATCH('Rate Trajectory Report'!N$5,'Rate Trajectory Calc'!$A$6:$CQ$6,0))=0,\" \",INDEX('Rate Trajectory Calc'!$A$6:$CQ$92,MATCH('Rate Trajectory Report'!$B89,'Rate Trajectory Calc'!$A$6:$A$92,0),MATCH('Rate Trajectory Report'!N$5,'Rate Trajectory Calc'!$A$6:$CQ$6,0))/1000)","v":" "},{"$f":"IF(INDEX('Rate Trajectory Calc'!$A$6:$CQ$92,MATCH('Rate Trajectory Report'!$B89,'Rate Trajectory Calc'!$A$6:$A$92,0),MATCH('Rate Trajectory Report'!O$5,'Rate Trajectory Calc'!$A$6:$CQ$6,0))=0,\" \",INDEX('Rate Trajectory Calc'!$A$6:$CQ$92,MATCH('Rate Trajectory Report'!$B89,'Rate Trajectory Calc'!$A$6:$A$92,0),MATCH('Rate Trajectory Report'!O$5,'Rate Trajectory Calc'!$A$6:$CQ$6,0))/1000)","v":" "},{"$f":"IF(INDEX('Rate Trajectory Calc'!$A$6:$CQ$92,MATCH('Rate Trajectory Report'!$B89,'Rate Trajectory Calc'!$A$6:$A$92,0),MATCH('Rate Trajectory Report'!P$5,'Rate Trajectory Calc'!$A$6:$CQ$6,0))=0,\" \",INDEX('Rate Trajectory Calc'!$A$6:$CQ$92,MATCH('Rate Trajectory Report'!$B89,'Rate Trajectory Calc'!$A$6:$A$92,0),MATCH('Rate Trajectory Report'!P$5,'Rate Trajectory Calc'!$A$6:$CQ$6,0))/1000)","v":" "},{"$f":"IF(INDEX('Rate Trajectory Calc'!$A$6:$CQ$92,MATCH('Rate Trajectory Report'!$B89,'Rate Trajectory Calc'!$A$6:$A$92,0),MATCH('Rate Trajectory Report'!Q$5,'Rate Trajectory Calc'!$A$6:$CQ$6,0))=0,\" \",INDEX('Rate Trajectory Calc'!$A$6:$CQ$92,MATCH('Rate Trajectory Report'!$B89,'Rate Trajectory Calc'!$A$6:$A$92,0),MATCH('Rate Trajectory Report'!Q$5,'Rate Trajectory Calc'!$A$6:$CQ$6,0))/1000)","v":" "},{"$f":"IF(INDEX('Rate Trajectory Calc'!$A$6:$CQ$92,MATCH('Rate Trajectory Report'!$B89,'Rate Trajectory Calc'!$A$6:$A$92,0),MATCH('Rate Trajectory Report'!R$5,'Rate Trajectory Calc'!$A$6:$CQ$6,0))=0,\" \",INDEX('Rate Trajectory Calc'!$A$6:$CQ$92,MATCH('Rate Trajectory Report'!$B89,'Rate Trajectory Calc'!$A$6:$A$92,0),MATCH('Rate Trajectory Report'!R$5,'Rate Trajectory Calc'!$A$6:$CQ$6,0))/1000)","v":" "},{"$f":"IF(INDEX('Rate Trajectory Calc'!$A$6:$CQ$92,MATCH('Rate Trajectory Report'!$B89,'Rate Trajectory Calc'!$A$6:$A$92,0),MATCH('Rate Trajectory Report'!S$5,'Rate Trajectory Calc'!$A$6:$CQ$6,0))=0,\" \",INDEX('Rate Trajectory Calc'!$A$6:$CQ$92,MATCH('Rate Trajectory Report'!$B89,'Rate Trajectory Calc'!$A$6:$A$92,0),MATCH('Rate Trajectory Report'!S$5,'Rate Trajectory Calc'!$A$6:$CQ$6,0))/1000)","v":" "},{"$f":"IF(INDEX('Rate Trajectory Calc'!$A$6:$CQ$92,MATCH('Rate Trajectory Report'!$B89,'Rate Trajectory Calc'!$A$6:$A$92,0),MATCH('Rate Trajectory Report'!T$5,'Rate Trajectory Calc'!$A$6:$CQ$6,0))=0,\" \",INDEX('Rate Trajectory Calc'!$A$6:$CQ$92,MATCH('Rate Trajectory Report'!$B89,'Rate Trajectory Calc'!$A$6:$A$92,0),MATCH('Rate Trajectory Report'!T$5,'Rate Trajectory Calc'!$A$6:$CQ$6,0))/1000)","v":-53.435269466808649},{"$f":"IF(INDEX('Rate Trajectory Calc'!$A$6:$CQ$92,MATCH('Rate Trajectory Report'!$B89,'Rate Trajectory Calc'!$A$6:$A$92,0),MATCH('Rate Trajectory Report'!U$5,'Rate Trajectory Calc'!$A$6:$CQ$6,0))=0,\" \",INDEX('Rate Trajectory Calc'!$A$6:$CQ$92,MATCH('Rate Trajectory Report'!$B89,'Rate Trajectory Calc'!$A$6:$A$92,0),MATCH('Rate Trajectory Report'!U$5,'Rate Trajectory Calc'!$A$6:$CQ$6,0))/1000)","v":" "},{"$f":"IF(INDEX('Rate Trajectory Calc'!$A$6:$CQ$92,MATCH('Rate Trajectory Report'!$B89,'Rate Trajectory Calc'!$A$6:$A$92,0),MATCH('Rate Trajectory Report'!V$5,'Rate Trajectory Calc'!$A$6:$CQ$6,0))=0,\" \",INDEX('Rate Trajectory Calc'!$A$6:$CQ$92,MATCH('Rate Trajectory Report'!$B89,'Rate Trajectory Calc'!$A$6:$A$92,0),MATCH('Rate Trajectory Report'!V$5,'Rate Trajectory Calc'!$A$6:$CQ$6,0))/1000)","v":" "},{"$f":"IF(INDEX('Rate Trajectory Calc'!$A$6:$CQ$92,MATCH('Rate Trajectory Report'!$B89,'Rate Trajectory Calc'!$A$6:$A$92,0),MATCH('Rate Trajectory Report'!W$5,'Rate Trajectory Calc'!$A$6:$CQ$6,0))=0,\" \",INDEX('Rate Trajectory Calc'!$A$6:$CQ$92,MATCH('Rate Trajectory Report'!$B89,'Rate Trajectory Calc'!$A$6:$A$92,0),MATCH('Rate Trajectory Report'!W$5,'Rate Trajectory Calc'!$A$6:$CQ$6,0))/1000)","v":" "},{"$f":"IF(INDEX('Rate Trajectory Calc'!$A$6:$CQ$92,MATCH('Rate Trajectory Report'!$B89,'Rate Trajectory Calc'!$A$6:$A$92,0),MATCH('Rate Trajectory Report'!X$5,'Rate Trajectory Calc'!$A$6:$CQ$6,0))=0,\" \",INDEX('Rate Trajectory Calc'!$A$6:$CQ$92,MATCH('Rate Trajectory Report'!$B89,'Rate Trajectory Calc'!$A$6:$A$92,0),MATCH('Rate Trajectory Report'!X$5,'Rate Trajectory Calc'!$A$6:$CQ$6,0))/1000)","v":" "},{"$f":"IF(INDEX('Rate Trajectory Calc'!$A$6:$CQ$92,MATCH('Rate Trajectory Report'!$B89,'Rate Trajectory Calc'!$A$6:$A$92,0),MATCH('Rate Trajectory Report'!Y$5,'Rate Trajectory Calc'!$A$6:$CQ$6,0))=0,\" \",INDEX('Rate Trajectory Calc'!$A$6:$CQ$92,MATCH('Rate Trajectory Report'!$B89,'Rate Trajectory Calc'!$A$6:$A$92,0),MATCH('Rate Trajectory Report'!Y$5,'Rate Trajectory Calc'!$A$6:$CQ$6,0))/1000)","v":" "},{"$f":"IF(INDEX('Rate Trajectory Calc'!$A$6:$CQ$92,MATCH('Rate Trajectory Report'!$B89,'Rate Trajectory Calc'!$A$6:$A$92,0),MATCH('Rate Trajectory Report'!Z$5,'Rate Trajectory Calc'!$A$6:$CQ$6,0))=0,\" \",INDEX('Rate Trajectory Calc'!$A$6:$CQ$92,MATCH('Rate Trajectory Report'!$B89,'Rate Trajectory Calc'!$A$6:$A$92,0),MATCH('Rate Trajectory Report'!Z$5,'Rate Trajectory Calc'!$A$6:$CQ$6,0))/1000)","v":" "},{"$f":"IF(INDEX('Rate Trajectory Calc'!$A$6:$CQ$92,MATCH('Rate Trajectory Report'!$B89,'Rate Trajectory Calc'!$A$6:$A$92,0),MATCH('Rate Trajectory Report'!AA$5,'Rate Trajectory Calc'!$A$6:$CQ$6,0))=0,\" \",INDEX('Rate Trajectory Calc'!$A$6:$CQ$92,MATCH('Rate Trajectory Report'!$B89,'Rate Trajectory Calc'!$A$6:$A$92,0),MATCH('Rate Trajectory Report'!AA$5,'Rate Trajectory Calc'!$A$6:$CQ$6,0))/1000)","v":" "}]
[null,{"$f":"'Rate Trajectory Dashboard'!B72","v":"2027 GRC - Noncore Unbundled - Year 2028"},{"$f":"IFERROR(VLOOKUP(B90,'Rate Trajectory Dashboard'!$B$12:$D$96,3,FALSE)/1000,'Rate Trajectory Report'!C89)","v":251.04465172382118},{"$f":"IF(INDEX('Rate Trajectory Calc'!$A$6:$CQ$92,MATCH('Rate Trajectory Report'!$B90,'Rate Trajectory Calc'!$A$6:$A$92,0),MATCH('Rate Trajectory Report'!D$5,'Rate Trajectory Calc'!$A$6:$CQ$6,0))=0,\" \",INDEX('Rate Trajectory Calc'!$A$6:$CQ$92,MATCH('Rate Trajectory Report'!$B90,'Rate Trajectory Calc'!$A$6:$A$92,0),MATCH('Rate Trajectory Report'!D$5,'Rate Trajectory Calc'!$A$6:$CQ$6,0))/1000)","v":" "},{"$f":"IF(INDEX('Rate Trajectory Calc'!$A$6:$CQ$92,MATCH('Rate Trajectory Report'!$B90,'Rate Trajectory Calc'!$A$6:$A$92,0),MATCH('Rate Trajectory Report'!E$5,'Rate Trajectory Calc'!$A$6:$CQ$6,0))=0,\" \",INDEX('Rate Trajectory Calc'!$A$6:$CQ$92,MATCH('Rate Trajectory Report'!$B90,'Rate Trajectory Calc'!$A$6:$A$92,0),MATCH('Rate Trajectory Report'!E$5,'Rate Trajectory Calc'!$A$6:$CQ$6,0))/1000)","v":" "},{"$f":"IF(INDEX('Rate Trajectory Calc'!$A$6:$CQ$92,MATCH('Rate Trajectory Report'!$B90,'Rate Trajectory Calc'!$A$6:$A$92,0),MATCH('Rate Trajectory Report'!F$5,'Rate Trajectory Calc'!$A$6:$CQ$6,0))=0,\" \",INDEX('Rate Trajectory Calc'!$A$6:$CQ$92,MATCH('Rate Trajectory Report'!$B90,'Rate Trajectory Calc'!$A$6:$A$92,0),MATCH('Rate Trajectory Report'!F$5,'Rate Trajectory Calc'!$A$6:$CQ$6,0))/1000)","v":" "},{"$f":"IF(INDEX('Rate Trajectory Calc'!$A$6:$CQ$92,MATCH('Rate Trajectory Report'!$B90,'Rate Trajectory Calc'!$A$6:$A$92,0),MATCH('Rate Trajectory Report'!G$5,'Rate Trajectory Calc'!$A$6:$CQ$6,0))=0,\" \",INDEX('Rate Trajectory Calc'!$A$6:$CQ$92,MATCH('Rate Trajectory Report'!$B90,'Rate Trajectory Calc'!$A$6:$A$92,0),MATCH('Rate Trajectory Report'!G$5,'Rate Trajectory Calc'!$A$6:$CQ$6,0))/1000)","v":" "},{"$f":"IF(INDEX('Rate Trajectory Calc'!$A$6:$CQ$92,MATCH('Rate Trajectory Report'!$B90,'Rate Trajectory Calc'!$A$6:$A$92,0),MATCH('Rate Trajectory Report'!H$5,'Rate Trajectory Calc'!$A$6:$CQ$6,0))=0,\" \",INDEX('Rate Trajectory Calc'!$A$6:$CQ$92,MATCH('Rate Trajectory Report'!$B90,'Rate Trajectory Calc'!$A$6:$A$92,0),MATCH('Rate Trajectory Report'!H$5,'Rate Trajectory Calc'!$A$6:$CQ$6,0))/1000)","v":" "},{"$f":"IF(INDEX('Rate Trajectory Calc'!$A$6:$CQ$92,MATCH('Rate Trajectory Report'!$B90,'Rate Trajectory Calc'!$A$6:$A$92,0),MATCH('Rate Trajectory Report'!I$5,'Rate Trajectory Calc'!$A$6:$CQ$6,0))=0,\" \",INDEX('Rate Trajectory Calc'!$A$6:$CQ$92,MATCH('Rate Trajectory Report'!$B90,'Rate Trajectory Calc'!$A$6:$A$92,0),MATCH('Rate Trajectory Report'!I$5,'Rate Trajectory Calc'!$A$6:$CQ$6,0))/1000)","v":" "},{"$f":"IF(INDEX('Rate Trajectory Calc'!$A$6:$CQ$92,MATCH('Rate Trajectory Report'!$B90,'Rate Trajectory Calc'!$A$6:$A$92,0),MATCH('Rate Trajectory Report'!J$5,'Rate Trajectory Calc'!$A$6:$CQ$6,0))=0,\" \",INDEX('Rate Trajectory Calc'!$A$6:$CQ$92,MATCH('Rate Trajectory Report'!$B90,'Rate Trajectory Calc'!$A$6:$A$92,0),MATCH('Rate Trajectory Report'!J$5,'Rate Trajectory Calc'!$A$6:$CQ$6,0))/1000)","v":" "},{"$f":"IF(INDEX('Rate Trajectory Calc'!$A$6:$CQ$92,MATCH('Rate Trajectory Report'!$B90,'Rate Trajectory Calc'!$A$6:$A$92,0),MATCH('Rate Trajectory Report'!K$5,'Rate Trajectory Calc'!$A$6:$CQ$6,0))=0,\" \",INDEX('Rate Trajectory Calc'!$A$6:$CQ$92,MATCH('Rate Trajectory Report'!$B90,'Rate Trajectory Calc'!$A$6:$A$92,0),MATCH('Rate Trajectory Report'!K$5,'Rate Trajectory Calc'!$A$6:$CQ$6,0))/1000)","v":" "},{"$f":"IF(INDEX('Rate Trajectory Calc'!$A$6:$CQ$92,MATCH('Rate Trajectory Report'!$B90,'Rate Trajectory Calc'!$A$6:$A$92,0),MATCH('Rate Trajectory Report'!L$5,'Rate Trajectory Calc'!$A$6:$CQ$6,0))=0,\" \",INDEX('Rate Trajectory Calc'!$A$6:$CQ$92,MATCH('Rate Trajectory Report'!$B90,'Rate Trajectory Calc'!$A$6:$A$92,0),MATCH('Rate Trajectory Report'!L$5,'Rate Trajectory Calc'!$A$6:$CQ$6,0))/1000)","v":" "},{"$f":"IF(INDEX('Rate Trajectory Calc'!$A$6:$CQ$92,MATCH('Rate Trajectory Report'!$B90,'Rate Trajectory Calc'!$A$6:$A$92,0),MATCH('Rate Trajectory Report'!M$5,'Rate Trajectory Calc'!$A$6:$CQ$6,0))=0,\" \",INDEX('Rate Trajectory Calc'!$A$6:$CQ$92,MATCH('Rate Trajectory Report'!$B90,'Rate Trajectory Calc'!$A$6:$A$92,0),MATCH('Rate Trajectory Report'!M$5,'Rate Trajectory Calc'!$A$6:$CQ$6,0))/1000)","v":" "},{"$f":"IF(INDEX('Rate Trajectory Calc'!$A$6:$CQ$92,MATCH('Rate Trajectory Report'!$B90,'Rate Trajectory Calc'!$A$6:$A$92,0),MATCH('Rate Trajectory Report'!N$5,'Rate Trajectory Calc'!$A$6:$CQ$6,0))=0,\" \",INDEX('Rate Trajectory Calc'!$A$6:$CQ$92,MATCH('Rate Trajectory Report'!$B90,'Rate Trajectory Calc'!$A$6:$A$92,0),MATCH('Rate Trajectory Report'!N$5,'Rate Trajectory Calc'!$A$6:$CQ$6,0))/1000)","v":" "},{"$f":"IF(INDEX('Rate Trajectory Calc'!$A$6:$CQ$92,MATCH('Rate Trajectory Report'!$B90,'Rate Trajectory Calc'!$A$6:$A$92,0),MATCH('Rate Trajectory Report'!O$5,'Rate Trajectory Calc'!$A$6:$CQ$6,0))=0,\" \",INDEX('Rate Trajectory Calc'!$A$6:$CQ$92,MATCH('Rate Trajectory Report'!$B90,'Rate Trajectory Calc'!$A$6:$A$92,0),MATCH('Rate Trajectory Report'!O$5,'Rate Trajectory Calc'!$A$6:$CQ$6,0))/1000)","v":" "},{"$f":"IF(INDEX('Rate Trajectory Calc'!$A$6:$CQ$92,MATCH('Rate Trajectory Report'!$B90,'Rate Trajectory Calc'!$A$6:$A$92,0),MATCH('Rate Trajectory Report'!P$5,'Rate Trajectory Calc'!$A$6:$CQ$6,0))=0,\" \",INDEX('Rate Trajectory Calc'!$A$6:$CQ$92,MATCH('Rate Trajectory Report'!$B90,'Rate Trajectory Calc'!$A$6:$A$92,0),MATCH('Rate Trajectory Report'!P$5,'Rate Trajectory Calc'!$A$6:$CQ$6,0))/1000)","v":" "},{"$f":"IF(INDEX('Rate Trajectory Calc'!$A$6:$CQ$92,MATCH('Rate Trajectory Report'!$B90,'Rate Trajectory Calc'!$A$6:$A$92,0),MATCH('Rate Trajectory Report'!Q$5,'Rate Trajectory Calc'!$A$6:$CQ$6,0))=0,\" \",INDEX('Rate Trajectory Calc'!$A$6:$CQ$92,MATCH('Rate Trajectory Report'!$B90,'Rate Trajectory Calc'!$A$6:$A$92,0),MATCH('Rate Trajectory Report'!Q$5,'Rate Trajectory Calc'!$A$6:$CQ$6,0))/1000)","v":" "},{"$f":"IF(INDEX('Rate Trajectory Calc'!$A$6:$CQ$92,MATCH('Rate Trajectory Report'!$B90,'Rate Trajectory Calc'!$A$6:$A$92,0),MATCH('Rate Trajectory Report'!R$5,'Rate Trajectory Calc'!$A$6:$CQ$6,0))=0,\" \",INDEX('Rate Trajectory Calc'!$A$6:$CQ$92,MATCH('Rate Trajectory Report'!$B90,'Rate Trajectory Calc'!$A$6:$A$92,0),MATCH('Rate Trajectory Report'!R$5,'Rate Trajectory Calc'!$A$6:$CQ$6,0))/1000)","v":" "},{"$f":"IF(INDEX('Rate Trajectory Calc'!$A$6:$CQ$92,MATCH('Rate Trajectory Report'!$B90,'Rate Trajectory Calc'!$A$6:$A$92,0),MATCH('Rate Trajectory Report'!S$5,'Rate Trajectory Calc'!$A$6:$CQ$6,0))=0,\" \",INDEX('Rate Trajectory Calc'!$A$6:$CQ$92,MATCH('Rate Trajectory Report'!$B90,'Rate Trajectory Calc'!$A$6:$A$92,0),MATCH('Rate Trajectory Report'!S$5,'Rate Trajectory Calc'!$A$6:$CQ$6,0))/1000)","v":" "},{"$f":"IF(INDEX('Rate Trajectory Calc'!$A$6:$CQ$92,MATCH('Rate Trajectory Report'!$B90,'Rate Trajectory Calc'!$A$6:$A$92,0),MATCH('Rate Trajectory Report'!T$5,'Rate Trajectory Calc'!$A$6:$CQ$6,0))=0,\" \",INDEX('Rate Trajectory Calc'!$A$6:$CQ$92,MATCH('Rate Trajectory Report'!$B90,'Rate Trajectory Calc'!$A$6:$A$92,0),MATCH('Rate Trajectory Report'!T$5,'Rate Trajectory Calc'!$A$6:$CQ$6,0))/1000)","v":" "},{"$f":"IF(INDEX('Rate Trajectory Calc'!$A$6:$CQ$92,MATCH('Rate Trajectory Report'!$B90,'Rate Trajectory Calc'!$A$6:$A$92,0),MATCH('Rate Trajectory Report'!U$5,'Rate Trajectory Calc'!$A$6:$CQ$6,0))=0,\" \",INDEX('Rate Trajectory Calc'!$A$6:$CQ$92,MATCH('Rate Trajectory Report'!$B90,'Rate Trajectory Calc'!$A$6:$A$92,0),MATCH('Rate Trajectory Report'!U$5,'Rate Trajectory Calc'!$A$6:$CQ$6,0))/1000)","v":" "},{"$f":"IF(INDEX('Rate Trajectory Calc'!$A$6:$CQ$92,MATCH('Rate Trajectory Report'!$B90,'Rate Trajectory Calc'!$A$6:$A$92,0),MATCH('Rate Trajectory Report'!V$5,'Rate Trajectory Calc'!$A$6:$CQ$6,0))=0,\" \",INDEX('Rate Trajectory Calc'!$A$6:$CQ$92,MATCH('Rate Trajectory Report'!$B90,'Rate Trajectory Calc'!$A$6:$A$92,0),MATCH('Rate Trajectory Report'!V$5,'Rate Trajectory Calc'!$A$6:$CQ$6,0))/1000)","v":" "},{"$f":"IF(INDEX('Rate Trajectory Calc'!$A$6:$CQ$92,MATCH('Rate Trajectory Report'!$B90,'Rate Trajectory Calc'!$A$6:$A$92,0),MATCH('Rate Trajectory Report'!W$5,'Rate Trajectory Calc'!$A$6:$CQ$6,0))=0,\" \",INDEX('Rate Trajectory Calc'!$A$6:$CQ$92,MATCH('Rate Trajectory Report'!$B90,'Rate Trajectory Calc'!$A$6:$A$92,0),MATCH('Rate Trajectory Report'!W$5,'Rate Trajectory Calc'!$A$6:$CQ$6,0))/1000)","v":" "},{"$f":"IF(INDEX('Rate Trajectory Calc'!$A$6:$CQ$92,MATCH('Rate Trajectory Report'!$B90,'Rate Trajectory Calc'!$A$6:$A$92,0),MATCH('Rate Trajectory Report'!X$5,'Rate Trajectory Calc'!$A$6:$CQ$6,0))=0,\" \",INDEX('Rate Trajectory Calc'!$A$6:$CQ$92,MATCH('Rate Trajectory Report'!$B90,'Rate Trajectory Calc'!$A$6:$A$92,0),MATCH('Rate Trajectory Report'!X$5,'Rate Trajectory Calc'!$A$6:$CQ$6,0))/1000)","v":" "},{"$f":"IF(INDEX('Rate Trajectory Calc'!$A$6:$CQ$92,MATCH('Rate Trajectory Report'!$B90,'Rate Trajectory Calc'!$A$6:$A$92,0),MATCH('Rate Trajectory Report'!Y$5,'Rate Trajectory Calc'!$A$6:$CQ$6,0))=0,\" \",INDEX('Rate Trajectory Calc'!$A$6:$CQ$92,MATCH('Rate Trajectory Report'!$B90,'Rate Trajectory Calc'!$A$6:$A$92,0),MATCH('Rate Trajectory Report'!Y$5,'Rate Trajectory Calc'!$A$6:$CQ$6,0))/1000)","v":" "},{"$f":"IF(INDEX('Rate Trajectory Calc'!$A$6:$CQ$92,MATCH('Rate Trajectory Report'!$B90,'Rate Trajectory Calc'!$A$6:$A$92,0),MATCH('Rate Trajectory Report'!Z$5,'Rate Trajectory Calc'!$A$6:$CQ$6,0))=0,\" \",INDEX('Rate Trajectory Calc'!$A$6:$CQ$92,MATCH('Rate Trajectory Report'!$B90,'Rate Trajectory Calc'!$A$6:$A$92,0),MATCH('Rate Trajectory Report'!Z$5,'Rate Trajectory Calc'!$A$6:$CQ$6,0))/1000)","v":" "},{"$f":"IF(INDEX('Rate Trajectory Calc'!$A$6:$CQ$92,MATCH('Rate Trajectory Report'!$B90,'Rate Trajectory Calc'!$A$6:$A$92,0),MATCH('Rate Trajectory Report'!AA$5,'Rate Trajectory Calc'!$A$6:$CQ$6,0))=0,\" \",INDEX('Rate Trajectory Calc'!$A$6:$CQ$92,MATCH('Rate Trajectory Report'!$B90,'Rate Trajectory Calc'!$A$6:$A$92,0),MATCH('Rate Trajectory Report'!AA$5,'Rate Trajectory Calc'!$A$6:$CQ$6,0))/1000)","v":" "}]
[null,{"$f":"'Rate Trajectory Dashboard'!B73","v":"2027 GRC - Noncore Unbundled - Year 2029"},{"$f":"IFERROR(VLOOKUP(B91,'Rate Trajectory Dashboard'!$B$12:$D$96,3,FALSE)/1000,'Rate Trajectory Report'!C90)","v":251.04465172382118},{"$f":"IF(INDEX('Rate Trajectory Calc'!$A$6:$CQ$92,MATCH('Rate Trajectory Report'!$B91,'Rate Trajectory Calc'!$A$6:$A$92,0),MATCH('Rate Trajectory Report'!D$5,'Rate Trajectory Calc'!$A$6:$CQ$6,0))=0,\" \",INDEX('Rate Trajectory Calc'!$A$6:$CQ$92,MATCH('Rate Trajectory Report'!$B91,'Rate Trajectory Calc'!$A$6:$A$92,0),MATCH('Rate Trajectory Report'!D$5,'Rate Trajectory Calc'!$A$6:$CQ$6,0))/1000)","v":" "},{"$f":"IF(INDEX('Rate Trajectory Calc'!$A$6:$CQ$92,MATCH('Rate Trajectory Report'!$B91,'Rate Trajectory Calc'!$A$6:$A$92,0),MATCH('Rate Trajectory Report'!E$5,'Rate Trajectory Calc'!$A$6:$CQ$6,0))=0,\" \",INDEX('Rate Trajectory Calc'!$A$6:$CQ$92,MATCH('Rate Trajectory Report'!$B91,'Rate Trajectory Calc'!$A$6:$A$92,0),MATCH('Rate Trajectory Report'!E$5,'Rate Trajectory Calc'!$A$6:$CQ$6,0))/1000)","v":" "},{"$f":"IF(INDEX('Rate Trajectory Calc'!$A$6:$CQ$92,MATCH('Rate Trajectory Report'!$B91,'Rate Trajectory Calc'!$A$6:$A$92,0),MATCH('Rate Trajectory Report'!F$5,'Rate Trajectory Calc'!$A$6:$CQ$6,0))=0,\" \",INDEX('Rate Trajectory Calc'!$A$6:$CQ$92,MATCH('Rate Trajectory Report'!$B91,'Rate Trajectory Calc'!$A$6:$A$92,0),MATCH('Rate Trajectory Report'!F$5,'Rate Trajectory Calc'!$A$6:$CQ$6,0))/1000)","v":" "},{"$f":"IF(INDEX('Rate Trajectory Calc'!$A$6:$CQ$92,MATCH('Rate Trajectory Report'!$B91,'Rate Trajectory Calc'!$A$6:$A$92,0),MATCH('Rate Trajectory Report'!G$5,'Rate Trajectory Calc'!$A$6:$CQ$6,0))=0,\" \",INDEX('Rate Trajectory Calc'!$A$6:$CQ$92,MATCH('Rate Trajectory Report'!$B91,'Rate Trajectory Calc'!$A$6:$A$92,0),MATCH('Rate Trajectory Report'!G$5,'Rate Trajectory Calc'!$A$6:$CQ$6,0))/1000)","v":" "},{"$f":"IF(INDEX('Rate Trajectory Calc'!$A$6:$CQ$92,MATCH('Rate Trajectory Report'!$B91,'Rate Trajectory Calc'!$A$6:$A$92,0),MATCH('Rate Trajectory Report'!H$5,'Rate Trajectory Calc'!$A$6:$CQ$6,0))=0,\" \",INDEX('Rate Trajectory Calc'!$A$6:$CQ$92,MATCH('Rate Trajectory Report'!$B91,'Rate Trajectory Calc'!$A$6:$A$92,0),MATCH('Rate Trajectory Report'!H$5,'Rate Trajectory Calc'!$A$6:$CQ$6,0))/1000)","v":" "},{"$f":"IF(INDEX('Rate Trajectory Calc'!$A$6:$CQ$92,MATCH('Rate Trajectory Report'!$B91,'Rate Trajectory Calc'!$A$6:$A$92,0),MATCH('Rate Trajectory Report'!I$5,'Rate Trajectory Calc'!$A$6:$CQ$6,0))=0,\" \",INDEX('Rate Trajectory Calc'!$A$6:$CQ$92,MATCH('Rate Trajectory Report'!$B91,'Rate Trajectory Calc'!$A$6:$A$92,0),MATCH('Rate Trajectory Report'!I$5,'Rate Trajectory Calc'!$A$6:$CQ$6,0))/1000)","v":" "},{"$f":"IF(INDEX('Rate Trajectory Calc'!$A$6:$CQ$92,MATCH('Rate Trajectory Report'!$B91,'Rate Trajectory Calc'!$A$6:$A$92,0),MATCH('Rate Trajectory Report'!J$5,'Rate Trajectory Calc'!$A$6:$CQ$6,0))=0,\" \",INDEX('Rate Trajectory Calc'!$A$6:$CQ$92,MATCH('Rate Trajectory Report'!$B91,'Rate Trajectory Calc'!$A$6:$A$92,0),MATCH('Rate Trajectory Report'!J$5,'Rate Trajectory Calc'!$A$6:$CQ$6,0))/1000)","v":" "},{"$f":"IF(INDEX('Rate Trajectory Calc'!$A$6:$CQ$92,MATCH('Rate Trajectory Report'!$B91,'Rate Trajectory Calc'!$A$6:$A$92,0),MATCH('Rate Trajectory Report'!K$5,'Rate Trajectory Calc'!$A$6:$CQ$6,0))=0,\" \",INDEX('Rate Trajectory Calc'!$A$6:$CQ$92,MATCH('Rate Trajectory Report'!$B91,'Rate Trajectory Calc'!$A$6:$A$92,0),MATCH('Rate Trajectory Report'!K$5,'Rate Trajectory Calc'!$A$6:$CQ$6,0))/1000)","v":" "},{"$f":"IF(INDEX('Rate Trajectory Calc'!$A$6:$CQ$92,MATCH('Rate Trajectory Report'!$B91,'Rate Trajectory Calc'!$A$6:$A$92,0),MATCH('Rate Trajectory Report'!L$5,'Rate Trajectory Calc'!$A$6:$CQ$6,0))=0,\" \",INDEX('Rate Trajectory Calc'!$A$6:$CQ$92,MATCH('Rate Trajectory Report'!$B91,'Rate Trajectory Calc'!$A$6:$A$92,0),MATCH('Rate Trajectory Report'!L$5,'Rate Trajectory Calc'!$A$6:$CQ$6,0))/1000)","v":" "},{"$f":"IF(INDEX('Rate Trajectory Calc'!$A$6:$CQ$92,MATCH('Rate Trajectory Report'!$B91,'Rate Trajectory Calc'!$A$6:$A$92,0),MATCH('Rate Trajectory Report'!M$5,'Rate Trajectory Calc'!$A$6:$CQ$6,0))=0,\" \",INDEX('Rate Trajectory Calc'!$A$6:$CQ$92,MATCH('Rate Trajectory Report'!$B91,'Rate Trajectory Calc'!$A$6:$A$92,0),MATCH('Rate Trajectory Report'!M$5,'Rate Trajectory Calc'!$A$6:$CQ$6,0))/1000)","v":" "},{"$f":"IF(INDEX('Rate Trajectory Calc'!$A$6:$CQ$92,MATCH('Rate Trajectory Report'!$B91,'Rate Trajectory Calc'!$A$6:$A$92,0),MATCH('Rate Trajectory Report'!N$5,'Rate Trajectory Calc'!$A$6:$CQ$6,0))=0,\" \",INDEX('Rate Trajectory Calc'!$A$6:$CQ$92,MATCH('Rate Trajectory Report'!$B91,'Rate Trajectory Calc'!$A$6:$A$92,0),MATCH('Rate Trajectory Report'!N$5,'Rate Trajectory Calc'!$A$6:$CQ$6,0))/1000)","v":" "},{"$f":"IF(INDEX('Rate Trajectory Calc'!$A$6:$CQ$92,MATCH('Rate Trajectory Report'!$B91,'Rate Trajectory Calc'!$A$6:$A$92,0),MATCH('Rate Trajectory Report'!O$5,'Rate Trajectory Calc'!$A$6:$CQ$6,0))=0,\" \",INDEX('Rate Trajectory Calc'!$A$6:$CQ$92,MATCH('Rate Trajectory Report'!$B91,'Rate Trajectory Calc'!$A$6:$A$92,0),MATCH('Rate Trajectory Report'!O$5,'Rate Trajectory Calc'!$A$6:$CQ$6,0))/1000)","v":" "},{"$f":"IF(INDEX('Rate Trajectory Calc'!$A$6:$CQ$92,MATCH('Rate Trajectory Report'!$B91,'Rate Trajectory Calc'!$A$6:$A$92,0),MATCH('Rate Trajectory Report'!P$5,'Rate Trajectory Calc'!$A$6:$CQ$6,0))=0,\" \",INDEX('Rate Trajectory Calc'!$A$6:$CQ$92,MATCH('Rate Trajectory Report'!$B91,'Rate Trajectory Calc'!$A$6:$A$92,0),MATCH('Rate Trajectory Report'!P$5,'Rate Trajectory Calc'!$A$6:$CQ$6,0))/1000)","v":" "},{"$f":"IF(INDEX('Rate Trajectory Calc'!$A$6:$CQ$92,MATCH('Rate Trajectory Report'!$B91,'Rate Trajectory Calc'!$A$6:$A$92,0),MATCH('Rate Trajectory Report'!Q$5,'Rate Trajectory Calc'!$A$6:$CQ$6,0))=0,\" \",INDEX('Rate Trajectory Calc'!$A$6:$CQ$92,MATCH('Rate Trajectory Report'!$B91,'Rate Trajectory Calc'!$A$6:$A$92,0),MATCH('Rate Trajectory Report'!Q$5,'Rate Trajectory Calc'!$A$6:$CQ$6,0))/1000)","v":" "},{"$f":"IF(INDEX('Rate Trajectory Calc'!$A$6:$CQ$92,MATCH('Rate Trajectory Report'!$B91,'Rate Trajectory Calc'!$A$6:$A$92,0),MATCH('Rate Trajectory Report'!R$5,'Rate Trajectory Calc'!$A$6:$CQ$6,0))=0,\" \",INDEX('Rate Trajectory Calc'!$A$6:$CQ$92,MATCH('Rate Trajectory Report'!$B91,'Rate Trajectory Calc'!$A$6:$A$92,0),MATCH('Rate Trajectory Report'!R$5,'Rate Trajectory Calc'!$A$6:$CQ$6,0))/1000)","v":" "},{"$f":"IF(INDEX('Rate Trajectory Calc'!$A$6:$CQ$92,MATCH('Rate Trajectory Report'!$B91,'Rate Trajectory Calc'!$A$6:$A$92,0),MATCH('Rate Trajectory Report'!S$5,'Rate Trajectory Calc'!$A$6:$CQ$6,0))=0,\" \",INDEX('Rate Trajectory Calc'!$A$6:$CQ$92,MATCH('Rate Trajectory Report'!$B91,'Rate Trajectory Calc'!$A$6:$A$92,0),MATCH('Rate Trajectory Report'!S$5,'Rate Trajectory Calc'!$A$6:$CQ$6,0))/1000)","v":" "},{"$f":"IF(INDEX('Rate Trajectory Calc'!$A$6:$CQ$92,MATCH('Rate Trajectory Report'!$B91,'Rate Trajectory Calc'!$A$6:$A$92,0),MATCH('Rate Trajectory Report'!T$5,'Rate Trajectory Calc'!$A$6:$CQ$6,0))=0,\" \",INDEX('Rate Trajectory Calc'!$A$6:$CQ$92,MATCH('Rate Trajectory Report'!$B91,'Rate Trajectory Calc'!$A$6:$A$92,0),MATCH('Rate Trajectory Report'!T$5,'Rate Trajectory Calc'!$A$6:$CQ$6,0))/1000)","v":" "},{"$f":"IF(INDEX('Rate Trajectory Calc'!$A$6:$CQ$92,MATCH('Rate Trajectory Report'!$B91,'Rate Trajectory Calc'!$A$6:$A$92,0),MATCH('Rate Trajectory Report'!U$5,'Rate Trajectory Calc'!$A$6:$CQ$6,0))=0,\" \",INDEX('Rate Trajectory Calc'!$A$6:$CQ$92,MATCH('Rate Trajectory Report'!$B91,'Rate Trajectory Calc'!$A$6:$A$92,0),MATCH('Rate Trajectory Report'!U$5,'Rate Trajectory Calc'!$A$6:$CQ$6,0))/1000)","v":" "},{"$f":"IF(INDEX('Rate Trajectory Calc'!$A$6:$CQ$92,MATCH('Rate Trajectory Report'!$B91,'Rate Trajectory Calc'!$A$6:$A$92,0),MATCH('Rate Trajectory Report'!V$5,'Rate Trajectory Calc'!$A$6:$CQ$6,0))=0,\" \",INDEX('Rate Trajectory Calc'!$A$6:$CQ$92,MATCH('Rate Trajectory Report'!$B91,'Rate Trajectory Calc'!$A$6:$A$92,0),MATCH('Rate Trajectory Report'!V$5,'Rate Trajectory Calc'!$A$6:$CQ$6,0))/1000)","v":" "},{"$f":"IF(INDEX('Rate Trajectory Calc'!$A$6:$CQ$92,MATCH('Rate Trajectory Report'!$B91,'Rate Trajectory Calc'!$A$6:$A$92,0),MATCH('Rate Trajectory Report'!W$5,'Rate Trajectory Calc'!$A$6:$CQ$6,0))=0,\" \",INDEX('Rate Trajectory Calc'!$A$6:$CQ$92,MATCH('Rate Trajectory Report'!$B91,'Rate Trajectory Calc'!$A$6:$A$92,0),MATCH('Rate Trajectory Report'!W$5,'Rate Trajectory Calc'!$A$6:$CQ$6,0))/1000)","v":" "},{"$f":"IF(INDEX('Rate Trajectory Calc'!$A$6:$CQ$92,MATCH('Rate Trajectory Report'!$B91,'Rate Trajectory Calc'!$A$6:$A$92,0),MATCH('Rate Trajectory Report'!X$5,'Rate Trajectory Calc'!$A$6:$CQ$6,0))=0,\" \",INDEX('Rate Trajectory Calc'!$A$6:$CQ$92,MATCH('Rate Trajectory Report'!$B91,'Rate Trajectory Calc'!$A$6:$A$92,0),MATCH('Rate Trajectory Report'!X$5,'Rate Trajectory Calc'!$A$6:$CQ$6,0))/1000)","v":" "},{"$f":"IF(INDEX('Rate Trajectory Calc'!$A$6:$CQ$92,MATCH('Rate Trajectory Report'!$B91,'Rate Trajectory Calc'!$A$6:$A$92,0),MATCH('Rate Trajectory Report'!Y$5,'Rate Trajectory Calc'!$A$6:$CQ$6,0))=0,\" \",INDEX('Rate Trajectory Calc'!$A$6:$CQ$92,MATCH('Rate Trajectory Report'!$B91,'Rate Trajectory Calc'!$A$6:$A$92,0),MATCH('Rate Trajectory Report'!Y$5,'Rate Trajectory Calc'!$A$6:$CQ$6,0))/1000)","v":" "},{"$f":"IF(INDEX('Rate Trajectory Calc'!$A$6:$CQ$92,MATCH('Rate Trajectory Report'!$B91,'Rate Trajectory Calc'!$A$6:$A$92,0),MATCH('Rate Trajectory Report'!Z$5,'Rate Trajectory Calc'!$A$6:$CQ$6,0))=0,\" \",INDEX('Rate Trajectory Calc'!$A$6:$CQ$92,MATCH('Rate Trajectory Report'!$B91,'Rate Trajectory Calc'!$A$6:$A$92,0),MATCH('Rate Trajectory Report'!Z$5,'Rate Trajectory Calc'!$A$6:$CQ$6,0))/1000)","v":" "},{"$f":"IF(INDEX('Rate Trajectory Calc'!$A$6:$CQ$92,MATCH('Rate Trajectory Report'!$B91,'Rate Trajectory Calc'!$A$6:$A$92,0),MATCH('Rate Trajectory Report'!AA$5,'Rate Trajectory Calc'!$A$6:$CQ$6,0))=0,\" \",INDEX('Rate Trajectory Calc'!$A$6:$CQ$92,MATCH('Rate Trajectory Report'!$B91,'Rate Trajectory Calc'!$A$6:$A$92,0),MATCH('Rate Trajectory Report'!AA$5,'Rate Trajectory Calc'!$A$6:$CQ$6,0))/1000)","v":" "}]
["13g","2027 GRC - Noncore Unbundled",{"$f":"IFERROR(VLOOKUP(B92,'Rate Trajectory Dashboard'!$B$12:$D$96,3,FALSE)/1000,'Rate Trajectory Report'!C91)","v":251.04465172382118},{"$f":"IF(SUM(D89:D91)=0,\" \",SUBTOTAL(9,D89:D91))","v":" "},{"$f":"IF(SUM(E89:E91)=0,\" \",SUBTOTAL(9,E89:E91))","v":" "}," "," "," "," "," "," "," "," "," "," "," "," "," "," ",-53.435269466808649," "," "," "," "," "," "," "]
[null,{"$f":"'Rate Trajectory Dashboard'!B74","v":"2027 GRC - Inventory Management - Year 2027"},{"$f":"IFERROR(VLOOKUP(B93,'Rate Trajectory Dashboard'!$B$12:$D$96,3,FALSE)/1000,'Rate Trajectory Report'!C92)","v":138.91984345004806},{"$f":"IF(INDEX('Rate Trajectory Calc'!$A$6:$CQ$92,MATCH('Rate Trajectory Report'!$B93,'Rate Trajectory Calc'!$A$6:$A$92,0),MATCH('Rate Trajectory Report'!D$5,'Rate Trajectory Calc'!$A$6:$CQ$6,0))=0,\" \",INDEX('Rate Trajectory Calc'!$A$6:$CQ$92,MATCH('Rate Trajectory Report'!$B93,'Rate Trajectory Calc'!$A$6:$A$92,0),MATCH('Rate Trajectory Report'!D$5,'Rate Trajectory Calc'!$A$6:$CQ$6,0))/1000)","v":" "},{"$f":"IF(INDEX('Rate Trajectory Calc'!$A$6:$CQ$92,MATCH('Rate Trajectory Report'!$B93,'Rate Trajectory Calc'!$A$6:$A$92,0),MATCH('Rate Trajectory Report'!E$5,'Rate Trajectory Calc'!$A$6:$CQ$6,0))=0,\" \",INDEX('Rate Trajectory Calc'!$A$6:$CQ$92,MATCH('Rate Trajectory Report'!$B93,'Rate Trajectory Calc'!$A$6:$A$92,0),MATCH('Rate Trajectory Report'!E$5,'Rate Trajectory Calc'!$A$6:$CQ$6,0))/1000)","v":" "},{"$f":"IF(INDEX('Rate Trajectory Calc'!$A$6:$CQ$92,MATCH('Rate Trajectory Report'!$B93,'Rate Trajectory Calc'!$A$6:$A$92,0),MATCH('Rate Trajectory Report'!F$5,'Rate Trajectory Calc'!$A$6:$CQ$6,0))=0,\" \",INDEX('Rate Trajectory Calc'!$A$6:$CQ$92,MATCH('Rate Trajectory Report'!$B93,'Rate Trajectory Calc'!$A$6:$A$92,0),MATCH('Rate Trajectory Report'!F$5,'Rate Trajectory Calc'!$A$6:$CQ$6,0))/1000)","v":" "},{"$f":"IF(INDEX('Rate Trajectory Calc'!$A$6:$CQ$92,MATCH('Rate Trajectory Report'!$B93,'Rate Trajectory Calc'!$A$6:$A$92,0),MATCH('Rate Trajectory Report'!G$5,'Rate Trajectory Calc'!$A$6:$CQ$6,0))=0,\" \",INDEX('Rate Trajectory Calc'!$A$6:$CQ$92,MATCH('Rate Trajectory Report'!$B93,'Rate Trajectory Calc'!$A$6:$A$92,0),MATCH('Rate Trajectory Report'!G$5,'Rate Trajectory Calc'!$A$6:$CQ$6,0))/1000)","v":" "},{"$f":"IF(INDEX('Rate Trajectory Calc'!$A$6:$CQ$92,MATCH('Rate Trajectory Report'!$B93,'Rate Trajectory Calc'!$A$6:$A$92,0),MATCH('Rate Trajectory Report'!H$5,'Rate Trajectory Calc'!$A$6:$CQ$6,0))=0,\" \",INDEX('Rate Trajectory Calc'!$A$6:$CQ$92,MATCH('Rate Trajectory Report'!$B93,'Rate Trajectory Calc'!$A$6:$A$92,0),MATCH('Rate Trajectory Report'!H$5,'Rate Trajectory Calc'!$A$6:$CQ$6,0))/1000)","v":" "},{"$f":"IF(INDEX('Rate Trajectory Calc'!$A$6:$CQ$92,MATCH('Rate Trajectory Report'!$B93,'Rate Trajectory Calc'!$A$6:$A$92,0),MATCH('Rate Trajectory Report'!I$5,'Rate Trajectory Calc'!$A$6:$CQ$6,0))=0,\" \",INDEX('Rate Trajectory Calc'!$A$6:$CQ$92,MATCH('Rate Trajectory Report'!$B93,'Rate Trajectory Calc'!$A$6:$A$92,0),MATCH('Rate Trajectory Report'!I$5,'Rate Trajectory Calc'!$A$6:$CQ$6,0))/1000)","v":" "},{"$f":"IF(INDEX('Rate Trajectory Calc'!$A$6:$CQ$92,MATCH('Rate Trajectory Report'!$B93,'Rate Trajectory Calc'!$A$6:$A$92,0),MATCH('Rate Trajectory Report'!J$5,'Rate Trajectory Calc'!$A$6:$CQ$6,0))=0,\" \",INDEX('Rate Trajectory Calc'!$A$6:$CQ$92,MATCH('Rate Trajectory Report'!$B93,'Rate Trajectory Calc'!$A$6:$A$92,0),MATCH('Rate Trajectory Report'!J$5,'Rate Trajectory Calc'!$A$6:$CQ$6,0))/1000)","v":" "},{"$f":"IF(INDEX('Rate Trajectory Calc'!$A$6:$CQ$92,MATCH('Rate Trajectory Report'!$B93,'Rate Trajectory Calc'!$A$6:$A$92,0),MATCH('Rate Trajectory Report'!K$5,'Rate Trajectory Calc'!$A$6:$CQ$6,0))=0,\" \",INDEX('Rate Trajectory Calc'!$A$6:$CQ$92,MATCH('Rate Trajectory Report'!$B93,'Rate Trajectory Calc'!$A$6:$A$92,0),MATCH('Rate Trajectory Report'!K$5,'Rate Trajectory Calc'!$A$6:$CQ$6,0))/1000)","v":" "},{"$f":"IF(INDEX('Rate Trajectory Calc'!$A$6:$CQ$92,MATCH('Rate Trajectory Report'!$B93,'Rate Trajectory Calc'!$A$6:$A$92,0),MATCH('Rate Trajectory Report'!L$5,'Rate Trajectory Calc'!$A$6:$CQ$6,0))=0,\" \",INDEX('Rate Trajectory Calc'!$A$6:$CQ$92,MATCH('Rate Trajectory Report'!$B93,'Rate Trajectory Calc'!$A$6:$A$92,0),MATCH('Rate Trajectory Report'!L$5,'Rate Trajectory Calc'!$A$6:$CQ$6,0))/1000)","v":" "},{"$f":"IF(INDEX('Rate Trajectory Calc'!$A$6:$CQ$92,MATCH('Rate Trajectory Report'!$B93,'Rate Trajectory Calc'!$A$6:$A$92,0),MATCH('Rate Trajectory Report'!M$5,'Rate Trajectory Calc'!$A$6:$CQ$6,0))=0,\" \",INDEX('Rate Trajectory Calc'!$A$6:$CQ$92,MATCH('Rate Trajectory Report'!$B93,'Rate Trajectory Calc'!$A$6:$A$92,0),MATCH('Rate Trajectory Report'!M$5,'Rate Trajectory Calc'!$A$6:$CQ$6,0))/1000)","v":" "},{"$f":"IF(INDEX('Rate Trajectory Calc'!$A$6:$CQ$92,MATCH('Rate Trajectory Report'!$B93,'Rate Trajectory Calc'!$A$6:$A$92,0),MATCH('Rate Trajectory Report'!N$5,'Rate Trajectory Calc'!$A$6:$CQ$6,0))=0,\" \",INDEX('Rate Trajectory Calc'!$A$6:$CQ$92,MATCH('Rate Trajectory Report'!$B93,'Rate Trajectory Calc'!$A$6:$A$92,0),MATCH('Rate Trajectory Report'!N$5,'Rate Trajectory Calc'!$A$6:$CQ$6,0))/1000)","v":" "},{"$f":"IF(INDEX('Rate Trajectory Calc'!$A$6:$CQ$92,MATCH('Rate Trajectory Report'!$B93,'Rate Trajectory Calc'!$A$6:$A$92,0),MATCH('Rate Trajectory Report'!O$5,'Rate Trajectory Calc'!$A$6:$CQ$6,0))=0,\" \",INDEX('Rate Trajectory Calc'!$A$6:$CQ$92,MATCH('Rate Trajectory Report'!$B93,'Rate Trajectory Calc'!$A$6:$A$92,0),MATCH('Rate Trajectory Report'!O$5,'Rate Trajectory Calc'!$A$6:$CQ$6,0))/1000)","v":" "},{"$f":"IF(INDEX('Rate Trajectory Calc'!$A$6:$CQ$92,MATCH('Rate Trajectory Report'!$B93,'Rate Trajectory Calc'!$A$6:$A$92,0),MATCH('Rate Trajectory Report'!P$5,'Rate Trajectory Calc'!$A$6:$CQ$6,0))=0,\" \",INDEX('Rate Trajectory Calc'!$A$6:$CQ$92,MATCH('Rate Trajectory Report'!$B93,'Rate Trajectory Calc'!$A$6:$A$92,0),MATCH('Rate Trajectory Report'!P$5,'Rate Trajectory Calc'!$A$6:$CQ$6,0))/1000)","v":" "},{"$f":"IF(INDEX('Rate Trajectory Calc'!$A$6:$CQ$92,MATCH('Rate Trajectory Report'!$B93,'Rate Trajectory Calc'!$A$6:$A$92,0),MATCH('Rate Trajectory Report'!Q$5,'Rate Trajectory Calc'!$A$6:$CQ$6,0))=0,\" \",INDEX('Rate Trajectory Calc'!$A$6:$CQ$92,MATCH('Rate Trajectory Report'!$B93,'Rate Trajectory Calc'!$A$6:$A$92,0),MATCH('Rate Trajectory Report'!Q$5,'Rate Trajectory Calc'!$A$6:$CQ$6,0))/1000)","v":" "},{"$f":"IF(INDEX('Rate Trajectory Calc'!$A$6:$CQ$92,MATCH('Rate Trajectory Report'!$B93,'Rate Trajectory Calc'!$A$6:$A$92,0),MATCH('Rate Trajectory Report'!R$5,'Rate Trajectory Calc'!$A$6:$CQ$6,0))=0,\" \",INDEX('Rate Trajectory Calc'!$A$6:$CQ$92,MATCH('Rate Trajectory Report'!$B93,'Rate Trajectory Calc'!$A$6:$A$92,0),MATCH('Rate Trajectory Report'!R$5,'Rate Trajectory Calc'!$A$6:$CQ$6,0))/1000)","v":" "},{"$f":"IF(INDEX('Rate Trajectory Calc'!$A$6:$CQ$92,MATCH('Rate Trajectory Report'!$B93,'Rate Trajectory Calc'!$A$6:$A$92,0),MATCH('Rate Trajectory Report'!S$5,'Rate Trajectory Calc'!$A$6:$CQ$6,0))=0,\" \",INDEX('Rate Trajectory Calc'!$A$6:$CQ$92,MATCH('Rate Trajectory Report'!$B93,'Rate Trajectory Calc'!$A$6:$A$92,0),MATCH('Rate Trajectory Report'!S$5,'Rate Trajectory Calc'!$A$6:$CQ$6,0))/1000)","v":" "},{"$f":"IF(INDEX('Rate Trajectory Calc'!$A$6:$CQ$92,MATCH('Rate Trajectory Report'!$B93,'Rate Trajectory Calc'!$A$6:$A$92,0),MATCH('Rate Trajectory Report'!T$5,'Rate Trajectory Calc'!$A$6:$CQ$6,0))=0,\" \",INDEX('Rate Trajectory Calc'!$A$6:$CQ$92,MATCH('Rate Trajectory Report'!$B93,'Rate Trajectory Calc'!$A$6:$A$92,0),MATCH('Rate Trajectory Report'!T$5,'Rate Trajectory Calc'!$A$6:$CQ$6,0))/1000)","v":0.74277991559234213},{"$f":"IF(INDEX('Rate Trajectory Calc'!$A$6:$CQ$92,MATCH('Rate Trajectory Report'!$B93,'Rate Trajectory Calc'!$A$6:$A$92,0),MATCH('Rate Trajectory Report'!U$5,'Rate Trajectory Calc'!$A$6:$CQ$6,0))=0,\" \",INDEX('Rate Trajectory Calc'!$A$6:$CQ$92,MATCH('Rate Trajectory Report'!$B93,'Rate Trajectory Calc'!$A$6:$A$92,0),MATCH('Rate Trajectory Report'!U$5,'Rate Trajectory Calc'!$A$6:$CQ$6,0))/1000)","v":" "},{"$f":"IF(INDEX('Rate Trajectory Calc'!$A$6:$CQ$92,MATCH('Rate Trajectory Report'!$B93,'Rate Trajectory Calc'!$A$6:$A$92,0),MATCH('Rate Trajectory Report'!V$5,'Rate Trajectory Calc'!$A$6:$CQ$6,0))=0,\" \",INDEX('Rate Trajectory Calc'!$A$6:$CQ$92,MATCH('Rate Trajectory Report'!$B93,'Rate Trajectory Calc'!$A$6:$A$92,0),MATCH('Rate Trajectory Report'!V$5,'Rate Trajectory Calc'!$A$6:$CQ$6,0))/1000)","v":" "},{"$f":"IF(INDEX('Rate Trajectory Calc'!$A$6:$CQ$92,MATCH('Rate Trajectory Report'!$B93,'Rate Trajectory Calc'!$A$6:$A$92,0),MATCH('Rate Trajectory Report'!W$5,'Rate Trajectory Calc'!$A$6:$CQ$6,0))=0,\" \",INDEX('Rate Trajectory Calc'!$A$6:$CQ$92,MATCH('Rate Trajectory Report'!$B93,'Rate Trajectory Calc'!$A$6:$A$92,0),MATCH('Rate Trajectory Report'!W$5,'Rate Trajectory Calc'!$A$6:$CQ$6,0))/1000)","v":" "},{"$f":"IF(INDEX('Rate Trajectory Calc'!$A$6:$CQ$92,MATCH('Rate Trajectory Report'!$B93,'Rate Trajectory Calc'!$A$6:$A$92,0),MATCH('Rate Trajectory Report'!X$5,'Rate Trajectory Calc'!$A$6:$CQ$6,0))=0,\" \",INDEX('Rate Trajectory Calc'!$A$6:$CQ$92,MATCH('Rate Trajectory Report'!$B93,'Rate Trajectory Calc'!$A$6:$A$92,0),MATCH('Rate Trajectory Report'!X$5,'Rate Trajectory Calc'!$A$6:$CQ$6,0))/1000)","v":" "},{"$f":"IF(INDEX('Rate Trajectory Calc'!$A$6:$CQ$92,MATCH('Rate Trajectory Report'!$B93,'Rate Trajectory Calc'!$A$6:$A$92,0),MATCH('Rate Trajectory Report'!Y$5,'Rate Trajectory Calc'!$A$6:$CQ$6,0))=0,\" \",INDEX('Rate Trajectory Calc'!$A$6:$CQ$92,MATCH('Rate Trajectory Report'!$B93,'Rate Trajectory Calc'!$A$6:$A$92,0),MATCH('Rate Trajectory Report'!Y$5,'Rate Trajectory Calc'!$A$6:$CQ$6,0))/1000)","v":" "},{"$f":"IF(INDEX('Rate Trajectory Calc'!$A$6:$CQ$92,MATCH('Rate Trajectory Report'!$B93,'Rate Trajectory Calc'!$A$6:$A$92,0),MATCH('Rate Trajectory Report'!Z$5,'Rate Trajectory Calc'!$A$6:$CQ$6,0))=0,\" \",INDEX('Rate Trajectory Calc'!$A$6:$CQ$92,MATCH('Rate Trajectory Report'!$B93,'Rate Trajectory Calc'!$A$6:$A$92,0),MATCH('Rate Trajectory Report'!Z$5,'Rate Trajectory Calc'!$A$6:$CQ$6,0))/1000)","v":" "},{"$f":"IF(INDEX('Rate Trajectory Calc'!$A$6:$CQ$92,MATCH('Rate Trajectory Report'!$B93,'Rate Trajectory Calc'!$A$6:$A$92,0),MATCH('Rate Trajectory Report'!AA$5,'Rate Trajectory Calc'!$A$6:$CQ$6,0))=0,\" \",INDEX('Rate Trajectory Calc'!$A$6:$CQ$92,MATCH('Rate Trajectory Report'!$B93,'Rate Trajectory Calc'!$A$6:$A$92,0),MATCH('Rate Trajectory Report'!AA$5,'Rate Trajectory Calc'!$A$6:$CQ$6,0))/1000)","v":" "}]
[null,{"$f":"'Rate Trajectory Dashboard'!B75","v":"2027 GRC - Inventory Management - Year 2028"},{"$f":"IFERROR(VLOOKUP(B94,'Rate Trajectory Dashboard'!$B$12:$D$96,3,FALSE)/1000,'Rate Trajectory Report'!C93)","v":138.91984345004806},{"$f":"IF(INDEX('Rate Trajectory Calc'!$A$6:$CQ$92,MATCH('Rate Trajectory Report'!$B94,'Rate Trajectory Calc'!$A$6:$A$92,0),MATCH('Rate Trajectory Report'!D$5,'Rate Trajectory Calc'!$A$6:$CQ$6,0))=0,\" \",INDEX('Rate Trajectory Calc'!$A$6:$CQ$92,MATCH('Rate Trajectory Report'!$B94,'Rate Trajectory Calc'!$A$6:$A$92,0),MATCH('Rate Trajectory Report'!D$5,'Rate Trajectory Calc'!$A$6:$CQ$6,0))/1000)","v":" "},{"$f":"IF(INDEX('Rate Trajectory Calc'!$A$6:$CQ$92,MATCH('Rate Trajectory Report'!$B94,'Rate Trajectory Calc'!$A$6:$A$92,0),MATCH('Rate Trajectory Report'!E$5,'Rate Trajectory Calc'!$A$6:$CQ$6,0))=0,\" \",INDEX('Rate Trajectory Calc'!$A$6:$CQ$92,MATCH('Rate Trajectory Report'!$B94,'Rate Trajectory Calc'!$A$6:$A$92,0),MATCH('Rate Trajectory Report'!E$5,'Rate Trajectory Calc'!$A$6:$CQ$6,0))/1000)","v":" "},{"$f":"IF(INDEX('Rate Trajectory Calc'!$A$6:$CQ$92,MATCH('Rate Trajectory Report'!$B94,'Rate Trajectory Calc'!$A$6:$A$92,0),MATCH('Rate Trajectory Report'!F$5,'Rate Trajectory Calc'!$A$6:$CQ$6,0))=0,\" \",INDEX('Rate Trajectory Calc'!$A$6:$CQ$92,MATCH('Rate Trajectory Report'!$B94,'Rate Trajectory Calc'!$A$6:$A$92,0),MATCH('Rate Trajectory Report'!F$5,'Rate Trajectory Calc'!$A$6:$CQ$6,0))/1000)","v":" "},{"$f":"IF(INDEX('Rate Trajectory Calc'!$A$6:$CQ$92,MATCH('Rate Trajectory Report'!$B94,'Rate Trajectory Calc'!$A$6:$A$92,0),MATCH('Rate Trajectory Report'!G$5,'Rate Trajectory Calc'!$A$6:$CQ$6,0))=0,\" \",INDEX('Rate Trajectory Calc'!$A$6:$CQ$92,MATCH('Rate Trajectory Report'!$B94,'Rate Trajectory Calc'!$A$6:$A$92,0),MATCH('Rate Trajectory Report'!G$5,'Rate Trajectory Calc'!$A$6:$CQ$6,0))/1000)","v":" "},{"$f":"IF(INDEX('Rate Trajectory Calc'!$A$6:$CQ$92,MATCH('Rate Trajectory Report'!$B94,'Rate Trajectory Calc'!$A$6:$A$92,0),MATCH('Rate Trajectory Report'!H$5,'Rate Trajectory Calc'!$A$6:$CQ$6,0))=0,\" \",INDEX('Rate Trajectory Calc'!$A$6:$CQ$92,MATCH('Rate Trajectory Report'!$B94,'Rate Trajectory Calc'!$A$6:$A$92,0),MATCH('Rate Trajectory Report'!H$5,'Rate Trajectory Calc'!$A$6:$CQ$6,0))/1000)","v":" "},{"$f":"IF(INDEX('Rate Trajectory Calc'!$A$6:$CQ$92,MATCH('Rate Trajectory Report'!$B94,'Rate Trajectory Calc'!$A$6:$A$92,0),MATCH('Rate Trajectory Report'!I$5,'Rate Trajectory Calc'!$A$6:$CQ$6,0))=0,\" \",INDEX('Rate Trajectory Calc'!$A$6:$CQ$92,MATCH('Rate Trajectory Report'!$B94,'Rate Trajectory Calc'!$A$6:$A$92,0),MATCH('Rate Trajectory Report'!I$5,'Rate Trajectory Calc'!$A$6:$CQ$6,0))/1000)","v":" "},{"$f":"IF(INDEX('Rate Trajectory Calc'!$A$6:$CQ$92,MATCH('Rate Trajectory Report'!$B94,'Rate Trajectory Calc'!$A$6:$A$92,0),MATCH('Rate Trajectory Report'!J$5,'Rate Trajectory Calc'!$A$6:$CQ$6,0))=0,\" \",INDEX('Rate Trajectory Calc'!$A$6:$CQ$92,MATCH('Rate Trajectory Report'!$B94,'Rate Trajectory Calc'!$A$6:$A$92,0),MATCH('Rate Trajectory Report'!J$5,'Rate Trajectory Calc'!$A$6:$CQ$6,0))/1000)","v":" "},{"$f":"IF(INDEX('Rate Trajectory Calc'!$A$6:$CQ$92,MATCH('Rate Trajectory Report'!$B94,'Rate Trajectory Calc'!$A$6:$A$92,0),MATCH('Rate Trajectory Report'!K$5,'Rate Trajectory Calc'!$A$6:$CQ$6,0))=0,\" \",INDEX('Rate Trajectory Calc'!$A$6:$CQ$92,MATCH('Rate Trajectory Report'!$B94,'Rate Trajectory Calc'!$A$6:$A$92,0),MATCH('Rate Trajectory Report'!K$5,'Rate Trajectory Calc'!$A$6:$CQ$6,0))/1000)","v":" "},{"$f":"IF(INDEX('Rate Trajectory Calc'!$A$6:$CQ$92,MATCH('Rate Trajectory Report'!$B94,'Rate Trajectory Calc'!$A$6:$A$92,0),MATCH('Rate Trajectory Report'!L$5,'Rate Trajectory Calc'!$A$6:$CQ$6,0))=0,\" \",INDEX('Rate Trajectory Calc'!$A$6:$CQ$92,MATCH('Rate Trajectory Report'!$B94,'Rate Trajectory Calc'!$A$6:$A$92,0),MATCH('Rate Trajectory Report'!L$5,'Rate Trajectory Calc'!$A$6:$CQ$6,0))/1000)","v":" "},{"$f":"IF(INDEX('Rate Trajectory Calc'!$A$6:$CQ$92,MATCH('Rate Trajectory Report'!$B94,'Rate Trajectory Calc'!$A$6:$A$92,0),MATCH('Rate Trajectory Report'!M$5,'Rate Trajectory Calc'!$A$6:$CQ$6,0))=0,\" \",INDEX('Rate Trajectory Calc'!$A$6:$CQ$92,MATCH('Rate Trajectory Report'!$B94,'Rate Trajectory Calc'!$A$6:$A$92,0),MATCH('Rate Trajectory Report'!M$5,'Rate Trajectory Calc'!$A$6:$CQ$6,0))/1000)","v":" "},{"$f":"IF(INDEX('Rate Trajectory Calc'!$A$6:$CQ$92,MATCH('Rate Trajectory Report'!$B94,'Rate Trajectory Calc'!$A$6:$A$92,0),MATCH('Rate Trajectory Report'!N$5,'Rate Trajectory Calc'!$A$6:$CQ$6,0))=0,\" \",INDEX('Rate Trajectory Calc'!$A$6:$CQ$92,MATCH('Rate Trajectory Report'!$B94,'Rate Trajectory Calc'!$A$6:$A$92,0),MATCH('Rate Trajectory Report'!N$5,'Rate Trajectory Calc'!$A$6:$CQ$6,0))/1000)","v":" "},{"$f":"IF(INDEX('Rate Trajectory Calc'!$A$6:$CQ$92,MATCH('Rate Trajectory Report'!$B94,'Rate Trajectory Calc'!$A$6:$A$92,0),MATCH('Rate Trajectory Report'!O$5,'Rate Trajectory Calc'!$A$6:$CQ$6,0))=0,\" \",INDEX('Rate Trajectory Calc'!$A$6:$CQ$92,MATCH('Rate Trajectory Report'!$B94,'Rate Trajectory Calc'!$A$6:$A$92,0),MATCH('Rate Trajectory Report'!O$5,'Rate Trajectory Calc'!$A$6:$CQ$6,0))/1000)","v":" "},{"$f":"IF(INDEX('Rate Trajectory Calc'!$A$6:$CQ$92,MATCH('Rate Trajectory Report'!$B94,'Rate Trajectory Calc'!$A$6:$A$92,0),MATCH('Rate Trajectory Report'!P$5,'Rate Trajectory Calc'!$A$6:$CQ$6,0))=0,\" \",INDEX('Rate Trajectory Calc'!$A$6:$CQ$92,MATCH('Rate Trajectory Report'!$B94,'Rate Trajectory Calc'!$A$6:$A$92,0),MATCH('Rate Trajectory Report'!P$5,'Rate Trajectory Calc'!$A$6:$CQ$6,0))/1000)","v":" "},{"$f":"IF(INDEX('Rate Trajectory Calc'!$A$6:$CQ$92,MATCH('Rate Trajectory Report'!$B94,'Rate Trajectory Calc'!$A$6:$A$92,0),MATCH('Rate Trajectory Report'!Q$5,'Rate Trajectory Calc'!$A$6:$CQ$6,0))=0,\" \",INDEX('Rate Trajectory Calc'!$A$6:$CQ$92,MATCH('Rate Trajectory Report'!$B94,'Rate Trajectory Calc'!$A$6:$A$92,0),MATCH('Rate Trajectory Report'!Q$5,'Rate Trajectory Calc'!$A$6:$CQ$6,0))/1000)","v":" "},{"$f":"IF(INDEX('Rate Trajectory Calc'!$A$6:$CQ$92,MATCH('Rate Trajectory Report'!$B94,'Rate Trajectory Calc'!$A$6:$A$92,0),MATCH('Rate Trajectory Report'!R$5,'Rate Trajectory Calc'!$A$6:$CQ$6,0))=0,\" \",INDEX('Rate Trajectory Calc'!$A$6:$CQ$92,MATCH('Rate Trajectory Report'!$B94,'Rate Trajectory Calc'!$A$6:$A$92,0),MATCH('Rate Trajectory Report'!R$5,'Rate Trajectory Calc'!$A$6:$CQ$6,0))/1000)","v":" "},{"$f":"IF(INDEX('Rate Trajectory Calc'!$A$6:$CQ$92,MATCH('Rate Trajectory Report'!$B94,'Rate Trajectory Calc'!$A$6:$A$92,0),MATCH('Rate Trajectory Report'!S$5,'Rate Trajectory Calc'!$A$6:$CQ$6,0))=0,\" \",INDEX('Rate Trajectory Calc'!$A$6:$CQ$92,MATCH('Rate Trajectory Report'!$B94,'Rate Trajectory Calc'!$A$6:$A$92,0),MATCH('Rate Trajectory Report'!S$5,'Rate Trajectory Calc'!$A$6:$CQ$6,0))/1000)","v":" "},{"$f":"IF(INDEX('Rate Trajectory Calc'!$A$6:$CQ$92,MATCH('Rate Trajectory Report'!$B94,'Rate Trajectory Calc'!$A$6:$A$92,0),MATCH('Rate Trajectory Report'!T$5,'Rate Trajectory Calc'!$A$6:$CQ$6,0))=0,\" \",INDEX('Rate Trajectory Calc'!$A$6:$CQ$92,MATCH('Rate Trajectory Report'!$B94,'Rate Trajectory Calc'!$A$6:$A$92,0),MATCH('Rate Trajectory Report'!T$5,'Rate Trajectory Calc'!$A$6:$CQ$6,0))/1000)","v":" "},{"$f":"IF(INDEX('Rate Trajectory Calc'!$A$6:$CQ$92,MATCH('Rate Trajectory Report'!$B94,'Rate Trajectory Calc'!$A$6:$A$92,0),MATCH('Rate Trajectory Report'!U$5,'Rate Trajectory Calc'!$A$6:$CQ$6,0))=0,\" \",INDEX('Rate Trajectory Calc'!$A$6:$CQ$92,MATCH('Rate Trajectory Report'!$B94,'Rate Trajectory Calc'!$A$6:$A$92,0),MATCH('Rate Trajectory Report'!U$5,'Rate Trajectory Calc'!$A$6:$CQ$6,0))/1000)","v":" "},{"$f":"IF(INDEX('Rate Trajectory Calc'!$A$6:$CQ$92,MATCH('Rate Trajectory Report'!$B94,'Rate Trajectory Calc'!$A$6:$A$92,0),MATCH('Rate Trajectory Report'!V$5,'Rate Trajectory Calc'!$A$6:$CQ$6,0))=0,\" \",INDEX('Rate Trajectory Calc'!$A$6:$CQ$92,MATCH('Rate Trajectory Report'!$B94,'Rate Trajectory Calc'!$A$6:$A$92,0),MATCH('Rate Trajectory Report'!V$5,'Rate Trajectory Calc'!$A$6:$CQ$6,0))/1000)","v":" "},{"$f":"IF(INDEX('Rate Trajectory Calc'!$A$6:$CQ$92,MATCH('Rate Trajectory Report'!$B94,'Rate Trajectory Calc'!$A$6:$A$92,0),MATCH('Rate Trajectory Report'!W$5,'Rate Trajectory Calc'!$A$6:$CQ$6,0))=0,\" \",INDEX('Rate Trajectory Calc'!$A$6:$CQ$92,MATCH('Rate Trajectory Report'!$B94,'Rate Trajectory Calc'!$A$6:$A$92,0),MATCH('Rate Trajectory Report'!W$5,'Rate Trajectory Calc'!$A$6:$CQ$6,0))/1000)","v":" "},{"$f":"IF(INDEX('Rate Trajectory Calc'!$A$6:$CQ$92,MATCH('Rate Trajectory Report'!$B94,'Rate Trajectory Calc'!$A$6:$A$92,0),MATCH('Rate Trajectory Report'!X$5,'Rate Trajectory Calc'!$A$6:$CQ$6,0))=0,\" \",INDEX('Rate Trajectory Calc'!$A$6:$CQ$92,MATCH('Rate Trajectory Report'!$B94,'Rate Trajectory Calc'!$A$6:$A$92,0),MATCH('Rate Trajectory Report'!X$5,'Rate Trajectory Calc'!$A$6:$CQ$6,0))/1000)","v":" "},{"$f":"IF(INDEX('Rate Trajectory Calc'!$A$6:$CQ$92,MATCH('Rate Trajectory Report'!$B94,'Rate Trajectory Calc'!$A$6:$A$92,0),MATCH('Rate Trajectory Report'!Y$5,'Rate Trajectory Calc'!$A$6:$CQ$6,0))=0,\" \",INDEX('Rate Trajectory Calc'!$A$6:$CQ$92,MATCH('Rate Trajectory Report'!$B94,'Rate Trajectory Calc'!$A$6:$A$92,0),MATCH('Rate Trajectory Report'!Y$5,'Rate Trajectory Calc'!$A$6:$CQ$6,0))/1000)","v":" "},{"$f":"IF(INDEX('Rate Trajectory Calc'!$A$6:$CQ$92,MATCH('Rate Trajectory Report'!$B94,'Rate Trajectory Calc'!$A$6:$A$92,0),MATCH('Rate Trajectory Report'!Z$5,'Rate Trajectory Calc'!$A$6:$CQ$6,0))=0,\" \",INDEX('Rate Trajectory Calc'!$A$6:$CQ$92,MATCH('Rate Trajectory Report'!$B94,'Rate Trajectory Calc'!$A$6:$A$92,0),MATCH('Rate Trajectory Report'!Z$5,'Rate Trajectory Calc'!$A$6:$CQ$6,0))/1000)","v":" "},{"$f":"IF(INDEX('Rate Trajectory Calc'!$A$6:$CQ$92,MATCH('Rate Trajectory Report'!$B94,'Rate Trajectory Calc'!$A$6:$A$92,0),MATCH('Rate Trajectory Report'!AA$5,'Rate Trajectory Calc'!$A$6:$CQ$6,0))=0,\" \",INDEX('Rate Trajectory Calc'!$A$6:$CQ$92,MATCH('Rate Trajectory Report'!$B94,'Rate Trajectory Calc'!$A$6:$A$92,0),MATCH('Rate Trajectory Report'!AA$5,'Rate Trajectory Calc'!$A$6:$CQ$6,0))/1000)","v":" "}]
[null,{"$f":"'Rate Trajectory Dashboard'!B76","v":"2027 GRC - Inventory Management - Year 2029"},{"$f":"IFERROR(VLOOKUP(B95,'Rate Trajectory Dashboard'!$B$12:$D$96,3,FALSE)/1000,'Rate Trajectory Report'!C94)","v":138.91984345004806},{"$f":"IF(INDEX('Rate Trajectory Calc'!$A$6:$CQ$92,MATCH('Rate Trajectory Report'!$B95,'Rate Trajectory Calc'!$A$6:$A$92,0),MATCH('Rate Trajectory Report'!D$5,'Rate Trajectory Calc'!$A$6:$CQ$6,0))=0,\" \",INDEX('Rate Trajectory Calc'!$A$6:$CQ$92,MATCH('Rate Trajectory Report'!$B95,'Rate Trajectory Calc'!$A$6:$A$92,0),MATCH('Rate Trajectory Report'!D$5,'Rate Trajectory Calc'!$A$6:$CQ$6,0))/1000)","v":" "},{"$f":"IF(INDEX('Rate Trajectory Calc'!$A$6:$CQ$92,MATCH('Rate Trajectory Report'!$B95,'Rate Trajectory Calc'!$A$6:$A$92,0),MATCH('Rate Trajectory Report'!E$5,'Rate Trajectory Calc'!$A$6:$CQ$6,0))=0,\" \",INDEX('Rate Trajectory Calc'!$A$6:$CQ$92,MATCH('Rate Trajectory Report'!$B95,'Rate Trajectory Calc'!$A$6:$A$92,0),MATCH('Rate Trajectory Report'!E$5,'Rate Trajectory Calc'!$A$6:$CQ$6,0))/1000)","v":" "},{"$f":"IF(INDEX('Rate Trajectory Calc'!$A$6:$CQ$92,MATCH('Rate Trajectory Report'!$B95,'Rate Trajectory Calc'!$A$6:$A$92,0),MATCH('Rate Trajectory Report'!F$5,'Rate Trajectory Calc'!$A$6:$CQ$6,0))=0,\" \",INDEX('Rate Trajectory Calc'!$A$6:$CQ$92,MATCH('Rate Trajectory Report'!$B95,'Rate Trajectory Calc'!$A$6:$A$92,0),MATCH('Rate Trajectory Report'!F$5,'Rate Trajectory Calc'!$A$6:$CQ$6,0))/1000)","v":" "},{"$f":"IF(INDEX('Rate Trajectory Calc'!$A$6:$CQ$92,MATCH('Rate Trajectory Report'!$B95,'Rate Trajectory Calc'!$A$6:$A$92,0),MATCH('Rate Trajectory Report'!G$5,'Rate Trajectory Calc'!$A$6:$CQ$6,0))=0,\" \",INDEX('Rate Trajectory Calc'!$A$6:$CQ$92,MATCH('Rate Trajectory Report'!$B95,'Rate Trajectory Calc'!$A$6:$A$92,0),MATCH('Rate Trajectory Report'!G$5,'Rate Trajectory Calc'!$A$6:$CQ$6,0))/1000)","v":" "},{"$f":"IF(INDEX('Rate Trajectory Calc'!$A$6:$CQ$92,MATCH('Rate Trajectory Report'!$B95,'Rate Trajectory Calc'!$A$6:$A$92,0),MATCH('Rate Trajectory Report'!H$5,'Rate Trajectory Calc'!$A$6:$CQ$6,0))=0,\" \",INDEX('Rate Trajectory Calc'!$A$6:$CQ$92,MATCH('Rate Trajectory Report'!$B95,'Rate Trajectory Calc'!$A$6:$A$92,0),MATCH('Rate Trajectory Report'!H$5,'Rate Trajectory Calc'!$A$6:$CQ$6,0))/1000)","v":" "},{"$f":"IF(INDEX('Rate Trajectory Calc'!$A$6:$CQ$92,MATCH('Rate Trajectory Report'!$B95,'Rate Trajectory Calc'!$A$6:$A$92,0),MATCH('Rate Trajectory Report'!I$5,'Rate Trajectory Calc'!$A$6:$CQ$6,0))=0,\" \",INDEX('Rate Trajectory Calc'!$A$6:$CQ$92,MATCH('Rate Trajectory Report'!$B95,'Rate Trajectory Calc'!$A$6:$A$92,0),MATCH('Rate Trajectory Report'!I$5,'Rate Trajectory Calc'!$A$6:$CQ$6,0))/1000)","v":" "},{"$f":"IF(INDEX('Rate Trajectory Calc'!$A$6:$CQ$92,MATCH('Rate Trajectory Report'!$B95,'Rate Trajectory Calc'!$A$6:$A$92,0),MATCH('Rate Trajectory Report'!J$5,'Rate Trajectory Calc'!$A$6:$CQ$6,0))=0,\" \",INDEX('Rate Trajectory Calc'!$A$6:$CQ$92,MATCH('Rate Trajectory Report'!$B95,'Rate Trajectory Calc'!$A$6:$A$92,0),MATCH('Rate Trajectory Report'!J$5,'Rate Trajectory Calc'!$A$6:$CQ$6,0))/1000)","v":" "},{"$f":"IF(INDEX('Rate Trajectory Calc'!$A$6:$CQ$92,MATCH('Rate Trajectory Report'!$B95,'Rate Trajectory Calc'!$A$6:$A$92,0),MATCH('Rate Trajectory Report'!K$5,'Rate Trajectory Calc'!$A$6:$CQ$6,0))=0,\" \",INDEX('Rate Trajectory Calc'!$A$6:$CQ$92,MATCH('Rate Trajectory Report'!$B95,'Rate Trajectory Calc'!$A$6:$A$92,0),MATCH('Rate Trajectory Report'!K$5,'Rate Trajectory Calc'!$A$6:$CQ$6,0))/1000)","v":" "},{"$f":"IF(INDEX('Rate Trajectory Calc'!$A$6:$CQ$92,MATCH('Rate Trajectory Report'!$B95,'Rate Trajectory Calc'!$A$6:$A$92,0),MATCH('Rate Trajectory Report'!L$5,'Rate Trajectory Calc'!$A$6:$CQ$6,0))=0,\" \",INDEX('Rate Trajectory Calc'!$A$6:$CQ$92,MATCH('Rate Trajectory Report'!$B95,'Rate Trajectory Calc'!$A$6:$A$92,0),MATCH('Rate Trajectory Report'!L$5,'Rate Trajectory Calc'!$A$6:$CQ$6,0))/1000)","v":" "},{"$f":"IF(INDEX('Rate Trajectory Calc'!$A$6:$CQ$92,MATCH('Rate Trajectory Report'!$B95,'Rate Trajectory Calc'!$A$6:$A$92,0),MATCH('Rate Trajectory Report'!M$5,'Rate Trajectory Calc'!$A$6:$CQ$6,0))=0,\" \",INDEX('Rate Trajectory Calc'!$A$6:$CQ$92,MATCH('Rate Trajectory Report'!$B95,'Rate Trajectory Calc'!$A$6:$A$92,0),MATCH('Rate Trajectory Report'!M$5,'Rate Trajectory Calc'!$A$6:$CQ$6,0))/1000)","v":" "},{"$f":"IF(INDEX('Rate Trajectory Calc'!$A$6:$CQ$92,MATCH('Rate Trajectory Report'!$B95,'Rate Trajectory Calc'!$A$6:$A$92,0),MATCH('Rate Trajectory Report'!N$5,'Rate Trajectory Calc'!$A$6:$CQ$6,0))=0,\" \",INDEX('Rate Trajectory Calc'!$A$6:$CQ$92,MATCH('Rate Trajectory Report'!$B95,'Rate Trajectory Calc'!$A$6:$A$92,0),MATCH('Rate Trajectory Report'!N$5,'Rate Trajectory Calc'!$A$6:$CQ$6,0))/1000)","v":" "},{"$f":"IF(INDEX('Rate Trajectory Calc'!$A$6:$CQ$92,MATCH('Rate Trajectory Report'!$B95,'Rate Trajectory Calc'!$A$6:$A$92,0),MATCH('Rate Trajectory Report'!O$5,'Rate Trajectory Calc'!$A$6:$CQ$6,0))=0,\" \",INDEX('Rate Trajectory Calc'!$A$6:$CQ$92,MATCH('Rate Trajectory Report'!$B95,'Rate Trajectory Calc'!$A$6:$A$92,0),MATCH('Rate Trajectory Report'!O$5,'Rate Trajectory Calc'!$A$6:$CQ$6,0))/1000)","v":" "},{"$f":"IF(INDEX('Rate Trajectory Calc'!$A$6:$CQ$92,MATCH('Rate Trajectory Report'!$B95,'Rate Trajectory Calc'!$A$6:$A$92,0),MATCH('Rate Trajectory Report'!P$5,'Rate Trajectory Calc'!$A$6:$CQ$6,0))=0,\" \",INDEX('Rate Trajectory Calc'!$A$6:$CQ$92,MATCH('Rate Trajectory Report'!$B95,'Rate Trajectory Calc'!$A$6:$A$92,0),MATCH('Rate Trajectory Report'!P$5,'Rate Trajectory Calc'!$A$6:$CQ$6,0))/1000)","v":" "},{"$f":"IF(INDEX('Rate Trajectory Calc'!$A$6:$CQ$92,MATCH('Rate Trajectory Report'!$B95,'Rate Trajectory Calc'!$A$6:$A$92,0),MATCH('Rate Trajectory Report'!Q$5,'Rate Trajectory Calc'!$A$6:$CQ$6,0))=0,\" \",INDEX('Rate Trajectory Calc'!$A$6:$CQ$92,MATCH('Rate Trajectory Report'!$B95,'Rate Trajectory Calc'!$A$6:$A$92,0),MATCH('Rate Trajectory Report'!Q$5,'Rate Trajectory Calc'!$A$6:$CQ$6,0))/1000)","v":" "},{"$f":"IF(INDEX('Rate Trajectory Calc'!$A$6:$CQ$92,MATCH('Rate Trajectory Report'!$B95,'Rate Trajectory Calc'!$A$6:$A$92,0),MATCH('Rate Trajectory Report'!R$5,'Rate Trajectory Calc'!$A$6:$CQ$6,0))=0,\" \",INDEX('Rate Trajectory Calc'!$A$6:$CQ$92,MATCH('Rate Trajectory Report'!$B95,'Rate Trajectory Calc'!$A$6:$A$92,0),MATCH('Rate Trajectory Report'!R$5,'Rate Trajectory Calc'!$A$6:$CQ$6,0))/1000)","v":" "},{"$f":"IF(INDEX('Rate Trajectory Calc'!$A$6:$CQ$92,MATCH('Rate Trajectory Report'!$B95,'Rate Trajectory Calc'!$A$6:$A$92,0),MATCH('Rate Trajectory Report'!S$5,'Rate Trajectory Calc'!$A$6:$CQ$6,0))=0,\" \",INDEX('Rate Trajectory Calc'!$A$6:$CQ$92,MATCH('Rate Trajectory Report'!$B95,'Rate Trajectory Calc'!$A$6:$A$92,0),MATCH('Rate Trajectory Report'!S$5,'Rate Trajectory Calc'!$A$6:$CQ$6,0))/1000)","v":" "},{"$f":"IF(INDEX('Rate Trajectory Calc'!$A$6:$CQ$92,MATCH('Rate Trajectory Report'!$B95,'Rate Trajectory Calc'!$A$6:$A$92,0),MATCH('Rate Trajectory Report'!T$5,'Rate Trajectory Calc'!$A$6:$CQ$6,0))=0,\" \",INDEX('Rate Trajectory Calc'!$A$6:$CQ$92,MATCH('Rate Trajectory Report'!$B95,'Rate Trajectory Calc'!$A$6:$A$92,0),MATCH('Rate Trajectory Report'!T$5,'Rate Trajectory Calc'!$A$6:$CQ$6,0))/1000)","v":" "},{"$f":"IF(INDEX('Rate Trajectory Calc'!$A$6:$CQ$92,MATCH('Rate Trajectory Report'!$B95,'Rate Trajectory Calc'!$A$6:$A$92,0),MATCH('Rate Trajectory Report'!U$5,'Rate Trajectory Calc'!$A$6:$CQ$6,0))=0,\" \",INDEX('Rate Trajectory Calc'!$A$6:$CQ$92,MATCH('Rate Trajectory Report'!$B95,'Rate Trajectory Calc'!$A$6:$A$92,0),MATCH('Rate Trajectory Report'!U$5,'Rate Trajectory Calc'!$A$6:$CQ$6,0))/1000)","v":" "},{"$f":"IF(INDEX('Rate Trajectory Calc'!$A$6:$CQ$92,MATCH('Rate Trajectory Report'!$B95,'Rate Trajectory Calc'!$A$6:$A$92,0),MATCH('Rate Trajectory Report'!V$5,'Rate Trajectory Calc'!$A$6:$CQ$6,0))=0,\" \",INDEX('Rate Trajectory Calc'!$A$6:$CQ$92,MATCH('Rate Trajectory Report'!$B95,'Rate Trajectory Calc'!$A$6:$A$92,0),MATCH('Rate Trajectory Report'!V$5,'Rate Trajectory Calc'!$A$6:$CQ$6,0))/1000)","v":" "},{"$f":"IF(INDEX('Rate Trajectory Calc'!$A$6:$CQ$92,MATCH('Rate Trajectory Report'!$B95,'Rate Trajectory Calc'!$A$6:$A$92,0),MATCH('Rate Trajectory Report'!W$5,'Rate Trajectory Calc'!$A$6:$CQ$6,0))=0,\" \",INDEX('Rate Trajectory Calc'!$A$6:$CQ$92,MATCH('Rate Trajectory Report'!$B95,'Rate Trajectory Calc'!$A$6:$A$92,0),MATCH('Rate Trajectory Report'!W$5,'Rate Trajectory Calc'!$A$6:$CQ$6,0))/1000)","v":" "},{"$f":"IF(INDEX('Rate Trajectory Calc'!$A$6:$CQ$92,MATCH('Rate Trajectory Report'!$B95,'Rate Trajectory Calc'!$A$6:$A$92,0),MATCH('Rate Trajectory Report'!X$5,'Rate Trajectory Calc'!$A$6:$CQ$6,0))=0,\" \",INDEX('Rate Trajectory Calc'!$A$6:$CQ$92,MATCH('Rate Trajectory Report'!$B95,'Rate Trajectory Calc'!$A$6:$A$92,0),MATCH('Rate Trajectory Report'!X$5,'Rate Trajectory Calc'!$A$6:$CQ$6,0))/1000)","v":" "},{"$f":"IF(INDEX('Rate Trajectory Calc'!$A$6:$CQ$92,MATCH('Rate Trajectory Report'!$B95,'Rate Trajectory Calc'!$A$6:$A$92,0),MATCH('Rate Trajectory Report'!Y$5,'Rate Trajectory Calc'!$A$6:$CQ$6,0))=0,\" \",INDEX('Rate Trajectory Calc'!$A$6:$CQ$92,MATCH('Rate Trajectory Report'!$B95,'Rate Trajectory Calc'!$A$6:$A$92,0),MATCH('Rate Trajectory Report'!Y$5,'Rate Trajectory Calc'!$A$6:$CQ$6,0))/1000)","v":" "},{"$f":"IF(INDEX('Rate Trajectory Calc'!$A$6:$CQ$92,MATCH('Rate Trajectory Report'!$B95,'Rate Trajectory Calc'!$A$6:$A$92,0),MATCH('Rate Trajectory Report'!Z$5,'Rate Trajectory Calc'!$A$6:$CQ$6,0))=0,\" \",INDEX('Rate Trajectory Calc'!$A$6:$CQ$92,MATCH('Rate Trajectory Report'!$B95,'Rate Trajectory Calc'!$A$6:$A$92,0),MATCH('Rate Trajectory Report'!Z$5,'Rate Trajectory Calc'!$A$6:$CQ$6,0))/1000)","v":" "},{"$f":"IF(INDEX('Rate Trajectory Calc'!$A$6:$CQ$92,MATCH('Rate Trajectory Report'!$B95,'Rate Trajectory Calc'!$A$6:$A$92,0),MATCH('Rate Trajectory Report'!AA$5,'Rate Trajectory Calc'!$A$6:$CQ$6,0))=0,\" \",INDEX('Rate Trajectory Calc'!$A$6:$CQ$92,MATCH('Rate Trajectory Report'!$B95,'Rate Trajectory Calc'!$A$6:$A$92,0),MATCH('Rate Trajectory Report'!AA$5,'Rate Trajectory Calc'!$A$6:$CQ$6,0))/1000)","v":" "}]
["13h","2027 GRC - Inventory Management",{"$f":"IFERROR(VLOOKUP(B96,'Rate Trajectory Dashboard'!$B$12:$D$96,3,FALSE)/1000,'Rate Trajectory Report'!C95)","v":138.91984345004806},{"$f":"IF(SUM(D93:D95)=0,\" \",SUBTOTAL(9,D93:D95))","v":" "},{"$f":"IF(SUM(E93:E95)=0,\" \",SUBTOTAL(9,E93:E95))","v":" "}," "," "," "," "," "," "," "," "," "," "," "," "," "," ",0.74277991559234213," "," "," "," "," "," "," "]
[13,"2027 GRC",{"$f":"SUM(C68,C72,C76,C80,C84,C88,C92,C96)","v":4969.0260533152023},{"$f":"IF(SUM(D65:D96)=0,\" \",SUBTOTAL(9,D65:D96))","v":" "},{"$f":"IF(SUM(E65:E96)=0,\" \",SUBTOTAL(9,E65:E96))","v":" "}," "," "," "," "," "," "," "," "," "," "," "," "," "," ",392.41983852185933," "," "," "," "," "," "," "]
[null,{"$f":"'Rate Trajectory Dashboard'!B77","v":"CFCA - NGSS Enduser Dist. Sub Acct Recovery - Year 2027"},{"$f":"IFERROR(VLOOKUP(B98,'Rate Trajectory Dashboard'!$B$12:$D$96,3,FALSE)/1000,'Rate Trajectory Report'!C97)","v":-41.605250601505965},{"$f":"IF(INDEX('Rate Trajectory Calc'!$A$6:$CQ$92,MATCH('Rate Trajectory Report'!$B98,'Rate Trajectory Calc'!$A$6:$A$92,0),MATCH('Rate Trajectory Report'!D$5,'Rate Trajectory Calc'!$A$6:$CQ$6,0))=0,\" \",INDEX('Rate Trajectory Calc'!$A$6:$CQ$92,MATCH('Rate Trajectory Report'!$B98,'Rate Trajectory Calc'!$A$6:$A$92,0),MATCH('Rate Trajectory Report'!D$5,'Rate Trajectory Calc'!$A$6:$CQ$6,0))/1000)","v":" "},{"$f":"IF(INDEX('Rate Trajectory Calc'!$A$6:$CQ$92,MATCH('Rate Trajectory Report'!$B98,'Rate Trajectory Calc'!$A$6:$A$92,0),MATCH('Rate Trajectory Report'!E$5,'Rate Trajectory Calc'!$A$6:$CQ$6,0))=0,\" \",INDEX('Rate Trajectory Calc'!$A$6:$CQ$92,MATCH('Rate Trajectory Report'!$B98,'Rate Trajectory Calc'!$A$6:$A$92,0),MATCH('Rate Trajectory Report'!E$5,'Rate Trajectory Calc'!$A$6:$CQ$6,0))/1000)","v":" "},{"$f":"IF(INDEX('Rate Trajectory Calc'!$A$6:$CQ$92,MATCH('Rate Trajectory Report'!$B98,'Rate Trajectory Calc'!$A$6:$A$92,0),MATCH('Rate Trajectory Report'!F$5,'Rate Trajectory Calc'!$A$6:$CQ$6,0))=0,\" \",INDEX('Rate Trajectory Calc'!$A$6:$CQ$92,MATCH('Rate Trajectory Report'!$B98,'Rate Trajectory Calc'!$A$6:$A$92,0),MATCH('Rate Trajectory Report'!F$5,'Rate Trajectory Calc'!$A$6:$CQ$6,0))/1000)","v":" "},{"$f":"IF(INDEX('Rate Trajectory Calc'!$A$6:$CQ$92,MATCH('Rate Trajectory Report'!$B98,'Rate Trajectory Calc'!$A$6:$A$92,0),MATCH('Rate Trajectory Report'!G$5,'Rate Trajectory Calc'!$A$6:$CQ$6,0))=0,\" \",INDEX('Rate Trajectory Calc'!$A$6:$CQ$92,MATCH('Rate Trajectory Report'!$B98,'Rate Trajectory Calc'!$A$6:$A$92,0),MATCH('Rate Trajectory Report'!G$5,'Rate Trajectory Calc'!$A$6:$CQ$6,0))/1000)","v":" "},{"$f":"IF(INDEX('Rate Trajectory Calc'!$A$6:$CQ$92,MATCH('Rate Trajectory Report'!$B98,'Rate Trajectory Calc'!$A$6:$A$92,0),MATCH('Rate Trajectory Report'!H$5,'Rate Trajectory Calc'!$A$6:$CQ$6,0))=0,\" \",INDEX('Rate Trajectory Calc'!$A$6:$CQ$92,MATCH('Rate Trajectory Report'!$B98,'Rate Trajectory Calc'!$A$6:$A$92,0),MATCH('Rate Trajectory Report'!H$5,'Rate Trajectory Calc'!$A$6:$CQ$6,0))/1000)","v":" "},{"$f":"IF(INDEX('Rate Trajectory Calc'!$A$6:$CQ$92,MATCH('Rate Trajectory Report'!$B98,'Rate Trajectory Calc'!$A$6:$A$92,0),MATCH('Rate Trajectory Report'!I$5,'Rate Trajectory Calc'!$A$6:$CQ$6,0))=0,\" \",INDEX('Rate Trajectory Calc'!$A$6:$CQ$92,MATCH('Rate Trajectory Report'!$B98,'Rate Trajectory Calc'!$A$6:$A$92,0),MATCH('Rate Trajectory Report'!I$5,'Rate Trajectory Calc'!$A$6:$CQ$6,0))/1000)","v":" "},{"$f":"IF(INDEX('Rate Trajectory Calc'!$A$6:$CQ$92,MATCH('Rate Trajectory Report'!$B98,'Rate Trajectory Calc'!$A$6:$A$92,0),MATCH('Rate Trajectory Report'!J$5,'Rate Trajectory Calc'!$A$6:$CQ$6,0))=0,\" \",INDEX('Rate Trajectory Calc'!$A$6:$CQ$92,MATCH('Rate Trajectory Report'!$B98,'Rate Trajectory Calc'!$A$6:$A$92,0),MATCH('Rate Trajectory Report'!J$5,'Rate Trajectory Calc'!$A$6:$CQ$6,0))/1000)","v":" "},{"$f":"IF(INDEX('Rate Trajectory Calc'!$A$6:$CQ$92,MATCH('Rate Trajectory Report'!$B98,'Rate Trajectory Calc'!$A$6:$A$92,0),MATCH('Rate Trajectory Report'!K$5,'Rate Trajectory Calc'!$A$6:$CQ$6,0))=0,\" \",INDEX('Rate Trajectory Calc'!$A$6:$CQ$92,MATCH('Rate Trajectory Report'!$B98,'Rate Trajectory Calc'!$A$6:$A$92,0),MATCH('Rate Trajectory Report'!K$5,'Rate Trajectory Calc'!$A$6:$CQ$6,0))/1000)","v":" "},{"$f":"IF(INDEX('Rate Trajectory Calc'!$A$6:$CQ$92,MATCH('Rate Trajectory Report'!$B98,'Rate Trajectory Calc'!$A$6:$A$92,0),MATCH('Rate Trajectory Report'!L$5,'Rate Trajectory Calc'!$A$6:$CQ$6,0))=0,\" \",INDEX('Rate Trajectory Calc'!$A$6:$CQ$92,MATCH('Rate Trajectory Report'!$B98,'Rate Trajectory Calc'!$A$6:$A$92,0),MATCH('Rate Trajectory Report'!L$5,'Rate Trajectory Calc'!$A$6:$CQ$6,0))/1000)","v":" "},{"$f":"IF(INDEX('Rate Trajectory Calc'!$A$6:$CQ$92,MATCH('Rate Trajectory Report'!$B98,'Rate Trajectory Calc'!$A$6:$A$92,0),MATCH('Rate Trajectory Report'!M$5,'Rate Trajectory Calc'!$A$6:$CQ$6,0))=0,\" \",INDEX('Rate Trajectory Calc'!$A$6:$CQ$92,MATCH('Rate Trajectory Report'!$B98,'Rate Trajectory Calc'!$A$6:$A$92,0),MATCH('Rate Trajectory Report'!M$5,'Rate Trajectory Calc'!$A$6:$CQ$6,0))/1000)","v":" "},{"$f":"IF(INDEX('Rate Trajectory Calc'!$A$6:$CQ$92,MATCH('Rate Trajectory Report'!$B98,'Rate Trajectory Calc'!$A$6:$A$92,0),MATCH('Rate Trajectory Report'!N$5,'Rate Trajectory Calc'!$A$6:$CQ$6,0))=0,\" \",INDEX('Rate Trajectory Calc'!$A$6:$CQ$92,MATCH('Rate Trajectory Report'!$B98,'Rate Trajectory Calc'!$A$6:$A$92,0),MATCH('Rate Trajectory Report'!N$5,'Rate Trajectory Calc'!$A$6:$CQ$6,0))/1000)","v":" "},{"$f":"IF(INDEX('Rate Trajectory Calc'!$A$6:$CQ$92,MATCH('Rate Trajectory Report'!$B98,'Rate Trajectory Calc'!$A$6:$A$92,0),MATCH('Rate Trajectory Report'!O$5,'Rate Trajectory Calc'!$A$6:$CQ$6,0))=0,\" \",INDEX('Rate Trajectory Calc'!$A$6:$CQ$92,MATCH('Rate Trajectory Report'!$B98,'Rate Trajectory Calc'!$A$6:$A$92,0),MATCH('Rate Trajectory Report'!O$5,'Rate Trajectory Calc'!$A$6:$CQ$6,0))/1000)","v":" "},{"$f":"IF(INDEX('Rate Trajectory Calc'!$A$6:$CQ$92,MATCH('Rate Trajectory Report'!$B98,'Rate Trajectory Calc'!$A$6:$A$92,0),MATCH('Rate Trajectory Report'!P$5,'Rate Trajectory Calc'!$A$6:$CQ$6,0))=0,\" \",INDEX('Rate Trajectory Calc'!$A$6:$CQ$92,MATCH('Rate Trajectory Report'!$B98,'Rate Trajectory Calc'!$A$6:$A$92,0),MATCH('Rate Trajectory Report'!P$5,'Rate Trajectory Calc'!$A$6:$CQ$6,0))/1000)","v":" "},{"$f":"IF(INDEX('Rate Trajectory Calc'!$A$6:$CQ$92,MATCH('Rate Trajectory Report'!$B98,'Rate Trajectory Calc'!$A$6:$A$92,0),MATCH('Rate Trajectory Report'!Q$5,'Rate Trajectory Calc'!$A$6:$CQ$6,0))=0,\" \",INDEX('Rate Trajectory Calc'!$A$6:$CQ$92,MATCH('Rate Trajectory Report'!$B98,'Rate Trajectory Calc'!$A$6:$A$92,0),MATCH('Rate Trajectory Report'!Q$5,'Rate Trajectory Calc'!$A$6:$CQ$6,0))/1000)","v":" "},{"$f":"IF(INDEX('Rate Trajectory Calc'!$A$6:$CQ$92,MATCH('Rate Trajectory Report'!$B98,'Rate Trajectory Calc'!$A$6:$A$92,0),MATCH('Rate Trajectory Report'!R$5,'Rate Trajectory Calc'!$A$6:$CQ$6,0))=0,\" \",INDEX('Rate Trajectory Calc'!$A$6:$CQ$92,MATCH('Rate Trajectory Report'!$B98,'Rate Trajectory Calc'!$A$6:$A$92,0),MATCH('Rate Trajectory Report'!R$5,'Rate Trajectory Calc'!$A$6:$CQ$6,0))/1000)","v":" "},{"$f":"IF(INDEX('Rate Trajectory Calc'!$A$6:$CQ$92,MATCH('Rate Trajectory Report'!$B98,'Rate Trajectory Calc'!$A$6:$A$92,0),MATCH('Rate Trajectory Report'!S$5,'Rate Trajectory Calc'!$A$6:$CQ$6,0))=0,\" \",INDEX('Rate Trajectory Calc'!$A$6:$CQ$92,MATCH('Rate Trajectory Report'!$B98,'Rate Trajectory Calc'!$A$6:$A$92,0),MATCH('Rate Trajectory Report'!S$5,'Rate Trajectory Calc'!$A$6:$CQ$6,0))/1000)","v":" "},{"$f":"IF(INDEX('Rate Trajectory Calc'!$A$6:$CQ$92,MATCH('Rate Trajectory Report'!$B98,'Rate Trajectory Calc'!$A$6:$A$92,0),MATCH('Rate Trajectory Report'!T$5,'Rate Trajectory Calc'!$A$6:$CQ$6,0))=0,\" \",INDEX('Rate Trajectory Calc'!$A$6:$CQ$92,MATCH('Rate Trajectory Report'!$B98,'Rate Trajectory Calc'!$A$6:$A$92,0),MATCH('Rate Trajectory Report'!T$5,'Rate Trajectory Calc'!$A$6:$CQ$6,0))/1000)","v":41.605250601505965},{"$f":"IF(INDEX('Rate Trajectory Calc'!$A$6:$CQ$92,MATCH('Rate Trajectory Report'!$B98,'Rate Trajectory Calc'!$A$6:$A$92,0),MATCH('Rate Trajectory Report'!U$5,'Rate Trajectory Calc'!$A$6:$CQ$6,0))=0,\" \",INDEX('Rate Trajectory Calc'!$A$6:$CQ$92,MATCH('Rate Trajectory Report'!$B98,'Rate Trajectory Calc'!$A$6:$A$92,0),MATCH('Rate Trajectory Report'!U$5,'Rate Trajectory Calc'!$A$6:$CQ$6,0))/1000)","v":" "},{"$f":"IF(INDEX('Rate Trajectory Calc'!$A$6:$CQ$92,MATCH('Rate Trajectory Report'!$B98,'Rate Trajectory Calc'!$A$6:$A$92,0),MATCH('Rate Trajectory Report'!V$5,'Rate Trajectory Calc'!$A$6:$CQ$6,0))=0,\" \",INDEX('Rate Trajectory Calc'!$A$6:$CQ$92,MATCH('Rate Trajectory Report'!$B98,'Rate Trajectory Calc'!$A$6:$A$92,0),MATCH('Rate Trajectory Report'!V$5,'Rate Trajectory Calc'!$A$6:$CQ$6,0))/1000)","v":" "},{"$f":"IF(INDEX('Rate Trajectory Calc'!$A$6:$CQ$92,MATCH('Rate Trajectory Report'!$B98,'Rate Trajectory Calc'!$A$6:$A$92,0),MATCH('Rate Trajectory Report'!W$5,'Rate Trajectory Calc'!$A$6:$CQ$6,0))=0,\" \",INDEX('Rate Trajectory Calc'!$A$6:$CQ$92,MATCH('Rate Trajectory Report'!$B98,'Rate Trajectory Calc'!$A$6:$A$92,0),MATCH('Rate Trajectory Report'!W$5,'Rate Trajectory Calc'!$A$6:$CQ$6,0))/1000)","v":" "},{"$f":"IF(INDEX('Rate Trajectory Calc'!$A$6:$CQ$92,MATCH('Rate Trajectory Report'!$B98,'Rate Trajectory Calc'!$A$6:$A$92,0),MATCH('Rate Trajectory Report'!X$5,'Rate Trajectory Calc'!$A$6:$CQ$6,0))=0,\" \",INDEX('Rate Trajectory Calc'!$A$6:$CQ$92,MATCH('Rate Trajectory Report'!$B98,'Rate Trajectory Calc'!$A$6:$A$92,0),MATCH('Rate Trajectory Report'!X$5,'Rate Trajectory Calc'!$A$6:$CQ$6,0))/1000)","v":" "},{"$f":"IF(INDEX('Rate Trajectory Calc'!$A$6:$CQ$92,MATCH('Rate Trajectory Report'!$B98,'Rate Trajectory Calc'!$A$6:$A$92,0),MATCH('Rate Trajectory Report'!Y$5,'Rate Trajectory Calc'!$A$6:$CQ$6,0))=0,\" \",INDEX('Rate Trajectory Calc'!$A$6:$CQ$92,MATCH('Rate Trajectory Report'!$B98,'Rate Trajectory Calc'!$A$6:$A$92,0),MATCH('Rate Trajectory Report'!Y$5,'Rate Trajectory Calc'!$A$6:$CQ$6,0))/1000)","v":" "},{"$f":"IF(INDEX('Rate Trajectory Calc'!$A$6:$CQ$92,MATCH('Rate Trajectory Report'!$B98,'Rate Trajectory Calc'!$A$6:$A$92,0),MATCH('Rate Trajectory Report'!Z$5,'Rate Trajectory Calc'!$A$6:$CQ$6,0))=0,\" \",INDEX('Rate Trajectory Calc'!$A$6:$CQ$92,MATCH('Rate Trajectory Report'!$B98,'Rate Trajectory Calc'!$A$6:$A$92,0),MATCH('Rate Trajectory Report'!Z$5,'Rate Trajectory Calc'!$A$6:$CQ$6,0))/1000)","v":" "},{"$f":"IF(INDEX('Rate Trajectory Calc'!$A$6:$CQ$92,MATCH('Rate Trajectory Report'!$B98,'Rate Trajectory Calc'!$A$6:$A$92,0),MATCH('Rate Trajectory Report'!AA$5,'Rate Trajectory Calc'!$A$6:$CQ$6,0))=0,\" \",INDEX('Rate Trajectory Calc'!$A$6:$CQ$92,MATCH('Rate Trajectory Report'!$B98,'Rate Trajectory Calc'!$A$6:$A$92,0),MATCH('Rate Trajectory Report'!AA$5,'Rate Trajectory Calc'!$A$6:$CQ$6,0))/1000)","v":" "}]
[null,{"$f":"'Rate Trajectory Dashboard'!B78","v":"CFCA - NGSS Enduser Dist. Sub Acct Recovery - Year 2028"},{"$f":"IFERROR(VLOOKUP(B99,'Rate Trajectory Dashboard'!$B$12:$D$96,3,FALSE)/1000,'Rate Trajectory Report'!C98)","v":-41.605250601505965},{"$f":"IF(INDEX('Rate Trajectory Calc'!$A$6:$CQ$92,MATCH('Rate Trajectory Report'!$B99,'Rate Trajectory Calc'!$A$6:$A$92,0),MATCH('Rate Trajectory Report'!D$5,'Rate Trajectory Calc'!$A$6:$CQ$6,0))=0,\" \",INDEX('Rate Trajectory Calc'!$A$6:$CQ$92,MATCH('Rate Trajectory Report'!$B99,'Rate Trajectory Calc'!$A$6:$A$92,0),MATCH('Rate Trajectory Report'!D$5,'Rate Trajectory Calc'!$A$6:$CQ$6,0))/1000)","v":" "},{"$f":"IF(INDEX('Rate Trajectory Calc'!$A$6:$CQ$92,MATCH('Rate Trajectory Report'!$B99,'Rate Trajectory Calc'!$A$6:$A$92,0),MATCH('Rate Trajectory Report'!E$5,'Rate Trajectory Calc'!$A$6:$CQ$6,0))=0,\" \",INDEX('Rate Trajectory Calc'!$A$6:$CQ$92,MATCH('Rate Trajectory Report'!$B99,'Rate Trajectory Calc'!$A$6:$A$92,0),MATCH('Rate Trajectory Report'!E$5,'Rate Trajectory Calc'!$A$6:$CQ$6,0))/1000)","v":" "},{"$f":"IF(INDEX('Rate Trajectory Calc'!$A$6:$CQ$92,MATCH('Rate Trajectory Report'!$B99,'Rate Trajectory Calc'!$A$6:$A$92,0),MATCH('Rate Trajectory Report'!F$5,'Rate Trajectory Calc'!$A$6:$CQ$6,0))=0,\" \",INDEX('Rate Trajectory Calc'!$A$6:$CQ$92,MATCH('Rate Trajectory Report'!$B99,'Rate Trajectory Calc'!$A$6:$A$92,0),MATCH('Rate Trajectory Report'!F$5,'Rate Trajectory Calc'!$A$6:$CQ$6,0))/1000)","v":" "},{"$f":"IF(INDEX('Rate Trajectory Calc'!$A$6:$CQ$92,MATCH('Rate Trajectory Report'!$B99,'Rate Trajectory Calc'!$A$6:$A$92,0),MATCH('Rate Trajectory Report'!G$5,'Rate Trajectory Calc'!$A$6:$CQ$6,0))=0,\" \",INDEX('Rate Trajectory Calc'!$A$6:$CQ$92,MATCH('Rate Trajectory Report'!$B99,'Rate Trajectory Calc'!$A$6:$A$92,0),MATCH('Rate Trajectory Report'!G$5,'Rate Trajectory Calc'!$A$6:$CQ$6,0))/1000)","v":" "},{"$f":"IF(INDEX('Rate Trajectory Calc'!$A$6:$CQ$92,MATCH('Rate Trajectory Report'!$B99,'Rate Trajectory Calc'!$A$6:$A$92,0),MATCH('Rate Trajectory Report'!H$5,'Rate Trajectory Calc'!$A$6:$CQ$6,0))=0,\" \",INDEX('Rate Trajectory Calc'!$A$6:$CQ$92,MATCH('Rate Trajectory Report'!$B99,'Rate Trajectory Calc'!$A$6:$A$92,0),MATCH('Rate Trajectory Report'!H$5,'Rate Trajectory Calc'!$A$6:$CQ$6,0))/1000)","v":" "},{"$f":"IF(INDEX('Rate Trajectory Calc'!$A$6:$CQ$92,MATCH('Rate Trajectory Report'!$B99,'Rate Trajectory Calc'!$A$6:$A$92,0),MATCH('Rate Trajectory Report'!I$5,'Rate Trajectory Calc'!$A$6:$CQ$6,0))=0,\" \",INDEX('Rate Trajectory Calc'!$A$6:$CQ$92,MATCH('Rate Trajectory Report'!$B99,'Rate Trajectory Calc'!$A$6:$A$92,0),MATCH('Rate Trajectory Report'!I$5,'Rate Trajectory Calc'!$A$6:$CQ$6,0))/1000)","v":" "},{"$f":"IF(INDEX('Rate Trajectory Calc'!$A$6:$CQ$92,MATCH('Rate Trajectory Report'!$B99,'Rate Trajectory Calc'!$A$6:$A$92,0),MATCH('Rate Trajectory Report'!J$5,'Rate Trajectory Calc'!$A$6:$CQ$6,0))=0,\" \",INDEX('Rate Trajectory Calc'!$A$6:$CQ$92,MATCH('Rate Trajectory Report'!$B99,'Rate Trajectory Calc'!$A$6:$A$92,0),MATCH('Rate Trajectory Report'!J$5,'Rate Trajectory Calc'!$A$6:$CQ$6,0))/1000)","v":" "},{"$f":"IF(INDEX('Rate Trajectory Calc'!$A$6:$CQ$92,MATCH('Rate Trajectory Report'!$B99,'Rate Trajectory Calc'!$A$6:$A$92,0),MATCH('Rate Trajectory Report'!K$5,'Rate Trajectory Calc'!$A$6:$CQ$6,0))=0,\" \",INDEX('Rate Trajectory Calc'!$A$6:$CQ$92,MATCH('Rate Trajectory Report'!$B99,'Rate Trajectory Calc'!$A$6:$A$92,0),MATCH('Rate Trajectory Report'!K$5,'Rate Trajectory Calc'!$A$6:$CQ$6,0))/1000)","v":" "},{"$f":"IF(INDEX('Rate Trajectory Calc'!$A$6:$CQ$92,MATCH('Rate Trajectory Report'!$B99,'Rate Trajectory Calc'!$A$6:$A$92,0),MATCH('Rate Trajectory Report'!L$5,'Rate Trajectory Calc'!$A$6:$CQ$6,0))=0,\" \",INDEX('Rate Trajectory Calc'!$A$6:$CQ$92,MATCH('Rate Trajectory Report'!$B99,'Rate Trajectory Calc'!$A$6:$A$92,0),MATCH('Rate Trajectory Report'!L$5,'Rate Trajectory Calc'!$A$6:$CQ$6,0))/1000)","v":" "},{"$f":"IF(INDEX('Rate Trajectory Calc'!$A$6:$CQ$92,MATCH('Rate Trajectory Report'!$B99,'Rate Trajectory Calc'!$A$6:$A$92,0),MATCH('Rate Trajectory Report'!M$5,'Rate Trajectory Calc'!$A$6:$CQ$6,0))=0,\" \",INDEX('Rate Trajectory Calc'!$A$6:$CQ$92,MATCH('Rate Trajectory Report'!$B99,'Rate Trajectory Calc'!$A$6:$A$92,0),MATCH('Rate Trajectory Report'!M$5,'Rate Trajectory Calc'!$A$6:$CQ$6,0))/1000)","v":" "},{"$f":"IF(INDEX('Rate Trajectory Calc'!$A$6:$CQ$92,MATCH('Rate Trajectory Report'!$B99,'Rate Trajectory Calc'!$A$6:$A$92,0),MATCH('Rate Trajectory Report'!N$5,'Rate Trajectory Calc'!$A$6:$CQ$6,0))=0,\" \",INDEX('Rate Trajectory Calc'!$A$6:$CQ$92,MATCH('Rate Trajectory Report'!$B99,'Rate Trajectory Calc'!$A$6:$A$92,0),MATCH('Rate Trajectory Report'!N$5,'Rate Trajectory Calc'!$A$6:$CQ$6,0))/1000)","v":" "},{"$f":"IF(INDEX('Rate Trajectory Calc'!$A$6:$CQ$92,MATCH('Rate Trajectory Report'!$B99,'Rate Trajectory Calc'!$A$6:$A$92,0),MATCH('Rate Trajectory Report'!O$5,'Rate Trajectory Calc'!$A$6:$CQ$6,0))=0,\" \",INDEX('Rate Trajectory Calc'!$A$6:$CQ$92,MATCH('Rate Trajectory Report'!$B99,'Rate Trajectory Calc'!$A$6:$A$92,0),MATCH('Rate Trajectory Report'!O$5,'Rate Trajectory Calc'!$A$6:$CQ$6,0))/1000)","v":" "},{"$f":"IF(INDEX('Rate Trajectory Calc'!$A$6:$CQ$92,MATCH('Rate Trajectory Report'!$B99,'Rate Trajectory Calc'!$A$6:$A$92,0),MATCH('Rate Trajectory Report'!P$5,'Rate Trajectory Calc'!$A$6:$CQ$6,0))=0,\" \",INDEX('Rate Trajectory Calc'!$A$6:$CQ$92,MATCH('Rate Trajectory Report'!$B99,'Rate Trajectory Calc'!$A$6:$A$92,0),MATCH('Rate Trajectory Report'!P$5,'Rate Trajectory Calc'!$A$6:$CQ$6,0))/1000)","v":" "},{"$f":"IF(INDEX('Rate Trajectory Calc'!$A$6:$CQ$92,MATCH('Rate Trajectory Report'!$B99,'Rate Trajectory Calc'!$A$6:$A$92,0),MATCH('Rate Trajectory Report'!Q$5,'Rate Trajectory Calc'!$A$6:$CQ$6,0))=0,\" \",INDEX('Rate Trajectory Calc'!$A$6:$CQ$92,MATCH('Rate Trajectory Report'!$B99,'Rate Trajectory Calc'!$A$6:$A$92,0),MATCH('Rate Trajectory Report'!Q$5,'Rate Trajectory Calc'!$A$6:$CQ$6,0))/1000)","v":" "},{"$f":"IF(INDEX('Rate Trajectory Calc'!$A$6:$CQ$92,MATCH('Rate Trajectory Report'!$B99,'Rate Trajectory Calc'!$A$6:$A$92,0),MATCH('Rate Trajectory Report'!R$5,'Rate Trajectory Calc'!$A$6:$CQ$6,0))=0,\" \",INDEX('Rate Trajectory Calc'!$A$6:$CQ$92,MATCH('Rate Trajectory Report'!$B99,'Rate Trajectory Calc'!$A$6:$A$92,0),MATCH('Rate Trajectory Report'!R$5,'Rate Trajectory Calc'!$A$6:$CQ$6,0))/1000)","v":" "},{"$f":"IF(INDEX('Rate Trajectory Calc'!$A$6:$CQ$92,MATCH('Rate Trajectory Report'!$B99,'Rate Trajectory Calc'!$A$6:$A$92,0),MATCH('Rate Trajectory Report'!S$5,'Rate Trajectory Calc'!$A$6:$CQ$6,0))=0,\" \",INDEX('Rate Trajectory Calc'!$A$6:$CQ$92,MATCH('Rate Trajectory Report'!$B99,'Rate Trajectory Calc'!$A$6:$A$92,0),MATCH('Rate Trajectory Report'!S$5,'Rate Trajectory Calc'!$A$6:$CQ$6,0))/1000)","v":" "},{"$f":"IF(INDEX('Rate Trajectory Calc'!$A$6:$CQ$92,MATCH('Rate Trajectory Report'!$B99,'Rate Trajectory Calc'!$A$6:$A$92,0),MATCH('Rate Trajectory Report'!T$5,'Rate Trajectory Calc'!$A$6:$CQ$6,0))=0,\" \",INDEX('Rate Trajectory Calc'!$A$6:$CQ$92,MATCH('Rate Trajectory Report'!$B99,'Rate Trajectory Calc'!$A$6:$A$92,0),MATCH('Rate Trajectory Report'!T$5,'Rate Trajectory Calc'!$A$6:$CQ$6,0))/1000)","v":" "},{"$f":"IF(INDEX('Rate Trajectory Calc'!$A$6:$CQ$92,MATCH('Rate Trajectory Report'!$B99,'Rate Trajectory Calc'!$A$6:$A$92,0),MATCH('Rate Trajectory Report'!U$5,'Rate Trajectory Calc'!$A$6:$CQ$6,0))=0,\" \",INDEX('Rate Trajectory Calc'!$A$6:$CQ$92,MATCH('Rate Trajectory Report'!$B99,'Rate Trajectory Calc'!$A$6:$A$92,0),MATCH('Rate Trajectory Report'!U$5,'Rate Trajectory Calc'!$A$6:$CQ$6,0))/1000)","v":" "},{"$f":"IF(INDEX('Rate Trajectory Calc'!$A$6:$CQ$92,MATCH('Rate Trajectory Report'!$B99,'Rate Trajectory Calc'!$A$6:$A$92,0),MATCH('Rate Trajectory Report'!V$5,'Rate Trajectory Calc'!$A$6:$CQ$6,0))=0,\" \",INDEX('Rate Trajectory Calc'!$A$6:$CQ$92,MATCH('Rate Trajectory Report'!$B99,'Rate Trajectory Calc'!$A$6:$A$92,0),MATCH('Rate Trajectory Report'!V$5,'Rate Trajectory Calc'!$A$6:$CQ$6,0))/1000)","v":" "},{"$f":"IF(INDEX('Rate Trajectory Calc'!$A$6:$CQ$92,MATCH('Rate Trajectory Report'!$B99,'Rate Trajectory Calc'!$A$6:$A$92,0),MATCH('Rate Trajectory Report'!W$5,'Rate Trajectory Calc'!$A$6:$CQ$6,0))=0,\" \",INDEX('Rate Trajectory Calc'!$A$6:$CQ$92,MATCH('Rate Trajectory Report'!$B99,'Rate Trajectory Calc'!$A$6:$A$92,0),MATCH('Rate Trajectory Report'!W$5,'Rate Trajectory Calc'!$A$6:$CQ$6,0))/1000)","v":" "},{"$f":"IF(INDEX('Rate Trajectory Calc'!$A$6:$CQ$92,MATCH('Rate Trajectory Report'!$B99,'Rate Trajectory Calc'!$A$6:$A$92,0),MATCH('Rate Trajectory Report'!X$5,'Rate Trajectory Calc'!$A$6:$CQ$6,0))=0,\" \",INDEX('Rate Trajectory Calc'!$A$6:$CQ$92,MATCH('Rate Trajectory Report'!$B99,'Rate Trajectory Calc'!$A$6:$A$92,0),MATCH('Rate Trajectory Report'!X$5,'Rate Trajectory Calc'!$A$6:$CQ$6,0))/1000)","v":" "},{"$f":"IF(INDEX('Rate Trajectory Calc'!$A$6:$CQ$92,MATCH('Rate Trajectory Report'!$B99,'Rate Trajectory Calc'!$A$6:$A$92,0),MATCH('Rate Trajectory Report'!Y$5,'Rate Trajectory Calc'!$A$6:$CQ$6,0))=0,\" \",INDEX('Rate Trajectory Calc'!$A$6:$CQ$92,MATCH('Rate Trajectory Report'!$B99,'Rate Trajectory Calc'!$A$6:$A$92,0),MATCH('Rate Trajectory Report'!Y$5,'Rate Trajectory Calc'!$A$6:$CQ$6,0))/1000)","v":" "},{"$f":"IF(INDEX('Rate Trajectory Calc'!$A$6:$CQ$92,MATCH('Rate Trajectory Report'!$B99,'Rate Trajectory Calc'!$A$6:$A$92,0),MATCH('Rate Trajectory Report'!Z$5,'Rate Trajectory Calc'!$A$6:$CQ$6,0))=0,\" \",INDEX('Rate Trajectory Calc'!$A$6:$CQ$92,MATCH('Rate Trajectory Report'!$B99,'Rate Trajectory Calc'!$A$6:$A$92,0),MATCH('Rate Trajectory Report'!Z$5,'Rate Trajectory Calc'!$A$6:$CQ$6,0))/1000)","v":" "},{"$f":"IF(INDEX('Rate Trajectory Calc'!$A$6:$CQ$92,MATCH('Rate Trajectory Report'!$B99,'Rate Trajectory Calc'!$A$6:$A$92,0),MATCH('Rate Trajectory Report'!AA$5,'Rate Trajectory Calc'!$A$6:$CQ$6,0))=0,\" \",INDEX('Rate Trajectory Calc'!$A$6:$CQ$92,MATCH('Rate Trajectory Report'!$B99,'Rate Trajectory Calc'!$A$6:$A$92,0),MATCH('Rate Trajectory Report'!AA$5,'Rate Trajectory Calc'!$A$6:$CQ$6,0))/1000)","v":" "}]
[null,{"$f":"'Rate Trajectory Dashboard'!B79","v":"CFCA - NGSS Enduser Dist. Sub Acct Recovery - Year 2029"},{"$f":"IFERROR(VLOOKUP(B100,'Rate Trajectory Dashboard'!$B$12:$D$96,3,FALSE)/1000,'Rate Trajectory Report'!C99)","v":-41.605250601505965},{"$f":"IF(INDEX('Rate Trajectory Calc'!$A$6:$CQ$92,MATCH('Rate Trajectory Report'!$B100,'Rate Trajectory Calc'!$A$6:$A$92,0),MATCH('Rate Trajectory Report'!D$5,'Rate Trajectory Calc'!$A$6:$CQ$6,0))=0,\" \",INDEX('Rate Trajectory Calc'!$A$6:$CQ$92,MATCH('Rate Trajectory Report'!$B100,'Rate Trajectory Calc'!$A$6:$A$92,0),MATCH('Rate Trajectory Report'!D$5,'Rate Trajectory Calc'!$A$6:$CQ$6,0))/1000)","v":" "},{"$f":"IF(INDEX('Rate Trajectory Calc'!$A$6:$CQ$92,MATCH('Rate Trajectory Report'!$B100,'Rate Trajectory Calc'!$A$6:$A$92,0),MATCH('Rate Trajectory Report'!E$5,'Rate Trajectory Calc'!$A$6:$CQ$6,0))=0,\" \",INDEX('Rate Trajectory Calc'!$A$6:$CQ$92,MATCH('Rate Trajectory Report'!$B100,'Rate Trajectory Calc'!$A$6:$A$92,0),MATCH('Rate Trajectory Report'!E$5,'Rate Trajectory Calc'!$A$6:$CQ$6,0))/1000)","v":" "},{"$f":"IF(INDEX('Rate Trajectory Calc'!$A$6:$CQ$92,MATCH('Rate Trajectory Report'!$B100,'Rate Trajectory Calc'!$A$6:$A$92,0),MATCH('Rate Trajectory Report'!F$5,'Rate Trajectory Calc'!$A$6:$CQ$6,0))=0,\" \",INDEX('Rate Trajectory Calc'!$A$6:$CQ$92,MATCH('Rate Trajectory Report'!$B100,'Rate Trajectory Calc'!$A$6:$A$92,0),MATCH('Rate Trajectory Report'!F$5,'Rate Trajectory Calc'!$A$6:$CQ$6,0))/1000)","v":" "},{"$f":"IF(INDEX('Rate Trajectory Calc'!$A$6:$CQ$92,MATCH('Rate Trajectory Report'!$B100,'Rate Trajectory Calc'!$A$6:$A$92,0),MATCH('Rate Trajectory Report'!G$5,'Rate Trajectory Calc'!$A$6:$CQ$6,0))=0,\" \",INDEX('Rate Trajectory Calc'!$A$6:$CQ$92,MATCH('Rate Trajectory Report'!$B100,'Rate Trajectory Calc'!$A$6:$A$92,0),MATCH('Rate Trajectory Report'!G$5,'Rate Trajectory Calc'!$A$6:$CQ$6,0))/1000)","v":" "},{"$f":"IF(INDEX('Rate Trajectory Calc'!$A$6:$CQ$92,MATCH('Rate Trajectory Report'!$B100,'Rate Trajectory Calc'!$A$6:$A$92,0),MATCH('Rate Trajectory Report'!H$5,'Rate Trajectory Calc'!$A$6:$CQ$6,0))=0,\" \",INDEX('Rate Trajectory Calc'!$A$6:$CQ$92,MATCH('Rate Trajectory Report'!$B100,'Rate Trajectory Calc'!$A$6:$A$92,0),MATCH('Rate Trajectory Report'!H$5,'Rate Trajectory Calc'!$A$6:$CQ$6,0))/1000)","v":" "},{"$f":"IF(INDEX('Rate Trajectory Calc'!$A$6:$CQ$92,MATCH('Rate Trajectory Report'!$B100,'Rate Trajectory Calc'!$A$6:$A$92,0),MATCH('Rate Trajectory Report'!I$5,'Rate Trajectory Calc'!$A$6:$CQ$6,0))=0,\" \",INDEX('Rate Trajectory Calc'!$A$6:$CQ$92,MATCH('Rate Trajectory Report'!$B100,'Rate Trajectory Calc'!$A$6:$A$92,0),MATCH('Rate Trajectory Report'!I$5,'Rate Trajectory Calc'!$A$6:$CQ$6,0))/1000)","v":" "},{"$f":"IF(INDEX('Rate Trajectory Calc'!$A$6:$CQ$92,MATCH('Rate Trajectory Report'!$B100,'Rate Trajectory Calc'!$A$6:$A$92,0),MATCH('Rate Trajectory Report'!J$5,'Rate Trajectory Calc'!$A$6:$CQ$6,0))=0,\" \",INDEX('Rate Trajectory Calc'!$A$6:$CQ$92,MATCH('Rate Trajectory Report'!$B100,'Rate Trajectory Calc'!$A$6:$A$92,0),MATCH('Rate Trajectory Report'!J$5,'Rate Trajectory Calc'!$A$6:$CQ$6,0))/1000)","v":" "},{"$f":"IF(INDEX('Rate Trajectory Calc'!$A$6:$CQ$92,MATCH('Rate Trajectory Report'!$B100,'Rate Trajectory Calc'!$A$6:$A$92,0),MATCH('Rate Trajectory Report'!K$5,'Rate Trajectory Calc'!$A$6:$CQ$6,0))=0,\" \",INDEX('Rate Trajectory Calc'!$A$6:$CQ$92,MATCH('Rate Trajectory Report'!$B100,'Rate Trajectory Calc'!$A$6:$A$92,0),MATCH('Rate Trajectory Report'!K$5,'Rate Trajectory Calc'!$A$6:$CQ$6,0))/1000)","v":" "},{"$f":"IF(INDEX('Rate Trajectory Calc'!$A$6:$CQ$92,MATCH('Rate Trajectory Report'!$B100,'Rate Trajectory Calc'!$A$6:$A$92,0),MATCH('Rate Trajectory Report'!L$5,'Rate Trajectory Calc'!$A$6:$CQ$6,0))=0,\" \",INDEX('Rate Trajectory Calc'!$A$6:$CQ$92,MATCH('Rate Trajectory Report'!$B100,'Rate Trajectory Calc'!$A$6:$A$92,0),MATCH('Rate Trajectory Report'!L$5,'Rate Trajectory Calc'!$A$6:$CQ$6,0))/1000)","v":" "},{"$f":"IF(INDEX('Rate Trajectory Calc'!$A$6:$CQ$92,MATCH('Rate Trajectory Report'!$B100,'Rate Trajectory Calc'!$A$6:$A$92,0),MATCH('Rate Trajectory Report'!M$5,'Rate Trajectory Calc'!$A$6:$CQ$6,0))=0,\" \",INDEX('Rate Trajectory Calc'!$A$6:$CQ$92,MATCH('Rate Trajectory Report'!$B100,'Rate Trajectory Calc'!$A$6:$A$92,0),MATCH('Rate Trajectory Report'!M$5,'Rate Trajectory Calc'!$A$6:$CQ$6,0))/1000)","v":" "},{"$f":"IF(INDEX('Rate Trajectory Calc'!$A$6:$CQ$92,MATCH('Rate Trajectory Report'!$B100,'Rate Trajectory Calc'!$A$6:$A$92,0),MATCH('Rate Trajectory Report'!N$5,'Rate Trajectory Calc'!$A$6:$CQ$6,0))=0,\" \",INDEX('Rate Trajectory Calc'!$A$6:$CQ$92,MATCH('Rate Trajectory Report'!$B100,'Rate Trajectory Calc'!$A$6:$A$92,0),MATCH('Rate Trajectory Report'!N$5,'Rate Trajectory Calc'!$A$6:$CQ$6,0))/1000)","v":" "},{"$f":"IF(INDEX('Rate Trajectory Calc'!$A$6:$CQ$92,MATCH('Rate Trajectory Report'!$B100,'Rate Trajectory Calc'!$A$6:$A$92,0),MATCH('Rate Trajectory Report'!O$5,'Rate Trajectory Calc'!$A$6:$CQ$6,0))=0,\" \",INDEX('Rate Trajectory Calc'!$A$6:$CQ$92,MATCH('Rate Trajectory Report'!$B100,'Rate Trajectory Calc'!$A$6:$A$92,0),MATCH('Rate Trajectory Report'!O$5,'Rate Trajectory Calc'!$A$6:$CQ$6,0))/1000)","v":" "},{"$f":"IF(INDEX('Rate Trajectory Calc'!$A$6:$CQ$92,MATCH('Rate Trajectory Report'!$B100,'Rate Trajectory Calc'!$A$6:$A$92,0),MATCH('Rate Trajectory Report'!P$5,'Rate Trajectory Calc'!$A$6:$CQ$6,0))=0,\" \",INDEX('Rate Trajectory Calc'!$A$6:$CQ$92,MATCH('Rate Trajectory Report'!$B100,'Rate Trajectory Calc'!$A$6:$A$92,0),MATCH('Rate Trajectory Report'!P$5,'Rate Trajectory Calc'!$A$6:$CQ$6,0))/1000)","v":" "},{"$f":"IF(INDEX('Rate Trajectory Calc'!$A$6:$CQ$92,MATCH('Rate Trajectory Report'!$B100,'Rate Trajectory Calc'!$A$6:$A$92,0),MATCH('Rate Trajectory Report'!Q$5,'Rate Trajectory Calc'!$A$6:$CQ$6,0))=0,\" \",INDEX('Rate Trajectory Calc'!$A$6:$CQ$92,MATCH('Rate Trajectory Report'!$B100,'Rate Trajectory Calc'!$A$6:$A$92,0),MATCH('Rate Trajectory Report'!Q$5,'Rate Trajectory Calc'!$A$6:$CQ$6,0))/1000)","v":" "},{"$f":"IF(INDEX('Rate Trajectory Calc'!$A$6:$CQ$92,MATCH('Rate Trajectory Report'!$B100,'Rate Trajectory Calc'!$A$6:$A$92,0),MATCH('Rate Trajectory Report'!R$5,'Rate Trajectory Calc'!$A$6:$CQ$6,0))=0,\" \",INDEX('Rate Trajectory Calc'!$A$6:$CQ$92,MATCH('Rate Trajectory Report'!$B100,'Rate Trajectory Calc'!$A$6:$A$92,0),MATCH('Rate Trajectory Report'!R$5,'Rate Trajectory Calc'!$A$6:$CQ$6,0))/1000)","v":" "},{"$f":"IF(INDEX('Rate Trajectory Calc'!$A$6:$CQ$92,MATCH('Rate Trajectory Report'!$B100,'Rate Trajectory Calc'!$A$6:$A$92,0),MATCH('Rate Trajectory Report'!S$5,'Rate Trajectory Calc'!$A$6:$CQ$6,0))=0,\" \",INDEX('Rate Trajectory Calc'!$A$6:$CQ$92,MATCH('Rate Trajectory Report'!$B100,'Rate Trajectory Calc'!$A$6:$A$92,0),MATCH('Rate Trajectory Report'!S$5,'Rate Trajectory Calc'!$A$6:$CQ$6,0))/1000)","v":" "},{"$f":"IF(INDEX('Rate Trajectory Calc'!$A$6:$CQ$92,MATCH('Rate Trajectory Report'!$B100,'Rate Trajectory Calc'!$A$6:$A$92,0),MATCH('Rate Trajectory Report'!T$5,'Rate Trajectory Calc'!$A$6:$CQ$6,0))=0,\" \",INDEX('Rate Trajectory Calc'!$A$6:$CQ$92,MATCH('Rate Trajectory Report'!$B100,'Rate Trajectory Calc'!$A$6:$A$92,0),MATCH('Rate Trajectory Report'!T$5,'Rate Trajectory Calc'!$A$6:$CQ$6,0))/1000)","v":" "},{"$f":"IF(INDEX('Rate Trajectory Calc'!$A$6:$CQ$92,MATCH('Rate Trajectory Report'!$B100,'Rate Trajectory Calc'!$A$6:$A$92,0),MATCH('Rate Trajectory Report'!U$5,'Rate Trajectory Calc'!$A$6:$CQ$6,0))=0,\" \",INDEX('Rate Trajectory Calc'!$A$6:$CQ$92,MATCH('Rate Trajectory Report'!$B100,'Rate Trajectory Calc'!$A$6:$A$92,0),MATCH('Rate Trajectory Report'!U$5,'Rate Trajectory Calc'!$A$6:$CQ$6,0))/1000)","v":" "},{"$f":"IF(INDEX('Rate Trajectory Calc'!$A$6:$CQ$92,MATCH('Rate Trajectory Report'!$B100,'Rate Trajectory Calc'!$A$6:$A$92,0),MATCH('Rate Trajectory Report'!V$5,'Rate Trajectory Calc'!$A$6:$CQ$6,0))=0,\" \",INDEX('Rate Trajectory Calc'!$A$6:$CQ$92,MATCH('Rate Trajectory Report'!$B100,'Rate Trajectory Calc'!$A$6:$A$92,0),MATCH('Rate Trajectory Report'!V$5,'Rate Trajectory Calc'!$A$6:$CQ$6,0))/1000)","v":" "},{"$f":"IF(INDEX('Rate Trajectory Calc'!$A$6:$CQ$92,MATCH('Rate Trajectory Report'!$B100,'Rate Trajectory Calc'!$A$6:$A$92,0),MATCH('Rate Trajectory Report'!W$5,'Rate Trajectory Calc'!$A$6:$CQ$6,0))=0,\" \",INDEX('Rate Trajectory Calc'!$A$6:$CQ$92,MATCH('Rate Trajectory Report'!$B100,'Rate Trajectory Calc'!$A$6:$A$92,0),MATCH('Rate Trajectory Report'!W$5,'Rate Trajectory Calc'!$A$6:$CQ$6,0))/1000)","v":" "},{"$f":"IF(INDEX('Rate Trajectory Calc'!$A$6:$CQ$92,MATCH('Rate Trajectory Report'!$B100,'Rate Trajectory Calc'!$A$6:$A$92,0),MATCH('Rate Trajectory Report'!X$5,'Rate Trajectory Calc'!$A$6:$CQ$6,0))=0,\" \",INDEX('Rate Trajectory Calc'!$A$6:$CQ$92,MATCH('Rate Trajectory Report'!$B100,'Rate Trajectory Calc'!$A$6:$A$92,0),MATCH('Rate Trajectory Report'!X$5,'Rate Trajectory Calc'!$A$6:$CQ$6,0))/1000)","v":" "},{"$f":"IF(INDEX('Rate Trajectory Calc'!$A$6:$CQ$92,MATCH('Rate Trajectory Report'!$B100,'Rate Trajectory Calc'!$A$6:$A$92,0),MATCH('Rate Trajectory Report'!Y$5,'Rate Trajectory Calc'!$A$6:$CQ$6,0))=0,\" \",INDEX('Rate Trajectory Calc'!$A$6:$CQ$92,MATCH('Rate Trajectory Report'!$B100,'Rate Trajectory Calc'!$A$6:$A$92,0),MATCH('Rate Trajectory Report'!Y$5,'Rate Trajectory Calc'!$A$6:$CQ$6,0))/1000)","v":" "},{"$f":"IF(INDEX('Rate Trajectory Calc'!$A$6:$CQ$92,MATCH('Rate Trajectory Report'!$B100,'Rate Trajectory Calc'!$A$6:$A$92,0),MATCH('Rate Trajectory Report'!Z$5,'Rate Trajectory Calc'!$A$6:$CQ$6,0))=0,\" \",INDEX('Rate Trajectory Calc'!$A$6:$CQ$92,MATCH('Rate Trajectory Report'!$B100,'Rate Trajectory Calc'!$A$6:$A$92,0),MATCH('Rate Trajectory Report'!Z$5,'Rate Trajectory Calc'!$A$6:$CQ$6,0))/1000)","v":" "},{"$f":"IF(INDEX('Rate Trajectory Calc'!$A$6:$CQ$92,MATCH('Rate Trajectory Report'!$B100,'Rate Trajectory Calc'!$A$6:$A$92,0),MATCH('Rate Trajectory Report'!AA$5,'Rate Trajectory Calc'!$A$6:$CQ$6,0))=0,\" \",INDEX('Rate Trajectory Calc'!$A$6:$CQ$92,MATCH('Rate Trajectory Report'!$B100,'Rate Trajectory Calc'!$A$6:$A$92,0),MATCH('Rate Trajectory Report'!AA$5,'Rate Trajectory Calc'!$A$6:$CQ$6,0))/1000)","v":" "}]
["14a","CFCA - NGSS Enduser Dist. Sub Acct Recovery",{"$f":"IFERROR(VLOOKUP(B101,'Rate Trajectory Dashboard'!$B$12:$D$96,3,FALSE)/1000,'Rate Trajectory Report'!C100)","v":-41.605250601505965},{"$f":"IF(SUM(D98:D100)=0,\" \",SUBTOTAL(9,D98:D100))","v":" "},{"$f":"IF(SUM(E98:E100)=0,\" \",SUBTOTAL(9,E98:E100))","v":" "}," "," "," "," "," "," "," "," "," "," "," "," "," "," ",41.605250601505965," "," "," "," "," "," "," "]
[null,{"$f":"'Rate Trajectory Dashboard'!B80","v":"CFCA/NCA - NGSS Enduser Sub Acct Recovery - Year 2027"},{"$f":"IFERROR(VLOOKUP(B102,'Rate Trajectory Dashboard'!$B$12:$D$96,3,FALSE)/1000,'Rate Trajectory Report'!C101)","v":-9.8933890516953067},{"$f":"IF(INDEX('Rate Trajectory Calc'!$A$6:$CQ$92,MATCH('Rate Trajectory Report'!$B102,'Rate Trajectory Calc'!$A$6:$A$92,0),MATCH('Rate Trajectory Report'!D$5,'Rate Trajectory Calc'!$A$6:$CQ$6,0))=0,\" \",INDEX('Rate Trajectory Calc'!$A$6:$CQ$92,MATCH('Rate Trajectory Report'!$B102,'Rate Trajectory Calc'!$A$6:$A$92,0),MATCH('Rate Trajectory Report'!D$5,'Rate Trajectory Calc'!$A$6:$CQ$6,0))/1000)","v":" "},{"$f":"IF(INDEX('Rate Trajectory Calc'!$A$6:$CQ$92,MATCH('Rate Trajectory Report'!$B102,'Rate Trajectory Calc'!$A$6:$A$92,0),MATCH('Rate Trajectory Report'!E$5,'Rate Trajectory Calc'!$A$6:$CQ$6,0))=0,\" \",INDEX('Rate Trajectory Calc'!$A$6:$CQ$92,MATCH('Rate Trajectory Report'!$B102,'Rate Trajectory Calc'!$A$6:$A$92,0),MATCH('Rate Trajectory Report'!E$5,'Rate Trajectory Calc'!$A$6:$CQ$6,0))/1000)","v":" "},{"$f":"IF(INDEX('Rate Trajectory Calc'!$A$6:$CQ$92,MATCH('Rate Trajectory Report'!$B102,'Rate Trajectory Calc'!$A$6:$A$92,0),MATCH('Rate Trajectory Report'!F$5,'Rate Trajectory Calc'!$A$6:$CQ$6,0))=0,\" \",INDEX('Rate Trajectory Calc'!$A$6:$CQ$92,MATCH('Rate Trajectory Report'!$B102,'Rate Trajectory Calc'!$A$6:$A$92,0),MATCH('Rate Trajectory Report'!F$5,'Rate Trajectory Calc'!$A$6:$CQ$6,0))/1000)","v":" "},{"$f":"IF(INDEX('Rate Trajectory Calc'!$A$6:$CQ$92,MATCH('Rate Trajectory Report'!$B102,'Rate Trajectory Calc'!$A$6:$A$92,0),MATCH('Rate Trajectory Report'!G$5,'Rate Trajectory Calc'!$A$6:$CQ$6,0))=0,\" \",INDEX('Rate Trajectory Calc'!$A$6:$CQ$92,MATCH('Rate Trajectory Report'!$B102,'Rate Trajectory Calc'!$A$6:$A$92,0),MATCH('Rate Trajectory Report'!G$5,'Rate Trajectory Calc'!$A$6:$CQ$6,0))/1000)","v":" "},{"$f":"IF(INDEX('Rate Trajectory Calc'!$A$6:$CQ$92,MATCH('Rate Trajectory Report'!$B102,'Rate Trajectory Calc'!$A$6:$A$92,0),MATCH('Rate Trajectory Report'!H$5,'Rate Trajectory Calc'!$A$6:$CQ$6,0))=0,\" \",INDEX('Rate Trajectory Calc'!$A$6:$CQ$92,MATCH('Rate Trajectory Report'!$B102,'Rate Trajectory Calc'!$A$6:$A$92,0),MATCH('Rate Trajectory Report'!H$5,'Rate Trajectory Calc'!$A$6:$CQ$6,0))/1000)","v":" "},{"$f":"IF(INDEX('Rate Trajectory Calc'!$A$6:$CQ$92,MATCH('Rate Trajectory Report'!$B102,'Rate Trajectory Calc'!$A$6:$A$92,0),MATCH('Rate Trajectory Report'!I$5,'Rate Trajectory Calc'!$A$6:$CQ$6,0))=0,\" \",INDEX('Rate Trajectory Calc'!$A$6:$CQ$92,MATCH('Rate Trajectory Report'!$B102,'Rate Trajectory Calc'!$A$6:$A$92,0),MATCH('Rate Trajectory Report'!I$5,'Rate Trajectory Calc'!$A$6:$CQ$6,0))/1000)","v":" "},{"$f":"IF(INDEX('Rate Trajectory Calc'!$A$6:$CQ$92,MATCH('Rate Trajectory Report'!$B102,'Rate Trajectory Calc'!$A$6:$A$92,0),MATCH('Rate Trajectory Report'!J$5,'Rate Trajectory Calc'!$A$6:$CQ$6,0))=0,\" \",INDEX('Rate Trajectory Calc'!$A$6:$CQ$92,MATCH('Rate Trajectory Report'!$B102,'Rate Trajectory Calc'!$A$6:$A$92,0),MATCH('Rate Trajectory Report'!J$5,'Rate Trajectory Calc'!$A$6:$CQ$6,0))/1000)","v":" "},{"$f":"IF(INDEX('Rate Trajectory Calc'!$A$6:$CQ$92,MATCH('Rate Trajectory Report'!$B102,'Rate Trajectory Calc'!$A$6:$A$92,0),MATCH('Rate Trajectory Report'!K$5,'Rate Trajectory Calc'!$A$6:$CQ$6,0))=0,\" \",INDEX('Rate Trajectory Calc'!$A$6:$CQ$92,MATCH('Rate Trajectory Report'!$B102,'Rate Trajectory Calc'!$A$6:$A$92,0),MATCH('Rate Trajectory Report'!K$5,'Rate Trajectory Calc'!$A$6:$CQ$6,0))/1000)","v":" "},{"$f":"IF(INDEX('Rate Trajectory Calc'!$A$6:$CQ$92,MATCH('Rate Trajectory Report'!$B102,'Rate Trajectory Calc'!$A$6:$A$92,0),MATCH('Rate Trajectory Report'!L$5,'Rate Trajectory Calc'!$A$6:$CQ$6,0))=0,\" \",INDEX('Rate Trajectory Calc'!$A$6:$CQ$92,MATCH('Rate Trajectory Report'!$B102,'Rate Trajectory Calc'!$A$6:$A$92,0),MATCH('Rate Trajectory Report'!L$5,'Rate Trajectory Calc'!$A$6:$CQ$6,0))/1000)","v":" "},{"$f":"IF(INDEX('Rate Trajectory Calc'!$A$6:$CQ$92,MATCH('Rate Trajectory Report'!$B102,'Rate Trajectory Calc'!$A$6:$A$92,0),MATCH('Rate Trajectory Report'!M$5,'Rate Trajectory Calc'!$A$6:$CQ$6,0))=0,\" \",INDEX('Rate Trajectory Calc'!$A$6:$CQ$92,MATCH('Rate Trajectory Report'!$B102,'Rate Trajectory Calc'!$A$6:$A$92,0),MATCH('Rate Trajectory Report'!M$5,'Rate Trajectory Calc'!$A$6:$CQ$6,0))/1000)","v":" "},{"$f":"IF(INDEX('Rate Trajectory Calc'!$A$6:$CQ$92,MATCH('Rate Trajectory Report'!$B102,'Rate Trajectory Calc'!$A$6:$A$92,0),MATCH('Rate Trajectory Report'!N$5,'Rate Trajectory Calc'!$A$6:$CQ$6,0))=0,\" \",INDEX('Rate Trajectory Calc'!$A$6:$CQ$92,MATCH('Rate Trajectory Report'!$B102,'Rate Trajectory Calc'!$A$6:$A$92,0),MATCH('Rate Trajectory Report'!N$5,'Rate Trajectory Calc'!$A$6:$CQ$6,0))/1000)","v":" "},{"$f":"IF(INDEX('Rate Trajectory Calc'!$A$6:$CQ$92,MATCH('Rate Trajectory Report'!$B102,'Rate Trajectory Calc'!$A$6:$A$92,0),MATCH('Rate Trajectory Report'!O$5,'Rate Trajectory Calc'!$A$6:$CQ$6,0))=0,\" \",INDEX('Rate Trajectory Calc'!$A$6:$CQ$92,MATCH('Rate Trajectory Report'!$B102,'Rate Trajectory Calc'!$A$6:$A$92,0),MATCH('Rate Trajectory Report'!O$5,'Rate Trajectory Calc'!$A$6:$CQ$6,0))/1000)","v":" "},{"$f":"IF(INDEX('Rate Trajectory Calc'!$A$6:$CQ$92,MATCH('Rate Trajectory Report'!$B102,'Rate Trajectory Calc'!$A$6:$A$92,0),MATCH('Rate Trajectory Report'!P$5,'Rate Trajectory Calc'!$A$6:$CQ$6,0))=0,\" \",INDEX('Rate Trajectory Calc'!$A$6:$CQ$92,MATCH('Rate Trajectory Report'!$B102,'Rate Trajectory Calc'!$A$6:$A$92,0),MATCH('Rate Trajectory Report'!P$5,'Rate Trajectory Calc'!$A$6:$CQ$6,0))/1000)","v":" "},{"$f":"IF(INDEX('Rate Trajectory Calc'!$A$6:$CQ$92,MATCH('Rate Trajectory Report'!$B102,'Rate Trajectory Calc'!$A$6:$A$92,0),MATCH('Rate Trajectory Report'!Q$5,'Rate Trajectory Calc'!$A$6:$CQ$6,0))=0,\" \",INDEX('Rate Trajectory Calc'!$A$6:$CQ$92,MATCH('Rate Trajectory Report'!$B102,'Rate Trajectory Calc'!$A$6:$A$92,0),MATCH('Rate Trajectory Report'!Q$5,'Rate Trajectory Calc'!$A$6:$CQ$6,0))/1000)","v":" "},{"$f":"IF(INDEX('Rate Trajectory Calc'!$A$6:$CQ$92,MATCH('Rate Trajectory Report'!$B102,'Rate Trajectory Calc'!$A$6:$A$92,0),MATCH('Rate Trajectory Report'!R$5,'Rate Trajectory Calc'!$A$6:$CQ$6,0))=0,\" \",INDEX('Rate Trajectory Calc'!$A$6:$CQ$92,MATCH('Rate Trajectory Report'!$B102,'Rate Trajectory Calc'!$A$6:$A$92,0),MATCH('Rate Trajectory Report'!R$5,'Rate Trajectory Calc'!$A$6:$CQ$6,0))/1000)","v":" "},{"$f":"IF(INDEX('Rate Trajectory Calc'!$A$6:$CQ$92,MATCH('Rate Trajectory Report'!$B102,'Rate Trajectory Calc'!$A$6:$A$92,0),MATCH('Rate Trajectory Report'!S$5,'Rate Trajectory Calc'!$A$6:$CQ$6,0))=0,\" \",INDEX('Rate Trajectory Calc'!$A$6:$CQ$92,MATCH('Rate Trajectory Report'!$B102,'Rate Trajectory Calc'!$A$6:$A$92,0),MATCH('Rate Trajectory Report'!S$5,'Rate Trajectory Calc'!$A$6:$CQ$6,0))/1000)","v":" "},{"$f":"IF(INDEX('Rate Trajectory Calc'!$A$6:$CQ$92,MATCH('Rate Trajectory Report'!$B102,'Rate Trajectory Calc'!$A$6:$A$92,0),MATCH('Rate Trajectory Report'!T$5,'Rate Trajectory Calc'!$A$6:$CQ$6,0))=0,\" \",INDEX('Rate Trajectory Calc'!$A$6:$CQ$92,MATCH('Rate Trajectory Report'!$B102,'Rate Trajectory Calc'!$A$6:$A$92,0),MATCH('Rate Trajectory Report'!T$5,'Rate Trajectory Calc'!$A$6:$CQ$6,0))/1000)","v":9.8933890516953067},{"$f":"IF(INDEX('Rate Trajectory Calc'!$A$6:$CQ$92,MATCH('Rate Trajectory Report'!$B102,'Rate Trajectory Calc'!$A$6:$A$92,0),MATCH('Rate Trajectory Report'!U$5,'Rate Trajectory Calc'!$A$6:$CQ$6,0))=0,\" \",INDEX('Rate Trajectory Calc'!$A$6:$CQ$92,MATCH('Rate Trajectory Report'!$B102,'Rate Trajectory Calc'!$A$6:$A$92,0),MATCH('Rate Trajectory Report'!U$5,'Rate Trajectory Calc'!$A$6:$CQ$6,0))/1000)","v":" "},{"$f":"IF(INDEX('Rate Trajectory Calc'!$A$6:$CQ$92,MATCH('Rate Trajectory Report'!$B102,'Rate Trajectory Calc'!$A$6:$A$92,0),MATCH('Rate Trajectory Report'!V$5,'Rate Trajectory Calc'!$A$6:$CQ$6,0))=0,\" \",INDEX('Rate Trajectory Calc'!$A$6:$CQ$92,MATCH('Rate Trajectory Report'!$B102,'Rate Trajectory Calc'!$A$6:$A$92,0),MATCH('Rate Trajectory Report'!V$5,'Rate Trajectory Calc'!$A$6:$CQ$6,0))/1000)","v":" "},{"$f":"IF(INDEX('Rate Trajectory Calc'!$A$6:$CQ$92,MATCH('Rate Trajectory Report'!$B102,'Rate Trajectory Calc'!$A$6:$A$92,0),MATCH('Rate Trajectory Report'!W$5,'Rate Trajectory Calc'!$A$6:$CQ$6,0))=0,\" \",INDEX('Rate Trajectory Calc'!$A$6:$CQ$92,MATCH('Rate Trajectory Report'!$B102,'Rate Trajectory Calc'!$A$6:$A$92,0),MATCH('Rate Trajectory Report'!W$5,'Rate Trajectory Calc'!$A$6:$CQ$6,0))/1000)","v":" "},{"$f":"IF(INDEX('Rate Trajectory Calc'!$A$6:$CQ$92,MATCH('Rate Trajectory Report'!$B102,'Rate Trajectory Calc'!$A$6:$A$92,0),MATCH('Rate Trajectory Report'!X$5,'Rate Trajectory Calc'!$A$6:$CQ$6,0))=0,\" \",INDEX('Rate Trajectory Calc'!$A$6:$CQ$92,MATCH('Rate Trajectory Report'!$B102,'Rate Trajectory Calc'!$A$6:$A$92,0),MATCH('Rate Trajectory Report'!X$5,'Rate Trajectory Calc'!$A$6:$CQ$6,0))/1000)","v":" "},{"$f":"IF(INDEX('Rate Trajectory Calc'!$A$6:$CQ$92,MATCH('Rate Trajectory Report'!$B102,'Rate Trajectory Calc'!$A$6:$A$92,0),MATCH('Rate Trajectory Report'!Y$5,'Rate Trajectory Calc'!$A$6:$CQ$6,0))=0,\" \",INDEX('Rate Trajectory Calc'!$A$6:$CQ$92,MATCH('Rate Trajectory Report'!$B102,'Rate Trajectory Calc'!$A$6:$A$92,0),MATCH('Rate Trajectory Report'!Y$5,'Rate Trajectory Calc'!$A$6:$CQ$6,0))/1000)","v":" "},{"$f":"IF(INDEX('Rate Trajectory Calc'!$A$6:$CQ$92,MATCH('Rate Trajectory Report'!$B102,'Rate Trajectory Calc'!$A$6:$A$92,0),MATCH('Rate Trajectory Report'!Z$5,'Rate Trajectory Calc'!$A$6:$CQ$6,0))=0,\" \",INDEX('Rate Trajectory Calc'!$A$6:$CQ$92,MATCH('Rate Trajectory Report'!$B102,'Rate Trajectory Calc'!$A$6:$A$92,0),MATCH('Rate Trajectory Report'!Z$5,'Rate Trajectory Calc'!$A$6:$CQ$6,0))/1000)","v":" "},{"$f":"IF(INDEX('Rate Trajectory Calc'!$A$6:$CQ$92,MATCH('Rate Trajectory Report'!$B102,'Rate Trajectory Calc'!$A$6:$A$92,0),MATCH('Rate Trajectory Report'!AA$5,'Rate Trajectory Calc'!$A$6:$CQ$6,0))=0,\" \",INDEX('Rate Trajectory Calc'!$A$6:$CQ$92,MATCH('Rate Trajectory Report'!$B102,'Rate Trajectory Calc'!$A$6:$A$92,0),MATCH('Rate Trajectory Report'!AA$5,'Rate Trajectory Calc'!$A$6:$CQ$6,0))/1000)","v":" "}]
[null,{"$f":"'Rate Trajectory Dashboard'!B81","v":"CFCA/NCA - NGSS Enduser Sub Acct Recovery - Year 2028"},{"$f":"IFERROR(VLOOKUP(B103,'Rate Trajectory Dashboard'!$B$12:$D$96,3,FALSE)/1000,'Rate Trajectory Report'!C102)","v":-9.8933890516953067},{"$f":"IF(INDEX('Rate Trajectory Calc'!$A$6:$CQ$92,MATCH('Rate Trajectory Report'!$B103,'Rate Trajectory Calc'!$A$6:$A$92,0),MATCH('Rate Trajectory Report'!D$5,'Rate Trajectory Calc'!$A$6:$CQ$6,0))=0,\" \",INDEX('Rate Trajectory Calc'!$A$6:$CQ$92,MATCH('Rate Trajectory Report'!$B103,'Rate Trajectory Calc'!$A$6:$A$92,0),MATCH('Rate Trajectory Report'!D$5,'Rate Trajectory Calc'!$A$6:$CQ$6,0))/1000)","v":" "},{"$f":"IF(INDEX('Rate Trajectory Calc'!$A$6:$CQ$92,MATCH('Rate Trajectory Report'!$B103,'Rate Trajectory Calc'!$A$6:$A$92,0),MATCH('Rate Trajectory Report'!E$5,'Rate Trajectory Calc'!$A$6:$CQ$6,0))=0,\" \",INDEX('Rate Trajectory Calc'!$A$6:$CQ$92,MATCH('Rate Trajectory Report'!$B103,'Rate Trajectory Calc'!$A$6:$A$92,0),MATCH('Rate Trajectory Report'!E$5,'Rate Trajectory Calc'!$A$6:$CQ$6,0))/1000)","v":" "},{"$f":"IF(INDEX('Rate Trajectory Calc'!$A$6:$CQ$92,MATCH('Rate Trajectory Report'!$B103,'Rate Trajectory Calc'!$A$6:$A$92,0),MATCH('Rate Trajectory Report'!F$5,'Rate Trajectory Calc'!$A$6:$CQ$6,0))=0,\" \",INDEX('Rate Trajectory Calc'!$A$6:$CQ$92,MATCH('Rate Trajectory Report'!$B103,'Rate Trajectory Calc'!$A$6:$A$92,0),MATCH('Rate Trajectory Report'!F$5,'Rate Trajectory Calc'!$A$6:$CQ$6,0))/1000)","v":" "},{"$f":"IF(INDEX('Rate Trajectory Calc'!$A$6:$CQ$92,MATCH('Rate Trajectory Report'!$B103,'Rate Trajectory Calc'!$A$6:$A$92,0),MATCH('Rate Trajectory Report'!G$5,'Rate Trajectory Calc'!$A$6:$CQ$6,0))=0,\" \",INDEX('Rate Trajectory Calc'!$A$6:$CQ$92,MATCH('Rate Trajectory Report'!$B103,'Rate Trajectory Calc'!$A$6:$A$92,0),MATCH('Rate Trajectory Report'!G$5,'Rate Trajectory Calc'!$A$6:$CQ$6,0))/1000)","v":" "},{"$f":"IF(INDEX('Rate Trajectory Calc'!$A$6:$CQ$92,MATCH('Rate Trajectory Report'!$B103,'Rate Trajectory Calc'!$A$6:$A$92,0),MATCH('Rate Trajectory Report'!H$5,'Rate Trajectory Calc'!$A$6:$CQ$6,0))=0,\" \",INDEX('Rate Trajectory Calc'!$A$6:$CQ$92,MATCH('Rate Trajectory Report'!$B103,'Rate Trajectory Calc'!$A$6:$A$92,0),MATCH('Rate Trajectory Report'!H$5,'Rate Trajectory Calc'!$A$6:$CQ$6,0))/1000)","v":" "},{"$f":"IF(INDEX('Rate Trajectory Calc'!$A$6:$CQ$92,MATCH('Rate Trajectory Report'!$B103,'Rate Trajectory Calc'!$A$6:$A$92,0),MATCH('Rate Trajectory Report'!I$5,'Rate Trajectory Calc'!$A$6:$CQ$6,0))=0,\" \",INDEX('Rate Trajectory Calc'!$A$6:$CQ$92,MATCH('Rate Trajectory Report'!$B103,'Rate Trajectory Calc'!$A$6:$A$92,0),MATCH('Rate Trajectory Report'!I$5,'Rate Trajectory Calc'!$A$6:$CQ$6,0))/1000)","v":" "},{"$f":"IF(INDEX('Rate Trajectory Calc'!$A$6:$CQ$92,MATCH('Rate Trajectory Report'!$B103,'Rate Trajectory Calc'!$A$6:$A$92,0),MATCH('Rate Trajectory Report'!J$5,'Rate Trajectory Calc'!$A$6:$CQ$6,0))=0,\" \",INDEX('Rate Trajectory Calc'!$A$6:$CQ$92,MATCH('Rate Trajectory Report'!$B103,'Rate Trajectory Calc'!$A$6:$A$92,0),MATCH('Rate Trajectory Report'!J$5,'Rate Trajectory Calc'!$A$6:$CQ$6,0))/1000)","v":" "},{"$f":"IF(INDEX('Rate Trajectory Calc'!$A$6:$CQ$92,MATCH('Rate Trajectory Report'!$B103,'Rate Trajectory Calc'!$A$6:$A$92,0),MATCH('Rate Trajectory Report'!K$5,'Rate Trajectory Calc'!$A$6:$CQ$6,0))=0,\" \",INDEX('Rate Trajectory Calc'!$A$6:$CQ$92,MATCH('Rate Trajectory Report'!$B103,'Rate Trajectory Calc'!$A$6:$A$92,0),MATCH('Rate Trajectory Report'!K$5,'Rate Trajectory Calc'!$A$6:$CQ$6,0))/1000)","v":" "},{"$f":"IF(INDEX('Rate Trajectory Calc'!$A$6:$CQ$92,MATCH('Rate Trajectory Report'!$B103,'Rate Trajectory Calc'!$A$6:$A$92,0),MATCH('Rate Trajectory Report'!L$5,'Rate Trajectory Calc'!$A$6:$CQ$6,0))=0,\" \",INDEX('Rate Trajectory Calc'!$A$6:$CQ$92,MATCH('Rate Trajectory Report'!$B103,'Rate Trajectory Calc'!$A$6:$A$92,0),MATCH('Rate Trajectory Report'!L$5,'Rate Trajectory Calc'!$A$6:$CQ$6,0))/1000)","v":" "},{"$f":"IF(INDEX('Rate Trajectory Calc'!$A$6:$CQ$92,MATCH('Rate Trajectory Report'!$B103,'Rate Trajectory Calc'!$A$6:$A$92,0),MATCH('Rate Trajectory Report'!M$5,'Rate Trajectory Calc'!$A$6:$CQ$6,0))=0,\" \",INDEX('Rate Trajectory Calc'!$A$6:$CQ$92,MATCH('Rate Trajectory Report'!$B103,'Rate Trajectory Calc'!$A$6:$A$92,0),MATCH('Rate Trajectory Report'!M$5,'Rate Trajectory Calc'!$A$6:$CQ$6,0))/1000)","v":" "},{"$f":"IF(INDEX('Rate Trajectory Calc'!$A$6:$CQ$92,MATCH('Rate Trajectory Report'!$B103,'Rate Trajectory Calc'!$A$6:$A$92,0),MATCH('Rate Trajectory Report'!N$5,'Rate Trajectory Calc'!$A$6:$CQ$6,0))=0,\" \",INDEX('Rate Trajectory Calc'!$A$6:$CQ$92,MATCH('Rate Trajectory Report'!$B103,'Rate Trajectory Calc'!$A$6:$A$92,0),MATCH('Rate Trajectory Report'!N$5,'Rate Trajectory Calc'!$A$6:$CQ$6,0))/1000)","v":" "},{"$f":"IF(INDEX('Rate Trajectory Calc'!$A$6:$CQ$92,MATCH('Rate Trajectory Report'!$B103,'Rate Trajectory Calc'!$A$6:$A$92,0),MATCH('Rate Trajectory Report'!O$5,'Rate Trajectory Calc'!$A$6:$CQ$6,0))=0,\" \",INDEX('Rate Trajectory Calc'!$A$6:$CQ$92,MATCH('Rate Trajectory Report'!$B103,'Rate Trajectory Calc'!$A$6:$A$92,0),MATCH('Rate Trajectory Report'!O$5,'Rate Trajectory Calc'!$A$6:$CQ$6,0))/1000)","v":" "},{"$f":"IF(INDEX('Rate Trajectory Calc'!$A$6:$CQ$92,MATCH('Rate Trajectory Report'!$B103,'Rate Trajectory Calc'!$A$6:$A$92,0),MATCH('Rate Trajectory Report'!P$5,'Rate Trajectory Calc'!$A$6:$CQ$6,0))=0,\" \",INDEX('Rate Trajectory Calc'!$A$6:$CQ$92,MATCH('Rate Trajectory Report'!$B103,'Rate Trajectory Calc'!$A$6:$A$92,0),MATCH('Rate Trajectory Report'!P$5,'Rate Trajectory Calc'!$A$6:$CQ$6,0))/1000)","v":" "},{"$f":"IF(INDEX('Rate Trajectory Calc'!$A$6:$CQ$92,MATCH('Rate Trajectory Report'!$B103,'Rate Trajectory Calc'!$A$6:$A$92,0),MATCH('Rate Trajectory Report'!Q$5,'Rate Trajectory Calc'!$A$6:$CQ$6,0))=0,\" \",INDEX('Rate Trajectory Calc'!$A$6:$CQ$92,MATCH('Rate Trajectory Report'!$B103,'Rate Trajectory Calc'!$A$6:$A$92,0),MATCH('Rate Trajectory Report'!Q$5,'Rate Trajectory Calc'!$A$6:$CQ$6,0))/1000)","v":" "},{"$f":"IF(INDEX('Rate Trajectory Calc'!$A$6:$CQ$92,MATCH('Rate Trajectory Report'!$B103,'Rate Trajectory Calc'!$A$6:$A$92,0),MATCH('Rate Trajectory Report'!R$5,'Rate Trajectory Calc'!$A$6:$CQ$6,0))=0,\" \",INDEX('Rate Trajectory Calc'!$A$6:$CQ$92,MATCH('Rate Trajectory Report'!$B103,'Rate Trajectory Calc'!$A$6:$A$92,0),MATCH('Rate Trajectory Report'!R$5,'Rate Trajectory Calc'!$A$6:$CQ$6,0))/1000)","v":" "},{"$f":"IF(INDEX('Rate Trajectory Calc'!$A$6:$CQ$92,MATCH('Rate Trajectory Report'!$B103,'Rate Trajectory Calc'!$A$6:$A$92,0),MATCH('Rate Trajectory Report'!S$5,'Rate Trajectory Calc'!$A$6:$CQ$6,0))=0,\" \",INDEX('Rate Trajectory Calc'!$A$6:$CQ$92,MATCH('Rate Trajectory Report'!$B103,'Rate Trajectory Calc'!$A$6:$A$92,0),MATCH('Rate Trajectory Report'!S$5,'Rate Trajectory Calc'!$A$6:$CQ$6,0))/1000)","v":" "},{"$f":"IF(INDEX('Rate Trajectory Calc'!$A$6:$CQ$92,MATCH('Rate Trajectory Report'!$B103,'Rate Trajectory Calc'!$A$6:$A$92,0),MATCH('Rate Trajectory Report'!T$5,'Rate Trajectory Calc'!$A$6:$CQ$6,0))=0,\" \",INDEX('Rate Trajectory Calc'!$A$6:$CQ$92,MATCH('Rate Trajectory Report'!$B103,'Rate Trajectory Calc'!$A$6:$A$92,0),MATCH('Rate Trajectory Report'!T$5,'Rate Trajectory Calc'!$A$6:$CQ$6,0))/1000)","v":" "},{"$f":"IF(INDEX('Rate Trajectory Calc'!$A$6:$CQ$92,MATCH('Rate Trajectory Report'!$B103,'Rate Trajectory Calc'!$A$6:$A$92,0),MATCH('Rate Trajectory Report'!U$5,'Rate Trajectory Calc'!$A$6:$CQ$6,0))=0,\" \",INDEX('Rate Trajectory Calc'!$A$6:$CQ$92,MATCH('Rate Trajectory Report'!$B103,'Rate Trajectory Calc'!$A$6:$A$92,0),MATCH('Rate Trajectory Report'!U$5,'Rate Trajectory Calc'!$A$6:$CQ$6,0))/1000)","v":" "},{"$f":"IF(INDEX('Rate Trajectory Calc'!$A$6:$CQ$92,MATCH('Rate Trajectory Report'!$B103,'Rate Trajectory Calc'!$A$6:$A$92,0),MATCH('Rate Trajectory Report'!V$5,'Rate Trajectory Calc'!$A$6:$CQ$6,0))=0,\" \",INDEX('Rate Trajectory Calc'!$A$6:$CQ$92,MATCH('Rate Trajectory Report'!$B103,'Rate Trajectory Calc'!$A$6:$A$92,0),MATCH('Rate Trajectory Report'!V$5,'Rate Trajectory Calc'!$A$6:$CQ$6,0))/1000)","v":" "},{"$f":"IF(INDEX('Rate Trajectory Calc'!$A$6:$CQ$92,MATCH('Rate Trajectory Report'!$B103,'Rate Trajectory Calc'!$A$6:$A$92,0),MATCH('Rate Trajectory Report'!W$5,'Rate Trajectory Calc'!$A$6:$CQ$6,0))=0,\" \",INDEX('Rate Trajectory Calc'!$A$6:$CQ$92,MATCH('Rate Trajectory Report'!$B103,'Rate Trajectory Calc'!$A$6:$A$92,0),MATCH('Rate Trajectory Report'!W$5,'Rate Trajectory Calc'!$A$6:$CQ$6,0))/1000)","v":" "},{"$f":"IF(INDEX('Rate Trajectory Calc'!$A$6:$CQ$92,MATCH('Rate Trajectory Report'!$B103,'Rate Trajectory Calc'!$A$6:$A$92,0),MATCH('Rate Trajectory Report'!X$5,'Rate Trajectory Calc'!$A$6:$CQ$6,0))=0,\" \",INDEX('Rate Trajectory Calc'!$A$6:$CQ$92,MATCH('Rate Trajectory Report'!$B103,'Rate Trajectory Calc'!$A$6:$A$92,0),MATCH('Rate Trajectory Report'!X$5,'Rate Trajectory Calc'!$A$6:$CQ$6,0))/1000)","v":" "},{"$f":"IF(INDEX('Rate Trajectory Calc'!$A$6:$CQ$92,MATCH('Rate Trajectory Report'!$B103,'Rate Trajectory Calc'!$A$6:$A$92,0),MATCH('Rate Trajectory Report'!Y$5,'Rate Trajectory Calc'!$A$6:$CQ$6,0))=0,\" \",INDEX('Rate Trajectory Calc'!$A$6:$CQ$92,MATCH('Rate Trajectory Report'!$B103,'Rate Trajectory Calc'!$A$6:$A$92,0),MATCH('Rate Trajectory Report'!Y$5,'Rate Trajectory Calc'!$A$6:$CQ$6,0))/1000)","v":" "},{"$f":"IF(INDEX('Rate Trajectory Calc'!$A$6:$CQ$92,MATCH('Rate Trajectory Report'!$B103,'Rate Trajectory Calc'!$A$6:$A$92,0),MATCH('Rate Trajectory Report'!Z$5,'Rate Trajectory Calc'!$A$6:$CQ$6,0))=0,\" \",INDEX('Rate Trajectory Calc'!$A$6:$CQ$92,MATCH('Rate Trajectory Report'!$B103,'Rate Trajectory Calc'!$A$6:$A$92,0),MATCH('Rate Trajectory Report'!Z$5,'Rate Trajectory Calc'!$A$6:$CQ$6,0))/1000)","v":" "},{"$f":"IF(INDEX('Rate Trajectory Calc'!$A$6:$CQ$92,MATCH('Rate Trajectory Report'!$B103,'Rate Trajectory Calc'!$A$6:$A$92,0),MATCH('Rate Trajectory Report'!AA$5,'Rate Trajectory Calc'!$A$6:$CQ$6,0))=0,\" \",INDEX('Rate Trajectory Calc'!$A$6:$CQ$92,MATCH('Rate Trajectory Report'!$B103,'Rate Trajectory Calc'!$A$6:$A$92,0),MATCH('Rate Trajectory Report'!AA$5,'Rate Trajectory Calc'!$A$6:$CQ$6,0))/1000)","v":" "}]
[null,{"$f":"'Rate Trajectory Dashboard'!B82","v":"CFCA/NCA - NGSS Enduser Sub Acct Recovery - Year 2029"},{"$f":"IFERROR(VLOOKUP(B104,'Rate Trajectory Dashboard'!$B$12:$D$96,3,FALSE)/1000,'Rate Trajectory Report'!C103)","v":-9.8933890516953067},{"$f":"IF(INDEX('Rate Trajectory Calc'!$A$6:$CQ$92,MATCH('Rate Trajectory Report'!$B104,'Rate Trajectory Calc'!$A$6:$A$92,0),MATCH('Rate Trajectory Report'!D$5,'Rate Trajectory Calc'!$A$6:$CQ$6,0))=0,\" \",INDEX('Rate Trajectory Calc'!$A$6:$CQ$92,MATCH('Rate Trajectory Report'!$B104,'Rate Trajectory Calc'!$A$6:$A$92,0),MATCH('Rate Trajectory Report'!D$5,'Rate Trajectory Calc'!$A$6:$CQ$6,0))/1000)","v":" "},{"$f":"IF(INDEX('Rate Trajectory Calc'!$A$6:$CQ$92,MATCH('Rate Trajectory Report'!$B104,'Rate Trajectory Calc'!$A$6:$A$92,0),MATCH('Rate Trajectory Report'!E$5,'Rate Trajectory Calc'!$A$6:$CQ$6,0))=0,\" \",INDEX('Rate Trajectory Calc'!$A$6:$CQ$92,MATCH('Rate Trajectory Report'!$B104,'Rate Trajectory Calc'!$A$6:$A$92,0),MATCH('Rate Trajectory Report'!E$5,'Rate Trajectory Calc'!$A$6:$CQ$6,0))/1000)","v":" "},{"$f":"IF(INDEX('Rate Trajectory Calc'!$A$6:$CQ$92,MATCH('Rate Trajectory Report'!$B104,'Rate Trajectory Calc'!$A$6:$A$92,0),MATCH('Rate Trajectory Report'!F$5,'Rate Trajectory Calc'!$A$6:$CQ$6,0))=0,\" \",INDEX('Rate Trajectory Calc'!$A$6:$CQ$92,MATCH('Rate Trajectory Report'!$B104,'Rate Trajectory Calc'!$A$6:$A$92,0),MATCH('Rate Trajectory Report'!F$5,'Rate Trajectory Calc'!$A$6:$CQ$6,0))/1000)","v":" "},{"$f":"IF(INDEX('Rate Trajectory Calc'!$A$6:$CQ$92,MATCH('Rate Trajectory Report'!$B104,'Rate Trajectory Calc'!$A$6:$A$92,0),MATCH('Rate Trajectory Report'!G$5,'Rate Trajectory Calc'!$A$6:$CQ$6,0))=0,\" \",INDEX('Rate Trajectory Calc'!$A$6:$CQ$92,MATCH('Rate Trajectory Report'!$B104,'Rate Trajectory Calc'!$A$6:$A$92,0),MATCH('Rate Trajectory Report'!G$5,'Rate Trajectory Calc'!$A$6:$CQ$6,0))/1000)","v":" "},{"$f":"IF(INDEX('Rate Trajectory Calc'!$A$6:$CQ$92,MATCH('Rate Trajectory Report'!$B104,'Rate Trajectory Calc'!$A$6:$A$92,0),MATCH('Rate Trajectory Report'!H$5,'Rate Trajectory Calc'!$A$6:$CQ$6,0))=0,\" \",INDEX('Rate Trajectory Calc'!$A$6:$CQ$92,MATCH('Rate Trajectory Report'!$B104,'Rate Trajectory Calc'!$A$6:$A$92,0),MATCH('Rate Trajectory Report'!H$5,'Rate Trajectory Calc'!$A$6:$CQ$6,0))/1000)","v":" "},{"$f":"IF(INDEX('Rate Trajectory Calc'!$A$6:$CQ$92,MATCH('Rate Trajectory Report'!$B104,'Rate Trajectory Calc'!$A$6:$A$92,0),MATCH('Rate Trajectory Report'!I$5,'Rate Trajectory Calc'!$A$6:$CQ$6,0))=0,\" \",INDEX('Rate Trajectory Calc'!$A$6:$CQ$92,MATCH('Rate Trajectory Report'!$B104,'Rate Trajectory Calc'!$A$6:$A$92,0),MATCH('Rate Trajectory Report'!I$5,'Rate Trajectory Calc'!$A$6:$CQ$6,0))/1000)","v":" "},{"$f":"IF(INDEX('Rate Trajectory Calc'!$A$6:$CQ$92,MATCH('Rate Trajectory Report'!$B104,'Rate Trajectory Calc'!$A$6:$A$92,0),MATCH('Rate Trajectory Report'!J$5,'Rate Trajectory Calc'!$A$6:$CQ$6,0))=0,\" \",INDEX('Rate Trajectory Calc'!$A$6:$CQ$92,MATCH('Rate Trajectory Report'!$B104,'Rate Trajectory Calc'!$A$6:$A$92,0),MATCH('Rate Trajectory Report'!J$5,'Rate Trajectory Calc'!$A$6:$CQ$6,0))/1000)","v":" "},{"$f":"IF(INDEX('Rate Trajectory Calc'!$A$6:$CQ$92,MATCH('Rate Trajectory Report'!$B104,'Rate Trajectory Calc'!$A$6:$A$92,0),MATCH('Rate Trajectory Report'!K$5,'Rate Trajectory Calc'!$A$6:$CQ$6,0))=0,\" \",INDEX('Rate Trajectory Calc'!$A$6:$CQ$92,MATCH('Rate Trajectory Report'!$B104,'Rate Trajectory Calc'!$A$6:$A$92,0),MATCH('Rate Trajectory Report'!K$5,'Rate Trajectory Calc'!$A$6:$CQ$6,0))/1000)","v":" "},{"$f":"IF(INDEX('Rate Trajectory Calc'!$A$6:$CQ$92,MATCH('Rate Trajectory Report'!$B104,'Rate Trajectory Calc'!$A$6:$A$92,0),MATCH('Rate Trajectory Report'!L$5,'Rate Trajectory Calc'!$A$6:$CQ$6,0))=0,\" \",INDEX('Rate Trajectory Calc'!$A$6:$CQ$92,MATCH('Rate Trajectory Report'!$B104,'Rate Trajectory Calc'!$A$6:$A$92,0),MATCH('Rate Trajectory Report'!L$5,'Rate Trajectory Calc'!$A$6:$CQ$6,0))/1000)","v":" "},{"$f":"IF(INDEX('Rate Trajectory Calc'!$A$6:$CQ$92,MATCH('Rate Trajectory Report'!$B104,'Rate Trajectory Calc'!$A$6:$A$92,0),MATCH('Rate Trajectory Report'!M$5,'Rate Trajectory Calc'!$A$6:$CQ$6,0))=0,\" \",INDEX('Rate Trajectory Calc'!$A$6:$CQ$92,MATCH('Rate Trajectory Report'!$B104,'Rate Trajectory Calc'!$A$6:$A$92,0),MATCH('Rate Trajectory Report'!M$5,'Rate Trajectory Calc'!$A$6:$CQ$6,0))/1000)","v":" "},{"$f":"IF(INDEX('Rate Trajectory Calc'!$A$6:$CQ$92,MATCH('Rate Trajectory Report'!$B104,'Rate Trajectory Calc'!$A$6:$A$92,0),MATCH('Rate Trajectory Report'!N$5,'Rate Trajectory Calc'!$A$6:$CQ$6,0))=0,\" \",INDEX('Rate Trajectory Calc'!$A$6:$CQ$92,MATCH('Rate Trajectory Report'!$B104,'Rate Trajectory Calc'!$A$6:$A$92,0),MATCH('Rate Trajectory Report'!N$5,'Rate Trajectory Calc'!$A$6:$CQ$6,0))/1000)","v":" "},{"$f":"IF(INDEX('Rate Trajectory Calc'!$A$6:$CQ$92,MATCH('Rate Trajectory Report'!$B104,'Rate Trajectory Calc'!$A$6:$A$92,0),MATCH('Rate Trajectory Report'!O$5,'Rate Trajectory Calc'!$A$6:$CQ$6,0))=0,\" \",INDEX('Rate Trajectory Calc'!$A$6:$CQ$92,MATCH('Rate Trajectory Report'!$B104,'Rate Trajectory Calc'!$A$6:$A$92,0),MATCH('Rate Trajectory Report'!O$5,'Rate Trajectory Calc'!$A$6:$CQ$6,0))/1000)","v":" "},{"$f":"IF(INDEX('Rate Trajectory Calc'!$A$6:$CQ$92,MATCH('Rate Trajectory Report'!$B104,'Rate Trajectory Calc'!$A$6:$A$92,0),MATCH('Rate Trajectory Report'!P$5,'Rate Trajectory Calc'!$A$6:$CQ$6,0))=0,\" \",INDEX('Rate Trajectory Calc'!$A$6:$CQ$92,MATCH('Rate Trajectory Report'!$B104,'Rate Trajectory Calc'!$A$6:$A$92,0),MATCH('Rate Trajectory Report'!P$5,'Rate Trajectory Calc'!$A$6:$CQ$6,0))/1000)","v":" "},{"$f":"IF(INDEX('Rate Trajectory Calc'!$A$6:$CQ$92,MATCH('Rate Trajectory Report'!$B104,'Rate Trajectory Calc'!$A$6:$A$92,0),MATCH('Rate Trajectory Report'!Q$5,'Rate Trajectory Calc'!$A$6:$CQ$6,0))=0,\" \",INDEX('Rate Trajectory Calc'!$A$6:$CQ$92,MATCH('Rate Trajectory Report'!$B104,'Rate Trajectory Calc'!$A$6:$A$92,0),MATCH('Rate Trajectory Report'!Q$5,'Rate Trajectory Calc'!$A$6:$CQ$6,0))/1000)","v":" "},{"$f":"IF(INDEX('Rate Trajectory Calc'!$A$6:$CQ$92,MATCH('Rate Trajectory Report'!$B104,'Rate Trajectory Calc'!$A$6:$A$92,0),MATCH('Rate Trajectory Report'!R$5,'Rate Trajectory Calc'!$A$6:$CQ$6,0))=0,\" \",INDEX('Rate Trajectory Calc'!$A$6:$CQ$92,MATCH('Rate Trajectory Report'!$B104,'Rate Trajectory Calc'!$A$6:$A$92,0),MATCH('Rate Trajectory Report'!R$5,'Rate Trajectory Calc'!$A$6:$CQ$6,0))/1000)","v":" "},{"$f":"IF(INDEX('Rate Trajectory Calc'!$A$6:$CQ$92,MATCH('Rate Trajectory Report'!$B104,'Rate Trajectory Calc'!$A$6:$A$92,0),MATCH('Rate Trajectory Report'!S$5,'Rate Trajectory Calc'!$A$6:$CQ$6,0))=0,\" \",INDEX('Rate Trajectory Calc'!$A$6:$CQ$92,MATCH('Rate Trajectory Report'!$B104,'Rate Trajectory Calc'!$A$6:$A$92,0),MATCH('Rate Trajectory Report'!S$5,'Rate Trajectory Calc'!$A$6:$CQ$6,0))/1000)","v":" "},{"$f":"IF(INDEX('Rate Trajectory Calc'!$A$6:$CQ$92,MATCH('Rate Trajectory Report'!$B104,'Rate Trajectory Calc'!$A$6:$A$92,0),MATCH('Rate Trajectory Report'!T$5,'Rate Trajectory Calc'!$A$6:$CQ$6,0))=0,\" \",INDEX('Rate Trajectory Calc'!$A$6:$CQ$92,MATCH('Rate Trajectory Report'!$B104,'Rate Trajectory Calc'!$A$6:$A$92,0),MATCH('Rate Trajectory Report'!T$5,'Rate Trajectory Calc'!$A$6:$CQ$6,0))/1000)","v":" "},{"$f":"IF(INDEX('Rate Trajectory Calc'!$A$6:$CQ$92,MATCH('Rate Trajectory Report'!$B104,'Rate Trajectory Calc'!$A$6:$A$92,0),MATCH('Rate Trajectory Report'!U$5,'Rate Trajectory Calc'!$A$6:$CQ$6,0))=0,\" \",INDEX('Rate Trajectory Calc'!$A$6:$CQ$92,MATCH('Rate Trajectory Report'!$B104,'Rate Trajectory Calc'!$A$6:$A$92,0),MATCH('Rate Trajectory Report'!U$5,'Rate Trajectory Calc'!$A$6:$CQ$6,0))/1000)","v":" "},{"$f":"IF(INDEX('Rate Trajectory Calc'!$A$6:$CQ$92,MATCH('Rate Trajectory Report'!$B104,'Rate Trajectory Calc'!$A$6:$A$92,0),MATCH('Rate Trajectory Report'!V$5,'Rate Trajectory Calc'!$A$6:$CQ$6,0))=0,\" \",INDEX('Rate Trajectory Calc'!$A$6:$CQ$92,MATCH('Rate Trajectory Report'!$B104,'Rate Trajectory Calc'!$A$6:$A$92,0),MATCH('Rate Trajectory Report'!V$5,'Rate Trajectory Calc'!$A$6:$CQ$6,0))/1000)","v":" "},{"$f":"IF(INDEX('Rate Trajectory Calc'!$A$6:$CQ$92,MATCH('Rate Trajectory Report'!$B104,'Rate Trajectory Calc'!$A$6:$A$92,0),MATCH('Rate Trajectory Report'!W$5,'Rate Trajectory Calc'!$A$6:$CQ$6,0))=0,\" \",INDEX('Rate Trajectory Calc'!$A$6:$CQ$92,MATCH('Rate Trajectory Report'!$B104,'Rate Trajectory Calc'!$A$6:$A$92,0),MATCH('Rate Trajectory Report'!W$5,'Rate Trajectory Calc'!$A$6:$CQ$6,0))/1000)","v":" "},{"$f":"IF(INDEX('Rate Trajectory Calc'!$A$6:$CQ$92,MATCH('Rate Trajectory Report'!$B104,'Rate Trajectory Calc'!$A$6:$A$92,0),MATCH('Rate Trajectory Report'!X$5,'Rate Trajectory Calc'!$A$6:$CQ$6,0))=0,\" \",INDEX('Rate Trajectory Calc'!$A$6:$CQ$92,MATCH('Rate Trajectory Report'!$B104,'Rate Trajectory Calc'!$A$6:$A$92,0),MATCH('Rate Trajectory Report'!X$5,'Rate Trajectory Calc'!$A$6:$CQ$6,0))/1000)","v":" "},{"$f":"IF(INDEX('Rate Trajectory Calc'!$A$6:$CQ$92,MATCH('Rate Trajectory Report'!$B104,'Rate Trajectory Calc'!$A$6:$A$92,0),MATCH('Rate Trajectory Report'!Y$5,'Rate Trajectory Calc'!$A$6:$CQ$6,0))=0,\" \",INDEX('Rate Trajectory Calc'!$A$6:$CQ$92,MATCH('Rate Trajectory Report'!$B104,'Rate Trajectory Calc'!$A$6:$A$92,0),MATCH('Rate Trajectory Report'!Y$5,'Rate Trajectory Calc'!$A$6:$CQ$6,0))/1000)","v":" "},{"$f":"IF(INDEX('Rate Trajectory Calc'!$A$6:$CQ$92,MATCH('Rate Trajectory Report'!$B104,'Rate Trajectory Calc'!$A$6:$A$92,0),MATCH('Rate Trajectory Report'!Z$5,'Rate Trajectory Calc'!$A$6:$CQ$6,0))=0,\" \",INDEX('Rate Trajectory Calc'!$A$6:$CQ$92,MATCH('Rate Trajectory Report'!$B104,'Rate Trajectory Calc'!$A$6:$A$92,0),MATCH('Rate Trajectory Report'!Z$5,'Rate Trajectory Calc'!$A$6:$CQ$6,0))/1000)","v":" "},{"$f":"IF(INDEX('Rate Trajectory Calc'!$A$6:$CQ$92,MATCH('Rate Trajectory Report'!$B104,'Rate Trajectory Calc'!$A$6:$A$92,0),MATCH('Rate Trajectory Report'!AA$5,'Rate Trajectory Calc'!$A$6:$CQ$6,0))=0,\" \",INDEX('Rate Trajectory Calc'!$A$6:$CQ$92,MATCH('Rate Trajectory Report'!$B104,'Rate Trajectory Calc'!$A$6:$A$92,0),MATCH('Rate Trajectory Report'!AA$5,'Rate Trajectory Calc'!$A$6:$CQ$6,0))/1000)","v":" "}]
["14b","CFCA/NCA - NGSS Enduser Sub Acct Recovery",{"$f":"IFERROR(VLOOKUP(B105,'Rate Trajectory Dashboard'!$B$12:$D$96,3,FALSE)/1000,'Rate Trajectory Report'!C104)","v":-9.8933890516953067},{"$f":"IF(SUM(D102:D104)=0,\" \",SUBTOTAL(9,D102:D104))","v":" "},{"$f":"IF(SUM(E102:E104)=0,\" \",SUBTOTAL(9,E102:E104))","v":" "}," "," "," "," "," "," "," "," "," "," "," "," "," "," ",9.8933890516953067," "," "," "," "," "," "," "]
[null,{"$f":"'Rate Trajectory Dashboard'!B83","v":"NCA - NGSS Enduser Sub Acct Recovery - Year 2027"},{"$f":"IFERROR(VLOOKUP(B106,'Rate Trajectory Dashboard'!$B$12:$D$96,3,FALSE)/1000,'Rate Trajectory Report'!C105)","v":-10.160997666303095},{"$f":"IF(INDEX('Rate Trajectory Calc'!$A$6:$CQ$92,MATCH('Rate Trajectory Report'!$B106,'Rate Trajectory Calc'!$A$6:$A$92,0),MATCH('Rate Trajectory Report'!D$5,'Rate Trajectory Calc'!$A$6:$CQ$6,0))=0,\" \",INDEX('Rate Trajectory Calc'!$A$6:$CQ$92,MATCH('Rate Trajectory Report'!$B106,'Rate Trajectory Calc'!$A$6:$A$92,0),MATCH('Rate Trajectory Report'!D$5,'Rate Trajectory Calc'!$A$6:$CQ$6,0))/1000)","v":" "},{"$f":"IF(INDEX('Rate Trajectory Calc'!$A$6:$CQ$92,MATCH('Rate Trajectory Report'!$B106,'Rate Trajectory Calc'!$A$6:$A$92,0),MATCH('Rate Trajectory Report'!E$5,'Rate Trajectory Calc'!$A$6:$CQ$6,0))=0,\" \",INDEX('Rate Trajectory Calc'!$A$6:$CQ$92,MATCH('Rate Trajectory Report'!$B106,'Rate Trajectory Calc'!$A$6:$A$92,0),MATCH('Rate Trajectory Report'!E$5,'Rate Trajectory Calc'!$A$6:$CQ$6,0))/1000)","v":" "},{"$f":"IF(INDEX('Rate Trajectory Calc'!$A$6:$CQ$92,MATCH('Rate Trajectory Report'!$B106,'Rate Trajectory Calc'!$A$6:$A$92,0),MATCH('Rate Trajectory Report'!F$5,'Rate Trajectory Calc'!$A$6:$CQ$6,0))=0,\" \",INDEX('Rate Trajectory Calc'!$A$6:$CQ$92,MATCH('Rate Trajectory Report'!$B106,'Rate Trajectory Calc'!$A$6:$A$92,0),MATCH('Rate Trajectory Report'!F$5,'Rate Trajectory Calc'!$A$6:$CQ$6,0))/1000)","v":" "},{"$f":"IF(INDEX('Rate Trajectory Calc'!$A$6:$CQ$92,MATCH('Rate Trajectory Report'!$B106,'Rate Trajectory Calc'!$A$6:$A$92,0),MATCH('Rate Trajectory Report'!G$5,'Rate Trajectory Calc'!$A$6:$CQ$6,0))=0,\" \",INDEX('Rate Trajectory Calc'!$A$6:$CQ$92,MATCH('Rate Trajectory Report'!$B106,'Rate Trajectory Calc'!$A$6:$A$92,0),MATCH('Rate Trajectory Report'!G$5,'Rate Trajectory Calc'!$A$6:$CQ$6,0))/1000)","v":" "},{"$f":"IF(INDEX('Rate Trajectory Calc'!$A$6:$CQ$92,MATCH('Rate Trajectory Report'!$B106,'Rate Trajectory Calc'!$A$6:$A$92,0),MATCH('Rate Trajectory Report'!H$5,'Rate Trajectory Calc'!$A$6:$CQ$6,0))=0,\" \",INDEX('Rate Trajectory Calc'!$A$6:$CQ$92,MATCH('Rate Trajectory Report'!$B106,'Rate Trajectory Calc'!$A$6:$A$92,0),MATCH('Rate Trajectory Report'!H$5,'Rate Trajectory Calc'!$A$6:$CQ$6,0))/1000)","v":" "},{"$f":"IF(INDEX('Rate Trajectory Calc'!$A$6:$CQ$92,MATCH('Rate Trajectory Report'!$B106,'Rate Trajectory Calc'!$A$6:$A$92,0),MATCH('Rate Trajectory Report'!I$5,'Rate Trajectory Calc'!$A$6:$CQ$6,0))=0,\" \",INDEX('Rate Trajectory Calc'!$A$6:$CQ$92,MATCH('Rate Trajectory Report'!$B106,'Rate Trajectory Calc'!$A$6:$A$92,0),MATCH('Rate Trajectory Report'!I$5,'Rate Trajectory Calc'!$A$6:$CQ$6,0))/1000)","v":" "},{"$f":"IF(INDEX('Rate Trajectory Calc'!$A$6:$CQ$92,MATCH('Rate Trajectory Report'!$B106,'Rate Trajectory Calc'!$A$6:$A$92,0),MATCH('Rate Trajectory Report'!J$5,'Rate Trajectory Calc'!$A$6:$CQ$6,0))=0,\" \",INDEX('Rate Trajectory Calc'!$A$6:$CQ$92,MATCH('Rate Trajectory Report'!$B106,'Rate Trajectory Calc'!$A$6:$A$92,0),MATCH('Rate Trajectory Report'!J$5,'Rate Trajectory Calc'!$A$6:$CQ$6,0))/1000)","v":" "},{"$f":"IF(INDEX('Rate Trajectory Calc'!$A$6:$CQ$92,MATCH('Rate Trajectory Report'!$B106,'Rate Trajectory Calc'!$A$6:$A$92,0),MATCH('Rate Trajectory Report'!K$5,'Rate Trajectory Calc'!$A$6:$CQ$6,0))=0,\" \",INDEX('Rate Trajectory Calc'!$A$6:$CQ$92,MATCH('Rate Trajectory Report'!$B106,'Rate Trajectory Calc'!$A$6:$A$92,0),MATCH('Rate Trajectory Report'!K$5,'Rate Trajectory Calc'!$A$6:$CQ$6,0))/1000)","v":" "},{"$f":"IF(INDEX('Rate Trajectory Calc'!$A$6:$CQ$92,MATCH('Rate Trajectory Report'!$B106,'Rate Trajectory Calc'!$A$6:$A$92,0),MATCH('Rate Trajectory Report'!L$5,'Rate Trajectory Calc'!$A$6:$CQ$6,0))=0,\" \",INDEX('Rate Trajectory Calc'!$A$6:$CQ$92,MATCH('Rate Trajectory Report'!$B106,'Rate Trajectory Calc'!$A$6:$A$92,0),MATCH('Rate Trajectory Report'!L$5,'Rate Trajectory Calc'!$A$6:$CQ$6,0))/1000)","v":" "},{"$f":"IF(INDEX('Rate Trajectory Calc'!$A$6:$CQ$92,MATCH('Rate Trajectory Report'!$B106,'Rate Trajectory Calc'!$A$6:$A$92,0),MATCH('Rate Trajectory Report'!M$5,'Rate Trajectory Calc'!$A$6:$CQ$6,0))=0,\" \",INDEX('Rate Trajectory Calc'!$A$6:$CQ$92,MATCH('Rate Trajectory Report'!$B106,'Rate Trajectory Calc'!$A$6:$A$92,0),MATCH('Rate Trajectory Report'!M$5,'Rate Trajectory Calc'!$A$6:$CQ$6,0))/1000)","v":" "},{"$f":"IF(INDEX('Rate Trajectory Calc'!$A$6:$CQ$92,MATCH('Rate Trajectory Report'!$B106,'Rate Trajectory Calc'!$A$6:$A$92,0),MATCH('Rate Trajectory Report'!N$5,'Rate Trajectory Calc'!$A$6:$CQ$6,0))=0,\" \",INDEX('Rate Trajectory Calc'!$A$6:$CQ$92,MATCH('Rate Trajectory Report'!$B106,'Rate Trajectory Calc'!$A$6:$A$92,0),MATCH('Rate Trajectory Report'!N$5,'Rate Trajectory Calc'!$A$6:$CQ$6,0))/1000)","v":" "},{"$f":"IF(INDEX('Rate Trajectory Calc'!$A$6:$CQ$92,MATCH('Rate Trajectory Report'!$B106,'Rate Trajectory Calc'!$A$6:$A$92,0),MATCH('Rate Trajectory Report'!O$5,'Rate Trajectory Calc'!$A$6:$CQ$6,0))=0,\" \",INDEX('Rate Trajectory Calc'!$A$6:$CQ$92,MATCH('Rate Trajectory Report'!$B106,'Rate Trajectory Calc'!$A$6:$A$92,0),MATCH('Rate Trajectory Report'!O$5,'Rate Trajectory Calc'!$A$6:$CQ$6,0))/1000)","v":" "},{"$f":"IF(INDEX('Rate Trajectory Calc'!$A$6:$CQ$92,MATCH('Rate Trajectory Report'!$B106,'Rate Trajectory Calc'!$A$6:$A$92,0),MATCH('Rate Trajectory Report'!P$5,'Rate Trajectory Calc'!$A$6:$CQ$6,0))=0,\" \",INDEX('Rate Trajectory Calc'!$A$6:$CQ$92,MATCH('Rate Trajectory Report'!$B106,'Rate Trajectory Calc'!$A$6:$A$92,0),MATCH('Rate Trajectory Report'!P$5,'Rate Trajectory Calc'!$A$6:$CQ$6,0))/1000)","v":" "},{"$f":"IF(INDEX('Rate Trajectory Calc'!$A$6:$CQ$92,MATCH('Rate Trajectory Report'!$B106,'Rate Trajectory Calc'!$A$6:$A$92,0),MATCH('Rate Trajectory Report'!Q$5,'Rate Trajectory Calc'!$A$6:$CQ$6,0))=0,\" \",INDEX('Rate Trajectory Calc'!$A$6:$CQ$92,MATCH('Rate Trajectory Report'!$B106,'Rate Trajectory Calc'!$A$6:$A$92,0),MATCH('Rate Trajectory Report'!Q$5,'Rate Trajectory Calc'!$A$6:$CQ$6,0))/1000)","v":" "},{"$f":"IF(INDEX('Rate Trajectory Calc'!$A$6:$CQ$92,MATCH('Rate Trajectory Report'!$B106,'Rate Trajectory Calc'!$A$6:$A$92,0),MATCH('Rate Trajectory Report'!R$5,'Rate Trajectory Calc'!$A$6:$CQ$6,0))=0,\" \",INDEX('Rate Trajectory Calc'!$A$6:$CQ$92,MATCH('Rate Trajectory Report'!$B106,'Rate Trajectory Calc'!$A$6:$A$92,0),MATCH('Rate Trajectory Report'!R$5,'Rate Trajectory Calc'!$A$6:$CQ$6,0))/1000)","v":" "},{"$f":"IF(INDEX('Rate Trajectory Calc'!$A$6:$CQ$92,MATCH('Rate Trajectory Report'!$B106,'Rate Trajectory Calc'!$A$6:$A$92,0),MATCH('Rate Trajectory Report'!S$5,'Rate Trajectory Calc'!$A$6:$CQ$6,0))=0,\" \",INDEX('Rate Trajectory Calc'!$A$6:$CQ$92,MATCH('Rate Trajectory Report'!$B106,'Rate Trajectory Calc'!$A$6:$A$92,0),MATCH('Rate Trajectory Report'!S$5,'Rate Trajectory Calc'!$A$6:$CQ$6,0))/1000)","v":" "},{"$f":"IF(INDEX('Rate Trajectory Calc'!$A$6:$CQ$92,MATCH('Rate Trajectory Report'!$B106,'Rate Trajectory Calc'!$A$6:$A$92,0),MATCH('Rate Trajectory Report'!T$5,'Rate Trajectory Calc'!$A$6:$CQ$6,0))=0,\" \",INDEX('Rate Trajectory Calc'!$A$6:$CQ$92,MATCH('Rate Trajectory Report'!$B106,'Rate Trajectory Calc'!$A$6:$A$92,0),MATCH('Rate Trajectory Report'!T$5,'Rate Trajectory Calc'!$A$6:$CQ$6,0))/1000)","v":10.160997666303095},{"$f":"IF(INDEX('Rate Trajectory Calc'!$A$6:$CQ$92,MATCH('Rate Trajectory Report'!$B106,'Rate Trajectory Calc'!$A$6:$A$92,0),MATCH('Rate Trajectory Report'!U$5,'Rate Trajectory Calc'!$A$6:$CQ$6,0))=0,\" \",INDEX('Rate Trajectory Calc'!$A$6:$CQ$92,MATCH('Rate Trajectory Report'!$B106,'Rate Trajectory Calc'!$A$6:$A$92,0),MATCH('Rate Trajectory Report'!U$5,'Rate Trajectory Calc'!$A$6:$CQ$6,0))/1000)","v":" "},{"$f":"IF(INDEX('Rate Trajectory Calc'!$A$6:$CQ$92,MATCH('Rate Trajectory Report'!$B106,'Rate Trajectory Calc'!$A$6:$A$92,0),MATCH('Rate Trajectory Report'!V$5,'Rate Trajectory Calc'!$A$6:$CQ$6,0))=0,\" \",INDEX('Rate Trajectory Calc'!$A$6:$CQ$92,MATCH('Rate Trajectory Report'!$B106,'Rate Trajectory Calc'!$A$6:$A$92,0),MATCH('Rate Trajectory Report'!V$5,'Rate Trajectory Calc'!$A$6:$CQ$6,0))/1000)","v":" "},{"$f":"IF(INDEX('Rate Trajectory Calc'!$A$6:$CQ$92,MATCH('Rate Trajectory Report'!$B106,'Rate Trajectory Calc'!$A$6:$A$92,0),MATCH('Rate Trajectory Report'!W$5,'Rate Trajectory Calc'!$A$6:$CQ$6,0))=0,\" \",INDEX('Rate Trajectory Calc'!$A$6:$CQ$92,MATCH('Rate Trajectory Report'!$B106,'Rate Trajectory Calc'!$A$6:$A$92,0),MATCH('Rate Trajectory Report'!W$5,'Rate Trajectory Calc'!$A$6:$CQ$6,0))/1000)","v":" "},{"$f":"IF(INDEX('Rate Trajectory Calc'!$A$6:$CQ$92,MATCH('Rate Trajectory Report'!$B106,'Rate Trajectory Calc'!$A$6:$A$92,0),MATCH('Rate Trajectory Report'!X$5,'Rate Trajectory Calc'!$A$6:$CQ$6,0))=0,\" \",INDEX('Rate Trajectory Calc'!$A$6:$CQ$92,MATCH('Rate Trajectory Report'!$B106,'Rate Trajectory Calc'!$A$6:$A$92,0),MATCH('Rate Trajectory Report'!X$5,'Rate Trajectory Calc'!$A$6:$CQ$6,0))/1000)","v":" "},{"$f":"IF(INDEX('Rate Trajectory Calc'!$A$6:$CQ$92,MATCH('Rate Trajectory Report'!$B106,'Rate Trajectory Calc'!$A$6:$A$92,0),MATCH('Rate Trajectory Report'!Y$5,'Rate Trajectory Calc'!$A$6:$CQ$6,0))=0,\" \",INDEX('Rate Trajectory Calc'!$A$6:$CQ$92,MATCH('Rate Trajectory Report'!$B106,'Rate Trajectory Calc'!$A$6:$A$92,0),MATCH('Rate Trajectory Report'!Y$5,'Rate Trajectory Calc'!$A$6:$CQ$6,0))/1000)","v":" "},{"$f":"IF(INDEX('Rate Trajectory Calc'!$A$6:$CQ$92,MATCH('Rate Trajectory Report'!$B106,'Rate Trajectory Calc'!$A$6:$A$92,0),MATCH('Rate Trajectory Report'!Z$5,'Rate Trajectory Calc'!$A$6:$CQ$6,0))=0,\" \",INDEX('Rate Trajectory Calc'!$A$6:$CQ$92,MATCH('Rate Trajectory Report'!$B106,'Rate Trajectory Calc'!$A$6:$A$92,0),MATCH('Rate Trajectory Report'!Z$5,'Rate Trajectory Calc'!$A$6:$CQ$6,0))/1000)","v":" "},{"$f":"IF(INDEX('Rate Trajectory Calc'!$A$6:$CQ$92,MATCH('Rate Trajectory Report'!$B106,'Rate Trajectory Calc'!$A$6:$A$92,0),MATCH('Rate Trajectory Report'!AA$5,'Rate Trajectory Calc'!$A$6:$CQ$6,0))=0,\" \",INDEX('Rate Trajectory Calc'!$A$6:$CQ$92,MATCH('Rate Trajectory Report'!$B106,'Rate Trajectory Calc'!$A$6:$A$92,0),MATCH('Rate Trajectory Report'!AA$5,'Rate Trajectory Calc'!$A$6:$CQ$6,0))/1000)","v":" "}]
[null,{"$f":"'Rate Trajectory Dashboard'!B84","v":"NCA - NGSS Enduser Sub Acct Recovery - Year 2028"},{"$f":"IFERROR(VLOOKUP(B107,'Rate Trajectory Dashboard'!$B$12:$D$96,3,FALSE)/1000,'Rate Trajectory Report'!C106)","v":-10.160997666303095},{"$f":"IF(INDEX('Rate Trajectory Calc'!$A$6:$CQ$92,MATCH('Rate Trajectory Report'!$B107,'Rate Trajectory Calc'!$A$6:$A$92,0),MATCH('Rate Trajectory Report'!D$5,'Rate Trajectory Calc'!$A$6:$CQ$6,0))=0,\" \",INDEX('Rate Trajectory Calc'!$A$6:$CQ$92,MATCH('Rate Trajectory Report'!$B107,'Rate Trajectory Calc'!$A$6:$A$92,0),MATCH('Rate Trajectory Report'!D$5,'Rate Trajectory Calc'!$A$6:$CQ$6,0))/1000)","v":" "},{"$f":"IF(INDEX('Rate Trajectory Calc'!$A$6:$CQ$92,MATCH('Rate Trajectory Report'!$B107,'Rate Trajectory Calc'!$A$6:$A$92,0),MATCH('Rate Trajectory Report'!E$5,'Rate Trajectory Calc'!$A$6:$CQ$6,0))=0,\" \",INDEX('Rate Trajectory Calc'!$A$6:$CQ$92,MATCH('Rate Trajectory Report'!$B107,'Rate Trajectory Calc'!$A$6:$A$92,0),MATCH('Rate Trajectory Report'!E$5,'Rate Trajectory Calc'!$A$6:$CQ$6,0))/1000)","v":" "},{"$f":"IF(INDEX('Rate Trajectory Calc'!$A$6:$CQ$92,MATCH('Rate Trajectory Report'!$B107,'Rate Trajectory Calc'!$A$6:$A$92,0),MATCH('Rate Trajectory Report'!F$5,'Rate Trajectory Calc'!$A$6:$CQ$6,0))=0,\" \",INDEX('Rate Trajectory Calc'!$A$6:$CQ$92,MATCH('Rate Trajectory Report'!$B107,'Rate Trajectory Calc'!$A$6:$A$92,0),MATCH('Rate Trajectory Report'!F$5,'Rate Trajectory Calc'!$A$6:$CQ$6,0))/1000)","v":" "},{"$f":"IF(INDEX('Rate Trajectory Calc'!$A$6:$CQ$92,MATCH('Rate Trajectory Report'!$B107,'Rate Trajectory Calc'!$A$6:$A$92,0),MATCH('Rate Trajectory Report'!G$5,'Rate Trajectory Calc'!$A$6:$CQ$6,0))=0,\" \",INDEX('Rate Trajectory Calc'!$A$6:$CQ$92,MATCH('Rate Trajectory Report'!$B107,'Rate Trajectory Calc'!$A$6:$A$92,0),MATCH('Rate Trajectory Report'!G$5,'Rate Trajectory Calc'!$A$6:$CQ$6,0))/1000)","v":" "},{"$f":"IF(INDEX('Rate Trajectory Calc'!$A$6:$CQ$92,MATCH('Rate Trajectory Report'!$B107,'Rate Trajectory Calc'!$A$6:$A$92,0),MATCH('Rate Trajectory Report'!H$5,'Rate Trajectory Calc'!$A$6:$CQ$6,0))=0,\" \",INDEX('Rate Trajectory Calc'!$A$6:$CQ$92,MATCH('Rate Trajectory Report'!$B107,'Rate Trajectory Calc'!$A$6:$A$92,0),MATCH('Rate Trajectory Report'!H$5,'Rate Trajectory Calc'!$A$6:$CQ$6,0))/1000)","v":" "},{"$f":"IF(INDEX('Rate Trajectory Calc'!$A$6:$CQ$92,MATCH('Rate Trajectory Report'!$B107,'Rate Trajectory Calc'!$A$6:$A$92,0),MATCH('Rate Trajectory Report'!I$5,'Rate Trajectory Calc'!$A$6:$CQ$6,0))=0,\" \",INDEX('Rate Trajectory Calc'!$A$6:$CQ$92,MATCH('Rate Trajectory Report'!$B107,'Rate Trajectory Calc'!$A$6:$A$92,0),MATCH('Rate Trajectory Report'!I$5,'Rate Trajectory Calc'!$A$6:$CQ$6,0))/1000)","v":" "},{"$f":"IF(INDEX('Rate Trajectory Calc'!$A$6:$CQ$92,MATCH('Rate Trajectory Report'!$B107,'Rate Trajectory Calc'!$A$6:$A$92,0),MATCH('Rate Trajectory Report'!J$5,'Rate Trajectory Calc'!$A$6:$CQ$6,0))=0,\" \",INDEX('Rate Trajectory Calc'!$A$6:$CQ$92,MATCH('Rate Trajectory Report'!$B107,'Rate Trajectory Calc'!$A$6:$A$92,0),MATCH('Rate Trajectory Report'!J$5,'Rate Trajectory Calc'!$A$6:$CQ$6,0))/1000)","v":" "},{"$f":"IF(INDEX('Rate Trajectory Calc'!$A$6:$CQ$92,MATCH('Rate Trajectory Report'!$B107,'Rate Trajectory Calc'!$A$6:$A$92,0),MATCH('Rate Trajectory Report'!K$5,'Rate Trajectory Calc'!$A$6:$CQ$6,0))=0,\" \",INDEX('Rate Trajectory Calc'!$A$6:$CQ$92,MATCH('Rate Trajectory Report'!$B107,'Rate Trajectory Calc'!$A$6:$A$92,0),MATCH('Rate Trajectory Report'!K$5,'Rate Trajectory Calc'!$A$6:$CQ$6,0))/1000)","v":" "},{"$f":"IF(INDEX('Rate Trajectory Calc'!$A$6:$CQ$92,MATCH('Rate Trajectory Report'!$B107,'Rate Trajectory Calc'!$A$6:$A$92,0),MATCH('Rate Trajectory Report'!L$5,'Rate Trajectory Calc'!$A$6:$CQ$6,0))=0,\" \",INDEX('Rate Trajectory Calc'!$A$6:$CQ$92,MATCH('Rate Trajectory Report'!$B107,'Rate Trajectory Calc'!$A$6:$A$92,0),MATCH('Rate Trajectory Report'!L$5,'Rate Trajectory Calc'!$A$6:$CQ$6,0))/1000)","v":" "},{"$f":"IF(INDEX('Rate Trajectory Calc'!$A$6:$CQ$92,MATCH('Rate Trajectory Report'!$B107,'Rate Trajectory Calc'!$A$6:$A$92,0),MATCH('Rate Trajectory Report'!M$5,'Rate Trajectory Calc'!$A$6:$CQ$6,0))=0,\" \",INDEX('Rate Trajectory Calc'!$A$6:$CQ$92,MATCH('Rate Trajectory Report'!$B107,'Rate Trajectory Calc'!$A$6:$A$92,0),MATCH('Rate Trajectory Report'!M$5,'Rate Trajectory Calc'!$A$6:$CQ$6,0))/1000)","v":" "},{"$f":"IF(INDEX('Rate Trajectory Calc'!$A$6:$CQ$92,MATCH('Rate Trajectory Report'!$B107,'Rate Trajectory Calc'!$A$6:$A$92,0),MATCH('Rate Trajectory Report'!N$5,'Rate Trajectory Calc'!$A$6:$CQ$6,0))=0,\" \",INDEX('Rate Trajectory Calc'!$A$6:$CQ$92,MATCH('Rate Trajectory Report'!$B107,'Rate Trajectory Calc'!$A$6:$A$92,0),MATCH('Rate Trajectory Report'!N$5,'Rate Trajectory Calc'!$A$6:$CQ$6,0))/1000)","v":" "},{"$f":"IF(INDEX('Rate Trajectory Calc'!$A$6:$CQ$92,MATCH('Rate Trajectory Report'!$B107,'Rate Trajectory Calc'!$A$6:$A$92,0),MATCH('Rate Trajectory Report'!O$5,'Rate Trajectory Calc'!$A$6:$CQ$6,0))=0,\" \",INDEX('Rate Trajectory Calc'!$A$6:$CQ$92,MATCH('Rate Trajectory Report'!$B107,'Rate Trajectory Calc'!$A$6:$A$92,0),MATCH('Rate Trajectory Report'!O$5,'Rate Trajectory Calc'!$A$6:$CQ$6,0))/1000)","v":" "},{"$f":"IF(INDEX('Rate Trajectory Calc'!$A$6:$CQ$92,MATCH('Rate Trajectory Report'!$B107,'Rate Trajectory Calc'!$A$6:$A$92,0),MATCH('Rate Trajectory Report'!P$5,'Rate Trajectory Calc'!$A$6:$CQ$6,0))=0,\" \",INDEX('Rate Trajectory Calc'!$A$6:$CQ$92,MATCH('Rate Trajectory Report'!$B107,'Rate Trajectory Calc'!$A$6:$A$92,0),MATCH('Rate Trajectory Report'!P$5,'Rate Trajectory Calc'!$A$6:$CQ$6,0))/1000)","v":" "},{"$f":"IF(INDEX('Rate Trajectory Calc'!$A$6:$CQ$92,MATCH('Rate Trajectory Report'!$B107,'Rate Trajectory Calc'!$A$6:$A$92,0),MATCH('Rate Trajectory Report'!Q$5,'Rate Trajectory Calc'!$A$6:$CQ$6,0))=0,\" \",INDEX('Rate Trajectory Calc'!$A$6:$CQ$92,MATCH('Rate Trajectory Report'!$B107,'Rate Trajectory Calc'!$A$6:$A$92,0),MATCH('Rate Trajectory Report'!Q$5,'Rate Trajectory Calc'!$A$6:$CQ$6,0))/1000)","v":" "},{"$f":"IF(INDEX('Rate Trajectory Calc'!$A$6:$CQ$92,MATCH('Rate Trajectory Report'!$B107,'Rate Trajectory Calc'!$A$6:$A$92,0),MATCH('Rate Trajectory Report'!R$5,'Rate Trajectory Calc'!$A$6:$CQ$6,0))=0,\" \",INDEX('Rate Trajectory Calc'!$A$6:$CQ$92,MATCH('Rate Trajectory Report'!$B107,'Rate Trajectory Calc'!$A$6:$A$92,0),MATCH('Rate Trajectory Report'!R$5,'Rate Trajectory Calc'!$A$6:$CQ$6,0))/1000)","v":" "},{"$f":"IF(INDEX('Rate Trajectory Calc'!$A$6:$CQ$92,MATCH('Rate Trajectory Report'!$B107,'Rate Trajectory Calc'!$A$6:$A$92,0),MATCH('Rate Trajectory Report'!S$5,'Rate Trajectory Calc'!$A$6:$CQ$6,0))=0,\" \",INDEX('Rate Trajectory Calc'!$A$6:$CQ$92,MATCH('Rate Trajectory Report'!$B107,'Rate Trajectory Calc'!$A$6:$A$92,0),MATCH('Rate Trajectory Report'!S$5,'Rate Trajectory Calc'!$A$6:$CQ$6,0))/1000)","v":" "},{"$f":"IF(INDEX('Rate Trajectory Calc'!$A$6:$CQ$92,MATCH('Rate Trajectory Report'!$B107,'Rate Trajectory Calc'!$A$6:$A$92,0),MATCH('Rate Trajectory Report'!T$5,'Rate Trajectory Calc'!$A$6:$CQ$6,0))=0,\" \",INDEX('Rate Trajectory Calc'!$A$6:$CQ$92,MATCH('Rate Trajectory Report'!$B107,'Rate Trajectory Calc'!$A$6:$A$92,0),MATCH('Rate Trajectory Report'!T$5,'Rate Trajectory Calc'!$A$6:$CQ$6,0))/1000)","v":" "},{"$f":"IF(INDEX('Rate Trajectory Calc'!$A$6:$CQ$92,MATCH('Rate Trajectory Report'!$B107,'Rate Trajectory Calc'!$A$6:$A$92,0),MATCH('Rate Trajectory Report'!U$5,'Rate Trajectory Calc'!$A$6:$CQ$6,0))=0,\" \",INDEX('Rate Trajectory Calc'!$A$6:$CQ$92,MATCH('Rate Trajectory Report'!$B107,'Rate Trajectory Calc'!$A$6:$A$92,0),MATCH('Rate Trajectory Report'!U$5,'Rate Trajectory Calc'!$A$6:$CQ$6,0))/1000)","v":" "},{"$f":"IF(INDEX('Rate Trajectory Calc'!$A$6:$CQ$92,MATCH('Rate Trajectory Report'!$B107,'Rate Trajectory Calc'!$A$6:$A$92,0),MATCH('Rate Trajectory Report'!V$5,'Rate Trajectory Calc'!$A$6:$CQ$6,0))=0,\" \",INDEX('Rate Trajectory Calc'!$A$6:$CQ$92,MATCH('Rate Trajectory Report'!$B107,'Rate Trajectory Calc'!$A$6:$A$92,0),MATCH('Rate Trajectory Report'!V$5,'Rate Trajectory Calc'!$A$6:$CQ$6,0))/1000)","v":" "},{"$f":"IF(INDEX('Rate Trajectory Calc'!$A$6:$CQ$92,MATCH('Rate Trajectory Report'!$B107,'Rate Trajectory Calc'!$A$6:$A$92,0),MATCH('Rate Trajectory Report'!W$5,'Rate Trajectory Calc'!$A$6:$CQ$6,0))=0,\" \",INDEX('Rate Trajectory Calc'!$A$6:$CQ$92,MATCH('Rate Trajectory Report'!$B107,'Rate Trajectory Calc'!$A$6:$A$92,0),MATCH('Rate Trajectory Report'!W$5,'Rate Trajectory Calc'!$A$6:$CQ$6,0))/1000)","v":" "},{"$f":"IF(INDEX('Rate Trajectory Calc'!$A$6:$CQ$92,MATCH('Rate Trajectory Report'!$B107,'Rate Trajectory Calc'!$A$6:$A$92,0),MATCH('Rate Trajectory Report'!X$5,'Rate Trajectory Calc'!$A$6:$CQ$6,0))=0,\" \",INDEX('Rate Trajectory Calc'!$A$6:$CQ$92,MATCH('Rate Trajectory Report'!$B107,'Rate Trajectory Calc'!$A$6:$A$92,0),MATCH('Rate Trajectory Report'!X$5,'Rate Trajectory Calc'!$A$6:$CQ$6,0))/1000)","v":" "},{"$f":"IF(INDEX('Rate Trajectory Calc'!$A$6:$CQ$92,MATCH('Rate Trajectory Report'!$B107,'Rate Trajectory Calc'!$A$6:$A$92,0),MATCH('Rate Trajectory Report'!Y$5,'Rate Trajectory Calc'!$A$6:$CQ$6,0))=0,\" \",INDEX('Rate Trajectory Calc'!$A$6:$CQ$92,MATCH('Rate Trajectory Report'!$B107,'Rate Trajectory Calc'!$A$6:$A$92,0),MATCH('Rate Trajectory Report'!Y$5,'Rate Trajectory Calc'!$A$6:$CQ$6,0))/1000)","v":" "},{"$f":"IF(INDEX('Rate Trajectory Calc'!$A$6:$CQ$92,MATCH('Rate Trajectory Report'!$B107,'Rate Trajectory Calc'!$A$6:$A$92,0),MATCH('Rate Trajectory Report'!Z$5,'Rate Trajectory Calc'!$A$6:$CQ$6,0))=0,\" \",INDEX('Rate Trajectory Calc'!$A$6:$CQ$92,MATCH('Rate Trajectory Report'!$B107,'Rate Trajectory Calc'!$A$6:$A$92,0),MATCH('Rate Trajectory Report'!Z$5,'Rate Trajectory Calc'!$A$6:$CQ$6,0))/1000)","v":" "},{"$f":"IF(INDEX('Rate Trajectory Calc'!$A$6:$CQ$92,MATCH('Rate Trajectory Report'!$B107,'Rate Trajectory Calc'!$A$6:$A$92,0),MATCH('Rate Trajectory Report'!AA$5,'Rate Trajectory Calc'!$A$6:$CQ$6,0))=0,\" \",INDEX('Rate Trajectory Calc'!$A$6:$CQ$92,MATCH('Rate Trajectory Report'!$B107,'Rate Trajectory Calc'!$A$6:$A$92,0),MATCH('Rate Trajectory Report'!AA$5,'Rate Trajectory Calc'!$A$6:$CQ$6,0))/1000)","v":" "}]
[null,{"$f":"'Rate Trajectory Dashboard'!B85","v":"NCA - NGSS Enduser Sub Acct Recovery - Year 2029"},{"$f":"IFERROR(VLOOKUP(B108,'Rate Trajectory Dashboard'!$B$12:$D$96,3,FALSE)/1000,'Rate Trajectory Report'!C107)","v":-10.160997666303095},{"$f":"IF(INDEX('Rate Trajectory Calc'!$A$6:$CQ$92,MATCH('Rate Trajectory Report'!$B108,'Rate Trajectory Calc'!$A$6:$A$92,0),MATCH('Rate Trajectory Report'!D$5,'Rate Trajectory Calc'!$A$6:$CQ$6,0))=0,\" \",INDEX('Rate Trajectory Calc'!$A$6:$CQ$92,MATCH('Rate Trajectory Report'!$B108,'Rate Trajectory Calc'!$A$6:$A$92,0),MATCH('Rate Trajectory Report'!D$5,'Rate Trajectory Calc'!$A$6:$CQ$6,0))/1000)","v":" "},{"$f":"IF(INDEX('Rate Trajectory Calc'!$A$6:$CQ$92,MATCH('Rate Trajectory Report'!$B108,'Rate Trajectory Calc'!$A$6:$A$92,0),MATCH('Rate Trajectory Report'!E$5,'Rate Trajectory Calc'!$A$6:$CQ$6,0))=0,\" \",INDEX('Rate Trajectory Calc'!$A$6:$CQ$92,MATCH('Rate Trajectory Report'!$B108,'Rate Trajectory Calc'!$A$6:$A$92,0),MATCH('Rate Trajectory Report'!E$5,'Rate Trajectory Calc'!$A$6:$CQ$6,0))/1000)","v":" "},{"$f":"IF(INDEX('Rate Trajectory Calc'!$A$6:$CQ$92,MATCH('Rate Trajectory Report'!$B108,'Rate Trajectory Calc'!$A$6:$A$92,0),MATCH('Rate Trajectory Report'!F$5,'Rate Trajectory Calc'!$A$6:$CQ$6,0))=0,\" \",INDEX('Rate Trajectory Calc'!$A$6:$CQ$92,MATCH('Rate Trajectory Report'!$B108,'Rate Trajectory Calc'!$A$6:$A$92,0),MATCH('Rate Trajectory Report'!F$5,'Rate Trajectory Calc'!$A$6:$CQ$6,0))/1000)","v":" "},{"$f":"IF(INDEX('Rate Trajectory Calc'!$A$6:$CQ$92,MATCH('Rate Trajectory Report'!$B108,'Rate Trajectory Calc'!$A$6:$A$92,0),MATCH('Rate Trajectory Report'!G$5,'Rate Trajectory Calc'!$A$6:$CQ$6,0))=0,\" \",INDEX('Rate Trajectory Calc'!$A$6:$CQ$92,MATCH('Rate Trajectory Report'!$B108,'Rate Trajectory Calc'!$A$6:$A$92,0),MATCH('Rate Trajectory Report'!G$5,'Rate Trajectory Calc'!$A$6:$CQ$6,0))/1000)","v":" "},{"$f":"IF(INDEX('Rate Trajectory Calc'!$A$6:$CQ$92,MATCH('Rate Trajectory Report'!$B108,'Rate Trajectory Calc'!$A$6:$A$92,0),MATCH('Rate Trajectory Report'!H$5,'Rate Trajectory Calc'!$A$6:$CQ$6,0))=0,\" \",INDEX('Rate Trajectory Calc'!$A$6:$CQ$92,MATCH('Rate Trajectory Report'!$B108,'Rate Trajectory Calc'!$A$6:$A$92,0),MATCH('Rate Trajectory Report'!H$5,'Rate Trajectory Calc'!$A$6:$CQ$6,0))/1000)","v":" "},{"$f":"IF(INDEX('Rate Trajectory Calc'!$A$6:$CQ$92,MATCH('Rate Trajectory Report'!$B108,'Rate Trajectory Calc'!$A$6:$A$92,0),MATCH('Rate Trajectory Report'!I$5,'Rate Trajectory Calc'!$A$6:$CQ$6,0))=0,\" \",INDEX('Rate Trajectory Calc'!$A$6:$CQ$92,MATCH('Rate Trajectory Report'!$B108,'Rate Trajectory Calc'!$A$6:$A$92,0),MATCH('Rate Trajectory Report'!I$5,'Rate Trajectory Calc'!$A$6:$CQ$6,0))/1000)","v":" "},{"$f":"IF(INDEX('Rate Trajectory Calc'!$A$6:$CQ$92,MATCH('Rate Trajectory Report'!$B108,'Rate Trajectory Calc'!$A$6:$A$92,0),MATCH('Rate Trajectory Report'!J$5,'Rate Trajectory Calc'!$A$6:$CQ$6,0))=0,\" \",INDEX('Rate Trajectory Calc'!$A$6:$CQ$92,MATCH('Rate Trajectory Report'!$B108,'Rate Trajectory Calc'!$A$6:$A$92,0),MATCH('Rate Trajectory Report'!J$5,'Rate Trajectory Calc'!$A$6:$CQ$6,0))/1000)","v":" "},{"$f":"IF(INDEX('Rate Trajectory Calc'!$A$6:$CQ$92,MATCH('Rate Trajectory Report'!$B108,'Rate Trajectory Calc'!$A$6:$A$92,0),MATCH('Rate Trajectory Report'!K$5,'Rate Trajectory Calc'!$A$6:$CQ$6,0))=0,\" \",INDEX('Rate Trajectory Calc'!$A$6:$CQ$92,MATCH('Rate Trajectory Report'!$B108,'Rate Trajectory Calc'!$A$6:$A$92,0),MATCH('Rate Trajectory Report'!K$5,'Rate Trajectory Calc'!$A$6:$CQ$6,0))/1000)","v":" "},{"$f":"IF(INDEX('Rate Trajectory Calc'!$A$6:$CQ$92,MATCH('Rate Trajectory Report'!$B108,'Rate Trajectory Calc'!$A$6:$A$92,0),MATCH('Rate Trajectory Report'!L$5,'Rate Trajectory Calc'!$A$6:$CQ$6,0))=0,\" \",INDEX('Rate Trajectory Calc'!$A$6:$CQ$92,MATCH('Rate Trajectory Report'!$B108,'Rate Trajectory Calc'!$A$6:$A$92,0),MATCH('Rate Trajectory Report'!L$5,'Rate Trajectory Calc'!$A$6:$CQ$6,0))/1000)","v":" "},{"$f":"IF(INDEX('Rate Trajectory Calc'!$A$6:$CQ$92,MATCH('Rate Trajectory Report'!$B108,'Rate Trajectory Calc'!$A$6:$A$92,0),MATCH('Rate Trajectory Report'!M$5,'Rate Trajectory Calc'!$A$6:$CQ$6,0))=0,\" \",INDEX('Rate Trajectory Calc'!$A$6:$CQ$92,MATCH('Rate Trajectory Report'!$B108,'Rate Trajectory Calc'!$A$6:$A$92,0),MATCH('Rate Trajectory Report'!M$5,'Rate Trajectory Calc'!$A$6:$CQ$6,0))/1000)","v":" "},{"$f":"IF(INDEX('Rate Trajectory Calc'!$A$6:$CQ$92,MATCH('Rate Trajectory Report'!$B108,'Rate Trajectory Calc'!$A$6:$A$92,0),MATCH('Rate Trajectory Report'!N$5,'Rate Trajectory Calc'!$A$6:$CQ$6,0))=0,\" \",INDEX('Rate Trajectory Calc'!$A$6:$CQ$92,MATCH('Rate Trajectory Report'!$B108,'Rate Trajectory Calc'!$A$6:$A$92,0),MATCH('Rate Trajectory Report'!N$5,'Rate Trajectory Calc'!$A$6:$CQ$6,0))/1000)","v":" "},{"$f":"IF(INDEX('Rate Trajectory Calc'!$A$6:$CQ$92,MATCH('Rate Trajectory Report'!$B108,'Rate Trajectory Calc'!$A$6:$A$92,0),MATCH('Rate Trajectory Report'!O$5,'Rate Trajectory Calc'!$A$6:$CQ$6,0))=0,\" \",INDEX('Rate Trajectory Calc'!$A$6:$CQ$92,MATCH('Rate Trajectory Report'!$B108,'Rate Trajectory Calc'!$A$6:$A$92,0),MATCH('Rate Trajectory Report'!O$5,'Rate Trajectory Calc'!$A$6:$CQ$6,0))/1000)","v":" "},{"$f":"IF(INDEX('Rate Trajectory Calc'!$A$6:$CQ$92,MATCH('Rate Trajectory Report'!$B108,'Rate Trajectory Calc'!$A$6:$A$92,0),MATCH('Rate Trajectory Report'!P$5,'Rate Trajectory Calc'!$A$6:$CQ$6,0))=0,\" \",INDEX('Rate Trajectory Calc'!$A$6:$CQ$92,MATCH('Rate Trajectory Report'!$B108,'Rate Trajectory Calc'!$A$6:$A$92,0),MATCH('Rate Trajectory Report'!P$5,'Rate Trajectory Calc'!$A$6:$CQ$6,0))/1000)","v":" "},{"$f":"IF(INDEX('Rate Trajectory Calc'!$A$6:$CQ$92,MATCH('Rate Trajectory Report'!$B108,'Rate Trajectory Calc'!$A$6:$A$92,0),MATCH('Rate Trajectory Report'!Q$5,'Rate Trajectory Calc'!$A$6:$CQ$6,0))=0,\" \",INDEX('Rate Trajectory Calc'!$A$6:$CQ$92,MATCH('Rate Trajectory Report'!$B108,'Rate Trajectory Calc'!$A$6:$A$92,0),MATCH('Rate Trajectory Report'!Q$5,'Rate Trajectory Calc'!$A$6:$CQ$6,0))/1000)","v":" "},{"$f":"IF(INDEX('Rate Trajectory Calc'!$A$6:$CQ$92,MATCH('Rate Trajectory Report'!$B108,'Rate Trajectory Calc'!$A$6:$A$92,0),MATCH('Rate Trajectory Report'!R$5,'Rate Trajectory Calc'!$A$6:$CQ$6,0))=0,\" \",INDEX('Rate Trajectory Calc'!$A$6:$CQ$92,MATCH('Rate Trajectory Report'!$B108,'Rate Trajectory Calc'!$A$6:$A$92,0),MATCH('Rate Trajectory Report'!R$5,'Rate Trajectory Calc'!$A$6:$CQ$6,0))/1000)","v":" "},{"$f":"IF(INDEX('Rate Trajectory Calc'!$A$6:$CQ$92,MATCH('Rate Trajectory Report'!$B108,'Rate Trajectory Calc'!$A$6:$A$92,0),MATCH('Rate Trajectory Report'!S$5,'Rate Trajectory Calc'!$A$6:$CQ$6,0))=0,\" \",INDEX('Rate Trajectory Calc'!$A$6:$CQ$92,MATCH('Rate Trajectory Report'!$B108,'Rate Trajectory Calc'!$A$6:$A$92,0),MATCH('Rate Trajectory Report'!S$5,'Rate Trajectory Calc'!$A$6:$CQ$6,0))/1000)","v":" "},{"$f":"IF(INDEX('Rate Trajectory Calc'!$A$6:$CQ$92,MATCH('Rate Trajectory Report'!$B108,'Rate Trajectory Calc'!$A$6:$A$92,0),MATCH('Rate Trajectory Report'!T$5,'Rate Trajectory Calc'!$A$6:$CQ$6,0))=0,\" \",INDEX('Rate Trajectory Calc'!$A$6:$CQ$92,MATCH('Rate Trajectory Report'!$B108,'Rate Trajectory Calc'!$A$6:$A$92,0),MATCH('Rate Trajectory Report'!T$5,'Rate Trajectory Calc'!$A$6:$CQ$6,0))/1000)","v":" "},{"$f":"IF(INDEX('Rate Trajectory Calc'!$A$6:$CQ$92,MATCH('Rate Trajectory Report'!$B108,'Rate Trajectory Calc'!$A$6:$A$92,0),MATCH('Rate Trajectory Report'!U$5,'Rate Trajectory Calc'!$A$6:$CQ$6,0))=0,\" \",INDEX('Rate Trajectory Calc'!$A$6:$CQ$92,MATCH('Rate Trajectory Report'!$B108,'Rate Trajectory Calc'!$A$6:$A$92,0),MATCH('Rate Trajectory Report'!U$5,'Rate Trajectory Calc'!$A$6:$CQ$6,0))/1000)","v":" "},{"$f":"IF(INDEX('Rate Trajectory Calc'!$A$6:$CQ$92,MATCH('Rate Trajectory Report'!$B108,'Rate Trajectory Calc'!$A$6:$A$92,0),MATCH('Rate Trajectory Report'!V$5,'Rate Trajectory Calc'!$A$6:$CQ$6,0))=0,\" \",INDEX('Rate Trajectory Calc'!$A$6:$CQ$92,MATCH('Rate Trajectory Report'!$B108,'Rate Trajectory Calc'!$A$6:$A$92,0),MATCH('Rate Trajectory Report'!V$5,'Rate Trajectory Calc'!$A$6:$CQ$6,0))/1000)","v":" "},{"$f":"IF(INDEX('Rate Trajectory Calc'!$A$6:$CQ$92,MATCH('Rate Trajectory Report'!$B108,'Rate Trajectory Calc'!$A$6:$A$92,0),MATCH('Rate Trajectory Report'!W$5,'Rate Trajectory Calc'!$A$6:$CQ$6,0))=0,\" \",INDEX('Rate Trajectory Calc'!$A$6:$CQ$92,MATCH('Rate Trajectory Report'!$B108,'Rate Trajectory Calc'!$A$6:$A$92,0),MATCH('Rate Trajectory Report'!W$5,'Rate Trajectory Calc'!$A$6:$CQ$6,0))/1000)","v":" "},{"$f":"IF(INDEX('Rate Trajectory Calc'!$A$6:$CQ$92,MATCH('Rate Trajectory Report'!$B108,'Rate Trajectory Calc'!$A$6:$A$92,0),MATCH('Rate Trajectory Report'!X$5,'Rate Trajectory Calc'!$A$6:$CQ$6,0))=0,\" \",INDEX('Rate Trajectory Calc'!$A$6:$CQ$92,MATCH('Rate Trajectory Report'!$B108,'Rate Trajectory Calc'!$A$6:$A$92,0),MATCH('Rate Trajectory Report'!X$5,'Rate Trajectory Calc'!$A$6:$CQ$6,0))/1000)","v":" "},{"$f":"IF(INDEX('Rate Trajectory Calc'!$A$6:$CQ$92,MATCH('Rate Trajectory Report'!$B108,'Rate Trajectory Calc'!$A$6:$A$92,0),MATCH('Rate Trajectory Report'!Y$5,'Rate Trajectory Calc'!$A$6:$CQ$6,0))=0,\" \",INDEX('Rate Trajectory Calc'!$A$6:$CQ$92,MATCH('Rate Trajectory Report'!$B108,'Rate Trajectory Calc'!$A$6:$A$92,0),MATCH('Rate Trajectory Report'!Y$5,'Rate Trajectory Calc'!$A$6:$CQ$6,0))/1000)","v":" "},{"$f":"IF(INDEX('Rate Trajectory Calc'!$A$6:$CQ$92,MATCH('Rate Trajectory Report'!$B108,'Rate Trajectory Calc'!$A$6:$A$92,0),MATCH('Rate Trajectory Report'!Z$5,'Rate Trajectory Calc'!$A$6:$CQ$6,0))=0,\" \",INDEX('Rate Trajectory Calc'!$A$6:$CQ$92,MATCH('Rate Trajectory Report'!$B108,'Rate Trajectory Calc'!$A$6:$A$92,0),MATCH('Rate Trajectory Report'!Z$5,'Rate Trajectory Calc'!$A$6:$CQ$6,0))/1000)","v":" "},{"$f":"IF(INDEX('Rate Trajectory Calc'!$A$6:$CQ$92,MATCH('Rate Trajectory Report'!$B108,'Rate Trajectory Calc'!$A$6:$A$92,0),MATCH('Rate Trajectory Report'!AA$5,'Rate Trajectory Calc'!$A$6:$CQ$6,0))=0,\" \",INDEX('Rate Trajectory Calc'!$A$6:$CQ$92,MATCH('Rate Trajectory Report'!$B108,'Rate Trajectory Calc'!$A$6:$A$92,0),MATCH('Rate Trajectory Report'!AA$5,'Rate Trajectory Calc'!$A$6:$CQ$6,0))/1000)","v":" "}]
["14c","NCA - NGSS Enduser Sub Acct Recovery - Year 2029",{"$f":"IFERROR(VLOOKUP(B109,'Rate Trajectory Dashboard'!$B$12:$D$96,3,FALSE)/1000,'Rate Trajectory Report'!C108)","v":-10.160997666303095},{"$f":"IF(SUM(D106:D108)=0,\" \",SUBTOTAL(9,D106:D108))","v":" "},{"$f":"IF(SUM(E106:E108)=0,\" \",SUBTOTAL(9,E106:E108))","v":" "}," "," "," "," "," "," "," "," "," "," "," "," "," "," ",10.160997666303095," "," "," "," "," "," "," "]
[14,"NGSS",{"$f":"SUM(C101,C105,C109)","v":-61.65963731950437},{"$f":"IF(SUM(D98:D109)=0,\" \",SUBTOTAL(9,D98:D109))","v":" "},{"$f":"IF(SUM(E98:E109)=0,\" \",SUBTOTAL(9,E98:E109))","v":" "}," "," "," "," "," "," "," "," "," "," "," "," "," "," ",61.65963731950437," "," "," "," "," "," "," "]
[]
[]
[]
[null,"Total Gas RRQ",null,{"$f":"C6+SUBTOTAL(9,D8:D112)","v":6965.5501258606928},{"$f":"D114+SUBTOTAL(9,E8:E112)","v":6965.5501258606928},{"$f":"E114+SUBTOTAL(9,F8:F112)","v":6965.5501258606928},6965.5501258606928,7522.5265516330492,7522.5265516330492,7522.5265516330492,7522.5265516330492,7522.5265516330492,7522.5265516330492,7522.5265516330492,7522.5265516330492,7522.5265516330492,7522.5265516330492,7522.5265516330492,7522.5265516330492,7643.5546740952168,7643.5546740952168,7643.5546740952168,7643.5546740952168,7643.5546740952168,7643.5546740952168,7643.5546740952168,7643.5546740952168]
[null,null,null,null,null,null,null,null,"","","","","","","","","","","","","","","","","","",""]
[]
[null,"ILLUSTRATIVE AVERAGE RATES /1"]
[null,"Illustrative Bundled Average Rates - $ / therm"]
[null,"Residential",{"$f":"Summary!$E$45","v":2.7301291016084663},{"$f":"INDEX('Rate Trajectory Calc'!$B$123:$CQ$192,MATCH(\"Bundled\"&'Rate Trajectory Report'!$B119,'Rate Trajectory Calc'!$B$123:$B$192,0),MATCH('Rate Trajectory Report'!D$5,'Rate Trajectory Calc'!$B$123:$CQ$123,0))","v":2.7301291016084663},{"$f":"INDEX('Rate Trajectory Calc'!$B$123:$CQ$192,MATCH(\"Bundled\"&'Rate Trajectory Report'!$B119,'Rate Trajectory Calc'!$B$123:$B$192,0),MATCH('Rate Trajectory Report'!E$5,'Rate Trajectory Calc'!$B$123:$CQ$123,0))","v":2.7301291016084663},{"$f":"INDEX('Rate Trajectory Calc'!$B$123:$CQ$192,MATCH(\"Bundled\"&'Rate Trajectory Report'!$B119,'Rate Trajectory Calc'!$B$123:$B$192,0),MATCH('Rate Trajectory Report'!F$5,'Rate Trajectory Calc'!$B$123:$CQ$123,0))","v":2.7301291016084663},{"$f":"INDEX('Rate Trajectory Calc'!$B$123:$CQ$192,MATCH(\"Bundled\"&'Rate Trajectory Report'!$B119,'Rate Trajectory Calc'!$B$123:$B$192,0),MATCH('Rate Trajectory Report'!G$5,'Rate Trajectory Calc'!$B$123:$CQ$123,0))","v":2.7301291016084663},{"$f":"INDEX('Rate Trajectory Calc'!$B$123:$CQ$192,MATCH(\"Bundled\"&'Rate Trajectory Report'!$B119,'Rate Trajectory Calc'!$B$123:$B$192,0),MATCH('Rate Trajectory Report'!H$5,'Rate Trajectory Calc'!$B$123:$CQ$123,0))","v":2.9277163464771543},{"$f":"INDEX('Rate Trajectory Calc'!$B$123:$CQ$192,MATCH(\"Bundled\"&'Rate Trajectory Report'!$B119,'Rate Trajectory Calc'!$B$123:$B$192,0),MATCH('Rate Trajectory Report'!I$5,'Rate Trajectory Calc'!$B$123:$CQ$123,0))","v":2.9277163464771543},{"$f":"INDEX('Rate Trajectory Calc'!$B$123:$CQ$192,MATCH(\"Bundled\"&'Rate Trajectory Report'!$B119,'Rate Trajectory Calc'!$B$123:$B$192,0),MATCH('Rate Trajectory Report'!J$5,'Rate Trajectory Calc'!$B$123:$CQ$123,0))","v":2.9277163464771543},{"$f":"INDEX('Rate Trajectory Calc'!$B$123:$CQ$192,MATCH(\"Bundled\"&'Rate Trajectory Report'!$B119,'Rate Trajectory Calc'!$B$123:$B$192,0),MATCH('Rate Trajectory Report'!K$5,'Rate Trajectory Calc'!$B$123:$CQ$123,0))","v":2.9277163464771543},{"$f":"INDEX('Rate Trajectory Calc'!$B$123:$CQ$192,MATCH(\"Bundled\"&'Rate Trajectory Report'!$B119,'Rate Trajectory Calc'!$B$123:$B$192,0),MATCH('Rate Trajectory Report'!L$5,'Rate Trajectory Calc'!$B$123:$CQ$123,0))","v":2.9277163464771543},{"$f":"INDEX('Rate Trajectory Calc'!$B$123:$CQ$192,MATCH(\"Bundled\"&'Rate Trajectory Report'!$B119,'Rate Trajectory Calc'!$B$123:$B$192,0),MATCH('Rate Trajectory Report'!M$5,'Rate Trajectory Calc'!$B$123:$CQ$123,0))","v":2.9277163464771543},{"$f":"INDEX('Rate Trajectory Calc'!$B$123:$CQ$192,MATCH(\"Bundled\"&'Rate Trajectory Report'!$B119,'Rate Trajectory Calc'!$B$123:$B$192,0),MATCH('Rate Trajectory Report'!N$5,'Rate Trajectory Calc'!$B$123:$CQ$123,0))","v":2.9277163464771543},{"$f":"INDEX('Rate Trajectory Calc'!$B$123:$CQ$192,MATCH(\"Bundled\"&'Rate Trajectory Report'!$B119,'Rate Trajectory Calc'!$B$123:$B$192,0),MATCH('Rate Trajectory Report'!O$5,'Rate Trajectory Calc'!$B$123:$CQ$123,0))","v":2.9277163464771543},{"$f":"INDEX('Rate Trajectory Calc'!$B$123:$CQ$192,MATCH(\"Bundled\"&'Rate Trajectory Report'!$B119,'Rate Trajectory Calc'!$B$123:$B$192,0),MATCH('Rate Trajectory Report'!P$5,'Rate Trajectory Calc'!$B$123:$CQ$123,0))","v":2.9277163464771543},{"$f":"INDEX('Rate Trajectory Calc'!$B$123:$CQ$192,MATCH(\"Bundled\"&'Rate Trajectory Report'!$B119,'Rate Trajectory Calc'!$B$123:$B$192,0),MATCH('Rate Trajectory Report'!Q$5,'Rate Trajectory Calc'!$B$123:$CQ$123,0))","v":2.9277163464771543},{"$f":"INDEX('Rate Trajectory Calc'!$B$123:$CQ$192,MATCH(\"Bundled\"&'Rate Trajectory Report'!$B119,'Rate Trajectory Calc'!$B$123:$B$192,0),MATCH('Rate Trajectory Report'!R$5,'Rate Trajectory Calc'!$B$123:$CQ$123,0))","v":2.9277163464771543},{"$f":"INDEX('Rate Trajectory Calc'!$B$123:$CQ$192,MATCH(\"Bundled\"&'Rate Trajectory Report'!$B119,'Rate Trajectory Calc'!$B$123:$B$192,0),MATCH('Rate Trajectory Report'!S$5,'Rate Trajectory Calc'!$B$123:$CQ$123,0))","v":2.9277163464771543},{"$f":"INDEX('Rate Trajectory Calc'!$B$123:$CQ$192,MATCH(\"Bundled\"&'Rate Trajectory Report'!$B119,'Rate Trajectory Calc'!$B$123:$B$192,0),MATCH('Rate Trajectory Report'!T$5,'Rate Trajectory Calc'!$B$123:$CQ$123,0))","v":2.9689477113575919},{"$f":"INDEX('Rate Trajectory Calc'!$B$123:$CQ$192,MATCH(\"Bundled\"&'Rate Trajectory Report'!$B119,'Rate Trajectory Calc'!$B$123:$B$192,0),MATCH('Rate Trajectory Report'!U$5,'Rate Trajectory Calc'!$B$123:$CQ$123,0))","v":2.9689477113575919},{"$f":"INDEX('Rate Trajectory Calc'!$B$123:$CQ$192,MATCH(\"Bundled\"&'Rate Trajectory Report'!$B119,'Rate Trajectory Calc'!$B$123:$B$192,0),MATCH('Rate Trajectory Report'!V$5,'Rate Trajectory Calc'!$B$123:$CQ$123,0))","v":2.9689477113575919},{"$f":"INDEX('Rate Trajectory Calc'!$B$123:$CQ$192,MATCH(\"Bundled\"&'Rate Trajectory Report'!$B119,'Rate Trajectory Calc'!$B$123:$B$192,0),MATCH('Rate Trajectory Report'!W$5,'Rate Trajectory Calc'!$B$123:$CQ$123,0))","v":2.9689477113575919},{"$f":"INDEX('Rate Trajectory Calc'!$B$123:$CQ$192,MATCH(\"Bundled\"&'Rate Trajectory Report'!$B119,'Rate Trajectory Calc'!$B$123:$B$192,0),MATCH('Rate Trajectory Report'!X$5,'Rate Trajectory Calc'!$B$123:$CQ$123,0))","v":2.9689477113575919},{"$f":"INDEX('Rate Trajectory Calc'!$B$123:$CQ$192,MATCH(\"Bundled\"&'Rate Trajectory Report'!$B119,'Rate Trajectory Calc'!$B$123:$B$192,0),MATCH('Rate Trajectory Report'!Y$5,'Rate Trajectory Calc'!$B$123:$CQ$123,0))","v":2.9689477113575919},{"$f":"INDEX('Rate Trajectory Calc'!$B$123:$CQ$192,MATCH(\"Bundled\"&'Rate Trajectory Report'!$B119,'Rate Trajectory Calc'!$B$123:$B$192,0),MATCH('Rate Trajectory Report'!Z$5,'Rate Trajectory Calc'!$B$123:$CQ$123,0))","v":2.9689477113575919},{"$f":"INDEX('Rate Trajectory Calc'!$B$123:$CQ$192,MATCH(\"Bundled\"&'Rate Trajectory Report'!$B119,'Rate Trajectory Calc'!$B$123:$B$192,0),MATCH('Rate Trajectory Report'!AA$5,'Rate Trajectory Calc'!$B$123:$CQ$123,0))","v":2.9689477113575919}]
[null,"% Change",null,{"$f":"D119/C119-1","v":0},{"$f":"E119/D119-1","v":0},0,0,7.2372857661668233E-2,0,0,0,0,0,0,0,0,0,0,0,1.4083114619368953E-2,0,0,0,0,0,0,{"$f":"AA119/Z119-1","v":0}]
[null,"System",{"$f":"Summary!$E$46","v":2.3576386581695323},{"$f":"INDEX('Rate Trajectory Calc'!$B$123:$CQ$192,MATCH(\"Bundled\"&'Rate Trajectory Report'!$B121,'Rate Trajectory Calc'!$B$123:$B$192,0),MATCH('Rate Trajectory Report'!D$5,'Rate Trajectory Calc'!$B$123:$CQ$123,0))","v":2.3576386581695323},{"$f":"INDEX('Rate Trajectory Calc'!$B$123:$CQ$192,MATCH(\"Bundled\"&'Rate Trajectory Report'!$B121,'Rate Trajectory Calc'!$B$123:$B$192,0),MATCH('Rate Trajectory Report'!E$5,'Rate Trajectory Calc'!$B$123:$CQ$123,0))","v":2.3576386581695323},{"$f":"INDEX('Rate Trajectory Calc'!$B$123:$CQ$192,MATCH(\"Bundled\"&'Rate Trajectory Report'!$B121,'Rate Trajectory Calc'!$B$123:$B$192,0),MATCH('Rate Trajectory Report'!F$5,'Rate Trajectory Calc'!$B$123:$CQ$123,0))","v":2.3576386581695323},{"$f":"INDEX('Rate Trajectory Calc'!$B$123:$CQ$192,MATCH(\"Bundled\"&'Rate Trajectory Report'!$B121,'Rate Trajectory Calc'!$B$123:$B$192,0),MATCH('Rate Trajectory Report'!G$5,'Rate Trajectory Calc'!$B$123:$CQ$123,0))","v":2.3576386581695323},{"$f":"INDEX('Rate Trajectory Calc'!$B$123:$CQ$192,MATCH(\"Bundled\"&'Rate Trajectory Report'!$B121,'Rate Trajectory Calc'!$B$123:$B$192,0),MATCH('Rate Trajectory Report'!H$5,'Rate Trajectory Calc'!$B$123:$CQ$123,0))","v":2.5375995654969712},{"$f":"INDEX('Rate Trajectory Calc'!$B$123:$CQ$192,MATCH(\"Bundled\"&'Rate Trajectory Report'!$B121,'Rate Trajectory Calc'!$B$123:$B$192,0),MATCH('Rate Trajectory Report'!I$5,'Rate Trajectory Calc'!$B$123:$CQ$123,0))","v":2.5375995654969712},{"$f":"INDEX('Rate Trajectory Calc'!$B$123:$CQ$192,MATCH(\"Bundled\"&'Rate Trajectory Report'!$B121,'Rate Trajectory Calc'!$B$123:$B$192,0),MATCH('Rate Trajectory Report'!J$5,'Rate Trajectory Calc'!$B$123:$CQ$123,0))","v":2.5375995654969712},{"$f":"INDEX('Rate Trajectory Calc'!$B$123:$CQ$192,MATCH(\"Bundled\"&'Rate Trajectory Report'!$B121,'Rate Trajectory Calc'!$B$123:$B$192,0),MATCH('Rate Trajectory Report'!K$5,'Rate Trajectory Calc'!$B$123:$CQ$123,0))","v":2.5375995654969712},{"$f":"INDEX('Rate Trajectory Calc'!$B$123:$CQ$192,MATCH(\"Bundled\"&'Rate Trajectory Report'!$B121,'Rate Trajectory Calc'!$B$123:$B$192,0),MATCH('Rate Trajectory Report'!L$5,'Rate Trajectory Calc'!$B$123:$CQ$123,0))","v":2.5375995654969712},{"$f":"INDEX('Rate Trajectory Calc'!$B$123:$CQ$192,MATCH(\"Bundled\"&'Rate Trajectory Report'!$B121,'Rate Trajectory Calc'!$B$123:$B$192,0),MATCH('Rate Trajectory Report'!M$5,'Rate Trajectory Calc'!$B$123:$CQ$123,0))","v":2.5375995654969712},{"$f":"INDEX('Rate Trajectory Calc'!$B$123:$CQ$192,MATCH(\"Bundled\"&'Rate Trajectory Report'!$B121,'Rate Trajectory Calc'!$B$123:$B$192,0),MATCH('Rate Trajectory Report'!N$5,'Rate Trajectory Calc'!$B$123:$CQ$123,0))","v":2.5375995654969712},{"$f":"INDEX('Rate Trajectory Calc'!$B$123:$CQ$192,MATCH(\"Bundled\"&'Rate Trajectory Report'!$B121,'Rate Trajectory Calc'!$B$123:$B$192,0),MATCH('Rate Trajectory Report'!O$5,'Rate Trajectory Calc'!$B$123:$CQ$123,0))","v":2.5375995654969712},{"$f":"INDEX('Rate Trajectory Calc'!$B$123:$CQ$192,MATCH(\"Bundled\"&'Rate Trajectory Report'!$B121,'Rate Trajectory Calc'!$B$123:$B$192,0),MATCH('Rate Trajectory Report'!P$5,'Rate Trajectory Calc'!$B$123:$CQ$123,0))","v":2.5375995654969712},{"$f":"INDEX('Rate Trajectory Calc'!$B$123:$CQ$192,MATCH(\"Bundled\"&'Rate Trajectory Report'!$B121,'Rate Trajectory Calc'!$B$123:$B$192,0),MATCH('Rate Trajectory Report'!Q$5,'Rate Trajectory Calc'!$B$123:$CQ$123,0))","v":2.5375995654969712},{"$f":"INDEX('Rate Trajectory Calc'!$B$123:$CQ$192,MATCH(\"Bundled\"&'Rate Trajectory Report'!$B121,'Rate Trajectory Calc'!$B$123:$B$192,0),MATCH('Rate Trajectory Report'!R$5,'Rate Trajectory Calc'!$B$123:$CQ$123,0))","v":2.5375995654969712},{"$f":"INDEX('Rate Trajectory Calc'!$B$123:$CQ$192,MATCH(\"Bundled\"&'Rate Trajectory Report'!$B121,'Rate Trajectory Calc'!$B$123:$B$192,0),MATCH('Rate Trajectory Report'!S$5,'Rate Trajectory Calc'!$B$123:$CQ$123,0))","v":2.5375995654969712},{"$f":"INDEX('Rate Trajectory Calc'!$B$123:$CQ$192,MATCH(\"Bundled\"&'Rate Trajectory Report'!$B121,'Rate Trajectory Calc'!$B$123:$B$192,0),MATCH('Rate Trajectory Report'!T$5,'Rate Trajectory Calc'!$B$123:$CQ$123,0))","v":2.5790412455054539},{"$f":"INDEX('Rate Trajectory Calc'!$B$123:$CQ$192,MATCH(\"Bundled\"&'Rate Trajectory Report'!$B121,'Rate Trajectory Calc'!$B$123:$B$192,0),MATCH('Rate Trajectory Report'!U$5,'Rate Trajectory Calc'!$B$123:$CQ$123,0))","v":2.5790412455054539},{"$f":"INDEX('Rate Trajectory Calc'!$B$123:$CQ$192,MATCH(\"Bundled\"&'Rate Trajectory Report'!$B121,'Rate Trajectory Calc'!$B$123:$B$192,0),MATCH('Rate Trajectory Report'!V$5,'Rate Trajectory Calc'!$B$123:$CQ$123,0))","v":2.5790412455054539},{"$f":"INDEX('Rate Trajectory Calc'!$B$123:$CQ$192,MATCH(\"Bundled\"&'Rate Trajectory Report'!$B121,'Rate Trajectory Calc'!$B$123:$B$192,0),MATCH('Rate Trajectory Report'!W$5,'Rate Trajectory Calc'!$B$123:$CQ$123,0))","v":2.5790412455054539},{"$f":"INDEX('Rate Trajectory Calc'!$B$123:$CQ$192,MATCH(\"Bundled\"&'Rate Trajectory Report'!$B121,'Rate Trajectory Calc'!$B$123:$B$192,0),MATCH('Rate Trajectory Report'!X$5,'Rate Trajectory Calc'!$B$123:$CQ$123,0))","v":2.5790412455054539},{"$f":"INDEX('Rate Trajectory Calc'!$B$123:$CQ$192,MATCH(\"Bundled\"&'Rate Trajectory Report'!$B121,'Rate Trajectory Calc'!$B$123:$B$192,0),MATCH('Rate Trajectory Report'!Y$5,'Rate Trajectory Calc'!$B$123:$CQ$123,0))","v":2.5790412455054539},{"$f":"INDEX('Rate Trajectory Calc'!$B$123:$CQ$192,MATCH(\"Bundled\"&'Rate Trajectory Report'!$B121,'Rate Trajectory Calc'!$B$123:$B$192,0),MATCH('Rate Trajectory Report'!Z$5,'Rate Trajectory Calc'!$B$123:$CQ$123,0))","v":2.5790412455054539},{"$f":"INDEX('Rate Trajectory Calc'!$B$123:$CQ$192,MATCH(\"Bundled\"&'Rate Trajectory Report'!$B121,'Rate Trajectory Calc'!$B$123:$B$192,0),MATCH('Rate Trajectory Report'!AA$5,'Rate Trajectory Calc'!$B$123:$CQ$123,0))","v":2.5790412455054539}]
[null,"% Change",null,{"$f":"D121/C121-1","v":0},{"$f":"E121/D121-1","v":0},0,0,7.6330996144744478E-2,0,0,0,0,0,0,0,0,0,0,0,1.633105576307381E-2,0,0,0,0,0,0,{"$f":"AA121/Z121-1","v":0}]
[null,"Illustrative Total System (Bundled + Unbundled) Average Rates - $ / therm"]
[null,"Residential",{"$f":"Summary!$O$45","v":2.4587344326295084},{"$f":"INDEX('Rate Trajectory Calc'!$B$123:$CQ$192,MATCH(\"System\"&'Rate Trajectory Report'!$B124,'Rate Trajectory Calc'!$B$123:$B$192,0),MATCH('Rate Trajectory Report'!D$5,'Rate Trajectory Calc'!$B$123:$CQ$123,0))","v":2.4587344326295084},{"$f":"INDEX('Rate Trajectory Calc'!$B$123:$CQ$192,MATCH(\"System\"&'Rate Trajectory Report'!$B124,'Rate Trajectory Calc'!$B$123:$B$192,0),MATCH('Rate Trajectory Report'!E$5,'Rate Trajectory Calc'!$B$123:$CQ$123,0))","v":2.4587344326295084},{"$f":"INDEX('Rate Trajectory Calc'!$B$123:$CQ$192,MATCH(\"System\"&'Rate Trajectory Report'!$B124,'Rate Trajectory Calc'!$B$123:$B$192,0),MATCH('Rate Trajectory Report'!F$5,'Rate Trajectory Calc'!$B$123:$CQ$123,0))","v":2.4587344326295084},{"$f":"INDEX('Rate Trajectory Calc'!$B$123:$CQ$192,MATCH(\"System\"&'Rate Trajectory Report'!$B124,'Rate Trajectory Calc'!$B$123:$B$192,0),MATCH('Rate Trajectory Report'!G$5,'Rate Trajectory Calc'!$B$123:$CQ$123,0))","v":2.4587344326295084},{"$f":"INDEX('Rate Trajectory Calc'!$B$123:$CQ$192,MATCH(\"System\"&'Rate Trajectory Report'!$B124,'Rate Trajectory Calc'!$B$123:$B$192,0),MATCH('Rate Trajectory Report'!H$5,'Rate Trajectory Calc'!$B$123:$CQ$123,0))","v":2.6563241722769266},{"$f":"INDEX('Rate Trajectory Calc'!$B$123:$CQ$192,MATCH(\"System\"&'Rate Trajectory Report'!$B124,'Rate Trajectory Calc'!$B$123:$B$192,0),MATCH('Rate Trajectory Report'!I$5,'Rate Trajectory Calc'!$B$123:$CQ$123,0))","v":2.6563241722769266},{"$f":"INDEX('Rate Trajectory Calc'!$B$123:$CQ$192,MATCH(\"System\"&'Rate Trajectory Report'!$B124,'Rate Trajectory Calc'!$B$123:$B$192,0),MATCH('Rate Trajectory Report'!J$5,'Rate Trajectory Calc'!$B$123:$CQ$123,0))","v":2.6563241722769266},{"$f":"INDEX('Rate Trajectory Calc'!$B$123:$CQ$192,MATCH(\"System\"&'Rate Trajectory Report'!$B124,'Rate Trajectory Calc'!$B$123:$B$192,0),MATCH('Rate Trajectory Report'!K$5,'Rate Trajectory Calc'!$B$123:$CQ$123,0))","v":2.6563241722769266},{"$f":"INDEX('Rate Trajectory Calc'!$B$123:$CQ$192,MATCH(\"System\"&'Rate Trajectory Report'!$B124,'Rate Trajectory Calc'!$B$123:$B$192,0),MATCH('Rate Trajectory Report'!L$5,'Rate Trajectory Calc'!$B$123:$CQ$123,0))","v":2.6563241722769266},{"$f":"INDEX('Rate Trajectory Calc'!$B$123:$CQ$192,MATCH(\"System\"&'Rate Trajectory Report'!$B124,'Rate Trajectory Calc'!$B$123:$B$192,0),MATCH('Rate Trajectory Report'!M$5,'Rate Trajectory Calc'!$B$123:$CQ$123,0))","v":2.6563241722769266},{"$f":"INDEX('Rate Trajectory Calc'!$B$123:$CQ$192,MATCH(\"System\"&'Rate Trajectory Report'!$B124,'Rate Trajectory Calc'!$B$123:$B$192,0),MATCH('Rate Trajectory Report'!N$5,'Rate Trajectory Calc'!$B$123:$CQ$123,0))","v":2.6563241722769266},{"$f":"INDEX('Rate Trajectory Calc'!$B$123:$CQ$192,MATCH(\"System\"&'Rate Trajectory Report'!$B124,'Rate Trajectory Calc'!$B$123:$B$192,0),MATCH('Rate Trajectory Report'!O$5,'Rate Trajectory Calc'!$B$123:$CQ$123,0))","v":2.6563241722769266},{"$f":"INDEX('Rate Trajectory Calc'!$B$123:$CQ$192,MATCH(\"System\"&'Rate Trajectory Report'!$B124,'Rate Trajectory Calc'!$B$123:$B$192,0),MATCH('Rate Trajectory Report'!P$5,'Rate Trajectory Calc'!$B$123:$CQ$123,0))","v":2.6563241722769266},{"$f":"INDEX('Rate Trajectory Calc'!$B$123:$CQ$192,MATCH(\"System\"&'Rate Trajectory Report'!$B124,'Rate Trajectory Calc'!$B$123:$B$192,0),MATCH('Rate Trajectory Report'!Q$5,'Rate Trajectory Calc'!$B$123:$CQ$123,0))","v":2.6563241722769266},{"$f":"INDEX('Rate Trajectory Calc'!$B$123:$CQ$192,MATCH(\"System\"&'Rate Trajectory Report'!$B124,'Rate Trajectory Calc'!$B$123:$B$192,0),MATCH('Rate Trajectory Report'!R$5,'Rate Trajectory Calc'!$B$123:$CQ$123,0))","v":2.6563241722769266},{"$f":"INDEX('Rate Trajectory Calc'!$B$123:$CQ$192,MATCH(\"System\"&'Rate Trajectory Report'!$B124,'Rate Trajectory Calc'!$B$123:$B$192,0),MATCH('Rate Trajectory Report'!S$5,'Rate Trajectory Calc'!$B$123:$CQ$123,0))","v":2.6563241722769266},{"$f":"INDEX('Rate Trajectory Calc'!$B$123:$CQ$192,MATCH(\"System\"&'Rate Trajectory Report'!$B124,'Rate Trajectory Calc'!$B$123:$B$192,0),MATCH('Rate Trajectory Report'!T$5,'Rate Trajectory Calc'!$B$123:$CQ$123,0))","v":2.699031598774785},{"$f":"INDEX('Rate Trajectory Calc'!$B$123:$CQ$192,MATCH(\"System\"&'Rate Trajectory Report'!$B124,'Rate Trajectory Calc'!$B$123:$B$192,0),MATCH('Rate Trajectory Report'!U$5,'Rate Trajectory Calc'!$B$123:$CQ$123,0))","v":2.699031598774785},{"$f":"INDEX('Rate Trajectory Calc'!$B$123:$CQ$192,MATCH(\"System\"&'Rate Trajectory Report'!$B124,'Rate Trajectory Calc'!$B$123:$B$192,0),MATCH('Rate Trajectory Report'!V$5,'Rate Trajectory Calc'!$B$123:$CQ$123,0))","v":2.699031598774785},{"$f":"INDEX('Rate Trajectory Calc'!$B$123:$CQ$192,MATCH(\"System\"&'Rate Trajectory Report'!$B124,'Rate Trajectory Calc'!$B$123:$B$192,0),MATCH('Rate Trajectory Report'!W$5,'Rate Trajectory Calc'!$B$123:$CQ$123,0))","v":2.699031598774785},{"$f":"INDEX('Rate Trajectory Calc'!$B$123:$CQ$192,MATCH(\"System\"&'Rate Trajectory Report'!$B124,'Rate Trajectory Calc'!$B$123:$B$192,0),MATCH('Rate Trajectory Report'!X$5,'Rate Trajectory Calc'!$B$123:$CQ$123,0))","v":2.699031598774785},{"$f":"INDEX('Rate Trajectory Calc'!$B$123:$CQ$192,MATCH(\"System\"&'Rate Trajectory Report'!$B124,'Rate Trajectory Calc'!$B$123:$B$192,0),MATCH('Rate Trajectory Report'!Y$5,'Rate Trajectory Calc'!$B$123:$CQ$123,0))","v":2.699031598774785},{"$f":"INDEX('Rate Trajectory Calc'!$B$123:$CQ$192,MATCH(\"System\"&'Rate Trajectory Report'!$B124,'Rate Trajectory Calc'!$B$123:$B$192,0),MATCH('Rate Trajectory Report'!Z$5,'Rate Trajectory Calc'!$B$123:$CQ$123,0))","v":2.699031598774785},{"$f":"INDEX('Rate Trajectory Calc'!$B$123:$CQ$192,MATCH(\"System\"&'Rate Trajectory Report'!$B124,'Rate Trajectory Calc'!$B$123:$B$192,0),MATCH('Rate Trajectory Report'!AA$5,'Rate Trajectory Calc'!$B$123:$CQ$123,0))","v":2.699031598774785}]
[null,"% Change",null,{"$f":"D124/C124-1","v":0},{"$f":"E124/D124-1","v":0},0,0,8.0362375466513702E-2,0,0,0,0,0,0,0,0,0,0,0,1.6077641028749534E-2,0,0,0,0,0,0,{"$f":"AA124/Z124-1","v":0}]
[null,"System",{"$f":"Summary!$O$46","v":1.0606675509824723},{"$f":"INDEX('Rate Trajectory Calc'!$B$123:$CQ$192,MATCH(\"System\"&'Rate Trajectory Report'!$B126,'Rate Trajectory Calc'!$B$123:$B$192,0),MATCH('Rate Trajectory Report'!D$5,'Rate Trajectory Calc'!$B$123:$CQ$123,0))","v":1.0606675509824723},{"$f":"INDEX('Rate Trajectory Calc'!$B$123:$CQ$192,MATCH(\"System\"&'Rate Trajectory Report'!$B126,'Rate Trajectory Calc'!$B$123:$B$192,0),MATCH('Rate Trajectory Report'!E$5,'Rate Trajectory Calc'!$B$123:$CQ$123,0))","v":1.0606675509824723},{"$f":"INDEX('Rate Trajectory Calc'!$B$123:$CQ$192,MATCH(\"System\"&'Rate Trajectory Report'!$B126,'Rate Trajectory Calc'!$B$123:$B$192,0),MATCH('Rate Trajectory Report'!F$5,'Rate Trajectory Calc'!$B$123:$CQ$123,0))","v":1.0606675509824723},{"$f":"INDEX('Rate Trajectory Calc'!$B$123:$CQ$192,MATCH(\"System\"&'Rate Trajectory Report'!$B126,'Rate Trajectory Calc'!$B$123:$B$192,0),MATCH('Rate Trajectory Report'!G$5,'Rate Trajectory Calc'!$B$123:$CQ$123,0))","v":1.0606675509824723},{"$f":"INDEX('Rate Trajectory Calc'!$B$123:$CQ$192,MATCH(\"System\"&'Rate Trajectory Report'!$B126,'Rate Trajectory Calc'!$B$123:$B$192,0),MATCH('Rate Trajectory Report'!H$5,'Rate Trajectory Calc'!$B$123:$CQ$123,0))","v":1.1517295052941849},{"$f":"INDEX('Rate Trajectory Calc'!$B$123:$CQ$192,MATCH(\"System\"&'Rate Trajectory Report'!$B126,'Rate Trajectory Calc'!$B$123:$B$192,0),MATCH('Rate Trajectory Report'!I$5,'Rate Trajectory Calc'!$B$123:$CQ$123,0))","v":1.1517295052941849},{"$f":"INDEX('Rate Trajectory Calc'!$B$123:$CQ$192,MATCH(\"System\"&'Rate Trajectory Report'!$B126,'Rate Trajectory Calc'!$B$123:$B$192,0),MATCH('Rate Trajectory Report'!J$5,'Rate Trajectory Calc'!$B$123:$CQ$123,0))","v":1.1517295052941849},{"$f":"INDEX('Rate Trajectory Calc'!$B$123:$CQ$192,MATCH(\"System\"&'Rate Trajectory Report'!$B126,'Rate Trajectory Calc'!$B$123:$B$192,0),MATCH('Rate Trajectory Report'!K$5,'Rate Trajectory Calc'!$B$123:$CQ$123,0))","v":1.1517295052941849},{"$f":"INDEX('Rate Trajectory Calc'!$B$123:$CQ$192,MATCH(\"System\"&'Rate Trajectory Report'!$B126,'Rate Trajectory Calc'!$B$123:$B$192,0),MATCH('Rate Trajectory Report'!L$5,'Rate Trajectory Calc'!$B$123:$CQ$123,0))","v":1.1517295052941849},{"$f":"INDEX('Rate Trajectory Calc'!$B$123:$CQ$192,MATCH(\"System\"&'Rate Trajectory Report'!$B126,'Rate Trajectory Calc'!$B$123:$B$192,0),MATCH('Rate Trajectory Report'!M$5,'Rate Trajectory Calc'!$B$123:$CQ$123,0))","v":1.1517295052941849},{"$f":"INDEX('Rate Trajectory Calc'!$B$123:$CQ$192,MATCH(\"System\"&'Rate Trajectory Report'!$B126,'Rate Trajectory Calc'!$B$123:$B$192,0),MATCH('Rate Trajectory Report'!N$5,'Rate Trajectory Calc'!$B$123:$CQ$123,0))","v":1.1517295052941849},{"$f":"INDEX('Rate Trajectory Calc'!$B$123:$CQ$192,MATCH(\"System\"&'Rate Trajectory Report'!$B126,'Rate Trajectory Calc'!$B$123:$B$192,0),MATCH('Rate Trajectory Report'!O$5,'Rate Trajectory Calc'!$B$123:$CQ$123,0))","v":1.1517295052941849},{"$f":"INDEX('Rate Trajectory Calc'!$B$123:$CQ$192,MATCH(\"System\"&'Rate Trajectory Report'!$B126,'Rate Trajectory Calc'!$B$123:$B$192,0),MATCH('Rate Trajectory Report'!P$5,'Rate Trajectory Calc'!$B$123:$CQ$123,0))","v":1.1517295052941849},{"$f":"INDEX('Rate Trajectory Calc'!$B$123:$CQ$192,MATCH(\"System\"&'Rate Trajectory Report'!$B126,'Rate Trajectory Calc'!$B$123:$B$192,0),MATCH('Rate Trajectory Report'!Q$5,'Rate Trajectory Calc'!$B$123:$CQ$123,0))","v":1.1517295052941849},{"$f":"INDEX('Rate Trajectory Calc'!$B$123:$CQ$192,MATCH(\"System\"&'Rate Trajectory Report'!$B126,'Rate Trajectory Calc'!$B$123:$B$192,0),MATCH('Rate Trajectory Report'!R$5,'Rate Trajectory Calc'!$B$123:$CQ$123,0))","v":1.1517295052941849},{"$f":"INDEX('Rate Trajectory Calc'!$B$123:$CQ$192,MATCH(\"System\"&'Rate Trajectory Report'!$B126,'Rate Trajectory Calc'!$B$123:$B$192,0),MATCH('Rate Trajectory Report'!S$5,'Rate Trajectory Calc'!$B$123:$CQ$123,0))","v":1.1517295052941849},{"$f":"INDEX('Rate Trajectory Calc'!$B$123:$CQ$192,MATCH(\"System\"&'Rate Trajectory Report'!$B126,'Rate Trajectory Calc'!$B$123:$B$192,0),MATCH('Rate Trajectory Report'!T$5,'Rate Trajectory Calc'!$B$123:$CQ$123,0))","v":1.1715168012157304},{"$f":"INDEX('Rate Trajectory Calc'!$B$123:$CQ$192,MATCH(\"System\"&'Rate Trajectory Report'!$B126,'Rate Trajectory Calc'!$B$123:$B$192,0),MATCH('Rate Trajectory Report'!U$5,'Rate Trajectory Calc'!$B$123:$CQ$123,0))","v":1.1715168012157304},{"$f":"INDEX('Rate Trajectory Calc'!$B$123:$CQ$192,MATCH(\"System\"&'Rate Trajectory Report'!$B126,'Rate Trajectory Calc'!$B$123:$B$192,0),MATCH('Rate Trajectory Report'!V$5,'Rate Trajectory Calc'!$B$123:$CQ$123,0))","v":1.1715168012157304},{"$f":"INDEX('Rate Trajectory Calc'!$B$123:$CQ$192,MATCH(\"System\"&'Rate Trajectory Report'!$B126,'Rate Trajectory Calc'!$B$123:$B$192,0),MATCH('Rate Trajectory Report'!W$5,'Rate Trajectory Calc'!$B$123:$CQ$123,0))","v":1.1715168012157304},{"$f":"INDEX('Rate Trajectory Calc'!$B$123:$CQ$192,MATCH(\"System\"&'Rate Trajectory Report'!$B126,'Rate Trajectory Calc'!$B$123:$B$192,0),MATCH('Rate Trajectory Report'!X$5,'Rate Trajectory Calc'!$B$123:$CQ$123,0))","v":1.1715168012157304},{"$f":"INDEX('Rate Trajectory Calc'!$B$123:$CQ$192,MATCH(\"System\"&'Rate Trajectory Report'!$B126,'Rate Trajectory Calc'!$B$123:$B$192,0),MATCH('Rate Trajectory Report'!Y$5,'Rate Trajectory Calc'!$B$123:$CQ$123,0))","v":1.1715168012157304},{"$f":"INDEX('Rate Trajectory Calc'!$B$123:$CQ$192,MATCH(\"System\"&'Rate Trajectory Report'!$B126,'Rate Trajectory Calc'!$B$123:$B$192,0),MATCH('Rate Trajectory Report'!Z$5,'Rate Trajectory Calc'!$B$123:$CQ$123,0))","v":1.1715168012157304},{"$f":"INDEX('Rate Trajectory Calc'!$B$123:$CQ$192,MATCH(\"System\"&'Rate Trajectory Report'!$B126,'Rate Trajectory Calc'!$B$123:$B$192,0),MATCH('Rate Trajectory Report'!AA$5,'Rate Trajectory Calc'!$B$123:$CQ$123,0))","v":1.1715168012157304}]
[null,"% Change",null,{"$f":"D126/C126-1","v":0},{"$f":"E126/D126-1","v":0},0,0,8.5853436571491137E-2,0,0,0,0,0,0,0,0,0,0,0,1.7180506213124502E-2,0,0,0,0,0,0,{"$f":"AA126/Z126-1","v":0}]
[null,"ILLUSTRATIVE BILL IMPACTS /2"]
[]
[null,{"$f":"(\"'Annual Average' Illustrative Monthly Residential Non-CARE Bill - Baseline Territory \"&'Rate Trajectory Dashboard'!$D$5)","v":"'Annual Average' Illustrative Monthly Residential Non-CARE Bill - Baseline Territory ALL CLIMATE ZONES"}]
[null,"Illustrative Monthly Average (Includes Climate Credit)",{"$f":"((C133*Summary!$L$13)+('Rate Trajectory Report'!C135*Summary!$L$14)+('Rate Trajectory Report'!C137*Summary!$L$15))/12-'Hypothetical Summary'!M24/12","v":75.84095607694978},{"$f":"((D133*'Hypothetical Summary'!$M$17)+('Rate Trajectory Report'!D135*'Hypothetical Summary'!$M$18)+('Rate Trajectory Report'!D137*'Hypothetical Summary'!$M$19))/12-'Hypothetical Summary'!M24/12","v":75.840907214280051},{"$f":"((E133*'Hypothetical Summary'!$M$17)+('Rate Trajectory Report'!E135*'Hypothetical Summary'!$M$18)+('Rate Trajectory Report'!E137*'Hypothetical Summary'!$M$19))/12-'Hypothetical Summary'!M24/12","v":75.840907214280051},{"$f":"((F133*'Hypothetical Summary'!$M$17)+('Rate Trajectory Report'!F135*'Hypothetical Summary'!$M$18)+('Rate Trajectory Report'!F137*'Hypothetical Summary'!$M$19))/12-'Hypothetical Summary'!M24/12","v":75.840907214280051},{"$f":"((G133*'Hypothetical Summary'!$M$17)+('Rate Trajectory Report'!G135*'Hypothetical Summary'!$M$18)+('Rate Trajectory Report'!G137*'Hypothetical Summary'!$M$19))/12-'Hypothetical Summary'!M24/12","v":75.840907214280051},{"$f":"((H133*'Hypothetical Summary'!$M$17)+('Rate Trajectory Report'!H135*'Hypothetical Summary'!$M$18)+('Rate Trajectory Report'!H137*'Hypothetical Summary'!$M$19))/12-'Hypothetical Summary'!M24/12","v":81.728967320472748},{"$f":"((I133*'Hypothetical Summary'!$M$17)+('Rate Trajectory Report'!I135*'Hypothetical Summary'!$M$18)+('Rate Trajectory Report'!I137*'Hypothetical Summary'!$M$19))/12-'Hypothetical Summary'!M24/12","v":81.728967320472748},{"$f":"((J133*'Hypothetical Summary'!$M$17)+('Rate Trajectory Report'!J135*'Hypothetical Summary'!$M$18)+('Rate Trajectory Report'!J137*'Hypothetical Summary'!$M$19))/12-'Hypothetical Summary'!M24/12","v":81.728967320472748},{"$f":"((K133*'Hypothetical Summary'!$M$17)+('Rate Trajectory Report'!K135*'Hypothetical Summary'!$M$18)+('Rate Trajectory Report'!K137*'Hypothetical Summary'!$M$19))/12-'Hypothetical Summary'!M24/12","v":81.728967320472748},{"$f":"((L133*'Hypothetical Summary'!$M$17)+('Rate Trajectory Report'!L135*'Hypothetical Summary'!$M$18)+('Rate Trajectory Report'!L137*'Hypothetical Summary'!$M$19))/12-'Hypothetical Summary'!M24/12","v":81.728967320472748},{"$f":"((M133*'Hypothetical Summary'!$M$17)+('Rate Trajectory Report'!M135*'Hypothetical Summary'!$M$18)+('Rate Trajectory Report'!M137*'Hypothetical Summary'!$M$19))/12-'Hypothetical Summary'!M24/12","v":81.728967320472748},{"$f":"((N133*'Hypothetical Summary'!$M$17)+('Rate Trajectory Report'!N135*'Hypothetical Summary'!$M$18)+('Rate Trajectory Report'!N137*'Hypothetical Summary'!$M$19))/12-'Hypothetical Summary'!M24/12","v":81.728967320472748},{"$f":"((O133*'Hypothetical Summary'!$M$17)+('Rate Trajectory Report'!O135*'Hypothetical Summary'!$M$18)+('Rate Trajectory Report'!O137*'Hypothetical Summary'!$M$19))/12-'Hypothetical Summary'!M24/12","v":81.728967320472748},{"$f":"((P133*'Hypothetical Summary'!$M$17)+('Rate Trajectory Report'!P135*'Hypothetical Summary'!$M$18)+('Rate Trajectory Report'!P137*'Hypothetical Summary'!$M$19))/12-'Hypothetical Summary'!M24/12","v":81.728967320472748},{"$f":"((Q133*'Hypothetical Summary'!$M$17)+('Rate Trajectory Report'!Q135*'Hypothetical Summary'!$M$18)+('Rate Trajectory Report'!Q137*'Hypothetical Summary'!$M$19))/12-'Hypothetical Summary'!M24/12","v":81.728967320472748},{"$f":"((R133*'Hypothetical Summary'!$M$17)+('Rate Trajectory Report'!R135*'Hypothetical Summary'!$M$18)+('Rate Trajectory Report'!R137*'Hypothetical Summary'!$M$19))/12-'Hypothetical Summary'!M24/12","v":81.728967320472748},{"$f":"((S133*'Hypothetical Summary'!$M$17)+('Rate Trajectory Report'!S135*'Hypothetical Summary'!$M$18)+('Rate Trajectory Report'!S137*'Hypothetical Summary'!$M$19))/12-'Hypothetical Summary'!M24/12","v":81.728967320472748},{"$f":"((T133*'Hypothetical Summary'!$M$17)+('Rate Trajectory Report'!T135*'Hypothetical Summary'!$M$18)+('Rate Trajectory Report'!T137*'Hypothetical Summary'!$M$19))/12-'Hypothetical Summary'!M24/12","v":82.961447830813555},{"$f":"((U133*'Hypothetical Summary'!$M$17)+('Rate Trajectory Report'!U135*'Hypothetical Summary'!$M$18)+('Rate Trajectory Report'!U137*'Hypothetical Summary'!$M$19))/12-'Hypothetical Summary'!M24/12","v":82.961447830813555},{"$f":"((V133*'Hypothetical Summary'!$M$17)+('Rate Trajectory Report'!V135*'Hypothetical Summary'!$M$18)+('Rate Trajectory Report'!V137*'Hypothetical Summary'!$M$19))/12-'Hypothetical Summary'!M24/12","v":82.961447830813555},{"$f":"((W133*'Hypothetical Summary'!$M$17)+('Rate Trajectory Report'!W135*'Hypothetical Summary'!$M$18)+('Rate Trajectory Report'!W137*'Hypothetical Summary'!$M$19))/12-'Hypothetical Summary'!M24/12","v":82.961447830813555},{"$f":"((X133*'Hypothetical Summary'!$M$17)+('Rate Trajectory Report'!X135*'Hypothetical Summary'!$M$18)+('Rate Trajectory Report'!X137*'Hypothetical Summary'!$M$19))/12-'Hypothetical Summary'!M24/12","v":82.961447830813555},{"$f":"((Y133*'Hypothetical Summary'!$M$17)+('Rate Trajectory Report'!Y135*'Hypothetical Summary'!$M$18)+('Rate Trajectory Report'!Y137*'Hypothetical Summary'!$M$19))/12-'Hypothetical Summary'!M24/12","v":82.961447830813555},{"$f":"((Z133*'Hypothetical Summary'!$M$17)+('Rate Trajectory Report'!Z135*'Hypothetical Summary'!$M$18)+('Rate Trajectory Report'!Z137*'Hypothetical Summary'!$M$19))/12-'Hypothetical Summary'!M24/12","v":82.961447830813555},{"$f":"((AA133*'Hypothetical Summary'!$M$17)+('Rate Trajectory Report'!AA135*'Hypothetical Summary'!$M$18)+('Rate Trajectory Report'!AA137*'Hypothetical Summary'!$M$19))/12-'Hypothetical Summary'!M24/12","v":82.961447830813555}]
[null,"Illustrative Bill Change",null,{"$f":"D131-C131","v":-4.8862669729032859E-5},{"$f":"E131-D131","v":0},{"$f":"F131-E131","v":0},{"$f":"G131-F131","v":0},5.8880601061926967,0,0,0,0,0,0,0,0,0,0,0,1.2324805103408067,0,0,0,0,0,0,{"$f":"AA131-Z131","v":0}]
[null,"Illustrative Monthly Average - Summer",{"$f":"VLOOKUP('Rate Trajectory Dashboard'!$D$5,'Res Bill Impact'!$B$37:$H$46,5,FALSE)","v":47.388363774600009},{"$f":"INDEX('Rate Trajectory Calc'!$B$123:$CQ$192,MATCH(\"Non-CARESummer\"&'Rate Trajectory Dashboard'!$D$5,'Rate Trajectory Calc'!$B$123:$B$192,0),MATCH('Rate Trajectory Report'!D$5,'Rate Trajectory Calc'!$B$123:$CQ$123,0))","v":47.388343528321805},{"$f":"INDEX('Rate Trajectory Calc'!$B$123:$CQ$192,MATCH(\"Non-CARESummer\"&'Rate Trajectory Dashboard'!$D$5,'Rate Trajectory Calc'!$B$123:$B$192,0),MATCH('Rate Trajectory Report'!E$5,'Rate Trajectory Calc'!$B$123:$CQ$123,0))","v":47.388343528321805},{"$f":"INDEX('Rate Trajectory Calc'!$B$123:$CQ$192,MATCH(\"Non-CARESummer\"&'Rate Trajectory Dashboard'!$D$5,'Rate Trajectory Calc'!$B$123:$B$192,0),MATCH('Rate Trajectory Report'!F$5,'Rate Trajectory Calc'!$B$123:$CQ$123,0))","v":47.388343528321805},{"$f":"INDEX('Rate Trajectory Calc'!$B$123:$CQ$192,MATCH(\"Non-CARESummer\"&'Rate Trajectory Dashboard'!$D$5,'Rate Trajectory Calc'!$B$123:$B$192,0),MATCH('Rate Trajectory Report'!G$5,'Rate Trajectory Calc'!$B$123:$CQ$123,0))","v":47.388343528321805},{"$f":"INDEX('Rate Trajectory Calc'!$B$123:$CQ$192,MATCH(\"Non-CARESummer\"&'Rate Trajectory Dashboard'!$D$5,'Rate Trajectory Calc'!$B$123:$B$192,0),MATCH('Rate Trajectory Report'!H$5,'Rate Trajectory Calc'!$B$123:$CQ$123,0))","v":50.819082336265481},{"$f":"INDEX('Rate Trajectory Calc'!$B$123:$CQ$192,MATCH(\"Non-CARESummer\"&'Rate Trajectory Dashboard'!$D$5,'Rate Trajectory Calc'!$B$123:$B$192,0),MATCH('Rate Trajectory Report'!I$5,'Rate Trajectory Calc'!$B$123:$CQ$123,0))","v":50.819082336265481},{"$f":"INDEX('Rate Trajectory Calc'!$B$123:$CQ$192,MATCH(\"Non-CARESummer\"&'Rate Trajectory Dashboard'!$D$5,'Rate Trajectory Calc'!$B$123:$B$192,0),MATCH('Rate Trajectory Report'!J$5,'Rate Trajectory Calc'!$B$123:$CQ$123,0))","v":50.819082336265481},{"$f":"INDEX('Rate Trajectory Calc'!$B$123:$CQ$192,MATCH(\"Non-CARESummer\"&'Rate Trajectory Dashboard'!$D$5,'Rate Trajectory Calc'!$B$123:$B$192,0),MATCH('Rate Trajectory Report'!K$5,'Rate Trajectory Calc'!$B$123:$CQ$123,0))","v":50.819082336265481},{"$f":"INDEX('Rate Trajectory Calc'!$B$123:$CQ$192,MATCH(\"Non-CARESummer\"&'Rate Trajectory Dashboard'!$D$5,'Rate Trajectory Calc'!$B$123:$B$192,0),MATCH('Rate Trajectory Report'!L$5,'Rate Trajectory Calc'!$B$123:$CQ$123,0))","v":50.819082336265481},{"$f":"INDEX('Rate Trajectory Calc'!$B$123:$CQ$192,MATCH(\"Non-CARESummer\"&'Rate Trajectory Dashboard'!$D$5,'Rate Trajectory Calc'!$B$123:$B$192,0),MATCH('Rate Trajectory Report'!M$5,'Rate Trajectory Calc'!$B$123:$CQ$123,0))","v":50.819082336265481},{"$f":"INDEX('Rate Trajectory Calc'!$B$123:$CQ$192,MATCH(\"Non-CARESummer\"&'Rate Trajectory Dashboard'!$D$5,'Rate Trajectory Calc'!$B$123:$B$192,0),MATCH('Rate Trajectory Report'!N$5,'Rate Trajectory Calc'!$B$123:$CQ$123,0))","v":50.819082336265481},{"$f":"INDEX('Rate Trajectory Calc'!$B$123:$CQ$192,MATCH(\"Non-CARESummer\"&'Rate Trajectory Dashboard'!$D$5,'Rate Trajectory Calc'!$B$123:$B$192,0),MATCH('Rate Trajectory Report'!O$5,'Rate Trajectory Calc'!$B$123:$CQ$123,0))","v":50.819082336265481},{"$f":"INDEX('Rate Trajectory Calc'!$B$123:$CQ$192,MATCH(\"Non-CARESummer\"&'Rate Trajectory Dashboard'!$D$5,'Rate Trajectory Calc'!$B$123:$B$192,0),MATCH('Rate Trajectory Report'!P$5,'Rate Trajectory Calc'!$B$123:$CQ$123,0))","v":50.819082336265481},{"$f":"INDEX('Rate Trajectory Calc'!$B$123:$CQ$192,MATCH(\"Non-CARESummer\"&'Rate Trajectory Dashboard'!$D$5,'Rate Trajectory Calc'!$B$123:$B$192,0),MATCH('Rate Trajectory Report'!Q$5,'Rate Trajectory Calc'!$B$123:$CQ$123,0))","v":50.819082336265481},{"$f":"INDEX('Rate Trajectory Calc'!$B$123:$CQ$192,MATCH(\"Non-CARESummer\"&'Rate Trajectory Dashboard'!$D$5,'Rate Trajectory Calc'!$B$123:$B$192,0),MATCH('Rate Trajectory Report'!R$5,'Rate Trajectory Calc'!$B$123:$CQ$123,0))","v":50.819082336265481},{"$f":"INDEX('Rate Trajectory Calc'!$B$123:$CQ$192,MATCH(\"Non-CARESummer\"&'Rate Trajectory Dashboard'!$D$5,'Rate Trajectory Calc'!$B$123:$B$192,0),MATCH('Rate Trajectory Report'!S$5,'Rate Trajectory Calc'!$B$123:$CQ$123,0))","v":50.819082336265481},{"$f":"INDEX('Rate Trajectory Calc'!$B$123:$CQ$192,MATCH(\"Non-CARESummer\"&'Rate Trajectory Dashboard'!$D$5,'Rate Trajectory Calc'!$B$123:$B$192,0),MATCH('Rate Trajectory Report'!T$5,'Rate Trajectory Calc'!$B$123:$CQ$123,0))","v":51.541118318217045},{"$f":"INDEX('Rate Trajectory Calc'!$B$123:$CQ$192,MATCH(\"Non-CARESummer\"&'Rate Trajectory Dashboard'!$D$5,'Rate Trajectory Calc'!$B$123:$B$192,0),MATCH('Rate Trajectory Report'!U$5,'Rate Trajectory Calc'!$B$123:$CQ$123,0))","v":51.541118318217045},{"$f":"INDEX('Rate Trajectory Calc'!$B$123:$CQ$192,MATCH(\"Non-CARESummer\"&'Rate Trajectory Dashboard'!$D$5,'Rate Trajectory Calc'!$B$123:$B$192,0),MATCH('Rate Trajectory Report'!V$5,'Rate Trajectory Calc'!$B$123:$CQ$123,0))","v":51.541118318217045},{"$f":"INDEX('Rate Trajectory Calc'!$B$123:$CQ$192,MATCH(\"Non-CARESummer\"&'Rate Trajectory Dashboard'!$D$5,'Rate Trajectory Calc'!$B$123:$B$192,0),MATCH('Rate Trajectory Report'!W$5,'Rate Trajectory Calc'!$B$123:$CQ$123,0))","v":51.541118318217045},{"$f":"INDEX('Rate Trajectory Calc'!$B$123:$CQ$192,MATCH(\"Non-CARESummer\"&'Rate Trajectory Dashboard'!$D$5,'Rate Trajectory Calc'!$B$123:$B$192,0),MATCH('Rate Trajectory Report'!X$5,'Rate Trajectory Calc'!$B$123:$CQ$123,0))","v":51.541118318217045},{"$f":"INDEX('Rate Trajectory Calc'!$B$123:$CQ$192,MATCH(\"Non-CARESummer\"&'Rate Trajectory Dashboard'!$D$5,'Rate Trajectory Calc'!$B$123:$B$192,0),MATCH('Rate Trajectory Report'!Y$5,'Rate Trajectory Calc'!$B$123:$CQ$123,0))","v":51.541118318217045},{"$f":"INDEX('Rate Trajectory Calc'!$B$123:$CQ$192,MATCH(\"Non-CARESummer\"&'Rate Trajectory Dashboard'!$D$5,'Rate Trajectory Calc'!$B$123:$B$192,0),MATCH('Rate Trajectory Report'!Z$5,'Rate Trajectory Calc'!$B$123:$CQ$123,0))","v":51.541118318217045},{"$f":"INDEX('Rate Trajectory Calc'!$B$123:$CQ$192,MATCH(\"Non-CARESummer\"&'Rate Trajectory Dashboard'!$D$5,'Rate Trajectory Calc'!$B$123:$B$192,0),MATCH('Rate Trajectory Report'!AA$5,'Rate Trajectory Calc'!$B$123:$CQ$123,0))","v":51.541118318217045}]
[null,"Illustrative Bill Change",null,{"$f":"D133-C133","v":-2.0246278204183454E-5},{"$f":"E133-D133","v":0},{"$f":"F133-E133","v":0},{"$f":"G133-F133","v":0},3.4307388079436762,0,0,0,0,0,0,0,0,0,0,0,0.7220359819515636,0,0,0,0,0,0,{"$f":"AA133-Z133","v":0}]
[null,"Illustrative Monthly Average - Winter Off-Peak",{"$f":"VLOOKUP('Rate Trajectory Dashboard'!$D$5,'Res Bill Impact'!$B$37:$H$46,6,FALSE)","v":114.32198617333914},{"$f":"INDEX('Rate Trajectory Calc'!$B$123:$CQ$192,MATCH(\"Non-CAREWinter Off-Peak\"&'Rate Trajectory Dashboard'!$D$5,'Rate Trajectory Calc'!$B$123:$B$192,0),MATCH('Rate Trajectory Report'!D$5,'Rate Trajectory Calc'!$B$123:$CQ$123,0))","v":114.32190768704984},{"$f":"INDEX('Rate Trajectory Calc'!$B$123:$CQ$192,MATCH(\"Non-CAREWinter Off-Peak\"&'Rate Trajectory Dashboard'!$D$5,'Rate Trajectory Calc'!$B$123:$B$192,0),MATCH('Rate Trajectory Report'!E$5,'Rate Trajectory Calc'!$B$123:$CQ$123,0))","v":114.32190768704984},{"$f":"INDEX('Rate Trajectory Calc'!$B$123:$CQ$192,MATCH(\"Non-CAREWinter Off-Peak\"&'Rate Trajectory Dashboard'!$D$5,'Rate Trajectory Calc'!$B$123:$B$192,0),MATCH('Rate Trajectory Report'!F$5,'Rate Trajectory Calc'!$B$123:$CQ$123,0))","v":114.32190768704984},{"$f":"INDEX('Rate Trajectory Calc'!$B$123:$CQ$192,MATCH(\"Non-CAREWinter Off-Peak\"&'Rate Trajectory Dashboard'!$D$5,'Rate Trajectory Calc'!$B$123:$B$192,0),MATCH('Rate Trajectory Report'!G$5,'Rate Trajectory Calc'!$B$123:$CQ$123,0))","v":114.32190768704984},{"$f":"INDEX('Rate Trajectory Calc'!$B$123:$CQ$192,MATCH(\"Non-CAREWinter Off-Peak\"&'Rate Trajectory Dashboard'!$D$5,'Rate Trajectory Calc'!$B$123:$B$192,0),MATCH('Rate Trajectory Report'!H$5,'Rate Trajectory Calc'!$B$123:$CQ$123,0))","v":122.58376260121804},{"$f":"INDEX('Rate Trajectory Calc'!$B$123:$CQ$192,MATCH(\"Non-CAREWinter Off-Peak\"&'Rate Trajectory Dashboard'!$D$5,'Rate Trajectory Calc'!$B$123:$B$192,0),MATCH('Rate Trajectory Report'!I$5,'Rate Trajectory Calc'!$B$123:$CQ$123,0))","v":122.58376260121804},{"$f":"INDEX('Rate Trajectory Calc'!$B$123:$CQ$192,MATCH(\"Non-CAREWinter Off-Peak\"&'Rate Trajectory Dashboard'!$D$5,'Rate Trajectory Calc'!$B$123:$B$192,0),MATCH('Rate Trajectory Report'!J$5,'Rate Trajectory Calc'!$B$123:$CQ$123,0))","v":122.58376260121804},{"$f":"INDEX('Rate Trajectory Calc'!$B$123:$CQ$192,MATCH(\"Non-CAREWinter Off-Peak\"&'Rate Trajectory Dashboard'!$D$5,'Rate Trajectory Calc'!$B$123:$B$192,0),MATCH('Rate Trajectory Report'!K$5,'Rate Trajectory Calc'!$B$123:$CQ$123,0))","v":122.58376260121804},{"$f":"INDEX('Rate Trajectory Calc'!$B$123:$CQ$192,MATCH(\"Non-CAREWinter Off-Peak\"&'Rate Trajectory Dashboard'!$D$5,'Rate Trajectory Calc'!$B$123:$B$192,0),MATCH('Rate Trajectory Report'!L$5,'Rate Trajectory Calc'!$B$123:$CQ$123,0))","v":122.58376260121804},{"$f":"INDEX('Rate Trajectory Calc'!$B$123:$CQ$192,MATCH(\"Non-CAREWinter Off-Peak\"&'Rate Trajectory Dashboard'!$D$5,'Rate Trajectory Calc'!$B$123:$B$192,0),MATCH('Rate Trajectory Report'!M$5,'Rate Trajectory Calc'!$B$123:$CQ$123,0))","v":122.58376260121804},{"$f":"INDEX('Rate Trajectory Calc'!$B$123:$CQ$192,MATCH(\"Non-CAREWinter Off-Peak\"&'Rate Trajectory Dashboard'!$D$5,'Rate Trajectory Calc'!$B$123:$B$192,0),MATCH('Rate Trajectory Report'!N$5,'Rate Trajectory Calc'!$B$123:$CQ$123,0))","v":122.58376260121804},{"$f":"INDEX('Rate Trajectory Calc'!$B$123:$CQ$192,MATCH(\"Non-CAREWinter Off-Peak\"&'Rate Trajectory Dashboard'!$D$5,'Rate Trajectory Calc'!$B$123:$B$192,0),MATCH('Rate Trajectory Report'!O$5,'Rate Trajectory Calc'!$B$123:$CQ$123,0))","v":122.58376260121804},{"$f":"INDEX('Rate Trajectory Calc'!$B$123:$CQ$192,MATCH(\"Non-CAREWinter Off-Peak\"&'Rate Trajectory Dashboard'!$D$5,'Rate Trajectory Calc'!$B$123:$B$192,0),MATCH('Rate Trajectory Report'!P$5,'Rate Trajectory Calc'!$B$123:$CQ$123,0))","v":122.58376260121804},{"$f":"INDEX('Rate Trajectory Calc'!$B$123:$CQ$192,MATCH(\"Non-CAREWinter Off-Peak\"&'Rate Trajectory Dashboard'!$D$5,'Rate Trajectory Calc'!$B$123:$B$192,0),MATCH('Rate Trajectory Report'!Q$5,'Rate Trajectory Calc'!$B$123:$CQ$123,0))","v":122.58376260121804},{"$f":"INDEX('Rate Trajectory Calc'!$B$123:$CQ$192,MATCH(\"Non-CAREWinter Off-Peak\"&'Rate Trajectory Dashboard'!$D$5,'Rate Trajectory Calc'!$B$123:$B$192,0),MATCH('Rate Trajectory Report'!R$5,'Rate Trajectory Calc'!$B$123:$CQ$123,0))","v":122.58376260121804},{"$f":"INDEX('Rate Trajectory Calc'!$B$123:$CQ$192,MATCH(\"Non-CAREWinter Off-Peak\"&'Rate Trajectory Dashboard'!$D$5,'Rate Trajectory Calc'!$B$123:$B$192,0),MATCH('Rate Trajectory Report'!S$5,'Rate Trajectory Calc'!$B$123:$CQ$123,0))","v":122.58376260121804},{"$f":"INDEX('Rate Trajectory Calc'!$B$123:$CQ$192,MATCH(\"Non-CAREWinter Off-Peak\"&'Rate Trajectory Dashboard'!$D$5,'Rate Trajectory Calc'!$B$123:$B$192,0),MATCH('Rate Trajectory Report'!T$5,'Rate Trajectory Calc'!$B$123:$CQ$123,0))","v":124.30839380842205},{"$f":"INDEX('Rate Trajectory Calc'!$B$123:$CQ$192,MATCH(\"Non-CAREWinter Off-Peak\"&'Rate Trajectory Dashboard'!$D$5,'Rate Trajectory Calc'!$B$123:$B$192,0),MATCH('Rate Trajectory Report'!U$5,'Rate Trajectory Calc'!$B$123:$CQ$123,0))","v":124.30839380842205},{"$f":"INDEX('Rate Trajectory Calc'!$B$123:$CQ$192,MATCH(\"Non-CAREWinter Off-Peak\"&'Rate Trajectory Dashboard'!$D$5,'Rate Trajectory Calc'!$B$123:$B$192,0),MATCH('Rate Trajectory Report'!V$5,'Rate Trajectory Calc'!$B$123:$CQ$123,0))","v":124.30839380842205},{"$f":"INDEX('Rate Trajectory Calc'!$B$123:$CQ$192,MATCH(\"Non-CAREWinter Off-Peak\"&'Rate Trajectory Dashboard'!$D$5,'Rate Trajectory Calc'!$B$123:$B$192,0),MATCH('Rate Trajectory Report'!W$5,'Rate Trajectory Calc'!$B$123:$CQ$123,0))","v":124.30839380842205},{"$f":"INDEX('Rate Trajectory Calc'!$B$123:$CQ$192,MATCH(\"Non-CAREWinter Off-Peak\"&'Rate Trajectory Dashboard'!$D$5,'Rate Trajectory Calc'!$B$123:$B$192,0),MATCH('Rate Trajectory Report'!X$5,'Rate Trajectory Calc'!$B$123:$CQ$123,0))","v":124.30839380842205},{"$f":"INDEX('Rate Trajectory Calc'!$B$123:$CQ$192,MATCH(\"Non-CAREWinter Off-Peak\"&'Rate Trajectory Dashboard'!$D$5,'Rate Trajectory Calc'!$B$123:$B$192,0),MATCH('Rate Trajectory Report'!Y$5,'Rate Trajectory Calc'!$B$123:$CQ$123,0))","v":124.30839380842205},{"$f":"INDEX('Rate Trajectory Calc'!$B$123:$CQ$192,MATCH(\"Non-CAREWinter Off-Peak\"&'Rate Trajectory Dashboard'!$D$5,'Rate Trajectory Calc'!$B$123:$B$192,0),MATCH('Rate Trajectory Report'!Z$5,'Rate Trajectory Calc'!$B$123:$CQ$123,0))","v":124.30839380842205},{"$f":"INDEX('Rate Trajectory Calc'!$B$123:$CQ$192,MATCH(\"Non-CAREWinter Off-Peak\"&'Rate Trajectory Dashboard'!$D$5,'Rate Trajectory Calc'!$B$123:$B$192,0),MATCH('Rate Trajectory Report'!AA$5,'Rate Trajectory Calc'!$B$123:$CQ$123,0))","v":124.30839380842205}]
[null,"Illustrative Bill Change",null,{"$f":"D135-C135","v":-7.8486289297075018E-5},{"$f":"E135-D135","v":0},{"$f":"F135-E135","v":0},{"$f":"G135-F135","v":0},8.2618549141681967,0,0,0,0,0,0,0,0,0,0,0,1.7246312072040126,0,0,0,0,0,0,{"$f":"AA135-Z135","v":0}]
[null,"Illustrative Monthly Average - Winter On-Peak",{"$f":"VLOOKUP('Rate Trajectory Dashboard'!$D$5,'Res Bill Impact'!$B$37:$H$46,7,FALSE)","v":151.21943776725919},{"$f":"INDEX('Rate Trajectory Calc'!$B$123:$CQ$192,MATCH(\"Non-CAREWinter On-Peak\"&'Rate Trajectory Dashboard'!$D$5,'Rate Trajectory Calc'!$B$123:$B$192,0),MATCH('Rate Trajectory Report'!D$5,'Rate Trajectory Calc'!$B$123:$CQ$123,0))","v":151.21933318264848},{"$f":"INDEX('Rate Trajectory Calc'!$B$123:$CQ$192,MATCH(\"Non-CAREWinter On-Peak\"&'Rate Trajectory Dashboard'!$D$5,'Rate Trajectory Calc'!$B$123:$B$192,0),MATCH('Rate Trajectory Report'!E$5,'Rate Trajectory Calc'!$B$123:$CQ$123,0))","v":151.21933318264848},{"$f":"INDEX('Rate Trajectory Calc'!$B$123:$CQ$192,MATCH(\"Non-CAREWinter On-Peak\"&'Rate Trajectory Dashboard'!$D$5,'Rate Trajectory Calc'!$B$123:$B$192,0),MATCH('Rate Trajectory Report'!F$5,'Rate Trajectory Calc'!$B$123:$CQ$123,0))","v":151.21933318264848},{"$f":"INDEX('Rate Trajectory Calc'!$B$123:$CQ$192,MATCH(\"Non-CAREWinter On-Peak\"&'Rate Trajectory Dashboard'!$D$5,'Rate Trajectory Calc'!$B$123:$B$192,0),MATCH('Rate Trajectory Report'!G$5,'Rate Trajectory Calc'!$B$123:$CQ$123,0))","v":151.21933318264848},{"$f":"INDEX('Rate Trajectory Calc'!$B$123:$CQ$192,MATCH(\"Non-CAREWinter On-Peak\"&'Rate Trajectory Dashboard'!$D$5,'Rate Trajectory Calc'!$B$123:$B$192,0),MATCH('Rate Trajectory Report'!H$5,'Rate Trajectory Calc'!$B$123:$CQ$123,0))","v":162.14732562074948},{"$f":"INDEX('Rate Trajectory Calc'!$B$123:$CQ$192,MATCH(\"Non-CAREWinter On-Peak\"&'Rate Trajectory Dashboard'!$D$5,'Rate Trajectory Calc'!$B$123:$B$192,0),MATCH('Rate Trajectory Report'!I$5,'Rate Trajectory Calc'!$B$123:$CQ$123,0))","v":162.14732562074948},{"$f":"INDEX('Rate Trajectory Calc'!$B$123:$CQ$192,MATCH(\"Non-CAREWinter On-Peak\"&'Rate Trajectory Dashboard'!$D$5,'Rate Trajectory Calc'!$B$123:$B$192,0),MATCH('Rate Trajectory Report'!J$5,'Rate Trajectory Calc'!$B$123:$CQ$123,0))","v":162.14732562074948},{"$f":"INDEX('Rate Trajectory Calc'!$B$123:$CQ$192,MATCH(\"Non-CAREWinter On-Peak\"&'Rate Trajectory Dashboard'!$D$5,'Rate Trajectory Calc'!$B$123:$B$192,0),MATCH('Rate Trajectory Report'!K$5,'Rate Trajectory Calc'!$B$123:$CQ$123,0))","v":162.14732562074948},{"$f":"INDEX('Rate Trajectory Calc'!$B$123:$CQ$192,MATCH(\"Non-CAREWinter On-Peak\"&'Rate Trajectory Dashboard'!$D$5,'Rate Trajectory Calc'!$B$123:$B$192,0),MATCH('Rate Trajectory Report'!L$5,'Rate Trajectory Calc'!$B$123:$CQ$123,0))","v":162.14732562074948},{"$f":"INDEX('Rate Trajectory Calc'!$B$123:$CQ$192,MATCH(\"Non-CAREWinter On-Peak\"&'Rate Trajectory Dashboard'!$D$5,'Rate Trajectory Calc'!$B$123:$B$192,0),MATCH('Rate Trajectory Report'!M$5,'Rate Trajectory Calc'!$B$123:$CQ$123,0))","v":162.14732562074948},{"$f":"INDEX('Rate Trajectory Calc'!$B$123:$CQ$192,MATCH(\"Non-CAREWinter On-Peak\"&'Rate Trajectory Dashboard'!$D$5,'Rate Trajectory Calc'!$B$123:$B$192,0),MATCH('Rate Trajectory Report'!N$5,'Rate Trajectory Calc'!$B$123:$CQ$123,0))","v":162.14732562074948},{"$f":"INDEX('Rate Trajectory Calc'!$B$123:$CQ$192,MATCH(\"Non-CAREWinter On-Peak\"&'Rate Trajectory Dashboard'!$D$5,'Rate Trajectory Calc'!$B$123:$B$192,0),MATCH('Rate Trajectory Report'!O$5,'Rate Trajectory Calc'!$B$123:$CQ$123,0))","v":162.14732562074948},{"$f":"INDEX('Rate Trajectory Calc'!$B$123:$CQ$192,MATCH(\"Non-CAREWinter On-Peak\"&'Rate Trajectory Dashboard'!$D$5,'Rate Trajectory Calc'!$B$123:$B$192,0),MATCH('Rate Trajectory Report'!P$5,'Rate Trajectory Calc'!$B$123:$CQ$123,0))","v":162.14732562074948},{"$f":"INDEX('Rate Trajectory Calc'!$B$123:$CQ$192,MATCH(\"Non-CAREWinter On-Peak\"&'Rate Trajectory Dashboard'!$D$5,'Rate Trajectory Calc'!$B$123:$B$192,0),MATCH('Rate Trajectory Report'!Q$5,'Rate Trajectory Calc'!$B$123:$CQ$123,0))","v":162.14732562074948},{"$f":"INDEX('Rate Trajectory Calc'!$B$123:$CQ$192,MATCH(\"Non-CAREWinter On-Peak\"&'Rate Trajectory Dashboard'!$D$5,'Rate Trajectory Calc'!$B$123:$B$192,0),MATCH('Rate Trajectory Report'!R$5,'Rate Trajectory Calc'!$B$123:$CQ$123,0))","v":162.14732562074948},{"$f":"INDEX('Rate Trajectory Calc'!$B$123:$CQ$192,MATCH(\"Non-CAREWinter On-Peak\"&'Rate Trajectory Dashboard'!$D$5,'Rate Trajectory Calc'!$B$123:$B$192,0),MATCH('Rate Trajectory Report'!S$5,'Rate Trajectory Calc'!$B$123:$CQ$123,0))","v":162.14732562074948},{"$f":"INDEX('Rate Trajectory Calc'!$B$123:$CQ$192,MATCH(\"Non-CAREWinter On-Peak\"&'Rate Trajectory Dashboard'!$D$5,'Rate Trajectory Calc'!$B$123:$B$192,0),MATCH('Rate Trajectory Report'!T$5,'Rate Trajectory Calc'!$B$123:$CQ$123,0))","v":164.42813593515785},{"$f":"INDEX('Rate Trajectory Calc'!$B$123:$CQ$192,MATCH(\"Non-CAREWinter On-Peak\"&'Rate Trajectory Dashboard'!$D$5,'Rate Trajectory Calc'!$B$123:$B$192,0),MATCH('Rate Trajectory Report'!U$5,'Rate Trajectory Calc'!$B$123:$CQ$123,0))","v":164.42813593515785},{"$f":"INDEX('Rate Trajectory Calc'!$B$123:$CQ$192,MATCH(\"Non-CAREWinter On-Peak\"&'Rate Trajectory Dashboard'!$D$5,'Rate Trajectory Calc'!$B$123:$B$192,0),MATCH('Rate Trajectory Report'!V$5,'Rate Trajectory Calc'!$B$123:$CQ$123,0))","v":164.42813593515785},{"$f":"INDEX('Rate Trajectory Calc'!$B$123:$CQ$192,MATCH(\"Non-CAREWinter On-Peak\"&'Rate Trajectory Dashboard'!$D$5,'Rate Trajectory Calc'!$B$123:$B$192,0),MATCH('Rate Trajectory Report'!W$5,'Rate Trajectory Calc'!$B$123:$CQ$123,0))","v":164.42813593515785},{"$f":"INDEX('Rate Trajectory Calc'!$B$123:$CQ$192,MATCH(\"Non-CAREWinter On-Peak\"&'Rate Trajectory Dashboard'!$D$5,'Rate Trajectory Calc'!$B$123:$B$192,0),MATCH('Rate Trajectory Report'!X$5,'Rate Trajectory Calc'!$B$123:$CQ$123,0))","v":164.42813593515785},{"$f":"INDEX('Rate Trajectory Calc'!$B$123:$CQ$192,MATCH(\"Non-CAREWinter On-Peak\"&'Rate Trajectory Dashboard'!$D$5,'Rate Trajectory Calc'!$B$123:$B$192,0),MATCH('Rate Trajectory Report'!Y$5,'Rate Trajectory Calc'!$B$123:$CQ$123,0))","v":164.42813593515785},{"$f":"INDEX('Rate Trajectory Calc'!$B$123:$CQ$192,MATCH(\"Non-CAREWinter On-Peak\"&'Rate Trajectory Dashboard'!$D$5,'Rate Trajectory Calc'!$B$123:$B$192,0),MATCH('Rate Trajectory Report'!Z$5,'Rate Trajectory Calc'!$B$123:$CQ$123,0))","v":164.42813593515785},{"$f":"INDEX('Rate Trajectory Calc'!$B$123:$CQ$192,MATCH(\"Non-CAREWinter On-Peak\"&'Rate Trajectory Dashboard'!$D$5,'Rate Trajectory Calc'!$B$123:$B$192,0),MATCH('Rate Trajectory Report'!AA$5,'Rate Trajectory Calc'!$B$123:$CQ$123,0))","v":164.42813593515785}]
[null,"Illustrative Bill Change",null,{"$f":"D137-C137","v":-1.0458461071038982E-4},{"$f":"E137-D137","v":0},{"$f":"F137-E137","v":0},{"$f":"G137-F137","v":0},10.927992438101001,0,0,0,0,0,0,0,0,0,0,0,2.2808103144083702,0,0,0,0,0,0,{"$f":"AA137-Z137","v":0}]
[]
[null,{"$f":"(\"'Annual Average' Illustrative Monthly Residential CARE Bill - Baseline Territory \"&'Rate Trajectory Dashboard'!$D$5)","v":"'Annual Average' Illustrative Monthly Residential CARE Bill - Baseline Territory ALL CLIMATE ZONES"}]
[null,"Illustrative Monthly Average (Includes Climate Credit)",{"$f":"((C143*Summary!$L$13)+('Rate Trajectory Report'!C145*Summary!$L$14)+('Rate Trajectory Report'!C147*Summary!$L$15))/12-'Hypothetical Summary'!M24/12","v":52.051465233517959},{"$f":"((D143*'Hypothetical Summary'!$M$17)+('Rate Trajectory Report'!D145*'Hypothetical Summary'!$M$18)+('Rate Trajectory Report'!D147*'Hypothetical Summary'!$M$19))/12-'Hypothetical Summary'!M24/12","v":52.051431529634549},{"$f":"((E143*'Hypothetical Summary'!$M$17)+('Rate Trajectory Report'!E145*'Hypothetical Summary'!$M$18)+('Rate Trajectory Report'!E147*'Hypothetical Summary'!$M$19))/12-'Hypothetical Summary'!M24/12","v":52.051431529634549},{"$f":"((F143*'Hypothetical Summary'!$M$17)+('Rate Trajectory Report'!F145*'Hypothetical Summary'!$M$18)+('Rate Trajectory Report'!F147*'Hypothetical Summary'!$M$19))/12-'Hypothetical Summary'!M24/12","v":52.051431529634549},{"$f":"((G143*'Hypothetical Summary'!$M$17)+('Rate Trajectory Report'!G145*'Hypothetical Summary'!$M$18)+('Rate Trajectory Report'!G147*'Hypothetical Summary'!$M$19))/12-'Hypothetical Summary'!M24/12","v":52.051431529634549},{"$f":"((H143*'Hypothetical Summary'!$M$17)+('Rate Trajectory Report'!H145*'Hypothetical Summary'!$M$18)+('Rate Trajectory Report'!H147*'Hypothetical Summary'!$M$19))/12-'Hypothetical Summary'!M24/12","v":56.197895942413986},{"$f":"((I143*'Hypothetical Summary'!$M$17)+('Rate Trajectory Report'!I145*'Hypothetical Summary'!$M$18)+('Rate Trajectory Report'!I147*'Hypothetical Summary'!$M$19))/12-'Hypothetical Summary'!M24/12","v":56.197895942413986},{"$f":"((J143*'Hypothetical Summary'!$M$17)+('Rate Trajectory Report'!J145*'Hypothetical Summary'!$M$18)+('Rate Trajectory Report'!J147*'Hypothetical Summary'!$M$19))/12-'Hypothetical Summary'!M24/12","v":56.197895942413986},{"$f":"((K143*'Hypothetical Summary'!$M$17)+('Rate Trajectory Report'!K145*'Hypothetical Summary'!$M$18)+('Rate Trajectory Report'!K147*'Hypothetical Summary'!$M$19))/12-'Hypothetical Summary'!M24/12","v":56.197895942413986},{"$f":"((L143*'Hypothetical Summary'!$M$17)+('Rate Trajectory Report'!L145*'Hypothetical Summary'!$M$18)+('Rate Trajectory Report'!L147*'Hypothetical Summary'!$M$19))/12-'Hypothetical Summary'!M24/12","v":56.197895942413986},{"$f":"((M143*'Hypothetical Summary'!$M$17)+('Rate Trajectory Report'!M145*'Hypothetical Summary'!$M$18)+('Rate Trajectory Report'!M147*'Hypothetical Summary'!$M$19))/12-'Hypothetical Summary'!M24/12","v":56.197895942413986},{"$f":"((N143*'Hypothetical Summary'!$M$17)+('Rate Trajectory Report'!N145*'Hypothetical Summary'!$M$18)+('Rate Trajectory Report'!N147*'Hypothetical Summary'!$M$19))/12-'Hypothetical Summary'!M24/12","v":56.197895942413986},{"$f":"((O143*'Hypothetical Summary'!$M$17)+('Rate Trajectory Report'!O145*'Hypothetical Summary'!$M$18)+('Rate Trajectory Report'!O147*'Hypothetical Summary'!$M$19))/12-'Hypothetical Summary'!M24/12","v":56.197895942413986},{"$f":"((P143*'Hypothetical Summary'!$M$17)+('Rate Trajectory Report'!P145*'Hypothetical Summary'!$M$18)+('Rate Trajectory Report'!P147*'Hypothetical Summary'!$M$19))/12-'Hypothetical Summary'!M24/12","v":56.197895942413986},{"$f":"((Q143*'Hypothetical Summary'!$M$17)+('Rate Trajectory Report'!Q145*'Hypothetical Summary'!$M$18)+('Rate Trajectory Report'!Q147*'Hypothetical Summary'!$M$19))/12-'Hypothetical Summary'!M24/12","v":56.197895942413986},{"$f":"((R143*'Hypothetical Summary'!$M$17)+('Rate Trajectory Report'!R145*'Hypothetical Summary'!$M$18)+('Rate Trajectory Report'!R147*'Hypothetical Summary'!$M$19))/12-'Hypothetical Summary'!M24/12","v":56.197895942413986},{"$f":"((S143*'Hypothetical Summary'!$M$17)+('Rate Trajectory Report'!S145*'Hypothetical Summary'!$M$18)+('Rate Trajectory Report'!S147*'Hypothetical Summary'!$M$19))/12-'Hypothetical Summary'!M24/12","v":56.197895942413986},{"$f":"((T143*'Hypothetical Summary'!$M$17)+('Rate Trajectory Report'!T145*'Hypothetical Summary'!$M$18)+('Rate Trajectory Report'!T147*'Hypothetical Summary'!$M$19))/12-'Hypothetical Summary'!M24/12","v":56.996954448886463},{"$f":"((U143*'Hypothetical Summary'!$M$17)+('Rate Trajectory Report'!U145*'Hypothetical Summary'!$M$18)+('Rate Trajectory Report'!U147*'Hypothetical Summary'!$M$19))/12-'Hypothetical Summary'!M24/12","v":56.996954448886463},{"$f":"((V143*'Hypothetical Summary'!$M$17)+('Rate Trajectory Report'!V145*'Hypothetical Summary'!$M$18)+('Rate Trajectory Report'!V147*'Hypothetical Summary'!$M$19))/12-'Hypothetical Summary'!M24/12","v":56.996954448886463},{"$f":"((W143*'Hypothetical Summary'!$M$17)+('Rate Trajectory Report'!W145*'Hypothetical Summary'!$M$18)+('Rate Trajectory Report'!W147*'Hypothetical Summary'!$M$19))/12-'Hypothetical Summary'!M24/12","v":56.996954448886463},{"$f":"((X143*'Hypothetical Summary'!$M$17)+('Rate Trajectory Report'!X145*'Hypothetical Summary'!$M$18)+('Rate Trajectory Report'!X147*'Hypothetical Summary'!$M$19))/12-'Hypothetical Summary'!M24/12","v":56.996954448886463},{"$f":"((Y143*'Hypothetical Summary'!$M$17)+('Rate Trajectory Report'!Y145*'Hypothetical Summary'!$M$18)+('Rate Trajectory Report'!Y147*'Hypothetical Summary'!$M$19))/12-'Hypothetical Summary'!M24/12","v":56.996954448886463},{"$f":"((Z143*'Hypothetical Summary'!$M$17)+('Rate Trajectory Report'!Z145*'Hypothetical Summary'!$M$18)+('Rate Trajectory Report'!Z147*'Hypothetical Summary'!$M$19))/12-'Hypothetical Summary'!M24/12","v":56.996954448886463},{"$f":"((AA143*'Hypothetical Summary'!$M$17)+('Rate Trajectory Report'!AA145*'Hypothetical Summary'!$M$18)+('Rate Trajectory Report'!AA147*'Hypothetical Summary'!$M$19))/12-'Hypothetical Summary'!M24/12","v":56.996954448886463}]
[null,"Illustrative Bill Change",null,{"$f":"D141-C141","v":-3.3703883410396429E-5},{"$f":"E141-D141","v":0},{"$f":"F141-E141","v":0},{"$f":"G141-F141","v":0},4.1464644127794372,0,0,0,0,0,0,0,0,0,0,0,0.79905850647247689,0,0,0,0,0,0,{"$f":"AA141-Z141","v":0}]
[null,"Illustrative Monthly Average - Summer",{"$f":"VLOOKUP('Rate Trajectory Dashboard'!$D$5,'Res Bill Impact'!$B$52:$H$61,5,FALSE)","v":37.386735364074219},{"$f":"INDEX('Rate Trajectory Calc'!$B$123:$CQ$192,MATCH(\"CARESummer\"&'Rate Trajectory Dashboard'!$D$5,'Rate Trajectory Calc'!$B$123:$B$192,0),MATCH('Rate Trajectory Report'!D$5,'Rate Trajectory Calc'!$B$123:$CQ$123,0))","v":37.386721462781885},{"$f":"INDEX('Rate Trajectory Calc'!$B$123:$CQ$192,MATCH(\"CARESummer\"&'Rate Trajectory Dashboard'!$D$5,'Rate Trajectory Calc'!$B$123:$B$192,0),MATCH('Rate Trajectory Report'!E$5,'Rate Trajectory Calc'!$B$123:$CQ$123,0))","v":37.386721462781885},{"$f":"INDEX('Rate Trajectory Calc'!$B$123:$CQ$192,MATCH(\"CARESummer\"&'Rate Trajectory Dashboard'!$D$5,'Rate Trajectory Calc'!$B$123:$B$192,0),MATCH('Rate Trajectory Report'!F$5,'Rate Trajectory Calc'!$B$123:$CQ$123,0))","v":37.386721462781885},{"$f":"INDEX('Rate Trajectory Calc'!$B$123:$CQ$192,MATCH(\"CARESummer\"&'Rate Trajectory Dashboard'!$D$5,'Rate Trajectory Calc'!$B$123:$B$192,0),MATCH('Rate Trajectory Report'!G$5,'Rate Trajectory Calc'!$B$123:$CQ$123,0))","v":37.386721462781885},{"$f":"INDEX('Rate Trajectory Calc'!$B$123:$CQ$192,MATCH(\"CARESummer\"&'Rate Trajectory Dashboard'!$D$5,'Rate Trajectory Calc'!$B$123:$B$192,0),MATCH('Rate Trajectory Report'!H$5,'Rate Trajectory Calc'!$B$123:$CQ$123,0))","v":40.080611764112852},{"$f":"INDEX('Rate Trajectory Calc'!$B$123:$CQ$192,MATCH(\"CARESummer\"&'Rate Trajectory Dashboard'!$D$5,'Rate Trajectory Calc'!$B$123:$B$192,0),MATCH('Rate Trajectory Report'!I$5,'Rate Trajectory Calc'!$B$123:$CQ$123,0))","v":40.080611764112852},{"$f":"INDEX('Rate Trajectory Calc'!$B$123:$CQ$192,MATCH(\"CARESummer\"&'Rate Trajectory Dashboard'!$D$5,'Rate Trajectory Calc'!$B$123:$B$192,0),MATCH('Rate Trajectory Report'!J$5,'Rate Trajectory Calc'!$B$123:$CQ$123,0))","v":40.080611764112852},{"$f":"INDEX('Rate Trajectory Calc'!$B$123:$CQ$192,MATCH(\"CARESummer\"&'Rate Trajectory Dashboard'!$D$5,'Rate Trajectory Calc'!$B$123:$B$192,0),MATCH('Rate Trajectory Report'!K$5,'Rate Trajectory Calc'!$B$123:$CQ$123,0))","v":40.080611764112852},{"$f":"INDEX('Rate Trajectory Calc'!$B$123:$CQ$192,MATCH(\"CARESummer\"&'Rate Trajectory Dashboard'!$D$5,'Rate Trajectory Calc'!$B$123:$B$192,0),MATCH('Rate Trajectory Report'!L$5,'Rate Trajectory Calc'!$B$123:$CQ$123,0))","v":40.080611764112852},{"$f":"INDEX('Rate Trajectory Calc'!$B$123:$CQ$192,MATCH(\"CARESummer\"&'Rate Trajectory Dashboard'!$D$5,'Rate Trajectory Calc'!$B$123:$B$192,0),MATCH('Rate Trajectory Report'!M$5,'Rate Trajectory Calc'!$B$123:$CQ$123,0))","v":40.080611764112852},{"$f":"INDEX('Rate Trajectory Calc'!$B$123:$CQ$192,MATCH(\"CARESummer\"&'Rate Trajectory Dashboard'!$D$5,'Rate Trajectory Calc'!$B$123:$B$192,0),MATCH('Rate Trajectory Report'!N$5,'Rate Trajectory Calc'!$B$123:$CQ$123,0))","v":40.080611764112852},{"$f":"INDEX('Rate Trajectory Calc'!$B$123:$CQ$192,MATCH(\"CARESummer\"&'Rate Trajectory Dashboard'!$D$5,'Rate Trajectory Calc'!$B$123:$B$192,0),MATCH('Rate Trajectory Report'!O$5,'Rate Trajectory Calc'!$B$123:$CQ$123,0))","v":40.080611764112852},{"$f":"INDEX('Rate Trajectory Calc'!$B$123:$CQ$192,MATCH(\"CARESummer\"&'Rate Trajectory Dashboard'!$D$5,'Rate Trajectory Calc'!$B$123:$B$192,0),MATCH('Rate Trajectory Report'!P$5,'Rate Trajectory Calc'!$B$123:$CQ$123,0))","v":40.080611764112852},{"$f":"INDEX('Rate Trajectory Calc'!$B$123:$CQ$192,MATCH(\"CARESummer\"&'Rate Trajectory Dashboard'!$D$5,'Rate Trajectory Calc'!$B$123:$B$192,0),MATCH('Rate Trajectory Report'!Q$5,'Rate Trajectory Calc'!$B$123:$CQ$123,0))","v":40.080611764112852},{"$f":"INDEX('Rate Trajectory Calc'!$B$123:$CQ$192,MATCH(\"CARESummer\"&'Rate Trajectory Dashboard'!$D$5,'Rate Trajectory Calc'!$B$123:$B$192,0),MATCH('Rate Trajectory Report'!R$5,'Rate Trajectory Calc'!$B$123:$CQ$123,0))","v":40.080611764112852},{"$f":"INDEX('Rate Trajectory Calc'!$B$123:$CQ$192,MATCH(\"CARESummer\"&'Rate Trajectory Dashboard'!$D$5,'Rate Trajectory Calc'!$B$123:$B$192,0),MATCH('Rate Trajectory Report'!S$5,'Rate Trajectory Calc'!$B$123:$CQ$123,0))","v":40.080611764112852},{"$f":"INDEX('Rate Trajectory Calc'!$B$123:$CQ$192,MATCH(\"CARESummer\"&'Rate Trajectory Dashboard'!$D$5,'Rate Trajectory Calc'!$B$123:$B$192,0),MATCH('Rate Trajectory Report'!T$5,'Rate Trajectory Calc'!$B$123:$CQ$123,0))","v":40.604720781726456},{"$f":"INDEX('Rate Trajectory Calc'!$B$123:$CQ$192,MATCH(\"CARESummer\"&'Rate Trajectory Dashboard'!$D$5,'Rate Trajectory Calc'!$B$123:$B$192,0),MATCH('Rate Trajectory Report'!U$5,'Rate Trajectory Calc'!$B$123:$CQ$123,0))","v":40.604720781726456},{"$f":"INDEX('Rate Trajectory Calc'!$B$123:$CQ$192,MATCH(\"CARESummer\"&'Rate Trajectory Dashboard'!$D$5,'Rate Trajectory Calc'!$B$123:$B$192,0),MATCH('Rate Trajectory Report'!V$5,'Rate Trajectory Calc'!$B$123:$CQ$123,0))","v":40.604720781726456},{"$f":"INDEX('Rate Trajectory Calc'!$B$123:$CQ$192,MATCH(\"CARESummer\"&'Rate Trajectory Dashboard'!$D$5,'Rate Trajectory Calc'!$B$123:$B$192,0),MATCH('Rate Trajectory Report'!W$5,'Rate Trajectory Calc'!$B$123:$CQ$123,0))","v":40.604720781726456},{"$f":"INDEX('Rate Trajectory Calc'!$B$123:$CQ$192,MATCH(\"CARESummer\"&'Rate Trajectory Dashboard'!$D$5,'Rate Trajectory Calc'!$B$123:$B$192,0),MATCH('Rate Trajectory Report'!X$5,'Rate Trajectory Calc'!$B$123:$CQ$123,0))","v":40.604720781726456},{"$f":"INDEX('Rate Trajectory Calc'!$B$123:$CQ$192,MATCH(\"CARESummer\"&'Rate Trajectory Dashboard'!$D$5,'Rate Trajectory Calc'!$B$123:$B$192,0),MATCH('Rate Trajectory Report'!Y$5,'Rate Trajectory Calc'!$B$123:$CQ$123,0))","v":40.604720781726456},{"$f":"INDEX('Rate Trajectory Calc'!$B$123:$CQ$192,MATCH(\"CARESummer\"&'Rate Trajectory Dashboard'!$D$5,'Rate Trajectory Calc'!$B$123:$B$192,0),MATCH('Rate Trajectory Report'!Z$5,'Rate Trajectory Calc'!$B$123:$CQ$123,0))","v":40.604720781726456},{"$f":"INDEX('Rate Trajectory Calc'!$B$123:$CQ$192,MATCH(\"CARESummer\"&'Rate Trajectory Dashboard'!$D$5,'Rate Trajectory Calc'!$B$123:$B$192,0),MATCH('Rate Trajectory Report'!AA$5,'Rate Trajectory Calc'!$B$123:$CQ$123,0))","v":40.604720781726456}]
[null,"Illustrative Bill Change",null,{"$f":"D143-C143","v":-1.3901292334139725E-5},{"$f":"E143-D143","v":0},{"$f":"F143-E143","v":0},{"$f":"G143-F143","v":0},2.693890301330967,0,0,0,0,0,0,0,0,0,0,0,0.52410901761360407,0,0,0,0,0,0,{"$f":"AA143-Z143","v":0}]
[null,"Illustrative Monthly Average - Winter Off-Peak",{"$f":"VLOOKUP('Rate Trajectory Dashboard'!$D$5,'Res Bill Impact'!$B$52:$H$61,6,FALSE)","v":76.281010944073799},{"$f":"INDEX('Rate Trajectory Calc'!$B$123:$CQ$192,MATCH(\"CAREWinter Off-Peak\"&'Rate Trajectory Dashboard'!$D$5,'Rate Trajectory Calc'!$B$123:$B$192,0),MATCH('Rate Trajectory Report'!D$5,'Rate Trajectory Calc'!$B$123:$CQ$123,0))","v":76.280956451271337},{"$f":"INDEX('Rate Trajectory Calc'!$B$123:$CQ$192,MATCH(\"CAREWinter Off-Peak\"&'Rate Trajectory Dashboard'!$D$5,'Rate Trajectory Calc'!$B$123:$B$192,0),MATCH('Rate Trajectory Report'!E$5,'Rate Trajectory Calc'!$B$123:$CQ$123,0))","v":76.280956451271337},{"$f":"INDEX('Rate Trajectory Calc'!$B$123:$CQ$192,MATCH(\"CAREWinter Off-Peak\"&'Rate Trajectory Dashboard'!$D$5,'Rate Trajectory Calc'!$B$123:$B$192,0),MATCH('Rate Trajectory Report'!F$5,'Rate Trajectory Calc'!$B$123:$CQ$123,0))","v":76.280956451271337},{"$f":"INDEX('Rate Trajectory Calc'!$B$123:$CQ$192,MATCH(\"CAREWinter Off-Peak\"&'Rate Trajectory Dashboard'!$D$5,'Rate Trajectory Calc'!$B$123:$B$192,0),MATCH('Rate Trajectory Report'!G$5,'Rate Trajectory Calc'!$B$123:$CQ$123,0))","v":76.280956451271337},{"$f":"INDEX('Rate Trajectory Calc'!$B$123:$CQ$192,MATCH(\"CAREWinter Off-Peak\"&'Rate Trajectory Dashboard'!$D$5,'Rate Trajectory Calc'!$B$123:$B$192,0),MATCH('Rate Trajectory Report'!H$5,'Rate Trajectory Calc'!$B$123:$CQ$123,0))","v":81.763340955924491},{"$f":"INDEX('Rate Trajectory Calc'!$B$123:$CQ$192,MATCH(\"CAREWinter Off-Peak\"&'Rate Trajectory Dashboard'!$D$5,'Rate Trajectory Calc'!$B$123:$B$192,0),MATCH('Rate Trajectory Report'!I$5,'Rate Trajectory Calc'!$B$123:$CQ$123,0))","v":81.763340955924491},{"$f":"INDEX('Rate Trajectory Calc'!$B$123:$CQ$192,MATCH(\"CAREWinter Off-Peak\"&'Rate Trajectory Dashboard'!$D$5,'Rate Trajectory Calc'!$B$123:$B$192,0),MATCH('Rate Trajectory Report'!J$5,'Rate Trajectory Calc'!$B$123:$CQ$123,0))","v":81.763340955924491},{"$f":"INDEX('Rate Trajectory Calc'!$B$123:$CQ$192,MATCH(\"CAREWinter Off-Peak\"&'Rate Trajectory Dashboard'!$D$5,'Rate Trajectory Calc'!$B$123:$B$192,0),MATCH('Rate Trajectory Report'!K$5,'Rate Trajectory Calc'!$B$123:$CQ$123,0))","v":81.763340955924491},{"$f":"INDEX('Rate Trajectory Calc'!$B$123:$CQ$192,MATCH(\"CAREWinter Off-Peak\"&'Rate Trajectory Dashboard'!$D$5,'Rate Trajectory Calc'!$B$123:$B$192,0),MATCH('Rate Trajectory Report'!L$5,'Rate Trajectory Calc'!$B$123:$CQ$123,0))","v":81.763340955924491},{"$f":"INDEX('Rate Trajectory Calc'!$B$123:$CQ$192,MATCH(\"CAREWinter Off-Peak\"&'Rate Trajectory Dashboard'!$D$5,'Rate Trajectory Calc'!$B$123:$B$192,0),MATCH('Rate Trajectory Report'!M$5,'Rate Trajectory Calc'!$B$123:$CQ$123,0))","v":81.763340955924491},{"$f":"INDEX('Rate Trajectory Calc'!$B$123:$CQ$192,MATCH(\"CAREWinter Off-Peak\"&'Rate Trajectory Dashboard'!$D$5,'Rate Trajectory Calc'!$B$123:$B$192,0),MATCH('Rate Trajectory Report'!N$5,'Rate Trajectory Calc'!$B$123:$CQ$123,0))","v":81.763340955924491},{"$f":"INDEX('Rate Trajectory Calc'!$B$123:$CQ$192,MATCH(\"CAREWinter Off-Peak\"&'Rate Trajectory Dashboard'!$D$5,'Rate Trajectory Calc'!$B$123:$B$192,0),MATCH('Rate Trajectory Report'!O$5,'Rate Trajectory Calc'!$B$123:$CQ$123,0))","v":81.763340955924491},{"$f":"INDEX('Rate Trajectory Calc'!$B$123:$CQ$192,MATCH(\"CAREWinter Off-Peak\"&'Rate Trajectory Dashboard'!$D$5,'Rate Trajectory Calc'!$B$123:$B$192,0),MATCH('Rate Trajectory Report'!P$5,'Rate Trajectory Calc'!$B$123:$CQ$123,0))","v":81.763340955924491},{"$f":"INDEX('Rate Trajectory Calc'!$B$123:$CQ$192,MATCH(\"CAREWinter Off-Peak\"&'Rate Trajectory Dashboard'!$D$5,'Rate Trajectory Calc'!$B$123:$B$192,0),MATCH('Rate Trajectory Report'!Q$5,'Rate Trajectory Calc'!$B$123:$CQ$123,0))","v":81.763340955924491},{"$f":"INDEX('Rate Trajectory Calc'!$B$123:$CQ$192,MATCH(\"CAREWinter Off-Peak\"&'Rate Trajectory Dashboard'!$D$5,'Rate Trajectory Calc'!$B$123:$B$192,0),MATCH('Rate Trajectory Report'!R$5,'Rate Trajectory Calc'!$B$123:$CQ$123,0))","v":81.763340955924491},{"$f":"INDEX('Rate Trajectory Calc'!$B$123:$CQ$192,MATCH(\"CAREWinter Off-Peak\"&'Rate Trajectory Dashboard'!$D$5,'Rate Trajectory Calc'!$B$123:$B$192,0),MATCH('Rate Trajectory Report'!S$5,'Rate Trajectory Calc'!$B$123:$CQ$123,0))","v":81.763340955924491},{"$f":"INDEX('Rate Trajectory Calc'!$B$123:$CQ$192,MATCH(\"CAREWinter Off-Peak\"&'Rate Trajectory Dashboard'!$D$5,'Rate Trajectory Calc'!$B$123:$B$192,0),MATCH('Rate Trajectory Report'!T$5,'Rate Trajectory Calc'!$B$123:$CQ$123,0))","v":82.813665344117069},{"$f":"INDEX('Rate Trajectory Calc'!$B$123:$CQ$192,MATCH(\"CAREWinter Off-Peak\"&'Rate Trajectory Dashboard'!$D$5,'Rate Trajectory Calc'!$B$123:$B$192,0),MATCH('Rate Trajectory Report'!U$5,'Rate Trajectory Calc'!$B$123:$CQ$123,0))","v":82.813665344117069},{"$f":"INDEX('Rate Trajectory Calc'!$B$123:$CQ$192,MATCH(\"CAREWinter Off-Peak\"&'Rate Trajectory Dashboard'!$D$5,'Rate Trajectory Calc'!$B$123:$B$192,0),MATCH('Rate Trajectory Report'!V$5,'Rate Trajectory Calc'!$B$123:$CQ$123,0))","v":82.813665344117069},{"$f":"INDEX('Rate Trajectory Calc'!$B$123:$CQ$192,MATCH(\"CAREWinter Off-Peak\"&'Rate Trajectory Dashboard'!$D$5,'Rate Trajectory Calc'!$B$123:$B$192,0),MATCH('Rate Trajectory Report'!W$5,'Rate Trajectory Calc'!$B$123:$CQ$123,0))","v":82.813665344117069},{"$f":"INDEX('Rate Trajectory Calc'!$B$123:$CQ$192,MATCH(\"CAREWinter Off-Peak\"&'Rate Trajectory Dashboard'!$D$5,'Rate Trajectory Calc'!$B$123:$B$192,0),MATCH('Rate Trajectory Report'!X$5,'Rate Trajectory Calc'!$B$123:$CQ$123,0))","v":82.813665344117069},{"$f":"INDEX('Rate Trajectory Calc'!$B$123:$CQ$192,MATCH(\"CAREWinter Off-Peak\"&'Rate Trajectory Dashboard'!$D$5,'Rate Trajectory Calc'!$B$123:$B$192,0),MATCH('Rate Trajectory Report'!Y$5,'Rate Trajectory Calc'!$B$123:$CQ$123,0))","v":82.813665344117069},{"$f":"INDEX('Rate Trajectory Calc'!$B$123:$CQ$192,MATCH(\"CAREWinter Off-Peak\"&'Rate Trajectory Dashboard'!$D$5,'Rate Trajectory Calc'!$B$123:$B$192,0),MATCH('Rate Trajectory Report'!Z$5,'Rate Trajectory Calc'!$B$123:$CQ$123,0))","v":82.813665344117069},{"$f":"INDEX('Rate Trajectory Calc'!$B$123:$CQ$192,MATCH(\"CAREWinter Off-Peak\"&'Rate Trajectory Dashboard'!$D$5,'Rate Trajectory Calc'!$B$123:$B$192,0),MATCH('Rate Trajectory Report'!AA$5,'Rate Trajectory Calc'!$B$123:$CQ$123,0))","v":82.813665344117069}]
[null,"Illustrative Bill Change",null,{"$f":"D145-C145","v":-5.449280246239141E-5},{"$f":"E145-D145","v":0},{"$f":"F145-E145","v":0},{"$f":"G145-F145","v":0},5.4823845046531545,0,0,0,0,0,0,0,0,0,0,0,1.0503243881925783,0,0,0,0,0,0,{"$f":"AA145-Z145","v":0}]
[null,"Illustrative Monthly Average - Winter On-Peak",{"$f":"VLOOKUP('Rate Trajectory Dashboard'!$D$5,'Res Bill Impact'!$B$52:$H$61,7,FALSE)","v":100.54965498740653},{"$f":"INDEX('Rate Trajectory Calc'!$B$123:$CQ$192,MATCH(\"CAREWinter On-Peak\"&'Rate Trajectory Dashboard'!$D$5,'Rate Trajectory Calc'!$B$123:$B$192,0),MATCH('Rate Trajectory Report'!D$5,'Rate Trajectory Calc'!$B$123:$CQ$123,0))","v":100.54958315783297},{"$f":"INDEX('Rate Trajectory Calc'!$B$123:$CQ$192,MATCH(\"CAREWinter On-Peak\"&'Rate Trajectory Dashboard'!$D$5,'Rate Trajectory Calc'!$B$123:$B$192,0),MATCH('Rate Trajectory Report'!E$5,'Rate Trajectory Calc'!$B$123:$CQ$123,0))","v":100.54958315783297},{"$f":"INDEX('Rate Trajectory Calc'!$B$123:$CQ$192,MATCH(\"CAREWinter On-Peak\"&'Rate Trajectory Dashboard'!$D$5,'Rate Trajectory Calc'!$B$123:$B$192,0),MATCH('Rate Trajectory Report'!F$5,'Rate Trajectory Calc'!$B$123:$CQ$123,0))","v":100.54958315783297},{"$f":"INDEX('Rate Trajectory Calc'!$B$123:$CQ$192,MATCH(\"CAREWinter On-Peak\"&'Rate Trajectory Dashboard'!$D$5,'Rate Trajectory Calc'!$B$123:$B$192,0),MATCH('Rate Trajectory Report'!G$5,'Rate Trajectory Calc'!$B$123:$CQ$123,0))","v":100.54958315783297},{"$f":"INDEX('Rate Trajectory Calc'!$B$123:$CQ$192,MATCH(\"CAREWinter On-Peak\"&'Rate Trajectory Dashboard'!$D$5,'Rate Trajectory Calc'!$B$123:$B$192,0),MATCH('Rate Trajectory Report'!H$5,'Rate Trajectory Calc'!$B$123:$CQ$123,0))","v":107.77617682287146},{"$f":"INDEX('Rate Trajectory Calc'!$B$123:$CQ$192,MATCH(\"CAREWinter On-Peak\"&'Rate Trajectory Dashboard'!$D$5,'Rate Trajectory Calc'!$B$123:$B$192,0),MATCH('Rate Trajectory Report'!I$5,'Rate Trajectory Calc'!$B$123:$CQ$123,0))","v":107.77617682287146},{"$f":"INDEX('Rate Trajectory Calc'!$B$123:$CQ$192,MATCH(\"CAREWinter On-Peak\"&'Rate Trajectory Dashboard'!$D$5,'Rate Trajectory Calc'!$B$123:$B$192,0),MATCH('Rate Trajectory Report'!J$5,'Rate Trajectory Calc'!$B$123:$CQ$123,0))","v":107.77617682287146},{"$f":"INDEX('Rate Trajectory Calc'!$B$123:$CQ$192,MATCH(\"CAREWinter On-Peak\"&'Rate Trajectory Dashboard'!$D$5,'Rate Trajectory Calc'!$B$123:$B$192,0),MATCH('Rate Trajectory Report'!K$5,'Rate Trajectory Calc'!$B$123:$CQ$123,0))","v":107.77617682287146},{"$f":"INDEX('Rate Trajectory Calc'!$B$123:$CQ$192,MATCH(\"CAREWinter On-Peak\"&'Rate Trajectory Dashboard'!$D$5,'Rate Trajectory Calc'!$B$123:$B$192,0),MATCH('Rate Trajectory Report'!L$5,'Rate Trajectory Calc'!$B$123:$CQ$123,0))","v":107.77617682287146},{"$f":"INDEX('Rate Trajectory Calc'!$B$123:$CQ$192,MATCH(\"CAREWinter On-Peak\"&'Rate Trajectory Dashboard'!$D$5,'Rate Trajectory Calc'!$B$123:$B$192,0),MATCH('Rate Trajectory Report'!M$5,'Rate Trajectory Calc'!$B$123:$CQ$123,0))","v":107.77617682287146},{"$f":"INDEX('Rate Trajectory Calc'!$B$123:$CQ$192,MATCH(\"CAREWinter On-Peak\"&'Rate Trajectory Dashboard'!$D$5,'Rate Trajectory Calc'!$B$123:$B$192,0),MATCH('Rate Trajectory Report'!N$5,'Rate Trajectory Calc'!$B$123:$CQ$123,0))","v":107.77617682287146},{"$f":"INDEX('Rate Trajectory Calc'!$B$123:$CQ$192,MATCH(\"CAREWinter On-Peak\"&'Rate Trajectory Dashboard'!$D$5,'Rate Trajectory Calc'!$B$123:$B$192,0),MATCH('Rate Trajectory Report'!O$5,'Rate Trajectory Calc'!$B$123:$CQ$123,0))","v":107.77617682287146},{"$f":"INDEX('Rate Trajectory Calc'!$B$123:$CQ$192,MATCH(\"CAREWinter On-Peak\"&'Rate Trajectory Dashboard'!$D$5,'Rate Trajectory Calc'!$B$123:$B$192,0),MATCH('Rate Trajectory Report'!P$5,'Rate Trajectory Calc'!$B$123:$CQ$123,0))","v":107.77617682287146},{"$f":"INDEX('Rate Trajectory Calc'!$B$123:$CQ$192,MATCH(\"CAREWinter On-Peak\"&'Rate Trajectory Dashboard'!$D$5,'Rate Trajectory Calc'!$B$123:$B$192,0),MATCH('Rate Trajectory Report'!Q$5,'Rate Trajectory Calc'!$B$123:$CQ$123,0))","v":107.77617682287146},{"$f":"INDEX('Rate Trajectory Calc'!$B$123:$CQ$192,MATCH(\"CAREWinter On-Peak\"&'Rate Trajectory Dashboard'!$D$5,'Rate Trajectory Calc'!$B$123:$B$192,0),MATCH('Rate Trajectory Report'!R$5,'Rate Trajectory Calc'!$B$123:$CQ$123,0))","v":107.77617682287146},{"$f":"INDEX('Rate Trajectory Calc'!$B$123:$CQ$192,MATCH(\"CAREWinter On-Peak\"&'Rate Trajectory Dashboard'!$D$5,'Rate Trajectory Calc'!$B$123:$B$192,0),MATCH('Rate Trajectory Report'!S$5,'Rate Trajectory Calc'!$B$123:$CQ$123,0))","v":107.77617682287146},{"$f":"INDEX('Rate Trajectory Calc'!$B$123:$CQ$192,MATCH(\"CAREWinter On-Peak\"&'Rate Trajectory Dashboard'!$D$5,'Rate Trajectory Calc'!$B$123:$B$192,0),MATCH('Rate Trajectory Report'!T$5,'Rate Trajectory Calc'!$B$123:$CQ$123,0))","v":109.1606597177698},{"$f":"INDEX('Rate Trajectory Calc'!$B$123:$CQ$192,MATCH(\"CAREWinter On-Peak\"&'Rate Trajectory Dashboard'!$D$5,'Rate Trajectory Calc'!$B$123:$B$192,0),MATCH('Rate Trajectory Report'!U$5,'Rate Trajectory Calc'!$B$123:$CQ$123,0))","v":109.1606597177698},{"$f":"INDEX('Rate Trajectory Calc'!$B$123:$CQ$192,MATCH(\"CAREWinter On-Peak\"&'Rate Trajectory Dashboard'!$D$5,'Rate Trajectory Calc'!$B$123:$B$192,0),MATCH('Rate Trajectory Report'!V$5,'Rate Trajectory Calc'!$B$123:$CQ$123,0))","v":109.1606597177698},{"$f":"INDEX('Rate Trajectory Calc'!$B$123:$CQ$192,MATCH(\"CAREWinter On-Peak\"&'Rate Trajectory Dashboard'!$D$5,'Rate Trajectory Calc'!$B$123:$B$192,0),MATCH('Rate Trajectory Report'!W$5,'Rate Trajectory Calc'!$B$123:$CQ$123,0))","v":109.1606597177698},{"$f":"INDEX('Rate Trajectory Calc'!$B$123:$CQ$192,MATCH(\"CAREWinter On-Peak\"&'Rate Trajectory Dashboard'!$D$5,'Rate Trajectory Calc'!$B$123:$B$192,0),MATCH('Rate Trajectory Report'!X$5,'Rate Trajectory Calc'!$B$123:$CQ$123,0))","v":109.1606597177698},{"$f":"INDEX('Rate Trajectory Calc'!$B$123:$CQ$192,MATCH(\"CAREWinter On-Peak\"&'Rate Trajectory Dashboard'!$D$5,'Rate Trajectory Calc'!$B$123:$B$192,0),MATCH('Rate Trajectory Report'!Y$5,'Rate Trajectory Calc'!$B$123:$CQ$123,0))","v":109.1606597177698},{"$f":"INDEX('Rate Trajectory Calc'!$B$123:$CQ$192,MATCH(\"CAREWinter On-Peak\"&'Rate Trajectory Dashboard'!$D$5,'Rate Trajectory Calc'!$B$123:$B$192,0),MATCH('Rate Trajectory Report'!Z$5,'Rate Trajectory Calc'!$B$123:$CQ$123,0))","v":109.1606597177698},{"$f":"INDEX('Rate Trajectory Calc'!$B$123:$CQ$192,MATCH(\"CAREWinter On-Peak\"&'Rate Trajectory Dashboard'!$D$5,'Rate Trajectory Calc'!$B$123:$B$192,0),MATCH('Rate Trajectory Report'!AA$5,'Rate Trajectory Calc'!$B$123:$CQ$123,0))","v":109.1606597177698}]
[null,"Illustrative Bill Change",null,{"$f":"D147-C147","v":-7.1829573556669857E-5},{"$f":"E147-D147","v":0},{"$f":"F147-E147","v":0},{"$f":"G147-F147","v":0},7.226593665038493,0,0,0,0,0,0,0,0,0,0,0,1.3844828948983405,0,0,0,0,0,0,{"$f":"AA147-Z147","v":0}]
[]
[]
[null,"1/  CARE customers receive ~20% discount for gas; Climate Credit typically occurs in April for gas."]
[null,{"$f":"\"2/  Illustrative bills are based on recorded monthly average usage of \"&'Hypothetical Res Bill Impact'!Y32&\" therms for Non-CARE, \"&'Hypothetical Res Bill Impact'!Z32&\" therms for CARE, baseline territory \"&'Rate Trajectory Dashboard'!D5","v":"2/  Illustrative bills are based on recorded monthly average usage of 30 therms for Non-CARE, 27 therms for CARE, baseline territory ALL CLIMATE ZONES"}]

{"sheet":"Hypothetical SAR and RAR","index":15,"n_rows":41,"n_cols":31,"rows_kept":41,"cut":false,"hidden":false,"merged":[[10,6,10,27],[6,6,6,26],[26,6,26,23],[26,29,26,30],[26,31,26,32],[25,29,25,30],[25,31,25,32],[35,6,35,9],[74,19,74,20],[81,19,81,20],[44,6,44,23],[57,6,57,23],[61,5,61,21],[35,12,35,15]]}
[]
[]
[null,null,null,null,null,"Public Purpose Program Switch",{"$f":"IF(VLOOKUP(G$8,'RRQ Allocations'!$B$5:$L$25,3,FALSE)=\"PPP\",1,0)","v":0},{"$f":"IF(VLOOKUP(H$8,'RRQ Allocations'!$B$5:$L$25,3,FALSE)=\"PPP\",1,0)","v":0},{"$f":"IF(VLOOKUP(I$8,'RRQ Allocations'!$B$5:$L$25,3,FALSE)=\"PPP\",1,0)","v":0},{"$f":"IF(VLOOKUP(J$8,'RRQ Allocations'!$B$5:$L$25,3,FALSE)=\"PPP\",1,0)","v":0},{"$f":"IF(VLOOKUP(K$8,'RRQ Allocations'!$B$5:$L$25,3,FALSE)=\"PPP\",1,0)","v":0},{"$f":"IF(VLOOKUP(L$8,'RRQ Allocations'!$B$5:$L$25,3,FALSE)=\"PPP\",1,0)","v":0},{"$f":"IF(VLOOKUP(M$8,'RRQ Allocations'!$B$5:$L$25,3,FALSE)=\"PPP\",1,0)","v":0},{"$f":"IF(VLOOKUP(N$8,'RRQ Allocations'!$B$5:$L$25,3,FALSE)=\"PPP\",1,0)","v":0},{"$f":"IF(VLOOKUP(O$8,'RRQ Allocations'!$B$5:$L$25,3,FALSE)=\"PPP\",1,0)","v":1},{"$f":"IF(VLOOKUP(P$8,'RRQ Allocations'!$B$5:$L$25,3,FALSE)=\"PPP\",1,0)","v":1},{"$f":"IF(VLOOKUP(Q$8,'RRQ Allocations'!$B$5:$L$25,3,FALSE)=\"PPP\",1,0)","v":1},{"$f":"IF(VLOOKUP(R$8,'RRQ Allocations'!$B$5:$L$25,3,FALSE)=\"PPP\",1,0)","v":0},{"$f":"IF(VLOOKUP(S$8,'RRQ Allocations'!$B$5:$L$25,3,FALSE)=\"PPP\",1,0)","v":0},{"$f":"IF(VLOOKUP(T$8,'RRQ Allocations'!$B$5:$L$25,3,FALSE)=\"PPP\",1,0)","v":0},{"$f":"IF(VLOOKUP(U$8,'RRQ Allocations'!$B$5:$L$25,3,FALSE)=\"PPP\",1,0)","v":0},{"$f":"IF(VLOOKUP(V$8,'RRQ Allocations'!$B$5:$L$25,3,FALSE)=\"PPP\",1,0)","v":0},{"$f":"IF(VLOOKUP(W$8,'RRQ Allocations'!$B$5:$L$25,3,FALSE)=\"PPP\",1,0)","v":0},{"$f":"IF(VLOOKUP(X$8,'RRQ Allocations'!$B$5:$L$25,3,FALSE)=\"PPP\",1,0)","v":0},{"$f":"IF(VLOOKUP(Y$8,'RRQ Allocations'!$B$5:$L$25,3,FALSE)=\"PPP\",1,0)","v":0},{"$f":"IF(VLOOKUP(Z$8,'RRQ Allocations'!$B$5:$L$25,3,FALSE)=\"PPP\",1,0)","v":0},{"$f":"IF(VLOOKUP(AA$8,'RRQ Allocations'!$B$5:$L$25,3,FALSE)=\"PPP\",1,0)","v":0}]
[null,"Month Value",{"$f":"IFERROR(MONTH(HLOOKUP(Lookup_Value,'Rate Trajectory Calc'!H96:CQ97,'Rate Trajectory Calc'!CS97)),\" \")","v":" "},null,null,"Transporation Switch",{"$f":"IF(VLOOKUP(G$8,'RRQ Allocations'!$B$5:$L$25,3,FALSE)=\"T\",1,0)","v":1},{"$f":"IF(VLOOKUP(H$8,'RRQ Allocations'!$B$5:$L$25,3,FALSE)=\"T\",1,0)","v":1},{"$f":"IF(VLOOKUP(I$8,'RRQ Allocations'!$B$5:$L$25,3,FALSE)=\"T\",1,0)","v":1},{"$f":"IF(VLOOKUP(J$8,'RRQ Allocations'!$B$5:$L$25,3,FALSE)=\"T\",1,0)","v":1},{"$f":"IF(VLOOKUP(K$8,'RRQ Allocations'!$B$5:$L$25,3,FALSE)=\"T\",1,0)","v":1},{"$f":"IF(VLOOKUP(L$8,'RRQ Allocations'!$B$5:$L$25,3,FALSE)=\"T\",1,0)","v":1},{"$f":"IF(VLOOKUP(M$8,'RRQ Allocations'!$B$5:$L$25,3,FALSE)=\"T\",1,0)","v":1},{"$f":"IF(VLOOKUP(N$8,'RRQ Allocations'!$B$5:$L$25,3,FALSE)=\"T\",1,0)","v":1},{"$f":"IF(VLOOKUP(O$8,'RRQ Allocations'!$B$5:$L$25,3,FALSE)=\"T\",1,0)","v":0},{"$f":"IF(VLOOKUP(P$8,'RRQ Allocations'!$B$5:$L$25,3,FALSE)=\"T\",1,0)","v":0},{"$f":"IF(VLOOKUP(Q$8,'RRQ Allocations'!$B$5:$L$25,3,FALSE)=\"T\",1,0)","v":0},{"$f":"IF(VLOOKUP(R$8,'RRQ Allocations'!$B$5:$L$25,3,FALSE)=\"T\",1,0)","v":1},{"$f":"IF(VLOOKUP(S$8,'RRQ Allocations'!$B$5:$L$25,3,FALSE)=\"T\",1,0)","v":1},{"$f":"IF(VLOOKUP(T$8,'RRQ Allocations'!$B$5:$L$25,3,FALSE)=\"T\",1,0)","v":1},{"$f":"IF(VLOOKUP(U$8,'RRQ Allocations'!$B$5:$L$25,3,FALSE)=\"T\",1,0)","v":0},{"$f":"IF(VLOOKUP(V$8,'RRQ Allocations'!$B$5:$L$25,3,FALSE)=\"T\",1,0)","v":0},{"$f":"IF(VLOOKUP(W$8,'RRQ Allocations'!$B$5:$L$25,3,FALSE)=\"T\",1,0)","v":0},{"$f":"IF(VLOOKUP(X$8,'RRQ Allocations'!$B$5:$L$25,3,FALSE)=\"T\",1,0)","v":1},{"$f":"IF(VLOOKUP(Y$8,'RRQ Allocations'!$B$5:$L$25,3,FALSE)=\"T\",1,0)","v":1},{"$f":"IF(VLOOKUP(Z$8,'RRQ Allocations'!$B$5:$L$25,3,FALSE)=\"T\",1,0)","v":1},{"$f":"IF(VLOOKUP(AA$8,'RRQ Allocations'!$B$5:$L$25,3,FALSE)=\"T\",1,0)","v":1}]
[null,"Year",{"$f":"IF(Lookup_Value=0,\" \",YEAR(HLOOKUP(Lookup_Value,'Rate Trajectory Calc'!$H$96:$CQ$97,'Rate Trajectory Calc'!$CS$97)))","v":" "},null,null,"Procurement Switch",{"$f":"IF(VLOOKUP(G$8,'RRQ Allocations'!$B$5:$L$25,3,FALSE)=\"P\",1,0)","v":0},{"$f":"IF(VLOOKUP(H$8,'RRQ Allocations'!$B$5:$L$25,3,FALSE)=\"P\",1,0)","v":0},{"$f":"IF(VLOOKUP(I$8,'RRQ Allocations'!$B$5:$L$25,3,FALSE)=\"P\",1,0)","v":0},{"$f":"IF(VLOOKUP(J$8,'RRQ Allocations'!$B$5:$L$25,3,FALSE)=\"P\",1,0)","v":0},{"$f":"IF(VLOOKUP(K$8,'RRQ Allocations'!$B$5:$L$25,3,FALSE)=\"P\",1,0)","v":0},{"$f":"IF(VLOOKUP(L$8,'RRQ Allocations'!$B$5:$L$25,3,FALSE)=\"P\",1,0)","v":0},{"$f":"IF(VLOOKUP(M$8,'RRQ Allocations'!$B$5:$L$25,3,FALSE)=\"P\",1,0)","v":0},{"$f":"IF(VLOOKUP(N$8,'RRQ Allocations'!$B$5:$L$25,3,FALSE)=\"P\",1,0)","v":0},{"$f":"IF(VLOOKUP(O$8,'RRQ Allocations'!$B$5:$L$25,3,FALSE)=\"P\",1,0)","v":0},{"$f":"IF(VLOOKUP(P$8,'RRQ Allocations'!$B$5:$L$25,3,FALSE)=\"P\",1,0)","v":0},{"$f":"IF(VLOOKUP(Q$8,'RRQ Allocations'!$B$5:$L$25,3,FALSE)=\"P\",1,0)","v":0},{"$f":"IF(VLOOKUP(R$8,'RRQ Allocations'!$B$5:$L$25,3,FALSE)=\"P\",1,0)","v":0},{"$f":"IF(VLOOKUP(S$8,'RRQ Allocations'!$B$5:$L$25,3,FALSE)=\"P\",1,0)","v":0},{"$f":"IF(VLOOKUP(T$8,'RRQ Allocations'!$B$5:$L$25,3,FALSE)=\"P\",1,0)","v":0},{"$f":"IF(VLOOKUP(U$8,'RRQ Allocations'!$B$5:$L$25,3,FALSE)=\"P\",1,0)","v":1},{"$f":"IF(VLOOKUP(V$8,'RRQ Allocations'!$B$5:$L$25,3,FALSE)=\"P\",1,0)","v":1},{"$f":"IF(VLOOKUP(W$8,'RRQ Allocations'!$B$5:$L$25,3,FALSE)=\"P\",1,0)","v":1},{"$f":"IF(VLOOKUP(X$8,'RRQ Allocations'!$B$5:$L$25,3,FALSE)=\"P\",1,0)","v":0},{"$f":"IF(VLOOKUP(Y$8,'RRQ Allocations'!$B$5:$L$25,3,FALSE)=\"P\",1,0)","v":0},{"$f":"IF(VLOOKUP(Z$8,'RRQ Allocations'!$B$5:$L$25,3,FALSE)=\"P\",1,0)","v":0},{"$f":"IF(VLOOKUP(AA$8,'RRQ Allocations'!$B$5:$L$25,3,FALSE)=\"P\",1,0)","v":0}]
[null,"Lookup Value",0]
[null,null,"Revenue Change ($000)",null,null,null,"Allocation"]
[null,null,"Hypothetical",null,null,null,{"$f":"TRANSPOSE('RRQ Allocations'!B5:B25)","v":"100% Residential"},"Core - Distribution","Distribution","ECPT - ALL","ECPT - Core only","ECPT - Noncore only","ECPT - 50% Core / 50% Noncore","ECPT (excludes Covered Entities 3 yr avg vol)","EE","ESA","PPP ECPT","SGIP allocation","CPUC Fee Allocation","CAC Allocation","Storage Allocation  (Procurement)","Capacity Allocation (Procurement)","ECPT - Core only  (Procurement)","2023 GTS - Inventory Management","User Defined 1","User Defined 2","User Defined 3",null,"CARE Discount"]
[null,{"$f":"'Incremental Rev Req'!T10","v":"100% Residential"},{"$f":"IF(Lookup_Value=0,SUMIF('Hypothetical Summary'!$I$13:$I$42,'Hypothetical SAR and RAR'!B9,'Hypothetical Summary'!$G$13:$G$42),HLOOKUP(Lookup_Value,'Rate Trajectory Calc'!$H$96:$CQ$119,'Rate Trajectory Calc'!CS98,FALSE))","v":0},null,null,"Residential",{"$f":"TRANSPOSE('RRQ Allocations'!$H$5:$H$25)","v":1},0.80874369650738398,0.78483921120959532,0.27227602583496341,0.66456073316326192,0,0.33228036658163096,0.35793843573234274,0.33839999999999998,1,0.3972263923754053,0.9155803564097198,0.36756898524886344,0,0.79129057151110394,0.79332886653955093,0.73396510481118205,0.35919768458710166,0,0,0,null,{"$f":"'SAR and RAR'!AC9","v":0.337225440909864}]
[null,{"$f":"'Incremental Rev Req'!T11","v":"Core - Distribution"},{"$f":"IF(Lookup_Value=0,SUMIF('Hypothetical Summary'!$I$13:$I$42,'Hypothetical SAR and RAR'!B10,'Hypothetical Summary'!$G$13:$G$42),HLOOKUP(Lookup_Value,'Rate Trajectory Calc'!$H$96:$CQ$119,'Rate Trajectory Calc'!CS99,FALSE))","v":0}]
[null,{"$f":"'Incremental Rev Req'!T12","v":"Distribution"},{"$f":"IF(Lookup_Value=0,SUMIF('Hypothetical Summary'!$I$13:$I$42,'Hypothetical SAR and RAR'!B11,'Hypothetical Summary'!$G$13:$G$42),HLOOKUP(Lookup_Value,'Rate Trajectory Calc'!$H$96:$CQ$119,'Rate Trajectory Calc'!CS100,FALSE))","v":928313.9228582324},null,null,null,"Revenue Change ($000) - System"]
[null,{"$f":"'Incremental Rev Req'!T13","v":"ECPT - ALL"},{"$f":"IF(Lookup_Value=0,SUMIF('Hypothetical Summary'!$I$13:$I$42,'Hypothetical SAR and RAR'!B12,'Hypothetical Summary'!$G$13:$G$42),HLOOKUP(Lookup_Value,'Rate Trajectory Calc'!$H$96:$CQ$119,'Rate Trajectory Calc'!CS101,FALSE))","v":107674.16712394421},null,null,"Proposed Hypothetical",{"$f":"G8","v":"100% Residential"},{"$f":"H8","v":"Core - Distribution"},"Distribution","ECPT - ALL","ECPT - Core only","ECPT - Noncore only","ECPT - 50% Core / 50% Noncore","ECPT (excludes Covered Entities 3 yr avg vol)","EE","ESA","PPP ECPT","SGIP allocation","CPUC Fee Allocation","CAC Allocation","Storage Allocation  (Procurement)","Capacity Allocation (Procurement)","ECPT - Core only  (Procurement)","2023 GTS - Inventory Management","User Defined 1","User Defined 2","User Defined 3","Total","CARE Discount"]
[null,{"$f":"'Incremental Rev Req'!T14","v":"ECPT - Core only"},{"$f":"IF(Lookup_Value=0,SUMIF('Hypothetical Summary'!$I$13:$I$42,'Hypothetical SAR and RAR'!B13,'Hypothetical Summary'!$G$13:$G$42),HLOOKUP(Lookup_Value,'Rate Trajectory Calc'!$H$96:$CQ$119,'Rate Trajectory Calc'!CS102,FALSE))","v":236327.54166755592},null,null,"Residential",{"$f":"G9*G14","v":0},{"$f":"H9*H14","v":0},{"$f":"I9*I14","v":728577.16697094019},29317.0943095972,157054.00435726228,0,27988.227903662926,0,0,-19859.534950000008,-329.62640492095892,0,0,0,4166.1241316685182,0,-15762.725516797353,6235.8230031910452,0,0,0,{"$f":"SUM(G13:AA13)","v":917386.55380460375},{"$f":"AC9*AC14","v":14381.568834277585}]
[null,{"$f":"'Incremental Rev Req'!T15","v":"ECPT - Noncore only"},{"$f":"IF(Lookup_Value=0,SUMIF('Hypothetical Summary'!$I$13:$I$42,'Hypothetical SAR and RAR'!B14,'Hypothetical Summary'!$G$13:$G$42),HLOOKUP(Lookup_Value,'Rate Trajectory Calc'!$H$96:$CQ$119,'Rate Trajectory Calc'!CS103,FALSE))","v":124479.21722919989},null,null,"Total System",{"$f":"VLOOKUP(G$12,$B$9:$C$29,2,FALSE)","v":0},{"$f":"VLOOKUP(H$12,$B$9:$C$29,2,FALSE)","v":0},928313.9228582324,107674.16712394421,236327.54166755592,124479.21722919989,84230.760281128707,0,0,-19859.534950000008,-829.82000000000016,0,0,18.809476793810063,5264.9738056559872,0,-21476.123883099906,17360.420934670372,0,0,0,{"$f":"SUM(G14:AA14)","v":1461504.3345440812},{"$f":"'Hypothetical Res_RD'!M33","v":42646.749294699839}]
[null,{"$f":"'Incremental Rev Req'!T16","v":"ECPT - 50% Core / 50% Noncore"},{"$f":"IF(Lookup_Value=0,SUMIF('Hypothetical Summary'!$I$13:$I$42,'Hypothetical SAR and RAR'!B15,'Hypothetical Summary'!$G$13:$G$42),HLOOKUP(Lookup_Value,'Rate Trajectory Calc'!$H$96:$CQ$119,'Rate Trajectory Calc'!CS104,FALSE))","v":84230.760281128707}]
[null,{"$f":"'Incremental Rev Req'!T17","v":"ECPT (excludes Covered Entities 3 yr avg vol)"},{"$f":"IF(Lookup_Value=0,SUMIF('Hypothetical Summary'!$I$13:$I$42,'Hypothetical SAR and RAR'!B16,'Hypothetical Summary'!$G$13:$G$42),HLOOKUP(Lookup_Value,'Rate Trajectory Calc'!$H$96:$CQ$119,'Rate Trajectory Calc'!CS105,FALSE))","v":0}]
[null,{"$f":"'Incremental Rev Req'!T18","v":"EE"},{"$f":"IF(Lookup_Value=0,SUMIF('Hypothetical Summary'!$I$13:$I$42,'Hypothetical SAR and RAR'!B17,'Hypothetical Summary'!$G$13:$G$42),HLOOKUP(Lookup_Value,'Rate Trajectory Calc'!$H$96:$CQ$119,'Rate Trajectory Calc'!CS106,FALSE))","v":0}]
[null,{"$f":"'Incremental Rev Req'!T19","v":"ESA"},{"$f":"IF(Lookup_Value=0,SUMIF('Hypothetical Summary'!$I$13:$I$42,'Hypothetical SAR and RAR'!B18,'Hypothetical Summary'!$G$13:$G$42),HLOOKUP(Lookup_Value,'Rate Trajectory Calc'!$H$96:$CQ$119,'Rate Trajectory Calc'!CS107,FALSE))","v":-19859.534950000008}]
[null,{"$f":"'Incremental Rev Req'!T20","v":"PPP ECPT"},{"$f":"IF(Lookup_Value=0,SUMIF('Hypothetical Summary'!$I$13:$I$42,'Hypothetical SAR and RAR'!B19,'Hypothetical Summary'!$G$13:$G$42),HLOOKUP(Lookup_Value,'Rate Trajectory Calc'!$H$96:$CQ$119,'Rate Trajectory Calc'!CS108,FALSE))","v":-829.82000000000016}]
[null,{"$f":"'Incremental Rev Req'!T21","v":"SGIP allocation"},{"$f":"IF(Lookup_Value=0,SUMIF('Hypothetical Summary'!$I$13:$I$42,'Hypothetical SAR and RAR'!B20,'Hypothetical Summary'!$G$13:$G$42),HLOOKUP(Lookup_Value,'Rate Trajectory Calc'!$H$96:$CQ$119,'Rate Trajectory Calc'!CS109,FALSE))","v":0}]
[null,{"$f":"'Incremental Rev Req'!T22","v":"CPUC Fee Allocation"},{"$f":"IF(Lookup_Value=0,SUMIF('Hypothetical Summary'!$I$13:$I$42,'Hypothetical SAR and RAR'!B21,'Hypothetical Summary'!$G$13:$G$42),HLOOKUP(Lookup_Value,'Rate Trajectory Calc'!$H$96:$CQ$119,'Rate Trajectory Calc'!CS110,FALSE))","v":0}]
[null,{"$f":"'Incremental Rev Req'!T23","v":"CAC Allocation"},{"$f":"IF(Lookup_Value=0,SUMIF('Hypothetical Summary'!$I$13:$I$42,'Hypothetical SAR and RAR'!B22,'Hypothetical Summary'!$G$13:$G$42),HLOOKUP(Lookup_Value,'Rate Trajectory Calc'!$H$96:$CQ$119,'Rate Trajectory Calc'!CS111,FALSE))","v":18.809476793810063}]
[null,{"$f":"'Incremental Rev Req'!T24","v":"Storage Allocation  (Procurement)"},{"$f":"IF(Lookup_Value=0,SUMIF('Hypothetical Summary'!$I$13:$I$42,'Hypothetical SAR and RAR'!B23,'Hypothetical Summary'!$G$13:$G$42),HLOOKUP(Lookup_Value,'Rate Trajectory Calc'!$H$96:$CQ$119,'Rate Trajectory Calc'!CS112,FALSE))","v":5264.9738056559872}]
[null,{"$f":"'Incremental Rev Req'!T25","v":"Capacity Allocation (Procurement)"},{"$f":"IF(Lookup_Value=0,SUMIF('Hypothetical Summary'!$I$13:$I$42,'Hypothetical SAR and RAR'!B24,'Hypothetical Summary'!$G$13:$G$42),HLOOKUP(Lookup_Value,'Rate Trajectory Calc'!$H$96:$CQ$119,'Rate Trajectory Calc'!CS113,FALSE))","v":0}]
[null,{"$f":"'Incremental Rev Req'!T26","v":"ECPT - Core only  (Procurement)"},{"$f":"IF(Lookup_Value=0,SUMIF('Hypothetical Summary'!$I$13:$I$42,'Hypothetical SAR and RAR'!B25,'Hypothetical Summary'!$G$13:$G$42),HLOOKUP(Lookup_Value,'Rate Trajectory Calc'!$H$96:$CQ$119,'Rate Trajectory Calc'!CS114,FALSE))","v":-21476.123883099906}]
[null,{"$f":"'Incremental Rev Req'!T27","v":"2023 GTS - Inventory Management"},{"$f":"IF(Lookup_Value=0,SUMIF('Hypothetical Summary'!$I$13:$I$42,'Hypothetical SAR and RAR'!B26,'Hypothetical Summary'!$G$13:$G$42),HLOOKUP(Lookup_Value,'Rate Trajectory Calc'!$H$96:$CQ$119,'Rate Trajectory Calc'!CS115,FALSE))","v":17360.420934670372}]
[null,{"$f":"'Incremental Rev Req'!T28","v":"User Defined 1"},{"$f":"IF(Lookup_Value=0,SUMIF('Hypothetical Summary'!$I$13:$I$42,'Hypothetical SAR and RAR'!B27,'Hypothetical Summary'!$G$13:$G$42),HLOOKUP(Lookup_Value,'Rate Trajectory Calc'!$H$96:$CQ$119,'Rate Trajectory Calc'!CS116,FALSE))","v":0},null,null,null,"Revenue Split - Bundled",null,null,null,null,null,null,null,null,null,null,null,null,null,null,null,null,null,null,null,null,null,null,"Bundled Revenue Change"]
[null,{"$f":"'Incremental Rev Req'!T29","v":"User Defined 2"},{"$f":"IF(Lookup_Value=0,SUMIF('Hypothetical Summary'!$I$13:$I$42,'Hypothetical SAR and RAR'!B28,'Hypothetical Summary'!$G$13:$G$42),HLOOKUP(Lookup_Value,'Rate Trajectory Calc'!$H$96:$CQ$119,'Rate Trajectory Calc'!CS117,FALSE))","v":0},null,null,null,{"$f":"G8","v":"100% Residential"},{"$f":"H8","v":"Core - Distribution"},"Distribution","ECPT - ALL","ECPT - Core only","ECPT - Noncore only","ECPT - 50% Core / 50% Noncore","ECPT (excludes Covered Entities 3 yr avg vol)","EE","ESA","PPP ECPT","SGIP allocation","CPUC Fee Allocation","CAC Allocation","Storage Allocation  (Procurement)","Capacity Allocation (Procurement)","ECPT - Core only  (Procurement)","2023 GTS - Inventory Management","User Defined 1","User Defined 2","User Defined 3",null,null,"Total","CARE Adj"]
[null,{"$f":"'Incremental Rev Req'!T30","v":"User Defined 3"},{"$f":"IF(Lookup_Value=0,SUMIF('Hypothetical Summary'!$I$13:$I$42,'Hypothetical SAR and RAR'!B29,'Hypothetical Summary'!$G$13:$G$42),HLOOKUP(Lookup_Value,'Rate Trajectory Calc'!$H$96:$CQ$119,'Rate Trajectory Calc'!CS118,FALSE))","v":0},null,null,"Residential",{"$f":"TRANSPOSE('RRQ Allocations'!$J$5:$J$25)","v":0.89758920993798852},0.89758920993798852,0.89758920993798852,0.89758920993798852,0.89758920993798852,0,0.89758920993798852,0.89758920993798852,0.89758920993798852,0.89758920993798841,0.89758920993798841,0.89758920993798852,0.89758920993798852,0,1,1,1,0.89758920993798852,0,0,0,null,{"$f":"'SAR and RAR'!AC29","v":0.89761292376848978},{"$f":"SUMPRODUCT(G13:AA13,G29:AA29)","v":822248.65492732299},{"$f":"AD29-($AC$14*AC29)+($AC$13*$AC$29)","v":796877.46365339938}]
[null,"Total",{"$f":"SUM(C9:C29)","v":1461504.3345440812},null,null,"Total System",{"$f":"TRANSPOSE('RRQ Allocations'!$L$5:$L$25)","v":0.89758920993798852},0.81299229046398092,0.82411822317989403,0.33306032920299472,0.81292069650267784,0,0.40640697425223005,0.43752325493175787,0.52636006239220023,0.89758920993798841,0.48415022064285584,0.87599432226099605,0.44778461232099998,0,1,1,1,0.43037357942349036,0,0,0,null,{"$f":"'SAR and RAR'!AC30","v":0.4430039061850134},{"$f":"SUMPRODUCT(G14:AA14,G30:AA30)","v":1000282.7870069249},{"$f":"AD30","v":1000282.7870069249}]
[null,null,{"$f":"IF(Lookup_Value=0,C30=SUM('Hypothetical Summary'!$G$13:$G$42),C30=HLOOKUP(Lookup_Value,'Rate Trajectory Calc'!$H$96:$CQ$119,'Rate Trajectory Calc'!$CS$119,FALSE))","v":true}]
[null,null,null,null,null,{"$f":"\"Notes: Allocation and bundled/unbundled split based on \"&Summary!L4&\" throughput forecast\"","v":"Notes: Allocation and bundled/unbundled split based on 2023 CARD throughput forecast"}]
[]
[]
[]
[null,null,null,null,null,null,"Bundled",null,null,null,null,null,"System (Bundled and Transportation)"]
[null,null,null,null,null,null,{"$f":"'Hypothetical Summary'!$M$8&\" Throughput\"","v":"2023 CARD Throughput"},{"$f":"TEXT('Hypothetical Summary'!M7,\"m/d/yyyy\")&\" Avg Rates ($ / therm)\"","v":"9/1/2025 Avg Rates ($ / therm)"},"Illustrative Proposed Avg Rates","% Change",null,null,{"$f":"'Hypothetical Summary'!$M$8&\" Throughput\"","v":"2023 CARD Throughput"},{"$f":"H37","v":"9/1/2025 Avg Rates ($ / therm)"},"Illustrative Proposed Avg Rates","% Change (Authorized)"]
[null,null,null,null,null,"Residential",{"$f":"'SAR and RAR'!G38","v":1495155.0197872266},{"$f":"'SAR and RAR'!H38","v":2.7301291016084663},{"$f":"AE29/G38+H38","v":3.2631022402511749},{"$f":"I38/H38-1","v":0.19521902401197999},null,"Residential",{"$f":"'SAR and RAR'!O38","v":1665725.6515149064},{"$f":"'SAR and RAR'!P38","v":2.4587344326295084},{"$f":"((SUM(G13:AA13)-AC14+AC13)/M38)+N38","v":2.9925086304006498},{"$f":"O38/N38-1","v":0.2170930665335391}]
[null,null,null,null,null,"Total System",{"$f":"'SAR and RAR'!G39","v":2037614.8826860383},{"$f":"'SAR and RAR'!H39","v":2.3576386581695323},{"$f":"AE30/G39+H39","v":2.8485473158881711},{"$f":"I39/H39-1","v":0.20822048197147369},null,"Total System",{"$f":"'SAR and RAR'!O39","v":6116455.878662345},{"$f":"'SAR and RAR'!P39","v":1.0606675509824723},{"$f":"(SUM(G14:AA14)/M39)+N39","v":1.2996138237157777},{"$f":"O39/N39-1","v":0.22527913907800312}]
[]
[null,null,null,null,null,null,null,null,null,null,null,null,"Illustrative System Rate does not include illustrative procurement for transport only customers."]

{"sheet":"Hypothetical Res_RD","index":16,"n_rows":63,"n_cols":15,"rows_kept":63,"cut":false,"hidden":false,"merged":[[0,0,0,5],[21,5,21,6],[46,5,46,6]]}
[]
[]
[]
[]
[]
[]
[]
["CALCULATION OF ILLUSTRATIVE RESIDENTIAL RATES WITH HYPOTHETICAL INCREMENTAL RRQs"]
[]
[]
[]
[]
[null,"Authorized Pre-CARE costs allocated to residential class",{"$f":"Res_RD!C13","v":3766427.1655128254}]
[null,"+ Hypothetical Incremental RRQ",{"$f":"SUMPRODUCT('Hypothetical SAR and RAR'!$G$4:$AA$4,'Hypothetical SAR and RAR'!$G$13:$AA$13)","v":949172.31654465361}]
[null,"Total Pre-CARE costs allocated to residential class",{"$f":"SUM(C13:C14)","v":4715599.4820574792}]
[null,"   Residential Tier I volumes (includes CARE)",{"$f":"Res_RD!C16","v":1212738.980373733}]
[null,"+ Residential Tier II volumes (includes CARE)",{"$f":"Res_RD!C17","v":453006.3329979839}]
[null,"= Total  Residential Volumes (includes CARE)",{"$f":"C16+C17","v":1665745.313371717}]
[]
[null,"GCAP Decision Ratio of Tier II/Tier I Residential Rates",1.24]
[]
[null,null,"Pre-CARE Illustrative Res.",null,null,"ADD Illustrative Procurement Rate",null,null,"CARE Discount","Interim Illustrative"]
[null,null,"Transportation Rates",null,null,"Current","Illustrative Hypothetical Incremental","CSI - Thermal  Exemption",0.2,"CARE Transportation Rates","CARE Transportation Volumes (mth)","Illustrative CARE Transportation Discount"]
[null,"Illustrative Residential Tier I rates",{"$f":"C15/(C16+C17*C20)","v":2.6574740049162333},null,null,{"$f":"Res_RD!F24","v":0.46694000000000002},{"$f":"SUMPRODUCT('Hypothetical SAR and RAR'!$G$5:$AA$5,'Hypothetical SAR and RAR'!$G$13:$AA$13)/'Hypothetical SAR and RAR'!G38","v":-7.7561197545784446E-3},{"$f":"Res_RD!H24","v":-3.8006289267847279E-3},{"$f":"SUM(C24:H24)*I23","v":0.62257145124697411},{"$f":"ROUND(C24+H24-I24,7)","v":2.0311018999999999},{"$f":"Res_RD!K24","v":28277.089302729},{"$f":"'Hypothetical Res_RD'!I24*'Hypothetical Res_RD'!K24","v":17604.508524240282}]
[null,"Illustrative Residential Tier II rates",{"$f":"C24*C20","v":3.2952677660961291},null,null,{"$f":"Res_RD!F25","v":0.46694000000000002},{"$f":"G24","v":-7.7561197545784446E-3},{"$f":"Res_RD!H25","v":-3.8006289267847279E-3},{"$f":"SUM(C25:H25)*I23","v":0.75013020348295323},{"$f":"ROUND(C25+H25-I25,7)","v":2.5413369000000001},{"$f":"Res_RD!K25","v":10566.055964740899},{"$f":"'Hypothetical Res_RD'!I25*'Hypothetical Res_RD'!K25","v":7925.9177108433623}]
[null,"Average",{"$f":"SUMPRODUCT($C$16:$C$17,C$24:C$25)/$C$18","v":2.8309246582914902},null,null,{"$f":"SUMPRODUCT($C$16:$C$17,F$24:F$25)/$C$18","v":0.46694000000000002},{"$f":"SUMPRODUCT($C$16:$C$17,G$24:G$25)/$C$18","v":-7.7561197545784437E-3},{"$f":"H24","v":-3.8006289267847279E-3},{"$f":"SUMPRODUCT($C$16:$C$17,I$24:I$25)/$C$18","v":0.65726158192202555},{"$f":"SUMPRODUCT($C$16:$C$17,J$24:J$25)/$C$18","v":2.16986242026787},{"$f":"'Hypothetical Res_RD'!K24+'Hypothetical Res_RD'!K25","v":38843.145267469896},{"$f":"'Hypothetical Res_RD'!L24+'Hypothetical Res_RD'!L25","v":25530.426235083643}]
[]
[]
[null,"CALCULATION OF ILLUSTRATIVE CARE SUBSIDY","Pre-CARE Illustrative Residential Transportation",null,null,"Illustrative Interim Bundled CARE Rates ","CARE","CARE Bundled","Illustrative CARE Bundled","Illustrative CARE Transportation","Total Illustrative CARE ","Current CARE","Illustrative Incremental CARE","Total Throughput Eligible for Recovery of CARE Discount","Incremental Illustrative PPP Rates due to Change in CARE Discount"]
[null,null,"Rates",null,null,{"$f":"\"(w/\"&I23*100&\"% discount)\"","v":"(w/20% discount)"},{"$f":"\"Discount (\"&I23*100&\"%)\"","v":"Discount (20%)"},"Volumes (mth)","Discount","Discount","Discount","Discount","Discount"]
[null,null,{"$f":"'Hypothetical Res_RD'!C24","v":2.6574740049162333},null,null,{"$f":"ROUND(('Hypothetical Res_RD'!C24+H24+F24+G24)*(1-$I$23),20)","v":2.4902858049879},{"$f":"SUM(C24:H24)-F31","v":0.62257145124697022},{"$f":"Res_RD!H31","v":247927.08601293608},{"$f":"'Hypothetical Res_RD'!H31*'Hypothetical Res_RD'!G31","v":154352.32574250601},{"$f":"'Hypothetical Res_RD'!L24","v":17604.508524240282},{"$f":"SUM(I31:J31)","v":171956.8342667463},null,null,null,{"$f":"O33","v":1.1190117415203213E-2}]
[null,null,{"$f":"'Hypothetical Res_RD'!C25","v":3.2952677660961291},null,null,{"$f":"ROUND(('Hypothetical Res_RD'!C25+H25+F25+G25)*(1-$I$23),20)","v":3.0005208139318098},{"$f":"SUM(C25:H25)-F32","v":0.75013020348295623},{"$f":"Res_RD!H32","v":92607.209382038374},{"$f":"'Hypothetical Res_RD'!H32*'Hypothetical Res_RD'!G32","v":69467.464817737186},{"$f":"'Hypothetical Res_RD'!L25","v":7925.9177108433623},{"$f":"SUM(I32:J32)","v":77393.382528580551},null,null,null,{"$f":"O33","v":1.1190117415203213E-2}]
[null,"Total ",null,null,null,null,null,{"$f":"'Hypothetical Res_RD'!H31+'Hypothetical Res_RD'!H32","v":340534.29539497447},{"$f":"'Hypothetical Res_RD'!I31+'Hypothetical Res_RD'!I32","v":223819.79056024319},{"$f":"'Hypothetical Res_RD'!J31+'Hypothetical Res_RD'!J32","v":25530.426235083643},{"$f":"'Hypothetical Res_RD'!K31+'Hypothetical Res_RD'!K32","v":249350.21679532685},{"$f":"Res_RD!L33","v":206703.46750062701},{"$f":"K33-L33","v":42646.749294699839},{"$f":"Res_RD!N33","v":3811108.2942488831},{"$f":"M33/N33","v":1.1190117415203213E-2}]
[]
[]
[null,"CALCULATION OF FINAL ILLUSTRATIVE RESIDENTIAL NON-CARE RATES"]
[null,"Post-CARE costs allocated to residential class",{"$f":"C13*C$42/C$18","v":2908614.4572774596}]
[null,"+ Hypothetical Incremental RRQ",{"$f":"C14*C$42/C$18","v":732996.07320918888}]
[null,"= Total Post-CARE costs allocated to residential class",{"$f":"SUM(C37:C38)","v":3641610.5304866484}]
[null,"   Residential Tier I volumes (non-CARE)",{"$f":"Res_RD!C40","v":912260.06558040006}]
[null,"+ Residential Tier II volumes (non-CARE)",{"$f":"Res_RD!C41","v":374107.80712887261}]
[null,"Total Residential Volumes (Non-CARE)",{"$f":"SUM(C40:C41)","v":1286367.8727092727}]
[]
[null,"GCAP Dec. Ratio of Tier II/Tier I Residential Transportation Rates",{"$f":"Tier_Ratio_Guess","v":1.24}]
[]
[null,null,"Non-CARE","Current Minimum"]
[null,null,"Illustrative","Monthly Transporation","Post-MMTC","Residential Procurement Rate",null,"Non-CARE",null,"Hypothetical","Recovery of Illustrative"]
[null,null,"Residential Transportation","Charge (MMTC) \nadjustment","Illustrative Non-CARE Res Transporation","Current","Hypothetical Illustrative Incremental","Illustrative Bundled \nRate","Current PPP Rate","Illustrative Incremental PPP Rate","Incremental CARE Discount","Total Illustrative Non-CARE Bundled Rate"]
[null,"Illustrative Residential Tier I rates",{"$f":"C39/(C40+C41*C44)","v":2.6462236068895604},{"$f":"Res_RD!D49","v":6.6043978276910664E-3},{"$f":"C49-D49","v":2.6396192090618693},{"$f":"F24","v":0.46694000000000002},{"$f":"G24","v":-7.7561197545784446E-3},{"$f":"E49+SUM(F49:G49)","v":3.0988030893072906},{"$f":"Res_RD!I49","v":0.14324000000000001},{"$f":"SUMPRODUCT('Hypothetical SAR and RAR'!$G$3:$AA$3,'Hypothetical SAR and RAR'!$G$13:$AA$13)/C18","v":-1.2120197003019084E-2},{"$f":"O33","v":1.1190117415203213E-2},{"$f":"SUM(H49:K49)","v":3.2411130097194749}]
[null,"Illustrative Residential Tier II rates",{"$f":"C49*C44","v":3.2813172725430548},{"$f":"Res_RD!D50","v":0},{"$f":"C50-D50","v":3.2813172725430548},{"$f":"F25","v":0.46694000000000002},{"$f":"G25","v":-7.7561197545784446E-3},{"$f":"E50+SUM(F50:G50)","v":3.7405011527884762},{"$f":"Res_RD!I50","v":0.14324000000000001},{"$f":"J49","v":-1.2120197003019084E-2},{"$f":"O33","v":1.1190117415203213E-2},{"$f":"SUM(H50:K50)","v":3.8828110732006604}]
[null,"Avg. Illustrative Non-CARE Residential Rate (Bundled & Transportation-only)",{"$f":"(($C$40*C49)+($C$41*C50))/$C$42","v":2.8309246582914898},{"$f":"(($C$40*D49)+($C$41*D50))/$C$42","v":4.683674494076996E-3},{"$f":"(($C$40*E49)+($C$41*E50))/$C$42","v":2.8262409837974132},{"$f":"SUMPRODUCT($C$40:$C$41,F$49:F$50)/$C$42","v":0.46693999999999997},{"$f":"SUMPRODUCT($C$40:$C$41,$G$49:$G$50)/$C$42","v":-7.7561197545784446E-3},{"$f":"SUMPRODUCT($C$40:$C$41,$H$49:$H$50)/$C$42","v":3.2854248640428345},{"$f":"Res_RD!I51","v":0.14324000000000001},{"$f":"J49","v":-1.2120197003019084E-2},{"$f":"SUMPRODUCT($C$40:$C$41,$K$49:$K$50)/$C$42","v":1.1190117415203213E-2},{"$f":"SUM(H51:K51)","v":3.4277347844550188}]
[null,null,null,null,null,null,null,{"$f":"H50/H49","v":1.2070793286915922},"<=Macro sets this cell equal to ",1.2]
[null,null,null,null,null,null,null,null,"by changing the value in cell C20"]
[]
[]
[null,"CALCULATION OF FINAL ILLUSTRATIVE RESIDENTIAL CARE RATES"]
[]
[null,null,"Non-CARE","CSI - Thermal ","CARE",null,"Illustrative Hypothetical"]
[null,null,"Illustrative Bundled","Exemption","Illustrative Bundled ","Current CARE PPP","Incremental PPP","Total Illustrative CARE"]
[null,null,"Rate",null,"Rate","Rate","Rate","Bundled Rate"]
[null,"Illustrative Residential Tier I rates",{"$f":"H49","v":3.0988030893072906},{"$f":"H24","v":-3.8006289267847279E-3},{"$f":"SUM(C61:D61)*(1-$I$23)","v":2.4760019683044048},{"$f":"Res_RD!F61","v":8.4250000000000005E-2},{"$f":"SUM('Hypothetical SAR and RAR'!$O$13:$Q$13)/C18","v":-1.2120197003019084E-2},{"$f":"E61+F61+G61","v":2.5481317713013856}]
[null,"Illustrative Residential Tier II rates",{"$f":"H50","v":3.7405011527884762},{"$f":"H25","v":-3.8006289267847279E-3},{"$f":"SUM(C62:D62)*(1-$I$23)","v":2.989360419089353},{"$f":"F61","v":8.4250000000000005E-2},{"$f":"G61","v":-1.2120197003019084E-2},{"$f":"E62+F62+G62","v":3.0614902220863338}]
[null,"Avg. Illustrative CARE Residential Rate",{"$f":"H51","v":3.2854248640428345},{"$f":"H26","v":-3.8006289267847279E-3},{"$f":"SUMPRODUCT($H$31:$H$32,E$61:E$62)/$H$33","v":2.6156081524179302},{"$f":"F62","v":8.4250000000000005E-2},{"$f":"G61","v":-1.2120197003019084E-2},{"$f":"SUMPRODUCT($H$31:$H$32,H$61:H$62)/$H$33","v":2.6877379554149115}]

{"sheet":"Hypothetical Res Bill Impact","index":17,"n_rows":123,"n_cols":26,"rows_kept":123,"cut":false,"hidden":false,"merged":[[95,2,95,10],[110,2,110,10],[1,1,1,3],[2,4,2,8],[49,2,49,4],[49,5,49,7],[49,8,49,10],[19,24,19,25],[22,16,22,21],[34,2,34,4],[34,5,34,7],[34,8,34,10],[34,11,34,13],[19,22,19,23],[20,16,20,18],[20,19,20,21],[2,15,2,19],[49,11,49,13],[111,2,111,4],[111,5,111,7],[111,8,111,10],[66,2,66,4],[66,5,66,7],[66,8,66,10],[81,2,81,4],[81,5,81,7],[81,8,81,10],[96,2,96,4],[96,5,96,7],[96,8,96,10],[65,2,65,10],[80,2,80,10]]}
[{"$f":"'Res Bill Impact'!A1","v":"*NOTE: This model produces illustrative rates based on a single average throughput forecast. Actual ratemaking uses multiple throughput forecasts depending on revenue requirement type. Therefore, differences in illustrative v. actual rates will exist."}]
[]
[null,null,null,null,"Schedule G-1",null,null,null,null,null,null,null,null,null,null,"Schedule GL-1"]
[null,null,null,null,{"$f":"'Hypothetical Summary'!M8","v":"2023 CARD"},{"$f":"'Hypothetical Summary'!$M7","v":"2025-09-01"},{"$f":"'Hypothetical Summary'!$M7","v":"2025-09-01"},"Illustrative Proposed","Illustrative Proposed",null,null,null,null,null,null,{"$f":"E4","v":"2023 CARD"},{"$f":"F4","v":"2025-09-01"},{"$f":"G4","v":"2025-09-01"},"Illustrative Proposed","Illustrative Proposed"]
[null,null,null,null,"Throughput Forecast","Rates (w/illustrative procrement)","Revenue","Rates (w/illustrative procrement)","Revenue",null,null,null,null,null,null,"Throughput Forecast","Rates (w/illustrative procrement)","Revenue","Rates (w/illustrative procrement)","Revenue"]
[]
[null,null,null,"Baseline - Summer",{"$f":"'Res Bill Impact'!E7","v":246650.16940406387},{"$f":"'Res Bill Impact'!F7","v":2.7171600000000007},{"$f":"F7*E7","v":670187.97429794632},{"$f":"'Hypothetical Res_RD'!L49","v":3.2411130097194749},{"$f":"E7*H7","v":799421.07290502382},null,null,null,null,null,"Baseline - Summer",{"$f":"'Res Bill Impact'!P7","v":72332.642272357014},{"$f":"'Res Bill Impact'!Q7","v":2.1403454968585724},{"$f":"Q7*P7","v":154816.84516352136},{"$f":"'Hypothetical Res_RD'!H61","v":2.5481317713013856},{"$f":"P7*S7","v":184313.10387637056}]
[null,null,null,"- Winter",{"$f":"'Res Bill Impact'!E8","v":569727.29293116578},{"$f":"'Res Bill Impact'!F8","v":2.7171600000000007},{"$f":"F8*E8","v":1548040.2112608468},{"$f":"H7","v":3.2411130097194749},{"$f":"E8*H8","v":1846550.5411114597},null,null,null,null,null,"- Winter",{"$f":"'Res Bill Impact'!P8","v":175594.44374057907},{"$f":"'Res Bill Impact'!Q8","v":2.1403454968585724},{"$f":"Q8*P8","v":375832.77693353436},{"$f":"S7","v":2.5481317713013856},{"$f":"P8*S8","v":447437.78095936321}]
[null,null,null,"Over Baseline - Summer",{"$f":"'Res Bill Impact'!E9","v":105730.38193137095},{"$f":"'Res Bill Impact'!F9","v":3.2310200000000004},{"$f":"F9*E9","v":341616.97862789821},{"$f":"'Hypothetical Res_RD'!L50","v":3.8828110732006604},{"$f":"E9*H9","v":410531.0977368622},null,null,null,null,null,"Over Baseline - Summer",{"$f":"'Res Bill Impact'!P9","v":31575.994402509852},{"$f":"'Res Bill Impact'!Q9","v":2.5514334968585723},{"$f":"Q9*P9","v":80564.049815182414},{"$f":"'Hypothetical Res_RD'!H62","v":3.0614902220863338},{"$f":"P9*S9","v":96669.598115936722}]
[null,null,null,"- Winter",{"$f":"'Res Bill Impact'!E10","v":232552.58299782226},{"$f":"'Res Bill Impact'!F10","v":3.2310200000000004},{"$f":"F10*E10","v":751382.04671762383},{"$f":"H9","v":3.8828110732006604},{"$f":"E10*H10","v":902957.74436535989},null,null,null,null,null,"- Winter",{"$f":"'Res Bill Impact'!P10","v":61031.214979528522},{"$f":"'Res Bill Impact'!Q10","v":2.5514334968585723},{"$f":"Q10*P10","v":155717.08625274574},{"$f":"S9","v":3.0614902220863338},{"$f":"P10*S10","v":186846.46790187556}]
[]
[null,null,null,null,null,{"$f":"SUM(G7:G10)/SUM($E$7:$E$10)","v":2.8677064985669833},null,{"$f":"SUM(I7:I10)/SUM($E$7:$E$10)","v":3.4291124581963093},null,null,null,null,null,null,null,null,{"$f":"SUM(R7:R10)/SUM($P$7:$P$10)","v":2.2521395599096596},null,{"$f":"SUM(T7:T10)/SUM($P$7:$P$10)","v":2.6877379554149115}]
[]
[]
[]
[]
[]
[]
[null,null,null,null,null,null,null,null,null,null,null,null,null,null,null,{"$f":"'Res Bill Impact'!P19","v":"2024 Recorded Data - Average Monthly Usage - Therms"}]
[null,"SCHEDULE G-1 RATES ($/therm)",null,null,null,null,null,"MONTHLY BASELINE QUANTITIES -BASIC (Therms)",null,null,null,null,null,null,null,"Climate Zone","Summer","Winter Off-Peak","Winter On-Peak","Summer","Winter Off-Peak","Winter On-Peak","Sample Population Weight",null,"Annual Average Usage"]
[null,"Rates",{"$f":"'Res Bill Impact'!C21","v":"2025-01-01"},{"$f":"'Hypothetical Summary'!$M7","v":"2025-09-01"},"Illustrative Proposed",null,null,"Climate Zone","Summer 2020","Winter 2020 Off-Peak","Winter 2020 On-Peak",null,null,null,null,null,"Non-CARE",null,null,"CARE",null,null,"Non-CARE","CARE","Non-CARE","CARE"]
[null,"Tier 1",{"$f":"'Res Bill Impact'!C22","v":2.7301713449030833},{"$f":"F7","v":2.7171600000000007},{"$f":"H7","v":3.2411130097194749},null,null,"P",{"$f":"'Res Bill Impact'!I22","v":11.862630000000001},{"$f":"'Res Bill Impact'!J22","v":57.183959999999999},{"$f":"'Res Bill Impact'!K22","v":66.613230000000001},null,null,null,null,"P",{"$f":"'Res Bill Impact'!Q22","v":17},{"$f":"'Res Bill Impact'!R22","v":57},{"$f":"'Res Bill Impact'!S22","v":68},{"$f":"'Res Bill Impact'!T22","v":14},{"$f":"'Res Bill Impact'!U22","v":46},{"$f":"'Res Bill Impact'!V22","v":53},{"$f":"'Res Bill Impact'!W22","v":3.3414015182542632E-3},{"$f":"'Res Bill Impact'!X22","v":4.5036851818074973E-3},{"$f":"IFERROR((Q22*'Hypothetical Summary'!$M$17+'Hypothetical Res Bill Impact'!R22*'Hypothetical Summary'!$M$18+'Hypothetical Res Bill Impact'!S22*'Hypothetical Summary'!$M$19)/SUM('Hypothetical Summary'!$M$17:$M$19),\" \")","v":35.5},{"$f":"IFERROR((T22*'Hypothetical Summary'!$M$17+'Hypothetical Res Bill Impact'!U22*'Hypothetical Summary'!$M$18+'Hypothetical Res Bill Impact'!V22*'Hypothetical Summary'!$M$19)/SUM('Hypothetical Summary'!$M$17:$M$19),\" \")","v":28.5}]
[null,"Tier 2",{"$f":"'Res Bill Impact'!C23","v":3.2471524079664018},{"$f":"F9","v":3.2310200000000004},{"$f":"H9","v":3.8828110732006604},null,null,"Q",{"$f":"'Res Bill Impact'!I23","v":17.033520000000003},{"$f":"'Res Bill Impact'!J23","v":45.017160000000004},{"$f":"'Res Bill Impact'!K23","v":60.834000000000003},null,null,null,null,"Q","INCLUDED WITH TERRITORY X",null,null,null,null,null,null,null,{"$f":"IFERROR((Q23*'Hypothetical Summary'!$M$17+'Hypothetical Res Bill Impact'!R23*'Hypothetical Summary'!$M$18+'Hypothetical Res Bill Impact'!S23*'Hypothetical Summary'!$M$19)/SUM('Hypothetical Summary'!$M$17:$M$19),\" \")","v":" "},{"$f":"IFERROR((T23*'Hypothetical Summary'!$M$17+'Hypothetical Res Bill Impact'!U23*'Hypothetical Summary'!$M$18+'Hypothetical Res Bill Impact'!V23*'Hypothetical Summary'!$M$19)/SUM('Hypothetical Summary'!$M$17:$M$19),\" \")","v":0}]
[null,null,null,null,null,null,null,"R",{"$f":"'Res Bill Impact'!I24","v":10.95012},{"$f":"'Res Bill Impact'!J24","v":37.717080000000003},{"$f":"'Res Bill Impact'!K24","v":55.054770000000005},null,null,null,null,"R",{"$f":"'Res Bill Impact'!Q24","v":14},{"$f":"'Res Bill Impact'!R24","v":39},{"$f":"'Res Bill Impact'!S24","v":56},{"$f":"'Res Bill Impact'!T24","v":15},{"$f":"'Res Bill Impact'!U24","v":35},{"$f":"'Res Bill Impact'!V24","v":49},{"$f":"'Res Bill Impact'!W24","v":7.4357502162919059E-2},{"$f":"'Res Bill Impact'!X24","v":0.180932001160926},{"$f":"IFERROR((Q24*'Hypothetical Summary'!$M$17+'Hypothetical Res Bill Impact'!R24*'Hypothetical Summary'!$M$18+'Hypothetical Res Bill Impact'!S24*'Hypothetical Summary'!$M$19)/SUM('Hypothetical Summary'!$M$17:$M$19),\" \")","v":27.25},{"$f":"IFERROR((T24*'Hypothetical Summary'!$M$17+'Hypothetical Res Bill Impact'!U24*'Hypothetical Summary'!$M$18+'Hypothetical Res Bill Impact'!V24*'Hypothetical Summary'!$M$19)/SUM('Hypothetical Summary'!$M$17:$M$19),\" \")","v":25.666666666666668}]
[null,null,null,null,null,null,null,"S",{"$f":"'Res Bill Impact'!I25","v":11.862630000000001},{"$f":"'Res Bill Impact'!J25","v":41.975459999999998},{"$f":"'Res Bill Impact'!K25","v":59.008980000000001},null,null,null,null,"S",{"$f":"'Res Bill Impact'!Q25","v":15},{"$f":"'Res Bill Impact'!R25","v":43},{"$f":"'Res Bill Impact'!S25","v":60},{"$f":"'Res Bill Impact'!T25","v":16},{"$f":"'Res Bill Impact'!U25","v":39},{"$f":"'Res Bill Impact'!V25","v":53},{"$f":"'Res Bill Impact'!W25","v":0.31894272299281023},{"$f":"'Res Bill Impact'!X25","v":0.34174434606715259},{"$f":"IFERROR((Q25*'Hypothetical Summary'!$M$17+'Hypothetical Res Bill Impact'!R25*'Hypothetical Summary'!$M$18+'Hypothetical Res Bill Impact'!S25*'Hypothetical Summary'!$M$19)/SUM('Hypothetical Summary'!$M$17:$M$19),\" \")","v":29.5},{"$f":"IFERROR((T25*'Hypothetical Summary'!$M$17+'Hypothetical Res Bill Impact'!U25*'Hypothetical Summary'!$M$18+'Hypothetical Res Bill Impact'!V25*'Hypothetical Summary'!$M$19)/SUM('Hypothetical Summary'!$M$17:$M$19),\" \")","v":27.916666666666668}]
[null,"SCHEDULE GL-1 RATES ($/therm)",null,null,null,null,null,"T",{"$f":"'Res Bill Impact'!I26","v":17.033520000000003},{"$f":"'Res Bill Impact'!J26","v":39.846270000000004},{"$f":"'Res Bill Impact'!K26","v":51.100560000000002},null,null,null,null,"T",{"$f":"'Res Bill Impact'!Q26","v":19},{"$f":"'Res Bill Impact'!R26","v":36},{"$f":"'Res Bill Impact'!S26","v":44},{"$f":"'Res Bill Impact'!T26","v":20},{"$f":"'Res Bill Impact'!U26","v":31},{"$f":"'Res Bill Impact'!V26","v":36},{"$f":"'Res Bill Impact'!W26","v":0.19620309094436963},{"$f":"'Res Bill Impact'!X26","v":0.14779059692068172},{"$f":"IFERROR((Q26*'Hypothetical Summary'!$M$17+'Hypothetical Res Bill Impact'!R26*'Hypothetical Summary'!$M$18+'Hypothetical Res Bill Impact'!S26*'Hypothetical Summary'!$M$19)/SUM('Hypothetical Summary'!$M$17:$M$19),\" \")","v":27.416666666666668},{"$f":"IFERROR((T26*'Hypothetical Summary'!$M$17+'Hypothetical Res Bill Impact'!U26*'Hypothetical Summary'!$M$18+'Hypothetical Res Bill Impact'!V26*'Hypothetical Summary'!$M$19)/SUM('Hypothetical Summary'!$M$17:$M$19),\" \")","v":25.416666666666668}]
[null,"Rates",{"$f":"'Res Bill Impact'!C27","v":"2025-01-01"},{"$f":"D21","v":"2025-09-01"},"Illustrative Proposed",null,null,"V",{"$f":"'Res Bill Impact'!I27","v":17.94603},{"$f":"'Res Bill Impact'!J27","v":45.929670000000002},{"$f":"'Res Bill Impact'!K27","v":52.013069999999999},null,null,null,null,"V",{"$f":"'Res Bill Impact'!Q27","v":21},{"$f":"'Res Bill Impact'!R27","v":45},{"$f":"'Res Bill Impact'!S27","v":48},{"$f":"'Res Bill Impact'!T27","v":22},{"$f":"'Res Bill Impact'!U27","v":43},{"$f":"'Res Bill Impact'!V27","v":45},{"$f":"'Res Bill Impact'!W27","v":8.6207508380022248E-3},{"$f":"'Res Bill Impact'!X27","v":1.2702788202194892E-2},{"$f":"IFERROR((Q27*'Hypothetical Summary'!$M$17+'Hypothetical Res Bill Impact'!R27*'Hypothetical Summary'!$M$18+'Hypothetical Res Bill Impact'!S27*'Hypothetical Summary'!$M$19)/SUM('Hypothetical Summary'!$M$17:$M$19),\" \")","v":31.5},{"$f":"IFERROR((T27*'Hypothetical Summary'!$M$17+'Hypothetical Res Bill Impact'!U27*'Hypothetical Summary'!$M$18+'Hypothetical Res Bill Impact'!V27*'Hypothetical Summary'!$M$19)/SUM('Hypothetical Summary'!$M$17:$M$19),\" \")","v":31.083333333333332}]
[null,"Tier 1",{"$f":"'Res Bill Impact'!C28","v":2.1499933710732151},{"$f":"Q7","v":2.1403454968585724},{"$f":"S7","v":2.5481317713013856},null,null,"W",{"$f":"'Res Bill Impact'!I28","v":11.862630000000001},{"$f":"'Res Bill Impact'!J28","v":34.675379999999997},{"$f":"'Res Bill Impact'!K28","v":51.100560000000002},null,null,null,null,"W",{"$f":"'Res Bill Impact'!Q28","v":14},{"$f":"'Res Bill Impact'!R28","v":33},{"$f":"'Res Bill Impact'!S28","v":51},{"$f":"'Res Bill Impact'!T28","v":17},{"$f":"'Res Bill Impact'!U28","v":34},{"$f":"'Res Bill Impact'!V28","v":49},{"$f":"'Res Bill Impact'!W28","v":1.7602101347570249E-2},{"$f":"'Res Bill Impact'!X28","v":6.9220591524650515E-2},{"$f":"IFERROR((Q28*'Hypothetical Summary'!$M$17+'Hypothetical Res Bill Impact'!R28*'Hypothetical Summary'!$M$18+'Hypothetical Res Bill Impact'!S28*'Hypothetical Summary'!$M$19)/SUM('Hypothetical Summary'!$M$17:$M$19),\" \")","v":24.916666666666668},{"$f":"IFERROR((T28*'Hypothetical Summary'!$M$17+'Hypothetical Res Bill Impact'!U28*'Hypothetical Summary'!$M$18+'Hypothetical Res Bill Impact'!V28*'Hypothetical Summary'!$M$19)/SUM('Hypothetical Summary'!$M$17:$M$19),\" \")","v":26.583333333333332}]
[null,"Tier 2",{"$f":"'Res Bill Impact'!C29","v":2.5635773710732148},{"$f":"Q9","v":2.5514334968585723},{"$f":"S9","v":3.0614902220863338},null,null,"X",{"$f":"'Res Bill Impact'!I29","v":14.90433},{"$f":"'Res Bill Impact'!J29","v":45.017160000000004},{"$f":"'Res Bill Impact'!K29","v":60.834000000000003},null,null,null,null,"X",{"$f":"'Res Bill Impact'!Q29","v":18},{"$f":"'Res Bill Impact'!R29","v":45},{"$f":"'Res Bill Impact'!S29","v":58},{"$f":"'Res Bill Impact'!T29","v":17},{"$f":"'Res Bill Impact'!U29","v":34},{"$f":"'Res Bill Impact'!V29","v":43},{"$f":"'Res Bill Impact'!W29","v":0.38030551867384382},{"$f":"'Res Bill Impact'!X29","v":0.24214725815481006},{"$f":"IFERROR((Q29*'Hypothetical Summary'!$M$17+'Hypothetical Res Bill Impact'!R29*'Hypothetical Summary'!$M$18+'Hypothetical Res Bill Impact'!S29*'Hypothetical Summary'!$M$19)/SUM('Hypothetical Summary'!$M$17:$M$19),\" \")","v":31.416666666666668},{"$f":"IFERROR((T29*'Hypothetical Summary'!$M$17+'Hypothetical Res Bill Impact'!U29*'Hypothetical Summary'!$M$18+'Hypothetical Res Bill Impact'!V29*'Hypothetical Summary'!$M$19)/SUM('Hypothetical Summary'!$M$17:$M$19),\" \")","v":25.583333333333332}]
[null,null,null,null,null,null,null,"Y",{"$f":"'Res Bill Impact'!I30","v":21.90024},{"$f":"'Res Bill Impact'!J30","v":67.525740000000013},{"$f":"'Res Bill Impact'!K30","v":78.475860000000011},null,null,null,null,"Y",{"$f":"'Res Bill Impact'!Q30","v":23},{"$f":"'Res Bill Impact'!R30","v":69},{"$f":"'Res Bill Impact'!S30","v":79},{"$f":"'Res Bill Impact'!T30","v":21},{"$f":"'Res Bill Impact'!U30","v":60},{"$f":"'Res Bill Impact'!V30","v":68},{"$f":"'Res Bill Impact'!W30","v":6.2691152223049319E-4},{"$f":"'Res Bill Impact'!X30","v":9.5873278777674673E-4},{"$f":"IFERROR((Q30*'Hypothetical Summary'!$M$17+'Hypothetical Res Bill Impact'!R30*'Hypothetical Summary'!$M$18+'Hypothetical Res Bill Impact'!S30*'Hypothetical Summary'!$M$19)/SUM('Hypothetical Summary'!$M$17:$M$19),\" \")","v":43.833333333333336},{"$f":"IFERROR((T30*'Hypothetical Summary'!$M$17+'Hypothetical Res Bill Impact'!U30*'Hypothetical Summary'!$M$18+'Hypothetical Res Bill Impact'!V30*'Hypothetical Summary'!$M$19)/SUM('Hypothetical Summary'!$M$17:$M$19),\" \")","v":38.583333333333336}]
[null,null,null,null,null,null,null,null,null,null,null,null,null,null,null,"ALL CLIMATE ZONES",{"$f":"(Q22*$W22)+SUMPRODUCT(Q24:Q30,$W24:$W30)","v":16.89719191653089},{"$f":"(R22*$W22)+SUMPRODUCT(R24:R30,$W24:$W30)","v":41.994059201119285},{"$f":"(S22*$W22)+SUMPRODUCT(S24:S30,$W24:$W30)","v":55.579484107774974},{"$f":"(T22*$X22)+SUMPRODUCT(T24:T30,$X24:$X30)","v":16.7936012589897},{"$f":"(U22*$X22)+SUMPRODUCT(U24:U30,$X24:$X30)","v":35.63957830921828},{"$f":"(V22*$X22)+SUMPRODUCT(V24:V30,$X24:$X30)","v":46.978235586257092},{"$f":"SUM(W22:W30)","v":0.99999999999999989},{"$f":"SUM(X22:X30)","v":1.0000000000000002},{"$f":"SUMPRODUCT(W22:W30,Y22:Y30)","v":29.618457436218662},{"$f":"SUMPRODUCT(X22:X30,Z22:Z30)","v":26.535867909424748}]
[null,null,null,null,null,null,null,null,null,null,null,null,null,null,null,null,null,null,null,null,null,null,null,"Rate Trajectory Report Lookup:",{"$f":"ROUND(VLOOKUP('Rate Trajectory Dashboard'!$D$5,'Hypothetical Res Bill Impact'!$P$22:$Z$31,10,FALSE),0)","v":30},{"$f":"ROUND(VLOOKUP('Rate Trajectory Dashboard'!$D$5,'Hypothetical Res Bill Impact'!$P$22:$Z$31,11,FALSE),0)","v":27}]
[null,null,null,null,null,null,null,null,null,null,null,null,null,"Daily to Monthly Conversion Factor",{"$f":"'Res Bill Impact'!$O$33","v":30.417000000000002}]
[null,null,"NON-CARE"]
[null,null,{"$f":"C27","v":"2025-01-01"},null,null,{"$f":"D27","v":"2025-09-01"},null,null,{"$f":"E21","v":"Illustrative Proposed"}]
[null,null,"Summer","Winter Off-Peak","Winter On-Peak","Summer","Winter Off-Peak","Winter On-Peak","Summer","Winter Off-Peak","Winter On-Peak"]
[null,"P",{"$f":"IF(Q22>I22,$C$22*I22+$C$23*(Q22-I22),Q22*$C$22)","v":49.06883586730202},{"$f":"IF(R22>J22,$C$22*J22+$C$23*(R22-J22),R22*$C$22)","v":155.61976665947574},{"$f":"IF(S22>K22,$C$22*K22+$C$23*(S22-K22),S22*$C$22)","v":186.36858528223399},{"$f":"IF(Q22>I22,$D$22*I22+$D$23*(Q22-I22),Q22*$D$22)","v":48.831608948200014},{"$f":"IF(R22>J22,$D$22*J22+$D$23*(R22-J22),R22*$D$22)","v":154.87812000000005},{"$f":"IF(S22>K22,$D$22*K22+$D$23*(S22-K22),S22*$D$22)","v":185.47948563220007},{"$f":"IF(Q22>I22,$E$22*I22+$E$23*(Q22-I22),Q22*$E$22)","v":58.395561545617412},{"$f":"IF(R22>J22,$E$22*J22+$E$23*(R22-J22),R22*$E$22)","v":184.74344155401008},{"$f":"IF(S22>K22,$E$22*K22+$E$23*(S22-K22),S22*$E$22)","v":221.28557228441809}]
[null,"Q"]
[null,"R",{"$f":"IF(Q24>I24,$C$22*I24+$C$23*(Q24-I24),Q24*$C$22)","v":39.799129033258723},{"$f":"IF(R24>J24,$C$22*J24+$C$23*(R24-J24),R24*$C$22)","v":107.13992779664544},{"$f":"IF(S24>K24,$C$22*K24+$C$23*(S24-K24),S24*$C$22)","v":153.378261324812},{"$f":"IF(Q24>I24,$D$22*I24+$D$23*(Q24-I24),Q24*$D$22)","v":39.607451336800011},{"$f":"IF(R24>J24,$D$22*J24+$D$23*(R24-J24),R24*$D$22)","v":106.62848127120003},{"$f":"IF(S24>K24,$D$22*K24+$D$23*(S24-K24),S24*$D$22)","v":152.64667588780006},{"$f":"IF(Q24>I24,$E$22*I24+$E$23*(Q24-I24),Q24*$E$22)","v":47.332684225922648},{"$f":"IF(R24>J24,$E$22*J24+$E$23*(R24-J24),R24*$E$22)","v":127.22665465866081},{"$f":"IF(S24>K24,$E$22*K24+$E$23*(S24-K24),S24*$E$22)","v":182.10888080483491}]
[null,"S",42.57453105136922,117.92703560918348,164.322619267302,42.369568948200012,117.36435012440002,163.53884553720005,50.629939399216092,140.02530475189644,195.10271619803962]
[null,"T",52.889888474051332,98.286168416511003,120.12753917573566,52.636535412800015,97.817760000000021,119.55504000000003,62.843033592544501,116.68006834990109,142.60897242765691]
[null,"V",58.912442900128234,122.85771052063875,131.04822455534799,58.629673024200017,122.27220000000003,130.42368000000005,70.023099839038608,145.85008543737638,155.57342446653479]
[null,"W",39.327378643402817,90.095654381801751,139.23873859005724,39.138548948200011,89.666280000000029,138.57516000000004,46.747128326015428,106.95672932074267,165.29676349569323]
[null,"X",50.743486975748723,122.85771052063875,158.34993800437883,50.499620986200007,122.27220000000003,157.59528000000003,60.326519619127346,145.85008543737638,187.98455456372955]
[null,"Y",63.362496026685427,189.14398730034446,215.95450670173759,63.059802673600018,188.24160324360003,214.92497458040006,75.251313085841986,224.58282745771155,{"$f":"IF(S30>K30,$E$22*K30+$E$23*(S30-K30),S30*$E$22)","v":256.38426739083155}]
[null,"ALL CLIMATE ZONES",{"$f":"SUMPRODUCT(C37:C45,$W$22:$W$30)","v":47.61718377639977},114.86970584748346,151.94382295734522,47.388363774600009,114.32198617333914,151.21943776725919,56.608894995734502,136.37898670105676,180.39050208992799]
[]
[]
[null,null,"CARE"]
[null,null,{"$f":"C27","v":"2025-01-01"},null,null,{"$f":"D27","v":"2025-09-01"},null,null,{"$f":"E27","v":"Illustrative Proposed"}]
[null,null,"Summer","Winter Off-Peak","Winter On-Peak","Summer","Winter Off-Peak","Winter On-Peak","Summer","Winter Off-Peak","Winter On-Peak"]
[null,"P",{"$f":"IF(T22>I22,$C$28*I22+$C$29*(T22-I22),T22*$C$28)","v":30.98388922910501},{"$f":"IF(U22>J22,$C$28*J22+$C$29*(U22-J22),U22*$C$28)","v":98.899695069367894},{"$f":"IF(V22>K22,$C$28*K22+$C$29*(V22-K22),V22*$C$28)","v":113.94964866688039},{"$f":"IF(T22>I22,$D$28*I22+$D$29*(T22-I22),T22*$D$28)","v":30.843484114580015},{"$f":"IF(U22>J22,$D$28*J22+$D$29*(U22-J22),U22*$D$28)","v":98.455892855494326},{"$f":"IF(V22>K22,$D$28*K22+$D$29*(V22-K22),V22*$D$28)","v":113.43831133350434},{"$f":"IF(T22>I22,$E$28*I22+$E$29*(T22-I22),T22*$E$28)","v":36.771081750173622},{"$f":"IF(U22>J22,$E$28*J22+$E$29*(U22-J22),U22*$E$28)","v":117.21406147986373},{"$f":"IF(V22>K22,$E$28*K22+$E$29*(V22-K22),V22*$E$28)","v":135.05098387897343}]
[null,"Q"]
[null,"R",{"$f":"IF(T24>I24,$C$28*I24+$C$29*(T24-I24),T24*$C$28)","v":33.924866136018224},{"$f":"IF(U24>J24,$C$28*J24+$C$29*(U24-J24),U24*$C$28)","v":75.249767987562535},{"$f":"IF(V24>K24,$C$28*K24+$C$29*(V24-K24),V24*$C$28)","v":105.34967518258753},{"$f":"IF(T24>I24,$D$28*I24+$D$29*(T24-I24),T24*$D$28)","v":33.770039522318584},{"$f":"IF(U24>J24,$D$28*J24+$D$29*(U24-J24),U24*$D$28)","v":74.912092390050034},{"$f":"IF(V24>K24,$D$28*K24+$D$29*(V24-K24),V24*$D$28)","v":104.87692934607006},{"$f":"IF(T24>I24,$E$28*I24+$E$29*(T24-I24),T24*$E$28)","v":40.301016692185726},{"$f":"IF(U24>J24,$E$28*J24+$E$29*(U24-J24),U24*$E$28)","v":89.184611995548494},{"$f":"IF(V24>K24,$E$28*K24+$E$29*(V24-K24),V24*$E$28)","v":124.8584567937679}]
[null,"S",36.111043971251441,83.849741471855396,113.94964866688039,35.946351108297158,83.473474377484322,113.43831133350434,42.89406219434629,99.377139080754034,135.05098387897343]
[null,"T",44.226756085784302,66.649794503269675,77.399761358635743,44.026394267411447,66.350710402615746,77.052437886908606,52.485503003112242,78.992084910342953,91.732743766849879]
[null,"V",48.976511292090734,92.449714956148256,96.749701698294672,48.754139350248593,92.03485636491861,96.315547358635754,58.140038727359141,109.56966616595957,114.66592970856235]
[null,"W",38.674621342324656,73.099774616489313,105.34967518258753,38.497784605155729,72.771746893191462,104.87692934607006,45.955552416432624,86.636480224247109,124.8584567937679]
[null,"X",37.416622889524653,73.099774616489313,92.449714956148256,37.247378235555729,72.771746893191462,92.03485636491861,44.394070016680047,86.636480224247109,109.56966616595957]
[null,"Y",45.149860792537517,128.99960226439291,146.19954923297863,44.947255434030019,128.42072981151435,145.54349378638292,53.510767197329095,152.88790627808314,173.27296044849422]
[null,"ALL CLIMATE ZONES",{"$f":"SUMPRODUCT(C52:C60,$X$22:$X$30)","v":37.55751710159285},{"$f":"SUMPRODUCT(D52:D60,$X$22:$X$30)","v":76.62485711266406},101.00289509516857,37.386735364074219,76.281010944073799,{"$f":"SUMPRODUCT(H52:H60,$X$22:$X$30)","v":100.54965498740653},44.593832008228674,90.814341805502821,{"$f":"SUMPRODUCT(K52:K60,$X$22:$X$30)","v":119.70673465702308}]
[]
[]
[]
[]
[null,null,"ESSENTIAL USAGE NON-CARE"]
[null,null,{"$f":"C27","v":"2025-01-01"},null,null,{"$f":"D27","v":"2025-09-01"},null,null,{"$f":"E21","v":"Illustrative Proposed"}]
[null,null,"Summer","Winter Off-Peak","Winter On-Peak","Summer","Winter Off-Peak","Winter On-Peak","Summer","Winter Off-Peak","Winter On-Peak"]
[null,"P",{"$f":"C$22*I22","v":32.387012501187669},{"$f":"C$22*J22","v":156.12200898008413},{"$f":"C$22*K22","v":181.86553173743843},{"$f":"D$22*I22","v":32.232663730800013},{"$f":"D$22*J22","v":155.37796875360004},{"$f":"D$22*K22","v":180.99880402680006},{"$f":"E$22*I22","v":38.44812442248854},{"$f":"E$22*J22","v":185.33967670327806},{"$f":"E$22*K22","v":215.90100637243563}]
[null,"Q"]
[null,"R",{"$f":"C$22*I24","v":29.89570384725015},{"$f":"C$22*J24","v":102.9740910294172},{"$f":"C$22*K24","v":150.30895545422993},{"$f":"D$22*I24","v":29.753228059200008},{"$f":"D$22*J24","v":102.48334109280003},{"$f":"D$22*K24","v":149.59261885320007},{"$f":"E$22*I24","v":35.490576389989414},{"$f":"E$22*J24","v":122.24531867663022},{"$f":"E$22*K24","v":178.43873129411347}]
[null,"S",32.387012501187669,114.60019808112557,161.10462628795915,32.232663730800013,114.05404089360002,160.33684009680005,38.44812442248854,136.04720949495942,191.2547727682763]
[null,"T",46.504428206833573,108.7871445552714,139.51328462050071,46.282799203200021,108.26869099320004,138.84839760960003,55.207563273316879,129.14626408579483,165.62268981995061]
[null,"V",48.995736860771082,125.3958689148548,142.00459327443821,48.762234874800015,124.79826213720004,141.32783328120004,58.165111305815991,148.86325096912228,168.58023785244973]
[null,"W",32.387012501187669,94.669728849625471,139.51328462050071,32.232663730800013,94.21855552080001,138.84839760960003,38.44812442248854,112.38682523496648,165.62268981995061]
[null,"X",40.691374680979372,122.90456026091729,166.08724359583417,40.497449302800007,122.31882646560004,165.29571144000005,48.306617864152258,145.90570293662316,197.16986883327453]
[null,"Y",59.7914076945003,184.35684039137595,214.25254423862611,59.506456118400017,183.47823969840007,213.23146775760009,70.981152779978828,218.85855440493478,254.34913079492418]
[null,"ALL CLIMATE ZONES",{"$f":"SUMPRODUCT(C69:C77,$W$22:$W$30)","v":38.290200181746933},{"$f":"SUMPRODUCT(D69:D77,$W$22:$W$30)","v":115.67808643118934},157.51849601069063,38.107718228039928,115.12679228509309,156.76780046037794,45.456072266493017,137.32682074021656,186.99751121657809]
[]
[]
[null,null,"ESSENTIAL USAGE CARE"]
[null,null,{"$f":"C27","v":"2025-01-01"},null,null,{"$f":"D27","v":"2025-09-01"},null,null,{"$f":"E27","v":"Illustrative Proposed"}]
[null,null,"Summer","Winter Off-Peak","Winter On-Peak","Summer","Winter Off-Peak","Winter On-Peak","Summer","Winter Off-Peak","Winter On-Peak"]
[null,"P",{"$f":"C$28*I22","v":25.504575863494257},{"$f":"C$28*J22","v":122.94513493171588},{"$f":"C$28*K22","v":143.21800292577544},{"$f":"D$28*I22","v":25.39012670139941},{"$f":"D$28*J22","v":122.39343127854073},{"$f":"D$28*K22","v":142.57532686170435},{"$f":"E$28*I22","v":30.227544394192957},{"$f":"E$28*J22","v":145.71226528482757},{"$f":"E$28*K22","v":169.73928775200659}]
[null,"Q"]
[null,"R",{"$f":"C$28*I24","v":23.542685412456233},{"$f":"C$28*J24","v":81.09147197623814},{"$f":"C$28*K24","v":118.36739054596052},{"$f":"D$28*I24","v":23.437040032060992},{"$f":"D$28*J24","v":80.727582332654535},{"$f":"D$28*K24","v":117.83622905008444},{"$f":"E$28*I24","v":27.902348671562727},{"$f":"E$28*J24","v":96.108089868716064},{"$f":"E$28*K24","v":140.28680859869038}]
[null,"S",25.504575863494257,90.246960747748886,126.86891583379193,25.39012670139941,89.84198678956713,126.29960461721757,30.227544394192957,106.95900324099046,150.36265673008805]
[null,"T",36.621955086043037,85.66921636199352,109.86586525812909,36.457617827650438,85.28478456111084,109.3728534829513,43.403653489097586,101.53354655485327,130.21096046729272]
[null,"V",38.583845537081054,98.748486035580314,111.82775570916711,38.410704496988849,98.305362356700272,111.3259401522897,45.728849211727805,117.03485137238812,132.53615618992296]
[null,"W",25.504575863494257,74.551837139444729,109.86586525812909,25.39012670139941,74.217293434859798,109.3728534829513,30.227544394192957,88.357437459948628,130.21096046729272]
[null,"X",32.04421070028765,96.786595584542297,130.79269673586796,31.900415599194126,96.352275687361868,130.2057779558944,37.978196802960383,114.70965564975789,155.0130481753485]
[null,"Y",47.085370824912467,145.17989337681348,168.7225787892697,46.874080064121983,144.52841353104282,167.96545356310381,55.804697343125454,172.06448347463686,199.96683214619958]
[null,"ALL CLIMATE ZONES",{"$f":"SUMPRODUCT(C84:C92,$X$22:$X$30)","v":28.563039262905463},88.718942533547491,122.51369137381941,28.434865560742445,88.320825400008374,121.96392377925419,33.852377784033564,105.14802474630318,145.20092648155929]
[]
[]
[null,null,"TYPICAL NON-CARE"]
[null,null,{"$f":"C27","v":"2025-01-01"},null,null,{"$f":"D27","v":"2025-09-01"},null,null,{"$f":"E21","v":"Illustrative Proposed"}]
[null,null,"Summer","Winter Off-Peak","Winter On-Peak","Summer","Winter Off-Peak","Winter On-Peak","Summer","Winter Off-Peak","Winter On-Peak"]
[null,"P",{"$f":"IF('Hypothetical Summary'!$M$20>I22,C$22*I22+C$23*('Hypothetical Summary'!$M$20-I22),'Hypothetical Summary'!$M$20*C$22)","v":101.02327439476444},{"$f":"IF('Hypothetical Summary'!$M$20>J22,C$22*J22+C$23*('Hypothetical Summary'!$M$20-J22),'Hypothetical Summary'!$M$20*C$22)","v":90.095654381801751},{"$f":"IF('Hypothetical Summary'!$M$20>K22,C$22*K22+C$23*('Hypothetical Summary'!$M$20-K22),'Hypothetical Summary'!$M$20*C$22)","v":90.095654381801751},{"$f":"IF('Hypothetical Summary'!$M$20>I22,D$22*I22+D$23*('Hypothetical Summary'!$M$20-I22),'Hypothetical Summary'!$M$20*D$22)","v":100.52792894820001},{"$f":"IF('Hypothetical Summary'!$M$20>J22,D$22*J22+D$23*('Hypothetical Summary'!$M$20-J22),'Hypothetical Summary'!$M$20*D$22)","v":89.666280000000029},{"$f":"IF('Hypothetical Summary'!$M$20>K22,D$22*K22+D$23*('Hypothetical Summary'!$M$20-K22),'Hypothetical Summary'!$M$20*D$22)","v":89.666280000000029},{"$f":"IF('Hypothetical Summary'!$M$20>I22,E$22*I22+E$23*('Hypothetical Summary'!$M$20-I22),'Hypothetical Summary'!$M$20*E$22)","v":120.52053871682799},{"$f":"IF('Hypothetical Summary'!$M$20>J22,E$22*J22+E$23*('Hypothetical Summary'!$M$20-J22),'Hypothetical Summary'!$M$20*E$22)","v":106.95672932074267},{"$f":"IF('Hypothetical Summary'!$M$20>K22,E$22*K22+E$23*('Hypothetical Summary'!$M$20-K22),'Hypothetical Summary'!$M$20*E$22)","v":106.95672932074267}]
[null,"Q"]
[null,"R",{"$f":"IF('Hypothetical Summary'!$M$20>I24,C$22*I24+C$23*('Hypothetical Summary'!$M$20-I24),'Hypothetical Summary'!$M$20*C$22)","v":101.49502478462036},{"$f":"IF('Hypothetical Summary'!$M$20>J24,C$22*J24+C$23*('Hypothetical Summary'!$M$20-J24),'Hypothetical Summary'!$M$20*C$22)","v":90.095654381801751},{"$f":"IF('Hypothetical Summary'!$M$20>K24,C$22*K24+C$23*('Hypothetical Summary'!$M$20-K24),'Hypothetical Summary'!$M$20*C$22)","v":90.095654381801751},{"$f":"IF('Hypothetical Summary'!$M$20>I24,D$22*I24+D$23*('Hypothetical Summary'!$M$20-I24),'Hypothetical Summary'!$M$20*D$22)","v":100.99683133680003},{"$f":"IF('Hypothetical Summary'!$M$20>J24,D$22*J24+D$23*('Hypothetical Summary'!$M$20-J24),'Hypothetical Summary'!$M$20*D$22)","v":89.666280000000029},{"$f":"IF('Hypothetical Summary'!$M$20>K24,D$22*K24+D$23*('Hypothetical Summary'!$M$20-K24),'Hypothetical Summary'!$M$20*D$22)","v":89.666280000000029},{"$f":"IF('Hypothetical Summary'!$M$20>I24,E$22*I24+E$23*('Hypothetical Summary'!$M$20-I24),'Hypothetical Summary'!$M$20*E$22)","v":121.10609461673521},{"$f":"IF('Hypothetical Summary'!$M$20>J24,E$22*J24+E$23*('Hypothetical Summary'!$M$20-J24),'Hypothetical Summary'!$M$20*E$22)","v":106.95672932074267},{"$f":"IF('Hypothetical Summary'!$M$20>K24,E$22*K24+E$23*('Hypothetical Summary'!$M$20-K24),'Hypothetical Summary'!$M$20*E$22)","v":106.95672932074267}]
[null,"S",{"$f":"IF('Hypothetical Summary'!$M$20>I25,C$22*I25+C$23*('Hypothetical Summary'!$M$20-I25),'Hypothetical Summary'!$M$20*C$22)","v":101.02327439476444},{"$f":"IF('Hypothetical Summary'!$M$20>J25,C$22*J25+C$23*('Hypothetical Summary'!$M$20-J25),'Hypothetical Summary'!$M$20*C$22)","v":90.095654381801751},{"$f":"IF('Hypothetical Summary'!$M$20>K25,C$22*K25+C$23*('Hypothetical Summary'!$M$20-K25),'Hypothetical Summary'!$M$20*C$22)","v":90.095654381801751},{"$f":"IF('Hypothetical Summary'!$M$20>I25,D$22*I25+D$23*('Hypothetical Summary'!$M$20-I25),'Hypothetical Summary'!$M$20*D$22)","v":100.52792894820001},{"$f":"IF('Hypothetical Summary'!$M$20>J25,D$22*J25+D$23*('Hypothetical Summary'!$M$20-J25),'Hypothetical Summary'!$M$20*D$22)","v":89.666280000000029},{"$f":"IF('Hypothetical Summary'!$M$20>K25,D$22*K25+D$23*('Hypothetical Summary'!$M$20-K25),'Hypothetical Summary'!$M$20*D$22)","v":89.666280000000029},{"$f":"IF('Hypothetical Summary'!$M$20>I25,E$22*I25+E$23*('Hypothetical Summary'!$M$20-I25),'Hypothetical Summary'!$M$20*E$22)","v":120.52053871682799},{"$f":"IF('Hypothetical Summary'!$M$20>J25,E$22*J25+E$23*('Hypothetical Summary'!$M$20-J25),'Hypothetical Summary'!$M$20*E$22)","v":106.95672932074267},{"$f":"IF('Hypothetical Summary'!$M$20>K25,E$22*K25+E$23*('Hypothetical Summary'!$M$20-K25),'Hypothetical Summary'!$M$20*E$22)","v":106.95672932074267}]
[null,"T",{"$f":"IF('Hypothetical Summary'!$M$20>I26,C$22*I26+C$23*('Hypothetical Summary'!$M$20-I26),'Hypothetical Summary'!$M$20*C$22)","v":98.350022185580968},{"$f":"IF('Hypothetical Summary'!$M$20>J26,C$22*J26+C$23*('Hypothetical Summary'!$M$20-J26),'Hypothetical Summary'!$M$20*C$22)","v":90.095654381801751},{"$f":"IF('Hypothetical Summary'!$M$20>K26,C$22*K26+C$23*('Hypothetical Summary'!$M$20-K26),'Hypothetical Summary'!$M$20*C$22)","v":90.095654381801751},{"$f":"IF('Hypothetical Summary'!$M$20>I26,D$22*I26+D$23*('Hypothetical Summary'!$M$20-I26),'Hypothetical Summary'!$M$20*D$22)","v":97.870815412800027},{"$f":"IF('Hypothetical Summary'!$M$20>J26,D$22*J26+D$23*('Hypothetical Summary'!$M$20-J26),'Hypothetical Summary'!$M$20*D$22)","v":89.666280000000029},{"$f":"IF('Hypothetical Summary'!$M$20>K26,D$22*K26+D$23*('Hypothetical Summary'!$M$20-K26),'Hypothetical Summary'!$M$20*D$22)","v":89.666280000000029},{"$f":"IF('Hypothetical Summary'!$M$20>I26,E$22*I26+E$23*('Hypothetical Summary'!$M$20-I26),'Hypothetical Summary'!$M$20*E$22)","v":117.20238861735375},{"$f":"IF('Hypothetical Summary'!$M$20>J26,E$22*J26+E$23*('Hypothetical Summary'!$M$20-J26),'Hypothetical Summary'!$M$20*E$22)","v":106.95672932074267},{"$f":"IF('Hypothetical Summary'!$M$20>K26,E$22*K26+E$23*('Hypothetical Summary'!$M$20-K26),'Hypothetical Summary'!$M$20*E$22)","v":106.95672932074267}]
[null,"V",{"$f":"IF('Hypothetical Summary'!$M$20>I27,C$22*I27+C$23*('Hypothetical Summary'!$M$20-I27),'Hypothetical Summary'!$M$20*C$22)","v":97.878271795725055},{"$f":"IF('Hypothetical Summary'!$M$20>J27,C$22*J27+C$23*('Hypothetical Summary'!$M$20-J27),'Hypothetical Summary'!$M$20*C$22)","v":90.095654381801751},{"$f":"IF('Hypothetical Summary'!$M$20>K27,C$22*K27+C$23*('Hypothetical Summary'!$M$20-K27),'Hypothetical Summary'!$M$20*C$22)","v":90.095654381801751},{"$f":"IF('Hypothetical Summary'!$M$20>I27,D$22*I27+D$23*('Hypothetical Summary'!$M$20-I27),'Hypothetical Summary'!$M$20*D$22)","v":97.401913024200013},{"$f":"IF('Hypothetical Summary'!$M$20>J27,D$22*J27+D$23*('Hypothetical Summary'!$M$20-J27),'Hypothetical Summary'!$M$20*D$22)","v":89.666280000000029},{"$f":"IF('Hypothetical Summary'!$M$20>K27,D$22*K27+D$23*('Hypothetical Summary'!$M$20-K27),'Hypothetical Summary'!$M$20*D$22)","v":89.666280000000029},{"$f":"IF('Hypothetical Summary'!$M$20>I27,E$22*I27+E$23*('Hypothetical Summary'!$M$20-I27),'Hypothetical Summary'!$M$20*E$22)","v":116.61683271744653},{"$f":"IF('Hypothetical Summary'!$M$20>J27,E$22*J27+E$23*('Hypothetical Summary'!$M$20-J27),'Hypothetical Summary'!$M$20*E$22)","v":106.95672932074267},{"$f":"IF('Hypothetical Summary'!$M$20>K27,E$22*K27+E$23*('Hypothetical Summary'!$M$20-K27),'Hypothetical Summary'!$M$20*E$22)","v":106.95672932074267}]
[null,"W",{"$f":"IF('Hypothetical Summary'!$M$20>I28,C$22*I28+C$23*('Hypothetical Summary'!$M$20-I28),'Hypothetical Summary'!$M$20*C$22)","v":101.02327439476444},{"$f":"IF('Hypothetical Summary'!$M$20>J28,C$22*J28+C$23*('Hypothetical Summary'!$M$20-J28),'Hypothetical Summary'!$M$20*C$22)","v":90.095654381801751},{"$f":"IF('Hypothetical Summary'!$M$20>K28,C$22*K28+C$23*('Hypothetical Summary'!$M$20-K28),'Hypothetical Summary'!$M$20*C$22)","v":90.095654381801751},{"$f":"IF('Hypothetical Summary'!$M$20>I28,D$22*I28+D$23*('Hypothetical Summary'!$M$20-I28),'Hypothetical Summary'!$M$20*D$22)","v":100.52792894820001},{"$f":"IF('Hypothetical Summary'!$M$20>J28,D$22*J28+D$23*('Hypothetical Summary'!$M$20-J28),'Hypothetical Summary'!$M$20*D$22)","v":89.666280000000029},{"$f":"IF('Hypothetical Summary'!$M$20>K28,D$22*K28+D$23*('Hypothetical Summary'!$M$20-K28),'Hypothetical Summary'!$M$20*D$22)","v":89.666280000000029},{"$f":"IF('Hypothetical Summary'!$M$20>I28,E$22*I28+E$23*('Hypothetical Summary'!$M$20-I28),'Hypothetical Summary'!$M$20*E$22)","v":120.52053871682799},{"$f":"IF('Hypothetical Summary'!$M$20>J28,E$22*J28+E$23*('Hypothetical Summary'!$M$20-J28),'Hypothetical Summary'!$M$20*E$22)","v":106.95672932074267},{"$f":"IF('Hypothetical Summary'!$M$20>K28,E$22*K28+E$23*('Hypothetical Summary'!$M$20-K28),'Hypothetical Summary'!$M$20*E$22)","v":106.95672932074267}]
[null,"X",{"$f":"IF('Hypothetical Summary'!$M$20>I29,C$22*I29+C$23*('Hypothetical Summary'!$M$20-I29),'Hypothetical Summary'!$M$20*C$22)","v":99.450773095244742},{"$f":"IF('Hypothetical Summary'!$M$20>J29,C$22*J29+C$23*('Hypothetical Summary'!$M$20-J29),'Hypothetical Summary'!$M$20*C$22)","v":90.095654381801751},{"$f":"IF('Hypothetical Summary'!$M$20>K29,C$22*K29+C$23*('Hypothetical Summary'!$M$20-K29),'Hypothetical Summary'!$M$20*C$22)","v":90.095654381801751},{"$f":"IF('Hypothetical Summary'!$M$20>I29,D$22*I29+D$23*('Hypothetical Summary'!$M$20-I29),'Hypothetical Summary'!$M$20*D$22)","v":98.964920986200013},{"$f":"IF('Hypothetical Summary'!$M$20>J29,D$22*J29+D$23*('Hypothetical Summary'!$M$20-J29),'Hypothetical Summary'!$M$20*D$22)","v":89.666280000000029},{"$f":"IF('Hypothetical Summary'!$M$20>K29,D$22*K29+D$23*('Hypothetical Summary'!$M$20-K29),'Hypothetical Summary'!$M$20*D$22)","v":89.666280000000029},{"$f":"IF('Hypothetical Summary'!$M$20>I29,E$22*I29+E$23*('Hypothetical Summary'!$M$20-I29),'Hypothetical Summary'!$M$20*E$22)","v":118.56868571713724},{"$f":"IF('Hypothetical Summary'!$M$20>J29,E$22*J29+E$23*('Hypothetical Summary'!$M$20-J29),'Hypothetical Summary'!$M$20*E$22)","v":106.95672932074267},{"$f":"IF('Hypothetical Summary'!$M$20>K29,E$22*K29+E$23*('Hypothetical Summary'!$M$20-K29),'Hypothetical Summary'!$M$20*E$22)","v":106.95672932074267}]
[null,"Y",{"$f":"IF('Hypothetical Summary'!$M$20>I30,C$22*I30+C$23*('Hypothetical Summary'!$M$20-I30),'Hypothetical Summary'!$M$20*C$22)","v":95.834020106349442},{"$f":"IF('Hypothetical Summary'!$M$20>J30,C$22*J30+C$23*('Hypothetical Summary'!$M$20-J30),'Hypothetical Summary'!$M$20*C$22)","v":90.095654381801751},{"$f":"IF('Hypothetical Summary'!$M$20>K30,C$22*K30+C$23*('Hypothetical Summary'!$M$20-K30),'Hypothetical Summary'!$M$20*C$22)","v":90.095654381801751},{"$f":"IF('Hypothetical Summary'!$M$20>I30,D$22*I30+D$23*('Hypothetical Summary'!$M$20-I30),'Hypothetical Summary'!$M$20*D$22)","v":95.370002673600027},{"$f":"IF('Hypothetical Summary'!$M$20>J30,D$22*J30+D$23*('Hypothetical Summary'!$M$20-J30),'Hypothetical Summary'!$M$20*D$22)","v":89.666280000000029},{"$f":"IF('Hypothetical Summary'!$M$20>K30,D$22*K30+D$23*('Hypothetical Summary'!$M$20-K30),'Hypothetical Summary'!$M$20*D$22)","v":89.666280000000029},{"$f":"IF('Hypothetical Summary'!$M$20>I30,E$22*I30+E$23*('Hypothetical Summary'!$M$20-I30),'Hypothetical Summary'!$M$20*E$22)","v":114.07942381784859},{"$f":"IF('Hypothetical Summary'!$M$20>J30,E$22*J30+E$23*('Hypothetical Summary'!$M$20-J30),'Hypothetical Summary'!$M$20*E$22)","v":106.95672932074267},{"$f":"IF('Hypothetical Summary'!$M$20>K30,E$22*K30+E$23*('Hypothetical Summary'!$M$20-K30),'Hypothetical Summary'!$M$20*E$22)","v":106.95672932074267}]
[null,"ALL CLIMATE ZONES",{"$f":"SUMPRODUCT(C99:C107,$W$22:$W$30)","v":99.905455819657334},90.095654381801751,90.095654381801751,99.416858748450395,89.666280000000043,89.666280000000043,119.13305653185348,106.95672932074265,106.95672932074265]
[]
[]
[null,null,"TYPICAL CARE"]
[null,null,{"$f":"C27","v":"2025-01-01"},null,null,{"$f":"D27","v":"2025-09-01"},null,null,{"$f":"E27","v":"Illustrative Proposed"}]
[null,null,"Summer","Winter Off-Peak","Winter On-Peak","Summer","Winter Off-Peak","Winter On-Peak","Summer","Winter Off-Peak","Winter On-Peak"]
[null,"P",{"$f":"IF('Hypothetical Summary'!$M$21>I22,C$28*I22+C$29*('Hypothetical Summary'!$M$21-I22),'Hypothetical Summary'!$M$21*C$28)","v":69.437549795203225},{"$f":"IF('Hypothetical Summary'!$M$21>J22,C$28*J22+C$29*('Hypothetical Summary'!$M$21-J22),'Hypothetical Summary'!$M$21*C$28)","v":62.349807761123238},{"$f":"IF('Hypothetical Summary'!$M$21>K22,C$28*K22+C$29*('Hypothetical Summary'!$M$21-K22),'Hypothetical Summary'!$M$21*C$28)","v":62.349807761123238},{"$f":"IF('Hypothetical Summary'!$M$21>I22,D$28*I22+D$29*('Hypothetical Summary'!$M$21-I22),'Hypothetical Summary'!$M$21*D$28)","v":69.114986567458601},{"$f":"IF('Hypothetical Summary'!$M$21>J22,D$28*J22+D$29*('Hypothetical Summary'!$M$21-J22),'Hypothetical Summary'!$M$21*D$28)","v":62.070019408898602},{"$f":"IF('Hypothetical Summary'!$M$21>K22,D$28*K22+D$29*('Hypothetical Summary'!$M$21-K22),'Hypothetical Summary'!$M$21*D$28)","v":62.070019408898602},{"$f":"IF('Hypothetical Summary'!$M$21>I22,E$28*I22+E$29*('Hypothetical Summary'!$M$21-I22),'Hypothetical Summary'!$M$21*E$28)","v":82.693435081468621},{"$f":"IF('Hypothetical Summary'!$M$21>J22,E$28*J22+E$29*('Hypothetical Summary'!$M$21-J22),'Hypothetical Summary'!$M$21*E$28)","v":73.895821367740183},{"$f":"IF('Hypothetical Summary'!$M$21>K22,E$28*K22+E$29*('Hypothetical Summary'!$M$21-K22),'Hypothetical Summary'!$M$21*E$28)","v":73.895821367740183}]
[null,"Q"]
[null,"R",{"$f":"IF('Hypothetical Summary'!$M$21>I24,C$28*I24+C$29*('Hypothetical Summary'!$M$21-I24),'Hypothetical Summary'!$M$21*C$28)","v":69.814949331043238},{"$f":"IF('Hypothetical Summary'!$M$21>J24,C$28*J24+C$29*('Hypothetical Summary'!$M$21-J24),'Hypothetical Summary'!$M$21*C$28)","v":62.349807761123238},{"$f":"IF('Hypothetical Summary'!$M$21>K24,C$28*K24+C$29*('Hypothetical Summary'!$M$21-K24),'Hypothetical Summary'!$M$21*C$28)","v":62.349807761123238},{"$f":"IF('Hypothetical Summary'!$M$21>I24,D$28*I24+D$29*('Hypothetical Summary'!$M$21-I24),'Hypothetical Summary'!$M$21*D$28)","v":69.490108478338612},{"$f":"IF('Hypothetical Summary'!$M$21>J24,D$28*J24+D$29*('Hypothetical Summary'!$M$21-J24),'Hypothetical Summary'!$M$21*D$28)","v":62.070019408898602},{"$f":"IF('Hypothetical Summary'!$M$21>K24,D$28*K24+D$29*('Hypothetical Summary'!$M$21-K24),'Hypothetical Summary'!$M$21*D$28)","v":62.070019408898602},{"$f":"IF('Hypothetical Summary'!$M$21>I24,E$28*I24+E$29*('Hypothetical Summary'!$M$21-I24),'Hypothetical Summary'!$M$21*E$28)","v":83.161879801394406},{"$f":"IF('Hypothetical Summary'!$M$21>J24,E$28*J24+E$29*('Hypothetical Summary'!$M$21-J24),'Hypothetical Summary'!$M$21*E$28)","v":73.895821367740183},{"$f":"IF('Hypothetical Summary'!$M$21>K24,E$28*K24+E$29*('Hypothetical Summary'!$M$21-K24),'Hypothetical Summary'!$M$21*E$28)","v":73.895821367740183}]
[null,"S",{"$f":"IF('Hypothetical Summary'!$M$21>I25,C$28*I25+C$29*('Hypothetical Summary'!$M$21-I25),'Hypothetical Summary'!$M$21*C$28)","v":69.437549795203225},{"$f":"IF('Hypothetical Summary'!$M$21>J25,C$28*J25+C$29*('Hypothetical Summary'!$M$21-J25),'Hypothetical Summary'!$M$21*C$28)","v":62.349807761123238},{"$f":"IF('Hypothetical Summary'!$M$21>K25,C$28*K25+C$29*('Hypothetical Summary'!$M$21-K25),'Hypothetical Summary'!$M$21*C$28)","v":62.349807761123238},{"$f":"IF('Hypothetical Summary'!$M$21>I25,D$28*I25+D$29*('Hypothetical Summary'!$M$21-I25),'Hypothetical Summary'!$M$21*D$28)","v":69.114986567458601},{"$f":"IF('Hypothetical Summary'!$M$21>J25,D$28*J25+D$29*('Hypothetical Summary'!$M$21-J25),'Hypothetical Summary'!$M$21*D$28)","v":62.070019408898602},{"$f":"IF('Hypothetical Summary'!$M$21>K25,D$28*K25+D$29*('Hypothetical Summary'!$M$21-K25),'Hypothetical Summary'!$M$21*D$28)","v":62.070019408898602},{"$f":"IF('Hypothetical Summary'!$M$21>I25,E$28*I25+E$29*('Hypothetical Summary'!$M$21-I25),'Hypothetical Summary'!$M$21*E$28)","v":82.693435081468621},{"$f":"IF('Hypothetical Summary'!$M$21>J25,E$28*J25+E$29*('Hypothetical Summary'!$M$21-J25),'Hypothetical Summary'!$M$21*E$28)","v":73.895821367740183},{"$f":"IF('Hypothetical Summary'!$M$21>K25,E$28*K25+E$29*('Hypothetical Summary'!$M$21-K25),'Hypothetical Summary'!$M$21*E$28)","v":73.895821367740183}]
[null,"T",{"$f":"IF('Hypothetical Summary'!$M$21>I26,C$28*I26+C$29*('Hypothetical Summary'!$M$21-I26),'Hypothetical Summary'!$M$21*C$28)","v":67.298952425443233},{"$f":"IF('Hypothetical Summary'!$M$21>J26,C$28*J26+C$29*('Hypothetical Summary'!$M$21-J26),'Hypothetical Summary'!$M$21*C$28)","v":62.349807761123238},{"$f":"IF('Hypothetical Summary'!$M$21>K26,C$28*K26+C$29*('Hypothetical Summary'!$M$21-K26),'Hypothetical Summary'!$M$21*C$28)","v":62.349807761123238},{"$f":"IF('Hypothetical Summary'!$M$21>I26,D$28*I26+D$29*('Hypothetical Summary'!$M$21-I26),'Hypothetical Summary'!$M$21*D$28)","v":66.989295739138598},{"$f":"IF('Hypothetical Summary'!$M$21>J26,D$28*J26+D$29*('Hypothetical Summary'!$M$21-J26),'Hypothetical Summary'!$M$21*D$28)","v":62.070019408898602},{"$f":"IF('Hypothetical Summary'!$M$21>K26,D$28*K26+D$29*('Hypothetical Summary'!$M$21-K26),'Hypothetical Summary'!$M$21*D$28)","v":62.070019408898602},{"$f":"IF('Hypothetical Summary'!$M$21>I26,E$28*I26+E$29*('Hypothetical Summary'!$M$21-I26),'Hypothetical Summary'!$M$21*E$28)","v":80.038915001889251},{"$f":"IF('Hypothetical Summary'!$M$21>J26,E$28*J26+E$29*('Hypothetical Summary'!$M$21-J26),'Hypothetical Summary'!$M$21*E$28)","v":73.895821367740183},{"$f":"IF('Hypothetical Summary'!$M$21>K26,E$28*K26+E$29*('Hypothetical Summary'!$M$21-K26),'Hypothetical Summary'!$M$21*E$28)","v":73.895821367740183}]
[null,"V",{"$f":"IF('Hypothetical Summary'!$M$21>I27,C$28*I27+C$29*('Hypothetical Summary'!$M$21-I27),'Hypothetical Summary'!$M$21*C$28)","v":66.921552889603234},{"$f":"IF('Hypothetical Summary'!$M$21>J27,C$28*J27+C$29*('Hypothetical Summary'!$M$21-J27),'Hypothetical Summary'!$M$21*C$28)","v":62.349807761123238},{"$f":"IF('Hypothetical Summary'!$M$21>K27,C$28*K27+C$29*('Hypothetical Summary'!$M$21-K27),'Hypothetical Summary'!$M$21*C$28)","v":62.349807761123238},{"$f":"IF('Hypothetical Summary'!$M$21>I27,D$28*I27+D$29*('Hypothetical Summary'!$M$21-I27),'Hypothetical Summary'!$M$21*D$28)","v":66.6141738282586},{"$f":"IF('Hypothetical Summary'!$M$21>J27,D$28*J27+D$29*('Hypothetical Summary'!$M$21-J27),'Hypothetical Summary'!$M$21*D$28)","v":62.070019408898602},{"$f":"IF('Hypothetical Summary'!$M$21>K27,D$28*K27+D$29*('Hypothetical Summary'!$M$21-K27),'Hypothetical Summary'!$M$21*D$28)","v":62.070019408898602},{"$f":"IF('Hypothetical Summary'!$M$21>I27,E$28*I27+E$29*('Hypothetical Summary'!$M$21-I27),'Hypothetical Summary'!$M$21*E$28)","v":79.57047028196348},{"$f":"IF('Hypothetical Summary'!$M$21>J27,E$28*J27+E$29*('Hypothetical Summary'!$M$21-J27),'Hypothetical Summary'!$M$21*E$28)","v":73.895821367740183},{"$f":"IF('Hypothetical Summary'!$M$21>K27,E$28*K27+E$29*('Hypothetical Summary'!$M$21-K27),'Hypothetical Summary'!$M$21*E$28)","v":73.895821367740183}]
[null,"W",{"$f":"IF('Hypothetical Summary'!$M$21>I28,C$28*I28+C$29*('Hypothetical Summary'!$M$21-I28),'Hypothetical Summary'!$M$21*C$28)","v":69.437549795203225},{"$f":"IF('Hypothetical Summary'!$M$21>J28,C$28*J28+C$29*('Hypothetical Summary'!$M$21-J28),'Hypothetical Summary'!$M$21*C$28)","v":62.349807761123238},{"$f":"IF('Hypothetical Summary'!$M$21>K28,C$28*K28+C$29*('Hypothetical Summary'!$M$21-K28),'Hypothetical Summary'!$M$21*C$28)","v":62.349807761123238},{"$f":"IF('Hypothetical Summary'!$M$21>I28,D$28*I28+D$29*('Hypothetical Summary'!$M$21-I28),'Hypothetical Summary'!$M$21*D$28)","v":69.114986567458601},{"$f":"IF('Hypothetical Summary'!$M$21>J28,D$28*J28+D$29*('Hypothetical Summary'!$M$21-J28),'Hypothetical Summary'!$M$21*D$28)","v":62.070019408898602},{"$f":"IF('Hypothetical Summary'!$M$21>K28,D$28*K28+D$29*('Hypothetical Summary'!$M$21-K28),'Hypothetical Summary'!$M$21*D$28)","v":62.070019408898602},{"$f":"IF('Hypothetical Summary'!$M$21>I28,E$28*I28+E$29*('Hypothetical Summary'!$M$21-I28),'Hypothetical Summary'!$M$21*E$28)","v":82.693435081468621},{"$f":"IF('Hypothetical Summary'!$M$21>J28,E$28*J28+E$29*('Hypothetical Summary'!$M$21-J28),'Hypothetical Summary'!$M$21*E$28)","v":73.895821367740183},{"$f":"IF('Hypothetical Summary'!$M$21>K28,E$28*K28+E$29*('Hypothetical Summary'!$M$21-K28),'Hypothetical Summary'!$M$21*E$28)","v":73.895821367740183}]
[null,"X",{"$f":"IF('Hypothetical Summary'!$M$21>I29,C$28*I29+C$29*('Hypothetical Summary'!$M$21-I29),'Hypothetical Summary'!$M$21*C$28)","v":68.179551342403229},{"$f":"IF('Hypothetical Summary'!$M$21>J29,C$28*J29+C$29*('Hypothetical Summary'!$M$21-J29),'Hypothetical Summary'!$M$21*C$28)","v":62.349807761123238},{"$f":"IF('Hypothetical Summary'!$M$21>K29,C$28*K29+C$29*('Hypothetical Summary'!$M$21-K29),'Hypothetical Summary'!$M$21*C$28)","v":62.349807761123238},{"$f":"IF('Hypothetical Summary'!$M$21>I29,D$28*I29+D$29*('Hypothetical Summary'!$M$21-I29),'Hypothetical Summary'!$M$21*D$28)","v":67.864580197858601},{"$f":"IF('Hypothetical Summary'!$M$21>J29,D$28*J29+D$29*('Hypothetical Summary'!$M$21-J29),'Hypothetical Summary'!$M$21*D$28)","v":62.070019408898602},{"$f":"IF('Hypothetical Summary'!$M$21>K29,D$28*K29+D$29*('Hypothetical Summary'!$M$21-K29),'Hypothetical Summary'!$M$21*D$28)","v":62.070019408898602},{"$f":"IF('Hypothetical Summary'!$M$21>I29,E$28*I29+E$29*('Hypothetical Summary'!$M$21-I29),'Hypothetical Summary'!$M$21*E$28)","v":81.131952681716058},{"$f":"IF('Hypothetical Summary'!$M$21>J29,E$28*J29+E$29*('Hypothetical Summary'!$M$21-J29),'Hypothetical Summary'!$M$21*E$28)","v":73.895821367740183},{"$f":"IF('Hypothetical Summary'!$M$21>K29,E$28*K29+E$29*('Hypothetical Summary'!$M$21-K29),'Hypothetical Summary'!$M$21*E$28)","v":73.895821367740183}]
[null,"Y",{"$f":"IF('Hypothetical Summary'!$M$21>I30,C$28*I30+C$29*('Hypothetical Summary'!$M$21-I30),'Hypothetical Summary'!$M$21*C$28)","v":65.286154900963226},{"$f":"IF('Hypothetical Summary'!$M$21>J30,C$28*J30+C$29*('Hypothetical Summary'!$M$21-J30),'Hypothetical Summary'!$M$21*C$28)","v":62.349807761123238},{"$f":"IF('Hypothetical Summary'!$M$21>K30,C$28*K30+C$29*('Hypothetical Summary'!$M$21-K30),'Hypothetical Summary'!$M$21*C$28)","v":62.349807761123238},{"$f":"IF('Hypothetical Summary'!$M$21>I30,D$28*I30+D$29*('Hypothetical Summary'!$M$21-I30),'Hypothetical Summary'!$M$21*D$28)","v":64.988645547778603},{"$f":"IF('Hypothetical Summary'!$M$21>J30,D$28*J30+D$29*('Hypothetical Summary'!$M$21-J30),'Hypothetical Summary'!$M$21*D$28)","v":62.070019408898602},{"$f":"IF('Hypothetical Summary'!$M$21>K30,D$28*K30+D$29*('Hypothetical Summary'!$M$21-K30),'Hypothetical Summary'!$M$21*D$28)","v":62.070019408898602},{"$f":"IF('Hypothetical Summary'!$M$21>I30,E$28*I30+E$29*('Hypothetical Summary'!$M$21-I30),'Hypothetical Summary'!$M$21*E$28)","v":77.540543162285118},{"$f":"IF('Hypothetical Summary'!$M$21>J30,E$28*J30+E$29*('Hypothetical Summary'!$M$21-J30),'Hypothetical Summary'!$M$21*E$28)","v":73.895821367740183},{"$f":"IF('Hypothetical Summary'!$M$21>K30,E$28*K30+E$29*('Hypothetical Summary'!$M$21-K30),'Hypothetical Summary'!$M$21*E$28)","v":73.895821367740183}]
[null,"ALL CLIMATE ZONES",{"$f":"SUMPRODUCT(C114:C122,$X$22:$X$30)","v":68.8492077362923},62.34980776112323,62.34980776112323,68.530195182120721,62.070019408898602,62.070019408898602,81.9631593263762,73.895821367740197,73.895821367740197]

{"sheet":"Rate Trajectory Calc","index":18,"n_rows":195,"n_cols":97,"rows_kept":195,"cut":false,"hidden":true,"merged":[]}
[]
[]
[]
[]
[null,"Incremental","Allocation","Amortization"]
["Pending Proceeding","RRQ","Methodology","# Months","Duration","Start","End","2025-09-01","2025-10-01","2025-11-01","2025-12-01","2026-01-01","2026-02-01","2026-03-01","2026-04-01","2026-05-01","2026-06-01","2026-07-01","2026-08-01","2026-09-01","2026-10-01","2026-11-01","2026-12-01","2027-01-01","2027-02-01","2027-03-01","2027-04-01","2027-05-01","2027-06-01","2027-07-01","2027-08-01","2027-09-01","2027-10-01","2027-11-01","2027-12-01","2028-01-01","2028-02-01","2028-03-01","2028-04-01","2028-05-01","2028-06-01","2028-07-01","2028-08-01","2028-09-01","2028-10-01","2028-11-01","2028-12-01","2029-01-01","2029-02-01","2029-03-01","2029-04-01","2029-05-01","2029-06-01","2029-07-01","2029-08-01","2029-09-01","2029-10-01","2029-11-01","2029-12-01","2030-01-01","2030-02-01","2030-03-01","2030-04-01","2030-05-01","2030-06-01","2030-07-01","2030-08-01","2030-09-01","2030-10-01","2030-11-01","2030-12-01","2031-01-01","2031-02-01","2031-03-01","2031-04-01","2031-05-01","2031-06-01","2031-07-01","2031-08-01","2031-09-01","2031-10-01","2031-11-01","2031-12-01","2032-01-01","2032-02-01","2032-03-01","2032-04-01","2032-05-01","2032-06-01","2032-07-01","2032-08-01","2032-09-01","2032-10-01","2032-11-01","2032-12-01"]
[{"$f":"'Rate Trajectory Dashboard'!B12","v":"2027 Energy Savings Assistance Bridge Funding"},{"$f":"'Rate Trajectory Dashboard'!H12","v":-19859.534950000008},{"$f":"'Rate Trajectory Dashboard'!I12","v":"ESA"},{"$f":"'Rate Trajectory Dashboard'!K12","v":12},{"$f":"IF(D7=0,99,D7)","v":12},{"$f":"'Rate Trajectory Dashboard'!J12","v":"2027-01-01"},{"$f":"EDATE(F7,E7)-1","v":"2027-12-31"},{"$f":"IF(H$6=$F7,$B7,IF(EOMONTH(H$6,-1)=$G7,-$B7,0))","v":0},{"$f":"IF(I$6=$F7,$B7,IF(EOMONTH(I$6,-1)=$G7,-$B7,0))","v":0},0,0,0,0,0,0,0,0,0,0,0,0,0,0,-19859.534950000008,{"$f":"IF(Y$6=$F7,$B7,IF(EOMONTH(Y$6,-1)=$G7,-$B7,0))","v":0},0,{"$f":"IF(AA$6=$F7,$B7,IF(EOMONTH(AA$6,-1)=$G7,-$B7,0))","v":0},0,0,0,0,0,0,0,0,{"$f":"IF(AJ$6=$F7,$B7,IF(EOMONTH(AJ$6,-1)=$G7,-$B7,0))","v":19859.534950000008},{"$f":"IF(AK$6=$F7,$B7,IF(EOMONTH(AK$6,-1)=$G7,-$B7,0))","v":0},{"$f":"IF(AL$6=$F7,$B7,IF(EOMONTH(AL$6,-1)=$G7,-$B7,0))","v":0},0,0,0,0,0,0,0,0,0,{"$f":"IF(AV$6=$F7,$B7,IF(EOMONTH(AV$6,-1)=$G7,-$B7,0))","v":0},{"$f":"IF(AW$6=$F7,$B7,IF(EOMONTH(AW$6,-1)=$G7,-$B7,0))","v":0},{"$f":"IF(AX$6=$F7,$B7,IF(EOMONTH(AX$6,-1)=$G7,-$B7,0))","v":0},0,0,0,0,0,0,0,0,0,0,0,0,0,0,0,{"$f":"IF(BN$6=$F7,$B7,IF(EOMONTH(BN$6,-1)=$G7,-$B7,0))","v":0},0,{"$f":"IF(BP$6=$F7,$B7,IF(EOMONTH(BP$6,-1)=$G7,-$B7,0))","v":0},{"$f":"IF(BQ$6=$F7,$B7,IF(EOMONTH(BQ$6,-1)=$G7,-$B7,0))","v":0},0,0,0,0,0,0,0,0,0,0,0,0,0,0,0,{"$f":"IF(CG$6=$F7,$B7,IF(EOMONTH(CG$6,-1)=$G7,-$B7,0))","v":0},0,{"$f":"IF(CI$6=$F7,$B7,IF(EOMONTH(CI$6,-1)=$G7,-$B7,0))","v":0},0,{"$f":"IF(CK$6=$F7,$B7,IF(EOMONTH(CK$6,-1)=$G7,-$B7,0))","v":0},{"$f":"IF(CL$6=$F7,$B7,IF(EOMONTH(CL$6,-1)=$G7,-$B7,0))","v":0},0,0,0,0,0]
[{"$f":"'Rate Trajectory Dashboard'!B13","v":"2027 CARE Administrative Bridge Funding"},{"$f":"'Rate Trajectory Dashboard'!H13","v":-829.82000000000016},{"$f":"'Rate Trajectory Dashboard'!I13","v":"PPP ECPT"},{"$f":"'Rate Trajectory Dashboard'!K13","v":12},{"$f":"IF(D8=0,99,D8)","v":12},{"$f":"'Rate Trajectory Dashboard'!J13","v":"2027-01-01"},{"$f":"EDATE(F8,E8)-1","v":"2027-12-31"},{"$f":"IF(H$6=$F8,$B8,IF(EOMONTH(H$6,-1)=$G8,-$B8,0))","v":0},0,0,0,0,0,0,0,0,0,0,0,0,{"$f":"IF(U$6=$F8,$B8,IF(EOMONTH(U$6,-1)=$G8,-$B8,0))","v":0},0,0,-829.82000000000016,0,0,0,0,0,0,0,0,0,0,0,829.82000000000016,0,0,0,0,0,0,0,0,0,0,0,0,0,0,0,0,0,{"$f":"IF(BB$6=$F8,$B8,IF(EOMONTH(BB$6,-1)=$G8,-$B8,0))","v":0},0,0,0,0,0,0,0,0,0,0,0,0,{"$f":"IF(BO$6=$F8,$B8,IF(EOMONTH(BO$6,-1)=$G8,-$B8,0))","v":0},0,0,0,0,0,0,0,0,0,0,0,0,0,{"$f":"IF(CC$6=$F8,$B8,IF(EOMONTH(CC$6,-1)=$G8,-$B8,0))","v":0},{"$f":"IF(CD$6=$F8,$B8,IF(EOMONTH(CD$6,-1)=$G8,-$B8,0))","v":0},{"$f":"IF(CE$6=$F8,$B8,IF(EOMONTH(CE$6,-1)=$G8,-$B8,0))","v":0},{"$f":"IF(CF$6=$F8,$B8,IF(EOMONTH(CF$6,-1)=$G8,-$B8,0))","v":0},0,{"$f":"IF(CH$6=$F8,$B8,IF(EOMONTH(CH$6,-1)=$G8,-$B8,0))","v":0},0,0,0,0,0,0,0,0,0]
[{"$f":"'Rate Trajectory Dashboard'!B14","v":"Hinkley Upgrade - Year 2028"},{"$f":"'Rate Trajectory Dashboard'!H14","v":3170.0085966546521},{"$f":"'Rate Trajectory Dashboard'!I14","v":"ECPT - ALL"},{"$f":"'Rate Trajectory Dashboard'!K14","v":12},12,{"$f":"'Rate Trajectory Dashboard'!J14","v":"2028-01-01"},"2028-12-31",0,0,0,0,0,0,0,0,0,0,0,0,0,0,0,0,0,0,0,0,0,0,0,0,0,0,0,0,3170.0085966546521,0,0,0,0,0,0,0,0,0,0,0,-3170.0085966546521,0,0,0,0,0,0,0,0,0,0,0,0,0,0,0,0,0,0,0,0,{"$f":"IF(BQ$6=$F9,$B9,IF(EOMONTH(BQ$6,-1)=$G9,-$B9,0))","v":0},{"$f":"IF(BR$6=$F9,$B9,IF(EOMONTH(BR$6,-1)=$G9,-$B9,0))","v":0},0,0,0,0,0,0,0,0,0,0,0,0,0,0,0,0,0,0,0,0,0,0,0,0,0]
[{"$f":"'Rate Trajectory Dashboard'!B15","v":"Hinkley Upgrade - Year 2029"},{"$f":"'Rate Trajectory Dashboard'!H15","v":8890.2012417152218},{"$f":"'Rate Trajectory Dashboard'!I15","v":"ECPT - ALL"},{"$f":"'Rate Trajectory Dashboard'!K15","v":0},99,{"$f":"'Rate Trajectory Dashboard'!J15","v":"2029-01-01"},"2037-03-31",0,0,0,0,0,0,0,0,0,0,0,0,0,0,0,0,0,0,0,0,0,0,0,0,0,0,0,0,0,0,0,0,0,0,0,0,0,0,0,0,8890.2012417152218,0,0,0,0,0,0,0,0,0,0,0,0,0,0,0,0,0,0,0,0,0,0,0,0,0,0,0,0,0,0,0,0,0,0,0,0,0,0,0,0,0,0,0,0,0,0,0]
[{"$f":"'Rate Trajectory Dashboard'!B16","v":"Billing Modernization (Distribution) - Year 2026"},{"$f":"'Rate Trajectory Dashboard'!H16","v":18712.173825194575},{"$f":"'Rate Trajectory Dashboard'!I16","v":"Distribution"},{"$f":"'Rate Trajectory Dashboard'!K16","v":12},12,{"$f":"'Rate Trajectory Dashboard'!J16","v":"2026-01-01"},"2026-12-31",0,0,0,0,18712.173825194575,0,0,0,0,0,0,0,0,0,0,0,-18712.173825194575,0,0,0,0,0,0,0,0,0,0,0,0,0,0,0,0,0,0,0,0,0,0,0,0,0,0,{"$f":"IF(AY$6=$F11,$B11,IF(EOMONTH(AY$6,-1)=$G11,-$B11,0))","v":0},{"$f":"IF(AZ$6=$F11,$B11,IF(EOMONTH(AZ$6,-1)=$G11,-$B11,0))","v":0},{"$f":"IF(BA$6=$F11,$B11,IF(EOMONTH(BA$6,-1)=$G11,-$B11,0))","v":0},0,0,0,0,0,0,0,0,0,0,0,0,0,0,0,0,0,0,0,0,0,0,0,0,0,0,0,0,0,0,0,0,0,0,0,0,0,0,0,0,0,0]
[{"$f":"'Rate Trajectory Dashboard'!B17","v":"Billing Modernization (Distribution) - Year 2027"},{"$f":"'Rate Trajectory Dashboard'!H17","v":17751.341834851162},{"$f":"'Rate Trajectory Dashboard'!I17","v":"Distribution"},{"$f":"'Rate Trajectory Dashboard'!K17","v":12},12,{"$f":"'Rate Trajectory Dashboard'!J17","v":"2027-01-01"},"2027-12-31",0,0,0,0,0,0,0,0,0,0,0,0,0,0,0,0,17751.341834851162,0,0,0,0,0,0,0,0,0,0,0,-17751.341834851162,0,0,0,0,0,0,{"$f":"IF(AQ$6=$F12,$B12,IF(EOMONTH(AQ$6,-1)=$G12,-$B12,0))","v":0},0,0,0,0,0,0,0,0,0,0,0,0,0,0,0,{"$f":"IF(BG$6=$F12,$B12,IF(EOMONTH(BG$6,-1)=$G12,-$B12,0))","v":0},0,0,0,0,0,0,0,0,0,0,0,0,0,0,0,0,0,0,0,0,0,0,0,0,0,0,0,0,0,0,0,0,0,0,0,0]
[{"$f":"'Rate Trajectory Dashboard'!B18","v":"Billing Modernization (Distribution) - Year 2028"},{"$f":"'Rate Trajectory Dashboard'!H18","v":16583.853363621634},{"$f":"'Rate Trajectory Dashboard'!I18","v":"Distribution"},{"$f":"'Rate Trajectory Dashboard'!K18","v":12},12,{"$f":"'Rate Trajectory Dashboard'!J18","v":"2028-01-01"},"2028-12-31",0,0,0,0,0,0,0,0,0,0,0,0,0,0,0,0,0,0,0,0,0,0,0,0,0,0,0,0,16583.853363621634,0,0,0,0,0,0,0,0,0,0,0,-16583.853363621634,0,0,0,0,0,0,0,0,0,0,0,0,0,0,0,0,0,0,0,0,0,0,0,0,0,0,0,0,0,0,0,0,0,0,0,0,0,0,0,0,0,0,0,0,0,0,0]
[{"$f":"'Rate Trajectory Dashboard'!B19","v":"Billing Modernization (Distribution) - Year 2029"},{"$f":"'Rate Trajectory Dashboard'!H19","v":14215.240804551897},{"$f":"'Rate Trajectory Dashboard'!I19","v":"Distribution"},{"$f":"'Rate Trajectory Dashboard'!K19","v":0},99,{"$f":"'Rate Trajectory Dashboard'!J19","v":"2029-01-01"},"2037-03-31",0,0,0,0,0,0,0,0,0,0,0,0,0,0,0,0,0,0,0,0,0,0,0,0,{"$f":"IF(AF$6=$F14,$B14,IF(EOMONTH(AF$6,-1)=$G14,-$B14,0))","v":0},0,0,0,0,0,0,0,0,0,0,0,0,0,0,0,14215.240804551897,0,0,0,0,0,0,0,0,0,0,0,0,0,0,0,0,0,0,0,0,0,0,0,0,0,0,0,0,0,0,0,0,0,0,0,0,0,0,0,0,0,0,0,0,0,0,0]
[{"$f":"'Rate Trajectory Dashboard'!B20","v":"Billing Modernization (Transmission) - Year 2026"},{"$f":"'Rate Trajectory Dashboard'!H20","v":8918.4572311941265},{"$f":"'Rate Trajectory Dashboard'!I20","v":"ECPT - ALL"},{"$f":"'Rate Trajectory Dashboard'!K20","v":12},12,{"$f":"'Rate Trajectory Dashboard'!J20","v":"2026-01-01"},"2026-12-31",0,0,0,0,8918.4572311941265,0,0,0,0,0,0,0,0,0,0,0,-8918.4572311941265,0,0,0,0,0,0,0,0,0,0,0,0,0,0,0,0,0,0,0,0,0,0,0,0,0,0,0,0,0,0,0,0,0,0,0,0,0,0,0,0,0,0,0,0,0,0,0,0,0,0,0,0,0,0,0,0,0,0,0,0,0,0,0,0,0,0,0,0,0,0,0]
[{"$f":"'Rate Trajectory Dashboard'!B21","v":"Billing Modernization (Transmission) - Year 2027"},{"$f":"'Rate Trajectory Dashboard'!H21","v":8460.5126279812575},{"$f":"'Rate Trajectory Dashboard'!I21","v":"ECPT - ALL"},{"$f":"'Rate Trajectory Dashboard'!K21","v":12},12,{"$f":"'Rate Trajectory Dashboard'!J21","v":"2027-01-01"},"2027-12-31",0,0,0,0,0,0,0,0,0,0,0,0,0,0,0,0,8460.5126279812575,0,0,0,0,0,0,0,0,0,0,0,-8460.5126279812575,0,0,0,0,0,0,0,0,0,0,0,0,0,0,0,0,0,0,0,0,0,0,0,0,0,0,0,0,0,0,0,0,0,0,0,0,0,0,0,0,0,0,0,0,0,0,0,0,0,0,0,0,0,0,0,0,0,0,0]
[{"$f":"'Rate Trajectory Dashboard'!B22","v":"Billing Modernization (Transmission) - Year 2028"},{"$f":"'Rate Trajectory Dashboard'!H22","v":7904.0729488992292},{"$f":"'Rate Trajectory Dashboard'!I22","v":"ECPT - ALL"},{"$f":"'Rate Trajectory Dashboard'!K22","v":12},12,{"$f":"'Rate Trajectory Dashboard'!J22","v":"2028-01-01"},"2028-12-31",0,0,0,0,0,0,0,0,0,0,0,0,0,0,0,0,0,0,0,0,0,0,0,0,0,0,0,0,7904.0729488992292,0,0,0,0,0,0,0,0,0,0,0,-7904.0729488992292,0,0,0,0,0,0,0,0,0,0,0,0,0,0,0,0,0,0,0,0,0,0,0,0,0,0,0,0,0,0,0,0,0,0,0,0,0,0,0,0,0,0,0,0,0,0,0]
[{"$f":"'Rate Trajectory Dashboard'!B23","v":"Billing Modernization (Transmission) - Year 2029"},{"$f":"'Rate Trajectory Dashboard'!H23","v":6775.1624331059575},{"$f":"'Rate Trajectory Dashboard'!I23","v":"ECPT - ALL"},{"$f":"'Rate Trajectory Dashboard'!K23","v":0},99,{"$f":"'Rate Trajectory Dashboard'!J23","v":"2029-01-01"},"2037-03-31",0,0,0,0,0,0,0,0,0,0,0,0,0,0,0,0,0,0,0,0,0,0,0,0,0,0,0,0,0,0,0,0,0,0,0,0,0,0,0,0,6775.1624331059575,0,0,0,0,0,0,0,0,0,0,0,0,0,0,0,0,0,0,0,0,0,0,0,0,0,0,0,0,0,0,0,0,0,0,0,0,0,0,0,0,0,0,0,0,0,0,0]
[{"$f":"'Rate Trajectory Dashboard'!B24","v":"Hydrogen Demonstration Project (2027) - Year 2027"},{"$f":"'Rate Trajectory Dashboard'!H24","v":3022.0229370078714},{"$f":"'Rate Trajectory Dashboard'!I24","v":"ECPT - ALL"},{"$f":"'Rate Trajectory Dashboard'!K24","v":12},12,{"$f":"'Rate Trajectory Dashboard'!J24","v":"2027-01-01"},"2027-12-31",0,0,0,0,0,0,0,0,0,0,0,0,0,0,0,0,3022.0229370078714,0,0,0,0,0,0,0,0,0,0,0,-3022.0229370078714,0,0,0,0,0,0,0,0,0,0,0,0,0,0,0,0,0,0,0,0,0,0,0,0,0,0,0,0,0,0,0,0,0,0,0,0,0,0,0,0,0,0,0,0,0,0,0,0,0,0,0,0,0,0,0,0,0,0,0]
[{"$f":"'Rate Trajectory Dashboard'!B25","v":"Hydrogen Demonstration Project (2027) - Year 2028"},{"$f":"'Rate Trajectory Dashboard'!H25","v":10324.828533347554},{"$f":"'Rate Trajectory Dashboard'!I25","v":"ECPT - ALL"},{"$f":"'Rate Trajectory Dashboard'!K25","v":12},12,{"$f":"'Rate Trajectory Dashboard'!J25","v":"2028-01-01"},"2028-12-31",0,0,0,0,0,0,0,0,0,0,0,0,0,0,0,0,0,0,0,0,0,0,0,0,0,0,0,0,10324.828533347554,0,0,0,0,0,0,0,0,0,0,0,-10324.828533347554,0,0,0,0,0,0,0,0,0,0,0,0,0,0,0,0,0,0,0,0,0,0,0,0,0,0,0,0,0,0,0,0,0,0,0,0,0,0,0,0,0,0,0,0,0,0,0]
[{"$f":"'Rate Trajectory Dashboard'!B26","v":"Hydrogen Demonstration Project (2027) - Year 2029"},{"$f":"'Rate Trajectory Dashboard'!H26","v":10534.092916690832},{"$f":"'Rate Trajectory Dashboard'!I26","v":"ECPT - ALL"},{"$f":"'Rate Trajectory Dashboard'!K26","v":0},99,{"$f":"'Rate Trajectory Dashboard'!J26","v":"2029-01-01"},"2037-03-31",0,0,0,0,0,0,0,0,0,0,0,0,0,0,0,0,0,0,0,0,0,0,0,0,0,0,0,0,0,0,0,0,0,0,0,0,0,0,0,0,10534.092916690832,0,0,0,0,0,0,0,0,0,0,0,0,0,0,0,0,0,0,0,0,0,0,0,0,0,0,0,0,0,0,0,0,0,0,0,0,0,0,0,0,0,0,0,0,0,0,0]
[{"$f":"'Rate Trajectory Dashboard'!B27","v":"2024 Wildfire Mitigation and Catastrophic Events (distribution) - Year 2026"},{"$f":"'Rate Trajectory Dashboard'!H27","v":65537.654410869611},{"$f":"'Rate Trajectory Dashboard'!I27","v":"Distribution"},{"$f":"'Rate Trajectory Dashboard'!K27","v":12},12,{"$f":"'Rate Trajectory Dashboard'!J27","v":"2026-01-01"},"2026-12-31",0,0,0,0,65537.654410869611,0,0,0,0,0,0,0,0,0,0,0,-65537.654410869611,0,0,0,0,0,0,0,0,0,0,0,0,0,0,0,0,0,0,0,0,0,0,0,0,0,0,0,0,0,0,0,0,0,0,{"$f":"IF(BG$6=$F22,$B22,IF(EOMONTH(BG$6,-1)=$G22,-$B22,0))","v":0},0,0,0,0,0,0,0,0,0,0,0,0,0,0,0,0,0,0,0,0,0,0,0,0,0,0,0,0,0,0,0,0,0,0,0,0]
[{"$f":"'Rate Trajectory Dashboard'!B28","v":"2024 Wildfire Mitigation and Catastrophic Events (distribution) - Year 2027"},{"$f":"'Rate Trajectory Dashboard'!H28","v":18819.46507803784},{"$f":"'Rate Trajectory Dashboard'!I28","v":"Distribution"},{"$f":"'Rate Trajectory Dashboard'!K28","v":12},12,{"$f":"'Rate Trajectory Dashboard'!J28","v":"2027-01-01"},"2027-12-31",0,0,0,0,0,0,0,0,0,0,0,0,0,0,0,0,18819.46507803784,0,0,0,0,0,0,0,0,0,0,0,-18819.46507803784,0,0,0,0,0,0,0,0,0,0,0,0,0,0,0,0,0,0,0,0,0,0,0,0,0,0,0,0,0,0,0,0,0,0,0,0,0,0,0,0,0,0,0,0,0,0,0,0,0,0,{"$f":"IF(CI$6=$F23,$B23,IF(EOMONTH(CI$6,-1)=$G23,-$B23,0))","v":0},0,0,0,0,0,0,0,0]
[{"$f":"'Rate Trajectory Dashboard'!B29","v":"2024 Wildfire Mitigation and Catastrophic Events (distribution) - Year 2028"},{"$f":"'Rate Trajectory Dashboard'!H29","v":18178.262642646998},{"$f":"'Rate Trajectory Dashboard'!I29","v":"Distribution"},{"$f":"'Rate Trajectory Dashboard'!K29","v":12},12,{"$f":"'Rate Trajectory Dashboard'!J29","v":"2028-01-01"},"2028-12-31",0,0,0,0,0,0,0,0,0,0,0,0,0,0,{"$f":"IF(V$6=$F24,$B24,IF(EOMONTH(V$6,-1)=$G24,-$B24,0))","v":0},{"$f":"IF(W$6=$F24,$B24,IF(EOMONTH(W$6,-1)=$G24,-$B24,0))","v":0},{"$f":"IF(X$6=$F24,$B24,IF(EOMONTH(X$6,-1)=$G24,-$B24,0))","v":0},0,{"$f":"IF(Z$6=$F24,$B24,IF(EOMONTH(Z$6,-1)=$G24,-$B24,0))","v":0},0,0,0,0,0,0,0,0,0,18178.262642646998,0,0,0,0,0,0,0,0,0,0,0,-18178.262642646998,0,0,0,0,0,0,0,0,0,0,0,0,0,0,0,0,0,0,0,0,0,0,0,0,0,0,0,0,0,0,0,0,0,0,0,0,0,0,0,0,0,0,0,0,0,0,0]
[{"$f":"'Rate Trajectory Dashboard'!B30","v":"2024 Wildfire Mitigation and Catastrophic Events (distribution) - Year 2029"},{"$f":"'Rate Trajectory Dashboard'!H30","v":17712.275597103871},{"$f":"'Rate Trajectory Dashboard'!I30","v":"Distribution"},{"$f":"'Rate Trajectory Dashboard'!K30","v":0},99,{"$f":"'Rate Trajectory Dashboard'!J30","v":"2029-01-01"},"2037-03-31",{"$f":"IF(H$6=$F25,$B25,IF(EOMONTH(H$6,-1)=$G25,-$B25,0))","v":0},0,0,0,0,0,0,0,0,0,0,0,0,0,0,0,{"$f":"IF(X$6=$F25,$B25,IF(EOMONTH(X$6,-1)=$G25,-$B25,0))","v":0},0,0,0,0,0,0,0,0,0,0,0,0,0,0,0,0,0,0,0,0,0,0,0,17712.275597103871,0,0,0,0,0,0,0,0,0,0,0,0,0,0,0,0,0,0,0,0,0,0,0,0,0,0,0,0,0,0,0,0,0,0,0,0,0,0,0,0,0,0,0,0,0,0,0]
[{"$f":"'Rate Trajectory Dashboard'!B31","v":"2024 Wildfire Mitigation and Catastrophic Events (transmission) - Year 2026"},{"$f":"'Rate Trajectory Dashboard'!H31","v":6579.3787574399903},{"$f":"'Rate Trajectory Dashboard'!I31","v":"ECPT - ALL"},{"$f":"'Rate Trajectory Dashboard'!K31","v":12},12,{"$f":"'Rate Trajectory Dashboard'!J31","v":"2026-01-01"},"2026-12-31",0,0,0,0,6579.3787574399903,0,0,0,0,0,0,0,0,0,0,0,-6579.3787574399903,0,0,0,0,0,0,0,0,0,0,0,0,0,0,0,0,0,0,0,0,0,0,0,0,0,0,0,0,0,0,0,0,0,0,0,0,0,0,0,0,0,0,0,0,0,{"$f":"IF(BR$6=$F26,$B26,IF(EOMONTH(BR$6,-1)=$G26,-$B26,0))","v":0},0,0,0,0,0,0,0,0,0,0,0,0,0,0,0,0,0,0,0,0,0,0,0,0,0]
[{"$f":"'Rate Trajectory Dashboard'!B32","v":"2024 Wildfire Mitigation and Catastrophic Events (transmission) - Year 2027"},{"$f":"'Rate Trajectory Dashboard'!H32","v":291.83963923168324},{"$f":"'Rate Trajectory Dashboard'!I32","v":"ECPT - ALL"},{"$f":"'Rate Trajectory Dashboard'!K32","v":12},12,{"$f":"'Rate Trajectory Dashboard'!J32","v":"2027-01-01"},"2027-12-31",0,0,0,0,0,0,0,0,0,0,0,0,0,0,0,0,291.83963923168324,0,0,0,0,0,0,0,0,0,0,0,-291.83963923168324,0,0,0,0,0,0,0,0,0,0,0,0,0,0,0,0,0,0,0,0,0,0,0,0,0,0,0,0,0,0,0,0,0,0,0,0,0,0,0,0,0,0,0,0,0,0,0,0,0,0,0,0,0,0,0,0,0,0,0]
[{"$f":"'Rate Trajectory Dashboard'!B33","v":"2024 Wildfire Mitigation and Catastrophic Events (transmission) - Year 2028"},{"$f":"'Rate Trajectory Dashboard'!H33","v":239.41889659670605},{"$f":"'Rate Trajectory Dashboard'!I33","v":"ECPT - ALL"},{"$f":"'Rate Trajectory Dashboard'!K33","v":12},12,{"$f":"'Rate Trajectory Dashboard'!J33","v":"2028-01-01"},"2028-12-31",0,0,0,0,0,0,0,0,0,0,0,0,0,0,0,0,0,0,0,0,0,0,0,0,0,0,0,0,239.41889659670605,0,0,0,0,0,0,0,0,0,0,0,-239.41889659670605,0,0,0,0,0,0,0,0,0,0,0,0,0,0,0,0,0,0,0,0,0,0,0,0,0,0,0,0,0,0,0,0,0,0,0,0,0,0,0,0,0,0,0,0,0,0,0]
[{"$f":"'Rate Trajectory Dashboard'!B34","v":"2024 Wildfire Mitigation and Catastrophic Events (transmission) - Year 2029"},{"$f":"'Rate Trajectory Dashboard'!H34","v":225.03426463234715},{"$f":"'Rate Trajectory Dashboard'!I34","v":"ECPT - ALL"},{"$f":"'Rate Trajectory Dashboard'!K34","v":0},99,{"$f":"'Rate Trajectory Dashboard'!J34","v":"2029-01-01"},"2037-03-31",0,0,0,0,0,0,0,0,0,0,0,0,0,0,0,0,0,0,0,0,0,0,0,0,0,0,0,0,0,0,0,0,0,0,0,0,0,0,0,0,225.03426463234715,0,0,0,0,0,0,0,0,0,0,0,0,0,0,0,0,0,0,0,0,0,0,0,0,0,0,0,0,0,0,0,0,0,0,0,0,0,0,0,0,0,0,0,0,0,0,0]
[{"$f":"'Rate Trajectory Dashboard'!B35","v":"2026 Cost of Capital (Distribution) - Year 2026"},{"$f":"'Rate Trajectory Dashboard'!H35","v":111625.78477890197},{"$f":"'Rate Trajectory Dashboard'!I35","v":"Distribution"},{"$f":"'Rate Trajectory Dashboard'!K35","v":12},12,{"$f":"'Rate Trajectory Dashboard'!J35","v":"2026-01-01"},"2026-12-31",0,0,0,0,111625.78477890197,0,0,0,0,0,0,0,0,0,0,0,-111625.78477890197,0,0,0,0,0,0,0,0,0,0,0,0,0,0,0,0,0,0,0,0,0,0,0,0,0,0,0,0,0,0,0,0,0,0,0,0,0,0,0,0,0,0,0,0,0,0,0,0,0,0,0,0,0,0,0,0,0,0,0,0,0,0,0,0,0,0,0,0,0,0,0]
[{"$f":"'Rate Trajectory Dashboard'!B36","v":"2026 Cost of Capital (Distribution) - Year 2027"},{"$f":"'Rate Trajectory Dashboard'!H36","v":111625.78477890197},{"$f":"'Rate Trajectory Dashboard'!I36","v":"Distribution"},{"$f":"'Rate Trajectory Dashboard'!K36","v":12},12,{"$f":"'Rate Trajectory Dashboard'!J36","v":"2027-01-01"},"2027-12-31",0,0,0,0,0,0,0,0,0,0,0,0,0,0,0,0,111625.78477890197,0,0,0,0,0,0,0,0,0,0,0,-111625.78477890197,0,0,0,0,0,0,0,0,0,0,0,0,0,0,0,0,0,0,0,0,0,0,0,0,0,0,0,0,0,0,0,0,0,0,0,0,0,0,0,0,0,0,0,0,0,0,0,0,0,0,0,0,0,0,0,0,0,0,0]
[{"$f":"'Rate Trajectory Dashboard'!B37","v":"2026 Cost of Capital (Distribution) - Year 2028"},{"$f":"'Rate Trajectory Dashboard'!H37","v":111625.78477890197},{"$f":"'Rate Trajectory Dashboard'!I37","v":"Distribution"},{"$f":"'Rate Trajectory Dashboard'!K37","v":12},12,{"$f":"'Rate Trajectory Dashboard'!J37","v":"2028-01-01"},"2028-12-31",0,0,0,0,0,0,0,0,0,0,0,0,0,0,0,0,0,0,0,0,0,0,0,0,0,0,0,0,111625.78477890197,0,0,0,0,0,0,0,0,0,0,0,-111625.78477890197,0,0,0,0,0,0,0,0,0,0,0,0,0,0,0,0,0,0,0,0,0,0,0,0,0,0,0,0,0,0,0,0,0,0,0,0,0,0,0,0,0,0,0,0,0,0,0]
[{"$f":"'Rate Trajectory Dashboard'!B38","v":"2026 Cost of Capital (Distribution) - Year 2029"},{"$f":"'Rate Trajectory Dashboard'!H38","v":111625.78477890197},{"$f":"'Rate Trajectory Dashboard'!I38","v":"Distribution"},{"$f":"'Rate Trajectory Dashboard'!K38","v":0},99,{"$f":"'Rate Trajectory Dashboard'!J38","v":"2029-01-01"},"2037-03-31",0,0,0,0,0,0,0,0,0,0,0,0,0,0,0,0,0,0,0,0,0,0,0,0,0,0,0,0,0,0,0,0,0,0,0,0,0,0,0,0,111625.78477890197,0,0,0,0,0,0,0,0,0,0,0,0,0,0,0,0,0,0,0,0,0,0,0,0,0,0,0,0,0,0,0,0,0,0,0,0,0,0,{"$f":"IF(CI$6=$F33,$B33,IF(EOMONTH(CI$6,-1)=$G33,-$B33,0))","v":0},0,0,0,0,0,0,0,0]
[{"$f":"'Rate Trajectory Dashboard'!B39","v":"2026 Cost of Capital (Transmission) - Year 2026"},{"$f":"'Rate Trajectory Dashboard'!H39","v":84230.760281128707},{"$f":"'Rate Trajectory Dashboard'!I39","v":"ECPT - 50% Core / 50% Noncore"},{"$f":"'Rate Trajectory Dashboard'!K39","v":12},12,{"$f":"'Rate Trajectory Dashboard'!J39","v":"2026-01-01"},"2026-12-31",0,0,0,0,84230.760281128707,0,0,0,0,0,0,0,0,0,0,0,-84230.760281128707,0,0,0,0,0,0,0,0,0,0,0,0,0,0,0,0,0,0,0,0,0,0,{"$f":"IF(AU$6=$F34,$B34,IF(EOMONTH(AU$6,-1)=$G34,-$B34,0))","v":0},0,0,0,{"$f":"IF(AY$6=$F34,$B34,IF(EOMONTH(AY$6,-1)=$G34,-$B34,0))","v":0},0,0,0,0,0,0,0,0,0,0,0,0,0,0,0,0,0,0,0,0,0,0,0,0,0,0,0,0,0,0,0,0,0,0,0,0,0,0,0,0,0,0,0,0]
[{"$f":"'Rate Trajectory Dashboard'!B40","v":"2026 Cost of Capital (Transmission) - Year 2027"},{"$f":"'Rate Trajectory Dashboard'!H40","v":84230.760281128707},{"$f":"'Rate Trajectory Dashboard'!I40","v":"ECPT - 50% Core / 50% Noncore"},{"$f":"'Rate Trajectory Dashboard'!K40","v":12},12,{"$f":"'Rate Trajectory Dashboard'!J40","v":"2027-01-01"},"2027-12-31",0,0,0,0,0,0,0,0,0,0,0,0,0,0,0,0,84230.760281128707,0,0,0,0,0,0,0,0,0,0,0,-84230.760281128707,{"$f":"IF(AK$6=$F35,$B35,IF(EOMONTH(AK$6,-1)=$G35,-$B35,0))","v":0},0,0,0,0,0,0,0,0,0,0,0,0,0,0,0,0,0,0,0,0,0,0,0,0,0,0,0,0,0,0,0,0,0,0,0,0,0,0,0,0,0,0,0,0,0,0,0,0,0,0,0,0,0,0,0,0,0,0]
[{"$f":"'Rate Trajectory Dashboard'!B41","v":"2026 Cost of Capital (Transmission) - Year 2028"},{"$f":"'Rate Trajectory Dashboard'!H41","v":84230.760281128707},{"$f":"'Rate Trajectory Dashboard'!I41","v":"ECPT - 50% Core / 50% Noncore"},{"$f":"'Rate Trajectory Dashboard'!K41","v":12},12,{"$f":"'Rate Trajectory Dashboard'!J41","v":"2028-01-01"},"2028-12-31",0,0,0,0,0,0,0,0,0,0,0,0,0,0,0,0,0,0,0,0,{"$f":"IF(AB$6=$F36,$B36,IF(EOMONTH(AB$6,-1)=$G36,-$B36,0))","v":0},0,0,0,0,0,0,0,84230.760281128707,0,0,0,0,0,0,0,0,0,0,0,-84230.760281128707,0,0,0,0,0,0,0,0,0,0,0,0,0,0,0,0,0,0,0,0,0,0,0,0,0,0,0,0,0,0,0,0,0,0,0,0,0,0,0,0,0,0,0,0,0,0,0]
[{"$f":"'Rate Trajectory Dashboard'!B42","v":"2026 Cost of Capital (Transmission) - Year 2029"},{"$f":"'Rate Trajectory Dashboard'!H42","v":84230.760281128707},{"$f":"'Rate Trajectory Dashboard'!I42","v":"ECPT - 50% Core / 50% Noncore"},{"$f":"'Rate Trajectory Dashboard'!K42","v":0},99,{"$f":"'Rate Trajectory Dashboard'!J42","v":"2029-01-01"},"2037-03-31",0,0,0,0,0,0,0,0,0,0,0,0,0,0,0,0,0,{"$f":"IF(Y$6=$F37,$B37,IF(EOMONTH(Y$6,-1)=$G37,-$B37,0))","v":0},0,0,0,0,0,0,0,0,0,0,0,0,0,0,0,0,0,0,0,0,0,0,84230.760281128707,0,0,0,0,0,0,0,0,0,0,0,0,0,0,0,0,0,0,0,0,0,0,0,0,0,0,0,0,0,0,0,0,0,0,0,0,0,0,0,0,0,0,0,0,0,0,0]
[{"$f":"'Rate Trajectory Dashboard'!B43","v":"Gas Advanced Metering Infrastructure (AMI) (distribution)"},{"$f":"'Rate Trajectory Dashboard'!H43","v":19430.166034617308},{"$f":"'Rate Trajectory Dashboard'!I43","v":"Distribution"},{"$f":"'Rate Trajectory Dashboard'!K43","v":12},12,{"$f":"'Rate Trajectory Dashboard'!J43","v":"2026-01-01"},"2026-12-31",0,0,0,0,19430.166034617308,0,0,0,0,0,0,0,0,0,0,0,-19430.166034617308,0,0,0,0,0,0,0,0,0,0,0,0,0,0,0,0,0,0,0,0,0,0,0,0,0,0,0,0,0,0,0,0,0,0,0,0,0,0,0,0,0,0,0,0,0,0,0,0,0,0,0,0,0,0,0,0,0,0,0,0,0,0,0,0,0,0,0,0,0,0,0]
[{"$f":"'Rate Trajectory Dashboard'!B44","v":"Gas AMI (transmission)"},{"$f":"'Rate Trajectory Dashboard'!H44","v":3740.8354786263694},{"$f":"'Rate Trajectory Dashboard'!I44","v":"ECPT - ALL"},{"$f":"'Rate Trajectory Dashboard'!K44","v":12},12,{"$f":"'Rate Trajectory Dashboard'!J44","v":"2026-01-01"},"2026-12-31",0,0,0,0,3740.8354786263694,0,0,0,0,0,0,0,0,0,0,0,-3740.8354786263694,0,0,0,0,0,0,0,0,0,0,0,0,0,0,0,0,0,0,0,0,0,0,0,0,0,0,0,0,0,0,0,0,0,0,0,0,0,0,0,0,0,{"$f":"IF(BN$6=$F39,$B39,IF(EOMONTH(BN$6,-1)=$G39,-$B39,0))","v":0},0,{"$f":"IF(BP$6=$F39,$B39,IF(EOMONTH(BP$6,-1)=$G39,-$B39,0))","v":0},0,0,0,0,0,0,0,0,0,0,0,0,0,0,0,0,0,0,0,0,0,0,0,0,0,0,0]
[{"$f":"'Rate Trajectory Dashboard'!B45","v":"2023 Wildfire Mitigation and Catastrophic Events (distribution)"},{"$f":"'Rate Trajectory Dashboard'!H45","v":13644.279615856252},{"$f":"'Rate Trajectory Dashboard'!I45","v":"Distribution"},{"$f":"'Rate Trajectory Dashboard'!K45","v":12},12,{"$f":"'Rate Trajectory Dashboard'!J45","v":"2026-01-01"},"2026-12-31",0,0,0,0,13644.279615856252,0,0,0,0,0,0,0,0,0,0,{"$f":"IF(W$6=$F40,$B40,IF(EOMONTH(W$6,-1)=$G40,-$B40,0))","v":0},-13644.279615856252,0,0,0,0,0,0,0,0,0,0,0,0,0,0,0,0,0,0,0,0,0,0,0,0,0,0,0,0,0,0,0,0,0,0,0,0,0,0,0,0,0,0,0,0,0,0,0,0,0,0,0,0,0,0,0,0,0,0,0,0,0,0,0,0,0,0,0,0,0,0,0]
[{"$f":"'Rate Trajectory Dashboard'!B46","v":"2023 Wildfire Mitigation and Catastrophic Events (transmission)"},{"$f":"'Rate Trajectory Dashboard'!H46","v":5913.5229509132932},{"$f":"'Rate Trajectory Dashboard'!I46","v":"ECPT - ALL"},{"$f":"'Rate Trajectory Dashboard'!K46","v":12},12,{"$f":"'Rate Trajectory Dashboard'!J46","v":"2026-01-01"},"2026-12-31",{"$f":"IF(H$6=$F41,$B41,IF(EOMONTH(H$6,-1)=$G41,-$B41,0))","v":0},0,0,0,5913.5229509132932,0,0,0,0,0,0,0,0,0,0,0,-5913.5229509132932,0,0,0,0,0,0,0,0,0,0,0,0,0,0,0,0,0,0,0,0,0,0,0,0,0,0,0,0,0,0,0,0,0,0,0,0,0,0,0,0,0,0,0,0,{"$f":"IF(BQ$6=$F41,$B41,IF(EOMONTH(BQ$6,-1)=$G41,-$B41,0))","v":0},0,0,0,0,0,0,0,0,0,0,0,0,0,0,0,0,0,0,0,0,0,0,0,0,0,0]
[{"$f":"'Rate Trajectory Dashboard'!B47","v":"Wildfire Gas and Safety Costs (Distribution) Non-IRR"},{"$f":"'Rate Trajectory Dashboard'!H47","v":6776.7164408128538},{"$f":"'Rate Trajectory Dashboard'!I47","v":"Distribution"},{"$f":"'Rate Trajectory Dashboard'!K47","v":12},12,{"$f":"'Rate Trajectory Dashboard'!J47","v":"2026-01-01"},"2026-12-31",0,0,0,0,6776.7164408128538,0,0,0,0,0,0,0,0,0,0,0,-6776.7164408128538,0,0,0,0,0,0,0,0,0,0,0,0,0,0,0,0,0,0,0,0,0,0,0,0,0,0,0,0,0,0,0,0,0,0,0,0,0,0,0,0,0,0,0,0,0,0,0,0,0,0,0,0,0,0,0,0,0,0,0,0,0,0,0,0,0,0,0,0,0,0,0]
[{"$f":"'Rate Trajectory Dashboard'!B48","v":"Wildfire Gas and Safety Costs (Transmission) - Non IRR - Year 2026"},{"$f":"'Rate Trajectory Dashboard'!H48","v":44029.842798245787},{"$f":"'Rate Trajectory Dashboard'!I48","v":"ECPT - ALL"},{"$f":"'Rate Trajectory Dashboard'!K48","v":12},12,{"$f":"'Rate Trajectory Dashboard'!J48","v":"2026-01-01"},"2026-12-31",0,0,0,0,44029.842798245787,0,0,0,0,0,0,0,0,0,0,0,-44029.842798245787,0,0,0,0,0,0,0,0,0,0,0,0,0,0,0,0,0,0,0,0,0,0,0,0,0,0,0,0,0,0,0,0,0,0,0,0,0,0,0,0,0,0,0,0,0,{"$f":"IF(BR$6=$F43,$B43,IF(EOMONTH(BR$6,-1)=$G43,-$B43,0))","v":0},0,0,0,0,0,0,0,0,0,0,0,0,0,0,0,{"$f":"IF(CH$6=$F43,$B43,IF(EOMONTH(CH$6,-1)=$G43,-$B43,0))","v":0},0,0,0,0,0,0,0,0,0]
[{"$f":"'Rate Trajectory Dashboard'!B49","v":"Wildfire Gas and Safety Costs (Transmission) - Non IRR - Year 2027"},{"$f":"'Rate Trajectory Dashboard'!H49","v":412.70016602004648},{"$f":"'Rate Trajectory Dashboard'!I49","v":"ECPT - ALL"},{"$f":"'Rate Trajectory Dashboard'!K49","v":12},12,{"$f":"'Rate Trajectory Dashboard'!J49","v":"2027-01-01"},"2027-12-31",0,0,0,0,0,0,0,0,0,0,0,0,0,0,0,0,412.70016602004648,0,0,0,0,0,0,0,0,0,0,0,-412.70016602004648,0,0,0,0,0,0,0,0,0,0,0,0,0,0,0,0,0,0,0,0,0,0,0,0,0,0,0,0,0,0,0,0,0,0,0,0,0,0,0,0,0,0,0,0,0,0,0,0,0,0,0,0,0,0,0,0,0,0,0]
[{"$f":"'Rate Trajectory Dashboard'!B50","v":"2022 Wildfire Mitigation and Catastrophic Events"},{"$f":"'Rate Trajectory Dashboard'!H50","v":16214.970094191543},{"$f":"'Rate Trajectory Dashboard'!I50","v":"Distribution"},{"$f":"'Rate Trajectory Dashboard'!K50","v":12},12,{"$f":"'Rate Trajectory Dashboard'!J50","v":"2026-01-01"},"2026-12-31",0,0,0,0,16214.970094191543,0,0,0,0,0,0,0,0,0,0,0,-16214.970094191543,0,0,0,0,0,0,0,0,0,0,0,0,0,0,0,0,0,0,0,0,0,0,0,0,0,0,0,0,0,0,0,0,0,0,0,0,0,0,0,0,0,0,0,0,0,0,0,0,0,0,0,0,0,0,0,0,0,0,0,0,0,0,0,0,0,0,0,0,0,0,0]
[{"$f":"'Rate Trajectory Dashboard'!B51","v":"TRRRMA (Distribution)"},{"$f":"'Rate Trajectory Dashboard'!H51","v":104444.39544815596},{"$f":"'Rate Trajectory Dashboard'!I51","v":"Distribution"},{"$f":"'Rate Trajectory Dashboard'!K51","v":12},12,{"$f":"'Rate Trajectory Dashboard'!J51","v":"2026-01-01"},"2026-12-31",0,0,0,0,104444.39544815596,0,0,0,0,0,0,0,0,0,0,0,-104444.39544815596,0,0,0,0,0,0,0,0,0,0,0,0,0,0,0,0,0,0,0,0,0,0,0,0,0,0,0,0,0,0,0,0,0,0,0,0,0,0,0,0,0,0,0,0,0,0,0,0,0,0,0,0,0,0,0,0,0,0,0,0,0,0,0,0,0,0,0,0,0,0,0]
[{"$f":"'Rate Trajectory Dashboard'!B52","v":"TRRRMA (Transmission)"},{"$f":"'Rate Trajectory Dashboard'!H52","v":47177.487626207876},{"$f":"'Rate Trajectory Dashboard'!I52","v":"ECPT - ALL"},{"$f":"'Rate Trajectory Dashboard'!K52","v":12},12,{"$f":"'Rate Trajectory Dashboard'!J52","v":"2026-01-01"},"2026-12-31",0,0,0,0,47177.487626207876,0,0,0,0,0,0,0,0,0,0,0,-47177.487626207876,0,0,0,0,0,0,0,0,0,0,0,0,0,0,0,0,0,0,0,0,0,0,0,0,0,0,0,0,0,0,0,0,0,0,0,0,0,0,0,0,0,0,0,0,0,0,0,0,0,0,0,0,0,0,0,0,0,0,0,0,0,0,0,0,0,0,0,0,0,0,0]
[{"$f":"'Rate Trajectory Dashboard'!B53","v":"2027 GRC - Gas Distribution - Year 2027"},{"$f":"'Rate Trajectory Dashboard'!H53","v":223582.78734550299},{"$f":"'Rate Trajectory Dashboard'!I53","v":"Distribution"},{"$f":"'Rate Trajectory Dashboard'!K53","v":12},12,{"$f":"'Rate Trajectory Dashboard'!J53","v":"2027-01-01"},"2027-12-31",0,0,0,0,0,0,0,0,0,0,0,0,0,0,0,0,223582.78734550299,0,0,0,0,0,0,0,0,0,0,0,-223582.78734550299,0,0,0,0,0,0,0,0,0,0,0,0,0,0,0,0,0,0,0,0,0,0,0,0,0,0,0,0,0,0,0,0,0,0,0,0,0,0,0,0,0,0,0,0,0,0,0,0,0,0,0,0,0,0,0,0,0,0,0]
[{"$f":"'Rate Trajectory Dashboard'!B54","v":"2027 GRC - Gas Distribution - Year 2028"},{"$f":"'Rate Trajectory Dashboard'!H54","v":383127.99069938343},{"$f":"'Rate Trajectory Dashboard'!I54","v":"Distribution"},{"$f":"'Rate Trajectory Dashboard'!K54","v":12},12,{"$f":"'Rate Trajectory Dashboard'!J54","v":"2028-01-01"},"2028-12-31",0,0,0,0,0,0,0,0,0,0,0,0,0,0,0,0,0,0,0,0,0,0,0,0,0,0,0,0,383127.99069938343,0,0,0,0,0,0,0,0,0,0,0,-383127.99069938343,0,0,0,0,0,0,0,0,0,0,0,0,0,0,0,0,0,0,0,0,0,0,0,0,0,0,0,0,0,0,0,0,0,0,0,0,0,0,0,0,0,0,0,0,0,0,0]
[{"$f":"'Rate Trajectory Dashboard'!B55","v":"2027 GRC - Gas Distribution - Year 2029"},{"$f":"'Rate Trajectory Dashboard'!H55","v":551753.34316252638},{"$f":"'Rate Trajectory Dashboard'!I55","v":"Distribution"},{"$f":"'Rate Trajectory Dashboard'!K55","v":0},99,{"$f":"'Rate Trajectory Dashboard'!J55","v":"2029-01-01"},"2037-03-31",0,0,0,0,0,0,0,0,0,0,0,0,0,0,0,0,0,0,0,0,0,0,0,0,0,0,0,0,0,0,0,0,0,0,0,0,0,0,0,0,551753.34316252638,0,0,0,{"$f":"IF(AZ$6=$F50,$B50,IF(EOMONTH(AZ$6,-1)=$G50,-$B50,0))","v":0},0,0,0,0,0,0,0,0,0,0,0,0,0,0,0,0,0,0,0,0,0,0,0,0,0,0,0,0,0,0,0,0,0,0,0,0,0,0,0,0,0,0,0]
[{"$f":"'Rate Trajectory Dashboard'!B56","v":"2027 GRC - Core Local Transmission - Year 2027"},{"$f":"'Rate Trajectory Dashboard'!H56","v":165311.3794186404},{"$f":"'Rate Trajectory Dashboard'!I56","v":"ECPT - Core only"},{"$f":"'Rate Trajectory Dashboard'!K56","v":12},12,{"$f":"'Rate Trajectory Dashboard'!J56","v":"2027-01-01"},"2027-12-31",0,0,0,0,0,0,0,0,0,0,0,0,0,0,0,0,165311.3794186404,0,0,0,0,0,0,0,0,0,0,0,-165311.3794186404,0,0,0,0,0,0,0,0,0,0,0,0,0,0,0,0,0,0,0,0,0,0,0,0,0,0,0,0,0,0,0,0,0,0,0,0,0,0,0,0,0,0,0,0,0,0,0,0,0,0,0,0,0,0,0,0,0,0,0]
[{"$f":"'Rate Trajectory Dashboard'!B57","v":"2027 GRC - Core Local Transmission - Year 2028"},{"$f":"'Rate Trajectory Dashboard'!H57","v":198314.01265905635},{"$f":"'Rate Trajectory Dashboard'!I57","v":"ECPT - Core only"},{"$f":"'Rate Trajectory Dashboard'!K57","v":12},12,{"$f":"'Rate Trajectory Dashboard'!J57","v":"2028-01-01"},"2028-12-31",0,0,0,0,0,0,0,0,0,0,0,0,0,0,0,0,0,0,0,0,0,0,0,0,0,0,0,0,198314.01265905635,0,0,0,0,0,0,0,0,0,0,0,-198314.01265905635,0,0,0,0,0,0,0,0,0,0,0,0,0,0,0,0,0,0,0,0,0,0,0,0,0,0,0,0,0,0,0,0,0,0,0,0,0,0,0,0,0,0,0,0,0,0,0]
[{"$f":"'Rate Trajectory Dashboard'!B58","v":"2027 GRC - Core Local Transmission - Year 2029"},{"$f":"'Rate Trajectory Dashboard'!H58","v":236327.54166755592},{"$f":"'Rate Trajectory Dashboard'!I58","v":"ECPT - Core only"},{"$f":"'Rate Trajectory Dashboard'!K58","v":0},99,{"$f":"'Rate Trajectory Dashboard'!J58","v":"2029-01-01"},"2037-03-31",0,0,0,0,0,0,0,0,0,0,0,0,0,0,0,0,0,0,0,0,0,0,0,0,0,0,0,0,0,0,0,0,0,0,0,0,0,0,0,0,236327.54166755592,0,0,0,0,0,0,0,0,0,0,0,0,0,0,0,0,0,0,0,0,0,0,0,0,0,0,0,0,0,0,0,0,0,0,0,0,0,0,0,0,0,0,0,0,0,0,0]
[{"$f":"'Rate Trajectory Dashboard'!B59","v":"2027 GRC - Core Procurement (Intrastate Volumetric and Capacity) - Year 2027"},{"$f":"'Rate Trajectory Dashboard'!H59","v":-29320.572936165961},{"$f":"'Rate Trajectory Dashboard'!I59","v":"ECPT - Core only  (Procurement)"},{"$f":"'Rate Trajectory Dashboard'!K59","v":12},12,{"$f":"'Rate Trajectory Dashboard'!J59","v":"2027-01-01"},"2027-12-31",0,0,0,0,0,0,0,0,0,0,0,0,0,0,0,0,-29320.572936165961,0,0,0,0,0,0,0,0,0,0,0,29320.572936165961,0,0,0,0,0,0,0,0,0,0,0,0,0,0,0,0,0,0,0,0,0,0,0,0,0,0,0,0,0,0,0,0,0,0,0,0,0,0,0,0,0,0,0,0,0,0,0,0,0,0,0,0,0,0,0,0,0,0,0]
[{"$f":"'Rate Trajectory Dashboard'!B60","v":"2027 GRC - Core Procurement (Intrastate Volumetric and Capacity) - Year 2028"},{"$f":"'Rate Trajectory Dashboard'!H60","v":-20094.031988709467},{"$f":"'Rate Trajectory Dashboard'!I60","v":"ECPT - Core only  (Procurement)"},{"$f":"'Rate Trajectory Dashboard'!K60","v":12},12,{"$f":"'Rate Trajectory Dashboard'!J60","v":"2028-01-01"},"2028-12-31",0,0,0,0,0,0,0,0,0,0,0,0,0,0,0,0,0,0,0,0,0,0,0,0,0,0,0,0,-20094.031988709467,0,0,0,0,0,0,0,0,0,0,0,20094.031988709467,0,0,0,0,0,0,0,0,0,0,0,0,0,0,0,0,0,0,0,0,0,0,0,0,0,0,0,0,0,0,0,0,0,0,0,0,0,0,0,0,0,0,0,0,0,0,0]
[{"$f":"'Rate Trajectory Dashboard'!B61","v":"2027 GRC - Core Procurement (Intrastate Volumetric and Capacity) - Year 2029"},{"$f":"'Rate Trajectory Dashboard'!H61","v":-11033.582234074071},{"$f":"'Rate Trajectory Dashboard'!I61","v":"ECPT - Core only  (Procurement)"},{"$f":"'Rate Trajectory Dashboard'!K61","v":0},99,{"$f":"'Rate Trajectory Dashboard'!J61","v":"2029-01-01"},"2037-03-31",0,0,0,0,0,0,0,0,0,0,0,0,0,0,0,{"$f":"IF(W$6=$F56,$B56,IF(EOMONTH(W$6,-1)=$G56,-$B56,0))","v":0},0,0,0,0,0,0,0,0,0,0,0,0,0,0,0,0,0,0,0,0,0,0,0,0,-11033.582234074071,0,0,0,0,0,0,0,0,0,0,0,0,0,0,0,0,0,0,0,0,0,0,0,0,0,0,0,0,0,0,0,0,0,0,0,0,0,0,0,0,0,0,0,0,0,0,0]
[{"$f":"'Rate Trajectory Dashboard'!B62","v":"2027 GRC - Core Procurement (Storage) - Year 2027"},{"$f":"'Rate Trajectory Dashboard'!H62","v":-27.308752644137712},{"$f":"'Rate Trajectory Dashboard'!I62","v":"Storage Allocation  (Procurement)"},{"$f":"'Rate Trajectory Dashboard'!K62","v":12},12,{"$f":"'Rate Trajectory Dashboard'!J62","v":"2027-01-01"},"2027-12-31",{"$f":"IF(H$6=$F57,$B57,IF(EOMONTH(H$6,-1)=$G57,-$B57,0))","v":0},0,0,0,0,0,0,0,0,0,0,0,0,0,0,0,-27.308752644137712,0,0,0,0,0,0,0,0,0,0,0,27.308752644137712,0,0,0,0,0,0,0,0,0,0,0,0,0,0,0,0,0,0,0,0,0,0,0,0,0,0,0,0,0,0,0,0,0,0,0,0,0,0,0,0,0,0,0,0,0,0,0,0,0,0,0,0,0,0,0,0,0,0,0]
[{"$f":"'Rate Trajectory Dashboard'!B63","v":"2027 GRC - Core Procurement (Storage) - Year 2028"},{"$f":"'Rate Trajectory Dashboard'!H63","v":2756.3019398794568},{"$f":"'Rate Trajectory Dashboard'!I63","v":"Storage Allocation  (Procurement)"},{"$f":"'Rate Trajectory Dashboard'!K63","v":12},12,{"$f":"'Rate Trajectory Dashboard'!J63","v":"2028-01-01"},"2028-12-31",0,0,0,0,0,0,0,0,0,0,0,0,0,0,0,0,0,0,0,0,0,0,0,0,0,0,0,0,2756.3019398794568,0,0,0,0,0,0,0,0,0,0,0,-2756.3019398794568,0,0,0,0,0,0,0,0,0,0,0,0,0,0,0,0,0,0,0,0,0,0,0,0,0,0,0,0,0,0,0,0,0,0,0,0,0,0,0,0,0,0,0,0,0,0,0]
[{"$f":"'Rate Trajectory Dashboard'!B64","v":"2027 GRC - Core Procurement (Storage) - Year 2029"},{"$f":"'Rate Trajectory Dashboard'!H64","v":5264.9738056559581},{"$f":"'Rate Trajectory Dashboard'!I64","v":"Storage Allocation  (Procurement)"},{"$f":"'Rate Trajectory Dashboard'!K64","v":0},99,{"$f":"'Rate Trajectory Dashboard'!J64","v":"2029-01-01"},"2037-03-31",0,0,0,0,0,0,0,0,0,0,0,0,0,0,0,0,0,0,0,0,0,0,0,0,0,0,0,0,0,0,0,0,0,0,0,0,0,0,0,0,5264.9738056559581,0,0,0,0,0,0,0,0,0,0,0,0,0,0,0,0,0,0,0,0,0,{"$f":"IF(BR$6=$F59,$B59,IF(EOMONTH(BR$6,-1)=$G59,-$B59,0))","v":0},0,0,0,0,0,0,0,0,0,0,0,0,0,0,0,0,0,0,0,0,0,0,0,0,0]
[{"$f":"'Rate Trajectory Dashboard'!B65","v":"2027 GRC - Noncore Local Transmission - Year 2027"},{"$f":"'Rate Trajectory Dashboard'!H65","v":87073.412674814172},{"$f":"'Rate Trajectory Dashboard'!I65","v":"ECPT - Noncore only"},{"$f":"'Rate Trajectory Dashboard'!K65","v":12},12,{"$f":"'Rate Trajectory Dashboard'!J65","v":"2027-01-01"},"2027-12-31",0,0,0,0,0,0,0,0,0,0,0,0,0,0,0,0,87073.412674814172,0,0,0,0,0,0,0,0,0,0,0,-87073.412674814172,0,0,0,0,0,0,0,0,0,0,0,0,0,0,0,0,0,0,0,0,0,0,0,0,0,0,0,0,0,0,0,0,0,0,0,0,0,0,0,0,0,0,0,0,0,0,0,0,0,0,0,0,0,0,0,0,0,0,0]
[{"$f":"'Rate Trajectory Dashboard'!B66","v":"2027 GRC - Noncore Local Transmission - Year 2028"},{"$f":"'Rate Trajectory Dashboard'!H66","v":104456.64477879886},{"$f":"'Rate Trajectory Dashboard'!I66","v":"ECPT - Noncore only"},{"$f":"'Rate Trajectory Dashboard'!K66","v":12},12,{"$f":"'Rate Trajectory Dashboard'!J66","v":"2028-01-01"},"2028-12-31",0,0,0,0,0,0,0,0,0,0,0,0,0,0,0,0,0,0,0,0,0,0,0,0,0,{"$f":"IF(AG$6=$F61,$B61,IF(EOMONTH(AG$6,-1)=$G61,-$B61,0))","v":0},0,0,104456.64477879886,0,0,0,0,0,0,0,0,0,0,0,-104456.64477879886,0,0,0,0,0,0,0,0,0,0,0,0,0,0,0,0,0,0,0,0,0,0,0,0,0,0,0,0,0,0,0,0,0,0,0,0,0,0,0,0,0,0,0,0,0,0,0]
[{"$f":"'Rate Trajectory Dashboard'!B67","v":"2027 GRC - Noncore Local Transmission - Year 2029"},{"$f":"'Rate Trajectory Dashboard'!H67","v":124479.21722919989},{"$f":"'Rate Trajectory Dashboard'!I67","v":"ECPT - Noncore only"},{"$f":"'Rate Trajectory Dashboard'!K67","v":0},99,{"$f":"'Rate Trajectory Dashboard'!J67","v":"2029-01-01"},"2037-03-31",0,0,0,0,0,0,0,0,0,0,0,0,0,0,0,0,0,0,0,0,0,0,0,0,0,0,0,0,0,0,0,0,0,0,0,0,0,0,0,0,124479.21722919989,0,0,0,0,0,0,0,0,0,0,0,0,0,0,0,0,0,0,0,0,0,0,0,0,0,0,0,0,0,0,0,0,0,0,0,0,0,0,0,0,0,0,0,0,0,0,0]
[{"$f":"'Rate Trajectory Dashboard'!B68","v":"2027 GRC - Customer Access Charge - Year 2027"},{"$f":"'Rate Trajectory Dashboard'!H68","v":-1507.3696770717852},{"$f":"'Rate Trajectory Dashboard'!I68","v":"CAC Allocation"},{"$f":"'Rate Trajectory Dashboard'!K68","v":12},12,{"$f":"'Rate Trajectory Dashboard'!J68","v":"2027-01-01"},"2027-12-31",0,0,0,0,0,0,0,0,0,0,0,0,0,0,0,0,-1507.3696770717852,0,0,0,0,0,0,0,0,0,0,0,1507.3696770717852,0,0,0,0,0,0,0,0,0,0,0,0,0,0,0,0,0,0,0,0,0,0,0,0,0,0,0,0,0,0,0,0,0,0,0,0,0,0,0,0,0,0,0,0,0,0,0,0,0,0,0,0,0,0,0,0,0,0,0]
[{"$f":"'Rate Trajectory Dashboard'!B69","v":"2027 GRC - Customer Access Charge - Year 2028"},{"$f":"'Rate Trajectory Dashboard'!H69","v":-745.95433239186877},{"$f":"'Rate Trajectory Dashboard'!I69","v":"CAC Allocation"},{"$f":"'Rate Trajectory Dashboard'!K69","v":12},12,{"$f":"'Rate Trajectory Dashboard'!J69","v":"2028-01-01"},"2028-12-31",0,0,0,0,0,0,0,0,0,0,0,0,0,0,0,0,0,0,0,0,0,0,0,0,0,0,0,0,-745.95433239186877,0,0,0,0,0,0,0,0,0,0,0,745.95433239186877,0,0,0,0,0,0,0,0,0,0,0,0,0,0,0,0,0,0,0,0,0,0,0,0,0,0,0,0,0,0,0,0,0,0,0,0,0,0,0,0,0,0,0,0,0,0,0]
[{"$f":"'Rate Trajectory Dashboard'!B70","v":"2027 GRC - Customer Access Charge - Year 2029"},{"$f":"'Rate Trajectory Dashboard'!H70","v":18.809476793810063},{"$f":"'Rate Trajectory Dashboard'!I70","v":"CAC Allocation"},{"$f":"'Rate Trajectory Dashboard'!K70","v":0},99,{"$f":"'Rate Trajectory Dashboard'!J70","v":"2029-01-01"},"2037-03-31",0,0,0,0,0,0,0,0,0,0,0,0,0,0,0,0,0,0,0,0,0,0,0,0,0,0,0,0,0,0,0,0,0,0,0,0,0,0,0,0,18.809476793810063,0,0,0,{"$f":"IF(AZ$6=$F65,$B65,IF(EOMONTH(AZ$6,-1)=$G65,-$B65,0))","v":0},0,0,0,0,0,0,0,0,0,0,0,0,0,0,0,0,0,0,0,0,0,0,0,0,0,0,0,0,0,0,0,0,0,0,0,0,0,0,0,0,0,0,0]
[{"$f":"'Rate Trajectory Dashboard'!B71","v":"2027 GRC - Noncore Unbundled - Year 2027"},{"$f":"'Rate Trajectory Dashboard'!H71","v":-53435.269466808648},{"$f":"'Rate Trajectory Dashboard'!I71","v":"ECPT - ALL"},{"$f":"'Rate Trajectory Dashboard'!K71","v":12},12,{"$f":"'Rate Trajectory Dashboard'!J71","v":"2027-01-01"},"2027-12-31",0,0,0,0,0,0,0,0,0,0,0,0,0,0,0,0,-53435.269466808648,0,0,0,0,0,0,0,0,0,0,0,53435.269466808648,0,0,0,0,0,0,{"$f":"IF(AQ$6=$F66,$B66,IF(EOMONTH(AQ$6,-1)=$G66,-$B66,0))","v":0},0,0,0,0,0,0,0,0,0,0,0,0,0,0,0,0,0,0,0,0,0,0,0,0,0,0,0,0,0,0,0,0,0,0,0,0,0,0,0,0,0,0,0,0,0,0,0,0,0,0,0,0]
[{"$f":"'Rate Trajectory Dashboard'!B72","v":"2027 GRC - Noncore Unbundled - Year 2028"},{"$f":"'Rate Trajectory Dashboard'!H72","v":-44438.738733686798},{"$f":"'Rate Trajectory Dashboard'!I72","v":"ECPT - ALL"},{"$f":"'Rate Trajectory Dashboard'!K72","v":12},12,{"$f":"'Rate Trajectory Dashboard'!J72","v":"2028-01-01"},"2028-12-31",0,0,0,0,0,0,0,0,0,0,0,0,0,0,0,0,0,0,0,0,0,0,0,0,0,0,0,0,-44438.738733686798,0,0,0,0,0,0,0,0,0,0,0,44438.738733686798,0,0,0,0,0,0,0,0,0,0,0,0,0,0,0,0,0,0,0,{"$f":"IF(BP$6=$F67,$B67,IF(EOMONTH(BP$6,-1)=$G67,-$B67,0))","v":0},0,0,0,0,0,0,0,0,0,0,0,0,0,0,0,{"$f":"IF(CF$6=$F67,$B67,IF(EOMONTH(CF$6,-1)=$G67,-$B67,0))","v":0},0,0,0,0,0,0,0,0,0,0,0]
[{"$f":"'Rate Trajectory Dashboard'!B73","v":"2027 GRC - Noncore Unbundled - Year 2029"},{"$f":"'Rate Trajectory Dashboard'!H73","v":-37095.431942448253},{"$f":"'Rate Trajectory Dashboard'!I73","v":"ECPT - ALL"},{"$f":"'Rate Trajectory Dashboard'!K73","v":0},99,{"$f":"'Rate Trajectory Dashboard'!J73","v":"2029-01-01"},"2037-03-31",0,0,0,0,0,0,0,0,0,0,0,0,0,0,0,0,0,0,0,0,0,0,0,0,0,0,0,0,0,0,0,0,0,0,0,0,0,0,0,0,-37095.431942448253,0,0,0,0,0,0,0,0,0,0,0,0,0,0,0,0,0,0,0,0,0,0,0,0,0,0,0,0,0,0,0,0,0,0,0,0,0,0,0,0,0,0,{"$f":"IF(CM$6=$F68,$B68,IF(EOMONTH(CM$6,-1)=$G68,-$B68,0))","v":0},0,0,0,0]
[{"$f":"'Rate Trajectory Dashboard'!B74","v":"2027 GRC - Inventory Management - Year 2027"},{"$f":"'Rate Trajectory Dashboard'!H74","v":742.77991559234215},{"$f":"'Rate Trajectory Dashboard'!I74","v":"2023 GTS - Inventory Management"},{"$f":"'Rate Trajectory Dashboard'!K74","v":12},12,{"$f":"'Rate Trajectory Dashboard'!J74","v":"2027-01-01"},"2027-12-31",0,0,0,0,0,0,0,0,0,0,0,0,0,0,0,0,742.77991559234215,0,0,0,0,0,0,0,0,0,0,0,-742.77991559234215,0,0,0,0,0,0,0,0,0,0,0,0,0,0,0,0,0,0,0,0,0,0,0,0,0,0,0,0,0,0,0,0,0,0,0,0,0,0,0,0,0,0,0,0,0,0,0,0,0,{"$f":"IF(CH$6=$F69,$B69,IF(EOMONTH(CH$6,-1)=$G69,-$B69,0))","v":0},0,0,0,0,0,0,0,0,0]
[{"$f":"'Rate Trajectory Dashboard'!B75","v":"2027 GRC - Inventory Management - Year 2028"},{"$f":"'Rate Trajectory Dashboard'!H75","v":11999.624702240457},{"$f":"'Rate Trajectory Dashboard'!I75","v":"2023 GTS - Inventory Management"},{"$f":"'Rate Trajectory Dashboard'!K75","v":12},12,{"$f":"'Rate Trajectory Dashboard'!J75","v":"2028-01-01"},"2028-12-31",0,0,0,0,0,0,0,0,0,0,0,0,0,0,0,0,0,0,0,0,0,0,0,0,0,0,0,0,11999.624702240457,0,0,0,0,0,0,0,0,0,0,0,-11999.624702240457,0,0,0,0,0,0,0,0,0,0,0,0,0,0,0,0,0,0,0,0,0,0,0,0,0,0,0,0,0,0,0,0,0,0,0,0,0,0,0,0,0,0,0,0,0,0,0]
[{"$f":"'Rate Trajectory Dashboard'!B76","v":"2027 GRC - Inventory Management - Year 2029"},{"$f":"'Rate Trajectory Dashboard'!H76","v":22144.624464428809},{"$f":"'Rate Trajectory Dashboard'!I76","v":"2023 GTS - Inventory Management"},{"$f":"'Rate Trajectory Dashboard'!K76","v":0},99,{"$f":"'Rate Trajectory Dashboard'!J76","v":"2029-01-01"},"2037-03-31",0,0,0,0,0,0,0,0,0,0,0,0,0,0,0,0,0,0,0,0,0,0,0,0,0,0,0,0,0,0,0,0,0,0,0,0,0,0,0,0,22144.624464428809,0,0,0,0,0,0,0,0,0,0,0,0,0,0,0,0,0,0,0,0,0,0,0,0,0,0,0,0,0,0,0,0,0,0,0,0,0,0,0,0,0,0,0,0,0,0,0]
[{"$f":"'Rate Trajectory Dashboard'!B77","v":"CFCA - NGSS Enduser Dist. Sub Acct Recovery - Year 2027"},{"$f":"'Rate Trajectory Dashboard'!H77","v":41605.250601505963},{"$f":"'Rate Trajectory Dashboard'!I77","v":"Core - Distribution"},{"$f":"'Rate Trajectory Dashboard'!K77","v":12},{"$f":"IF(D72=0,99,D72)","v":12},{"$f":"'Rate Trajectory Dashboard'!J77","v":"2027-01-01"},{"$f":"EDATE(F72,E72)-1","v":"2027-12-31"},0,0,0,0,0,0,0,0,0,0,0,0,0,0,0,{"$f":"IF(W$6=$F72,$B72,IF(EOMONTH(W$6,-1)=$G72,-$B72,0))","v":0},{"$f":"IF(X$6=$F72,$B72,IF(EOMONTH(X$6,-1)=$G72,-$B72,0))","v":41605.250601505963},{"$f":"IF(Y$6=$F72,$B72,IF(EOMONTH(Y$6,-1)=$G72,-$B72,0))","v":0},{"$f":"IF(Z$6=$F72,$B72,IF(EOMONTH(Z$6,-1)=$G72,-$B72,0))","v":0},0,0,0,0,0,0,0,0,0,-41605.250601505963,0,0,0,0,0,0,0,0,0,0,0,0,0,0,0,0,0,0,0,0,0,0,0,0,0,0,0,0,0,0,0,0,0,0,0,0,0,0,0,0,0,0,0,0,0,0,0,0,0,0,0,0,0,0,0,0,0,0,0]
[{"$f":"'Rate Trajectory Dashboard'!B78","v":"CFCA - NGSS Enduser Dist. Sub Acct Recovery - Year 2028"},{"$f":"'Rate Trajectory Dashboard'!H78","v":41605.250601505963},{"$f":"'Rate Trajectory Dashboard'!I78","v":"Core - Distribution"},{"$f":"'Rate Trajectory Dashboard'!K78","v":12},12,{"$f":"'Rate Trajectory Dashboard'!J78","v":"2028-01-01"},"2028-12-31",{"$f":"IF(H$6=$F73,$B73,IF(EOMONTH(H$6,-1)=$G73,-$B73,0))","v":0},0,0,0,0,0,0,0,0,0,0,0,0,0,0,0,{"$f":"IF(X$6=$F73,$B73,IF(EOMONTH(X$6,-1)=$G73,-$B73,0))","v":0},0,0,0,0,0,0,0,0,0,0,0,41605.250601505963,0,0,0,0,0,0,0,0,0,0,0,-41605.250601505963,0,0,0,0,0,0,0,0,0,0,0,0,0,0,0,0,0,0,0,0,0,0,0,0,0,0,0,0,0,0,0,0,0,0,0,0,0,0,0,0,0,0,0,0,0,0,0]
[{"$f":"'Rate Trajectory Dashboard'!B79","v":"CFCA - NGSS Enduser Dist. Sub Acct Recovery - Year 2029"},{"$f":"'Rate Trajectory Dashboard'!H79","v":41605.250601505963},{"$f":"'Rate Trajectory Dashboard'!I79","v":"Core - Distribution"},{"$f":"'Rate Trajectory Dashboard'!K79","v":0},99,{"$f":"'Rate Trajectory Dashboard'!J79","v":"2029-01-01"},"2037-03-31",0,0,0,0,0,0,0,0,0,0,0,0,0,0,0,0,0,0,0,0,0,0,0,0,0,0,0,0,0,0,0,0,0,0,0,0,0,0,0,0,41605.250601505963,0,0,0,0,0,0,0,0,0,0,0,0,0,0,0,0,0,0,0,0,0,0,0,0,0,0,0,0,0,0,0,0,0,0,0,0,0,0,0,0,0,0,0,0,0,0,0]
[{"$f":"'Rate Trajectory Dashboard'!B80","v":"CFCA/NCA - NGSS Enduser Sub Acct Recovery - Year 2027"},{"$f":"'Rate Trajectory Dashboard'!H80","v":9893.389051695307},{"$f":"'Rate Trajectory Dashboard'!I80","v":"ECPT - ALL"},{"$f":"'Rate Trajectory Dashboard'!K80","v":12},12,{"$f":"'Rate Trajectory Dashboard'!J80","v":"2027-01-01"},"2027-12-31",0,0,0,0,0,0,0,0,0,0,0,0,0,0,0,0,9893.389051695307,0,0,0,0,0,0,0,0,0,0,0,-9893.389051695307,0,0,0,0,0,0,0,0,0,0,0,0,0,0,0,0,0,0,0,0,0,0,0,0,0,0,0,0,0,0,0,0,0,0,0,0,0,0,0,0,0,0,0,0,0,0,0,0,0,0,0,0,0,0,0,0,0,0,0]
[{"$f":"'Rate Trajectory Dashboard'!B81","v":"CFCA/NCA - NGSS Enduser Sub Acct Recovery - Year 2028"},{"$f":"'Rate Trajectory Dashboard'!H81","v":9893.389051695307},{"$f":"'Rate Trajectory Dashboard'!I81","v":"ECPT - ALL"},{"$f":"'Rate Trajectory Dashboard'!K81","v":12},12,{"$f":"'Rate Trajectory Dashboard'!J81","v":"2028-01-01"},"2028-12-31",0,0,0,0,0,0,0,0,0,0,0,0,0,0,0,0,0,0,0,0,0,0,0,0,0,0,0,0,9893.389051695307,0,0,0,0,0,0,0,0,0,0,0,-9893.389051695307,0,0,0,0,0,0,0,0,0,0,0,0,0,0,0,0,0,0,0,0,0,0,0,0,0,0,0,0,0,0,0,0,0,0,0,0,0,0,0,0,0,0,0,0,0,0,0]
[{"$f":"'Rate Trajectory Dashboard'!B82","v":"CFCA/NCA - NGSS Enduser Sub Acct Recovery - Year 2029"},{"$f":"'Rate Trajectory Dashboard'!H82","v":9893.389051695307},{"$f":"'Rate Trajectory Dashboard'!I82","v":"ECPT - ALL"},{"$f":"'Rate Trajectory Dashboard'!K82","v":0},99,{"$f":"'Rate Trajectory Dashboard'!J82","v":"2029-01-01"},"2037-03-31",0,0,0,0,0,0,0,0,0,0,0,0,0,0,0,0,0,0,0,0,0,0,0,0,0,0,0,0,0,0,0,0,0,0,0,0,0,0,0,0,9893.389051695307,0,0,0,0,0,0,0,0,0,0,0,0,0,0,0,0,0,0,0,0,0,0,0,0,0,0,0,0,0,0,0,0,0,0,0,0,0,0,0,0,0,0,0,0,0,0,0]
[{"$f":"'Rate Trajectory Dashboard'!B83","v":"NCA - NGSS Enduser Sub Acct Recovery - Year 2027"},{"$f":"'Rate Trajectory Dashboard'!H83","v":10160.997666303094},{"$f":"'Rate Trajectory Dashboard'!I83","v":"ECPT - Noncore only"},{"$f":"'Rate Trajectory Dashboard'!K83","v":12},12,{"$f":"'Rate Trajectory Dashboard'!J83","v":"2027-01-01"},"2027-12-31",0,0,0,0,0,0,0,0,0,0,0,0,0,0,0,0,10160.997666303094,0,0,0,0,0,0,0,0,0,0,0,-10160.997666303094,0,0,0,0,0,0,0,0,0,0,0,0,0,0,0,0,0,0,0,0,0,0,0,0,0,0,0,0,0,0,0,0,0,0,0,0,0,0,0,0,0,0,0,0,0,0,0,0,0,0,0,0,0,0,0,0,0,0,0]
[{"$f":"'Rate Trajectory Dashboard'!B84","v":"NCA - NGSS Enduser Sub Acct Recovery - Year 2028"},{"$f":"'Rate Trajectory Dashboard'!H84","v":10160.997666303094},{"$f":"'Rate Trajectory Dashboard'!I84","v":"ECPT - Noncore only"},{"$f":"'Rate Trajectory Dashboard'!K84","v":12},12,{"$f":"'Rate Trajectory Dashboard'!J84","v":"2028-01-01"},"2028-12-31",0,0,0,0,0,0,0,0,0,0,0,0,0,0,0,0,0,0,0,{"$f":"IF(AA$6=$F79,$B79,IF(EOMONTH(AA$6,-1)=$G79,-$B79,0))","v":0},0,0,0,0,0,0,0,0,10160.997666303094,0,0,{"$f":"IF(AM$6=$F79,$B79,IF(EOMONTH(AM$6,-1)=$G79,-$B79,0))","v":0},0,0,0,0,0,0,0,0,-10160.997666303094,0,0,0,0,0,0,0,0,0,0,0,0,0,0,0,0,0,0,0,0,0,0,0,0,0,0,0,0,0,0,0,0,0,0,0,{"$f":"IF(CF$6=$F79,$B79,IF(EOMONTH(CF$6,-1)=$G79,-$B79,0))","v":0},0,0,0,0,0,0,0,0,0,0,0]
[{"$f":"'Rate Trajectory Dashboard'!B85","v":"NCA - NGSS Enduser Sub Acct Recovery - Year 2029"},{"$f":"'Rate Trajectory Dashboard'!H85","v":10160.997666303094},{"$f":"'Rate Trajectory Dashboard'!I85","v":"ECPT - Noncore only"},{"$f":"'Rate Trajectory Dashboard'!K85","v":0},99,{"$f":"'Rate Trajectory Dashboard'!J85","v":"2029-01-01"},"2037-03-31",0,0,0,0,0,0,0,0,0,0,0,0,0,0,0,0,0,0,0,0,0,0,0,0,0,0,0,0,0,0,0,0,0,0,0,0,0,0,0,0,10160.997666303094,0,0,0,0,0,0,0,0,0,0,0,0,0,0,0,0,0,0,0,0,0,0,0,0,0,0,0,0,0,0,0,0,0,0,0,0,0,0,0,0,0,0,0,0,0,0,0]
[{"$f":"'Rate Trajectory Dashboard'!B86","v":"Available"},{"$f":"'Rate Trajectory Dashboard'!H86","v":0},{"$f":"'Rate Trajectory Dashboard'!I86","v":0},{"$f":"'Rate Trajectory Dashboard'!K86","v":0},99,{"$f":"'Rate Trajectory Dashboard'!J86","v":"00:00:00"},"1908-03-30",0,0,0,0,0,0,0,0,0,0,0,0,0,0,0,0,0,0,0,0,0,0,0,0,0,0,0,0,0,0,0,0,0,0,0,0,0,0,0,0,0,0,0,0,0,0,0,0,0,0,{"$f":"IF(BF$6=$F81,$B81,IF(EOMONTH(BF$6,-1)=$G81,-$B81,0))","v":0},0,0,0,0,0,0,0,0,0,0,0,0,0,0,0,0,0,0,0,0,0,0,0,0,0,0,0,0,0,0,0,0,0,0,0,0,0]
[{"$f":"'Rate Trajectory Dashboard'!B87","v":"Available"},{"$f":"'Rate Trajectory Dashboard'!H87","v":0},{"$f":"'Rate Trajectory Dashboard'!I87","v":0},{"$f":"'Rate Trajectory Dashboard'!K87","v":0},{"$f":"IF(D82=0,99,D82)","v":99},{"$f":"'Rate Trajectory Dashboard'!J87","v":"00:00:00"},{"$f":"EDATE(F82,E82)-1","v":"1908-03-30"},0,0,0,0,0,0,0,0,0,0,0,0,0,0,0,0,0,0,0,0,0,0,0,0,0,0,0,0,0,0,0,0,0,0,0,{"$f":"IF(AQ$6=$F82,$B82,IF(EOMONTH(AQ$6,-1)=$G82,-$B82,0))","v":0},0,0,0,0,0,0,0,0,0,0,0,0,0,0,0,0,0,0,0,0,0,0,0,0,0,0,0,0,0,0,0,0,0,0,0,0,0,0,0,{"$f":"IF(CE$6=$F82,$B82,IF(EOMONTH(CE$6,-1)=$G82,-$B82,0))","v":0},0,0,0,0,0,0,0,0,0,0,0,0]
[{"$f":"'Rate Trajectory Dashboard'!B88","v":"Available"},{"$f":"'Rate Trajectory Dashboard'!H88","v":0},{"$f":"'Rate Trajectory Dashboard'!I88","v":0},{"$f":"'Rate Trajectory Dashboard'!K88","v":0},99,{"$f":"'Rate Trajectory Dashboard'!J88","v":"00:00:00"},"1908-03-30",0,0,0,0,0,0,0,0,0,0,0,0,0,0,0,0,0,0,0,0,0,0,0,0,0,0,0,0,0,0,0,0,0,0,0,0,0,0,0,0,0,0,0,0,0,0,0,0,0,0,0,0,0,0,0,0,0,0,0,0,0,0,0,0,0,0,0,0,0,0,0,0,0,0,0,0,0,0,0,0,0,0,0,0,0,0,0,0]
[{"$f":"'Rate Trajectory Dashboard'!B89","v":"Available"},{"$f":"'Rate Trajectory Dashboard'!H89","v":0},{"$f":"'Rate Trajectory Dashboard'!I89","v":0},{"$f":"'Rate Trajectory Dashboard'!K89","v":0},99,{"$f":"'Rate Trajectory Dashboard'!J89","v":"00:00:00"},"1908-03-30",0,0,0,0,0,0,0,0,0,0,0,0,0,0,0,0,0,0,0,0,0,0,0,0,0,0,0,0,0,0,0,0,0,0,0,0,0,0,0,0,0,0,0,0,0,0,0,0,0,0,0,0,0,0,0,0,0,0,0,0,0,0,0,0,0,0,0,0,0,0,0,0,0,0,0,0,0,0,0,0,0,0,{"$f":"IF(CL$6=$F84,$B84,IF(EOMONTH(CL$6,-1)=$G84,-$B84,0))","v":0},0,0,0,0,0]
[{"$f":"'Rate Trajectory Dashboard'!B90","v":"Available"},{"$f":"'Rate Trajectory Dashboard'!H90","v":0},{"$f":"'Rate Trajectory Dashboard'!I90","v":0},{"$f":"'Rate Trajectory Dashboard'!K90","v":0},99,{"$f":"'Rate Trajectory Dashboard'!J90","v":"00:00:00"},"1908-03-30",0,0,0,0,0,0,0,0,0,0,0,0,0,0,0,0,0,0,0,0,0,0,0,0,0,0,0,0,0,0,0,0,0,0,0,0,0,0,0,0,0,0,0,0,0,0,0,0,0,0,0,0,0,0,0,0,0,0,0,0,0,0,0,0,0,0,0,0,0,0,0,0,0,0,0,0,0,0,0,0,0,0,0,0,0,0,0,0]
[{"$f":"'Rate Trajectory Dashboard'!B91","v":"Available"},{"$f":"'Rate Trajectory Dashboard'!H91","v":0},{"$f":"'Rate Trajectory Dashboard'!I91","v":0},{"$f":"'Rate Trajectory Dashboard'!K91","v":0},99,{"$f":"'Rate Trajectory Dashboard'!J91","v":"00:00:00"},"1908-03-30",0,0,0,0,0,0,0,0,0,0,0,0,0,0,0,0,0,0,0,0,0,0,0,0,0,0,0,0,0,0,0,0,0,0,0,0,0,0,0,0,0,0,0,0,0,0,0,0,0,0,0,0,0,0,0,0,0,0,0,0,0,0,0,0,0,0,0,0,0,0,0,0,0,0,0,0,0,0,0,0,0,0,0,0,0,0,0,0]
[{"$f":"'Rate Trajectory Dashboard'!B92","v":"Available"},{"$f":"'Rate Trajectory Dashboard'!H92","v":0},{"$f":"'Rate Trajectory Dashboard'!I92","v":0},{"$f":"'Rate Trajectory Dashboard'!K92","v":0},99,{"$f":"'Rate Trajectory Dashboard'!J92","v":"00:00:00"},"1908-03-30",0,0,0,0,0,0,0,0,0,0,0,0,0,0,0,0,0,0,0,0,0,0,0,0,0,0,0,0,0,0,0,0,0,0,0,0,0,0,0,0,0,0,0,0,0,0,0,0,0,0,0,0,0,0,0,0,0,0,0,0,0,0,0,0,0,0,0,0,0,0,0,0,0,0,0,0,0,0,0,0,0,0,0,0,0,0,0,0]
[{"$f":"'Rate Trajectory Dashboard'!B93","v":"Available"},{"$f":"'Rate Trajectory Dashboard'!H93","v":0},{"$f":"'Rate Trajectory Dashboard'!I93","v":0},{"$f":"'Rate Trajectory Dashboard'!K93","v":0},99,{"$f":"'Rate Trajectory Dashboard'!J93","v":"00:00:00"},"1908-03-30",0,0,0,0,0,0,0,0,0,0,0,0,0,0,0,{"$f":"IF(W$6=$F88,$B88,IF(EOMONTH(W$6,-1)=$G88,-$B88,0))","v":0},0,0,0,0,0,0,0,0,0,0,0,0,0,0,0,0,0,0,0,0,0,0,0,0,0,0,0,0,0,0,0,0,0,0,0,0,0,0,0,0,0,0,0,0,0,0,0,0,0,0,0,0,0,0,0,0,0,0,0,0,0,0,0,0,0,0,0,0,0,0,0,0]
[{"$f":"'Rate Trajectory Dashboard'!B94","v":"Available"},{"$f":"'Rate Trajectory Dashboard'!H94","v":0},{"$f":"'Rate Trajectory Dashboard'!I94","v":0},{"$f":"'Rate Trajectory Dashboard'!K94","v":0},99,{"$f":"'Rate Trajectory Dashboard'!J94","v":"00:00:00"},"1908-03-30",{"$f":"IF(H$6=$F89,$B89,IF(EOMONTH(H$6,-1)=$G89,-$B89,0))","v":0},0,0,0,0,0,0,0,0,0,0,0,0,0,0,0,0,0,0,0,0,0,0,0,0,0,0,0,0,0,0,0,0,0,0,0,0,0,0,0,0,0,0,0,0,0,0,0,0,0,0,0,0,0,0,0,0,0,0,0,0,0,0,0,0,0,0,0,0,0,0,0,0,0,0,0,0,0,0,0,0,0,0,0,0,0,0,0]
[{"$f":"'Rate Trajectory Dashboard'!B95","v":"Available"},{"$f":"'Rate Trajectory Dashboard'!H95","v":0},{"$f":"'Rate Trajectory Dashboard'!I95","v":0},{"$f":"'Rate Trajectory Dashboard'!K95","v":0},99,{"$f":"'Rate Trajectory Dashboard'!J95","v":"00:00:00"},"1908-03-30",0,0,0,0,0,0,0,0,0,0,0,0,0,0,0,0,0,0,0,0,0,0,0,0,0,0,0,0,0,0,0,0,0,0,0,0,0,0,0,0,0,0,0,0,0,0,0,0,0,0,0,0,0,0,0,0,0,0,0,0,0,0,0,0,0,0,0,0,0,0,0,0,0,0,0,0,0,0,0,0,0,0,0,0,0,0,0,0]
[{"$f":"'Rate Trajectory Dashboard'!B96","v":"Available"},{"$f":"'Rate Trajectory Dashboard'!H96","v":0},{"$f":"'Rate Trajectory Dashboard'!I96","v":0},{"$f":"'Rate Trajectory Dashboard'!K96","v":0},99,{"$f":"'Rate Trajectory Dashboard'!J96","v":"00:00:00"},"1908-03-30",0,0,0,0,0,0,0,0,0,0,0,0,0,0,0,0,0,0,0,0,0,0,0,0,0,0,0,0,0,0,0,0,0,0,0,0,0,0,0,0,0,0,0,0,0,0,0,0,0,0,0,0,0,0,0,0,0,0,0,0,0,0,0,0,0,0,0,0,0,0,0,0,0,0,0,0,0,0,0,0,0,0,0,0,0,0,0,0]
[null,null,null,null,null,null,null,"","","","","","","","","","","","","","","","","","","","","","","","","","","","","","","","","","","","","","","","","","","","","","","","","","","","","","","","","","","","","","","","","","","","","","","","","","","","","","","","","","","","","","","",""]
["Total",{"$f":"SUM(B7:B92)","v":3392001.1363597256},null,null,null,null,null,{"$f":"SUM(H7:H92)","v":0},{"$f":"SUM(I7:I92)","v":0},{"$f":"SUM(J7:J92)","v":0},0,556976.42577235622,0,0,{"$f":"SUM(O7:O92)","v":0},0,0,0,0,0,0,0,0,121028.12246216807,0,0,0,0,0,0,0,0,0,0,0,271287.92885134794,0,0,0,{"$f":"SUM(AN7:AN92)","v":0},0,0,0,0,0,0,0,258435.20818110136,0,0,0,0,0,0,0,0,0,0,0,0,0,0,0,0,0,0,0,0,0,0,0,{"$f":"SUM(BT7:BT92)","v":0},0,0,0,0,0,0,0,0,0,0,0,0,0,0,0,0,0,0,0,0,0,0,0]
[]
[null,null,null,null,null,null,null,null,null,null,null,null,null,null,null,null,null,null,null,null,null,null,null,null,null,null,null,null,null,null,null,null,null,null,null,null,null,null,null,null,null,null,null,null,null,null,null,null,null,null,null,null,null,null,null,null,null,null,null,null,null,null,null,null,null,null,null,null,null,null,null,null,null,null,null,null,null,null,null,null,null,null,null,null,null,null,null,null,null,null,null,null,null,null,null,null,"Lookup Key"]
[null,null,null,null,null,"ALLOCATIONS","Lookup Key",1,2,3,4,5,6,7,8,9,10,11,12,13,14,15,16,17,18,19,20,21,22,23,24,25,26,27,28,29,30,31,32,33,34,35,36,37,38,39,40,41,42,43,44,45,46,47,48,49,50,51,52,53,54,55,56,57,58,59,60,61,62,63,64,65,66,67,68,69,70,71,72,73,74,75,76,77,78,79,80,81,82,83,84,85,86,87,88,null,1]
[null,null,null,null,null,null,null,{"$f":"H6","v":"2025-09-01"},"2025-10-01","2025-11-01","2025-12-01","2026-01-01","2026-02-01","2026-03-01","2026-04-01","2026-05-01","2026-06-01","2026-07-01","2026-08-01","2026-09-01","2026-10-01","2026-11-01","2026-12-01","2027-01-01","2027-02-01","2027-03-01","2027-04-01","2027-05-01","2027-06-01","2027-07-01","2027-08-01","2027-09-01","2027-10-01","2027-11-01","2027-12-01","2028-01-01","2028-02-01","2028-03-01","2028-04-01",{"$f":"AN6","v":"2028-05-01"},"2028-06-01","2028-07-01","2028-08-01","2028-09-01","2028-10-01","2028-11-01","2028-12-01","2029-01-01","2029-02-01","2029-03-01","2029-04-01","2029-05-01","2029-06-01","2029-07-01","2029-08-01","2029-09-01","2029-10-01","2029-11-01","2029-12-01","2030-01-01","2030-02-01","2030-03-01","2030-04-01","2030-05-01","2030-06-01","2030-07-01","2030-08-01","2030-09-01","2030-10-01","2030-11-01","2030-12-01",{"$f":"BT6","v":"2031-01-01"},"2031-02-01","2031-03-01","2031-04-01","2031-05-01","2031-06-01","2031-07-01","2031-08-01","2031-09-01","2031-10-01","2031-11-01","2031-12-01","2032-01-01","2032-02-01","2032-03-01","2032-04-01","2032-05-01","2032-06-01","2032-07-01","2032-08-01","2032-09-01","2032-10-01","2032-11-01","2032-12-01",null,2]
[null,null,null,null,null,{"$f":"'RRQ Allocations'!B5","v":"100% Residential"},null,{"$f":"SUMIF($C$7:$C$92,$F98,H$7:H$92)+G98","v":0},{"$f":"SUMIF($C$7:$C$92,$F98,I$7:I$92)+H98","v":0},0,0,0,0,0,0,0,0,0,0,0,0,0,0,0,0,0,0,0,0,0,0,0,0,0,0,0,0,0,0,0,0,0,0,0,0,0,0,0,0,0,0,0,0,0,0,0,0,0,0,0,0,0,0,0,0,0,0,0,0,0,0,0,{"$f":"SUMIF($C$7:$C$92,$F98,BU$7:BU$92)+BT98","v":0},0,0,0,0,0,0,0,0,0,0,0,0,0,0,0,0,0,0,0,0,0,0,null,3]
[null,null,null,null,null,{"$f":"'RRQ Allocations'!B6","v":"Core - Distribution"},null,0,{"$f":"SUMIF($C$7:$C$92,$F99,I$7:I$92)+H99","v":0},0,0,0,0,0,0,0,0,0,0,0,0,0,0,41605.250601505963,41605.250601505963,41605.250601505963,41605.250601505963,41605.250601505963,41605.250601505963,41605.250601505963,41605.250601505963,41605.250601505963,41605.250601505963,41605.250601505963,41605.250601505963,41605.250601505963,41605.250601505963,41605.250601505963,41605.250601505963,41605.250601505963,41605.250601505963,41605.250601505963,41605.250601505963,41605.250601505963,41605.250601505963,41605.250601505963,41605.250601505963,41605.250601505963,41605.250601505963,41605.250601505963,41605.250601505963,41605.250601505963,41605.250601505963,41605.250601505963,41605.250601505963,41605.250601505963,41605.250601505963,41605.250601505963,41605.250601505963,41605.250601505963,41605.250601505963,41605.250601505963,41605.250601505963,41605.250601505963,41605.250601505963,41605.250601505963,41605.250601505963,41605.250601505963,41605.250601505963,41605.250601505963,41605.250601505963,41605.250601505963,41605.250601505963,41605.250601505963,41605.250601505963,41605.250601505963,41605.250601505963,41605.250601505963,41605.250601505963,41605.250601505963,41605.250601505963,41605.250601505963,41605.250601505963,41605.250601505963,41605.250601505963,41605.250601505963,41605.250601505963,41605.250601505963,41605.250601505963,41605.250601505963,41605.250601505963,41605.250601505963,41605.250601505963,41605.250601505963,41605.250601505963,null,4]
[null,null,null,null,null,{"$f":"'RRQ Allocations'!B7","v":"Distribution"},null,0,{"$f":"SUMIF($C$7:$C$92,$F100,I$7:I$92)+H100","v":0},0,0,356386.14064860006,356386.14064860006,356386.14064860006,356386.14064860006,356386.14064860006,356386.14064860006,356386.14064860006,356386.14064860006,356386.14064860006,356386.14064860006,356386.14064860006,356386.14064860006,371779.37903729395,371779.37903729395,371779.37903729395,371779.37903729395,371779.37903729395,371779.37903729395,371779.37903729395,371779.37903729395,371779.37903729395,371779.37903729395,371779.37903729395,371779.37903729395,529515.89148455404,529515.89148455404,529515.89148455404,529515.89148455404,529515.89148455404,529515.89148455404,529515.89148455404,529515.89148455404,529515.89148455404,529515.89148455404,529515.89148455404,529515.89148455404,695306.64434308419,695306.64434308419,695306.64434308419,695306.64434308419,695306.64434308419,695306.64434308419,695306.64434308419,695306.64434308419,695306.64434308419,695306.64434308419,695306.64434308419,695306.64434308419,695306.64434308419,695306.64434308419,695306.64434308419,695306.64434308419,695306.64434308419,695306.64434308419,695306.64434308419,695306.64434308419,695306.64434308419,695306.64434308419,695306.64434308419,695306.64434308419,695306.64434308419,695306.64434308419,695306.64434308419,695306.64434308419,695306.64434308419,695306.64434308419,695306.64434308419,695306.64434308419,695306.64434308419,695306.64434308419,695306.64434308419,695306.64434308419,695306.64434308419,695306.64434308419,695306.64434308419,695306.64434308419,695306.64434308419,695306.64434308419,695306.64434308419,695306.64434308419,695306.64434308419,695306.64434308419,695306.64434308419,695306.64434308419,null,5]
[null,null,null,null,null,{"$f":"'RRQ Allocations'!B8","v":"ECPT - ALL"},null,0,0,0,0,116359.52484262743,116359.52484262743,116359.52484262743,116359.52484262743,116359.52484262743,116359.52484262743,116359.52484262743,116359.52484262743,116359.52484262743,116359.52484262743,116359.52484262743,116359.52484262743,-31354.805044872483,-31354.805044872483,-31354.805044872483,-31354.805044872483,-31354.805044872483,-31354.805044872483,-31354.805044872483,-31354.805044872483,-31354.805044872483,-31354.805044872483,-31354.805044872483,-31354.805044872483,-12907.020706493349,-12907.020706493349,-12907.020706493349,-12907.020706493349,-12907.020706493349,-12907.020706493349,-12907.020706493349,-12907.020706493349,-12907.020706493349,-12907.020706493349,-12907.020706493349,-12907.020706493349,-777.55203460859047,-777.55203460859047,-777.55203460859047,-777.55203460859047,-777.55203460859047,-777.55203460859047,-777.55203460859047,-777.55203460859047,-777.55203460859047,-777.55203460859047,-777.55203460859047,-777.55203460859047,-777.55203460859047,-777.55203460859047,-777.55203460859047,-777.55203460859047,-777.55203460859047,-777.55203460859047,-777.55203460859047,-777.55203460859047,-777.55203460859047,-777.55203460859047,-777.55203460859047,-777.55203460859047,-777.55203460859047,-777.55203460859047,-777.55203460859047,-777.55203460859047,-777.55203460859047,-777.55203460859047,-777.55203460859047,-777.55203460859047,-777.55203460859047,-777.55203460859047,-777.55203460859047,-777.55203460859047,-777.55203460859047,-777.55203460859047,-777.55203460859047,-777.55203460859047,-777.55203460859047,-777.55203460859047,-777.55203460859047,-777.55203460859047,-777.55203460859047,-777.55203460859047,-777.55203460859047,-777.55203460859047,null,6]
[null,null,null,null,null,{"$f":"'RRQ Allocations'!B9","v":"ECPT - Core only"},null,0,0,0,0,0,0,0,0,0,0,0,0,0,0,0,0,165311.3794186404,165311.3794186404,165311.3794186404,165311.3794186404,165311.3794186404,165311.3794186404,165311.3794186404,165311.3794186404,165311.3794186404,165311.3794186404,165311.3794186404,165311.3794186404,198314.01265905635,198314.01265905635,198314.01265905635,198314.01265905635,198314.01265905635,198314.01265905635,198314.01265905635,198314.01265905635,198314.01265905635,198314.01265905635,198314.01265905635,198314.01265905635,236327.54166755592,236327.54166755592,236327.54166755592,236327.54166755592,236327.54166755592,236327.54166755592,236327.54166755592,236327.54166755592,236327.54166755592,236327.54166755592,236327.54166755592,236327.54166755592,236327.54166755592,236327.54166755592,236327.54166755592,236327.54166755592,236327.54166755592,236327.54166755592,236327.54166755592,236327.54166755592,236327.54166755592,236327.54166755592,236327.54166755592,236327.54166755592,236327.54166755592,236327.54166755592,236327.54166755592,236327.54166755592,236327.54166755592,236327.54166755592,236327.54166755592,236327.54166755592,236327.54166755592,236327.54166755592,236327.54166755592,236327.54166755592,236327.54166755592,236327.54166755592,236327.54166755592,236327.54166755592,236327.54166755592,236327.54166755592,236327.54166755592,236327.54166755592,236327.54166755592,236327.54166755592,236327.54166755592,236327.54166755592,null,7]
[null,null,null,null,null,{"$f":"'RRQ Allocations'!B10","v":"ECPT - Noncore only"},null,0,0,0,0,0,0,0,0,0,0,0,0,0,0,0,0,97234.410341117269,97234.410341117269,97234.410341117269,97234.410341117269,97234.410341117269,97234.410341117269,97234.410341117269,97234.410341117269,97234.410341117269,97234.410341117269,97234.410341117269,97234.410341117269,114617.64244510196,114617.64244510196,114617.64244510196,114617.64244510196,114617.64244510196,114617.64244510196,114617.64244510196,114617.64244510196,114617.64244510196,114617.64244510196,114617.64244510196,114617.64244510196,134640.21489550298,134640.21489550298,134640.21489550298,134640.21489550298,134640.21489550298,134640.21489550298,134640.21489550298,134640.21489550298,134640.21489550298,134640.21489550298,134640.21489550298,134640.21489550298,134640.21489550298,134640.21489550298,134640.21489550298,134640.21489550298,134640.21489550298,134640.21489550298,134640.21489550298,134640.21489550298,134640.21489550298,134640.21489550298,134640.21489550298,134640.21489550298,{"$f":"SUMIF($C$7:$C$92,$F103,BT$7:BT$92)+BS103","v":134640.21489550298},134640.21489550298,134640.21489550298,134640.21489550298,134640.21489550298,134640.21489550298,134640.21489550298,134640.21489550298,134640.21489550298,134640.21489550298,134640.21489550298,134640.21489550298,134640.21489550298,134640.21489550298,134640.21489550298,134640.21489550298,134640.21489550298,134640.21489550298,134640.21489550298,134640.21489550298,134640.21489550298,134640.21489550298,134640.21489550298,134640.21489550298,null,8]
[null,null,null,null,null,{"$f":"'RRQ Allocations'!B11","v":"ECPT - 50% Core / 50% Noncore"},null,0,{"$f":"SUMIF($C$7:$C$92,$F104,I$7:I$92)+H104","v":0},0,0,84230.760281128707,84230.760281128707,84230.760281128707,84230.760281128707,84230.760281128707,84230.760281128707,84230.760281128707,84230.760281128707,84230.760281128707,84230.760281128707,84230.760281128707,84230.760281128707,84230.760281128707,84230.760281128707,84230.760281128707,84230.760281128707,84230.760281128707,84230.760281128707,84230.760281128707,84230.760281128707,84230.760281128707,84230.760281128707,84230.760281128707,84230.760281128707,84230.760281128707,84230.760281128707,84230.760281128707,84230.760281128707,84230.760281128707,84230.760281128707,84230.760281128707,84230.760281128707,84230.760281128707,84230.760281128707,84230.760281128707,84230.760281128707,84230.760281128707,84230.760281128707,84230.760281128707,84230.760281128707,84230.760281128707,84230.760281128707,84230.760281128707,84230.760281128707,84230.760281128707,84230.760281128707,84230.760281128707,84230.760281128707,84230.760281128707,84230.760281128707,84230.760281128707,84230.760281128707,84230.760281128707,84230.760281128707,84230.760281128707,84230.760281128707,84230.760281128707,84230.760281128707,84230.760281128707,84230.760281128707,84230.760281128707,84230.760281128707,84230.760281128707,84230.760281128707,84230.760281128707,84230.760281128707,84230.760281128707,84230.760281128707,84230.760281128707,84230.760281128707,84230.760281128707,84230.760281128707,84230.760281128707,84230.760281128707,84230.760281128707,84230.760281128707,84230.760281128707,84230.760281128707,84230.760281128707,84230.760281128707,84230.760281128707,84230.760281128707,84230.760281128707,84230.760281128707,null,9]
[null,null,null,null,null,{"$f":"'RRQ Allocations'!B12","v":"ECPT (excludes Covered Entities 3 yr avg vol)"},null,0,0,0,0,0,0,0,0,0,0,0,0,0,0,0,0,0,0,0,0,0,0,0,0,0,0,0,0,0,0,0,0,0,0,0,0,0,0,0,0,0,0,0,0,0,0,0,0,0,0,0,0,0,0,0,0,0,0,0,0,0,0,0,0,0,0,0,0,0,0,0,0,0,0,0,0,0,0,0,0,0,0,0,0,0,0,0,0,null,10]
[null,null,null,null,null,{"$f":"'RRQ Allocations'!B13","v":"EE"},null,0,0,0,0,0,0,0,0,0,0,0,0,0,0,0,0,0,0,0,0,0,0,0,0,0,0,0,0,0,0,0,0,0,0,0,0,0,0,0,0,0,0,0,0,0,0,0,0,0,0,0,0,0,0,0,0,0,0,0,0,0,0,0,0,0,0,0,0,0,0,0,0,0,0,0,0,0,0,0,0,0,0,0,0,0,0,0,0,null,11]
[null,null,null,null,null,{"$f":"'RRQ Allocations'!B14","v":"ESA"},null,0,0,0,0,0,0,0,0,0,0,0,0,0,0,0,0,-19859.534950000008,-19859.534950000008,-19859.534950000008,-19859.534950000008,-19859.534950000008,-19859.534950000008,-19859.534950000008,-19859.534950000008,-19859.534950000008,-19859.534950000008,-19859.534950000008,-19859.534950000008,0,0,0,0,0,0,0,0,0,0,0,0,0,0,0,0,0,0,0,0,0,0,0,0,0,0,0,0,0,0,0,0,0,0,0,0,{"$f":"SUMIF($C$7:$C$92,$F107,BT$7:BT$92)+BS107","v":0},0,0,0,0,0,0,0,0,0,0,0,0,0,0,0,0,0,0,0,0,0,0,0,null,12]
[null,null,null,null,null,{"$f":"'RRQ Allocations'!B15","v":"PPP ECPT"},null,0,{"$f":"SUMIF($C$7:$C$92,$F108,I$7:I$92)+H108","v":0},0,0,0,0,0,0,0,0,0,0,0,0,0,0,-829.82000000000016,-829.82000000000016,-829.82000000000016,-829.82000000000016,-829.82000000000016,-829.82000000000016,-829.82000000000016,-829.82000000000016,-829.82000000000016,-829.82000000000016,-829.82000000000016,-829.82000000000016,0,0,0,0,0,0,0,0,0,0,0,0,0,0,0,0,0,0,0,0,0,0,0,0,0,0,0,0,0,0,0,0,0,0,0,0,0,0,0,0,0,0,0,0,0,0,0,0,0,0,0,0,0,0,0,0,0,0,0,0,null,13]
[null,null,null,null,null,{"$f":"'RRQ Allocations'!B16","v":"SGIP allocation"},null,0,0,0,0,0,0,0,0,0,0,0,0,0,0,0,0,0,0,0,0,0,0,0,0,0,0,0,0,0,0,0,0,0,0,0,0,0,0,0,0,0,0,0,0,0,0,0,0,0,0,0,0,0,0,0,0,0,0,0,0,0,0,0,0,0,0,0,0,0,0,0,0,0,0,0,0,0,0,0,0,0,0,0,0,0,0,0,0,null,14]
[null,null,null,null,null,{"$f":"'RRQ Allocations'!B17","v":"CPUC Fee Allocation"},null,0,0,0,0,0,0,0,0,0,0,0,0,0,0,0,0,0,0,0,0,0,0,0,0,0,0,0,0,0,0,0,0,0,0,0,0,0,0,0,0,0,0,0,0,0,0,0,0,0,0,0,0,0,0,0,0,0,0,0,0,0,0,0,0,0,0,0,0,0,0,0,0,0,0,0,0,0,0,0,0,0,0,0,0,0,0,0,0,null,15]
[null,null,null,null,null,{"$f":"'RRQ Allocations'!B18","v":"CAC Allocation"},null,0,0,0,0,0,0,0,0,0,0,0,0,0,0,0,0,-1507.3696770717852,-1507.3696770717852,-1507.3696770717852,-1507.3696770717852,-1507.3696770717852,-1507.3696770717852,-1507.3696770717852,-1507.3696770717852,-1507.3696770717852,-1507.3696770717852,-1507.3696770717852,-1507.3696770717852,-745.95433239186877,-745.95433239186877,-745.95433239186877,-745.95433239186877,-745.95433239186877,-745.95433239186877,-745.95433239186877,-745.95433239186877,-745.95433239186877,-745.95433239186877,-745.95433239186877,-745.95433239186877,18.809476793810063,18.809476793810063,18.809476793810063,18.809476793810063,18.809476793810063,18.809476793810063,18.809476793810063,18.809476793810063,18.809476793810063,18.809476793810063,18.809476793810063,18.809476793810063,18.809476793810063,18.809476793810063,18.809476793810063,18.809476793810063,18.809476793810063,18.809476793810063,18.809476793810063,18.809476793810063,18.809476793810063,18.809476793810063,18.809476793810063,18.809476793810063,{"$f":"SUMIF($C$7:$C$92,$F111,BT$7:BT$92)+BS111","v":18.809476793810063},18.809476793810063,18.809476793810063,18.809476793810063,18.809476793810063,18.809476793810063,18.809476793810063,18.809476793810063,18.809476793810063,18.809476793810063,18.809476793810063,18.809476793810063,18.809476793810063,18.809476793810063,18.809476793810063,18.809476793810063,18.809476793810063,18.809476793810063,18.809476793810063,18.809476793810063,18.809476793810063,18.809476793810063,18.809476793810063,18.809476793810063,null,16]
[null,null,null,null,null,{"$f":"'RRQ Allocations'!B19","v":"Storage Allocation  (Procurement)"},null,0,{"$f":"SUMIF($C$7:$C$92,$F112,I$7:I$92)+H112","v":0},0,0,0,0,0,0,0,0,0,0,0,0,0,0,-27.308752644137712,-27.308752644137712,-27.308752644137712,-27.308752644137712,-27.308752644137712,-27.308752644137712,-27.308752644137712,-27.308752644137712,-27.308752644137712,-27.308752644137712,-27.308752644137712,-27.308752644137712,2756.3019398794568,2756.3019398794568,2756.3019398794568,2756.3019398794568,2756.3019398794568,2756.3019398794568,2756.3019398794568,2756.3019398794568,2756.3019398794568,2756.3019398794568,2756.3019398794568,2756.3019398794568,5264.9738056559581,5264.9738056559581,5264.9738056559581,5264.9738056559581,5264.9738056559581,5264.9738056559581,5264.9738056559581,5264.9738056559581,5264.9738056559581,5264.9738056559581,5264.9738056559581,5264.9738056559581,5264.9738056559581,5264.9738056559581,5264.9738056559581,5264.9738056559581,5264.9738056559581,5264.9738056559581,5264.9738056559581,5264.9738056559581,5264.9738056559581,5264.9738056559581,5264.9738056559581,5264.9738056559581,5264.9738056559581,5264.9738056559581,5264.9738056559581,5264.9738056559581,5264.9738056559581,5264.9738056559581,5264.9738056559581,5264.9738056559581,5264.9738056559581,5264.9738056559581,5264.9738056559581,5264.9738056559581,5264.9738056559581,5264.9738056559581,5264.9738056559581,5264.9738056559581,5264.9738056559581,5264.9738056559581,5264.9738056559581,5264.9738056559581,5264.9738056559581,5264.9738056559581,5264.9738056559581,5264.9738056559581,null,17]
[null,null,null,null,null,{"$f":"'RRQ Allocations'!B20","v":"Capacity Allocation (Procurement)"},null,0,0,0,0,0,0,0,0,0,0,0,0,0,0,0,0,0,0,0,0,0,0,0,0,0,0,0,0,0,0,0,0,0,0,0,0,0,0,0,0,0,0,0,0,0,0,0,0,0,0,0,0,0,0,0,0,0,0,0,0,0,0,0,0,0,0,0,0,0,0,0,0,0,0,0,0,0,0,0,0,0,0,0,0,0,0,0,0,null,18]
[null,null,null,null,null,{"$f":"'RRQ Allocations'!B21","v":"ECPT - Core only  (Procurement)"},null,0,0,0,0,0,0,0,0,0,0,0,0,0,0,0,0,-29320.572936165961,-29320.572936165961,-29320.572936165961,-29320.572936165961,-29320.572936165961,-29320.572936165961,-29320.572936165961,-29320.572936165961,-29320.572936165961,-29320.572936165961,-29320.572936165961,-29320.572936165961,-20094.031988709467,-20094.031988709467,-20094.031988709467,-20094.031988709467,-20094.031988709467,-20094.031988709467,-20094.031988709467,-20094.031988709467,-20094.031988709467,-20094.031988709467,-20094.031988709467,-20094.031988709467,-11033.582234074071,-11033.582234074071,-11033.582234074071,-11033.582234074071,-11033.582234074071,-11033.582234074071,-11033.582234074071,-11033.582234074071,-11033.582234074071,-11033.582234074071,-11033.582234074071,-11033.582234074071,-11033.582234074071,-11033.582234074071,-11033.582234074071,-11033.582234074071,-11033.582234074071,-11033.582234074071,-11033.582234074071,-11033.582234074071,-11033.582234074071,-11033.582234074071,-11033.582234074071,-11033.582234074071,-11033.582234074071,-11033.582234074071,-11033.582234074071,-11033.582234074071,-11033.582234074071,-11033.582234074071,-11033.582234074071,-11033.582234074071,-11033.582234074071,-11033.582234074071,-11033.582234074071,-11033.582234074071,-11033.582234074071,-11033.582234074071,-11033.582234074071,-11033.582234074071,-11033.582234074071,-11033.582234074071,-11033.582234074071,-11033.582234074071,-11033.582234074071,-11033.582234074071,-11033.582234074071,-11033.582234074071,null,19]
[null,null,null,null,null,{"$f":"'RRQ Allocations'!B22","v":"2023 GTS - Inventory Management"},null,0,0,0,0,0,0,0,0,0,0,0,0,0,0,0,0,742.77991559234215,742.77991559234215,742.77991559234215,742.77991559234215,742.77991559234215,742.77991559234215,742.77991559234215,742.77991559234215,742.77991559234215,742.77991559234215,742.77991559234215,742.77991559234215,11999.624702240457,11999.624702240457,11999.624702240457,11999.624702240457,11999.624702240457,11999.624702240457,11999.624702240457,11999.624702240457,11999.624702240457,11999.624702240457,11999.624702240457,11999.624702240457,22144.624464428809,22144.624464428809,22144.624464428809,22144.624464428809,22144.624464428809,22144.624464428809,22144.624464428809,22144.624464428809,22144.624464428809,22144.624464428809,22144.624464428809,22144.624464428809,22144.624464428809,22144.624464428809,22144.624464428809,22144.624464428809,22144.624464428809,22144.624464428809,22144.624464428809,22144.624464428809,22144.624464428809,22144.624464428809,22144.624464428809,22144.624464428809,{"$f":"SUMIF($C$7:$C$92,$F115,BT$7:BT$92)+BS115","v":22144.624464428809},22144.624464428809,22144.624464428809,22144.624464428809,22144.624464428809,22144.624464428809,22144.624464428809,22144.624464428809,22144.624464428809,22144.624464428809,22144.624464428809,22144.624464428809,22144.624464428809,22144.624464428809,22144.624464428809,22144.624464428809,22144.624464428809,22144.624464428809,22144.624464428809,22144.624464428809,22144.624464428809,22144.624464428809,22144.624464428809,22144.624464428809,null,20]
[null,null,null,null,null,{"$f":"'RRQ Allocations'!B23","v":"User Defined 1"},null,0,{"$f":"SUMIF($C$7:$C$92,$F116,I$7:I$92)+H116","v":0},0,0,0,0,0,0,0,0,0,0,0,0,0,0,0,0,0,0,0,0,0,0,0,0,0,0,0,0,0,0,0,0,0,0,0,0,0,0,0,0,0,0,0,0,0,0,0,0,0,0,0,0,0,0,0,0,0,0,0,0,0,0,0,0,0,0,0,0,0,0,0,0,0,0,0,0,0,0,0,0,0,0,0,0,0,0,null,21]
[null,null,null,null,null,{"$f":"'RRQ Allocations'!B24","v":"User Defined 2"},null,0,0,0,0,0,0,0,0,0,0,0,0,0,0,0,0,0,0,0,0,0,0,0,0,0,0,0,0,0,0,0,0,0,0,0,0,0,0,0,0,0,0,0,0,0,0,0,0,0,0,0,0,0,0,0,0,0,0,0,0,0,0,0,0,0,0,0,0,0,0,0,0,0,0,0,0,0,0,0,0,0,0,0,0,0,0,0,0,null,22]
[null,null,null,null,null,{"$f":"'RRQ Allocations'!B25","v":"User Defined 3"},null,0,0,0,0,0,0,0,0,0,0,0,0,0,0,0,0,0,0,0,0,0,0,0,0,0,0,0,0,0,0,0,0,0,0,0,0,0,0,0,0,0,0,0,0,0,0,0,0,0,0,0,0,0,0,0,0,0,0,0,0,0,0,0,0,0,0,0,0,0,0,0,0,0,0,0,0,0,0,0,0,0,0,0,0,0,0,0,0,null,23]
[null,null,null,null,null,"Total",null,{"$f":"SUM(H98:H118)","v":0},{"$f":"SUM(I98:I118)","v":0},{"$f":"SUM(J98:J118)","v":0},{"$f":"SUM(K98:K118)","v":0},{"$f":"SUM(L98:L118)","v":556976.42577235622},{"$f":"SUM(M98:M118)","v":556976.42577235622},556976.42577235622,556976.42577235622,556976.42577235622,556976.42577235622,556976.42577235622,556976.42577235622,556976.42577235622,556976.42577235622,556976.42577235622,556976.42577235622,678004.54823452444,678004.54823452444,678004.54823452444,678004.54823452444,678004.54823452444,678004.54823452444,678004.54823452444,678004.54823452444,678004.54823452444,678004.54823452444,678004.54823452444,678004.54823452444,949292.4770858722,949292.4770858722,949292.4770858722,949292.4770858722,949292.4770858722,949292.4770858722,949292.4770858722,949292.4770858722,949292.4770858722,949292.4770858722,949292.4770858722,949292.4770858722,1207727.6852669737,1207727.6852669737,1207727.6852669737,1207727.6852669737,1207727.6852669737,1207727.6852669737,1207727.6852669737,1207727.6852669737,1207727.6852669737,1207727.6852669737,1207727.6852669737,1207727.6852669737,1207727.6852669737,1207727.6852669737,{"$f":"SUM(BJ98:BJ118)","v":1207727.6852669737},1207727.6852669737,1207727.6852669737,1207727.6852669737,1207727.6852669737,1207727.6852669737,1207727.6852669737,1207727.6852669737,1207727.6852669737,1207727.6852669737,1207727.6852669737,1207727.6852669737,1207727.6852669737,1207727.6852669737,1207727.6852669737,{"$f":"SUM(BY98:BY118)","v":1207727.6852669737},1207727.6852669737,1207727.6852669737,1207727.6852669737,1207727.6852669737,1207727.6852669737,1207727.6852669737,1207727.6852669737,1207727.6852669737,1207727.6852669737,1207727.6852669737,1207727.6852669737,1207727.6852669737,1207727.6852669737,1207727.6852669737,1207727.6852669737,1207727.6852669737,1207727.6852669737,1207727.6852669737,null,24]
[null,null,null,null,null,null,null,{"$f":"ABS(H119-SUM($G93:H93))<0.5","v":true},{"$f":"ABS(I119-SUM($G93:I93))<0.5","v":true},{"$f":"ABS(J119-SUM($G93:J93))<0.5","v":true},{"$f":"ABS(K119-SUM($G93:K93))<0.5","v":true},{"$f":"ABS(L119-SUM($G93:L93))<0.5","v":true},{"$f":"ABS(M119-SUM($G93:M93))<0.5","v":true},{"$f":"ABS(N119-SUM($G93:N93))<0.5","v":true},{"$f":"ABS(O119-SUM($G93:O93))<0.5","v":true},{"$f":"ABS(P119-SUM($G93:P93))<0.5","v":true},{"$f":"ABS(Q119-SUM($G93:Q93))<0.5","v":true},{"$f":"ABS(R119-SUM($G93:R93))<0.5","v":true},{"$f":"ABS(S119-SUM($G93:S93))<0.5","v":true},{"$f":"ABS(T119-SUM($G93:T93))<0.5","v":true},{"$f":"ABS(U119-SUM($G93:U93))<0.5","v":true},{"$f":"ABS(V119-SUM($G93:V93))<0.5","v":true},{"$f":"ABS(W119-SUM($G93:W93))<0.5","v":true},{"$f":"ABS(X119-SUM($G93:X93))<0.5","v":true},{"$f":"ABS(Y119-SUM($G93:Y93))<0.5","v":true},{"$f":"ABS(Z119-SUM($G93:Z93))<0.5","v":true},{"$f":"ABS(AA119-SUM($G93:AA93))<0.5","v":true},{"$f":"ABS(AB119-SUM($G93:AB93))<0.5","v":true},{"$f":"ABS(AC119-SUM($G93:AC93))<0.5","v":true},{"$f":"ABS(AD119-SUM($G93:AD93))<0.5","v":true},{"$f":"ABS(AE119-SUM($G93:AE93))<0.5","v":true},{"$f":"ABS(AF119-SUM($G93:AF93))<0.5","v":true},{"$f":"ABS(AG119-SUM($G93:AG93))<0.5","v":true},{"$f":"ABS(AH119-SUM($G93:AH93))<0.5","v":true},{"$f":"ABS(AI119-SUM($G93:AI93))<0.5","v":true},{"$f":"ABS(AJ119-SUM($G93:AJ93))<0.5","v":true},{"$f":"ABS(AK119-SUM($G93:AK93))<0.5","v":true},{"$f":"ABS(AL119-SUM($G93:AL93))<0.5","v":true},{"$f":"ABS(AM119-SUM($G93:AM93))<0.5","v":true},{"$f":"ABS(AN119-SUM($G93:AN93))<0.5","v":true},{"$f":"ABS(AO119-SUM($G93:AO93))<0.5","v":true},{"$f":"ABS(AP119-SUM($G93:AP93))<0.5","v":true},{"$f":"ABS(AQ119-SUM($G93:AQ93))<0.5","v":true},{"$f":"ABS(AR119-SUM($G93:AR93))<0.5","v":true},{"$f":"ABS(AS119-SUM($G93:AS93))<0.5","v":true},{"$f":"ABS(AT119-SUM($G93:AT93))<0.5","v":true},{"$f":"ABS(AU119-SUM($G93:AU93))<0.5","v":true},{"$f":"ABS(AV119-SUM($G93:AV93))<0.5","v":true},{"$f":"ABS(AW119-SUM($G93:AW93))<0.5","v":true},{"$f":"ABS(AX119-SUM($G93:AX93))<0.5","v":true},{"$f":"ABS(AY119-SUM($G93:AY93))<0.5","v":true},{"$f":"ABS(AZ119-SUM($G93:AZ93))<0.5","v":true},{"$f":"ABS(BA119-SUM($G93:BA93))<0.5","v":true},{"$f":"ABS(BB119-SUM($G93:BB93))<0.5","v":true},{"$f":"ABS(BC119-SUM($G93:BC93))<0.5","v":true},{"$f":"ABS(BD119-SUM($G93:BD93))<0.5","v":true},{"$f":"ABS(BE119-SUM($G93:BE93))<0.5","v":true},{"$f":"ABS(BF119-SUM($G93:BF93))<0.5","v":true},{"$f":"ABS(BG119-SUM($G93:BG93))<0.5","v":true},{"$f":"ABS(BH119-SUM($G93:BH93))<0.5","v":true},{"$f":"ABS(BI119-SUM($G93:BI93))<0.5","v":true},{"$f":"ABS(BJ119-SUM($G93:BJ93))<0.5","v":true},{"$f":"ABS(BK119-SUM($G93:BK93))<0.5","v":true},{"$f":"ABS(BL119-SUM($G93:BL93))<0.5","v":true},{"$f":"ABS(BM119-SUM($G93:BM93))<0.5","v":true},{"$f":"ABS(BN119-SUM($G93:BN93))<0.5","v":true},{"$f":"ABS(BO119-SUM($G93:BO93))<0.5","v":true},{"$f":"ABS(BP119-SUM($G93:BP93))<0.5","v":true},{"$f":"ABS(BQ119-SUM($G93:BQ93))<0.5","v":true},{"$f":"ABS(BR119-SUM($G93:BR93))<0.5","v":true},{"$f":"ABS(BS119-SUM($G93:BS93))<0.5","v":true},{"$f":"ABS(BT119-SUM($G93:BT93))<0.5","v":true},{"$f":"ABS(BU119-SUM($G93:BU93))<0.5","v":true},{"$f":"ABS(BV119-SUM($G93:BV93))<0.5","v":true},{"$f":"ABS(BW119-SUM($G93:BW93))<0.5","v":true},{"$f":"ABS(BX119-SUM($G93:BX93))<0.5","v":true},{"$f":"ABS(BY119-SUM($G93:BY93))<0.5","v":true},{"$f":"ABS(BZ119-SUM($G93:BZ93))<0.5","v":true},{"$f":"ABS(CA119-SUM($G93:CA93))<0.5","v":true},{"$f":"ABS(CB119-SUM($G93:CB93))<0.5","v":true},{"$f":"ABS(CC119-SUM($G93:CC93))<0.5","v":true},{"$f":"ABS(CD119-SUM($G93:CD93))<0.5","v":true},{"$f":"ABS(CE119-SUM($G93:CE93))<0.5","v":true},{"$f":"ABS(CF119-SUM($G93:CF93))<0.5","v":true},{"$f":"ABS(CG119-SUM($G93:CG93))<0.5","v":true},{"$f":"ABS(CH119-SUM($G93:CH93))<0.5","v":true},{"$f":"ABS(CI119-SUM($G93:CI93))<0.5","v":true},{"$f":"ABS(CJ119-SUM($G93:CJ93))<0.5","v":true},{"$f":"ABS(CK119-SUM($G93:CK93))<0.5","v":true},{"$f":"ABS(CL119-SUM($G93:CL93))<0.5","v":true},{"$f":"ABS(CM119-SUM($G93:CM93))<0.5","v":true},{"$f":"ABS(CN119-SUM($G93:CN93))<0.5","v":true},{"$f":"ABS(CO119-SUM($G93:CO93))<0.5","v":true},{"$f":"ABS(CP119-SUM($G93:CP93))<0.5","v":true},{"$f":"ABS(CQ119-SUM($G93:CQ93))<0.5","v":true},null,25]
[]
[]
[null,"Lookup Keys",null,null,"BUNDLED AVERAGE RATES - $ / THERM",null,"Linked",{"$f":"H6","v":"2025-09-01"},"2025-10-01","2025-11-01","2025-12-01","2026-01-01","2026-02-01","2026-03-01","2026-04-01","2026-05-01","2026-06-01","2026-07-01","2026-08-01","2026-09-01","2026-10-01","2026-11-01","2026-12-01","2027-01-01","2027-02-01","2027-03-01","2027-04-01","2027-05-01","2027-06-01","2027-07-01","2027-08-01","2027-09-01","2027-10-01","2027-11-01","2027-12-01","2028-01-01","2028-02-01","2028-03-01","2028-04-01",{"$f":"AN6","v":"2028-05-01"},"2028-06-01","2028-07-01","2028-08-01","2028-09-01","2028-10-01","2028-11-01","2028-12-01","2029-01-01","2029-02-01","2029-03-01","2029-04-01","2029-05-01","2029-06-01","2029-07-01","2029-08-01","2029-09-01","2029-10-01","2029-11-01","2029-12-01","2030-01-01","2030-02-01","2030-03-01","2030-04-01","2030-05-01","2030-06-01","2030-07-01","2030-08-01","2030-09-01","2030-10-01","2030-11-01","2030-12-01",{"$f":"BT6","v":"2031-01-01"},"2031-02-01","2031-03-01","2031-04-01","2031-05-01","2031-06-01","2031-07-01","2031-08-01","2031-09-01","2031-10-01","2031-11-01","2031-12-01","2032-01-01","2032-02-01","2032-03-01","2032-04-01","2032-05-01","2032-06-01","2032-07-01","2032-08-01","2032-09-01","2032-10-01","2032-11-01","2032-12-01"]
[null,{"$f":"CONCATENATE(\"Bundled\",E124)","v":"BundledResidential"},null,null,"Residential",null,{"$f":"'Hypothetical SAR and RAR'!$I$38","v":3.2631022402511749},2.7301291016084663,2.7301291016084663,2.7301291016084663,2.7301291016084663,2.9277163464771543,2.9277163464771543,2.9277163464771543,2.9277163464771543,2.9277163464771543,2.9277163464771543,2.9277163464771543,2.9277163464771543,2.9277163464771543,2.9277163464771543,2.9277163464771543,2.9277163464771543,2.9689477113575919,2.9689477113575919,2.9689477113575919,2.9689477113575919,2.9689477113575919,2.9689477113575919,2.9689477113575919,2.9689477113575919,2.9689477113575919,2.9689477113575919,2.9689477113575919,2.9689477113575919,3.0770127681823971,3.0770127681823971,3.0770127681823971,3.0770127681823971,3.0770127681823971,3.0770127681823971,3.0770127681823971,3.0770127681823971,3.0770127681823971,3.0770127681823971,3.0770127681823971,3.0770127681823971,3.1771224134061931,3.1771224134061931,3.1771224134061931,3.1771224134061931,3.1771224134061931,3.1771224134061931,3.1771224134061931,3.1771224134061931,3.1771224134061931,3.1771224134061931,3.1771224134061931,3.1771224134061931,3.1771224134061931,3.1771224134061931,3.1771224134061931,3.1771224134061931,3.1771224134061931,3.1771224134061931,3.1771224134061931,3.1771224134061931,3.1771224134061931,3.1771224134061931,3.1771224134061931,3.1771224134061931,3.1771224134061931,3.1771224134061931,3.1771224134061931,3.1771224134061931,3.1771224134061931,3.1771224134061931,3.1771224134061931,3.1771224134061931,3.1771224134061931,3.1771224134061931,3.1771224134061931,3.1771224134061931,3.1771224134061931,3.1771224134061931,3.1771224134061931,3.1771224134061931,3.1771224134061931,3.1771224134061931,3.1771224134061931,3.1771224134061931,3.1771224134061931,3.1771224134061931,3.1771224134061931,3.1771224134061931]
[null,{"$f":"CONCATENATE(\"Bundled\",E125)","v":"BundledSystem"},null,null,"System",null,{"$f":"'Hypothetical SAR and RAR'!$I$39","v":2.8485473158881711},2.3576386581695323,2.3576386581695323,2.3576386581695323,2.3576386581695323,2.5375995654969712,2.5375995654969712,2.5375995654969712,2.5375995654969712,2.5375995654969712,2.5375995654969712,2.5375995654969712,2.5375995654969712,2.5375995654969712,2.5375995654969712,2.5375995654969712,2.5375995654969712,2.5790412455054539,2.5790412455054539,2.5790412455054539,2.5790412455054539,2.5790412455054539,2.5790412455054539,2.5790412455054539,2.5790412455054539,2.5790412455054539,2.5790412455054539,2.5790412455054539,2.5790412455054539,2.6762375051234679,2.6762375051234679,2.6762375051234679,2.6762375051234679,2.6762375051234679,2.6762375051234679,2.6762375051234679,2.6762375051234679,2.6762375051234679,2.6762375051234679,2.6762375051234679,2.6762375051234679,2.7682609159490679,2.7682609159490679,2.7682609159490679,2.7682609159490679,2.7682609159490679,2.7682609159490679,2.7682609159490679,2.7682609159490679,2.7682609159490679,2.7682609159490679,2.7682609159490679,2.7682609159490679,2.7682609159490679,2.7682609159490679,2.7682609159490679,2.7682609159490679,2.7682609159490679,2.7682609159490679,2.7682609159490679,2.7682609159490679,2.7682609159490679,2.7682609159490679,2.7682609159490679,2.7682609159490679,2.7682609159490679,2.7682609159490679,2.7682609159490679,2.7682609159490679,2.7682609159490679,2.7682609159490679,2.7682609159490679,2.7682609159490679,2.7682609159490679,2.7682609159490679,2.7682609159490679,2.7682609159490679,2.7682609159490679,2.7682609159490679,2.7682609159490679,2.7682609159490679,2.7682609159490679,2.7682609159490679,2.7682609159490679,2.7682609159490679,2.7682609159490679,2.7682609159490679,2.7682609159490679,2.7682609159490679]
[]
[null,null,null,null,"TOTAL SYSTEM (BUNDLED + UNBUNDLED) AVERAGE RATES - $ / THERM"]
[null,{"$f":"CONCATENATE(\"System\",E128)","v":"SystemResidential"},null,null,"Residential",null,{"$f":"'Hypothetical SAR and RAR'!$O$38","v":2.9925086304006498},2.4587344326295084,2.4587344326295084,2.4587344326295084,2.4587344326295084,2.6563241722769266,2.6563241722769266,2.6563241722769266,2.6563241722769266,2.6563241722769266,2.6563241722769266,2.6563241722769266,2.6563241722769266,2.6563241722769266,2.6563241722769266,2.6563241722769266,2.6563241722769266,2.699031598774785,2.699031598774785,2.699031598774785,2.699031598774785,2.699031598774785,2.699031598774785,2.699031598774785,2.699031598774785,2.699031598774785,2.699031598774785,2.699031598774785,2.699031598774785,2.8064832864455185,2.8064832864455185,2.8064832864455185,2.8064832864455185,2.8064832864455185,2.8064832864455185,2.8064832864455185,2.8064832864455185,2.8064832864455185,2.8064832864455185,2.8064832864455185,2.8064832864455185,2.9060027237695225,2.9060027237695225,2.9060027237695225,2.9060027237695225,2.9060027237695225,2.9060027237695225,2.9060027237695225,2.9060027237695225,2.9060027237695225,2.9060027237695225,2.9060027237695225,2.9060027237695225,2.9060027237695225,2.9060027237695225,2.9060027237695225,2.9060027237695225,2.9060027237695225,2.9060027237695225,2.9060027237695225,2.9060027237695225,2.9060027237695225,2.9060027237695225,2.9060027237695225,2.9060027237695225,2.9060027237695225,2.9060027237695225,2.9060027237695225,2.9060027237695225,2.9060027237695225,2.9060027237695225,2.9060027237695225,2.9060027237695225,2.9060027237695225,2.9060027237695225,2.9060027237695225,2.9060027237695225,2.9060027237695225,2.9060027237695225,2.9060027237695225,2.9060027237695225,2.9060027237695225,2.9060027237695225,2.9060027237695225,2.9060027237695225,2.9060027237695225,2.9060027237695225,2.9060027237695225,2.9060027237695225]
[null,{"$f":"CONCATENATE(\"System\",E129)","v":"SystemSystem"},null,null,"System",null,{"$f":"'Hypothetical SAR and RAR'!$O$39","v":1.2996138237157777},1.0606675509824723,1.0606675509824723,1.0606675509824723,1.0606675509824723,1.1517295052941849,1.1517295052941849,1.1517295052941849,1.1517295052941849,1.1517295052941849,1.1517295052941849,1.1517295052941849,1.1517295052941849,1.1517295052941849,1.1517295052941849,1.1517295052941849,1.1517295052941849,1.1715168012157304,1.1715168012157304,1.1715168012157304,1.1715168012157304,1.1715168012157304,1.1715168012157304,1.1715168012157304,1.1715168012157304,1.1715168012157304,1.1715168012157304,1.1715168012157304,1.1715168012157304,1.2158705796510092,1.2158705796510092,1.2158705796510092,1.2158705796510092,1.2158705796510092,1.2158705796510092,1.2158705796510092,1.2158705796510092,1.2158705796510092,1.2158705796510092,1.2158705796510092,1.2158705796510092,1.2581230234367429,1.2581230234367429,1.2581230234367429,1.2581230234367429,1.2581230234367429,1.2581230234367429,1.2581230234367429,1.2581230234367429,1.2581230234367429,1.2581230234367429,1.2581230234367429,1.2581230234367429,1.2581230234367429,1.2581230234367429,1.2581230234367429,1.2581230234367429,1.2581230234367429,1.2581230234367429,1.2581230234367429,1.2581230234367429,1.2581230234367429,1.2581230234367429,1.2581230234367429,1.2581230234367429,1.2581230234367429,1.2581230234367429,1.2581230234367429,1.2581230234367429,1.2581230234367429,1.2581230234367429,1.2581230234367429,1.2581230234367429,1.2581230234367429,1.2581230234367429,1.2581230234367429,1.2581230234367429,1.2581230234367429,1.2581230234367429,1.2581230234367429,1.2581230234367429,1.2581230234367429,1.2581230234367429,1.2581230234367429,1.2581230234367429,1.2581230234367429,1.2581230234367429,1.2581230234367429,1.2581230234367429]
[]
[]
[null,null,null,null,"\"ANNUAL AVERAGE\" ILLUSTRATIVE MONTHLY RESIDENTIAL BILL IMPACT"]
[null,{"$f":"CONCATENATE(D133,E133,F133)","v":"Non-CARESummerP"},null,"Non-CARE","Summer","P",{"$f":"'Hypothetical Res Bill Impact'!$I$37","v":58.395561545617412},48.831598006266873,48.831598006266873,48.831598006266873,48.831598006266873,52.371717242953181,52.371717242953181,52.371717242953181,52.371717242953181,52.371717242953181,52.371717242953181,52.371717242953181,52.371717242953181,52.371717242953181,52.371717242953181,52.371717242953181,52.371717242953181,53.121514335034291,53.121514335034291,53.121514335034291,53.121514335034291,53.121514335034291,53.121514335034291,53.121514335034291,53.121514335034291,53.121514335034291,53.121514335034291,53.121514335034291,53.121514335034291,55.046494675798357,55.046494675798357,55.046494675798357,55.046494675798357,55.046494675798357,55.046494675798357,55.046494675798357,55.046494675798357,55.046494675798357,55.046494675798357,55.046494675798357,55.046494675798357,56.840047756261072,56.840047756261072,56.840047756261072,56.840047756261072,56.840047756261072,56.840047756261072,56.840047756261072,56.840047756261072,56.840047756261072,56.840047756261072,56.840047756261072,56.840047756261072,56.840047756261072,56.840047756261072,56.840047756261072,56.840047756261072,56.840047756261072,56.840047756261072,56.840047756261072,56.840047756261072,56.840047756261072,56.840047756261072,56.840047756261072,56.840047756261072,56.840047756261072,56.840047756261072,56.840047756261072,56.840047756261072,56.840047756261072,56.840047756261072,56.840047756261072,56.840047756261072,56.840047756261072,56.840047756261072,56.840047756261072,56.840047756261072,56.840047756261072,56.840047756261072,56.840047756261072,56.840047756261072,56.840047756261072,56.840047756261072,56.840047756261072,56.840047756261072,56.840047756261072,56.840047756261072,56.840047756261072,56.840047756261072]
[null,{"$f":"CONCATENATE(D134,E134,F134)","v":"Non-CARESummerQ"},null,"Non-CARE","Summer","Q",{"$f":"'Hypothetical Res Bill Impact'!$I$38","v":0},0,0,0,0,0,0,0,0,0,0,0,0,0,0,0,0,0,0,0,0,0,0,0,0,0,0,0,0,0,0,0,0,0,0,0,0,0,0,0,0,0,0,0,0,0,0,0,0,0,0,0,0,0,0,0,0,0,0,0,0,0,0,0,0,0,0,0,0,0,0,0,0,0,0,0,0,0,0,0,0,0,0,0,0,0,0,0,0]
[null,"Non-CARESummerR",null,"Non-CARE","Summer","R",{"$f":"'Hypothetical Res Bill Impact'!$I$39","v":47.332684225922648},39.607437372404249,39.607437372404249,39.607437372404249,39.607437372404249,42.476326699239266,42.476326699239266,42.476326699239266,42.476326699239266,42.476326699239266,42.476326699239266,42.476326699239266,42.476326699239266,42.476326699239266,42.476326699239266,42.476326699239266,42.476326699239266,43.081528691788762,43.081528691788762,43.081528691788762,43.081528691788762,43.081528691788762,43.081528691788762,43.081528691788762,43.081528691788762,43.081528691788762,43.081528691788762,43.081528691788762,43.081528691788762,44.644726962577828,44.644726962577828,44.644726962577828,44.644726962577828,44.644726962577828,44.644726962577828,44.644726962577828,44.644726962577828,44.644726962577828,44.644726962577828,44.644726962577828,44.644726962577828,46.09873089672584,46.09873089672584,46.09873089672584,46.09873089672584,46.09873089672584,46.09873089672584,46.09873089672584,46.09873089672584,46.09873089672584,46.09873089672584,46.09873089672584,46.09873089672584,46.09873089672584,46.09873089672584,46.09873089672584,46.09873089672584,46.09873089672584,46.09873089672584,46.09873089672584,46.09873089672584,46.09873089672584,46.09873089672584,46.09873089672584,46.09873089672584,46.09873089672584,46.09873089672584,46.09873089672584,46.09873089672584,46.09873089672584,46.09873089672584,46.09873089672584,46.09873089672584,46.09873089672584,46.09873089672584,46.09873089672584,46.09873089672584,46.09873089672584,46.09873089672584,46.09873089672584,46.09873089672584,46.09873089672584,46.09873089672584,46.09873089672584,46.09873089672584,46.09873089672584,46.09873089672584,46.09873089672584,46.09873089672584]
[null,"Non-CARESummerS",null,"Non-CARE","Summer","S",{"$f":"'Hypothetical Res Bill Impact'!$I$40","v":50.629939399216092},42.36955343954439,42.36955343954439,42.36955343954439,42.36955343954439,45.438229986105206,45.438229986105206,45.438229986105206,45.438229986105206,45.438229986105206,45.438229986105206,45.438229986105206,45.438229986105206,45.438229986105206,45.438229986105206,45.438229986105206,45.438229986105206,46.085305332565412,46.085305332565412,46.085305332565412,46.085305332565412,46.085305332565412,46.085305332565412,46.085305332565412,46.085305332565412,46.085305332565412,46.085305332565412,46.085305332565412,46.085305332565412,47.757723257973943,47.757723257973943,47.757723257973943,47.757723257973943,47.757723257973943,47.757723257973943,47.757723257973943,47.757723257973943,47.757723257973943,47.757723257973943,47.757723257973943,47.757723257973943,49.313041263743173,49.313041263743173,49.313041263743173,49.313041263743173,49.313041263743173,49.313041263743173,49.313041263743173,49.313041263743173,49.313041263743173,49.313041263743173,49.313041263743173,49.313041263743173,49.313041263743173,49.313041263743173,49.313041263743173,49.313041263743173,49.313041263743173,49.313041263743173,49.313041263743173,49.313041263743173,49.313041263743173,49.313041263743173,49.313041263743173,49.313041263743173,49.313041263743173,49.313041263743173,49.313041263743173,49.313041263743173,49.313041263743173,49.313041263743173,49.313041263743173,49.313041263743173,49.313041263743173,49.313041263743173,49.313041263743173,49.313041263743173,49.313041263743173,49.313041263743173,49.313041263743173,49.313041263743173,49.313041263743173,49.313041263743173,49.313041263743173,49.313041263743173,49.313041263743173,49.313041263743173,49.313041263743173,49.313041263743173]
[null,"Non-CARESummerT",null,"Non-CARE","Summer","T",{"$f":"'Hypothetical Res Bill Impact'!$I$41","v":62.843033592544501},52.63650734773649,52.63650734773649,52.63650734773649,52.63650734773649,56.444442564305568,56.444442564305568,56.444442564305568,56.444442564305568,56.444442564305568,56.444442564305568,56.444442564305568,56.444442564305568,56.444442564305568,56.444442564305568,56.444442564305568,56.444442564305568,57.243198794909063,57.243198794909063,57.243198794909063,57.243198794909063,57.243198794909063,57.243198794909063,57.243198794909063,57.243198794909063,57.243198794909063,57.243198794909063,57.243198794909063,57.243198794909063,59.324059417031592,59.324059417031592,59.324059417031592,59.324059417031592,59.324059417031592,59.324059417031592,59.324059417031592,59.324059417031592,59.324059417031592,59.324059417031592,59.324059417031592,59.324059417031592,61.254961266409779,61.254961266409779,61.254961266409779,61.254961266409779,61.254961266409779,61.254961266409779,61.254961266409779,61.254961266409779,61.254961266409779,61.254961266409779,61.254961266409779,61.254961266409779,61.254961266409779,61.254961266409779,61.254961266409779,61.254961266409779,61.254961266409779,61.254961266409779,61.254961266409779,61.254961266409779,61.254961266409779,61.254961266409779,61.254961266409779,61.254961266409779,61.254961266409779,61.254961266409779,61.254961266409779,61.254961266409779,61.254961266409779,61.254961266409779,61.254961266409779,61.254961266409779,61.254961266409779,61.254961266409779,61.254961266409779,61.254961266409779,61.254961266409779,61.254961266409779,61.254961266409779,61.254961266409779,61.254961266409779,61.254961266409779,61.254961266409779,61.254961266409779,61.254961266409779,61.254961266409779,61.254961266409779,61.254961266409779]
[null,"Non-CARESummerV",null,"Non-CARE","Summer","V",{"$f":"'Hypothetical Res Bill Impact'!$I$42","v":70.023099839038608},58.629645698237887,58.629645698237887,58.629645698237887,58.629645698237887,62.873089479595492,62.873089479595492,62.873089479595492,62.873089479595492,62.873089479595492,62.873089479595492,62.873089479595492,62.873089479595492,62.873089479595492,62.873089479595492,62.873089479595492,62.873089479595492,63.765079936920159,63.765079936920159,63.765079936920159,63.765079936920159,63.765079936920159,63.765079936920159,63.765079936920159,63.765079936920159,63.765079936920159,63.765079936920159,63.765079936920159,63.765079936920159,66.081441421339917,66.081441421339917,66.081441421339917,66.081441421339917,66.081441421339917,66.081441421339917,66.081441421339917,66.081441421339917,66.081441421339917,66.081441421339917,66.081441421339917,66.081441421339917,68.232774879686048,68.232774879686048,68.232774879686048,68.232774879686048,68.232774879686048,68.232774879686048,68.232774879686048,68.232774879686048,68.232774879686048,68.232774879686048,68.232774879686048,68.232774879686048,68.232774879686048,68.232774879686048,68.232774879686048,68.232774879686048,68.232774879686048,68.232774879686048,68.232774879686048,68.232774879686048,68.232774879686048,68.232774879686048,68.232774879686048,68.232774879686048,68.232774879686048,68.232774879686048,68.232774879686048,68.232774879686048,68.232774879686048,68.232774879686048,68.232774879686048,68.232774879686048,68.232774879686048,68.232774879686048,68.232774879686048,68.232774879686048,68.232774879686048,68.232774879686048,68.232774879686048,68.232774879686048,68.232774879686048,68.232774879686048,68.232774879686048,68.232774879686048,68.232774879686048,68.232774879686048,68.232774879686048,68.232774879686048]
[null,"Non-CARESummerW",null,"Non-CARE","Summer","W",{"$f":"'Hypothetical Res Bill Impact'!$I$43","v":46.747128326015428},39.138531156183149,39.138531156183149,39.138531156183149,39.138531156183149,41.971486357681222,41.971486357681222,41.971486357681222,41.971486357681222,41.971486357681222,41.971486357681222,41.971486357681222,41.971486357681222,41.971486357681222,41.971486357681222,41.971486357681222,41.971486357681222,42.567200831330972,42.567200831330972,42.567200831330972,42.567200831330972,42.567200831330972,42.567200831330972,42.567200831330972,42.567200831330972,42.567200831330972,42.567200831330972,42.567200831330972,42.567200831330972,44.113337549061733,44.113337549061733,44.113337549061733,44.113337549061733,44.113337549061733,44.113337549061733,44.113337549061733,44.113337549061733,44.113337549061733,44.113337549061733,44.113337549061733,44.113337549061733,45.549538017484217,45.549538017484217,45.549538017484217,45.549538017484217,45.549538017484217,45.549538017484217,45.549538017484217,45.549538017484217,45.549538017484217,45.549538017484217,45.549538017484217,45.549538017484217,45.549538017484217,45.549538017484217,45.549538017484217,45.549538017484217,45.549538017484217,45.549538017484217,45.549538017484217,45.549538017484217,45.549538017484217,45.549538017484217,45.549538017484217,45.549538017484217,45.549538017484217,45.549538017484217,45.549538017484217,45.549538017484217,45.549538017484217,45.549538017484217,45.549538017484217,45.549538017484217,45.549538017484217,45.549538017484217,45.549538017484217,45.549538017484217,45.549538017484217,45.549538017484217,45.549538017484217,45.549538017484217,45.549538017484217,45.549538017484217,45.549538017484217,45.549538017484217,45.549538017484217,45.549538017484217,45.549538017484217,45.549538017484217]
[null,"Non-CARESummerX",null,"Non-CARE","Summer","X",{"$f":"'Hypothetical Res Bill Impact'!$I$44","v":60.326519619127346},50.499599568891142,50.499599568891142,50.499599568891142,50.499599568891142,54.155659732850353,54.155659732850353,54.155659732850353,54.155659732850353,54.155659732850353,54.155659732850353,54.155659732850353,54.155659732850353,54.155659732850353,54.155659732850353,54.155659732850353,54.155659732850353,54.925192634742785,54.925192634742785,54.925192634742785,54.925192634742785,54.925192634742785,54.925192634742785,54.925192634742785,54.925192634742785,54.925192634742785,54.925192634742785,54.925192634742785,54.925192634742785,56.919582339656934,56.919582339656934,56.919582339656934,56.919582339656934,56.919582339656934,56.919582339656934,56.919582339656934,56.919582339656934,56.919582339656934,56.919582339656934,56.919582339656934,56.919582339656934,58.77290807171461,58.77290807171461,58.77290807171461,58.77290807171461,58.77290807171461,58.77290807171461,58.77290807171461,58.77290807171461,58.77290807171461,58.77290807171461,58.77290807171461,58.77290807171461,58.77290807171461,58.77290807171461,58.77290807171461,58.77290807171461,58.77290807171461,58.77290807171461,58.77290807171461,58.77290807171461,58.77290807171461,58.77290807171461,58.77290807171461,58.77290807171461,58.77290807171461,58.77290807171461,58.77290807171461,58.77290807171461,58.77290807171461,58.77290807171461,58.77290807171461,58.77290807171461,58.77290807171461,58.77290807171461,58.77290807171461,58.77290807171461,58.77290807171461,58.77290807171461,58.77290807171461,58.77290807171461,58.77290807171461,58.77290807171461,58.77290807171461,58.77290807171461,58.77290807171461,58.77290807171461,58.77290807171461,58.77290807171461]
[null,"Non-CARESummerY",null,"Non-CARE","Summer","Y",{"$f":"'Hypothetical Res Bill Impact'!$I$45","v":75.251313085841986},63.05976332800229,63.05976332800229,63.05976332800229,63.05976332800229,67.618935256358611,67.618935256358611,67.618935256358611,67.618935256358611,67.618935256358611,67.618935256358611,67.618935256358611,67.618935256358611,67.618935256358611,67.618935256358611,67.618935256358611,67.618935256358611,68.572534877405317,68.572534877405317,68.572534877405317,68.572534877405317,68.572534877405317,68.572534877405317,68.572534877405317,68.572534877405317,68.572534877405317,68.572534877405317,68.572534877405317,68.572534877405317,71.067525380594617,71.067525380594617,71.067525380594617,71.067525380594617,71.067525380594617,71.067525380594617,71.067525380594617,71.067525380594617,71.067525380594617,71.067525380594617,71.067525380594617,71.067525380594617,73.379945562156919,73.379945562156919,73.379945562156919,73.379945562156919,73.379945562156919,73.379945562156919,73.379945562156919,73.379945562156919,73.379945562156919,73.379945562156919,73.379945562156919,73.379945562156919,73.379945562156919,73.379945562156919,73.379945562156919,73.379945562156919,73.379945562156919,73.379945562156919,73.379945562156919,73.379945562156919,73.379945562156919,73.379945562156919,73.379945562156919,73.379945562156919,73.379945562156919,73.379945562156919,73.379945562156919,73.379945562156919,73.379945562156919,73.379945562156919,73.379945562156919,73.379945562156919,73.379945562156919,73.379945562156919,73.379945562156919,73.379945562156919,73.379945562156919,73.379945562156919,73.379945562156919,73.379945562156919,73.379945562156919,73.379945562156919,73.379945562156919,73.379945562156919,73.379945562156919,73.379945562156919,73.379945562156919,73.379945562156919]
[null,"Non-CARESummerALL CLIMATE ZONES",null,"Non-CARE","Summer","ALL CLIMATE ZONES",{"$f":"'Hypothetical Res Bill Impact'!$I$46","v":56.608894995734502},47.388343528321805,47.388343528321805,47.388343528321805,47.388343528321805,50.819082336265481,50.819082336265481,50.819082336265481,50.819082336265481,50.819082336265481,50.819082336265481,50.819082336265481,50.819082336265481,50.819082336265481,50.819082336265481,50.819082336265481,50.819082336265481,51.541118318217045,51.541118318217045,51.541118318217045,51.541118318217045,51.541118318217045,51.541118318217045,51.541118318217045,51.541118318217045,51.541118318217045,51.541118318217045,51.541118318217045,51.541118318217045,53.412688362118274,53.412688362118274,53.412688362118274,53.412688362118274,53.412688362118274,53.412688362118274,53.412688362118274,53.412688362118274,53.412688362118274,53.412688362118274,53.412688362118274,53.412688362118274,55.151809657392995,55.151809657392995,55.151809657392995,55.151809657392995,55.151809657392995,55.151809657392995,55.151809657392995,55.151809657392995,55.151809657392995,55.151809657392995,55.151809657392995,55.151809657392995,55.151809657392995,55.151809657392995,55.151809657392995,55.151809657392995,55.151809657392995,55.151809657392995,55.151809657392995,55.151809657392995,55.151809657392995,55.151809657392995,55.151809657392995,55.151809657392995,55.151809657392995,55.151809657392995,55.151809657392995,55.151809657392995,55.151809657392995,55.151809657392995,55.151809657392995,55.151809657392995,55.151809657392995,55.151809657392995,55.151809657392995,55.151809657392995,55.151809657392995,55.151809657392995,55.151809657392995,55.151809657392995,55.151809657392995,55.151809657392995,55.151809657392995,55.151809657392995,55.151809657392995,55.151809657392995,55.151809657392995,55.151809657392995]
[null,"Non-CAREWinter Off-PeakP",null,"Non-CARE","Winter Off-Peak","P",{"$f":"'Hypothetical Res Bill Impact'!$J$37","v":184.74344155401008},154.87801105897549,154.87801105897549,154.87801105897549,154.87801105897549,166.06950011338202,166.06950011338202,166.06950011338202,166.06950011338202,166.06950011338202,166.06950011338202,166.06950011338202,166.06950011338202,166.06950011338202,166.06950011338202,166.06950011338202,166.06950011338202,168.40443134204375,168.40443134204375,168.40443134204375,168.40443134204375,168.40443134204375,168.40443134204375,168.40443134204375,168.40443134204375,168.40443134204375,168.40443134204375,168.40443134204375,168.40443134204375,174.5367090927586,174.5367090927586,174.5367090927586,174.5367090927586,174.5367090927586,174.5367090927586,174.5367090927586,174.5367090927586,174.5367090927586,174.5367090927586,174.5367090927586,174.5367090927586,180.21431400874681,180.21431400874681,180.21431400874681,180.21431400874681,180.21431400874681,180.21431400874681,180.21431400874681,180.21431400874681,180.21431400874681,180.21431400874681,180.21431400874681,180.21431400874681,180.21431400874681,180.21431400874681,180.21431400874681,180.21431400874681,180.21431400874681,180.21431400874681,180.21431400874681,180.21431400874681,180.21431400874681,180.21431400874681,180.21431400874681,180.21431400874681,180.21431400874681,180.21431400874681,180.21431400874681,180.21431400874681,180.21431400874681,180.21431400874681,180.21431400874681,180.21431400874681,180.21431400874681,180.21431400874681,180.21431400874681,180.21431400874681,180.21431400874681,180.21431400874681,180.21431400874681,180.21431400874681,180.21431400874681,180.21431400874681,180.21431400874681,180.21431400874681,180.21431400874681,180.21431400874681,180.21431400874681,180.21431400874681]
[null,"Non-CAREWinter Off-PeakQ",null,"Non-CARE","Winter Off-Peak","Q",{"$f":"'Hypothetical Res Bill Impact'!$J$38","v":0},0,0,0,0,0,0,0,0,0,0,0,0,0,0,0,0,0,0,0,0,0,0,0,0,0,0,0,0,0,0,0,0,0,0,0,0,0,0,0,0,0,0,0,0,0,0,0,0,0,0,0,0,0,0,0,0,0,0,0,0,0,0,0,0,0,0,0,0,0,0,0,0,0,0,0,0,0,0,0,0,0,0,0,0,0,0,0,0]
[null,"Non-CAREWinter Off-PeakR",null,"Non-CARE","Winter Off-Peak","R",{"$f":"'Hypothetical Res Bill Impact'!$J$39","v":127.22665465866081},106.62841211394985,106.62841211394985,106.62841211394985,106.62841211394985,114.33626739080293,114.33626739080293,114.33626739080293,114.33626739080293,114.33626739080293,114.33626739080293,114.33626739080293,114.33626739080293,114.33626739080293,114.33626739080293,114.33626739080293,114.33626739080293,115.94719064922144,115.94719064922144,115.94719064922144,115.94719064922144,115.94719064922144,115.94719064922144,115.94719064922144,115.94719064922144,115.94719064922144,115.94719064922144,115.94719064922144,115.94719064922144,120.16694688891106,120.16694688891106,120.16694688891106,120.16694688891106,120.16694688891106,120.16694688891106,120.16694688891106,120.16694688891106,120.16694688891106,120.16694688891106,120.16694688891106,120.16694688891106,124.076654262112,124.076654262112,124.076654262112,124.076654262112,124.076654262112,124.076654262112,124.076654262112,124.076654262112,124.076654262112,124.076654262112,124.076654262112,124.076654262112,124.076654262112,124.076654262112,124.076654262112,124.076654262112,124.076654262112,124.076654262112,124.076654262112,124.076654262112,124.076654262112,124.076654262112,124.076654262112,124.076654262112,124.076654262112,124.076654262112,124.076654262112,124.076654262112,124.076654262112,124.076654262112,124.076654262112,124.076654262112,124.076654262112,124.076654262112,124.076654262112,124.076654262112,124.076654262112,124.076654262112,124.076654262112,124.076654262112,124.076654262112,124.076654262112,124.076654262112,124.076654262112,124.076654262112,124.076654262112,124.076654262112,124.076654262112]
[null,"Non-CAREWinter Off-PeakS",null,"Non-CARE","Winter Off-Peak","S",{"$f":"'Hypothetical Res Bill Impact'!$J$40","v":140.02530475189644},117.36427223836304,117.36427223836304,117.36427223836304,117.36427223836304,125.84732031056134,125.84732031056134,125.84732031056134,125.84732031056134,125.84732031056134,125.84732031056134,125.84732031056134,125.84732031056134,125.84732031056134,125.84732031056134,125.84732031056134,125.84732031056134,127.61941197202287,127.61941197202287,127.61941197202287,127.61941197202287,127.61941197202287,127.61941197202287,127.61941197202287,127.61941197202287,127.61941197202287,127.61941197202287,127.61941197202287,127.61941197202287,132.26467246148479,132.26467246148479,132.26467246148479,132.26467246148479,132.26467246148479,132.26467246148479,132.26467246148479,132.26467246148479,132.26467246148479,132.26467246148479,132.26467246148479,132.26467246148479,136.56776714402025,136.56776714402025,136.56776714402025,136.56776714402025,136.56776714402025,136.56776714402025,136.56776714402025,136.56776714402025,136.56776714402025,136.56776714402025,136.56776714402025,136.56776714402025,136.56776714402025,136.56776714402025,136.56776714402025,136.56776714402025,136.56776714402025,136.56776714402025,136.56776714402025,136.56776714402025,136.56776714402025,136.56776714402025,136.56776714402025,136.56776714402025,136.56776714402025,136.56776714402025,136.56776714402025,136.56776714402025,136.56776714402025,136.56776714402025,136.56776714402025,136.56776714402025,136.56776714402025,136.56776714402025,136.56776714402025,136.56776714402025,136.56776714402025,136.56776714402025,136.56776714402025,136.56776714402025,136.56776714402025,136.56776714402025,136.56776714402025,136.56776714402025,136.56776714402025,136.56776714402025,136.56776714402025,136.56776714402025]
[null,"Non-CAREWinter Off-PeakT",null,"Non-CARE","Winter Off-Peak","T",{"$f":"'Hypothetical Res Bill Impact'!$J$41","v":116.68006834990109},97.817691195142402,97.817691195142402,97.817691195142402,97.817691195142402,104.88600007160969,104.88600007160969,104.88600007160969,104.88600007160969,104.88600007160969,104.88600007160969,104.88600007160969,104.88600007160969,104.88600007160969,104.88600007160969,104.88600007160969,104.88600007160969,106.36069347918553,106.36069347918553,106.36069347918553,106.36069347918553,106.36069347918553,106.36069347918553,106.36069347918553,106.36069347918553,106.36069347918553,106.36069347918553,106.36069347918553,106.36069347918553,110.2337110059528,110.2337110059528,110.2337110059528,110.2337110059528,110.2337110059528,110.2337110059528,110.2337110059528,110.2337110059528,110.2337110059528,110.2337110059528,110.2337110059528,110.2337110059528,113.8195667423664,113.8195667423664,113.8195667423664,113.8195667423664,113.8195667423664,113.8195667423664,113.8195667423664,113.8195667423664,113.8195667423664,113.8195667423664,113.8195667423664,113.8195667423664,113.8195667423664,113.8195667423664,113.8195667423664,113.8195667423664,113.8195667423664,113.8195667423664,113.8195667423664,113.8195667423664,113.8195667423664,113.8195667423664,113.8195667423664,113.8195667423664,113.8195667423664,113.8195667423664,113.8195667423664,113.8195667423664,113.8195667423664,113.8195667423664,113.8195667423664,113.8195667423664,113.8195667423664,113.8195667423664,113.8195667423664,113.8195667423664,113.8195667423664,113.8195667423664,113.8195667423664,113.8195667423664,113.8195667423664,113.8195667423664,113.8195667423664,113.8195667423664,113.8195667423664,113.8195667423664,113.8195667423664,113.8195667423664]
[null,"Non-CAREWinter Off-PeakV",null,"Non-CARE","Winter Off-Peak","V",{"$f":"'Hypothetical Res Bill Impact'!$J$42","v":145.85008543737638},122.272113993928,122.272113993928,122.272113993928,122.272113993928,131.10750008951211,131.10750008951211,131.10750008951211,131.10750008951211,131.10750008951211,131.10750008951211,131.10750008951211,131.10750008951211,131.10750008951211,131.10750008951211,131.10750008951211,131.10750008951211,132.95086684898192,132.95086684898192,132.95086684898192,132.95086684898192,132.95086684898192,132.95086684898192,132.95086684898192,132.95086684898192,132.95086684898192,132.95086684898192,132.95086684898192,132.95086684898192,137.79213875744099,137.79213875744099,137.79213875744099,137.79213875744099,137.79213875744099,137.79213875744099,137.79213875744099,137.79213875744099,137.79213875744099,137.79213875744099,137.79213875744099,137.79213875744099,142.274458427958,142.274458427958,142.274458427958,142.274458427958,142.274458427958,142.274458427958,142.274458427958,142.274458427958,142.274458427958,142.274458427958,142.274458427958,142.274458427958,142.274458427958,142.274458427958,142.274458427958,142.274458427958,142.274458427958,142.274458427958,142.274458427958,142.274458427958,142.274458427958,142.274458427958,142.274458427958,142.274458427958,142.274458427958,142.274458427958,142.274458427958,142.274458427958,142.274458427958,142.274458427958,142.274458427958,142.274458427958,142.274458427958,142.274458427958,142.274458427958,142.274458427958,142.274458427958,142.274458427958,142.274458427958,142.274458427958,142.274458427958,142.274458427958,142.274458427958,142.274458427958,142.274458427958,142.274458427958,142.274458427958,142.274458427958]
[null,"Non-CAREWinter Off-PeakW",null,"Non-CARE","Winter Off-Peak","W",{"$f":"'Hypothetical Res Bill Impact'!$J$43","v":106.95672932074267},89.666216928880544,89.666216928880544,89.666216928880544,89.666216928880544,96.145500065642224,96.145500065642224,96.145500065642224,96.145500065642224,96.145500065642224,96.145500065642224,96.145500065642224,96.145500065642224,96.145500065642224,96.145500065642224,96.145500065642224,96.145500065642224,97.49730235592007,97.49730235592007,97.49730235592007,97.49730235592007,97.49730235592007,97.49730235592007,97.49730235592007,97.49730235592007,97.49730235592007,97.49730235592007,97.49730235592007,97.49730235592007,101.0475684221234,101.0475684221234,101.0475684221234,101.0475684221234,101.0475684221234,101.0475684221234,101.0475684221234,101.0475684221234,101.0475684221234,101.0475684221234,101.0475684221234,101.0475684221234,104.33460284716921,104.33460284716921,104.33460284716921,104.33460284716921,104.33460284716921,104.33460284716921,104.33460284716921,104.33460284716921,104.33460284716921,104.33460284716921,104.33460284716921,104.33460284716921,104.33460284716921,104.33460284716921,104.33460284716921,104.33460284716921,104.33460284716921,104.33460284716921,104.33460284716921,104.33460284716921,104.33460284716921,104.33460284716921,104.33460284716921,104.33460284716921,104.33460284716921,104.33460284716921,104.33460284716921,104.33460284716921,104.33460284716921,104.33460284716921,104.33460284716921,104.33460284716921,104.33460284716921,104.33460284716921,104.33460284716921,104.33460284716921,104.33460284716921,104.33460284716921,104.33460284716921,104.33460284716921,104.33460284716921,104.33460284716921,104.33460284716921,104.33460284716921,104.33460284716921,104.33460284716921,104.33460284716921,104.33460284716921]
[null,"Non-CAREWinter Off-PeakX",null,"Non-CARE","Winter Off-Peak","X",{"$f":"'Hypothetical Res Bill Impact'!$J$44","v":145.85008543737638},122.272113993928,122.272113993928,122.272113993928,122.272113993928,131.10750008951211,131.10750008951211,131.10750008951211,131.10750008951211,131.10750008951211,131.10750008951211,131.10750008951211,131.10750008951211,131.10750008951211,131.10750008951211,131.10750008951211,131.10750008951211,132.95086684898192,132.95086684898192,132.95086684898192,132.95086684898192,132.95086684898192,132.95086684898192,132.95086684898192,132.95086684898192,132.95086684898192,132.95086684898192,132.95086684898192,132.95086684898192,137.79213875744099,137.79213875744099,137.79213875744099,137.79213875744099,137.79213875744099,137.79213875744099,137.79213875744099,137.79213875744099,137.79213875744099,137.79213875744099,137.79213875744099,137.79213875744099,142.274458427958,142.274458427958,142.274458427958,142.274458427958,142.274458427958,142.274458427958,142.274458427958,142.274458427958,142.274458427958,142.274458427958,142.274458427958,142.274458427958,142.274458427958,142.274458427958,142.274458427958,142.274458427958,142.274458427958,142.274458427958,142.274458427958,142.274458427958,142.274458427958,142.274458427958,142.274458427958,142.274458427958,142.274458427958,142.274458427958,142.274458427958,142.274458427958,142.274458427958,142.274458427958,142.274458427958,142.274458427958,142.274458427958,142.274458427958,142.274458427958,142.274458427958,142.274458427958,142.274458427958,142.274458427958,142.274458427958,142.274458427958,142.274458427958,142.274458427958,142.274458427958,142.274458427958,142.274458427958,142.274458427958,142.274458427958]
[null,"Non-CAREWinter Off-PeakY",null,"Non-CARE","Winter Off-Peak","Y",{"$f":"'Hypothetical Res Bill Impact'!$J$45","v":224.58282745771155},188.24147755156466,188.24147755156466,188.24147755156466,188.24147755156466,201.84712508595973,201.84712508595973,201.84712508595973,201.84712508595973,201.84712508595973,201.84712508595973,201.84712508595973,201.84712508595973,201.84712508595973,201.84712508595973,201.84712508595973,201.84712508595973,204.68894891130037,204.68894891130037,204.68894891130037,204.68894891130037,204.68894891130037,204.68894891130037,204.68894891130037,204.68894891130037,204.68894891130037,204.68894891130037,204.68894891130037,204.68894891130037,212.13979731475166,212.13979731475166,212.13979731475166,212.13979731475166,212.13979731475166,212.13979731475166,212.13979731475166,212.13979731475166,212.13979731475166,212.13979731475166,212.13979731475166,212.13979731475166,219.04145092798751,219.04145092798751,219.04145092798751,219.04145092798751,219.04145092798751,219.04145092798751,219.04145092798751,219.04145092798751,219.04145092798751,219.04145092798751,219.04145092798751,219.04145092798751,219.04145092798751,219.04145092798751,219.04145092798751,219.04145092798751,219.04145092798751,219.04145092798751,219.04145092798751,219.04145092798751,219.04145092798751,219.04145092798751,219.04145092798751,219.04145092798751,219.04145092798751,219.04145092798751,219.04145092798751,219.04145092798751,219.04145092798751,219.04145092798751,219.04145092798751,219.04145092798751,219.04145092798751,219.04145092798751,219.04145092798751,219.04145092798751,219.04145092798751,219.04145092798751,219.04145092798751,219.04145092798751,219.04145092798751,219.04145092798751,219.04145092798751,219.04145092798751,219.04145092798751,219.04145092798751,219.04145092798751,219.04145092798751]
[null,"Non-CAREWinter Off-PeakALL CLIMATE ZONES",null,"Non-CARE","Winter Off-Peak","ALL CLIMATE ZONES",{"$f":"'Hypothetical Res Bill Impact'!$J$46","v":136.37898670105676},114.32190768704984,114.32190768704984,114.32190768704984,114.32190768704984,122.58376260121804,122.58376260121804,122.58376260121804,122.58376260121804,122.58376260121804,122.58376260121804,122.58376260121804,122.58376260121804,122.58376260121804,122.58376260121804,122.58376260121804,122.58376260121804,124.30839380842205,124.30839380842205,124.30839380842205,124.30839380842205,124.30839380842205,124.30839380842205,124.30839380842205,124.30839380842205,124.30839380842205,124.30839380842205,124.30839380842205,124.30839380842205,128.83418577275387,128.83418577275387,128.83418577275387,128.83418577275387,128.83418577275387,128.83418577275387,128.83418577275387,128.83418577275387,128.83418577275387,128.83418577275387,128.83418577275387,128.83418577275387,133.025347026877,133.025347026877,133.025347026877,133.025347026877,133.025347026877,133.025347026877,133.025347026877,133.025347026877,133.025347026877,133.025347026877,133.025347026877,133.025347026877,133.025347026877,133.025347026877,133.025347026877,133.025347026877,133.025347026877,133.025347026877,133.025347026877,133.025347026877,133.025347026877,133.025347026877,133.025347026877,133.025347026877,133.025347026877,133.025347026877,133.025347026877,133.025347026877,133.025347026877,133.025347026877,133.025347026877,133.025347026877,133.025347026877,133.025347026877,133.025347026877,133.025347026877,133.025347026877,133.025347026877,133.025347026877,133.025347026877,133.025347026877,133.025347026877,133.025347026877,133.025347026877,133.025347026877,133.025347026877,133.025347026877,133.025347026877]
[null,"Non-CAREWinter On-PeakP",null,"Non-CARE","Winter On-Peak","P",{"$f":"'Hypothetical Res Bill Impact'!$K$37","v":221.28557228441809},185.47936148442454,185.47936148442454,185.47936148442454,185.47936148442454,198.88522179909376,198.88522179909376,198.88522179909376,198.88522179909376,198.88522179909376,198.88522179909376,198.88522179909376,198.88522179909376,198.88522179909376,198.88522179909376,198.88522179909376,198.88522179909376,201.68517227052371,201.68517227052371,201.68517227052371,201.68517227052371,201.68517227052371,201.68517227052371,201.68517227052371,201.68517227052371,201.68517227052371,201.68517227052371,201.68517227052371,201.68517227052371,209.02680101935556,209.02680101935556,209.02680101935556,209.02680101935556,209.02680101935556,209.02680101935556,209.02680101935556,209.02680101935556,209.02680101935556,209.02680101935556,209.02680101935556,209.02680101935556,215.82714056097021,215.82714056097021,215.82714056097021,215.82714056097021,215.82714056097021,215.82714056097021,215.82714056097021,215.82714056097021,215.82714056097021,215.82714056097021,215.82714056097021,215.82714056097021,215.82714056097021,215.82714056097021,215.82714056097021,215.82714056097021,215.82714056097021,215.82714056097021,215.82714056097021,215.82714056097021,215.82714056097021,215.82714056097021,215.82714056097021,215.82714056097021,215.82714056097021,215.82714056097021,215.82714056097021,215.82714056097021,215.82714056097021,215.82714056097021,215.82714056097021,215.82714056097021,215.82714056097021,215.82714056097021,215.82714056097021,215.82714056097021,215.82714056097021,215.82714056097021,215.82714056097021,215.82714056097021,215.82714056097021,215.82714056097021,215.82714056097021,215.82714056097021,215.82714056097021,215.82714056097021,215.82714056097021,215.82714056097021]
[null,"Non-CAREWinter On-PeakQ",null,"Non-CARE","Winter On-Peak","Q",{"$f":"'Hypothetical Res Bill Impact'!$K$38","v":0},0,0,0,0,0,0,0,0,0,0,0,0,0,0,0,0,0,0,0,0,0,0,0,0,0,0,0,0,0,0,0,0,0,0,0,0,0,0,0,0,0,0,0,0,0,0,0,0,0,0,0,0,0,0,0,0,0,0,0,0,0,0,0,0,0,0,0,0,0,0,0,0,0,0,0,0,0,0,0,0,0,0,0,0,0,0,0,0]
[null,"Non-CAREWinter On-PeakR",null,"Non-CARE","Winter On-Peak","R",{"$f":"'Hypothetical Res Bill Impact'!$K$39","v":182.10888080483491},152.64657282289016,152.64657282289016,152.64657282289016,152.64657282289016,163.67894258440785,163.67894258440785,163.67894258440785,163.67894258440785,163.67894258440785,163.67894258440785,163.67894258440785,163.67894258440785,163.67894258440785,163.67894258440785,163.67894258440785,163.67894258440785,165.98273782150901,165.98273782150901,165.98273782150901,165.98273782150901,165.98273782150901,165.98273782150901,165.98273782150901,165.98273782150901,165.98273782150901,165.98273782150901,165.98273782150901,165.98273782150901,172.02510508361286,172.02510508361286,172.02510508361286,172.02510508361286,172.02510508361286,172.02510508361286,172.02510508361286,172.02510508361286,172.02510508361286,172.02510508361286,172.02510508361286,172.02510508361286,177.62154474292333,177.62154474292333,177.62154474292333,177.62154474292333,177.62154474292333,177.62154474292333,177.62154474292333,177.62154474292333,177.62154474292333,177.62154474292333,177.62154474292333,177.62154474292333,177.62154474292333,177.62154474292333,177.62154474292333,177.62154474292333,177.62154474292333,177.62154474292333,177.62154474292333,177.62154474292333,177.62154474292333,177.62154474292333,177.62154474292333,177.62154474292333,177.62154474292333,177.62154474292333,177.62154474292333,177.62154474292333,177.62154474292333,177.62154474292333,177.62154474292333,177.62154474292333,177.62154474292333,177.62154474292333,177.62154474292333,177.62154474292333,177.62154474292333,177.62154474292333,177.62154474292333,177.62154474292333,177.62154474292333,177.62154474292333,177.62154474292333,177.62154474292333,177.62154474292333,177.62154474292333,177.62154474292333,177.62154474292333]
[null,"Non-CAREWinter On-PeakS",null,"Non-CARE","Winter On-Peak","S",{"$f":"'Hypothetical Res Bill Impact'!$K$40","v":195.10271619803962},163.53873501937704,163.53873501937704,163.53873501937704,163.53873501937704,175.35827561801895,175.35827561801895,175.35827561801895,175.35827561801895,175.35827561801895,175.35827561801895,175.35827561801895,175.35827561801895,175.35827561801895,175.35827561801895,175.35827561801895,175.35827561801895,177.82640176446307,177.82640176446307,177.82640176446307,177.82640176446307,177.82640176446307,177.82640176446307,177.82640176446307,177.82640176446307,177.82640176446307,177.82640176446307,177.82640176446307,177.82640176446307,184.29996046069198,184.29996046069198,184.29996046069198,184.29996046069198,184.29996046069198,184.29996046069198,184.29996046069198,184.29996046069198,184.29996046069198,184.29996046069198,184.29996046069198,184.29996046069198,190.29572191791209,190.29572191791209,190.29572191791209,190.29572191791209,190.29572191791209,190.29572191791209,190.29572191791209,190.29572191791209,190.29572191791209,190.29572191791209,190.29572191791209,190.29572191791209,190.29572191791209,190.29572191791209,190.29572191791209,190.29572191791209,190.29572191791209,190.29572191791209,190.29572191791209,190.29572191791209,190.29572191791209,190.29572191791209,190.29572191791209,190.29572191791209,190.29572191791209,190.29572191791209,190.29572191791209,190.29572191791209,190.29572191791209,190.29572191791209,190.29572191791209,190.29572191791209,190.29572191791209,190.29572191791209,190.29572191791209,190.29572191791209,190.29572191791209,190.29572191791209,190.29572191791209,190.29572191791209,190.29572191791209,190.29572191791209,190.29572191791209,190.29572191791209,190.29572191791209,190.29572191791209,190.29572191791209,190.29572191791209]
[null,"Non-CAREWinter On-PeakT",null,"Non-CARE","Winter On-Peak","T",{"$f":"'Hypothetical Res Bill Impact'!$K$41","v":142.60897242765691},119.55495590517405,119.55495590517405,119.55495590517405,119.55495590517405,128.19400008752297,128.19400008752297,128.19400008752297,128.19400008752297,128.19400008752297,128.19400008752297,128.19400008752297,128.19400008752297,128.19400008752297,128.19400008752297,128.19400008752297,128.19400008752297,129.99640314122675,129.99640314122675,129.99640314122675,129.99640314122675,129.99640314122675,129.99640314122675,129.99640314122675,129.99640314122675,129.99640314122675,129.99640314122675,129.99640314122675,129.99640314122675,134.73009122949787,134.73009122949787,134.73009122949787,134.73009122949787,134.73009122949787,134.73009122949787,134.73009122949787,134.73009122949787,134.73009122949787,134.73009122949787,134.73009122949787,134.73009122949787,139.11280379622559,139.11280379622559,139.11280379622559,139.11280379622559,139.11280379622559,139.11280379622559,139.11280379622559,139.11280379622559,139.11280379622559,139.11280379622559,139.11280379622559,139.11280379622559,139.11280379622559,139.11280379622559,139.11280379622559,139.11280379622559,139.11280379622559,139.11280379622559,139.11280379622559,139.11280379622559,139.11280379622559,139.11280379622559,139.11280379622559,139.11280379622559,139.11280379622559,139.11280379622559,139.11280379622559,139.11280379622559,139.11280379622559,139.11280379622559,139.11280379622559,139.11280379622559,139.11280379622559,139.11280379622559,139.11280379622559,139.11280379622559,139.11280379622559,139.11280379622559,139.11280379622559,139.11280379622559,139.11280379622559,139.11280379622559,139.11280379622559,139.11280379622559,139.11280379622559,139.11280379622559,139.11280379622559,139.11280379622559]
[null,"Non-CAREWinter On-PeakV",null,"Non-CARE","Winter On-Peak","V",{"$f":"'Hypothetical Res Bill Impact'!$K$42","v":155.57342446653479},130.42358826018989,130.42358826018989,130.42358826018989,130.42358826018989,139.84800009547959,139.84800009547959,139.84800009547959,139.84800009547959,139.84800009547959,139.84800009547959,139.84800009547959,139.84800009547959,139.84800009547959,139.84800009547959,139.84800009547959,139.84800009547959,141.81425797224739,141.81425797224739,141.81425797224739,141.81425797224739,141.81425797224739,141.81425797224739,141.81425797224739,141.81425797224739,141.81425797224739,141.81425797224739,141.81425797224739,141.81425797224739,146.97828134127042,146.97828134127042,146.97828134127042,146.97828134127042,146.97828134127042,146.97828134127042,146.97828134127042,146.97828134127042,146.97828134127042,146.97828134127042,146.97828134127042,146.97828134127042,151.75942232315521,151.75942232315521,151.75942232315521,151.75942232315521,151.75942232315521,151.75942232315521,151.75942232315521,151.75942232315521,151.75942232315521,151.75942232315521,151.75942232315521,151.75942232315521,151.75942232315521,151.75942232315521,151.75942232315521,151.75942232315521,151.75942232315521,151.75942232315521,151.75942232315521,151.75942232315521,151.75942232315521,151.75942232315521,151.75942232315521,151.75942232315521,151.75942232315521,151.75942232315521,151.75942232315521,151.75942232315521,151.75942232315521,151.75942232315521,151.75942232315521,151.75942232315521,151.75942232315521,151.75942232315521,151.75942232315521,151.75942232315521,151.75942232315521,151.75942232315521,151.75942232315521,151.75942232315521,151.75942232315521,151.75942232315521,151.75942232315521,151.75942232315521,151.75942232315521,151.75942232315521,151.75942232315521,151.75942232315521]
[null,"Non-CAREWinter On-PeakW",null,"Non-CARE","Winter On-Peak","W",{"$f":"'Hypothetical Res Bill Impact'!$K$43","v":165.29676349569323},138.57506252645175,138.57506252645175,138.57506252645175,138.57506252645175,148.58850010144707,148.58850010144707,148.58850010144707,148.58850010144707,148.58850010144707,148.58850010144707,148.58850010144707,148.58850010144707,148.58850010144707,148.58850010144707,148.58850010144707,148.58850010144707,150.67764909551283,150.67764909551283,150.67764909551283,150.67764909551283,150.67764909551283,150.67764909551283,150.67764909551283,150.67764909551283,150.67764909551283,150.67764909551283,150.67764909551283,150.67764909551283,156.16442392509981,156.16442392509981,156.16442392509981,156.16442392509981,156.16442392509981,156.16442392509981,156.16442392509981,156.16442392509981,156.16442392509981,156.16442392509981,156.16442392509981,156.16442392509981,161.24438621835242,161.24438621835242,161.24438621835242,161.24438621835242,161.24438621835242,161.24438621835242,161.24438621835242,161.24438621835242,161.24438621835242,161.24438621835242,161.24438621835242,161.24438621835242,161.24438621835242,161.24438621835242,161.24438621835242,161.24438621835242,161.24438621835242,161.24438621835242,161.24438621835242,161.24438621835242,161.24438621835242,161.24438621835242,161.24438621835242,161.24438621835242,161.24438621835242,161.24438621835242,161.24438621835242,161.24438621835242,161.24438621835242,161.24438621835242,161.24438621835242,161.24438621835242,161.24438621835242,161.24438621835242,161.24438621835242,161.24438621835242,161.24438621835242,161.24438621835242,161.24438621835242,161.24438621835242,161.24438621835242,161.24438621835242,161.24438621835242,161.24438621835242,161.24438621835242,161.24438621835242,161.24438621835242,161.24438621835242]
[null,"Non-CAREWinter On-PeakX",null,"Non-CARE","Winter On-Peak","X",{"$f":"'Hypothetical Res Bill Impact'!$K$44","v":187.98455456372955},157.59516914772942,157.59516914772942,157.59516914772942,157.59516914772942,168.98300011537117,168.98300011537117,168.98300011537117,168.98300011537117,168.98300011537117,168.98300011537117,168.98300011537117,168.98300011537117,168.98300011537117,168.98300011537117,168.98300011537117,168.98300011537117,171.35889504979892,171.35889504979892,171.35889504979892,171.35889504979892,171.35889504979892,171.35889504979892,171.35889504979892,171.35889504979892,171.35889504979892,171.35889504979892,171.35889504979892,171.35889504979892,177.59875662070175,177.59875662070175,177.59875662070175,177.59875662070175,177.59875662070175,177.59875662070175,177.59875662070175,177.59875662070175,177.59875662070175,177.59875662070175,177.59875662070175,177.59875662070175,183.37596864047921,183.37596864047921,183.37596864047921,183.37596864047921,183.37596864047921,183.37596864047921,183.37596864047921,183.37596864047921,183.37596864047921,183.37596864047921,183.37596864047921,183.37596864047921,183.37596864047921,183.37596864047921,183.37596864047921,183.37596864047921,183.37596864047921,183.37596864047921,183.37596864047921,183.37596864047921,183.37596864047921,183.37596864047921,183.37596864047921,183.37596864047921,183.37596864047921,183.37596864047921,183.37596864047921,183.37596864047921,183.37596864047921,183.37596864047921,183.37596864047921,183.37596864047921,183.37596864047921,183.37596864047921,183.37596864047921,183.37596864047921,183.37596864047921,183.37596864047921,183.37596864047921,183.37596864047921,183.37596864047921,183.37596864047921,183.37596864047921,183.37596864047921,183.37596864047921,183.37596864047921,183.37596864047921,183.37596864047921]
[null,"Non-CAREWinter On-PeakY",null,"Non-CARE","Winter On-Peak","Y",{"$f":"'Hypothetical Res Bill Impact'!$K$45","v":256.38426739083155},214.92482579052395,214.92482579052395,214.92482579052395,214.92482579052395,230.45647727150305,230.45647727150305,230.45647727150305,230.45647727150305,230.45647727150305,230.45647727150305,230.45647727150305,230.45647727150305,230.45647727150305,230.45647727150305,230.45647727150305,230.45647727150305,233.69805959815136,233.69805959815136,233.69805959815136,233.69805959815136,233.69805959815136,233.69805959815136,233.69805959815136,233.69805959815136,233.69805959815136,233.69805959815136,233.69805959815136,233.69805959815136,242.20698144168068,242.20698144168068,242.20698144168068,242.20698144168068,242.20698144168068,242.20698144168068,242.20698144168068,242.20698144168068,242.20698144168068,242.20698144168068,242.20698144168068,242.20698144168068,250.08616883967755,250.08616883967755,250.08616883967755,250.08616883967755,250.08616883967755,250.08616883967755,250.08616883967755,250.08616883967755,250.08616883967755,250.08616883967755,250.08616883967755,250.08616883967755,250.08616883967755,250.08616883967755,250.08616883967755,250.08616883967755,250.08616883967755,250.08616883967755,250.08616883967755,250.08616883967755,250.08616883967755,250.08616883967755,250.08616883967755,250.08616883967755,250.08616883967755,250.08616883967755,250.08616883967755,250.08616883967755,250.08616883967755,250.08616883967755,250.08616883967755,250.08616883967755,250.08616883967755,250.08616883967755,250.08616883967755,250.08616883967755,250.08616883967755,250.08616883967755,250.08616883967755,250.08616883967755,250.08616883967755,250.08616883967755,250.08616883967755,250.08616883967755,250.08616883967755,250.08616883967755,250.08616883967755,250.08616883967755]
[null,"Non-CAREWinter On-PeakALL CLIMATE ZONES",null,"Non-CARE","Winter On-Peak","ALL CLIMATE ZONES",{"$f":"'Hypothetical Res Bill Impact'!$K$46","v":180.39050208992799},151.21933318264848,151.21933318264848,151.21933318264848,151.21933318264848,162.14732562074948,162.14732562074948,162.14732562074948,162.14732562074948,162.14732562074948,162.14732562074948,162.14732562074948,162.14732562074948,162.14732562074948,162.14732562074948,162.14732562074948,162.14732562074948,164.42813593515785,164.42813593515785,164.42813593515785,164.42813593515785,164.42813593515785,164.42813593515785,164.42813593515785,164.42813593515785,164.42813593515785,164.42813593515785,164.42813593515785,164.42813593515785,170.41490593160941,170.41490593160941,170.41490593160941,170.41490593160941,170.41490593160941,170.41490593160941,170.41490593160941,170.41490593160941,170.41490593160941,170.41490593160941,170.41490593160941,170.41490593160941,175.95865231173374,175.95865231173374,175.95865231173374,175.95865231173374,175.95865231173374,175.95865231173374,175.95865231173374,175.95865231173374,175.95865231173374,175.95865231173374,175.95865231173374,175.95865231173374,175.95865231173374,175.95865231173374,175.95865231173374,175.95865231173374,175.95865231173374,175.95865231173374,175.95865231173374,175.95865231173374,175.95865231173374,175.95865231173374,175.95865231173374,175.95865231173374,175.95865231173374,175.95865231173374,175.95865231173374,175.95865231173374,175.95865231173374,175.95865231173374,175.95865231173374,175.95865231173374,175.95865231173374,175.95865231173374,175.95865231173374,175.95865231173374,175.95865231173374,175.95865231173374,175.95865231173374,175.95865231173374,175.95865231173374,175.95865231173374,175.95865231173374,175.95865231173374,175.95865231173374,175.95865231173374,175.95865231173374,175.95865231173374]
[null,"CARESummerP",null,"CARE","Summer","P",{"$f":"'Hypothetical Res Bill Impact'!$I$52","v":36.771081750173622},30.843469880966531,30.843469880966531,30.843469880966531,30.843469880966531,33.064404255296054,33.064404255296054,33.064404255296054,33.064404255296054,33.064404255296054,33.064404255296054,33.064404255296054,33.064404255296054,33.064404255296054,33.064404255296054,33.064404255296054,33.064404255296054,33.494772549058361,33.494772549058361,33.494772549058361,33.494772549058361,33.494772549058361,33.494772549058361,33.494772549058361,33.494772549058361,33.494772549058361,33.494772549058361,33.494772549058361,33.494772549058361,34.743558576522616,34.743558576522616,34.743558576522616,34.743558576522616,34.743558576522616,34.743558576522616,34.743558576522616,34.743558576522616,34.743558576522616,34.743558576522616,34.743558576522616,34.743558576522616,35.869501474352795,35.869501474352795,35.869501474352795,35.869501474352795,35.869501474352795,35.869501474352795,35.869501474352795,35.869501474352795,35.869501474352795,35.869501474352795,35.869501474352795,35.869501474352795,35.869501474352795,35.869501474352795,35.869501474352795,35.869501474352795,35.869501474352795,35.869501474352795,35.869501474352795,35.869501474352795,35.869501474352795,35.869501474352795,35.869501474352795,35.869501474352795,35.869501474352795,35.869501474352795,35.869501474352795,35.869501474352795,35.869501474352795,35.869501474352795,35.869501474352795,35.869501474352795,35.869501474352795,35.869501474352795,35.869501474352795,35.869501474352795,35.869501474352795,35.869501474352795,35.869501474352795,35.869501474352795,35.869501474352795,35.869501474352795,35.869501474352795,35.869501474352795,35.869501474352795,35.869501474352795,35.869501474352795,35.869501474352795]
[null,"CARESummerQ",null,"CARE","Summer","Q",{"$f":"'Hypothetical Res Bill Impact'!$I$53","v":0},0,0,0,0,0,0,0,0,0,0,0,0,0,0,0,0,0,0,0,0,0,0,0,0,0,0,0,0,0,0,0,0,0,0,0,0,0,0,0,0,0,0,0,0,0,0,0,0,0,0,0,0,0,0,0,0,0,0,0,0,0,0,0,0,0,0,0,0,0,0,0,0,0,0,0,0,0,0,0,0,0,0,0,0,0,0,0,0]
[null,"CARESummerR",null,"CARE","Summer","R",{"$f":"'Hypothetical Res Bill Impact'!$I$54","v":40.301016692185726},33.770030177490973,33.770030177490973,33.770030177490973,33.770030177490973,36.205043943363897,36.205043943363897,36.205043943363897,36.205043943363897,36.205043943363897,36.205043943363897,36.205043943363897,36.205043943363897,36.205043943363897,36.205043943363897,36.205043943363897,36.205043943363897,36.68079071584026,36.68079071584026,36.68079071584026,36.68079071584026,36.68079071584026,36.68079071584026,36.68079071584026,36.68079071584026,36.68079071584026,36.68079071584026,36.68079071584026,36.68079071584026,38.045099284270492,38.045099284270492,38.045099284270492,38.045099284270492,38.045099284270492,38.045099284270492,38.045099284270492,38.045099284270492,38.045099284270492,38.045099284270492,38.045099284270492,38.045099284270492,39.278934879065076,39.278934879065076,39.278934879065076,39.278934879065076,39.278934879065076,39.278934879065076,39.278934879065076,39.278934879065076,39.278934879065076,39.278934879065076,39.278934879065076,39.278934879065076,39.278934879065076,39.278934879065076,39.278934879065076,39.278934879065076,39.278934879065076,39.278934879065076,39.278934879065076,39.278934879065076,39.278934879065076,39.278934879065076,39.278934879065076,39.278934879065076,39.278934879065076,39.278934879065076,39.278934879065076,39.278934879065076,39.278934879065076,39.278934879065076,39.278934879065076,39.278934879065076,39.278934879065076,39.278934879065076,39.278934879065076,39.278934879065076,39.278934879065076,39.278934879065076,39.278934879065076,39.278934879065076,39.278934879065076,39.278934879065076,39.278934879065076,39.278934879065076,39.278934879065076,39.278934879065076,39.278934879065076,39.278934879065076]
[null,"CARESummerS",null,"CARE","Summer","S",{"$f":"'Hypothetical Res Bill Impact'!$I$55","v":42.89406219434629},35.946340528061668,35.946340528061668,35.946340528061668,35.946340528061668,38.53793908493887,38.53793908493887,38.53793908493887,38.53793908493887,38.53793908493887,38.53793908493887,38.53793908493887,38.53793908493887,38.53793908493887,38.53793908493887,38.53793908493887,38.53793908493887,39.043884305889691,39.043884305889691,39.043884305889691,39.043884305889691,39.043884305889691,39.043884305889691,39.043884305889691,39.043884305889691,39.043884305889691,39.043884305889691,39.043884305889691,39.043884305889691,40.496416930392613,40.496416930392613,40.496416930392613,40.496416930392613,40.496416930392613,40.496416930392613,40.496416930392613,40.496416930392613,40.496416930392613,40.496416930392613,40.496416930392613,40.496416930392613,41.809659676990748,41.809659676990748,41.809659676990748,41.809659676990748,41.809659676990748,41.809659676990748,41.809659676990748,41.809659676990748,41.809659676990748,41.809659676990748,41.809659676990748,41.809659676990748,41.809659676990748,41.809659676990748,41.809659676990748,41.809659676990748,41.809659676990748,41.809659676990748,41.809659676990748,41.809659676990748,41.809659676990748,41.809659676990748,41.809659676990748,41.809659676990748,41.809659676990748,41.809659676990748,41.809659676990748,41.809659676990748,41.809659676990748,41.809659676990748,41.809659676990748,41.809659676990748,41.809659676990748,41.809659676990748,41.809659676990748,41.809659676990748,41.809659676990748,41.809659676990748,41.809659676990748,41.809659676990748,41.809659676990748,41.809659676990748,41.809659676990748,41.809659676990748,41.809659676990748,41.809659676990748,41.809659676990748,41.809659676990748]
[null,"CARESummerT",null,"CARE","Summer","T",{"$f":"'Hypothetical Res Bill Impact'!$I$56","v":52.485503003112242},44.026373642049627,44.026373642049627,44.026373642049627,44.026373642049627,47.196399195828029,47.196399195828029,47.196399195828029,47.196399195828029,47.196399195828029,47.196399195828029,47.196399195828029,47.196399195828029,47.196399195828029,47.196399195828029,47.196399195828029,47.196399195828029,47.81048818547707,47.81048818547707,47.81048818547707,47.81048818547707,47.81048818547707,47.81048818547707,47.81048818547707,47.81048818547707,47.81048818547707,47.81048818547707,47.81048818547707,47.81048818547707,49.593168296859659,49.593168296859659,49.593168296859659,49.593168296859659,49.593168296859659,49.593168296859659,49.593168296859659,49.593168296859659,49.593168296859659,49.593168296859659,49.593168296859659,49.593168296859659,51.200301696371305,51.200301696371305,51.200301696371305,51.200301696371305,51.200301696371305,51.200301696371305,51.200301696371305,51.200301696371305,51.200301696371305,51.200301696371305,51.200301696371305,51.200301696371305,51.200301696371305,51.200301696371305,51.200301696371305,51.200301696371305,51.200301696371305,51.200301696371305,51.200301696371305,51.200301696371305,51.200301696371305,51.200301696371305,51.200301696371305,51.200301696371305,51.200301696371305,51.200301696371305,51.200301696371305,51.200301696371305,51.200301696371305,51.200301696371305,51.200301696371305,51.200301696371305,51.200301696371305,51.200301696371305,51.200301696371305,51.200301696371305,51.200301696371305,51.200301696371305,51.200301696371305,51.200301696371305,51.200301696371305,51.200301696371305,51.200301696371305,51.200301696371305,51.200301696371305,51.200301696371305,51.200301696371305,51.200301696371305]
[null,"CARESummerV",null,"CARE","Summer","V",{"$f":"'Hypothetical Res Bill Impact'!$I$57","v":58.140038727359141},48.754119316167888,48.754119316167888,48.754119316167888,48.754119316167888,52.26606175222441,52.26606175222441,52.26606175222441,52.26606175222441,52.26606175222441,52.26606175222441,52.26606175222441,52.26606175222441,52.26606175222441,52.26606175222441,52.26606175222441,52.26606175222441,52.948137653942176,52.948137653942176,52.948137653942176,52.948137653942176,52.948137653942176,52.948137653942176,52.948137653942176,52.948137653942176,52.948137653942176,52.948137653942176,52.948137653942176,52.948137653942176,54.920915119916778,54.920915119916778,54.920915119916778,54.920915119916778,54.920915119916778,54.920915119916778,54.920915119916778,54.920915119916778,54.920915119916778,54.920915119916778,54.920915119916778,54.920915119916778,56.701105595615957,56.701105595615957,56.701105595615957,56.701105595615957,56.701105595615957,56.701105595615957,56.701105595615957,56.701105595615957,56.701105595615957,56.701105595615957,56.701105595615957,56.701105595615957,56.701105595615957,56.701105595615957,56.701105595615957,56.701105595615957,56.701105595615957,56.701105595615957,56.701105595615957,56.701105595615957,56.701105595615957,56.701105595615957,56.701105595615957,56.701105595615957,56.701105595615957,56.701105595615957,56.701105595615957,56.701105595615957,56.701105595615957,56.701105595615957,56.701105595615957,56.701105595615957,56.701105595615957,56.701105595615957,56.701105595615957,56.701105595615957,56.701105595615957,56.701105595615957,56.701105595615957,56.701105595615957,56.701105595615957,56.701105595615957,56.701105595615957,56.701105595615957,56.701105595615957,56.701105595615957,56.701105595615957,56.701105595615957]
[null,"CARESummerW",null,"CARE","Summer","W",{"$f":"'Hypothetical Res Bill Impact'!$I$58","v":45.955552416432624},38.497775851609234,38.497775851609234,38.497775851609234,38.497775851609234,41.274706499760278,41.274706499760278,41.274706499760278,41.274706499760278,41.274706499760278,41.274706499760278,41.274706499760278,41.274706499760278,41.274706499760278,41.274706499760278,41.274706499760278,41.274706499760278,41.818440184305359,41.818440184305359,41.818440184305359,41.818440184305359,41.818440184305359,41.818440184305359,41.818440184305359,41.818440184305359,41.818440184305359,41.818440184305359,41.818440184305359,41.818440184305359,43.372846107327611,43.372846107327611,43.372846107327611,43.372846107327611,43.372846107327611,43.372846107327611,43.372846107327611,43.372846107327611,43.372846107327611,43.372846107327611,43.372846107327611,43.372846107327611,44.779738778309728,44.779738778309728,44.779738778309728,44.779738778309728,44.779738778309728,44.779738778309728,44.779738778309728,44.779738778309728,44.779738778309728,44.779738778309728,44.779738778309728,44.779738778309728,44.779738778309728,44.779738778309728,44.779738778309728,44.779738778309728,44.779738778309728,44.779738778309728,44.779738778309728,44.779738778309728,44.779738778309728,44.779738778309728,44.779738778309728,44.779738778309728,44.779738778309728,44.779738778309728,44.779738778309728,44.779738778309728,44.779738778309728,44.779738778309728,44.779738778309728,44.779738778309728,44.779738778309728,44.779738778309728,44.779738778309728,44.779738778309728,44.779738778309728,44.779738778309728,44.779738778309728,44.779738778309728,44.779738778309728,44.779738778309728,44.779738778309728,44.779738778309728,44.779738778309728,44.779738778309728,44.779738778309728,44.779738778309728]
[null,"CARESummerX",null,"CARE","Summer","X",{"$f":"'Hypothetical Res Bill Impact'!$I$59","v":44.394070016680047},37.247359275019647,37.247359275019647,37.247359275019647,37.247359275019647,39.928465588938828,39.928465588938828,39.928465588938828,39.928465588938828,39.928465588938828,39.928465588938828,39.928465588938828,39.928465588938828,39.928465588938828,39.928465588938828,39.928465588938828,39.928465588938828,40.446899223084607,40.446899223084607,40.446899223084607,40.446899223084607,40.446899223084607,40.446899223084607,40.446899223084607,40.446899223084607,40.446899223084607,40.446899223084607,40.446899223084607,40.446899223084607,41.955807671284703,41.955807671284703,41.955807671284703,41.955807671284703,41.955807671284703,41.955807671284703,41.955807671284703,41.955807671284703,41.955807671284703,41.955807671284703,41.955807671284703,41.955807671284703,43.315224433665399,43.315224433665399,43.315224433665399,43.315224433665399,43.315224433665399,43.315224433665399,43.315224433665399,43.315224433665399,43.315224433665399,43.315224433665399,43.315224433665399,43.315224433665399,43.315224433665399,43.315224433665399,43.315224433665399,43.315224433665399,43.315224433665399,43.315224433665399,43.315224433665399,43.315224433665399,43.315224433665399,43.315224433665399,43.315224433665399,43.315224433665399,43.315224433665399,43.315224433665399,43.315224433665399,43.315224433665399,43.315224433665399,43.315224433665399,43.315224433665399,43.315224433665399,43.315224433665399,43.315224433665399,43.315224433665399,43.315224433665399,43.315224433665399,43.315224433665399,43.315224433665399,43.315224433665399,43.315224433665399,43.315224433665399,43.315224433665399,43.315224433665399,43.315224433665399,43.315224433665399,43.315224433665399,43.315224433665399]
[null,"CARESummerY",null,"CARE","Summer","Y",{"$f":"'Hypothetical Res Bill Impact'!$I$60","v":53.510767197329095},44.947223325096466,44.947223325096466,44.947223325096466,44.947223325096466,48.177622787144465,48.177622787144465,48.177622787144465,48.177622787144465,48.177622787144465,48.177622787144465,48.177622787144465,48.177622787144465,48.177622787144465,48.177622787144465,48.177622787144465,48.177622787144465,48.796508116276961,48.796508116276961,48.796508116276961,48.796508116276961,48.796508116276961,48.796508116276961,48.796508116276961,48.796508116276961,48.796508116276961,48.796508116276961,48.796508116276961,48.796508116276961,50.621731275354485,50.621731275354485,50.621731275354485,50.621731275354485,50.621731275354485,50.621731275354485,50.621731275354485,50.621731275354485,50.621731275354485,50.621731275354485,50.621731275354485,50.621731275354485,52.260604403652458,52.260604403652458,52.260604403652458,52.260604403652458,52.260604403652458,52.260604403652458,52.260604403652458,52.260604403652458,52.260604403652458,52.260604403652458,52.260604403652458,52.260604403652458,52.260604403652458,52.260604403652458,52.260604403652458,52.260604403652458,52.260604403652458,52.260604403652458,52.260604403652458,52.260604403652458,52.260604403652458,52.260604403652458,52.260604403652458,52.260604403652458,52.260604403652458,52.260604403652458,52.260604403652458,52.260604403652458,52.260604403652458,52.260604403652458,52.260604403652458,52.260604403652458,52.260604403652458,52.260604403652458,52.260604403652458,52.260604403652458,52.260604403652458,52.260604403652458,52.260604403652458,52.260604403652458,52.260604403652458,52.260604403652458,52.260604403652458,52.260604403652458,52.260604403652458,52.260604403652458,52.260604403652458,52.260604403652458]
[null,"CARESummerALL CLIMATE ZONES",null,"CARE","Summer","ALL CLIMATE ZONES",{"$f":"'Hypothetical Res Bill Impact'!$I$61","v":44.593832008228674},37.386721462781885,37.386721462781885,37.386721462781885,37.386721462781885,40.080611764112852,40.080611764112852,40.080611764112852,40.080611764112852,40.080611764112852,40.080611764112852,40.080611764112852,40.080611764112852,40.080611764112852,40.080611764112852,40.080611764112852,40.080611764112852,40.604720781726456,40.604720781726456,40.604720781726456,40.604720781726456,40.604720781726456,40.604720781726456,40.604720781726456,40.604720781726456,40.604720781726456,40.604720781726456,40.604720781726456,40.604720781726456,42.116834786629752,42.116834786629752,42.116834786629752,42.116834786629752,42.116834786629752,42.116834786629752,42.116834786629752,42.116834786629752,42.116834786629752,42.116834786629752,42.116834786629752,42.116834786629752,43.482208118925364,43.482208118925364,43.482208118925364,43.482208118925364,43.482208118925364,43.482208118925364,43.482208118925364,43.482208118925364,43.482208118925364,43.482208118925364,43.482208118925364,43.482208118925364,43.482208118925364,43.482208118925364,43.482208118925364,43.482208118925364,43.482208118925364,43.482208118925364,43.482208118925364,43.482208118925364,43.482208118925364,43.482208118925364,43.482208118925364,43.482208118925364,43.482208118925364,43.482208118925364,43.482208118925364,43.482208118925364,43.482208118925364,43.482208118925364,43.482208118925364,43.482208118925364,43.482208118925364,43.482208118925364,43.482208118925364,43.482208118925364,43.482208118925364,43.482208118925364,43.482208118925364,43.482208118925364,43.482208118925364,43.482208118925364,43.482208118925364,43.482208118925364,43.482208118925364,43.482208118925364,43.482208118925364,43.482208118925364]
[null,"CAREWinter Off-PeakP",null,"CARE","Winter Off-Peak","P",{"$f":"'Hypothetical Res Bill Impact'!$J$52","v":117.21406147986373},98.455822521639888,98.455822521639888,98.455822521639888,98.455822521639888,105.53193562898312,105.53193562898312,105.53193562898312,105.53193562898312,105.53193562898312,105.53193562898312,105.53193562898312,105.53193562898312,105.53193562898312,105.53193562898312,105.53193562898312,105.53193562898312,106.88758920708287,106.88758920708287,106.88758920708287,106.88758920708287,106.88758920708287,106.88758920708287,106.88758920708287,106.88758920708287,106.88758920708287,106.88758920708287,106.88758920708287,106.88758920708287,110.88569707934792,110.88569707934792,110.88569707934792,110.88569707934792,110.88569707934792,110.88569707934792,110.88569707934792,110.88569707934792,110.88569707934792,110.88569707934792,110.88569707934792,110.88569707934792,114.47560964609586,114.47560964609586,114.47560964609586,114.47560964609586,114.47560964609586,114.47560964609586,114.47560964609586,114.47560964609586,114.47560964609586,114.47560964609586,114.47560964609586,114.47560964609586,114.47560964609586,114.47560964609586,114.47560964609586,114.47560964609586,114.47560964609586,114.47560964609586,114.47560964609586,114.47560964609586,114.47560964609586,114.47560964609586,114.47560964609586,114.47560964609586,114.47560964609586,114.47560964609586,114.47560964609586,114.47560964609586,114.47560964609586,114.47560964609586,114.47560964609586,114.47560964609586,114.47560964609586,114.47560964609586,114.47560964609586,114.47560964609586,114.47560964609586,114.47560964609586,114.47560964609586,114.47560964609586,114.47560964609586,114.47560964609586,114.47560964609586,114.47560964609586,114.47560964609586,114.47560964609586,114.47560964609586,114.47560964609586]
[null,"CAREWinter Off-PeakQ",null,"CARE","Winter Off-Peak","Q",{"$f":"'Hypothetical Res Bill Impact'!$J$53","v":0},0,0,0,0,0,0,0,0,0,0,0,0,0,0,0,0,0,0,0,0,0,0,0,0,0,0,0,0,0,0,0,0,0,0,0,0,0,0,0,0,0,0,0,0,0,0,0,0,0,0,0,0,0,0,0,0,0,0,0,0,0,0,0,0,0,0,0,0,0,0,0,0,0,0,0,0,0,0,0,0,0,0,0,0,0,0,0,0]
[null,"CAREWinter Off-PeakR",null,"CARE","Winter Off-Peak","R",{"$f":"'Hypothetical Res Bill Impact'!$J$54","v":89.184611995548494},74.912038875160789,74.912038875160789,74.912038875160789,74.912038875160789,80.296037978574105,80.296037978574105,80.296037978574105,80.296037978574105,80.296037978574105,80.296037978574105,80.296037978574105,80.296037978574105,80.296037978574105,80.296037978574105,80.296037978574105,80.296037978574105,81.327513527128275,81.327513527128275,81.327513527128275,81.327513527128275,81.327513527128275,81.327513527128275,81.327513527128275,81.327513527128275,81.327513527128275,81.327513527128275,81.327513527128275,81.327513527128275,84.369552125590815,84.369552125590815,84.369552125590815,84.369552125590815,84.369552125590815,84.369552125590815,84.369552125590815,84.369552125590815,84.369552125590815,84.369552125590815,84.369552125590815,84.369552125590815,87.101007339420761,87.101007339420761,87.101007339420761,87.101007339420761,87.101007339420761,87.101007339420761,87.101007339420761,87.101007339420761,87.101007339420761,87.101007339420761,87.101007339420761,87.101007339420761,87.101007339420761,87.101007339420761,87.101007339420761,87.101007339420761,87.101007339420761,87.101007339420761,87.101007339420761,87.101007339420761,87.101007339420761,87.101007339420761,87.101007339420761,87.101007339420761,87.101007339420761,87.101007339420761,87.101007339420761,87.101007339420761,87.101007339420761,87.101007339420761,87.101007339420761,87.101007339420761,87.101007339420761,87.101007339420761,87.101007339420761,87.101007339420761,87.101007339420761,87.101007339420761,87.101007339420761,87.101007339420761,87.101007339420761,87.101007339420761,87.101007339420761,87.101007339420761,87.101007339420761,87.101007339420761,87.101007339420761,87.101007339420761]
[null,"CAREWinter Off-PeakS",null,"CARE","Winter Off-Peak","S",{"$f":"'Hypothetical Res Bill Impact'!$J$55","v":99.377139080754034},83.47341474660773,83.47341474660773,83.47341474660773,83.47341474660773,89.472728033268297,89.472728033268297,89.472728033268297,89.472728033268297,89.472728033268297,89.472728033268297,89.472728033268297,89.472728033268297,89.472728033268297,89.472728033268297,89.472728033268297,89.472728033268297,90.622086501657222,90.622086501657222,90.622086501657222,90.622086501657222,90.622086501657222,90.622086501657222,90.622086501657222,90.622086501657222,90.622086501657222,90.622086501657222,90.622086501657222,90.622086501657222,94.011786654229766,94.011786654229766,94.011786654229766,94.011786654229766,94.011786654229766,94.011786654229766,94.011786654229766,94.011786654229766,94.011786654229766,94.011786654229766,94.011786654229766,94.011786654229766,97.055408178211707,97.055408178211707,97.055408178211707,97.055408178211707,97.055408178211707,97.055408178211707,97.055408178211707,97.055408178211707,97.055408178211707,97.055408178211707,97.055408178211707,97.055408178211707,97.055408178211707,97.055408178211707,97.055408178211707,97.055408178211707,97.055408178211707,97.055408178211707,97.055408178211707,97.055408178211707,97.055408178211707,97.055408178211707,97.055408178211707,97.055408178211707,97.055408178211707,97.055408178211707,97.055408178211707,97.055408178211707,97.055408178211707,97.055408178211707,97.055408178211707,97.055408178211707,97.055408178211707,97.055408178211707,97.055408178211707,97.055408178211707,97.055408178211707,97.055408178211707,97.055408178211707,97.055408178211707,97.055408178211707,97.055408178211707,97.055408178211707,97.055408178211707,97.055408178211707,97.055408178211707,97.055408178211707,97.055408178211707]
[null,"CAREWinter Off-PeakT",null,"CARE","Winter Off-Peak","T",{"$f":"'Hypothetical Res Bill Impact'!$J$56","v":78.992084910342953},66.350663003713834,66.350663003713834,66.350663003713834,66.350663003713834,71.119347923879928,71.119347923879928,71.119347923879928,71.119347923879928,71.119347923879928,71.119347923879928,71.119347923879928,71.119347923879928,71.119347923879928,71.119347923879928,71.119347923879928,71.119347923879928,72.032940552599328,72.032940552599328,72.032940552599328,72.032940552599328,72.032940552599328,72.032940552599328,72.032940552599328,72.032940552599328,72.032940552599328,72.032940552599328,72.032940552599328,72.032940552599328,74.727317596951863,74.727317596951863,74.727317596951863,74.727317596951863,74.727317596951863,74.727317596951863,74.727317596951863,74.727317596951863,74.727317596951863,74.727317596951863,74.727317596951863,74.727317596951863,77.146606500629815,77.146606500629815,77.146606500629815,77.146606500629815,77.146606500629815,77.146606500629815,77.146606500629815,77.146606500629815,77.146606500629815,77.146606500629815,77.146606500629815,77.146606500629815,77.146606500629815,77.146606500629815,77.146606500629815,77.146606500629815,77.146606500629815,77.146606500629815,77.146606500629815,77.146606500629815,77.146606500629815,77.146606500629815,77.146606500629815,77.146606500629815,77.146606500629815,77.146606500629815,77.146606500629815,77.146606500629815,77.146606500629815,77.146606500629815,77.146606500629815,77.146606500629815,77.146606500629815,77.146606500629815,77.146606500629815,77.146606500629815,77.146606500629815,77.146606500629815,77.146606500629815,77.146606500629815,77.146606500629815,77.146606500629815,77.146606500629815,77.146606500629815,77.146606500629815,77.146606500629815,77.146606500629815,77.146606500629815]
[null,"CAREWinter Off-PeakV",null,"CARE","Winter Off-Peak","V",{"$f":"'Hypothetical Res Bill Impact'!$J$57","v":109.56966616595957},92.034790618054672,92.034790618054672,92.034790618054672,92.034790618054672,98.649418087962474,98.649418087962474,98.649418087962474,98.649418087962474,98.649418087962474,98.649418087962474,98.649418087962474,98.649418087962474,98.649418087962474,98.649418087962474,98.649418087962474,98.649418087962474,99.916659476186155,99.916659476186155,99.916659476186155,99.916659476186155,99.916659476186155,99.916659476186155,99.916659476186155,99.916659476186155,99.916659476186155,99.916659476186155,99.916659476186155,99.916659476186155,103.6540211828687,103.6540211828687,103.6540211828687,103.6540211828687,103.6540211828687,103.6540211828687,103.6540211828687,103.6540211828687,103.6540211828687,103.6540211828687,103.6540211828687,103.6540211828687,107.00980901700265,107.00980901700265,107.00980901700265,107.00980901700265,107.00980901700265,107.00980901700265,107.00980901700265,107.00980901700265,107.00980901700265,107.00980901700265,107.00980901700265,107.00980901700265,107.00980901700265,107.00980901700265,107.00980901700265,107.00980901700265,107.00980901700265,107.00980901700265,107.00980901700265,107.00980901700265,107.00980901700265,107.00980901700265,107.00980901700265,107.00980901700265,107.00980901700265,107.00980901700265,107.00980901700265,107.00980901700265,107.00980901700265,107.00980901700265,107.00980901700265,107.00980901700265,107.00980901700265,107.00980901700265,107.00980901700265,107.00980901700265,107.00980901700265,107.00980901700265,107.00980901700265,107.00980901700265,107.00980901700265,107.00980901700265,107.00980901700265,107.00980901700265,107.00980901700265,107.00980901700265,107.00980901700265,107.00980901700265]
[null,"CAREWinter Off-PeakW",null,"CARE","Winter Off-Peak","W",{"$f":"'Hypothetical Res Bill Impact'!$J$58","v":86.636480224247109},72.77169490729905,72.77169490729905,72.77169490729905,72.77169490729905,78.001865464900561,78.001865464900561,78.001865464900561,78.001865464900561,78.001865464900561,78.001865464900561,78.001865464900561,78.001865464900561,78.001865464900561,78.001865464900561,78.001865464900561,78.001865464900561,79.003870283496028,79.003870283496028,79.003870283496028,79.003870283496028,79.003870283496028,79.003870283496028,79.003870283496028,79.003870283496028,79.003870283496028,79.003870283496028,79.003870283496028,79.003870283496028,81.958993493431066,81.958993493431066,81.958993493431066,81.958993493431066,81.958993493431066,81.958993493431066,81.958993493431066,81.958993493431066,81.958993493431066,81.958993493431066,81.958993493431066,81.958993493431066,84.612407129723024,84.612407129723024,84.612407129723024,84.612407129723024,84.612407129723024,84.612407129723024,84.612407129723024,84.612407129723024,84.612407129723024,84.612407129723024,84.612407129723024,84.612407129723024,84.612407129723024,84.612407129723024,84.612407129723024,84.612407129723024,84.612407129723024,84.612407129723024,84.612407129723024,84.612407129723024,84.612407129723024,84.612407129723024,84.612407129723024,84.612407129723024,84.612407129723024,84.612407129723024,84.612407129723024,84.612407129723024,84.612407129723024,84.612407129723024,84.612407129723024,84.612407129723024,84.612407129723024,84.612407129723024,84.612407129723024,84.612407129723024,84.612407129723024,84.612407129723024,84.612407129723024,84.612407129723024,84.612407129723024,84.612407129723024,84.612407129723024,84.612407129723024,84.612407129723024,84.612407129723024,84.612407129723024,84.612407129723024]
[null,"CAREWinter Off-PeakX",null,"CARE","Winter Off-Peak","X",{"$f":"'Hypothetical Res Bill Impact'!$J$59","v":86.636480224247109},72.77169490729905,72.77169490729905,72.77169490729905,72.77169490729905,78.001865464900561,78.001865464900561,78.001865464900561,78.001865464900561,78.001865464900561,78.001865464900561,78.001865464900561,78.001865464900561,78.001865464900561,78.001865464900561,78.001865464900561,78.001865464900561,79.003870283496028,79.003870283496028,79.003870283496028,79.003870283496028,79.003870283496028,79.003870283496028,79.003870283496028,79.003870283496028,79.003870283496028,79.003870283496028,79.003870283496028,79.003870283496028,81.958993493431066,81.958993493431066,81.958993493431066,81.958993493431066,81.958993493431066,81.958993493431066,81.958993493431066,81.958993493431066,81.958993493431066,81.958993493431066,81.958993493431066,81.958993493431066,84.612407129723024,84.612407129723024,84.612407129723024,84.612407129723024,84.612407129723024,84.612407129723024,84.612407129723024,84.612407129723024,84.612407129723024,84.612407129723024,84.612407129723024,84.612407129723024,84.612407129723024,84.612407129723024,84.612407129723024,84.612407129723024,84.612407129723024,84.612407129723024,84.612407129723024,84.612407129723024,84.612407129723024,84.612407129723024,84.612407129723024,84.612407129723024,84.612407129723024,84.612407129723024,84.612407129723024,84.612407129723024,84.612407129723024,84.612407129723024,84.612407129723024,84.612407129723024,84.612407129723024,84.612407129723024,84.612407129723024,84.612407129723024,84.612407129723024,84.612407129723024,84.612407129723024,84.612407129723024,84.612407129723024,84.612407129723024,84.612407129723024,84.612407129723024,84.612407129723024,84.612407129723024,84.612407129723024,84.612407129723024]
[null,"CAREWinter Off-PeakY",null,"CARE","Winter Off-Peak","Y",{"$f":"'Hypothetical Res Bill Impact'!$J$60","v":152.88790627808314},128.42063807170419,128.42063807170419,128.42063807170419,128.42063807170419,137.65035082041277,137.65035082041277,137.65035082041277,137.65035082041277,137.65035082041277,137.65035082041277,137.65035082041277,137.65035082041277,137.65035082041277,137.65035082041277,137.65035082041277,137.65035082041277,139.41859461793419,139.41859461793419,139.41859461793419,139.41859461793419,139.41859461793419,139.41859461793419,139.41859461793419,139.41859461793419,139.41859461793419,139.41859461793419,139.41859461793419,139.41859461793419,144.63351792958426,144.63351792958426,144.63351792958426,144.63351792958426,144.63351792958426,144.63351792958426,144.63351792958426,144.63351792958426,144.63351792958426,144.63351792958426,144.63351792958426,144.63351792958426,149.31601258186416,149.31601258186416,149.31601258186416,149.31601258186416,149.31601258186416,149.31601258186416,149.31601258186416,149.31601258186416,149.31601258186416,149.31601258186416,149.31601258186416,149.31601258186416,149.31601258186416,149.31601258186416,149.31601258186416,149.31601258186416,149.31601258186416,149.31601258186416,149.31601258186416,149.31601258186416,149.31601258186416,149.31601258186416,149.31601258186416,149.31601258186416,149.31601258186416,149.31601258186416,149.31601258186416,149.31601258186416,149.31601258186416,149.31601258186416,149.31601258186416,149.31601258186416,149.31601258186416,149.31601258186416,149.31601258186416,149.31601258186416,149.31601258186416,149.31601258186416,149.31601258186416,149.31601258186416,149.31601258186416,149.31601258186416,149.31601258186416,149.31601258186416,149.31601258186416,149.31601258186416,149.31601258186416,149.31601258186416]
[null,"CAREWinter Off-PeakALL CLIMATE ZONES",null,"CARE","Winter Off-Peak","ALL CLIMATE ZONES",{"$f":"'Hypothetical Res Bill Impact'!$J$61","v":90.814341805502821},76.280956451271337,76.280956451271337,76.280956451271337,76.280956451271337,81.763340955924491,81.763340955924491,81.763340955924491,81.763340955924491,81.763340955924491,81.763340955924491,81.763340955924491,81.763340955924491,81.763340955924491,81.763340955924491,81.763340955924491,81.763340955924491,82.813665344117069,82.813665344117069,82.813665344117069,82.813665344117069,82.813665344117069,82.813665344117069,82.813665344117069,82.813665344117069,82.813665344117069,82.813665344117069,82.813665344117069,82.813665344117069,85.911293139819065,85.911293139819065,85.911293139819065,85.911293139819065,85.911293139819065,85.911293139819065,85.911293139819065,85.911293139819065,85.911293139819065,85.911293139819065,85.911293139819065,85.911293139819065,88.692662053859493,88.692662053859493,88.692662053859493,88.692662053859493,88.692662053859493,88.692662053859493,88.692662053859493,88.692662053859493,88.692662053859493,88.692662053859493,88.692662053859493,88.692662053859493,88.692662053859493,88.692662053859493,88.692662053859493,88.692662053859493,88.692662053859493,88.692662053859493,88.692662053859493,88.692662053859493,88.692662053859493,88.692662053859493,88.692662053859493,88.692662053859493,88.692662053859493,88.692662053859493,88.692662053859493,88.692662053859493,88.692662053859493,88.692662053859493,88.692662053859493,88.692662053859493,88.692662053859493,88.692662053859493,88.692662053859493,88.692662053859493,88.692662053859493,88.692662053859493,88.692662053859493,88.692662053859493,88.692662053859493,88.692662053859493,88.692662053859493,88.692662053859493,88.692662053859493,88.692662053859493,88.692662053859493,88.692662053859493]
[null,"CAREWinter On-PeakP",null,"CARE","Winter On-Peak","P",{"$f":"'Hypothetical Res Bill Impact'!$K$52","v":135.05098387897343},113.43823029667205,113.43823029667205,113.43823029667205,113.43823029667205,121.59114322469794,121.59114322469794,121.59114322469794,121.59114322469794,121.59114322469794,121.59114322469794,121.59114322469794,121.59114322469794,121.59114322469794,121.59114322469794,121.59114322469794,121.59114322469794,123.15309191250853,123.15309191250853,123.15309191250853,123.15309191250853,123.15309191250853,123.15309191250853,123.15309191250853,123.15309191250853,123.15309191250853,123.15309191250853,123.15309191250853,123.15309191250853,127.75960750446609,127.75960750446609,127.75960750446609,127.75960750446609,127.75960750446609,127.75960750446609,127.75960750446609,127.75960750446609,127.75960750446609,127.75960750446609,127.75960750446609,127.75960750446609,131.89581111398002,131.89581111398002,131.89581111398002,131.89581111398002,131.89581111398002,131.89581111398002,131.89581111398002,131.89581111398002,131.89581111398002,131.89581111398002,131.89581111398002,131.89581111398002,131.89581111398002,131.89581111398002,131.89581111398002,131.89581111398002,131.89581111398002,131.89581111398002,131.89581111398002,131.89581111398002,131.89581111398002,131.89581111398002,131.89581111398002,131.89581111398002,131.89581111398002,131.89581111398002,131.89581111398002,131.89581111398002,131.89581111398002,131.89581111398002,131.89581111398002,131.89581111398002,131.89581111398002,131.89581111398002,131.89581111398002,131.89581111398002,131.89581111398002,131.89581111398002,131.89581111398002,131.89581111398002,131.89581111398002,131.89581111398002,131.89581111398002,131.89581111398002,131.89581111398002,131.89581111398002,131.89581111398002,131.89581111398002]
[null,"CAREWinter On-PeakQ",null,"CARE","Winter On-Peak","Q",{"$f":"'Hypothetical Res Bill Impact'!$K$53","v":0},0,0,0,0,0,0,0,0,0,0,0,0,0,0,0,0,0,0,0,0,0,0,0,0,0,0,0,0,0,0,0,0,0,0,0,0,0,0,0,0,0,0,0,0,0,0,0,0,0,0,0,0,0,0,0,0,0,0,0,0,0,0,0,0,0,0,0,0,0,0,0,0,0,0,0,0,0,0,0,0,0,0,0,0,0,0,0,0]
[null,"CAREWinter On-PeakR",null,"CARE","Winter On-Peak","R",{"$f":"'Hypothetical Res Bill Impact'!$K$54","v":124.8584567937679},104.87685442522509,104.87685442522509,104.87685442522509,104.87685442522509,112.41445317000375,112.41445317000375,112.41445317000375,112.41445317000375,112.41445317000375,112.41445317000375,112.41445317000375,112.41445317000375,112.41445317000375,112.41445317000375,112.41445317000375,112.41445317000375,113.85851893797958,113.85851893797958,113.85851893797958,113.85851893797958,113.85851893797958,113.85851893797958,113.85851893797958,113.85851893797958,113.85851893797958,113.85851893797958,113.85851893797958,113.85851893797958,118.11737297582714,118.11737297582714,118.11737297582714,118.11737297582714,118.11737297582714,118.11737297582714,118.11737297582714,118.11737297582714,118.11737297582714,118.11737297582714,118.11737297582714,118.11737297582714,121.94141027518906,121.94141027518906,121.94141027518906,121.94141027518906,121.94141027518906,121.94141027518906,121.94141027518906,121.94141027518906,121.94141027518906,121.94141027518906,121.94141027518906,121.94141027518906,121.94141027518906,121.94141027518906,121.94141027518906,121.94141027518906,121.94141027518906,121.94141027518906,121.94141027518906,121.94141027518906,121.94141027518906,121.94141027518906,121.94141027518906,121.94141027518906,121.94141027518906,121.94141027518906,121.94141027518906,121.94141027518906,121.94141027518906,121.94141027518906,121.94141027518906,121.94141027518906,121.94141027518906,121.94141027518906,121.94141027518906,121.94141027518906,121.94141027518906,121.94141027518906,121.94141027518906,121.94141027518906,121.94141027518906,121.94141027518906,121.94141027518906,121.94141027518906,121.94141027518906,121.94141027518906,121.94141027518906,121.94141027518906]
[null,"CAREWinter On-PeakS",null,"CARE","Winter On-Peak","S",{"$f":"'Hypothetical Res Bill Impact'!$K$55","v":135.05098387897343},113.43823029667205,113.43823029667205,113.43823029667205,113.43823029667205,121.59114322469794,121.59114322469794,121.59114322469794,121.59114322469794,121.59114322469794,121.59114322469794,121.59114322469794,121.59114322469794,121.59114322469794,121.59114322469794,121.59114322469794,121.59114322469794,123.15309191250853,123.15309191250853,123.15309191250853,123.15309191250853,123.15309191250853,123.15309191250853,123.15309191250853,123.15309191250853,123.15309191250853,123.15309191250853,123.15309191250853,123.15309191250853,127.75960750446609,127.75960750446609,127.75960750446609,127.75960750446609,127.75960750446609,127.75960750446609,127.75960750446609,127.75960750446609,127.75960750446609,127.75960750446609,127.75960750446609,127.75960750446609,131.89581111398002,131.89581111398002,131.89581111398002,131.89581111398002,131.89581111398002,131.89581111398002,131.89581111398002,131.89581111398002,131.89581111398002,131.89581111398002,131.89581111398002,131.89581111398002,131.89581111398002,131.89581111398002,131.89581111398002,131.89581111398002,131.89581111398002,131.89581111398002,131.89581111398002,131.89581111398002,131.89581111398002,131.89581111398002,131.89581111398002,131.89581111398002,131.89581111398002,131.89581111398002,131.89581111398002,131.89581111398002,131.89581111398002,131.89581111398002,131.89581111398002,131.89581111398002,131.89581111398002,131.89581111398002,131.89581111398002,131.89581111398002,131.89581111398002,131.89581111398002,131.89581111398002,131.89581111398002,131.89581111398002,131.89581111398002,131.89581111398002,131.89581111398002,131.89581111398002,131.89581111398002,131.89581111398002,131.89581111398002]
[null,"CAREWinter On-PeakT",null,"CARE","Winter On-Peak","T",{"$f":"'Hypothetical Res Bill Impact'!$K$56","v":91.732743766849879},77.052382843022514,77.052382843022514,77.052382843022514,77.052382843022514,82.59021049224765,82.59021049224765,82.59021049224765,82.59021049224765,82.59021049224765,82.59021049224765,82.59021049224765,82.59021049224765,82.59021049224765,82.59021049224765,82.59021049224765,82.59021049224765,83.651156770760508,83.651156770760508,83.651156770760508,83.651156770760508,83.651156770760508,83.651156770760508,83.651156770760508,83.651156770760508,83.651156770760508,83.651156770760508,83.651156770760508,83.651156770760508,86.780110757750549,86.780110757750549,86.780110757750549,86.780110757750549,86.780110757750549,86.780110757750549,86.780110757750549,86.780110757750549,86.780110757750549,86.780110757750549,86.780110757750549,86.780110757750549,89.589607549118497,89.589607549118497,89.589607549118497,89.589607549118497,89.589607549118497,89.589607549118497,89.589607549118497,89.589607549118497,89.589607549118497,89.589607549118497,89.589607549118497,89.589607549118497,89.589607549118497,89.589607549118497,89.589607549118497,89.589607549118497,89.589607549118497,89.589607549118497,89.589607549118497,89.589607549118497,89.589607549118497,89.589607549118497,89.589607549118497,89.589607549118497,89.589607549118497,89.589607549118497,89.589607549118497,89.589607549118497,89.589607549118497,89.589607549118497,89.589607549118497,89.589607549118497,89.589607549118497,89.589607549118497,89.589607549118497,89.589607549118497,89.589607549118497,89.589607549118497,89.589607549118497,89.589607549118497,89.589607549118497,89.589607549118497,89.589607549118497,89.589607549118497,89.589607549118497,89.589607549118497,89.589607549118497,89.589607549118497]
[null,"CAREWinter On-PeakV",null,"CARE","Winter On-Peak","V",{"$f":"'Hypothetical Res Bill Impact'!$K$57","v":114.66592970856235},96.315478553778149,96.315478553778149,96.315478553778149,96.315478553778149,103.23776311530958,103.23776311530958,103.23776311530958,103.23776311530958,103.23776311530958,103.23776311530958,103.23776311530958,103.23776311530958,103.23776311530958,103.23776311530958,103.23776311530958,103.23776311530958,104.56394596345064,104.56394596345064,104.56394596345064,104.56394596345064,104.56394596345064,104.56394596345064,104.56394596345064,104.56394596345064,104.56394596345064,104.56394596345064,104.56394596345064,104.56394596345064,108.47513844718819,108.47513844718819,108.47513844718819,108.47513844718819,108.47513844718819,108.47513844718819,108.47513844718819,108.47513844718819,108.47513844718819,108.47513844718819,108.47513844718819,108.47513844718819,111.98700943639813,111.98700943639813,111.98700943639813,111.98700943639813,111.98700943639813,111.98700943639813,111.98700943639813,111.98700943639813,111.98700943639813,111.98700943639813,111.98700943639813,111.98700943639813,111.98700943639813,111.98700943639813,111.98700943639813,111.98700943639813,111.98700943639813,111.98700943639813,111.98700943639813,111.98700943639813,111.98700943639813,111.98700943639813,111.98700943639813,111.98700943639813,111.98700943639813,111.98700943639813,111.98700943639813,111.98700943639813,111.98700943639813,111.98700943639813,111.98700943639813,111.98700943639813,111.98700943639813,111.98700943639813,111.98700943639813,111.98700943639813,111.98700943639813,111.98700943639813,111.98700943639813,111.98700943639813,111.98700943639813,111.98700943639813,111.98700943639813,111.98700943639813,111.98700943639813,111.98700943639813,111.98700943639813,111.98700943639813]
[null,"CAREWinter On-PeakW",null,"CARE","Winter On-Peak","W",{"$f":"'Hypothetical Res Bill Impact'!$K$58","v":124.8584567937679},104.87685442522509,104.87685442522509,104.87685442522509,104.87685442522509,112.41445317000375,112.41445317000375,112.41445317000375,112.41445317000375,112.41445317000375,112.41445317000375,112.41445317000375,112.41445317000375,112.41445317000375,112.41445317000375,112.41445317000375,112.41445317000375,113.85851893797958,113.85851893797958,113.85851893797958,113.85851893797958,113.85851893797958,113.85851893797958,113.85851893797958,113.85851893797958,113.85851893797958,113.85851893797958,113.85851893797958,113.85851893797958,118.11737297582714,118.11737297582714,118.11737297582714,118.11737297582714,118.11737297582714,118.11737297582714,118.11737297582714,118.11737297582714,118.11737297582714,118.11737297582714,118.11737297582714,118.11737297582714,121.94141027518906,121.94141027518906,121.94141027518906,121.94141027518906,121.94141027518906,121.94141027518906,121.94141027518906,121.94141027518906,121.94141027518906,121.94141027518906,121.94141027518906,121.94141027518906,121.94141027518906,121.94141027518906,121.94141027518906,121.94141027518906,121.94141027518906,121.94141027518906,121.94141027518906,121.94141027518906,121.94141027518906,121.94141027518906,121.94141027518906,121.94141027518906,121.94141027518906,121.94141027518906,121.94141027518906,121.94141027518906,121.94141027518906,121.94141027518906,121.94141027518906,121.94141027518906,121.94141027518906,121.94141027518906,121.94141027518906,121.94141027518906,121.94141027518906,121.94141027518906,121.94141027518906,121.94141027518906,121.94141027518906,121.94141027518906,121.94141027518906,121.94141027518906,121.94141027518906,121.94141027518906,121.94141027518906,121.94141027518906]
[null,"CAREWinter On-PeakX",null,"CARE","Winter On-Peak","X",{"$f":"'Hypothetical Res Bill Impact'!$K$59","v":109.56966616595957},92.034790618054672,92.034790618054672,92.034790618054672,92.034790618054672,98.649418087962474,98.649418087962474,98.649418087962474,98.649418087962474,98.649418087962474,98.649418087962474,98.649418087962474,98.649418087962474,98.649418087962474,98.649418087962474,98.649418087962474,98.649418087962474,99.916659476186155,99.916659476186155,99.916659476186155,99.916659476186155,99.916659476186155,99.916659476186155,99.916659476186155,99.916659476186155,99.916659476186155,99.916659476186155,99.916659476186155,99.916659476186155,103.6540211828687,103.6540211828687,103.6540211828687,103.6540211828687,103.6540211828687,103.6540211828687,103.6540211828687,103.6540211828687,103.6540211828687,103.6540211828687,103.6540211828687,103.6540211828687,107.00980901700265,107.00980901700265,107.00980901700265,107.00980901700265,107.00980901700265,107.00980901700265,107.00980901700265,107.00980901700265,107.00980901700265,107.00980901700265,107.00980901700265,107.00980901700265,107.00980901700265,107.00980901700265,107.00980901700265,107.00980901700265,107.00980901700265,107.00980901700265,107.00980901700265,107.00980901700265,107.00980901700265,107.00980901700265,107.00980901700265,107.00980901700265,107.00980901700265,107.00980901700265,107.00980901700265,107.00980901700265,107.00980901700265,107.00980901700265,107.00980901700265,107.00980901700265,107.00980901700265,107.00980901700265,107.00980901700265,107.00980901700265,107.00980901700265,107.00980901700265,107.00980901700265,107.00980901700265,107.00980901700265,107.00980901700265,107.00980901700265,107.00980901700265,107.00980901700265,107.00980901700265,107.00980901700265,107.00980901700265]
[null,"CAREWinter On-PeakY",null,"CARE","Winter On-Peak","Y",{"$f":"'Hypothetical Res Bill Impact'!$K$60","v":173.27296044849422},145.5433898145981,145.5433898145981,145.5433898145981,145.5433898145981,156.00373092980112,156.00373092980112,156.00373092980112,156.00373092980112,156.00373092980112,156.00373092980112,156.00373092980112,156.00373092980112,156.00373092980112,156.00373092980112,156.00373092980112,156.00373092980112,158.00774056699206,158.00774056699206,158.00774056699206,158.00774056699206,158.00774056699206,158.00774056699206,158.00774056699206,158.00774056699206,158.00774056699206,158.00774056699206,158.00774056699206,158.00774056699206,163.91798698686213,163.91798698686213,163.91798698686213,163.91798698686213,163.91798698686213,163.91798698686213,163.91798698686213,163.91798698686213,163.91798698686213,163.91798698686213,163.91798698686213,163.91798698686213,169.22481425944605,169.22481425944605,169.22481425944605,169.22481425944605,169.22481425944605,169.22481425944605,169.22481425944605,169.22481425944605,169.22481425944605,169.22481425944605,169.22481425944605,169.22481425944605,169.22481425944605,169.22481425944605,169.22481425944605,169.22481425944605,169.22481425944605,169.22481425944605,169.22481425944605,169.22481425944605,169.22481425944605,169.22481425944605,169.22481425944605,169.22481425944605,169.22481425944605,169.22481425944605,169.22481425944605,169.22481425944605,169.22481425944605,169.22481425944605,169.22481425944605,169.22481425944605,169.22481425944605,169.22481425944605,169.22481425944605,169.22481425944605,169.22481425944605,169.22481425944605,169.22481425944605,169.22481425944605,169.22481425944605,169.22481425944605,169.22481425944605,169.22481425944605,169.22481425944605,169.22481425944605,169.22481425944605,169.22481425944605]
[null,"CAREWinter On-PeakALL CLIMATE ZONES",null,"CARE","Winter On-Peak","ALL CLIMATE ZONES",{"$f":"'Hypothetical Res Bill Impact'!$K$61","v":119.70673465702308},100.54958315783297,100.54958315783297,100.54958315783297,100.54958315783297,107.77617682287146,107.77617682287146,107.77617682287146,107.77617682287146,107.77617682287146,107.77617682287146,107.77617682287146,107.77617682287146,107.77617682287146,107.77617682287146,107.77617682287146,107.77617682287146,109.1606597177698,109.1606597177698,109.1606597177698,109.1606597177698,109.1606597177698,109.1606597177698,109.1606597177698,109.1606597177698,109.1606597177698,109.1606597177698,109.1606597177698,109.1606597177698,113.2437913160858,113.2437913160858,113.2437913160858,113.2437913160858,113.2437913160858,113.2437913160858,113.2437913160858,113.2437913160858,113.2437913160858,113.2437913160858,113.2437913160858,113.2437913160858,116.91004693118906,116.91004693118906,116.91004693118906,116.91004693118906,116.91004693118906,116.91004693118906,116.91004693118906,116.91004693118906,116.91004693118906,116.91004693118906,116.91004693118906,116.91004693118906,116.91004693118906,116.91004693118906,116.91004693118906,116.91004693118906,116.91004693118906,116.91004693118906,116.91004693118906,116.91004693118906,116.91004693118906,116.91004693118906,116.91004693118906,116.91004693118906,116.91004693118906,116.91004693118906,116.91004693118906,116.91004693118906,116.91004693118906,116.91004693118906,116.91004693118906,116.91004693118906,116.91004693118906,116.91004693118906,116.91004693118906,116.91004693118906,116.91004693118906,116.91004693118906,116.91004693118906,116.91004693118906,116.91004693118906,116.91004693118906,116.91004693118906,116.91004693118906,116.91004693118906,116.91004693118906,116.91004693118906,116.91004693118906]
[]
[null,"Tier Ratio Guess",null,null,null,null,{"$f":"Tier_Ratio_Guess","v":1.24},1.24,1.24,1.24,1.24,1.2370643890195214,1.2370643890195214,1.2370643890195214,1.2370643890195214,1.2370643890195214,1.2370643890195214,1.2370643890195214,1.2370643890195214,1.2370643890195214,1.2370643890195214,1.2370643890195214,1.2370643890195214,1.2348120822740389,1.2348120822740389,1.2348120822740389,1.2348120822740389,1.2348120822740389,1.2348120822740389,1.2348120822740389,1.2348120822740389,1.2348120822740389,1.2348120822740389,1.2348120822740389,1.2348120822740389,1.2340613243709704,1.2340613243709704,1.2340613243709704,1.2340613243709704,1.2340613243709704,1.2340613243709704,1.2340613243709704,1.2340613243709704,1.2340613243709704,1.2340613243709704,1.2340613243709704,1.2340613243709704,1.2332888833042674,1.2332888833042674,1.2332888833042674,1.2332888833042674,1.2332888833042674,1.2332888833042674,1.2332888833042674,1.2332888833042674,1.2332888833042674,1.2332888833042674,1.2332888833042674,1.2332888833042674,1.2332888833042674,1.2332888833042674,1.2332888833042674,1.2332888833042674,1.2332888833042674,1.2332888833042674,1.2332888833042674,1.2332888833042674,1.2332888833042674,1.2332888833042674,1.2332888833042674,1.2332888833042674,1.2332888833042674,1.2332888833042674,1.2332888833042674,1.2332888833042674,1.2332888833042674,1.2332888833042674,1.2332888833042674,1.2332888833042674,1.2332888833042674,1.2332888833042674,1.2332888833042674,1.2332888833042674,1.2332888833042674,1.2332888833042674,1.2332888833042674,1.2332888833042674,1.2332888833042674,1.2332888833042674,1.2332888833042674,1.2332888833042674,1.2332888833042674,1.2332888833042674,1.2332888833042674,1.2332888833042674]
[null,"Tier Ratio ",null,null,null,null,{"$f":"Tier_Ratio","v":1.2070793286915922},1.1996427923842945,1.1996427923842945,1.1996427923842945,1.1996427923842945,1.2000010383295383,1.2000010383295383,1.2000010383295383,1.2000010383295383,1.2000010383295383,1.2000010383295383,1.2000010383295383,1.2000010383295383,1.2000010383295383,1.2000010383295383,1.2000010383295383,1.2000010383295383,1.2000008187996998,1.2000008187996998,1.2000008187996998,1.2000008187996998,1.2000008187996998,1.2000008187996998,1.2000008187996998,1.2000008187996998,1.2000008187996998,1.2000008187996998,1.2000008187996998,1.2000008187996998,1.2000003081182702,1.2000003081182702,1.2000003081182702,1.2000003081182702,1.2000003081182702,1.2000003081182702,1.2000003081182702,1.2000003081182702,1.2000003081182702,1.2000003081182702,1.2000003081182702,1.2000003081182702,1.20000031114742,1.20000031114742,1.20000031114742,1.20000031114742,1.20000031114742,1.20000031114742,1.20000031114742,1.20000031114742,1.20000031114742,1.20000031114742,1.20000031114742,1.20000031114742,1.20000031114742,1.20000031114742,1.20000031114742,1.20000031114742,1.20000031114742,1.20000031114742,1.20000031114742,1.20000031114742,1.20000031114742,1.20000031114742,1.20000031114742,1.20000031114742,1.20000031114742,1.20000031114742,1.20000031114742,1.20000031114742,1.20000031114742,1.20000031114742,1.20000031114742,1.20000031114742,1.20000031114742,1.20000031114742,1.20000031114742,1.20000031114742,1.20000031114742,1.20000031114742,1.20000031114742,1.20000031114742,1.20000031114742,1.20000031114742,1.20000031114742,1.20000031114742,1.20000031114742,1.20000031114742,1.20000031114742,1.20000031114742]